{"text_format":"1","workbook":"xlsx","n_sheets":2,"sheets":["Insumos","Matriz"],"not_rendered":{"charts":0,"images":2,"macros":1,"external_links":0,"defined_names":134,"comments":0,"pivot_tables":0},"unopened":[],"bounds":{"document_bytes":16777216,"sheet_cells":100000,"rows_first":2000,"rows_last":500,"rows_between":2000,"halvings":0,"cell_chars":16384,"cell_head_chars":4096},"cells_cut":0,"cells_raw":0,"read":"whole","date_system":"1900"}

{"sheet":"Insumos","index":0,"n_rows":216,"n_cols":50,"rows_kept":216,"cut":false,"hidden":false,"merged":[]}
["Meta PND 2021 - 2025","Objetivo del Plan Nacional de Desarrollo-PND","Meta de ODS","Objetivo de Desarrollo Sostenible-ODS","ODS",null,"OPND","Objetivo del Plan Nacional de Desarrollo-PND",null,"OPND1","OPND2","OPND3","OPND4","OPND5","OPND6","OPND7","OPND8","OPND9","OPND10","OPND11","OPND12","OPND13","OPND14","OPND15","OPND16",null,"Competencias","Modalidades",null,"ODS","Objetivo de Desarrollo Sostenible-ODS",null,"ODS1","ODS2","ODS3","ODS4","ODS5","ODS6","ODS7","ODS8","ODS9","ODS10","ODS11","ODS12","ODS13","ODS14","ODS15","ODS16","ODS17","N_A"]
["5.1.1. Reducir la tasa de pobreza extrema por ingresos de 15,44% al 10,76%.","5 Proteger a las familias, garantizar sus derechos y servicios, erradicar la pobreza y promover la inclusión social.","1.1 De aquí a 2030, erradicar para todas las personas y en todo el mundo la pobreza extrema(actualmente se considera que sufren pobreza extrema las personas que viven con menos de 1,25 dólares de los Estados Unidos al día)","1 Fin de la pobreza",{"$f":"+MID(D2,1,2)","v":"1 "},null,"OPND1","1. Incrementar y fomentar, de manera inclusiva, las oportunidades de empleo y las condiciones laborales.",null,"1.1.1. Incrementar la tasa de empleo adecuado del 30,41% al 50,00%. ","2.1.1. Incrementar las exportaciones alta, media, baja intensidad tecnológica per cápita de 42,38 al 51,31.","3.1.1. Incrementar el Valor Agregado Bruto (VAB) manufacturero sobre VAB primario de 1,13 al 1,24.","4.1.1 Reducir de 78,22% a 76,02% los gastos primarios del Gobierno respecto al Presupuesto General del Estado","5.1.1. Reducir la tasa de pobreza extrema por ingresos de 15,44% al 10,76%.","6.1.1. Incrementar el porcentaje de nacidos vivos con asistencia de personal de la salud del 96,4% al 98,5%.","7.1.1. Incrementar el porcentaje de personas entre 18 y 29 años con bachillerato completo de 69,75% a 77,89%.","8.1.1. Incrementar el porcentaje de parroquias rurales conectadas con servicio móvil avanzado del 68,45% al 79,00%.","9.1.1. Disminuir la tasa de homicidios intencionales de 106 a 100 por cada 1.000.000 habitantes.  ","10.1.1 Incrementar el índice de ciberseguridad global de 26,3 a 51,3.","11.1.1. Mantener la proporción de territorio nacional bajo conservación o manejo ambiental en 16,45%.","12.1.1. Incrementar de 71 a 96 los instrumentos integrados para aumentar la capacidad adaptación al cambio climático, promover la resiliencia al clima y mitigar el cambio climático sin comprometer la producción de alimentos.","13.1.1. Incrementar el territorio nacional bajo protección hídrica de 18.152,13 a 284.000 hectáreas.","14.1.1 Aumentar la tasa de resolución de 0,84 a 1,06.","15.1.1 Incrementar de 25% a 30% el nivel de confianza institucional en el gobierno. ","16.1.1 Incrementar la ejecución anual de fondos de cooperación internacional no reembolsable de USD 139,84 millones a USD 160,81 millones.",null,"Desarrollo de actividades turísticas ","1.       Gestión institucional directa",null,"ODS1_","1 Fin de la pobreza",null,"OPND5","OPND3","OPND6","OPND7","OPND5","OPND13","OPND12","OPND1","OPND2","OPND7","OPND5","OPND11","OPND12","OPND3","OPND11","OPND4","OPND2","OPND1"]
["5.3.1. Incrementar el porcentaje de personas cubiertas por alguno de los regímenes de seguridad social pública contributiva del 37,56% al 41,73%.","5 Proteger a las familias, garantizar sus derechos y servicios, erradicar la pobreza y promover la inclusión social.","1.3 Implementar a nivel nacional sistemas y medidas apropiados de protección social para todos, incluidos niveles mínimos, y, de aquí a 2030, lograr una amplia cobertura de las personas pobres y vulnerables","1 Fin de la pobreza","1 ",null,"OPND2","2. Impulsar un sistema económico con reglas claras que fomente el comercio exterior, turismo, atracción de inversiones y modernización del sistema financiero nacional.",null,"1.1.2. Reducir la tasa de desempleo juvenil (entre 18 y 29 años) de 10,08% a 8,17%.","2.1.2. Incrementar la participación de las exportaciones no tradicionales en las exportaciones no petroleras totales del 41,16% al 48,36%.","3.1.2. Aumentar el rendimiento de la productividad agrícola nacional de 117,78 a 136,85 tonelada/Hectárea (t/Ha).","4.2.1 Incrementar de 32,91% a 35% la proporción del Presupuesto General del Estado financiados por impuestos internos","5.1.2. Disminuir la tasa de trabajo infantil (de 5 a 14 años) de 6,10% a 4,42%.","6.1.2. Reducir la tasa de mortalidad neonatal de 4,6 al 4,0 por cada 1.000 nacidos vivos.","7.1.2. Incrementar la tasa bruta de matrícula de bachillerato de 87,38% a 89,09%.","8.1.2. Reducir de 70% a 55% la pobreza multidimensional rural, con énfasis en pueblos y nacionalidades y poblaciones vulnerables.","9.1.2. Incrementar el porcentaje de efectividad de las investigaciones, con investigación previa, que permita la desarticulación de grupos delictivos organizados (GDO) del 55.75% al 73,45%",null,"11.2.1. Incrementar de 1.496 a 2.067 fuentes de contaminación hidrocarburíferas remediadas y avaladas.","12.1.2. Reducir del 91,02 a 82,81 la vulnerabilidad al cambio climático, en función de la capacidad de adaptación.","13.2.1. Incrementar las autorizaciones para uso y aprovechamiento del recurso hídrico, de 500 a 12.000.","14.1.2 Reducir la tasa de congestión de 2,15 a 1,61.","15.1.2. Mejorar el posicionamiento en el ranking de percepción de corrupción mundial del puesto 93 al 50","16.1.2 Incrementar el porcentaje de avance en la inserción estratégica del país en la Antártida del 47% al 55%.",null,"Forestación y reforestación ","2.       Empresa pública",null,"ODS2_","2 Hambre cero",null,"OPND8","OPND6","OPND9","OPND8",null,"OPND3",null,"OPND2","OPND3",null,"OPND9","OPND12",null,null,null,"OPND7","OPND3","OPND2"]
["8.1.2. Reducir de 70% a 55% la pobreza multidimensional rural, con énfasis en pueblos y nacionalidades y poblaciones vulnerables.","8 Generar nuevas oportunidades y bienestar para las zonas rurales, con énfasis en pueblos y nacionalidades.","1.2 De aquí a 2030, reducir al menos a la mitad la proporción de hombres, mujeres y niños de todas las edades que viven en la pobreza en todas sus dimensiones con arreglo a las definiciones nacionales","1 Fin de la pobreza","1 ",null,"OPND3","3. Fomentar la productividad y competitividad en los sectores agrícola, industrial, acuícola y pesquero, bajo el enfoque de la economía circular.",null,"1.1.3. Incrementar el porcentaje de personas empleadas mensualmente en actividades artísticas y culturales del 5,19% al 6,00%.","2.2.1. Incrementar la recaudación tributaria anual del sector minero de USD 40.283.952 a USD 248.040.057.","3.1.3. Incrementar las exportaciones agropecuarias y agroindustriales del 13,35% al 17,67%.","4.2.2 Incrementar de 30,64% a 32,61% los ingresos de autogestión respecto a los ingresos totales de los GAD","5.2.1. Disminuir la tasa de femicidios por cada 100.000 mujeres de 0,87 a 0,80.","6.1.3. Reducir la tasa de mortalidad por suicidio de 6,1 al 5,1 por cada 100.000 habitantes. ","7.1.3. Incrementar la tasa bruta de matrícula de Educación General Básica de 93,00% a 97,53%.","8.2.1. Incrementar la tasa bruta de matrícula de Educación General Básica en el área rural de 63,47% a 64,47%.","9.1.3. Incrementar la satisfacción del usuario externo de la Policía Nacional del 77,00% al 84,61%.",null,"11.3.1. Reducir las emisiones de Gases de Efecto Invernadero por deforestación en el sector de Uso del Suelo, Cambio de Uso del Suelo y Silvicultura (USCUSS) de 53.782,59 a 52.706,94 Gg CO2eq.","12.2.1. Incrementar de 0% a 20% la recuperación de los residuos y/o desechos en el marco de la aplicación de las políticas de responsabilidad extendida al productor.","13.2.2. Incrementar la superficie potencial de riego y drenaje de 1.458,46 a 11.461 hectáreas.","14.1.3 Reducir la tasa de pendencia de 1,15 a 0,61.","15.2.1 Al 2024 incrementar de 0,7 a 0.76 el índice de gobierno electrónico.","16.1.3 Incrementar el cumplimiento de compromisos binacionales de 68,7% al 74%.",null,"Gestionar la cooperación internacional ","3.       Gestión por contrato",null,"ODS3_","3 Salud y bienestar",null,"OPND9",null,null,null,null,null,null,"OPND4","OPND5",null,null,null,null,null,null,"OPND9","OPND4","OPND7"]
["9.3.2. Incrementar el nivel de eficiencia en la gestión de identificación del riesgo ejecutada por el Sistema Nacional Descentralizado de Gestión de Riesgos (SNDGR) del 76,36% al 84,00%.","9 Garantizar la seguridad ciudadana, orden público y gestión de riesgos","1.5 De aquí a 2030, fomentar la resiliencia de los pobres y las personas que se encuentran en situaciones de vulnerabilidad y reducir su exposición y vulnerabilidad a los fenómenos extremos relacionados con el clima y otras perturbaciones y desastres económicos, sociales y ambientales","1 Fin de la pobreza","1 ",null,"OPND4","4. Garantizar la gestión de las finanzas públicas de manera sostenible y transparente.",null,"1.1.4. Aumentar el número de personas con discapacidad y/o sustitutos insertados en el sistema laboral de 70.273 a 74.547.","2.2.2. Incrementar las exportaciones mineras anuales de USD 921.935.961 a USD 4.040.016.198.","3.1.4. Aumentar la tasa de cobertura con riego tecnificado parcelario para pequeños y medianos productores del 15,86% al 38,88%.","4.3.1. Aumentar de 66,67% a 91,67% las empresas públicas en operación con EBITDA (por sus siglas en inglés: Earnings Before Interests, Tax, Depreciation and Amortization) positivo.","5.2.2. Reducir la brecha de empleo adecuado entre hombres y mujeres del 33,50% al 28,45%.","6.1.4. Reducir la tasa de mortalidad atribuida al cáncer en la población de 21 a 75 años de 30,0 al 28,6 por cada 100.000 habitantes.","7.2.1. Incrementar el porcentaje de instituciones educativas fiscales con cobertura de internet con fines pedagógicos de 41,93% a 65,92%. ","8.2.2. Incrementar la tasa bruta de matrícula de bachillerato en el área rural de 48,65% al 54,91%. ","9.2.1 Disminuir la tasa de mortalidad por accidentes de tránsito, in situ, de 12,62 a 11,96, por cada 100.000 habitantes.",null,null,"12.2.2. Evitar que la brecha entre huella ecológica y biocapacidad per cápita no sea inferior a 0,30 hectáreas globales.","13.2.3. Incrementar la superficie del territorio nacional con planes de gestión integral de recursos hídricos de 208.959,12 a 452.000 hectáreas.","14.1.4 Incrementar de 3,87 a 5 defensores públicos por cada 100.000 habitantes.","15.2.2 Incrementar de 20,45% a 52,27% la participación de entidades públicas en el proceso de Gobierno Abierto Ecuador.","16.2.1 Incrementar el porcentaje de avance en la definición del límite exterior de la plataforma continental más allá de las 200 millas náuticas del 8,33% al 100%.",null,"Planificar el desarrollo territorial y formular los correspondientes planes de ordenamiento territorial  ","4.       Delegación a otros niveles de gobierno",null,"ODS4_","4 Educación de calidad",null,null,null,null,null,null,null,null,"OPND5","OPND7",null,null,null,null,null,null,"OPND14","OPND16","OPND10"]
["9.3.3 Incrementar el nivel de eficiencia en la gestión de manejo de desastre del riesgo ejecutada por el Sistema Nacional Descentralizado de Gestión de Riesgos (SNDGR) del 73,25% al 80,58%.","9 Garantizar la seguridad ciudadana, orden público y gestión de riesgos","1.5 De aquí a 2030, fomentar la resiliencia de los pobres y las personas que se encuentran en situaciones de vulnerabilidad y reducir su exposición y vulnerabilidad a los fenómenos extremos relacionados con el clima y otras perturbaciones y desastres económicos, sociales y ambientales","1 Fin de la pobreza","1 ",null,"OPND5","5. Proteger a las familias, garantizar sus derechos y servicios, erradicar la pobreza y promover la inclusión social.",null,"1.1.5. Incrementar para el 2025 la tasa acumulada de acceso al menos a la clase media en 30,39%","2.2.3. Incrementar el mantenimiento de la red vial estatal con modelos de gestión sostenible del 17,07% al 40%.","3.1.5. Incrementar el Valor Agregado Bruto (VAB) acuícola y pesquero de camarón sobre VAB primario del 11,97% al 13,28%.","4.4.1 Reducir de 60,7% a 57% la deuda pública y otras obligaciones de pago con relación al Producto Interno Bruto","5.2.3. Reducir la brecha salarial entre hombres y mujeres del 15,34% al 11,27%.","6.1.5. Incrementar las personas que conocen su estado serológico y se encuentran en tratamiento para VIH del 89% al 92%.","7.3.1. Incrementar el porcentaje de respuesta a la atención de víctimas de violencia para que cuenten con un plan de acompañamiento pasando de 67,60% a 95,00%.","8.2.3. Implementar el Modelo de Sistema de Educación Intercultural Bilingüe (MOSEIB), en el 5,41% de instituciones del Sistema de Educación Intercultural Bilingüe.","9.2.2 Reducir la tasa de accidentes en la operación de transporte aéreo comercial de 1,91 a 1,26",null,null,"12.3.1. Reducir de 79.833 a 62.917 kBEP la energía utilizada en los sectores de consumo.","13.3.1. Se beneficia a 3.5 millones de habitantes a través de proyectos cofinanciados por el Estado para acceso a agua apta para el consumo humano y saneamiento.","14.2.1. Los GAD municipales incrementan su capacidad operativa de 18,03 a 22,03 puntos en promedio. ",null,null,null,"Planificar, construir y mantener el sistema vial regional, la vialidad urbana; y planificar y mantener en coordinación con los gobiernos provinciales la vialidad parroquial rural. ","5.       Gestión compartida entre diversos GAD",null,"ODS5_","5 Igualdad de género",null,null,null,null,null,null,null,null,"OPND8","OPND8",null,null,null,null,null,null,"OPND15",null,"OPND14"]
["7.1.1. Incrementar el porcentaje de personas entre 18 y 29 años con bachillerato completo de 69,75% a 77,89%.","7 Potenciar las capacidades de la ciudadanía y promover una educación innovadora, inclusiva y de calidad en todos los niveles.","10.2 De aquí a 2030, potenciar y promover la inclusión social, económica y política de todas las personas, independientemente de su edad, sexo, discapacidad, raza, etnia, origen, religión o situación económica u otra condición","10 Reducción de las desigualdades","10",null,"OPND6","6. Garantizar el derecho a la salud integral, gratuita y de calidad.",null,null,"2.2.4. Incrementar la Inversión Extranjera Directa de USD 1.189,83 millones a USD 2.410,17 millones.","3.1.6. Reducir el Valor Agregado Bruto (VAB) Pesca (excepto de camarón) sobre VAB primario del 7,00% al 6,73%.","4.5.1 Alcanzar un superávit global de SPNF a 2025 de 0,35% del PIB.","5.3.1. Incrementar el porcentaje de personas cubiertas por alguno de los regímenes de seguridad social pública contributiva del 37,56% al 41,73%.","6.1.6 Reducir el gasto de bolsillo como porcentaje del gasto total en salud de 31,37% a 26,87%.","7.4.1. Incrementar los artículos publicados por las universidades y escuelas politécnicas en revistas indexadas de 6.624 a 12.423.","8.3.1. Incrementar los sitios patrimoniales de gestión cultural comunitaria habilitados y puestos en valor para efectuar procesos de turismo rural sostenible, de 0 a 20. ","9.3.1 Reducir la tasa de muertes por desastres de 0,11 a 0,06 por cada 100.000 habitantes.",null,null,"12.3.2. Reducir a 10,50% las pérdidas de energía eléctrica a nivel nacional.",null,"14.2.2. Los GAD provinciales incrementan su capacidad operativa de 18,89 a 22,87 puntos en promedio.",null,null,null,"Protección integral a la niñez y adolescencia","6.       Cogestión de los GAD con la comunidad",null,"ODS6_","6 Agua limpia y saneamiento",null,null,null,null,null,null,null,null,"OPND12","OPND16",null,null,null,null,null,null,null,null,"OPND16"]
["7.5.1. Incrementar el porcentaje de atletas con discapacidad de alto rendimiento del 10,66% al 11,31%.","7 Potenciar las capacidades de la ciudadanía y promover una educación innovadora, inclusiva y de calidad en todos los niveles.","10.2 De aquí a 2030, potenciar y promover la inclusión social, económica y política de todas las personas, independientemente de su edad, sexo, discapacidad, raza, etnia, origen, religión o situación económica u otra condición","10 Reducción de las desigualdades","10",null,"OPND7","7. Potenciar las capacidades de la ciudadanía y promover una educación innovadora, inclusiva y de calidad en todos los niveles.",null,null,"2.2.5. Aumentar las solicitudes de patentes nacionales presentadas de 64 a 93.","3.1.7. Incrementar el valor agregado por manufactura per cápita de 879 a 1.065.","4.5.2 Alcanzar un crecimiento anual del Producto Interno Bruto del 5% en el 2025","5.4.1. Reducir el déficit habitacional de vivienda del 58,00% al 48,44%.","6.2.1. Incrementar la vacunación de neumococo en la población menor de 1 año de 76,09% a 88,05%. ","7.4.2. Incrementar la tasa bruta de matrícula en educación superior terciaria del 37,34% al 50,27%. ",null,"9.3.2. Incrementar el nivel de eficiencia en la gestión de identificación del riesgo ejecutada por el Sistema Nacional Descentralizado de Gestión de Riesgos (SNDGR) del 76,36% al 84,00%.",null,null,"12.3.3. Incrementar de 21.6 a 50.5 millones el ahorro de combustibles en Barriles Equivalentes de Petróleo, optimizando el proceso de generación eléctrica y la eficiencia energética en el sector de hidrocarburos.",null,"14.3.1 Incrementar de 16,84 a 38,84 el Índice de Implementación de la Mejora Regulatoria en el Estado para optimizar la calidad de vida de los ciudadanos, el clima de negocios y la competitividad.",null,null,null,"Administrar el registro de la propiedad ","7.       Empresa de economía mixta",null,"ODS7_","7 Energía asequible y no contaminante"]
["5.4.1. Reducir el déficit habitacional de vivienda del 58,00% al 48,44%.","5 Proteger a las familias, garantizar sus derechos y servicios, erradicar la pobreza y promover la inclusión social.","11.1 De aquí a 2030, asegurar el acceso de todas las personas a viviendas y servicios básicos adecuados, seguros y asequibles y mejorar los barrios marginales","11 Ciudades y comunidades sostenibles","11",null,"OPND8","8. Generar nuevas oportunidades y bienestar para las zonas rurales, con énfasis en pueblos y nacionalidades.",null,null,"2.2.6 Incrementar la Inversión Privada Nacional y Extranjera de USD 1.676,90 millones a USD 7.104,68 millones. (USD 23,5 miles de millones acumulados)","3.2.1. Incrementar de 85,97% al 86,85% la participación de los alimentos producidos en el país en el consumo de los hogares ecuatorianos.","4.6.1. Incrementar el porcentaje promedio de cobertura de pasivos del primer sistema de balance del Banco Central del Ecuador respecto a las Reservas Internacionales del 88% al 97%.","5.5.1. Incrementar la cobertura poblacional con tecnología 4G o superior del 60,74% al 92,00%.","6.2.2. Incrementar la vacunación de rotavirus en la población menor de 1 año de 75,19% a 81,24%.  ","7.4.3. Disminuir la tasa de deserción en el primer año en la educación superior del 21,84% al 19,89%.",null,"9.3.3 Incrementar el nivel de eficiencia en la gestión de manejo de desastre del riesgo ejecutada por el Sistema Nacional Descentralizado de Gestión de Riesgos (SNDGR) del 73,25% al 80,58%.",null,null,"12.3.4. Incrementar de 6.424 a 6.954 megavoltiamperio (MVA) la capacidad en potencia instalada en subestaciones de distribución, para atender el crecimiento de la demanda de los sectores residencial, comercial e industrial.",null,"14.3.2 Aumentar el índice de percepción de calidad de los servicios públicos de 6,08 a 8,00.",null,null,null,"Crear, modificar, exonerar o suprimir mediante ordenanzas, tasas y contribuciones especiales de mejoras ","8.       Delegación a la economía social y solidaria y a la iniciativa privada ",null,"ODS8_","8 Trabajo decente y crecimiento económico"]
["9.3.1 Reducir la tasa de muertes por desastres de 0,11 a 0,06 por cada 100.000 habitantes.","9 Garantizar la seguridad ciudadana, orden público y gestión de riesgos","11.5 De aquí a 2030, reducir significativamente el número de muertes causadas por los desastres, incluidos los relacionados con el agua, y de personas afectadas por ellos, y reducir considerablemente las pérdidas económicas directas provocadas por los desastres en comparación con el producto interno bruto mundial, haciendo especial hincapié en la protección de los pobres y las personas en situaciones de vulnerabilidad","11 Ciudades y comunidades sostenibles","11",null,"OPND9","9. Garantizar la seguridad ciudadana, orden público y gestión de riesgos",null,null,"2.2.7 Incrementar el volumen de producción de hidrocarburos de 516.083 BEP a 1 millón del BEP hasta el año 2025.","3.3.1. Incrementar del 4% al 25% el porcentaje de productores asociados, registrados como Agricultura Familiar Campesina que se vinculan a sistemas de comercialización.",null,"5.5.2. Incrementar la penetración de Internet móvil y fijo del 68,08% al 78,00%.","6.2.3. Incrementar la vacunación de sarampión, rubeola y parodititis (SRP) en la población de 12 a 23 meses de 70,35% a 82,21%.","7.4.4. Incrementar el número de investigadores por cada 1.000 habitantes de la Población Económicamente Activa de 0,55 a 0,75.",null,"9.4.1 Reducir el número de muertes por violencia intracarcelaria en los Centros de Privación de Libertad de 130 a 88. ",null,null,"12.3.5. Incrementar la capacidad instalada de generación eléctrica de 821,44 a 1.518,44 megavatios (MW).",null,null,null,null,null,"Delimitar, regular, autorizar y controlar el uso de las playas de mar, riberas y lechos de ríos, lagos y lagunas, sin perjuicio de las limitaciones que establezca la ley. ","9.       Mancomunidad",null,"ODS9_","9 Industria, innovación e infraestructura"]
["11.2.1. Incrementar de 1.496 a 2.067 fuentes de contaminación hidrocarburíferas remediadas y avaladas.","11 Conservar, restaurar, proteger y hacer un uso sostenible de los recursos naturales","12.4 De aquí a 2020, lograr la gestión ecológicamente racional de los productos químicos y de todos los desechos a lo largo de su ciclo de vida, de conformidad con los marcos internacionales convenidos, y reducir significativamente su liberación a la atmósfera, el agua y el suelo a fin de minimizar sus efectos adversos en la salud humana y el medio ambiente","12 Producción y consumo responsables","12",null,"OPND10","10. Garantizar la soberanía nacional, integridad territorial y seguridad del Estado",null,null,"2.3.1. Aumentar el ingreso de divisas por concepto de turismo receptor de USD 704,67 millones a USD 2.434,60 millones.","3.3.2. Incrementar en 2.750 mujeres rurales que se desempeñan como promotoras de sistemas de producción sostenibles.",null,null,"6.3.1. Reducir la razón de muerte materna de 57,6 a 38,41 fallecimientos por cada 100.000 nacidos vivos.","7.4.5. Incrementar el número de personas tituladas de educación superior técnica y tecnológica de 23.274 a 28.756.",null,"9.4.2 Reducir el porcentaje de hacinamiento en los Centros de Privación de Libertad del 29,83% al 20,42%.",null,null,null,null,null,null,null,null,"Ejercer el control sobre el uso y ocupación del suelo del cantón  ","10.   Consorcio",null,"ODS10_","10 Reducción de las desigualdades"]
["12.2.1. Incrementar de 0% a 20% la recuperación de los residuos y/o desechos en el marco de la aplicación de las políticas de responsabilidad extendida al productor.","12 Fomentar modelos de desarrollo sostenibles aplicando medidas de adaptación y mitigación al Cambio Climático","12.5 De aquí a 2030, reducir considerablemente la generación de desechos mediante actividades de prevención, reducción, reciclado y reutilización","12 Producción y consumo responsables","12",null,"OPND11","11. Conservar, restaurar, proteger y hacer un uso sostenible de los recursos naturales",null,null,"2.3.2. Incrementar las llegadas de extranjeros no residentes al país de 468.894 en 2020 a 2.000.000 en 2025.",null,null,null,"6.3.2. Disminuir la tasa de nacimientos por embarazo adolescente (15 a 19 años de edad) del 54,6 al 39,4 por cada 1.000 nacidos vivos. ","7.4.6. Incrementar el número estudiantes matriculados en educación superior en las modalidades a distancia y en línea de 78.076 a 125.417.",null,"9.4.3 Disminuir  la Tasa de Personas Privadas de Libertad (PPL) custodiadas por cada Servidor del Cuerpo de Seguridad y Vigilancia Penitenciaria (SCSVP) en los Centros de Privación de Libertad (CPL) de 26 PPL a 10 PPL custodiadas por cada SCSVP",null,null,null,null,null,null,null,null,"Ejercicio de las competencias de protección integral a la niñez y adolescencia",null,null,"ODS11_","11 Ciudades y comunidades sostenibles"]
["12.1.1. Incrementar de 71 a 96 los instrumentos integrados para aumentar la capacidad adaptación al cambio climático, promover la resiliencia al clima y mitigar el cambio climático sin comprometer la producción de alimentos.","12 Fomentar modelos de desarrollo sostenibles aplicando medidas de adaptación y mitigación al Cambio Climático","13.2 Incorporar medidas relativas al cambio climático en las políticas, estrategias y planes nacionales","13 Acción por el clima","13",null,"OPND12","12. Fomentar modelos de desarrollo sostenibles aplicando medidas de adaptación y mitigación al Cambio Climático",null,null,"2.3.3. Aumentar el empleo en las principales actividades turísticas de 460.498 a 495.820.",null,null,null,"6.4.1. Reducir 6 puntos porcentuales la Desnutrición Crónica Infantil en menores de 2 años.","7.5.1. Incrementar el porcentaje de atletas con discapacidad de alto rendimiento del 10,66% al 11,31%.",null,"9.4.4 Reducir el número de situaciones de crisis en los Centros de Privación de Libertad de 118 a 79.",null,null,null,null,null,null,null,null,"Formar y administrar catastros inmobiliarios urbanos y rurales  ",null,null,"ODS12_","12 Producción y consumo responsables"]
["12.1.2. Reducir del 91,02 a 82,81 la vulnerabilidad al cambio climático, en función de la capacidad de adaptación.","12 Fomentar modelos de desarrollo sostenibles aplicando medidas de adaptación y mitigación al Cambio Climático","13.1 Fortalecer la resiliencia y la capacidad de adaptación a los riesgos relacionados con el clima y los desastres naturales en todos los países","13 Acción por el clima","13",null,"OPND13","13. Promover la gestión integral de los recursos hídricos",null,null,"2.4.1. Incrementar del 1,49% al 1,80% la contribución de las actividades culturales en el Producto Interno Bruto.",null,null,null,"6.5.1. Incrementar la proporción de médicos familiares que trabajan haciendo atención primaria de 1,14 a 1,71 por cada 10.000 habitantes.",null,null,null,null,null,null,null,null,null,null,null,"Gestionar los servicios de prevención, protección, socorro y extinción de incendios  ",null,null,"ODS13_","13 Acción por el clima"]
["3.1.5. Incrementar el Valor Agregado Bruto (VAB) acuícola y pesquero de camarón sobre VAB primario del 11,97% al 13,28%.","3 Fomentar la productividad y competitividad en los sectores agrícola, industrial, acuícola y pesquero, bajo el enfoque de la economía circular","14.7 De aquí a 2030, aumentar los beneficios económicos que los pequeños Estados insulares en desarrollo y los países menos adelantados obtienen del uso sostenible de los recursos marinos, en particular mediante la gestión sostenible de la pesca, la acuicultura y el turismo","14 Vida submarina","14",null,"OPND14","14. Fortalecer las capacidades del Estado con énfasis en la administración de justicia y eficiencia en los procesos de regulación y control, con independencia y autonomía.",null,null,"2.4.2. Incrementar el número de nuevas obras artísticas culturales certificadas al año, en derechos de autor y derechos conexos de 2.429 a 3.912.",null,null,null,"6.5.2. Incrementar la proporción de enfermeras que trabajan en los servicios de salud de 0,65 a 0,76 por cada médico.",null,null,null,null,null,null,null,null,null,null,null,"Planificar, construir y mantener la infraestructura física y los equipamientos de los espacios públicos destinados al desarrollo social, cultural y deportivo",null,null,"ODS14_","14 Vida submarina"]
["3.1.6. Reducir el Valor Agregado Bruto (VAB) Pesca (excepto de camarón) sobre VAB primario del 7,00% al 6,73%.","3 Fomentar la productividad y competitividad en los sectores agrícola, industrial, acuícola y pesquero, bajo el enfoque de la economía circular","14.7 De aquí a 2030, aumentar los beneficios económicos que los pequeños Estados insulares en desarrollo y los países menos adelantados obtienen del uso sostenible de los recursos marinos, en particular mediante la gestión sostenible de la pesca, la acuicultura y el turismo","14 Vida submarina","14",null,"OPND15","15. Fomentar la ética pública, la transparencia y la lucha contra la corrupción.",null,null,"2.4.3. Incrementar el porcentaje de contribución de importaciones en bienes de uso artístico y cultural en las importaciones totales del país de 9,33% a 10,69%.",null,null,null,"6.6.1. Reducir el porcentaje de adolescentes entre 13 y 15 años que consumen tabaco del 0,52 al 0,34.",null,null,null,null,null,null,null,null,null,null,null,"Planificar, regular y controlar el tránsito,  el transporte y terrestre y seguridad vial ",null,null,"ODS15_","15 Vida de ecosistemas terrestres"]
["11.1.1. Mantener la proporción de territorio nacional bajo conservación o manejo ambiental en 16,45%.","11 Conservar, restaurar, proteger y hacer un uso sostenible de los recursos naturales","15.1 De aquí a 2020, asegurar la conservación, el restablecimiento y el uso sostenible de los ecosistemas terrestres y los ecosistemas interiores de agua dulce y sus servicios, en particular los bosques, los humedales, las montañas y las zonas áridas, en consonancia con las obligaciones contraídas en virtud de acuerdos internacionales","15 Vida de ecosistemas terrestres","15",null,"OPND16","16. Promover la integración regional, la inserción estratégica del país en el mundo y garantizar los derechos de las personas en situación de movilidad humana.",null,null,null,null,null,null,"6.7.1. Reducir la prevalencia de actividad física insuficiente en la población de niñas, niños y jóvenes (5-17 años) del 88,21% al 83,21%.",null,null,null,null,null,null,null,null,null,null,null,"Preservar y garantizar el acceso efectivo de las personas al uso de las playas de mar, riberas de ríos, lagos y lagunas. ",null,null,"ODS16_","16 Paz, justicia e instituciones sólidas"]
["11.3.1. Reducir las emisiones de Gases de Efecto Invernadero por deforestación en el sector de Uso del Suelo, Cambio de Uso del Suelo y Silvicultura (USCUSS) de 53.782,59 a 52.706,94 Gg CO2eq.","11 Conservar, restaurar, proteger y hacer un uso sostenible de los recursos naturales","15.2 De aquí a 2020, promover la puesta en práctica de la gestión sostenible de todos los tipos de bosques, detener la deforestación, recuperar los bosques degradados y aumentar considerablemente la forestación y la reforestación a nivel mundial","15 Vida de ecosistemas terrestres","15",null,null,null,null,null,null,null,null,null,"6.7.2. Reducir la prevalencia de actividad física insuficiente en la población adulta (18-69 años) del 17,80% al 13,00%.",null,null,null,null,null,null,null,null,null,null,null,"Preservar, mantener y difundir el patrimonio arquitectónico y cultural",null,null,"ODS17_","17 Alianzas para lograr los objetivos"]
["4.1.1 Reducir de 78,22% a 76,02% los gastos primarios del Gobierno respecto al Presupuesto General del Estado","4 Garantizar la gestión de las finanzas públicas de manera sostenible y transparente.","16.6 Crear a todos los niveles instituciones eficaces y transparentes que rindan cuentas","16 Paz, justicia e instituciones sólidas","16",null,null,null,null,null,null,null,null,null,"6.7.3. Reducir el tiempo de comportamiento sedentario en un día normal de 120 minutos a 114 minutos en la población de niñas, niños y jóvenes (5-17 años).",null,null,null,null,null,null,null,null,null,null,null,"Prestar los de servicios públicos: agua potable, alcantarillado, depuración de aguas residuales, manejo de desechos sólidos y actividades de saneamiento ambiental ",null,null,"N_A","N/A"]
["7.3.1. Incrementar el porcentaje de respuesta a la atención de víctimas de violencia para que cuenten con un plan de acompañamiento pasando de 67,60% a 95,00%.","7 Potenciar las capacidades de la ciudadanía y promover una educación innovadora, inclusiva y de calidad en todos los niveles.","16.2 Poner fin al maltrato, la explotación, la trata y todas las formas de violencia y tortura contra los niños","16 Paz, justicia e instituciones sólidas","16",null,null,null,null,null,null,null,null,null,"6.7.4. Reducir el tiempo de comportamiento sedentario en un día normal de 150 minutos a 143 minutos en la población adulta (18-69 años).",null,null,null,null,null,null,null,null,null,null,null,"Regular, autorizar y controlar la explotación de materiales áridos y pétreos, que se encuentren en los lechos de ríos, lagos, playas de mar y canteras     "]
["9.1.1. Disminuir la tasa de homicidios intencionales de 106 a 100 por cada 1.000.000 habitantes.  ","9 Garantizar la seguridad ciudadana, orden público y gestión de riesgos","16.1 Reducir significativamente todas las formas de violencia y las correspondientes tasas de mortalidad en todo el mundo","16 Paz, justicia e instituciones sólidas","16",null,null,null,null,null,null,null,null,null,null,null,null,null,null,null,null,null,null,null,null,null,"Determinar las políticas de investigación e innovación del conocimiento, desarrollo y transferencia de tecnologías necesarias para el desarrollo provincial"]
["9.1.2. Incrementar el porcentaje de efectividad de las investigaciones, con investigación previa, que permita la desarticulación de grupos delictivos organizados (GDO) del 55.75% al 73,45%","9 Garantizar la seguridad ciudadana, orden público y gestión de riesgos","16.a Fortalecer las instituciones nacionales pertinentes, incluso mediante la cooperación internacional, para crear a todos los niveles, particularmente en los países en desarrollo, la capacidad de prevenir la violencia y combatir el terrorismo y la delincuencia","16 Paz, justicia e instituciones sólidas","16",null,null,null,null,null,null,null,null,null,null,null,null,null,null,null,null,null,null,null,null,null,"Dragado y relleno hidráulico "]
["9.1.3. Incrementar la satisfacción del usuario externo de la Policía Nacional del 77,00% al 84,61%.","9 Garantizar la seguridad ciudadana, orden público y gestión de riesgos","16.6 Crear a todos los niveles instituciones eficaces y transparentes que rindan cuentas","16 Paz, justicia e instituciones sólidas","16",null,null,null,null,null,null,null,null,null,null,null,null,null,null,null,null,null,null,null,null,null,"Fomentar las actividades productivas regionales, provinciales. Incentivar el desarrollo de las actividades productivas comunitarias  "]
["9.4.1 Reducir el número de muertes por violencia intracarcelaria en los Centros de Privación de Libertad de 130 a 88. ","9 Garantizar la seguridad ciudadana, orden público y gestión de riesgos","16.1 Reducir significativamente todas las formas de violencia y las correspondientes tasas de mortalidad en todo el mundo","16 Paz, justicia e instituciones sólidas","16",null,null,null,null,null,null,null,null,null,null,null,null,null,null,null,null,null,null,null,null,null,"Gestión Ambiental "]
["9.4.2 Reducir el porcentaje de hacinamiento en los Centros de Privación de Libertad del 29,83% al 20,42%.","9 Garantizar la seguridad ciudadana, orden público y gestión de riesgos","16.3 Promover el estado de derecho en los planos nacional e internacional y garantizar la igualdad de acceso a la justicia para todos","16 Paz, justicia e instituciones sólidas","16",null,null,null,null,null,null,null,null,null,null,null,null,null,null,null,null,null,null,null,null,null,"Ejecutar, en coordinación con el gobierno regional, obras en cuencas y micro cuencas"]
["9.4.3 Disminuir  la Tasa de Personas Privadas de Libertad (PPL) custodiadas por cada Servidor del Cuerpo de Seguridad y Vigilancia Penitenciaria (SCSVP) en los Centros de Privación de Libertad (CPL) de 26 PPL a 10 PPL custodiadas por cada SCSVP","9 Garantizar la seguridad ciudadana, orden público y gestión de riesgos","16.a Fortalecer las instituciones nacionales pertinentes, incluso mediante la cooperación internacional, para crear a todos los niveles, particularmente en los países en desarrollo, la capacidad de prevenir la violencia y combatir el terrorismo y la delincuencia","16 Paz, justicia e instituciones sólidas","16",null,null,null,null,null,null,null,null,null,null,null,null,null,null,null,null,null,null,null,null,null,"Planificar, construir, operar  y mantener sistemas de riego  "]
["9.4.4 Reducir el número de situaciones de crisis en los Centros de Privación de Libertad de 118 a 79.","9 Garantizar la seguridad ciudadana, orden público y gestión de riesgos","16.3 Promover el estado de derecho en los planos nacional e internacional y garantizar la igualdad de acceso a la justicia para todos","16 Paz, justicia e instituciones sólidas","16",null,null,null,null,null,null,null,null,null,null,null,null,null,null,null,null,null,null,null,null,null,"Promover la organización de los ciudadanos de las comunas, recintos y demás asentamientos rurales, con el carácter de organizaciones territoriales de base. "]
["14.1.1 Aumentar la tasa de resolución de 0,84 a 1,06.","14 Fortalecer las capacidades del Estado con énfasis en la administración de justicia y eficiencia en los procesos de regulación y control, con independencia y autonomía.","16.6 Crear a todos los niveles instituciones eficaces y transparentes que rindan cuentas","16 Paz, justicia e instituciones sólidas","16",null,null,null,null,null,null,null,null,null,null,null,null,null,null,null,null,null,null,null,null,null,"Vigilar la ejecución de obras y la calidad de los servicios públicos"]
["14.1.2 Reducir la tasa de congestión de 2,15 a 1,61.","14 Fortalecer las capacidades del Estado con énfasis en la administración de justicia y eficiencia en los procesos de regulación y control, con independencia y autonomía.","16.6 Crear a todos los niveles instituciones eficaces y transparentes que rindan cuentas","16 Paz, justicia e instituciones sólidas","16",null,null,null,null,null,null,null,null,null,null,null,null,null,null,null,null,null,null,null,null,null,"Planificar, construir y mantener la infraestructura física, los equipamientos y los espacios públicos de la parroquia"]
["14.1.3 Reducir la tasa de pendencia de 1,15 a 0,61.","14 Fortalecer las capacidades del Estado con énfasis en la administración de justicia y eficiencia en los procesos de regulación y control, con independencia y autonomía.","16.6 Crear a todos los niveles instituciones eficaces y transparentes que rindan cuentas","16 Paz, justicia e instituciones sólidas","16",null,null,null,null,null,null,null,null,null,null,null,null,null,null,null,null,null,null,null,null,null,"Incentivar el desarrollo de actividades productivas comunitarias la preservación de la biodiversidad y la protección del ambiente"]
["14.1.4 Incrementar de 3,87 a 5 defensores públicos por cada 100.000 habitantes.","14 Fortalecer las capacidades del Estado con énfasis en la administración de justicia y eficiencia en los procesos de regulación y control, con independencia y autonomía.","16.6 Crear a todos los niveles instituciones eficaces y transparentes que rindan cuentas","16 Paz, justicia e instituciones sólidas","16",null,null,null,null,null,null,null,null,null,null,null,null,null,null,null,null,null,null,null,null,null,"Gestionar, coordinar y administrar los servicios públicos que le sean delegados o descentralizados por otros niveles de gobierno"]
["14.3.1 Incrementar de 16,84 a 38,84 el Índice de Implementación de la Mejora Regulatoria en el Estado para optimizar la calidad de vida de los ciudadanos, el clima de negocios y la competitividad.","14 Fortalecer las capacidades del Estado con énfasis en la administración de justicia y eficiencia en los procesos de regulación y control, con independencia y autonomía.","16.6 Crear a todos los niveles instituciones eficaces y transparentes que rindan cuentas","16 Paz, justicia e instituciones sólidas","16",null,null,null,null,null,null,null,null,null,null,null,null,null,null,null,null,null,null,null,null,null,"Fomentar la seguridad alimentaria "]
["14.3.2 Aumentar el índice de percepción de calidad de los servicios públicos de 6,08 a 8,00.","14 Fortalecer las capacidades del Estado con énfasis en la administración de justicia y eficiencia en los procesos de regulación y control, con independencia y autonomía.","16.6 Crear a todos los niveles instituciones eficaces y transparentes que rindan cuentas","16 Paz, justicia e instituciones sólidas","16",null,null,null,null,null,null,null,null,null,null,null,null,null,null,null,null,null,null,null,null,null,"Gestionar el ordenamiento de cuencas hidrográficas"]
["15.1.1 Incrementar de 25% a 30% el nivel de confianza institucional en el gobierno. ","15 Fomentar la ética pública, la transparencia y la lucha contra la corrupción","16.6 Crear a todos los niveles instituciones eficaces y transparentes que rindan cuentas","16 Paz, justicia e instituciones sólidas",{"$f":"+MID(D34,1,2)","v":"16"},null,null,null,null,null,null,null,null,null,null,null,null,null,null,null,null,null,null,null,null,null,"Otorgar personalidad jurídica, registrar y controlar  las organizaciones sociales de carácter regional   "]
["15.1.2. Mejorar el posicionamiento en el ranking de percepción de corrupción mundial del puesto 93 al 50","15 Fomentar la ética pública, la transparencia y la lucha contra la corrupción","16.5 Reducir considerablemente la corrupción y el soborno en todas sus formas","16 Paz, justicia e instituciones sólidas","16",null,null,null,null,null,null,null,null,null,null,null,null,null,null,null,null,null,null,null,null,null,"Hábitat y vivienda"]
["15.2.1 Al 2024 incrementar de 0,7 a 0.76 el índice de gobierno electrónico.","15 Fomentar la ética pública, la transparencia y la lucha contra la corrupción","16.6 Crear a todos los niveles instituciones eficaces y transparentes que rindan cuentas","16 Paz, justicia e instituciones sólidas","16",null,null,null,null,null,null,null,null,null,null,null,null,null,null,null,null,null,null,null,null,null,"Infraestructura y equipamientos físicos de salud y educación"]
["15.2.2 Incrementar de 20,45% a 52,27% la participación de entidades públicas en el proceso de Gobierno Abierto Ecuador.","15 Fomentar la ética pública, la transparencia y la lucha contra la corrupción","16.6 Crear a todos los niveles instituciones eficaces y transparentes que rindan cuentas","16 Paz, justicia e instituciones sólidas","16",null,null,null,null,null,null,null,null,null,null,null,null,null,null,null,null,null,null,null,null,null,"Prestación de servicios públicos"]
["2.1.2. Incrementar la participación de las exportaciones no tradicionales en las exportaciones no petroleras totales del 41,16% al 48,36%.","2 Impulsar un sistema económico con reglas claras que fomente el comercio exterior, turismo, atracción de inversiones y modernización del sistema financiero nacional.","17.11 Aumentar significativamente las exportaciones de los países en desarrollo, en particular con miras a duplicar la participación de los países menos adelantados en las exportaciones mundiales de aquí a 2020","17 Alianzas para lograr los objetivos","17",null,null,null,null,null,null,null,null,null,null,null,null,null,null,null,null,null,null,null,null,null,"Protección integral de derechos"]
["2.2.1. Incrementar la recaudación tributaria anual del sector minero de USD 40.283.952 a USD 248.040.057.","2 Impulsar un sistema económico con reglas claras que fomente el comercio exterior, turismo, atracción de inversiones y modernización del sistema financiero nacional.","17.1 Fortalecer la movilización de recursos internos, incluso mediante la prestación de apoyo internacional a los países en desarrollo, con el fin de mejorar la capacidad nacional para recaudar ingresos fiscales y de otra índole","17 Alianzas para lograr los objetivos","17",null,null,null,null,null,null,null,null,null,null,null,null,null,null,null,null,null,null,null,null,null,"Planificar, construir y mantener el sistema vial de ámbito provincial, que no incluya las zonas urbanas."]
["2.2.2. Incrementar las exportaciones mineras anuales de USD 921.935.961 a USD 4.040.016.198.","2 Impulsar un sistema económico con reglas claras que fomente el comercio exterior, turismo, atracción de inversiones y modernización del sistema financiero nacional.","17.11 Aumentar significativamente las exportaciones de los países en desarrollo, en particular con miras a duplicar la participación de los países menos adelantados en las exportaciones mundiales de aquí a 2020","17 Alianzas para lograr los objetivos","17",null,null,null,null,null,null,null,null,null,null,null,null,null,null,null,null,null,null,null,null,null,"Otro (casos excepcionales)"]
["2.2.4. Incrementar la Inversión Extranjera Directa de USD 1.189,83 millones a USD 2.410,17 millones.","2 Impulsar un sistema económico con reglas claras que fomente el comercio exterior, turismo, atracción de inversiones y modernización del sistema financiero nacional.","17.5 Adoptar y aplicar sistemas de promoción de las inversiones en favor de los países menos adelantados","17 Alianzas para lograr los objetivos","17"]
["2.2.6 Incrementar la Inversión Privada Nacional y Extranjera de USD 1.676,90 millones a USD 7.104,68 millones. (USD 23,5 miles de millones acumulados)","2 Impulsar un sistema económico con reglas claras que fomente el comercio exterior, turismo, atracción de inversiones y modernización del sistema financiero nacional.","17.5 Adoptar y aplicar sistemas de promoción de las inversiones en favor de los países menos adelantados","17 Alianzas para lograr los objetivos","17"]
["3.1.3. Incrementar las exportaciones agropecuarias y agroindustriales del 13,35% al 17,67%.","3 Fomentar la productividad y competitividad en los sectores agrícola, industrial, acuícola y pesquero, bajo el enfoque de la economía circular","17.11 Aumentar significativamente las exportaciones de los países en desarrollo, en particular con miras a duplicar la participación de los países menos adelantados en las exportaciones mundiales de aquí a 2020","17 Alianzas para lograr los objetivos","17"]
["4.2.1 Incrementar de 32,91% a 35% la proporción del Presupuesto General del Estado financiados por impuestos internos","4 Garantizar la gestión de las finanzas públicas de manera sostenible y transparente.","17.1 Fortalecer la movilización de recursos internos, incluso mediante la prestación de apoyo internacional a los países en desarrollo, con el fin de mejorar la capacidad nacional para recaudar ingresos fiscales y de otra índole","17 Alianzas para lograr los objetivos","17"]
["4.2.2 Incrementar de 30,64% a 32,61% los ingresos de autogestión respecto a los ingresos totales de los GAD","4 Garantizar la gestión de las finanzas públicas de manera sostenible y transparente.","17.1 Fortalecer la movilización de recursos internos, incluso mediante la prestación de apoyo internacional a los países en desarrollo, con el fin de mejorar la capacidad nacional para recaudar ingresos fiscales y de otra índole","17 Alianzas para lograr los objetivos","17"]
["4.3.1. Aumentar de 66,67% a 91,67% las empresas públicas en operación con EBITDA (por sus siglas en inglés: Earnings Before Interests, Tax, Depreciation and Amortization) positivo.","4 Garantizar la gestión de las finanzas públicas de manera sostenible y transparente.","17.14 Mejorar la coherencia de las políticas para el desarrollo sostenible","17 Alianzas para lograr los objetivos","17"]
["4.4.1 Reducir de 60,7% a 57% la deuda pública y otras obligaciones de pago con relación al Producto Interno Bruto","4 Garantizar la gestión de las finanzas públicas de manera sostenible y transparente.","17.4 Ayudar a los países en desarrollo a lograr la sostenibilidad de la deuda a largo plazo con políticas coordinadas orientadas a fomentar la financiación, el alivio y la reestructuración de la deuda, según proceda, y hacer frente a la deuda externa de los países pobres muy endeudados a fin de reducir el endeudamiento excesivo","17 Alianzas para lograr los objetivos","17"]
["4.5.1 Alcanzar un superávit global de SPNF a 2025 de 0,35% del PIB.","4 Garantizar la gestión de las finanzas públicas de manera sostenible y transparente.","17.13 Aumentar la estabilidad macroeconómica mundial, incluso mediante la coordinación y coherencia normativas.","17 Alianzas para lograr los objetivos","17"]
["4.6.1. Incrementar el porcentaje promedio de cobertura de pasivos del primer sistema de balance del Banco Central del Ecuador respecto a las Reservas Internacionales del 88% al 97%.","4 Garantizar la gestión de las finanzas públicas de manera sostenible y transparente.","17.4 Ayudar a los países en desarrollo a lograr la sostenibilidad de la deuda a largo plazo con políticas coordinadas orientadas a fomentar la financiación, el alivio y la reestructuración de la deuda, según proceda, y hacer frente a la deuda externa de los países pobres muy endeudados a fin de reducir el endeudamiento excesivo","17 Alianzas para lograr los objetivos","17"]
["16.1.1 Incrementar la ejecución anual de fondos de cooperación internacional no reembolsable de USD 139,84 millones a USD 160,81 millones.","16 Promover la integración regional, la inserción estratégica del país en el mundo y garantizar los derechos de las personas en situación de movilidad humana.","17.16 Mejorar la Alianza Mundial para el Desarrollo Sostenible, complementada por alianzas entre múltiples interesados que movilicen e intercambien conocimientos, especialización, tecnología y recursos financieros, a fin de apoyar el logro de los Objetivos de Desarrollo Sostenible en todos los países, particularmente los países en desarrollo","17 Alianzas para lograr los objetivos","17"]
["16.1.3 Incrementar el cumplimiento de compromisos binacionales de 68,7% al 74%.","16 Promover la integración regional, la inserción estratégica del país en el mundo y garantizar los derechos de las personas en situación de movilidad humana.","17.15 Respetar el margen normativo y el liderazgo de cada país para establecer y aplicar políticas de erradicación de la pobreza y desarrollo sostenible","17 Alianzas para lograr los objetivos","17"]
["3.1.2. Aumentar el rendimiento de la productividad agrícola nacional de 117,78 a 136,85 tonelada/Hectárea (t/Ha).","3 Fomentar la productividad y competitividad en los sectores agrícola, industrial, acuícola y pesquero, bajo el enfoque de la economía circular","2.4 De aquí a 2030, asegurar la sostenibilidad de los sistemas de producción de alimentos y aplicar prácticas agrícolas resilientes que aumenten la productividad y la producción, contribuyan al mantenimiento de los ecosistemas, fortalezcan la capacidad de adaptación al cambio climático, los fenómenos meteorológicos extremos, las sequías, las inundaciones y otros desastres, y mejoren progresivamente la calidad de la tierra y el suelo","2 Hambre cero","2 "]
["3.2.1. Incrementar de 85,97% al 86,85% la participación de los alimentos producidos en el país en el consumo de los hogares ecuatorianos.","3 Fomentar la productividad y competitividad en los sectores agrícola, industrial, acuícola y pesquero, bajo el enfoque de la economía circular","2.3 De aquí a 2030, duplicar la productividad agrícola y los ingresos de los productores de alimentos en pequeña escala, en particular las mujeres, los pueblos indígenas, los agricultores familiares, los ganaderos y los pescadores, entre otras cosas mediante un acceso seguro y equitativo a las tierras, a otros recursos e insumos de producción y a los conocimientos, los servicios financieros, los mercados y las oportunidades para añadir valor y obtener empleos no agrícolas","2 Hambre cero","2 "]
["3.3.1. Incrementar del 4% al 25% el porcentaje de productores asociados, registrados como Agricultura Familiar Campesina que se vinculan a sistemas de comercialización.","3 Fomentar la productividad y competitividad en los sectores agrícola, industrial, acuícola y pesquero, bajo el enfoque de la economía circular","2.3 De aquí a 2030, duplicar la productividad agrícola y los ingresos de los productores de alimentos en pequeña escala, en particular las mujeres, los pueblos indígenas, los agricultores familiares, los ganaderos y los pescadores, entre otras cosas mediante un acceso seguro y equitativo a las tierras, a otros recursos e insumos de producción y a los conocimientos, los servicios financieros, los mercados y las oportunidades para añadir valor y obtener empleos no agrícolas","2 Hambre cero","2 "]
["3.3.2. Incrementar en 2.750 mujeres rurales que se desempeñan como promotoras de sistemas de producción sostenibles.","3 Fomentar la productividad y competitividad en los sectores agrícola, industrial, acuícola y pesquero, bajo el enfoque de la economía circular","2.3 De aquí a 2030, duplicar la productividad agrícola y los ingresos de los productores de alimentos en pequeña escala, en particular las mujeres, los pueblos indígenas, los agricultores familiares, los ganaderos y los pescadores, entre otras cosas mediante un acceso seguro y equitativo a las tierras, a otros recursos e insumos de producción y a los conocimientos, los servicios financieros, los mercados y las oportunidades para añadir valor y obtener empleos no agrícolas","2 Hambre cero","2 "]
["6.4.1. Reducir 6 puntos porcentuales la Desnutrición Crónica Infantil en menores de 2 años.","6 Garantizar el  derecho a la salud integral, gratuita y de calidad. ","2.2 De aquí a 2030, poner fin a todas las formas de malnutrición, incluso logrando, a más tardar en 2025, las metas convenidas internacionalmente sobre el retraso del crecimiento y la emaciación de los niños menores de 5 años, y abordar las necesidades de nutrición de las adolescentes, las mujeres embarazadas y lactantes y las personas de edad","2 Hambre cero","2 "]
["6.1.1. Incrementar el porcentaje de nacidos vivos con asistencia de personal de la salud del 96,4% al 98,5%.","6 Garantizar el  derecho a la salud integral, gratuita y de calidad. ","3.1 De aquí a 2030, reducir la tasa mundial de mortalidad materna a menos de 70 por cada 100.000 nacidos vivos","3 Salud y bienestar","3 "]
["6.1.2. Reducir la tasa de mortalidad neonatal de 4,6 al 4,0 por cada 1.000 nacidos vivos.","6 Garantizar el  derecho a la salud integral, gratuita y de calidad. ","3.2 De aquí a 2030, poner fin a las muertes evitables de recién nacidos y de niños menores de 5 años, logrando que todos los países intenten reducir la mortalidad neonatal al menos a 12 por cada 1.000 nacidos vivos y la mortalidad de los niños menores de 5 años al menos a 25 por cada 1.000 nacidos vivos","3 Salud y bienestar","3 "]
["6.1.3. Reducir la tasa de mortalidad por suicidio de 6,1 al 5,1 por cada 100.000 habitantes. ","6 Garantizar el  derecho a la salud integral, gratuita y de calidad. ","3.4 De aquí a 2030, reducir en un tercio la mortalidad prematura por enfermedades no transmisibles mediante su prevención y tratamiento, y promover la salud mental y el bienestar","3 Salud y bienestar","3 "]
["6.1.4. Reducir la tasa de mortalidad atribuida al cáncer en la población de 21 a 75 años de 30,0 al 28,6 por cada 100.000 habitantes.","6 Garantizar el  derecho a la salud integral, gratuita y de calidad. ","3.4 De aquí a 2030, reducir en un tercio la mortalidad prematura por enfermedades no transmisibles mediante su prevención y tratamiento, y promover la salud mental y el bienestar","3 Salud y bienestar","3 "]
["6.1.5. Incrementar las personas que conocen su estado serológico y se encuentran en tratamiento para VIH del 89% al 92%.","6 Garantizar el  derecho a la salud integral, gratuita y de calidad. ","3.3 De aquí a 2030, poner fin a las epidemias del SIDA, la tuberculosis, la malaria y las enfermedades tropicales desatendidas y combatir la hepatitis, las enfermedades transmitidas por el agua y otras enfermedades transmisibles","3 Salud y bienestar","3 "]
["6.1.6 Reducir el gasto de bolsillo como porcentaje del gasto total en salud de 31,37% a 26,87%.","6 Garantizar el  derecho a la salud integral, gratuita y de calidad. ","3.8 Lograr la cobertura sanitaria universal, incluida la protección contra los riesgos financieros, el acceso a servicios de salud esenciales de calidad y el acceso a medicamentos y vacunas inocuos, eficaces, asequibles y de calidad para todos","3 Salud y bienestar","3 "]
["6.2.1. Incrementar la vacunación de neumococo en la población menor de 1 año de 76,09% a 88,05%. ","6 Garantizar el  derecho a la salud integral, gratuita y de calidad. ","3.8 Lograr la cobertura sanitaria universal, incluida la protección contra los riesgos financieros, el acceso a servicios de salud esenciales de calidad y el acceso a medicamentos y vacunas inocuos, eficaces, asequibles y de calidad para todos","3 Salud y bienestar","3 "]
["6.2.2. Incrementar la vacunación de rotavirus en la población menor de 1 año de 75,19% a 81,24%.  ","6 Garantizar el  derecho a la salud integral, gratuita y de calidad. ","3.8 Lograr la cobertura sanitaria universal, incluida la protección contra los riesgos financieros, el acceso a servicios de salud esenciales de calidad y el acceso a medicamentos y vacunas inocuos, eficaces, asequibles y de calidad para todos","3 Salud y bienestar","3 "]
["6.2.3. Incrementar la vacunación de sarampión, rubeola y parodititis (SRP) en la población de 12 a 23 meses de 70,35% a 82,21%.","6 Garantizar el  derecho a la salud integral, gratuita y de calidad. ","3.8 Lograr la cobertura sanitaria universal, incluida la protección contra los riesgos financieros, el acceso a servicios de salud esenciales de calidad y el acceso a medicamentos y vacunas inocuos, eficaces, asequibles y de calidad para todos","3 Salud y bienestar","3 "]
["6.3.1. Reducir la razón de muerte materna de 57,6 a 38,41 fallecimientos por cada 100.000 nacidos vivos.","6 Garantizar el  derecho a la salud integral, gratuita y de calidad. ","3.1 De aquí a 2030, reducir la tasa mundial de mortalidad materna a menos de 70 por cada 100.000 nacidos vivos","3 Salud y bienestar",{"$f":"+MID(D66,1,2)","v":"3 "}]
["6.3.2. Disminuir la tasa de nacimientos por embarazo adolescente (15 a 19 años de edad) del 54,6 al 39,4 por cada 1.000 nacidos vivos. ","6 Garantizar el  derecho a la salud integral, gratuita y de calidad. ","3.1 De aquí a 2030, reducir la tasa mundial de mortalidad materna a menos de 70 por cada 100.000 nacidos vivos","3 Salud y bienestar","3 "]
["6.5.1. Incrementar la proporción de médicos familiares que trabajan haciendo atención primaria de 1,14 a 1,71 por cada 10.000 habitantes.","6 Garantizar el  derecho a la salud integral, gratuita y de calidad. ","3.c Aumentar considerablemente la financiación de la salud y la contratación, el perfeccionamiento, la capacitación y la retención del personal sanitario en los países en desarrollo, especialmente en los países menos adelantados y los pequeños Estados insulares en desarrollo","3 Salud y bienestar","3 "]
["6.5.2. Incrementar la proporción de enfermeras que trabajan en los servicios de salud de 0,65 a 0,76 por cada médico.","6 Garantizar el  derecho a la salud integral, gratuita y de calidad. ","3.c Aumentar considerablemente la financiación de la salud y la contratación, el perfeccionamiento, la capacitación y la retención del personal sanitario en los países en desarrollo, especialmente en los países menos adelantados y los pequeños Estados insulares en desarrollo","3 Salud y bienestar","3 "]
["6.6.1. Reducir el porcentaje de adolescentes entre 13 y 15 años que consumen tabaco del 0,52 al 0,34.","6 Garantizar el  derecho a la salud integral, gratuita y de calidad. ","3.a Fortalecer la aplicación del Convenio Marco de la Organización Mundial de la Salud para el Control del Tabaco en todos los países, según proceda","3 Salud y bienestar","3 "]
["6.7.1. Reducir la prevalencia de actividad física insuficiente en la población de niñas, niños y jóvenes (5-17 años) del 88,21% al 83,21%.","6 Garantizar el  derecho a la salud integral, gratuita y de calidad. ","3.4 De aquí a 2030, reducir en un tercio la mortalidad prematura por enfermedades no transmisibles mediante su prevención y tratamiento, y promover la salud mental y el bienestar","3 Salud y bienestar","3 "]
["6.7.2. Reducir la prevalencia de actividad física insuficiente en la población adulta (18-69 años) del 17,80% al 13,00%.","6 Garantizar el  derecho a la salud integral, gratuita y de calidad. ","3.4 De aquí a 2030, reducir en un tercio la mortalidad prematura por enfermedades no transmisibles mediante su prevención y tratamiento, y promover la salud mental y el bienestar","3 Salud y bienestar","3 "]
["6.7.3. Reducir el tiempo de comportamiento sedentario en un día normal de 120 minutos a 114 minutos en la población de niñas, niños y jóvenes (5-17 años).","6 Garantizar el  derecho a la salud integral, gratuita y de calidad. ","3.4 De aquí a 2030, reducir en un tercio la mortalidad prematura por enfermedades no transmisibles mediante su prevención y tratamiento, y promover la salud mental y el bienestar","3 Salud y bienestar","3 "]
["6.7.4. Reducir el tiempo de comportamiento sedentario en un día normal de 150 minutos a 143 minutos en la población adulta (18-69 años).","6 Garantizar el  derecho a la salud integral, gratuita y de calidad. ","3.4 De aquí a 2030, reducir en un tercio la mortalidad prematura por enfermedades no transmisibles mediante su prevención y tratamiento, y promover la salud mental y el bienestar","3 Salud y bienestar","3 "]
["9.2.1 Disminuir la tasa de mortalidad por accidentes de tránsito, in situ, de 12,62 a 11,96, por cada 100.000 habitantes.","9 Garantizar la seguridad ciudadana, orden público y gestión de riesgos","3.6 De aquí a 2020, reducir a la mitad el número de muertes y lesiones causadas por accidentes de tráfico en el mundo","3 Salud y bienestar","3 "]
["9.2.2 Reducir la tasa de accidentes en la operación de transporte aéreo comercial de 1,91 a 1,26","9 Garantizar la seguridad ciudadana, orden público y gestión de riesgos","3.6 De aquí a 2020, reducir a la mitad el número de muertes y lesiones causadas por accidentes de tráfico en el mundo","3 Salud y bienestar","3 "]
["7.1.2. Incrementar la tasa bruta de matrícula de bachillerato de 87,38% a 89,09%.","7 Potenciar las capacidades de la ciudadanía y promover una educación innovadora, inclusiva y de calidad en todos los niveles.","4.1 De aquí a 2030, asegurar que todas las niñas y todos los niños terminen la enseñanza primaria y secundaria, que ha de ser gratuita, equitativa y de calidad y producir resultados de aprendizaje pertinentes y efectivos","4 Educación de calidad","4 "]
["7.1.3. Incrementar la tasa bruta de matrícula de Educación General Básica de 93,00% a 97,53%.","7 Potenciar las capacidades de la ciudadanía y promover una educación innovadora, inclusiva y de calidad en todos los niveles.","4.1 De aquí a 2030, asegurar que todas las niñas y todos los niños terminen la enseñanza primaria y secundaria, que ha de ser gratuita, equitativa y de calidad y producir resultados de aprendizaje pertinentes y efectivos","4 Educación de calidad","4 "]
["7.4.2. Incrementar la tasa bruta de matrícula en educación superior terciaria del 37,34% al 50,27%. ","7 Potenciar las capacidades de la ciudadanía y promover una educación innovadora, inclusiva y de calidad en todos los niveles.","4.3 De aquí a 2030, asegurar el acceso igualitario de todos los hombres y las mujeres a una formación técnica, profesional y superior de calidad, incluida la enseñanza universitaria","4 Educación de calidad","4 "]
["7.4.5. Incrementar el número de personas tituladas de educación superior técnica y tecnológica de 23.274 a 28.756.","7 Potenciar las capacidades de la ciudadanía y promover una educación innovadora, inclusiva y de calidad en todos los niveles.","4.4 De aquí a 2030, aumentar considerablemente el número de jóvenes y adultos que tienen las competencias necesarias, en particular técnicas y profesionales, para acceder al empleo, el trabajo decente y el emprendimiento","4 Educación de calidad","4 "]
["7.4.6. Incrementar el número estudiantes matriculados en educación superior en las modalidades a distancia y en línea de 78.076 a 125.417.","7 Potenciar las capacidades de la ciudadanía y promover una educación innovadora, inclusiva y de calidad en todos los niveles.","4.3 De aquí a 2030, asegurar el acceso igualitario de todos los hombres y las mujeres a una formación técnica, profesional y superior de calidad, incluida la enseñanza universitaria","4 Educación de calidad","4 "]
["8.2.1. Incrementar la tasa bruta de matrícula de Educación General Básica en el área rural de 63,47% a 64,47%.","8 Generar nuevas oportunidades y bienestar para las zonas rurales, con énfasis en pueblos y nacionalidades.","4.1 De aquí a 2030, asegurar que todas las niñas y todos los niños terminen la enseñanza primaria y secundaria, que ha de ser gratuita, equitativa y de calidad y producir resultados de aprendizaje pertinentes y efectivos","4 Educación de calidad","4 "]
["8.2.2. Incrementar la tasa bruta de matrícula de bachillerato en el área rural de 48,65% al 54,91%. ","8 Generar nuevas oportunidades y bienestar para las zonas rurales, con énfasis en pueblos y nacionalidades.","4.1 De aquí a 2030, asegurar que todas las niñas y todos los niños terminen la enseñanza primaria y secundaria, que ha de ser gratuita, equitativa y de calidad y producir resultados de aprendizaje pertinentes y efectivos","4 Educación de calidad","4 "]
["8.2.3. Implementar el Modelo de Sistema de Educación Intercultural Bilingüe (MOSEIB), en el 5,41% de instituciones del Sistema de Educación Intercultural Bilingüe.","8 Generar nuevas oportunidades y bienestar para las zonas rurales, con énfasis en pueblos y nacionalidades.","4.5 De aquí a 2030, eliminar las disparidades de género en la educación y asegurar el acceso igualitario a todos los niveles de la enseñanza y la formación profesional para las personas vulnerables, incluidas las personas con discapacidad, los pueblos indígenas y los niños en situaciones de vulnerabilidad","4 Educación de calidad","4 "]
["5.2.1. Disminuir la tasa de femicidios por cada 100.000 mujeres de 0,87 a 0,80.","5 Proteger a las familias, garantizar sus derechos y servicios, erradicar la pobreza y promover la inclusión social.","5.2 Eliminar todas las formas de violencia contra todas las mujeres y las niñas en los ámbitos público y privado, incluidas la trata y la explotación sexual y otros tipos de explotación","5 Igualdad de género","5 "]
["3.1.4. Aumentar la tasa de cobertura con riego tecnificado parcelario para pequeños y medianos productores del 15,86% al 38,88%.","3 Fomentar la productividad y competitividad en los sectores agrícola, industrial, acuícola y pesquero, bajo el enfoque de la economía circular","6.4 De aquí a 2030, aumentar considerablemente el uso eficiente de los recursos hídricos en todos los sectores y asegurar la sostenibilidad de la extracción y el abastecimiento de agua dulce para hacer frente a la escasez de agua y reducir considerablemente el número de personas que sufren falta de agua","6 Agua limpia y saneamiento","6 "]
["13.1.1. Incrementar el territorio nacional bajo protección hídrica de 18.152,13 a 284.000 hectáreas.","13 Promover la gestión integral de los recursos hídricos","6.4 De aquí a 2030, aumentar considerablemente el uso eficiente de los recursos hídricos en todos los sectores y asegurar la sostenibilidad de la extracción y el abastecimiento de agua dulce para hacer frente a la escasez de agua y reducir considerablemente el número de personas que sufren falta de agua","6 Agua limpia y saneamiento","6 "]
["13.2.1. Incrementar las autorizaciones para uso y aprovechamiento del recurso hídrico, de 500 a 12.000.","13 Promover la gestión integral de los recursos hídricos","6.4 De aquí a 2030, aumentar considerablemente el uso eficiente de los recursos hídricos en todos los sectores y asegurar la sostenibilidad de la extracción y el abastecimiento de agua dulce para hacer frente a la escasez de agua y reducir considerablemente el número de personas que sufren falta de agua","6 Agua limpia y saneamiento","6 "]
["13.2.2. Incrementar la superficie potencial de riego y drenaje de 1.458,46 a 11.461 hectáreas.","13 Promover la gestión integral de los recursos hídricos","6.4 De aquí a 2030, aumentar considerablemente el uso eficiente de los recursos hídricos en todos los sectores y asegurar la sostenibilidad de la extracción y el abastecimiento de agua dulce para hacer frente a la escasez de agua y reducir considerablemente el número de personas que sufren falta de agua","6 Agua limpia y saneamiento","6 "]
["13.2.3. Incrementar la superficie del territorio nacional con planes de gestión integral de recursos hídricos de 208.959,12 a 452.000 hectáreas.","13 Promover la gestión integral de los recursos hídricos","6.4 De aquí a 2030, aumentar considerablemente el uso eficiente de los recursos hídricos en todos los sectores y asegurar la sostenibilidad de la extracción y el abastecimiento de agua dulce para hacer frente a la escasez de agua y reducir considerablemente el número de personas que sufren falta de agua","6 Agua limpia y saneamiento","6 "]
["13.3.1. Se beneficia a 3.5 millones de habitantes a través de proyectos cofinanciados por el Estado para acceso a agua apta para el consumo humano y saneamiento.","13 Promover la gestión integral de los recursos hídricos","6.1 De aquí a 2030, lograr el acceso universal y equitativo al agua potable a un precio asequible para todos","6 Agua limpia y saneamiento","6 "]
["12.3.1. Reducir de 79.833 a 62.917 kBEP la energía utilizada en los sectores de consumo.","12 Fomentar modelos de desarrollo sostenibles aplicando medidas de adaptación y mitigación al Cambio Climático","7.3 De aquí a 2030, duplicar la tasa mundial de mejora de la eficiencia energética","7 Energía asequible y no contaminante","7 "]
["12.3.2. Reducir a 10,50% las pérdidas de energía eléctrica a nivel nacional.","12 Fomentar modelos de desarrollo sostenibles aplicando medidas de adaptación y mitigación al Cambio Climático","7.3 De aquí a 2030, duplicar la tasa mundial de mejora de la eficiencia energética","7 Energía asequible y no contaminante","7 "]
["12.3.3. Incrementar de 21.6 a 50.5 millones el ahorro de combustibles en Barriles Equivalentes de Petróleo, optimizando el proceso de generación eléctrica y la eficiencia energética en el sector de hidrocarburos.","12 Fomentar modelos de desarrollo sostenibles aplicando medidas de adaptación y mitigación al Cambio Climático","7.3 De aquí a 2030, duplicar la tasa mundial de mejora de la eficiencia energética","7 Energía asequible y no contaminante","7 "]
["12.3.4. Incrementar de 6.424 a 6.954 megavoltiamperio (MVA) la capacidad en potencia instalada en subestaciones de distribución, para atender el crecimiento de la demanda de los sectores residencial, comercial e industrial.","12 Fomentar modelos de desarrollo sostenibles aplicando medidas de adaptación y mitigación al Cambio Climático","7.b De aquí a 2030, ampliar la infraestructura y mejorar la tecnología para prestar servicios energéticos modernos y sostenibles para todos en los países en desarrollo, en particular los países menos adelantados, los pequeños Estados insulares en desarrollo y los países en desarrollo sin litoral, en consonancia con sus respectivos programas de apoyo","7 Energía asequible y no contaminante","7 "]
["12.3.5. Incrementar la capacidad instalada de generación eléctrica de 821,44 a 1.518,44 megavatios (MW).","12 Fomentar modelos de desarrollo sostenibles aplicando medidas de adaptación y mitigación al Cambio Climático","7.b De aquí a 2030, ampliar la infraestructura y mejorar la tecnología para prestar servicios energéticos modernos y sostenibles para todos en los países en desarrollo, en particular los países menos adelantados, los pequeños Estados insulares en desarrollo y los países en desarrollo sin litoral, en consonancia con sus respectivos programas de apoyo","7 Energía asequible y no contaminante","7 "]
["1.1.1. Incrementar la tasa de empleo adecuado del 30,41% al 50,00%. ","1 Incrementar y fomentar, de manera inclusiva, las oportunidades de empleo y las condiciones laborales. ","8.5 De aquí a 2030, lograr el empleo pleno y productivo y el trabajo decente para todas las mujeres y los hombres, incluidos los jóvenes y las personas con discapacidad, así como la igualdad de remuneración por trabajo de igual valor","8 Trabajo decente y crecimiento económico","8 "]
["1.1.2. Reducir la tasa de desempleo juvenil (entre 18 y 29 años) de 10,08% a 8,17%.","1 Incrementar y fomentar, de manera inclusiva, las oportunidades de empleo y las condiciones laborales. ","8.6 De aquí a 2020, reducir considerablemente la proporción de jóvenes que no están empleados y no cursan estudios ni reciben capacitación","8 Trabajo decente y crecimiento económico",{"$f":"+MID(D98,1,2)","v":"8 "}]
["1.1.3. Incrementar el porcentaje de personas empleadas mensualmente en actividades artísticas y culturales del 5,19% al 6,00%.","1 Incrementar y fomentar, de manera inclusiva, las oportunidades de empleo y las condiciones laborales. ","8.9 De aquí a 2030, elaborar y poner en práctica políticas encaminadas a promover un turismo sostenible que cree puestos de trabajo y promueva la cultura y los productos locales","8 Trabajo decente y crecimiento económico","8 "]
["1.1.4. Aumentar el número de personas con discapacidad y/o sustitutos insertados en el sistema laboral de 70.273 a 74.547.","1 Incrementar y fomentar, de manera inclusiva, las oportunidades de empleo y las condiciones laborales. ","8.5 De aquí a 2030, lograr el empleo pleno y productivo y el trabajo decente para todas las mujeres y los hombres, incluidos los jóvenes y las personas con discapacidad, así como la igualdad de remuneración por trabajo de igual valor","8 Trabajo decente y crecimiento económico","8 "]
["2.1.1. Incrementar las exportaciones alta, media, baja intensidad tecnológica per cápita de 42,38 al 51,31.","2 Impulsar un sistema económico con reglas claras que fomente el comercio exterior, turismo, atracción de inversiones y modernización del sistema financiero nacional.","8.2 Lograr niveles más elevados de productividad económica mediante la diversificación, la modernización tecnológica y la innovación, entre otras cosas centrándose en los sectores con gran valor añadido y un uso intensivo de la mano de obra","8 Trabajo decente y crecimiento económico","8 "]
["2.3.1. Aumentar el ingreso de divisas por concepto de turismo receptor de USD 704,67 millones a USD 2.434,60 millones.","2 Impulsar un sistema económico con reglas claras que fomente el comercio exterior, turismo, atracción de inversiones y modernización del sistema financiero nacional.","8.9 De aquí a 2030, elaborar y poner en práctica políticas encaminadas a promover un turismo sostenible que cree puestos de trabajo y promueva la cultura y los productos locales","8 Trabajo decente y crecimiento económico","8 "]
["2.3.2. Incrementar las llegadas de extranjeros no residentes al país de 468.894 en 2020 a 2.000.000 en 2025.","2 Impulsar un sistema económico con reglas claras que fomente el comercio exterior, turismo, atracción de inversiones y modernización del sistema financiero nacional.","8.9 De aquí a 2030, elaborar y poner en práctica políticas encaminadas a promover un turismo sostenible que cree puestos de trabajo y promueva la cultura y los productos locales","8 Trabajo decente y crecimiento económico","8 "]
["2.3.3. Aumentar el empleo en las principales actividades turísticas de 460.498 a 495.820.","2 Impulsar un sistema económico con reglas claras que fomente el comercio exterior, turismo, atracción de inversiones y modernización del sistema financiero nacional.","8.9 De aquí a 2030, elaborar y poner en práctica políticas encaminadas a promover un turismo sostenible que cree puestos de trabajo y promueva la cultura y los productos locales","8 Trabajo decente y crecimiento económico","8 "]
["2.4.1. Incrementar del 1,49% al 1,80% la contribución de las actividades culturales en el Producto Interno Bruto.","2 Impulsar un sistema económico con reglas claras que fomente el comercio exterior, turismo, atracción de inversiones y modernización del sistema financiero nacional.","8.9 De aquí a 2030, elaborar y poner en práctica políticas encaminadas a promover un turismo sostenible que cree puestos de trabajo y promueva la cultura y los productos locales","8 Trabajo decente y crecimiento económico","8 "]
["2.4.2. Incrementar el número de nuevas obras artísticas culturales certificadas al año, en derechos de autor y derechos conexos de 2.429 a 3.912.","2 Impulsar un sistema económico con reglas claras que fomente el comercio exterior, turismo, atracción de inversiones y modernización del sistema financiero nacional.","8.9 De aquí a 2030, elaborar y poner en práctica políticas encaminadas a promover un turismo sostenible que cree puestos de trabajo y promueva la cultura y los productos locales","8 Trabajo decente y crecimiento económico","8 "]
["2.4.3. Incrementar el porcentaje de contribución de importaciones en bienes de uso artístico y cultural en las importaciones totales del país de 9,33% a 10,69%.","2 Impulsar un sistema económico con reglas claras que fomente el comercio exterior, turismo, atracción de inversiones y modernización del sistema financiero nacional.","8.9 De aquí a 2030, elaborar y poner en práctica políticas encaminadas a promover un turismo sostenible que cree puestos de trabajo y promueva la cultura y los productos locales","8 Trabajo decente y crecimiento económico","8 "]
["4.5.2 Alcanzar un crecimiento anual del Producto Interno Bruto del 5% en el 2025","4 Garantizar la gestión de las finanzas públicas de manera sostenible y transparente.","8.1 Mantener el crecimiento económico per capita de conformidad con las circunstancias nacionales y, en particular, un crecimiento del producto interno bruto de al menos el 7% anual en los países menos adelantados","8 Trabajo decente y crecimiento económico","8 "]
["5.1.2. Disminuir la tasa de trabajo infantil (de 5 a 14 años) de 6,10% a 4,42%.","5 Proteger a las familias, garantizar sus derechos y servicios, erradicar la pobreza y promover la inclusión social.","8.7 Adoptar medidas inmediatas y eficaces para erradicar el trabajo forzoso, poner fin a las formas contemporáneas de esclavitud y la trata de personas y asegurar la prohibición y eliminación de las peores formas de trabajo infantil, incluidos el reclutamiento y la utilización de niños soldados, y, de aquí a 2025, poner fin al trabajo infantil en todas sus formas","8 Trabajo decente y crecimiento económico","8 "]
["5.2.2. Reducir la brecha de empleo adecuado entre hombres y mujeres del 33,50% al 28,45%.","5 Proteger a las familias, garantizar sus derechos y servicios, erradicar la pobreza y promover la inclusión social.","8.5 De aquí a 2030, lograr el empleo pleno y productivo y el trabajo decente para todas las mujeres y los hombres, incluidos los jóvenes y las personas con discapacidad, así como la igualdad de remuneración por trabajo de igual valor","8 Trabajo decente y crecimiento económico","8 "]
["5.2.3. Reducir la brecha salarial entre hombres y mujeres del 15,34% al 11,27%.","5 Proteger a las familias, garantizar sus derechos y servicios, erradicar la pobreza y promover la inclusión social.","8.5 De aquí a 2030, lograr el empleo pleno y productivo y el trabajo decente para todas las mujeres y los hombres, incluidos los jóvenes y las personas con discapacidad, así como la igualdad de remuneración por trabajo de igual valor","8 Trabajo decente y crecimiento económico","8 "]
["8.3.1. Incrementar los sitios patrimoniales de gestión cultural comunitaria habilitados y puestos en valor para efectuar procesos de turismo rural sostenible, de 0 a 20. ","8 Generar nuevas oportunidades y bienestar para las zonas rurales, con énfasis en pueblos y nacionalidades.","8.9 De aquí a 2030, elaborar y poner en práctica políticas encaminadas a promover un turismo sostenible que cree puestos de trabajo y promueva la cultura y los productos locales","8 Trabajo decente y crecimiento económico","8 "]
["12.2.2. Evitar que la brecha entre huella ecológica y biocapacidad per cápita no sea inferior a 0,30 hectáreas globales.","12 Fomentar modelos de desarrollo sostenibles aplicando medidas de adaptación y mitigación al Cambio Climático","8.4 Mejorar progresivamente, de aquí a 2030, la producción y el consumo eficientes de los recursos mundiales y procurar desvincular el crecimiento económico de la degradación del medio ambiente, conforme al Marco Decenal de Programas sobre Modalidades de Consumo y Producción Sostenibles, empezando por los países desarrollados","8 Trabajo decente y crecimiento económico","8 "]
["2.2.3. Incrementar el mantenimiento de la red vial estatal con modelos de gestión sostenible del 17,07% al 40%.","2 Impulsar un sistema económico con reglas claras que fomente el comercio exterior, turismo, atracción de inversiones y modernización del sistema financiero nacional.","9.1 Desarrollar infraestructuras fiables, sostenibles, resilientes y de calidad, incluidas infraestructuras regionales y transfronterizas, para apoyar el desarrollo económico y el bienestar humano, haciendo especial hincapié en el acceso asequible y equitativo para todos","9 Industria, innovación e infraestructura","9 "]
["2.2.5. Aumentar las solicitudes de patentes nacionales presentadas de 64 a 93.","2 Impulsar un sistema económico con reglas claras que fomente el comercio exterior, turismo, atracción de inversiones y modernización del sistema financiero nacional.","9.b Apoyar el desarrollo de tecnologías, la investigación y la innovación nacionales en los países en desarrollo, incluso garantizando un entorno normativo propicio a la diversificación industrial y la adición de valor a los productos básicos, entre otras cosas","9 Industria, innovación e infraestructura","9 "]
["3.1.1. Incrementar el Valor Agregado Bruto (VAB) manufacturero sobre VAB primario de 1,13 al 1,24.","3 Fomentar la productividad y competitividad en los sectores agrícola, industrial, acuícola y pesquero, bajo el enfoque de la economía circular","9.2 Promover una industrialización inclusiva y sostenible y, de aquí a 2030, aumentar significativamente la contribución de la industria al empleo y al producto interno bruto, de acuerdo con las circunstancias nacionales, y duplicar esa contribución en los países menos adelantados","9 Industria, innovación e infraestructura","9 "]
["3.1.7. Incrementar el valor agregado por manufactura per cápita de 879 a 1.065.","3 Fomentar la productividad y competitividad en los sectores agrícola, industrial, acuícola y pesquero, bajo el enfoque de la economía circular","9.2 Promover una industrialización inclusiva y sostenible y, de aquí a 2030, aumentar significativamente la contribución de la industria al empleo y al producto interno bruto, de acuerdo con las circunstancias nacionales, y duplicar esa contribución en los países menos adelantados","9 Industria, innovación e infraestructura","9 "]
["5.5.1. Incrementar la cobertura poblacional con tecnología 4G o superior del 60,74% al 92,00%.","5 Proteger a las familias, garantizar sus derechos y servicios, erradicar la pobreza y promover la inclusión social.","9.c Aumentar significativamente el acceso a la tecnología de la información y las comunicaciones y esforzarse por proporcionar acceso universal y asequible a Internet en los países menos adelantados de aquí a 2020","9 Industria, innovación e infraestructura","9 "]
["5.5.2. Incrementar la penetración de Internet móvil y fijo del 68,08% al 78,00%.","5 Proteger a las familias, garantizar sus derechos y servicios, erradicar la pobreza y promover la inclusión social.","9.c Aumentar significativamente el acceso a la tecnología de la información y las comunicaciones y esforzarse por proporcionar acceso universal y asequible a Internet en los países menos adelantados de aquí a 2020","9 Industria, innovación e infraestructura","9 "]
["7.2.1. Incrementar el porcentaje de instituciones educativas fiscales con cobertura de internet con fines pedagógicos de 41,93% a 65,92%. ","7 Potenciar las capacidades de la ciudadanía y promover una educación innovadora, inclusiva y de calidad en todos los niveles.","9.c Aumentar significativamente el acceso a la tecnología de la información y las comunicaciones y esforzarse por proporcionar acceso universal y asequible a Internet en los países menos adelantados de aquí a 2020","9 Industria, innovación e infraestructura","9 "]
["7.4.1. Incrementar los artículos publicados por las universidades y escuelas politécnicas en revistas indexadas de 6.624 a 12.423.","7 Potenciar las capacidades de la ciudadanía y promover una educación innovadora, inclusiva y de calidad en todos los niveles.","9.5 Aumentar la investigación científica y mejorar la capacidad tecnológica de los sectores industriales de todos los países, en particular los países en desarrollo, entre otras cosas fomentando la innovación y aumentando considerablemente, de aquí a 2030, el número de personas que trabajan en investigación y desarrollo por millón de habitantes y los gastos de los sectores público y privado en investigación y desarrollo","9 Industria, innovación e infraestructura","9 "]
["7.4.4. Incrementar el número de investigadores por cada 1.000 habitantes de la Población Económicamente Activa de 0,55 a 0,75.","7 Potenciar las capacidades de la ciudadanía y promover una educación innovadora, inclusiva y de calidad en todos los niveles.","9.5 Aumentar la investigación científica y mejorar la capacidad tecnológica de los sectores industriales de todos los países, en particular los países en desarrollo, entre otras cosas fomentando la innovación y aumentando considerablemente, de aquí a 2030, el número de personas que trabajan en investigación y desarrollo por millón de habitantes y los gastos de los sectores público y privado en investigación y desarrollo","9 Industria, innovación e infraestructura","9 "]
["8.1.1. Incrementar el porcentaje de parroquias rurales conectadas con servicio móvil avanzado del 68,45% al 79,00%.","8 Generar nuevas oportunidades y bienestar para las zonas rurales, con énfasis en pueblos y nacionalidades.","9.c Aumentar significativamente el acceso a la tecnología de la información y las comunicaciones y esforzarse por proporcionar acceso universal y asequible a Internet en los países menos adelantados de aquí a 2020","9 Industria, innovación e infraestructura","9 "]
["16.1.2 Incrementar el porcentaje de avance en la inserción estratégica del país en la Antártida del 47% al 55%.","16 Promover la integración regional, la inserción estratégica del país en el mundo y garantizar los derechos de las personas en situación de movilidad humana.","9.b Apoyar el desarrollo de tecnologías, la investigación y la innovación nacionales en los países en desarrollo, incluso garantizando un entorno normativo propicio a la diversificación industrial y la adición de valor a los productos básicos, entre otras cosas","9 Industria, innovación e infraestructura","9 "]
["1.1.5. Incrementar para el 2025 la tasa acumulada de acceso al menos a la clase media en 30,39%","1 Incrementar y fomentar, de manera inclusiva, las oportunidades de empleo y las condiciones laborales. ","N/A","N/A","N/"]
["2.2.7 Incrementar el volumen de producción de hidrocarburos de 516.083 BEP a 1 millón del BEP hasta el año 2025.","2 Impulsar un sistema económico con reglas claras que fomente el comercio exterior, turismo, atracción de inversiones y modernización del sistema financiero nacional.","N/A","N/A","N/"]
["7.4.3. Disminuir la tasa de deserción en el primer año en la educación superior del 21,84% al 19,89%.","7 Potenciar las capacidades de la ciudadanía y promover una educación innovadora, inclusiva y de calidad en todos los niveles.","N/A","N/A","N/"]
["10.1.1 Incrementar el índice de ciberseguridad global de 26,3 a 51,3.","10 Garantizar la soberanía nacional, integridad territorial y seguridad del Estado","N/A","N/A","N/"]
["14.2.1. Los GAD municipales incrementan su capacidad operativa de 18,03 a 22,03 puntos en promedio. ","14 Fortalecer las capacidades del Estado con énfasis en la administración de justicia y eficiencia en los procesos de regulación y control, con independencia y autonomía.","N/A","N/A","N/"]
["14.2.2. Los GAD provinciales incrementan su capacidad operativa de 18,89 a 22,87 puntos en promedio.","14 Fortalecer las capacidades del Estado con énfasis en la administración de justicia y eficiencia en los procesos de regulación y control, con independencia y autonomía.","N/A","N/A",{"$f":"+MID(D130,1,2)","v":"N/"}]
["16.2.1 Incrementar el porcentaje de avance en la definición del límite exterior de la plataforma continental más allá de las 200 millas náuticas del 8,33% al 100%.","16 Promover la integración regional, la inserción estratégica del país en el mundo y garantizar los derechos de las personas en situación de movilidad humana.","N/A","N/A","N/"]
[]
[]
[]
[]
[]
[]
[]
[]
[]
[]
[]
[]
[]
[]
[]
[]
[]
[]
[]
[]
[]
[]
[]
[]
[]
[]
[]
[]
[]
[]
[]
[]
[]
[]
[]
[]
[]
[]
[]
[]
[]
[]
[]
[]
[]
[]
[]
[]
[]
[]
[]
[]
["N_AOPND1","N_AOPND10","N_AOPND14","N_AOPND16","N_AOPND2","N_AOPND7","ODS1_OPND5","ODS1_OPND8","ODS1_OPND9","ODS10_OPND7","ODS11_OPND5","ODS11_OPND9","ODS12_OPND11","ODS12_OPND12","ODS13_OPND12","ODS14_OPND3","ODS15_OPND11","ODS16_OPND14","ODS16_OPND15","ODS16_OPND4","ODS16_OPND7","ODS16_OPND9","ODS17_OPND16","ODS17_OPND2","ODS17_OPND3","ODS17_OPND4","ODS2_OPND3","ODS2_OPND6","ODS3_OPND6","ODS3_OPND9","ODS4_OPND7","ODS4_OPND8","ODS5_OPND5","ODS6_OPND13","ODS6_OPND3","ODS7_OPND12","ODS8_OPND1","ODS8_OPND12","ODS8_OPND2","ODS8_OPND4","ODS8_OPND5","ODS8_OPND8","ODS9_OPND16","ODS9_OPND2","ODS9_OPND3","ODS9_OPND5","ODS9_OPND7","ODS9_OPND8"]
["N/A","N/A","N/A","N/A","N/A","N/A","1.1 De aquí a 2030, erradicar para todas las personas y en todo el mundo la pobreza extrema(actualmente se considera que sufren pobreza extrema las personas que viven con menos de 1,25 dólares de los Estados Unidos al día)","1.2 De aquí a 2030, reducir al menos a la mitad la proporción de hombres, mujeres y niños de todas las edades que viven en la pobreza en todas sus dimensiones con arreglo a las definiciones nacionales","1.5 De aquí a 2030, fomentar la resiliencia de los pobres y las personas que se encuentran en situaciones de vulnerabilidad y reducir su exposición y vulnerabilidad a los fenómenos extremos relacionados con el clima y otras perturbaciones y desastres económicos, sociales y ambientales","10.2 De aquí a 2030, potenciar y promover la inclusión social, económica y política de todas las personas, independientemente de su edad, sexo, discapacidad, raza, etnia, origen, religión o situación económica u otra condición","11.1 De aquí a 2030, asegurar el acceso de todas las personas a viviendas y servicios básicos adecuados, seguros y asequibles y mejorar los barrios marginales","11.5 De aquí a 2030, reducir significativamente el número de muertes causadas por los desastres, incluidos los relacionados con el agua, y de personas afectadas por ellos, y reducir considerablemente las pérdidas económicas directas provocadas por los desastres en comparación con el producto interno bruto mundial, haciendo especial hincapié en la protección de los pobres y las personas en situaciones de vulnerabilidad","12.4 De aquí a 2020, lograr la gestión ecológicamente racional de los productos químicos y de todos los desechos a lo largo de su ciclo de vida, de conformidad con los marcos internacionales convenidos, y reducir significativamente su liberación a la atmósfera, el agua y el suelo a fin de minimizar sus efectos adversos en la salud humana y el medio ambiente","12.5 De aquí a 2030, reducir considerablemente la generación de desechos mediante actividades de prevención, reducción, reciclado y reutilización","13.2 Incorporar medidas relativas al cambio climático en las políticas, estrategias y planes nacionales","14.7 De aquí a 2030, aumentar los beneficios económicos que los pequeños Estados insulares en desarrollo y los países menos adelantados obtienen del uso sostenible de los recursos marinos, en particular mediante la gestión sostenible de la pesca, la acuicultura y el turismo","15.1 De aquí a 2020, asegurar la conservación, el restablecimiento y el uso sostenible de los ecosistemas terrestres y los ecosistemas interiores de agua dulce y sus servicios, en particular los bosques, los humedales, las montañas y las zonas áridas, en consonancia con las obligaciones contraídas en virtud de acuerdos internacionales","16.6 Crear a todos los niveles instituciones eficaces y transparentes que rindan cuentas","16.6 Crear a todos los niveles instituciones eficaces y transparentes que rindan cuentas","16.6 Crear a todos los niveles instituciones eficaces y transparentes que rindan cuentas","16.2 Poner fin al maltrato, la explotación, la trata y todas las formas de violencia y tortura contra los niños","16.1 Reducir significativamente todas las formas de violencia y las correspondientes tasas de mortalidad en todo el mundo","17.16 Mejorar la Alianza Mundial para el Desarrollo Sostenible, complementada por alianzas entre múltiples interesados que movilicen e intercambien conocimientos, especialización, tecnología y recursos financieros, a fin de apoyar el logro de los Objetivos de Desarrollo Sostenible en todos los países, particularmente los países en desarrollo","17.11 Aumentar significativamente las exportaciones de los países en desarrollo, en particular con miras a duplicar la participación de los países menos adelantados en las exportaciones mundiales de aquí a 2020","17.11 Aumentar significativamente las exportaciones de los países en desarrollo, en particular con miras a duplicar la participación de los países menos adelantados en las exportaciones mundiales de aquí a 2020","17.1 Fortalecer la movilización de recursos internos, incluso mediante la prestación de apoyo internacional a los países en desarrollo, con el fin de mejorar la capacidad nacional para recaudar ingresos fiscales y de otra índole","2.4 De aquí a 2030, asegurar la sostenibilidad de los sistemas de producción de alimentos y aplicar prácticas agrícolas resilientes que aumenten la productividad y la producción, contribuyan al mantenimiento de los ecosistemas, fortalezcan la capacidad de adaptación al cambio climático, los fenómenos meteorológicos extremos, las sequías, las inundaciones y otros desastres, y mejoren progresivamente la calidad de la tierra y el suelo","2.2 De aquí a 2030, poner fin a todas las formas de malnutrición, incluso logrando, a más tardar en 2025, las metas convenidas internacionalmente sobre el retraso del crecimiento y la emaciación de los niños menores de 5 años, y abordar las necesidades de nutrición de las adolescentes, las mujeres embarazadas y lactantes y las personas de edad","3.1 De aquí a 2030, reducir la tasa mundial de mortalidad materna a menos de 70 por cada 100.000 nacidos vivos","3.6 De aquí a 2020, reducir a la mitad el número de muertes y lesiones causadas por accidentes de tráfico en el mundo","4.1 De aquí a 2030, asegurar que todas las niñas y todos los niños terminen la enseñanza primaria y secundaria, que ha de ser gratuita, equitativa y de calidad y producir resultados de aprendizaje pertinentes y efectivos","4.1 De aquí a 2030, asegurar que todas las niñas y todos los niños terminen la enseñanza primaria y secundaria, que ha de ser gratuita, equitativa y de calidad y producir resultados de aprendizaje pertinentes y efectivos","5.2 Eliminar todas las formas de violencia contra todas las mujeres y las niñas en los ámbitos público y privado, incluidas la trata y la explotación sexual y otros tipos de explotación","6.4 De aquí a 2030, aumentar considerablemente el uso eficiente de los recursos hídricos en todos los sectores y asegurar la sostenibilidad de la extracción y el abastecimiento de agua dulce para hacer frente a la escasez de agua y reducir considerablemente el número de personas que sufren falta de agua","6.4 De aquí a 2030, aumentar considerablemente el uso eficiente de los recursos hídricos en todos los sectores y asegurar la sostenibilidad de la extracción y el abastecimiento de agua dulce para hacer frente a la escasez de agua y reducir considerablemente el número de personas que sufren falta de agua","7.3 De aquí a 2030, duplicar la tasa mundial de mejora de la eficiencia energética","8.5 De aquí a 2030, lograr el empleo pleno y productivo y el trabajo decente para todas las mujeres y los hombres, incluidos los jóvenes y las personas con discapacidad, así como la igualdad de remuneración por trabajo de igual valor","8.4 Mejorar progresivamente, de aquí a 2030, la producción y el consumo eficientes de los recursos mundiales y procurar desvincular el crecimiento económico de la degradación del medio ambiente, conforme al Marco Decenal de Programas sobre Modalidades de Consumo y Producción Sostenibles, empezando por los países desarrollados","8.2 Lograr niveles más elevados de productividad económica mediante la diversificación, la modernización tecnológica y la innovación, entre otras cosas centrándose en los sectores con gran valor añadido y un uso intensivo de la mano de obra","8.1 Mantener el crecimiento económico per capita de conformidad con las circunstancias nacionales y, en particular, un crecimiento del producto interno bruto de al menos el 7% anual en los países menos adelantados","8.7 Adoptar medidas inmediatas y eficaces para erradicar el trabajo forzoso, poner fin a las formas contemporáneas de esclavitud y la trata de personas y asegurar la prohibición y eliminación de las peores formas de trabajo infantil, incluidos el reclutamiento y la utilización de niños soldados, y, de aquí a 2025, poner fin al trabajo infantil en todas sus formas","8.9 De aquí a 2030, elaborar y poner en práctica políticas encaminadas a promover un turismo sostenible que cree puestos de trabajo y promueva la cultura y los productos locales","9.b Apoyar el desarrollo de tecnologías, la investigación y la innovación nacionales en los países en desarrollo, incluso garantizando un entorno normativo propicio a la diversificación industrial y la adición de valor a los productos básicos, entre otras cosas","9.1 Desarrollar infraestructuras fiables, sostenibles, resilientes y de calidad, incluidas infraestructuras regionales y transfronterizas, para apoyar el desarrollo económico y el bienestar humano, haciendo especial hincapié en el acceso asequible y equitativo para todos","9.2 Promover una industrialización inclusiva y sostenible y, de aquí a 2030, aumentar significativamente la contribución de la industria al empleo y al producto interno bruto, de acuerdo con las circunstancias nacionales, y duplicar esa contribución en los países menos adelantados","9.c Aumentar significativamente el acceso a la tecnología de la información y las comunicaciones y esforzarse por proporcionar acceso universal y asequible a Internet en los países menos adelantados de aquí a 2020","9.c Aumentar significativamente el acceso a la tecnología de la información y las comunicaciones y esforzarse por proporcionar acceso universal y asequible a Internet en los países menos adelantados de aquí a 2020","9.c Aumentar significativamente el acceso a la tecnología de la información y las comunicaciones y esforzarse por proporcionar acceso universal y asequible a Internet en los países menos adelantados de aquí a 2020"]
[null,null,null,null,null,null,"1.3 Implementar a nivel nacional sistemas y medidas apropiados de protección social para todos, incluidos niveles mínimos, y, de aquí a 2030, lograr una amplia cobertura de las personas pobres y vulnerables",null,null,null,null,null,null,null,"13.1 Fortalecer la resiliencia y la capacidad de adaptación a los riesgos relacionados con el clima y los desastres naturales en todos los países",null,"15.2 De aquí a 2020, promover la puesta en práctica de la gestión sostenible de todos los tipos de bosques, detener la deforestación, recuperar los bosques degradados y aumentar considerablemente la forestación y la reforestación a nivel mundial",null,"16.5 Reducir considerablemente la corrupción y el soborno en todas sus formas",null,null,"16.a Fortalecer las instituciones nacionales pertinentes, incluso mediante la cooperación internacional, para crear a todos los niveles, particularmente en los países en desarrollo, la capacidad de prevenir la violencia y combatir el terrorismo y la delincuencia","17.15 Respetar el margen normativo y el liderazgo de cada país para establecer y aplicar políticas de erradicación de la pobreza y desarrollo sostenible","17.1 Fortalecer la movilización de recursos internos, incluso mediante la prestación de apoyo internacional a los países en desarrollo, con el fin de mejorar la capacidad nacional para recaudar ingresos fiscales y de otra índole",null,"17.14 Mejorar la coherencia de las políticas para el desarrollo sostenible","2.3 De aquí a 2030, duplicar la productividad agrícola y los ingresos de los productores de alimentos en pequeña escala, en particular las mujeres, los pueblos indígenas, los agricultores familiares, los ganaderos y los pescadores, entre otras cosas mediante un acceso seguro y equitativo a las tierras, a otros recursos e insumos de producción y a los conocimientos, los servicios financieros, los mercados y las oportunidades para añadir valor y obtener empleos no agrícolas",null,"3.2 De aquí a 2030, poner fin a las muertes evitables de recién nacidos y de niños menores de 5 años, logrando que todos los países intenten reducir la mortalidad neonatal al menos a 12 por cada 1.000 nacidos vivos y la mortalidad de los niños menores de 5 años al menos a 25 por cada 1.000 nacidos vivos",null,"4.3 De aquí a 2030, asegurar el acceso igualitario de todos los hombres y las mujeres a una formación técnica, profesional y superior de calidad, incluida la enseñanza universitaria","4.5 De aquí a 2030, eliminar las disparidades de género en la educación y asegurar el acceso igualitario a todos los niveles de la enseñanza y la formación profesional para las personas vulnerables, incluidas las personas con discapacidad, los pueblos indígenas y los niños en situaciones de vulnerabilidad",null,"6.1 De aquí a 2030, lograr el acceso universal y equitativo al agua potable a un precio asequible para todos",null,"7.b De aquí a 2030, ampliar la infraestructura y mejorar la tecnología para prestar servicios energéticos modernos y sostenibles para todos en los países en desarrollo, en particular los países menos adelantados, los pequeños Estados insulares en desarrollo y los países en desarrollo sin litoral, en consonancia con sus respectivos programas de apoyo","8.6 De aquí a 2020, reducir considerablemente la proporción de jóvenes que no están empleados y no cursan estudios ni reciben capacitación",null,"8.9 De aquí a 2030, elaborar y poner en práctica políticas encaminadas a promover un turismo sostenible que cree puestos de trabajo y promueva la cultura y los productos locales",null,"8.5 De aquí a 2030, lograr el empleo pleno y productivo y el trabajo decente para todas las mujeres y los hombres, incluidos los jóvenes y las personas con discapacidad, así como la igualdad de remuneración por trabajo de igual valor",null,null,"9.b Apoyar el desarrollo de tecnologías, la investigación y la innovación nacionales en los países en desarrollo, incluso garantizando un entorno normativo propicio a la diversificación industrial y la adición de valor a los productos básicos, entre otras cosas",null,null,"9.5 Aumentar la investigación científica y mejorar la capacidad tecnológica de los sectores industriales de todos los países, en particular los países en desarrollo, entre otras cosas fomentando la innovación y aumentando considerablemente, de aquí a 2030, el número de personas que trabajan en investigación y desarrollo por millón de habitantes y los gastos de los sectores público y privado en investigación y desarrollo"]
[null,null,null,null,null,null,null,null,null,null,null,null,null,null,null,null,null,null,null,null,null,"16.6 Crear a todos los niveles instituciones eficaces y transparentes que rindan cuentas",null,"17.5 Adoptar y aplicar sistemas de promoción de las inversiones en favor de los países menos adelantados",null,"17.4 Ayudar a los países en desarrollo a lograr la sostenibilidad de la deuda a largo plazo con políticas coordinadas orientadas a fomentar la financiación, el alivio y la reestructuración de la deuda, según proceda, y hacer frente a la deuda externa de los países pobres muy endeudados a fin de reducir el endeudamiento excesivo",null,null,"3.4 De aquí a 2030, reducir en un tercio la mortalidad prematura por enfermedades no transmisibles mediante su prevención y tratamiento, y promover la salud mental y el bienestar",null,"4.4 De aquí a 2030, aumentar considerablemente el número de jóvenes y adultos que tienen las competencias necesarias, en particular técnicas y profesionales, para acceder al empleo, el trabajo decente y el emprendimiento",null,null,null,null,null,"8.9 De aquí a 2030, elaborar y poner en práctica políticas encaminadas a promover un turismo sostenible que cree puestos de trabajo y promueva la cultura y los productos locales"]
[null,null,null,null,null,null,null,null,null,null,null,null,null,null,null,null,null,null,null,null,null,"16.3 Promover el estado de derecho en los planos nacional e internacional y garantizar la igualdad de acceso a la justicia para todos",null,null,null,"17.13 Aumentar la estabilidad macroeconómica mundial, incluso mediante la coordinación y coherencia normativas.",null,null,"3.3 De aquí a 2030, poner fin a las epidemias del SIDA, la tuberculosis, la malaria y las enfermedades tropicales desatendidas y combatir la hepatitis, las enfermedades transmitidas por el agua y otras enfermedades transmisibles"]
[null,null,null,null,null,null,null,null,null,null,null,null,null,null,null,null,null,null,null,null,null,null,null,null,null,null,null,null,"3.8 Lograr la cobertura sanitaria universal, incluida la protección contra los riesgos financieros, el acceso a servicios de salud esenciales de calidad y el acceso a medicamentos y vacunas inocuos, eficaces, asequibles y de calidad para todos"]
[null,null,null,null,null,null,null,null,null,null,null,null,null,null,null,null,null,null,null,null,null,null,null,null,null,null,null,null,"3.c Aumentar considerablemente la financiación de la salud y la contratación, el perfeccionamiento, la capacitación y la retención del personal sanitario en los países en desarrollo, especialmente en los países menos adelantados y los pequeños Estados insulares en desarrollo"]
[null,null,null,null,null,null,null,null,null,null,null,null,null,null,null,null,null,null,null,null,null,null,null,null,null,null,null,null,"3.a Fortalecer la aplicación del Convenio Marco de la Organización Mundial de la Salud para el Control del Tabaco en todos los países, según proceda"]
[]
[]
[]
[]
[]
[]
["MN_AOPND1","MN_AOPND10","MN_AOPND14","MN_AOPND16","MN_AOPND2","MN_AOPND7","MODS1_OPND5","MODS1_OPND8","MODS1_OPND9","MODS10_OPND7","MODS11_OPND5","MODS11_OPND9","MODS12_OPND11","MODS12_OPND12","MODS13_OPND12","MODS14_OPND3","MODS15_OPND11","MODS16_OPND14","MODS16_OPND15","MODS16_OPND4","MODS16_OPND7","MODS16_OPND9","MODS17_OPND16","MODS17_OPND2","MODS17_OPND3","MODS17_OPND4","MODS2_OPND3","MODS2_OPND6","MODS3_OPND6","MODS3_OPND9","MODS4_OPND7","MODS4_OPND8","MODS5_OPND5","MODS6_OPND13","MODS6_OPND3","MODS7_OPND12","MODS8_OPND1","MODS8_OPND12","MODS8_OPND2","MODS8_OPND4","MODS8_OPND5","MODS8_OPND8","MODS9_OPND16","MODS9_OPND2","MODS9_OPND3","MODS9_OPND5","MODS9_OPND7","MODS9_OPND8"]
["1.1.5. Incrementar para el 2025 la tasa acumulada de acceso al menos a la clase media en 30,39%","10.1.1 Incrementar el índice de ciberseguridad global de 26,3 a 51,3.","14.2.1. Los GAD municipales incrementan su capacidad operativa de 18,03 a 22,03 puntos en promedio. ","16.2.1 Incrementar el porcentaje de avance en la definición del límite exterior de la plataforma continental más allá de las 200 millas náuticas del 8,33% al 100%.","2.2.7 Incrementar el volumen de producción de hidrocarburos de 516.083 BEP a 1 millón del BEP hasta el año 2025.","7.4.3. Disminuir la tasa de deserción en el primer año en la educación superior del 21,84% al 19,89%.","5.1.1. Reducir la tasa de pobreza extrema por ingresos de 15,44% al 10,76%.","8.1.2. Reducir de 70% a 55% la pobreza multidimensional rural, con énfasis en pueblos y nacionalidades y poblaciones vulnerables.","9.3.2. Incrementar el nivel de eficiencia en la gestión de identificación del riesgo ejecutada por el Sistema Nacional Descentralizado de Gestión de Riesgos (SNDGR) del 76,36% al 84,00%.","7.1.1. Incrementar el porcentaje de personas entre 18 y 29 años con bachillerato completo de 69,75% a 77,89%.","5.4.1. Reducir el déficit habitacional de vivienda del 58,00% al 48,44%.","9.3.1 Reducir la tasa de muertes por desastres de 0,11 a 0,06 por cada 100.000 habitantes.","11.2.1. Incrementar de 1.496 a 2.067 fuentes de contaminación hidrocarburíferas remediadas y avaladas.","12.2.1. Incrementar de 0% a 20% la recuperación de los residuos y/o desechos en el marco de la aplicación de las políticas de responsabilidad extendida al productor.","12.1.1. Incrementar de 71 a 96 los instrumentos integrados para aumentar la capacidad adaptación al cambio climático, promover la resiliencia al clima y mitigar el cambio climático sin comprometer la producción de alimentos.","3.1.5. Incrementar el Valor Agregado Bruto (VAB) acuícola y pesquero de camarón sobre VAB primario del 11,97% al 13,28%.","11.1.1. Mantener la proporción de territorio nacional bajo conservación o manejo ambiental en 16,45%.","14.1.1 Aumentar la tasa de resolución de 0,84 a 1,06.","15.1.1 Incrementar de 25% a 30% el nivel de confianza institucional en el gobierno. ","4.1.1 Reducir de 78,22% a 76,02% los gastos primarios del Gobierno respecto al Presupuesto General del Estado","7.3.1. Incrementar el porcentaje de respuesta a la atención de víctimas de violencia para que cuenten con un plan de acompañamiento pasando de 67,60% a 95,00%.","9.1.1. Disminuir la tasa de homicidios intencionales de 106 a 100 por cada 1.000.000 habitantes.  ","16.1.1 Incrementar la ejecución anual de fondos de cooperación internacional no reembolsable de USD 139,84 millones a USD 160,81 millones.","2.1.2. Incrementar la participación de las exportaciones no tradicionales en las exportaciones no petroleras totales del 41,16% al 48,36%.","3.1.3. Incrementar las exportaciones agropecuarias y agroindustriales del 13,35% al 17,67%.","4.2.1 Incrementar de 32,91% a 35% la proporción del Presupuesto General del Estado financiados por impuestos internos","3.1.2. Aumentar el rendimiento de la productividad agrícola nacional de 117,78 a 136,85 tonelada/Hectárea (t/Ha).","6.4.1. Reducir 6 puntos porcentuales la Desnutrición Crónica Infantil en menores de 2 años.","6.1.1. Incrementar el porcentaje de nacidos vivos con asistencia de personal de la salud del 96,4% al 98,5%.","9.2.1 Disminuir la tasa de mortalidad por accidentes de tránsito, in situ, de 12,62 a 11,96, por cada 100.000 habitantes.","7.1.2. Incrementar la tasa bruta de matrícula de bachillerato de 87,38% a 89,09%.","8.2.1. Incrementar la tasa bruta de matrícula de Educación General Básica en el área rural de 63,47% a 64,47%.","5.2.1. Disminuir la tasa de femicidios por cada 100.000 mujeres de 0,87 a 0,80.","13.1.1. Incrementar el territorio nacional bajo protección hídrica de 18.152,13 a 284.000 hectáreas.","3.1.4. Aumentar la tasa de cobertura con riego tecnificado parcelario para pequeños y medianos productores del 15,86% al 38,88%.","12.3.1. Reducir de 79.833 a 62.917 kBEP la energía utilizada en los sectores de consumo.","1.1.1. Incrementar la tasa de empleo adecuado del 30,41% al 50,00%. ","12.2.2. Evitar que la brecha entre huella ecológica y biocapacidad per cápita no sea inferior a 0,30 hectáreas globales.","2.1.1. Incrementar las exportaciones alta, media, baja intensidad tecnológica per cápita de 42,38 al 51,31.","4.5.2 Alcanzar un crecimiento anual del Producto Interno Bruto del 5% en el 2025","5.1.2. Disminuir la tasa de trabajo infantil (de 5 a 14 años) de 6,10% a 4,42%.","8.3.1. Incrementar los sitios patrimoniales de gestión cultural comunitaria habilitados y puestos en valor para efectuar procesos de turismo rural sostenible, de 0 a 20. ","16.1.2 Incrementar el porcentaje de avance en la inserción estratégica del país en la Antártida del 47% al 55%.","2.2.3. Incrementar el mantenimiento de la red vial estatal con modelos de gestión sostenible del 17,07% al 40%.","3.1.1. Incrementar el Valor Agregado Bruto (VAB) manufacturero sobre VAB primario de 1,13 al 1,24.","5.5.1. Incrementar la cobertura poblacional con tecnología 4G o superior del 60,74% al 92,00%.","7.2.1. Incrementar el porcentaje de instituciones educativas fiscales con cobertura de internet con fines pedagógicos de 41,93% a 65,92%. ","8.1.1. Incrementar el porcentaje de parroquias rurales conectadas con servicio móvil avanzado del 68,45% al 79,00%."]
[null,null,"14.2.2. Los GAD provinciales incrementan su capacidad operativa de 18,89 a 22,87 puntos en promedio.",null,null,null,"5.3.1. Incrementar el porcentaje de personas cubiertas por alguno de los regímenes de seguridad social pública contributiva del 37,56% al 41,73%.",null,"9.3.3 Incrementar el nivel de eficiencia en la gestión de manejo de desastre del riesgo ejecutada por el Sistema Nacional Descentralizado de Gestión de Riesgos (SNDGR) del 73,25% al 80,58%.","7.5.1. Incrementar el porcentaje de atletas con discapacidad de alto rendimiento del 10,66% al 11,31%.",null,null,null,null,"12.1.2. Reducir del 91,02 a 82,81 la vulnerabilidad al cambio climático, en función de la capacidad de adaptación.","3.1.6. Reducir el Valor Agregado Bruto (VAB) Pesca (excepto de camarón) sobre VAB primario del 7,00% al 6,73%.","11.3.1. Reducir las emisiones de Gases de Efecto Invernadero por deforestación en el sector de Uso del Suelo, Cambio de Uso del Suelo y Silvicultura (USCUSS) de 53.782,59 a 52.706,94 Gg CO2eq.","14.1.2 Reducir la tasa de congestión de 2,15 a 1,61.","15.1.2. Mejorar el posicionamiento en el ranking de percepción de corrupción mundial del puesto 93 al 50",null,null,"9.1.2. Incrementar el porcentaje de efectividad de las investigaciones, con investigación previa, que permita la desarticulación de grupos delictivos organizados (GDO) del 55.75% al 73,45%","16.1.3 Incrementar el cumplimiento de compromisos binacionales de 68,7% al 74%.","2.2.1. Incrementar la recaudación tributaria anual del sector minero de USD 40.283.952 a USD 248.040.057.",null,"4.2.2 Incrementar de 30,64% a 32,61% los ingresos de autogestión respecto a los ingresos totales de los GAD","3.2.1. Incrementar de 85,97% al 86,85% la participación de los alimentos producidos en el país en el consumo de los hogares ecuatorianos.",null,"6.1.2. Reducir la tasa de mortalidad neonatal de 4,6 al 4,0 por cada 1.000 nacidos vivos.","9.2.2 Reducir la tasa de accidentes en la operación de transporte aéreo comercial de 1,91 a 1,26","7.1.3. Incrementar la tasa bruta de matrícula de Educación General Básica de 93,00% a 97,53%.","8.2.2. Incrementar la tasa bruta de matrícula de bachillerato en el área rural de 48,65% al 54,91%. ",null,"13.2.1. Incrementar las autorizaciones para uso y aprovechamiento del recurso hídrico, de 500 a 12.000.",null,"12.3.2. Reducir a 10,50% las pérdidas de energía eléctrica a nivel nacional.","1.1.2. Reducir la tasa de desempleo juvenil (entre 18 y 29 años) de 10,08% a 8,17%.",null,"2.3.1. Aumentar el ingreso de divisas por concepto de turismo receptor de USD 704,67 millones a USD 2.434,60 millones.",null,"5.2.2. Reducir la brecha de empleo adecuado entre hombres y mujeres del 33,50% al 28,45%.",null,null,"2.2.5. Aumentar las solicitudes de patentes nacionales presentadas de 64 a 93.","3.1.7. Incrementar el valor agregado por manufactura per cápita de 879 a 1.065.","5.5.2. Incrementar la penetración de Internet móvil y fijo del 68,08% al 78,00%.","7.4.1. Incrementar los artículos publicados por las universidades y escuelas politécnicas en revistas indexadas de 6.624 a 12.423."]
[null,null,null,null,null,null,null,null,null,null,null,null,null,null,null,null,null,"14.1.3 Reducir la tasa de pendencia de 1,15 a 0,61.","15.2.1 Al 2024 incrementar de 0,7 a 0.76 el índice de gobierno electrónico.",null,null,"9.1.3. Incrementar la satisfacción del usuario externo de la Policía Nacional del 77,00% al 84,61%.",null,"2.2.2. Incrementar las exportaciones mineras anuales de USD 921.935.961 a USD 4.040.016.198.",null,"4.3.1. Aumentar de 66,67% a 91,67% las empresas públicas en operación con EBITDA (por sus siglas en inglés: Earnings Before Interests, Tax, Depreciation and Amortization) positivo.","3.3.1. Incrementar del 4% al 25% el porcentaje de productores asociados, registrados como Agricultura Familiar Campesina que se vinculan a sistemas de comercialización.",null,"6.1.3. Reducir la tasa de mortalidad por suicidio de 6,1 al 5,1 por cada 100.000 habitantes. ",null,"7.4.2. Incrementar la tasa bruta de matrícula en educación superior terciaria del 37,34% al 50,27%. ","8.2.3. Implementar el Modelo de Sistema de Educación Intercultural Bilingüe (MOSEIB), en el 5,41% de instituciones del Sistema de Educación Intercultural Bilingüe.",null,"13.2.2. Incrementar la superficie potencial de riego y drenaje de 1.458,46 a 11.461 hectáreas.",null,"12.3.3. Incrementar de 21.6 a 50.5 millones el ahorro de combustibles en Barriles Equivalentes de Petróleo, optimizando el proceso de generación eléctrica y la eficiencia energética en el sector de hidrocarburos.","1.1.3. Incrementar el porcentaje de personas empleadas mensualmente en actividades artísticas y culturales del 5,19% al 6,00%.",null,"2.3.2. Incrementar las llegadas de extranjeros no residentes al país de 468.894 en 2020 a 2.000.000 en 2025.",null,"5.2.3. Reducir la brecha salarial entre hombres y mujeres del 15,34% al 11,27%.",null,null,null,null,null,"7.4.4. Incrementar el número de investigadores por cada 1.000 habitantes de la Población Económicamente Activa de 0,55 a 0,75."]
[null,null,null,null,null,null,null,null,null,null,null,null,null,null,null,null,null,"14.1.4 Incrementar de 3,87 a 5 defensores públicos por cada 100.000 habitantes.","15.2.2 Incrementar de 20,45% a 52,27% la participación de entidades públicas en el proceso de Gobierno Abierto Ecuador.",null,null,"9.4.1 Reducir el número de muertes por violencia intracarcelaria en los Centros de Privación de Libertad de 130 a 88. ",null,"2.2.4. Incrementar la Inversión Extranjera Directa de USD 1.189,83 millones a USD 2.410,17 millones.",null,"4.4.1 Reducir de 60,7% a 57% la deuda pública y otras obligaciones de pago con relación al Producto Interno Bruto","3.3.2. Incrementar en 2.750 mujeres rurales que se desempeñan como promotoras de sistemas de producción sostenibles.",null,"6.1.4. Reducir la tasa de mortalidad atribuida al cáncer en la población de 21 a 75 años de 30,0 al 28,6 por cada 100.000 habitantes.",null,"7.4.5. Incrementar el número de personas tituladas de educación superior técnica y tecnológica de 23.274 a 28.756.",null,null,"13.2.3. Incrementar la superficie del territorio nacional con planes de gestión integral de recursos hídricos de 208.959,12 a 452.000 hectáreas.",null,"12.3.4. Incrementar de 6.424 a 6.954 megavoltiamperio (MVA) la capacidad en potencia instalada en subestaciones de distribución, para atender el crecimiento de la demanda de los sectores residencial, comercial e industrial.","1.1.4. Aumentar el número de personas con discapacidad y/o sustitutos insertados en el sistema laboral de 70.273 a 74.547.",null,"2.3.3. Aumentar el empleo en las principales actividades turísticas de 460.498 a 495.820."]
[null,null,null,null,null,null,null,null,null,null,null,null,null,null,null,null,null,"14.3.1 Incrementar de 16,84 a 38,84 el Índice de Implementación de la Mejora Regulatoria en el Estado para optimizar la calidad de vida de los ciudadanos, el clima de negocios y la competitividad.",null,null,null,"9.4.2 Reducir el porcentaje de hacinamiento en los Centros de Privación de Libertad del 29,83% al 20,42%.",null,"2.2.6 Incrementar la Inversión Privada Nacional y Extranjera de USD 1.676,90 millones a USD 7.104,68 millones. (USD 23,5 miles de millones acumulados)",null,"4.5.1 Alcanzar un superávit global de SPNF a 2025 de 0,35% del PIB.",null,null,"6.1.5. Incrementar las personas que conocen su estado serológico y se encuentran en tratamiento para VIH del 89% al 92%.",null,"7.4.6. Incrementar el número estudiantes matriculados en educación superior en las modalidades a distancia y en línea de 78.076 a 125.417.",null,null,"13.3.1. Se beneficia a 3.5 millones de habitantes a través de proyectos cofinanciados por el Estado para acceso a agua apta para el consumo humano y saneamiento.",null,"12.3.5. Incrementar la capacidad instalada de generación eléctrica de 821,44 a 1.518,44 megavatios (MW).",null,null,"2.4.1. Incrementar del 1,49% al 1,80% la contribución de las actividades culturales en el Producto Interno Bruto."]
[null,null,null,null,null,null,null,null,null,null,null,null,null,null,null,null,null,"14.3.2 Aumentar el índice de percepción de calidad de los servicios públicos de 6,08 a 8,00.",null,null,null,"9.4.3 Disminuir  la Tasa de Personas Privadas de Libertad (PPL) custodiadas por cada Servidor del Cuerpo de Seguridad y Vigilancia Penitenciaria (SCSVP) en los Centros de Privación de Libertad (CPL) de 26 PPL a 10 PPL custodiadas por cada SCSVP",null,null,null,"4.6.1. Incrementar el porcentaje promedio de cobertura de pasivos del primer sistema de balance del Banco Central del Ecuador respecto a las Reservas Internacionales del 88% al 97%.",null,null,"6.1.6 Reducir el gasto de bolsillo como porcentaje del gasto total en salud de 31,37% a 26,87%.",null,null,null,null,null,null,null,null,null,"2.4.2. Incrementar el número de nuevas obras artísticas culturales certificadas al año, en derechos de autor y derechos conexos de 2.429 a 3.912."]
[null,null,null,null,null,null,null,null,null,null,null,null,null,null,null,null,null,null,null,null,null,"9.4.4 Reducir el número de situaciones de crisis en los Centros de Privación de Libertad de 118 a 79.",null,null,null,null,null,null,"6.2.1. Incrementar la vacunación de neumococo en la población menor de 1 año de 76,09% a 88,05%. ",null,null,null,null,null,null,null,null,null,"2.4.3. Incrementar el porcentaje de contribución de importaciones en bienes de uso artístico y cultural en las importaciones totales del país de 9,33% a 10,69%."]
[null,null,null,null,null,null,null,null,null,null,null,null,null,null,null,null,null,null,null,null,null,null,null,null,null,null,null,null,"6.2.2. Incrementar la vacunación de rotavirus en la población menor de 1 año de 75,19% a 81,24%.  "]
[null,null,null,null,null,null,null,null,null,null,null,null,null,null,null,null,null,null,null,null,null,null,null,null,null,null,null,null,"6.2.3. Incrementar la vacunación de sarampión, rubeola y parodititis (SRP) en la población de 12 a 23 meses de 70,35% a 82,21%."]
[null,null,null,null,null,null,null,null,null,null,null,null,null,null,null,null,null,null,null,null,null,null,null,null,null,null,null,null,"6.3.1. Reducir la razón de muerte materna de 57,6 a 38,41 fallecimientos por cada 100.000 nacidos vivos."]
[null,null,null,null,null,null,null,null,null,null,null,null,null,null,null,null,null,null,null,null,null,null,null,null,null,null,null,null,"6.3.2. Disminuir la tasa de nacimientos por embarazo adolescente (15 a 19 años de edad) del 54,6 al 39,4 por cada 1.000 nacidos vivos. "]
[null,null,null,null,null,null,null,null,null,null,null,null,null,null,null,null,null,null,null,null,null,null,null,null,null,null,null,null,"6.5.1. Incrementar la proporción de médicos familiares que trabajan haciendo atención primaria de 1,14 a 1,71 por cada 10.000 habitantes."]
[null,null,null,null,null,null,null,null,null,null,null,null,null,null,null,null,null,null,null,null,null,null,null,null,null,null,null,null,"6.5.2. Incrementar la proporción de enfermeras que trabajan en los servicios de salud de 0,65 a 0,76 por cada médico."]
[null,null,null,null,null,null,null,null,null,null,null,null,null,null,null,null,null,null,null,null,null,null,null,null,null,null,null,null,"6.6.1. Reducir el porcentaje de adolescentes entre 13 y 15 años que consumen tabaco del 0,52 al 0,34."]
[null,null,null,null,null,null,null,null,null,null,null,null,null,null,null,null,null,null,null,null,null,null,null,null,null,null,null,null,"6.7.1. Reducir la prevalencia de actividad física insuficiente en la población de niñas, niños y jóvenes (5-17 años) del 88,21% al 83,21%."]
[null,null,null,null,null,null,null,null,null,null,null,null,null,null,null,null,null,null,null,null,null,null,null,null,null,null,null,null,"6.7.2. Reducir la prevalencia de actividad física insuficiente en la población adulta (18-69 años) del 17,80% al 13,00%."]
[null,null,null,null,null,null,null,null,null,null,null,null,null,null,null,null,null,null,null,null,null,null,null,null,null,null,null,null,"6.7.3. Reducir el tiempo de comportamiento sedentario en un día normal de 120 minutos a 114 minutos en la población de niñas, niños y jóvenes (5-17 años)."]
[null,null,null,null,null,null,null,null,null,null,null,null,null,null,null,null,null,null,null,null,null,null,null,null,null,null,null,null,"6.7.4. Reducir el tiempo de comportamiento sedentario en un día normal de 150 minutos a 143 minutos en la población adulta (18-69 años)."]

{"sheet":"Matriz","index":1,"n_rows":10000,"n_cols":10,"rows_kept":10000,"cut":false,"hidden":false,"merged":[[0,0,1,9]]}
["ALINEACIÓN DE LOS PLANES DE DESARROLLO Y ORDENAMIENTO TERRITORIAL \nDE LOS GAD  AL PLAN NACIONAL DE DESARROLLO 2021-2025."]
[]
["Competencias","Modelo de gestión","Objetivo Estratégico de desarrollo PDOT","Meta de resultados PDOT","ODS","Objetivo de Desarrollo Sostenible-ODS","OPND","Objetivo del Plan Nacional de Desarrollo-PND","Meta del Plan Nacional de Desarrollo","Meta de ODS"]
["Protección integral de derechos","1.       Gestión institucional directa","Objetivo Estratégico 1: \nEjercer una Gobernabilidad y Gobernanza de proximidad, responsable, transparente y ágil.","Mantener los niveles de endeudamiento y apalancamiento en un 1% de riesgos financiero con base a los ingresos, de conformidad a normativa al 2030.","ODS16_",{"$f":"IF(E4=\"\",\"\",VLOOKUP(E4,Insumos!AD:AE,2,FALSE))","v":"16 Paz, justicia e instituciones sólidas"},"OPND14",{"$f":"IF(G4=\"\",\"\",VLOOKUP(G4,Insumos!G:H,2,FALSE))","v":"14. Fortalecer las capacidades del Estado con énfasis en la administración de justicia y eficiencia en los procesos de regulación y control, con independencia y autonomía."},"14.3.2 Aumentar el índice de percepción de calidad de los servicios públicos de 6,08 a 8,00.","16.6 Crear a todos los niveles instituciones eficaces y transparentes que rindan cuentas"]
["Protección integral de derechos","1.       Gestión institucional directa","Objetivo Estratégico 1: \nEjercer una Gobernabilidad y Gobernanza de proximidad, responsable, transparente y ágil.","Disminuir el tiempo de atención en trámites del Sistema de Trámites en Línea (STL) al 2023","ODS16_",{"$f":"IF(E5=\"\",\"\",VLOOKUP(E5,Insumos!AD:AE,2,FALSE))","v":"16 Paz, justicia e instituciones sólidas"},"OPND14",{"$f":"IF(G5=\"\",\"\",VLOOKUP(G5,Insumos!G:H,2,FALSE))","v":"14. Fortalecer las capacidades del Estado con énfasis en la administración de justicia y eficiencia en los procesos de regulación y control, con independencia y autonomía."},"14.1.1 Aumentar la tasa de resolución de 0,84 a 1,06.","16.6 Crear a todos los niveles instituciones eficaces y transparentes que rindan cuentas"]
["Protección integral de derechos","1.       Gestión institucional directa","Objetivo Estratégico 1: \nEjercer una Gobernabilidad y Gobernanza de proximidad, responsable, transparente y ágil.","100% de implementación de la cátedra de Gestión local y Participación ciudadana en los planteles educativos municipales del DMQ destinada a estudiantes de bachillerato, al año 2025.","ODS16_",{"$f":"IF(E6=\"\",\"\",VLOOKUP(E6,Insumos!AD:AE,2,FALSE))","v":"16 Paz, justicia e instituciones sólidas"},"OPND14",{"$f":"IF(G6=\"\",\"\",VLOOKUP(G6,Insumos!G:H,2,FALSE))","v":"14. Fortalecer las capacidades del Estado con énfasis en la administración de justicia y eficiencia en los procesos de regulación y control, con independencia y autonomía."},"14.3.2 Aumentar el índice de percepción de calidad de los servicios públicos de 6,08 a 8,00.","16.6 Crear a todos los niveles instituciones eficaces y transparentes que rindan cuentas"]
["Protección integral de derechos","1.       Gestión institucional directa","Objetivo Estratégico 1: \nEjercer una Gobernabilidad y Gobernanza de proximidad, responsable, transparente y ágil.","Incrementar en un 25% las obras y proyectos sociales priorizados en asambleas participativas y solicitados por la comunidad al 2023.","ODS16_",{"$f":"IF(E7=\"\",\"\",VLOOKUP(E7,Insumos!AD:AE,2,FALSE))","v":"16 Paz, justicia e instituciones sólidas"},"OPND14",{"$f":"IF(G7=\"\",\"\",VLOOKUP(G7,Insumos!G:H,2,FALSE))","v":"14. Fortalecer las capacidades del Estado con énfasis en la administración de justicia y eficiencia en los procesos de regulación y control, con independencia y autonomía."},"14.3.2 Aumentar el índice de percepción de calidad de los servicios públicos de 6,08 a 8,00.","16.6 Crear a todos los niveles instituciones eficaces y transparentes que rindan cuentas"]
["Protección integral de derechos","1.       Gestión institucional directa","Objetivo Estratégico 1: \nEjercer una Gobernabilidad y Gobernanza de proximidad, responsable, transparente y ágil.","Lograr que el 50% de los habitantes del DMQ se involucren activamente en los procesos de participación y formación ciudadana en el marco de equidad e inclusión social.","ODS16_",{"$f":"IF(E8=\"\",\"\",VLOOKUP(E8,Insumos!AD:AE,2,FALSE))","v":"16 Paz, justicia e instituciones sólidas"},"OPND14",{"$f":"IF(G8=\"\",\"\",VLOOKUP(G8,Insumos!G:H,2,FALSE))","v":"14. Fortalecer las capacidades del Estado con énfasis en la administración de justicia y eficiencia en los procesos de regulación y control, con independencia y autonomía."},"14.3.2 Aumentar el índice de percepción de calidad de los servicios públicos de 6,08 a 8,00.","16.6 Crear a todos los niveles instituciones eficaces y transparentes que rindan cuentas"]
["Protección integral de derechos","1.       Gestión institucional directa","Objetivo Estratégico 1: \nEjercer una Gobernabilidad y Gobernanza de proximidad, responsable, transparente y ágil.","Desarrollar el 100% del modelo de gestión articulado con acciones que potencien el desarrollo rural con identidad territorial en los 33 gobiernos parroquiales rurales al 2023.","ODS16_",{"$f":"IF(E9=\"\",\"\",VLOOKUP(E9,Insumos!AD:AE,2,FALSE))","v":"16 Paz, justicia e instituciones sólidas"},"OPND14",{"$f":"IF(G9=\"\",\"\",VLOOKUP(G9,Insumos!G:H,2,FALSE))","v":"14. Fortalecer las capacidades del Estado con énfasis en la administración de justicia y eficiencia en los procesos de regulación y control, con independencia y autonomía."},"14.3.2 Aumentar el índice de percepción de calidad de los servicios públicos de 6,08 a 8,00.","16.6 Crear a todos los niveles instituciones eficaces y transparentes que rindan cuentas"]
["Protección integral de derechos","1.       Gestión institucional directa","Objetivo Estratégico 1: \nEjercer una Gobernabilidad y Gobernanza de proximidad, responsable, transparente y ágil.","Reducir en un 30% el tiempo promedio de atención en trámites del ciudadano por tipo de trámite","ODS16_",{"$f":"IF(E10=\"\",\"\",VLOOKUP(E10,Insumos!AD:AE,2,FALSE))","v":"16 Paz, justicia e instituciones sólidas"},"OPND14",{"$f":"IF(G10=\"\",\"\",VLOOKUP(G10,Insumos!G:H,2,FALSE))","v":"14. Fortalecer las capacidades del Estado con énfasis en la administración de justicia y eficiencia en los procesos de regulación y control, con independencia y autonomía."},"14.1.1 Aumentar la tasa de resolución de 0,84 a 1,06.","16.6 Crear a todos los niveles instituciones eficaces y transparentes que rindan cuentas"]
["Protección integral de derechos","1.       Gestión institucional directa","Objetivo Estratégico 1: \nEjercer una Gobernabilidad y Gobernanza de proximidad, responsable, transparente y ágil.","Incrementar en el porcentaje de cartera recuperada sobre porcentaje de cartera vencida","ODS16_",{"$f":"IF(E11=\"\",\"\",VLOOKUP(E11,Insumos!AD:AE,2,FALSE))","v":"16 Paz, justicia e instituciones sólidas"},"OPND14",{"$f":"IF(G11=\"\",\"\",VLOOKUP(G11,Insumos!G:H,2,FALSE))","v":"14. Fortalecer las capacidades del Estado con énfasis en la administración de justicia y eficiencia en los procesos de regulación y control, con independencia y autonomía."}]
["Protección integral de derechos","1.       Gestión institucional directa","Objetivo Estratégico 1: \nEjercer una Gobernabilidad y Gobernanza de proximidad, responsable, transparente y ágil.","Incrementar al 85% el número de trámites que se pueden realizar de manera automatizada en el DMQ al 2033.","ODS16_",{"$f":"IF(E12=\"\",\"\",VLOOKUP(E12,Insumos!AD:AE,2,FALSE))","v":"16 Paz, justicia e instituciones sólidas"},"OPND14",{"$f":"IF(G12=\"\",\"\",VLOOKUP(G12,Insumos!G:H,2,FALSE))","v":"14. Fortalecer las capacidades del Estado con énfasis en la administración de justicia y eficiencia en los procesos de regulación y control, con independencia y autonomía."},"14.1.1 Aumentar la tasa de resolución de 0,84 a 1,06.","16.6 Crear a todos los niveles instituciones eficaces y transparentes que rindan cuentas"]
["Protección integral de derechos","1.       Gestión institucional directa","Objetivo Estratégico 1: \nEjercer una Gobernabilidad y Gobernanza de proximidad, responsable, transparente y ágil.","Implementar el 100% de Planes Maestros involucrados al 2033.","ODS16_",{"$f":"IF(E13=\"\",\"\",VLOOKUP(E13,Insumos!AD:AE,2,FALSE))","v":"16 Paz, justicia e instituciones sólidas"},"OPND14",{"$f":"IF(G13=\"\",\"\",VLOOKUP(G13,Insumos!G:H,2,FALSE))","v":"14. Fortalecer las capacidades del Estado con énfasis en la administración de justicia y eficiencia en los procesos de regulación y control, con independencia y autonomía."},"14.3.2 Aumentar el índice de percepción de calidad de los servicios públicos de 6,08 a 8,00.","16.6 Crear a todos los niveles instituciones eficaces y transparentes que rindan cuentas"]
["Protección integral de derechos","1.       Gestión institucional directa","Objetivo Estratégico 1: \nEjercer una Gobernabilidad y Gobernanza de proximidad, responsable, transparente y ágil.","Incrementar el índice de eficiencia en la gestión municipal.","ODS16_",{"$f":"IF(E14=\"\",\"\",VLOOKUP(E14,Insumos!AD:AE,2,FALSE))","v":"16 Paz, justicia e instituciones sólidas"},"OPND14",{"$f":"IF(G14=\"\",\"\",VLOOKUP(G14,Insumos!G:H,2,FALSE))","v":"14. Fortalecer las capacidades del Estado con énfasis en la administración de justicia y eficiencia en los procesos de regulación y control, con independencia y autonomía."},"14.3.2 Aumentar el índice de percepción de calidad de los servicios públicos de 6,08 a 8,00.","16.6 Crear a todos los niveles instituciones eficaces y transparentes que rindan cuentas"]
["Protección integral de derechos","1.       Gestión institucional directa","Objetivo Estratégico 1: \nEjercer una Gobernabilidad y Gobernanza de proximidad, responsable, transparente y ágil.","Incrementar en un 40% el índice de percepción ciudadana de la gestión municipal al 2033.","ODS16_",{"$f":"IF(E15=\"\",\"\",VLOOKUP(E15,Insumos!AD:AE,2,FALSE))","v":"16 Paz, justicia e instituciones sólidas"},"OPND14",{"$f":"IF(G15=\"\",\"\",VLOOKUP(G15,Insumos!G:H,2,FALSE))","v":"14. Fortalecer las capacidades del Estado con énfasis en la administración de justicia y eficiencia en los procesos de regulación y control, con independencia y autonomía."},"14.3.2 Aumentar el índice de percepción de calidad de los servicios públicos de 6,08 a 8,00.","16.6 Crear a todos los niveles instituciones eficaces y transparentes que rindan cuentas"]
["Protección integral de derechos","1.       Gestión institucional directa","Objetivo Estratégico 1: \nEjercer una Gobernabilidad y Gobernanza de proximidad, responsable, transparente y ágil.","Incrementar el índice de participación ciudadana al 2033.","ODS16_",{"$f":"IF(E16=\"\",\"\",VLOOKUP(E16,Insumos!AD:AE,2,FALSE))","v":"16 Paz, justicia e instituciones sólidas"},"OPND14",{"$f":"IF(G16=\"\",\"\",VLOOKUP(G16,Insumos!G:H,2,FALSE))","v":"14. Fortalecer las capacidades del Estado con énfasis en la administración de justicia y eficiencia en los procesos de regulación y control, con independencia y autonomía."},"14.3.2 Aumentar el índice de percepción de calidad de los servicios públicos de 6,08 a 8,00.","16.6 Crear a todos los niveles instituciones eficaces y transparentes que rindan cuentas"]
["Gestión Ambiental ","1.       Gestión institucional directa","Objetivo Estratégico 2:  \nPromover una gestión integral ambiental, de residuos y de riesgos, responsables y sostenibles.","Al 2033 recuperar 99.451,47 hectáreas de áreas de conservación y uso sostenible.","ODS15_",{"$f":"IF(E17=\"\",\"\",VLOOKUP(E17,Insumos!AD:AE,2,FALSE))","v":"15 Vida de ecosistemas terrestres"},"OPND11",{"$f":"IF(G17=\"\",\"\",VLOOKUP(G17,Insumos!G:H,2,FALSE))","v":"11. Conservar, restaurar, proteger y hacer un uso sostenible de los recursos naturales"},"11.1.1. Mantener la proporción de territorio nacional bajo conservación o manejo ambiental en 16,45%.","15.1 De aquí a 2020, asegurar la conservación, el restablecimiento y el uso sostenible de los ecosistemas terrestres y los ecosistemas interiores de agua dulce y sus servicios, en particular los bosques, los humedales, las montañas y las zonas áridas, en consonancia con las obligaciones contraídas en virtud de acuerdos internacionales"]
["Gestión Ambiental ","1.       Gestión institucional directa","Objetivo Estratégico 2:  \nPromover una gestión integral ambiental, de residuos y de riesgos, responsables y sostenibles.","Al 2033 recuperar 65.618,36 hectáreas de protección de humedales (APH).","ODS15_",{"$f":"IF(E18=\"\",\"\",VLOOKUP(E18,Insumos!AD:AE,2,FALSE))","v":"15 Vida de ecosistemas terrestres"},"OPND11",{"$f":"IF(G18=\"\",\"\",VLOOKUP(G18,Insumos!G:H,2,FALSE))","v":"11. Conservar, restaurar, proteger y hacer un uso sostenible de los recursos naturales"},"11.1.1. Mantener la proporción de territorio nacional bajo conservación o manejo ambiental en 16,45%.","15.1 De aquí a 2020, asegurar la conservación, el restablecimiento y el uso sostenible de los ecosistemas terrestres y los ecosistemas interiores de agua dulce y sus servicios, en particular los bosques, los humedales, las montañas y las zonas áridas, en consonancia con las obligaciones contraídas en virtud de acuerdos internacionales"]
["Gestión Ambiental ","1.       Gestión institucional directa","Objetivo Estratégico 2:  \nPromover una gestión integral ambiental, de residuos y de riesgos, responsables y sostenibles.","Conservar 55.401,34 hectáreas de corredor ecológico al 2033.","ODS15_",{"$f":"IF(E19=\"\",\"\",VLOOKUP(E19,Insumos!AD:AE,2,FALSE))","v":"15 Vida de ecosistemas terrestres"},"OPND11",{"$f":"IF(G19=\"\",\"\",VLOOKUP(G19,Insumos!G:H,2,FALSE))","v":"11. Conservar, restaurar, proteger y hacer un uso sostenible de los recursos naturales"},"11.1.1. Mantener la proporción de territorio nacional bajo conservación o manejo ambiental en 16,45%.","15.1 De aquí a 2020, asegurar la conservación, el restablecimiento y el uso sostenible de los ecosistemas terrestres y los ecosistemas interiores de agua dulce y sus servicios, en particular los bosques, los humedales, las montañas y las zonas áridas, en consonancia con las obligaciones contraídas en virtud de acuerdos internacionales"]
["Gestión Ambiental ","1.       Gestión institucional directa","Objetivo Estratégico 2:  \nPromover una gestión integral ambiental, de residuos y de riesgos, responsables y sostenibles.","Al 2033 recuperar 47.396,92 hectáreas de quebradas vivas.","ODS15_",{"$f":"IF(E20=\"\",\"\",VLOOKUP(E20,Insumos!AD:AE,2,FALSE))","v":"15 Vida de ecosistemas terrestres"},"OPND11",{"$f":"IF(G20=\"\",\"\",VLOOKUP(G20,Insumos!G:H,2,FALSE))","v":"11. Conservar, restaurar, proteger y hacer un uso sostenible de los recursos naturales"},"11.1.1. Mantener la proporción de territorio nacional bajo conservación o manejo ambiental en 16,45%.","15.1 De aquí a 2020, asegurar la conservación, el restablecimiento y el uso sostenible de los ecosistemas terrestres y los ecosistemas interiores de agua dulce y sus servicios, en particular los bosques, los humedales, las montañas y las zonas áridas, en consonancia con las obligaciones contraídas en virtud de acuerdos internacionales"]
["Gestión Ambiental ","1.       Gestión institucional directa","Objetivo Estratégico 2:  \nPromover una gestión integral ambiental, de residuos y de riesgos, responsables y sostenibles.","Reducir en 560.000 toneladas de co2 equivalente con relación al crecimiento proyectado al 2023.","ODS15_",{"$f":"IF(E21=\"\",\"\",VLOOKUP(E21,Insumos!AD:AE,2,FALSE))","v":"15 Vida de ecosistemas terrestres"},"OPND11",{"$f":"IF(G21=\"\",\"\",VLOOKUP(G21,Insumos!G:H,2,FALSE))","v":"11. Conservar, restaurar, proteger y hacer un uso sostenible de los recursos naturales"},"11.3.1. Reducir las emisiones de Gases de Efecto Invernadero por deforestación en el sector de Uso del Suelo, Cambio de Uso del Suelo y Silvicultura (USCUSS) de 53.782,59 a 52.706,94 Gg CO2eq.","15.2 De aquí a 2020, promover la puesta en práctica de la gestión sostenible de todos los tipos de bosques, detener la deforestación, recuperar los bosques degradados y aumentar considerablemente la forestación y la reforestación a nivel mundial"]
["Gestión Ambiental ","1.       Gestión institucional directa","Objetivo Estratégico 2:  \nPromover una gestión integral ambiental, de residuos y de riesgos, responsables y sostenibles.","Lograr que el 72% de los buses de transporte público evaluado se encuentre dentro de los valores máximos permisibles de (opacidad) emisiones al 2023","ODS15_",{"$f":"IF(E22=\"\",\"\",VLOOKUP(E22,Insumos!AD:AE,2,FALSE))","v":"15 Vida de ecosistemas terrestres"},"OPND11",{"$f":"IF(G22=\"\",\"\",VLOOKUP(G22,Insumos!G:H,2,FALSE))","v":"11. Conservar, restaurar, proteger y hacer un uso sostenible de los recursos naturales"},"11.3.1. Reducir las emisiones de Gases de Efecto Invernadero por deforestación en el sector de Uso del Suelo, Cambio de Uso del Suelo y Silvicultura (USCUSS) de 53.782,59 a 52.706,94 Gg CO2eq.","15.1 De aquí a 2020, asegurar la conservación, el restablecimiento y el uso sostenible de los ecosistemas terrestres y los ecosistemas interiores de agua dulce y sus servicios, en particular los bosques, los humedales, las montañas y las zonas áridas, en consonancia con las obligaciones contraídas en virtud de acuerdos internacionales"]
["Gestión Ambiental ","1.       Gestión institucional directa","Objetivo Estratégico 2:  \nPromover una gestión integral ambiental, de residuos y de riesgos, responsables y sostenibles.","Aplicar la norma técnica de ruido ambiental en el Distrito Metropolitano de Quito al 2025.","ODS15_",{"$f":"IF(E23=\"\",\"\",VLOOKUP(E23,Insumos!AD:AE,2,FALSE))","v":"15 Vida de ecosistemas terrestres"},"OPND11",{"$f":"IF(G23=\"\",\"\",VLOOKUP(G23,Insumos!G:H,2,FALSE))","v":"11. Conservar, restaurar, proteger y hacer un uso sostenible de los recursos naturales"},"11.1.1. Mantener la proporción de territorio nacional bajo conservación o manejo ambiental en 16,45%.","15.1 De aquí a 2020, asegurar la conservación, el restablecimiento y el uso sostenible de los ecosistemas terrestres y los ecosistemas interiores de agua dulce y sus servicios, en particular los bosques, los humedales, las montañas y las zonas áridas, en consonancia con las obligaciones contraídas en virtud de acuerdos internacionales"]
["Gestión Ambiental ","1.       Gestión institucional directa","Objetivo Estratégico 2:  \nPromover una gestión integral ambiental, de residuos y de riesgos, responsables y sostenibles.","Reducir al menos el 10% la carga contaminante de emisiones atmosféricas y descargas líquidas industriales en el Distrito Metropolitano de Quito al 2024","ODS15_",{"$f":"IF(E24=\"\",\"\",VLOOKUP(E24,Insumos!AD:AE,2,FALSE))","v":"15 Vida de ecosistemas terrestres"},"OPND11",{"$f":"IF(G24=\"\",\"\",VLOOKUP(G24,Insumos!G:H,2,FALSE))","v":"11. Conservar, restaurar, proteger y hacer un uso sostenible de los recursos naturales"},"11.3.1. Reducir las emisiones de Gases de Efecto Invernadero por deforestación en el sector de Uso del Suelo, Cambio de Uso del Suelo y Silvicultura (USCUSS) de 53.782,59 a 52.706,94 Gg CO2eq.","15.2 De aquí a 2020, promover la puesta en práctica de la gestión sostenible de todos los tipos de bosques, detener la deforestación, recuperar los bosques degradados y aumentar considerablemente la forestación y la reforestación a nivel mundial"]
["Gestión Ambiental ","1.       Gestión institucional directa","Objetivo Estratégico 2:  \nPromover una gestión integral ambiental, de residuos y de riesgos, responsables y sostenibles.","Lograr que el 15% de unidades educativas participen de manera activa en implementación de buenas prácticas ambientales al 2025.","ODS15_",{"$f":"IF(E25=\"\",\"\",VLOOKUP(E25,Insumos!AD:AE,2,FALSE))","v":"15 Vida de ecosistemas terrestres"},"OPND11",{"$f":"IF(G25=\"\",\"\",VLOOKUP(G25,Insumos!G:H,2,FALSE))","v":"11. Conservar, restaurar, proteger y hacer un uso sostenible de los recursos naturales"},"11.1.1. Mantener la proporción de territorio nacional bajo conservación o manejo ambiental en 16,45%.","15.2 De aquí a 2020, promover la puesta en práctica de la gestión sostenible de todos los tipos de bosques, detener la deforestación, recuperar los bosques degradados y aumentar considerablemente la forestación y la reforestación a nivel mundial"]
["Gestión Ambiental ","1.       Gestión institucional directa","Objetivo Estratégico 2:  \nPromover una gestión integral ambiental, de residuos y de riesgos, responsables y sostenibles.","Lograr que el 20% de actividades económicas categoría 1 participen de manera activa en implementación de buenas prácticas ambientales al 2025.","ODS15_",{"$f":"IF(E26=\"\",\"\",VLOOKUP(E26,Insumos!AD:AE,2,FALSE))","v":"15 Vida de ecosistemas terrestres"},"OPND11",{"$f":"IF(G26=\"\",\"\",VLOOKUP(G26,Insumos!G:H,2,FALSE))","v":"11. Conservar, restaurar, proteger y hacer un uso sostenible de los recursos naturales"},"11.1.1. Mantener la proporción de territorio nacional bajo conservación o manejo ambiental en 16,45%.","15.2 De aquí a 2020, promover la puesta en práctica de la gestión sostenible de todos los tipos de bosques, detener la deforestación, recuperar los bosques degradados y aumentar considerablemente la forestación y la reforestación a nivel mundial"]
["Gestión Ambiental ","1.       Gestión institucional directa","Objetivo Estratégico 2:  \nPromover una gestión integral ambiental, de residuos y de riesgos, responsables y sostenibles.","Consolidar cinco kilómetros cuadrados de la red verde urbana al 2030.","ODS15_",{"$f":"IF(E27=\"\",\"\",VLOOKUP(E27,Insumos!AD:AE,2,FALSE))","v":"15 Vida de ecosistemas terrestres"},"OPND11",{"$f":"IF(G27=\"\",\"\",VLOOKUP(G27,Insumos!G:H,2,FALSE))","v":"11. Conservar, restaurar, proteger y hacer un uso sostenible de los recursos naturales"},"11.1.1. Mantener la proporción de territorio nacional bajo conservación o manejo ambiental en 16,45%.","15.1 De aquí a 2020, asegurar la conservación, el restablecimiento y el uso sostenible de los ecosistemas terrestres y los ecosistemas interiores de agua dulce y sus servicios, en particular los bosques, los humedales, las montañas y las zonas áridas, en consonancia con las obligaciones contraídas en virtud de acuerdos internacionales"]
["Gestión Ambiental ","1.       Gestión institucional directa","Objetivo Estratégico 2:  \nPromover una gestión integral ambiental, de residuos y de riesgos, responsables y sostenibles.","Lograr que el 20% de la superficie degradada de las áreas de intervención especial y recuperación (AIER) del Distrito Metropolitano de Quito se encuentren bajo procesos de recuperación hasta el 2025.","ODS15_",{"$f":"IF(E28=\"\",\"\",VLOOKUP(E28,Insumos!AD:AE,2,FALSE))","v":"15 Vida de ecosistemas terrestres"},"OPND11",{"$f":"IF(G28=\"\",\"\",VLOOKUP(G28,Insumos!G:H,2,FALSE))","v":"11. Conservar, restaurar, proteger y hacer un uso sostenible de los recursos naturales"},"11.1.1. Mantener la proporción de territorio nacional bajo conservación o manejo ambiental en 16,45%.","15.1 De aquí a 2020, asegurar la conservación, el restablecimiento y el uso sostenible de los ecosistemas terrestres y los ecosistemas interiores de agua dulce y sus servicios, en particular los bosques, los humedales, las montañas y las zonas áridas, en consonancia con las obligaciones contraídas en virtud de acuerdos internacionales"]
["Gestión Ambiental ","1.       Gestión institucional directa","Objetivo Estratégico 2:  \nPromover una gestión integral ambiental, de residuos y de riesgos, responsables y sostenibles.","Desarrollar al menos 2 instrumentos de políticas públicas ambientales y de sostenibilidad en el DMQ hasta el 2023","ODS15_",{"$f":"IF(E29=\"\",\"\",VLOOKUP(E29,Insumos!AD:AE,2,FALSE))","v":"15 Vida de ecosistemas terrestres"},"OPND11",{"$f":"IF(G29=\"\",\"\",VLOOKUP(G29,Insumos!G:H,2,FALSE))","v":"11. Conservar, restaurar, proteger y hacer un uso sostenible de los recursos naturales"},"11.1.1. Mantener la proporción de territorio nacional bajo conservación o manejo ambiental en 16,45%.","15.1 De aquí a 2020, asegurar la conservación, el restablecimiento y el uso sostenible de los ecosistemas terrestres y los ecosistemas interiores de agua dulce y sus servicios, en particular los bosques, los humedales, las montañas y las zonas áridas, en consonancia con las obligaciones contraídas en virtud de acuerdos internacionales"]
["Gestión Ambiental ","1.       Gestión institucional directa","Objetivo Estratégico 2:  \nPromover una gestión integral ambiental, de residuos y de riesgos, responsables y sostenibles.","Activar procesos de manejo integral en el 10% de quebradas priorizadas hasta el 2025","ODS15_",{"$f":"IF(E30=\"\",\"\",VLOOKUP(E30,Insumos!AD:AE,2,FALSE))","v":"15 Vida de ecosistemas terrestres"},"OPND11",{"$f":"IF(G30=\"\",\"\",VLOOKUP(G30,Insumos!G:H,2,FALSE))","v":"11. Conservar, restaurar, proteger y hacer un uso sostenible de los recursos naturales"},"11.1.1. Mantener la proporción de territorio nacional bajo conservación o manejo ambiental en 16,45%.","15.1 De aquí a 2020, asegurar la conservación, el restablecimiento y el uso sostenible de los ecosistemas terrestres y los ecosistemas interiores de agua dulce y sus servicios, en particular los bosques, los humedales, las montañas y las zonas áridas, en consonancia con las obligaciones contraídas en virtud de acuerdos internacionales"]
["Gestión Ambiental ","1.       Gestión institucional directa","Objetivo Estratégico 2:  \nPromover una gestión integral ambiental, de residuos y de riesgos, responsables y sostenibles.","Lograr que 200 hectáreas se encuentren bajo procesos de recuperación de cobertura vegetal aplicando principios de restauración ecológica al 2023.","ODS15_",{"$f":"IF(E31=\"\",\"\",VLOOKUP(E31,Insumos!AD:AE,2,FALSE))","v":"15 Vida de ecosistemas terrestres"},"OPND11",{"$f":"IF(G31=\"\",\"\",VLOOKUP(G31,Insumos!G:H,2,FALSE))","v":"11. Conservar, restaurar, proteger y hacer un uso sostenible de los recursos naturales"},"11.1.1. Mantener la proporción de territorio nacional bajo conservación o manejo ambiental en 16,45%.","15.1 De aquí a 2020, asegurar la conservación, el restablecimiento y el uso sostenible de los ecosistemas terrestres y los ecosistemas interiores de agua dulce y sus servicios, en particular los bosques, los humedales, las montañas y las zonas áridas, en consonancia con las obligaciones contraídas en virtud de acuerdos internacionales"]
["Gestión Ambiental ","1.       Gestión institucional directa","Objetivo Estratégico 2:  \nPromover una gestión integral ambiental, de residuos y de riesgos, responsables y sostenibles.","Al 2033, realizar el 100% de la actualización de la delimitación del AEIR Pichincha Atacazo.","ODS15_",{"$f":"IF(E32=\"\",\"\",VLOOKUP(E32,Insumos!AD:AE,2,FALSE))","v":"15 Vida de ecosistemas terrestres"},"OPND11",{"$f":"IF(G32=\"\",\"\",VLOOKUP(G32,Insumos!G:H,2,FALSE))","v":"11. Conservar, restaurar, proteger y hacer un uso sostenible de los recursos naturales"},"11.1.1. Mantener la proporción de territorio nacional bajo conservación o manejo ambiental en 16,45%.","15.1 De aquí a 2020, asegurar la conservación, el restablecimiento y el uso sostenible de los ecosistemas terrestres y los ecosistemas interiores de agua dulce y sus servicios, en particular los bosques, los humedales, las montañas y las zonas áridas, en consonancia con las obligaciones contraídas en virtud de acuerdos internacionales"]
["Gestión Ambiental ","1.       Gestión institucional directa","Objetivo Estratégico 2:  \nPromover una gestión integral ambiental, de residuos y de riesgos, responsables y sostenibles.","Al 2033, incrementar el número de parques metropolitanos en el AEIR Pichincha Atacazo.","ODS15_",{"$f":"IF(E33=\"\",\"\",VLOOKUP(E33,Insumos!AD:AE,2,FALSE))","v":"15 Vida de ecosistemas terrestres"},"OPND11",{"$f":"IF(G33=\"\",\"\",VLOOKUP(G33,Insumos!G:H,2,FALSE))","v":"11. Conservar, restaurar, proteger y hacer un uso sostenible de los recursos naturales"},"11.1.1. Mantener la proporción de territorio nacional bajo conservación o manejo ambiental en 16,45%.","15.1 De aquí a 2020, asegurar la conservación, el restablecimiento y el uso sostenible de los ecosistemas terrestres y los ecosistemas interiores de agua dulce y sus servicios, en particular los bosques, los humedales, las montañas y las zonas áridas, en consonancia con las obligaciones contraídas en virtud de acuerdos internacionales"]
["Gestión Ambiental ","1.       Gestión institucional directa","Objetivo Estratégico 2:  \nPromover una gestión integral ambiental, de residuos y de riesgos, responsables y sostenibles.","Utilizar el 100% de las áreas aprovechables del relleno sanitario para la disposición final al 2023","ODS15_",{"$f":"IF(E34=\"\",\"\",VLOOKUP(E34,Insumos!AD:AE,2,FALSE))","v":"15 Vida de ecosistemas terrestres"},"OPND11",{"$f":"IF(G34=\"\",\"\",VLOOKUP(G34,Insumos!G:H,2,FALSE))","v":"11. Conservar, restaurar, proteger y hacer un uso sostenible de los recursos naturales"},"11.1.1. Mantener la proporción de territorio nacional bajo conservación o manejo ambiental en 16,45%.","15.1 De aquí a 2020, asegurar la conservación, el restablecimiento y el uso sostenible de los ecosistemas terrestres y los ecosistemas interiores de agua dulce y sus servicios, en particular los bosques, los humedales, las montañas y las zonas áridas, en consonancia con las obligaciones contraídas en virtud de acuerdos internacionales"]
["Gestión Ambiental ","1.       Gestión institucional directa","Objetivo Estratégico 2:  \nPromover una gestión integral ambiental, de residuos y de riesgos, responsables y sostenibles.","Aprobar 3 estudios para la construcción del nuevo relleno sanitario del DMQ al 2022","ODS15_",{"$f":"IF(E35=\"\",\"\",VLOOKUP(E35,Insumos!AD:AE,2,FALSE))","v":"15 Vida de ecosistemas terrestres"},"OPND11",{"$f":"IF(G35=\"\",\"\",VLOOKUP(G35,Insumos!G:H,2,FALSE))","v":"11. Conservar, restaurar, proteger y hacer un uso sostenible de los recursos naturales"},"11.3.1. Reducir las emisiones de Gases de Efecto Invernadero por deforestación en el sector de Uso del Suelo, Cambio de Uso del Suelo y Silvicultura (USCUSS) de 53.782,59 a 52.706,94 Gg CO2eq.","15.2 De aquí a 2020, promover la puesta en práctica de la gestión sostenible de todos los tipos de bosques, detener la deforestación, recuperar los bosques degradados y aumentar considerablemente la forestación y la reforestación a nivel mundial"]
["Gestión Ambiental ","1.       Gestión institucional directa","Objetivo Estratégico 2:  \nPromover una gestión integral ambiental, de residuos y de riesgos, responsables y sostenibles.","Tratar 2.700 toneladas de residuos peligrosos sanitarios generados en el DMQ al 2023","ODS15_",{"$f":"IF(E36=\"\",\"\",VLOOKUP(E36,Insumos!AD:AE,2,FALSE))","v":"15 Vida de ecosistemas terrestres"},"OPND11",{"$f":"IF(G36=\"\",\"\",VLOOKUP(G36,Insumos!G:H,2,FALSE))","v":"11. Conservar, restaurar, proteger y hacer un uso sostenible de los recursos naturales"},"11.1.1. Mantener la proporción de territorio nacional bajo conservación o manejo ambiental en 16,45%.","15.1 De aquí a 2020, asegurar la conservación, el restablecimiento y el uso sostenible de los ecosistemas terrestres y los ecosistemas interiores de agua dulce y sus servicios, en particular los bosques, los humedales, las montañas y las zonas áridas, en consonancia con las obligaciones contraídas en virtud de acuerdos internacionales"]
["Gestión Ambiental ","1.       Gestión institucional directa","Objetivo Estratégico 2:  \nPromover una gestión integral ambiental, de residuos y de riesgos, responsables y sostenibles.","Incrementar al 98% la capacidad de recolección de residuos sólidos en el Distrito Metropolitano de Quito al 2023","ODS15_",{"$f":"IF(E37=\"\",\"\",VLOOKUP(E37,Insumos!AD:AE,2,FALSE))","v":"15 Vida de ecosistemas terrestres"},"OPND11",{"$f":"IF(G37=\"\",\"\",VLOOKUP(G37,Insumos!G:H,2,FALSE))","v":"11. Conservar, restaurar, proteger y hacer un uso sostenible de los recursos naturales"},"11.1.1. Mantener la proporción de territorio nacional bajo conservación o manejo ambiental en 16,45%.","15.1 De aquí a 2020, asegurar la conservación, el restablecimiento y el uso sostenible de los ecosistemas terrestres y los ecosistemas interiores de agua dulce y sus servicios, en particular los bosques, los humedales, las montañas y las zonas áridas, en consonancia con las obligaciones contraídas en virtud de acuerdos internacionales"]
["Gestión Ambiental ","1.       Gestión institucional directa","Objetivo Estratégico 2:  \nPromover una gestión integral ambiental, de residuos y de riesgos, responsables y sostenibles.","Al 2033 dar el tratamiento y disposición final de residuos sólidos peligrosos y no peligrosos del 100% de residuos sólidos que genera el Distrito Metropolitano de Quito.","ODS15_",{"$f":"IF(E38=\"\",\"\",VLOOKUP(E38,Insumos!AD:AE,2,FALSE))","v":"15 Vida de ecosistemas terrestres"},"OPND11",{"$f":"IF(G38=\"\",\"\",VLOOKUP(G38,Insumos!G:H,2,FALSE))","v":"11. Conservar, restaurar, proteger y hacer un uso sostenible de los recursos naturales"},"11.1.1. Mantener la proporción de territorio nacional bajo conservación o manejo ambiental en 16,45%.","15.1 De aquí a 2020, asegurar la conservación, el restablecimiento y el uso sostenible de los ecosistemas terrestres y los ecosistemas interiores de agua dulce y sus servicios, en particular los bosques, los humedales, las montañas y las zonas áridas, en consonancia con las obligaciones contraídas en virtud de acuerdos internacionales"]
["Gestión Ambiental ","1.       Gestión institucional directa","Objetivo Estratégico 2:  \nPromover una gestión integral ambiental, de residuos y de riesgos, responsables y sostenibles.","Implementar el 100% de los Planes Maestros involucrados","ODS15_",{"$f":"IF(E39=\"\",\"\",VLOOKUP(E39,Insumos!AD:AE,2,FALSE))","v":"15 Vida de ecosistemas terrestres"},"OPND11",{"$f":"IF(G39=\"\",\"\",VLOOKUP(G39,Insumos!G:H,2,FALSE))","v":"11. Conservar, restaurar, proteger y hacer un uso sostenible de los recursos naturales"},"11.1.1. Mantener la proporción de territorio nacional bajo conservación o manejo ambiental en 16,45%.","15.1 De aquí a 2020, asegurar la conservación, el restablecimiento y el uso sostenible de los ecosistemas terrestres y los ecosistemas interiores de agua dulce y sus servicios, en particular los bosques, los humedales, las montañas y las zonas áridas, en consonancia con las obligaciones contraídas en virtud de acuerdos internacionales"]
["Gestión Ambiental ","1.       Gestión institucional directa","Objetivo Estratégico 2:  \nPromover una gestión integral ambiental, de residuos y de riesgos, responsables y sostenibles.","Reducir en 8%, al 2030, la producción per cápita (PPC) de RSU con respecto al año base.","ODS15_",{"$f":"IF(E40=\"\",\"\",VLOOKUP(E40,Insumos!AD:AE,2,FALSE))","v":"15 Vida de ecosistemas terrestres"},"OPND11",{"$f":"IF(G40=\"\",\"\",VLOOKUP(G40,Insumos!G:H,2,FALSE))","v":"11. Conservar, restaurar, proteger y hacer un uso sostenible de los recursos naturales"},"11.1.1. Mantener la proporción de territorio nacional bajo conservación o manejo ambiental en 16,45%.","15.1 De aquí a 2020, asegurar la conservación, el restablecimiento y el uso sostenible de los ecosistemas terrestres y los ecosistemas interiores de agua dulce y sus servicios, en particular los bosques, los humedales, las montañas y las zonas áridas, en consonancia con las obligaciones contraídas en virtud de acuerdos internacionales"]
["Gestión Ambiental ","1.       Gestión institucional directa","Objetivo Estratégico 2:  \nPromover una gestión integral ambiental, de residuos y de riesgos, responsables y sostenibles.","Mantener al 65% la capacidad de disposición técnica de RSU en el relleno sanitario al 2030.","ODS15_",{"$f":"IF(E41=\"\",\"\",VLOOKUP(E41,Insumos!AD:AE,2,FALSE))","v":"15 Vida de ecosistemas terrestres"},"OPND11",{"$f":"IF(G41=\"\",\"\",VLOOKUP(G41,Insumos!G:H,2,FALSE))","v":"11. Conservar, restaurar, proteger y hacer un uso sostenible de los recursos naturales"},"11.1.1. Mantener la proporción de territorio nacional bajo conservación o manejo ambiental en 16,45%.","15.1 De aquí a 2020, asegurar la conservación, el restablecimiento y el uso sostenible de los ecosistemas terrestres y los ecosistemas interiores de agua dulce y sus servicios, en particular los bosques, los humedales, las montañas y las zonas áridas, en consonancia con las obligaciones contraídas en virtud de acuerdos internacionales"]
["Gestión Ambiental ","1.       Gestión institucional directa","Objetivo Estratégico 2:  \nPromover una gestión integral ambiental, de residuos y de riesgos, responsables y sostenibles.","Al 2030 se aprovechará el 10% anual de los residuos que llegan a las escombreras en nuevos procesos productivos o mediante la recuperación de material reciclable.","ODS15_",{"$f":"IF(E42=\"\",\"\",VLOOKUP(E42,Insumos!AD:AE,2,FALSE))","v":"15 Vida de ecosistemas terrestres"},"OPND11",{"$f":"IF(G42=\"\",\"\",VLOOKUP(G42,Insumos!G:H,2,FALSE))","v":"11. Conservar, restaurar, proteger y hacer un uso sostenible de los recursos naturales"},"11.1.1. Mantener la proporción de territorio nacional bajo conservación o manejo ambiental en 16,45%.","15.1 De aquí a 2020, asegurar la conservación, el restablecimiento y el uso sostenible de los ecosistemas terrestres y los ecosistemas interiores de agua dulce y sus servicios, en particular los bosques, los humedales, las montañas y las zonas áridas, en consonancia con las obligaciones contraídas en virtud de acuerdos internacionales"]
["Gestión Ambiental ","1.       Gestión institucional directa","Objetivo Estratégico 2:  \nPromover una gestión integral ambiental, de residuos y de riesgos, responsables y sostenibles.","Al 2030 reducir la cantidad de residuos sólidos que llegan al Relleno sanitario en al menos un 25%","ODS15_",{"$f":"IF(E43=\"\",\"\",VLOOKUP(E43,Insumos!AD:AE,2,FALSE))","v":"15 Vida de ecosistemas terrestres"},"OPND11",{"$f":"IF(G43=\"\",\"\",VLOOKUP(G43,Insumos!G:H,2,FALSE))","v":"11. Conservar, restaurar, proteger y hacer un uso sostenible de los recursos naturales"},"11.1.1. Mantener la proporción de territorio nacional bajo conservación o manejo ambiental en 16,45%.","15.1 De aquí a 2020, asegurar la conservación, el restablecimiento y el uso sostenible de los ecosistemas terrestres y los ecosistemas interiores de agua dulce y sus servicios, en particular los bosques, los humedales, las montañas y las zonas áridas, en consonancia con las obligaciones contraídas en virtud de acuerdos internacionales"]
["Gestión Ambiental ","1.       Gestión institucional directa","Objetivo Estratégico 2:  \nPromover una gestión integral ambiental, de residuos y de riesgos, responsables y sostenibles.","Al 2033 duplicar la separación en la fuente de los residuos sólidos urbanos","ODS15_",{"$f":"IF(E44=\"\",\"\",VLOOKUP(E44,Insumos!AD:AE,2,FALSE))","v":"15 Vida de ecosistemas terrestres"},"OPND11",{"$f":"IF(G44=\"\",\"\",VLOOKUP(G44,Insumos!G:H,2,FALSE))","v":"11. Conservar, restaurar, proteger y hacer un uso sostenible de los recursos naturales"},"11.1.1. Mantener la proporción de territorio nacional bajo conservación o manejo ambiental en 16,45%.","15.1 De aquí a 2020, asegurar la conservación, el restablecimiento y el uso sostenible de los ecosistemas terrestres y los ecosistemas interiores de agua dulce y sus servicios, en particular los bosques, los humedales, las montañas y las zonas áridas, en consonancia con las obligaciones contraídas en virtud de acuerdos internacionales"]
["Gestión Ambiental ","1.       Gestión institucional directa","Objetivo Estratégico 2:  \nPromover una gestión integral ambiental, de residuos y de riesgos, responsables y sostenibles.","A 2033 el 100% de las entidades del MDMQ contarán con protocolos y procesos institucionalizados para la actualización oportuna de datos e información, así como para el desarrollo de modelos confiables de amenazas, exposición, vulnerabilidades y riesgo por multiamenazas","ODS15_",{"$f":"IF(E45=\"\",\"\",VLOOKUP(E45,Insumos!AD:AE,2,FALSE))","v":"15 Vida de ecosistemas terrestres"},"OPND11",{"$f":"IF(G45=\"\",\"\",VLOOKUP(G45,Insumos!G:H,2,FALSE))","v":"11. Conservar, restaurar, proteger y hacer un uso sostenible de los recursos naturales"}]
["Gestión Ambiental ","1.       Gestión institucional directa","Objetivo Estratégico 2:  \nPromover una gestión integral ambiental, de residuos y de riesgos, responsables y sostenibles.","A 2033, el 100% de las entidades municipales del MDMQ habrán incluido la gestión del riesgo de desastres en su planificación sectorial","ODS15_",{"$f":"IF(E46=\"\",\"\",VLOOKUP(E46,Insumos!AD:AE,2,FALSE))","v":"15 Vida de ecosistemas terrestres"},"OPND11",{"$f":"IF(G46=\"\",\"\",VLOOKUP(G46,Insumos!G:H,2,FALSE))","v":"11. Conservar, restaurar, proteger y hacer un uso sostenible de los recursos naturales"}]
["Gestión Ambiental ","1.       Gestión institucional directa","Objetivo Estratégico 2:  \nPromover una gestión integral ambiental, de residuos y de riesgos, responsables y sostenibles.","A 2030, el DMQ contará con un marco normativo, legal y financiero que guíe y regule las acciones encaminadas a la atención integral de la población afectada durante emergencias y desastres, así como las acciones de reconstrucción y recuperación post-desastre.","ODS15_",{"$f":"IF(E47=\"\",\"\",VLOOKUP(E47,Insumos!AD:AE,2,FALSE))","v":"15 Vida de ecosistemas terrestres"},"OPND11",{"$f":"IF(G47=\"\",\"\",VLOOKUP(G47,Insumos!G:H,2,FALSE))","v":"11. Conservar, restaurar, proteger y hacer un uso sostenible de los recursos naturales"}]
["Gestión Ambiental ","1.       Gestión institucional directa","Objetivo Estratégico 2:  \nPromover una gestión integral ambiental, de residuos y de riesgos, responsables y sostenibles.","Reducir la huella de carbono sector urbano/rural al 2033.","ODS15_",{"$f":"IF(E48=\"\",\"\",VLOOKUP(E48,Insumos!AD:AE,2,FALSE))","v":"15 Vida de ecosistemas terrestres"},"OPND11",{"$f":"IF(G48=\"\",\"\",VLOOKUP(G48,Insumos!G:H,2,FALSE))","v":"11. Conservar, restaurar, proteger y hacer un uso sostenible de los recursos naturales"},"11.3.1. Reducir las emisiones de Gases de Efecto Invernadero por deforestación en el sector de Uso del Suelo, Cambio de Uso del Suelo y Silvicultura (USCUSS) de 53.782,59 a 52.706,94 Gg CO2eq.","15.2 De aquí a 2020, promover la puesta en práctica de la gestión sostenible de todos los tipos de bosques, detener la deforestación, recuperar los bosques degradados y aumentar considerablemente la forestación y la reforestación a nivel mundial"]
["Gestión Ambiental ","1.       Gestión institucional directa","Objetivo Estratégico 2:  \nPromover una gestión integral ambiental, de residuos y de riesgos, responsables y sostenibles.","Reducir la huella de Carbono por Sectores.","ODS15_",{"$f":"IF(E49=\"\",\"\",VLOOKUP(E49,Insumos!AD:AE,2,FALSE))","v":"15 Vida de ecosistemas terrestres"},"OPND11",{"$f":"IF(G49=\"\",\"\",VLOOKUP(G49,Insumos!G:H,2,FALSE))","v":"11. Conservar, restaurar, proteger y hacer un uso sostenible de los recursos naturales"},"11.3.1. Reducir las emisiones de Gases de Efecto Invernadero por deforestación en el sector de Uso del Suelo, Cambio de Uso del Suelo y Silvicultura (USCUSS) de 53.782,59 a 52.706,94 Gg CO2eq.","15.2 De aquí a 2020, promover la puesta en práctica de la gestión sostenible de todos los tipos de bosques, detener la deforestación, recuperar los bosques degradados y aumentar considerablemente la forestación y la reforestación a nivel mundial"]
["Gestión Ambiental ","1.       Gestión institucional directa","Objetivo Estratégico 2:  \nPromover una gestión integral ambiental, de residuos y de riesgos, responsables y sostenibles.","Desde el año 2020, 7 % anual de reducción de la huella de carbono del DMQ, en relación al crecimiento proyectado.","ODS15_",{"$f":"IF(E50=\"\",\"\",VLOOKUP(E50,Insumos!AD:AE,2,FALSE))","v":"15 Vida de ecosistemas terrestres"},"OPND11",{"$f":"IF(G50=\"\",\"\",VLOOKUP(G50,Insumos!G:H,2,FALSE))","v":"11. Conservar, restaurar, proteger y hacer un uso sostenible de los recursos naturales"},"11.3.1. Reducir las emisiones de Gases de Efecto Invernadero por deforestación en el sector de Uso del Suelo, Cambio de Uso del Suelo y Silvicultura (USCUSS) de 53.782,59 a 52.706,94 Gg CO2eq.","15.2 De aquí a 2020, promover la puesta en práctica de la gestión sostenible de todos los tipos de bosques, detener la deforestación, recuperar los bosques degradados y aumentar considerablemente la forestación y la reforestación a nivel mundial"]
["Gestión Ambiental ","1.       Gestión institucional directa","Objetivo Estratégico 2:  \nPromover una gestión integral ambiental, de residuos y de riesgos, responsables y sostenibles.","Disminuir el Índice de contaminación, las emisiones de gases de efecto invernadero y el consumo de energía (transporte no motorizado) al 2033.","ODS15_",{"$f":"IF(E51=\"\",\"\",VLOOKUP(E51,Insumos!AD:AE,2,FALSE))","v":"15 Vida de ecosistemas terrestres"},"OPND11",{"$f":"IF(G51=\"\",\"\",VLOOKUP(G51,Insumos!G:H,2,FALSE))","v":"11. Conservar, restaurar, proteger y hacer un uso sostenible de los recursos naturales"},"11.3.1. Reducir las emisiones de Gases de Efecto Invernadero por deforestación en el sector de Uso del Suelo, Cambio de Uso del Suelo y Silvicultura (USCUSS) de 53.782,59 a 52.706,94 Gg CO2eq.","15.2 De aquí a 2020, promover la puesta en práctica de la gestión sostenible de todos los tipos de bosques, detener la deforestación, recuperar los bosques degradados y aumentar considerablemente la forestación y la reforestación a nivel mundial"]
["Gestión Ambiental ","1.       Gestión institucional directa","Objetivo Estratégico 2:  \nPromover una gestión integral ambiental, de residuos y de riesgos, responsables y sostenibles.","Incrementar el manejo integral de residuos sólidos (prevención, minimización, separación en la fuente, almacenamiento, transporte, aprovechamiento, valorización, tratamiento y disposición final de residuos sólidos peligrosos y no peligrosos) que genera el Distrito Metropolitano de Quito.","ODS15_",{"$f":"IF(E52=\"\",\"\",VLOOKUP(E52,Insumos!AD:AE,2,FALSE))","v":"15 Vida de ecosistemas terrestres"},"OPND11",{"$f":"IF(G52=\"\",\"\",VLOOKUP(G52,Insumos!G:H,2,FALSE))","v":"11. Conservar, restaurar, proteger y hacer un uso sostenible de los recursos naturales"},"11.1.1. Mantener la proporción de territorio nacional bajo conservación o manejo ambiental en 16,45%.","15.1 De aquí a 2020, asegurar la conservación, el restablecimiento y el uso sostenible de los ecosistemas terrestres y los ecosistemas interiores de agua dulce y sus servicios, en particular los bosques, los humedales, las montañas y las zonas áridas, en consonancia con las obligaciones contraídas en virtud de acuerdos internacionales"]
["Hábitat y vivienda","1.       Gestión institucional directa","Objetivo Estratégico 3: Consolidar comunidades y barrios sostenibles, inclusivos y resilientes, que cuenten con servicios y un hábitat de calidad.","Desarrollar 3 planes de vivienda de interés social en suelo de reserva del banco de suelo al 2030.","ODS11_",{"$f":"IF(E53=\"\",\"\",VLOOKUP(E53,Insumos!AD:AE,2,FALSE))","v":"11 Ciudades y comunidades sostenibles"},"OPND5",{"$f":"IF(G53=\"\",\"\",VLOOKUP(G53,Insumos!G:H,2,FALSE))","v":"5. Proteger a las familias, garantizar sus derechos y servicios, erradicar la pobreza y promover la inclusión social."},"5.4.1. Reducir el déficit habitacional de vivienda del 58,00% al 48,44%.","11.1 De aquí a 2030, asegurar el acceso de todas las personas a viviendas y servicios básicos adecuados, seguros y asequibles y mejorar los barrios marginales"]
["Hábitat y vivienda","1.       Gestión institucional directa","Objetivo Estratégico 3: Consolidar comunidades y barrios sostenibles, inclusivos y resilientes, que cuenten con servicios y un hábitat de calidad.","Incrementar al menos el 2% de ocupación de suelo vacante para equipamientos en polígonos de centralidad al 2031.","ODS11_",{"$f":"IF(E54=\"\",\"\",VLOOKUP(E54,Insumos!AD:AE,2,FALSE))","v":"11 Ciudades y comunidades sostenibles"},"OPND5",{"$f":"IF(G54=\"\",\"\",VLOOKUP(G54,Insumos!G:H,2,FALSE))","v":"5. Proteger a las familias, garantizar sus derechos y servicios, erradicar la pobreza y promover la inclusión social."},"5.4.1. Reducir el déficit habitacional de vivienda del 58,00% al 48,44%.","11.1 De aquí a 2030, asegurar el acceso de todas las personas a viviendas y servicios básicos adecuados, seguros y asequibles y mejorar los barrios marginales"]
["Hábitat y vivienda","1.       Gestión institucional directa","Objetivo Estratégico 3: Consolidar comunidades y barrios sostenibles, inclusivos y resilientes, que cuenten con servicios y un hábitat de calidad.","Reducir al menos el 5% de suelo vacante en polígonos de centralidad al 2031.","ODS11_",{"$f":"IF(E55=\"\",\"\",VLOOKUP(E55,Insumos!AD:AE,2,FALSE))","v":"11 Ciudades y comunidades sostenibles"},"OPND5",{"$f":"IF(G55=\"\",\"\",VLOOKUP(G55,Insumos!G:H,2,FALSE))","v":"5. Proteger a las familias, garantizar sus derechos y servicios, erradicar la pobreza y promover la inclusión social."},"5.4.1. Reducir el déficit habitacional de vivienda del 58,00% al 48,44%.","11.1 De aquí a 2030, asegurar el acceso de todas las personas a viviendas y servicios básicos adecuados, seguros y asequibles y mejorar los barrios marginales"]
["Hábitat y vivienda","1.       Gestión institucional directa","Objetivo Estratégico 3: Consolidar comunidades y barrios sostenibles, inclusivos y resilientes, que cuenten con servicios y un hábitat de calidad.","Incrementar al 40% el registro de fichas de inventario del patrimonio mueble, documental, arqueológico e inmaterial del DMQ en el SIPCE.","ODS11_",{"$f":"IF(E56=\"\",\"\",VLOOKUP(E56,Insumos!AD:AE,2,FALSE))","v":"11 Ciudades y comunidades sostenibles"},"OPND5",{"$f":"IF(G56=\"\",\"\",VLOOKUP(G56,Insumos!G:H,2,FALSE))","v":"5. Proteger a las familias, garantizar sus derechos y servicios, erradicar la pobreza y promover la inclusión social."}]
["Hábitat y vivienda","1.       Gestión institucional directa","Objetivo Estratégico 3: Consolidar comunidades y barrios sostenibles, inclusivos y resilientes, que cuenten con servicios y un hábitat de calidad.","Mantener actualizado el registro e inventario del patrimonio cultural edificado del DMQ en el SIPCE.","ODS11_",{"$f":"IF(E57=\"\",\"\",VLOOKUP(E57,Insumos!AD:AE,2,FALSE))","v":"11 Ciudades y comunidades sostenibles"},"OPND5",{"$f":"IF(G57=\"\",\"\",VLOOKUP(G57,Insumos!G:H,2,FALSE))","v":"5. Proteger a las familias, garantizar sus derechos y servicios, erradicar la pobreza y promover la inclusión social."}]
["Hábitat y vivienda","1.       Gestión institucional directa","Objetivo Estratégico 3: Consolidar comunidades y barrios sostenibles, inclusivos y resilientes, que cuenten con servicios y un hábitat de calidad.","Establecer 40 delimitaciones de áreas arqueológicas en el DMQ","ODS11_",{"$f":"IF(E58=\"\",\"\",VLOOKUP(E58,Insumos!AD:AE,2,FALSE))","v":"11 Ciudades y comunidades sostenibles"},"OPND5",{"$f":"IF(G58=\"\",\"\",VLOOKUP(G58,Insumos!G:H,2,FALSE))","v":"5. Proteger a las familias, garantizar sus derechos y servicios, erradicar la pobreza y promover la inclusión social."}]
["Hábitat y vivienda","1.       Gestión institucional directa","Objetivo Estratégico 3: Consolidar comunidades y barrios sostenibles, inclusivos y resilientes, que cuenten con servicios y un hábitat de calidad.","Incrementar el porcentaje de inmuebles patrimoniales municipales ocupados.","ODS11_",{"$f":"IF(E59=\"\",\"\",VLOOKUP(E59,Insumos!AD:AE,2,FALSE))","v":"11 Ciudades y comunidades sostenibles"},"OPND5",{"$f":"IF(G59=\"\",\"\",VLOOKUP(G59,Insumos!G:H,2,FALSE))","v":"5. Proteger a las familias, garantizar sus derechos y servicios, erradicar la pobreza y promover la inclusión social."}]
["Hábitat y vivienda","1.       Gestión institucional directa","Objetivo Estratégico 3: Consolidar comunidades y barrios sostenibles, inclusivos y resilientes, que cuenten con servicios y un hábitat de calidad.","Incrementar al menos un 5% los inmuebles patrimoniales en buen estado de conservación del DMQ","ODS11_",{"$f":"IF(E60=\"\",\"\",VLOOKUP(E60,Insumos!AD:AE,2,FALSE))","v":"11 Ciudades y comunidades sostenibles"},"OPND5",{"$f":"IF(G60=\"\",\"\",VLOOKUP(G60,Insumos!G:H,2,FALSE))","v":"5. Proteger a las familias, garantizar sus derechos y servicios, erradicar la pobreza y promover la inclusión social."}]
["Hábitat y vivienda","1.       Gestión institucional directa","Objetivo Estratégico 3: Consolidar comunidades y barrios sostenibles, inclusivos y resilientes, que cuenten con servicios y un hábitat de calidad.","Al 2033 contar con: 5 centralidades metropolitana, 6 centralidades y 11 centralidades zonales","ODS11_",{"$f":"IF(E61=\"\",\"\",VLOOKUP(E61,Insumos!AD:AE,2,FALSE))","v":"11 Ciudades y comunidades sostenibles"},"OPND5",{"$f":"IF(G61=\"\",\"\",VLOOKUP(G61,Insumos!G:H,2,FALSE))","v":"5. Proteger a las familias, garantizar sus derechos y servicios, erradicar la pobreza y promover la inclusión social."},"5.4.1. Reducir el déficit habitacional de vivienda del 58,00% al 48,44%.","11.1 De aquí a 2030, asegurar el acceso de todas las personas a viviendas y servicios básicos adecuados, seguros y asequibles y mejorar los barrios marginales"]
["Hábitat y vivienda","1.       Gestión institucional directa","Objetivo Estratégico 3: Consolidar comunidades y barrios sostenibles, inclusivos y resilientes, que cuenten con servicios y un hábitat de calidad.","Al 2033 alcanzar la densificación de las centralidades propuestas con 200 habitantes por hectárea.","ODS11_",{"$f":"IF(E62=\"\",\"\",VLOOKUP(E62,Insumos!AD:AE,2,FALSE))","v":"11 Ciudades y comunidades sostenibles"},"OPND5",{"$f":"IF(G62=\"\",\"\",VLOOKUP(G62,Insumos!G:H,2,FALSE))","v":"5. Proteger a las familias, garantizar sus derechos y servicios, erradicar la pobreza y promover la inclusión social."},"5.4.1. Reducir el déficit habitacional de vivienda del 58,00% al 48,44%.","11.1 De aquí a 2030, asegurar el acceso de todas las personas a viviendas y servicios básicos adecuados, seguros y asequibles y mejorar los barrios marginales"]
["Hábitat y vivienda","1.       Gestión institucional directa","Objetivo Estratégico 3: Consolidar comunidades y barrios sostenibles, inclusivos y resilientes, que cuenten con servicios y un hábitat de calidad.","Al 2033 implementar el 100% del plan transición ecológica del territorio en concordancia con los objetivos de desarrollo sostenible","ODS11_",{"$f":"IF(E63=\"\",\"\",VLOOKUP(E63,Insumos!AD:AE,2,FALSE))","v":"11 Ciudades y comunidades sostenibles"},"OPND5",{"$f":"IF(G63=\"\",\"\",VLOOKUP(G63,Insumos!G:H,2,FALSE))","v":"5. Proteger a las familias, garantizar sus derechos y servicios, erradicar la pobreza y promover la inclusión social."}]
["Hábitat y vivienda","1.       Gestión institucional directa","Objetivo Estratégico 3: Consolidar comunidades y barrios sostenibles, inclusivos y resilientes, que cuenten con servicios y un hábitat de calidad.","Al 2033 contar con el 100% de microregiones rurales sostenibles implementadas (10 microregiones)","ODS11_",{"$f":"IF(E64=\"\",\"\",VLOOKUP(E64,Insumos!AD:AE,2,FALSE))","v":"11 Ciudades y comunidades sostenibles"},"OPND5",{"$f":"IF(G64=\"\",\"\",VLOOKUP(G64,Insumos!G:H,2,FALSE))","v":"5. Proteger a las familias, garantizar sus derechos y servicios, erradicar la pobreza y promover la inclusión social."}]
["Hábitat y vivienda","1.       Gestión institucional directa","Objetivo Estratégico 3: Consolidar comunidades y barrios sostenibles, inclusivos y resilientes, que cuenten con servicios y un hábitat de calidad.","Lograr que el 3,26% del total de la población del Distrito Metropolitano de Quito cuente con cobertura de tratamiento de aguas residuales al 2023.","ODS11_",{"$f":"IF(E65=\"\",\"\",VLOOKUP(E65,Insumos!AD:AE,2,FALSE))","v":"11 Ciudades y comunidades sostenibles"},"OPND5",{"$f":"IF(G65=\"\",\"\",VLOOKUP(G65,Insumos!G:H,2,FALSE))","v":"5. Proteger a las familias, garantizar sus derechos y servicios, erradicar la pobreza y promover la inclusión social."}]
["Hábitat y vivienda","1.       Gestión institucional directa","Objetivo Estratégico 3: Consolidar comunidades y barrios sostenibles, inclusivos y resilientes, que cuenten con servicios y un hábitat de calidad.","Reducir al menos en un 15% el déficit habitacional en el DMQ al 2025.","ODS11_",{"$f":"IF(E66=\"\",\"\",VLOOKUP(E66,Insumos!AD:AE,2,FALSE))","v":"11 Ciudades y comunidades sostenibles"},"OPND5",{"$f":"IF(G66=\"\",\"\",VLOOKUP(G66,Insumos!G:H,2,FALSE))","v":"5. Proteger a las familias, garantizar sus derechos y servicios, erradicar la pobreza y promover la inclusión social."},"5.4.1. Reducir el déficit habitacional de vivienda del 58,00% al 48,44%.","11.1 De aquí a 2030, asegurar el acceso de todas las personas a viviendas y servicios básicos adecuados, seguros y asequibles y mejorar los barrios marginales"]
["Hábitat y vivienda","1.       Gestión institucional directa","Objetivo Estratégico 3: Consolidar comunidades y barrios sostenibles, inclusivos y resilientes, que cuenten con servicios y un hábitat de calidad.","Llegar al 97,5% el índice de continuidad del servicio de agua potable con relación al servicio que presta la empresa las 24 horas del día al 2023.","ODS11_",{"$f":"IF(E67=\"\",\"\",VLOOKUP(E67,Insumos!AD:AE,2,FALSE))","v":"11 Ciudades y comunidades sostenibles"},"OPND5",{"$f":"IF(G67=\"\",\"\",VLOOKUP(G67,Insumos!G:H,2,FALSE))","v":"5. Proteger a las familias, garantizar sus derechos y servicios, erradicar la pobreza y promover la inclusión social."}]
["Hábitat y vivienda","1.       Gestión institucional directa","Objetivo Estratégico 3: Consolidar comunidades y barrios sostenibles, inclusivos y resilientes, que cuenten con servicios y un hábitat de calidad.","Mantener el 99,98% el índice de calidad de agua en el DMQ al 2023.","ODS11_",{"$f":"IF(E68=\"\",\"\",VLOOKUP(E68,Insumos!AD:AE,2,FALSE))","v":"11 Ciudades y comunidades sostenibles"},"OPND5",{"$f":"IF(G68=\"\",\"\",VLOOKUP(G68,Insumos!G:H,2,FALSE))","v":"5. Proteger a las familias, garantizar sus derechos y servicios, erradicar la pobreza y promover la inclusión social."}]
["Hábitat y vivienda","1.       Gestión institucional directa","Objetivo Estratégico 3: Consolidar comunidades y barrios sostenibles, inclusivos y resilientes, que cuenten con servicios y un hábitat de calidad.","Llegar al 86% el índice de satisfacción del cliente de los servicios de agua potable y saneamiento al 2023","ODS11_",{"$f":"IF(E69=\"\",\"\",VLOOKUP(E69,Insumos!AD:AE,2,FALSE))","v":"11 Ciudades y comunidades sostenibles"},"OPND5",{"$f":"IF(G69=\"\",\"\",VLOOKUP(G69,Insumos!G:H,2,FALSE))","v":"5. Proteger a las familias, garantizar sus derechos y servicios, erradicar la pobreza y promover la inclusión social."}]
["Hábitat y vivienda","1.       Gestión institucional directa","Objetivo Estratégico 3: Consolidar comunidades y barrios sostenibles, inclusivos y resilientes, que cuenten con servicios y un hábitat de calidad.","Incrementar 12 km de redes nuevas de agua potable en el DMQ al 2023","ODS11_",{"$f":"IF(E70=\"\",\"\",VLOOKUP(E70,Insumos!AD:AE,2,FALSE))","v":"11 Ciudades y comunidades sostenibles"},"OPND5",{"$f":"IF(G70=\"\",\"\",VLOOKUP(G70,Insumos!G:H,2,FALSE))","v":"5. Proteger a las familias, garantizar sus derechos y servicios, erradicar la pobreza y promover la inclusión social."}]
["Hábitat y vivienda","1.       Gestión institucional directa","Objetivo Estratégico 3: Consolidar comunidades y barrios sostenibles, inclusivos y resilientes, que cuenten con servicios y un hábitat de calidad.","Incrementar 11 km de redes nuevas de alcantarillado en el DMQ al 2023","ODS11_",{"$f":"IF(E71=\"\",\"\",VLOOKUP(E71,Insumos!AD:AE,2,FALSE))","v":"11 Ciudades y comunidades sostenibles"},"OPND5",{"$f":"IF(G71=\"\",\"\",VLOOKUP(G71,Insumos!G:H,2,FALSE))","v":"5. Proteger a las familias, garantizar sus derechos y servicios, erradicar la pobreza y promover la inclusión social."}]
["Hábitat y vivienda","1.       Gestión institucional directa","Objetivo Estratégico 3: Consolidar comunidades y barrios sostenibles, inclusivos y resilientes, que cuenten con servicios y un hábitat de calidad.","Renovar la imagen urbana al menos en 40 barrios del DMQ al 2025.","ODS11_",{"$f":"IF(E72=\"\",\"\",VLOOKUP(E72,Insumos!AD:AE,2,FALSE))","v":"11 Ciudades y comunidades sostenibles"},"OPND5",{"$f":"IF(G72=\"\",\"\",VLOOKUP(G72,Insumos!G:H,2,FALSE))","v":"5. Proteger a las familias, garantizar sus derechos y servicios, erradicar la pobreza y promover la inclusión social."}]
["Hábitat y vivienda","1.       Gestión institucional directa","Objetivo Estratégico 3: Consolidar comunidades y barrios sostenibles, inclusivos y resilientes, que cuenten con servicios y un hábitat de calidad.","Incrementar al menos un 35% el número de viviendas de relocalización al 2025.","ODS11_",{"$f":"IF(E73=\"\",\"\",VLOOKUP(E73,Insumos!AD:AE,2,FALSE))","v":"11 Ciudades y comunidades sostenibles"},"OPND5",{"$f":"IF(G73=\"\",\"\",VLOOKUP(G73,Insumos!G:H,2,FALSE))","v":"5. Proteger a las familias, garantizar sus derechos y servicios, erradicar la pobreza y promover la inclusión social."},"5.4.1. Reducir el déficit habitacional de vivienda del 58,00% al 48,44%.","11.1 De aquí a 2030, asegurar el acceso de todas las personas a viviendas y servicios básicos adecuados, seguros y asequibles y mejorar los barrios marginales"]
["Hábitat y vivienda","1.       Gestión institucional directa","Objetivo Estratégico 3: Consolidar comunidades y barrios sostenibles, inclusivos y resilientes, que cuenten con servicios y un hábitat de calidad.","Al 2033, alcanzar el 100% de la ejecución de la inversión pública, planificada para proyectos priorizados por el GAD con la recaudación generada por la Concesión Onerosa de Derechos.","ODS11_",{"$f":"IF(E74=\"\",\"\",VLOOKUP(E74,Insumos!AD:AE,2,FALSE))","v":"11 Ciudades y comunidades sostenibles"},"OPND5",{"$f":"IF(G74=\"\",\"\",VLOOKUP(G74,Insumos!G:H,2,FALSE))","v":"5. Proteger a las familias, garantizar sus derechos y servicios, erradicar la pobreza y promover la inclusión social."},"5.4.1. Reducir el déficit habitacional de vivienda del 58,00% al 48,44%.","11.1 De aquí a 2030, asegurar el acceso de todas las personas a viviendas y servicios básicos adecuados, seguros y asequibles y mejorar los barrios marginales"]
["Hábitat y vivienda","1.       Gestión institucional directa","Objetivo Estratégico 3: Consolidar comunidades y barrios sostenibles, inclusivos y resilientes, que cuenten con servicios y un hábitat de calidad.","Al 2033 alcanzar el 100% de regularización de asentamientos humanos de hecho que hayan sido declarados de regularización prioritaria y que tengan viabilidad técnica para hacerlo.","ODS11_",{"$f":"IF(E75=\"\",\"\",VLOOKUP(E75,Insumos!AD:AE,2,FALSE))","v":"11 Ciudades y comunidades sostenibles"},"OPND5",{"$f":"IF(G75=\"\",\"\",VLOOKUP(G75,Insumos!G:H,2,FALSE))","v":"5. Proteger a las familias, garantizar sus derechos y servicios, erradicar la pobreza y promover la inclusión social."},"5.4.1. Reducir el déficit habitacional de vivienda del 58,00% al 48,44%.","11.1 De aquí a 2030, asegurar el acceso de todas las personas a viviendas y servicios básicos adecuados, seguros y asequibles y mejorar los barrios marginales"]
["Hábitat y vivienda","1.       Gestión institucional directa","Objetivo Estratégico 3: Consolidar comunidades y barrios sostenibles, inclusivos y resilientes, que cuenten con servicios y un hábitat de calidad.","Alcanzar el 98,70% del total de la población del Distrito Metropolitano de Quito con cobertura de agua potable","ODS11_",{"$f":"IF(E76=\"\",\"\",VLOOKUP(E76,Insumos!AD:AE,2,FALSE))","v":"11 Ciudades y comunidades sostenibles"},"OPND5",{"$f":"IF(G76=\"\",\"\",VLOOKUP(G76,Insumos!G:H,2,FALSE))","v":"5. Proteger a las familias, garantizar sus derechos y servicios, erradicar la pobreza y promover la inclusión social."}]
["Hábitat y vivienda","1.       Gestión institucional directa","Objetivo Estratégico 3: Consolidar comunidades y barrios sostenibles, inclusivos y resilientes, que cuenten con servicios y un hábitat de calidad.","Alcanzar el 94,38% del total de la población del Distrito Metropolitano de Quito con cobertura de alcantarillado","ODS11_",{"$f":"IF(E77=\"\",\"\",VLOOKUP(E77,Insumos!AD:AE,2,FALSE))","v":"11 Ciudades y comunidades sostenibles"},"OPND5",{"$f":"IF(G77=\"\",\"\",VLOOKUP(G77,Insumos!G:H,2,FALSE))","v":"5. Proteger a las familias, garantizar sus derechos y servicios, erradicar la pobreza y promover la inclusión social."}]
["Hábitat y vivienda","1.       Gestión institucional directa","Objetivo Estratégico 3: Consolidar comunidades y barrios sostenibles, inclusivos y resilientes, que cuenten con servicios y un hábitat de calidad.","Incrementar al 85% el estado de conservación del patrimonio cultural edificado y espacio público del Núcleo del CHQ.","ODS11_",{"$f":"IF(E78=\"\",\"\",VLOOKUP(E78,Insumos!AD:AE,2,FALSE))","v":"11 Ciudades y comunidades sostenibles"},"OPND5",{"$f":"IF(G78=\"\",\"\",VLOOKUP(G78,Insumos!G:H,2,FALSE))","v":"5. Proteger a las familias, garantizar sus derechos y servicios, erradicar la pobreza y promover la inclusión social."}]
["Planificar, regular y controlar el tránsito,  el transporte y terrestre y seguridad vial ","1.       Gestión institucional directa","Objetivo Estratégico 4: Brindar Opciones de Movilidad y Conectividad confiables, de calidad, eficientes y seguras.","Implementar 60km de ciclo vías en el DMQ hasta el 2024.","ODS11_",{"$f":"IF(E79=\"\",\"\",VLOOKUP(E79,Insumos!AD:AE,2,FALSE))","v":"11 Ciudades y comunidades sostenibles"},"OPND5",{"$f":"IF(G79=\"\",\"\",VLOOKUP(G79,Insumos!G:H,2,FALSE))","v":"5. Proteger a las familias, garantizar sus derechos y servicios, erradicar la pobreza y promover la inclusión social."}]
["Planificar, regular y controlar el tránsito,  el transporte y terrestre y seguridad vial ","1.       Gestión institucional directa","Objetivo Estratégico 4: Brindar Opciones de Movilidad y Conectividad confiables, de calidad, eficientes y seguras.","Modernizar el área comercial del terminal interprovincial de pasajeros administrados por la EPMMOP al 2023.","ODS11_",{"$f":"IF(E80=\"\",\"\",VLOOKUP(E80,Insumos!AD:AE,2,FALSE))","v":"11 Ciudades y comunidades sostenibles"},"OPND5",{"$f":"IF(G80=\"\",\"\",VLOOKUP(G80,Insumos!G:H,2,FALSE))","v":"5. Proteger a las familias, garantizar sus derechos y servicios, erradicar la pobreza y promover la inclusión social."}]
["Planificar, regular y controlar el tránsito,  el transporte y terrestre y seguridad vial ","1.       Gestión institucional directa","Objetivo Estratégico 4: Brindar Opciones de Movilidad y Conectividad confiables, de calidad, eficientes y seguras.","Modernización de la infraestructura de operación de 3 terminales terrestres micro regionales (Ofelia, La Marín y Rio Coca) al 2033.","ODS11_",{"$f":"IF(E81=\"\",\"\",VLOOKUP(E81,Insumos!AD:AE,2,FALSE))","v":"11 Ciudades y comunidades sostenibles"},"OPND5",{"$f":"IF(G81=\"\",\"\",VLOOKUP(G81,Insumos!G:H,2,FALSE))","v":"5. Proteger a las familias, garantizar sus derechos y servicios, erradicar la pobreza y promover la inclusión social."}]
["Planificar, regular y controlar el tránsito,  el transporte y terrestre y seguridad vial ","1.       Gestión institucional directa","Objetivo Estratégico 4: Brindar Opciones de Movilidad y Conectividad confiables, de calidad, eficientes y seguras.","Implementar 900.000 M2 de redes peatonales Inclusivas que favorezcan la movilidad peatonal En el DMQ 2033.","ODS11_",{"$f":"IF(E82=\"\",\"\",VLOOKUP(E82,Insumos!AD:AE,2,FALSE))","v":"11 Ciudades y comunidades sostenibles"},"OPND5",{"$f":"IF(G82=\"\",\"\",VLOOKUP(G82,Insumos!G:H,2,FALSE))","v":"5. Proteger a las familias, garantizar sus derechos y servicios, erradicar la pobreza y promover la inclusión social."}]
["Planificar, regular y controlar el tránsito,  el transporte y terrestre y seguridad vial ","1.       Gestión institucional directa","Objetivo Estratégico 4: Brindar Opciones de Movilidad y Conectividad confiables, de calidad, eficientes y seguras.","Implementar la Primera Línea Del Metro De Quito","ODS11_",{"$f":"IF(E83=\"\",\"\",VLOOKUP(E83,Insumos!AD:AE,2,FALSE))","v":"11 Ciudades y comunidades sostenibles"},"OPND5",{"$f":"IF(G83=\"\",\"\",VLOOKUP(G83,Insumos!G:H,2,FALSE))","v":"5. Proteger a las familias, garantizar sus derechos y servicios, erradicar la pobreza y promover la inclusión social."}]
["Planificar, regular y controlar el tránsito,  el transporte y terrestre y seguridad vial ","1.       Gestión institucional directa","Objetivo Estratégico 4: Brindar Opciones de Movilidad y Conectividad confiables, de calidad, eficientes y seguras.","Extender la Primera Línea Del Metro De Quito al 2033.","ODS11_",{"$f":"IF(E84=\"\",\"\",VLOOKUP(E84,Insumos!AD:AE,2,FALSE))","v":"11 Ciudades y comunidades sostenibles"},"OPND5",{"$f":"IF(G84=\"\",\"\",VLOOKUP(G84,Insumos!G:H,2,FALSE))","v":"5. Proteger a las familias, garantizar sus derechos y servicios, erradicar la pobreza y promover la inclusión social."}]
["Planificar, regular y controlar el tránsito,  el transporte y terrestre y seguridad vial ","1.       Gestión institucional directa","Objetivo Estratégico 4: Brindar Opciones de Movilidad y Conectividad confiables, de calidad, eficientes y seguras.","Implementar 39 intersecciones semaforizadas centralizadas a través de herramientas reguladoras semafóricas innovadoras y eficientes","ODS11_",{"$f":"IF(E85=\"\",\"\",VLOOKUP(E85,Insumos!AD:AE,2,FALSE))","v":"11 Ciudades y comunidades sostenibles"},"OPND5",{"$f":"IF(G85=\"\",\"\",VLOOKUP(G85,Insumos!G:H,2,FALSE))","v":"5. Proteger a las familias, garantizar sus derechos y servicios, erradicar la pobreza y promover la inclusión social."}]
["Planificar, regular y controlar el tránsito,  el transporte y terrestre y seguridad vial ","1.       Gestión institucional directa","Objetivo Estratégico 4: Brindar Opciones de Movilidad y Conectividad confiables, de calidad, eficientes y seguras.","Implementar 900.000 m2 de redes peatonales inclusivas que favorezcan la movilidad peatonal en el DMQ al 2030.","ODS11_",{"$f":"IF(E86=\"\",\"\",VLOOKUP(E86,Insumos!AD:AE,2,FALSE))","v":"11 Ciudades y comunidades sostenibles"},"OPND5",{"$f":"IF(G86=\"\",\"\",VLOOKUP(G86,Insumos!G:H,2,FALSE))","v":"5. Proteger a las familias, garantizar sus derechos y servicios, erradicar la pobreza y promover la inclusión social."}]
["Planificar, regular y controlar el tránsito,  el transporte y terrestre y seguridad vial ","1.       Gestión institucional directa","Objetivo Estratégico 4: Brindar Opciones de Movilidad y Conectividad confiables, de calidad, eficientes y seguras.","Incrementar al menos 25 estaciones operativas de servicio de bicicleta pública hasta el 2024, como parte del el proyecto Sistema Automatizado de Bicicleta Pública del Distrito Metropolitano de Quito.","ODS11_",{"$f":"IF(E87=\"\",\"\",VLOOKUP(E87,Insumos!AD:AE,2,FALSE))","v":"11 Ciudades y comunidades sostenibles"},"OPND5",{"$f":"IF(G87=\"\",\"\",VLOOKUP(G87,Insumos!G:H,2,FALSE))","v":"5. Proteger a las familias, garantizar sus derechos y servicios, erradicar la pobreza y promover la inclusión social."}]
["Planificar, regular y controlar el tránsito,  el transporte y terrestre y seguridad vial ","1.       Gestión institucional directa","Objetivo Estratégico 4: Brindar Opciones de Movilidad y Conectividad confiables, de calidad, eficientes y seguras.","Implementar progresivamente 39 intersecciones semaforizadas centralizadas a través de herramientas reguladoras semafóricas innovadoras y eficientes hasta el 2024.","ODS11_",{"$f":"IF(E88=\"\",\"\",VLOOKUP(E88,Insumos!AD:AE,2,FALSE))","v":"11 Ciudades y comunidades sostenibles"},"OPND5",{"$f":"IF(G88=\"\",\"\",VLOOKUP(G88,Insumos!G:H,2,FALSE))","v":"5. Proteger a las familias, garantizar sus derechos y servicios, erradicar la pobreza y promover la inclusión social."}]
["Planificar, regular y controlar el tránsito,  el transporte y terrestre y seguridad vial ","1.       Gestión institucional directa","Objetivo Estratégico 4: Brindar Opciones de Movilidad y Conectividad confiables, de calidad, eficientes y seguras.","Construir 8 pasos peatonales y vehiculares en el DMQ.","ODS11_",{"$f":"IF(E89=\"\",\"\",VLOOKUP(E89,Insumos!AD:AE,2,FALSE))","v":"11 Ciudades y comunidades sostenibles"},"OPND5",{"$f":"IF(G89=\"\",\"\",VLOOKUP(G89,Insumos!G:H,2,FALSE))","v":"5. Proteger a las familias, garantizar sus derechos y servicios, erradicar la pobreza y promover la inclusión social."}]
["Planificar, regular y controlar el tránsito,  el transporte y terrestre y seguridad vial ","1.       Gestión institucional directa","Objetivo Estratégico 4: Brindar Opciones de Movilidad y Conectividad confiables, de calidad, eficientes y seguras.","Disminuir en un 15% el número de siniestros de tránsito en las vías del DMQ por cada 100.000 habitantes al 2030.","ODS11_",{"$f":"IF(E90=\"\",\"\",VLOOKUP(E90,Insumos!AD:AE,2,FALSE))","v":"11 Ciudades y comunidades sostenibles"},"OPND5",{"$f":"IF(G90=\"\",\"\",VLOOKUP(G90,Insumos!G:H,2,FALSE))","v":"5. Proteger a las familias, garantizar sus derechos y servicios, erradicar la pobreza y promover la inclusión social."}]
["Planificar, regular y controlar el tránsito,  el transporte y terrestre y seguridad vial ","1.       Gestión institucional directa","Objetivo Estratégico 4: Brindar Opciones de Movilidad y Conectividad confiables, de calidad, eficientes y seguras.","Implementar 5 soluciones viales en el DMQ (En las parroquias de Pomasqui, Calderón, Belisario Quevedo, Nayón, y La Argelia) que mejoren las condiciones de circulación, conectividad y accesibilidad hasta el 2030.","ODS11_",{"$f":"IF(E91=\"\",\"\",VLOOKUP(E91,Insumos!AD:AE,2,FALSE))","v":"11 Ciudades y comunidades sostenibles"},"OPND5",{"$f":"IF(G91=\"\",\"\",VLOOKUP(G91,Insumos!G:H,2,FALSE))","v":"5. Proteger a las familias, garantizar sus derechos y servicios, erradicar la pobreza y promover la inclusión social."}]
["Planificar, regular y controlar el tránsito,  el transporte y terrestre y seguridad vial ","1.       Gestión institucional directa","Objetivo Estratégico 4: Brindar Opciones de Movilidad y Conectividad confiables, de calidad, eficientes y seguras.","Intervenir en un 40% las plazas, plazoletas o parques existentes del DMQ al 2024.","ODS11_",{"$f":"IF(E92=\"\",\"\",VLOOKUP(E92,Insumos!AD:AE,2,FALSE))","v":"11 Ciudades y comunidades sostenibles"},"OPND5",{"$f":"IF(G92=\"\",\"\",VLOOKUP(G92,Insumos!G:H,2,FALSE))","v":"5. Proteger a las familias, garantizar sus derechos y servicios, erradicar la pobreza y promover la inclusión social."}]
["Planificar, regular y controlar el tránsito,  el transporte y terrestre y seguridad vial ","1.       Gestión institucional directa","Objetivo Estratégico 4: Brindar Opciones de Movilidad y Conectividad confiables, de calidad, eficientes y seguras.","Reducir al menos el 3% del tiempo promedio de viaje por cada corredor en horas pico al 2024.","ODS11_",{"$f":"IF(E93=\"\",\"\",VLOOKUP(E93,Insumos!AD:AE,2,FALSE))","v":"11 Ciudades y comunidades sostenibles"},"OPND5",{"$f":"IF(G93=\"\",\"\",VLOOKUP(G93,Insumos!G:H,2,FALSE))","v":"5. Proteger a las familias, garantizar sus derechos y servicios, erradicar la pobreza y promover la inclusión social."}]
["Planificar, regular y controlar el tránsito,  el transporte y terrestre y seguridad vial ","1.       Gestión institucional directa","Objetivo Estratégico 4: Brindar Opciones de Movilidad y Conectividad confiables, de calidad, eficientes y seguras.","Incrementar la cobertura del servicio de transporte público para personas con movilidad reducida o algún tipo de discapacidad al 2033","ODS11_",{"$f":"IF(E94=\"\",\"\",VLOOKUP(E94,Insumos!AD:AE,2,FALSE))","v":"11 Ciudades y comunidades sostenibles"},"OPND5",{"$f":"IF(G94=\"\",\"\",VLOOKUP(G94,Insumos!G:H,2,FALSE))","v":"5. Proteger a las familias, garantizar sus derechos y servicios, erradicar la pobreza y promover la inclusión social."}]
["Planificar, regular y controlar el tránsito,  el transporte y terrestre y seguridad vial ","1.       Gestión institucional directa","Objetivo Estratégico 4: Brindar Opciones de Movilidad y Conectividad confiables, de calidad, eficientes y seguras.","Demanda estimativa de pasajeros por día en los diferentes subsistemas de transporte público.","ODS11_",{"$f":"IF(E95=\"\",\"\",VLOOKUP(E95,Insumos!AD:AE,2,FALSE))","v":"11 Ciudades y comunidades sostenibles"},"OPND5",{"$f":"IF(G95=\"\",\"\",VLOOKUP(G95,Insumos!G:H,2,FALSE))","v":"5. Proteger a las familias, garantizar sus derechos y servicios, erradicar la pobreza y promover la inclusión social."}]
["Planificar, regular y controlar el tránsito,  el transporte y terrestre y seguridad vial ","1.       Gestión institucional directa","Objetivo Estratégico 4: Brindar Opciones de Movilidad y Conectividad confiables, de calidad, eficientes y seguras.","Incrementar el nivel de transitabilidad vial del DMQ al 2033","ODS11_",{"$f":"IF(E96=\"\",\"\",VLOOKUP(E96,Insumos!AD:AE,2,FALSE))","v":"11 Ciudades y comunidades sostenibles"},"OPND5",{"$f":"IF(G96=\"\",\"\",VLOOKUP(G96,Insumos!G:H,2,FALSE))","v":"5. Proteger a las familias, garantizar sus derechos y servicios, erradicar la pobreza y promover la inclusión social."}]
["Planificar, regular y controlar el tránsito,  el transporte y terrestre y seguridad vial ","1.       Gestión institucional directa","Objetivo Estratégico 4: Brindar Opciones de Movilidad y Conectividad confiables, de calidad, eficientes y seguras.","Incrementar el Índice de calidad del servicio de transporte público al 2033","ODS11_",{"$f":"IF(E97=\"\",\"\",VLOOKUP(E97,Insumos!AD:AE,2,FALSE))","v":"11 Ciudades y comunidades sostenibles"},"OPND5",{"$f":"IF(G97=\"\",\"\",VLOOKUP(G97,Insumos!G:H,2,FALSE))","v":"5. Proteger a las familias, garantizar sus derechos y servicios, erradicar la pobreza y promover la inclusión social."}]
["Planificar, regular y controlar el tránsito,  el transporte y terrestre y seguridad vial ","1.       Gestión institucional directa","Objetivo Estratégico 4: Brindar Opciones de Movilidad y Conectividad confiables, de calidad, eficientes y seguras.","Incrementar el Índice de seguridad vial al 2033","ODS11_",{"$f":"IF(E98=\"\",\"\",VLOOKUP(E98,Insumos!AD:AE,2,FALSE))","v":"11 Ciudades y comunidades sostenibles"},"OPND5",{"$f":"IF(G98=\"\",\"\",VLOOKUP(G98,Insumos!G:H,2,FALSE))","v":"5. Proteger a las familias, garantizar sus derechos y servicios, erradicar la pobreza y promover la inclusión social."}]
["Fomentar las actividades productivas regionales, provinciales. Incentivar el desarrollo de las actividades productivas comunitarias  ","1.       Gestión institucional directa","Objetivo Estratégico 5: Impulsar la Productividad y Competitividad para un crecimiento económico, inclusivo y con responsabilidad social.","Incrementar en 15% la Inversión Extranjera Directa en el DMQ.","ODS8_",{"$f":"IF(E99=\"\",\"\",VLOOKUP(E99,Insumos!AD:AE,2,FALSE))","v":"8 Trabajo decente y crecimiento económico"},"OPND1",{"$f":"IF(G99=\"\",\"\",VLOOKUP(G99,Insumos!G:H,2,FALSE))","v":"1. Incrementar y fomentar, de manera inclusiva, las oportunidades de empleo y las condiciones laborales."}]
["Fomentar las actividades productivas regionales, provinciales. Incentivar el desarrollo de las actividades productivas comunitarias  ","1.       Gestión institucional directa","Objetivo Estratégico 5: Impulsar la Productividad y Competitividad para un crecimiento económico, inclusivo y con responsabilidad social.","Incrementar en 50% los actores involucrados en la transformación de alimentos con prácticas sostenibles al 2023","ODS8_",{"$f":"IF(E100=\"\",\"\",VLOOKUP(E100,Insumos!AD:AE,2,FALSE))","v":"8 Trabajo decente y crecimiento económico"},"OPND1",{"$f":"IF(G100=\"\",\"\",VLOOKUP(G100,Insumos!G:H,2,FALSE))","v":"1. Incrementar y fomentar, de manera inclusiva, las oportunidades de empleo y las condiciones laborales."}]
["Fomentar las actividades productivas regionales, provinciales. Incentivar el desarrollo de las actividades productivas comunitarias  ","1.       Gestión institucional directa","Objetivo Estratégico 5: Impulsar la Productividad y Competitividad para un crecimiento económico, inclusivo y con responsabilidad social.","Desarrollar en el 50% de parroquias rurales, redes asociativas productivas al 2023","ODS8_",{"$f":"IF(E101=\"\",\"\",VLOOKUP(E101,Insumos!AD:AE,2,FALSE))","v":"8 Trabajo decente y crecimiento económico"},"OPND1",{"$f":"IF(G101=\"\",\"\",VLOOKUP(G101,Insumos!G:H,2,FALSE))","v":"1. Incrementar y fomentar, de manera inclusiva, las oportunidades de empleo y las condiciones laborales."},"1.1.1. Incrementar la tasa de empleo adecuado del 30,41% al 50,00%. ","8.5 De aquí a 2030, lograr el empleo pleno y productivo y el trabajo decente para todas las mujeres y los hombres, incluidos los jóvenes y las personas con discapacidad, así como la igualdad de remuneración por trabajo de igual valor"]
["Fomentar las actividades productivas regionales, provinciales. Incentivar el desarrollo de las actividades productivas comunitarias  ","1.       Gestión institucional directa","Objetivo Estratégico 5: Impulsar la Productividad y Competitividad para un crecimiento económico, inclusivo y con responsabilidad social.","Incrementar al menos 3 nuevas aerolíneas de carga que operan en el AIMS al 2023.","ODS8_",{"$f":"IF(E102=\"\",\"\",VLOOKUP(E102,Insumos!AD:AE,2,FALSE))","v":"8 Trabajo decente y crecimiento económico"},"OPND1",{"$f":"IF(G102=\"\",\"\",VLOOKUP(G102,Insumos!G:H,2,FALSE))","v":"1. Incrementar y fomentar, de manera inclusiva, las oportunidades de empleo y las condiciones laborales."}]
["Fomentar las actividades productivas regionales, provinciales. Incentivar el desarrollo de las actividades productivas comunitarias  ","1.       Gestión institucional directa","Objetivo Estratégico 5: Impulsar la Productividad y Competitividad para un crecimiento económico, inclusivo y con responsabilidad social.","Implementar los Planes Maestros involucrados.","ODS8_",{"$f":"IF(E103=\"\",\"\",VLOOKUP(E103,Insumos!AD:AE,2,FALSE))","v":"8 Trabajo decente y crecimiento económico"},"OPND1",{"$f":"IF(G103=\"\",\"\",VLOOKUP(G103,Insumos!G:H,2,FALSE))","v":"1. Incrementar y fomentar, de manera inclusiva, las oportunidades de empleo y las condiciones laborales."},"1.1.1. Incrementar la tasa de empleo adecuado del 30,41% al 50,00%. ","8.5 De aquí a 2030, lograr el empleo pleno y productivo y el trabajo decente para todas las mujeres y los hombres, incluidos los jóvenes y las personas con discapacidad, así como la igualdad de remuneración por trabajo de igual valor"]
["Fomentar las actividades productivas regionales, provinciales. Incentivar el desarrollo de las actividades productivas comunitarias  ","1.       Gestión institucional directa","Objetivo Estratégico 5: Impulsar la Productividad y Competitividad para un crecimiento económico, inclusivo y con responsabilidad social.","Habilitar el 100% de las rutas turísticas culturales (8 rutas).","ODS8_",{"$f":"IF(E104=\"\",\"\",VLOOKUP(E104,Insumos!AD:AE,2,FALSE))","v":"8 Trabajo decente y crecimiento económico"},"OPND1",{"$f":"IF(G104=\"\",\"\",VLOOKUP(G104,Insumos!G:H,2,FALSE))","v":"1. Incrementar y fomentar, de manera inclusiva, las oportunidades de empleo y las condiciones laborales."},"1.1.3. Incrementar el porcentaje de personas empleadas mensualmente en actividades artísticas y culturales del 5,19% al 6,00%.","8.9 De aquí a 2030, elaborar y poner en práctica políticas encaminadas a promover un turismo sostenible que cree puestos de trabajo y promueva la cultura y los productos locales"]
["Fomentar las actividades productivas regionales, provinciales. Incentivar el desarrollo de las actividades productivas comunitarias  ","1.       Gestión institucional directa","Objetivo Estratégico 5: Impulsar la Productividad y Competitividad para un crecimiento económico, inclusivo y con responsabilidad social.","Mantener en un 80% el índice de satisfacción del visitante no residente del DMQ al 2023","ODS8_",{"$f":"IF(E105=\"\",\"\",VLOOKUP(E105,Insumos!AD:AE,2,FALSE))","v":"8 Trabajo decente y crecimiento económico"},"OPND1",{"$f":"IF(G105=\"\",\"\",VLOOKUP(G105,Insumos!G:H,2,FALSE))","v":"1. Incrementar y fomentar, de manera inclusiva, las oportunidades de empleo y las condiciones laborales."},"1.1.1. Incrementar la tasa de empleo adecuado del 30,41% al 50,00%. ","8.9 De aquí a 2030, elaborar y poner en práctica políticas encaminadas a promover un turismo sostenible que cree puestos de trabajo y promueva la cultura y los productos locales"]
["Fomentar las actividades productivas regionales, provinciales. Incentivar el desarrollo de las actividades productivas comunitarias  ","1.       Gestión institucional directa","Objetivo Estratégico 5: Impulsar la Productividad y Competitividad para un crecimiento económico, inclusivo y con responsabilidad social.","Lograr que al menos 60 empresa de la EPS aumenten sus ventas, comercializando su producción a través de nuevos canales de distribución al 2023","ODS8_",{"$f":"IF(E106=\"\",\"\",VLOOKUP(E106,Insumos!AD:AE,2,FALSE))","v":"8 Trabajo decente y crecimiento económico"},"OPND1",{"$f":"IF(G106=\"\",\"\",VLOOKUP(G106,Insumos!G:H,2,FALSE))","v":"1. Incrementar y fomentar, de manera inclusiva, las oportunidades de empleo y las condiciones laborales."}]
["Fomentar las actividades productivas regionales, provinciales. Incentivar el desarrollo de las actividades productivas comunitarias  ","1.       Gestión institucional directa","Objetivo Estratégico 5: Impulsar la Productividad y Competitividad para un crecimiento económico, inclusivo y con responsabilidad social.","Lograr que al menos 40 nuevas pymes comercialicen sus productos al exterior al2023.","ODS8_",{"$f":"IF(E107=\"\",\"\",VLOOKUP(E107,Insumos!AD:AE,2,FALSE))","v":"8 Trabajo decente y crecimiento económico"},"OPND1",{"$f":"IF(G107=\"\",\"\",VLOOKUP(G107,Insumos!G:H,2,FALSE))","v":"1. Incrementar y fomentar, de manera inclusiva, las oportunidades de empleo y las condiciones laborales."}]
["Fomentar las actividades productivas regionales, provinciales. Incentivar el desarrollo de las actividades productivas comunitarias  ","1.       Gestión institucional directa","Objetivo Estratégico 5: Impulsar la Productividad y Competitividad para un crecimiento económico, inclusivo y con responsabilidad social.","Lograr que, al menos 200 emprendimientos alcancen la etapa de puesta en marcha de manera exitosa con capital semilla municipal al 2023.","ODS8_",{"$f":"IF(E108=\"\",\"\",VLOOKUP(E108,Insumos!AD:AE,2,FALSE))","v":"8 Trabajo decente y crecimiento económico"},"OPND1",{"$f":"IF(G108=\"\",\"\",VLOOKUP(G108,Insumos!G:H,2,FALSE))","v":"1. Incrementar y fomentar, de manera inclusiva, las oportunidades de empleo y las condiciones laborales."},"1.1.1. Incrementar la tasa de empleo adecuado del 30,41% al 50,00%. ","8.5 De aquí a 2030, lograr el empleo pleno y productivo y el trabajo decente para todas las mujeres y los hombres, incluidos los jóvenes y las personas con discapacidad, así como la igualdad de remuneración por trabajo de igual valor"]
["Fomentar las actividades productivas regionales, provinciales. Incentivar el desarrollo de las actividades productivas comunitarias  ","1.       Gestión institucional directa","Objetivo Estratégico 5: Impulsar la Productividad y Competitividad para un crecimiento económico, inclusivo y con responsabilidad social.","Mejorar integralmente la infraestructura física y la calidad del servicio de 25 de mercados y ferias del DMQ al 2023","ODS8_",{"$f":"IF(E109=\"\",\"\",VLOOKUP(E109,Insumos!AD:AE,2,FALSE))","v":"8 Trabajo decente y crecimiento económico"},"OPND1",{"$f":"IF(G109=\"\",\"\",VLOOKUP(G109,Insumos!G:H,2,FALSE))","v":"1. Incrementar y fomentar, de manera inclusiva, las oportunidades de empleo y las condiciones laborales."}]
["Fomentar las actividades productivas regionales, provinciales. Incentivar el desarrollo de las actividades productivas comunitarias  ","1.       Gestión institucional directa","Objetivo Estratégico 5: Impulsar la Productividad y Competitividad para un crecimiento económico, inclusivo y con responsabilidad social.","Incrementar en 1.000 el número de unidades productivas agropecuarias - upas abiertas en el DMQ al 2023","ODS8_",{"$f":"IF(E110=\"\",\"\",VLOOKUP(E110,Insumos!AD:AE,2,FALSE))","v":"8 Trabajo decente y crecimiento económico"},"OPND1",{"$f":"IF(G110=\"\",\"\",VLOOKUP(G110,Insumos!G:H,2,FALSE))","v":"1. Incrementar y fomentar, de manera inclusiva, las oportunidades de empleo y las condiciones laborales."}]
["Fomentar las actividades productivas regionales, provinciales. Incentivar el desarrollo de las actividades productivas comunitarias  ","1.       Gestión institucional directa","Objetivo Estratégico 5: Impulsar la Productividad y Competitividad para un crecimiento económico, inclusivo y con responsabilidad social.","Alcanzar, al menos, que un 10% de los alimentos agrícolas que se consumen en el DMQ provengan directamente de productores al 2023","ODS8_",{"$f":"IF(E111=\"\",\"\",VLOOKUP(E111,Insumos!AD:AE,2,FALSE))","v":"8 Trabajo decente y crecimiento económico"},"OPND1",{"$f":"IF(G111=\"\",\"\",VLOOKUP(G111,Insumos!G:H,2,FALSE))","v":"1. Incrementar y fomentar, de manera inclusiva, las oportunidades de empleo y las condiciones laborales."}]
["Fomentar las actividades productivas regionales, provinciales. Incentivar el desarrollo de las actividades productivas comunitarias  ","1.       Gestión institucional directa","Objetivo Estratégico 5: Impulsar la Productividad y Competitividad para un crecimiento económico, inclusivo y con responsabilidad social.","Incrementar el Valor Agregado Bruto Cantonal – Quito.","ODS8_",{"$f":"IF(E112=\"\",\"\",VLOOKUP(E112,Insumos!AD:AE,2,FALSE))","v":"8 Trabajo decente y crecimiento económico"},"OPND1",{"$f":"IF(G112=\"\",\"\",VLOOKUP(G112,Insumos!G:H,2,FALSE))","v":"1. Incrementar y fomentar, de manera inclusiva, las oportunidades de empleo y las condiciones laborales."},"1.1.1. Incrementar la tasa de empleo adecuado del 30,41% al 50,00%. ","8.5 De aquí a 2030, lograr el empleo pleno y productivo y el trabajo decente para todas las mujeres y los hombres, incluidos los jóvenes y las personas con discapacidad, así como la igualdad de remuneración por trabajo de igual valor"]
["Prestación de servicios públicos","1.       Gestión institucional directa","Objetivo Estratégico 6: Asegurar una vida plena y justa, con igualdad de oportunidades; con acceso a salud, educación, cultura y seguridad.","Lograr que 96 barrios del DMQ generen estrategias preventivas de adicciones con la participación de la comunidad, al 2023.","ODS1_",{"$f":"IF(E113=\"\",\"\",VLOOKUP(E113,Insumos!AD:AE,2,FALSE))","v":"1 Fin de la pobreza"},"OPND5",{"$f":"IF(G113=\"\",\"\",VLOOKUP(G113,Insumos!G:H,2,FALSE))","v":"5. Proteger a las familias, garantizar sus derechos y servicios, erradicar la pobreza y promover la inclusión social."}]
["Prestación de servicios públicos","1.       Gestión institucional directa","Objetivo Estratégico 6: Asegurar una vida plena y justa, con igualdad de oportunidades; con acceso a salud, educación, cultura y seguridad.","Incrementar en 30% el número de creadores, actores y gestores culturales capacitados en formación integral y actualización de conocimientos, al 2023.","ODS1_",{"$f":"IF(E114=\"\",\"\",VLOOKUP(E114,Insumos!AD:AE,2,FALSE))","v":"1 Fin de la pobreza"},"OPND5",{"$f":"IF(G114=\"\",\"\",VLOOKUP(G114,Insumos!G:H,2,FALSE))","v":"5. Proteger a las familias, garantizar sus derechos y servicios, erradicar la pobreza y promover la inclusión social."}]
["Prestación de servicios públicos","1.       Gestión institucional directa","Objetivo Estratégico 6: Asegurar una vida plena y justa, con igualdad de oportunidades; con acceso a salud, educación, cultura y seguridad.","Alcanzar el 60% de cumplimiento de estándares de calidad en los servicios de salud ofertados por la Red Metropolitana de Salud al 2023.","ODS1_",{"$f":"IF(E115=\"\",\"\",VLOOKUP(E115,Insumos!AD:AE,2,FALSE))","v":"1 Fin de la pobreza"},"OPND5",{"$f":"IF(G115=\"\",\"\",VLOOKUP(G115,Insumos!G:H,2,FALSE))","v":"5. Proteger a las familias, garantizar sus derechos y servicios, erradicar la pobreza y promover la inclusión social."}]
["Prestación de servicios públicos","1.       Gestión institucional directa","Objetivo Estratégico 6: Asegurar una vida plena y justa, con igualdad de oportunidades; con acceso a salud, educación, cultura y seguridad.","Disminuir el 4% de embarazo en adolescentes que tengan relación con los centros educativos, programas sociales culturales, de salud de la corporación municipal","ODS1_",{"$f":"IF(E116=\"\",\"\",VLOOKUP(E116,Insumos!AD:AE,2,FALSE))","v":"1 Fin de la pobreza"},"OPND5",{"$f":"IF(G116=\"\",\"\",VLOOKUP(G116,Insumos!G:H,2,FALSE))","v":"5. Proteger a las familias, garantizar sus derechos y servicios, erradicar la pobreza y promover la inclusión social."}]
["Prestación de servicios públicos","1.       Gestión institucional directa","Objetivo Estratégico 6: Asegurar una vida plena y justa, con igualdad de oportunidades; con acceso a salud, educación, cultura y seguridad.","Incrementar la cobertura en el 70% de grupos de atención prioritaria del DMQ, con políticas públicas de inclusión social y protección de derechos o en situación de vulnerabilidad.","ODS1_",{"$f":"IF(E117=\"\",\"\",VLOOKUP(E117,Insumos!AD:AE,2,FALSE))","v":"1 Fin de la pobreza"},"OPND5",{"$f":"IF(G117=\"\",\"\",VLOOKUP(G117,Insumos!G:H,2,FALSE))","v":"5. Proteger a las familias, garantizar sus derechos y servicios, erradicar la pobreza y promover la inclusión social."}]
["Prestación de servicios públicos","1.       Gestión institucional directa","Objetivo Estratégico 6: Asegurar una vida plena y justa, con igualdad de oportunidades; con acceso a salud, educación, cultura y seguridad.","Incrementar en 4% el número de habitantes del DMQ inmersos en acciones en el marco del sistema de protección integral al 2023.","ODS1_",{"$f":"IF(E118=\"\",\"\",VLOOKUP(E118,Insumos!AD:AE,2,FALSE))","v":"1 Fin de la pobreza"},"OPND5",{"$f":"IF(G118=\"\",\"\",VLOOKUP(G118,Insumos!G:H,2,FALSE))","v":"5. Proteger a las familias, garantizar sus derechos y servicios, erradicar la pobreza y promover la inclusión social."}]
["Prestación de servicios públicos","1.       Gestión institucional directa","Objetivo Estratégico 6: Asegurar una vida plena y justa, con igualdad de oportunidades; con acceso a salud, educación, cultura y seguridad.","Incrementar la cobertura al 23,94% del paquete de intervención nutricional en la población de responsabilidad municipal menor de 5 años, escolares y adolescentes con malnutrición.","ODS1_",{"$f":"IF(E119=\"\",\"\",VLOOKUP(E119,Insumos!AD:AE,2,FALSE))","v":"1 Fin de la pobreza"},"OPND5",{"$f":"IF(G119=\"\",\"\",VLOOKUP(G119,Insumos!G:H,2,FALSE))","v":"5. Proteger a las familias, garantizar sus derechos y servicios, erradicar la pobreza y promover la inclusión social."}]
["Prestación de servicios públicos","1.       Gestión institucional directa","Objetivo Estratégico 6: Asegurar una vida plena y justa, con igualdad de oportunidades; con acceso a salud, educación, cultura y seguridad.","Incrementar en un 30% la producción de bienes y productos artísticos y culturales.","ODS1_",{"$f":"IF(E120=\"\",\"\",VLOOKUP(E120,Insumos!AD:AE,2,FALSE))","v":"1 Fin de la pobreza"},"OPND5",{"$f":"IF(G120=\"\",\"\",VLOOKUP(G120,Insumos!G:H,2,FALSE))","v":"5. Proteger a las familias, garantizar sus derechos y servicios, erradicar la pobreza y promover la inclusión social."}]
["Prestación de servicios públicos","1.       Gestión institucional directa","Objetivo Estratégico 6: Asegurar una vida plena y justa, con igualdad de oportunidades; con acceso a salud, educación, cultura y seguridad.","Intervenir en la infraestructura de 34 instituciones educativas.","ODS1_",{"$f":"IF(E121=\"\",\"\",VLOOKUP(E121,Insumos!AD:AE,2,FALSE))","v":"1 Fin de la pobreza"},"OPND5",{"$f":"IF(G121=\"\",\"\",VLOOKUP(G121,Insumos!G:H,2,FALSE))","v":"5. Proteger a las familias, garantizar sus derechos y servicios, erradicar la pobreza y promover la inclusión social."}]
["Prestación de servicios públicos","1.       Gestión institucional directa","Objetivo Estratégico 6: Asegurar una vida plena y justa, con igualdad de oportunidades; con acceso a salud, educación, cultura y seguridad.","Controlar en un 30% la fauna urbana en el DMQ, garantizando los principios de bienestar animal","ODS1_",{"$f":"IF(E122=\"\",\"\",VLOOKUP(E122,Insumos!AD:AE,2,FALSE))","v":"1 Fin de la pobreza"},"OPND5",{"$f":"IF(G122=\"\",\"\",VLOOKUP(G122,Insumos!G:H,2,FALSE))","v":"5. Proteger a las familias, garantizar sus derechos y servicios, erradicar la pobreza y promover la inclusión social."}]
["Prestación de servicios públicos","1.       Gestión institucional directa","Objetivo Estratégico 6: Asegurar una vida plena y justa, con igualdad de oportunidades; con acceso a salud, educación, cultura y seguridad.","Alcanzar al menos el 50% de las parroquias urbanas y rurales cubiertos con acciones artísticas y culturales para la construcción de sentidos de valoración, apropiación y pertenencia al 2023.","ODS1_",{"$f":"IF(E123=\"\",\"\",VLOOKUP(E123,Insumos!AD:AE,2,FALSE))","v":"1 Fin de la pobreza"},"OPND5",{"$f":"IF(G123=\"\",\"\",VLOOKUP(G123,Insumos!G:H,2,FALSE))","v":"5. Proteger a las familias, garantizar sus derechos y servicios, erradicar la pobreza y promover la inclusión social."}]
["Prestación de servicios públicos","1.       Gestión institucional directa","Objetivo Estratégico 6: Asegurar una vida plena y justa, con igualdad de oportunidades; con acceso a salud, educación, cultura y seguridad.","Incrementar en un 10% el acceso espacios culturales del sistema metropolitano de teatros y sistema de museos de la ciudad de Quito para promover el reconocimiento, la valoración y el desarrollo de las identidades diversas.","ODS1_",{"$f":"IF(E124=\"\",\"\",VLOOKUP(E124,Insumos!AD:AE,2,FALSE))","v":"1 Fin de la pobreza"},"OPND5",{"$f":"IF(G124=\"\",\"\",VLOOKUP(G124,Insumos!G:H,2,FALSE))","v":"5. Proteger a las familias, garantizar sus derechos y servicios, erradicar la pobreza y promover la inclusión social."}]
["Prestación de servicios públicos","1.       Gestión institucional directa","Objetivo Estratégico 6: Asegurar una vida plena y justa, con igualdad de oportunidades; con acceso a salud, educación, cultura y seguridad.","Incrementar hasta llegar al 8% del número de personas que realizan actividad deportiva y recreativa en el DMQ al 2023.","ODS1_",{"$f":"IF(E125=\"\",\"\",VLOOKUP(E125,Insumos!AD:AE,2,FALSE))","v":"1 Fin de la pobreza"},"OPND5",{"$f":"IF(G125=\"\",\"\",VLOOKUP(G125,Insumos!G:H,2,FALSE))","v":"5. Proteger a las familias, garantizar sus derechos y servicios, erradicar la pobreza y promover la inclusión social."}]
["Prestación de servicios públicos","1.       Gestión institucional directa","Objetivo Estratégico 6: Asegurar una vida plena y justa, con igualdad de oportunidades; con acceso a salud, educación, cultura y seguridad.","Intervenir en el 28% de los escenarios deportivos y recreativos de propiedad municipal en el DMQ al 2023.","ODS1_",{"$f":"IF(E126=\"\",\"\",VLOOKUP(E126,Insumos!AD:AE,2,FALSE))","v":"1 Fin de la pobreza"},"OPND5",{"$f":"IF(G126=\"\",\"\",VLOOKUP(G126,Insumos!G:H,2,FALSE))","v":"5. Proteger a las familias, garantizar sus derechos y servicios, erradicar la pobreza y promover la inclusión social."}]
["Prestación de servicios públicos","1.       Gestión institucional directa","Objetivo Estratégico 6: Asegurar una vida plena y justa, con igualdad de oportunidades; con acceso a salud, educación, cultura y seguridad.","Incrementar la cobertura en 2% de la atención psicopedagógica a estudiantes de instituciones educativas con necesidades educativas especiales asociadas o no a la discapacidad al 2023.","ODS1_",{"$f":"IF(E127=\"\",\"\",VLOOKUP(E127,Insumos!AD:AE,2,FALSE))","v":"1 Fin de la pobreza"},"OPND5",{"$f":"IF(G127=\"\",\"\",VLOOKUP(G127,Insumos!G:H,2,FALSE))","v":"5. Proteger a las familias, garantizar sus derechos y servicios, erradicar la pobreza y promover la inclusión social."}]
["Prestación de servicios públicos","1.       Gestión institucional directa","Objetivo Estratégico 6: Asegurar una vida plena y justa, con igualdad de oportunidades; con acceso a salud, educación, cultura y seguridad.","Incrementar al 12% la cobertura de educación municipal extraordinaria al 2023.","ODS1_",{"$f":"IF(E128=\"\",\"\",VLOOKUP(E128,Insumos!AD:AE,2,FALSE))","v":"1 Fin de la pobreza"},"OPND5",{"$f":"IF(G128=\"\",\"\",VLOOKUP(G128,Insumos!G:H,2,FALSE))","v":"5. Proteger a las familias, garantizar sus derechos y servicios, erradicar la pobreza y promover la inclusión social."}]
["Prestación de servicios públicos","1.       Gestión institucional directa","Objetivo Estratégico 6: Asegurar una vida plena y justa, con igualdad de oportunidades; con acceso a salud, educación, cultura y seguridad.","Incrementar en 2% el rendimiento de los estudiantes de instituciones educativas municipales al 2023.","ODS1_",{"$f":"IF(E129=\"\",\"\",VLOOKUP(E129,Insumos!AD:AE,2,FALSE))","v":"1 Fin de la pobreza"},"OPND5",{"$f":"IF(G129=\"\",\"\",VLOOKUP(G129,Insumos!G:H,2,FALSE))","v":"5. Proteger a las familias, garantizar sus derechos y servicios, erradicar la pobreza y promover la inclusión social."}]
["Prestación de servicios públicos","1.       Gestión institucional directa","Objetivo Estratégico 6: Asegurar una vida plena y justa, con igualdad de oportunidades; con acceso a salud, educación, cultura y seguridad.","Lograr 27 servicios especializados y fortalecidos para la operativización del sistema de protección de derechos.","ODS1_",{"$f":"IF(E130=\"\",\"\",VLOOKUP(E130,Insumos!AD:AE,2,FALSE))","v":"1 Fin de la pobreza"},"OPND5",{"$f":"IF(G130=\"\",\"\",VLOOKUP(G130,Insumos!G:H,2,FALSE))","v":"5. Proteger a las familias, garantizar sus derechos y servicios, erradicar la pobreza y promover la inclusión social."}]
["Prestación de servicios públicos","1.       Gestión institucional directa","Objetivo Estratégico 6: Asegurar una vida plena y justa, con igualdad de oportunidades; con acceso a salud, educación, cultura y seguridad.","Lograr que el 4% de los habitantes del Distrito Metropolitano de Quito se involucren en acciones de promoción de derechos en el marco del sistema de protección integral.","ODS1_",{"$f":"IF(E131=\"\",\"\",VLOOKUP(E131,Insumos!AD:AE,2,FALSE))","v":"1 Fin de la pobreza"},"OPND5",{"$f":"IF(G131=\"\",\"\",VLOOKUP(G131,Insumos!G:H,2,FALSE))","v":"5. Proteger a las familias, garantizar sus derechos y servicios, erradicar la pobreza y promover la inclusión social."}]
["Prestación de servicios públicos","1.       Gestión institucional directa","Objetivo Estratégico 6: Asegurar una vida plena y justa, con igualdad de oportunidades; con acceso a salud, educación, cultura y seguridad.","Lograr al menos 9 redes territorializadas, operativas y articuladas entre sí al 2023","ODS1_",{"$f":"IF(E132=\"\",\"\",VLOOKUP(E132,Insumos!AD:AE,2,FALSE))","v":"1 Fin de la pobreza"},"OPND5",{"$f":"IF(G132=\"\",\"\",VLOOKUP(G132,Insumos!G:H,2,FALSE))","v":"5. Proteger a las familias, garantizar sus derechos y servicios, erradicar la pobreza y promover la inclusión social."}]
["Prestación de servicios públicos","1.       Gestión institucional directa","Objetivo Estratégico 6: Asegurar una vida plena y justa, con igualdad de oportunidades; con acceso a salud, educación, cultura y seguridad.","Lograr transversalizar en el eje social del MDMQ las políticas de inclusión social al 2023.","ODS1_",{"$f":"IF(E133=\"\",\"\",VLOOKUP(E133,Insumos!AD:AE,2,FALSE))","v":"1 Fin de la pobreza"},"OPND5",{"$f":"IF(G133=\"\",\"\",VLOOKUP(G133,Insumos!G:H,2,FALSE))","v":"5. Proteger a las familias, garantizar sus derechos y servicios, erradicar la pobreza y promover la inclusión social."}]
["Prestación de servicios públicos","1.       Gestión institucional directa","Objetivo Estratégico 6: Asegurar una vida plena y justa, con igualdad de oportunidades; con acceso a salud, educación, cultura y seguridad.","Alcanzar el 60% de cumplimiento de estándares de calidad nacionales, relacionados a la seguridad del paciente-usuario en los servicios de salud ofertados por la red metropolitana de salud al 2023","ODS1_",{"$f":"IF(E134=\"\",\"\",VLOOKUP(E134,Insumos!AD:AE,2,FALSE))","v":"1 Fin de la pobreza"},"OPND5",{"$f":"IF(G134=\"\",\"\",VLOOKUP(G134,Insumos!G:H,2,FALSE))","v":"5. Proteger a las familias, garantizar sus derechos y servicios, erradicar la pobreza y promover la inclusión social."}]
["Prestación de servicios públicos","1.       Gestión institucional directa","Objetivo Estratégico 6: Asegurar una vida plena y justa, con igualdad de oportunidades; con acceso a salud, educación, cultura y seguridad.","Lograr la implementación del 100 % del sistema de prevención integral de adicciones en sus diferentes niveles y ámbitos, en la población identificada en riesgo al 2023.","ODS1_",{"$f":"IF(E135=\"\",\"\",VLOOKUP(E135,Insumos!AD:AE,2,FALSE))","v":"1 Fin de la pobreza"},"OPND5",{"$f":"IF(G135=\"\",\"\",VLOOKUP(G135,Insumos!G:H,2,FALSE))","v":"5. Proteger a las familias, garantizar sus derechos y servicios, erradicar la pobreza y promover la inclusión social."}]
["Prestación de servicios públicos","1.       Gestión institucional directa","Objetivo Estratégico 6: Asegurar una vida plena y justa, con igualdad de oportunidades; con acceso a salud, educación, cultura y seguridad.","Lograr que el 80% de manipuladores de alimentos de responsabilidad municipal cumplan con buenas prácticas de higiene, adecuada manipulación de alimentos y alimentación saludable al 2023.","ODS1_",{"$f":"IF(E136=\"\",\"\",VLOOKUP(E136,Insumos!AD:AE,2,FALSE))","v":"1 Fin de la pobreza"},"OPND5",{"$f":"IF(G136=\"\",\"\",VLOOKUP(G136,Insumos!G:H,2,FALSE))","v":"5. Proteger a las familias, garantizar sus derechos y servicios, erradicar la pobreza y promover la inclusión social."}]
["Prestación de servicios públicos","1.       Gestión institucional directa","Objetivo Estratégico 6: Asegurar una vida plena y justa, con igualdad de oportunidades; con acceso a salud, educación, cultura y seguridad.","Disminuir el riesgo en el 40% de la población de responsabilidad municipal tamizada en alto riesgo, al 2023","ODS1_",{"$f":"IF(E137=\"\",\"\",VLOOKUP(E137,Insumos!AD:AE,2,FALSE))","v":"1 Fin de la pobreza"},"OPND5",{"$f":"IF(G137=\"\",\"\",VLOOKUP(G137,Insumos!G:H,2,FALSE))","v":"5. Proteger a las familias, garantizar sus derechos y servicios, erradicar la pobreza y promover la inclusión social."}]
["Prestación de servicios públicos","1.       Gestión institucional directa","Objetivo Estratégico 6: Asegurar una vida plena y justa, con igualdad de oportunidades; con acceso a salud, educación, cultura y seguridad.","Lograr 100% de rehabilitación del hospital básico metropolitano del sur- nivel 2.","ODS1_",{"$f":"IF(E138=\"\",\"\",VLOOKUP(E138,Insumos!AD:AE,2,FALSE))","v":"1 Fin de la pobreza"},"OPND5",{"$f":"IF(G138=\"\",\"\",VLOOKUP(G138,Insumos!G:H,2,FALSE))","v":"5. Proteger a las familias, garantizar sus derechos y servicios, erradicar la pobreza y promover la inclusión social."}]
["Prestación de servicios públicos","1.       Gestión institucional directa","Objetivo Estratégico 6: Asegurar una vida plena y justa, con igualdad de oportunidades; con acceso a salud, educación, cultura y seguridad.","Cumplir con al menos el 35% de indicadores en nivel óptimo o verde para obtener la certificación del municipio en el programa municipios saludables al 2023","ODS1_",{"$f":"IF(E139=\"\",\"\",VLOOKUP(E139,Insumos!AD:AE,2,FALSE))","v":"1 Fin de la pobreza"},"OPND5",{"$f":"IF(G139=\"\",\"\",VLOOKUP(G139,Insumos!G:H,2,FALSE))","v":"5. Proteger a las familias, garantizar sus derechos y servicios, erradicar la pobreza y promover la inclusión social."}]
["Prestación de servicios públicos","1.       Gestión institucional directa","Objetivo Estratégico 6: Asegurar una vida plena y justa, con igualdad de oportunidades; con acceso a salud, educación, cultura y seguridad.","Relocalizar 382 familias asentadas en zonas de alto riesgo no mitigable dentro de los proyectos habitacionales gestionados por el GAD del DMQ","ODS1_",{"$f":"IF(E140=\"\",\"\",VLOOKUP(E140,Insumos!AD:AE,2,FALSE))","v":"1 Fin de la pobreza"},"OPND5",{"$f":"IF(G140=\"\",\"\",VLOOKUP(G140,Insumos!G:H,2,FALSE))","v":"5. Proteger a las familias, garantizar sus derechos y servicios, erradicar la pobreza y promover la inclusión social."}]
["Prestación de servicios públicos","1.       Gestión institucional directa","Objetivo Estratégico 6: Asegurar una vida plena y justa, con igualdad de oportunidades; con acceso a salud, educación, cultura y seguridad.","Incrementar en un 40% la capacidad de alojamientos temporales del DMQ.","ODS1_",{"$f":"IF(E141=\"\",\"\",VLOOKUP(E141,Insumos!AD:AE,2,FALSE))","v":"1 Fin de la pobreza"},"OPND5",{"$f":"IF(G141=\"\",\"\",VLOOKUP(G141,Insumos!G:H,2,FALSE))","v":"5. Proteger a las familias, garantizar sus derechos y servicios, erradicar la pobreza y promover la inclusión social."}]
["Prestación de servicios públicos","1.       Gestión institucional directa","Objetivo Estratégico 6: Asegurar una vida plena y justa, con igualdad de oportunidades; con acceso a salud, educación, cultura y seguridad.","Disminuir el tiempo promedio de respuesta en la atención de emergencias en el DMQ hasta llegar a 13 minutos.","ODS1_",{"$f":"IF(E142=\"\",\"\",VLOOKUP(E142,Insumos!AD:AE,2,FALSE))","v":"1 Fin de la pobreza"},"OPND5",{"$f":"IF(G142=\"\",\"\",VLOOKUP(G142,Insumos!G:H,2,FALSE))","v":"5. Proteger a las familias, garantizar sus derechos y servicios, erradicar la pobreza y promover la inclusión social."}]
["Prestación de servicios públicos","1.       Gestión institucional directa","Objetivo Estratégico 6: Asegurar una vida plena y justa, con igualdad de oportunidades; con acceso a salud, educación, cultura y seguridad.","Reducir la tasa de personas afectadas por desastres en los últimos 10 años hasta llegar a 70 personas por cada 100.000 habitantes al 2023.","ODS1_",{"$f":"IF(E143=\"\",\"\",VLOOKUP(E143,Insumos!AD:AE,2,FALSE))","v":"1 Fin de la pobreza"},"OPND5",{"$f":"IF(G143=\"\",\"\",VLOOKUP(G143,Insumos!G:H,2,FALSE))","v":"5. Proteger a las familias, garantizar sus derechos y servicios, erradicar la pobreza y promover la inclusión social."}]
["Prestación de servicios públicos","1.       Gestión institucional directa","Objetivo Estratégico 6: Asegurar una vida plena y justa, con igualdad de oportunidades; con acceso a salud, educación, cultura y seguridad.","Implementar un mecanismo sostenible de elaboración y ejecución de planes de salvaguarda del patrimonio inmaterial","ODS1_",{"$f":"IF(E144=\"\",\"\",VLOOKUP(E144,Insumos!AD:AE,2,FALSE))","v":"1 Fin de la pobreza"},"OPND5",{"$f":"IF(G144=\"\",\"\",VLOOKUP(G144,Insumos!G:H,2,FALSE))","v":"5. Proteger a las familias, garantizar sus derechos y servicios, erradicar la pobreza y promover la inclusión social."}]
["Prestación de servicios públicos","1.       Gestión institucional directa","Objetivo Estratégico 6: Asegurar una vida plena y justa, con igualdad de oportunidades; con acceso a salud, educación, cultura y seguridad.","Implementar el 100% de los Planes Maestros involucrados","ODS1_",{"$f":"IF(E145=\"\",\"\",VLOOKUP(E145,Insumos!AD:AE,2,FALSE))","v":"1 Fin de la pobreza"},"OPND5",{"$f":"IF(G145=\"\",\"\",VLOOKUP(G145,Insumos!G:H,2,FALSE))","v":"5. Proteger a las familias, garantizar sus derechos y servicios, erradicar la pobreza y promover la inclusión social."}]
["Prestación de servicios públicos","1.       Gestión institucional directa","Objetivo Estratégico 6: Asegurar una vida plena y justa, con igualdad de oportunidades; con acceso a salud, educación, cultura y seguridad.","Aumentar el Índice de Calidad de Vida al 2033","ODS1_",{"$f":"IF(E146=\"\",\"\",VLOOKUP(E146,Insumos!AD:AE,2,FALSE))","v":"1 Fin de la pobreza"},"OPND5",{"$f":"IF(G146=\"\",\"\",VLOOKUP(G146,Insumos!G:H,2,FALSE))","v":"5. Proteger a las familias, garantizar sus derechos y servicios, erradicar la pobreza y promover la inclusión social."},"5.1.1. Reducir la tasa de pobreza extrema por ingresos de 15,44% al 10,76%.","1.3 Implementar a nivel nacional sistemas y medidas apropiados de protección social para todos, incluidos niveles mínimos, y, de aquí a 2030, lograr una amplia cobertura de las personas pobres y vulnerables"]
["Prestación de servicios públicos","1.       Gestión institucional directa","Objetivo Estratégico 6: Asegurar una vida plena y justa, con igualdad de oportunidades; con acceso a salud, educación, cultura y seguridad.","Incrementar el Índice de calidad de la atención en las unidades metropolitanas de salud del DMQ","ODS1_",{"$f":"IF(E147=\"\",\"\",VLOOKUP(E147,Insumos!AD:AE,2,FALSE))","v":"1 Fin de la pobreza"},"OPND5",{"$f":"IF(G147=\"\",\"\",VLOOKUP(G147,Insumos!G:H,2,FALSE))","v":"5. Proteger a las familias, garantizar sus derechos y servicios, erradicar la pobreza y promover la inclusión social."}]
["Prestación de servicios públicos","1.       Gestión institucional directa","Objetivo Estratégico 6: Asegurar una vida plena y justa, con igualdad de oportunidades; con acceso a salud, educación, cultura y seguridad.","Disminuir la tasa de morbilidad (General) por cada 1.000 habitantes en el DMQ","ODS1_",{"$f":"IF(E148=\"\",\"\",VLOOKUP(E148,Insumos!AD:AE,2,FALSE))","v":"1 Fin de la pobreza"},"OPND5",{"$f":"IF(G148=\"\",\"\",VLOOKUP(G148,Insumos!G:H,2,FALSE))","v":"5. Proteger a las familias, garantizar sus derechos y servicios, erradicar la pobreza y promover la inclusión social."}]
["Prestación de servicios públicos","1.       Gestión institucional directa","Objetivo Estratégico 6: Asegurar una vida plena y justa, con igualdad de oportunidades; con acceso a salud, educación, cultura y seguridad.","Disminuir el Índice de morbilidad infantil","ODS1_",{"$f":"IF(E149=\"\",\"\",VLOOKUP(E149,Insumos!AD:AE,2,FALSE))","v":"1 Fin de la pobreza"},"OPND5",{"$f":"IF(G149=\"\",\"\",VLOOKUP(G149,Insumos!G:H,2,FALSE))","v":"5. Proteger a las familias, garantizar sus derechos y servicios, erradicar la pobreza y promover la inclusión social."}]
["Prestación de servicios públicos","1.       Gestión institucional directa","Objetivo Estratégico 6: Asegurar una vida plena y justa, con igualdad de oportunidades; con acceso a salud, educación, cultura y seguridad.","Disminuir la tasa de mortalidad infantil en el Distrito Metropolitano de Quito","ODS1_",{"$f":"IF(E150=\"\",\"\",VLOOKUP(E150,Insumos!AD:AE,2,FALSE))","v":"1 Fin de la pobreza"},"OPND5",{"$f":"IF(G150=\"\",\"\",VLOOKUP(G150,Insumos!G:H,2,FALSE))","v":"5. Proteger a las familias, garantizar sus derechos y servicios, erradicar la pobreza y promover la inclusión social."}]
["Prestación de servicios públicos","1.       Gestión institucional directa","Objetivo Estratégico 6: Asegurar una vida plena y justa, con igualdad de oportunidades; con acceso a salud, educación, cultura y seguridad.","Disminuir la tasa de mortalidad (General) por cada 1000 habitantes en el Distrito Metropolitano de Quito","ODS1_",{"$f":"IF(E151=\"\",\"\",VLOOKUP(E151,Insumos!AD:AE,2,FALSE))","v":"1 Fin de la pobreza"},"OPND5",{"$f":"IF(G151=\"\",\"\",VLOOKUP(G151,Insumos!G:H,2,FALSE))","v":"5. Proteger a las familias, garantizar sus derechos y servicios, erradicar la pobreza y promover la inclusión social."}]
["Prestación de servicios públicos","1.       Gestión institucional directa","Objetivo Estratégico 6: Asegurar una vida plena y justa, con igualdad de oportunidades; con acceso a salud, educación, cultura y seguridad.","Incrementar el Índice de calidad en la educación de los establecimientos educativos municipales","ODS1_",{"$f":"IF(E152=\"\",\"\",VLOOKUP(E152,Insumos!AD:AE,2,FALSE))","v":"1 Fin de la pobreza"},"OPND5",{"$f":"IF(G152=\"\",\"\",VLOOKUP(G152,Insumos!G:H,2,FALSE))","v":"5. Proteger a las familias, garantizar sus derechos y servicios, erradicar la pobreza y promover la inclusión social."}]
["Prestación de servicios públicos","1.       Gestión institucional directa","Objetivo Estratégico 6: Asegurar una vida plena y justa, con igualdad de oportunidades; con acceso a salud, educación, cultura y seguridad.","Reducir el índice de prevalencia de violencia intrafamiliar, de género y violencia sexual.","ODS1_",{"$f":"IF(E153=\"\",\"\",VLOOKUP(E153,Insumos!AD:AE,2,FALSE))","v":"1 Fin de la pobreza"},"OPND5",{"$f":"IF(G153=\"\",\"\",VLOOKUP(G153,Insumos!G:H,2,FALSE))","v":"5. Proteger a las familias, garantizar sus derechos y servicios, erradicar la pobreza y promover la inclusión social."}]
["Prestación de servicios públicos","1.       Gestión institucional directa","Objetivo Estratégico 6: Asegurar una vida plena y justa, con igualdad de oportunidades; con acceso a salud, educación, cultura y seguridad.","Reducir el índice convivencia ciudadana en el DMQ","ODS1_",{"$f":"IF(E154=\"\",\"\",VLOOKUP(E154,Insumos!AD:AE,2,FALSE))","v":"1 Fin de la pobreza"},"OPND5",{"$f":"IF(G154=\"\",\"\",VLOOKUP(G154,Insumos!G:H,2,FALSE))","v":"5. Proteger a las familias, garantizar sus derechos y servicios, erradicar la pobreza y promover la inclusión social."}]
["Prestación de servicios públicos","1.       Gestión institucional directa","Objetivo Estratégico 6: Asegurar una vida plena y justa, con igualdad de oportunidades; con acceso a salud, educación, cultura y seguridad.","Reducir el índice de Victimización DMQ","ODS1_",{"$f":"IF(E155=\"\",\"\",VLOOKUP(E155,Insumos!AD:AE,2,FALSE))","v":"1 Fin de la pobreza"},"OPND5",{"$f":"IF(G155=\"\",\"\",VLOOKUP(G155,Insumos!G:H,2,FALSE))","v":"5. Proteger a las familias, garantizar sus derechos y servicios, erradicar la pobreza y promover la inclusión social."}]
["Prestación de servicios públicos","1.       Gestión institucional directa","Objetivo Estratégico 6: Asegurar una vida plena y justa, con igualdad de oportunidades; con acceso a salud, educación, cultura y seguridad.","Reducir el índice violencia interpersonal en el DMQ","ODS1_",{"$f":"IF(E156=\"\",\"\",VLOOKUP(E156,Insumos!AD:AE,2,FALSE))","v":"1 Fin de la pobreza"},"OPND5",{"$f":"IF(G156=\"\",\"\",VLOOKUP(G156,Insumos!G:H,2,FALSE))","v":"5. Proteger a las familias, garantizar sus derechos y servicios, erradicar la pobreza y promover la inclusión social."}]
["Prestación de servicios públicos","1.       Gestión institucional directa","Objetivo Estratégico 6: Asegurar una vida plena y justa, con igualdad de oportunidades; con acceso a salud, educación, cultura y seguridad.","Reducir el índice de percepción de inseguridad.","ODS1_",{"$f":"IF(E157=\"\",\"\",VLOOKUP(E157,Insumos!AD:AE,2,FALSE))","v":"1 Fin de la pobreza"},"OPND5",{"$f":"IF(G157=\"\",\"\",VLOOKUP(G157,Insumos!G:H,2,FALSE))","v":"5. Proteger a las familias, garantizar sus derechos y servicios, erradicar la pobreza y promover la inclusión social."}]
[null,null,null,null,null,{"$f":"IF(E158=\"\",\"\",VLOOKUP(E158,Insumos!AD:AE,2,FALSE))","v":""},null,{"$f":"IF(G158=\"\",\"\",VLOOKUP(G158,Insumos!G:H,2,FALSE))","v":""}]
[null,null,null,null,null,{"$f":"IF(E159=\"\",\"\",VLOOKUP(E159,Insumos!AD:AE,2,FALSE))","v":""},null,{"$f":"IF(G159=\"\",\"\",VLOOKUP(G159,Insumos!G:H,2,FALSE))","v":""}]
[null,null,null,null,null,{"$f":"IF(E160=\"\",\"\",VLOOKUP(E160,Insumos!AD:AE,2,FALSE))","v":""},null,{"$f":"IF(G160=\"\",\"\",VLOOKUP(G160,Insumos!G:H,2,FALSE))","v":""}]
[null,null,null,null,null,{"$f":"IF(E161=\"\",\"\",VLOOKUP(E161,Insumos!AD:AE,2,FALSE))","v":""},null,{"$f":"IF(G161=\"\",\"\",VLOOKUP(G161,Insumos!G:H,2,FALSE))","v":""}]
[null,null,null,null,null,{"$f":"IF(E162=\"\",\"\",VLOOKUP(E162,Insumos!AD:AE,2,FALSE))","v":""},null,{"$f":"IF(G162=\"\",\"\",VLOOKUP(G162,Insumos!G:H,2,FALSE))","v":""}]
[null,null,null,null,null,{"$f":"IF(E163=\"\",\"\",VLOOKUP(E163,Insumos!AD:AE,2,FALSE))","v":""},null,{"$f":"IF(G163=\"\",\"\",VLOOKUP(G163,Insumos!G:H,2,FALSE))","v":""}]
[null,null,null,null,null,{"$f":"IF(E164=\"\",\"\",VLOOKUP(E164,Insumos!AD:AE,2,FALSE))","v":""},null,{"$f":"IF(G164=\"\",\"\",VLOOKUP(G164,Insumos!G:H,2,FALSE))","v":""}]
[null,null,null,null,null,{"$f":"IF(E165=\"\",\"\",VLOOKUP(E165,Insumos!AD:AE,2,FALSE))","v":""},null,{"$f":"IF(G165=\"\",\"\",VLOOKUP(G165,Insumos!G:H,2,FALSE))","v":""}]
[null,null,null,null,null,{"$f":"IF(E166=\"\",\"\",VLOOKUP(E166,Insumos!AD:AE,2,FALSE))","v":""},null,{"$f":"IF(G166=\"\",\"\",VLOOKUP(G166,Insumos!G:H,2,FALSE))","v":""}]
[null,null,null,null,null,{"$f":"IF(E167=\"\",\"\",VLOOKUP(E167,Insumos!AD:AE,2,FALSE))","v":""},null,{"$f":"IF(G167=\"\",\"\",VLOOKUP(G167,Insumos!G:H,2,FALSE))","v":""}]
[null,null,null,null,null,{"$f":"IF(E168=\"\",\"\",VLOOKUP(E168,Insumos!AD:AE,2,FALSE))","v":""},null,{"$f":"IF(G168=\"\",\"\",VLOOKUP(G168,Insumos!G:H,2,FALSE))","v":""}]
[null,null,null,null,null,{"$f":"IF(E169=\"\",\"\",VLOOKUP(E169,Insumos!AD:AE,2,FALSE))","v":""},null,{"$f":"IF(G169=\"\",\"\",VLOOKUP(G169,Insumos!G:H,2,FALSE))","v":""}]
[null,null,null,null,null,{"$f":"IF(E170=\"\",\"\",VLOOKUP(E170,Insumos!AD:AE,2,FALSE))","v":""},null,{"$f":"IF(G170=\"\",\"\",VLOOKUP(G170,Insumos!G:H,2,FALSE))","v":""}]
[null,null,null,null,null,{"$f":"IF(E171=\"\",\"\",VLOOKUP(E171,Insumos!AD:AE,2,FALSE))","v":""},null,{"$f":"IF(G171=\"\",\"\",VLOOKUP(G171,Insumos!G:H,2,FALSE))","v":""}]
[null,null,null,null,null,{"$f":"IF(E172=\"\",\"\",VLOOKUP(E172,Insumos!AD:AE,2,FALSE))","v":""},null,{"$f":"IF(G172=\"\",\"\",VLOOKUP(G172,Insumos!G:H,2,FALSE))","v":""}]
[null,null,null,null,null,{"$f":"IF(E173=\"\",\"\",VLOOKUP(E173,Insumos!AD:AE,2,FALSE))","v":""},null,{"$f":"IF(G173=\"\",\"\",VLOOKUP(G173,Insumos!G:H,2,FALSE))","v":""}]
[null,null,null,null,null,{"$f":"IF(E174=\"\",\"\",VLOOKUP(E174,Insumos!AD:AE,2,FALSE))","v":""},null,{"$f":"IF(G174=\"\",\"\",VLOOKUP(G174,Insumos!G:H,2,FALSE))","v":""}]
[null,null,null,null,null,{"$f":"IF(E175=\"\",\"\",VLOOKUP(E175,Insumos!AD:AE,2,FALSE))","v":""},null,{"$f":"IF(G175=\"\",\"\",VLOOKUP(G175,Insumos!G:H,2,FALSE))","v":""}]
[null,null,null,null,null,{"$f":"IF(E176=\"\",\"\",VLOOKUP(E176,Insumos!AD:AE,2,FALSE))","v":""},null,{"$f":"IF(G176=\"\",\"\",VLOOKUP(G176,Insumos!G:H,2,FALSE))","v":""}]
[null,null,null,null,null,{"$f":"IF(E177=\"\",\"\",VLOOKUP(E177,Insumos!AD:AE,2,FALSE))","v":""},null,{"$f":"IF(G177=\"\",\"\",VLOOKUP(G177,Insumos!G:H,2,FALSE))","v":""}]
[null,null,null,null,null,{"$f":"IF(E178=\"\",\"\",VLOOKUP(E178,Insumos!AD:AE,2,FALSE))","v":""},null,{"$f":"IF(G178=\"\",\"\",VLOOKUP(G178,Insumos!G:H,2,FALSE))","v":""}]
[null,null,null,null,null,{"$f":"IF(E179=\"\",\"\",VLOOKUP(E179,Insumos!AD:AE,2,FALSE))","v":""},null,{"$f":"IF(G179=\"\",\"\",VLOOKUP(G179,Insumos!G:H,2,FALSE))","v":""}]
[null,null,null,null,null,{"$f":"IF(E180=\"\",\"\",VLOOKUP(E180,Insumos!AD:AE,2,FALSE))","v":""},null,{"$f":"IF(G180=\"\",\"\",VLOOKUP(G180,Insumos!G:H,2,FALSE))","v":""}]
[null,null,null,null,null,{"$f":"IF(E181=\"\",\"\",VLOOKUP(E181,Insumos!AD:AE,2,FALSE))","v":""},null,{"$f":"IF(G181=\"\",\"\",VLOOKUP(G181,Insumos!G:H,2,FALSE))","v":""}]
[null,null,null,null,null,{"$f":"IF(E182=\"\",\"\",VLOOKUP(E182,Insumos!AD:AE,2,FALSE))","v":""},null,{"$f":"IF(G182=\"\",\"\",VLOOKUP(G182,Insumos!G:H,2,FALSE))","v":""}]
[null,null,null,null,null,{"$f":"IF(E183=\"\",\"\",VLOOKUP(E183,Insumos!AD:AE,2,FALSE))","v":""},null,{"$f":"IF(G183=\"\",\"\",VLOOKUP(G183,Insumos!G:H,2,FALSE))","v":""}]
[null,null,null,null,null,{"$f":"IF(E184=\"\",\"\",VLOOKUP(E184,Insumos!AD:AE,2,FALSE))","v":""},null,{"$f":"IF(G184=\"\",\"\",VLOOKUP(G184,Insumos!G:H,2,FALSE))","v":""}]
[null,null,null,null,null,{"$f":"IF(E185=\"\",\"\",VLOOKUP(E185,Insumos!AD:AE,2,FALSE))","v":""},null,{"$f":"IF(G185=\"\",\"\",VLOOKUP(G185,Insumos!G:H,2,FALSE))","v":""}]
[null,null,null,null,null,{"$f":"IF(E186=\"\",\"\",VLOOKUP(E186,Insumos!AD:AE,2,FALSE))","v":""},null,{"$f":"IF(G186=\"\",\"\",VLOOKUP(G186,Insumos!G:H,2,FALSE))","v":""}]
[null,null,null,null,null,{"$f":"IF(E187=\"\",\"\",VLOOKUP(E187,Insumos!AD:AE,2,FALSE))","v":""},null,{"$f":"IF(G187=\"\",\"\",VLOOKUP(G187,Insumos!G:H,2,FALSE))","v":""}]
[null,null,null,null,null,{"$f":"IF(E188=\"\",\"\",VLOOKUP(E188,Insumos!AD:AE,2,FALSE))","v":""},null,{"$f":"IF(G188=\"\",\"\",VLOOKUP(G188,Insumos!G:H,2,FALSE))","v":""}]
[null,null,null,null,null,{"$f":"IF(E189=\"\",\"\",VLOOKUP(E189,Insumos!AD:AE,2,FALSE))","v":""},null,{"$f":"IF(G189=\"\",\"\",VLOOKUP(G189,Insumos!G:H,2,FALSE))","v":""}]
[null,null,null,null,null,{"$f":"IF(E190=\"\",\"\",VLOOKUP(E190,Insumos!AD:AE,2,FALSE))","v":""},null,{"$f":"IF(G190=\"\",\"\",VLOOKUP(G190,Insumos!G:H,2,FALSE))","v":""}]
[null,null,null,null,null,{"$f":"IF(E191=\"\",\"\",VLOOKUP(E191,Insumos!AD:AE,2,FALSE))","v":""},null,{"$f":"IF(G191=\"\",\"\",VLOOKUP(G191,Insumos!G:H,2,FALSE))","v":""}]
[null,null,null,null,null,{"$f":"IF(E192=\"\",\"\",VLOOKUP(E192,Insumos!AD:AE,2,FALSE))","v":""},null,{"$f":"IF(G192=\"\",\"\",VLOOKUP(G192,Insumos!G:H,2,FALSE))","v":""}]
[null,null,null,null,null,{"$f":"IF(E193=\"\",\"\",VLOOKUP(E193,Insumos!AD:AE,2,FALSE))","v":""},null,{"$f":"IF(G193=\"\",\"\",VLOOKUP(G193,Insumos!G:H,2,FALSE))","v":""}]
[null,null,null,null,null,{"$f":"IF(E194=\"\",\"\",VLOOKUP(E194,Insumos!AD:AE,2,FALSE))","v":""},null,{"$f":"IF(G194=\"\",\"\",VLOOKUP(G194,Insumos!G:H,2,FALSE))","v":""}]
[null,null,null,null,null,{"$f":"IF(E195=\"\",\"\",VLOOKUP(E195,Insumos!AD:AE,2,FALSE))","v":""},null,{"$f":"IF(G195=\"\",\"\",VLOOKUP(G195,Insumos!G:H,2,FALSE))","v":""}]
[null,null,null,null,null,{"$f":"IF(E196=\"\",\"\",VLOOKUP(E196,Insumos!AD:AE,2,FALSE))","v":""},null,{"$f":"IF(G196=\"\",\"\",VLOOKUP(G196,Insumos!G:H,2,FALSE))","v":""}]
[null,null,null,null,null,{"$f":"IF(E197=\"\",\"\",VLOOKUP(E197,Insumos!AD:AE,2,FALSE))","v":""},null,{"$f":"IF(G197=\"\",\"\",VLOOKUP(G197,Insumos!G:H,2,FALSE))","v":""}]
[null,null,null,null,null,{"$f":"IF(E198=\"\",\"\",VLOOKUP(E198,Insumos!AD:AE,2,FALSE))","v":""},null,{"$f":"IF(G198=\"\",\"\",VLOOKUP(G198,Insumos!G:H,2,FALSE))","v":""}]
[null,null,null,null,null,{"$f":"IF(E199=\"\",\"\",VLOOKUP(E199,Insumos!AD:AE,2,FALSE))","v":""},null,{"$f":"IF(G199=\"\",\"\",VLOOKUP(G199,Insumos!G:H,2,FALSE))","v":""}]
[null,null,null,null,null,{"$f":"IF(E200=\"\",\"\",VLOOKUP(E200,Insumos!AD:AE,2,FALSE))","v":""},null,{"$f":"IF(G200=\"\",\"\",VLOOKUP(G200,Insumos!G:H,2,FALSE))","v":""}]
[null,null,null,null,null,{"$f":"IF(E201=\"\",\"\",VLOOKUP(E201,Insumos!AD:AE,2,FALSE))","v":""},null,{"$f":"IF(G201=\"\",\"\",VLOOKUP(G201,Insumos!G:H,2,FALSE))","v":""}]
[null,null,null,null,null,{"$f":"IF(E202=\"\",\"\",VLOOKUP(E202,Insumos!AD:AE,2,FALSE))","v":""},null,{"$f":"IF(G202=\"\",\"\",VLOOKUP(G202,Insumos!G:H,2,FALSE))","v":""}]
[null,null,null,null,null,{"$f":"IF(E203=\"\",\"\",VLOOKUP(E203,Insumos!AD:AE,2,FALSE))","v":""},null,{"$f":"IF(G203=\"\",\"\",VLOOKUP(G203,Insumos!G:H,2,FALSE))","v":""}]
[null,null,null,null,null,{"$f":"IF(E204=\"\",\"\",VLOOKUP(E204,Insumos!AD:AE,2,FALSE))","v":""},null,{"$f":"IF(G204=\"\",\"\",VLOOKUP(G204,Insumos!G:H,2,FALSE))","v":""}]
[null,null,null,null,null,{"$f":"IF(E205=\"\",\"\",VLOOKUP(E205,Insumos!AD:AE,2,FALSE))","v":""},null,{"$f":"IF(G205=\"\",\"\",VLOOKUP(G205,Insumos!G:H,2,FALSE))","v":""}]
[null,null,null,null,null,{"$f":"IF(E206=\"\",\"\",VLOOKUP(E206,Insumos!AD:AE,2,FALSE))","v":""},null,{"$f":"IF(G206=\"\",\"\",VLOOKUP(G206,Insumos!G:H,2,FALSE))","v":""}]
[null,null,null,null,null,{"$f":"IF(E207=\"\",\"\",VLOOKUP(E207,Insumos!AD:AE,2,FALSE))","v":""},null,{"$f":"IF(G207=\"\",\"\",VLOOKUP(G207,Insumos!G:H,2,FALSE))","v":""}]
[null,null,null,null,null,{"$f":"IF(E208=\"\",\"\",VLOOKUP(E208,Insumos!AD:AE,2,FALSE))","v":""},null,{"$f":"IF(G208=\"\",\"\",VLOOKUP(G208,Insumos!G:H,2,FALSE))","v":""}]
[null,null,null,null,null,{"$f":"IF(E209=\"\",\"\",VLOOKUP(E209,Insumos!AD:AE,2,FALSE))","v":""},null,{"$f":"IF(G209=\"\",\"\",VLOOKUP(G209,Insumos!G:H,2,FALSE))","v":""}]
[null,null,null,null,null,{"$f":"IF(E210=\"\",\"\",VLOOKUP(E210,Insumos!AD:AE,2,FALSE))","v":""},null,{"$f":"IF(G210=\"\",\"\",VLOOKUP(G210,Insumos!G:H,2,FALSE))","v":""}]
[null,null,null,null,null,{"$f":"IF(E211=\"\",\"\",VLOOKUP(E211,Insumos!AD:AE,2,FALSE))","v":""},null,{"$f":"IF(G211=\"\",\"\",VLOOKUP(G211,Insumos!G:H,2,FALSE))","v":""}]
[null,null,null,null,null,{"$f":"IF(E212=\"\",\"\",VLOOKUP(E212,Insumos!AD:AE,2,FALSE))","v":""},null,{"$f":"IF(G212=\"\",\"\",VLOOKUP(G212,Insumos!G:H,2,FALSE))","v":""}]
[null,null,null,null,null,{"$f":"IF(E213=\"\",\"\",VLOOKUP(E213,Insumos!AD:AE,2,FALSE))","v":""},null,{"$f":"IF(G213=\"\",\"\",VLOOKUP(G213,Insumos!G:H,2,FALSE))","v":""}]
[null,null,null,null,null,{"$f":"IF(E214=\"\",\"\",VLOOKUP(E214,Insumos!AD:AE,2,FALSE))","v":""},null,{"$f":"IF(G214=\"\",\"\",VLOOKUP(G214,Insumos!G:H,2,FALSE))","v":""}]
[null,null,null,null,null,{"$f":"IF(E215=\"\",\"\",VLOOKUP(E215,Insumos!AD:AE,2,FALSE))","v":""},null,{"$f":"IF(G215=\"\",\"\",VLOOKUP(G215,Insumos!G:H,2,FALSE))","v":""}]
[null,null,null,null,null,{"$f":"IF(E216=\"\",\"\",VLOOKUP(E216,Insumos!AD:AE,2,FALSE))","v":""},null,{"$f":"IF(G216=\"\",\"\",VLOOKUP(G216,Insumos!G:H,2,FALSE))","v":""}]
[null,null,null,null,null,{"$f":"IF(E217=\"\",\"\",VLOOKUP(E217,Insumos!AD:AE,2,FALSE))","v":""},null,{"$f":"IF(G217=\"\",\"\",VLOOKUP(G217,Insumos!G:H,2,FALSE))","v":""}]
[null,null,null,null,null,{"$f":"IF(E218=\"\",\"\",VLOOKUP(E218,Insumos!AD:AE,2,FALSE))","v":""},null,{"$f":"IF(G218=\"\",\"\",VLOOKUP(G218,Insumos!G:H,2,FALSE))","v":""}]
[null,null,null,null,null,{"$f":"IF(E219=\"\",\"\",VLOOKUP(E219,Insumos!AD:AE,2,FALSE))","v":""},null,{"$f":"IF(G219=\"\",\"\",VLOOKUP(G219,Insumos!G:H,2,FALSE))","v":""}]
[null,null,null,null,null,{"$f":"IF(E220=\"\",\"\",VLOOKUP(E220,Insumos!AD:AE,2,FALSE))","v":""},null,{"$f":"IF(G220=\"\",\"\",VLOOKUP(G220,Insumos!G:H,2,FALSE))","v":""}]
[null,null,null,null,null,{"$f":"IF(E221=\"\",\"\",VLOOKUP(E221,Insumos!AD:AE,2,FALSE))","v":""},null,{"$f":"IF(G221=\"\",\"\",VLOOKUP(G221,Insumos!G:H,2,FALSE))","v":""}]
[null,null,null,null,null,{"$f":"IF(E222=\"\",\"\",VLOOKUP(E222,Insumos!AD:AE,2,FALSE))","v":""},null,{"$f":"IF(G222=\"\",\"\",VLOOKUP(G222,Insumos!G:H,2,FALSE))","v":""}]
[null,null,null,null,null,{"$f":"IF(E223=\"\",\"\",VLOOKUP(E223,Insumos!AD:AE,2,FALSE))","v":""},null,{"$f":"IF(G223=\"\",\"\",VLOOKUP(G223,Insumos!G:H,2,FALSE))","v":""}]
[null,null,null,null,null,{"$f":"IF(E224=\"\",\"\",VLOOKUP(E224,Insumos!AD:AE,2,FALSE))","v":""},null,{"$f":"IF(G224=\"\",\"\",VLOOKUP(G224,Insumos!G:H,2,FALSE))","v":""}]
[null,null,null,null,null,{"$f":"IF(E225=\"\",\"\",VLOOKUP(E225,Insumos!AD:AE,2,FALSE))","v":""},null,{"$f":"IF(G225=\"\",\"\",VLOOKUP(G225,Insumos!G:H,2,FALSE))","v":""}]
[null,null,null,null,null,{"$f":"IF(E226=\"\",\"\",VLOOKUP(E226,Insumos!AD:AE,2,FALSE))","v":""},null,{"$f":"IF(G226=\"\",\"\",VLOOKUP(G226,Insumos!G:H,2,FALSE))","v":""}]
[null,null,null,null,null,{"$f":"IF(E227=\"\",\"\",VLOOKUP(E227,Insumos!AD:AE,2,FALSE))","v":""},null,{"$f":"IF(G227=\"\",\"\",VLOOKUP(G227,Insumos!G:H,2,FALSE))","v":""}]
[null,null,null,null,null,{"$f":"IF(E228=\"\",\"\",VLOOKUP(E228,Insumos!AD:AE,2,FALSE))","v":""},null,{"$f":"IF(G228=\"\",\"\",VLOOKUP(G228,Insumos!G:H,2,FALSE))","v":""}]
[null,null,null,null,null,{"$f":"IF(E229=\"\",\"\",VLOOKUP(E229,Insumos!AD:AE,2,FALSE))","v":""},null,{"$f":"IF(G229=\"\",\"\",VLOOKUP(G229,Insumos!G:H,2,FALSE))","v":""}]
[null,null,null,null,null,{"$f":"IF(E230=\"\",\"\",VLOOKUP(E230,Insumos!AD:AE,2,FALSE))","v":""},null,{"$f":"IF(G230=\"\",\"\",VLOOKUP(G230,Insumos!G:H,2,FALSE))","v":""}]
[null,null,null,null,null,{"$f":"IF(E231=\"\",\"\",VLOOKUP(E231,Insumos!AD:AE,2,FALSE))","v":""},null,{"$f":"IF(G231=\"\",\"\",VLOOKUP(G231,Insumos!G:H,2,FALSE))","v":""}]
[null,null,null,null,null,{"$f":"IF(E232=\"\",\"\",VLOOKUP(E232,Insumos!AD:AE,2,FALSE))","v":""},null,{"$f":"IF(G232=\"\",\"\",VLOOKUP(G232,Insumos!G:H,2,FALSE))","v":""}]
[null,null,null,null,null,{"$f":"IF(E233=\"\",\"\",VLOOKUP(E233,Insumos!AD:AE,2,FALSE))","v":""},null,{"$f":"IF(G233=\"\",\"\",VLOOKUP(G233,Insumos!G:H,2,FALSE))","v":""}]
[null,null,null,null,null,{"$f":"IF(E234=\"\",\"\",VLOOKUP(E234,Insumos!AD:AE,2,FALSE))","v":""},null,{"$f":"IF(G234=\"\",\"\",VLOOKUP(G234,Insumos!G:H,2,FALSE))","v":""}]
[null,null,null,null,null,{"$f":"IF(E235=\"\",\"\",VLOOKUP(E235,Insumos!AD:AE,2,FALSE))","v":""},null,{"$f":"IF(G235=\"\",\"\",VLOOKUP(G235,Insumos!G:H,2,FALSE))","v":""}]
[null,null,null,null,null,{"$f":"IF(E236=\"\",\"\",VLOOKUP(E236,Insumos!AD:AE,2,FALSE))","v":""},null,{"$f":"IF(G236=\"\",\"\",VLOOKUP(G236,Insumos!G:H,2,FALSE))","v":""}]
[null,null,null,null,null,{"$f":"IF(E237=\"\",\"\",VLOOKUP(E237,Insumos!AD:AE,2,FALSE))","v":""},null,{"$f":"IF(G237=\"\",\"\",VLOOKUP(G237,Insumos!G:H,2,FALSE))","v":""}]
[null,null,null,null,null,{"$f":"IF(E238=\"\",\"\",VLOOKUP(E238,Insumos!AD:AE,2,FALSE))","v":""},null,{"$f":"IF(G238=\"\",\"\",VLOOKUP(G238,Insumos!G:H,2,FALSE))","v":""}]
[null,null,null,null,null,{"$f":"IF(E239=\"\",\"\",VLOOKUP(E239,Insumos!AD:AE,2,FALSE))","v":""},null,{"$f":"IF(G239=\"\",\"\",VLOOKUP(G239,Insumos!G:H,2,FALSE))","v":""}]
[null,null,null,null,null,{"$f":"IF(E240=\"\",\"\",VLOOKUP(E240,Insumos!AD:AE,2,FALSE))","v":""},null,{"$f":"IF(G240=\"\",\"\",VLOOKUP(G240,Insumos!G:H,2,FALSE))","v":""}]
[null,null,null,null,null,{"$f":"IF(E241=\"\",\"\",VLOOKUP(E241,Insumos!AD:AE,2,FALSE))","v":""},null,{"$f":"IF(G241=\"\",\"\",VLOOKUP(G241,Insumos!G:H,2,FALSE))","v":""}]
[null,null,null,null,null,{"$f":"IF(E242=\"\",\"\",VLOOKUP(E242,Insumos!AD:AE,2,FALSE))","v":""},null,{"$f":"IF(G242=\"\",\"\",VLOOKUP(G242,Insumos!G:H,2,FALSE))","v":""}]
[null,null,null,null,null,{"$f":"IF(E243=\"\",\"\",VLOOKUP(E243,Insumos!AD:AE,2,FALSE))","v":""},null,{"$f":"IF(G243=\"\",\"\",VLOOKUP(G243,Insumos!G:H,2,FALSE))","v":""}]
[null,null,null,null,null,{"$f":"IF(E244=\"\",\"\",VLOOKUP(E244,Insumos!AD:AE,2,FALSE))","v":""},null,{"$f":"IF(G244=\"\",\"\",VLOOKUP(G244,Insumos!G:H,2,FALSE))","v":""}]
[null,null,null,null,null,{"$f":"IF(E245=\"\",\"\",VLOOKUP(E245,Insumos!AD:AE,2,FALSE))","v":""},null,{"$f":"IF(G245=\"\",\"\",VLOOKUP(G245,Insumos!G:H,2,FALSE))","v":""}]
[null,null,null,null,null,{"$f":"IF(E246=\"\",\"\",VLOOKUP(E246,Insumos!AD:AE,2,FALSE))","v":""},null,{"$f":"IF(G246=\"\",\"\",VLOOKUP(G246,Insumos!G:H,2,FALSE))","v":""}]
[null,null,null,null,null,{"$f":"IF(E247=\"\",\"\",VLOOKUP(E247,Insumos!AD:AE,2,FALSE))","v":""},null,{"$f":"IF(G247=\"\",\"\",VLOOKUP(G247,Insumos!G:H,2,FALSE))","v":""}]
[null,null,null,null,null,{"$f":"IF(E248=\"\",\"\",VLOOKUP(E248,Insumos!AD:AE,2,FALSE))","v":""},null,{"$f":"IF(G248=\"\",\"\",VLOOKUP(G248,Insumos!G:H,2,FALSE))","v":""}]
[null,null,null,null,null,{"$f":"IF(E249=\"\",\"\",VLOOKUP(E249,Insumos!AD:AE,2,FALSE))","v":""},null,{"$f":"IF(G249=\"\",\"\",VLOOKUP(G249,Insumos!G:H,2,FALSE))","v":""}]
[null,null,null,null,null,{"$f":"IF(E250=\"\",\"\",VLOOKUP(E250,Insumos!AD:AE,2,FALSE))","v":""},null,{"$f":"IF(G250=\"\",\"\",VLOOKUP(G250,Insumos!G:H,2,FALSE))","v":""}]
[null,null,null,null,null,{"$f":"IF(E251=\"\",\"\",VLOOKUP(E251,Insumos!AD:AE,2,FALSE))","v":""},null,{"$f":"IF(G251=\"\",\"\",VLOOKUP(G251,Insumos!G:H,2,FALSE))","v":""}]
[null,null,null,null,null,{"$f":"IF(E252=\"\",\"\",VLOOKUP(E252,Insumos!AD:AE,2,FALSE))","v":""},null,{"$f":"IF(G252=\"\",\"\",VLOOKUP(G252,Insumos!G:H,2,FALSE))","v":""}]
[null,null,null,null,null,{"$f":"IF(E253=\"\",\"\",VLOOKUP(E253,Insumos!AD:AE,2,FALSE))","v":""},null,{"$f":"IF(G253=\"\",\"\",VLOOKUP(G253,Insumos!G:H,2,FALSE))","v":""}]
[null,null,null,null,null,{"$f":"IF(E254=\"\",\"\",VLOOKUP(E254,Insumos!AD:AE,2,FALSE))","v":""},null,{"$f":"IF(G254=\"\",\"\",VLOOKUP(G254,Insumos!G:H,2,FALSE))","v":""}]
[null,null,null,null,null,{"$f":"IF(E255=\"\",\"\",VLOOKUP(E255,Insumos!AD:AE,2,FALSE))","v":""},null,{"$f":"IF(G255=\"\",\"\",VLOOKUP(G255,Insumos!G:H,2,FALSE))","v":""}]
[null,null,null,null,null,{"$f":"IF(E256=\"\",\"\",VLOOKUP(E256,Insumos!AD:AE,2,FALSE))","v":""},null,{"$f":"IF(G256=\"\",\"\",VLOOKUP(G256,Insumos!G:H,2,FALSE))","v":""}]
[null,null,null,null,null,{"$f":"IF(E257=\"\",\"\",VLOOKUP(E257,Insumos!AD:AE,2,FALSE))","v":""},null,{"$f":"IF(G257=\"\",\"\",VLOOKUP(G257,Insumos!G:H,2,FALSE))","v":""}]
[null,null,null,null,null,{"$f":"IF(E258=\"\",\"\",VLOOKUP(E258,Insumos!AD:AE,2,FALSE))","v":""},null,{"$f":"IF(G258=\"\",\"\",VLOOKUP(G258,Insumos!G:H,2,FALSE))","v":""}]
[null,null,null,null,null,{"$f":"IF(E259=\"\",\"\",VLOOKUP(E259,Insumos!AD:AE,2,FALSE))","v":""},null,{"$f":"IF(G259=\"\",\"\",VLOOKUP(G259,Insumos!G:H,2,FALSE))","v":""}]
[null,null,null,null,null,{"$f":"IF(E260=\"\",\"\",VLOOKUP(E260,Insumos!AD:AE,2,FALSE))","v":""},null,{"$f":"IF(G260=\"\",\"\",VLOOKUP(G260,Insumos!G:H,2,FALSE))","v":""}]
[null,null,null,null,null,{"$f":"IF(E261=\"\",\"\",VLOOKUP(E261,Insumos!AD:AE,2,FALSE))","v":""},null,{"$f":"IF(G261=\"\",\"\",VLOOKUP(G261,Insumos!G:H,2,FALSE))","v":""}]
[null,null,null,null,null,{"$f":"IF(E262=\"\",\"\",VLOOKUP(E262,Insumos!AD:AE,2,FALSE))","v":""},null,{"$f":"IF(G262=\"\",\"\",VLOOKUP(G262,Insumos!G:H,2,FALSE))","v":""}]
[null,null,null,null,null,{"$f":"IF(E263=\"\",\"\",VLOOKUP(E263,Insumos!AD:AE,2,FALSE))","v":""},null,{"$f":"IF(G263=\"\",\"\",VLOOKUP(G263,Insumos!G:H,2,FALSE))","v":""}]
[null,null,null,null,null,{"$f":"IF(E264=\"\",\"\",VLOOKUP(E264,Insumos!AD:AE,2,FALSE))","v":""},null,{"$f":"IF(G264=\"\",\"\",VLOOKUP(G264,Insumos!G:H,2,FALSE))","v":""}]
[null,null,null,null,null,{"$f":"IF(E265=\"\",\"\",VLOOKUP(E265,Insumos!AD:AE,2,FALSE))","v":""},null,{"$f":"IF(G265=\"\",\"\",VLOOKUP(G265,Insumos!G:H,2,FALSE))","v":""}]
[null,null,null,null,null,{"$f":"IF(E266=\"\",\"\",VLOOKUP(E266,Insumos!AD:AE,2,FALSE))","v":""},null,{"$f":"IF(G266=\"\",\"\",VLOOKUP(G266,Insumos!G:H,2,FALSE))","v":""}]
[null,null,null,null,null,{"$f":"IF(E267=\"\",\"\",VLOOKUP(E267,Insumos!AD:AE,2,FALSE))","v":""},null,{"$f":"IF(G267=\"\",\"\",VLOOKUP(G267,Insumos!G:H,2,FALSE))","v":""}]
[null,null,null,null,null,{"$f":"IF(E268=\"\",\"\",VLOOKUP(E268,Insumos!AD:AE,2,FALSE))","v":""},null,{"$f":"IF(G268=\"\",\"\",VLOOKUP(G268,Insumos!G:H,2,FALSE))","v":""}]
[null,null,null,null,null,{"$f":"IF(E269=\"\",\"\",VLOOKUP(E269,Insumos!AD:AE,2,FALSE))","v":""},null,{"$f":"IF(G269=\"\",\"\",VLOOKUP(G269,Insumos!G:H,2,FALSE))","v":""}]
[null,null,null,null,null,{"$f":"IF(E270=\"\",\"\",VLOOKUP(E270,Insumos!AD:AE,2,FALSE))","v":""},null,{"$f":"IF(G270=\"\",\"\",VLOOKUP(G270,Insumos!G:H,2,FALSE))","v":""}]
[null,null,null,null,null,{"$f":"IF(E271=\"\",\"\",VLOOKUP(E271,Insumos!AD:AE,2,FALSE))","v":""},null,{"$f":"IF(G271=\"\",\"\",VLOOKUP(G271,Insumos!G:H,2,FALSE))","v":""}]
[null,null,null,null,null,{"$f":"IF(E272=\"\",\"\",VLOOKUP(E272,Insumos!AD:AE,2,FALSE))","v":""},null,{"$f":"IF(G272=\"\",\"\",VLOOKUP(G272,Insumos!G:H,2,FALSE))","v":""}]
[null,null,null,null,null,{"$f":"IF(E273=\"\",\"\",VLOOKUP(E273,Insumos!AD:AE,2,FALSE))","v":""},null,{"$f":"IF(G273=\"\",\"\",VLOOKUP(G273,Insumos!G:H,2,FALSE))","v":""}]
[null,null,null,null,null,{"$f":"IF(E274=\"\",\"\",VLOOKUP(E274,Insumos!AD:AE,2,FALSE))","v":""},null,{"$f":"IF(G274=\"\",\"\",VLOOKUP(G274,Insumos!G:H,2,FALSE))","v":""}]
[null,null,null,null,null,{"$f":"IF(E275=\"\",\"\",VLOOKUP(E275,Insumos!AD:AE,2,FALSE))","v":""},null,{"$f":"IF(G275=\"\",\"\",VLOOKUP(G275,Insumos!G:H,2,FALSE))","v":""}]
[null,null,null,null,null,{"$f":"IF(E276=\"\",\"\",VLOOKUP(E276,Insumos!AD:AE,2,FALSE))","v":""},null,{"$f":"IF(G276=\"\",\"\",VLOOKUP(G276,Insumos!G:H,2,FALSE))","v":""}]
[null,null,null,null,null,{"$f":"IF(E277=\"\",\"\",VLOOKUP(E277,Insumos!AD:AE,2,FALSE))","v":""},null,{"$f":"IF(G277=\"\",\"\",VLOOKUP(G277,Insumos!G:H,2,FALSE))","v":""}]
[null,null,null,null,null,{"$f":"IF(E278=\"\",\"\",VLOOKUP(E278,Insumos!AD:AE,2,FALSE))","v":""},null,{"$f":"IF(G278=\"\",\"\",VLOOKUP(G278,Insumos!G:H,2,FALSE))","v":""}]
[null,null,null,null,null,{"$f":"IF(E279=\"\",\"\",VLOOKUP(E279,Insumos!AD:AE,2,FALSE))","v":""},null,{"$f":"IF(G279=\"\",\"\",VLOOKUP(G279,Insumos!G:H,2,FALSE))","v":""}]
[null,null,null,null,null,{"$f":"IF(E280=\"\",\"\",VLOOKUP(E280,Insumos!AD:AE,2,FALSE))","v":""},null,{"$f":"IF(G280=\"\",\"\",VLOOKUP(G280,Insumos!G:H,2,FALSE))","v":""}]
[null,null,null,null,null,{"$f":"IF(E281=\"\",\"\",VLOOKUP(E281,Insumos!AD:AE,2,FALSE))","v":""},null,{"$f":"IF(G281=\"\",\"\",VLOOKUP(G281,Insumos!G:H,2,FALSE))","v":""}]
[null,null,null,null,null,{"$f":"IF(E282=\"\",\"\",VLOOKUP(E282,Insumos!AD:AE,2,FALSE))","v":""},null,{"$f":"IF(G282=\"\",\"\",VLOOKUP(G282,Insumos!G:H,2,FALSE))","v":""}]
[null,null,null,null,null,{"$f":"IF(E283=\"\",\"\",VLOOKUP(E283,Insumos!AD:AE,2,FALSE))","v":""},null,{"$f":"IF(G283=\"\",\"\",VLOOKUP(G283,Insumos!G:H,2,FALSE))","v":""}]
[null,null,null,null,null,{"$f":"IF(E284=\"\",\"\",VLOOKUP(E284,Insumos!AD:AE,2,FALSE))","v":""},null,{"$f":"IF(G284=\"\",\"\",VLOOKUP(G284,Insumos!G:H,2,FALSE))","v":""}]
[null,null,null,null,null,{"$f":"IF(E285=\"\",\"\",VLOOKUP(E285,Insumos!AD:AE,2,FALSE))","v":""},null,{"$f":"IF(G285=\"\",\"\",VLOOKUP(G285,Insumos!G:H,2,FALSE))","v":""}]
[null,null,null,null,null,{"$f":"IF(E286=\"\",\"\",VLOOKUP(E286,Insumos!AD:AE,2,FALSE))","v":""},null,{"$f":"IF(G286=\"\",\"\",VLOOKUP(G286,Insumos!G:H,2,FALSE))","v":""}]
[null,null,null,null,null,{"$f":"IF(E287=\"\",\"\",VLOOKUP(E287,Insumos!AD:AE,2,FALSE))","v":""},null,{"$f":"IF(G287=\"\",\"\",VLOOKUP(G287,Insumos!G:H,2,FALSE))","v":""}]
[null,null,null,null,null,{"$f":"IF(E288=\"\",\"\",VLOOKUP(E288,Insumos!AD:AE,2,FALSE))","v":""},null,{"$f":"IF(G288=\"\",\"\",VLOOKUP(G288,Insumos!G:H,2,FALSE))","v":""}]
[null,null,null,null,null,{"$f":"IF(E289=\"\",\"\",VLOOKUP(E289,Insumos!AD:AE,2,FALSE))","v":""},null,{"$f":"IF(G289=\"\",\"\",VLOOKUP(G289,Insumos!G:H,2,FALSE))","v":""}]
[null,null,null,null,null,{"$f":"IF(E290=\"\",\"\",VLOOKUP(E290,Insumos!AD:AE,2,FALSE))","v":""},null,{"$f":"IF(G290=\"\",\"\",VLOOKUP(G290,Insumos!G:H,2,FALSE))","v":""}]
[null,null,null,null,null,{"$f":"IF(E291=\"\",\"\",VLOOKUP(E291,Insumos!AD:AE,2,FALSE))","v":""},null,{"$f":"IF(G291=\"\",\"\",VLOOKUP(G291,Insumos!G:H,2,FALSE))","v":""}]
[null,null,null,null,null,{"$f":"IF(E292=\"\",\"\",VLOOKUP(E292,Insumos!AD:AE,2,FALSE))","v":""},null,{"$f":"IF(G292=\"\",\"\",VLOOKUP(G292,Insumos!G:H,2,FALSE))","v":""}]
[null,null,null,null,null,{"$f":"IF(E293=\"\",\"\",VLOOKUP(E293,Insumos!AD:AE,2,FALSE))","v":""},null,{"$f":"IF(G293=\"\",\"\",VLOOKUP(G293,Insumos!G:H,2,FALSE))","v":""}]
[null,null,null,null,null,{"$f":"IF(E294=\"\",\"\",VLOOKUP(E294,Insumos!AD:AE,2,FALSE))","v":""},null,{"$f":"IF(G294=\"\",\"\",VLOOKUP(G294,Insumos!G:H,2,FALSE))","v":""}]
[null,null,null,null,null,{"$f":"IF(E295=\"\",\"\",VLOOKUP(E295,Insumos!AD:AE,2,FALSE))","v":""},null,{"$f":"IF(G295=\"\",\"\",VLOOKUP(G295,Insumos!G:H,2,FALSE))","v":""}]
[null,null,null,null,null,{"$f":"IF(E296=\"\",\"\",VLOOKUP(E296,Insumos!AD:AE,2,FALSE))","v":""},null,{"$f":"IF(G296=\"\",\"\",VLOOKUP(G296,Insumos!G:H,2,FALSE))","v":""}]
[null,null,null,null,null,{"$f":"IF(E297=\"\",\"\",VLOOKUP(E297,Insumos!AD:AE,2,FALSE))","v":""},null,{"$f":"IF(G297=\"\",\"\",VLOOKUP(G297,Insumos!G:H,2,FALSE))","v":""}]
[null,null,null,null,null,{"$f":"IF(E298=\"\",\"\",VLOOKUP(E298,Insumos!AD:AE,2,FALSE))","v":""},null,{"$f":"IF(G298=\"\",\"\",VLOOKUP(G298,Insumos!G:H,2,FALSE))","v":""}]
[null,null,null,null,null,{"$f":"IF(E299=\"\",\"\",VLOOKUP(E299,Insumos!AD:AE,2,FALSE))","v":""},null,{"$f":"IF(G299=\"\",\"\",VLOOKUP(G299,Insumos!G:H,2,FALSE))","v":""}]
[null,null,null,null,null,{"$f":"IF(E300=\"\",\"\",VLOOKUP(E300,Insumos!AD:AE,2,FALSE))","v":""},null,{"$f":"IF(G300=\"\",\"\",VLOOKUP(G300,Insumos!G:H,2,FALSE))","v":""}]
[null,null,null,null,null,{"$f":"IF(E301=\"\",\"\",VLOOKUP(E301,Insumos!AD:AE,2,FALSE))","v":""},null,{"$f":"IF(G301=\"\",\"\",VLOOKUP(G301,Insumos!G:H,2,FALSE))","v":""}]
[null,null,null,null,null,{"$f":"IF(E302=\"\",\"\",VLOOKUP(E302,Insumos!AD:AE,2,FALSE))","v":""},null,{"$f":"IF(G302=\"\",\"\",VLOOKUP(G302,Insumos!G:H,2,FALSE))","v":""}]
[null,null,null,null,null,{"$f":"IF(E303=\"\",\"\",VLOOKUP(E303,Insumos!AD:AE,2,FALSE))","v":""},null,{"$f":"IF(G303=\"\",\"\",VLOOKUP(G303,Insumos!G:H,2,FALSE))","v":""}]
[null,null,null,null,null,{"$f":"IF(E304=\"\",\"\",VLOOKUP(E304,Insumos!AD:AE,2,FALSE))","v":""},null,{"$f":"IF(G304=\"\",\"\",VLOOKUP(G304,Insumos!G:H,2,FALSE))","v":""}]
[null,null,null,null,null,{"$f":"IF(E305=\"\",\"\",VLOOKUP(E305,Insumos!AD:AE,2,FALSE))","v":""},null,{"$f":"IF(G305=\"\",\"\",VLOOKUP(G305,Insumos!G:H,2,FALSE))","v":""}]
[null,null,null,null,null,{"$f":"IF(E306=\"\",\"\",VLOOKUP(E306,Insumos!AD:AE,2,FALSE))","v":""},null,{"$f":"IF(G306=\"\",\"\",VLOOKUP(G306,Insumos!G:H,2,FALSE))","v":""}]
[null,null,null,null,null,{"$f":"IF(E307=\"\",\"\",VLOOKUP(E307,Insumos!AD:AE,2,FALSE))","v":""},null,{"$f":"IF(G307=\"\",\"\",VLOOKUP(G307,Insumos!G:H,2,FALSE))","v":""}]
[null,null,null,null,null,{"$f":"IF(E308=\"\",\"\",VLOOKUP(E308,Insumos!AD:AE,2,FALSE))","v":""},null,{"$f":"IF(G308=\"\",\"\",VLOOKUP(G308,Insumos!G:H,2,FALSE))","v":""}]
[null,null,null,null,null,{"$f":"IF(E309=\"\",\"\",VLOOKUP(E309,Insumos!AD:AE,2,FALSE))","v":""},null,{"$f":"IF(G309=\"\",\"\",VLOOKUP(G309,Insumos!G:H,2,FALSE))","v":""}]
[null,null,null,null,null,{"$f":"IF(E310=\"\",\"\",VLOOKUP(E310,Insumos!AD:AE,2,FALSE))","v":""},null,{"$f":"IF(G310=\"\",\"\",VLOOKUP(G310,Insumos!G:H,2,FALSE))","v":""}]
[null,null,null,null,null,{"$f":"IF(E311=\"\",\"\",VLOOKUP(E311,Insumos!AD:AE,2,FALSE))","v":""},null,{"$f":"IF(G311=\"\",\"\",VLOOKUP(G311,Insumos!G:H,2,FALSE))","v":""}]
[null,null,null,null,null,{"$f":"IF(E312=\"\",\"\",VLOOKUP(E312,Insumos!AD:AE,2,FALSE))","v":""},null,{"$f":"IF(G312=\"\",\"\",VLOOKUP(G312,Insumos!G:H,2,FALSE))","v":""}]
[null,null,null,null,null,{"$f":"IF(E313=\"\",\"\",VLOOKUP(E313,Insumos!AD:AE,2,FALSE))","v":""},null,{"$f":"IF(G313=\"\",\"\",VLOOKUP(G313,Insumos!G:H,2,FALSE))","v":""}]
[null,null,null,null,null,{"$f":"IF(E314=\"\",\"\",VLOOKUP(E314,Insumos!AD:AE,2,FALSE))","v":""},null,{"$f":"IF(G314=\"\",\"\",VLOOKUP(G314,Insumos!G:H,2,FALSE))","v":""}]
[null,null,null,null,null,{"$f":"IF(E315=\"\",\"\",VLOOKUP(E315,Insumos!AD:AE,2,FALSE))","v":""},null,{"$f":"IF(G315=\"\",\"\",VLOOKUP(G315,Insumos!G:H,2,FALSE))","v":""}]
[null,null,null,null,null,{"$f":"IF(E316=\"\",\"\",VLOOKUP(E316,Insumos!AD:AE,2,FALSE))","v":""},null,{"$f":"IF(G316=\"\",\"\",VLOOKUP(G316,Insumos!G:H,2,FALSE))","v":""}]
[null,null,null,null,null,{"$f":"IF(E317=\"\",\"\",VLOOKUP(E317,Insumos!AD:AE,2,FALSE))","v":""},null,{"$f":"IF(G317=\"\",\"\",VLOOKUP(G317,Insumos!G:H,2,FALSE))","v":""}]
[null,null,null,null,null,{"$f":"IF(E318=\"\",\"\",VLOOKUP(E318,Insumos!AD:AE,2,FALSE))","v":""},null,{"$f":"IF(G318=\"\",\"\",VLOOKUP(G318,Insumos!G:H,2,FALSE))","v":""}]
[null,null,null,null,null,{"$f":"IF(E319=\"\",\"\",VLOOKUP(E319,Insumos!AD:AE,2,FALSE))","v":""},null,{"$f":"IF(G319=\"\",\"\",VLOOKUP(G319,Insumos!G:H,2,FALSE))","v":""}]
[null,null,null,null,null,{"$f":"IF(E320=\"\",\"\",VLOOKUP(E320,Insumos!AD:AE,2,FALSE))","v":""},null,{"$f":"IF(G320=\"\",\"\",VLOOKUP(G320,Insumos!G:H,2,FALSE))","v":""}]
[null,null,null,null,null,{"$f":"IF(E321=\"\",\"\",VLOOKUP(E321,Insumos!AD:AE,2,FALSE))","v":""},null,{"$f":"IF(G321=\"\",\"\",VLOOKUP(G321,Insumos!G:H,2,FALSE))","v":""}]
[null,null,null,null,null,{"$f":"IF(E322=\"\",\"\",VLOOKUP(E322,Insumos!AD:AE,2,FALSE))","v":""},null,{"$f":"IF(G322=\"\",\"\",VLOOKUP(G322,Insumos!G:H,2,FALSE))","v":""}]
[null,null,null,null,null,{"$f":"IF(E323=\"\",\"\",VLOOKUP(E323,Insumos!AD:AE,2,FALSE))","v":""},null,{"$f":"IF(G323=\"\",\"\",VLOOKUP(G323,Insumos!G:H,2,FALSE))","v":""}]
[null,null,null,null,null,{"$f":"IF(E324=\"\",\"\",VLOOKUP(E324,Insumos!AD:AE,2,FALSE))","v":""},null,{"$f":"IF(G324=\"\",\"\",VLOOKUP(G324,Insumos!G:H,2,FALSE))","v":""}]
[null,null,null,null,null,{"$f":"IF(E325=\"\",\"\",VLOOKUP(E325,Insumos!AD:AE,2,FALSE))","v":""},null,{"$f":"IF(G325=\"\",\"\",VLOOKUP(G325,Insumos!G:H,2,FALSE))","v":""}]
[null,null,null,null,null,{"$f":"IF(E326=\"\",\"\",VLOOKUP(E326,Insumos!AD:AE,2,FALSE))","v":""},null,{"$f":"IF(G326=\"\",\"\",VLOOKUP(G326,Insumos!G:H,2,FALSE))","v":""}]
[null,null,null,null,null,{"$f":"IF(E327=\"\",\"\",VLOOKUP(E327,Insumos!AD:AE,2,FALSE))","v":""},null,{"$f":"IF(G327=\"\",\"\",VLOOKUP(G327,Insumos!G:H,2,FALSE))","v":""}]
[null,null,null,null,null,{"$f":"IF(E328=\"\",\"\",VLOOKUP(E328,Insumos!AD:AE,2,FALSE))","v":""},null,{"$f":"IF(G328=\"\",\"\",VLOOKUP(G328,Insumos!G:H,2,FALSE))","v":""}]
[null,null,null,null,null,{"$f":"IF(E329=\"\",\"\",VLOOKUP(E329,Insumos!AD:AE,2,FALSE))","v":""},null,{"$f":"IF(G329=\"\",\"\",VLOOKUP(G329,Insumos!G:H,2,FALSE))","v":""}]
[null,null,null,null,null,{"$f":"IF(E330=\"\",\"\",VLOOKUP(E330,Insumos!AD:AE,2,FALSE))","v":""},null,{"$f":"IF(G330=\"\",\"\",VLOOKUP(G330,Insumos!G:H,2,FALSE))","v":""}]
[null,null,null,null,null,{"$f":"IF(E331=\"\",\"\",VLOOKUP(E331,Insumos!AD:AE,2,FALSE))","v":""},null,{"$f":"IF(G331=\"\",\"\",VLOOKUP(G331,Insumos!G:H,2,FALSE))","v":""}]
[null,null,null,null,null,{"$f":"IF(E332=\"\",\"\",VLOOKUP(E332,Insumos!AD:AE,2,FALSE))","v":""},null,{"$f":"IF(G332=\"\",\"\",VLOOKUP(G332,Insumos!G:H,2,FALSE))","v":""}]
[null,null,null,null,null,{"$f":"IF(E333=\"\",\"\",VLOOKUP(E333,Insumos!AD:AE,2,FALSE))","v":""},null,{"$f":"IF(G333=\"\",\"\",VLOOKUP(G333,Insumos!G:H,2,FALSE))","v":""}]
[null,null,null,null,null,{"$f":"IF(E334=\"\",\"\",VLOOKUP(E334,Insumos!AD:AE,2,FALSE))","v":""},null,{"$f":"IF(G334=\"\",\"\",VLOOKUP(G334,Insumos!G:H,2,FALSE))","v":""}]
[null,null,null,null,null,{"$f":"IF(E335=\"\",\"\",VLOOKUP(E335,Insumos!AD:AE,2,FALSE))","v":""},null,{"$f":"IF(G335=\"\",\"\",VLOOKUP(G335,Insumos!G:H,2,FALSE))","v":""}]
[null,null,null,null,null,{"$f":"IF(E336=\"\",\"\",VLOOKUP(E336,Insumos!AD:AE,2,FALSE))","v":""},null,{"$f":"IF(G336=\"\",\"\",VLOOKUP(G336,Insumos!G:H,2,FALSE))","v":""}]
[null,null,null,null,null,{"$f":"IF(E337=\"\",\"\",VLOOKUP(E337,Insumos!AD:AE,2,FALSE))","v":""},null,{"$f":"IF(G337=\"\",\"\",VLOOKUP(G337,Insumos!G:H,2,FALSE))","v":""}]
[null,null,null,null,null,{"$f":"IF(E338=\"\",\"\",VLOOKUP(E338,Insumos!AD:AE,2,FALSE))","v":""},null,{"$f":"IF(G338=\"\",\"\",VLOOKUP(G338,Insumos!G:H,2,FALSE))","v":""}]
[null,null,null,null,null,{"$f":"IF(E339=\"\",\"\",VLOOKUP(E339,Insumos!AD:AE,2,FALSE))","v":""},null,{"$f":"IF(G339=\"\",\"\",VLOOKUP(G339,Insumos!G:H,2,FALSE))","v":""}]
[null,null,null,null,null,{"$f":"IF(E340=\"\",\"\",VLOOKUP(E340,Insumos!AD:AE,2,FALSE))","v":""},null,{"$f":"IF(G340=\"\",\"\",VLOOKUP(G340,Insumos!G:H,2,FALSE))","v":""}]
[null,null,null,null,null,{"$f":"IF(E341=\"\",\"\",VLOOKUP(E341,Insumos!AD:AE,2,FALSE))","v":""},null,{"$f":"IF(G341=\"\",\"\",VLOOKUP(G341,Insumos!G:H,2,FALSE))","v":""}]
[null,null,null,null,null,{"$f":"IF(E342=\"\",\"\",VLOOKUP(E342,Insumos!AD:AE,2,FALSE))","v":""},null,{"$f":"IF(G342=\"\",\"\",VLOOKUP(G342,Insumos!G:H,2,FALSE))","v":""}]
[null,null,null,null,null,{"$f":"IF(E343=\"\",\"\",VLOOKUP(E343,Insumos!AD:AE,2,FALSE))","v":""},null,{"$f":"IF(G343=\"\",\"\",VLOOKUP(G343,Insumos!G:H,2,FALSE))","v":""}]
[null,null,null,null,null,{"$f":"IF(E344=\"\",\"\",VLOOKUP(E344,Insumos!AD:AE,2,FALSE))","v":""},null,{"$f":"IF(G344=\"\",\"\",VLOOKUP(G344,Insumos!G:H,2,FALSE))","v":""}]
[null,null,null,null,null,{"$f":"IF(E345=\"\",\"\",VLOOKUP(E345,Insumos!AD:AE,2,FALSE))","v":""},null,{"$f":"IF(G345=\"\",\"\",VLOOKUP(G345,Insumos!G:H,2,FALSE))","v":""}]
[null,null,null,null,null,{"$f":"IF(E346=\"\",\"\",VLOOKUP(E346,Insumos!AD:AE,2,FALSE))","v":""},null,{"$f":"IF(G346=\"\",\"\",VLOOKUP(G346,Insumos!G:H,2,FALSE))","v":""}]
[null,null,null,null,null,{"$f":"IF(E347=\"\",\"\",VLOOKUP(E347,Insumos!AD:AE,2,FALSE))","v":""},null,{"$f":"IF(G347=\"\",\"\",VLOOKUP(G347,Insumos!G:H,2,FALSE))","v":""}]
[null,null,null,null,null,{"$f":"IF(E348=\"\",\"\",VLOOKUP(E348,Insumos!AD:AE,2,FALSE))","v":""},null,{"$f":"IF(G348=\"\",\"\",VLOOKUP(G348,Insumos!G:H,2,FALSE))","v":""}]
[null,null,null,null,null,{"$f":"IF(E349=\"\",\"\",VLOOKUP(E349,Insumos!AD:AE,2,FALSE))","v":""},null,{"$f":"IF(G349=\"\",\"\",VLOOKUP(G349,Insumos!G:H,2,FALSE))","v":""}]
[null,null,null,null,null,{"$f":"IF(E350=\"\",\"\",VLOOKUP(E350,Insumos!AD:AE,2,FALSE))","v":""},null,{"$f":"IF(G350=\"\",\"\",VLOOKUP(G350,Insumos!G:H,2,FALSE))","v":""}]
[null,null,null,null,null,{"$f":"IF(E351=\"\",\"\",VLOOKUP(E351,Insumos!AD:AE,2,FALSE))","v":""},null,{"$f":"IF(G351=\"\",\"\",VLOOKUP(G351,Insumos!G:H,2,FALSE))","v":""}]
[null,null,null,null,null,{"$f":"IF(E352=\"\",\"\",VLOOKUP(E352,Insumos!AD:AE,2,FALSE))","v":""},null,{"$f":"IF(G352=\"\",\"\",VLOOKUP(G352,Insumos!G:H,2,FALSE))","v":""}]
[null,null,null,null,null,{"$f":"IF(E353=\"\",\"\",VLOOKUP(E353,Insumos!AD:AE,2,FALSE))","v":""},null,{"$f":"IF(G353=\"\",\"\",VLOOKUP(G353,Insumos!G:H,2,FALSE))","v":""}]
[null,null,null,null,null,{"$f":"IF(E354=\"\",\"\",VLOOKUP(E354,Insumos!AD:AE,2,FALSE))","v":""},null,{"$f":"IF(G354=\"\",\"\",VLOOKUP(G354,Insumos!G:H,2,FALSE))","v":""}]
[null,null,null,null,null,{"$f":"IF(E355=\"\",\"\",VLOOKUP(E355,Insumos!AD:AE,2,FALSE))","v":""},null,{"$f":"IF(G355=\"\",\"\",VLOOKUP(G355,Insumos!G:H,2,FALSE))","v":""}]
[null,null,null,null,null,{"$f":"IF(E356=\"\",\"\",VLOOKUP(E356,Insumos!AD:AE,2,FALSE))","v":""},null,{"$f":"IF(G356=\"\",\"\",VLOOKUP(G356,Insumos!G:H,2,FALSE))","v":""}]
[null,null,null,null,null,{"$f":"IF(E357=\"\",\"\",VLOOKUP(E357,Insumos!AD:AE,2,FALSE))","v":""},null,{"$f":"IF(G357=\"\",\"\",VLOOKUP(G357,Insumos!G:H,2,FALSE))","v":""}]
[null,null,null,null,null,{"$f":"IF(E358=\"\",\"\",VLOOKUP(E358,Insumos!AD:AE,2,FALSE))","v":""},null,{"$f":"IF(G358=\"\",\"\",VLOOKUP(G358,Insumos!G:H,2,FALSE))","v":""}]
[null,null,null,null,null,{"$f":"IF(E359=\"\",\"\",VLOOKUP(E359,Insumos!AD:AE,2,FALSE))","v":""},null,{"$f":"IF(G359=\"\",\"\",VLOOKUP(G359,Insumos!G:H,2,FALSE))","v":""}]
[null,null,null,null,null,{"$f":"IF(E360=\"\",\"\",VLOOKUP(E360,Insumos!AD:AE,2,FALSE))","v":""},null,{"$f":"IF(G360=\"\",\"\",VLOOKUP(G360,Insumos!G:H,2,FALSE))","v":""}]
[null,null,null,null,null,{"$f":"IF(E361=\"\",\"\",VLOOKUP(E361,Insumos!AD:AE,2,FALSE))","v":""},null,{"$f":"IF(G361=\"\",\"\",VLOOKUP(G361,Insumos!G:H,2,FALSE))","v":""}]
[null,null,null,null,null,{"$f":"IF(E362=\"\",\"\",VLOOKUP(E362,Insumos!AD:AE,2,FALSE))","v":""},null,{"$f":"IF(G362=\"\",\"\",VLOOKUP(G362,Insumos!G:H,2,FALSE))","v":""}]
[null,null,null,null,null,{"$f":"IF(E363=\"\",\"\",VLOOKUP(E363,Insumos!AD:AE,2,FALSE))","v":""},null,{"$f":"IF(G363=\"\",\"\",VLOOKUP(G363,Insumos!G:H,2,FALSE))","v":""}]
[null,null,null,null,null,{"$f":"IF(E364=\"\",\"\",VLOOKUP(E364,Insumos!AD:AE,2,FALSE))","v":""},null,{"$f":"IF(G364=\"\",\"\",VLOOKUP(G364,Insumos!G:H,2,FALSE))","v":""}]
[null,null,null,null,null,{"$f":"IF(E365=\"\",\"\",VLOOKUP(E365,Insumos!AD:AE,2,FALSE))","v":""},null,{"$f":"IF(G365=\"\",\"\",VLOOKUP(G365,Insumos!G:H,2,FALSE))","v":""}]
[null,null,null,null,null,{"$f":"IF(E366=\"\",\"\",VLOOKUP(E366,Insumos!AD:AE,2,FALSE))","v":""},null,{"$f":"IF(G366=\"\",\"\",VLOOKUP(G366,Insumos!G:H,2,FALSE))","v":""}]
[null,null,null,null,null,{"$f":"IF(E367=\"\",\"\",VLOOKUP(E367,Insumos!AD:AE,2,FALSE))","v":""},null,{"$f":"IF(G367=\"\",\"\",VLOOKUP(G367,Insumos!G:H,2,FALSE))","v":""}]
[null,null,null,null,null,{"$f":"IF(E368=\"\",\"\",VLOOKUP(E368,Insumos!AD:AE,2,FALSE))","v":""},null,{"$f":"IF(G368=\"\",\"\",VLOOKUP(G368,Insumos!G:H,2,FALSE))","v":""}]
[null,null,null,null,null,{"$f":"IF(E369=\"\",\"\",VLOOKUP(E369,Insumos!AD:AE,2,FALSE))","v":""},null,{"$f":"IF(G369=\"\",\"\",VLOOKUP(G369,Insumos!G:H,2,FALSE))","v":""}]
[null,null,null,null,null,{"$f":"IF(E370=\"\",\"\",VLOOKUP(E370,Insumos!AD:AE,2,FALSE))","v":""},null,{"$f":"IF(G370=\"\",\"\",VLOOKUP(G370,Insumos!G:H,2,FALSE))","v":""}]
[null,null,null,null,null,{"$f":"IF(E371=\"\",\"\",VLOOKUP(E371,Insumos!AD:AE,2,FALSE))","v":""},null,{"$f":"IF(G371=\"\",\"\",VLOOKUP(G371,Insumos!G:H,2,FALSE))","v":""}]
[null,null,null,null,null,{"$f":"IF(E372=\"\",\"\",VLOOKUP(E372,Insumos!AD:AE,2,FALSE))","v":""},null,{"$f":"IF(G372=\"\",\"\",VLOOKUP(G372,Insumos!G:H,2,FALSE))","v":""}]
[null,null,null,null,null,{"$f":"IF(E373=\"\",\"\",VLOOKUP(E373,Insumos!AD:AE,2,FALSE))","v":""},null,{"$f":"IF(G373=\"\",\"\",VLOOKUP(G373,Insumos!G:H,2,FALSE))","v":""}]
[null,null,null,null,null,{"$f":"IF(E374=\"\",\"\",VLOOKUP(E374,Insumos!AD:AE,2,FALSE))","v":""},null,{"$f":"IF(G374=\"\",\"\",VLOOKUP(G374,Insumos!G:H,2,FALSE))","v":""}]
[null,null,null,null,null,{"$f":"IF(E375=\"\",\"\",VLOOKUP(E375,Insumos!AD:AE,2,FALSE))","v":""},null,{"$f":"IF(G375=\"\",\"\",VLOOKUP(G375,Insumos!G:H,2,FALSE))","v":""}]
[null,null,null,null,null,{"$f":"IF(E376=\"\",\"\",VLOOKUP(E376,Insumos!AD:AE,2,FALSE))","v":""},null,{"$f":"IF(G376=\"\",\"\",VLOOKUP(G376,Insumos!G:H,2,FALSE))","v":""}]
[null,null,null,null,null,{"$f":"IF(E377=\"\",\"\",VLOOKUP(E377,Insumos!AD:AE,2,FALSE))","v":""},null,{"$f":"IF(G377=\"\",\"\",VLOOKUP(G377,Insumos!G:H,2,FALSE))","v":""}]
[null,null,null,null,null,{"$f":"IF(E378=\"\",\"\",VLOOKUP(E378,Insumos!AD:AE,2,FALSE))","v":""},null,{"$f":"IF(G378=\"\",\"\",VLOOKUP(G378,Insumos!G:H,2,FALSE))","v":""}]
[null,null,null,null,null,{"$f":"IF(E379=\"\",\"\",VLOOKUP(E379,Insumos!AD:AE,2,FALSE))","v":""},null,{"$f":"IF(G379=\"\",\"\",VLOOKUP(G379,Insumos!G:H,2,FALSE))","v":""}]
[null,null,null,null,null,{"$f":"IF(E380=\"\",\"\",VLOOKUP(E380,Insumos!AD:AE,2,FALSE))","v":""},null,{"$f":"IF(G380=\"\",\"\",VLOOKUP(G380,Insumos!G:H,2,FALSE))","v":""}]
[null,null,null,null,null,{"$f":"IF(E381=\"\",\"\",VLOOKUP(E381,Insumos!AD:AE,2,FALSE))","v":""},null,{"$f":"IF(G381=\"\",\"\",VLOOKUP(G381,Insumos!G:H,2,FALSE))","v":""}]
[null,null,null,null,null,{"$f":"IF(E382=\"\",\"\",VLOOKUP(E382,Insumos!AD:AE,2,FALSE))","v":""},null,{"$f":"IF(G382=\"\",\"\",VLOOKUP(G382,Insumos!G:H,2,FALSE))","v":""}]
[null,null,null,null,null,{"$f":"IF(E383=\"\",\"\",VLOOKUP(E383,Insumos!AD:AE,2,FALSE))","v":""},null,{"$f":"IF(G383=\"\",\"\",VLOOKUP(G383,Insumos!G:H,2,FALSE))","v":""}]
[null,null,null,null,null,{"$f":"IF(E384=\"\",\"\",VLOOKUP(E384,Insumos!AD:AE,2,FALSE))","v":""},null,{"$f":"IF(G384=\"\",\"\",VLOOKUP(G384,Insumos!G:H,2,FALSE))","v":""}]
[null,null,null,null,null,{"$f":"IF(E385=\"\",\"\",VLOOKUP(E385,Insumos!AD:AE,2,FALSE))","v":""},null,{"$f":"IF(G385=\"\",\"\",VLOOKUP(G385,Insumos!G:H,2,FALSE))","v":""}]
[null,null,null,null,null,{"$f":"IF(E386=\"\",\"\",VLOOKUP(E386,Insumos!AD:AE,2,FALSE))","v":""},null,{"$f":"IF(G386=\"\",\"\",VLOOKUP(G386,Insumos!G:H,2,FALSE))","v":""}]
[null,null,null,null,null,{"$f":"IF(E387=\"\",\"\",VLOOKUP(E387,Insumos!AD:AE,2,FALSE))","v":""},null,{"$f":"IF(G387=\"\",\"\",VLOOKUP(G387,Insumos!G:H,2,FALSE))","v":""}]
[null,null,null,null,null,{"$f":"IF(E388=\"\",\"\",VLOOKUP(E388,Insumos!AD:AE,2,FALSE))","v":""},null,{"$f":"IF(G388=\"\",\"\",VLOOKUP(G388,Insumos!G:H,2,FALSE))","v":""}]
[null,null,null,null,null,{"$f":"IF(E389=\"\",\"\",VLOOKUP(E389,Insumos!AD:AE,2,FALSE))","v":""},null,{"$f":"IF(G389=\"\",\"\",VLOOKUP(G389,Insumos!G:H,2,FALSE))","v":""}]
[null,null,null,null,null,{"$f":"IF(E390=\"\",\"\",VLOOKUP(E390,Insumos!AD:AE,2,FALSE))","v":""},null,{"$f":"IF(G390=\"\",\"\",VLOOKUP(G390,Insumos!G:H,2,FALSE))","v":""}]
[null,null,null,null,null,{"$f":"IF(E391=\"\",\"\",VLOOKUP(E391,Insumos!AD:AE,2,FALSE))","v":""},null,{"$f":"IF(G391=\"\",\"\",VLOOKUP(G391,Insumos!G:H,2,FALSE))","v":""}]
[null,null,null,null,null,{"$f":"IF(E392=\"\",\"\",VLOOKUP(E392,Insumos!AD:AE,2,FALSE))","v":""},null,{"$f":"IF(G392=\"\",\"\",VLOOKUP(G392,Insumos!G:H,2,FALSE))","v":""}]
[null,null,null,null,null,{"$f":"IF(E393=\"\",\"\",VLOOKUP(E393,Insumos!AD:AE,2,FALSE))","v":""},null,{"$f":"IF(G393=\"\",\"\",VLOOKUP(G393,Insumos!G:H,2,FALSE))","v":""}]
[null,null,null,null,null,{"$f":"IF(E394=\"\",\"\",VLOOKUP(E394,Insumos!AD:AE,2,FALSE))","v":""},null,{"$f":"IF(G394=\"\",\"\",VLOOKUP(G394,Insumos!G:H,2,FALSE))","v":""}]
[null,null,null,null,null,{"$f":"IF(E395=\"\",\"\",VLOOKUP(E395,Insumos!AD:AE,2,FALSE))","v":""},null,{"$f":"IF(G395=\"\",\"\",VLOOKUP(G395,Insumos!G:H,2,FALSE))","v":""}]
[null,null,null,null,null,{"$f":"IF(E396=\"\",\"\",VLOOKUP(E396,Insumos!AD:AE,2,FALSE))","v":""},null,{"$f":"IF(G396=\"\",\"\",VLOOKUP(G396,Insumos!G:H,2,FALSE))","v":""}]
[null,null,null,null,null,{"$f":"IF(E397=\"\",\"\",VLOOKUP(E397,Insumos!AD:AE,2,FALSE))","v":""},null,{"$f":"IF(G397=\"\",\"\",VLOOKUP(G397,Insumos!G:H,2,FALSE))","v":""}]
[null,null,null,null,null,{"$f":"IF(E398=\"\",\"\",VLOOKUP(E398,Insumos!AD:AE,2,FALSE))","v":""},null,{"$f":"IF(G398=\"\",\"\",VLOOKUP(G398,Insumos!G:H,2,FALSE))","v":""}]
[null,null,null,null,null,{"$f":"IF(E399=\"\",\"\",VLOOKUP(E399,Insumos!AD:AE,2,FALSE))","v":""},null,{"$f":"IF(G399=\"\",\"\",VLOOKUP(G399,Insumos!G:H,2,FALSE))","v":""}]
[null,null,null,null,null,{"$f":"IF(E400=\"\",\"\",VLOOKUP(E400,Insumos!AD:AE,2,FALSE))","v":""},null,{"$f":"IF(G400=\"\",\"\",VLOOKUP(G400,Insumos!G:H,2,FALSE))","v":""}]
[null,null,null,null,null,{"$f":"IF(E401=\"\",\"\",VLOOKUP(E401,Insumos!AD:AE,2,FALSE))","v":""},null,{"$f":"IF(G401=\"\",\"\",VLOOKUP(G401,Insumos!G:H,2,FALSE))","v":""}]
[null,null,null,null,null,{"$f":"IF(E402=\"\",\"\",VLOOKUP(E402,Insumos!AD:AE,2,FALSE))","v":""},null,{"$f":"IF(G402=\"\",\"\",VLOOKUP(G402,Insumos!G:H,2,FALSE))","v":""}]
[null,null,null,null,null,{"$f":"IF(E403=\"\",\"\",VLOOKUP(E403,Insumos!AD:AE,2,FALSE))","v":""},null,{"$f":"IF(G403=\"\",\"\",VLOOKUP(G403,Insumos!G:H,2,FALSE))","v":""}]
[null,null,null,null,null,{"$f":"IF(E404=\"\",\"\",VLOOKUP(E404,Insumos!AD:AE,2,FALSE))","v":""},null,{"$f":"IF(G404=\"\",\"\",VLOOKUP(G404,Insumos!G:H,2,FALSE))","v":""}]
[null,null,null,null,null,{"$f":"IF(E405=\"\",\"\",VLOOKUP(E405,Insumos!AD:AE,2,FALSE))","v":""},null,{"$f":"IF(G405=\"\",\"\",VLOOKUP(G405,Insumos!G:H,2,FALSE))","v":""}]
[null,null,null,null,null,{"$f":"IF(E406=\"\",\"\",VLOOKUP(E406,Insumos!AD:AE,2,FALSE))","v":""},null,{"$f":"IF(G406=\"\",\"\",VLOOKUP(G406,Insumos!G:H,2,FALSE))","v":""}]
[null,null,null,null,null,{"$f":"IF(E407=\"\",\"\",VLOOKUP(E407,Insumos!AD:AE,2,FALSE))","v":""},null,{"$f":"IF(G407=\"\",\"\",VLOOKUP(G407,Insumos!G:H,2,FALSE))","v":""}]
[null,null,null,null,null,{"$f":"IF(E408=\"\",\"\",VLOOKUP(E408,Insumos!AD:AE,2,FALSE))","v":""},null,{"$f":"IF(G408=\"\",\"\",VLOOKUP(G408,Insumos!G:H,2,FALSE))","v":""}]
[null,null,null,null,null,{"$f":"IF(E409=\"\",\"\",VLOOKUP(E409,Insumos!AD:AE,2,FALSE))","v":""},null,{"$f":"IF(G409=\"\",\"\",VLOOKUP(G409,Insumos!G:H,2,FALSE))","v":""}]
[null,null,null,null,null,{"$f":"IF(E410=\"\",\"\",VLOOKUP(E410,Insumos!AD:AE,2,FALSE))","v":""},null,{"$f":"IF(G410=\"\",\"\",VLOOKUP(G410,Insumos!G:H,2,FALSE))","v":""}]
[null,null,null,null,null,{"$f":"IF(E411=\"\",\"\",VLOOKUP(E411,Insumos!AD:AE,2,FALSE))","v":""},null,{"$f":"IF(G411=\"\",\"\",VLOOKUP(G411,Insumos!G:H,2,FALSE))","v":""}]
[null,null,null,null,null,{"$f":"IF(E412=\"\",\"\",VLOOKUP(E412,Insumos!AD:AE,2,FALSE))","v":""},null,{"$f":"IF(G412=\"\",\"\",VLOOKUP(G412,Insumos!G:H,2,FALSE))","v":""}]
[null,null,null,null,null,{"$f":"IF(E413=\"\",\"\",VLOOKUP(E413,Insumos!AD:AE,2,FALSE))","v":""},null,{"$f":"IF(G413=\"\",\"\",VLOOKUP(G413,Insumos!G:H,2,FALSE))","v":""}]
[null,null,null,null,null,{"$f":"IF(E414=\"\",\"\",VLOOKUP(E414,Insumos!AD:AE,2,FALSE))","v":""},null,{"$f":"IF(G414=\"\",\"\",VLOOKUP(G414,Insumos!G:H,2,FALSE))","v":""}]
[null,null,null,null,null,{"$f":"IF(E415=\"\",\"\",VLOOKUP(E415,Insumos!AD:AE,2,FALSE))","v":""},null,{"$f":"IF(G415=\"\",\"\",VLOOKUP(G415,Insumos!G:H,2,FALSE))","v":""}]
[null,null,null,null,null,{"$f":"IF(E416=\"\",\"\",VLOOKUP(E416,Insumos!AD:AE,2,FALSE))","v":""},null,{"$f":"IF(G416=\"\",\"\",VLOOKUP(G416,Insumos!G:H,2,FALSE))","v":""}]
[null,null,null,null,null,{"$f":"IF(E417=\"\",\"\",VLOOKUP(E417,Insumos!AD:AE,2,FALSE))","v":""},null,{"$f":"IF(G417=\"\",\"\",VLOOKUP(G417,Insumos!G:H,2,FALSE))","v":""}]
[null,null,null,null,null,{"$f":"IF(E418=\"\",\"\",VLOOKUP(E418,Insumos!AD:AE,2,FALSE))","v":""},null,{"$f":"IF(G418=\"\",\"\",VLOOKUP(G418,Insumos!G:H,2,FALSE))","v":""}]
[null,null,null,null,null,{"$f":"IF(E419=\"\",\"\",VLOOKUP(E419,Insumos!AD:AE,2,FALSE))","v":""},null,{"$f":"IF(G419=\"\",\"\",VLOOKUP(G419,Insumos!G:H,2,FALSE))","v":""}]
[null,null,null,null,null,{"$f":"IF(E420=\"\",\"\",VLOOKUP(E420,Insumos!AD:AE,2,FALSE))","v":""},null,{"$f":"IF(G420=\"\",\"\",VLOOKUP(G420,Insumos!G:H,2,FALSE))","v":""}]
[null,null,null,null,null,{"$f":"IF(E421=\"\",\"\",VLOOKUP(E421,Insumos!AD:AE,2,FALSE))","v":""},null,{"$f":"IF(G421=\"\",\"\",VLOOKUP(G421,Insumos!G:H,2,FALSE))","v":""}]
[null,null,null,null,null,{"$f":"IF(E422=\"\",\"\",VLOOKUP(E422,Insumos!AD:AE,2,FALSE))","v":""},null,{"$f":"IF(G422=\"\",\"\",VLOOKUP(G422,Insumos!G:H,2,FALSE))","v":""}]
[null,null,null,null,null,{"$f":"IF(E423=\"\",\"\",VLOOKUP(E423,Insumos!AD:AE,2,FALSE))","v":""},null,{"$f":"IF(G423=\"\",\"\",VLOOKUP(G423,Insumos!G:H,2,FALSE))","v":""}]
[null,null,null,null,null,{"$f":"IF(E424=\"\",\"\",VLOOKUP(E424,Insumos!AD:AE,2,FALSE))","v":""},null,{"$f":"IF(G424=\"\",\"\",VLOOKUP(G424,Insumos!G:H,2,FALSE))","v":""}]
[null,null,null,null,null,{"$f":"IF(E425=\"\",\"\",VLOOKUP(E425,Insumos!AD:AE,2,FALSE))","v":""},null,{"$f":"IF(G425=\"\",\"\",VLOOKUP(G425,Insumos!G:H,2,FALSE))","v":""}]
[null,null,null,null,null,{"$f":"IF(E426=\"\",\"\",VLOOKUP(E426,Insumos!AD:AE,2,FALSE))","v":""},null,{"$f":"IF(G426=\"\",\"\",VLOOKUP(G426,Insumos!G:H,2,FALSE))","v":""}]
[null,null,null,null,null,{"$f":"IF(E427=\"\",\"\",VLOOKUP(E427,Insumos!AD:AE,2,FALSE))","v":""},null,{"$f":"IF(G427=\"\",\"\",VLOOKUP(G427,Insumos!G:H,2,FALSE))","v":""}]
[null,null,null,null,null,{"$f":"IF(E428=\"\",\"\",VLOOKUP(E428,Insumos!AD:AE,2,FALSE))","v":""},null,{"$f":"IF(G428=\"\",\"\",VLOOKUP(G428,Insumos!G:H,2,FALSE))","v":""}]
[null,null,null,null,null,{"$f":"IF(E429=\"\",\"\",VLOOKUP(E429,Insumos!AD:AE,2,FALSE))","v":""},null,{"$f":"IF(G429=\"\",\"\",VLOOKUP(G429,Insumos!G:H,2,FALSE))","v":""}]
[null,null,null,null,null,{"$f":"IF(E430=\"\",\"\",VLOOKUP(E430,Insumos!AD:AE,2,FALSE))","v":""},null,{"$f":"IF(G430=\"\",\"\",VLOOKUP(G430,Insumos!G:H,2,FALSE))","v":""}]
[null,null,null,null,null,{"$f":"IF(E431=\"\",\"\",VLOOKUP(E431,Insumos!AD:AE,2,FALSE))","v":""},null,{"$f":"IF(G431=\"\",\"\",VLOOKUP(G431,Insumos!G:H,2,FALSE))","v":""}]
[null,null,null,null,null,{"$f":"IF(E432=\"\",\"\",VLOOKUP(E432,Insumos!AD:AE,2,FALSE))","v":""},null,{"$f":"IF(G432=\"\",\"\",VLOOKUP(G432,Insumos!G:H,2,FALSE))","v":""}]
[null,null,null,null,null,{"$f":"IF(E433=\"\",\"\",VLOOKUP(E433,Insumos!AD:AE,2,FALSE))","v":""},null,{"$f":"IF(G433=\"\",\"\",VLOOKUP(G433,Insumos!G:H,2,FALSE))","v":""}]
[null,null,null,null,null,{"$f":"IF(E434=\"\",\"\",VLOOKUP(E434,Insumos!AD:AE,2,FALSE))","v":""},null,{"$f":"IF(G434=\"\",\"\",VLOOKUP(G434,Insumos!G:H,2,FALSE))","v":""}]
[null,null,null,null,null,{"$f":"IF(E435=\"\",\"\",VLOOKUP(E435,Insumos!AD:AE,2,FALSE))","v":""},null,{"$f":"IF(G435=\"\",\"\",VLOOKUP(G435,Insumos!G:H,2,FALSE))","v":""}]
[null,null,null,null,null,{"$f":"IF(E436=\"\",\"\",VLOOKUP(E436,Insumos!AD:AE,2,FALSE))","v":""},null,{"$f":"IF(G436=\"\",\"\",VLOOKUP(G436,Insumos!G:H,2,FALSE))","v":""}]
[null,null,null,null,null,{"$f":"IF(E437=\"\",\"\",VLOOKUP(E437,Insumos!AD:AE,2,FALSE))","v":""},null,{"$f":"IF(G437=\"\",\"\",VLOOKUP(G437,Insumos!G:H,2,FALSE))","v":""}]
[null,null,null,null,null,{"$f":"IF(E438=\"\",\"\",VLOOKUP(E438,Insumos!AD:AE,2,FALSE))","v":""},null,{"$f":"IF(G438=\"\",\"\",VLOOKUP(G438,Insumos!G:H,2,FALSE))","v":""}]
[null,null,null,null,null,{"$f":"IF(E439=\"\",\"\",VLOOKUP(E439,Insumos!AD:AE,2,FALSE))","v":""},null,{"$f":"IF(G439=\"\",\"\",VLOOKUP(G439,Insumos!G:H,2,FALSE))","v":""}]
[null,null,null,null,null,{"$f":"IF(E440=\"\",\"\",VLOOKUP(E440,Insumos!AD:AE,2,FALSE))","v":""},null,{"$f":"IF(G440=\"\",\"\",VLOOKUP(G440,Insumos!G:H,2,FALSE))","v":""}]
[null,null,null,null,null,{"$f":"IF(E441=\"\",\"\",VLOOKUP(E441,Insumos!AD:AE,2,FALSE))","v":""},null,{"$f":"IF(G441=\"\",\"\",VLOOKUP(G441,Insumos!G:H,2,FALSE))","v":""}]
[null,null,null,null,null,{"$f":"IF(E442=\"\",\"\",VLOOKUP(E442,Insumos!AD:AE,2,FALSE))","v":""},null,{"$f":"IF(G442=\"\",\"\",VLOOKUP(G442,Insumos!G:H,2,FALSE))","v":""}]
[null,null,null,null,null,{"$f":"IF(E443=\"\",\"\",VLOOKUP(E443,Insumos!AD:AE,2,FALSE))","v":""},null,{"$f":"IF(G443=\"\",\"\",VLOOKUP(G443,Insumos!G:H,2,FALSE))","v":""}]
[null,null,null,null,null,{"$f":"IF(E444=\"\",\"\",VLOOKUP(E444,Insumos!AD:AE,2,FALSE))","v":""},null,{"$f":"IF(G444=\"\",\"\",VLOOKUP(G444,Insumos!G:H,2,FALSE))","v":""}]
[null,null,null,null,null,{"$f":"IF(E445=\"\",\"\",VLOOKUP(E445,Insumos!AD:AE,2,FALSE))","v":""},null,{"$f":"IF(G445=\"\",\"\",VLOOKUP(G445,Insumos!G:H,2,FALSE))","v":""}]
[null,null,null,null,null,{"$f":"IF(E446=\"\",\"\",VLOOKUP(E446,Insumos!AD:AE,2,FALSE))","v":""},null,{"$f":"IF(G446=\"\",\"\",VLOOKUP(G446,Insumos!G:H,2,FALSE))","v":""}]
[null,null,null,null,null,{"$f":"IF(E447=\"\",\"\",VLOOKUP(E447,Insumos!AD:AE,2,FALSE))","v":""},null,{"$f":"IF(G447=\"\",\"\",VLOOKUP(G447,Insumos!G:H,2,FALSE))","v":""}]
[null,null,null,null,null,{"$f":"IF(E448=\"\",\"\",VLOOKUP(E448,Insumos!AD:AE,2,FALSE))","v":""},null,{"$f":"IF(G448=\"\",\"\",VLOOKUP(G448,Insumos!G:H,2,FALSE))","v":""}]
[null,null,null,null,null,{"$f":"IF(E449=\"\",\"\",VLOOKUP(E449,Insumos!AD:AE,2,FALSE))","v":""},null,{"$f":"IF(G449=\"\",\"\",VLOOKUP(G449,Insumos!G:H,2,FALSE))","v":""}]
[null,null,null,null,null,{"$f":"IF(E450=\"\",\"\",VLOOKUP(E450,Insumos!AD:AE,2,FALSE))","v":""},null,{"$f":"IF(G450=\"\",\"\",VLOOKUP(G450,Insumos!G:H,2,FALSE))","v":""}]
[null,null,null,null,null,{"$f":"IF(E451=\"\",\"\",VLOOKUP(E451,Insumos!AD:AE,2,FALSE))","v":""},null,{"$f":"IF(G451=\"\",\"\",VLOOKUP(G451,Insumos!G:H,2,FALSE))","v":""}]
[null,null,null,null,null,{"$f":"IF(E452=\"\",\"\",VLOOKUP(E452,Insumos!AD:AE,2,FALSE))","v":""},null,{"$f":"IF(G452=\"\",\"\",VLOOKUP(G452,Insumos!G:H,2,FALSE))","v":""}]
[null,null,null,null,null,{"$f":"IF(E453=\"\",\"\",VLOOKUP(E453,Insumos!AD:AE,2,FALSE))","v":""},null,{"$f":"IF(G453=\"\",\"\",VLOOKUP(G453,Insumos!G:H,2,FALSE))","v":""}]
[null,null,null,null,null,{"$f":"IF(E454=\"\",\"\",VLOOKUP(E454,Insumos!AD:AE,2,FALSE))","v":""},null,{"$f":"IF(G454=\"\",\"\",VLOOKUP(G454,Insumos!G:H,2,FALSE))","v":""}]
[null,null,null,null,null,{"$f":"IF(E455=\"\",\"\",VLOOKUP(E455,Insumos!AD:AE,2,FALSE))","v":""},null,{"$f":"IF(G455=\"\",\"\",VLOOKUP(G455,Insumos!G:H,2,FALSE))","v":""}]
[null,null,null,null,null,{"$f":"IF(E456=\"\",\"\",VLOOKUP(E456,Insumos!AD:AE,2,FALSE))","v":""},null,{"$f":"IF(G456=\"\",\"\",VLOOKUP(G456,Insumos!G:H,2,FALSE))","v":""}]
[null,null,null,null,null,{"$f":"IF(E457=\"\",\"\",VLOOKUP(E457,Insumos!AD:AE,2,FALSE))","v":""},null,{"$f":"IF(G457=\"\",\"\",VLOOKUP(G457,Insumos!G:H,2,FALSE))","v":""}]
[null,null,null,null,null,{"$f":"IF(E458=\"\",\"\",VLOOKUP(E458,Insumos!AD:AE,2,FALSE))","v":""},null,{"$f":"IF(G458=\"\",\"\",VLOOKUP(G458,Insumos!G:H,2,FALSE))","v":""}]
[null,null,null,null,null,{"$f":"IF(E459=\"\",\"\",VLOOKUP(E459,Insumos!AD:AE,2,FALSE))","v":""},null,{"$f":"IF(G459=\"\",\"\",VLOOKUP(G459,Insumos!G:H,2,FALSE))","v":""}]
[null,null,null,null,null,{"$f":"IF(E460=\"\",\"\",VLOOKUP(E460,Insumos!AD:AE,2,FALSE))","v":""},null,{"$f":"IF(G460=\"\",\"\",VLOOKUP(G460,Insumos!G:H,2,FALSE))","v":""}]
[null,null,null,null,null,{"$f":"IF(E461=\"\",\"\",VLOOKUP(E461,Insumos!AD:AE,2,FALSE))","v":""},null,{"$f":"IF(G461=\"\",\"\",VLOOKUP(G461,Insumos!G:H,2,FALSE))","v":""}]
[null,null,null,null,null,{"$f":"IF(E462=\"\",\"\",VLOOKUP(E462,Insumos!AD:AE,2,FALSE))","v":""},null,{"$f":"IF(G462=\"\",\"\",VLOOKUP(G462,Insumos!G:H,2,FALSE))","v":""}]
[null,null,null,null,null,{"$f":"IF(E463=\"\",\"\",VLOOKUP(E463,Insumos!AD:AE,2,FALSE))","v":""},null,{"$f":"IF(G463=\"\",\"\",VLOOKUP(G463,Insumos!G:H,2,FALSE))","v":""}]
[null,null,null,null,null,{"$f":"IF(E464=\"\",\"\",VLOOKUP(E464,Insumos!AD:AE,2,FALSE))","v":""},null,{"$f":"IF(G464=\"\",\"\",VLOOKUP(G464,Insumos!G:H,2,FALSE))","v":""}]
[null,null,null,null,null,{"$f":"IF(E465=\"\",\"\",VLOOKUP(E465,Insumos!AD:AE,2,FALSE))","v":""},null,{"$f":"IF(G465=\"\",\"\",VLOOKUP(G465,Insumos!G:H,2,FALSE))","v":""}]
[null,null,null,null,null,{"$f":"IF(E466=\"\",\"\",VLOOKUP(E466,Insumos!AD:AE,2,FALSE))","v":""},null,{"$f":"IF(G466=\"\",\"\",VLOOKUP(G466,Insumos!G:H,2,FALSE))","v":""}]
[null,null,null,null,null,{"$f":"IF(E467=\"\",\"\",VLOOKUP(E467,Insumos!AD:AE,2,FALSE))","v":""},null,{"$f":"IF(G467=\"\",\"\",VLOOKUP(G467,Insumos!G:H,2,FALSE))","v":""}]
[null,null,null,null,null,{"$f":"IF(E468=\"\",\"\",VLOOKUP(E468,Insumos!AD:AE,2,FALSE))","v":""},null,{"$f":"IF(G468=\"\",\"\",VLOOKUP(G468,Insumos!G:H,2,FALSE))","v":""}]
[null,null,null,null,null,{"$f":"IF(E469=\"\",\"\",VLOOKUP(E469,Insumos!AD:AE,2,FALSE))","v":""},null,{"$f":"IF(G469=\"\",\"\",VLOOKUP(G469,Insumos!G:H,2,FALSE))","v":""}]
[null,null,null,null,null,{"$f":"IF(E470=\"\",\"\",VLOOKUP(E470,Insumos!AD:AE,2,FALSE))","v":""},null,{"$f":"IF(G470=\"\",\"\",VLOOKUP(G470,Insumos!G:H,2,FALSE))","v":""}]
[null,null,null,null,null,{"$f":"IF(E471=\"\",\"\",VLOOKUP(E471,Insumos!AD:AE,2,FALSE))","v":""},null,{"$f":"IF(G471=\"\",\"\",VLOOKUP(G471,Insumos!G:H,2,FALSE))","v":""}]
[null,null,null,null,null,{"$f":"IF(E472=\"\",\"\",VLOOKUP(E472,Insumos!AD:AE,2,FALSE))","v":""},null,{"$f":"IF(G472=\"\",\"\",VLOOKUP(G472,Insumos!G:H,2,FALSE))","v":""}]
[null,null,null,null,null,{"$f":"IF(E473=\"\",\"\",VLOOKUP(E473,Insumos!AD:AE,2,FALSE))","v":""},null,{"$f":"IF(G473=\"\",\"\",VLOOKUP(G473,Insumos!G:H,2,FALSE))","v":""}]
[null,null,null,null,null,{"$f":"IF(E474=\"\",\"\",VLOOKUP(E474,Insumos!AD:AE,2,FALSE))","v":""},null,{"$f":"IF(G474=\"\",\"\",VLOOKUP(G474,Insumos!G:H,2,FALSE))","v":""}]
[null,null,null,null,null,{"$f":"IF(E475=\"\",\"\",VLOOKUP(E475,Insumos!AD:AE,2,FALSE))","v":""},null,{"$f":"IF(G475=\"\",\"\",VLOOKUP(G475,Insumos!G:H,2,FALSE))","v":""}]
[null,null,null,null,null,{"$f":"IF(E476=\"\",\"\",VLOOKUP(E476,Insumos!AD:AE,2,FALSE))","v":""},null,{"$f":"IF(G476=\"\",\"\",VLOOKUP(G476,Insumos!G:H,2,FALSE))","v":""}]
[null,null,null,null,null,{"$f":"IF(E477=\"\",\"\",VLOOKUP(E477,Insumos!AD:AE,2,FALSE))","v":""},null,{"$f":"IF(G477=\"\",\"\",VLOOKUP(G477,Insumos!G:H,2,FALSE))","v":""}]
[null,null,null,null,null,{"$f":"IF(E478=\"\",\"\",VLOOKUP(E478,Insumos!AD:AE,2,FALSE))","v":""},null,{"$f":"IF(G478=\"\",\"\",VLOOKUP(G478,Insumos!G:H,2,FALSE))","v":""}]
[null,null,null,null,null,{"$f":"IF(E479=\"\",\"\",VLOOKUP(E479,Insumos!AD:AE,2,FALSE))","v":""},null,{"$f":"IF(G479=\"\",\"\",VLOOKUP(G479,Insumos!G:H,2,FALSE))","v":""}]
[null,null,null,null,null,{"$f":"IF(E480=\"\",\"\",VLOOKUP(E480,Insumos!AD:AE,2,FALSE))","v":""},null,{"$f":"IF(G480=\"\",\"\",VLOOKUP(G480,Insumos!G:H,2,FALSE))","v":""}]
[null,null,null,null,null,{"$f":"IF(E481=\"\",\"\",VLOOKUP(E481,Insumos!AD:AE,2,FALSE))","v":""},null,{"$f":"IF(G481=\"\",\"\",VLOOKUP(G481,Insumos!G:H,2,FALSE))","v":""}]
[null,null,null,null,null,{"$f":"IF(E482=\"\",\"\",VLOOKUP(E482,Insumos!AD:AE,2,FALSE))","v":""},null,{"$f":"IF(G482=\"\",\"\",VLOOKUP(G482,Insumos!G:H,2,FALSE))","v":""}]
[null,null,null,null,null,{"$f":"IF(E483=\"\",\"\",VLOOKUP(E483,Insumos!AD:AE,2,FALSE))","v":""},null,{"$f":"IF(G483=\"\",\"\",VLOOKUP(G483,Insumos!G:H,2,FALSE))","v":""}]
[null,null,null,null,null,{"$f":"IF(E484=\"\",\"\",VLOOKUP(E484,Insumos!AD:AE,2,FALSE))","v":""},null,{"$f":"IF(G484=\"\",\"\",VLOOKUP(G484,Insumos!G:H,2,FALSE))","v":""}]
[null,null,null,null,null,{"$f":"IF(E485=\"\",\"\",VLOOKUP(E485,Insumos!AD:AE,2,FALSE))","v":""},null,{"$f":"IF(G485=\"\",\"\",VLOOKUP(G485,Insumos!G:H,2,FALSE))","v":""}]
[null,null,null,null,null,{"$f":"IF(E486=\"\",\"\",VLOOKUP(E486,Insumos!AD:AE,2,FALSE))","v":""},null,{"$f":"IF(G486=\"\",\"\",VLOOKUP(G486,Insumos!G:H,2,FALSE))","v":""}]
[null,null,null,null,null,{"$f":"IF(E487=\"\",\"\",VLOOKUP(E487,Insumos!AD:AE,2,FALSE))","v":""},null,{"$f":"IF(G487=\"\",\"\",VLOOKUP(G487,Insumos!G:H,2,FALSE))","v":""}]
[null,null,null,null,null,{"$f":"IF(E488=\"\",\"\",VLOOKUP(E488,Insumos!AD:AE,2,FALSE))","v":""},null,{"$f":"IF(G488=\"\",\"\",VLOOKUP(G488,Insumos!G:H,2,FALSE))","v":""}]
[null,null,null,null,null,{"$f":"IF(E489=\"\",\"\",VLOOKUP(E489,Insumos!AD:AE,2,FALSE))","v":""},null,{"$f":"IF(G489=\"\",\"\",VLOOKUP(G489,Insumos!G:H,2,FALSE))","v":""}]
[null,null,null,null,null,{"$f":"IF(E490=\"\",\"\",VLOOKUP(E490,Insumos!AD:AE,2,FALSE))","v":""},null,{"$f":"IF(G490=\"\",\"\",VLOOKUP(G490,Insumos!G:H,2,FALSE))","v":""}]
[null,null,null,null,null,{"$f":"IF(E491=\"\",\"\",VLOOKUP(E491,Insumos!AD:AE,2,FALSE))","v":""},null,{"$f":"IF(G491=\"\",\"\",VLOOKUP(G491,Insumos!G:H,2,FALSE))","v":""}]
[null,null,null,null,null,{"$f":"IF(E492=\"\",\"\",VLOOKUP(E492,Insumos!AD:AE,2,FALSE))","v":""},null,{"$f":"IF(G492=\"\",\"\",VLOOKUP(G492,Insumos!G:H,2,FALSE))","v":""}]
[null,null,null,null,null,{"$f":"IF(E493=\"\",\"\",VLOOKUP(E493,Insumos!AD:AE,2,FALSE))","v":""},null,{"$f":"IF(G493=\"\",\"\",VLOOKUP(G493,Insumos!G:H,2,FALSE))","v":""}]
[null,null,null,null,null,{"$f":"IF(E494=\"\",\"\",VLOOKUP(E494,Insumos!AD:AE,2,FALSE))","v":""},null,{"$f":"IF(G494=\"\",\"\",VLOOKUP(G494,Insumos!G:H,2,FALSE))","v":""}]
[null,null,null,null,null,{"$f":"IF(E495=\"\",\"\",VLOOKUP(E495,Insumos!AD:AE,2,FALSE))","v":""},null,{"$f":"IF(G495=\"\",\"\",VLOOKUP(G495,Insumos!G:H,2,FALSE))","v":""}]
[null,null,null,null,null,{"$f":"IF(E496=\"\",\"\",VLOOKUP(E496,Insumos!AD:AE,2,FALSE))","v":""},null,{"$f":"IF(G496=\"\",\"\",VLOOKUP(G496,Insumos!G:H,2,FALSE))","v":""}]
[null,null,null,null,null,{"$f":"IF(E497=\"\",\"\",VLOOKUP(E497,Insumos!AD:AE,2,FALSE))","v":""},null,{"$f":"IF(G497=\"\",\"\",VLOOKUP(G497,Insumos!G:H,2,FALSE))","v":""}]
[null,null,null,null,null,{"$f":"IF(E498=\"\",\"\",VLOOKUP(E498,Insumos!AD:AE,2,FALSE))","v":""},null,{"$f":"IF(G498=\"\",\"\",VLOOKUP(G498,Insumos!G:H,2,FALSE))","v":""}]
[null,null,null,null,null,{"$f":"IF(E499=\"\",\"\",VLOOKUP(E499,Insumos!AD:AE,2,FALSE))","v":""},null,{"$f":"IF(G499=\"\",\"\",VLOOKUP(G499,Insumos!G:H,2,FALSE))","v":""}]
[null,null,null,null,null,{"$f":"IF(E500=\"\",\"\",VLOOKUP(E500,Insumos!AD:AE,2,FALSE))","v":""},null,{"$f":"IF(G500=\"\",\"\",VLOOKUP(G500,Insumos!G:H,2,FALSE))","v":""}]
[null,null,null,null,null,{"$f":"IF(E501=\"\",\"\",VLOOKUP(E501,Insumos!AD:AE,2,FALSE))","v":""},null,{"$f":"IF(G501=\"\",\"\",VLOOKUP(G501,Insumos!G:H,2,FALSE))","v":""}]
[null,null,null,null,null,{"$f":"IF(E502=\"\",\"\",VLOOKUP(E502,Insumos!AD:AE,2,FALSE))","v":""},null,{"$f":"IF(G502=\"\",\"\",VLOOKUP(G502,Insumos!G:H,2,FALSE))","v":""}]
[null,null,null,null,null,{"$f":"IF(E503=\"\",\"\",VLOOKUP(E503,Insumos!AD:AE,2,FALSE))","v":""},null,{"$f":"IF(G503=\"\",\"\",VLOOKUP(G503,Insumos!G:H,2,FALSE))","v":""}]
[null,null,null,null,null,{"$f":"IF(E504=\"\",\"\",VLOOKUP(E504,Insumos!AD:AE,2,FALSE))","v":""},null,{"$f":"IF(G504=\"\",\"\",VLOOKUP(G504,Insumos!G:H,2,FALSE))","v":""}]
[null,null,null,null,null,{"$f":"IF(E505=\"\",\"\",VLOOKUP(E505,Insumos!AD:AE,2,FALSE))","v":""},null,{"$f":"IF(G505=\"\",\"\",VLOOKUP(G505,Insumos!G:H,2,FALSE))","v":""}]
[null,null,null,null,null,{"$f":"IF(E506=\"\",\"\",VLOOKUP(E506,Insumos!AD:AE,2,FALSE))","v":""},null,{"$f":"IF(G506=\"\",\"\",VLOOKUP(G506,Insumos!G:H,2,FALSE))","v":""}]
[null,null,null,null,null,{"$f":"IF(E507=\"\",\"\",VLOOKUP(E507,Insumos!AD:AE,2,FALSE))","v":""},null,{"$f":"IF(G507=\"\",\"\",VLOOKUP(G507,Insumos!G:H,2,FALSE))","v":""}]
[null,null,null,null,null,{"$f":"IF(E508=\"\",\"\",VLOOKUP(E508,Insumos!AD:AE,2,FALSE))","v":""},null,{"$f":"IF(G508=\"\",\"\",VLOOKUP(G508,Insumos!G:H,2,FALSE))","v":""}]
[null,null,null,null,null,{"$f":"IF(E509=\"\",\"\",VLOOKUP(E509,Insumos!AD:AE,2,FALSE))","v":""},null,{"$f":"IF(G509=\"\",\"\",VLOOKUP(G509,Insumos!G:H,2,FALSE))","v":""}]
[null,null,null,null,null,{"$f":"IF(E510=\"\",\"\",VLOOKUP(E510,Insumos!AD:AE,2,FALSE))","v":""},null,{"$f":"IF(G510=\"\",\"\",VLOOKUP(G510,Insumos!G:H,2,FALSE))","v":""}]
[null,null,null,null,null,{"$f":"IF(E511=\"\",\"\",VLOOKUP(E511,Insumos!AD:AE,2,FALSE))","v":""},null,{"$f":"IF(G511=\"\",\"\",VLOOKUP(G511,Insumos!G:H,2,FALSE))","v":""}]
[null,null,null,null,null,{"$f":"IF(E512=\"\",\"\",VLOOKUP(E512,Insumos!AD:AE,2,FALSE))","v":""},null,{"$f":"IF(G512=\"\",\"\",VLOOKUP(G512,Insumos!G:H,2,FALSE))","v":""}]
[null,null,null,null,null,{"$f":"IF(E513=\"\",\"\",VLOOKUP(E513,Insumos!AD:AE,2,FALSE))","v":""},null,{"$f":"IF(G513=\"\",\"\",VLOOKUP(G513,Insumos!G:H,2,FALSE))","v":""}]
[null,null,null,null,null,{"$f":"IF(E514=\"\",\"\",VLOOKUP(E514,Insumos!AD:AE,2,FALSE))","v":""},null,{"$f":"IF(G514=\"\",\"\",VLOOKUP(G514,Insumos!G:H,2,FALSE))","v":""}]
[null,null,null,null,null,{"$f":"IF(E515=\"\",\"\",VLOOKUP(E515,Insumos!AD:AE,2,FALSE))","v":""},null,{"$f":"IF(G515=\"\",\"\",VLOOKUP(G515,Insumos!G:H,2,FALSE))","v":""}]
[null,null,null,null,null,{"$f":"IF(E516=\"\",\"\",VLOOKUP(E516,Insumos!AD:AE,2,FALSE))","v":""},null,{"$f":"IF(G516=\"\",\"\",VLOOKUP(G516,Insumos!G:H,2,FALSE))","v":""}]
[null,null,null,null,null,{"$f":"IF(E517=\"\",\"\",VLOOKUP(E517,Insumos!AD:AE,2,FALSE))","v":""},null,{"$f":"IF(G517=\"\",\"\",VLOOKUP(G517,Insumos!G:H,2,FALSE))","v":""}]
[null,null,null,null,null,{"$f":"IF(E518=\"\",\"\",VLOOKUP(E518,Insumos!AD:AE,2,FALSE))","v":""},null,{"$f":"IF(G518=\"\",\"\",VLOOKUP(G518,Insumos!G:H,2,FALSE))","v":""}]
[null,null,null,null,null,{"$f":"IF(E519=\"\",\"\",VLOOKUP(E519,Insumos!AD:AE,2,FALSE))","v":""},null,{"$f":"IF(G519=\"\",\"\",VLOOKUP(G519,Insumos!G:H,2,FALSE))","v":""}]
[null,null,null,null,null,{"$f":"IF(E520=\"\",\"\",VLOOKUP(E520,Insumos!AD:AE,2,FALSE))","v":""},null,{"$f":"IF(G520=\"\",\"\",VLOOKUP(G520,Insumos!G:H,2,FALSE))","v":""}]
[null,null,null,null,null,{"$f":"IF(E521=\"\",\"\",VLOOKUP(E521,Insumos!AD:AE,2,FALSE))","v":""},null,{"$f":"IF(G521=\"\",\"\",VLOOKUP(G521,Insumos!G:H,2,FALSE))","v":""}]
[null,null,null,null,null,{"$f":"IF(E522=\"\",\"\",VLOOKUP(E522,Insumos!AD:AE,2,FALSE))","v":""},null,{"$f":"IF(G522=\"\",\"\",VLOOKUP(G522,Insumos!G:H,2,FALSE))","v":""}]
[null,null,null,null,null,{"$f":"IF(E523=\"\",\"\",VLOOKUP(E523,Insumos!AD:AE,2,FALSE))","v":""},null,{"$f":"IF(G523=\"\",\"\",VLOOKUP(G523,Insumos!G:H,2,FALSE))","v":""}]
[null,null,null,null,null,{"$f":"IF(E524=\"\",\"\",VLOOKUP(E524,Insumos!AD:AE,2,FALSE))","v":""},null,{"$f":"IF(G524=\"\",\"\",VLOOKUP(G524,Insumos!G:H,2,FALSE))","v":""}]
[null,null,null,null,null,{"$f":"IF(E525=\"\",\"\",VLOOKUP(E525,Insumos!AD:AE,2,FALSE))","v":""},null,{"$f":"IF(G525=\"\",\"\",VLOOKUP(G525,Insumos!G:H,2,FALSE))","v":""}]
[null,null,null,null,null,{"$f":"IF(E526=\"\",\"\",VLOOKUP(E526,Insumos!AD:AE,2,FALSE))","v":""},null,{"$f":"IF(G526=\"\",\"\",VLOOKUP(G526,Insumos!G:H,2,FALSE))","v":""}]
[null,null,null,null,null,{"$f":"IF(E527=\"\",\"\",VLOOKUP(E527,Insumos!AD:AE,2,FALSE))","v":""},null,{"$f":"IF(G527=\"\",\"\",VLOOKUP(G527,Insumos!G:H,2,FALSE))","v":""}]
[null,null,null,null,null,{"$f":"IF(E528=\"\",\"\",VLOOKUP(E528,Insumos!AD:AE,2,FALSE))","v":""},null,{"$f":"IF(G528=\"\",\"\",VLOOKUP(G528,Insumos!G:H,2,FALSE))","v":""}]
[null,null,null,null,null,{"$f":"IF(E529=\"\",\"\",VLOOKUP(E529,Insumos!AD:AE,2,FALSE))","v":""},null,{"$f":"IF(G529=\"\",\"\",VLOOKUP(G529,Insumos!G:H,2,FALSE))","v":""}]
[null,null,null,null,null,{"$f":"IF(E530=\"\",\"\",VLOOKUP(E530,Insumos!AD:AE,2,FALSE))","v":""},null,{"$f":"IF(G530=\"\",\"\",VLOOKUP(G530,Insumos!G:H,2,FALSE))","v":""}]
[null,null,null,null,null,{"$f":"IF(E531=\"\",\"\",VLOOKUP(E531,Insumos!AD:AE,2,FALSE))","v":""},null,{"$f":"IF(G531=\"\",\"\",VLOOKUP(G531,Insumos!G:H,2,FALSE))","v":""}]
[null,null,null,null,null,{"$f":"IF(E532=\"\",\"\",VLOOKUP(E532,Insumos!AD:AE,2,FALSE))","v":""},null,{"$f":"IF(G532=\"\",\"\",VLOOKUP(G532,Insumos!G:H,2,FALSE))","v":""}]
[null,null,null,null,null,{"$f":"IF(E533=\"\",\"\",VLOOKUP(E533,Insumos!AD:AE,2,FALSE))","v":""},null,{"$f":"IF(G533=\"\",\"\",VLOOKUP(G533,Insumos!G:H,2,FALSE))","v":""}]
[null,null,null,null,null,{"$f":"IF(E534=\"\",\"\",VLOOKUP(E534,Insumos!AD:AE,2,FALSE))","v":""},null,{"$f":"IF(G534=\"\",\"\",VLOOKUP(G534,Insumos!G:H,2,FALSE))","v":""}]
[null,null,null,null,null,{"$f":"IF(E535=\"\",\"\",VLOOKUP(E535,Insumos!AD:AE,2,FALSE))","v":""},null,{"$f":"IF(G535=\"\",\"\",VLOOKUP(G535,Insumos!G:H,2,FALSE))","v":""}]
[null,null,null,null,null,{"$f":"IF(E536=\"\",\"\",VLOOKUP(E536,Insumos!AD:AE,2,FALSE))","v":""},null,{"$f":"IF(G536=\"\",\"\",VLOOKUP(G536,Insumos!G:H,2,FALSE))","v":""}]
[null,null,null,null,null,{"$f":"IF(E537=\"\",\"\",VLOOKUP(E537,Insumos!AD:AE,2,FALSE))","v":""},null,{"$f":"IF(G537=\"\",\"\",VLOOKUP(G537,Insumos!G:H,2,FALSE))","v":""}]
[null,null,null,null,null,{"$f":"IF(E538=\"\",\"\",VLOOKUP(E538,Insumos!AD:AE,2,FALSE))","v":""},null,{"$f":"IF(G538=\"\",\"\",VLOOKUP(G538,Insumos!G:H,2,FALSE))","v":""}]
[null,null,null,null,null,{"$f":"IF(E539=\"\",\"\",VLOOKUP(E539,Insumos!AD:AE,2,FALSE))","v":""},null,{"$f":"IF(G539=\"\",\"\",VLOOKUP(G539,Insumos!G:H,2,FALSE))","v":""}]
[null,null,null,null,null,{"$f":"IF(E540=\"\",\"\",VLOOKUP(E540,Insumos!AD:AE,2,FALSE))","v":""},null,{"$f":"IF(G540=\"\",\"\",VLOOKUP(G540,Insumos!G:H,2,FALSE))","v":""}]
[null,null,null,null,null,{"$f":"IF(E541=\"\",\"\",VLOOKUP(E541,Insumos!AD:AE,2,FALSE))","v":""},null,{"$f":"IF(G541=\"\",\"\",VLOOKUP(G541,Insumos!G:H,2,FALSE))","v":""}]
[null,null,null,null,null,{"$f":"IF(E542=\"\",\"\",VLOOKUP(E542,Insumos!AD:AE,2,FALSE))","v":""},null,{"$f":"IF(G542=\"\",\"\",VLOOKUP(G542,Insumos!G:H,2,FALSE))","v":""}]
[null,null,null,null,null,{"$f":"IF(E543=\"\",\"\",VLOOKUP(E543,Insumos!AD:AE,2,FALSE))","v":""},null,{"$f":"IF(G543=\"\",\"\",VLOOKUP(G543,Insumos!G:H,2,FALSE))","v":""}]
[null,null,null,null,null,{"$f":"IF(E544=\"\",\"\",VLOOKUP(E544,Insumos!AD:AE,2,FALSE))","v":""},null,{"$f":"IF(G544=\"\",\"\",VLOOKUP(G544,Insumos!G:H,2,FALSE))","v":""}]
[null,null,null,null,null,{"$f":"IF(E545=\"\",\"\",VLOOKUP(E545,Insumos!AD:AE,2,FALSE))","v":""},null,{"$f":"IF(G545=\"\",\"\",VLOOKUP(G545,Insumos!G:H,2,FALSE))","v":""}]
[null,null,null,null,null,{"$f":"IF(E546=\"\",\"\",VLOOKUP(E546,Insumos!AD:AE,2,FALSE))","v":""},null,{"$f":"IF(G546=\"\",\"\",VLOOKUP(G546,Insumos!G:H,2,FALSE))","v":""}]
[null,null,null,null,null,{"$f":"IF(E547=\"\",\"\",VLOOKUP(E547,Insumos!AD:AE,2,FALSE))","v":""},null,{"$f":"IF(G547=\"\",\"\",VLOOKUP(G547,Insumos!G:H,2,FALSE))","v":""}]
[null,null,null,null,null,{"$f":"IF(E548=\"\",\"\",VLOOKUP(E548,Insumos!AD:AE,2,FALSE))","v":""},null,{"$f":"IF(G548=\"\",\"\",VLOOKUP(G548,Insumos!G:H,2,FALSE))","v":""}]
[null,null,null,null,null,{"$f":"IF(E549=\"\",\"\",VLOOKUP(E549,Insumos!AD:AE,2,FALSE))","v":""},null,{"$f":"IF(G549=\"\",\"\",VLOOKUP(G549,Insumos!G:H,2,FALSE))","v":""}]
[null,null,null,null,null,{"$f":"IF(E550=\"\",\"\",VLOOKUP(E550,Insumos!AD:AE,2,FALSE))","v":""},null,{"$f":"IF(G550=\"\",\"\",VLOOKUP(G550,Insumos!G:H,2,FALSE))","v":""}]
[null,null,null,null,null,{"$f":"IF(E551=\"\",\"\",VLOOKUP(E551,Insumos!AD:AE,2,FALSE))","v":""},null,{"$f":"IF(G551=\"\",\"\",VLOOKUP(G551,Insumos!G:H,2,FALSE))","v":""}]
[null,null,null,null,null,{"$f":"IF(E552=\"\",\"\",VLOOKUP(E552,Insumos!AD:AE,2,FALSE))","v":""},null,{"$f":"IF(G552=\"\",\"\",VLOOKUP(G552,Insumos!G:H,2,FALSE))","v":""}]
[null,null,null,null,null,{"$f":"IF(E553=\"\",\"\",VLOOKUP(E553,Insumos!AD:AE,2,FALSE))","v":""},null,{"$f":"IF(G553=\"\",\"\",VLOOKUP(G553,Insumos!G:H,2,FALSE))","v":""}]
[null,null,null,null,null,{"$f":"IF(E554=\"\",\"\",VLOOKUP(E554,Insumos!AD:AE,2,FALSE))","v":""},null,{"$f":"IF(G554=\"\",\"\",VLOOKUP(G554,Insumos!G:H,2,FALSE))","v":""}]
[null,null,null,null,null,{"$f":"IF(E555=\"\",\"\",VLOOKUP(E555,Insumos!AD:AE,2,FALSE))","v":""},null,{"$f":"IF(G555=\"\",\"\",VLOOKUP(G555,Insumos!G:H,2,FALSE))","v":""}]
[null,null,null,null,null,{"$f":"IF(E556=\"\",\"\",VLOOKUP(E556,Insumos!AD:AE,2,FALSE))","v":""},null,{"$f":"IF(G556=\"\",\"\",VLOOKUP(G556,Insumos!G:H,2,FALSE))","v":""}]
[null,null,null,null,null,{"$f":"IF(E557=\"\",\"\",VLOOKUP(E557,Insumos!AD:AE,2,FALSE))","v":""},null,{"$f":"IF(G557=\"\",\"\",VLOOKUP(G557,Insumos!G:H,2,FALSE))","v":""}]
[null,null,null,null,null,{"$f":"IF(E558=\"\",\"\",VLOOKUP(E558,Insumos!AD:AE,2,FALSE))","v":""},null,{"$f":"IF(G558=\"\",\"\",VLOOKUP(G558,Insumos!G:H,2,FALSE))","v":""}]
[null,null,null,null,null,{"$f":"IF(E559=\"\",\"\",VLOOKUP(E559,Insumos!AD:AE,2,FALSE))","v":""},null,{"$f":"IF(G559=\"\",\"\",VLOOKUP(G559,Insumos!G:H,2,FALSE))","v":""}]
[null,null,null,null,null,{"$f":"IF(E560=\"\",\"\",VLOOKUP(E560,Insumos!AD:AE,2,FALSE))","v":""},null,{"$f":"IF(G560=\"\",\"\",VLOOKUP(G560,Insumos!G:H,2,FALSE))","v":""}]
[null,null,null,null,null,{"$f":"IF(E561=\"\",\"\",VLOOKUP(E561,Insumos!AD:AE,2,FALSE))","v":""},null,{"$f":"IF(G561=\"\",\"\",VLOOKUP(G561,Insumos!G:H,2,FALSE))","v":""}]
[null,null,null,null,null,{"$f":"IF(E562=\"\",\"\",VLOOKUP(E562,Insumos!AD:AE,2,FALSE))","v":""},null,{"$f":"IF(G562=\"\",\"\",VLOOKUP(G562,Insumos!G:H,2,FALSE))","v":""}]
[null,null,null,null,null,{"$f":"IF(E563=\"\",\"\",VLOOKUP(E563,Insumos!AD:AE,2,FALSE))","v":""},null,{"$f":"IF(G563=\"\",\"\",VLOOKUP(G563,Insumos!G:H,2,FALSE))","v":""}]
[null,null,null,null,null,{"$f":"IF(E564=\"\",\"\",VLOOKUP(E564,Insumos!AD:AE,2,FALSE))","v":""},null,{"$f":"IF(G564=\"\",\"\",VLOOKUP(G564,Insumos!G:H,2,FALSE))","v":""}]
[null,null,null,null,null,{"$f":"IF(E565=\"\",\"\",VLOOKUP(E565,Insumos!AD:AE,2,FALSE))","v":""},null,{"$f":"IF(G565=\"\",\"\",VLOOKUP(G565,Insumos!G:H,2,FALSE))","v":""}]
[null,null,null,null,null,{"$f":"IF(E566=\"\",\"\",VLOOKUP(E566,Insumos!AD:AE,2,FALSE))","v":""},null,{"$f":"IF(G566=\"\",\"\",VLOOKUP(G566,Insumos!G:H,2,FALSE))","v":""}]
[null,null,null,null,null,{"$f":"IF(E567=\"\",\"\",VLOOKUP(E567,Insumos!AD:AE,2,FALSE))","v":""},null,{"$f":"IF(G567=\"\",\"\",VLOOKUP(G567,Insumos!G:H,2,FALSE))","v":""}]
[null,null,null,null,null,{"$f":"IF(E568=\"\",\"\",VLOOKUP(E568,Insumos!AD:AE,2,FALSE))","v":""},null,{"$f":"IF(G568=\"\",\"\",VLOOKUP(G568,Insumos!G:H,2,FALSE))","v":""}]
[null,null,null,null,null,{"$f":"IF(E569=\"\",\"\",VLOOKUP(E569,Insumos!AD:AE,2,FALSE))","v":""},null,{"$f":"IF(G569=\"\",\"\",VLOOKUP(G569,Insumos!G:H,2,FALSE))","v":""}]
[null,null,null,null,null,{"$f":"IF(E570=\"\",\"\",VLOOKUP(E570,Insumos!AD:AE,2,FALSE))","v":""},null,{"$f":"IF(G570=\"\",\"\",VLOOKUP(G570,Insumos!G:H,2,FALSE))","v":""}]
[null,null,null,null,null,{"$f":"IF(E571=\"\",\"\",VLOOKUP(E571,Insumos!AD:AE,2,FALSE))","v":""},null,{"$f":"IF(G571=\"\",\"\",VLOOKUP(G571,Insumos!G:H,2,FALSE))","v":""}]
[null,null,null,null,null,{"$f":"IF(E572=\"\",\"\",VLOOKUP(E572,Insumos!AD:AE,2,FALSE))","v":""},null,{"$f":"IF(G572=\"\",\"\",VLOOKUP(G572,Insumos!G:H,2,FALSE))","v":""}]
[null,null,null,null,null,{"$f":"IF(E573=\"\",\"\",VLOOKUP(E573,Insumos!AD:AE,2,FALSE))","v":""},null,{"$f":"IF(G573=\"\",\"\",VLOOKUP(G573,Insumos!G:H,2,FALSE))","v":""}]
[null,null,null,null,null,{"$f":"IF(E574=\"\",\"\",VLOOKUP(E574,Insumos!AD:AE,2,FALSE))","v":""},null,{"$f":"IF(G574=\"\",\"\",VLOOKUP(G574,Insumos!G:H,2,FALSE))","v":""}]
[null,null,null,null,null,{"$f":"IF(E575=\"\",\"\",VLOOKUP(E575,Insumos!AD:AE,2,FALSE))","v":""},null,{"$f":"IF(G575=\"\",\"\",VLOOKUP(G575,Insumos!G:H,2,FALSE))","v":""}]
[null,null,null,null,null,{"$f":"IF(E576=\"\",\"\",VLOOKUP(E576,Insumos!AD:AE,2,FALSE))","v":""},null,{"$f":"IF(G576=\"\",\"\",VLOOKUP(G576,Insumos!G:H,2,FALSE))","v":""}]
[null,null,null,null,null,{"$f":"IF(E577=\"\",\"\",VLOOKUP(E577,Insumos!AD:AE,2,FALSE))","v":""},null,{"$f":"IF(G577=\"\",\"\",VLOOKUP(G577,Insumos!G:H,2,FALSE))","v":""}]
[null,null,null,null,null,{"$f":"IF(E578=\"\",\"\",VLOOKUP(E578,Insumos!AD:AE,2,FALSE))","v":""},null,{"$f":"IF(G578=\"\",\"\",VLOOKUP(G578,Insumos!G:H,2,FALSE))","v":""}]
[null,null,null,null,null,{"$f":"IF(E579=\"\",\"\",VLOOKUP(E579,Insumos!AD:AE,2,FALSE))","v":""},null,{"$f":"IF(G579=\"\",\"\",VLOOKUP(G579,Insumos!G:H,2,FALSE))","v":""}]
[null,null,null,null,null,{"$f":"IF(E580=\"\",\"\",VLOOKUP(E580,Insumos!AD:AE,2,FALSE))","v":""},null,{"$f":"IF(G580=\"\",\"\",VLOOKUP(G580,Insumos!G:H,2,FALSE))","v":""}]
[null,null,null,null,null,{"$f":"IF(E581=\"\",\"\",VLOOKUP(E581,Insumos!AD:AE,2,FALSE))","v":""},null,{"$f":"IF(G581=\"\",\"\",VLOOKUP(G581,Insumos!G:H,2,FALSE))","v":""}]
[null,null,null,null,null,{"$f":"IF(E582=\"\",\"\",VLOOKUP(E582,Insumos!AD:AE,2,FALSE))","v":""},null,{"$f":"IF(G582=\"\",\"\",VLOOKUP(G582,Insumos!G:H,2,FALSE))","v":""}]
[null,null,null,null,null,{"$f":"IF(E583=\"\",\"\",VLOOKUP(E583,Insumos!AD:AE,2,FALSE))","v":""},null,{"$f":"IF(G583=\"\",\"\",VLOOKUP(G583,Insumos!G:H,2,FALSE))","v":""}]
[null,null,null,null,null,{"$f":"IF(E584=\"\",\"\",VLOOKUP(E584,Insumos!AD:AE,2,FALSE))","v":""},null,{"$f":"IF(G584=\"\",\"\",VLOOKUP(G584,Insumos!G:H,2,FALSE))","v":""}]
[null,null,null,null,null,{"$f":"IF(E585=\"\",\"\",VLOOKUP(E585,Insumos!AD:AE,2,FALSE))","v":""},null,{"$f":"IF(G585=\"\",\"\",VLOOKUP(G585,Insumos!G:H,2,FALSE))","v":""}]
[null,null,null,null,null,{"$f":"IF(E586=\"\",\"\",VLOOKUP(E586,Insumos!AD:AE,2,FALSE))","v":""},null,{"$f":"IF(G586=\"\",\"\",VLOOKUP(G586,Insumos!G:H,2,FALSE))","v":""}]
[null,null,null,null,null,{"$f":"IF(E587=\"\",\"\",VLOOKUP(E587,Insumos!AD:AE,2,FALSE))","v":""},null,{"$f":"IF(G587=\"\",\"\",VLOOKUP(G587,Insumos!G:H,2,FALSE))","v":""}]
[null,null,null,null,null,{"$f":"IF(E588=\"\",\"\",VLOOKUP(E588,Insumos!AD:AE,2,FALSE))","v":""},null,{"$f":"IF(G588=\"\",\"\",VLOOKUP(G588,Insumos!G:H,2,FALSE))","v":""}]
[null,null,null,null,null,{"$f":"IF(E589=\"\",\"\",VLOOKUP(E589,Insumos!AD:AE,2,FALSE))","v":""},null,{"$f":"IF(G589=\"\",\"\",VLOOKUP(G589,Insumos!G:H,2,FALSE))","v":""}]
[null,null,null,null,null,{"$f":"IF(E590=\"\",\"\",VLOOKUP(E590,Insumos!AD:AE,2,FALSE))","v":""},null,{"$f":"IF(G590=\"\",\"\",VLOOKUP(G590,Insumos!G:H,2,FALSE))","v":""}]
[null,null,null,null,null,{"$f":"IF(E591=\"\",\"\",VLOOKUP(E591,Insumos!AD:AE,2,FALSE))","v":""},null,{"$f":"IF(G591=\"\",\"\",VLOOKUP(G591,Insumos!G:H,2,FALSE))","v":""}]
[null,null,null,null,null,{"$f":"IF(E592=\"\",\"\",VLOOKUP(E592,Insumos!AD:AE,2,FALSE))","v":""},null,{"$f":"IF(G592=\"\",\"\",VLOOKUP(G592,Insumos!G:H,2,FALSE))","v":""}]
[null,null,null,null,null,{"$f":"IF(E593=\"\",\"\",VLOOKUP(E593,Insumos!AD:AE,2,FALSE))","v":""},null,{"$f":"IF(G593=\"\",\"\",VLOOKUP(G593,Insumos!G:H,2,FALSE))","v":""}]
[null,null,null,null,null,{"$f":"IF(E594=\"\",\"\",VLOOKUP(E594,Insumos!AD:AE,2,FALSE))","v":""},null,{"$f":"IF(G594=\"\",\"\",VLOOKUP(G594,Insumos!G:H,2,FALSE))","v":""}]
[null,null,null,null,null,{"$f":"IF(E595=\"\",\"\",VLOOKUP(E595,Insumos!AD:AE,2,FALSE))","v":""},null,{"$f":"IF(G595=\"\",\"\",VLOOKUP(G595,Insumos!G:H,2,FALSE))","v":""}]
[null,null,null,null,null,{"$f":"IF(E596=\"\",\"\",VLOOKUP(E596,Insumos!AD:AE,2,FALSE))","v":""},null,{"$f":"IF(G596=\"\",\"\",VLOOKUP(G596,Insumos!G:H,2,FALSE))","v":""}]
[null,null,null,null,null,{"$f":"IF(E597=\"\",\"\",VLOOKUP(E597,Insumos!AD:AE,2,FALSE))","v":""},null,{"$f":"IF(G597=\"\",\"\",VLOOKUP(G597,Insumos!G:H,2,FALSE))","v":""}]
[null,null,null,null,null,{"$f":"IF(E598=\"\",\"\",VLOOKUP(E598,Insumos!AD:AE,2,FALSE))","v":""},null,{"$f":"IF(G598=\"\",\"\",VLOOKUP(G598,Insumos!G:H,2,FALSE))","v":""}]
[null,null,null,null,null,{"$f":"IF(E599=\"\",\"\",VLOOKUP(E599,Insumos!AD:AE,2,FALSE))","v":""},null,{"$f":"IF(G599=\"\",\"\",VLOOKUP(G599,Insumos!G:H,2,FALSE))","v":""}]
[null,null,null,null,null,{"$f":"IF(E600=\"\",\"\",VLOOKUP(E600,Insumos!AD:AE,2,FALSE))","v":""},null,{"$f":"IF(G600=\"\",\"\",VLOOKUP(G600,Insumos!G:H,2,FALSE))","v":""}]
[null,null,null,null,null,{"$f":"IF(E601=\"\",\"\",VLOOKUP(E601,Insumos!AD:AE,2,FALSE))","v":""},null,{"$f":"IF(G601=\"\",\"\",VLOOKUP(G601,Insumos!G:H,2,FALSE))","v":""}]
[null,null,null,null,null,{"$f":"IF(E602=\"\",\"\",VLOOKUP(E602,Insumos!AD:AE,2,FALSE))","v":""},null,{"$f":"IF(G602=\"\",\"\",VLOOKUP(G602,Insumos!G:H,2,FALSE))","v":""}]
[null,null,null,null,null,{"$f":"IF(E603=\"\",\"\",VLOOKUP(E603,Insumos!AD:AE,2,FALSE))","v":""},null,{"$f":"IF(G603=\"\",\"\",VLOOKUP(G603,Insumos!G:H,2,FALSE))","v":""}]
[null,null,null,null,null,{"$f":"IF(E604=\"\",\"\",VLOOKUP(E604,Insumos!AD:AE,2,FALSE))","v":""},null,{"$f":"IF(G604=\"\",\"\",VLOOKUP(G604,Insumos!G:H,2,FALSE))","v":""}]
[null,null,null,null,null,{"$f":"IF(E605=\"\",\"\",VLOOKUP(E605,Insumos!AD:AE,2,FALSE))","v":""},null,{"$f":"IF(G605=\"\",\"\",VLOOKUP(G605,Insumos!G:H,2,FALSE))","v":""}]
[null,null,null,null,null,{"$f":"IF(E606=\"\",\"\",VLOOKUP(E606,Insumos!AD:AE,2,FALSE))","v":""},null,{"$f":"IF(G606=\"\",\"\",VLOOKUP(G606,Insumos!G:H,2,FALSE))","v":""}]
[null,null,null,null,null,{"$f":"IF(E607=\"\",\"\",VLOOKUP(E607,Insumos!AD:AE,2,FALSE))","v":""},null,{"$f":"IF(G607=\"\",\"\",VLOOKUP(G607,Insumos!G:H,2,FALSE))","v":""}]
[null,null,null,null,null,{"$f":"IF(E608=\"\",\"\",VLOOKUP(E608,Insumos!AD:AE,2,FALSE))","v":""},null,{"$f":"IF(G608=\"\",\"\",VLOOKUP(G608,Insumos!G:H,2,FALSE))","v":""}]
[null,null,null,null,null,{"$f":"IF(E609=\"\",\"\",VLOOKUP(E609,Insumos!AD:AE,2,FALSE))","v":""},null,{"$f":"IF(G609=\"\",\"\",VLOOKUP(G609,Insumos!G:H,2,FALSE))","v":""}]
[null,null,null,null,null,{"$f":"IF(E610=\"\",\"\",VLOOKUP(E610,Insumos!AD:AE,2,FALSE))","v":""},null,{"$f":"IF(G610=\"\",\"\",VLOOKUP(G610,Insumos!G:H,2,FALSE))","v":""}]
[null,null,null,null,null,{"$f":"IF(E611=\"\",\"\",VLOOKUP(E611,Insumos!AD:AE,2,FALSE))","v":""},null,{"$f":"IF(G611=\"\",\"\",VLOOKUP(G611,Insumos!G:H,2,FALSE))","v":""}]
[null,null,null,null,null,{"$f":"IF(E612=\"\",\"\",VLOOKUP(E612,Insumos!AD:AE,2,FALSE))","v":""},null,{"$f":"IF(G612=\"\",\"\",VLOOKUP(G612,Insumos!G:H,2,FALSE))","v":""}]
[null,null,null,null,null,{"$f":"IF(E613=\"\",\"\",VLOOKUP(E613,Insumos!AD:AE,2,FALSE))","v":""},null,{"$f":"IF(G613=\"\",\"\",VLOOKUP(G613,Insumos!G:H,2,FALSE))","v":""}]
[null,null,null,null,null,{"$f":"IF(E614=\"\",\"\",VLOOKUP(E614,Insumos!AD:AE,2,FALSE))","v":""},null,{"$f":"IF(G614=\"\",\"\",VLOOKUP(G614,Insumos!G:H,2,FALSE))","v":""}]
[null,null,null,null,null,{"$f":"IF(E615=\"\",\"\",VLOOKUP(E615,Insumos!AD:AE,2,FALSE))","v":""},null,{"$f":"IF(G615=\"\",\"\",VLOOKUP(G615,Insumos!G:H,2,FALSE))","v":""}]
[null,null,null,null,null,{"$f":"IF(E616=\"\",\"\",VLOOKUP(E616,Insumos!AD:AE,2,FALSE))","v":""},null,{"$f":"IF(G616=\"\",\"\",VLOOKUP(G616,Insumos!G:H,2,FALSE))","v":""}]
[null,null,null,null,null,{"$f":"IF(E617=\"\",\"\",VLOOKUP(E617,Insumos!AD:AE,2,FALSE))","v":""},null,{"$f":"IF(G617=\"\",\"\",VLOOKUP(G617,Insumos!G:H,2,FALSE))","v":""}]
[null,null,null,null,null,{"$f":"IF(E618=\"\",\"\",VLOOKUP(E618,Insumos!AD:AE,2,FALSE))","v":""},null,{"$f":"IF(G618=\"\",\"\",VLOOKUP(G618,Insumos!G:H,2,FALSE))","v":""}]
[null,null,null,null,null,{"$f":"IF(E619=\"\",\"\",VLOOKUP(E619,Insumos!AD:AE,2,FALSE))","v":""},null,{"$f":"IF(G619=\"\",\"\",VLOOKUP(G619,Insumos!G:H,2,FALSE))","v":""}]
[null,null,null,null,null,{"$f":"IF(E620=\"\",\"\",VLOOKUP(E620,Insumos!AD:AE,2,FALSE))","v":""},null,{"$f":"IF(G620=\"\",\"\",VLOOKUP(G620,Insumos!G:H,2,FALSE))","v":""}]
[null,null,null,null,null,{"$f":"IF(E621=\"\",\"\",VLOOKUP(E621,Insumos!AD:AE,2,FALSE))","v":""},null,{"$f":"IF(G621=\"\",\"\",VLOOKUP(G621,Insumos!G:H,2,FALSE))","v":""}]
[null,null,null,null,null,{"$f":"IF(E622=\"\",\"\",VLOOKUP(E622,Insumos!AD:AE,2,FALSE))","v":""},null,{"$f":"IF(G622=\"\",\"\",VLOOKUP(G622,Insumos!G:H,2,FALSE))","v":""}]
[null,null,null,null,null,{"$f":"IF(E623=\"\",\"\",VLOOKUP(E623,Insumos!AD:AE,2,FALSE))","v":""},null,{"$f":"IF(G623=\"\",\"\",VLOOKUP(G623,Insumos!G:H,2,FALSE))","v":""}]
[null,null,null,null,null,{"$f":"IF(E624=\"\",\"\",VLOOKUP(E624,Insumos!AD:AE,2,FALSE))","v":""},null,{"$f":"IF(G624=\"\",\"\",VLOOKUP(G624,Insumos!G:H,2,FALSE))","v":""}]
[null,null,null,null,null,{"$f":"IF(E625=\"\",\"\",VLOOKUP(E625,Insumos!AD:AE,2,FALSE))","v":""},null,{"$f":"IF(G625=\"\",\"\",VLOOKUP(G625,Insumos!G:H,2,FALSE))","v":""}]
[null,null,null,null,null,{"$f":"IF(E626=\"\",\"\",VLOOKUP(E626,Insumos!AD:AE,2,FALSE))","v":""},null,{"$f":"IF(G626=\"\",\"\",VLOOKUP(G626,Insumos!G:H,2,FALSE))","v":""}]
[null,null,null,null,null,{"$f":"IF(E627=\"\",\"\",VLOOKUP(E627,Insumos!AD:AE,2,FALSE))","v":""},null,{"$f":"IF(G627=\"\",\"\",VLOOKUP(G627,Insumos!G:H,2,FALSE))","v":""}]
[null,null,null,null,null,{"$f":"IF(E628=\"\",\"\",VLOOKUP(E628,Insumos!AD:AE,2,FALSE))","v":""},null,{"$f":"IF(G628=\"\",\"\",VLOOKUP(G628,Insumos!G:H,2,FALSE))","v":""}]
[null,null,null,null,null,{"$f":"IF(E629=\"\",\"\",VLOOKUP(E629,Insumos!AD:AE,2,FALSE))","v":""},null,{"$f":"IF(G629=\"\",\"\",VLOOKUP(G629,Insumos!G:H,2,FALSE))","v":""}]
[null,null,null,null,null,{"$f":"IF(E630=\"\",\"\",VLOOKUP(E630,Insumos!AD:AE,2,FALSE))","v":""},null,{"$f":"IF(G630=\"\",\"\",VLOOKUP(G630,Insumos!G:H,2,FALSE))","v":""}]
[null,null,null,null,null,{"$f":"IF(E631=\"\",\"\",VLOOKUP(E631,Insumos!AD:AE,2,FALSE))","v":""},null,{"$f":"IF(G631=\"\",\"\",VLOOKUP(G631,Insumos!G:H,2,FALSE))","v":""}]
[null,null,null,null,null,{"$f":"IF(E632=\"\",\"\",VLOOKUP(E632,Insumos!AD:AE,2,FALSE))","v":""},null,{"$f":"IF(G632=\"\",\"\",VLOOKUP(G632,Insumos!G:H,2,FALSE))","v":""}]
[null,null,null,null,null,{"$f":"IF(E633=\"\",\"\",VLOOKUP(E633,Insumos!AD:AE,2,FALSE))","v":""},null,{"$f":"IF(G633=\"\",\"\",VLOOKUP(G633,Insumos!G:H,2,FALSE))","v":""}]
[null,null,null,null,null,{"$f":"IF(E634=\"\",\"\",VLOOKUP(E634,Insumos!AD:AE,2,FALSE))","v":""},null,{"$f":"IF(G634=\"\",\"\",VLOOKUP(G634,Insumos!G:H,2,FALSE))","v":""}]
[null,null,null,null,null,{"$f":"IF(E635=\"\",\"\",VLOOKUP(E635,Insumos!AD:AE,2,FALSE))","v":""},null,{"$f":"IF(G635=\"\",\"\",VLOOKUP(G635,Insumos!G:H,2,FALSE))","v":""}]
[null,null,null,null,null,{"$f":"IF(E636=\"\",\"\",VLOOKUP(E636,Insumos!AD:AE,2,FALSE))","v":""},null,{"$f":"IF(G636=\"\",\"\",VLOOKUP(G636,Insumos!G:H,2,FALSE))","v":""}]
[null,null,null,null,null,{"$f":"IF(E637=\"\",\"\",VLOOKUP(E637,Insumos!AD:AE,2,FALSE))","v":""},null,{"$f":"IF(G637=\"\",\"\",VLOOKUP(G637,Insumos!G:H,2,FALSE))","v":""}]
[null,null,null,null,null,{"$f":"IF(E638=\"\",\"\",VLOOKUP(E638,Insumos!AD:AE,2,FALSE))","v":""},null,{"$f":"IF(G638=\"\",\"\",VLOOKUP(G638,Insumos!G:H,2,FALSE))","v":""}]
[null,null,null,null,null,{"$f":"IF(E639=\"\",\"\",VLOOKUP(E639,Insumos!AD:AE,2,FALSE))","v":""},null,{"$f":"IF(G639=\"\",\"\",VLOOKUP(G639,Insumos!G:H,2,FALSE))","v":""}]
[null,null,null,null,null,{"$f":"IF(E640=\"\",\"\",VLOOKUP(E640,Insumos!AD:AE,2,FALSE))","v":""},null,{"$f":"IF(G640=\"\",\"\",VLOOKUP(G640,Insumos!G:H,2,FALSE))","v":""}]
[null,null,null,null,null,{"$f":"IF(E641=\"\",\"\",VLOOKUP(E641,Insumos!AD:AE,2,FALSE))","v":""},null,{"$f":"IF(G641=\"\",\"\",VLOOKUP(G641,Insumos!G:H,2,FALSE))","v":""}]
[null,null,null,null,null,{"$f":"IF(E642=\"\",\"\",VLOOKUP(E642,Insumos!AD:AE,2,FALSE))","v":""},null,{"$f":"IF(G642=\"\",\"\",VLOOKUP(G642,Insumos!G:H,2,FALSE))","v":""}]
[null,null,null,null,null,{"$f":"IF(E643=\"\",\"\",VLOOKUP(E643,Insumos!AD:AE,2,FALSE))","v":""},null,{"$f":"IF(G643=\"\",\"\",VLOOKUP(G643,Insumos!G:H,2,FALSE))","v":""}]
[null,null,null,null,null,{"$f":"IF(E644=\"\",\"\",VLOOKUP(E644,Insumos!AD:AE,2,FALSE))","v":""},null,{"$f":"IF(G644=\"\",\"\",VLOOKUP(G644,Insumos!G:H,2,FALSE))","v":""}]
[null,null,null,null,null,{"$f":"IF(E645=\"\",\"\",VLOOKUP(E645,Insumos!AD:AE,2,FALSE))","v":""},null,{"$f":"IF(G645=\"\",\"\",VLOOKUP(G645,Insumos!G:H,2,FALSE))","v":""}]
[null,null,null,null,null,{"$f":"IF(E646=\"\",\"\",VLOOKUP(E646,Insumos!AD:AE,2,FALSE))","v":""},null,{"$f":"IF(G646=\"\",\"\",VLOOKUP(G646,Insumos!G:H,2,FALSE))","v":""}]
[null,null,null,null,null,{"$f":"IF(E647=\"\",\"\",VLOOKUP(E647,Insumos!AD:AE,2,FALSE))","v":""},null,{"$f":"IF(G647=\"\",\"\",VLOOKUP(G647,Insumos!G:H,2,FALSE))","v":""}]
[null,null,null,null,null,{"$f":"IF(E648=\"\",\"\",VLOOKUP(E648,Insumos!AD:AE,2,FALSE))","v":""},null,{"$f":"IF(G648=\"\",\"\",VLOOKUP(G648,Insumos!G:H,2,FALSE))","v":""}]
[null,null,null,null,null,{"$f":"IF(E649=\"\",\"\",VLOOKUP(E649,Insumos!AD:AE,2,FALSE))","v":""},null,{"$f":"IF(G649=\"\",\"\",VLOOKUP(G649,Insumos!G:H,2,FALSE))","v":""}]
[null,null,null,null,null,{"$f":"IF(E650=\"\",\"\",VLOOKUP(E650,Insumos!AD:AE,2,FALSE))","v":""},null,{"$f":"IF(G650=\"\",\"\",VLOOKUP(G650,Insumos!G:H,2,FALSE))","v":""}]
[null,null,null,null,null,{"$f":"IF(E651=\"\",\"\",VLOOKUP(E651,Insumos!AD:AE,2,FALSE))","v":""},null,{"$f":"IF(G651=\"\",\"\",VLOOKUP(G651,Insumos!G:H,2,FALSE))","v":""}]
[null,null,null,null,null,{"$f":"IF(E652=\"\",\"\",VLOOKUP(E652,Insumos!AD:AE,2,FALSE))","v":""},null,{"$f":"IF(G652=\"\",\"\",VLOOKUP(G652,Insumos!G:H,2,FALSE))","v":""}]
[null,null,null,null,null,{"$f":"IF(E653=\"\",\"\",VLOOKUP(E653,Insumos!AD:AE,2,FALSE))","v":""},null,{"$f":"IF(G653=\"\",\"\",VLOOKUP(G653,Insumos!G:H,2,FALSE))","v":""}]
[null,null,null,null,null,{"$f":"IF(E654=\"\",\"\",VLOOKUP(E654,Insumos!AD:AE,2,FALSE))","v":""},null,{"$f":"IF(G654=\"\",\"\",VLOOKUP(G654,Insumos!G:H,2,FALSE))","v":""}]
[null,null,null,null,null,{"$f":"IF(E655=\"\",\"\",VLOOKUP(E655,Insumos!AD:AE,2,FALSE))","v":""},null,{"$f":"IF(G655=\"\",\"\",VLOOKUP(G655,Insumos!G:H,2,FALSE))","v":""}]
[null,null,null,null,null,{"$f":"IF(E656=\"\",\"\",VLOOKUP(E656,Insumos!AD:AE,2,FALSE))","v":""},null,{"$f":"IF(G656=\"\",\"\",VLOOKUP(G656,Insumos!G:H,2,FALSE))","v":""}]
[null,null,null,null,null,{"$f":"IF(E657=\"\",\"\",VLOOKUP(E657,Insumos!AD:AE,2,FALSE))","v":""},null,{"$f":"IF(G657=\"\",\"\",VLOOKUP(G657,Insumos!G:H,2,FALSE))","v":""}]
[null,null,null,null,null,{"$f":"IF(E658=\"\",\"\",VLOOKUP(E658,Insumos!AD:AE,2,FALSE))","v":""},null,{"$f":"IF(G658=\"\",\"\",VLOOKUP(G658,Insumos!G:H,2,FALSE))","v":""}]
[null,null,null,null,null,{"$f":"IF(E659=\"\",\"\",VLOOKUP(E659,Insumos!AD:AE,2,FALSE))","v":""},null,{"$f":"IF(G659=\"\",\"\",VLOOKUP(G659,Insumos!G:H,2,FALSE))","v":""}]
[null,null,null,null,null,{"$f":"IF(E660=\"\",\"\",VLOOKUP(E660,Insumos!AD:AE,2,FALSE))","v":""},null,{"$f":"IF(G660=\"\",\"\",VLOOKUP(G660,Insumos!G:H,2,FALSE))","v":""}]
[null,null,null,null,null,{"$f":"IF(E661=\"\",\"\",VLOOKUP(E661,Insumos!AD:AE,2,FALSE))","v":""},null,{"$f":"IF(G661=\"\",\"\",VLOOKUP(G661,Insumos!G:H,2,FALSE))","v":""}]
[null,null,null,null,null,{"$f":"IF(E662=\"\",\"\",VLOOKUP(E662,Insumos!AD:AE,2,FALSE))","v":""},null,{"$f":"IF(G662=\"\",\"\",VLOOKUP(G662,Insumos!G:H,2,FALSE))","v":""}]
[null,null,null,null,null,{"$f":"IF(E663=\"\",\"\",VLOOKUP(E663,Insumos!AD:AE,2,FALSE))","v":""},null,{"$f":"IF(G663=\"\",\"\",VLOOKUP(G663,Insumos!G:H,2,FALSE))","v":""}]
[null,null,null,null,null,{"$f":"IF(E664=\"\",\"\",VLOOKUP(E664,Insumos!AD:AE,2,FALSE))","v":""},null,{"$f":"IF(G664=\"\",\"\",VLOOKUP(G664,Insumos!G:H,2,FALSE))","v":""}]
[null,null,null,null,null,{"$f":"IF(E665=\"\",\"\",VLOOKUP(E665,Insumos!AD:AE,2,FALSE))","v":""},null,{"$f":"IF(G665=\"\",\"\",VLOOKUP(G665,Insumos!G:H,2,FALSE))","v":""}]
[null,null,null,null,null,{"$f":"IF(E666=\"\",\"\",VLOOKUP(E666,Insumos!AD:AE,2,FALSE))","v":""},null,{"$f":"IF(G666=\"\",\"\",VLOOKUP(G666,Insumos!G:H,2,FALSE))","v":""}]
[null,null,null,null,null,{"$f":"IF(E667=\"\",\"\",VLOOKUP(E667,Insumos!AD:AE,2,FALSE))","v":""},null,{"$f":"IF(G667=\"\",\"\",VLOOKUP(G667,Insumos!G:H,2,FALSE))","v":""}]
[null,null,null,null,null,{"$f":"IF(E668=\"\",\"\",VLOOKUP(E668,Insumos!AD:AE,2,FALSE))","v":""},null,{"$f":"IF(G668=\"\",\"\",VLOOKUP(G668,Insumos!G:H,2,FALSE))","v":""}]
[null,null,null,null,null,{"$f":"IF(E669=\"\",\"\",VLOOKUP(E669,Insumos!AD:AE,2,FALSE))","v":""},null,{"$f":"IF(G669=\"\",\"\",VLOOKUP(G669,Insumos!G:H,2,FALSE))","v":""}]
[null,null,null,null,null,{"$f":"IF(E670=\"\",\"\",VLOOKUP(E670,Insumos!AD:AE,2,FALSE))","v":""},null,{"$f":"IF(G670=\"\",\"\",VLOOKUP(G670,Insumos!G:H,2,FALSE))","v":""}]
[null,null,null,null,null,{"$f":"IF(E671=\"\",\"\",VLOOKUP(E671,Insumos!AD:AE,2,FALSE))","v":""},null,{"$f":"IF(G671=\"\",\"\",VLOOKUP(G671,Insumos!G:H,2,FALSE))","v":""}]
[null,null,null,null,null,{"$f":"IF(E672=\"\",\"\",VLOOKUP(E672,Insumos!AD:AE,2,FALSE))","v":""},null,{"$f":"IF(G672=\"\",\"\",VLOOKUP(G672,Insumos!G:H,2,FALSE))","v":""}]
[null,null,null,null,null,{"$f":"IF(E673=\"\",\"\",VLOOKUP(E673,Insumos!AD:AE,2,FALSE))","v":""},null,{"$f":"IF(G673=\"\",\"\",VLOOKUP(G673,Insumos!G:H,2,FALSE))","v":""}]
[null,null,null,null,null,{"$f":"IF(E674=\"\",\"\",VLOOKUP(E674,Insumos!AD:AE,2,FALSE))","v":""},null,{"$f":"IF(G674=\"\",\"\",VLOOKUP(G674,Insumos!G:H,2,FALSE))","v":""}]
[null,null,null,null,null,{"$f":"IF(E675=\"\",\"\",VLOOKUP(E675,Insumos!AD:AE,2,FALSE))","v":""},null,{"$f":"IF(G675=\"\",\"\",VLOOKUP(G675,Insumos!G:H,2,FALSE))","v":""}]
[null,null,null,null,null,{"$f":"IF(E676=\"\",\"\",VLOOKUP(E676,Insumos!AD:AE,2,FALSE))","v":""},null,{"$f":"IF(G676=\"\",\"\",VLOOKUP(G676,Insumos!G:H,2,FALSE))","v":""}]
[null,null,null,null,null,{"$f":"IF(E677=\"\",\"\",VLOOKUP(E677,Insumos!AD:AE,2,FALSE))","v":""},null,{"$f":"IF(G677=\"\",\"\",VLOOKUP(G677,Insumos!G:H,2,FALSE))","v":""}]
[null,null,null,null,null,{"$f":"IF(E678=\"\",\"\",VLOOKUP(E678,Insumos!AD:AE,2,FALSE))","v":""},null,{"$f":"IF(G678=\"\",\"\",VLOOKUP(G678,Insumos!G:H,2,FALSE))","v":""}]
[null,null,null,null,null,{"$f":"IF(E679=\"\",\"\",VLOOKUP(E679,Insumos!AD:AE,2,FALSE))","v":""},null,{"$f":"IF(G679=\"\",\"\",VLOOKUP(G679,Insumos!G:H,2,FALSE))","v":""}]
[null,null,null,null,null,{"$f":"IF(E680=\"\",\"\",VLOOKUP(E680,Insumos!AD:AE,2,FALSE))","v":""},null,{"$f":"IF(G680=\"\",\"\",VLOOKUP(G680,Insumos!G:H,2,FALSE))","v":""}]
[null,null,null,null,null,{"$f":"IF(E681=\"\",\"\",VLOOKUP(E681,Insumos!AD:AE,2,FALSE))","v":""},null,{"$f":"IF(G681=\"\",\"\",VLOOKUP(G681,Insumos!G:H,2,FALSE))","v":""}]
[null,null,null,null,null,{"$f":"IF(E682=\"\",\"\",VLOOKUP(E682,Insumos!AD:AE,2,FALSE))","v":""},null,{"$f":"IF(G682=\"\",\"\",VLOOKUP(G682,Insumos!G:H,2,FALSE))","v":""}]
[null,null,null,null,null,{"$f":"IF(E683=\"\",\"\",VLOOKUP(E683,Insumos!AD:AE,2,FALSE))","v":""},null,{"$f":"IF(G683=\"\",\"\",VLOOKUP(G683,Insumos!G:H,2,FALSE))","v":""}]
[null,null,null,null,null,{"$f":"IF(E684=\"\",\"\",VLOOKUP(E684,Insumos!AD:AE,2,FALSE))","v":""},null,{"$f":"IF(G684=\"\",\"\",VLOOKUP(G684,Insumos!G:H,2,FALSE))","v":""}]
[null,null,null,null,null,{"$f":"IF(E685=\"\",\"\",VLOOKUP(E685,Insumos!AD:AE,2,FALSE))","v":""},null,{"$f":"IF(G685=\"\",\"\",VLOOKUP(G685,Insumos!G:H,2,FALSE))","v":""}]
[null,null,null,null,null,{"$f":"IF(E686=\"\",\"\",VLOOKUP(E686,Insumos!AD:AE,2,FALSE))","v":""},null,{"$f":"IF(G686=\"\",\"\",VLOOKUP(G686,Insumos!G:H,2,FALSE))","v":""}]
[null,null,null,null,null,{"$f":"IF(E687=\"\",\"\",VLOOKUP(E687,Insumos!AD:AE,2,FALSE))","v":""},null,{"$f":"IF(G687=\"\",\"\",VLOOKUP(G687,Insumos!G:H,2,FALSE))","v":""}]
[null,null,null,null,null,{"$f":"IF(E688=\"\",\"\",VLOOKUP(E688,Insumos!AD:AE,2,FALSE))","v":""},null,{"$f":"IF(G688=\"\",\"\",VLOOKUP(G688,Insumos!G:H,2,FALSE))","v":""}]
[null,null,null,null,null,{"$f":"IF(E689=\"\",\"\",VLOOKUP(E689,Insumos!AD:AE,2,FALSE))","v":""},null,{"$f":"IF(G689=\"\",\"\",VLOOKUP(G689,Insumos!G:H,2,FALSE))","v":""}]
[null,null,null,null,null,{"$f":"IF(E690=\"\",\"\",VLOOKUP(E690,Insumos!AD:AE,2,FALSE))","v":""},null,{"$f":"IF(G690=\"\",\"\",VLOOKUP(G690,Insumos!G:H,2,FALSE))","v":""}]
[null,null,null,null,null,{"$f":"IF(E691=\"\",\"\",VLOOKUP(E691,Insumos!AD:AE,2,FALSE))","v":""},null,{"$f":"IF(G691=\"\",\"\",VLOOKUP(G691,Insumos!G:H,2,FALSE))","v":""}]
[null,null,null,null,null,{"$f":"IF(E692=\"\",\"\",VLOOKUP(E692,Insumos!AD:AE,2,FALSE))","v":""},null,{"$f":"IF(G692=\"\",\"\",VLOOKUP(G692,Insumos!G:H,2,FALSE))","v":""}]
[null,null,null,null,null,{"$f":"IF(E693=\"\",\"\",VLOOKUP(E693,Insumos!AD:AE,2,FALSE))","v":""},null,{"$f":"IF(G693=\"\",\"\",VLOOKUP(G693,Insumos!G:H,2,FALSE))","v":""}]
[null,null,null,null,null,{"$f":"IF(E694=\"\",\"\",VLOOKUP(E694,Insumos!AD:AE,2,FALSE))","v":""},null,{"$f":"IF(G694=\"\",\"\",VLOOKUP(G694,Insumos!G:H,2,FALSE))","v":""}]
[null,null,null,null,null,{"$f":"IF(E695=\"\",\"\",VLOOKUP(E695,Insumos!AD:AE,2,FALSE))","v":""},null,{"$f":"IF(G695=\"\",\"\",VLOOKUP(G695,Insumos!G:H,2,FALSE))","v":""}]
[null,null,null,null,null,{"$f":"IF(E696=\"\",\"\",VLOOKUP(E696,Insumos!AD:AE,2,FALSE))","v":""},null,{"$f":"IF(G696=\"\",\"\",VLOOKUP(G696,Insumos!G:H,2,FALSE))","v":""}]
[null,null,null,null,null,{"$f":"IF(E697=\"\",\"\",VLOOKUP(E697,Insumos!AD:AE,2,FALSE))","v":""},null,{"$f":"IF(G697=\"\",\"\",VLOOKUP(G697,Insumos!G:H,2,FALSE))","v":""}]
[null,null,null,null,null,{"$f":"IF(E698=\"\",\"\",VLOOKUP(E698,Insumos!AD:AE,2,FALSE))","v":""},null,{"$f":"IF(G698=\"\",\"\",VLOOKUP(G698,Insumos!G:H,2,FALSE))","v":""}]
[null,null,null,null,null,{"$f":"IF(E699=\"\",\"\",VLOOKUP(E699,Insumos!AD:AE,2,FALSE))","v":""},null,{"$f":"IF(G699=\"\",\"\",VLOOKUP(G699,Insumos!G:H,2,FALSE))","v":""}]
[null,null,null,null,null,{"$f":"IF(E700=\"\",\"\",VLOOKUP(E700,Insumos!AD:AE,2,FALSE))","v":""},null,{"$f":"IF(G700=\"\",\"\",VLOOKUP(G700,Insumos!G:H,2,FALSE))","v":""}]
[null,null,null,null,null,{"$f":"IF(E701=\"\",\"\",VLOOKUP(E701,Insumos!AD:AE,2,FALSE))","v":""},null,{"$f":"IF(G701=\"\",\"\",VLOOKUP(G701,Insumos!G:H,2,FALSE))","v":""}]
[null,null,null,null,null,{"$f":"IF(E702=\"\",\"\",VLOOKUP(E702,Insumos!AD:AE,2,FALSE))","v":""},null,{"$f":"IF(G702=\"\",\"\",VLOOKUP(G702,Insumos!G:H,2,FALSE))","v":""}]
[null,null,null,null,null,{"$f":"IF(E703=\"\",\"\",VLOOKUP(E703,Insumos!AD:AE,2,FALSE))","v":""},null,{"$f":"IF(G703=\"\",\"\",VLOOKUP(G703,Insumos!G:H,2,FALSE))","v":""}]
[null,null,null,null,null,{"$f":"IF(E704=\"\",\"\",VLOOKUP(E704,Insumos!AD:AE,2,FALSE))","v":""},null,{"$f":"IF(G704=\"\",\"\",VLOOKUP(G704,Insumos!G:H,2,FALSE))","v":""}]
[null,null,null,null,null,{"$f":"IF(E705=\"\",\"\",VLOOKUP(E705,Insumos!AD:AE,2,FALSE))","v":""},null,{"$f":"IF(G705=\"\",\"\",VLOOKUP(G705,Insumos!G:H,2,FALSE))","v":""}]
[null,null,null,null,null,{"$f":"IF(E706=\"\",\"\",VLOOKUP(E706,Insumos!AD:AE,2,FALSE))","v":""},null,{"$f":"IF(G706=\"\",\"\",VLOOKUP(G706,Insumos!G:H,2,FALSE))","v":""}]
[null,null,null,null,null,{"$f":"IF(E707=\"\",\"\",VLOOKUP(E707,Insumos!AD:AE,2,FALSE))","v":""},null,{"$f":"IF(G707=\"\",\"\",VLOOKUP(G707,Insumos!G:H,2,FALSE))","v":""}]
[null,null,null,null,null,{"$f":"IF(E708=\"\",\"\",VLOOKUP(E708,Insumos!AD:AE,2,FALSE))","v":""},null,{"$f":"IF(G708=\"\",\"\",VLOOKUP(G708,Insumos!G:H,2,FALSE))","v":""}]
[null,null,null,null,null,{"$f":"IF(E709=\"\",\"\",VLOOKUP(E709,Insumos!AD:AE,2,FALSE))","v":""},null,{"$f":"IF(G709=\"\",\"\",VLOOKUP(G709,Insumos!G:H,2,FALSE))","v":""}]
[null,null,null,null,null,{"$f":"IF(E710=\"\",\"\",VLOOKUP(E710,Insumos!AD:AE,2,FALSE))","v":""},null,{"$f":"IF(G710=\"\",\"\",VLOOKUP(G710,Insumos!G:H,2,FALSE))","v":""}]
[null,null,null,null,null,{"$f":"IF(E711=\"\",\"\",VLOOKUP(E711,Insumos!AD:AE,2,FALSE))","v":""},null,{"$f":"IF(G711=\"\",\"\",VLOOKUP(G711,Insumos!G:H,2,FALSE))","v":""}]
[null,null,null,null,null,{"$f":"IF(E712=\"\",\"\",VLOOKUP(E712,Insumos!AD:AE,2,FALSE))","v":""},null,{"$f":"IF(G712=\"\",\"\",VLOOKUP(G712,Insumos!G:H,2,FALSE))","v":""}]
[null,null,null,null,null,{"$f":"IF(E713=\"\",\"\",VLOOKUP(E713,Insumos!AD:AE,2,FALSE))","v":""},null,{"$f":"IF(G713=\"\",\"\",VLOOKUP(G713,Insumos!G:H,2,FALSE))","v":""}]
[null,null,null,null,null,{"$f":"IF(E714=\"\",\"\",VLOOKUP(E714,Insumos!AD:AE,2,FALSE))","v":""},null,{"$f":"IF(G714=\"\",\"\",VLOOKUP(G714,Insumos!G:H,2,FALSE))","v":""}]
[null,null,null,null,null,{"$f":"IF(E715=\"\",\"\",VLOOKUP(E715,Insumos!AD:AE,2,FALSE))","v":""},null,{"$f":"IF(G715=\"\",\"\",VLOOKUP(G715,Insumos!G:H,2,FALSE))","v":""}]
[null,null,null,null,null,{"$f":"IF(E716=\"\",\"\",VLOOKUP(E716,Insumos!AD:AE,2,FALSE))","v":""},null,{"$f":"IF(G716=\"\",\"\",VLOOKUP(G716,Insumos!G:H,2,FALSE))","v":""}]
[null,null,null,null,null,{"$f":"IF(E717=\"\",\"\",VLOOKUP(E717,Insumos!AD:AE,2,FALSE))","v":""},null,{"$f":"IF(G717=\"\",\"\",VLOOKUP(G717,Insumos!G:H,2,FALSE))","v":""}]
[null,null,null,null,null,{"$f":"IF(E718=\"\",\"\",VLOOKUP(E718,Insumos!AD:AE,2,FALSE))","v":""},null,{"$f":"IF(G718=\"\",\"\",VLOOKUP(G718,Insumos!G:H,2,FALSE))","v":""}]
[null,null,null,null,null,{"$f":"IF(E719=\"\",\"\",VLOOKUP(E719,Insumos!AD:AE,2,FALSE))","v":""},null,{"$f":"IF(G719=\"\",\"\",VLOOKUP(G719,Insumos!G:H,2,FALSE))","v":""}]
[null,null,null,null,null,{"$f":"IF(E720=\"\",\"\",VLOOKUP(E720,Insumos!AD:AE,2,FALSE))","v":""},null,{"$f":"IF(G720=\"\",\"\",VLOOKUP(G720,Insumos!G:H,2,FALSE))","v":""}]
[null,null,null,null,null,{"$f":"IF(E721=\"\",\"\",VLOOKUP(E721,Insumos!AD:AE,2,FALSE))","v":""},null,{"$f":"IF(G721=\"\",\"\",VLOOKUP(G721,Insumos!G:H,2,FALSE))","v":""}]
[null,null,null,null,null,{"$f":"IF(E722=\"\",\"\",VLOOKUP(E722,Insumos!AD:AE,2,FALSE))","v":""},null,{"$f":"IF(G722=\"\",\"\",VLOOKUP(G722,Insumos!G:H,2,FALSE))","v":""}]
[null,null,null,null,null,{"$f":"IF(E723=\"\",\"\",VLOOKUP(E723,Insumos!AD:AE,2,FALSE))","v":""},null,{"$f":"IF(G723=\"\",\"\",VLOOKUP(G723,Insumos!G:H,2,FALSE))","v":""}]
[null,null,null,null,null,{"$f":"IF(E724=\"\",\"\",VLOOKUP(E724,Insumos!AD:AE,2,FALSE))","v":""},null,{"$f":"IF(G724=\"\",\"\",VLOOKUP(G724,Insumos!G:H,2,FALSE))","v":""}]
[null,null,null,null,null,{"$f":"IF(E725=\"\",\"\",VLOOKUP(E725,Insumos!AD:AE,2,FALSE))","v":""},null,{"$f":"IF(G725=\"\",\"\",VLOOKUP(G725,Insumos!G:H,2,FALSE))","v":""}]
[null,null,null,null,null,{"$f":"IF(E726=\"\",\"\",VLOOKUP(E726,Insumos!AD:AE,2,FALSE))","v":""},null,{"$f":"IF(G726=\"\",\"\",VLOOKUP(G726,Insumos!G:H,2,FALSE))","v":""}]
[null,null,null,null,null,{"$f":"IF(E727=\"\",\"\",VLOOKUP(E727,Insumos!AD:AE,2,FALSE))","v":""},null,{"$f":"IF(G727=\"\",\"\",VLOOKUP(G727,Insumos!G:H,2,FALSE))","v":""}]
[null,null,null,null,null,{"$f":"IF(E728=\"\",\"\",VLOOKUP(E728,Insumos!AD:AE,2,FALSE))","v":""},null,{"$f":"IF(G728=\"\",\"\",VLOOKUP(G728,Insumos!G:H,2,FALSE))","v":""}]
[null,null,null,null,null,{"$f":"IF(E729=\"\",\"\",VLOOKUP(E729,Insumos!AD:AE,2,FALSE))","v":""},null,{"$f":"IF(G729=\"\",\"\",VLOOKUP(G729,Insumos!G:H,2,FALSE))","v":""}]
[null,null,null,null,null,{"$f":"IF(E730=\"\",\"\",VLOOKUP(E730,Insumos!AD:AE,2,FALSE))","v":""},null,{"$f":"IF(G730=\"\",\"\",VLOOKUP(G730,Insumos!G:H,2,FALSE))","v":""}]
[null,null,null,null,null,{"$f":"IF(E731=\"\",\"\",VLOOKUP(E731,Insumos!AD:AE,2,FALSE))","v":""},null,{"$f":"IF(G731=\"\",\"\",VLOOKUP(G731,Insumos!G:H,2,FALSE))","v":""}]
[null,null,null,null,null,{"$f":"IF(E732=\"\",\"\",VLOOKUP(E732,Insumos!AD:AE,2,FALSE))","v":""},null,{"$f":"IF(G732=\"\",\"\",VLOOKUP(G732,Insumos!G:H,2,FALSE))","v":""}]
[null,null,null,null,null,{"$f":"IF(E733=\"\",\"\",VLOOKUP(E733,Insumos!AD:AE,2,FALSE))","v":""},null,{"$f":"IF(G733=\"\",\"\",VLOOKUP(G733,Insumos!G:H,2,FALSE))","v":""}]
[null,null,null,null,null,{"$f":"IF(E734=\"\",\"\",VLOOKUP(E734,Insumos!AD:AE,2,FALSE))","v":""},null,{"$f":"IF(G734=\"\",\"\",VLOOKUP(G734,Insumos!G:H,2,FALSE))","v":""}]
[null,null,null,null,null,{"$f":"IF(E735=\"\",\"\",VLOOKUP(E735,Insumos!AD:AE,2,FALSE))","v":""},null,{"$f":"IF(G735=\"\",\"\",VLOOKUP(G735,Insumos!G:H,2,FALSE))","v":""}]
[null,null,null,null,null,{"$f":"IF(E736=\"\",\"\",VLOOKUP(E736,Insumos!AD:AE,2,FALSE))","v":""},null,{"$f":"IF(G736=\"\",\"\",VLOOKUP(G736,Insumos!G:H,2,FALSE))","v":""}]
[null,null,null,null,null,{"$f":"IF(E737=\"\",\"\",VLOOKUP(E737,Insumos!AD:AE,2,FALSE))","v":""},null,{"$f":"IF(G737=\"\",\"\",VLOOKUP(G737,Insumos!G:H,2,FALSE))","v":""}]
[null,null,null,null,null,{"$f":"IF(E738=\"\",\"\",VLOOKUP(E738,Insumos!AD:AE,2,FALSE))","v":""},null,{"$f":"IF(G738=\"\",\"\",VLOOKUP(G738,Insumos!G:H,2,FALSE))","v":""}]
[null,null,null,null,null,{"$f":"IF(E739=\"\",\"\",VLOOKUP(E739,Insumos!AD:AE,2,FALSE))","v":""},null,{"$f":"IF(G739=\"\",\"\",VLOOKUP(G739,Insumos!G:H,2,FALSE))","v":""}]
[null,null,null,null,null,{"$f":"IF(E740=\"\",\"\",VLOOKUP(E740,Insumos!AD:AE,2,FALSE))","v":""},null,{"$f":"IF(G740=\"\",\"\",VLOOKUP(G740,Insumos!G:H,2,FALSE))","v":""}]
[null,null,null,null,null,{"$f":"IF(E741=\"\",\"\",VLOOKUP(E741,Insumos!AD:AE,2,FALSE))","v":""},null,{"$f":"IF(G741=\"\",\"\",VLOOKUP(G741,Insumos!G:H,2,FALSE))","v":""}]
[null,null,null,null,null,{"$f":"IF(E742=\"\",\"\",VLOOKUP(E742,Insumos!AD:AE,2,FALSE))","v":""},null,{"$f":"IF(G742=\"\",\"\",VLOOKUP(G742,Insumos!G:H,2,FALSE))","v":""}]
[null,null,null,null,null,{"$f":"IF(E743=\"\",\"\",VLOOKUP(E743,Insumos!AD:AE,2,FALSE))","v":""},null,{"$f":"IF(G743=\"\",\"\",VLOOKUP(G743,Insumos!G:H,2,FALSE))","v":""}]
[null,null,null,null,null,{"$f":"IF(E744=\"\",\"\",VLOOKUP(E744,Insumos!AD:AE,2,FALSE))","v":""},null,{"$f":"IF(G744=\"\",\"\",VLOOKUP(G744,Insumos!G:H,2,FALSE))","v":""}]
[null,null,null,null,null,{"$f":"IF(E745=\"\",\"\",VLOOKUP(E745,Insumos!AD:AE,2,FALSE))","v":""},null,{"$f":"IF(G745=\"\",\"\",VLOOKUP(G745,Insumos!G:H,2,FALSE))","v":""}]
[null,null,null,null,null,{"$f":"IF(E746=\"\",\"\",VLOOKUP(E746,Insumos!AD:AE,2,FALSE))","v":""},null,{"$f":"IF(G746=\"\",\"\",VLOOKUP(G746,Insumos!G:H,2,FALSE))","v":""}]
[null,null,null,null,null,{"$f":"IF(E747=\"\",\"\",VLOOKUP(E747,Insumos!AD:AE,2,FALSE))","v":""},null,{"$f":"IF(G747=\"\",\"\",VLOOKUP(G747,Insumos!G:H,2,FALSE))","v":""}]
[null,null,null,null,null,{"$f":"IF(E748=\"\",\"\",VLOOKUP(E748,Insumos!AD:AE,2,FALSE))","v":""},null,{"$f":"IF(G748=\"\",\"\",VLOOKUP(G748,Insumos!G:H,2,FALSE))","v":""}]
[null,null,null,null,null,{"$f":"IF(E749=\"\",\"\",VLOOKUP(E749,Insumos!AD:AE,2,FALSE))","v":""},null,{"$f":"IF(G749=\"\",\"\",VLOOKUP(G749,Insumos!G:H,2,FALSE))","v":""}]
[null,null,null,null,null,{"$f":"IF(E750=\"\",\"\",VLOOKUP(E750,Insumos!AD:AE,2,FALSE))","v":""},null,{"$f":"IF(G750=\"\",\"\",VLOOKUP(G750,Insumos!G:H,2,FALSE))","v":""}]
[null,null,null,null,null,{"$f":"IF(E751=\"\",\"\",VLOOKUP(E751,Insumos!AD:AE,2,FALSE))","v":""},null,{"$f":"IF(G751=\"\",\"\",VLOOKUP(G751,Insumos!G:H,2,FALSE))","v":""}]
[null,null,null,null,null,{"$f":"IF(E752=\"\",\"\",VLOOKUP(E752,Insumos!AD:AE,2,FALSE))","v":""},null,{"$f":"IF(G752=\"\",\"\",VLOOKUP(G752,Insumos!G:H,2,FALSE))","v":""}]
[null,null,null,null,null,{"$f":"IF(E753=\"\",\"\",VLOOKUP(E753,Insumos!AD:AE,2,FALSE))","v":""},null,{"$f":"IF(G753=\"\",\"\",VLOOKUP(G753,Insumos!G:H,2,FALSE))","v":""}]
[null,null,null,null,null,{"$f":"IF(E754=\"\",\"\",VLOOKUP(E754,Insumos!AD:AE,2,FALSE))","v":""},null,{"$f":"IF(G754=\"\",\"\",VLOOKUP(G754,Insumos!G:H,2,FALSE))","v":""}]
[null,null,null,null,null,{"$f":"IF(E755=\"\",\"\",VLOOKUP(E755,Insumos!AD:AE,2,FALSE))","v":""},null,{"$f":"IF(G755=\"\",\"\",VLOOKUP(G755,Insumos!G:H,2,FALSE))","v":""}]
[null,null,null,null,null,{"$f":"IF(E756=\"\",\"\",VLOOKUP(E756,Insumos!AD:AE,2,FALSE))","v":""},null,{"$f":"IF(G756=\"\",\"\",VLOOKUP(G756,Insumos!G:H,2,FALSE))","v":""}]
[null,null,null,null,null,{"$f":"IF(E757=\"\",\"\",VLOOKUP(E757,Insumos!AD:AE,2,FALSE))","v":""},null,{"$f":"IF(G757=\"\",\"\",VLOOKUP(G757,Insumos!G:H,2,FALSE))","v":""}]
[null,null,null,null,null,{"$f":"IF(E758=\"\",\"\",VLOOKUP(E758,Insumos!AD:AE,2,FALSE))","v":""},null,{"$f":"IF(G758=\"\",\"\",VLOOKUP(G758,Insumos!G:H,2,FALSE))","v":""}]
[null,null,null,null,null,{"$f":"IF(E759=\"\",\"\",VLOOKUP(E759,Insumos!AD:AE,2,FALSE))","v":""},null,{"$f":"IF(G759=\"\",\"\",VLOOKUP(G759,Insumos!G:H,2,FALSE))","v":""}]
[null,null,null,null,null,{"$f":"IF(E760=\"\",\"\",VLOOKUP(E760,Insumos!AD:AE,2,FALSE))","v":""},null,{"$f":"IF(G760=\"\",\"\",VLOOKUP(G760,Insumos!G:H,2,FALSE))","v":""}]
[null,null,null,null,null,{"$f":"IF(E761=\"\",\"\",VLOOKUP(E761,Insumos!AD:AE,2,FALSE))","v":""},null,{"$f":"IF(G761=\"\",\"\",VLOOKUP(G761,Insumos!G:H,2,FALSE))","v":""}]
[null,null,null,null,null,{"$f":"IF(E762=\"\",\"\",VLOOKUP(E762,Insumos!AD:AE,2,FALSE))","v":""},null,{"$f":"IF(G762=\"\",\"\",VLOOKUP(G762,Insumos!G:H,2,FALSE))","v":""}]
[null,null,null,null,null,{"$f":"IF(E763=\"\",\"\",VLOOKUP(E763,Insumos!AD:AE,2,FALSE))","v":""},null,{"$f":"IF(G763=\"\",\"\",VLOOKUP(G763,Insumos!G:H,2,FALSE))","v":""}]
[null,null,null,null,null,{"$f":"IF(E764=\"\",\"\",VLOOKUP(E764,Insumos!AD:AE,2,FALSE))","v":""},null,{"$f":"IF(G764=\"\",\"\",VLOOKUP(G764,Insumos!G:H,2,FALSE))","v":""}]
[null,null,null,null,null,{"$f":"IF(E765=\"\",\"\",VLOOKUP(E765,Insumos!AD:AE,2,FALSE))","v":""},null,{"$f":"IF(G765=\"\",\"\",VLOOKUP(G765,Insumos!G:H,2,FALSE))","v":""}]
[null,null,null,null,null,{"$f":"IF(E766=\"\",\"\",VLOOKUP(E766,Insumos!AD:AE,2,FALSE))","v":""},null,{"$f":"IF(G766=\"\",\"\",VLOOKUP(G766,Insumos!G:H,2,FALSE))","v":""}]
[null,null,null,null,null,{"$f":"IF(E767=\"\",\"\",VLOOKUP(E767,Insumos!AD:AE,2,FALSE))","v":""},null,{"$f":"IF(G767=\"\",\"\",VLOOKUP(G767,Insumos!G:H,2,FALSE))","v":""}]
[null,null,null,null,null,{"$f":"IF(E768=\"\",\"\",VLOOKUP(E768,Insumos!AD:AE,2,FALSE))","v":""},null,{"$f":"IF(G768=\"\",\"\",VLOOKUP(G768,Insumos!G:H,2,FALSE))","v":""}]
[null,null,null,null,null,{"$f":"IF(E769=\"\",\"\",VLOOKUP(E769,Insumos!AD:AE,2,FALSE))","v":""},null,{"$f":"IF(G769=\"\",\"\",VLOOKUP(G769,Insumos!G:H,2,FALSE))","v":""}]
[null,null,null,null,null,{"$f":"IF(E770=\"\",\"\",VLOOKUP(E770,Insumos!AD:AE,2,FALSE))","v":""},null,{"$f":"IF(G770=\"\",\"\",VLOOKUP(G770,Insumos!G:H,2,FALSE))","v":""}]
[null,null,null,null,null,{"$f":"IF(E771=\"\",\"\",VLOOKUP(E771,Insumos!AD:AE,2,FALSE))","v":""},null,{"$f":"IF(G771=\"\",\"\",VLOOKUP(G771,Insumos!G:H,2,FALSE))","v":""}]
[null,null,null,null,null,{"$f":"IF(E772=\"\",\"\",VLOOKUP(E772,Insumos!AD:AE,2,FALSE))","v":""},null,{"$f":"IF(G772=\"\",\"\",VLOOKUP(G772,Insumos!G:H,2,FALSE))","v":""}]
[null,null,null,null,null,{"$f":"IF(E773=\"\",\"\",VLOOKUP(E773,Insumos!AD:AE,2,FALSE))","v":""},null,{"$f":"IF(G773=\"\",\"\",VLOOKUP(G773,Insumos!G:H,2,FALSE))","v":""}]
[null,null,null,null,null,{"$f":"IF(E774=\"\",\"\",VLOOKUP(E774,Insumos!AD:AE,2,FALSE))","v":""},null,{"$f":"IF(G774=\"\",\"\",VLOOKUP(G774,Insumos!G:H,2,FALSE))","v":""}]
[null,null,null,null,null,{"$f":"IF(E775=\"\",\"\",VLOOKUP(E775,Insumos!AD:AE,2,FALSE))","v":""},null,{"$f":"IF(G775=\"\",\"\",VLOOKUP(G775,Insumos!G:H,2,FALSE))","v":""}]
[null,null,null,null,null,{"$f":"IF(E776=\"\",\"\",VLOOKUP(E776,Insumos!AD:AE,2,FALSE))","v":""},null,{"$f":"IF(G776=\"\",\"\",VLOOKUP(G776,Insumos!G:H,2,FALSE))","v":""}]
[null,null,null,null,null,{"$f":"IF(E777=\"\",\"\",VLOOKUP(E777,Insumos!AD:AE,2,FALSE))","v":""},null,{"$f":"IF(G777=\"\",\"\",VLOOKUP(G777,Insumos!G:H,2,FALSE))","v":""}]
[null,null,null,null,null,{"$f":"IF(E778=\"\",\"\",VLOOKUP(E778,Insumos!AD:AE,2,FALSE))","v":""},null,{"$f":"IF(G778=\"\",\"\",VLOOKUP(G778,Insumos!G:H,2,FALSE))","v":""}]
[null,null,null,null,null,{"$f":"IF(E779=\"\",\"\",VLOOKUP(E779,Insumos!AD:AE,2,FALSE))","v":""},null,{"$f":"IF(G779=\"\",\"\",VLOOKUP(G779,Insumos!G:H,2,FALSE))","v":""}]
[null,null,null,null,null,{"$f":"IF(E780=\"\",\"\",VLOOKUP(E780,Insumos!AD:AE,2,FALSE))","v":""},null,{"$f":"IF(G780=\"\",\"\",VLOOKUP(G780,Insumos!G:H,2,FALSE))","v":""}]
[null,null,null,null,null,{"$f":"IF(E781=\"\",\"\",VLOOKUP(E781,Insumos!AD:AE,2,FALSE))","v":""},null,{"$f":"IF(G781=\"\",\"\",VLOOKUP(G781,Insumos!G:H,2,FALSE))","v":""}]
[null,null,null,null,null,{"$f":"IF(E782=\"\",\"\",VLOOKUP(E782,Insumos!AD:AE,2,FALSE))","v":""},null,{"$f":"IF(G782=\"\",\"\",VLOOKUP(G782,Insumos!G:H,2,FALSE))","v":""}]
[null,null,null,null,null,{"$f":"IF(E783=\"\",\"\",VLOOKUP(E783,Insumos!AD:AE,2,FALSE))","v":""},null,{"$f":"IF(G783=\"\",\"\",VLOOKUP(G783,Insumos!G:H,2,FALSE))","v":""}]
[null,null,null,null,null,{"$f":"IF(E784=\"\",\"\",VLOOKUP(E784,Insumos!AD:AE,2,FALSE))","v":""},null,{"$f":"IF(G784=\"\",\"\",VLOOKUP(G784,Insumos!G:H,2,FALSE))","v":""}]
[null,null,null,null,null,{"$f":"IF(E785=\"\",\"\",VLOOKUP(E785,Insumos!AD:AE,2,FALSE))","v":""},null,{"$f":"IF(G785=\"\",\"\",VLOOKUP(G785,Insumos!G:H,2,FALSE))","v":""}]
[null,null,null,null,null,{"$f":"IF(E786=\"\",\"\",VLOOKUP(E786,Insumos!AD:AE,2,FALSE))","v":""},null,{"$f":"IF(G786=\"\",\"\",VLOOKUP(G786,Insumos!G:H,2,FALSE))","v":""}]
[null,null,null,null,null,{"$f":"IF(E787=\"\",\"\",VLOOKUP(E787,Insumos!AD:AE,2,FALSE))","v":""},null,{"$f":"IF(G787=\"\",\"\",VLOOKUP(G787,Insumos!G:H,2,FALSE))","v":""}]
[null,null,null,null,null,{"$f":"IF(E788=\"\",\"\",VLOOKUP(E788,Insumos!AD:AE,2,FALSE))","v":""},null,{"$f":"IF(G788=\"\",\"\",VLOOKUP(G788,Insumos!G:H,2,FALSE))","v":""}]
[null,null,null,null,null,{"$f":"IF(E789=\"\",\"\",VLOOKUP(E789,Insumos!AD:AE,2,FALSE))","v":""},null,{"$f":"IF(G789=\"\",\"\",VLOOKUP(G789,Insumos!G:H,2,FALSE))","v":""}]
[null,null,null,null,null,{"$f":"IF(E790=\"\",\"\",VLOOKUP(E790,Insumos!AD:AE,2,FALSE))","v":""},null,{"$f":"IF(G790=\"\",\"\",VLOOKUP(G790,Insumos!G:H,2,FALSE))","v":""}]
[null,null,null,null,null,{"$f":"IF(E791=\"\",\"\",VLOOKUP(E791,Insumos!AD:AE,2,FALSE))","v":""},null,{"$f":"IF(G791=\"\",\"\",VLOOKUP(G791,Insumos!G:H,2,FALSE))","v":""}]
[null,null,null,null,null,{"$f":"IF(E792=\"\",\"\",VLOOKUP(E792,Insumos!AD:AE,2,FALSE))","v":""},null,{"$f":"IF(G792=\"\",\"\",VLOOKUP(G792,Insumos!G:H,2,FALSE))","v":""}]
[null,null,null,null,null,{"$f":"IF(E793=\"\",\"\",VLOOKUP(E793,Insumos!AD:AE,2,FALSE))","v":""},null,{"$f":"IF(G793=\"\",\"\",VLOOKUP(G793,Insumos!G:H,2,FALSE))","v":""}]
[null,null,null,null,null,{"$f":"IF(E794=\"\",\"\",VLOOKUP(E794,Insumos!AD:AE,2,FALSE))","v":""},null,{"$f":"IF(G794=\"\",\"\",VLOOKUP(G794,Insumos!G:H,2,FALSE))","v":""}]
[null,null,null,null,null,{"$f":"IF(E795=\"\",\"\",VLOOKUP(E795,Insumos!AD:AE,2,FALSE))","v":""},null,{"$f":"IF(G795=\"\",\"\",VLOOKUP(G795,Insumos!G:H,2,FALSE))","v":""}]
[null,null,null,null,null,{"$f":"IF(E796=\"\",\"\",VLOOKUP(E796,Insumos!AD:AE,2,FALSE))","v":""},null,{"$f":"IF(G796=\"\",\"\",VLOOKUP(G796,Insumos!G:H,2,FALSE))","v":""}]
[null,null,null,null,null,{"$f":"IF(E797=\"\",\"\",VLOOKUP(E797,Insumos!AD:AE,2,FALSE))","v":""},null,{"$f":"IF(G797=\"\",\"\",VLOOKUP(G797,Insumos!G:H,2,FALSE))","v":""}]
[null,null,null,null,null,{"$f":"IF(E798=\"\",\"\",VLOOKUP(E798,Insumos!AD:AE,2,FALSE))","v":""},null,{"$f":"IF(G798=\"\",\"\",VLOOKUP(G798,Insumos!G:H,2,FALSE))","v":""}]
[null,null,null,null,null,{"$f":"IF(E799=\"\",\"\",VLOOKUP(E799,Insumos!AD:AE,2,FALSE))","v":""},null,{"$f":"IF(G799=\"\",\"\",VLOOKUP(G799,Insumos!G:H,2,FALSE))","v":""}]
[null,null,null,null,null,{"$f":"IF(E800=\"\",\"\",VLOOKUP(E800,Insumos!AD:AE,2,FALSE))","v":""},null,{"$f":"IF(G800=\"\",\"\",VLOOKUP(G800,Insumos!G:H,2,FALSE))","v":""}]
[null,null,null,null,null,{"$f":"IF(E801=\"\",\"\",VLOOKUP(E801,Insumos!AD:AE,2,FALSE))","v":""},null,{"$f":"IF(G801=\"\",\"\",VLOOKUP(G801,Insumos!G:H,2,FALSE))","v":""}]
[null,null,null,null,null,{"$f":"IF(E802=\"\",\"\",VLOOKUP(E802,Insumos!AD:AE,2,FALSE))","v":""},null,{"$f":"IF(G802=\"\",\"\",VLOOKUP(G802,Insumos!G:H,2,FALSE))","v":""}]
[null,null,null,null,null,{"$f":"IF(E803=\"\",\"\",VLOOKUP(E803,Insumos!AD:AE,2,FALSE))","v":""},null,{"$f":"IF(G803=\"\",\"\",VLOOKUP(G803,Insumos!G:H,2,FALSE))","v":""}]
[null,null,null,null,null,{"$f":"IF(E804=\"\",\"\",VLOOKUP(E804,Insumos!AD:AE,2,FALSE))","v":""},null,{"$f":"IF(G804=\"\",\"\",VLOOKUP(G804,Insumos!G:H,2,FALSE))","v":""}]
[null,null,null,null,null,{"$f":"IF(E805=\"\",\"\",VLOOKUP(E805,Insumos!AD:AE,2,FALSE))","v":""},null,{"$f":"IF(G805=\"\",\"\",VLOOKUP(G805,Insumos!G:H,2,FALSE))","v":""}]
[null,null,null,null,null,{"$f":"IF(E806=\"\",\"\",VLOOKUP(E806,Insumos!AD:AE,2,FALSE))","v":""},null,{"$f":"IF(G806=\"\",\"\",VLOOKUP(G806,Insumos!G:H,2,FALSE))","v":""}]
[null,null,null,null,null,{"$f":"IF(E807=\"\",\"\",VLOOKUP(E807,Insumos!AD:AE,2,FALSE))","v":""},null,{"$f":"IF(G807=\"\",\"\",VLOOKUP(G807,Insumos!G:H,2,FALSE))","v":""}]
[null,null,null,null,null,{"$f":"IF(E808=\"\",\"\",VLOOKUP(E808,Insumos!AD:AE,2,FALSE))","v":""},null,{"$f":"IF(G808=\"\",\"\",VLOOKUP(G808,Insumos!G:H,2,FALSE))","v":""}]
[null,null,null,null,null,{"$f":"IF(E809=\"\",\"\",VLOOKUP(E809,Insumos!AD:AE,2,FALSE))","v":""},null,{"$f":"IF(G809=\"\",\"\",VLOOKUP(G809,Insumos!G:H,2,FALSE))","v":""}]
[null,null,null,null,null,{"$f":"IF(E810=\"\",\"\",VLOOKUP(E810,Insumos!AD:AE,2,FALSE))","v":""},null,{"$f":"IF(G810=\"\",\"\",VLOOKUP(G810,Insumos!G:H,2,FALSE))","v":""}]
[null,null,null,null,null,{"$f":"IF(E811=\"\",\"\",VLOOKUP(E811,Insumos!AD:AE,2,FALSE))","v":""},null,{"$f":"IF(G811=\"\",\"\",VLOOKUP(G811,Insumos!G:H,2,FALSE))","v":""}]
[null,null,null,null,null,{"$f":"IF(E812=\"\",\"\",VLOOKUP(E812,Insumos!AD:AE,2,FALSE))","v":""},null,{"$f":"IF(G812=\"\",\"\",VLOOKUP(G812,Insumos!G:H,2,FALSE))","v":""}]
[null,null,null,null,null,{"$f":"IF(E813=\"\",\"\",VLOOKUP(E813,Insumos!AD:AE,2,FALSE))","v":""},null,{"$f":"IF(G813=\"\",\"\",VLOOKUP(G813,Insumos!G:H,2,FALSE))","v":""}]
[null,null,null,null,null,{"$f":"IF(E814=\"\",\"\",VLOOKUP(E814,Insumos!AD:AE,2,FALSE))","v":""},null,{"$f":"IF(G814=\"\",\"\",VLOOKUP(G814,Insumos!G:H,2,FALSE))","v":""}]
[null,null,null,null,null,{"$f":"IF(E815=\"\",\"\",VLOOKUP(E815,Insumos!AD:AE,2,FALSE))","v":""},null,{"$f":"IF(G815=\"\",\"\",VLOOKUP(G815,Insumos!G:H,2,FALSE))","v":""}]
[null,null,null,null,null,{"$f":"IF(E816=\"\",\"\",VLOOKUP(E816,Insumos!AD:AE,2,FALSE))","v":""},null,{"$f":"IF(G816=\"\",\"\",VLOOKUP(G816,Insumos!G:H,2,FALSE))","v":""}]
[null,null,null,null,null,{"$f":"IF(E817=\"\",\"\",VLOOKUP(E817,Insumos!AD:AE,2,FALSE))","v":""},null,{"$f":"IF(G817=\"\",\"\",VLOOKUP(G817,Insumos!G:H,2,FALSE))","v":""}]
[null,null,null,null,null,{"$f":"IF(E818=\"\",\"\",VLOOKUP(E818,Insumos!AD:AE,2,FALSE))","v":""},null,{"$f":"IF(G818=\"\",\"\",VLOOKUP(G818,Insumos!G:H,2,FALSE))","v":""}]
[null,null,null,null,null,{"$f":"IF(E819=\"\",\"\",VLOOKUP(E819,Insumos!AD:AE,2,FALSE))","v":""},null,{"$f":"IF(G819=\"\",\"\",VLOOKUP(G819,Insumos!G:H,2,FALSE))","v":""}]
[null,null,null,null,null,{"$f":"IF(E820=\"\",\"\",VLOOKUP(E820,Insumos!AD:AE,2,FALSE))","v":""},null,{"$f":"IF(G820=\"\",\"\",VLOOKUP(G820,Insumos!G:H,2,FALSE))","v":""}]
[null,null,null,null,null,{"$f":"IF(E821=\"\",\"\",VLOOKUP(E821,Insumos!AD:AE,2,FALSE))","v":""},null,{"$f":"IF(G821=\"\",\"\",VLOOKUP(G821,Insumos!G:H,2,FALSE))","v":""}]
[null,null,null,null,null,{"$f":"IF(E822=\"\",\"\",VLOOKUP(E822,Insumos!AD:AE,2,FALSE))","v":""},null,{"$f":"IF(G822=\"\",\"\",VLOOKUP(G822,Insumos!G:H,2,FALSE))","v":""}]
[null,null,null,null,null,{"$f":"IF(E823=\"\",\"\",VLOOKUP(E823,Insumos!AD:AE,2,FALSE))","v":""},null,{"$f":"IF(G823=\"\",\"\",VLOOKUP(G823,Insumos!G:H,2,FALSE))","v":""}]
[null,null,null,null,null,{"$f":"IF(E824=\"\",\"\",VLOOKUP(E824,Insumos!AD:AE,2,FALSE))","v":""},null,{"$f":"IF(G824=\"\",\"\",VLOOKUP(G824,Insumos!G:H,2,FALSE))","v":""}]
[null,null,null,null,null,{"$f":"IF(E825=\"\",\"\",VLOOKUP(E825,Insumos!AD:AE,2,FALSE))","v":""},null,{"$f":"IF(G825=\"\",\"\",VLOOKUP(G825,Insumos!G:H,2,FALSE))","v":""}]
[null,null,null,null,null,{"$f":"IF(E826=\"\",\"\",VLOOKUP(E826,Insumos!AD:AE,2,FALSE))","v":""},null,{"$f":"IF(G826=\"\",\"\",VLOOKUP(G826,Insumos!G:H,2,FALSE))","v":""}]
[null,null,null,null,null,{"$f":"IF(E827=\"\",\"\",VLOOKUP(E827,Insumos!AD:AE,2,FALSE))","v":""},null,{"$f":"IF(G827=\"\",\"\",VLOOKUP(G827,Insumos!G:H,2,FALSE))","v":""}]
[null,null,null,null,null,{"$f":"IF(E828=\"\",\"\",VLOOKUP(E828,Insumos!AD:AE,2,FALSE))","v":""},null,{"$f":"IF(G828=\"\",\"\",VLOOKUP(G828,Insumos!G:H,2,FALSE))","v":""}]
[null,null,null,null,null,{"$f":"IF(E829=\"\",\"\",VLOOKUP(E829,Insumos!AD:AE,2,FALSE))","v":""},null,{"$f":"IF(G829=\"\",\"\",VLOOKUP(G829,Insumos!G:H,2,FALSE))","v":""}]
[null,null,null,null,null,{"$f":"IF(E830=\"\",\"\",VLOOKUP(E830,Insumos!AD:AE,2,FALSE))","v":""},null,{"$f":"IF(G830=\"\",\"\",VLOOKUP(G830,Insumos!G:H,2,FALSE))","v":""}]
[null,null,null,null,null,{"$f":"IF(E831=\"\",\"\",VLOOKUP(E831,Insumos!AD:AE,2,FALSE))","v":""},null,{"$f":"IF(G831=\"\",\"\",VLOOKUP(G831,Insumos!G:H,2,FALSE))","v":""}]
[null,null,null,null,null,{"$f":"IF(E832=\"\",\"\",VLOOKUP(E832,Insumos!AD:AE,2,FALSE))","v":""},null,{"$f":"IF(G832=\"\",\"\",VLOOKUP(G832,Insumos!G:H,2,FALSE))","v":""}]
[null,null,null,null,null,{"$f":"IF(E833=\"\",\"\",VLOOKUP(E833,Insumos!AD:AE,2,FALSE))","v":""},null,{"$f":"IF(G833=\"\",\"\",VLOOKUP(G833,Insumos!G:H,2,FALSE))","v":""}]
[null,null,null,null,null,{"$f":"IF(E834=\"\",\"\",VLOOKUP(E834,Insumos!AD:AE,2,FALSE))","v":""},null,{"$f":"IF(G834=\"\",\"\",VLOOKUP(G834,Insumos!G:H,2,FALSE))","v":""}]
[null,null,null,null,null,{"$f":"IF(E835=\"\",\"\",VLOOKUP(E835,Insumos!AD:AE,2,FALSE))","v":""},null,{"$f":"IF(G835=\"\",\"\",VLOOKUP(G835,Insumos!G:H,2,FALSE))","v":""}]
[null,null,null,null,null,{"$f":"IF(E836=\"\",\"\",VLOOKUP(E836,Insumos!AD:AE,2,FALSE))","v":""},null,{"$f":"IF(G836=\"\",\"\",VLOOKUP(G836,Insumos!G:H,2,FALSE))","v":""}]
[null,null,null,null,null,{"$f":"IF(E837=\"\",\"\",VLOOKUP(E837,Insumos!AD:AE,2,FALSE))","v":""},null,{"$f":"IF(G837=\"\",\"\",VLOOKUP(G837,Insumos!G:H,2,FALSE))","v":""}]
[null,null,null,null,null,{"$f":"IF(E838=\"\",\"\",VLOOKUP(E838,Insumos!AD:AE,2,FALSE))","v":""},null,{"$f":"IF(G838=\"\",\"\",VLOOKUP(G838,Insumos!G:H,2,FALSE))","v":""}]
[null,null,null,null,null,{"$f":"IF(E839=\"\",\"\",VLOOKUP(E839,Insumos!AD:AE,2,FALSE))","v":""},null,{"$f":"IF(G839=\"\",\"\",VLOOKUP(G839,Insumos!G:H,2,FALSE))","v":""}]
[null,null,null,null,null,{"$f":"IF(E840=\"\",\"\",VLOOKUP(E840,Insumos!AD:AE,2,FALSE))","v":""},null,{"$f":"IF(G840=\"\",\"\",VLOOKUP(G840,Insumos!G:H,2,FALSE))","v":""}]
[null,null,null,null,null,{"$f":"IF(E841=\"\",\"\",VLOOKUP(E841,Insumos!AD:AE,2,FALSE))","v":""},null,{"$f":"IF(G841=\"\",\"\",VLOOKUP(G841,Insumos!G:H,2,FALSE))","v":""}]
[null,null,null,null,null,{"$f":"IF(E842=\"\",\"\",VLOOKUP(E842,Insumos!AD:AE,2,FALSE))","v":""},null,{"$f":"IF(G842=\"\",\"\",VLOOKUP(G842,Insumos!G:H,2,FALSE))","v":""}]
[null,null,null,null,null,{"$f":"IF(E843=\"\",\"\",VLOOKUP(E843,Insumos!AD:AE,2,FALSE))","v":""},null,{"$f":"IF(G843=\"\",\"\",VLOOKUP(G843,Insumos!G:H,2,FALSE))","v":""}]
[null,null,null,null,null,{"$f":"IF(E844=\"\",\"\",VLOOKUP(E844,Insumos!AD:AE,2,FALSE))","v":""},null,{"$f":"IF(G844=\"\",\"\",VLOOKUP(G844,Insumos!G:H,2,FALSE))","v":""}]
[null,null,null,null,null,{"$f":"IF(E845=\"\",\"\",VLOOKUP(E845,Insumos!AD:AE,2,FALSE))","v":""},null,{"$f":"IF(G845=\"\",\"\",VLOOKUP(G845,Insumos!G:H,2,FALSE))","v":""}]
[null,null,null,null,null,{"$f":"IF(E846=\"\",\"\",VLOOKUP(E846,Insumos!AD:AE,2,FALSE))","v":""},null,{"$f":"IF(G846=\"\",\"\",VLOOKUP(G846,Insumos!G:H,2,FALSE))","v":""}]
[null,null,null,null,null,{"$f":"IF(E847=\"\",\"\",VLOOKUP(E847,Insumos!AD:AE,2,FALSE))","v":""},null,{"$f":"IF(G847=\"\",\"\",VLOOKUP(G847,Insumos!G:H,2,FALSE))","v":""}]
[null,null,null,null,null,{"$f":"IF(E848=\"\",\"\",VLOOKUP(E848,Insumos!AD:AE,2,FALSE))","v":""},null,{"$f":"IF(G848=\"\",\"\",VLOOKUP(G848,Insumos!G:H,2,FALSE))","v":""}]
[null,null,null,null,null,{"$f":"IF(E849=\"\",\"\",VLOOKUP(E849,Insumos!AD:AE,2,FALSE))","v":""},null,{"$f":"IF(G849=\"\",\"\",VLOOKUP(G849,Insumos!G:H,2,FALSE))","v":""}]
[null,null,null,null,null,{"$f":"IF(E850=\"\",\"\",VLOOKUP(E850,Insumos!AD:AE,2,FALSE))","v":""},null,{"$f":"IF(G850=\"\",\"\",VLOOKUP(G850,Insumos!G:H,2,FALSE))","v":""}]
[null,null,null,null,null,{"$f":"IF(E851=\"\",\"\",VLOOKUP(E851,Insumos!AD:AE,2,FALSE))","v":""},null,{"$f":"IF(G851=\"\",\"\",VLOOKUP(G851,Insumos!G:H,2,FALSE))","v":""}]
[null,null,null,null,null,{"$f":"IF(E852=\"\",\"\",VLOOKUP(E852,Insumos!AD:AE,2,FALSE))","v":""},null,{"$f":"IF(G852=\"\",\"\",VLOOKUP(G852,Insumos!G:H,2,FALSE))","v":""}]
[null,null,null,null,null,{"$f":"IF(E853=\"\",\"\",VLOOKUP(E853,Insumos!AD:AE,2,FALSE))","v":""},null,{"$f":"IF(G853=\"\",\"\",VLOOKUP(G853,Insumos!G:H,2,FALSE))","v":""}]
[null,null,null,null,null,{"$f":"IF(E854=\"\",\"\",VLOOKUP(E854,Insumos!AD:AE,2,FALSE))","v":""},null,{"$f":"IF(G854=\"\",\"\",VLOOKUP(G854,Insumos!G:H,2,FALSE))","v":""}]
[null,null,null,null,null,{"$f":"IF(E855=\"\",\"\",VLOOKUP(E855,Insumos!AD:AE,2,FALSE))","v":""},null,{"$f":"IF(G855=\"\",\"\",VLOOKUP(G855,Insumos!G:H,2,FALSE))","v":""}]
[null,null,null,null,null,{"$f":"IF(E856=\"\",\"\",VLOOKUP(E856,Insumos!AD:AE,2,FALSE))","v":""},null,{"$f":"IF(G856=\"\",\"\",VLOOKUP(G856,Insumos!G:H,2,FALSE))","v":""}]
[null,null,null,null,null,{"$f":"IF(E857=\"\",\"\",VLOOKUP(E857,Insumos!AD:AE,2,FALSE))","v":""},null,{"$f":"IF(G857=\"\",\"\",VLOOKUP(G857,Insumos!G:H,2,FALSE))","v":""}]
[null,null,null,null,null,{"$f":"IF(E858=\"\",\"\",VLOOKUP(E858,Insumos!AD:AE,2,FALSE))","v":""},null,{"$f":"IF(G858=\"\",\"\",VLOOKUP(G858,Insumos!G:H,2,FALSE))","v":""}]
[null,null,null,null,null,{"$f":"IF(E859=\"\",\"\",VLOOKUP(E859,Insumos!AD:AE,2,FALSE))","v":""},null,{"$f":"IF(G859=\"\",\"\",VLOOKUP(G859,Insumos!G:H,2,FALSE))","v":""}]
[null,null,null,null,null,{"$f":"IF(E860=\"\",\"\",VLOOKUP(E860,Insumos!AD:AE,2,FALSE))","v":""},null,{"$f":"IF(G860=\"\",\"\",VLOOKUP(G860,Insumos!G:H,2,FALSE))","v":""}]
[null,null,null,null,null,{"$f":"IF(E861=\"\",\"\",VLOOKUP(E861,Insumos!AD:AE,2,FALSE))","v":""},null,{"$f":"IF(G861=\"\",\"\",VLOOKUP(G861,Insumos!G:H,2,FALSE))","v":""}]
[null,null,null,null,null,{"$f":"IF(E862=\"\",\"\",VLOOKUP(E862,Insumos!AD:AE,2,FALSE))","v":""},null,{"$f":"IF(G862=\"\",\"\",VLOOKUP(G862,Insumos!G:H,2,FALSE))","v":""}]
[null,null,null,null,null,{"$f":"IF(E863=\"\",\"\",VLOOKUP(E863,Insumos!AD:AE,2,FALSE))","v":""},null,{"$f":"IF(G863=\"\",\"\",VLOOKUP(G863,Insumos!G:H,2,FALSE))","v":""}]
[null,null,null,null,null,{"$f":"IF(E864=\"\",\"\",VLOOKUP(E864,Insumos!AD:AE,2,FALSE))","v":""},null,{"$f":"IF(G864=\"\",\"\",VLOOKUP(G864,Insumos!G:H,2,FALSE))","v":""}]
[null,null,null,null,null,{"$f":"IF(E865=\"\",\"\",VLOOKUP(E865,Insumos!AD:AE,2,FALSE))","v":""},null,{"$f":"IF(G865=\"\",\"\",VLOOKUP(G865,Insumos!G:H,2,FALSE))","v":""}]
[null,null,null,null,null,{"$f":"IF(E866=\"\",\"\",VLOOKUP(E866,Insumos!AD:AE,2,FALSE))","v":""},null,{"$f":"IF(G866=\"\",\"\",VLOOKUP(G866,Insumos!G:H,2,FALSE))","v":""}]
[null,null,null,null,null,{"$f":"IF(E867=\"\",\"\",VLOOKUP(E867,Insumos!AD:AE,2,FALSE))","v":""},null,{"$f":"IF(G867=\"\",\"\",VLOOKUP(G867,Insumos!G:H,2,FALSE))","v":""}]
[null,null,null,null,null,{"$f":"IF(E868=\"\",\"\",VLOOKUP(E868,Insumos!AD:AE,2,FALSE))","v":""},null,{"$f":"IF(G868=\"\",\"\",VLOOKUP(G868,Insumos!G:H,2,FALSE))","v":""}]
[null,null,null,null,null,{"$f":"IF(E869=\"\",\"\",VLOOKUP(E869,Insumos!AD:AE,2,FALSE))","v":""},null,{"$f":"IF(G869=\"\",\"\",VLOOKUP(G869,Insumos!G:H,2,FALSE))","v":""}]
[null,null,null,null,null,{"$f":"IF(E870=\"\",\"\",VLOOKUP(E870,Insumos!AD:AE,2,FALSE))","v":""},null,{"$f":"IF(G870=\"\",\"\",VLOOKUP(G870,Insumos!G:H,2,FALSE))","v":""}]
[null,null,null,null,null,{"$f":"IF(E871=\"\",\"\",VLOOKUP(E871,Insumos!AD:AE,2,FALSE))","v":""},null,{"$f":"IF(G871=\"\",\"\",VLOOKUP(G871,Insumos!G:H,2,FALSE))","v":""}]
[null,null,null,null,null,{"$f":"IF(E872=\"\",\"\",VLOOKUP(E872,Insumos!AD:AE,2,FALSE))","v":""},null,{"$f":"IF(G872=\"\",\"\",VLOOKUP(G872,Insumos!G:H,2,FALSE))","v":""}]
[null,null,null,null,null,{"$f":"IF(E873=\"\",\"\",VLOOKUP(E873,Insumos!AD:AE,2,FALSE))","v":""},null,{"$f":"IF(G873=\"\",\"\",VLOOKUP(G873,Insumos!G:H,2,FALSE))","v":""}]
[null,null,null,null,null,{"$f":"IF(E874=\"\",\"\",VLOOKUP(E874,Insumos!AD:AE,2,FALSE))","v":""},null,{"$f":"IF(G874=\"\",\"\",VLOOKUP(G874,Insumos!G:H,2,FALSE))","v":""}]
[null,null,null,null,null,{"$f":"IF(E875=\"\",\"\",VLOOKUP(E875,Insumos!AD:AE,2,FALSE))","v":""},null,{"$f":"IF(G875=\"\",\"\",VLOOKUP(G875,Insumos!G:H,2,FALSE))","v":""}]
[null,null,null,null,null,{"$f":"IF(E876=\"\",\"\",VLOOKUP(E876,Insumos!AD:AE,2,FALSE))","v":""},null,{"$f":"IF(G876=\"\",\"\",VLOOKUP(G876,Insumos!G:H,2,FALSE))","v":""}]
[null,null,null,null,null,{"$f":"IF(E877=\"\",\"\",VLOOKUP(E877,Insumos!AD:AE,2,FALSE))","v":""},null,{"$f":"IF(G877=\"\",\"\",VLOOKUP(G877,Insumos!G:H,2,FALSE))","v":""}]
[null,null,null,null,null,{"$f":"IF(E878=\"\",\"\",VLOOKUP(E878,Insumos!AD:AE,2,FALSE))","v":""},null,{"$f":"IF(G878=\"\",\"\",VLOOKUP(G878,Insumos!G:H,2,FALSE))","v":""}]
[null,null,null,null,null,{"$f":"IF(E879=\"\",\"\",VLOOKUP(E879,Insumos!AD:AE,2,FALSE))","v":""},null,{"$f":"IF(G879=\"\",\"\",VLOOKUP(G879,Insumos!G:H,2,FALSE))","v":""}]
[null,null,null,null,null,{"$f":"IF(E880=\"\",\"\",VLOOKUP(E880,Insumos!AD:AE,2,FALSE))","v":""},null,{"$f":"IF(G880=\"\",\"\",VLOOKUP(G880,Insumos!G:H,2,FALSE))","v":""}]
[null,null,null,null,null,{"$f":"IF(E881=\"\",\"\",VLOOKUP(E881,Insumos!AD:AE,2,FALSE))","v":""},null,{"$f":"IF(G881=\"\",\"\",VLOOKUP(G881,Insumos!G:H,2,FALSE))","v":""}]
[null,null,null,null,null,{"$f":"IF(E882=\"\",\"\",VLOOKUP(E882,Insumos!AD:AE,2,FALSE))","v":""},null,{"$f":"IF(G882=\"\",\"\",VLOOKUP(G882,Insumos!G:H,2,FALSE))","v":""}]
[null,null,null,null,null,{"$f":"IF(E883=\"\",\"\",VLOOKUP(E883,Insumos!AD:AE,2,FALSE))","v":""},null,{"$f":"IF(G883=\"\",\"\",VLOOKUP(G883,Insumos!G:H,2,FALSE))","v":""}]
[null,null,null,null,null,{"$f":"IF(E884=\"\",\"\",VLOOKUP(E884,Insumos!AD:AE,2,FALSE))","v":""},null,{"$f":"IF(G884=\"\",\"\",VLOOKUP(G884,Insumos!G:H,2,FALSE))","v":""}]
[null,null,null,null,null,{"$f":"IF(E885=\"\",\"\",VLOOKUP(E885,Insumos!AD:AE,2,FALSE))","v":""},null,{"$f":"IF(G885=\"\",\"\",VLOOKUP(G885,Insumos!G:H,2,FALSE))","v":""}]
[null,null,null,null,null,{"$f":"IF(E886=\"\",\"\",VLOOKUP(E886,Insumos!AD:AE,2,FALSE))","v":""},null,{"$f":"IF(G886=\"\",\"\",VLOOKUP(G886,Insumos!G:H,2,FALSE))","v":""}]
[null,null,null,null,null,{"$f":"IF(E887=\"\",\"\",VLOOKUP(E887,Insumos!AD:AE,2,FALSE))","v":""},null,{"$f":"IF(G887=\"\",\"\",VLOOKUP(G887,Insumos!G:H,2,FALSE))","v":""}]
[null,null,null,null,null,{"$f":"IF(E888=\"\",\"\",VLOOKUP(E888,Insumos!AD:AE,2,FALSE))","v":""},null,{"$f":"IF(G888=\"\",\"\",VLOOKUP(G888,Insumos!G:H,2,FALSE))","v":""}]
[null,null,null,null,null,{"$f":"IF(E889=\"\",\"\",VLOOKUP(E889,Insumos!AD:AE,2,FALSE))","v":""},null,{"$f":"IF(G889=\"\",\"\",VLOOKUP(G889,Insumos!G:H,2,FALSE))","v":""}]
[null,null,null,null,null,{"$f":"IF(E890=\"\",\"\",VLOOKUP(E890,Insumos!AD:AE,2,FALSE))","v":""},null,{"$f":"IF(G890=\"\",\"\",VLOOKUP(G890,Insumos!G:H,2,FALSE))","v":""}]
[null,null,null,null,null,{"$f":"IF(E891=\"\",\"\",VLOOKUP(E891,Insumos!AD:AE,2,FALSE))","v":""},null,{"$f":"IF(G891=\"\",\"\",VLOOKUP(G891,Insumos!G:H,2,FALSE))","v":""}]
[null,null,null,null,null,{"$f":"IF(E892=\"\",\"\",VLOOKUP(E892,Insumos!AD:AE,2,FALSE))","v":""},null,{"$f":"IF(G892=\"\",\"\",VLOOKUP(G892,Insumos!G:H,2,FALSE))","v":""}]
[null,null,null,null,null,{"$f":"IF(E893=\"\",\"\",VLOOKUP(E893,Insumos!AD:AE,2,FALSE))","v":""},null,{"$f":"IF(G893=\"\",\"\",VLOOKUP(G893,Insumos!G:H,2,FALSE))","v":""}]
[null,null,null,null,null,{"$f":"IF(E894=\"\",\"\",VLOOKUP(E894,Insumos!AD:AE,2,FALSE))","v":""},null,{"$f":"IF(G894=\"\",\"\",VLOOKUP(G894,Insumos!G:H,2,FALSE))","v":""}]
[null,null,null,null,null,{"$f":"IF(E895=\"\",\"\",VLOOKUP(E895,Insumos!AD:AE,2,FALSE))","v":""},null,{"$f":"IF(G895=\"\",\"\",VLOOKUP(G895,Insumos!G:H,2,FALSE))","v":""}]
[null,null,null,null,null,{"$f":"IF(E896=\"\",\"\",VLOOKUP(E896,Insumos!AD:AE,2,FALSE))","v":""},null,{"$f":"IF(G896=\"\",\"\",VLOOKUP(G896,Insumos!G:H,2,FALSE))","v":""}]
[null,null,null,null,null,{"$f":"IF(E897=\"\",\"\",VLOOKUP(E897,Insumos!AD:AE,2,FALSE))","v":""},null,{"$f":"IF(G897=\"\",\"\",VLOOKUP(G897,Insumos!G:H,2,FALSE))","v":""}]
[null,null,null,null,null,{"$f":"IF(E898=\"\",\"\",VLOOKUP(E898,Insumos!AD:AE,2,FALSE))","v":""},null,{"$f":"IF(G898=\"\",\"\",VLOOKUP(G898,Insumos!G:H,2,FALSE))","v":""}]
[null,null,null,null,null,{"$f":"IF(E899=\"\",\"\",VLOOKUP(E899,Insumos!AD:AE,2,FALSE))","v":""},null,{"$f":"IF(G899=\"\",\"\",VLOOKUP(G899,Insumos!G:H,2,FALSE))","v":""}]
[null,null,null,null,null,{"$f":"IF(E900=\"\",\"\",VLOOKUP(E900,Insumos!AD:AE,2,FALSE))","v":""},null,{"$f":"IF(G900=\"\",\"\",VLOOKUP(G900,Insumos!G:H,2,FALSE))","v":""}]
[null,null,null,null,null,{"$f":"IF(E901=\"\",\"\",VLOOKUP(E901,Insumos!AD:AE,2,FALSE))","v":""},null,{"$f":"IF(G901=\"\",\"\",VLOOKUP(G901,Insumos!G:H,2,FALSE))","v":""}]
[null,null,null,null,null,{"$f":"IF(E902=\"\",\"\",VLOOKUP(E902,Insumos!AD:AE,2,FALSE))","v":""},null,{"$f":"IF(G902=\"\",\"\",VLOOKUP(G902,Insumos!G:H,2,FALSE))","v":""}]
[null,null,null,null,null,{"$f":"IF(E903=\"\",\"\",VLOOKUP(E903,Insumos!AD:AE,2,FALSE))","v":""},null,{"$f":"IF(G903=\"\",\"\",VLOOKUP(G903,Insumos!G:H,2,FALSE))","v":""}]
[null,null,null,null,null,{"$f":"IF(E904=\"\",\"\",VLOOKUP(E904,Insumos!AD:AE,2,FALSE))","v":""},null,{"$f":"IF(G904=\"\",\"\",VLOOKUP(G904,Insumos!G:H,2,FALSE))","v":""}]
[null,null,null,null,null,{"$f":"IF(E905=\"\",\"\",VLOOKUP(E905,Insumos!AD:AE,2,FALSE))","v":""},null,{"$f":"IF(G905=\"\",\"\",VLOOKUP(G905,Insumos!G:H,2,FALSE))","v":""}]
[null,null,null,null,null,{"$f":"IF(E906=\"\",\"\",VLOOKUP(E906,Insumos!AD:AE,2,FALSE))","v":""},null,{"$f":"IF(G906=\"\",\"\",VLOOKUP(G906,Insumos!G:H,2,FALSE))","v":""}]
[null,null,null,null,null,{"$f":"IF(E907=\"\",\"\",VLOOKUP(E907,Insumos!AD:AE,2,FALSE))","v":""},null,{"$f":"IF(G907=\"\",\"\",VLOOKUP(G907,Insumos!G:H,2,FALSE))","v":""}]
[null,null,null,null,null,{"$f":"IF(E908=\"\",\"\",VLOOKUP(E908,Insumos!AD:AE,2,FALSE))","v":""},null,{"$f":"IF(G908=\"\",\"\",VLOOKUP(G908,Insumos!G:H,2,FALSE))","v":""}]
[null,null,null,null,null,{"$f":"IF(E909=\"\",\"\",VLOOKUP(E909,Insumos!AD:AE,2,FALSE))","v":""},null,{"$f":"IF(G909=\"\",\"\",VLOOKUP(G909,Insumos!G:H,2,FALSE))","v":""}]
[null,null,null,null,null,{"$f":"IF(E910=\"\",\"\",VLOOKUP(E910,Insumos!AD:AE,2,FALSE))","v":""},null,{"$f":"IF(G910=\"\",\"\",VLOOKUP(G910,Insumos!G:H,2,FALSE))","v":""}]
[null,null,null,null,null,{"$f":"IF(E911=\"\",\"\",VLOOKUP(E911,Insumos!AD:AE,2,FALSE))","v":""},null,{"$f":"IF(G911=\"\",\"\",VLOOKUP(G911,Insumos!G:H,2,FALSE))","v":""}]
[null,null,null,null,null,{"$f":"IF(E912=\"\",\"\",VLOOKUP(E912,Insumos!AD:AE,2,FALSE))","v":""},null,{"$f":"IF(G912=\"\",\"\",VLOOKUP(G912,Insumos!G:H,2,FALSE))","v":""}]
[null,null,null,null,null,{"$f":"IF(E913=\"\",\"\",VLOOKUP(E913,Insumos!AD:AE,2,FALSE))","v":""},null,{"$f":"IF(G913=\"\",\"\",VLOOKUP(G913,Insumos!G:H,2,FALSE))","v":""}]
[null,null,null,null,null,{"$f":"IF(E914=\"\",\"\",VLOOKUP(E914,Insumos!AD:AE,2,FALSE))","v":""},null,{"$f":"IF(G914=\"\",\"\",VLOOKUP(G914,Insumos!G:H,2,FALSE))","v":""}]
[null,null,null,null,null,{"$f":"IF(E915=\"\",\"\",VLOOKUP(E915,Insumos!AD:AE,2,FALSE))","v":""},null,{"$f":"IF(G915=\"\",\"\",VLOOKUP(G915,Insumos!G:H,2,FALSE))","v":""}]
[null,null,null,null,null,{"$f":"IF(E916=\"\",\"\",VLOOKUP(E916,Insumos!AD:AE,2,FALSE))","v":""},null,{"$f":"IF(G916=\"\",\"\",VLOOKUP(G916,Insumos!G:H,2,FALSE))","v":""}]
[null,null,null,null,null,{"$f":"IF(E917=\"\",\"\",VLOOKUP(E917,Insumos!AD:AE,2,FALSE))","v":""},null,{"$f":"IF(G917=\"\",\"\",VLOOKUP(G917,Insumos!G:H,2,FALSE))","v":""}]
[null,null,null,null,null,{"$f":"IF(E918=\"\",\"\",VLOOKUP(E918,Insumos!AD:AE,2,FALSE))","v":""},null,{"$f":"IF(G918=\"\",\"\",VLOOKUP(G918,Insumos!G:H,2,FALSE))","v":""}]
[null,null,null,null,null,{"$f":"IF(E919=\"\",\"\",VLOOKUP(E919,Insumos!AD:AE,2,FALSE))","v":""},null,{"$f":"IF(G919=\"\",\"\",VLOOKUP(G919,Insumos!G:H,2,FALSE))","v":""}]
[null,null,null,null,null,{"$f":"IF(E920=\"\",\"\",VLOOKUP(E920,Insumos!AD:AE,2,FALSE))","v":""},null,{"$f":"IF(G920=\"\",\"\",VLOOKUP(G920,Insumos!G:H,2,FALSE))","v":""}]
[null,null,null,null,null,{"$f":"IF(E921=\"\",\"\",VLOOKUP(E921,Insumos!AD:AE,2,FALSE))","v":""},null,{"$f":"IF(G921=\"\",\"\",VLOOKUP(G921,Insumos!G:H,2,FALSE))","v":""}]
[null,null,null,null,null,{"$f":"IF(E922=\"\",\"\",VLOOKUP(E922,Insumos!AD:AE,2,FALSE))","v":""},null,{"$f":"IF(G922=\"\",\"\",VLOOKUP(G922,Insumos!G:H,2,FALSE))","v":""}]
[null,null,null,null,null,{"$f":"IF(E923=\"\",\"\",VLOOKUP(E923,Insumos!AD:AE,2,FALSE))","v":""},null,{"$f":"IF(G923=\"\",\"\",VLOOKUP(G923,Insumos!G:H,2,FALSE))","v":""}]
[null,null,null,null,null,{"$f":"IF(E924=\"\",\"\",VLOOKUP(E924,Insumos!AD:AE,2,FALSE))","v":""},null,{"$f":"IF(G924=\"\",\"\",VLOOKUP(G924,Insumos!G:H,2,FALSE))","v":""}]
[null,null,null,null,null,{"$f":"IF(E925=\"\",\"\",VLOOKUP(E925,Insumos!AD:AE,2,FALSE))","v":""},null,{"$f":"IF(G925=\"\",\"\",VLOOKUP(G925,Insumos!G:H,2,FALSE))","v":""}]
[null,null,null,null,null,{"$f":"IF(E926=\"\",\"\",VLOOKUP(E926,Insumos!AD:AE,2,FALSE))","v":""},null,{"$f":"IF(G926=\"\",\"\",VLOOKUP(G926,Insumos!G:H,2,FALSE))","v":""}]
[null,null,null,null,null,{"$f":"IF(E927=\"\",\"\",VLOOKUP(E927,Insumos!AD:AE,2,FALSE))","v":""},null,{"$f":"IF(G927=\"\",\"\",VLOOKUP(G927,Insumos!G:H,2,FALSE))","v":""}]
[null,null,null,null,null,{"$f":"IF(E928=\"\",\"\",VLOOKUP(E928,Insumos!AD:AE,2,FALSE))","v":""},null,{"$f":"IF(G928=\"\",\"\",VLOOKUP(G928,Insumos!G:H,2,FALSE))","v":""}]
[null,null,null,null,null,{"$f":"IF(E929=\"\",\"\",VLOOKUP(E929,Insumos!AD:AE,2,FALSE))","v":""},null,{"$f":"IF(G929=\"\",\"\",VLOOKUP(G929,Insumos!G:H,2,FALSE))","v":""}]
[null,null,null,null,null,{"$f":"IF(E930=\"\",\"\",VLOOKUP(E930,Insumos!AD:AE,2,FALSE))","v":""},null,{"$f":"IF(G930=\"\",\"\",VLOOKUP(G930,Insumos!G:H,2,FALSE))","v":""}]
[null,null,null,null,null,{"$f":"IF(E931=\"\",\"\",VLOOKUP(E931,Insumos!AD:AE,2,FALSE))","v":""},null,{"$f":"IF(G931=\"\",\"\",VLOOKUP(G931,Insumos!G:H,2,FALSE))","v":""}]
[null,null,null,null,null,{"$f":"IF(E932=\"\",\"\",VLOOKUP(E932,Insumos!AD:AE,2,FALSE))","v":""},null,{"$f":"IF(G932=\"\",\"\",VLOOKUP(G932,Insumos!G:H,2,FALSE))","v":""}]
[null,null,null,null,null,{"$f":"IF(E933=\"\",\"\",VLOOKUP(E933,Insumos!AD:AE,2,FALSE))","v":""},null,{"$f":"IF(G933=\"\",\"\",VLOOKUP(G933,Insumos!G:H,2,FALSE))","v":""}]
[null,null,null,null,null,{"$f":"IF(E934=\"\",\"\",VLOOKUP(E934,Insumos!AD:AE,2,FALSE))","v":""},null,{"$f":"IF(G934=\"\",\"\",VLOOKUP(G934,Insumos!G:H,2,FALSE))","v":""}]
[null,null,null,null,null,{"$f":"IF(E935=\"\",\"\",VLOOKUP(E935,Insumos!AD:AE,2,FALSE))","v":""},null,{"$f":"IF(G935=\"\",\"\",VLOOKUP(G935,Insumos!G:H,2,FALSE))","v":""}]
[null,null,null,null,null,{"$f":"IF(E936=\"\",\"\",VLOOKUP(E936,Insumos!AD:AE,2,FALSE))","v":""},null,{"$f":"IF(G936=\"\",\"\",VLOOKUP(G936,Insumos!G:H,2,FALSE))","v":""}]
[null,null,null,null,null,{"$f":"IF(E937=\"\",\"\",VLOOKUP(E937,Insumos!AD:AE,2,FALSE))","v":""},null,{"$f":"IF(G937=\"\",\"\",VLOOKUP(G937,Insumos!G:H,2,FALSE))","v":""}]
[null,null,null,null,null,{"$f":"IF(E938=\"\",\"\",VLOOKUP(E938,Insumos!AD:AE,2,FALSE))","v":""},null,{"$f":"IF(G938=\"\",\"\",VLOOKUP(G938,Insumos!G:H,2,FALSE))","v":""}]
[null,null,null,null,null,{"$f":"IF(E939=\"\",\"\",VLOOKUP(E939,Insumos!AD:AE,2,FALSE))","v":""},null,{"$f":"IF(G939=\"\",\"\",VLOOKUP(G939,Insumos!G:H,2,FALSE))","v":""}]
[null,null,null,null,null,{"$f":"IF(E940=\"\",\"\",VLOOKUP(E940,Insumos!AD:AE,2,FALSE))","v":""},null,{"$f":"IF(G940=\"\",\"\",VLOOKUP(G940,Insumos!G:H,2,FALSE))","v":""}]
[null,null,null,null,null,{"$f":"IF(E941=\"\",\"\",VLOOKUP(E941,Insumos!AD:AE,2,FALSE))","v":""},null,{"$f":"IF(G941=\"\",\"\",VLOOKUP(G941,Insumos!G:H,2,FALSE))","v":""}]
[null,null,null,null,null,{"$f":"IF(E942=\"\",\"\",VLOOKUP(E942,Insumos!AD:AE,2,FALSE))","v":""},null,{"$f":"IF(G942=\"\",\"\",VLOOKUP(G942,Insumos!G:H,2,FALSE))","v":""}]
[null,null,null,null,null,{"$f":"IF(E943=\"\",\"\",VLOOKUP(E943,Insumos!AD:AE,2,FALSE))","v":""},null,{"$f":"IF(G943=\"\",\"\",VLOOKUP(G943,Insumos!G:H,2,FALSE))","v":""}]
[null,null,null,null,null,{"$f":"IF(E944=\"\",\"\",VLOOKUP(E944,Insumos!AD:AE,2,FALSE))","v":""},null,{"$f":"IF(G944=\"\",\"\",VLOOKUP(G944,Insumos!G:H,2,FALSE))","v":""}]
[null,null,null,null,null,{"$f":"IF(E945=\"\",\"\",VLOOKUP(E945,Insumos!AD:AE,2,FALSE))","v":""},null,{"$f":"IF(G945=\"\",\"\",VLOOKUP(G945,Insumos!G:H,2,FALSE))","v":""}]
[null,null,null,null,null,{"$f":"IF(E946=\"\",\"\",VLOOKUP(E946,Insumos!AD:AE,2,FALSE))","v":""},null,{"$f":"IF(G946=\"\",\"\",VLOOKUP(G946,Insumos!G:H,2,FALSE))","v":""}]
[null,null,null,null,null,{"$f":"IF(E947=\"\",\"\",VLOOKUP(E947,Insumos!AD:AE,2,FALSE))","v":""},null,{"$f":"IF(G947=\"\",\"\",VLOOKUP(G947,Insumos!G:H,2,FALSE))","v":""}]
[null,null,null,null,null,{"$f":"IF(E948=\"\",\"\",VLOOKUP(E948,Insumos!AD:AE,2,FALSE))","v":""},null,{"$f":"IF(G948=\"\",\"\",VLOOKUP(G948,Insumos!G:H,2,FALSE))","v":""}]
[null,null,null,null,null,{"$f":"IF(E949=\"\",\"\",VLOOKUP(E949,Insumos!AD:AE,2,FALSE))","v":""},null,{"$f":"IF(G949=\"\",\"\",VLOOKUP(G949,Insumos!G:H,2,FALSE))","v":""}]
[null,null,null,null,null,{"$f":"IF(E950=\"\",\"\",VLOOKUP(E950,Insumos!AD:AE,2,FALSE))","v":""},null,{"$f":"IF(G950=\"\",\"\",VLOOKUP(G950,Insumos!G:H,2,FALSE))","v":""}]
[null,null,null,null,null,{"$f":"IF(E951=\"\",\"\",VLOOKUP(E951,Insumos!AD:AE,2,FALSE))","v":""},null,{"$f":"IF(G951=\"\",\"\",VLOOKUP(G951,Insumos!G:H,2,FALSE))","v":""}]
[null,null,null,null,null,{"$f":"IF(E952=\"\",\"\",VLOOKUP(E952,Insumos!AD:AE,2,FALSE))","v":""},null,{"$f":"IF(G952=\"\",\"\",VLOOKUP(G952,Insumos!G:H,2,FALSE))","v":""}]
[null,null,null,null,null,{"$f":"IF(E953=\"\",\"\",VLOOKUP(E953,Insumos!AD:AE,2,FALSE))","v":""},null,{"$f":"IF(G953=\"\",\"\",VLOOKUP(G953,Insumos!G:H,2,FALSE))","v":""}]
[null,null,null,null,null,{"$f":"IF(E954=\"\",\"\",VLOOKUP(E954,Insumos!AD:AE,2,FALSE))","v":""},null,{"$f":"IF(G954=\"\",\"\",VLOOKUP(G954,Insumos!G:H,2,FALSE))","v":""}]
[null,null,null,null,null,{"$f":"IF(E955=\"\",\"\",VLOOKUP(E955,Insumos!AD:AE,2,FALSE))","v":""},null,{"$f":"IF(G955=\"\",\"\",VLOOKUP(G955,Insumos!G:H,2,FALSE))","v":""}]
[null,null,null,null,null,{"$f":"IF(E956=\"\",\"\",VLOOKUP(E956,Insumos!AD:AE,2,FALSE))","v":""},null,{"$f":"IF(G956=\"\",\"\",VLOOKUP(G956,Insumos!G:H,2,FALSE))","v":""}]
[null,null,null,null,null,{"$f":"IF(E957=\"\",\"\",VLOOKUP(E957,Insumos!AD:AE,2,FALSE))","v":""},null,{"$f":"IF(G957=\"\",\"\",VLOOKUP(G957,Insumos!G:H,2,FALSE))","v":""}]
[null,null,null,null,null,{"$f":"IF(E958=\"\",\"\",VLOOKUP(E958,Insumos!AD:AE,2,FALSE))","v":""},null,{"$f":"IF(G958=\"\",\"\",VLOOKUP(G958,Insumos!G:H,2,FALSE))","v":""}]
[null,null,null,null,null,{"$f":"IF(E959=\"\",\"\",VLOOKUP(E959,Insumos!AD:AE,2,FALSE))","v":""},null,{"$f":"IF(G959=\"\",\"\",VLOOKUP(G959,Insumos!G:H,2,FALSE))","v":""}]
[null,null,null,null,null,{"$f":"IF(E960=\"\",\"\",VLOOKUP(E960,Insumos!AD:AE,2,FALSE))","v":""},null,{"$f":"IF(G960=\"\",\"\",VLOOKUP(G960,Insumos!G:H,2,FALSE))","v":""}]
[null,null,null,null,null,{"$f":"IF(E961=\"\",\"\",VLOOKUP(E961,Insumos!AD:AE,2,FALSE))","v":""},null,{"$f":"IF(G961=\"\",\"\",VLOOKUP(G961,Insumos!G:H,2,FALSE))","v":""}]
[null,null,null,null,null,{"$f":"IF(E962=\"\",\"\",VLOOKUP(E962,Insumos!AD:AE,2,FALSE))","v":""},null,{"$f":"IF(G962=\"\",\"\",VLOOKUP(G962,Insumos!G:H,2,FALSE))","v":""}]
[null,null,null,null,null,{"$f":"IF(E963=\"\",\"\",VLOOKUP(E963,Insumos!AD:AE,2,FALSE))","v":""},null,{"$f":"IF(G963=\"\",\"\",VLOOKUP(G963,Insumos!G:H,2,FALSE))","v":""}]
[null,null,null,null,null,{"$f":"IF(E964=\"\",\"\",VLOOKUP(E964,Insumos!AD:AE,2,FALSE))","v":""},null,{"$f":"IF(G964=\"\",\"\",VLOOKUP(G964,Insumos!G:H,2,FALSE))","v":""}]
[null,null,null,null,null,{"$f":"IF(E965=\"\",\"\",VLOOKUP(E965,Insumos!AD:AE,2,FALSE))","v":""},null,{"$f":"IF(G965=\"\",\"\",VLOOKUP(G965,Insumos!G:H,2,FALSE))","v":""}]
[null,null,null,null,null,{"$f":"IF(E966=\"\",\"\",VLOOKUP(E966,Insumos!AD:AE,2,FALSE))","v":""},null,{"$f":"IF(G966=\"\",\"\",VLOOKUP(G966,Insumos!G:H,2,FALSE))","v":""}]
[null,null,null,null,null,{"$f":"IF(E967=\"\",\"\",VLOOKUP(E967,Insumos!AD:AE,2,FALSE))","v":""},null,{"$f":"IF(G967=\"\",\"\",VLOOKUP(G967,Insumos!G:H,2,FALSE))","v":""}]
[null,null,null,null,null,{"$f":"IF(E968=\"\",\"\",VLOOKUP(E968,Insumos!AD:AE,2,FALSE))","v":""},null,{"$f":"IF(G968=\"\",\"\",VLOOKUP(G968,Insumos!G:H,2,FALSE))","v":""}]
[null,null,null,null,null,{"$f":"IF(E969=\"\",\"\",VLOOKUP(E969,Insumos!AD:AE,2,FALSE))","v":""},null,{"$f":"IF(G969=\"\",\"\",VLOOKUP(G969,Insumos!G:H,2,FALSE))","v":""}]
[null,null,null,null,null,{"$f":"IF(E970=\"\",\"\",VLOOKUP(E970,Insumos!AD:AE,2,FALSE))","v":""},null,{"$f":"IF(G970=\"\",\"\",VLOOKUP(G970,Insumos!G:H,2,FALSE))","v":""}]
[null,null,null,null,null,{"$f":"IF(E971=\"\",\"\",VLOOKUP(E971,Insumos!AD:AE,2,FALSE))","v":""},null,{"$f":"IF(G971=\"\",\"\",VLOOKUP(G971,Insumos!G:H,2,FALSE))","v":""}]
[null,null,null,null,null,{"$f":"IF(E972=\"\",\"\",VLOOKUP(E972,Insumos!AD:AE,2,FALSE))","v":""},null,{"$f":"IF(G972=\"\",\"\",VLOOKUP(G972,Insumos!G:H,2,FALSE))","v":""}]
[null,null,null,null,null,{"$f":"IF(E973=\"\",\"\",VLOOKUP(E973,Insumos!AD:AE,2,FALSE))","v":""},null,{"$f":"IF(G973=\"\",\"\",VLOOKUP(G973,Insumos!G:H,2,FALSE))","v":""}]
[null,null,null,null,null,{"$f":"IF(E974=\"\",\"\",VLOOKUP(E974,Insumos!AD:AE,2,FALSE))","v":""},null,{"$f":"IF(G974=\"\",\"\",VLOOKUP(G974,Insumos!G:H,2,FALSE))","v":""}]
[null,null,null,null,null,{"$f":"IF(E975=\"\",\"\",VLOOKUP(E975,Insumos!AD:AE,2,FALSE))","v":""},null,{"$f":"IF(G975=\"\",\"\",VLOOKUP(G975,Insumos!G:H,2,FALSE))","v":""}]
[null,null,null,null,null,{"$f":"IF(E976=\"\",\"\",VLOOKUP(E976,Insumos!AD:AE,2,FALSE))","v":""},null,{"$f":"IF(G976=\"\",\"\",VLOOKUP(G976,Insumos!G:H,2,FALSE))","v":""}]
[null,null,null,null,null,{"$f":"IF(E977=\"\",\"\",VLOOKUP(E977,Insumos!AD:AE,2,FALSE))","v":""},null,{"$f":"IF(G977=\"\",\"\",VLOOKUP(G977,Insumos!G:H,2,FALSE))","v":""}]
[null,null,null,null,null,{"$f":"IF(E978=\"\",\"\",VLOOKUP(E978,Insumos!AD:AE,2,FALSE))","v":""},null,{"$f":"IF(G978=\"\",\"\",VLOOKUP(G978,Insumos!G:H,2,FALSE))","v":""}]
[null,null,null,null,null,{"$f":"IF(E979=\"\",\"\",VLOOKUP(E979,Insumos!AD:AE,2,FALSE))","v":""},null,{"$f":"IF(G979=\"\",\"\",VLOOKUP(G979,Insumos!G:H,2,FALSE))","v":""}]
[null,null,null,null,null,{"$f":"IF(E980=\"\",\"\",VLOOKUP(E980,Insumos!AD:AE,2,FALSE))","v":""},null,{"$f":"IF(G980=\"\",\"\",VLOOKUP(G980,Insumos!G:H,2,FALSE))","v":""}]
[null,null,null,null,null,{"$f":"IF(E981=\"\",\"\",VLOOKUP(E981,Insumos!AD:AE,2,FALSE))","v":""},null,{"$f":"IF(G981=\"\",\"\",VLOOKUP(G981,Insumos!G:H,2,FALSE))","v":""}]
[null,null,null,null,null,{"$f":"IF(E982=\"\",\"\",VLOOKUP(E982,Insumos!AD:AE,2,FALSE))","v":""},null,{"$f":"IF(G982=\"\",\"\",VLOOKUP(G982,Insumos!G:H,2,FALSE))","v":""}]
[null,null,null,null,null,{"$f":"IF(E983=\"\",\"\",VLOOKUP(E983,Insumos!AD:AE,2,FALSE))","v":""},null,{"$f":"IF(G983=\"\",\"\",VLOOKUP(G983,Insumos!G:H,2,FALSE))","v":""}]
[null,null,null,null,null,{"$f":"IF(E984=\"\",\"\",VLOOKUP(E984,Insumos!AD:AE,2,FALSE))","v":""},null,{"$f":"IF(G984=\"\",\"\",VLOOKUP(G984,Insumos!G:H,2,FALSE))","v":""}]
[null,null,null,null,null,{"$f":"IF(E985=\"\",\"\",VLOOKUP(E985,Insumos!AD:AE,2,FALSE))","v":""},null,{"$f":"IF(G985=\"\",\"\",VLOOKUP(G985,Insumos!G:H,2,FALSE))","v":""}]
[null,null,null,null,null,{"$f":"IF(E986=\"\",\"\",VLOOKUP(E986,Insumos!AD:AE,2,FALSE))","v":""},null,{"$f":"IF(G986=\"\",\"\",VLOOKUP(G986,Insumos!G:H,2,FALSE))","v":""}]
[null,null,null,null,null,{"$f":"IF(E987=\"\",\"\",VLOOKUP(E987,Insumos!AD:AE,2,FALSE))","v":""},null,{"$f":"IF(G987=\"\",\"\",VLOOKUP(G987,Insumos!G:H,2,FALSE))","v":""}]
[null,null,null,null,null,{"$f":"IF(E988=\"\",\"\",VLOOKUP(E988,Insumos!AD:AE,2,FALSE))","v":""},null,{"$f":"IF(G988=\"\",\"\",VLOOKUP(G988,Insumos!G:H,2,FALSE))","v":""}]
[null,null,null,null,null,{"$f":"IF(E989=\"\",\"\",VLOOKUP(E989,Insumos!AD:AE,2,FALSE))","v":""},null,{"$f":"IF(G989=\"\",\"\",VLOOKUP(G989,Insumos!G:H,2,FALSE))","v":""}]
[null,null,null,null,null,{"$f":"IF(E990=\"\",\"\",VLOOKUP(E990,Insumos!AD:AE,2,FALSE))","v":""},null,{"$f":"IF(G990=\"\",\"\",VLOOKUP(G990,Insumos!G:H,2,FALSE))","v":""}]
[null,null,null,null,null,{"$f":"IF(E991=\"\",\"\",VLOOKUP(E991,Insumos!AD:AE,2,FALSE))","v":""},null,{"$f":"IF(G991=\"\",\"\",VLOOKUP(G991,Insumos!G:H,2,FALSE))","v":""}]
[null,null,null,null,null,{"$f":"IF(E992=\"\",\"\",VLOOKUP(E992,Insumos!AD:AE,2,FALSE))","v":""},null,{"$f":"IF(G992=\"\",\"\",VLOOKUP(G992,Insumos!G:H,2,FALSE))","v":""}]
[null,null,null,null,null,{"$f":"IF(E993=\"\",\"\",VLOOKUP(E993,Insumos!AD:AE,2,FALSE))","v":""},null,{"$f":"IF(G993=\"\",\"\",VLOOKUP(G993,Insumos!G:H,2,FALSE))","v":""}]
[null,null,null,null,null,{"$f":"IF(E994=\"\",\"\",VLOOKUP(E994,Insumos!AD:AE,2,FALSE))","v":""},null,{"$f":"IF(G994=\"\",\"\",VLOOKUP(G994,Insumos!G:H,2,FALSE))","v":""}]
[null,null,null,null,null,{"$f":"IF(E995=\"\",\"\",VLOOKUP(E995,Insumos!AD:AE,2,FALSE))","v":""},null,{"$f":"IF(G995=\"\",\"\",VLOOKUP(G995,Insumos!G:H,2,FALSE))","v":""}]
[null,null,null,null,null,{"$f":"IF(E996=\"\",\"\",VLOOKUP(E996,Insumos!AD:AE,2,FALSE))","v":""},null,{"$f":"IF(G996=\"\",\"\",VLOOKUP(G996,Insumos!G:H,2,FALSE))","v":""}]
[null,null,null,null,null,{"$f":"IF(E997=\"\",\"\",VLOOKUP(E997,Insumos!AD:AE,2,FALSE))","v":""},null,{"$f":"IF(G997=\"\",\"\",VLOOKUP(G997,Insumos!G:H,2,FALSE))","v":""}]
[null,null,null,null,null,{"$f":"IF(E998=\"\",\"\",VLOOKUP(E998,Insumos!AD:AE,2,FALSE))","v":""},null,{"$f":"IF(G998=\"\",\"\",VLOOKUP(G998,Insumos!G:H,2,FALSE))","v":""}]
[null,null,null,null,null,{"$f":"IF(E999=\"\",\"\",VLOOKUP(E999,Insumos!AD:AE,2,FALSE))","v":""},null,{"$f":"IF(G999=\"\",\"\",VLOOKUP(G999,Insumos!G:H,2,FALSE))","v":""}]
[null,null,null,null,null,{"$f":"IF(E1000=\"\",\"\",VLOOKUP(E1000,Insumos!AD:AE,2,FALSE))","v":""},null,{"$f":"IF(G1000=\"\",\"\",VLOOKUP(G1000,Insumos!G:H,2,FALSE))","v":""}]
[null,null,null,null,null,{"$f":"IF(E1001=\"\",\"\",VLOOKUP(E1001,Insumos!AD:AE,2,FALSE))","v":""},null,{"$f":"IF(G1001=\"\",\"\",VLOOKUP(G1001,Insumos!G:H,2,FALSE))","v":""}]
[null,null,null,null,null,{"$f":"IF(E1002=\"\",\"\",VLOOKUP(E1002,Insumos!AD:AE,2,FALSE))","v":""},null,{"$f":"IF(G1002=\"\",\"\",VLOOKUP(G1002,Insumos!G:H,2,FALSE))","v":""}]
[null,null,null,null,null,{"$f":"IF(E1003=\"\",\"\",VLOOKUP(E1003,Insumos!AD:AE,2,FALSE))","v":""},null,{"$f":"IF(G1003=\"\",\"\",VLOOKUP(G1003,Insumos!G:H,2,FALSE))","v":""}]
[null,null,null,null,null,{"$f":"IF(E1004=\"\",\"\",VLOOKUP(E1004,Insumos!AD:AE,2,FALSE))","v":""},null,{"$f":"IF(G1004=\"\",\"\",VLOOKUP(G1004,Insumos!G:H,2,FALSE))","v":""}]
[null,null,null,null,null,{"$f":"IF(E1005=\"\",\"\",VLOOKUP(E1005,Insumos!AD:AE,2,FALSE))","v":""},null,{"$f":"IF(G1005=\"\",\"\",VLOOKUP(G1005,Insumos!G:H,2,FALSE))","v":""}]
[null,null,null,null,null,{"$f":"IF(E1006=\"\",\"\",VLOOKUP(E1006,Insumos!AD:AE,2,FALSE))","v":""},null,{"$f":"IF(G1006=\"\",\"\",VLOOKUP(G1006,Insumos!G:H,2,FALSE))","v":""}]
[null,null,null,null,null,{"$f":"IF(E1007=\"\",\"\",VLOOKUP(E1007,Insumos!AD:AE,2,FALSE))","v":""},null,{"$f":"IF(G1007=\"\",\"\",VLOOKUP(G1007,Insumos!G:H,2,FALSE))","v":""}]
[null,null,null,null,null,{"$f":"IF(E1008=\"\",\"\",VLOOKUP(E1008,Insumos!AD:AE,2,FALSE))","v":""},null,{"$f":"IF(G1008=\"\",\"\",VLOOKUP(G1008,Insumos!G:H,2,FALSE))","v":""}]
[null,null,null,null,null,{"$f":"IF(E1009=\"\",\"\",VLOOKUP(E1009,Insumos!AD:AE,2,FALSE))","v":""},null,{"$f":"IF(G1009=\"\",\"\",VLOOKUP(G1009,Insumos!G:H,2,FALSE))","v":""}]
[null,null,null,null,null,{"$f":"IF(E1010=\"\",\"\",VLOOKUP(E1010,Insumos!AD:AE,2,FALSE))","v":""},null,{"$f":"IF(G1010=\"\",\"\",VLOOKUP(G1010,Insumos!G:H,2,FALSE))","v":""}]
[null,null,null,null,null,{"$f":"IF(E1011=\"\",\"\",VLOOKUP(E1011,Insumos!AD:AE,2,FALSE))","v":""},null,{"$f":"IF(G1011=\"\",\"\",VLOOKUP(G1011,Insumos!G:H,2,FALSE))","v":""}]
[null,null,null,null,null,{"$f":"IF(E1012=\"\",\"\",VLOOKUP(E1012,Insumos!AD:AE,2,FALSE))","v":""},null,{"$f":"IF(G1012=\"\",\"\",VLOOKUP(G1012,Insumos!G:H,2,FALSE))","v":""}]
[null,null,null,null,null,{"$f":"IF(E1013=\"\",\"\",VLOOKUP(E1013,Insumos!AD:AE,2,FALSE))","v":""},null,{"$f":"IF(G1013=\"\",\"\",VLOOKUP(G1013,Insumos!G:H,2,FALSE))","v":""}]
[null,null,null,null,null,{"$f":"IF(E1014=\"\",\"\",VLOOKUP(E1014,Insumos!AD:AE,2,FALSE))","v":""},null,{"$f":"IF(G1014=\"\",\"\",VLOOKUP(G1014,Insumos!G:H,2,FALSE))","v":""}]
[null,null,null,null,null,{"$f":"IF(E1015=\"\",\"\",VLOOKUP(E1015,Insumos!AD:AE,2,FALSE))","v":""},null,{"$f":"IF(G1015=\"\",\"\",VLOOKUP(G1015,Insumos!G:H,2,FALSE))","v":""}]
[null,null,null,null,null,{"$f":"IF(E1016=\"\",\"\",VLOOKUP(E1016,Insumos!AD:AE,2,FALSE))","v":""},null,{"$f":"IF(G1016=\"\",\"\",VLOOKUP(G1016,Insumos!G:H,2,FALSE))","v":""}]
[null,null,null,null,null,{"$f":"IF(E1017=\"\",\"\",VLOOKUP(E1017,Insumos!AD:AE,2,FALSE))","v":""},null,{"$f":"IF(G1017=\"\",\"\",VLOOKUP(G1017,Insumos!G:H,2,FALSE))","v":""}]
[null,null,null,null,null,{"$f":"IF(E1018=\"\",\"\",VLOOKUP(E1018,Insumos!AD:AE,2,FALSE))","v":""},null,{"$f":"IF(G1018=\"\",\"\",VLOOKUP(G1018,Insumos!G:H,2,FALSE))","v":""}]
[null,null,null,null,null,{"$f":"IF(E1019=\"\",\"\",VLOOKUP(E1019,Insumos!AD:AE,2,FALSE))","v":""},null,{"$f":"IF(G1019=\"\",\"\",VLOOKUP(G1019,Insumos!G:H,2,FALSE))","v":""}]
[null,null,null,null,null,{"$f":"IF(E1020=\"\",\"\",VLOOKUP(E1020,Insumos!AD:AE,2,FALSE))","v":""},null,{"$f":"IF(G1020=\"\",\"\",VLOOKUP(G1020,Insumos!G:H,2,FALSE))","v":""}]
[null,null,null,null,null,{"$f":"IF(E1021=\"\",\"\",VLOOKUP(E1021,Insumos!AD:AE,2,FALSE))","v":""},null,{"$f":"IF(G1021=\"\",\"\",VLOOKUP(G1021,Insumos!G:H,2,FALSE))","v":""}]
[null,null,null,null,null,{"$f":"IF(E1022=\"\",\"\",VLOOKUP(E1022,Insumos!AD:AE,2,FALSE))","v":""},null,{"$f":"IF(G1022=\"\",\"\",VLOOKUP(G1022,Insumos!G:H,2,FALSE))","v":""}]
[null,null,null,null,null,{"$f":"IF(E1023=\"\",\"\",VLOOKUP(E1023,Insumos!AD:AE,2,FALSE))","v":""},null,{"$f":"IF(G1023=\"\",\"\",VLOOKUP(G1023,Insumos!G:H,2,FALSE))","v":""}]
[null,null,null,null,null,{"$f":"IF(E1024=\"\",\"\",VLOOKUP(E1024,Insumos!AD:AE,2,FALSE))","v":""},null,{"$f":"IF(G1024=\"\",\"\",VLOOKUP(G1024,Insumos!G:H,2,FALSE))","v":""}]
[null,null,null,null,null,{"$f":"IF(E1025=\"\",\"\",VLOOKUP(E1025,Insumos!AD:AE,2,FALSE))","v":""},null,{"$f":"IF(G1025=\"\",\"\",VLOOKUP(G1025,Insumos!G:H,2,FALSE))","v":""}]
[null,null,null,null,null,{"$f":"IF(E1026=\"\",\"\",VLOOKUP(E1026,Insumos!AD:AE,2,FALSE))","v":""},null,{"$f":"IF(G1026=\"\",\"\",VLOOKUP(G1026,Insumos!G:H,2,FALSE))","v":""}]
[null,null,null,null,null,{"$f":"IF(E1027=\"\",\"\",VLOOKUP(E1027,Insumos!AD:AE,2,FALSE))","v":""},null,{"$f":"IF(G1027=\"\",\"\",VLOOKUP(G1027,Insumos!G:H,2,FALSE))","v":""}]
[null,null,null,null,null,{"$f":"IF(E1028=\"\",\"\",VLOOKUP(E1028,Insumos!AD:AE,2,FALSE))","v":""},null,{"$f":"IF(G1028=\"\",\"\",VLOOKUP(G1028,Insumos!G:H,2,FALSE))","v":""}]
[null,null,null,null,null,{"$f":"IF(E1029=\"\",\"\",VLOOKUP(E1029,Insumos!AD:AE,2,FALSE))","v":""},null,{"$f":"IF(G1029=\"\",\"\",VLOOKUP(G1029,Insumos!G:H,2,FALSE))","v":""}]
[null,null,null,null,null,{"$f":"IF(E1030=\"\",\"\",VLOOKUP(E1030,Insumos!AD:AE,2,FALSE))","v":""},null,{"$f":"IF(G1030=\"\",\"\",VLOOKUP(G1030,Insumos!G:H,2,FALSE))","v":""}]
[null,null,null,null,null,{"$f":"IF(E1031=\"\",\"\",VLOOKUP(E1031,Insumos!AD:AE,2,FALSE))","v":""},null,{"$f":"IF(G1031=\"\",\"\",VLOOKUP(G1031,Insumos!G:H,2,FALSE))","v":""}]
[null,null,null,null,null,{"$f":"IF(E1032=\"\",\"\",VLOOKUP(E1032,Insumos!AD:AE,2,FALSE))","v":""},null,{"$f":"IF(G1032=\"\",\"\",VLOOKUP(G1032,Insumos!G:H,2,FALSE))","v":""}]
[null,null,null,null,null,{"$f":"IF(E1033=\"\",\"\",VLOOKUP(E1033,Insumos!AD:AE,2,FALSE))","v":""},null,{"$f":"IF(G1033=\"\",\"\",VLOOKUP(G1033,Insumos!G:H,2,FALSE))","v":""}]
[null,null,null,null,null,{"$f":"IF(E1034=\"\",\"\",VLOOKUP(E1034,Insumos!AD:AE,2,FALSE))","v":""},null,{"$f":"IF(G1034=\"\",\"\",VLOOKUP(G1034,Insumos!G:H,2,FALSE))","v":""}]
[null,null,null,null,null,{"$f":"IF(E1035=\"\",\"\",VLOOKUP(E1035,Insumos!AD:AE,2,FALSE))","v":""},null,{"$f":"IF(G1035=\"\",\"\",VLOOKUP(G1035,Insumos!G:H,2,FALSE))","v":""}]
[null,null,null,null,null,{"$f":"IF(E1036=\"\",\"\",VLOOKUP(E1036,Insumos!AD:AE,2,FALSE))","v":""},null,{"$f":"IF(G1036=\"\",\"\",VLOOKUP(G1036,Insumos!G:H,2,FALSE))","v":""}]
[null,null,null,null,null,{"$f":"IF(E1037=\"\",\"\",VLOOKUP(E1037,Insumos!AD:AE,2,FALSE))","v":""},null,{"$f":"IF(G1037=\"\",\"\",VLOOKUP(G1037,Insumos!G:H,2,FALSE))","v":""}]
[null,null,null,null,null,{"$f":"IF(E1038=\"\",\"\",VLOOKUP(E1038,Insumos!AD:AE,2,FALSE))","v":""},null,{"$f":"IF(G1038=\"\",\"\",VLOOKUP(G1038,Insumos!G:H,2,FALSE))","v":""}]
[null,null,null,null,null,{"$f":"IF(E1039=\"\",\"\",VLOOKUP(E1039,Insumos!AD:AE,2,FALSE))","v":""},null,{"$f":"IF(G1039=\"\",\"\",VLOOKUP(G1039,Insumos!G:H,2,FALSE))","v":""}]
[null,null,null,null,null,{"$f":"IF(E1040=\"\",\"\",VLOOKUP(E1040,Insumos!AD:AE,2,FALSE))","v":""},null,{"$f":"IF(G1040=\"\",\"\",VLOOKUP(G1040,Insumos!G:H,2,FALSE))","v":""}]
[null,null,null,null,null,{"$f":"IF(E1041=\"\",\"\",VLOOKUP(E1041,Insumos!AD:AE,2,FALSE))","v":""},null,{"$f":"IF(G1041=\"\",\"\",VLOOKUP(G1041,Insumos!G:H,2,FALSE))","v":""}]
[null,null,null,null,null,{"$f":"IF(E1042=\"\",\"\",VLOOKUP(E1042,Insumos!AD:AE,2,FALSE))","v":""},null,{"$f":"IF(G1042=\"\",\"\",VLOOKUP(G1042,Insumos!G:H,2,FALSE))","v":""}]
[null,null,null,null,null,{"$f":"IF(E1043=\"\",\"\",VLOOKUP(E1043,Insumos!AD:AE,2,FALSE))","v":""},null,{"$f":"IF(G1043=\"\",\"\",VLOOKUP(G1043,Insumos!G:H,2,FALSE))","v":""}]
[null,null,null,null,null,{"$f":"IF(E1044=\"\",\"\",VLOOKUP(E1044,Insumos!AD:AE,2,FALSE))","v":""},null,{"$f":"IF(G1044=\"\",\"\",VLOOKUP(G1044,Insumos!G:H,2,FALSE))","v":""}]
[null,null,null,null,null,{"$f":"IF(E1045=\"\",\"\",VLOOKUP(E1045,Insumos!AD:AE,2,FALSE))","v":""},null,{"$f":"IF(G1045=\"\",\"\",VLOOKUP(G1045,Insumos!G:H,2,FALSE))","v":""}]
[null,null,null,null,null,{"$f":"IF(E1046=\"\",\"\",VLOOKUP(E1046,Insumos!AD:AE,2,FALSE))","v":""},null,{"$f":"IF(G1046=\"\",\"\",VLOOKUP(G1046,Insumos!G:H,2,FALSE))","v":""}]
[null,null,null,null,null,{"$f":"IF(E1047=\"\",\"\",VLOOKUP(E1047,Insumos!AD:AE,2,FALSE))","v":""},null,{"$f":"IF(G1047=\"\",\"\",VLOOKUP(G1047,Insumos!G:H,2,FALSE))","v":""}]
[null,null,null,null,null,{"$f":"IF(E1048=\"\",\"\",VLOOKUP(E1048,Insumos!AD:AE,2,FALSE))","v":""},null,{"$f":"IF(G1048=\"\",\"\",VLOOKUP(G1048,Insumos!G:H,2,FALSE))","v":""}]
[null,null,null,null,null,{"$f":"IF(E1049=\"\",\"\",VLOOKUP(E1049,Insumos!AD:AE,2,FALSE))","v":""},null,{"$f":"IF(G1049=\"\",\"\",VLOOKUP(G1049,Insumos!G:H,2,FALSE))","v":""}]
[null,null,null,null,null,{"$f":"IF(E1050=\"\",\"\",VLOOKUP(E1050,Insumos!AD:AE,2,FALSE))","v":""},null,{"$f":"IF(G1050=\"\",\"\",VLOOKUP(G1050,Insumos!G:H,2,FALSE))","v":""}]
[null,null,null,null,null,{"$f":"IF(E1051=\"\",\"\",VLOOKUP(E1051,Insumos!AD:AE,2,FALSE))","v":""},null,{"$f":"IF(G1051=\"\",\"\",VLOOKUP(G1051,Insumos!G:H,2,FALSE))","v":""}]
[null,null,null,null,null,{"$f":"IF(E1052=\"\",\"\",VLOOKUP(E1052,Insumos!AD:AE,2,FALSE))","v":""},null,{"$f":"IF(G1052=\"\",\"\",VLOOKUP(G1052,Insumos!G:H,2,FALSE))","v":""}]
[null,null,null,null,null,{"$f":"IF(E1053=\"\",\"\",VLOOKUP(E1053,Insumos!AD:AE,2,FALSE))","v":""},null,{"$f":"IF(G1053=\"\",\"\",VLOOKUP(G1053,Insumos!G:H,2,FALSE))","v":""}]
[null,null,null,null,null,{"$f":"IF(E1054=\"\",\"\",VLOOKUP(E1054,Insumos!AD:AE,2,FALSE))","v":""},null,{"$f":"IF(G1054=\"\",\"\",VLOOKUP(G1054,Insumos!G:H,2,FALSE))","v":""}]
[null,null,null,null,null,{"$f":"IF(E1055=\"\",\"\",VLOOKUP(E1055,Insumos!AD:AE,2,FALSE))","v":""},null,{"$f":"IF(G1055=\"\",\"\",VLOOKUP(G1055,Insumos!G:H,2,FALSE))","v":""}]
[null,null,null,null,null,{"$f":"IF(E1056=\"\",\"\",VLOOKUP(E1056,Insumos!AD:AE,2,FALSE))","v":""},null,{"$f":"IF(G1056=\"\",\"\",VLOOKUP(G1056,Insumos!G:H,2,FALSE))","v":""}]
[null,null,null,null,null,{"$f":"IF(E1057=\"\",\"\",VLOOKUP(E1057,Insumos!AD:AE,2,FALSE))","v":""},null,{"$f":"IF(G1057=\"\",\"\",VLOOKUP(G1057,Insumos!G:H,2,FALSE))","v":""}]
[null,null,null,null,null,{"$f":"IF(E1058=\"\",\"\",VLOOKUP(E1058,Insumos!AD:AE,2,FALSE))","v":""},null,{"$f":"IF(G1058=\"\",\"\",VLOOKUP(G1058,Insumos!G:H,2,FALSE))","v":""}]
[null,null,null,null,null,{"$f":"IF(E1059=\"\",\"\",VLOOKUP(E1059,Insumos!AD:AE,2,FALSE))","v":""},null,{"$f":"IF(G1059=\"\",\"\",VLOOKUP(G1059,Insumos!G:H,2,FALSE))","v":""}]
[null,null,null,null,null,{"$f":"IF(E1060=\"\",\"\",VLOOKUP(E1060,Insumos!AD:AE,2,FALSE))","v":""},null,{"$f":"IF(G1060=\"\",\"\",VLOOKUP(G1060,Insumos!G:H,2,FALSE))","v":""}]
[null,null,null,null,null,{"$f":"IF(E1061=\"\",\"\",VLOOKUP(E1061,Insumos!AD:AE,2,FALSE))","v":""},null,{"$f":"IF(G1061=\"\",\"\",VLOOKUP(G1061,Insumos!G:H,2,FALSE))","v":""}]
[null,null,null,null,null,{"$f":"IF(E1062=\"\",\"\",VLOOKUP(E1062,Insumos!AD:AE,2,FALSE))","v":""},null,{"$f":"IF(G1062=\"\",\"\",VLOOKUP(G1062,Insumos!G:H,2,FALSE))","v":""}]
[null,null,null,null,null,{"$f":"IF(E1063=\"\",\"\",VLOOKUP(E1063,Insumos!AD:AE,2,FALSE))","v":""},null,{"$f":"IF(G1063=\"\",\"\",VLOOKUP(G1063,Insumos!G:H,2,FALSE))","v":""}]
[null,null,null,null,null,{"$f":"IF(E1064=\"\",\"\",VLOOKUP(E1064,Insumos!AD:AE,2,FALSE))","v":""},null,{"$f":"IF(G1064=\"\",\"\",VLOOKUP(G1064,Insumos!G:H,2,FALSE))","v":""}]
[null,null,null,null,null,{"$f":"IF(E1065=\"\",\"\",VLOOKUP(E1065,Insumos!AD:AE,2,FALSE))","v":""},null,{"$f":"IF(G1065=\"\",\"\",VLOOKUP(G1065,Insumos!G:H,2,FALSE))","v":""}]
[null,null,null,null,null,{"$f":"IF(E1066=\"\",\"\",VLOOKUP(E1066,Insumos!AD:AE,2,FALSE))","v":""},null,{"$f":"IF(G1066=\"\",\"\",VLOOKUP(G1066,Insumos!G:H,2,FALSE))","v":""}]
[null,null,null,null,null,{"$f":"IF(E1067=\"\",\"\",VLOOKUP(E1067,Insumos!AD:AE,2,FALSE))","v":""},null,{"$f":"IF(G1067=\"\",\"\",VLOOKUP(G1067,Insumos!G:H,2,FALSE))","v":""}]
[null,null,null,null,null,{"$f":"IF(E1068=\"\",\"\",VLOOKUP(E1068,Insumos!AD:AE,2,FALSE))","v":""},null,{"$f":"IF(G1068=\"\",\"\",VLOOKUP(G1068,Insumos!G:H,2,FALSE))","v":""}]
[null,null,null,null,null,{"$f":"IF(E1069=\"\",\"\",VLOOKUP(E1069,Insumos!AD:AE,2,FALSE))","v":""},null,{"$f":"IF(G1069=\"\",\"\",VLOOKUP(G1069,Insumos!G:H,2,FALSE))","v":""}]
[null,null,null,null,null,{"$f":"IF(E1070=\"\",\"\",VLOOKUP(E1070,Insumos!AD:AE,2,FALSE))","v":""},null,{"$f":"IF(G1070=\"\",\"\",VLOOKUP(G1070,Insumos!G:H,2,FALSE))","v":""}]
[null,null,null,null,null,{"$f":"IF(E1071=\"\",\"\",VLOOKUP(E1071,Insumos!AD:AE,2,FALSE))","v":""},null,{"$f":"IF(G1071=\"\",\"\",VLOOKUP(G1071,Insumos!G:H,2,FALSE))","v":""}]
[null,null,null,null,null,{"$f":"IF(E1072=\"\",\"\",VLOOKUP(E1072,Insumos!AD:AE,2,FALSE))","v":""},null,{"$f":"IF(G1072=\"\",\"\",VLOOKUP(G1072,Insumos!G:H,2,FALSE))","v":""}]
[null,null,null,null,null,{"$f":"IF(E1073=\"\",\"\",VLOOKUP(E1073,Insumos!AD:AE,2,FALSE))","v":""},null,{"$f":"IF(G1073=\"\",\"\",VLOOKUP(G1073,Insumos!G:H,2,FALSE))","v":""}]
[null,null,null,null,null,{"$f":"IF(E1074=\"\",\"\",VLOOKUP(E1074,Insumos!AD:AE,2,FALSE))","v":""},null,{"$f":"IF(G1074=\"\",\"\",VLOOKUP(G1074,Insumos!G:H,2,FALSE))","v":""}]
[null,null,null,null,null,{"$f":"IF(E1075=\"\",\"\",VLOOKUP(E1075,Insumos!AD:AE,2,FALSE))","v":""},null,{"$f":"IF(G1075=\"\",\"\",VLOOKUP(G1075,Insumos!G:H,2,FALSE))","v":""}]
[null,null,null,null,null,{"$f":"IF(E1076=\"\",\"\",VLOOKUP(E1076,Insumos!AD:AE,2,FALSE))","v":""},null,{"$f":"IF(G1076=\"\",\"\",VLOOKUP(G1076,Insumos!G:H,2,FALSE))","v":""}]
[null,null,null,null,null,{"$f":"IF(E1077=\"\",\"\",VLOOKUP(E1077,Insumos!AD:AE,2,FALSE))","v":""},null,{"$f":"IF(G1077=\"\",\"\",VLOOKUP(G1077,Insumos!G:H,2,FALSE))","v":""}]
[null,null,null,null,null,{"$f":"IF(E1078=\"\",\"\",VLOOKUP(E1078,Insumos!AD:AE,2,FALSE))","v":""},null,{"$f":"IF(G1078=\"\",\"\",VLOOKUP(G1078,Insumos!G:H,2,FALSE))","v":""}]
[null,null,null,null,null,{"$f":"IF(E1079=\"\",\"\",VLOOKUP(E1079,Insumos!AD:AE,2,FALSE))","v":""},null,{"$f":"IF(G1079=\"\",\"\",VLOOKUP(G1079,Insumos!G:H,2,FALSE))","v":""}]
[null,null,null,null,null,{"$f":"IF(E1080=\"\",\"\",VLOOKUP(E1080,Insumos!AD:AE,2,FALSE))","v":""},null,{"$f":"IF(G1080=\"\",\"\",VLOOKUP(G1080,Insumos!G:H,2,FALSE))","v":""}]
[null,null,null,null,null,{"$f":"IF(E1081=\"\",\"\",VLOOKUP(E1081,Insumos!AD:AE,2,FALSE))","v":""},null,{"$f":"IF(G1081=\"\",\"\",VLOOKUP(G1081,Insumos!G:H,2,FALSE))","v":""}]
[null,null,null,null,null,{"$f":"IF(E1082=\"\",\"\",VLOOKUP(E1082,Insumos!AD:AE,2,FALSE))","v":""},null,{"$f":"IF(G1082=\"\",\"\",VLOOKUP(G1082,Insumos!G:H,2,FALSE))","v":""}]
[null,null,null,null,null,{"$f":"IF(E1083=\"\",\"\",VLOOKUP(E1083,Insumos!AD:AE,2,FALSE))","v":""},null,{"$f":"IF(G1083=\"\",\"\",VLOOKUP(G1083,Insumos!G:H,2,FALSE))","v":""}]
[null,null,null,null,null,{"$f":"IF(E1084=\"\",\"\",VLOOKUP(E1084,Insumos!AD:AE,2,FALSE))","v":""},null,{"$f":"IF(G1084=\"\",\"\",VLOOKUP(G1084,Insumos!G:H,2,FALSE))","v":""}]
[null,null,null,null,null,{"$f":"IF(E1085=\"\",\"\",VLOOKUP(E1085,Insumos!AD:AE,2,FALSE))","v":""},null,{"$f":"IF(G1085=\"\",\"\",VLOOKUP(G1085,Insumos!G:H,2,FALSE))","v":""}]
[null,null,null,null,null,{"$f":"IF(E1086=\"\",\"\",VLOOKUP(E1086,Insumos!AD:AE,2,FALSE))","v":""},null,{"$f":"IF(G1086=\"\",\"\",VLOOKUP(G1086,Insumos!G:H,2,FALSE))","v":""}]
[null,null,null,null,null,{"$f":"IF(E1087=\"\",\"\",VLOOKUP(E1087,Insumos!AD:AE,2,FALSE))","v":""},null,{"$f":"IF(G1087=\"\",\"\",VLOOKUP(G1087,Insumos!G:H,2,FALSE))","v":""}]
[null,null,null,null,null,{"$f":"IF(E1088=\"\",\"\",VLOOKUP(E1088,Insumos!AD:AE,2,FALSE))","v":""},null,{"$f":"IF(G1088=\"\",\"\",VLOOKUP(G1088,Insumos!G:H,2,FALSE))","v":""}]
[null,null,null,null,null,{"$f":"IF(E1089=\"\",\"\",VLOOKUP(E1089,Insumos!AD:AE,2,FALSE))","v":""},null,{"$f":"IF(G1089=\"\",\"\",VLOOKUP(G1089,Insumos!G:H,2,FALSE))","v":""}]
[null,null,null,null,null,{"$f":"IF(E1090=\"\",\"\",VLOOKUP(E1090,Insumos!AD:AE,2,FALSE))","v":""},null,{"$f":"IF(G1090=\"\",\"\",VLOOKUP(G1090,Insumos!G:H,2,FALSE))","v":""}]
[null,null,null,null,null,{"$f":"IF(E1091=\"\",\"\",VLOOKUP(E1091,Insumos!AD:AE,2,FALSE))","v":""},null,{"$f":"IF(G1091=\"\",\"\",VLOOKUP(G1091,Insumos!G:H,2,FALSE))","v":""}]
[null,null,null,null,null,{"$f":"IF(E1092=\"\",\"\",VLOOKUP(E1092,Insumos!AD:AE,2,FALSE))","v":""},null,{"$f":"IF(G1092=\"\",\"\",VLOOKUP(G1092,Insumos!G:H,2,FALSE))","v":""}]
[null,null,null,null,null,{"$f":"IF(E1093=\"\",\"\",VLOOKUP(E1093,Insumos!AD:AE,2,FALSE))","v":""},null,{"$f":"IF(G1093=\"\",\"\",VLOOKUP(G1093,Insumos!G:H,2,FALSE))","v":""}]
[null,null,null,null,null,{"$f":"IF(E1094=\"\",\"\",VLOOKUP(E1094,Insumos!AD:AE,2,FALSE))","v":""},null,{"$f":"IF(G1094=\"\",\"\",VLOOKUP(G1094,Insumos!G:H,2,FALSE))","v":""}]
[null,null,null,null,null,{"$f":"IF(E1095=\"\",\"\",VLOOKUP(E1095,Insumos!AD:AE,2,FALSE))","v":""},null,{"$f":"IF(G1095=\"\",\"\",VLOOKUP(G1095,Insumos!G:H,2,FALSE))","v":""}]
[null,null,null,null,null,{"$f":"IF(E1096=\"\",\"\",VLOOKUP(E1096,Insumos!AD:AE,2,FALSE))","v":""},null,{"$f":"IF(G1096=\"\",\"\",VLOOKUP(G1096,Insumos!G:H,2,FALSE))","v":""}]
[null,null,null,null,null,{"$f":"IF(E1097=\"\",\"\",VLOOKUP(E1097,Insumos!AD:AE,2,FALSE))","v":""},null,{"$f":"IF(G1097=\"\",\"\",VLOOKUP(G1097,Insumos!G:H,2,FALSE))","v":""}]
[null,null,null,null,null,{"$f":"IF(E1098=\"\",\"\",VLOOKUP(E1098,Insumos!AD:AE,2,FALSE))","v":""},null,{"$f":"IF(G1098=\"\",\"\",VLOOKUP(G1098,Insumos!G:H,2,FALSE))","v":""}]
[null,null,null,null,null,{"$f":"IF(E1099=\"\",\"\",VLOOKUP(E1099,Insumos!AD:AE,2,FALSE))","v":""},null,{"$f":"IF(G1099=\"\",\"\",VLOOKUP(G1099,Insumos!G:H,2,FALSE))","v":""}]
[null,null,null,null,null,{"$f":"IF(E1100=\"\",\"\",VLOOKUP(E1100,Insumos!AD:AE,2,FALSE))","v":""},null,{"$f":"IF(G1100=\"\",\"\",VLOOKUP(G1100,Insumos!G:H,2,FALSE))","v":""}]
[null,null,null,null,null,{"$f":"IF(E1101=\"\",\"\",VLOOKUP(E1101,Insumos!AD:AE,2,FALSE))","v":""},null,{"$f":"IF(G1101=\"\",\"\",VLOOKUP(G1101,Insumos!G:H,2,FALSE))","v":""}]
[null,null,null,null,null,{"$f":"IF(E1102=\"\",\"\",VLOOKUP(E1102,Insumos!AD:AE,2,FALSE))","v":""},null,{"$f":"IF(G1102=\"\",\"\",VLOOKUP(G1102,Insumos!G:H,2,FALSE))","v":""}]
[null,null,null,null,null,{"$f":"IF(E1103=\"\",\"\",VLOOKUP(E1103,Insumos!AD:AE,2,FALSE))","v":""},null,{"$f":"IF(G1103=\"\",\"\",VLOOKUP(G1103,Insumos!G:H,2,FALSE))","v":""}]
[null,null,null,null,null,{"$f":"IF(E1104=\"\",\"\",VLOOKUP(E1104,Insumos!AD:AE,2,FALSE))","v":""},null,{"$f":"IF(G1104=\"\",\"\",VLOOKUP(G1104,Insumos!G:H,2,FALSE))","v":""}]
[null,null,null,null,null,{"$f":"IF(E1105=\"\",\"\",VLOOKUP(E1105,Insumos!AD:AE,2,FALSE))","v":""},null,{"$f":"IF(G1105=\"\",\"\",VLOOKUP(G1105,Insumos!G:H,2,FALSE))","v":""}]
[null,null,null,null,null,{"$f":"IF(E1106=\"\",\"\",VLOOKUP(E1106,Insumos!AD:AE,2,FALSE))","v":""},null,{"$f":"IF(G1106=\"\",\"\",VLOOKUP(G1106,Insumos!G:H,2,FALSE))","v":""}]
[null,null,null,null,null,{"$f":"IF(E1107=\"\",\"\",VLOOKUP(E1107,Insumos!AD:AE,2,FALSE))","v":""},null,{"$f":"IF(G1107=\"\",\"\",VLOOKUP(G1107,Insumos!G:H,2,FALSE))","v":""}]
[null,null,null,null,null,{"$f":"IF(E1108=\"\",\"\",VLOOKUP(E1108,Insumos!AD:AE,2,FALSE))","v":""},null,{"$f":"IF(G1108=\"\",\"\",VLOOKUP(G1108,Insumos!G:H,2,FALSE))","v":""}]
[null,null,null,null,null,{"$f":"IF(E1109=\"\",\"\",VLOOKUP(E1109,Insumos!AD:AE,2,FALSE))","v":""},null,{"$f":"IF(G1109=\"\",\"\",VLOOKUP(G1109,Insumos!G:H,2,FALSE))","v":""}]
[null,null,null,null,null,{"$f":"IF(E1110=\"\",\"\",VLOOKUP(E1110,Insumos!AD:AE,2,FALSE))","v":""},null,{"$f":"IF(G1110=\"\",\"\",VLOOKUP(G1110,Insumos!G:H,2,FALSE))","v":""}]
[null,null,null,null,null,{"$f":"IF(E1111=\"\",\"\",VLOOKUP(E1111,Insumos!AD:AE,2,FALSE))","v":""},null,{"$f":"IF(G1111=\"\",\"\",VLOOKUP(G1111,Insumos!G:H,2,FALSE))","v":""}]
[null,null,null,null,null,{"$f":"IF(E1112=\"\",\"\",VLOOKUP(E1112,Insumos!AD:AE,2,FALSE))","v":""},null,{"$f":"IF(G1112=\"\",\"\",VLOOKUP(G1112,Insumos!G:H,2,FALSE))","v":""}]
[null,null,null,null,null,{"$f":"IF(E1113=\"\",\"\",VLOOKUP(E1113,Insumos!AD:AE,2,FALSE))","v":""},null,{"$f":"IF(G1113=\"\",\"\",VLOOKUP(G1113,Insumos!G:H,2,FALSE))","v":""}]
[null,null,null,null,null,{"$f":"IF(E1114=\"\",\"\",VLOOKUP(E1114,Insumos!AD:AE,2,FALSE))","v":""},null,{"$f":"IF(G1114=\"\",\"\",VLOOKUP(G1114,Insumos!G:H,2,FALSE))","v":""}]
[null,null,null,null,null,{"$f":"IF(E1115=\"\",\"\",VLOOKUP(E1115,Insumos!AD:AE,2,FALSE))","v":""},null,{"$f":"IF(G1115=\"\",\"\",VLOOKUP(G1115,Insumos!G:H,2,FALSE))","v":""}]
[null,null,null,null,null,{"$f":"IF(E1116=\"\",\"\",VLOOKUP(E1116,Insumos!AD:AE,2,FALSE))","v":""},null,{"$f":"IF(G1116=\"\",\"\",VLOOKUP(G1116,Insumos!G:H,2,FALSE))","v":""}]
[null,null,null,null,null,{"$f":"IF(E1117=\"\",\"\",VLOOKUP(E1117,Insumos!AD:AE,2,FALSE))","v":""},null,{"$f":"IF(G1117=\"\",\"\",VLOOKUP(G1117,Insumos!G:H,2,FALSE))","v":""}]
[null,null,null,null,null,{"$f":"IF(E1118=\"\",\"\",VLOOKUP(E1118,Insumos!AD:AE,2,FALSE))","v":""},null,{"$f":"IF(G1118=\"\",\"\",VLOOKUP(G1118,Insumos!G:H,2,FALSE))","v":""}]
[null,null,null,null,null,{"$f":"IF(E1119=\"\",\"\",VLOOKUP(E1119,Insumos!AD:AE,2,FALSE))","v":""},null,{"$f":"IF(G1119=\"\",\"\",VLOOKUP(G1119,Insumos!G:H,2,FALSE))","v":""}]
[null,null,null,null,null,{"$f":"IF(E1120=\"\",\"\",VLOOKUP(E1120,Insumos!AD:AE,2,FALSE))","v":""},null,{"$f":"IF(G1120=\"\",\"\",VLOOKUP(G1120,Insumos!G:H,2,FALSE))","v":""}]
[null,null,null,null,null,{"$f":"IF(E1121=\"\",\"\",VLOOKUP(E1121,Insumos!AD:AE,2,FALSE))","v":""},null,{"$f":"IF(G1121=\"\",\"\",VLOOKUP(G1121,Insumos!G:H,2,FALSE))","v":""}]
[null,null,null,null,null,{"$f":"IF(E1122=\"\",\"\",VLOOKUP(E1122,Insumos!AD:AE,2,FALSE))","v":""},null,{"$f":"IF(G1122=\"\",\"\",VLOOKUP(G1122,Insumos!G:H,2,FALSE))","v":""}]
[null,null,null,null,null,{"$f":"IF(E1123=\"\",\"\",VLOOKUP(E1123,Insumos!AD:AE,2,FALSE))","v":""},null,{"$f":"IF(G1123=\"\",\"\",VLOOKUP(G1123,Insumos!G:H,2,FALSE))","v":""}]
[null,null,null,null,null,{"$f":"IF(E1124=\"\",\"\",VLOOKUP(E1124,Insumos!AD:AE,2,FALSE))","v":""},null,{"$f":"IF(G1124=\"\",\"\",VLOOKUP(G1124,Insumos!G:H,2,FALSE))","v":""}]
[null,null,null,null,null,{"$f":"IF(E1125=\"\",\"\",VLOOKUP(E1125,Insumos!AD:AE,2,FALSE))","v":""},null,{"$f":"IF(G1125=\"\",\"\",VLOOKUP(G1125,Insumos!G:H,2,FALSE))","v":""}]
[null,null,null,null,null,{"$f":"IF(E1126=\"\",\"\",VLOOKUP(E1126,Insumos!AD:AE,2,FALSE))","v":""},null,{"$f":"IF(G1126=\"\",\"\",VLOOKUP(G1126,Insumos!G:H,2,FALSE))","v":""}]
[null,null,null,null,null,{"$f":"IF(E1127=\"\",\"\",VLOOKUP(E1127,Insumos!AD:AE,2,FALSE))","v":""},null,{"$f":"IF(G1127=\"\",\"\",VLOOKUP(G1127,Insumos!G:H,2,FALSE))","v":""}]
[null,null,null,null,null,{"$f":"IF(E1128=\"\",\"\",VLOOKUP(E1128,Insumos!AD:AE,2,FALSE))","v":""},null,{"$f":"IF(G1128=\"\",\"\",VLOOKUP(G1128,Insumos!G:H,2,FALSE))","v":""}]
[null,null,null,null,null,{"$f":"IF(E1129=\"\",\"\",VLOOKUP(E1129,Insumos!AD:AE,2,FALSE))","v":""},null,{"$f":"IF(G1129=\"\",\"\",VLOOKUP(G1129,Insumos!G:H,2,FALSE))","v":""}]
[null,null,null,null,null,{"$f":"IF(E1130=\"\",\"\",VLOOKUP(E1130,Insumos!AD:AE,2,FALSE))","v":""},null,{"$f":"IF(G1130=\"\",\"\",VLOOKUP(G1130,Insumos!G:H,2,FALSE))","v":""}]
[null,null,null,null,null,{"$f":"IF(E1131=\"\",\"\",VLOOKUP(E1131,Insumos!AD:AE,2,FALSE))","v":""},null,{"$f":"IF(G1131=\"\",\"\",VLOOKUP(G1131,Insumos!G:H,2,FALSE))","v":""}]
[null,null,null,null,null,{"$f":"IF(E1132=\"\",\"\",VLOOKUP(E1132,Insumos!AD:AE,2,FALSE))","v":""},null,{"$f":"IF(G1132=\"\",\"\",VLOOKUP(G1132,Insumos!G:H,2,FALSE))","v":""}]
[null,null,null,null,null,{"$f":"IF(E1133=\"\",\"\",VLOOKUP(E1133,Insumos!AD:AE,2,FALSE))","v":""},null,{"$f":"IF(G1133=\"\",\"\",VLOOKUP(G1133,Insumos!G:H,2,FALSE))","v":""}]
[null,null,null,null,null,{"$f":"IF(E1134=\"\",\"\",VLOOKUP(E1134,Insumos!AD:AE,2,FALSE))","v":""},null,{"$f":"IF(G1134=\"\",\"\",VLOOKUP(G1134,Insumos!G:H,2,FALSE))","v":""}]
[null,null,null,null,null,{"$f":"IF(E1135=\"\",\"\",VLOOKUP(E1135,Insumos!AD:AE,2,FALSE))","v":""},null,{"$f":"IF(G1135=\"\",\"\",VLOOKUP(G1135,Insumos!G:H,2,FALSE))","v":""}]
[null,null,null,null,null,{"$f":"IF(E1136=\"\",\"\",VLOOKUP(E1136,Insumos!AD:AE,2,FALSE))","v":""},null,{"$f":"IF(G1136=\"\",\"\",VLOOKUP(G1136,Insumos!G:H,2,FALSE))","v":""}]
[null,null,null,null,null,{"$f":"IF(E1137=\"\",\"\",VLOOKUP(E1137,Insumos!AD:AE,2,FALSE))","v":""},null,{"$f":"IF(G1137=\"\",\"\",VLOOKUP(G1137,Insumos!G:H,2,FALSE))","v":""}]
[null,null,null,null,null,{"$f":"IF(E1138=\"\",\"\",VLOOKUP(E1138,Insumos!AD:AE,2,FALSE))","v":""},null,{"$f":"IF(G1138=\"\",\"\",VLOOKUP(G1138,Insumos!G:H,2,FALSE))","v":""}]
[null,null,null,null,null,{"$f":"IF(E1139=\"\",\"\",VLOOKUP(E1139,Insumos!AD:AE,2,FALSE))","v":""},null,{"$f":"IF(G1139=\"\",\"\",VLOOKUP(G1139,Insumos!G:H,2,FALSE))","v":""}]
[null,null,null,null,null,{"$f":"IF(E1140=\"\",\"\",VLOOKUP(E1140,Insumos!AD:AE,2,FALSE))","v":""},null,{"$f":"IF(G1140=\"\",\"\",VLOOKUP(G1140,Insumos!G:H,2,FALSE))","v":""}]
[null,null,null,null,null,{"$f":"IF(E1141=\"\",\"\",VLOOKUP(E1141,Insumos!AD:AE,2,FALSE))","v":""},null,{"$f":"IF(G1141=\"\",\"\",VLOOKUP(G1141,Insumos!G:H,2,FALSE))","v":""}]
[null,null,null,null,null,{"$f":"IF(E1142=\"\",\"\",VLOOKUP(E1142,Insumos!AD:AE,2,FALSE))","v":""},null,{"$f":"IF(G1142=\"\",\"\",VLOOKUP(G1142,Insumos!G:H,2,FALSE))","v":""}]
[null,null,null,null,null,{"$f":"IF(E1143=\"\",\"\",VLOOKUP(E1143,Insumos!AD:AE,2,FALSE))","v":""},null,{"$f":"IF(G1143=\"\",\"\",VLOOKUP(G1143,Insumos!G:H,2,FALSE))","v":""}]
[null,null,null,null,null,{"$f":"IF(E1144=\"\",\"\",VLOOKUP(E1144,Insumos!AD:AE,2,FALSE))","v":""},null,{"$f":"IF(G1144=\"\",\"\",VLOOKUP(G1144,Insumos!G:H,2,FALSE))","v":""}]
[null,null,null,null,null,{"$f":"IF(E1145=\"\",\"\",VLOOKUP(E1145,Insumos!AD:AE,2,FALSE))","v":""},null,{"$f":"IF(G1145=\"\",\"\",VLOOKUP(G1145,Insumos!G:H,2,FALSE))","v":""}]
[null,null,null,null,null,{"$f":"IF(E1146=\"\",\"\",VLOOKUP(E1146,Insumos!AD:AE,2,FALSE))","v":""},null,{"$f":"IF(G1146=\"\",\"\",VLOOKUP(G1146,Insumos!G:H,2,FALSE))","v":""}]
[null,null,null,null,null,{"$f":"IF(E1147=\"\",\"\",VLOOKUP(E1147,Insumos!AD:AE,2,FALSE))","v":""},null,{"$f":"IF(G1147=\"\",\"\",VLOOKUP(G1147,Insumos!G:H,2,FALSE))","v":""}]
[null,null,null,null,null,{"$f":"IF(E1148=\"\",\"\",VLOOKUP(E1148,Insumos!AD:AE,2,FALSE))","v":""},null,{"$f":"IF(G1148=\"\",\"\",VLOOKUP(G1148,Insumos!G:H,2,FALSE))","v":""}]
[null,null,null,null,null,{"$f":"IF(E1149=\"\",\"\",VLOOKUP(E1149,Insumos!AD:AE,2,FALSE))","v":""},null,{"$f":"IF(G1149=\"\",\"\",VLOOKUP(G1149,Insumos!G:H,2,FALSE))","v":""}]
[null,null,null,null,null,{"$f":"IF(E1150=\"\",\"\",VLOOKUP(E1150,Insumos!AD:AE,2,FALSE))","v":""},null,{"$f":"IF(G1150=\"\",\"\",VLOOKUP(G1150,Insumos!G:H,2,FALSE))","v":""}]
[null,null,null,null,null,{"$f":"IF(E1151=\"\",\"\",VLOOKUP(E1151,Insumos!AD:AE,2,FALSE))","v":""},null,{"$f":"IF(G1151=\"\",\"\",VLOOKUP(G1151,Insumos!G:H,2,FALSE))","v":""}]
[null,null,null,null,null,{"$f":"IF(E1152=\"\",\"\",VLOOKUP(E1152,Insumos!AD:AE,2,FALSE))","v":""},null,{"$f":"IF(G1152=\"\",\"\",VLOOKUP(G1152,Insumos!G:H,2,FALSE))","v":""}]
[null,null,null,null,null,{"$f":"IF(E1153=\"\",\"\",VLOOKUP(E1153,Insumos!AD:AE,2,FALSE))","v":""},null,{"$f":"IF(G1153=\"\",\"\",VLOOKUP(G1153,Insumos!G:H,2,FALSE))","v":""}]
[null,null,null,null,null,{"$f":"IF(E1154=\"\",\"\",VLOOKUP(E1154,Insumos!AD:AE,2,FALSE))","v":""},null,{"$f":"IF(G1154=\"\",\"\",VLOOKUP(G1154,Insumos!G:H,2,FALSE))","v":""}]
[null,null,null,null,null,{"$f":"IF(E1155=\"\",\"\",VLOOKUP(E1155,Insumos!AD:AE,2,FALSE))","v":""},null,{"$f":"IF(G1155=\"\",\"\",VLOOKUP(G1155,Insumos!G:H,2,FALSE))","v":""}]
[null,null,null,null,null,{"$f":"IF(E1156=\"\",\"\",VLOOKUP(E1156,Insumos!AD:AE,2,FALSE))","v":""},null,{"$f":"IF(G1156=\"\",\"\",VLOOKUP(G1156,Insumos!G:H,2,FALSE))","v":""}]
[null,null,null,null,null,{"$f":"IF(E1157=\"\",\"\",VLOOKUP(E1157,Insumos!AD:AE,2,FALSE))","v":""},null,{"$f":"IF(G1157=\"\",\"\",VLOOKUP(G1157,Insumos!G:H,2,FALSE))","v":""}]
[null,null,null,null,null,{"$f":"IF(E1158=\"\",\"\",VLOOKUP(E1158,Insumos!AD:AE,2,FALSE))","v":""},null,{"$f":"IF(G1158=\"\",\"\",VLOOKUP(G1158,Insumos!G:H,2,FALSE))","v":""}]
[null,null,null,null,null,{"$f":"IF(E1159=\"\",\"\",VLOOKUP(E1159,Insumos!AD:AE,2,FALSE))","v":""},null,{"$f":"IF(G1159=\"\",\"\",VLOOKUP(G1159,Insumos!G:H,2,FALSE))","v":""}]
[null,null,null,null,null,{"$f":"IF(E1160=\"\",\"\",VLOOKUP(E1160,Insumos!AD:AE,2,FALSE))","v":""},null,{"$f":"IF(G1160=\"\",\"\",VLOOKUP(G1160,Insumos!G:H,2,FALSE))","v":""}]
[null,null,null,null,null,{"$f":"IF(E1161=\"\",\"\",VLOOKUP(E1161,Insumos!AD:AE,2,FALSE))","v":""},null,{"$f":"IF(G1161=\"\",\"\",VLOOKUP(G1161,Insumos!G:H,2,FALSE))","v":""}]
[null,null,null,null,null,{"$f":"IF(E1162=\"\",\"\",VLOOKUP(E1162,Insumos!AD:AE,2,FALSE))","v":""},null,{"$f":"IF(G1162=\"\",\"\",VLOOKUP(G1162,Insumos!G:H,2,FALSE))","v":""}]
[null,null,null,null,null,{"$f":"IF(E1163=\"\",\"\",VLOOKUP(E1163,Insumos!AD:AE,2,FALSE))","v":""},null,{"$f":"IF(G1163=\"\",\"\",VLOOKUP(G1163,Insumos!G:H,2,FALSE))","v":""}]
[null,null,null,null,null,{"$f":"IF(E1164=\"\",\"\",VLOOKUP(E1164,Insumos!AD:AE,2,FALSE))","v":""},null,{"$f":"IF(G1164=\"\",\"\",VLOOKUP(G1164,Insumos!G:H,2,FALSE))","v":""}]
[null,null,null,null,null,{"$f":"IF(E1165=\"\",\"\",VLOOKUP(E1165,Insumos!AD:AE,2,FALSE))","v":""},null,{"$f":"IF(G1165=\"\",\"\",VLOOKUP(G1165,Insumos!G:H,2,FALSE))","v":""}]
[null,null,null,null,null,{"$f":"IF(E1166=\"\",\"\",VLOOKUP(E1166,Insumos!AD:AE,2,FALSE))","v":""},null,{"$f":"IF(G1166=\"\",\"\",VLOOKUP(G1166,Insumos!G:H,2,FALSE))","v":""}]
[null,null,null,null,null,{"$f":"IF(E1167=\"\",\"\",VLOOKUP(E1167,Insumos!AD:AE,2,FALSE))","v":""},null,{"$f":"IF(G1167=\"\",\"\",VLOOKUP(G1167,Insumos!G:H,2,FALSE))","v":""}]
[null,null,null,null,null,{"$f":"IF(E1168=\"\",\"\",VLOOKUP(E1168,Insumos!AD:AE,2,FALSE))","v":""},null,{"$f":"IF(G1168=\"\",\"\",VLOOKUP(G1168,Insumos!G:H,2,FALSE))","v":""}]
[null,null,null,null,null,{"$f":"IF(E1169=\"\",\"\",VLOOKUP(E1169,Insumos!AD:AE,2,FALSE))","v":""},null,{"$f":"IF(G1169=\"\",\"\",VLOOKUP(G1169,Insumos!G:H,2,FALSE))","v":""}]
[null,null,null,null,null,{"$f":"IF(E1170=\"\",\"\",VLOOKUP(E1170,Insumos!AD:AE,2,FALSE))","v":""},null,{"$f":"IF(G1170=\"\",\"\",VLOOKUP(G1170,Insumos!G:H,2,FALSE))","v":""}]
[null,null,null,null,null,{"$f":"IF(E1171=\"\",\"\",VLOOKUP(E1171,Insumos!AD:AE,2,FALSE))","v":""},null,{"$f":"IF(G1171=\"\",\"\",VLOOKUP(G1171,Insumos!G:H,2,FALSE))","v":""}]
[null,null,null,null,null,{"$f":"IF(E1172=\"\",\"\",VLOOKUP(E1172,Insumos!AD:AE,2,FALSE))","v":""},null,{"$f":"IF(G1172=\"\",\"\",VLOOKUP(G1172,Insumos!G:H,2,FALSE))","v":""}]
[null,null,null,null,null,{"$f":"IF(E1173=\"\",\"\",VLOOKUP(E1173,Insumos!AD:AE,2,FALSE))","v":""},null,{"$f":"IF(G1173=\"\",\"\",VLOOKUP(G1173,Insumos!G:H,2,FALSE))","v":""}]
[null,null,null,null,null,{"$f":"IF(E1174=\"\",\"\",VLOOKUP(E1174,Insumos!AD:AE,2,FALSE))","v":""},null,{"$f":"IF(G1174=\"\",\"\",VLOOKUP(G1174,Insumos!G:H,2,FALSE))","v":""}]
[null,null,null,null,null,{"$f":"IF(E1175=\"\",\"\",VLOOKUP(E1175,Insumos!AD:AE,2,FALSE))","v":""},null,{"$f":"IF(G1175=\"\",\"\",VLOOKUP(G1175,Insumos!G:H,2,FALSE))","v":""}]
[null,null,null,null,null,{"$f":"IF(E1176=\"\",\"\",VLOOKUP(E1176,Insumos!AD:AE,2,FALSE))","v":""},null,{"$f":"IF(G1176=\"\",\"\",VLOOKUP(G1176,Insumos!G:H,2,FALSE))","v":""}]
[null,null,null,null,null,{"$f":"IF(E1177=\"\",\"\",VLOOKUP(E1177,Insumos!AD:AE,2,FALSE))","v":""},null,{"$f":"IF(G1177=\"\",\"\",VLOOKUP(G1177,Insumos!G:H,2,FALSE))","v":""}]
[null,null,null,null,null,{"$f":"IF(E1178=\"\",\"\",VLOOKUP(E1178,Insumos!AD:AE,2,FALSE))","v":""},null,{"$f":"IF(G1178=\"\",\"\",VLOOKUP(G1178,Insumos!G:H,2,FALSE))","v":""}]
[null,null,null,null,null,{"$f":"IF(E1179=\"\",\"\",VLOOKUP(E1179,Insumos!AD:AE,2,FALSE))","v":""},null,{"$f":"IF(G1179=\"\",\"\",VLOOKUP(G1179,Insumos!G:H,2,FALSE))","v":""}]
[null,null,null,null,null,{"$f":"IF(E1180=\"\",\"\",VLOOKUP(E1180,Insumos!AD:AE,2,FALSE))","v":""},null,{"$f":"IF(G1180=\"\",\"\",VLOOKUP(G1180,Insumos!G:H,2,FALSE))","v":""}]
[null,null,null,null,null,{"$f":"IF(E1181=\"\",\"\",VLOOKUP(E1181,Insumos!AD:AE,2,FALSE))","v":""},null,{"$f":"IF(G1181=\"\",\"\",VLOOKUP(G1181,Insumos!G:H,2,FALSE))","v":""}]
[null,null,null,null,null,{"$f":"IF(E1182=\"\",\"\",VLOOKUP(E1182,Insumos!AD:AE,2,FALSE))","v":""},null,{"$f":"IF(G1182=\"\",\"\",VLOOKUP(G1182,Insumos!G:H,2,FALSE))","v":""}]
[null,null,null,null,null,{"$f":"IF(E1183=\"\",\"\",VLOOKUP(E1183,Insumos!AD:AE,2,FALSE))","v":""},null,{"$f":"IF(G1183=\"\",\"\",VLOOKUP(G1183,Insumos!G:H,2,FALSE))","v":""}]
[null,null,null,null,null,{"$f":"IF(E1184=\"\",\"\",VLOOKUP(E1184,Insumos!AD:AE,2,FALSE))","v":""},null,{"$f":"IF(G1184=\"\",\"\",VLOOKUP(G1184,Insumos!G:H,2,FALSE))","v":""}]
[null,null,null,null,null,{"$f":"IF(E1185=\"\",\"\",VLOOKUP(E1185,Insumos!AD:AE,2,FALSE))","v":""},null,{"$f":"IF(G1185=\"\",\"\",VLOOKUP(G1185,Insumos!G:H,2,FALSE))","v":""}]
[null,null,null,null,null,{"$f":"IF(E1186=\"\",\"\",VLOOKUP(E1186,Insumos!AD:AE,2,FALSE))","v":""},null,{"$f":"IF(G1186=\"\",\"\",VLOOKUP(G1186,Insumos!G:H,2,FALSE))","v":""}]
[null,null,null,null,null,{"$f":"IF(E1187=\"\",\"\",VLOOKUP(E1187,Insumos!AD:AE,2,FALSE))","v":""},null,{"$f":"IF(G1187=\"\",\"\",VLOOKUP(G1187,Insumos!G:H,2,FALSE))","v":""}]
[null,null,null,null,null,{"$f":"IF(E1188=\"\",\"\",VLOOKUP(E1188,Insumos!AD:AE,2,FALSE))","v":""},null,{"$f":"IF(G1188=\"\",\"\",VLOOKUP(G1188,Insumos!G:H,2,FALSE))","v":""}]
[null,null,null,null,null,{"$f":"IF(E1189=\"\",\"\",VLOOKUP(E1189,Insumos!AD:AE,2,FALSE))","v":""},null,{"$f":"IF(G1189=\"\",\"\",VLOOKUP(G1189,Insumos!G:H,2,FALSE))","v":""}]
[null,null,null,null,null,{"$f":"IF(E1190=\"\",\"\",VLOOKUP(E1190,Insumos!AD:AE,2,FALSE))","v":""},null,{"$f":"IF(G1190=\"\",\"\",VLOOKUP(G1190,Insumos!G:H,2,FALSE))","v":""}]
[null,null,null,null,null,{"$f":"IF(E1191=\"\",\"\",VLOOKUP(E1191,Insumos!AD:AE,2,FALSE))","v":""},null,{"$f":"IF(G1191=\"\",\"\",VLOOKUP(G1191,Insumos!G:H,2,FALSE))","v":""}]
[null,null,null,null,null,{"$f":"IF(E1192=\"\",\"\",VLOOKUP(E1192,Insumos!AD:AE,2,FALSE))","v":""},null,{"$f":"IF(G1192=\"\",\"\",VLOOKUP(G1192,Insumos!G:H,2,FALSE))","v":""}]
[null,null,null,null,null,{"$f":"IF(E1193=\"\",\"\",VLOOKUP(E1193,Insumos!AD:AE,2,FALSE))","v":""},null,{"$f":"IF(G1193=\"\",\"\",VLOOKUP(G1193,Insumos!G:H,2,FALSE))","v":""}]
[null,null,null,null,null,{"$f":"IF(E1194=\"\",\"\",VLOOKUP(E1194,Insumos!AD:AE,2,FALSE))","v":""},null,{"$f":"IF(G1194=\"\",\"\",VLOOKUP(G1194,Insumos!G:H,2,FALSE))","v":""}]
[null,null,null,null,null,{"$f":"IF(E1195=\"\",\"\",VLOOKUP(E1195,Insumos!AD:AE,2,FALSE))","v":""},null,{"$f":"IF(G1195=\"\",\"\",VLOOKUP(G1195,Insumos!G:H,2,FALSE))","v":""}]
[null,null,null,null,null,{"$f":"IF(E1196=\"\",\"\",VLOOKUP(E1196,Insumos!AD:AE,2,FALSE))","v":""},null,{"$f":"IF(G1196=\"\",\"\",VLOOKUP(G1196,Insumos!G:H,2,FALSE))","v":""}]
[null,null,null,null,null,{"$f":"IF(E1197=\"\",\"\",VLOOKUP(E1197,Insumos!AD:AE,2,FALSE))","v":""},null,{"$f":"IF(G1197=\"\",\"\",VLOOKUP(G1197,Insumos!G:H,2,FALSE))","v":""}]
[null,null,null,null,null,{"$f":"IF(E1198=\"\",\"\",VLOOKUP(E1198,Insumos!AD:AE,2,FALSE))","v":""},null,{"$f":"IF(G1198=\"\",\"\",VLOOKUP(G1198,Insumos!G:H,2,FALSE))","v":""}]
[null,null,null,null,null,{"$f":"IF(E1199=\"\",\"\",VLOOKUP(E1199,Insumos!AD:AE,2,FALSE))","v":""},null,{"$f":"IF(G1199=\"\",\"\",VLOOKUP(G1199,Insumos!G:H,2,FALSE))","v":""}]
[null,null,null,null,null,{"$f":"IF(E1200=\"\",\"\",VLOOKUP(E1200,Insumos!AD:AE,2,FALSE))","v":""},null,{"$f":"IF(G1200=\"\",\"\",VLOOKUP(G1200,Insumos!G:H,2,FALSE))","v":""}]
[null,null,null,null,null,{"$f":"IF(E1201=\"\",\"\",VLOOKUP(E1201,Insumos!AD:AE,2,FALSE))","v":""},null,{"$f":"IF(G1201=\"\",\"\",VLOOKUP(G1201,Insumos!G:H,2,FALSE))","v":""}]
[null,null,null,null,null,{"$f":"IF(E1202=\"\",\"\",VLOOKUP(E1202,Insumos!AD:AE,2,FALSE))","v":""},null,{"$f":"IF(G1202=\"\",\"\",VLOOKUP(G1202,Insumos!G:H,2,FALSE))","v":""}]
[null,null,null,null,null,{"$f":"IF(E1203=\"\",\"\",VLOOKUP(E1203,Insumos!AD:AE,2,FALSE))","v":""},null,{"$f":"IF(G1203=\"\",\"\",VLOOKUP(G1203,Insumos!G:H,2,FALSE))","v":""}]
[null,null,null,null,null,{"$f":"IF(E1204=\"\",\"\",VLOOKUP(E1204,Insumos!AD:AE,2,FALSE))","v":""},null,{"$f":"IF(G1204=\"\",\"\",VLOOKUP(G1204,Insumos!G:H,2,FALSE))","v":""}]
[null,null,null,null,null,{"$f":"IF(E1205=\"\",\"\",VLOOKUP(E1205,Insumos!AD:AE,2,FALSE))","v":""},null,{"$f":"IF(G1205=\"\",\"\",VLOOKUP(G1205,Insumos!G:H,2,FALSE))","v":""}]
[null,null,null,null,null,{"$f":"IF(E1206=\"\",\"\",VLOOKUP(E1206,Insumos!AD:AE,2,FALSE))","v":""},null,{"$f":"IF(G1206=\"\",\"\",VLOOKUP(G1206,Insumos!G:H,2,FALSE))","v":""}]
[null,null,null,null,null,{"$f":"IF(E1207=\"\",\"\",VLOOKUP(E1207,Insumos!AD:AE,2,FALSE))","v":""},null,{"$f":"IF(G1207=\"\",\"\",VLOOKUP(G1207,Insumos!G:H,2,FALSE))","v":""}]
[null,null,null,null,null,{"$f":"IF(E1208=\"\",\"\",VLOOKUP(E1208,Insumos!AD:AE,2,FALSE))","v":""},null,{"$f":"IF(G1208=\"\",\"\",VLOOKUP(G1208,Insumos!G:H,2,FALSE))","v":""}]
[null,null,null,null,null,{"$f":"IF(E1209=\"\",\"\",VLOOKUP(E1209,Insumos!AD:AE,2,FALSE))","v":""},null,{"$f":"IF(G1209=\"\",\"\",VLOOKUP(G1209,Insumos!G:H,2,FALSE))","v":""}]
[null,null,null,null,null,{"$f":"IF(E1210=\"\",\"\",VLOOKUP(E1210,Insumos!AD:AE,2,FALSE))","v":""},null,{"$f":"IF(G1210=\"\",\"\",VLOOKUP(G1210,Insumos!G:H,2,FALSE))","v":""}]
[null,null,null,null,null,{"$f":"IF(E1211=\"\",\"\",VLOOKUP(E1211,Insumos!AD:AE,2,FALSE))","v":""},null,{"$f":"IF(G1211=\"\",\"\",VLOOKUP(G1211,Insumos!G:H,2,FALSE))","v":""}]
[null,null,null,null,null,{"$f":"IF(E1212=\"\",\"\",VLOOKUP(E1212,Insumos!AD:AE,2,FALSE))","v":""},null,{"$f":"IF(G1212=\"\",\"\",VLOOKUP(G1212,Insumos!G:H,2,FALSE))","v":""}]
[null,null,null,null,null,{"$f":"IF(E1213=\"\",\"\",VLOOKUP(E1213,Insumos!AD:AE,2,FALSE))","v":""},null,{"$f":"IF(G1213=\"\",\"\",VLOOKUP(G1213,Insumos!G:H,2,FALSE))","v":""}]
[null,null,null,null,null,{"$f":"IF(E1214=\"\",\"\",VLOOKUP(E1214,Insumos!AD:AE,2,FALSE))","v":""},null,{"$f":"IF(G1214=\"\",\"\",VLOOKUP(G1214,Insumos!G:H,2,FALSE))","v":""}]
[null,null,null,null,null,{"$f":"IF(E1215=\"\",\"\",VLOOKUP(E1215,Insumos!AD:AE,2,FALSE))","v":""},null,{"$f":"IF(G1215=\"\",\"\",VLOOKUP(G1215,Insumos!G:H,2,FALSE))","v":""}]
[null,null,null,null,null,{"$f":"IF(E1216=\"\",\"\",VLOOKUP(E1216,Insumos!AD:AE,2,FALSE))","v":""},null,{"$f":"IF(G1216=\"\",\"\",VLOOKUP(G1216,Insumos!G:H,2,FALSE))","v":""}]
[null,null,null,null,null,{"$f":"IF(E1217=\"\",\"\",VLOOKUP(E1217,Insumos!AD:AE,2,FALSE))","v":""},null,{"$f":"IF(G1217=\"\",\"\",VLOOKUP(G1217,Insumos!G:H,2,FALSE))","v":""}]
[null,null,null,null,null,{"$f":"IF(E1218=\"\",\"\",VLOOKUP(E1218,Insumos!AD:AE,2,FALSE))","v":""},null,{"$f":"IF(G1218=\"\",\"\",VLOOKUP(G1218,Insumos!G:H,2,FALSE))","v":""}]
[null,null,null,null,null,{"$f":"IF(E1219=\"\",\"\",VLOOKUP(E1219,Insumos!AD:AE,2,FALSE))","v":""},null,{"$f":"IF(G1219=\"\",\"\",VLOOKUP(G1219,Insumos!G:H,2,FALSE))","v":""}]
[null,null,null,null,null,{"$f":"IF(E1220=\"\",\"\",VLOOKUP(E1220,Insumos!AD:AE,2,FALSE))","v":""},null,{"$f":"IF(G1220=\"\",\"\",VLOOKUP(G1220,Insumos!G:H,2,FALSE))","v":""}]
[null,null,null,null,null,{"$f":"IF(E1221=\"\",\"\",VLOOKUP(E1221,Insumos!AD:AE,2,FALSE))","v":""},null,{"$f":"IF(G1221=\"\",\"\",VLOOKUP(G1221,Insumos!G:H,2,FALSE))","v":""}]
[null,null,null,null,null,{"$f":"IF(E1222=\"\",\"\",VLOOKUP(E1222,Insumos!AD:AE,2,FALSE))","v":""},null,{"$f":"IF(G1222=\"\",\"\",VLOOKUP(G1222,Insumos!G:H,2,FALSE))","v":""}]
[null,null,null,null,null,{"$f":"IF(E1223=\"\",\"\",VLOOKUP(E1223,Insumos!AD:AE,2,FALSE))","v":""},null,{"$f":"IF(G1223=\"\",\"\",VLOOKUP(G1223,Insumos!G:H,2,FALSE))","v":""}]
[null,null,null,null,null,{"$f":"IF(E1224=\"\",\"\",VLOOKUP(E1224,Insumos!AD:AE,2,FALSE))","v":""},null,{"$f":"IF(G1224=\"\",\"\",VLOOKUP(G1224,Insumos!G:H,2,FALSE))","v":""}]
[null,null,null,null,null,{"$f":"IF(E1225=\"\",\"\",VLOOKUP(E1225,Insumos!AD:AE,2,FALSE))","v":""},null,{"$f":"IF(G1225=\"\",\"\",VLOOKUP(G1225,Insumos!G:H,2,FALSE))","v":""}]
[null,null,null,null,null,{"$f":"IF(E1226=\"\",\"\",VLOOKUP(E1226,Insumos!AD:AE,2,FALSE))","v":""},null,{"$f":"IF(G1226=\"\",\"\",VLOOKUP(G1226,Insumos!G:H,2,FALSE))","v":""}]
[null,null,null,null,null,{"$f":"IF(E1227=\"\",\"\",VLOOKUP(E1227,Insumos!AD:AE,2,FALSE))","v":""},null,{"$f":"IF(G1227=\"\",\"\",VLOOKUP(G1227,Insumos!G:H,2,FALSE))","v":""}]
[null,null,null,null,null,{"$f":"IF(E1228=\"\",\"\",VLOOKUP(E1228,Insumos!AD:AE,2,FALSE))","v":""},null,{"$f":"IF(G1228=\"\",\"\",VLOOKUP(G1228,Insumos!G:H,2,FALSE))","v":""}]
[null,null,null,null,null,{"$f":"IF(E1229=\"\",\"\",VLOOKUP(E1229,Insumos!AD:AE,2,FALSE))","v":""},null,{"$f":"IF(G1229=\"\",\"\",VLOOKUP(G1229,Insumos!G:H,2,FALSE))","v":""}]
[null,null,null,null,null,{"$f":"IF(E1230=\"\",\"\",VLOOKUP(E1230,Insumos!AD:AE,2,FALSE))","v":""},null,{"$f":"IF(G1230=\"\",\"\",VLOOKUP(G1230,Insumos!G:H,2,FALSE))","v":""}]
[null,null,null,null,null,{"$f":"IF(E1231=\"\",\"\",VLOOKUP(E1231,Insumos!AD:AE,2,FALSE))","v":""},null,{"$f":"IF(G1231=\"\",\"\",VLOOKUP(G1231,Insumos!G:H,2,FALSE))","v":""}]
[null,null,null,null,null,{"$f":"IF(E1232=\"\",\"\",VLOOKUP(E1232,Insumos!AD:AE,2,FALSE))","v":""},null,{"$f":"IF(G1232=\"\",\"\",VLOOKUP(G1232,Insumos!G:H,2,FALSE))","v":""}]
[null,null,null,null,null,{"$f":"IF(E1233=\"\",\"\",VLOOKUP(E1233,Insumos!AD:AE,2,FALSE))","v":""},null,{"$f":"IF(G1233=\"\",\"\",VLOOKUP(G1233,Insumos!G:H,2,FALSE))","v":""}]
[null,null,null,null,null,{"$f":"IF(E1234=\"\",\"\",VLOOKUP(E1234,Insumos!AD:AE,2,FALSE))","v":""},null,{"$f":"IF(G1234=\"\",\"\",VLOOKUP(G1234,Insumos!G:H,2,FALSE))","v":""}]
[null,null,null,null,null,{"$f":"IF(E1235=\"\",\"\",VLOOKUP(E1235,Insumos!AD:AE,2,FALSE))","v":""},null,{"$f":"IF(G1235=\"\",\"\",VLOOKUP(G1235,Insumos!G:H,2,FALSE))","v":""}]
[null,null,null,null,null,{"$f":"IF(E1236=\"\",\"\",VLOOKUP(E1236,Insumos!AD:AE,2,FALSE))","v":""},null,{"$f":"IF(G1236=\"\",\"\",VLOOKUP(G1236,Insumos!G:H,2,FALSE))","v":""}]
[null,null,null,null,null,{"$f":"IF(E1237=\"\",\"\",VLOOKUP(E1237,Insumos!AD:AE,2,FALSE))","v":""},null,{"$f":"IF(G1237=\"\",\"\",VLOOKUP(G1237,Insumos!G:H,2,FALSE))","v":""}]
[null,null,null,null,null,{"$f":"IF(E1238=\"\",\"\",VLOOKUP(E1238,Insumos!AD:AE,2,FALSE))","v":""},null,{"$f":"IF(G1238=\"\",\"\",VLOOKUP(G1238,Insumos!G:H,2,FALSE))","v":""}]
[null,null,null,null,null,{"$f":"IF(E1239=\"\",\"\",VLOOKUP(E1239,Insumos!AD:AE,2,FALSE))","v":""},null,{"$f":"IF(G1239=\"\",\"\",VLOOKUP(G1239,Insumos!G:H,2,FALSE))","v":""}]
[null,null,null,null,null,{"$f":"IF(E1240=\"\",\"\",VLOOKUP(E1240,Insumos!AD:AE,2,FALSE))","v":""},null,{"$f":"IF(G1240=\"\",\"\",VLOOKUP(G1240,Insumos!G:H,2,FALSE))","v":""}]
[null,null,null,null,null,{"$f":"IF(E1241=\"\",\"\",VLOOKUP(E1241,Insumos!AD:AE,2,FALSE))","v":""},null,{"$f":"IF(G1241=\"\",\"\",VLOOKUP(G1241,Insumos!G:H,2,FALSE))","v":""}]
[null,null,null,null,null,{"$f":"IF(E1242=\"\",\"\",VLOOKUP(E1242,Insumos!AD:AE,2,FALSE))","v":""},null,{"$f":"IF(G1242=\"\",\"\",VLOOKUP(G1242,Insumos!G:H,2,FALSE))","v":""}]
[null,null,null,null,null,{"$f":"IF(E1243=\"\",\"\",VLOOKUP(E1243,Insumos!AD:AE,2,FALSE))","v":""},null,{"$f":"IF(G1243=\"\",\"\",VLOOKUP(G1243,Insumos!G:H,2,FALSE))","v":""}]
[null,null,null,null,null,{"$f":"IF(E1244=\"\",\"\",VLOOKUP(E1244,Insumos!AD:AE,2,FALSE))","v":""},null,{"$f":"IF(G1244=\"\",\"\",VLOOKUP(G1244,Insumos!G:H,2,FALSE))","v":""}]
[null,null,null,null,null,{"$f":"IF(E1245=\"\",\"\",VLOOKUP(E1245,Insumos!AD:AE,2,FALSE))","v":""},null,{"$f":"IF(G1245=\"\",\"\",VLOOKUP(G1245,Insumos!G:H,2,FALSE))","v":""}]
[null,null,null,null,null,{"$f":"IF(E1246=\"\",\"\",VLOOKUP(E1246,Insumos!AD:AE,2,FALSE))","v":""},null,{"$f":"IF(G1246=\"\",\"\",VLOOKUP(G1246,Insumos!G:H,2,FALSE))","v":""}]
[null,null,null,null,null,{"$f":"IF(E1247=\"\",\"\",VLOOKUP(E1247,Insumos!AD:AE,2,FALSE))","v":""},null,{"$f":"IF(G1247=\"\",\"\",VLOOKUP(G1247,Insumos!G:H,2,FALSE))","v":""}]
[null,null,null,null,null,{"$f":"IF(E1248=\"\",\"\",VLOOKUP(E1248,Insumos!AD:AE,2,FALSE))","v":""},null,{"$f":"IF(G1248=\"\",\"\",VLOOKUP(G1248,Insumos!G:H,2,FALSE))","v":""}]
[null,null,null,null,null,{"$f":"IF(E1249=\"\",\"\",VLOOKUP(E1249,Insumos!AD:AE,2,FALSE))","v":""},null,{"$f":"IF(G1249=\"\",\"\",VLOOKUP(G1249,Insumos!G:H,2,FALSE))","v":""}]
[null,null,null,null,null,{"$f":"IF(E1250=\"\",\"\",VLOOKUP(E1250,Insumos!AD:AE,2,FALSE))","v":""},null,{"$f":"IF(G1250=\"\",\"\",VLOOKUP(G1250,Insumos!G:H,2,FALSE))","v":""}]
[null,null,null,null,null,{"$f":"IF(E1251=\"\",\"\",VLOOKUP(E1251,Insumos!AD:AE,2,FALSE))","v":""},null,{"$f":"IF(G1251=\"\",\"\",VLOOKUP(G1251,Insumos!G:H,2,FALSE))","v":""}]
[null,null,null,null,null,{"$f":"IF(E1252=\"\",\"\",VLOOKUP(E1252,Insumos!AD:AE,2,FALSE))","v":""},null,{"$f":"IF(G1252=\"\",\"\",VLOOKUP(G1252,Insumos!G:H,2,FALSE))","v":""}]
[null,null,null,null,null,{"$f":"IF(E1253=\"\",\"\",VLOOKUP(E1253,Insumos!AD:AE,2,FALSE))","v":""},null,{"$f":"IF(G1253=\"\",\"\",VLOOKUP(G1253,Insumos!G:H,2,FALSE))","v":""}]
[null,null,null,null,null,{"$f":"IF(E1254=\"\",\"\",VLOOKUP(E1254,Insumos!AD:AE,2,FALSE))","v":""},null,{"$f":"IF(G1254=\"\",\"\",VLOOKUP(G1254,Insumos!G:H,2,FALSE))","v":""}]
[null,null,null,null,null,{"$f":"IF(E1255=\"\",\"\",VLOOKUP(E1255,Insumos!AD:AE,2,FALSE))","v":""},null,{"$f":"IF(G1255=\"\",\"\",VLOOKUP(G1255,Insumos!G:H,2,FALSE))","v":""}]
[null,null,null,null,null,{"$f":"IF(E1256=\"\",\"\",VLOOKUP(E1256,Insumos!AD:AE,2,FALSE))","v":""},null,{"$f":"IF(G1256=\"\",\"\",VLOOKUP(G1256,Insumos!G:H,2,FALSE))","v":""}]
[null,null,null,null,null,{"$f":"IF(E1257=\"\",\"\",VLOOKUP(E1257,Insumos!AD:AE,2,FALSE))","v":""},null,{"$f":"IF(G1257=\"\",\"\",VLOOKUP(G1257,Insumos!G:H,2,FALSE))","v":""}]
[null,null,null,null,null,{"$f":"IF(E1258=\"\",\"\",VLOOKUP(E1258,Insumos!AD:AE,2,FALSE))","v":""},null,{"$f":"IF(G1258=\"\",\"\",VLOOKUP(G1258,Insumos!G:H,2,FALSE))","v":""}]
[null,null,null,null,null,{"$f":"IF(E1259=\"\",\"\",VLOOKUP(E1259,Insumos!AD:AE,2,FALSE))","v":""},null,{"$f":"IF(G1259=\"\",\"\",VLOOKUP(G1259,Insumos!G:H,2,FALSE))","v":""}]
[null,null,null,null,null,{"$f":"IF(E1260=\"\",\"\",VLOOKUP(E1260,Insumos!AD:AE,2,FALSE))","v":""},null,{"$f":"IF(G1260=\"\",\"\",VLOOKUP(G1260,Insumos!G:H,2,FALSE))","v":""}]
[null,null,null,null,null,{"$f":"IF(E1261=\"\",\"\",VLOOKUP(E1261,Insumos!AD:AE,2,FALSE))","v":""},null,{"$f":"IF(G1261=\"\",\"\",VLOOKUP(G1261,Insumos!G:H,2,FALSE))","v":""}]
[null,null,null,null,null,{"$f":"IF(E1262=\"\",\"\",VLOOKUP(E1262,Insumos!AD:AE,2,FALSE))","v":""},null,{"$f":"IF(G1262=\"\",\"\",VLOOKUP(G1262,Insumos!G:H,2,FALSE))","v":""}]
[null,null,null,null,null,{"$f":"IF(E1263=\"\",\"\",VLOOKUP(E1263,Insumos!AD:AE,2,FALSE))","v":""},null,{"$f":"IF(G1263=\"\",\"\",VLOOKUP(G1263,Insumos!G:H,2,FALSE))","v":""}]
[null,null,null,null,null,{"$f":"IF(E1264=\"\",\"\",VLOOKUP(E1264,Insumos!AD:AE,2,FALSE))","v":""},null,{"$f":"IF(G1264=\"\",\"\",VLOOKUP(G1264,Insumos!G:H,2,FALSE))","v":""}]
[null,null,null,null,null,{"$f":"IF(E1265=\"\",\"\",VLOOKUP(E1265,Insumos!AD:AE,2,FALSE))","v":""},null,{"$f":"IF(G1265=\"\",\"\",VLOOKUP(G1265,Insumos!G:H,2,FALSE))","v":""}]
[null,null,null,null,null,{"$f":"IF(E1266=\"\",\"\",VLOOKUP(E1266,Insumos!AD:AE,2,FALSE))","v":""},null,{"$f":"IF(G1266=\"\",\"\",VLOOKUP(G1266,Insumos!G:H,2,FALSE))","v":""}]
[null,null,null,null,null,{"$f":"IF(E1267=\"\",\"\",VLOOKUP(E1267,Insumos!AD:AE,2,FALSE))","v":""},null,{"$f":"IF(G1267=\"\",\"\",VLOOKUP(G1267,Insumos!G:H,2,FALSE))","v":""}]
[null,null,null,null,null,{"$f":"IF(E1268=\"\",\"\",VLOOKUP(E1268,Insumos!AD:AE,2,FALSE))","v":""},null,{"$f":"IF(G1268=\"\",\"\",VLOOKUP(G1268,Insumos!G:H,2,FALSE))","v":""}]
[null,null,null,null,null,{"$f":"IF(E1269=\"\",\"\",VLOOKUP(E1269,Insumos!AD:AE,2,FALSE))","v":""},null,{"$f":"IF(G1269=\"\",\"\",VLOOKUP(G1269,Insumos!G:H,2,FALSE))","v":""}]
[null,null,null,null,null,{"$f":"IF(E1270=\"\",\"\",VLOOKUP(E1270,Insumos!AD:AE,2,FALSE))","v":""},null,{"$f":"IF(G1270=\"\",\"\",VLOOKUP(G1270,Insumos!G:H,2,FALSE))","v":""}]
[null,null,null,null,null,{"$f":"IF(E1271=\"\",\"\",VLOOKUP(E1271,Insumos!AD:AE,2,FALSE))","v":""},null,{"$f":"IF(G1271=\"\",\"\",VLOOKUP(G1271,Insumos!G:H,2,FALSE))","v":""}]
[null,null,null,null,null,{"$f":"IF(E1272=\"\",\"\",VLOOKUP(E1272,Insumos!AD:AE,2,FALSE))","v":""},null,{"$f":"IF(G1272=\"\",\"\",VLOOKUP(G1272,Insumos!G:H,2,FALSE))","v":""}]
[null,null,null,null,null,{"$f":"IF(E1273=\"\",\"\",VLOOKUP(E1273,Insumos!AD:AE,2,FALSE))","v":""},null,{"$f":"IF(G1273=\"\",\"\",VLOOKUP(G1273,Insumos!G:H,2,FALSE))","v":""}]
[null,null,null,null,null,{"$f":"IF(E1274=\"\",\"\",VLOOKUP(E1274,Insumos!AD:AE,2,FALSE))","v":""},null,{"$f":"IF(G1274=\"\",\"\",VLOOKUP(G1274,Insumos!G:H,2,FALSE))","v":""}]
[null,null,null,null,null,{"$f":"IF(E1275=\"\",\"\",VLOOKUP(E1275,Insumos!AD:AE,2,FALSE))","v":""},null,{"$f":"IF(G1275=\"\",\"\",VLOOKUP(G1275,Insumos!G:H,2,FALSE))","v":""}]
[null,null,null,null,null,{"$f":"IF(E1276=\"\",\"\",VLOOKUP(E1276,Insumos!AD:AE,2,FALSE))","v":""},null,{"$f":"IF(G1276=\"\",\"\",VLOOKUP(G1276,Insumos!G:H,2,FALSE))","v":""}]
[null,null,null,null,null,{"$f":"IF(E1277=\"\",\"\",VLOOKUP(E1277,Insumos!AD:AE,2,FALSE))","v":""},null,{"$f":"IF(G1277=\"\",\"\",VLOOKUP(G1277,Insumos!G:H,2,FALSE))","v":""}]
[null,null,null,null,null,{"$f":"IF(E1278=\"\",\"\",VLOOKUP(E1278,Insumos!AD:AE,2,FALSE))","v":""},null,{"$f":"IF(G1278=\"\",\"\",VLOOKUP(G1278,Insumos!G:H,2,FALSE))","v":""}]
[null,null,null,null,null,{"$f":"IF(E1279=\"\",\"\",VLOOKUP(E1279,Insumos!AD:AE,2,FALSE))","v":""},null,{"$f":"IF(G1279=\"\",\"\",VLOOKUP(G1279,Insumos!G:H,2,FALSE))","v":""}]
[null,null,null,null,null,{"$f":"IF(E1280=\"\",\"\",VLOOKUP(E1280,Insumos!AD:AE,2,FALSE))","v":""},null,{"$f":"IF(G1280=\"\",\"\",VLOOKUP(G1280,Insumos!G:H,2,FALSE))","v":""}]
[null,null,null,null,null,{"$f":"IF(E1281=\"\",\"\",VLOOKUP(E1281,Insumos!AD:AE,2,FALSE))","v":""},null,{"$f":"IF(G1281=\"\",\"\",VLOOKUP(G1281,Insumos!G:H,2,FALSE))","v":""}]
[null,null,null,null,null,{"$f":"IF(E1282=\"\",\"\",VLOOKUP(E1282,Insumos!AD:AE,2,FALSE))","v":""},null,{"$f":"IF(G1282=\"\",\"\",VLOOKUP(G1282,Insumos!G:H,2,FALSE))","v":""}]
[null,null,null,null,null,{"$f":"IF(E1283=\"\",\"\",VLOOKUP(E1283,Insumos!AD:AE,2,FALSE))","v":""},null,{"$f":"IF(G1283=\"\",\"\",VLOOKUP(G1283,Insumos!G:H,2,FALSE))","v":""}]
[null,null,null,null,null,{"$f":"IF(E1284=\"\",\"\",VLOOKUP(E1284,Insumos!AD:AE,2,FALSE))","v":""},null,{"$f":"IF(G1284=\"\",\"\",VLOOKUP(G1284,Insumos!G:H,2,FALSE))","v":""}]
[null,null,null,null,null,{"$f":"IF(E1285=\"\",\"\",VLOOKUP(E1285,Insumos!AD:AE,2,FALSE))","v":""},null,{"$f":"IF(G1285=\"\",\"\",VLOOKUP(G1285,Insumos!G:H,2,FALSE))","v":""}]
[null,null,null,null,null,{"$f":"IF(E1286=\"\",\"\",VLOOKUP(E1286,Insumos!AD:AE,2,FALSE))","v":""},null,{"$f":"IF(G1286=\"\",\"\",VLOOKUP(G1286,Insumos!G:H,2,FALSE))","v":""}]
[null,null,null,null,null,{"$f":"IF(E1287=\"\",\"\",VLOOKUP(E1287,Insumos!AD:AE,2,FALSE))","v":""},null,{"$f":"IF(G1287=\"\",\"\",VLOOKUP(G1287,Insumos!G:H,2,FALSE))","v":""}]
[null,null,null,null,null,{"$f":"IF(E1288=\"\",\"\",VLOOKUP(E1288,Insumos!AD:AE,2,FALSE))","v":""},null,{"$f":"IF(G1288=\"\",\"\",VLOOKUP(G1288,Insumos!G:H,2,FALSE))","v":""}]
[null,null,null,null,null,{"$f":"IF(E1289=\"\",\"\",VLOOKUP(E1289,Insumos!AD:AE,2,FALSE))","v":""},null,{"$f":"IF(G1289=\"\",\"\",VLOOKUP(G1289,Insumos!G:H,2,FALSE))","v":""}]
[null,null,null,null,null,{"$f":"IF(E1290=\"\",\"\",VLOOKUP(E1290,Insumos!AD:AE,2,FALSE))","v":""},null,{"$f":"IF(G1290=\"\",\"\",VLOOKUP(G1290,Insumos!G:H,2,FALSE))","v":""}]
[null,null,null,null,null,{"$f":"IF(E1291=\"\",\"\",VLOOKUP(E1291,Insumos!AD:AE,2,FALSE))","v":""},null,{"$f":"IF(G1291=\"\",\"\",VLOOKUP(G1291,Insumos!G:H,2,FALSE))","v":""}]
[null,null,null,null,null,{"$f":"IF(E1292=\"\",\"\",VLOOKUP(E1292,Insumos!AD:AE,2,FALSE))","v":""},null,{"$f":"IF(G1292=\"\",\"\",VLOOKUP(G1292,Insumos!G:H,2,FALSE))","v":""}]
[null,null,null,null,null,{"$f":"IF(E1293=\"\",\"\",VLOOKUP(E1293,Insumos!AD:AE,2,FALSE))","v":""},null,{"$f":"IF(G1293=\"\",\"\",VLOOKUP(G1293,Insumos!G:H,2,FALSE))","v":""}]
[null,null,null,null,null,{"$f":"IF(E1294=\"\",\"\",VLOOKUP(E1294,Insumos!AD:AE,2,FALSE))","v":""},null,{"$f":"IF(G1294=\"\",\"\",VLOOKUP(G1294,Insumos!G:H,2,FALSE))","v":""}]
[null,null,null,null,null,{"$f":"IF(E1295=\"\",\"\",VLOOKUP(E1295,Insumos!AD:AE,2,FALSE))","v":""},null,{"$f":"IF(G1295=\"\",\"\",VLOOKUP(G1295,Insumos!G:H,2,FALSE))","v":""}]
[null,null,null,null,null,{"$f":"IF(E1296=\"\",\"\",VLOOKUP(E1296,Insumos!AD:AE,2,FALSE))","v":""},null,{"$f":"IF(G1296=\"\",\"\",VLOOKUP(G1296,Insumos!G:H,2,FALSE))","v":""}]
[null,null,null,null,null,{"$f":"IF(E1297=\"\",\"\",VLOOKUP(E1297,Insumos!AD:AE,2,FALSE))","v":""},null,{"$f":"IF(G1297=\"\",\"\",VLOOKUP(G1297,Insumos!G:H,2,FALSE))","v":""}]
[null,null,null,null,null,{"$f":"IF(E1298=\"\",\"\",VLOOKUP(E1298,Insumos!AD:AE,2,FALSE))","v":""},null,{"$f":"IF(G1298=\"\",\"\",VLOOKUP(G1298,Insumos!G:H,2,FALSE))","v":""}]
[null,null,null,null,null,{"$f":"IF(E1299=\"\",\"\",VLOOKUP(E1299,Insumos!AD:AE,2,FALSE))","v":""},null,{"$f":"IF(G1299=\"\",\"\",VLOOKUP(G1299,Insumos!G:H,2,FALSE))","v":""}]
[null,null,null,null,null,{"$f":"IF(E1300=\"\",\"\",VLOOKUP(E1300,Insumos!AD:AE,2,FALSE))","v":""},null,{"$f":"IF(G1300=\"\",\"\",VLOOKUP(G1300,Insumos!G:H,2,FALSE))","v":""}]
[null,null,null,null,null,{"$f":"IF(E1301=\"\",\"\",VLOOKUP(E1301,Insumos!AD:AE,2,FALSE))","v":""},null,{"$f":"IF(G1301=\"\",\"\",VLOOKUP(G1301,Insumos!G:H,2,FALSE))","v":""}]
[null,null,null,null,null,{"$f":"IF(E1302=\"\",\"\",VLOOKUP(E1302,Insumos!AD:AE,2,FALSE))","v":""},null,{"$f":"IF(G1302=\"\",\"\",VLOOKUP(G1302,Insumos!G:H,2,FALSE))","v":""}]
[null,null,null,null,null,{"$f":"IF(E1303=\"\",\"\",VLOOKUP(E1303,Insumos!AD:AE,2,FALSE))","v":""},null,{"$f":"IF(G1303=\"\",\"\",VLOOKUP(G1303,Insumos!G:H,2,FALSE))","v":""}]
[null,null,null,null,null,{"$f":"IF(E1304=\"\",\"\",VLOOKUP(E1304,Insumos!AD:AE,2,FALSE))","v":""},null,{"$f":"IF(G1304=\"\",\"\",VLOOKUP(G1304,Insumos!G:H,2,FALSE))","v":""}]
[null,null,null,null,null,{"$f":"IF(E1305=\"\",\"\",VLOOKUP(E1305,Insumos!AD:AE,2,FALSE))","v":""},null,{"$f":"IF(G1305=\"\",\"\",VLOOKUP(G1305,Insumos!G:H,2,FALSE))","v":""}]
[null,null,null,null,null,{"$f":"IF(E1306=\"\",\"\",VLOOKUP(E1306,Insumos!AD:AE,2,FALSE))","v":""},null,{"$f":"IF(G1306=\"\",\"\",VLOOKUP(G1306,Insumos!G:H,2,FALSE))","v":""}]
[null,null,null,null,null,{"$f":"IF(E1307=\"\",\"\",VLOOKUP(E1307,Insumos!AD:AE,2,FALSE))","v":""},null,{"$f":"IF(G1307=\"\",\"\",VLOOKUP(G1307,Insumos!G:H,2,FALSE))","v":""}]
[null,null,null,null,null,{"$f":"IF(E1308=\"\",\"\",VLOOKUP(E1308,Insumos!AD:AE,2,FALSE))","v":""},null,{"$f":"IF(G1308=\"\",\"\",VLOOKUP(G1308,Insumos!G:H,2,FALSE))","v":""}]
[null,null,null,null,null,{"$f":"IF(E1309=\"\",\"\",VLOOKUP(E1309,Insumos!AD:AE,2,FALSE))","v":""},null,{"$f":"IF(G1309=\"\",\"\",VLOOKUP(G1309,Insumos!G:H,2,FALSE))","v":""}]
[null,null,null,null,null,{"$f":"IF(E1310=\"\",\"\",VLOOKUP(E1310,Insumos!AD:AE,2,FALSE))","v":""},null,{"$f":"IF(G1310=\"\",\"\",VLOOKUP(G1310,Insumos!G:H,2,FALSE))","v":""}]
[null,null,null,null,null,{"$f":"IF(E1311=\"\",\"\",VLOOKUP(E1311,Insumos!AD:AE,2,FALSE))","v":""},null,{"$f":"IF(G1311=\"\",\"\",VLOOKUP(G1311,Insumos!G:H,2,FALSE))","v":""}]
[null,null,null,null,null,{"$f":"IF(E1312=\"\",\"\",VLOOKUP(E1312,Insumos!AD:AE,2,FALSE))","v":""},null,{"$f":"IF(G1312=\"\",\"\",VLOOKUP(G1312,Insumos!G:H,2,FALSE))","v":""}]
[null,null,null,null,null,{"$f":"IF(E1313=\"\",\"\",VLOOKUP(E1313,Insumos!AD:AE,2,FALSE))","v":""},null,{"$f":"IF(G1313=\"\",\"\",VLOOKUP(G1313,Insumos!G:H,2,FALSE))","v":""}]
[null,null,null,null,null,{"$f":"IF(E1314=\"\",\"\",VLOOKUP(E1314,Insumos!AD:AE,2,FALSE))","v":""},null,{"$f":"IF(G1314=\"\",\"\",VLOOKUP(G1314,Insumos!G:H,2,FALSE))","v":""}]
[null,null,null,null,null,{"$f":"IF(E1315=\"\",\"\",VLOOKUP(E1315,Insumos!AD:AE,2,FALSE))","v":""},null,{"$f":"IF(G1315=\"\",\"\",VLOOKUP(G1315,Insumos!G:H,2,FALSE))","v":""}]
[null,null,null,null,null,{"$f":"IF(E1316=\"\",\"\",VLOOKUP(E1316,Insumos!AD:AE,2,FALSE))","v":""},null,{"$f":"IF(G1316=\"\",\"\",VLOOKUP(G1316,Insumos!G:H,2,FALSE))","v":""}]
[null,null,null,null,null,{"$f":"IF(E1317=\"\",\"\",VLOOKUP(E1317,Insumos!AD:AE,2,FALSE))","v":""},null,{"$f":"IF(G1317=\"\",\"\",VLOOKUP(G1317,Insumos!G:H,2,FALSE))","v":""}]
[null,null,null,null,null,{"$f":"IF(E1318=\"\",\"\",VLOOKUP(E1318,Insumos!AD:AE,2,FALSE))","v":""},null,{"$f":"IF(G1318=\"\",\"\",VLOOKUP(G1318,Insumos!G:H,2,FALSE))","v":""}]
[null,null,null,null,null,{"$f":"IF(E1319=\"\",\"\",VLOOKUP(E1319,Insumos!AD:AE,2,FALSE))","v":""},null,{"$f":"IF(G1319=\"\",\"\",VLOOKUP(G1319,Insumos!G:H,2,FALSE))","v":""}]
[null,null,null,null,null,{"$f":"IF(E1320=\"\",\"\",VLOOKUP(E1320,Insumos!AD:AE,2,FALSE))","v":""},null,{"$f":"IF(G1320=\"\",\"\",VLOOKUP(G1320,Insumos!G:H,2,FALSE))","v":""}]
[null,null,null,null,null,{"$f":"IF(E1321=\"\",\"\",VLOOKUP(E1321,Insumos!AD:AE,2,FALSE))","v":""},null,{"$f":"IF(G1321=\"\",\"\",VLOOKUP(G1321,Insumos!G:H,2,FALSE))","v":""}]
[null,null,null,null,null,{"$f":"IF(E1322=\"\",\"\",VLOOKUP(E1322,Insumos!AD:AE,2,FALSE))","v":""},null,{"$f":"IF(G1322=\"\",\"\",VLOOKUP(G1322,Insumos!G:H,2,FALSE))","v":""}]
[null,null,null,null,null,{"$f":"IF(E1323=\"\",\"\",VLOOKUP(E1323,Insumos!AD:AE,2,FALSE))","v":""},null,{"$f":"IF(G1323=\"\",\"\",VLOOKUP(G1323,Insumos!G:H,2,FALSE))","v":""}]
[null,null,null,null,null,{"$f":"IF(E1324=\"\",\"\",VLOOKUP(E1324,Insumos!AD:AE,2,FALSE))","v":""},null,{"$f":"IF(G1324=\"\",\"\",VLOOKUP(G1324,Insumos!G:H,2,FALSE))","v":""}]
[null,null,null,null,null,{"$f":"IF(E1325=\"\",\"\",VLOOKUP(E1325,Insumos!AD:AE,2,FALSE))","v":""},null,{"$f":"IF(G1325=\"\",\"\",VLOOKUP(G1325,Insumos!G:H,2,FALSE))","v":""}]
[null,null,null,null,null,{"$f":"IF(E1326=\"\",\"\",VLOOKUP(E1326,Insumos!AD:AE,2,FALSE))","v":""},null,{"$f":"IF(G1326=\"\",\"\",VLOOKUP(G1326,Insumos!G:H,2,FALSE))","v":""}]
[null,null,null,null,null,{"$f":"IF(E1327=\"\",\"\",VLOOKUP(E1327,Insumos!AD:AE,2,FALSE))","v":""},null,{"$f":"IF(G1327=\"\",\"\",VLOOKUP(G1327,Insumos!G:H,2,FALSE))","v":""}]
[null,null,null,null,null,{"$f":"IF(E1328=\"\",\"\",VLOOKUP(E1328,Insumos!AD:AE,2,FALSE))","v":""},null,{"$f":"IF(G1328=\"\",\"\",VLOOKUP(G1328,Insumos!G:H,2,FALSE))","v":""}]
[null,null,null,null,null,{"$f":"IF(E1329=\"\",\"\",VLOOKUP(E1329,Insumos!AD:AE,2,FALSE))","v":""},null,{"$f":"IF(G1329=\"\",\"\",VLOOKUP(G1329,Insumos!G:H,2,FALSE))","v":""}]
[null,null,null,null,null,{"$f":"IF(E1330=\"\",\"\",VLOOKUP(E1330,Insumos!AD:AE,2,FALSE))","v":""},null,{"$f":"IF(G1330=\"\",\"\",VLOOKUP(G1330,Insumos!G:H,2,FALSE))","v":""}]
[null,null,null,null,null,{"$f":"IF(E1331=\"\",\"\",VLOOKUP(E1331,Insumos!AD:AE,2,FALSE))","v":""},null,{"$f":"IF(G1331=\"\",\"\",VLOOKUP(G1331,Insumos!G:H,2,FALSE))","v":""}]
[null,null,null,null,null,{"$f":"IF(E1332=\"\",\"\",VLOOKUP(E1332,Insumos!AD:AE,2,FALSE))","v":""},null,{"$f":"IF(G1332=\"\",\"\",VLOOKUP(G1332,Insumos!G:H,2,FALSE))","v":""}]
[null,null,null,null,null,{"$f":"IF(E1333=\"\",\"\",VLOOKUP(E1333,Insumos!AD:AE,2,FALSE))","v":""},null,{"$f":"IF(G1333=\"\",\"\",VLOOKUP(G1333,Insumos!G:H,2,FALSE))","v":""}]
[null,null,null,null,null,{"$f":"IF(E1334=\"\",\"\",VLOOKUP(E1334,Insumos!AD:AE,2,FALSE))","v":""},null,{"$f":"IF(G1334=\"\",\"\",VLOOKUP(G1334,Insumos!G:H,2,FALSE))","v":""}]
[null,null,null,null,null,{"$f":"IF(E1335=\"\",\"\",VLOOKUP(E1335,Insumos!AD:AE,2,FALSE))","v":""},null,{"$f":"IF(G1335=\"\",\"\",VLOOKUP(G1335,Insumos!G:H,2,FALSE))","v":""}]
[null,null,null,null,null,{"$f":"IF(E1336=\"\",\"\",VLOOKUP(E1336,Insumos!AD:AE,2,FALSE))","v":""},null,{"$f":"IF(G1336=\"\",\"\",VLOOKUP(G1336,Insumos!G:H,2,FALSE))","v":""}]
[null,null,null,null,null,{"$f":"IF(E1337=\"\",\"\",VLOOKUP(E1337,Insumos!AD:AE,2,FALSE))","v":""},null,{"$f":"IF(G1337=\"\",\"\",VLOOKUP(G1337,Insumos!G:H,2,FALSE))","v":""}]
[null,null,null,null,null,{"$f":"IF(E1338=\"\",\"\",VLOOKUP(E1338,Insumos!AD:AE,2,FALSE))","v":""},null,{"$f":"IF(G1338=\"\",\"\",VLOOKUP(G1338,Insumos!G:H,2,FALSE))","v":""}]
[null,null,null,null,null,{"$f":"IF(E1339=\"\",\"\",VLOOKUP(E1339,Insumos!AD:AE,2,FALSE))","v":""},null,{"$f":"IF(G1339=\"\",\"\",VLOOKUP(G1339,Insumos!G:H,2,FALSE))","v":""}]
[null,null,null,null,null,{"$f":"IF(E1340=\"\",\"\",VLOOKUP(E1340,Insumos!AD:AE,2,FALSE))","v":""},null,{"$f":"IF(G1340=\"\",\"\",VLOOKUP(G1340,Insumos!G:H,2,FALSE))","v":""}]
[null,null,null,null,null,{"$f":"IF(E1341=\"\",\"\",VLOOKUP(E1341,Insumos!AD:AE,2,FALSE))","v":""},null,{"$f":"IF(G1341=\"\",\"\",VLOOKUP(G1341,Insumos!G:H,2,FALSE))","v":""}]
[null,null,null,null,null,{"$f":"IF(E1342=\"\",\"\",VLOOKUP(E1342,Insumos!AD:AE,2,FALSE))","v":""},null,{"$f":"IF(G1342=\"\",\"\",VLOOKUP(G1342,Insumos!G:H,2,FALSE))","v":""}]
[null,null,null,null,null,{"$f":"IF(E1343=\"\",\"\",VLOOKUP(E1343,Insumos!AD:AE,2,FALSE))","v":""},null,{"$f":"IF(G1343=\"\",\"\",VLOOKUP(G1343,Insumos!G:H,2,FALSE))","v":""}]
[null,null,null,null,null,{"$f":"IF(E1344=\"\",\"\",VLOOKUP(E1344,Insumos!AD:AE,2,FALSE))","v":""},null,{"$f":"IF(G1344=\"\",\"\",VLOOKUP(G1344,Insumos!G:H,2,FALSE))","v":""}]
[null,null,null,null,null,{"$f":"IF(E1345=\"\",\"\",VLOOKUP(E1345,Insumos!AD:AE,2,FALSE))","v":""},null,{"$f":"IF(G1345=\"\",\"\",VLOOKUP(G1345,Insumos!G:H,2,FALSE))","v":""}]
[null,null,null,null,null,{"$f":"IF(E1346=\"\",\"\",VLOOKUP(E1346,Insumos!AD:AE,2,FALSE))","v":""},null,{"$f":"IF(G1346=\"\",\"\",VLOOKUP(G1346,Insumos!G:H,2,FALSE))","v":""}]
[null,null,null,null,null,{"$f":"IF(E1347=\"\",\"\",VLOOKUP(E1347,Insumos!AD:AE,2,FALSE))","v":""},null,{"$f":"IF(G1347=\"\",\"\",VLOOKUP(G1347,Insumos!G:H,2,FALSE))","v":""}]
[null,null,null,null,null,{"$f":"IF(E1348=\"\",\"\",VLOOKUP(E1348,Insumos!AD:AE,2,FALSE))","v":""},null,{"$f":"IF(G1348=\"\",\"\",VLOOKUP(G1348,Insumos!G:H,2,FALSE))","v":""}]
[null,null,null,null,null,{"$f":"IF(E1349=\"\",\"\",VLOOKUP(E1349,Insumos!AD:AE,2,FALSE))","v":""},null,{"$f":"IF(G1349=\"\",\"\",VLOOKUP(G1349,Insumos!G:H,2,FALSE))","v":""}]
[null,null,null,null,null,{"$f":"IF(E1350=\"\",\"\",VLOOKUP(E1350,Insumos!AD:AE,2,FALSE))","v":""},null,{"$f":"IF(G1350=\"\",\"\",VLOOKUP(G1350,Insumos!G:H,2,FALSE))","v":""}]
[null,null,null,null,null,{"$f":"IF(E1351=\"\",\"\",VLOOKUP(E1351,Insumos!AD:AE,2,FALSE))","v":""},null,{"$f":"IF(G1351=\"\",\"\",VLOOKUP(G1351,Insumos!G:H,2,FALSE))","v":""}]
[null,null,null,null,null,{"$f":"IF(E1352=\"\",\"\",VLOOKUP(E1352,Insumos!AD:AE,2,FALSE))","v":""},null,{"$f":"IF(G1352=\"\",\"\",VLOOKUP(G1352,Insumos!G:H,2,FALSE))","v":""}]
[null,null,null,null,null,{"$f":"IF(E1353=\"\",\"\",VLOOKUP(E1353,Insumos!AD:AE,2,FALSE))","v":""},null,{"$f":"IF(G1353=\"\",\"\",VLOOKUP(G1353,Insumos!G:H,2,FALSE))","v":""}]
[null,null,null,null,null,{"$f":"IF(E1354=\"\",\"\",VLOOKUP(E1354,Insumos!AD:AE,2,FALSE))","v":""},null,{"$f":"IF(G1354=\"\",\"\",VLOOKUP(G1354,Insumos!G:H,2,FALSE))","v":""}]
[null,null,null,null,null,{"$f":"IF(E1355=\"\",\"\",VLOOKUP(E1355,Insumos!AD:AE,2,FALSE))","v":""},null,{"$f":"IF(G1355=\"\",\"\",VLOOKUP(G1355,Insumos!G:H,2,FALSE))","v":""}]
[null,null,null,null,null,{"$f":"IF(E1356=\"\",\"\",VLOOKUP(E1356,Insumos!AD:AE,2,FALSE))","v":""},null,{"$f":"IF(G1356=\"\",\"\",VLOOKUP(G1356,Insumos!G:H,2,FALSE))","v":""}]
[null,null,null,null,null,{"$f":"IF(E1357=\"\",\"\",VLOOKUP(E1357,Insumos!AD:AE,2,FALSE))","v":""},null,{"$f":"IF(G1357=\"\",\"\",VLOOKUP(G1357,Insumos!G:H,2,FALSE))","v":""}]
[null,null,null,null,null,{"$f":"IF(E1358=\"\",\"\",VLOOKUP(E1358,Insumos!AD:AE,2,FALSE))","v":""},null,{"$f":"IF(G1358=\"\",\"\",VLOOKUP(G1358,Insumos!G:H,2,FALSE))","v":""}]
[null,null,null,null,null,{"$f":"IF(E1359=\"\",\"\",VLOOKUP(E1359,Insumos!AD:AE,2,FALSE))","v":""},null,{"$f":"IF(G1359=\"\",\"\",VLOOKUP(G1359,Insumos!G:H,2,FALSE))","v":""}]
[null,null,null,null,null,{"$f":"IF(E1360=\"\",\"\",VLOOKUP(E1360,Insumos!AD:AE,2,FALSE))","v":""},null,{"$f":"IF(G1360=\"\",\"\",VLOOKUP(G1360,Insumos!G:H,2,FALSE))","v":""}]
[null,null,null,null,null,{"$f":"IF(E1361=\"\",\"\",VLOOKUP(E1361,Insumos!AD:AE,2,FALSE))","v":""},null,{"$f":"IF(G1361=\"\",\"\",VLOOKUP(G1361,Insumos!G:H,2,FALSE))","v":""}]
[null,null,null,null,null,{"$f":"IF(E1362=\"\",\"\",VLOOKUP(E1362,Insumos!AD:AE,2,FALSE))","v":""},null,{"$f":"IF(G1362=\"\",\"\",VLOOKUP(G1362,Insumos!G:H,2,FALSE))","v":""}]
[null,null,null,null,null,{"$f":"IF(E1363=\"\",\"\",VLOOKUP(E1363,Insumos!AD:AE,2,FALSE))","v":""},null,{"$f":"IF(G1363=\"\",\"\",VLOOKUP(G1363,Insumos!G:H,2,FALSE))","v":""}]
[null,null,null,null,null,{"$f":"IF(E1364=\"\",\"\",VLOOKUP(E1364,Insumos!AD:AE,2,FALSE))","v":""},null,{"$f":"IF(G1364=\"\",\"\",VLOOKUP(G1364,Insumos!G:H,2,FALSE))","v":""}]
[null,null,null,null,null,{"$f":"IF(E1365=\"\",\"\",VLOOKUP(E1365,Insumos!AD:AE,2,FALSE))","v":""},null,{"$f":"IF(G1365=\"\",\"\",VLOOKUP(G1365,Insumos!G:H,2,FALSE))","v":""}]
[null,null,null,null,null,{"$f":"IF(E1366=\"\",\"\",VLOOKUP(E1366,Insumos!AD:AE,2,FALSE))","v":""},null,{"$f":"IF(G1366=\"\",\"\",VLOOKUP(G1366,Insumos!G:H,2,FALSE))","v":""}]
[null,null,null,null,null,{"$f":"IF(E1367=\"\",\"\",VLOOKUP(E1367,Insumos!AD:AE,2,FALSE))","v":""},null,{"$f":"IF(G1367=\"\",\"\",VLOOKUP(G1367,Insumos!G:H,2,FALSE))","v":""}]
[null,null,null,null,null,{"$f":"IF(E1368=\"\",\"\",VLOOKUP(E1368,Insumos!AD:AE,2,FALSE))","v":""},null,{"$f":"IF(G1368=\"\",\"\",VLOOKUP(G1368,Insumos!G:H,2,FALSE))","v":""}]
[null,null,null,null,null,{"$f":"IF(E1369=\"\",\"\",VLOOKUP(E1369,Insumos!AD:AE,2,FALSE))","v":""},null,{"$f":"IF(G1369=\"\",\"\",VLOOKUP(G1369,Insumos!G:H,2,FALSE))","v":""}]
[null,null,null,null,null,{"$f":"IF(E1370=\"\",\"\",VLOOKUP(E1370,Insumos!AD:AE,2,FALSE))","v":""},null,{"$f":"IF(G1370=\"\",\"\",VLOOKUP(G1370,Insumos!G:H,2,FALSE))","v":""}]
[null,null,null,null,null,{"$f":"IF(E1371=\"\",\"\",VLOOKUP(E1371,Insumos!AD:AE,2,FALSE))","v":""},null,{"$f":"IF(G1371=\"\",\"\",VLOOKUP(G1371,Insumos!G:H,2,FALSE))","v":""}]
[null,null,null,null,null,{"$f":"IF(E1372=\"\",\"\",VLOOKUP(E1372,Insumos!AD:AE,2,FALSE))","v":""},null,{"$f":"IF(G1372=\"\",\"\",VLOOKUP(G1372,Insumos!G:H,2,FALSE))","v":""}]
[null,null,null,null,null,{"$f":"IF(E1373=\"\",\"\",VLOOKUP(E1373,Insumos!AD:AE,2,FALSE))","v":""},null,{"$f":"IF(G1373=\"\",\"\",VLOOKUP(G1373,Insumos!G:H,2,FALSE))","v":""}]
[null,null,null,null,null,{"$f":"IF(E1374=\"\",\"\",VLOOKUP(E1374,Insumos!AD:AE,2,FALSE))","v":""},null,{"$f":"IF(G1374=\"\",\"\",VLOOKUP(G1374,Insumos!G:H,2,FALSE))","v":""}]
[null,null,null,null,null,{"$f":"IF(E1375=\"\",\"\",VLOOKUP(E1375,Insumos!AD:AE,2,FALSE))","v":""},null,{"$f":"IF(G1375=\"\",\"\",VLOOKUP(G1375,Insumos!G:H,2,FALSE))","v":""}]
[null,null,null,null,null,{"$f":"IF(E1376=\"\",\"\",VLOOKUP(E1376,Insumos!AD:AE,2,FALSE))","v":""},null,{"$f":"IF(G1376=\"\",\"\",VLOOKUP(G1376,Insumos!G:H,2,FALSE))","v":""}]
[null,null,null,null,null,{"$f":"IF(E1377=\"\",\"\",VLOOKUP(E1377,Insumos!AD:AE,2,FALSE))","v":""},null,{"$f":"IF(G1377=\"\",\"\",VLOOKUP(G1377,Insumos!G:H,2,FALSE))","v":""}]
[null,null,null,null,null,{"$f":"IF(E1378=\"\",\"\",VLOOKUP(E1378,Insumos!AD:AE,2,FALSE))","v":""},null,{"$f":"IF(G1378=\"\",\"\",VLOOKUP(G1378,Insumos!G:H,2,FALSE))","v":""}]
[null,null,null,null,null,{"$f":"IF(E1379=\"\",\"\",VLOOKUP(E1379,Insumos!AD:AE,2,FALSE))","v":""},null,{"$f":"IF(G1379=\"\",\"\",VLOOKUP(G1379,Insumos!G:H,2,FALSE))","v":""}]
[null,null,null,null,null,{"$f":"IF(E1380=\"\",\"\",VLOOKUP(E1380,Insumos!AD:AE,2,FALSE))","v":""},null,{"$f":"IF(G1380=\"\",\"\",VLOOKUP(G1380,Insumos!G:H,2,FALSE))","v":""}]
[null,null,null,null,null,{"$f":"IF(E1381=\"\",\"\",VLOOKUP(E1381,Insumos!AD:AE,2,FALSE))","v":""},null,{"$f":"IF(G1381=\"\",\"\",VLOOKUP(G1381,Insumos!G:H,2,FALSE))","v":""}]
[null,null,null,null,null,{"$f":"IF(E1382=\"\",\"\",VLOOKUP(E1382,Insumos!AD:AE,2,FALSE))","v":""},null,{"$f":"IF(G1382=\"\",\"\",VLOOKUP(G1382,Insumos!G:H,2,FALSE))","v":""}]
[null,null,null,null,null,{"$f":"IF(E1383=\"\",\"\",VLOOKUP(E1383,Insumos!AD:AE,2,FALSE))","v":""},null,{"$f":"IF(G1383=\"\",\"\",VLOOKUP(G1383,Insumos!G:H,2,FALSE))","v":""}]
[null,null,null,null,null,{"$f":"IF(E1384=\"\",\"\",VLOOKUP(E1384,Insumos!AD:AE,2,FALSE))","v":""},null,{"$f":"IF(G1384=\"\",\"\",VLOOKUP(G1384,Insumos!G:H,2,FALSE))","v":""}]
[null,null,null,null,null,{"$f":"IF(E1385=\"\",\"\",VLOOKUP(E1385,Insumos!AD:AE,2,FALSE))","v":""},null,{"$f":"IF(G1385=\"\",\"\",VLOOKUP(G1385,Insumos!G:H,2,FALSE))","v":""}]
[null,null,null,null,null,{"$f":"IF(E1386=\"\",\"\",VLOOKUP(E1386,Insumos!AD:AE,2,FALSE))","v":""},null,{"$f":"IF(G1386=\"\",\"\",VLOOKUP(G1386,Insumos!G:H,2,FALSE))","v":""}]
[null,null,null,null,null,{"$f":"IF(E1387=\"\",\"\",VLOOKUP(E1387,Insumos!AD:AE,2,FALSE))","v":""},null,{"$f":"IF(G1387=\"\",\"\",VLOOKUP(G1387,Insumos!G:H,2,FALSE))","v":""}]
[null,null,null,null,null,{"$f":"IF(E1388=\"\",\"\",VLOOKUP(E1388,Insumos!AD:AE,2,FALSE))","v":""},null,{"$f":"IF(G1388=\"\",\"\",VLOOKUP(G1388,Insumos!G:H,2,FALSE))","v":""}]
[null,null,null,null,null,{"$f":"IF(E1389=\"\",\"\",VLOOKUP(E1389,Insumos!AD:AE,2,FALSE))","v":""},null,{"$f":"IF(G1389=\"\",\"\",VLOOKUP(G1389,Insumos!G:H,2,FALSE))","v":""}]
[null,null,null,null,null,{"$f":"IF(E1390=\"\",\"\",VLOOKUP(E1390,Insumos!AD:AE,2,FALSE))","v":""},null,{"$f":"IF(G1390=\"\",\"\",VLOOKUP(G1390,Insumos!G:H,2,FALSE))","v":""}]
[null,null,null,null,null,{"$f":"IF(E1391=\"\",\"\",VLOOKUP(E1391,Insumos!AD:AE,2,FALSE))","v":""},null,{"$f":"IF(G1391=\"\",\"\",VLOOKUP(G1391,Insumos!G:H,2,FALSE))","v":""}]
[null,null,null,null,null,{"$f":"IF(E1392=\"\",\"\",VLOOKUP(E1392,Insumos!AD:AE,2,FALSE))","v":""},null,{"$f":"IF(G1392=\"\",\"\",VLOOKUP(G1392,Insumos!G:H,2,FALSE))","v":""}]
[null,null,null,null,null,{"$f":"IF(E1393=\"\",\"\",VLOOKUP(E1393,Insumos!AD:AE,2,FALSE))","v":""},null,{"$f":"IF(G1393=\"\",\"\",VLOOKUP(G1393,Insumos!G:H,2,FALSE))","v":""}]
[null,null,null,null,null,{"$f":"IF(E1394=\"\",\"\",VLOOKUP(E1394,Insumos!AD:AE,2,FALSE))","v":""},null,{"$f":"IF(G1394=\"\",\"\",VLOOKUP(G1394,Insumos!G:H,2,FALSE))","v":""}]
[null,null,null,null,null,{"$f":"IF(E1395=\"\",\"\",VLOOKUP(E1395,Insumos!AD:AE,2,FALSE))","v":""},null,{"$f":"IF(G1395=\"\",\"\",VLOOKUP(G1395,Insumos!G:H,2,FALSE))","v":""}]
[null,null,null,null,null,{"$f":"IF(E1396=\"\",\"\",VLOOKUP(E1396,Insumos!AD:AE,2,FALSE))","v":""},null,{"$f":"IF(G1396=\"\",\"\",VLOOKUP(G1396,Insumos!G:H,2,FALSE))","v":""}]
[null,null,null,null,null,{"$f":"IF(E1397=\"\",\"\",VLOOKUP(E1397,Insumos!AD:AE,2,FALSE))","v":""},null,{"$f":"IF(G1397=\"\",\"\",VLOOKUP(G1397,Insumos!G:H,2,FALSE))","v":""}]
[null,null,null,null,null,{"$f":"IF(E1398=\"\",\"\",VLOOKUP(E1398,Insumos!AD:AE,2,FALSE))","v":""},null,{"$f":"IF(G1398=\"\",\"\",VLOOKUP(G1398,Insumos!G:H,2,FALSE))","v":""}]
[null,null,null,null,null,{"$f":"IF(E1399=\"\",\"\",VLOOKUP(E1399,Insumos!AD:AE,2,FALSE))","v":""},null,{"$f":"IF(G1399=\"\",\"\",VLOOKUP(G1399,Insumos!G:H,2,FALSE))","v":""}]
[null,null,null,null,null,{"$f":"IF(E1400=\"\",\"\",VLOOKUP(E1400,Insumos!AD:AE,2,FALSE))","v":""},null,{"$f":"IF(G1400=\"\",\"\",VLOOKUP(G1400,Insumos!G:H,2,FALSE))","v":""}]
[null,null,null,null,null,{"$f":"IF(E1401=\"\",\"\",VLOOKUP(E1401,Insumos!AD:AE,2,FALSE))","v":""},null,{"$f":"IF(G1401=\"\",\"\",VLOOKUP(G1401,Insumos!G:H,2,FALSE))","v":""}]
[null,null,null,null,null,{"$f":"IF(E1402=\"\",\"\",VLOOKUP(E1402,Insumos!AD:AE,2,FALSE))","v":""},null,{"$f":"IF(G1402=\"\",\"\",VLOOKUP(G1402,Insumos!G:H,2,FALSE))","v":""}]
[null,null,null,null,null,{"$f":"IF(E1403=\"\",\"\",VLOOKUP(E1403,Insumos!AD:AE,2,FALSE))","v":""},null,{"$f":"IF(G1403=\"\",\"\",VLOOKUP(G1403,Insumos!G:H,2,FALSE))","v":""}]
[null,null,null,null,null,{"$f":"IF(E1404=\"\",\"\",VLOOKUP(E1404,Insumos!AD:AE,2,FALSE))","v":""},null,{"$f":"IF(G1404=\"\",\"\",VLOOKUP(G1404,Insumos!G:H,2,FALSE))","v":""}]
[null,null,null,null,null,{"$f":"IF(E1405=\"\",\"\",VLOOKUP(E1405,Insumos!AD:AE,2,FALSE))","v":""},null,{"$f":"IF(G1405=\"\",\"\",VLOOKUP(G1405,Insumos!G:H,2,FALSE))","v":""}]
[null,null,null,null,null,{"$f":"IF(E1406=\"\",\"\",VLOOKUP(E1406,Insumos!AD:AE,2,FALSE))","v":""},null,{"$f":"IF(G1406=\"\",\"\",VLOOKUP(G1406,Insumos!G:H,2,FALSE))","v":""}]
[null,null,null,null,null,{"$f":"IF(E1407=\"\",\"\",VLOOKUP(E1407,Insumos!AD:AE,2,FALSE))","v":""},null,{"$f":"IF(G1407=\"\",\"\",VLOOKUP(G1407,Insumos!G:H,2,FALSE))","v":""}]
[null,null,null,null,null,{"$f":"IF(E1408=\"\",\"\",VLOOKUP(E1408,Insumos!AD:AE,2,FALSE))","v":""},null,{"$f":"IF(G1408=\"\",\"\",VLOOKUP(G1408,Insumos!G:H,2,FALSE))","v":""}]
[null,null,null,null,null,{"$f":"IF(E1409=\"\",\"\",VLOOKUP(E1409,Insumos!AD:AE,2,FALSE))","v":""},null,{"$f":"IF(G1409=\"\",\"\",VLOOKUP(G1409,Insumos!G:H,2,FALSE))","v":""}]
[null,null,null,null,null,{"$f":"IF(E1410=\"\",\"\",VLOOKUP(E1410,Insumos!AD:AE,2,FALSE))","v":""},null,{"$f":"IF(G1410=\"\",\"\",VLOOKUP(G1410,Insumos!G:H,2,FALSE))","v":""}]
[null,null,null,null,null,{"$f":"IF(E1411=\"\",\"\",VLOOKUP(E1411,Insumos!AD:AE,2,FALSE))","v":""},null,{"$f":"IF(G1411=\"\",\"\",VLOOKUP(G1411,Insumos!G:H,2,FALSE))","v":""}]
[null,null,null,null,null,{"$f":"IF(E1412=\"\",\"\",VLOOKUP(E1412,Insumos!AD:AE,2,FALSE))","v":""},null,{"$f":"IF(G1412=\"\",\"\",VLOOKUP(G1412,Insumos!G:H,2,FALSE))","v":""}]
[null,null,null,null,null,{"$f":"IF(E1413=\"\",\"\",VLOOKUP(E1413,Insumos!AD:AE,2,FALSE))","v":""},null,{"$f":"IF(G1413=\"\",\"\",VLOOKUP(G1413,Insumos!G:H,2,FALSE))","v":""}]
[null,null,null,null,null,{"$f":"IF(E1414=\"\",\"\",VLOOKUP(E1414,Insumos!AD:AE,2,FALSE))","v":""},null,{"$f":"IF(G1414=\"\",\"\",VLOOKUP(G1414,Insumos!G:H,2,FALSE))","v":""}]
[null,null,null,null,null,{"$f":"IF(E1415=\"\",\"\",VLOOKUP(E1415,Insumos!AD:AE,2,FALSE))","v":""},null,{"$f":"IF(G1415=\"\",\"\",VLOOKUP(G1415,Insumos!G:H,2,FALSE))","v":""}]
[null,null,null,null,null,{"$f":"IF(E1416=\"\",\"\",VLOOKUP(E1416,Insumos!AD:AE,2,FALSE))","v":""},null,{"$f":"IF(G1416=\"\",\"\",VLOOKUP(G1416,Insumos!G:H,2,FALSE))","v":""}]
[null,null,null,null,null,{"$f":"IF(E1417=\"\",\"\",VLOOKUP(E1417,Insumos!AD:AE,2,FALSE))","v":""},null,{"$f":"IF(G1417=\"\",\"\",VLOOKUP(G1417,Insumos!G:H,2,FALSE))","v":""}]
[null,null,null,null,null,{"$f":"IF(E1418=\"\",\"\",VLOOKUP(E1418,Insumos!AD:AE,2,FALSE))","v":""},null,{"$f":"IF(G1418=\"\",\"\",VLOOKUP(G1418,Insumos!G:H,2,FALSE))","v":""}]
[null,null,null,null,null,{"$f":"IF(E1419=\"\",\"\",VLOOKUP(E1419,Insumos!AD:AE,2,FALSE))","v":""},null,{"$f":"IF(G1419=\"\",\"\",VLOOKUP(G1419,Insumos!G:H,2,FALSE))","v":""}]
[null,null,null,null,null,{"$f":"IF(E1420=\"\",\"\",VLOOKUP(E1420,Insumos!AD:AE,2,FALSE))","v":""},null,{"$f":"IF(G1420=\"\",\"\",VLOOKUP(G1420,Insumos!G:H,2,FALSE))","v":""}]
[null,null,null,null,null,{"$f":"IF(E1421=\"\",\"\",VLOOKUP(E1421,Insumos!AD:AE,2,FALSE))","v":""},null,{"$f":"IF(G1421=\"\",\"\",VLOOKUP(G1421,Insumos!G:H,2,FALSE))","v":""}]
[null,null,null,null,null,{"$f":"IF(E1422=\"\",\"\",VLOOKUP(E1422,Insumos!AD:AE,2,FALSE))","v":""},null,{"$f":"IF(G1422=\"\",\"\",VLOOKUP(G1422,Insumos!G:H,2,FALSE))","v":""}]
[null,null,null,null,null,{"$f":"IF(E1423=\"\",\"\",VLOOKUP(E1423,Insumos!AD:AE,2,FALSE))","v":""},null,{"$f":"IF(G1423=\"\",\"\",VLOOKUP(G1423,Insumos!G:H,2,FALSE))","v":""}]
[null,null,null,null,null,{"$f":"IF(E1424=\"\",\"\",VLOOKUP(E1424,Insumos!AD:AE,2,FALSE))","v":""},null,{"$f":"IF(G1424=\"\",\"\",VLOOKUP(G1424,Insumos!G:H,2,FALSE))","v":""}]
[null,null,null,null,null,{"$f":"IF(E1425=\"\",\"\",VLOOKUP(E1425,Insumos!AD:AE,2,FALSE))","v":""},null,{"$f":"IF(G1425=\"\",\"\",VLOOKUP(G1425,Insumos!G:H,2,FALSE))","v":""}]
[null,null,null,null,null,{"$f":"IF(E1426=\"\",\"\",VLOOKUP(E1426,Insumos!AD:AE,2,FALSE))","v":""},null,{"$f":"IF(G1426=\"\",\"\",VLOOKUP(G1426,Insumos!G:H,2,FALSE))","v":""}]
[null,null,null,null,null,{"$f":"IF(E1427=\"\",\"\",VLOOKUP(E1427,Insumos!AD:AE,2,FALSE))","v":""},null,{"$f":"IF(G1427=\"\",\"\",VLOOKUP(G1427,Insumos!G:H,2,FALSE))","v":""}]
[null,null,null,null,null,{"$f":"IF(E1428=\"\",\"\",VLOOKUP(E1428,Insumos!AD:AE,2,FALSE))","v":""},null,{"$f":"IF(G1428=\"\",\"\",VLOOKUP(G1428,Insumos!G:H,2,FALSE))","v":""}]
[null,null,null,null,null,{"$f":"IF(E1429=\"\",\"\",VLOOKUP(E1429,Insumos!AD:AE,2,FALSE))","v":""},null,{"$f":"IF(G1429=\"\",\"\",VLOOKUP(G1429,Insumos!G:H,2,FALSE))","v":""}]
[null,null,null,null,null,{"$f":"IF(E1430=\"\",\"\",VLOOKUP(E1430,Insumos!AD:AE,2,FALSE))","v":""},null,{"$f":"IF(G1430=\"\",\"\",VLOOKUP(G1430,Insumos!G:H,2,FALSE))","v":""}]
[null,null,null,null,null,{"$f":"IF(E1431=\"\",\"\",VLOOKUP(E1431,Insumos!AD:AE,2,FALSE))","v":""},null,{"$f":"IF(G1431=\"\",\"\",VLOOKUP(G1431,Insumos!G:H,2,FALSE))","v":""}]
[null,null,null,null,null,{"$f":"IF(E1432=\"\",\"\",VLOOKUP(E1432,Insumos!AD:AE,2,FALSE))","v":""},null,{"$f":"IF(G1432=\"\",\"\",VLOOKUP(G1432,Insumos!G:H,2,FALSE))","v":""}]
[null,null,null,null,null,{"$f":"IF(E1433=\"\",\"\",VLOOKUP(E1433,Insumos!AD:AE,2,FALSE))","v":""},null,{"$f":"IF(G1433=\"\",\"\",VLOOKUP(G1433,Insumos!G:H,2,FALSE))","v":""}]
[null,null,null,null,null,{"$f":"IF(E1434=\"\",\"\",VLOOKUP(E1434,Insumos!AD:AE,2,FALSE))","v":""},null,{"$f":"IF(G1434=\"\",\"\",VLOOKUP(G1434,Insumos!G:H,2,FALSE))","v":""}]
[null,null,null,null,null,{"$f":"IF(E1435=\"\",\"\",VLOOKUP(E1435,Insumos!AD:AE,2,FALSE))","v":""},null,{"$f":"IF(G1435=\"\",\"\",VLOOKUP(G1435,Insumos!G:H,2,FALSE))","v":""}]
[null,null,null,null,null,{"$f":"IF(E1436=\"\",\"\",VLOOKUP(E1436,Insumos!AD:AE,2,FALSE))","v":""},null,{"$f":"IF(G1436=\"\",\"\",VLOOKUP(G1436,Insumos!G:H,2,FALSE))","v":""}]
[null,null,null,null,null,{"$f":"IF(E1437=\"\",\"\",VLOOKUP(E1437,Insumos!AD:AE,2,FALSE))","v":""},null,{"$f":"IF(G1437=\"\",\"\",VLOOKUP(G1437,Insumos!G:H,2,FALSE))","v":""}]
[null,null,null,null,null,{"$f":"IF(E1438=\"\",\"\",VLOOKUP(E1438,Insumos!AD:AE,2,FALSE))","v":""},null,{"$f":"IF(G1438=\"\",\"\",VLOOKUP(G1438,Insumos!G:H,2,FALSE))","v":""}]
[null,null,null,null,null,{"$f":"IF(E1439=\"\",\"\",VLOOKUP(E1439,Insumos!AD:AE,2,FALSE))","v":""},null,{"$f":"IF(G1439=\"\",\"\",VLOOKUP(G1439,Insumos!G:H,2,FALSE))","v":""}]
[null,null,null,null,null,{"$f":"IF(E1440=\"\",\"\",VLOOKUP(E1440,Insumos!AD:AE,2,FALSE))","v":""},null,{"$f":"IF(G1440=\"\",\"\",VLOOKUP(G1440,Insumos!G:H,2,FALSE))","v":""}]
[null,null,null,null,null,{"$f":"IF(E1441=\"\",\"\",VLOOKUP(E1441,Insumos!AD:AE,2,FALSE))","v":""},null,{"$f":"IF(G1441=\"\",\"\",VLOOKUP(G1441,Insumos!G:H,2,FALSE))","v":""}]
[null,null,null,null,null,{"$f":"IF(E1442=\"\",\"\",VLOOKUP(E1442,Insumos!AD:AE,2,FALSE))","v":""},null,{"$f":"IF(G1442=\"\",\"\",VLOOKUP(G1442,Insumos!G:H,2,FALSE))","v":""}]
[null,null,null,null,null,{"$f":"IF(E1443=\"\",\"\",VLOOKUP(E1443,Insumos!AD:AE,2,FALSE))","v":""},null,{"$f":"IF(G1443=\"\",\"\",VLOOKUP(G1443,Insumos!G:H,2,FALSE))","v":""}]
[null,null,null,null,null,{"$f":"IF(E1444=\"\",\"\",VLOOKUP(E1444,Insumos!AD:AE,2,FALSE))","v":""},null,{"$f":"IF(G1444=\"\",\"\",VLOOKUP(G1444,Insumos!G:H,2,FALSE))","v":""}]
[null,null,null,null,null,{"$f":"IF(E1445=\"\",\"\",VLOOKUP(E1445,Insumos!AD:AE,2,FALSE))","v":""},null,{"$f":"IF(G1445=\"\",\"\",VLOOKUP(G1445,Insumos!G:H,2,FALSE))","v":""}]
[null,null,null,null,null,{"$f":"IF(E1446=\"\",\"\",VLOOKUP(E1446,Insumos!AD:AE,2,FALSE))","v":""},null,{"$f":"IF(G1446=\"\",\"\",VLOOKUP(G1446,Insumos!G:H,2,FALSE))","v":""}]
[null,null,null,null,null,{"$f":"IF(E1447=\"\",\"\",VLOOKUP(E1447,Insumos!AD:AE,2,FALSE))","v":""},null,{"$f":"IF(G1447=\"\",\"\",VLOOKUP(G1447,Insumos!G:H,2,FALSE))","v":""}]
[null,null,null,null,null,{"$f":"IF(E1448=\"\",\"\",VLOOKUP(E1448,Insumos!AD:AE,2,FALSE))","v":""},null,{"$f":"IF(G1448=\"\",\"\",VLOOKUP(G1448,Insumos!G:H,2,FALSE))","v":""}]
[null,null,null,null,null,{"$f":"IF(E1449=\"\",\"\",VLOOKUP(E1449,Insumos!AD:AE,2,FALSE))","v":""},null,{"$f":"IF(G1449=\"\",\"\",VLOOKUP(G1449,Insumos!G:H,2,FALSE))","v":""}]
[null,null,null,null,null,{"$f":"IF(E1450=\"\",\"\",VLOOKUP(E1450,Insumos!AD:AE,2,FALSE))","v":""},null,{"$f":"IF(G1450=\"\",\"\",VLOOKUP(G1450,Insumos!G:H,2,FALSE))","v":""}]
[null,null,null,null,null,{"$f":"IF(E1451=\"\",\"\",VLOOKUP(E1451,Insumos!AD:AE,2,FALSE))","v":""},null,{"$f":"IF(G1451=\"\",\"\",VLOOKUP(G1451,Insumos!G:H,2,FALSE))","v":""}]
[null,null,null,null,null,{"$f":"IF(E1452=\"\",\"\",VLOOKUP(E1452,Insumos!AD:AE,2,FALSE))","v":""},null,{"$f":"IF(G1452=\"\",\"\",VLOOKUP(G1452,Insumos!G:H,2,FALSE))","v":""}]
[null,null,null,null,null,{"$f":"IF(E1453=\"\",\"\",VLOOKUP(E1453,Insumos!AD:AE,2,FALSE))","v":""},null,{"$f":"IF(G1453=\"\",\"\",VLOOKUP(G1453,Insumos!G:H,2,FALSE))","v":""}]
[null,null,null,null,null,{"$f":"IF(E1454=\"\",\"\",VLOOKUP(E1454,Insumos!AD:AE,2,FALSE))","v":""},null,{"$f":"IF(G1454=\"\",\"\",VLOOKUP(G1454,Insumos!G:H,2,FALSE))","v":""}]
[null,null,null,null,null,{"$f":"IF(E1455=\"\",\"\",VLOOKUP(E1455,Insumos!AD:AE,2,FALSE))","v":""},null,{"$f":"IF(G1455=\"\",\"\",VLOOKUP(G1455,Insumos!G:H,2,FALSE))","v":""}]
[null,null,null,null,null,{"$f":"IF(E1456=\"\",\"\",VLOOKUP(E1456,Insumos!AD:AE,2,FALSE))","v":""},null,{"$f":"IF(G1456=\"\",\"\",VLOOKUP(G1456,Insumos!G:H,2,FALSE))","v":""}]
[null,null,null,null,null,{"$f":"IF(E1457=\"\",\"\",VLOOKUP(E1457,Insumos!AD:AE,2,FALSE))","v":""},null,{"$f":"IF(G1457=\"\",\"\",VLOOKUP(G1457,Insumos!G:H,2,FALSE))","v":""}]
[null,null,null,null,null,{"$f":"IF(E1458=\"\",\"\",VLOOKUP(E1458,Insumos!AD:AE,2,FALSE))","v":""},null,{"$f":"IF(G1458=\"\",\"\",VLOOKUP(G1458,Insumos!G:H,2,FALSE))","v":""}]
[null,null,null,null,null,{"$f":"IF(E1459=\"\",\"\",VLOOKUP(E1459,Insumos!AD:AE,2,FALSE))","v":""},null,{"$f":"IF(G1459=\"\",\"\",VLOOKUP(G1459,Insumos!G:H,2,FALSE))","v":""}]
[null,null,null,null,null,{"$f":"IF(E1460=\"\",\"\",VLOOKUP(E1460,Insumos!AD:AE,2,FALSE))","v":""},null,{"$f":"IF(G1460=\"\",\"\",VLOOKUP(G1460,Insumos!G:H,2,FALSE))","v":""}]
[null,null,null,null,null,{"$f":"IF(E1461=\"\",\"\",VLOOKUP(E1461,Insumos!AD:AE,2,FALSE))","v":""},null,{"$f":"IF(G1461=\"\",\"\",VLOOKUP(G1461,Insumos!G:H,2,FALSE))","v":""}]
[null,null,null,null,null,{"$f":"IF(E1462=\"\",\"\",VLOOKUP(E1462,Insumos!AD:AE,2,FALSE))","v":""},null,{"$f":"IF(G1462=\"\",\"\",VLOOKUP(G1462,Insumos!G:H,2,FALSE))","v":""}]
[null,null,null,null,null,{"$f":"IF(E1463=\"\",\"\",VLOOKUP(E1463,Insumos!AD:AE,2,FALSE))","v":""},null,{"$f":"IF(G1463=\"\",\"\",VLOOKUP(G1463,Insumos!G:H,2,FALSE))","v":""}]
[null,null,null,null,null,{"$f":"IF(E1464=\"\",\"\",VLOOKUP(E1464,Insumos!AD:AE,2,FALSE))","v":""},null,{"$f":"IF(G1464=\"\",\"\",VLOOKUP(G1464,Insumos!G:H,2,FALSE))","v":""}]
[null,null,null,null,null,{"$f":"IF(E1465=\"\",\"\",VLOOKUP(E1465,Insumos!AD:AE,2,FALSE))","v":""},null,{"$f":"IF(G1465=\"\",\"\",VLOOKUP(G1465,Insumos!G:H,2,FALSE))","v":""}]
[null,null,null,null,null,{"$f":"IF(E1466=\"\",\"\",VLOOKUP(E1466,Insumos!AD:AE,2,FALSE))","v":""},null,{"$f":"IF(G1466=\"\",\"\",VLOOKUP(G1466,Insumos!G:H,2,FALSE))","v":""}]
[null,null,null,null,null,{"$f":"IF(E1467=\"\",\"\",VLOOKUP(E1467,Insumos!AD:AE,2,FALSE))","v":""},null,{"$f":"IF(G1467=\"\",\"\",VLOOKUP(G1467,Insumos!G:H,2,FALSE))","v":""}]
[null,null,null,null,null,{"$f":"IF(E1468=\"\",\"\",VLOOKUP(E1468,Insumos!AD:AE,2,FALSE))","v":""},null,{"$f":"IF(G1468=\"\",\"\",VLOOKUP(G1468,Insumos!G:H,2,FALSE))","v":""}]
[null,null,null,null,null,{"$f":"IF(E1469=\"\",\"\",VLOOKUP(E1469,Insumos!AD:AE,2,FALSE))","v":""},null,{"$f":"IF(G1469=\"\",\"\",VLOOKUP(G1469,Insumos!G:H,2,FALSE))","v":""}]
[null,null,null,null,null,{"$f":"IF(E1470=\"\",\"\",VLOOKUP(E1470,Insumos!AD:AE,2,FALSE))","v":""},null,{"$f":"IF(G1470=\"\",\"\",VLOOKUP(G1470,Insumos!G:H,2,FALSE))","v":""}]
[null,null,null,null,null,{"$f":"IF(E1471=\"\",\"\",VLOOKUP(E1471,Insumos!AD:AE,2,FALSE))","v":""},null,{"$f":"IF(G1471=\"\",\"\",VLOOKUP(G1471,Insumos!G:H,2,FALSE))","v":""}]
[null,null,null,null,null,{"$f":"IF(E1472=\"\",\"\",VLOOKUP(E1472,Insumos!AD:AE,2,FALSE))","v":""},null,{"$f":"IF(G1472=\"\",\"\",VLOOKUP(G1472,Insumos!G:H,2,FALSE))","v":""}]
[null,null,null,null,null,{"$f":"IF(E1473=\"\",\"\",VLOOKUP(E1473,Insumos!AD:AE,2,FALSE))","v":""},null,{"$f":"IF(G1473=\"\",\"\",VLOOKUP(G1473,Insumos!G:H,2,FALSE))","v":""}]
[null,null,null,null,null,{"$f":"IF(E1474=\"\",\"\",VLOOKUP(E1474,Insumos!AD:AE,2,FALSE))","v":""},null,{"$f":"IF(G1474=\"\",\"\",VLOOKUP(G1474,Insumos!G:H,2,FALSE))","v":""}]
[null,null,null,null,null,{"$f":"IF(E1475=\"\",\"\",VLOOKUP(E1475,Insumos!AD:AE,2,FALSE))","v":""},null,{"$f":"IF(G1475=\"\",\"\",VLOOKUP(G1475,Insumos!G:H,2,FALSE))","v":""}]
[null,null,null,null,null,{"$f":"IF(E1476=\"\",\"\",VLOOKUP(E1476,Insumos!AD:AE,2,FALSE))","v":""},null,{"$f":"IF(G1476=\"\",\"\",VLOOKUP(G1476,Insumos!G:H,2,FALSE))","v":""}]
[null,null,null,null,null,{"$f":"IF(E1477=\"\",\"\",VLOOKUP(E1477,Insumos!AD:AE,2,FALSE))","v":""},null,{"$f":"IF(G1477=\"\",\"\",VLOOKUP(G1477,Insumos!G:H,2,FALSE))","v":""}]
[null,null,null,null,null,{"$f":"IF(E1478=\"\",\"\",VLOOKUP(E1478,Insumos!AD:AE,2,FALSE))","v":""},null,{"$f":"IF(G1478=\"\",\"\",VLOOKUP(G1478,Insumos!G:H,2,FALSE))","v":""}]
[null,null,null,null,null,{"$f":"IF(E1479=\"\",\"\",VLOOKUP(E1479,Insumos!AD:AE,2,FALSE))","v":""},null,{"$f":"IF(G1479=\"\",\"\",VLOOKUP(G1479,Insumos!G:H,2,FALSE))","v":""}]
[null,null,null,null,null,{"$f":"IF(E1480=\"\",\"\",VLOOKUP(E1480,Insumos!AD:AE,2,FALSE))","v":""},null,{"$f":"IF(G1480=\"\",\"\",VLOOKUP(G1480,Insumos!G:H,2,FALSE))","v":""}]
[null,null,null,null,null,{"$f":"IF(E1481=\"\",\"\",VLOOKUP(E1481,Insumos!AD:AE,2,FALSE))","v":""},null,{"$f":"IF(G1481=\"\",\"\",VLOOKUP(G1481,Insumos!G:H,2,FALSE))","v":""}]
[null,null,null,null,null,{"$f":"IF(E1482=\"\",\"\",VLOOKUP(E1482,Insumos!AD:AE,2,FALSE))","v":""},null,{"$f":"IF(G1482=\"\",\"\",VLOOKUP(G1482,Insumos!G:H,2,FALSE))","v":""}]
[null,null,null,null,null,{"$f":"IF(E1483=\"\",\"\",VLOOKUP(E1483,Insumos!AD:AE,2,FALSE))","v":""},null,{"$f":"IF(G1483=\"\",\"\",VLOOKUP(G1483,Insumos!G:H,2,FALSE))","v":""}]
[null,null,null,null,null,{"$f":"IF(E1484=\"\",\"\",VLOOKUP(E1484,Insumos!AD:AE,2,FALSE))","v":""},null,{"$f":"IF(G1484=\"\",\"\",VLOOKUP(G1484,Insumos!G:H,2,FALSE))","v":""}]
[null,null,null,null,null,{"$f":"IF(E1485=\"\",\"\",VLOOKUP(E1485,Insumos!AD:AE,2,FALSE))","v":""},null,{"$f":"IF(G1485=\"\",\"\",VLOOKUP(G1485,Insumos!G:H,2,FALSE))","v":""}]
[null,null,null,null,null,{"$f":"IF(E1486=\"\",\"\",VLOOKUP(E1486,Insumos!AD:AE,2,FALSE))","v":""},null,{"$f":"IF(G1486=\"\",\"\",VLOOKUP(G1486,Insumos!G:H,2,FALSE))","v":""}]
[null,null,null,null,null,{"$f":"IF(E1487=\"\",\"\",VLOOKUP(E1487,Insumos!AD:AE,2,FALSE))","v":""},null,{"$f":"IF(G1487=\"\",\"\",VLOOKUP(G1487,Insumos!G:H,2,FALSE))","v":""}]
[null,null,null,null,null,{"$f":"IF(E1488=\"\",\"\",VLOOKUP(E1488,Insumos!AD:AE,2,FALSE))","v":""},null,{"$f":"IF(G1488=\"\",\"\",VLOOKUP(G1488,Insumos!G:H,2,FALSE))","v":""}]
[null,null,null,null,null,{"$f":"IF(E1489=\"\",\"\",VLOOKUP(E1489,Insumos!AD:AE,2,FALSE))","v":""},null,{"$f":"IF(G1489=\"\",\"\",VLOOKUP(G1489,Insumos!G:H,2,FALSE))","v":""}]
[null,null,null,null,null,{"$f":"IF(E1490=\"\",\"\",VLOOKUP(E1490,Insumos!AD:AE,2,FALSE))","v":""},null,{"$f":"IF(G1490=\"\",\"\",VLOOKUP(G1490,Insumos!G:H,2,FALSE))","v":""}]
[null,null,null,null,null,{"$f":"IF(E1491=\"\",\"\",VLOOKUP(E1491,Insumos!AD:AE,2,FALSE))","v":""},null,{"$f":"IF(G1491=\"\",\"\",VLOOKUP(G1491,Insumos!G:H,2,FALSE))","v":""}]
[null,null,null,null,null,{"$f":"IF(E1492=\"\",\"\",VLOOKUP(E1492,Insumos!AD:AE,2,FALSE))","v":""},null,{"$f":"IF(G1492=\"\",\"\",VLOOKUP(G1492,Insumos!G:H,2,FALSE))","v":""}]
[null,null,null,null,null,{"$f":"IF(E1493=\"\",\"\",VLOOKUP(E1493,Insumos!AD:AE,2,FALSE))","v":""},null,{"$f":"IF(G1493=\"\",\"\",VLOOKUP(G1493,Insumos!G:H,2,FALSE))","v":""}]
[null,null,null,null,null,{"$f":"IF(E1494=\"\",\"\",VLOOKUP(E1494,Insumos!AD:AE,2,FALSE))","v":""},null,{"$f":"IF(G1494=\"\",\"\",VLOOKUP(G1494,Insumos!G:H,2,FALSE))","v":""}]
[null,null,null,null,null,{"$f":"IF(E1495=\"\",\"\",VLOOKUP(E1495,Insumos!AD:AE,2,FALSE))","v":""},null,{"$f":"IF(G1495=\"\",\"\",VLOOKUP(G1495,Insumos!G:H,2,FALSE))","v":""}]
[null,null,null,null,null,{"$f":"IF(E1496=\"\",\"\",VLOOKUP(E1496,Insumos!AD:AE,2,FALSE))","v":""},null,{"$f":"IF(G1496=\"\",\"\",VLOOKUP(G1496,Insumos!G:H,2,FALSE))","v":""}]
[null,null,null,null,null,{"$f":"IF(E1497=\"\",\"\",VLOOKUP(E1497,Insumos!AD:AE,2,FALSE))","v":""},null,{"$f":"IF(G1497=\"\",\"\",VLOOKUP(G1497,Insumos!G:H,2,FALSE))","v":""}]
[null,null,null,null,null,{"$f":"IF(E1498=\"\",\"\",VLOOKUP(E1498,Insumos!AD:AE,2,FALSE))","v":""},null,{"$f":"IF(G1498=\"\",\"\",VLOOKUP(G1498,Insumos!G:H,2,FALSE))","v":""}]
[null,null,null,null,null,{"$f":"IF(E1499=\"\",\"\",VLOOKUP(E1499,Insumos!AD:AE,2,FALSE))","v":""},null,{"$f":"IF(G1499=\"\",\"\",VLOOKUP(G1499,Insumos!G:H,2,FALSE))","v":""}]
[null,null,null,null,null,{"$f":"IF(E1500=\"\",\"\",VLOOKUP(E1500,Insumos!AD:AE,2,FALSE))","v":""},null,{"$f":"IF(G1500=\"\",\"\",VLOOKUP(G1500,Insumos!G:H,2,FALSE))","v":""}]
[null,null,null,null,null,{"$f":"IF(E1501=\"\",\"\",VLOOKUP(E1501,Insumos!AD:AE,2,FALSE))","v":""},null,{"$f":"IF(G1501=\"\",\"\",VLOOKUP(G1501,Insumos!G:H,2,FALSE))","v":""}]
[null,null,null,null,null,{"$f":"IF(E1502=\"\",\"\",VLOOKUP(E1502,Insumos!AD:AE,2,FALSE))","v":""},null,{"$f":"IF(G1502=\"\",\"\",VLOOKUP(G1502,Insumos!G:H,2,FALSE))","v":""}]
[null,null,null,null,null,{"$f":"IF(E1503=\"\",\"\",VLOOKUP(E1503,Insumos!AD:AE,2,FALSE))","v":""},null,{"$f":"IF(G1503=\"\",\"\",VLOOKUP(G1503,Insumos!G:H,2,FALSE))","v":""}]
[null,null,null,null,null,{"$f":"IF(E1504=\"\",\"\",VLOOKUP(E1504,Insumos!AD:AE,2,FALSE))","v":""},null,{"$f":"IF(G1504=\"\",\"\",VLOOKUP(G1504,Insumos!G:H,2,FALSE))","v":""}]
[null,null,null,null,null,{"$f":"IF(E1505=\"\",\"\",VLOOKUP(E1505,Insumos!AD:AE,2,FALSE))","v":""},null,{"$f":"IF(G1505=\"\",\"\",VLOOKUP(G1505,Insumos!G:H,2,FALSE))","v":""}]
[null,null,null,null,null,{"$f":"IF(E1506=\"\",\"\",VLOOKUP(E1506,Insumos!AD:AE,2,FALSE))","v":""},null,{"$f":"IF(G1506=\"\",\"\",VLOOKUP(G1506,Insumos!G:H,2,FALSE))","v":""}]
[null,null,null,null,null,{"$f":"IF(E1507=\"\",\"\",VLOOKUP(E1507,Insumos!AD:AE,2,FALSE))","v":""},null,{"$f":"IF(G1507=\"\",\"\",VLOOKUP(G1507,Insumos!G:H,2,FALSE))","v":""}]
[null,null,null,null,null,{"$f":"IF(E1508=\"\",\"\",VLOOKUP(E1508,Insumos!AD:AE,2,FALSE))","v":""},null,{"$f":"IF(G1508=\"\",\"\",VLOOKUP(G1508,Insumos!G:H,2,FALSE))","v":""}]
[null,null,null,null,null,{"$f":"IF(E1509=\"\",\"\",VLOOKUP(E1509,Insumos!AD:AE,2,FALSE))","v":""},null,{"$f":"IF(G1509=\"\",\"\",VLOOKUP(G1509,Insumos!G:H,2,FALSE))","v":""}]
[null,null,null,null,null,{"$f":"IF(E1510=\"\",\"\",VLOOKUP(E1510,Insumos!AD:AE,2,FALSE))","v":""},null,{"$f":"IF(G1510=\"\",\"\",VLOOKUP(G1510,Insumos!G:H,2,FALSE))","v":""}]
[null,null,null,null,null,{"$f":"IF(E1511=\"\",\"\",VLOOKUP(E1511,Insumos!AD:AE,2,FALSE))","v":""},null,{"$f":"IF(G1511=\"\",\"\",VLOOKUP(G1511,Insumos!G:H,2,FALSE))","v":""}]
[null,null,null,null,null,{"$f":"IF(E1512=\"\",\"\",VLOOKUP(E1512,Insumos!AD:AE,2,FALSE))","v":""},null,{"$f":"IF(G1512=\"\",\"\",VLOOKUP(G1512,Insumos!G:H,2,FALSE))","v":""}]
[null,null,null,null,null,{"$f":"IF(E1513=\"\",\"\",VLOOKUP(E1513,Insumos!AD:AE,2,FALSE))","v":""},null,{"$f":"IF(G1513=\"\",\"\",VLOOKUP(G1513,Insumos!G:H,2,FALSE))","v":""}]
[null,null,null,null,null,{"$f":"IF(E1514=\"\",\"\",VLOOKUP(E1514,Insumos!AD:AE,2,FALSE))","v":""},null,{"$f":"IF(G1514=\"\",\"\",VLOOKUP(G1514,Insumos!G:H,2,FALSE))","v":""}]
[null,null,null,null,null,{"$f":"IF(E1515=\"\",\"\",VLOOKUP(E1515,Insumos!AD:AE,2,FALSE))","v":""},null,{"$f":"IF(G1515=\"\",\"\",VLOOKUP(G1515,Insumos!G:H,2,FALSE))","v":""}]
[null,null,null,null,null,{"$f":"IF(E1516=\"\",\"\",VLOOKUP(E1516,Insumos!AD:AE,2,FALSE))","v":""},null,{"$f":"IF(G1516=\"\",\"\",VLOOKUP(G1516,Insumos!G:H,2,FALSE))","v":""}]
[null,null,null,null,null,{"$f":"IF(E1517=\"\",\"\",VLOOKUP(E1517,Insumos!AD:AE,2,FALSE))","v":""},null,{"$f":"IF(G1517=\"\",\"\",VLOOKUP(G1517,Insumos!G:H,2,FALSE))","v":""}]
[null,null,null,null,null,{"$f":"IF(E1518=\"\",\"\",VLOOKUP(E1518,Insumos!AD:AE,2,FALSE))","v":""},null,{"$f":"IF(G1518=\"\",\"\",VLOOKUP(G1518,Insumos!G:H,2,FALSE))","v":""}]
[null,null,null,null,null,{"$f":"IF(E1519=\"\",\"\",VLOOKUP(E1519,Insumos!AD:AE,2,FALSE))","v":""},null,{"$f":"IF(G1519=\"\",\"\",VLOOKUP(G1519,Insumos!G:H,2,FALSE))","v":""}]
[null,null,null,null,null,{"$f":"IF(E1520=\"\",\"\",VLOOKUP(E1520,Insumos!AD:AE,2,FALSE))","v":""},null,{"$f":"IF(G1520=\"\",\"\",VLOOKUP(G1520,Insumos!G:H,2,FALSE))","v":""}]
[null,null,null,null,null,{"$f":"IF(E1521=\"\",\"\",VLOOKUP(E1521,Insumos!AD:AE,2,FALSE))","v":""},null,{"$f":"IF(G1521=\"\",\"\",VLOOKUP(G1521,Insumos!G:H,2,FALSE))","v":""}]
[null,null,null,null,null,{"$f":"IF(E1522=\"\",\"\",VLOOKUP(E1522,Insumos!AD:AE,2,FALSE))","v":""},null,{"$f":"IF(G1522=\"\",\"\",VLOOKUP(G1522,Insumos!G:H,2,FALSE))","v":""}]
[null,null,null,null,null,{"$f":"IF(E1523=\"\",\"\",VLOOKUP(E1523,Insumos!AD:AE,2,FALSE))","v":""},null,{"$f":"IF(G1523=\"\",\"\",VLOOKUP(G1523,Insumos!G:H,2,FALSE))","v":""}]
[null,null,null,null,null,{"$f":"IF(E1524=\"\",\"\",VLOOKUP(E1524,Insumos!AD:AE,2,FALSE))","v":""},null,{"$f":"IF(G1524=\"\",\"\",VLOOKUP(G1524,Insumos!G:H,2,FALSE))","v":""}]
[null,null,null,null,null,{"$f":"IF(E1525=\"\",\"\",VLOOKUP(E1525,Insumos!AD:AE,2,FALSE))","v":""},null,{"$f":"IF(G1525=\"\",\"\",VLOOKUP(G1525,Insumos!G:H,2,FALSE))","v":""}]
[null,null,null,null,null,{"$f":"IF(E1526=\"\",\"\",VLOOKUP(E1526,Insumos!AD:AE,2,FALSE))","v":""},null,{"$f":"IF(G1526=\"\",\"\",VLOOKUP(G1526,Insumos!G:H,2,FALSE))","v":""}]
[null,null,null,null,null,{"$f":"IF(E1527=\"\",\"\",VLOOKUP(E1527,Insumos!AD:AE,2,FALSE))","v":""},null,{"$f":"IF(G1527=\"\",\"\",VLOOKUP(G1527,Insumos!G:H,2,FALSE))","v":""}]
[null,null,null,null,null,{"$f":"IF(E1528=\"\",\"\",VLOOKUP(E1528,Insumos!AD:AE,2,FALSE))","v":""},null,{"$f":"IF(G1528=\"\",\"\",VLOOKUP(G1528,Insumos!G:H,2,FALSE))","v":""}]
[null,null,null,null,null,{"$f":"IF(E1529=\"\",\"\",VLOOKUP(E1529,Insumos!AD:AE,2,FALSE))","v":""},null,{"$f":"IF(G1529=\"\",\"\",VLOOKUP(G1529,Insumos!G:H,2,FALSE))","v":""}]
[null,null,null,null,null,{"$f":"IF(E1530=\"\",\"\",VLOOKUP(E1530,Insumos!AD:AE,2,FALSE))","v":""},null,{"$f":"IF(G1530=\"\",\"\",VLOOKUP(G1530,Insumos!G:H,2,FALSE))","v":""}]
[null,null,null,null,null,{"$f":"IF(E1531=\"\",\"\",VLOOKUP(E1531,Insumos!AD:AE,2,FALSE))","v":""},null,{"$f":"IF(G1531=\"\",\"\",VLOOKUP(G1531,Insumos!G:H,2,FALSE))","v":""}]
[null,null,null,null,null,{"$f":"IF(E1532=\"\",\"\",VLOOKUP(E1532,Insumos!AD:AE,2,FALSE))","v":""},null,{"$f":"IF(G1532=\"\",\"\",VLOOKUP(G1532,Insumos!G:H,2,FALSE))","v":""}]
[null,null,null,null,null,{"$f":"IF(E1533=\"\",\"\",VLOOKUP(E1533,Insumos!AD:AE,2,FALSE))","v":""},null,{"$f":"IF(G1533=\"\",\"\",VLOOKUP(G1533,Insumos!G:H,2,FALSE))","v":""}]
[null,null,null,null,null,{"$f":"IF(E1534=\"\",\"\",VLOOKUP(E1534,Insumos!AD:AE,2,FALSE))","v":""},null,{"$f":"IF(G1534=\"\",\"\",VLOOKUP(G1534,Insumos!G:H,2,FALSE))","v":""}]
[null,null,null,null,null,{"$f":"IF(E1535=\"\",\"\",VLOOKUP(E1535,Insumos!AD:AE,2,FALSE))","v":""},null,{"$f":"IF(G1535=\"\",\"\",VLOOKUP(G1535,Insumos!G:H,2,FALSE))","v":""}]
[null,null,null,null,null,{"$f":"IF(E1536=\"\",\"\",VLOOKUP(E1536,Insumos!AD:AE,2,FALSE))","v":""},null,{"$f":"IF(G1536=\"\",\"\",VLOOKUP(G1536,Insumos!G:H,2,FALSE))","v":""}]
[null,null,null,null,null,{"$f":"IF(E1537=\"\",\"\",VLOOKUP(E1537,Insumos!AD:AE,2,FALSE))","v":""},null,{"$f":"IF(G1537=\"\",\"\",VLOOKUP(G1537,Insumos!G:H,2,FALSE))","v":""}]
[null,null,null,null,null,{"$f":"IF(E1538=\"\",\"\",VLOOKUP(E1538,Insumos!AD:AE,2,FALSE))","v":""},null,{"$f":"IF(G1538=\"\",\"\",VLOOKUP(G1538,Insumos!G:H,2,FALSE))","v":""}]
[null,null,null,null,null,{"$f":"IF(E1539=\"\",\"\",VLOOKUP(E1539,Insumos!AD:AE,2,FALSE))","v":""},null,{"$f":"IF(G1539=\"\",\"\",VLOOKUP(G1539,Insumos!G:H,2,FALSE))","v":""}]
[null,null,null,null,null,{"$f":"IF(E1540=\"\",\"\",VLOOKUP(E1540,Insumos!AD:AE,2,FALSE))","v":""},null,{"$f":"IF(G1540=\"\",\"\",VLOOKUP(G1540,Insumos!G:H,2,FALSE))","v":""}]
[null,null,null,null,null,{"$f":"IF(E1541=\"\",\"\",VLOOKUP(E1541,Insumos!AD:AE,2,FALSE))","v":""},null,{"$f":"IF(G1541=\"\",\"\",VLOOKUP(G1541,Insumos!G:H,2,FALSE))","v":""}]
[null,null,null,null,null,{"$f":"IF(E1542=\"\",\"\",VLOOKUP(E1542,Insumos!AD:AE,2,FALSE))","v":""},null,{"$f":"IF(G1542=\"\",\"\",VLOOKUP(G1542,Insumos!G:H,2,FALSE))","v":""}]
[null,null,null,null,null,{"$f":"IF(E1543=\"\",\"\",VLOOKUP(E1543,Insumos!AD:AE,2,FALSE))","v":""},null,{"$f":"IF(G1543=\"\",\"\",VLOOKUP(G1543,Insumos!G:H,2,FALSE))","v":""}]
[null,null,null,null,null,{"$f":"IF(E1544=\"\",\"\",VLOOKUP(E1544,Insumos!AD:AE,2,FALSE))","v":""},null,{"$f":"IF(G1544=\"\",\"\",VLOOKUP(G1544,Insumos!G:H,2,FALSE))","v":""}]
[null,null,null,null,null,{"$f":"IF(E1545=\"\",\"\",VLOOKUP(E1545,Insumos!AD:AE,2,FALSE))","v":""},null,{"$f":"IF(G1545=\"\",\"\",VLOOKUP(G1545,Insumos!G:H,2,FALSE))","v":""}]
[null,null,null,null,null,{"$f":"IF(E1546=\"\",\"\",VLOOKUP(E1546,Insumos!AD:AE,2,FALSE))","v":""},null,{"$f":"IF(G1546=\"\",\"\",VLOOKUP(G1546,Insumos!G:H,2,FALSE))","v":""}]
[null,null,null,null,null,{"$f":"IF(E1547=\"\",\"\",VLOOKUP(E1547,Insumos!AD:AE,2,FALSE))","v":""},null,{"$f":"IF(G1547=\"\",\"\",VLOOKUP(G1547,Insumos!G:H,2,FALSE))","v":""}]
[null,null,null,null,null,{"$f":"IF(E1548=\"\",\"\",VLOOKUP(E1548,Insumos!AD:AE,2,FALSE))","v":""},null,{"$f":"IF(G1548=\"\",\"\",VLOOKUP(G1548,Insumos!G:H,2,FALSE))","v":""}]
[null,null,null,null,null,{"$f":"IF(E1549=\"\",\"\",VLOOKUP(E1549,Insumos!AD:AE,2,FALSE))","v":""},null,{"$f":"IF(G1549=\"\",\"\",VLOOKUP(G1549,Insumos!G:H,2,FALSE))","v":""}]
[null,null,null,null,null,{"$f":"IF(E1550=\"\",\"\",VLOOKUP(E1550,Insumos!AD:AE,2,FALSE))","v":""},null,{"$f":"IF(G1550=\"\",\"\",VLOOKUP(G1550,Insumos!G:H,2,FALSE))","v":""}]
[null,null,null,null,null,{"$f":"IF(E1551=\"\",\"\",VLOOKUP(E1551,Insumos!AD:AE,2,FALSE))","v":""},null,{"$f":"IF(G1551=\"\",\"\",VLOOKUP(G1551,Insumos!G:H,2,FALSE))","v":""}]
[null,null,null,null,null,{"$f":"IF(E1552=\"\",\"\",VLOOKUP(E1552,Insumos!AD:AE,2,FALSE))","v":""},null,{"$f":"IF(G1552=\"\",\"\",VLOOKUP(G1552,Insumos!G:H,2,FALSE))","v":""}]
[null,null,null,null,null,{"$f":"IF(E1553=\"\",\"\",VLOOKUP(E1553,Insumos!AD:AE,2,FALSE))","v":""},null,{"$f":"IF(G1553=\"\",\"\",VLOOKUP(G1553,Insumos!G:H,2,FALSE))","v":""}]
[null,null,null,null,null,{"$f":"IF(E1554=\"\",\"\",VLOOKUP(E1554,Insumos!AD:AE,2,FALSE))","v":""},null,{"$f":"IF(G1554=\"\",\"\",VLOOKUP(G1554,Insumos!G:H,2,FALSE))","v":""}]
[null,null,null,null,null,{"$f":"IF(E1555=\"\",\"\",VLOOKUP(E1555,Insumos!AD:AE,2,FALSE))","v":""},null,{"$f":"IF(G1555=\"\",\"\",VLOOKUP(G1555,Insumos!G:H,2,FALSE))","v":""}]
[null,null,null,null,null,{"$f":"IF(E1556=\"\",\"\",VLOOKUP(E1556,Insumos!AD:AE,2,FALSE))","v":""},null,{"$f":"IF(G1556=\"\",\"\",VLOOKUP(G1556,Insumos!G:H,2,FALSE))","v":""}]
[null,null,null,null,null,{"$f":"IF(E1557=\"\",\"\",VLOOKUP(E1557,Insumos!AD:AE,2,FALSE))","v":""},null,{"$f":"IF(G1557=\"\",\"\",VLOOKUP(G1557,Insumos!G:H,2,FALSE))","v":""}]
[null,null,null,null,null,{"$f":"IF(E1558=\"\",\"\",VLOOKUP(E1558,Insumos!AD:AE,2,FALSE))","v":""},null,{"$f":"IF(G1558=\"\",\"\",VLOOKUP(G1558,Insumos!G:H,2,FALSE))","v":""}]
[null,null,null,null,null,{"$f":"IF(E1559=\"\",\"\",VLOOKUP(E1559,Insumos!AD:AE,2,FALSE))","v":""},null,{"$f":"IF(G1559=\"\",\"\",VLOOKUP(G1559,Insumos!G:H,2,FALSE))","v":""}]
[null,null,null,null,null,{"$f":"IF(E1560=\"\",\"\",VLOOKUP(E1560,Insumos!AD:AE,2,FALSE))","v":""},null,{"$f":"IF(G1560=\"\",\"\",VLOOKUP(G1560,Insumos!G:H,2,FALSE))","v":""}]
[null,null,null,null,null,{"$f":"IF(E1561=\"\",\"\",VLOOKUP(E1561,Insumos!AD:AE,2,FALSE))","v":""},null,{"$f":"IF(G1561=\"\",\"\",VLOOKUP(G1561,Insumos!G:H,2,FALSE))","v":""}]
[null,null,null,null,null,{"$f":"IF(E1562=\"\",\"\",VLOOKUP(E1562,Insumos!AD:AE,2,FALSE))","v":""},null,{"$f":"IF(G1562=\"\",\"\",VLOOKUP(G1562,Insumos!G:H,2,FALSE))","v":""}]
[null,null,null,null,null,{"$f":"IF(E1563=\"\",\"\",VLOOKUP(E1563,Insumos!AD:AE,2,FALSE))","v":""},null,{"$f":"IF(G1563=\"\",\"\",VLOOKUP(G1563,Insumos!G:H,2,FALSE))","v":""}]
[null,null,null,null,null,{"$f":"IF(E1564=\"\",\"\",VLOOKUP(E1564,Insumos!AD:AE,2,FALSE))","v":""},null,{"$f":"IF(G1564=\"\",\"\",VLOOKUP(G1564,Insumos!G:H,2,FALSE))","v":""}]
[null,null,null,null,null,{"$f":"IF(E1565=\"\",\"\",VLOOKUP(E1565,Insumos!AD:AE,2,FALSE))","v":""},null,{"$f":"IF(G1565=\"\",\"\",VLOOKUP(G1565,Insumos!G:H,2,FALSE))","v":""}]
[null,null,null,null,null,{"$f":"IF(E1566=\"\",\"\",VLOOKUP(E1566,Insumos!AD:AE,2,FALSE))","v":""},null,{"$f":"IF(G1566=\"\",\"\",VLOOKUP(G1566,Insumos!G:H,2,FALSE))","v":""}]
[null,null,null,null,null,{"$f":"IF(E1567=\"\",\"\",VLOOKUP(E1567,Insumos!AD:AE,2,FALSE))","v":""},null,{"$f":"IF(G1567=\"\",\"\",VLOOKUP(G1567,Insumos!G:H,2,FALSE))","v":""}]
[null,null,null,null,null,{"$f":"IF(E1568=\"\",\"\",VLOOKUP(E1568,Insumos!AD:AE,2,FALSE))","v":""},null,{"$f":"IF(G1568=\"\",\"\",VLOOKUP(G1568,Insumos!G:H,2,FALSE))","v":""}]
[null,null,null,null,null,{"$f":"IF(E1569=\"\",\"\",VLOOKUP(E1569,Insumos!AD:AE,2,FALSE))","v":""},null,{"$f":"IF(G1569=\"\",\"\",VLOOKUP(G1569,Insumos!G:H,2,FALSE))","v":""}]
[null,null,null,null,null,{"$f":"IF(E1570=\"\",\"\",VLOOKUP(E1570,Insumos!AD:AE,2,FALSE))","v":""},null,{"$f":"IF(G1570=\"\",\"\",VLOOKUP(G1570,Insumos!G:H,2,FALSE))","v":""}]
[null,null,null,null,null,{"$f":"IF(E1571=\"\",\"\",VLOOKUP(E1571,Insumos!AD:AE,2,FALSE))","v":""},null,{"$f":"IF(G1571=\"\",\"\",VLOOKUP(G1571,Insumos!G:H,2,FALSE))","v":""}]
[null,null,null,null,null,{"$f":"IF(E1572=\"\",\"\",VLOOKUP(E1572,Insumos!AD:AE,2,FALSE))","v":""},null,{"$f":"IF(G1572=\"\",\"\",VLOOKUP(G1572,Insumos!G:H,2,FALSE))","v":""}]
[null,null,null,null,null,{"$f":"IF(E1573=\"\",\"\",VLOOKUP(E1573,Insumos!AD:AE,2,FALSE))","v":""},null,{"$f":"IF(G1573=\"\",\"\",VLOOKUP(G1573,Insumos!G:H,2,FALSE))","v":""}]
[null,null,null,null,null,{"$f":"IF(E1574=\"\",\"\",VLOOKUP(E1574,Insumos!AD:AE,2,FALSE))","v":""},null,{"$f":"IF(G1574=\"\",\"\",VLOOKUP(G1574,Insumos!G:H,2,FALSE))","v":""}]
[null,null,null,null,null,{"$f":"IF(E1575=\"\",\"\",VLOOKUP(E1575,Insumos!AD:AE,2,FALSE))","v":""},null,{"$f":"IF(G1575=\"\",\"\",VLOOKUP(G1575,Insumos!G:H,2,FALSE))","v":""}]
[null,null,null,null,null,{"$f":"IF(E1576=\"\",\"\",VLOOKUP(E1576,Insumos!AD:AE,2,FALSE))","v":""},null,{"$f":"IF(G1576=\"\",\"\",VLOOKUP(G1576,Insumos!G:H,2,FALSE))","v":""}]
[null,null,null,null,null,{"$f":"IF(E1577=\"\",\"\",VLOOKUP(E1577,Insumos!AD:AE,2,FALSE))","v":""},null,{"$f":"IF(G1577=\"\",\"\",VLOOKUP(G1577,Insumos!G:H,2,FALSE))","v":""}]
[null,null,null,null,null,{"$f":"IF(E1578=\"\",\"\",VLOOKUP(E1578,Insumos!AD:AE,2,FALSE))","v":""},null,{"$f":"IF(G1578=\"\",\"\",VLOOKUP(G1578,Insumos!G:H,2,FALSE))","v":""}]
[null,null,null,null,null,{"$f":"IF(E1579=\"\",\"\",VLOOKUP(E1579,Insumos!AD:AE,2,FALSE))","v":""},null,{"$f":"IF(G1579=\"\",\"\",VLOOKUP(G1579,Insumos!G:H,2,FALSE))","v":""}]
[null,null,null,null,null,{"$f":"IF(E1580=\"\",\"\",VLOOKUP(E1580,Insumos!AD:AE,2,FALSE))","v":""},null,{"$f":"IF(G1580=\"\",\"\",VLOOKUP(G1580,Insumos!G:H,2,FALSE))","v":""}]
[null,null,null,null,null,{"$f":"IF(E1581=\"\",\"\",VLOOKUP(E1581,Insumos!AD:AE,2,FALSE))","v":""},null,{"$f":"IF(G1581=\"\",\"\",VLOOKUP(G1581,Insumos!G:H,2,FALSE))","v":""}]
[null,null,null,null,null,{"$f":"IF(E1582=\"\",\"\",VLOOKUP(E1582,Insumos!AD:AE,2,FALSE))","v":""},null,{"$f":"IF(G1582=\"\",\"\",VLOOKUP(G1582,Insumos!G:H,2,FALSE))","v":""}]
[null,null,null,null,null,{"$f":"IF(E1583=\"\",\"\",VLOOKUP(E1583,Insumos!AD:AE,2,FALSE))","v":""},null,{"$f":"IF(G1583=\"\",\"\",VLOOKUP(G1583,Insumos!G:H,2,FALSE))","v":""}]
[null,null,null,null,null,{"$f":"IF(E1584=\"\",\"\",VLOOKUP(E1584,Insumos!AD:AE,2,FALSE))","v":""},null,{"$f":"IF(G1584=\"\",\"\",VLOOKUP(G1584,Insumos!G:H,2,FALSE))","v":""}]
[null,null,null,null,null,{"$f":"IF(E1585=\"\",\"\",VLOOKUP(E1585,Insumos!AD:AE,2,FALSE))","v":""},null,{"$f":"IF(G1585=\"\",\"\",VLOOKUP(G1585,Insumos!G:H,2,FALSE))","v":""}]
[null,null,null,null,null,{"$f":"IF(E1586=\"\",\"\",VLOOKUP(E1586,Insumos!AD:AE,2,FALSE))","v":""},null,{"$f":"IF(G1586=\"\",\"\",VLOOKUP(G1586,Insumos!G:H,2,FALSE))","v":""}]
[null,null,null,null,null,{"$f":"IF(E1587=\"\",\"\",VLOOKUP(E1587,Insumos!AD:AE,2,FALSE))","v":""},null,{"$f":"IF(G1587=\"\",\"\",VLOOKUP(G1587,Insumos!G:H,2,FALSE))","v":""}]
[null,null,null,null,null,{"$f":"IF(E1588=\"\",\"\",VLOOKUP(E1588,Insumos!AD:AE,2,FALSE))","v":""},null,{"$f":"IF(G1588=\"\",\"\",VLOOKUP(G1588,Insumos!G:H,2,FALSE))","v":""}]
[null,null,null,null,null,{"$f":"IF(E1589=\"\",\"\",VLOOKUP(E1589,Insumos!AD:AE,2,FALSE))","v":""},null,{"$f":"IF(G1589=\"\",\"\",VLOOKUP(G1589,Insumos!G:H,2,FALSE))","v":""}]
[null,null,null,null,null,{"$f":"IF(E1590=\"\",\"\",VLOOKUP(E1590,Insumos!AD:AE,2,FALSE))","v":""},null,{"$f":"IF(G1590=\"\",\"\",VLOOKUP(G1590,Insumos!G:H,2,FALSE))","v":""}]
[null,null,null,null,null,{"$f":"IF(E1591=\"\",\"\",VLOOKUP(E1591,Insumos!AD:AE,2,FALSE))","v":""},null,{"$f":"IF(G1591=\"\",\"\",VLOOKUP(G1591,Insumos!G:H,2,FALSE))","v":""}]
[null,null,null,null,null,{"$f":"IF(E1592=\"\",\"\",VLOOKUP(E1592,Insumos!AD:AE,2,FALSE))","v":""},null,{"$f":"IF(G1592=\"\",\"\",VLOOKUP(G1592,Insumos!G:H,2,FALSE))","v":""}]
[null,null,null,null,null,{"$f":"IF(E1593=\"\",\"\",VLOOKUP(E1593,Insumos!AD:AE,2,FALSE))","v":""},null,{"$f":"IF(G1593=\"\",\"\",VLOOKUP(G1593,Insumos!G:H,2,FALSE))","v":""}]
[null,null,null,null,null,{"$f":"IF(E1594=\"\",\"\",VLOOKUP(E1594,Insumos!AD:AE,2,FALSE))","v":""},null,{"$f":"IF(G1594=\"\",\"\",VLOOKUP(G1594,Insumos!G:H,2,FALSE))","v":""}]
[null,null,null,null,null,{"$f":"IF(E1595=\"\",\"\",VLOOKUP(E1595,Insumos!AD:AE,2,FALSE))","v":""},null,{"$f":"IF(G1595=\"\",\"\",VLOOKUP(G1595,Insumos!G:H,2,FALSE))","v":""}]
[null,null,null,null,null,{"$f":"IF(E1596=\"\",\"\",VLOOKUP(E1596,Insumos!AD:AE,2,FALSE))","v":""},null,{"$f":"IF(G1596=\"\",\"\",VLOOKUP(G1596,Insumos!G:H,2,FALSE))","v":""}]
[null,null,null,null,null,{"$f":"IF(E1597=\"\",\"\",VLOOKUP(E1597,Insumos!AD:AE,2,FALSE))","v":""},null,{"$f":"IF(G1597=\"\",\"\",VLOOKUP(G1597,Insumos!G:H,2,FALSE))","v":""}]
[null,null,null,null,null,{"$f":"IF(E1598=\"\",\"\",VLOOKUP(E1598,Insumos!AD:AE,2,FALSE))","v":""},null,{"$f":"IF(G1598=\"\",\"\",VLOOKUP(G1598,Insumos!G:H,2,FALSE))","v":""}]
[null,null,null,null,null,{"$f":"IF(E1599=\"\",\"\",VLOOKUP(E1599,Insumos!AD:AE,2,FALSE))","v":""},null,{"$f":"IF(G1599=\"\",\"\",VLOOKUP(G1599,Insumos!G:H,2,FALSE))","v":""}]
[null,null,null,null,null,{"$f":"IF(E1600=\"\",\"\",VLOOKUP(E1600,Insumos!AD:AE,2,FALSE))","v":""},null,{"$f":"IF(G1600=\"\",\"\",VLOOKUP(G1600,Insumos!G:H,2,FALSE))","v":""}]
[null,null,null,null,null,{"$f":"IF(E1601=\"\",\"\",VLOOKUP(E1601,Insumos!AD:AE,2,FALSE))","v":""},null,{"$f":"IF(G1601=\"\",\"\",VLOOKUP(G1601,Insumos!G:H,2,FALSE))","v":""}]
[null,null,null,null,null,{"$f":"IF(E1602=\"\",\"\",VLOOKUP(E1602,Insumos!AD:AE,2,FALSE))","v":""},null,{"$f":"IF(G1602=\"\",\"\",VLOOKUP(G1602,Insumos!G:H,2,FALSE))","v":""}]
[null,null,null,null,null,{"$f":"IF(E1603=\"\",\"\",VLOOKUP(E1603,Insumos!AD:AE,2,FALSE))","v":""},null,{"$f":"IF(G1603=\"\",\"\",VLOOKUP(G1603,Insumos!G:H,2,FALSE))","v":""}]
[null,null,null,null,null,{"$f":"IF(E1604=\"\",\"\",VLOOKUP(E1604,Insumos!AD:AE,2,FALSE))","v":""},null,{"$f":"IF(G1604=\"\",\"\",VLOOKUP(G1604,Insumos!G:H,2,FALSE))","v":""}]
[null,null,null,null,null,{"$f":"IF(E1605=\"\",\"\",VLOOKUP(E1605,Insumos!AD:AE,2,FALSE))","v":""},null,{"$f":"IF(G1605=\"\",\"\",VLOOKUP(G1605,Insumos!G:H,2,FALSE))","v":""}]
[null,null,null,null,null,{"$f":"IF(E1606=\"\",\"\",VLOOKUP(E1606,Insumos!AD:AE,2,FALSE))","v":""},null,{"$f":"IF(G1606=\"\",\"\",VLOOKUP(G1606,Insumos!G:H,2,FALSE))","v":""}]
[null,null,null,null,null,{"$f":"IF(E1607=\"\",\"\",VLOOKUP(E1607,Insumos!AD:AE,2,FALSE))","v":""},null,{"$f":"IF(G1607=\"\",\"\",VLOOKUP(G1607,Insumos!G:H,2,FALSE))","v":""}]
[null,null,null,null,null,{"$f":"IF(E1608=\"\",\"\",VLOOKUP(E1608,Insumos!AD:AE,2,FALSE))","v":""},null,{"$f":"IF(G1608=\"\",\"\",VLOOKUP(G1608,Insumos!G:H,2,FALSE))","v":""}]
[null,null,null,null,null,{"$f":"IF(E1609=\"\",\"\",VLOOKUP(E1609,Insumos!AD:AE,2,FALSE))","v":""},null,{"$f":"IF(G1609=\"\",\"\",VLOOKUP(G1609,Insumos!G:H,2,FALSE))","v":""}]
[null,null,null,null,null,{"$f":"IF(E1610=\"\",\"\",VLOOKUP(E1610,Insumos!AD:AE,2,FALSE))","v":""},null,{"$f":"IF(G1610=\"\",\"\",VLOOKUP(G1610,Insumos!G:H,2,FALSE))","v":""}]
[null,null,null,null,null,{"$f":"IF(E1611=\"\",\"\",VLOOKUP(E1611,Insumos!AD:AE,2,FALSE))","v":""},null,{"$f":"IF(G1611=\"\",\"\",VLOOKUP(G1611,Insumos!G:H,2,FALSE))","v":""}]
[null,null,null,null,null,{"$f":"IF(E1612=\"\",\"\",VLOOKUP(E1612,Insumos!AD:AE,2,FALSE))","v":""},null,{"$f":"IF(G1612=\"\",\"\",VLOOKUP(G1612,Insumos!G:H,2,FALSE))","v":""}]
[null,null,null,null,null,{"$f":"IF(E1613=\"\",\"\",VLOOKUP(E1613,Insumos!AD:AE,2,FALSE))","v":""},null,{"$f":"IF(G1613=\"\",\"\",VLOOKUP(G1613,Insumos!G:H,2,FALSE))","v":""}]
[null,null,null,null,null,{"$f":"IF(E1614=\"\",\"\",VLOOKUP(E1614,Insumos!AD:AE,2,FALSE))","v":""},null,{"$f":"IF(G1614=\"\",\"\",VLOOKUP(G1614,Insumos!G:H,2,FALSE))","v":""}]
[null,null,null,null,null,{"$f":"IF(E1615=\"\",\"\",VLOOKUP(E1615,Insumos!AD:AE,2,FALSE))","v":""},null,{"$f":"IF(G1615=\"\",\"\",VLOOKUP(G1615,Insumos!G:H,2,FALSE))","v":""}]
[null,null,null,null,null,{"$f":"IF(E1616=\"\",\"\",VLOOKUP(E1616,Insumos!AD:AE,2,FALSE))","v":""},null,{"$f":"IF(G1616=\"\",\"\",VLOOKUP(G1616,Insumos!G:H,2,FALSE))","v":""}]
[null,null,null,null,null,{"$f":"IF(E1617=\"\",\"\",VLOOKUP(E1617,Insumos!AD:AE,2,FALSE))","v":""},null,{"$f":"IF(G1617=\"\",\"\",VLOOKUP(G1617,Insumos!G:H,2,FALSE))","v":""}]
[null,null,null,null,null,{"$f":"IF(E1618=\"\",\"\",VLOOKUP(E1618,Insumos!AD:AE,2,FALSE))","v":""},null,{"$f":"IF(G1618=\"\",\"\",VLOOKUP(G1618,Insumos!G:H,2,FALSE))","v":""}]
[null,null,null,null,null,{"$f":"IF(E1619=\"\",\"\",VLOOKUP(E1619,Insumos!AD:AE,2,FALSE))","v":""},null,{"$f":"IF(G1619=\"\",\"\",VLOOKUP(G1619,Insumos!G:H,2,FALSE))","v":""}]
[null,null,null,null,null,{"$f":"IF(E1620=\"\",\"\",VLOOKUP(E1620,Insumos!AD:AE,2,FALSE))","v":""},null,{"$f":"IF(G1620=\"\",\"\",VLOOKUP(G1620,Insumos!G:H,2,FALSE))","v":""}]
[null,null,null,null,null,{"$f":"IF(E1621=\"\",\"\",VLOOKUP(E1621,Insumos!AD:AE,2,FALSE))","v":""},null,{"$f":"IF(G1621=\"\",\"\",VLOOKUP(G1621,Insumos!G:H,2,FALSE))","v":""}]
[null,null,null,null,null,{"$f":"IF(E1622=\"\",\"\",VLOOKUP(E1622,Insumos!AD:AE,2,FALSE))","v":""},null,{"$f":"IF(G1622=\"\",\"\",VLOOKUP(G1622,Insumos!G:H,2,FALSE))","v":""}]
[null,null,null,null,null,{"$f":"IF(E1623=\"\",\"\",VLOOKUP(E1623,Insumos!AD:AE,2,FALSE))","v":""},null,{"$f":"IF(G1623=\"\",\"\",VLOOKUP(G1623,Insumos!G:H,2,FALSE))","v":""}]
[null,null,null,null,null,{"$f":"IF(E1624=\"\",\"\",VLOOKUP(E1624,Insumos!AD:AE,2,FALSE))","v":""},null,{"$f":"IF(G1624=\"\",\"\",VLOOKUP(G1624,Insumos!G:H,2,FALSE))","v":""}]
[null,null,null,null,null,{"$f":"IF(E1625=\"\",\"\",VLOOKUP(E1625,Insumos!AD:AE,2,FALSE))","v":""},null,{"$f":"IF(G1625=\"\",\"\",VLOOKUP(G1625,Insumos!G:H,2,FALSE))","v":""}]
[null,null,null,null,null,{"$f":"IF(E1626=\"\",\"\",VLOOKUP(E1626,Insumos!AD:AE,2,FALSE))","v":""},null,{"$f":"IF(G1626=\"\",\"\",VLOOKUP(G1626,Insumos!G:H,2,FALSE))","v":""}]
[null,null,null,null,null,{"$f":"IF(E1627=\"\",\"\",VLOOKUP(E1627,Insumos!AD:AE,2,FALSE))","v":""},null,{"$f":"IF(G1627=\"\",\"\",VLOOKUP(G1627,Insumos!G:H,2,FALSE))","v":""}]
[null,null,null,null,null,{"$f":"IF(E1628=\"\",\"\",VLOOKUP(E1628,Insumos!AD:AE,2,FALSE))","v":""},null,{"$f":"IF(G1628=\"\",\"\",VLOOKUP(G1628,Insumos!G:H,2,FALSE))","v":""}]
[null,null,null,null,null,{"$f":"IF(E1629=\"\",\"\",VLOOKUP(E1629,Insumos!AD:AE,2,FALSE))","v":""},null,{"$f":"IF(G1629=\"\",\"\",VLOOKUP(G1629,Insumos!G:H,2,FALSE))","v":""}]
[null,null,null,null,null,{"$f":"IF(E1630=\"\",\"\",VLOOKUP(E1630,Insumos!AD:AE,2,FALSE))","v":""},null,{"$f":"IF(G1630=\"\",\"\",VLOOKUP(G1630,Insumos!G:H,2,FALSE))","v":""}]
[null,null,null,null,null,{"$f":"IF(E1631=\"\",\"\",VLOOKUP(E1631,Insumos!AD:AE,2,FALSE))","v":""},null,{"$f":"IF(G1631=\"\",\"\",VLOOKUP(G1631,Insumos!G:H,2,FALSE))","v":""}]
[null,null,null,null,null,{"$f":"IF(E1632=\"\",\"\",VLOOKUP(E1632,Insumos!AD:AE,2,FALSE))","v":""},null,{"$f":"IF(G1632=\"\",\"\",VLOOKUP(G1632,Insumos!G:H,2,FALSE))","v":""}]
[null,null,null,null,null,{"$f":"IF(E1633=\"\",\"\",VLOOKUP(E1633,Insumos!AD:AE,2,FALSE))","v":""},null,{"$f":"IF(G1633=\"\",\"\",VLOOKUP(G1633,Insumos!G:H,2,FALSE))","v":""}]
[null,null,null,null,null,{"$f":"IF(E1634=\"\",\"\",VLOOKUP(E1634,Insumos!AD:AE,2,FALSE))","v":""},null,{"$f":"IF(G1634=\"\",\"\",VLOOKUP(G1634,Insumos!G:H,2,FALSE))","v":""}]
[null,null,null,null,null,{"$f":"IF(E1635=\"\",\"\",VLOOKUP(E1635,Insumos!AD:AE,2,FALSE))","v":""},null,{"$f":"IF(G1635=\"\",\"\",VLOOKUP(G1635,Insumos!G:H,2,FALSE))","v":""}]
[null,null,null,null,null,{"$f":"IF(E1636=\"\",\"\",VLOOKUP(E1636,Insumos!AD:AE,2,FALSE))","v":""},null,{"$f":"IF(G1636=\"\",\"\",VLOOKUP(G1636,Insumos!G:H,2,FALSE))","v":""}]
[null,null,null,null,null,{"$f":"IF(E1637=\"\",\"\",VLOOKUP(E1637,Insumos!AD:AE,2,FALSE))","v":""},null,{"$f":"IF(G1637=\"\",\"\",VLOOKUP(G1637,Insumos!G:H,2,FALSE))","v":""}]
[null,null,null,null,null,{"$f":"IF(E1638=\"\",\"\",VLOOKUP(E1638,Insumos!AD:AE,2,FALSE))","v":""},null,{"$f":"IF(G1638=\"\",\"\",VLOOKUP(G1638,Insumos!G:H,2,FALSE))","v":""}]
[null,null,null,null,null,{"$f":"IF(E1639=\"\",\"\",VLOOKUP(E1639,Insumos!AD:AE,2,FALSE))","v":""},null,{"$f":"IF(G1639=\"\",\"\",VLOOKUP(G1639,Insumos!G:H,2,FALSE))","v":""}]
[null,null,null,null,null,{"$f":"IF(E1640=\"\",\"\",VLOOKUP(E1640,Insumos!AD:AE,2,FALSE))","v":""},null,{"$f":"IF(G1640=\"\",\"\",VLOOKUP(G1640,Insumos!G:H,2,FALSE))","v":""}]
[null,null,null,null,null,{"$f":"IF(E1641=\"\",\"\",VLOOKUP(E1641,Insumos!AD:AE,2,FALSE))","v":""},null,{"$f":"IF(G1641=\"\",\"\",VLOOKUP(G1641,Insumos!G:H,2,FALSE))","v":""}]
[null,null,null,null,null,{"$f":"IF(E1642=\"\",\"\",VLOOKUP(E1642,Insumos!AD:AE,2,FALSE))","v":""},null,{"$f":"IF(G1642=\"\",\"\",VLOOKUP(G1642,Insumos!G:H,2,FALSE))","v":""}]
[null,null,null,null,null,{"$f":"IF(E1643=\"\",\"\",VLOOKUP(E1643,Insumos!AD:AE,2,FALSE))","v":""},null,{"$f":"IF(G1643=\"\",\"\",VLOOKUP(G1643,Insumos!G:H,2,FALSE))","v":""}]
[null,null,null,null,null,{"$f":"IF(E1644=\"\",\"\",VLOOKUP(E1644,Insumos!AD:AE,2,FALSE))","v":""},null,{"$f":"IF(G1644=\"\",\"\",VLOOKUP(G1644,Insumos!G:H,2,FALSE))","v":""}]
[null,null,null,null,null,{"$f":"IF(E1645=\"\",\"\",VLOOKUP(E1645,Insumos!AD:AE,2,FALSE))","v":""},null,{"$f":"IF(G1645=\"\",\"\",VLOOKUP(G1645,Insumos!G:H,2,FALSE))","v":""}]
[null,null,null,null,null,{"$f":"IF(E1646=\"\",\"\",VLOOKUP(E1646,Insumos!AD:AE,2,FALSE))","v":""},null,{"$f":"IF(G1646=\"\",\"\",VLOOKUP(G1646,Insumos!G:H,2,FALSE))","v":""}]
[null,null,null,null,null,{"$f":"IF(E1647=\"\",\"\",VLOOKUP(E1647,Insumos!AD:AE,2,FALSE))","v":""},null,{"$f":"IF(G1647=\"\",\"\",VLOOKUP(G1647,Insumos!G:H,2,FALSE))","v":""}]
[null,null,null,null,null,{"$f":"IF(E1648=\"\",\"\",VLOOKUP(E1648,Insumos!AD:AE,2,FALSE))","v":""},null,{"$f":"IF(G1648=\"\",\"\",VLOOKUP(G1648,Insumos!G:H,2,FALSE))","v":""}]
[null,null,null,null,null,{"$f":"IF(E1649=\"\",\"\",VLOOKUP(E1649,Insumos!AD:AE,2,FALSE))","v":""},null,{"$f":"IF(G1649=\"\",\"\",VLOOKUP(G1649,Insumos!G:H,2,FALSE))","v":""}]
[null,null,null,null,null,{"$f":"IF(E1650=\"\",\"\",VLOOKUP(E1650,Insumos!AD:AE,2,FALSE))","v":""},null,{"$f":"IF(G1650=\"\",\"\",VLOOKUP(G1650,Insumos!G:H,2,FALSE))","v":""}]
[null,null,null,null,null,{"$f":"IF(E1651=\"\",\"\",VLOOKUP(E1651,Insumos!AD:AE,2,FALSE))","v":""},null,{"$f":"IF(G1651=\"\",\"\",VLOOKUP(G1651,Insumos!G:H,2,FALSE))","v":""}]
[null,null,null,null,null,{"$f":"IF(E1652=\"\",\"\",VLOOKUP(E1652,Insumos!AD:AE,2,FALSE))","v":""},null,{"$f":"IF(G1652=\"\",\"\",VLOOKUP(G1652,Insumos!G:H,2,FALSE))","v":""}]
[null,null,null,null,null,{"$f":"IF(E1653=\"\",\"\",VLOOKUP(E1653,Insumos!AD:AE,2,FALSE))","v":""},null,{"$f":"IF(G1653=\"\",\"\",VLOOKUP(G1653,Insumos!G:H,2,FALSE))","v":""}]
[null,null,null,null,null,{"$f":"IF(E1654=\"\",\"\",VLOOKUP(E1654,Insumos!AD:AE,2,FALSE))","v":""},null,{"$f":"IF(G1654=\"\",\"\",VLOOKUP(G1654,Insumos!G:H,2,FALSE))","v":""}]
[null,null,null,null,null,{"$f":"IF(E1655=\"\",\"\",VLOOKUP(E1655,Insumos!AD:AE,2,FALSE))","v":""},null,{"$f":"IF(G1655=\"\",\"\",VLOOKUP(G1655,Insumos!G:H,2,FALSE))","v":""}]
[null,null,null,null,null,{"$f":"IF(E1656=\"\",\"\",VLOOKUP(E1656,Insumos!AD:AE,2,FALSE))","v":""},null,{"$f":"IF(G1656=\"\",\"\",VLOOKUP(G1656,Insumos!G:H,2,FALSE))","v":""}]
[null,null,null,null,null,{"$f":"IF(E1657=\"\",\"\",VLOOKUP(E1657,Insumos!AD:AE,2,FALSE))","v":""},null,{"$f":"IF(G1657=\"\",\"\",VLOOKUP(G1657,Insumos!G:H,2,FALSE))","v":""}]
[null,null,null,null,null,{"$f":"IF(E1658=\"\",\"\",VLOOKUP(E1658,Insumos!AD:AE,2,FALSE))","v":""},null,{"$f":"IF(G1658=\"\",\"\",VLOOKUP(G1658,Insumos!G:H,2,FALSE))","v":""}]
[null,null,null,null,null,{"$f":"IF(E1659=\"\",\"\",VLOOKUP(E1659,Insumos!AD:AE,2,FALSE))","v":""},null,{"$f":"IF(G1659=\"\",\"\",VLOOKUP(G1659,Insumos!G:H,2,FALSE))","v":""}]
[null,null,null,null,null,{"$f":"IF(E1660=\"\",\"\",VLOOKUP(E1660,Insumos!AD:AE,2,FALSE))","v":""},null,{"$f":"IF(G1660=\"\",\"\",VLOOKUP(G1660,Insumos!G:H,2,FALSE))","v":""}]
[null,null,null,null,null,{"$f":"IF(E1661=\"\",\"\",VLOOKUP(E1661,Insumos!AD:AE,2,FALSE))","v":""},null,{"$f":"IF(G1661=\"\",\"\",VLOOKUP(G1661,Insumos!G:H,2,FALSE))","v":""}]
[null,null,null,null,null,{"$f":"IF(E1662=\"\",\"\",VLOOKUP(E1662,Insumos!AD:AE,2,FALSE))","v":""},null,{"$f":"IF(G1662=\"\",\"\",VLOOKUP(G1662,Insumos!G:H,2,FALSE))","v":""}]
[null,null,null,null,null,{"$f":"IF(E1663=\"\",\"\",VLOOKUP(E1663,Insumos!AD:AE,2,FALSE))","v":""},null,{"$f":"IF(G1663=\"\",\"\",VLOOKUP(G1663,Insumos!G:H,2,FALSE))","v":""}]
[null,null,null,null,null,{"$f":"IF(E1664=\"\",\"\",VLOOKUP(E1664,Insumos!AD:AE,2,FALSE))","v":""},null,{"$f":"IF(G1664=\"\",\"\",VLOOKUP(G1664,Insumos!G:H,2,FALSE))","v":""}]
[null,null,null,null,null,{"$f":"IF(E1665=\"\",\"\",VLOOKUP(E1665,Insumos!AD:AE,2,FALSE))","v":""},null,{"$f":"IF(G1665=\"\",\"\",VLOOKUP(G1665,Insumos!G:H,2,FALSE))","v":""}]
[null,null,null,null,null,{"$f":"IF(E1666=\"\",\"\",VLOOKUP(E1666,Insumos!AD:AE,2,FALSE))","v":""},null,{"$f":"IF(G1666=\"\",\"\",VLOOKUP(G1666,Insumos!G:H,2,FALSE))","v":""}]
[null,null,null,null,null,{"$f":"IF(E1667=\"\",\"\",VLOOKUP(E1667,Insumos!AD:AE,2,FALSE))","v":""},null,{"$f":"IF(G1667=\"\",\"\",VLOOKUP(G1667,Insumos!G:H,2,FALSE))","v":""}]
[null,null,null,null,null,{"$f":"IF(E1668=\"\",\"\",VLOOKUP(E1668,Insumos!AD:AE,2,FALSE))","v":""},null,{"$f":"IF(G1668=\"\",\"\",VLOOKUP(G1668,Insumos!G:H,2,FALSE))","v":""}]
[null,null,null,null,null,{"$f":"IF(E1669=\"\",\"\",VLOOKUP(E1669,Insumos!AD:AE,2,FALSE))","v":""},null,{"$f":"IF(G1669=\"\",\"\",VLOOKUP(G1669,Insumos!G:H,2,FALSE))","v":""}]
[null,null,null,null,null,{"$f":"IF(E1670=\"\",\"\",VLOOKUP(E1670,Insumos!AD:AE,2,FALSE))","v":""},null,{"$f":"IF(G1670=\"\",\"\",VLOOKUP(G1670,Insumos!G:H,2,FALSE))","v":""}]
[null,null,null,null,null,{"$f":"IF(E1671=\"\",\"\",VLOOKUP(E1671,Insumos!AD:AE,2,FALSE))","v":""},null,{"$f":"IF(G1671=\"\",\"\",VLOOKUP(G1671,Insumos!G:H,2,FALSE))","v":""}]
[null,null,null,null,null,{"$f":"IF(E1672=\"\",\"\",VLOOKUP(E1672,Insumos!AD:AE,2,FALSE))","v":""},null,{"$f":"IF(G1672=\"\",\"\",VLOOKUP(G1672,Insumos!G:H,2,FALSE))","v":""}]
[null,null,null,null,null,{"$f":"IF(E1673=\"\",\"\",VLOOKUP(E1673,Insumos!AD:AE,2,FALSE))","v":""},null,{"$f":"IF(G1673=\"\",\"\",VLOOKUP(G1673,Insumos!G:H,2,FALSE))","v":""}]
[null,null,null,null,null,{"$f":"IF(E1674=\"\",\"\",VLOOKUP(E1674,Insumos!AD:AE,2,FALSE))","v":""},null,{"$f":"IF(G1674=\"\",\"\",VLOOKUP(G1674,Insumos!G:H,2,FALSE))","v":""}]
[null,null,null,null,null,{"$f":"IF(E1675=\"\",\"\",VLOOKUP(E1675,Insumos!AD:AE,2,FALSE))","v":""},null,{"$f":"IF(G1675=\"\",\"\",VLOOKUP(G1675,Insumos!G:H,2,FALSE))","v":""}]
[null,null,null,null,null,{"$f":"IF(E1676=\"\",\"\",VLOOKUP(E1676,Insumos!AD:AE,2,FALSE))","v":""},null,{"$f":"IF(G1676=\"\",\"\",VLOOKUP(G1676,Insumos!G:H,2,FALSE))","v":""}]
[null,null,null,null,null,{"$f":"IF(E1677=\"\",\"\",VLOOKUP(E1677,Insumos!AD:AE,2,FALSE))","v":""},null,{"$f":"IF(G1677=\"\",\"\",VLOOKUP(G1677,Insumos!G:H,2,FALSE))","v":""}]
[null,null,null,null,null,{"$f":"IF(E1678=\"\",\"\",VLOOKUP(E1678,Insumos!AD:AE,2,FALSE))","v":""},null,{"$f":"IF(G1678=\"\",\"\",VLOOKUP(G1678,Insumos!G:H,2,FALSE))","v":""}]
[null,null,null,null,null,{"$f":"IF(E1679=\"\",\"\",VLOOKUP(E1679,Insumos!AD:AE,2,FALSE))","v":""},null,{"$f":"IF(G1679=\"\",\"\",VLOOKUP(G1679,Insumos!G:H,2,FALSE))","v":""}]
[null,null,null,null,null,{"$f":"IF(E1680=\"\",\"\",VLOOKUP(E1680,Insumos!AD:AE,2,FALSE))","v":""},null,{"$f":"IF(G1680=\"\",\"\",VLOOKUP(G1680,Insumos!G:H,2,FALSE))","v":""}]
[null,null,null,null,null,{"$f":"IF(E1681=\"\",\"\",VLOOKUP(E1681,Insumos!AD:AE,2,FALSE))","v":""},null,{"$f":"IF(G1681=\"\",\"\",VLOOKUP(G1681,Insumos!G:H,2,FALSE))","v":""}]
[null,null,null,null,null,{"$f":"IF(E1682=\"\",\"\",VLOOKUP(E1682,Insumos!AD:AE,2,FALSE))","v":""},null,{"$f":"IF(G1682=\"\",\"\",VLOOKUP(G1682,Insumos!G:H,2,FALSE))","v":""}]
[null,null,null,null,null,{"$f":"IF(E1683=\"\",\"\",VLOOKUP(E1683,Insumos!AD:AE,2,FALSE))","v":""},null,{"$f":"IF(G1683=\"\",\"\",VLOOKUP(G1683,Insumos!G:H,2,FALSE))","v":""}]
[null,null,null,null,null,{"$f":"IF(E1684=\"\",\"\",VLOOKUP(E1684,Insumos!AD:AE,2,FALSE))","v":""},null,{"$f":"IF(G1684=\"\",\"\",VLOOKUP(G1684,Insumos!G:H,2,FALSE))","v":""}]
[null,null,null,null,null,{"$f":"IF(E1685=\"\",\"\",VLOOKUP(E1685,Insumos!AD:AE,2,FALSE))","v":""},null,{"$f":"IF(G1685=\"\",\"\",VLOOKUP(G1685,Insumos!G:H,2,FALSE))","v":""}]
[null,null,null,null,null,{"$f":"IF(E1686=\"\",\"\",VLOOKUP(E1686,Insumos!AD:AE,2,FALSE))","v":""},null,{"$f":"IF(G1686=\"\",\"\",VLOOKUP(G1686,Insumos!G:H,2,FALSE))","v":""}]
[null,null,null,null,null,{"$f":"IF(E1687=\"\",\"\",VLOOKUP(E1687,Insumos!AD:AE,2,FALSE))","v":""},null,{"$f":"IF(G1687=\"\",\"\",VLOOKUP(G1687,Insumos!G:H,2,FALSE))","v":""}]
[null,null,null,null,null,{"$f":"IF(E1688=\"\",\"\",VLOOKUP(E1688,Insumos!AD:AE,2,FALSE))","v":""},null,{"$f":"IF(G1688=\"\",\"\",VLOOKUP(G1688,Insumos!G:H,2,FALSE))","v":""}]
[null,null,null,null,null,{"$f":"IF(E1689=\"\",\"\",VLOOKUP(E1689,Insumos!AD:AE,2,FALSE))","v":""},null,{"$f":"IF(G1689=\"\",\"\",VLOOKUP(G1689,Insumos!G:H,2,FALSE))","v":""}]
[null,null,null,null,null,{"$f":"IF(E1690=\"\",\"\",VLOOKUP(E1690,Insumos!AD:AE,2,FALSE))","v":""},null,{"$f":"IF(G1690=\"\",\"\",VLOOKUP(G1690,Insumos!G:H,2,FALSE))","v":""}]
[null,null,null,null,null,{"$f":"IF(E1691=\"\",\"\",VLOOKUP(E1691,Insumos!AD:AE,2,FALSE))","v":""},null,{"$f":"IF(G1691=\"\",\"\",VLOOKUP(G1691,Insumos!G:H,2,FALSE))","v":""}]
[null,null,null,null,null,{"$f":"IF(E1692=\"\",\"\",VLOOKUP(E1692,Insumos!AD:AE,2,FALSE))","v":""},null,{"$f":"IF(G1692=\"\",\"\",VLOOKUP(G1692,Insumos!G:H,2,FALSE))","v":""}]
[null,null,null,null,null,{"$f":"IF(E1693=\"\",\"\",VLOOKUP(E1693,Insumos!AD:AE,2,FALSE))","v":""},null,{"$f":"IF(G1693=\"\",\"\",VLOOKUP(G1693,Insumos!G:H,2,FALSE))","v":""}]
[null,null,null,null,null,{"$f":"IF(E1694=\"\",\"\",VLOOKUP(E1694,Insumos!AD:AE,2,FALSE))","v":""},null,{"$f":"IF(G1694=\"\",\"\",VLOOKUP(G1694,Insumos!G:H,2,FALSE))","v":""}]
[null,null,null,null,null,{"$f":"IF(E1695=\"\",\"\",VLOOKUP(E1695,Insumos!AD:AE,2,FALSE))","v":""},null,{"$f":"IF(G1695=\"\",\"\",VLOOKUP(G1695,Insumos!G:H,2,FALSE))","v":""}]
[null,null,null,null,null,{"$f":"IF(E1696=\"\",\"\",VLOOKUP(E1696,Insumos!AD:AE,2,FALSE))","v":""},null,{"$f":"IF(G1696=\"\",\"\",VLOOKUP(G1696,Insumos!G:H,2,FALSE))","v":""}]
[null,null,null,null,null,{"$f":"IF(E1697=\"\",\"\",VLOOKUP(E1697,Insumos!AD:AE,2,FALSE))","v":""},null,{"$f":"IF(G1697=\"\",\"\",VLOOKUP(G1697,Insumos!G:H,2,FALSE))","v":""}]
[null,null,null,null,null,{"$f":"IF(E1698=\"\",\"\",VLOOKUP(E1698,Insumos!AD:AE,2,FALSE))","v":""},null,{"$f":"IF(G1698=\"\",\"\",VLOOKUP(G1698,Insumos!G:H,2,FALSE))","v":""}]
[null,null,null,null,null,{"$f":"IF(E1699=\"\",\"\",VLOOKUP(E1699,Insumos!AD:AE,2,FALSE))","v":""},null,{"$f":"IF(G1699=\"\",\"\",VLOOKUP(G1699,Insumos!G:H,2,FALSE))","v":""}]
[null,null,null,null,null,{"$f":"IF(E1700=\"\",\"\",VLOOKUP(E1700,Insumos!AD:AE,2,FALSE))","v":""},null,{"$f":"IF(G1700=\"\",\"\",VLOOKUP(G1700,Insumos!G:H,2,FALSE))","v":""}]
[null,null,null,null,null,{"$f":"IF(E1701=\"\",\"\",VLOOKUP(E1701,Insumos!AD:AE,2,FALSE))","v":""},null,{"$f":"IF(G1701=\"\",\"\",VLOOKUP(G1701,Insumos!G:H,2,FALSE))","v":""}]
[null,null,null,null,null,{"$f":"IF(E1702=\"\",\"\",VLOOKUP(E1702,Insumos!AD:AE,2,FALSE))","v":""},null,{"$f":"IF(G1702=\"\",\"\",VLOOKUP(G1702,Insumos!G:H,2,FALSE))","v":""}]
[null,null,null,null,null,{"$f":"IF(E1703=\"\",\"\",VLOOKUP(E1703,Insumos!AD:AE,2,FALSE))","v":""},null,{"$f":"IF(G1703=\"\",\"\",VLOOKUP(G1703,Insumos!G:H,2,FALSE))","v":""}]
[null,null,null,null,null,{"$f":"IF(E1704=\"\",\"\",VLOOKUP(E1704,Insumos!AD:AE,2,FALSE))","v":""},null,{"$f":"IF(G1704=\"\",\"\",VLOOKUP(G1704,Insumos!G:H,2,FALSE))","v":""}]
[null,null,null,null,null,{"$f":"IF(E1705=\"\",\"\",VLOOKUP(E1705,Insumos!AD:AE,2,FALSE))","v":""},null,{"$f":"IF(G1705=\"\",\"\",VLOOKUP(G1705,Insumos!G:H,2,FALSE))","v":""}]
[null,null,null,null,null,{"$f":"IF(E1706=\"\",\"\",VLOOKUP(E1706,Insumos!AD:AE,2,FALSE))","v":""},null,{"$f":"IF(G1706=\"\",\"\",VLOOKUP(G1706,Insumos!G:H,2,FALSE))","v":""}]
[null,null,null,null,null,{"$f":"IF(E1707=\"\",\"\",VLOOKUP(E1707,Insumos!AD:AE,2,FALSE))","v":""},null,{"$f":"IF(G1707=\"\",\"\",VLOOKUP(G1707,Insumos!G:H,2,FALSE))","v":""}]
[null,null,null,null,null,{"$f":"IF(E1708=\"\",\"\",VLOOKUP(E1708,Insumos!AD:AE,2,FALSE))","v":""},null,{"$f":"IF(G1708=\"\",\"\",VLOOKUP(G1708,Insumos!G:H,2,FALSE))","v":""}]
[null,null,null,null,null,{"$f":"IF(E1709=\"\",\"\",VLOOKUP(E1709,Insumos!AD:AE,2,FALSE))","v":""},null,{"$f":"IF(G1709=\"\",\"\",VLOOKUP(G1709,Insumos!G:H,2,FALSE))","v":""}]
[null,null,null,null,null,{"$f":"IF(E1710=\"\",\"\",VLOOKUP(E1710,Insumos!AD:AE,2,FALSE))","v":""},null,{"$f":"IF(G1710=\"\",\"\",VLOOKUP(G1710,Insumos!G:H,2,FALSE))","v":""}]
[null,null,null,null,null,{"$f":"IF(E1711=\"\",\"\",VLOOKUP(E1711,Insumos!AD:AE,2,FALSE))","v":""},null,{"$f":"IF(G1711=\"\",\"\",VLOOKUP(G1711,Insumos!G:H,2,FALSE))","v":""}]
[null,null,null,null,null,{"$f":"IF(E1712=\"\",\"\",VLOOKUP(E1712,Insumos!AD:AE,2,FALSE))","v":""},null,{"$f":"IF(G1712=\"\",\"\",VLOOKUP(G1712,Insumos!G:H,2,FALSE))","v":""}]
[null,null,null,null,null,{"$f":"IF(E1713=\"\",\"\",VLOOKUP(E1713,Insumos!AD:AE,2,FALSE))","v":""},null,{"$f":"IF(G1713=\"\",\"\",VLOOKUP(G1713,Insumos!G:H,2,FALSE))","v":""}]
[null,null,null,null,null,{"$f":"IF(E1714=\"\",\"\",VLOOKUP(E1714,Insumos!AD:AE,2,FALSE))","v":""},null,{"$f":"IF(G1714=\"\",\"\",VLOOKUP(G1714,Insumos!G:H,2,FALSE))","v":""}]
[null,null,null,null,null,{"$f":"IF(E1715=\"\",\"\",VLOOKUP(E1715,Insumos!AD:AE,2,FALSE))","v":""},null,{"$f":"IF(G1715=\"\",\"\",VLOOKUP(G1715,Insumos!G:H,2,FALSE))","v":""}]
[null,null,null,null,null,{"$f":"IF(E1716=\"\",\"\",VLOOKUP(E1716,Insumos!AD:AE,2,FALSE))","v":""},null,{"$f":"IF(G1716=\"\",\"\",VLOOKUP(G1716,Insumos!G:H,2,FALSE))","v":""}]
[null,null,null,null,null,{"$f":"IF(E1717=\"\",\"\",VLOOKUP(E1717,Insumos!AD:AE,2,FALSE))","v":""},null,{"$f":"IF(G1717=\"\",\"\",VLOOKUP(G1717,Insumos!G:H,2,FALSE))","v":""}]
[null,null,null,null,null,{"$f":"IF(E1718=\"\",\"\",VLOOKUP(E1718,Insumos!AD:AE,2,FALSE))","v":""},null,{"$f":"IF(G1718=\"\",\"\",VLOOKUP(G1718,Insumos!G:H,2,FALSE))","v":""}]
[null,null,null,null,null,{"$f":"IF(E1719=\"\",\"\",VLOOKUP(E1719,Insumos!AD:AE,2,FALSE))","v":""},null,{"$f":"IF(G1719=\"\",\"\",VLOOKUP(G1719,Insumos!G:H,2,FALSE))","v":""}]
[null,null,null,null,null,{"$f":"IF(E1720=\"\",\"\",VLOOKUP(E1720,Insumos!AD:AE,2,FALSE))","v":""},null,{"$f":"IF(G1720=\"\",\"\",VLOOKUP(G1720,Insumos!G:H,2,FALSE))","v":""}]
[null,null,null,null,null,{"$f":"IF(E1721=\"\",\"\",VLOOKUP(E1721,Insumos!AD:AE,2,FALSE))","v":""},null,{"$f":"IF(G1721=\"\",\"\",VLOOKUP(G1721,Insumos!G:H,2,FALSE))","v":""}]
[null,null,null,null,null,{"$f":"IF(E1722=\"\",\"\",VLOOKUP(E1722,Insumos!AD:AE,2,FALSE))","v":""},null,{"$f":"IF(G1722=\"\",\"\",VLOOKUP(G1722,Insumos!G:H,2,FALSE))","v":""}]
[null,null,null,null,null,{"$f":"IF(E1723=\"\",\"\",VLOOKUP(E1723,Insumos!AD:AE,2,FALSE))","v":""},null,{"$f":"IF(G1723=\"\",\"\",VLOOKUP(G1723,Insumos!G:H,2,FALSE))","v":""}]
[null,null,null,null,null,{"$f":"IF(E1724=\"\",\"\",VLOOKUP(E1724,Insumos!AD:AE,2,FALSE))","v":""},null,{"$f":"IF(G1724=\"\",\"\",VLOOKUP(G1724,Insumos!G:H,2,FALSE))","v":""}]
[null,null,null,null,null,{"$f":"IF(E1725=\"\",\"\",VLOOKUP(E1725,Insumos!AD:AE,2,FALSE))","v":""},null,{"$f":"IF(G1725=\"\",\"\",VLOOKUP(G1725,Insumos!G:H,2,FALSE))","v":""}]
[null,null,null,null,null,{"$f":"IF(E1726=\"\",\"\",VLOOKUP(E1726,Insumos!AD:AE,2,FALSE))","v":""},null,{"$f":"IF(G1726=\"\",\"\",VLOOKUP(G1726,Insumos!G:H,2,FALSE))","v":""}]
[null,null,null,null,null,{"$f":"IF(E1727=\"\",\"\",VLOOKUP(E1727,Insumos!AD:AE,2,FALSE))","v":""},null,{"$f":"IF(G1727=\"\",\"\",VLOOKUP(G1727,Insumos!G:H,2,FALSE))","v":""}]
[null,null,null,null,null,{"$f":"IF(E1728=\"\",\"\",VLOOKUP(E1728,Insumos!AD:AE,2,FALSE))","v":""},null,{"$f":"IF(G1728=\"\",\"\",VLOOKUP(G1728,Insumos!G:H,2,FALSE))","v":""}]
[null,null,null,null,null,{"$f":"IF(E1729=\"\",\"\",VLOOKUP(E1729,Insumos!AD:AE,2,FALSE))","v":""},null,{"$f":"IF(G1729=\"\",\"\",VLOOKUP(G1729,Insumos!G:H,2,FALSE))","v":""}]
[null,null,null,null,null,{"$f":"IF(E1730=\"\",\"\",VLOOKUP(E1730,Insumos!AD:AE,2,FALSE))","v":""},null,{"$f":"IF(G1730=\"\",\"\",VLOOKUP(G1730,Insumos!G:H,2,FALSE))","v":""}]
[null,null,null,null,null,{"$f":"IF(E1731=\"\",\"\",VLOOKUP(E1731,Insumos!AD:AE,2,FALSE))","v":""},null,{"$f":"IF(G1731=\"\",\"\",VLOOKUP(G1731,Insumos!G:H,2,FALSE))","v":""}]
[null,null,null,null,null,{"$f":"IF(E1732=\"\",\"\",VLOOKUP(E1732,Insumos!AD:AE,2,FALSE))","v":""},null,{"$f":"IF(G1732=\"\",\"\",VLOOKUP(G1732,Insumos!G:H,2,FALSE))","v":""}]
[null,null,null,null,null,{"$f":"IF(E1733=\"\",\"\",VLOOKUP(E1733,Insumos!AD:AE,2,FALSE))","v":""},null,{"$f":"IF(G1733=\"\",\"\",VLOOKUP(G1733,Insumos!G:H,2,FALSE))","v":""}]
[null,null,null,null,null,{"$f":"IF(E1734=\"\",\"\",VLOOKUP(E1734,Insumos!AD:AE,2,FALSE))","v":""},null,{"$f":"IF(G1734=\"\",\"\",VLOOKUP(G1734,Insumos!G:H,2,FALSE))","v":""}]
[null,null,null,null,null,{"$f":"IF(E1735=\"\",\"\",VLOOKUP(E1735,Insumos!AD:AE,2,FALSE))","v":""},null,{"$f":"IF(G1735=\"\",\"\",VLOOKUP(G1735,Insumos!G:H,2,FALSE))","v":""}]
[null,null,null,null,null,{"$f":"IF(E1736=\"\",\"\",VLOOKUP(E1736,Insumos!AD:AE,2,FALSE))","v":""},null,{"$f":"IF(G1736=\"\",\"\",VLOOKUP(G1736,Insumos!G:H,2,FALSE))","v":""}]
[null,null,null,null,null,{"$f":"IF(E1737=\"\",\"\",VLOOKUP(E1737,Insumos!AD:AE,2,FALSE))","v":""},null,{"$f":"IF(G1737=\"\",\"\",VLOOKUP(G1737,Insumos!G:H,2,FALSE))","v":""}]
[null,null,null,null,null,{"$f":"IF(E1738=\"\",\"\",VLOOKUP(E1738,Insumos!AD:AE,2,FALSE))","v":""},null,{"$f":"IF(G1738=\"\",\"\",VLOOKUP(G1738,Insumos!G:H,2,FALSE))","v":""}]
[null,null,null,null,null,{"$f":"IF(E1739=\"\",\"\",VLOOKUP(E1739,Insumos!AD:AE,2,FALSE))","v":""},null,{"$f":"IF(G1739=\"\",\"\",VLOOKUP(G1739,Insumos!G:H,2,FALSE))","v":""}]
[null,null,null,null,null,{"$f":"IF(E1740=\"\",\"\",VLOOKUP(E1740,Insumos!AD:AE,2,FALSE))","v":""},null,{"$f":"IF(G1740=\"\",\"\",VLOOKUP(G1740,Insumos!G:H,2,FALSE))","v":""}]
[null,null,null,null,null,{"$f":"IF(E1741=\"\",\"\",VLOOKUP(E1741,Insumos!AD:AE,2,FALSE))","v":""},null,{"$f":"IF(G1741=\"\",\"\",VLOOKUP(G1741,Insumos!G:H,2,FALSE))","v":""}]
[null,null,null,null,null,{"$f":"IF(E1742=\"\",\"\",VLOOKUP(E1742,Insumos!AD:AE,2,FALSE))","v":""},null,{"$f":"IF(G1742=\"\",\"\",VLOOKUP(G1742,Insumos!G:H,2,FALSE))","v":""}]
[null,null,null,null,null,{"$f":"IF(E1743=\"\",\"\",VLOOKUP(E1743,Insumos!AD:AE,2,FALSE))","v":""},null,{"$f":"IF(G1743=\"\",\"\",VLOOKUP(G1743,Insumos!G:H,2,FALSE))","v":""}]
[null,null,null,null,null,{"$f":"IF(E1744=\"\",\"\",VLOOKUP(E1744,Insumos!AD:AE,2,FALSE))","v":""},null,{"$f":"IF(G1744=\"\",\"\",VLOOKUP(G1744,Insumos!G:H,2,FALSE))","v":""}]
[null,null,null,null,null,{"$f":"IF(E1745=\"\",\"\",VLOOKUP(E1745,Insumos!AD:AE,2,FALSE))","v":""},null,{"$f":"IF(G1745=\"\",\"\",VLOOKUP(G1745,Insumos!G:H,2,FALSE))","v":""}]
[null,null,null,null,null,{"$f":"IF(E1746=\"\",\"\",VLOOKUP(E1746,Insumos!AD:AE,2,FALSE))","v":""},null,{"$f":"IF(G1746=\"\",\"\",VLOOKUP(G1746,Insumos!G:H,2,FALSE))","v":""}]
[null,null,null,null,null,{"$f":"IF(E1747=\"\",\"\",VLOOKUP(E1747,Insumos!AD:AE,2,FALSE))","v":""},null,{"$f":"IF(G1747=\"\",\"\",VLOOKUP(G1747,Insumos!G:H,2,FALSE))","v":""}]
[null,null,null,null,null,{"$f":"IF(E1748=\"\",\"\",VLOOKUP(E1748,Insumos!AD:AE,2,FALSE))","v":""},null,{"$f":"IF(G1748=\"\",\"\",VLOOKUP(G1748,Insumos!G:H,2,FALSE))","v":""}]
[null,null,null,null,null,{"$f":"IF(E1749=\"\",\"\",VLOOKUP(E1749,Insumos!AD:AE,2,FALSE))","v":""},null,{"$f":"IF(G1749=\"\",\"\",VLOOKUP(G1749,Insumos!G:H,2,FALSE))","v":""}]
[null,null,null,null,null,{"$f":"IF(E1750=\"\",\"\",VLOOKUP(E1750,Insumos!AD:AE,2,FALSE))","v":""},null,{"$f":"IF(G1750=\"\",\"\",VLOOKUP(G1750,Insumos!G:H,2,FALSE))","v":""}]
[null,null,null,null,null,{"$f":"IF(E1751=\"\",\"\",VLOOKUP(E1751,Insumos!AD:AE,2,FALSE))","v":""},null,{"$f":"IF(G1751=\"\",\"\",VLOOKUP(G1751,Insumos!G:H,2,FALSE))","v":""}]
[null,null,null,null,null,{"$f":"IF(E1752=\"\",\"\",VLOOKUP(E1752,Insumos!AD:AE,2,FALSE))","v":""},null,{"$f":"IF(G1752=\"\",\"\",VLOOKUP(G1752,Insumos!G:H,2,FALSE))","v":""}]
[null,null,null,null,null,{"$f":"IF(E1753=\"\",\"\",VLOOKUP(E1753,Insumos!AD:AE,2,FALSE))","v":""},null,{"$f":"IF(G1753=\"\",\"\",VLOOKUP(G1753,Insumos!G:H,2,FALSE))","v":""}]
[null,null,null,null,null,{"$f":"IF(E1754=\"\",\"\",VLOOKUP(E1754,Insumos!AD:AE,2,FALSE))","v":""},null,{"$f":"IF(G1754=\"\",\"\",VLOOKUP(G1754,Insumos!G:H,2,FALSE))","v":""}]
[null,null,null,null,null,{"$f":"IF(E1755=\"\",\"\",VLOOKUP(E1755,Insumos!AD:AE,2,FALSE))","v":""},null,{"$f":"IF(G1755=\"\",\"\",VLOOKUP(G1755,Insumos!G:H,2,FALSE))","v":""}]
[null,null,null,null,null,{"$f":"IF(E1756=\"\",\"\",VLOOKUP(E1756,Insumos!AD:AE,2,FALSE))","v":""},null,{"$f":"IF(G1756=\"\",\"\",VLOOKUP(G1756,Insumos!G:H,2,FALSE))","v":""}]
[null,null,null,null,null,{"$f":"IF(E1757=\"\",\"\",VLOOKUP(E1757,Insumos!AD:AE,2,FALSE))","v":""},null,{"$f":"IF(G1757=\"\",\"\",VLOOKUP(G1757,Insumos!G:H,2,FALSE))","v":""}]
[null,null,null,null,null,{"$f":"IF(E1758=\"\",\"\",VLOOKUP(E1758,Insumos!AD:AE,2,FALSE))","v":""},null,{"$f":"IF(G1758=\"\",\"\",VLOOKUP(G1758,Insumos!G:H,2,FALSE))","v":""}]
[null,null,null,null,null,{"$f":"IF(E1759=\"\",\"\",VLOOKUP(E1759,Insumos!AD:AE,2,FALSE))","v":""},null,{"$f":"IF(G1759=\"\",\"\",VLOOKUP(G1759,Insumos!G:H,2,FALSE))","v":""}]
[null,null,null,null,null,{"$f":"IF(E1760=\"\",\"\",VLOOKUP(E1760,Insumos!AD:AE,2,FALSE))","v":""},null,{"$f":"IF(G1760=\"\",\"\",VLOOKUP(G1760,Insumos!G:H,2,FALSE))","v":""}]
[null,null,null,null,null,{"$f":"IF(E1761=\"\",\"\",VLOOKUP(E1761,Insumos!AD:AE,2,FALSE))","v":""},null,{"$f":"IF(G1761=\"\",\"\",VLOOKUP(G1761,Insumos!G:H,2,FALSE))","v":""}]
[null,null,null,null,null,{"$f":"IF(E1762=\"\",\"\",VLOOKUP(E1762,Insumos!AD:AE,2,FALSE))","v":""},null,{"$f":"IF(G1762=\"\",\"\",VLOOKUP(G1762,Insumos!G:H,2,FALSE))","v":""}]
[null,null,null,null,null,{"$f":"IF(E1763=\"\",\"\",VLOOKUP(E1763,Insumos!AD:AE,2,FALSE))","v":""},null,{"$f":"IF(G1763=\"\",\"\",VLOOKUP(G1763,Insumos!G:H,2,FALSE))","v":""}]
[null,null,null,null,null,{"$f":"IF(E1764=\"\",\"\",VLOOKUP(E1764,Insumos!AD:AE,2,FALSE))","v":""},null,{"$f":"IF(G1764=\"\",\"\",VLOOKUP(G1764,Insumos!G:H,2,FALSE))","v":""}]
[null,null,null,null,null,{"$f":"IF(E1765=\"\",\"\",VLOOKUP(E1765,Insumos!AD:AE,2,FALSE))","v":""},null,{"$f":"IF(G1765=\"\",\"\",VLOOKUP(G1765,Insumos!G:H,2,FALSE))","v":""}]
[null,null,null,null,null,{"$f":"IF(E1766=\"\",\"\",VLOOKUP(E1766,Insumos!AD:AE,2,FALSE))","v":""},null,{"$f":"IF(G1766=\"\",\"\",VLOOKUP(G1766,Insumos!G:H,2,FALSE))","v":""}]
[null,null,null,null,null,{"$f":"IF(E1767=\"\",\"\",VLOOKUP(E1767,Insumos!AD:AE,2,FALSE))","v":""},null,{"$f":"IF(G1767=\"\",\"\",VLOOKUP(G1767,Insumos!G:H,2,FALSE))","v":""}]
[null,null,null,null,null,{"$f":"IF(E1768=\"\",\"\",VLOOKUP(E1768,Insumos!AD:AE,2,FALSE))","v":""},null,{"$f":"IF(G1768=\"\",\"\",VLOOKUP(G1768,Insumos!G:H,2,FALSE))","v":""}]
[null,null,null,null,null,{"$f":"IF(E1769=\"\",\"\",VLOOKUP(E1769,Insumos!AD:AE,2,FALSE))","v":""},null,{"$f":"IF(G1769=\"\",\"\",VLOOKUP(G1769,Insumos!G:H,2,FALSE))","v":""}]
[null,null,null,null,null,{"$f":"IF(E1770=\"\",\"\",VLOOKUP(E1770,Insumos!AD:AE,2,FALSE))","v":""},null,{"$f":"IF(G1770=\"\",\"\",VLOOKUP(G1770,Insumos!G:H,2,FALSE))","v":""}]
[null,null,null,null,null,{"$f":"IF(E1771=\"\",\"\",VLOOKUP(E1771,Insumos!AD:AE,2,FALSE))","v":""},null,{"$f":"IF(G1771=\"\",\"\",VLOOKUP(G1771,Insumos!G:H,2,FALSE))","v":""}]
[null,null,null,null,null,{"$f":"IF(E1772=\"\",\"\",VLOOKUP(E1772,Insumos!AD:AE,2,FALSE))","v":""},null,{"$f":"IF(G1772=\"\",\"\",VLOOKUP(G1772,Insumos!G:H,2,FALSE))","v":""}]
[null,null,null,null,null,{"$f":"IF(E1773=\"\",\"\",VLOOKUP(E1773,Insumos!AD:AE,2,FALSE))","v":""},null,{"$f":"IF(G1773=\"\",\"\",VLOOKUP(G1773,Insumos!G:H,2,FALSE))","v":""}]
[null,null,null,null,null,{"$f":"IF(E1774=\"\",\"\",VLOOKUP(E1774,Insumos!AD:AE,2,FALSE))","v":""},null,{"$f":"IF(G1774=\"\",\"\",VLOOKUP(G1774,Insumos!G:H,2,FALSE))","v":""}]
[null,null,null,null,null,{"$f":"IF(E1775=\"\",\"\",VLOOKUP(E1775,Insumos!AD:AE,2,FALSE))","v":""},null,{"$f":"IF(G1775=\"\",\"\",VLOOKUP(G1775,Insumos!G:H,2,FALSE))","v":""}]
[null,null,null,null,null,{"$f":"IF(E1776=\"\",\"\",VLOOKUP(E1776,Insumos!AD:AE,2,FALSE))","v":""},null,{"$f":"IF(G1776=\"\",\"\",VLOOKUP(G1776,Insumos!G:H,2,FALSE))","v":""}]
[null,null,null,null,null,{"$f":"IF(E1777=\"\",\"\",VLOOKUP(E1777,Insumos!AD:AE,2,FALSE))","v":""},null,{"$f":"IF(G1777=\"\",\"\",VLOOKUP(G1777,Insumos!G:H,2,FALSE))","v":""}]
[null,null,null,null,null,{"$f":"IF(E1778=\"\",\"\",VLOOKUP(E1778,Insumos!AD:AE,2,FALSE))","v":""},null,{"$f":"IF(G1778=\"\",\"\",VLOOKUP(G1778,Insumos!G:H,2,FALSE))","v":""}]
[null,null,null,null,null,{"$f":"IF(E1779=\"\",\"\",VLOOKUP(E1779,Insumos!AD:AE,2,FALSE))","v":""},null,{"$f":"IF(G1779=\"\",\"\",VLOOKUP(G1779,Insumos!G:H,2,FALSE))","v":""}]
[null,null,null,null,null,{"$f":"IF(E1780=\"\",\"\",VLOOKUP(E1780,Insumos!AD:AE,2,FALSE))","v":""},null,{"$f":"IF(G1780=\"\",\"\",VLOOKUP(G1780,Insumos!G:H,2,FALSE))","v":""}]
[null,null,null,null,null,{"$f":"IF(E1781=\"\",\"\",VLOOKUP(E1781,Insumos!AD:AE,2,FALSE))","v":""},null,{"$f":"IF(G1781=\"\",\"\",VLOOKUP(G1781,Insumos!G:H,2,FALSE))","v":""}]
[null,null,null,null,null,{"$f":"IF(E1782=\"\",\"\",VLOOKUP(E1782,Insumos!AD:AE,2,FALSE))","v":""},null,{"$f":"IF(G1782=\"\",\"\",VLOOKUP(G1782,Insumos!G:H,2,FALSE))","v":""}]
[null,null,null,null,null,{"$f":"IF(E1783=\"\",\"\",VLOOKUP(E1783,Insumos!AD:AE,2,FALSE))","v":""},null,{"$f":"IF(G1783=\"\",\"\",VLOOKUP(G1783,Insumos!G:H,2,FALSE))","v":""}]
[null,null,null,null,null,{"$f":"IF(E1784=\"\",\"\",VLOOKUP(E1784,Insumos!AD:AE,2,FALSE))","v":""},null,{"$f":"IF(G1784=\"\",\"\",VLOOKUP(G1784,Insumos!G:H,2,FALSE))","v":""}]
[null,null,null,null,null,{"$f":"IF(E1785=\"\",\"\",VLOOKUP(E1785,Insumos!AD:AE,2,FALSE))","v":""},null,{"$f":"IF(G1785=\"\",\"\",VLOOKUP(G1785,Insumos!G:H,2,FALSE))","v":""}]
[null,null,null,null,null,{"$f":"IF(E1786=\"\",\"\",VLOOKUP(E1786,Insumos!AD:AE,2,FALSE))","v":""},null,{"$f":"IF(G1786=\"\",\"\",VLOOKUP(G1786,Insumos!G:H,2,FALSE))","v":""}]
[null,null,null,null,null,{"$f":"IF(E1787=\"\",\"\",VLOOKUP(E1787,Insumos!AD:AE,2,FALSE))","v":""},null,{"$f":"IF(G1787=\"\",\"\",VLOOKUP(G1787,Insumos!G:H,2,FALSE))","v":""}]
[null,null,null,null,null,{"$f":"IF(E1788=\"\",\"\",VLOOKUP(E1788,Insumos!AD:AE,2,FALSE))","v":""},null,{"$f":"IF(G1788=\"\",\"\",VLOOKUP(G1788,Insumos!G:H,2,FALSE))","v":""}]
[null,null,null,null,null,{"$f":"IF(E1789=\"\",\"\",VLOOKUP(E1789,Insumos!AD:AE,2,FALSE))","v":""},null,{"$f":"IF(G1789=\"\",\"\",VLOOKUP(G1789,Insumos!G:H,2,FALSE))","v":""}]
[null,null,null,null,null,{"$f":"IF(E1790=\"\",\"\",VLOOKUP(E1790,Insumos!AD:AE,2,FALSE))","v":""},null,{"$f":"IF(G1790=\"\",\"\",VLOOKUP(G1790,Insumos!G:H,2,FALSE))","v":""}]
[null,null,null,null,null,{"$f":"IF(E1791=\"\",\"\",VLOOKUP(E1791,Insumos!AD:AE,2,FALSE))","v":""},null,{"$f":"IF(G1791=\"\",\"\",VLOOKUP(G1791,Insumos!G:H,2,FALSE))","v":""}]
[null,null,null,null,null,{"$f":"IF(E1792=\"\",\"\",VLOOKUP(E1792,Insumos!AD:AE,2,FALSE))","v":""},null,{"$f":"IF(G1792=\"\",\"\",VLOOKUP(G1792,Insumos!G:H,2,FALSE))","v":""}]
[null,null,null,null,null,{"$f":"IF(E1793=\"\",\"\",VLOOKUP(E1793,Insumos!AD:AE,2,FALSE))","v":""},null,{"$f":"IF(G1793=\"\",\"\",VLOOKUP(G1793,Insumos!G:H,2,FALSE))","v":""}]
[null,null,null,null,null,{"$f":"IF(E1794=\"\",\"\",VLOOKUP(E1794,Insumos!AD:AE,2,FALSE))","v":""},null,{"$f":"IF(G1794=\"\",\"\",VLOOKUP(G1794,Insumos!G:H,2,FALSE))","v":""}]
[null,null,null,null,null,{"$f":"IF(E1795=\"\",\"\",VLOOKUP(E1795,Insumos!AD:AE,2,FALSE))","v":""},null,{"$f":"IF(G1795=\"\",\"\",VLOOKUP(G1795,Insumos!G:H,2,FALSE))","v":""}]
[null,null,null,null,null,{"$f":"IF(E1796=\"\",\"\",VLOOKUP(E1796,Insumos!AD:AE,2,FALSE))","v":""},null,{"$f":"IF(G1796=\"\",\"\",VLOOKUP(G1796,Insumos!G:H,2,FALSE))","v":""}]
[null,null,null,null,null,{"$f":"IF(E1797=\"\",\"\",VLOOKUP(E1797,Insumos!AD:AE,2,FALSE))","v":""},null,{"$f":"IF(G1797=\"\",\"\",VLOOKUP(G1797,Insumos!G:H,2,FALSE))","v":""}]
[null,null,null,null,null,{"$f":"IF(E1798=\"\",\"\",VLOOKUP(E1798,Insumos!AD:AE,2,FALSE))","v":""},null,{"$f":"IF(G1798=\"\",\"\",VLOOKUP(G1798,Insumos!G:H,2,FALSE))","v":""}]
[null,null,null,null,null,{"$f":"IF(E1799=\"\",\"\",VLOOKUP(E1799,Insumos!AD:AE,2,FALSE))","v":""},null,{"$f":"IF(G1799=\"\",\"\",VLOOKUP(G1799,Insumos!G:H,2,FALSE))","v":""}]
[null,null,null,null,null,{"$f":"IF(E1800=\"\",\"\",VLOOKUP(E1800,Insumos!AD:AE,2,FALSE))","v":""},null,{"$f":"IF(G1800=\"\",\"\",VLOOKUP(G1800,Insumos!G:H,2,FALSE))","v":""}]
[null,null,null,null,null,{"$f":"IF(E1801=\"\",\"\",VLOOKUP(E1801,Insumos!AD:AE,2,FALSE))","v":""},null,{"$f":"IF(G1801=\"\",\"\",VLOOKUP(G1801,Insumos!G:H,2,FALSE))","v":""}]
[null,null,null,null,null,{"$f":"IF(E1802=\"\",\"\",VLOOKUP(E1802,Insumos!AD:AE,2,FALSE))","v":""},null,{"$f":"IF(G1802=\"\",\"\",VLOOKUP(G1802,Insumos!G:H,2,FALSE))","v":""}]
[null,null,null,null,null,{"$f":"IF(E1803=\"\",\"\",VLOOKUP(E1803,Insumos!AD:AE,2,FALSE))","v":""},null,{"$f":"IF(G1803=\"\",\"\",VLOOKUP(G1803,Insumos!G:H,2,FALSE))","v":""}]
[null,null,null,null,null,{"$f":"IF(E1804=\"\",\"\",VLOOKUP(E1804,Insumos!AD:AE,2,FALSE))","v":""},null,{"$f":"IF(G1804=\"\",\"\",VLOOKUP(G1804,Insumos!G:H,2,FALSE))","v":""}]
[null,null,null,null,null,{"$f":"IF(E1805=\"\",\"\",VLOOKUP(E1805,Insumos!AD:AE,2,FALSE))","v":""},null,{"$f":"IF(G1805=\"\",\"\",VLOOKUP(G1805,Insumos!G:H,2,FALSE))","v":""}]
[null,null,null,null,null,{"$f":"IF(E1806=\"\",\"\",VLOOKUP(E1806,Insumos!AD:AE,2,FALSE))","v":""},null,{"$f":"IF(G1806=\"\",\"\",VLOOKUP(G1806,Insumos!G:H,2,FALSE))","v":""}]
[null,null,null,null,null,{"$f":"IF(E1807=\"\",\"\",VLOOKUP(E1807,Insumos!AD:AE,2,FALSE))","v":""},null,{"$f":"IF(G1807=\"\",\"\",VLOOKUP(G1807,Insumos!G:H,2,FALSE))","v":""}]
[null,null,null,null,null,{"$f":"IF(E1808=\"\",\"\",VLOOKUP(E1808,Insumos!AD:AE,2,FALSE))","v":""},null,{"$f":"IF(G1808=\"\",\"\",VLOOKUP(G1808,Insumos!G:H,2,FALSE))","v":""}]
[null,null,null,null,null,{"$f":"IF(E1809=\"\",\"\",VLOOKUP(E1809,Insumos!AD:AE,2,FALSE))","v":""},null,{"$f":"IF(G1809=\"\",\"\",VLOOKUP(G1809,Insumos!G:H,2,FALSE))","v":""}]
[null,null,null,null,null,{"$f":"IF(E1810=\"\",\"\",VLOOKUP(E1810,Insumos!AD:AE,2,FALSE))","v":""},null,{"$f":"IF(G1810=\"\",\"\",VLOOKUP(G1810,Insumos!G:H,2,FALSE))","v":""}]
[null,null,null,null,null,{"$f":"IF(E1811=\"\",\"\",VLOOKUP(E1811,Insumos!AD:AE,2,FALSE))","v":""},null,{"$f":"IF(G1811=\"\",\"\",VLOOKUP(G1811,Insumos!G:H,2,FALSE))","v":""}]
[null,null,null,null,null,{"$f":"IF(E1812=\"\",\"\",VLOOKUP(E1812,Insumos!AD:AE,2,FALSE))","v":""},null,{"$f":"IF(G1812=\"\",\"\",VLOOKUP(G1812,Insumos!G:H,2,FALSE))","v":""}]
[null,null,null,null,null,{"$f":"IF(E1813=\"\",\"\",VLOOKUP(E1813,Insumos!AD:AE,2,FALSE))","v":""},null,{"$f":"IF(G1813=\"\",\"\",VLOOKUP(G1813,Insumos!G:H,2,FALSE))","v":""}]
[null,null,null,null,null,{"$f":"IF(E1814=\"\",\"\",VLOOKUP(E1814,Insumos!AD:AE,2,FALSE))","v":""},null,{"$f":"IF(G1814=\"\",\"\",VLOOKUP(G1814,Insumos!G:H,2,FALSE))","v":""}]
[null,null,null,null,null,{"$f":"IF(E1815=\"\",\"\",VLOOKUP(E1815,Insumos!AD:AE,2,FALSE))","v":""},null,{"$f":"IF(G1815=\"\",\"\",VLOOKUP(G1815,Insumos!G:H,2,FALSE))","v":""}]
[null,null,null,null,null,{"$f":"IF(E1816=\"\",\"\",VLOOKUP(E1816,Insumos!AD:AE,2,FALSE))","v":""},null,{"$f":"IF(G1816=\"\",\"\",VLOOKUP(G1816,Insumos!G:H,2,FALSE))","v":""}]
[null,null,null,null,null,{"$f":"IF(E1817=\"\",\"\",VLOOKUP(E1817,Insumos!AD:AE,2,FALSE))","v":""},null,{"$f":"IF(G1817=\"\",\"\",VLOOKUP(G1817,Insumos!G:H,2,FALSE))","v":""}]
[null,null,null,null,null,{"$f":"IF(E1818=\"\",\"\",VLOOKUP(E1818,Insumos!AD:AE,2,FALSE))","v":""},null,{"$f":"IF(G1818=\"\",\"\",VLOOKUP(G1818,Insumos!G:H,2,FALSE))","v":""}]
[null,null,null,null,null,{"$f":"IF(E1819=\"\",\"\",VLOOKUP(E1819,Insumos!AD:AE,2,FALSE))","v":""},null,{"$f":"IF(G1819=\"\",\"\",VLOOKUP(G1819,Insumos!G:H,2,FALSE))","v":""}]
[null,null,null,null,null,{"$f":"IF(E1820=\"\",\"\",VLOOKUP(E1820,Insumos!AD:AE,2,FALSE))","v":""},null,{"$f":"IF(G1820=\"\",\"\",VLOOKUP(G1820,Insumos!G:H,2,FALSE))","v":""}]
[null,null,null,null,null,{"$f":"IF(E1821=\"\",\"\",VLOOKUP(E1821,Insumos!AD:AE,2,FALSE))","v":""},null,{"$f":"IF(G1821=\"\",\"\",VLOOKUP(G1821,Insumos!G:H,2,FALSE))","v":""}]
[null,null,null,null,null,{"$f":"IF(E1822=\"\",\"\",VLOOKUP(E1822,Insumos!AD:AE,2,FALSE))","v":""},null,{"$f":"IF(G1822=\"\",\"\",VLOOKUP(G1822,Insumos!G:H,2,FALSE))","v":""}]
[null,null,null,null,null,{"$f":"IF(E1823=\"\",\"\",VLOOKUP(E1823,Insumos!AD:AE,2,FALSE))","v":""},null,{"$f":"IF(G1823=\"\",\"\",VLOOKUP(G1823,Insumos!G:H,2,FALSE))","v":""}]
[null,null,null,null,null,{"$f":"IF(E1824=\"\",\"\",VLOOKUP(E1824,Insumos!AD:AE,2,FALSE))","v":""},null,{"$f":"IF(G1824=\"\",\"\",VLOOKUP(G1824,Insumos!G:H,2,FALSE))","v":""}]
[null,null,null,null,null,{"$f":"IF(E1825=\"\",\"\",VLOOKUP(E1825,Insumos!AD:AE,2,FALSE))","v":""},null,{"$f":"IF(G1825=\"\",\"\",VLOOKUP(G1825,Insumos!G:H,2,FALSE))","v":""}]
[null,null,null,null,null,{"$f":"IF(E1826=\"\",\"\",VLOOKUP(E1826,Insumos!AD:AE,2,FALSE))","v":""},null,{"$f":"IF(G1826=\"\",\"\",VLOOKUP(G1826,Insumos!G:H,2,FALSE))","v":""}]
[null,null,null,null,null,{"$f":"IF(E1827=\"\",\"\",VLOOKUP(E1827,Insumos!AD:AE,2,FALSE))","v":""},null,{"$f":"IF(G1827=\"\",\"\",VLOOKUP(G1827,Insumos!G:H,2,FALSE))","v":""}]
[null,null,null,null,null,{"$f":"IF(E1828=\"\",\"\",VLOOKUP(E1828,Insumos!AD:AE,2,FALSE))","v":""},null,{"$f":"IF(G1828=\"\",\"\",VLOOKUP(G1828,Insumos!G:H,2,FALSE))","v":""}]
[null,null,null,null,null,{"$f":"IF(E1829=\"\",\"\",VLOOKUP(E1829,Insumos!AD:AE,2,FALSE))","v":""},null,{"$f":"IF(G1829=\"\",\"\",VLOOKUP(G1829,Insumos!G:H,2,FALSE))","v":""}]
[null,null,null,null,null,{"$f":"IF(E1830=\"\",\"\",VLOOKUP(E1830,Insumos!AD:AE,2,FALSE))","v":""},null,{"$f":"IF(G1830=\"\",\"\",VLOOKUP(G1830,Insumos!G:H,2,FALSE))","v":""}]
[null,null,null,null,null,{"$f":"IF(E1831=\"\",\"\",VLOOKUP(E1831,Insumos!AD:AE,2,FALSE))","v":""},null,{"$f":"IF(G1831=\"\",\"\",VLOOKUP(G1831,Insumos!G:H,2,FALSE))","v":""}]
[null,null,null,null,null,{"$f":"IF(E1832=\"\",\"\",VLOOKUP(E1832,Insumos!AD:AE,2,FALSE))","v":""},null,{"$f":"IF(G1832=\"\",\"\",VLOOKUP(G1832,Insumos!G:H,2,FALSE))","v":""}]
[null,null,null,null,null,{"$f":"IF(E1833=\"\",\"\",VLOOKUP(E1833,Insumos!AD:AE,2,FALSE))","v":""},null,{"$f":"IF(G1833=\"\",\"\",VLOOKUP(G1833,Insumos!G:H,2,FALSE))","v":""}]
[null,null,null,null,null,{"$f":"IF(E1834=\"\",\"\",VLOOKUP(E1834,Insumos!AD:AE,2,FALSE))","v":""},null,{"$f":"IF(G1834=\"\",\"\",VLOOKUP(G1834,Insumos!G:H,2,FALSE))","v":""}]
[null,null,null,null,null,{"$f":"IF(E1835=\"\",\"\",VLOOKUP(E1835,Insumos!AD:AE,2,FALSE))","v":""},null,{"$f":"IF(G1835=\"\",\"\",VLOOKUP(G1835,Insumos!G:H,2,FALSE))","v":""}]
[null,null,null,null,null,{"$f":"IF(E1836=\"\",\"\",VLOOKUP(E1836,Insumos!AD:AE,2,FALSE))","v":""},null,{"$f":"IF(G1836=\"\",\"\",VLOOKUP(G1836,Insumos!G:H,2,FALSE))","v":""}]
[null,null,null,null,null,{"$f":"IF(E1837=\"\",\"\",VLOOKUP(E1837,Insumos!AD:AE,2,FALSE))","v":""},null,{"$f":"IF(G1837=\"\",\"\",VLOOKUP(G1837,Insumos!G:H,2,FALSE))","v":""}]
[null,null,null,null,null,{"$f":"IF(E1838=\"\",\"\",VLOOKUP(E1838,Insumos!AD:AE,2,FALSE))","v":""},null,{"$f":"IF(G1838=\"\",\"\",VLOOKUP(G1838,Insumos!G:H,2,FALSE))","v":""}]
[null,null,null,null,null,{"$f":"IF(E1839=\"\",\"\",VLOOKUP(E1839,Insumos!AD:AE,2,FALSE))","v":""},null,{"$f":"IF(G1839=\"\",\"\",VLOOKUP(G1839,Insumos!G:H,2,FALSE))","v":""}]
[null,null,null,null,null,{"$f":"IF(E1840=\"\",\"\",VLOOKUP(E1840,Insumos!AD:AE,2,FALSE))","v":""},null,{"$f":"IF(G1840=\"\",\"\",VLOOKUP(G1840,Insumos!G:H,2,FALSE))","v":""}]
[null,null,null,null,null,{"$f":"IF(E1841=\"\",\"\",VLOOKUP(E1841,Insumos!AD:AE,2,FALSE))","v":""},null,{"$f":"IF(G1841=\"\",\"\",VLOOKUP(G1841,Insumos!G:H,2,FALSE))","v":""}]
[null,null,null,null,null,{"$f":"IF(E1842=\"\",\"\",VLOOKUP(E1842,Insumos!AD:AE,2,FALSE))","v":""},null,{"$f":"IF(G1842=\"\",\"\",VLOOKUP(G1842,Insumos!G:H,2,FALSE))","v":""}]
[null,null,null,null,null,{"$f":"IF(E1843=\"\",\"\",VLOOKUP(E1843,Insumos!AD:AE,2,FALSE))","v":""},null,{"$f":"IF(G1843=\"\",\"\",VLOOKUP(G1843,Insumos!G:H,2,FALSE))","v":""}]
[null,null,null,null,null,{"$f":"IF(E1844=\"\",\"\",VLOOKUP(E1844,Insumos!AD:AE,2,FALSE))","v":""},null,{"$f":"IF(G1844=\"\",\"\",VLOOKUP(G1844,Insumos!G:H,2,FALSE))","v":""}]
[null,null,null,null,null,{"$f":"IF(E1845=\"\",\"\",VLOOKUP(E1845,Insumos!AD:AE,2,FALSE))","v":""},null,{"$f":"IF(G1845=\"\",\"\",VLOOKUP(G1845,Insumos!G:H,2,FALSE))","v":""}]
[null,null,null,null,null,{"$f":"IF(E1846=\"\",\"\",VLOOKUP(E1846,Insumos!AD:AE,2,FALSE))","v":""},null,{"$f":"IF(G1846=\"\",\"\",VLOOKUP(G1846,Insumos!G:H,2,FALSE))","v":""}]
[null,null,null,null,null,{"$f":"IF(E1847=\"\",\"\",VLOOKUP(E1847,Insumos!AD:AE,2,FALSE))","v":""},null,{"$f":"IF(G1847=\"\",\"\",VLOOKUP(G1847,Insumos!G:H,2,FALSE))","v":""}]
[null,null,null,null,null,{"$f":"IF(E1848=\"\",\"\",VLOOKUP(E1848,Insumos!AD:AE,2,FALSE))","v":""},null,{"$f":"IF(G1848=\"\",\"\",VLOOKUP(G1848,Insumos!G:H,2,FALSE))","v":""}]
[null,null,null,null,null,{"$f":"IF(E1849=\"\",\"\",VLOOKUP(E1849,Insumos!AD:AE,2,FALSE))","v":""},null,{"$f":"IF(G1849=\"\",\"\",VLOOKUP(G1849,Insumos!G:H,2,FALSE))","v":""}]
[null,null,null,null,null,{"$f":"IF(E1850=\"\",\"\",VLOOKUP(E1850,Insumos!AD:AE,2,FALSE))","v":""},null,{"$f":"IF(G1850=\"\",\"\",VLOOKUP(G1850,Insumos!G:H,2,FALSE))","v":""}]
[null,null,null,null,null,{"$f":"IF(E1851=\"\",\"\",VLOOKUP(E1851,Insumos!AD:AE,2,FALSE))","v":""},null,{"$f":"IF(G1851=\"\",\"\",VLOOKUP(G1851,Insumos!G:H,2,FALSE))","v":""}]
[null,null,null,null,null,{"$f":"IF(E1852=\"\",\"\",VLOOKUP(E1852,Insumos!AD:AE,2,FALSE))","v":""},null,{"$f":"IF(G1852=\"\",\"\",VLOOKUP(G1852,Insumos!G:H,2,FALSE))","v":""}]
[null,null,null,null,null,{"$f":"IF(E1853=\"\",\"\",VLOOKUP(E1853,Insumos!AD:AE,2,FALSE))","v":""},null,{"$f":"IF(G1853=\"\",\"\",VLOOKUP(G1853,Insumos!G:H,2,FALSE))","v":""}]
[null,null,null,null,null,{"$f":"IF(E1854=\"\",\"\",VLOOKUP(E1854,Insumos!AD:AE,2,FALSE))","v":""},null,{"$f":"IF(G1854=\"\",\"\",VLOOKUP(G1854,Insumos!G:H,2,FALSE))","v":""}]
[null,null,null,null,null,{"$f":"IF(E1855=\"\",\"\",VLOOKUP(E1855,Insumos!AD:AE,2,FALSE))","v":""},null,{"$f":"IF(G1855=\"\",\"\",VLOOKUP(G1855,Insumos!G:H,2,FALSE))","v":""}]
[null,null,null,null,null,{"$f":"IF(E1856=\"\",\"\",VLOOKUP(E1856,Insumos!AD:AE,2,FALSE))","v":""},null,{"$f":"IF(G1856=\"\",\"\",VLOOKUP(G1856,Insumos!G:H,2,FALSE))","v":""}]
[null,null,null,null,null,{"$f":"IF(E1857=\"\",\"\",VLOOKUP(E1857,Insumos!AD:AE,2,FALSE))","v":""},null,{"$f":"IF(G1857=\"\",\"\",VLOOKUP(G1857,Insumos!G:H,2,FALSE))","v":""}]
[null,null,null,null,null,{"$f":"IF(E1858=\"\",\"\",VLOOKUP(E1858,Insumos!AD:AE,2,FALSE))","v":""},null,{"$f":"IF(G1858=\"\",\"\",VLOOKUP(G1858,Insumos!G:H,2,FALSE))","v":""}]
[null,null,null,null,null,{"$f":"IF(E1859=\"\",\"\",VLOOKUP(E1859,Insumos!AD:AE,2,FALSE))","v":""},null,{"$f":"IF(G1859=\"\",\"\",VLOOKUP(G1859,Insumos!G:H,2,FALSE))","v":""}]
[null,null,null,null,null,{"$f":"IF(E1860=\"\",\"\",VLOOKUP(E1860,Insumos!AD:AE,2,FALSE))","v":""},null,{"$f":"IF(G1860=\"\",\"\",VLOOKUP(G1860,Insumos!G:H,2,FALSE))","v":""}]
[null,null,null,null,null,{"$f":"IF(E1861=\"\",\"\",VLOOKUP(E1861,Insumos!AD:AE,2,FALSE))","v":""},null,{"$f":"IF(G1861=\"\",\"\",VLOOKUP(G1861,Insumos!G:H,2,FALSE))","v":""}]
[null,null,null,null,null,{"$f":"IF(E1862=\"\",\"\",VLOOKUP(E1862,Insumos!AD:AE,2,FALSE))","v":""},null,{"$f":"IF(G1862=\"\",\"\",VLOOKUP(G1862,Insumos!G:H,2,FALSE))","v":""}]
[null,null,null,null,null,{"$f":"IF(E1863=\"\",\"\",VLOOKUP(E1863,Insumos!AD:AE,2,FALSE))","v":""},null,{"$f":"IF(G1863=\"\",\"\",VLOOKUP(G1863,Insumos!G:H,2,FALSE))","v":""}]
[null,null,null,null,null,{"$f":"IF(E1864=\"\",\"\",VLOOKUP(E1864,Insumos!AD:AE,2,FALSE))","v":""},null,{"$f":"IF(G1864=\"\",\"\",VLOOKUP(G1864,Insumos!G:H,2,FALSE))","v":""}]
[null,null,null,null,null,{"$f":"IF(E1865=\"\",\"\",VLOOKUP(E1865,Insumos!AD:AE,2,FALSE))","v":""},null,{"$f":"IF(G1865=\"\",\"\",VLOOKUP(G1865,Insumos!G:H,2,FALSE))","v":""}]
[null,null,null,null,null,{"$f":"IF(E1866=\"\",\"\",VLOOKUP(E1866,Insumos!AD:AE,2,FALSE))","v":""},null,{"$f":"IF(G1866=\"\",\"\",VLOOKUP(G1866,Insumos!G:H,2,FALSE))","v":""}]
[null,null,null,null,null,{"$f":"IF(E1867=\"\",\"\",VLOOKUP(E1867,Insumos!AD:AE,2,FALSE))","v":""},null,{"$f":"IF(G1867=\"\",\"\",VLOOKUP(G1867,Insumos!G:H,2,FALSE))","v":""}]
[null,null,null,null,null,{"$f":"IF(E1868=\"\",\"\",VLOOKUP(E1868,Insumos!AD:AE,2,FALSE))","v":""},null,{"$f":"IF(G1868=\"\",\"\",VLOOKUP(G1868,Insumos!G:H,2,FALSE))","v":""}]
[null,null,null,null,null,{"$f":"IF(E1869=\"\",\"\",VLOOKUP(E1869,Insumos!AD:AE,2,FALSE))","v":""},null,{"$f":"IF(G1869=\"\",\"\",VLOOKUP(G1869,Insumos!G:H,2,FALSE))","v":""}]
[null,null,null,null,null,{"$f":"IF(E1870=\"\",\"\",VLOOKUP(E1870,Insumos!AD:AE,2,FALSE))","v":""},null,{"$f":"IF(G1870=\"\",\"\",VLOOKUP(G1870,Insumos!G:H,2,FALSE))","v":""}]
[null,null,null,null,null,{"$f":"IF(E1871=\"\",\"\",VLOOKUP(E1871,Insumos!AD:AE,2,FALSE))","v":""},null,{"$f":"IF(G1871=\"\",\"\",VLOOKUP(G1871,Insumos!G:H,2,FALSE))","v":""}]
[null,null,null,null,null,{"$f":"IF(E1872=\"\",\"\",VLOOKUP(E1872,Insumos!AD:AE,2,FALSE))","v":""},null,{"$f":"IF(G1872=\"\",\"\",VLOOKUP(G1872,Insumos!G:H,2,FALSE))","v":""}]
[null,null,null,null,null,{"$f":"IF(E1873=\"\",\"\",VLOOKUP(E1873,Insumos!AD:AE,2,FALSE))","v":""},null,{"$f":"IF(G1873=\"\",\"\",VLOOKUP(G1873,Insumos!G:H,2,FALSE))","v":""}]
[null,null,null,null,null,{"$f":"IF(E1874=\"\",\"\",VLOOKUP(E1874,Insumos!AD:AE,2,FALSE))","v":""},null,{"$f":"IF(G1874=\"\",\"\",VLOOKUP(G1874,Insumos!G:H,2,FALSE))","v":""}]
[null,null,null,null,null,{"$f":"IF(E1875=\"\",\"\",VLOOKUP(E1875,Insumos!AD:AE,2,FALSE))","v":""},null,{"$f":"IF(G1875=\"\",\"\",VLOOKUP(G1875,Insumos!G:H,2,FALSE))","v":""}]
[null,null,null,null,null,{"$f":"IF(E1876=\"\",\"\",VLOOKUP(E1876,Insumos!AD:AE,2,FALSE))","v":""},null,{"$f":"IF(G1876=\"\",\"\",VLOOKUP(G1876,Insumos!G:H,2,FALSE))","v":""}]
[null,null,null,null,null,{"$f":"IF(E1877=\"\",\"\",VLOOKUP(E1877,Insumos!AD:AE,2,FALSE))","v":""},null,{"$f":"IF(G1877=\"\",\"\",VLOOKUP(G1877,Insumos!G:H,2,FALSE))","v":""}]
[null,null,null,null,null,{"$f":"IF(E1878=\"\",\"\",VLOOKUP(E1878,Insumos!AD:AE,2,FALSE))","v":""},null,{"$f":"IF(G1878=\"\",\"\",VLOOKUP(G1878,Insumos!G:H,2,FALSE))","v":""}]
[null,null,null,null,null,{"$f":"IF(E1879=\"\",\"\",VLOOKUP(E1879,Insumos!AD:AE,2,FALSE))","v":""},null,{"$f":"IF(G1879=\"\",\"\",VLOOKUP(G1879,Insumos!G:H,2,FALSE))","v":""}]
[null,null,null,null,null,{"$f":"IF(E1880=\"\",\"\",VLOOKUP(E1880,Insumos!AD:AE,2,FALSE))","v":""},null,{"$f":"IF(G1880=\"\",\"\",VLOOKUP(G1880,Insumos!G:H,2,FALSE))","v":""}]
[null,null,null,null,null,{"$f":"IF(E1881=\"\",\"\",VLOOKUP(E1881,Insumos!AD:AE,2,FALSE))","v":""},null,{"$f":"IF(G1881=\"\",\"\",VLOOKUP(G1881,Insumos!G:H,2,FALSE))","v":""}]
[null,null,null,null,null,{"$f":"IF(E1882=\"\",\"\",VLOOKUP(E1882,Insumos!AD:AE,2,FALSE))","v":""},null,{"$f":"IF(G1882=\"\",\"\",VLOOKUP(G1882,Insumos!G:H,2,FALSE))","v":""}]
[null,null,null,null,null,{"$f":"IF(E1883=\"\",\"\",VLOOKUP(E1883,Insumos!AD:AE,2,FALSE))","v":""},null,{"$f":"IF(G1883=\"\",\"\",VLOOKUP(G1883,Insumos!G:H,2,FALSE))","v":""}]
[null,null,null,null,null,{"$f":"IF(E1884=\"\",\"\",VLOOKUP(E1884,Insumos!AD:AE,2,FALSE))","v":""},null,{"$f":"IF(G1884=\"\",\"\",VLOOKUP(G1884,Insumos!G:H,2,FALSE))","v":""}]
[null,null,null,null,null,{"$f":"IF(E1885=\"\",\"\",VLOOKUP(E1885,Insumos!AD:AE,2,FALSE))","v":""},null,{"$f":"IF(G1885=\"\",\"\",VLOOKUP(G1885,Insumos!G:H,2,FALSE))","v":""}]
[null,null,null,null,null,{"$f":"IF(E1886=\"\",\"\",VLOOKUP(E1886,Insumos!AD:AE,2,FALSE))","v":""},null,{"$f":"IF(G1886=\"\",\"\",VLOOKUP(G1886,Insumos!G:H,2,FALSE))","v":""}]
[null,null,null,null,null,{"$f":"IF(E1887=\"\",\"\",VLOOKUP(E1887,Insumos!AD:AE,2,FALSE))","v":""},null,{"$f":"IF(G1887=\"\",\"\",VLOOKUP(G1887,Insumos!G:H,2,FALSE))","v":""}]
[null,null,null,null,null,{"$f":"IF(E1888=\"\",\"\",VLOOKUP(E1888,Insumos!AD:AE,2,FALSE))","v":""},null,{"$f":"IF(G1888=\"\",\"\",VLOOKUP(G1888,Insumos!G:H,2,FALSE))","v":""}]
[null,null,null,null,null,{"$f":"IF(E1889=\"\",\"\",VLOOKUP(E1889,Insumos!AD:AE,2,FALSE))","v":""},null,{"$f":"IF(G1889=\"\",\"\",VLOOKUP(G1889,Insumos!G:H,2,FALSE))","v":""}]
[null,null,null,null,null,{"$f":"IF(E1890=\"\",\"\",VLOOKUP(E1890,Insumos!AD:AE,2,FALSE))","v":""},null,{"$f":"IF(G1890=\"\",\"\",VLOOKUP(G1890,Insumos!G:H,2,FALSE))","v":""}]
[null,null,null,null,null,{"$f":"IF(E1891=\"\",\"\",VLOOKUP(E1891,Insumos!AD:AE,2,FALSE))","v":""},null,{"$f":"IF(G1891=\"\",\"\",VLOOKUP(G1891,Insumos!G:H,2,FALSE))","v":""}]
[null,null,null,null,null,{"$f":"IF(E1892=\"\",\"\",VLOOKUP(E1892,Insumos!AD:AE,2,FALSE))","v":""},null,{"$f":"IF(G1892=\"\",\"\",VLOOKUP(G1892,Insumos!G:H,2,FALSE))","v":""}]
[null,null,null,null,null,{"$f":"IF(E1893=\"\",\"\",VLOOKUP(E1893,Insumos!AD:AE,2,FALSE))","v":""},null,{"$f":"IF(G1893=\"\",\"\",VLOOKUP(G1893,Insumos!G:H,2,FALSE))","v":""}]
[null,null,null,null,null,{"$f":"IF(E1894=\"\",\"\",VLOOKUP(E1894,Insumos!AD:AE,2,FALSE))","v":""},null,{"$f":"IF(G1894=\"\",\"\",VLOOKUP(G1894,Insumos!G:H,2,FALSE))","v":""}]
[null,null,null,null,null,{"$f":"IF(E1895=\"\",\"\",VLOOKUP(E1895,Insumos!AD:AE,2,FALSE))","v":""},null,{"$f":"IF(G1895=\"\",\"\",VLOOKUP(G1895,Insumos!G:H,2,FALSE))","v":""}]
[null,null,null,null,null,{"$f":"IF(E1896=\"\",\"\",VLOOKUP(E1896,Insumos!AD:AE,2,FALSE))","v":""},null,{"$f":"IF(G1896=\"\",\"\",VLOOKUP(G1896,Insumos!G:H,2,FALSE))","v":""}]
[null,null,null,null,null,{"$f":"IF(E1897=\"\",\"\",VLOOKUP(E1897,Insumos!AD:AE,2,FALSE))","v":""},null,{"$f":"IF(G1897=\"\",\"\",VLOOKUP(G1897,Insumos!G:H,2,FALSE))","v":""}]
[null,null,null,null,null,{"$f":"IF(E1898=\"\",\"\",VLOOKUP(E1898,Insumos!AD:AE,2,FALSE))","v":""},null,{"$f":"IF(G1898=\"\",\"\",VLOOKUP(G1898,Insumos!G:H,2,FALSE))","v":""}]
[null,null,null,null,null,{"$f":"IF(E1899=\"\",\"\",VLOOKUP(E1899,Insumos!AD:AE,2,FALSE))","v":""},null,{"$f":"IF(G1899=\"\",\"\",VLOOKUP(G1899,Insumos!G:H,2,FALSE))","v":""}]
[null,null,null,null,null,{"$f":"IF(E1900=\"\",\"\",VLOOKUP(E1900,Insumos!AD:AE,2,FALSE))","v":""},null,{"$f":"IF(G1900=\"\",\"\",VLOOKUP(G1900,Insumos!G:H,2,FALSE))","v":""}]
[null,null,null,null,null,{"$f":"IF(E1901=\"\",\"\",VLOOKUP(E1901,Insumos!AD:AE,2,FALSE))","v":""},null,{"$f":"IF(G1901=\"\",\"\",VLOOKUP(G1901,Insumos!G:H,2,FALSE))","v":""}]
[null,null,null,null,null,{"$f":"IF(E1902=\"\",\"\",VLOOKUP(E1902,Insumos!AD:AE,2,FALSE))","v":""},null,{"$f":"IF(G1902=\"\",\"\",VLOOKUP(G1902,Insumos!G:H,2,FALSE))","v":""}]
[null,null,null,null,null,{"$f":"IF(E1903=\"\",\"\",VLOOKUP(E1903,Insumos!AD:AE,2,FALSE))","v":""},null,{"$f":"IF(G1903=\"\",\"\",VLOOKUP(G1903,Insumos!G:H,2,FALSE))","v":""}]
[null,null,null,null,null,{"$f":"IF(E1904=\"\",\"\",VLOOKUP(E1904,Insumos!AD:AE,2,FALSE))","v":""},null,{"$f":"IF(G1904=\"\",\"\",VLOOKUP(G1904,Insumos!G:H,2,FALSE))","v":""}]
[null,null,null,null,null,{"$f":"IF(E1905=\"\",\"\",VLOOKUP(E1905,Insumos!AD:AE,2,FALSE))","v":""},null,{"$f":"IF(G1905=\"\",\"\",VLOOKUP(G1905,Insumos!G:H,2,FALSE))","v":""}]
[null,null,null,null,null,{"$f":"IF(E1906=\"\",\"\",VLOOKUP(E1906,Insumos!AD:AE,2,FALSE))","v":""},null,{"$f":"IF(G1906=\"\",\"\",VLOOKUP(G1906,Insumos!G:H,2,FALSE))","v":""}]
[null,null,null,null,null,{"$f":"IF(E1907=\"\",\"\",VLOOKUP(E1907,Insumos!AD:AE,2,FALSE))","v":""},null,{"$f":"IF(G1907=\"\",\"\",VLOOKUP(G1907,Insumos!G:H,2,FALSE))","v":""}]
[null,null,null,null,null,{"$f":"IF(E1908=\"\",\"\",VLOOKUP(E1908,Insumos!AD:AE,2,FALSE))","v":""},null,{"$f":"IF(G1908=\"\",\"\",VLOOKUP(G1908,Insumos!G:H,2,FALSE))","v":""}]
[null,null,null,null,null,{"$f":"IF(E1909=\"\",\"\",VLOOKUP(E1909,Insumos!AD:AE,2,FALSE))","v":""},null,{"$f":"IF(G1909=\"\",\"\",VLOOKUP(G1909,Insumos!G:H,2,FALSE))","v":""}]
[null,null,null,null,null,{"$f":"IF(E1910=\"\",\"\",VLOOKUP(E1910,Insumos!AD:AE,2,FALSE))","v":""},null,{"$f":"IF(G1910=\"\",\"\",VLOOKUP(G1910,Insumos!G:H,2,FALSE))","v":""}]
[null,null,null,null,null,{"$f":"IF(E1911=\"\",\"\",VLOOKUP(E1911,Insumos!AD:AE,2,FALSE))","v":""},null,{"$f":"IF(G1911=\"\",\"\",VLOOKUP(G1911,Insumos!G:H,2,FALSE))","v":""}]
[null,null,null,null,null,{"$f":"IF(E1912=\"\",\"\",VLOOKUP(E1912,Insumos!AD:AE,2,FALSE))","v":""},null,{"$f":"IF(G1912=\"\",\"\",VLOOKUP(G1912,Insumos!G:H,2,FALSE))","v":""}]
[null,null,null,null,null,{"$f":"IF(E1913=\"\",\"\",VLOOKUP(E1913,Insumos!AD:AE,2,FALSE))","v":""},null,{"$f":"IF(G1913=\"\",\"\",VLOOKUP(G1913,Insumos!G:H,2,FALSE))","v":""}]
[null,null,null,null,null,{"$f":"IF(E1914=\"\",\"\",VLOOKUP(E1914,Insumos!AD:AE,2,FALSE))","v":""},null,{"$f":"IF(G1914=\"\",\"\",VLOOKUP(G1914,Insumos!G:H,2,FALSE))","v":""}]
[null,null,null,null,null,{"$f":"IF(E1915=\"\",\"\",VLOOKUP(E1915,Insumos!AD:AE,2,FALSE))","v":""},null,{"$f":"IF(G1915=\"\",\"\",VLOOKUP(G1915,Insumos!G:H,2,FALSE))","v":""}]
[null,null,null,null,null,{"$f":"IF(E1916=\"\",\"\",VLOOKUP(E1916,Insumos!AD:AE,2,FALSE))","v":""},null,{"$f":"IF(G1916=\"\",\"\",VLOOKUP(G1916,Insumos!G:H,2,FALSE))","v":""}]
[null,null,null,null,null,{"$f":"IF(E1917=\"\",\"\",VLOOKUP(E1917,Insumos!AD:AE,2,FALSE))","v":""},null,{"$f":"IF(G1917=\"\",\"\",VLOOKUP(G1917,Insumos!G:H,2,FALSE))","v":""}]
[null,null,null,null,null,{"$f":"IF(E1918=\"\",\"\",VLOOKUP(E1918,Insumos!AD:AE,2,FALSE))","v":""},null,{"$f":"IF(G1918=\"\",\"\",VLOOKUP(G1918,Insumos!G:H,2,FALSE))","v":""}]
[null,null,null,null,null,{"$f":"IF(E1919=\"\",\"\",VLOOKUP(E1919,Insumos!AD:AE,2,FALSE))","v":""},null,{"$f":"IF(G1919=\"\",\"\",VLOOKUP(G1919,Insumos!G:H,2,FALSE))","v":""}]
[null,null,null,null,null,{"$f":"IF(E1920=\"\",\"\",VLOOKUP(E1920,Insumos!AD:AE,2,FALSE))","v":""},null,{"$f":"IF(G1920=\"\",\"\",VLOOKUP(G1920,Insumos!G:H,2,FALSE))","v":""}]
[null,null,null,null,null,{"$f":"IF(E1921=\"\",\"\",VLOOKUP(E1921,Insumos!AD:AE,2,FALSE))","v":""},null,{"$f":"IF(G1921=\"\",\"\",VLOOKUP(G1921,Insumos!G:H,2,FALSE))","v":""}]
[null,null,null,null,null,{"$f":"IF(E1922=\"\",\"\",VLOOKUP(E1922,Insumos!AD:AE,2,FALSE))","v":""},null,{"$f":"IF(G1922=\"\",\"\",VLOOKUP(G1922,Insumos!G:H,2,FALSE))","v":""}]
[null,null,null,null,null,{"$f":"IF(E1923=\"\",\"\",VLOOKUP(E1923,Insumos!AD:AE,2,FALSE))","v":""},null,{"$f":"IF(G1923=\"\",\"\",VLOOKUP(G1923,Insumos!G:H,2,FALSE))","v":""}]
[null,null,null,null,null,{"$f":"IF(E1924=\"\",\"\",VLOOKUP(E1924,Insumos!AD:AE,2,FALSE))","v":""},null,{"$f":"IF(G1924=\"\",\"\",VLOOKUP(G1924,Insumos!G:H,2,FALSE))","v":""}]
[null,null,null,null,null,{"$f":"IF(E1925=\"\",\"\",VLOOKUP(E1925,Insumos!AD:AE,2,FALSE))","v":""},null,{"$f":"IF(G1925=\"\",\"\",VLOOKUP(G1925,Insumos!G:H,2,FALSE))","v":""}]
[null,null,null,null,null,{"$f":"IF(E1926=\"\",\"\",VLOOKUP(E1926,Insumos!AD:AE,2,FALSE))","v":""},null,{"$f":"IF(G1926=\"\",\"\",VLOOKUP(G1926,Insumos!G:H,2,FALSE))","v":""}]
[null,null,null,null,null,{"$f":"IF(E1927=\"\",\"\",VLOOKUP(E1927,Insumos!AD:AE,2,FALSE))","v":""},null,{"$f":"IF(G1927=\"\",\"\",VLOOKUP(G1927,Insumos!G:H,2,FALSE))","v":""}]
[null,null,null,null,null,{"$f":"IF(E1928=\"\",\"\",VLOOKUP(E1928,Insumos!AD:AE,2,FALSE))","v":""},null,{"$f":"IF(G1928=\"\",\"\",VLOOKUP(G1928,Insumos!G:H,2,FALSE))","v":""}]
[null,null,null,null,null,{"$f":"IF(E1929=\"\",\"\",VLOOKUP(E1929,Insumos!AD:AE,2,FALSE))","v":""},null,{"$f":"IF(G1929=\"\",\"\",VLOOKUP(G1929,Insumos!G:H,2,FALSE))","v":""}]
[null,null,null,null,null,{"$f":"IF(E1930=\"\",\"\",VLOOKUP(E1930,Insumos!AD:AE,2,FALSE))","v":""},null,{"$f":"IF(G1930=\"\",\"\",VLOOKUP(G1930,Insumos!G:H,2,FALSE))","v":""}]
[null,null,null,null,null,{"$f":"IF(E1931=\"\",\"\",VLOOKUP(E1931,Insumos!AD:AE,2,FALSE))","v":""},null,{"$f":"IF(G1931=\"\",\"\",VLOOKUP(G1931,Insumos!G:H,2,FALSE))","v":""}]
[null,null,null,null,null,{"$f":"IF(E1932=\"\",\"\",VLOOKUP(E1932,Insumos!AD:AE,2,FALSE))","v":""},null,{"$f":"IF(G1932=\"\",\"\",VLOOKUP(G1932,Insumos!G:H,2,FALSE))","v":""}]
[null,null,null,null,null,{"$f":"IF(E1933=\"\",\"\",VLOOKUP(E1933,Insumos!AD:AE,2,FALSE))","v":""},null,{"$f":"IF(G1933=\"\",\"\",VLOOKUP(G1933,Insumos!G:H,2,FALSE))","v":""}]
[null,null,null,null,null,{"$f":"IF(E1934=\"\",\"\",VLOOKUP(E1934,Insumos!AD:AE,2,FALSE))","v":""},null,{"$f":"IF(G1934=\"\",\"\",VLOOKUP(G1934,Insumos!G:H,2,FALSE))","v":""}]
[null,null,null,null,null,{"$f":"IF(E1935=\"\",\"\",VLOOKUP(E1935,Insumos!AD:AE,2,FALSE))","v":""},null,{"$f":"IF(G1935=\"\",\"\",VLOOKUP(G1935,Insumos!G:H,2,FALSE))","v":""}]
[null,null,null,null,null,{"$f":"IF(E1936=\"\",\"\",VLOOKUP(E1936,Insumos!AD:AE,2,FALSE))","v":""},null,{"$f":"IF(G1936=\"\",\"\",VLOOKUP(G1936,Insumos!G:H,2,FALSE))","v":""}]
[null,null,null,null,null,{"$f":"IF(E1937=\"\",\"\",VLOOKUP(E1937,Insumos!AD:AE,2,FALSE))","v":""},null,{"$f":"IF(G1937=\"\",\"\",VLOOKUP(G1937,Insumos!G:H,2,FALSE))","v":""}]
[null,null,null,null,null,{"$f":"IF(E1938=\"\",\"\",VLOOKUP(E1938,Insumos!AD:AE,2,FALSE))","v":""},null,{"$f":"IF(G1938=\"\",\"\",VLOOKUP(G1938,Insumos!G:H,2,FALSE))","v":""}]
[null,null,null,null,null,{"$f":"IF(E1939=\"\",\"\",VLOOKUP(E1939,Insumos!AD:AE,2,FALSE))","v":""},null,{"$f":"IF(G1939=\"\",\"\",VLOOKUP(G1939,Insumos!G:H,2,FALSE))","v":""}]
[null,null,null,null,null,{"$f":"IF(E1940=\"\",\"\",VLOOKUP(E1940,Insumos!AD:AE,2,FALSE))","v":""},null,{"$f":"IF(G1940=\"\",\"\",VLOOKUP(G1940,Insumos!G:H,2,FALSE))","v":""}]
[null,null,null,null,null,{"$f":"IF(E1941=\"\",\"\",VLOOKUP(E1941,Insumos!AD:AE,2,FALSE))","v":""},null,{"$f":"IF(G1941=\"\",\"\",VLOOKUP(G1941,Insumos!G:H,2,FALSE))","v":""}]
[null,null,null,null,null,{"$f":"IF(E1942=\"\",\"\",VLOOKUP(E1942,Insumos!AD:AE,2,FALSE))","v":""},null,{"$f":"IF(G1942=\"\",\"\",VLOOKUP(G1942,Insumos!G:H,2,FALSE))","v":""}]
[null,null,null,null,null,{"$f":"IF(E1943=\"\",\"\",VLOOKUP(E1943,Insumos!AD:AE,2,FALSE))","v":""},null,{"$f":"IF(G1943=\"\",\"\",VLOOKUP(G1943,Insumos!G:H,2,FALSE))","v":""}]
[null,null,null,null,null,{"$f":"IF(E1944=\"\",\"\",VLOOKUP(E1944,Insumos!AD:AE,2,FALSE))","v":""},null,{"$f":"IF(G1944=\"\",\"\",VLOOKUP(G1944,Insumos!G:H,2,FALSE))","v":""}]
[null,null,null,null,null,{"$f":"IF(E1945=\"\",\"\",VLOOKUP(E1945,Insumos!AD:AE,2,FALSE))","v":""},null,{"$f":"IF(G1945=\"\",\"\",VLOOKUP(G1945,Insumos!G:H,2,FALSE))","v":""}]
[null,null,null,null,null,{"$f":"IF(E1946=\"\",\"\",VLOOKUP(E1946,Insumos!AD:AE,2,FALSE))","v":""},null,{"$f":"IF(G1946=\"\",\"\",VLOOKUP(G1946,Insumos!G:H,2,FALSE))","v":""}]
[null,null,null,null,null,{"$f":"IF(E1947=\"\",\"\",VLOOKUP(E1947,Insumos!AD:AE,2,FALSE))","v":""},null,{"$f":"IF(G1947=\"\",\"\",VLOOKUP(G1947,Insumos!G:H,2,FALSE))","v":""}]
[null,null,null,null,null,{"$f":"IF(E1948=\"\",\"\",VLOOKUP(E1948,Insumos!AD:AE,2,FALSE))","v":""},null,{"$f":"IF(G1948=\"\",\"\",VLOOKUP(G1948,Insumos!G:H,2,FALSE))","v":""}]
[null,null,null,null,null,{"$f":"IF(E1949=\"\",\"\",VLOOKUP(E1949,Insumos!AD:AE,2,FALSE))","v":""},null,{"$f":"IF(G1949=\"\",\"\",VLOOKUP(G1949,Insumos!G:H,2,FALSE))","v":""}]
[null,null,null,null,null,{"$f":"IF(E1950=\"\",\"\",VLOOKUP(E1950,Insumos!AD:AE,2,FALSE))","v":""},null,{"$f":"IF(G1950=\"\",\"\",VLOOKUP(G1950,Insumos!G:H,2,FALSE))","v":""}]
[null,null,null,null,null,{"$f":"IF(E1951=\"\",\"\",VLOOKUP(E1951,Insumos!AD:AE,2,FALSE))","v":""},null,{"$f":"IF(G1951=\"\",\"\",VLOOKUP(G1951,Insumos!G:H,2,FALSE))","v":""}]
[null,null,null,null,null,{"$f":"IF(E1952=\"\",\"\",VLOOKUP(E1952,Insumos!AD:AE,2,FALSE))","v":""},null,{"$f":"IF(G1952=\"\",\"\",VLOOKUP(G1952,Insumos!G:H,2,FALSE))","v":""}]
[null,null,null,null,null,{"$f":"IF(E1953=\"\",\"\",VLOOKUP(E1953,Insumos!AD:AE,2,FALSE))","v":""},null,{"$f":"IF(G1953=\"\",\"\",VLOOKUP(G1953,Insumos!G:H,2,FALSE))","v":""}]
[null,null,null,null,null,{"$f":"IF(E1954=\"\",\"\",VLOOKUP(E1954,Insumos!AD:AE,2,FALSE))","v":""},null,{"$f":"IF(G1954=\"\",\"\",VLOOKUP(G1954,Insumos!G:H,2,FALSE))","v":""}]
[null,null,null,null,null,{"$f":"IF(E1955=\"\",\"\",VLOOKUP(E1955,Insumos!AD:AE,2,FALSE))","v":""},null,{"$f":"IF(G1955=\"\",\"\",VLOOKUP(G1955,Insumos!G:H,2,FALSE))","v":""}]
[null,null,null,null,null,{"$f":"IF(E1956=\"\",\"\",VLOOKUP(E1956,Insumos!AD:AE,2,FALSE))","v":""},null,{"$f":"IF(G1956=\"\",\"\",VLOOKUP(G1956,Insumos!G:H,2,FALSE))","v":""}]
[null,null,null,null,null,{"$f":"IF(E1957=\"\",\"\",VLOOKUP(E1957,Insumos!AD:AE,2,FALSE))","v":""},null,{"$f":"IF(G1957=\"\",\"\",VLOOKUP(G1957,Insumos!G:H,2,FALSE))","v":""}]
[null,null,null,null,null,{"$f":"IF(E1958=\"\",\"\",VLOOKUP(E1958,Insumos!AD:AE,2,FALSE))","v":""},null,{"$f":"IF(G1958=\"\",\"\",VLOOKUP(G1958,Insumos!G:H,2,FALSE))","v":""}]
[null,null,null,null,null,{"$f":"IF(E1959=\"\",\"\",VLOOKUP(E1959,Insumos!AD:AE,2,FALSE))","v":""},null,{"$f":"IF(G1959=\"\",\"\",VLOOKUP(G1959,Insumos!G:H,2,FALSE))","v":""}]
[null,null,null,null,null,{"$f":"IF(E1960=\"\",\"\",VLOOKUP(E1960,Insumos!AD:AE,2,FALSE))","v":""},null,{"$f":"IF(G1960=\"\",\"\",VLOOKUP(G1960,Insumos!G:H,2,FALSE))","v":""}]
[null,null,null,null,null,{"$f":"IF(E1961=\"\",\"\",VLOOKUP(E1961,Insumos!AD:AE,2,FALSE))","v":""},null,{"$f":"IF(G1961=\"\",\"\",VLOOKUP(G1961,Insumos!G:H,2,FALSE))","v":""}]
[null,null,null,null,null,{"$f":"IF(E1962=\"\",\"\",VLOOKUP(E1962,Insumos!AD:AE,2,FALSE))","v":""},null,{"$f":"IF(G1962=\"\",\"\",VLOOKUP(G1962,Insumos!G:H,2,FALSE))","v":""}]
[null,null,null,null,null,{"$f":"IF(E1963=\"\",\"\",VLOOKUP(E1963,Insumos!AD:AE,2,FALSE))","v":""},null,{"$f":"IF(G1963=\"\",\"\",VLOOKUP(G1963,Insumos!G:H,2,FALSE))","v":""}]
[null,null,null,null,null,{"$f":"IF(E1964=\"\",\"\",VLOOKUP(E1964,Insumos!AD:AE,2,FALSE))","v":""},null,{"$f":"IF(G1964=\"\",\"\",VLOOKUP(G1964,Insumos!G:H,2,FALSE))","v":""}]
[null,null,null,null,null,{"$f":"IF(E1965=\"\",\"\",VLOOKUP(E1965,Insumos!AD:AE,2,FALSE))","v":""},null,{"$f":"IF(G1965=\"\",\"\",VLOOKUP(G1965,Insumos!G:H,2,FALSE))","v":""}]
[null,null,null,null,null,{"$f":"IF(E1966=\"\",\"\",VLOOKUP(E1966,Insumos!AD:AE,2,FALSE))","v":""},null,{"$f":"IF(G1966=\"\",\"\",VLOOKUP(G1966,Insumos!G:H,2,FALSE))","v":""}]
[null,null,null,null,null,{"$f":"IF(E1967=\"\",\"\",VLOOKUP(E1967,Insumos!AD:AE,2,FALSE))","v":""},null,{"$f":"IF(G1967=\"\",\"\",VLOOKUP(G1967,Insumos!G:H,2,FALSE))","v":""}]
[null,null,null,null,null,{"$f":"IF(E1968=\"\",\"\",VLOOKUP(E1968,Insumos!AD:AE,2,FALSE))","v":""},null,{"$f":"IF(G1968=\"\",\"\",VLOOKUP(G1968,Insumos!G:H,2,FALSE))","v":""}]
[null,null,null,null,null,{"$f":"IF(E1969=\"\",\"\",VLOOKUP(E1969,Insumos!AD:AE,2,FALSE))","v":""},null,{"$f":"IF(G1969=\"\",\"\",VLOOKUP(G1969,Insumos!G:H,2,FALSE))","v":""}]
[null,null,null,null,null,{"$f":"IF(E1970=\"\",\"\",VLOOKUP(E1970,Insumos!AD:AE,2,FALSE))","v":""},null,{"$f":"IF(G1970=\"\",\"\",VLOOKUP(G1970,Insumos!G:H,2,FALSE))","v":""}]
[null,null,null,null,null,{"$f":"IF(E1971=\"\",\"\",VLOOKUP(E1971,Insumos!AD:AE,2,FALSE))","v":""},null,{"$f":"IF(G1971=\"\",\"\",VLOOKUP(G1971,Insumos!G:H,2,FALSE))","v":""}]
[null,null,null,null,null,{"$f":"IF(E1972=\"\",\"\",VLOOKUP(E1972,Insumos!AD:AE,2,FALSE))","v":""},null,{"$f":"IF(G1972=\"\",\"\",VLOOKUP(G1972,Insumos!G:H,2,FALSE))","v":""}]
[null,null,null,null,null,{"$f":"IF(E1973=\"\",\"\",VLOOKUP(E1973,Insumos!AD:AE,2,FALSE))","v":""},null,{"$f":"IF(G1973=\"\",\"\",VLOOKUP(G1973,Insumos!G:H,2,FALSE))","v":""}]
[null,null,null,null,null,{"$f":"IF(E1974=\"\",\"\",VLOOKUP(E1974,Insumos!AD:AE,2,FALSE))","v":""},null,{"$f":"IF(G1974=\"\",\"\",VLOOKUP(G1974,Insumos!G:H,2,FALSE))","v":""}]
[null,null,null,null,null,{"$f":"IF(E1975=\"\",\"\",VLOOKUP(E1975,Insumos!AD:AE,2,FALSE))","v":""},null,{"$f":"IF(G1975=\"\",\"\",VLOOKUP(G1975,Insumos!G:H,2,FALSE))","v":""}]
[null,null,null,null,null,{"$f":"IF(E1976=\"\",\"\",VLOOKUP(E1976,Insumos!AD:AE,2,FALSE))","v":""},null,{"$f":"IF(G1976=\"\",\"\",VLOOKUP(G1976,Insumos!G:H,2,FALSE))","v":""}]
[null,null,null,null,null,{"$f":"IF(E1977=\"\",\"\",VLOOKUP(E1977,Insumos!AD:AE,2,FALSE))","v":""},null,{"$f":"IF(G1977=\"\",\"\",VLOOKUP(G1977,Insumos!G:H,2,FALSE))","v":""}]
[null,null,null,null,null,{"$f":"IF(E1978=\"\",\"\",VLOOKUP(E1978,Insumos!AD:AE,2,FALSE))","v":""},null,{"$f":"IF(G1978=\"\",\"\",VLOOKUP(G1978,Insumos!G:H,2,FALSE))","v":""}]
[null,null,null,null,null,{"$f":"IF(E1979=\"\",\"\",VLOOKUP(E1979,Insumos!AD:AE,2,FALSE))","v":""},null,{"$f":"IF(G1979=\"\",\"\",VLOOKUP(G1979,Insumos!G:H,2,FALSE))","v":""}]
[null,null,null,null,null,{"$f":"IF(E1980=\"\",\"\",VLOOKUP(E1980,Insumos!AD:AE,2,FALSE))","v":""},null,{"$f":"IF(G1980=\"\",\"\",VLOOKUP(G1980,Insumos!G:H,2,FALSE))","v":""}]
[null,null,null,null,null,{"$f":"IF(E1981=\"\",\"\",VLOOKUP(E1981,Insumos!AD:AE,2,FALSE))","v":""},null,{"$f":"IF(G1981=\"\",\"\",VLOOKUP(G1981,Insumos!G:H,2,FALSE))","v":""}]
[null,null,null,null,null,{"$f":"IF(E1982=\"\",\"\",VLOOKUP(E1982,Insumos!AD:AE,2,FALSE))","v":""},null,{"$f":"IF(G1982=\"\",\"\",VLOOKUP(G1982,Insumos!G:H,2,FALSE))","v":""}]
[null,null,null,null,null,{"$f":"IF(E1983=\"\",\"\",VLOOKUP(E1983,Insumos!AD:AE,2,FALSE))","v":""},null,{"$f":"IF(G1983=\"\",\"\",VLOOKUP(G1983,Insumos!G:H,2,FALSE))","v":""}]
[null,null,null,null,null,{"$f":"IF(E1984=\"\",\"\",VLOOKUP(E1984,Insumos!AD:AE,2,FALSE))","v":""},null,{"$f":"IF(G1984=\"\",\"\",VLOOKUP(G1984,Insumos!G:H,2,FALSE))","v":""}]
[null,null,null,null,null,{"$f":"IF(E1985=\"\",\"\",VLOOKUP(E1985,Insumos!AD:AE,2,FALSE))","v":""},null,{"$f":"IF(G1985=\"\",\"\",VLOOKUP(G1985,Insumos!G:H,2,FALSE))","v":""}]
[null,null,null,null,null,{"$f":"IF(E1986=\"\",\"\",VLOOKUP(E1986,Insumos!AD:AE,2,FALSE))","v":""},null,{"$f":"IF(G1986=\"\",\"\",VLOOKUP(G1986,Insumos!G:H,2,FALSE))","v":""}]
[null,null,null,null,null,{"$f":"IF(E1987=\"\",\"\",VLOOKUP(E1987,Insumos!AD:AE,2,FALSE))","v":""},null,{"$f":"IF(G1987=\"\",\"\",VLOOKUP(G1987,Insumos!G:H,2,FALSE))","v":""}]
[null,null,null,null,null,{"$f":"IF(E1988=\"\",\"\",VLOOKUP(E1988,Insumos!AD:AE,2,FALSE))","v":""},null,{"$f":"IF(G1988=\"\",\"\",VLOOKUP(G1988,Insumos!G:H,2,FALSE))","v":""}]
[null,null,null,null,null,{"$f":"IF(E1989=\"\",\"\",VLOOKUP(E1989,Insumos!AD:AE,2,FALSE))","v":""},null,{"$f":"IF(G1989=\"\",\"\",VLOOKUP(G1989,Insumos!G:H,2,FALSE))","v":""}]
[null,null,null,null,null,{"$f":"IF(E1990=\"\",\"\",VLOOKUP(E1990,Insumos!AD:AE,2,FALSE))","v":""},null,{"$f":"IF(G1990=\"\",\"\",VLOOKUP(G1990,Insumos!G:H,2,FALSE))","v":""}]
[null,null,null,null,null,{"$f":"IF(E1991=\"\",\"\",VLOOKUP(E1991,Insumos!AD:AE,2,FALSE))","v":""},null,{"$f":"IF(G1991=\"\",\"\",VLOOKUP(G1991,Insumos!G:H,2,FALSE))","v":""}]
[null,null,null,null,null,{"$f":"IF(E1992=\"\",\"\",VLOOKUP(E1992,Insumos!AD:AE,2,FALSE))","v":""},null,{"$f":"IF(G1992=\"\",\"\",VLOOKUP(G1992,Insumos!G:H,2,FALSE))","v":""}]
[null,null,null,null,null,{"$f":"IF(E1993=\"\",\"\",VLOOKUP(E1993,Insumos!AD:AE,2,FALSE))","v":""},null,{"$f":"IF(G1993=\"\",\"\",VLOOKUP(G1993,Insumos!G:H,2,FALSE))","v":""}]
[null,null,null,null,null,{"$f":"IF(E1994=\"\",\"\",VLOOKUP(E1994,Insumos!AD:AE,2,FALSE))","v":""},null,{"$f":"IF(G1994=\"\",\"\",VLOOKUP(G1994,Insumos!G:H,2,FALSE))","v":""}]
[null,null,null,null,null,{"$f":"IF(E1995=\"\",\"\",VLOOKUP(E1995,Insumos!AD:AE,2,FALSE))","v":""},null,{"$f":"IF(G1995=\"\",\"\",VLOOKUP(G1995,Insumos!G:H,2,FALSE))","v":""}]
[null,null,null,null,null,{"$f":"IF(E1996=\"\",\"\",VLOOKUP(E1996,Insumos!AD:AE,2,FALSE))","v":""},null,{"$f":"IF(G1996=\"\",\"\",VLOOKUP(G1996,Insumos!G:H,2,FALSE))","v":""}]
[null,null,null,null,null,{"$f":"IF(E1997=\"\",\"\",VLOOKUP(E1997,Insumos!AD:AE,2,FALSE))","v":""},null,{"$f":"IF(G1997=\"\",\"\",VLOOKUP(G1997,Insumos!G:H,2,FALSE))","v":""}]
[null,null,null,null,null,{"$f":"IF(E1998=\"\",\"\",VLOOKUP(E1998,Insumos!AD:AE,2,FALSE))","v":""},null,{"$f":"IF(G1998=\"\",\"\",VLOOKUP(G1998,Insumos!G:H,2,FALSE))","v":""}]
[null,null,null,null,null,{"$f":"IF(E1999=\"\",\"\",VLOOKUP(E1999,Insumos!AD:AE,2,FALSE))","v":""},null,{"$f":"IF(G1999=\"\",\"\",VLOOKUP(G1999,Insumos!G:H,2,FALSE))","v":""}]
[null,null,null,null,null,{"$f":"IF(E2000=\"\",\"\",VLOOKUP(E2000,Insumos!AD:AE,2,FALSE))","v":""},null,{"$f":"IF(G2000=\"\",\"\",VLOOKUP(G2000,Insumos!G:H,2,FALSE))","v":""}]
[null,null,null,null,null,{"$f":"IF(E2001=\"\",\"\",VLOOKUP(E2001,Insumos!AD:AE,2,FALSE))","v":""},null,{"$f":"IF(G2001=\"\",\"\",VLOOKUP(G2001,Insumos!G:H,2,FALSE))","v":""}]
[null,null,null,null,null,{"$f":"IF(E2002=\"\",\"\",VLOOKUP(E2002,Insumos!AD:AE,2,FALSE))","v":""},null,{"$f":"IF(G2002=\"\",\"\",VLOOKUP(G2002,Insumos!G:H,2,FALSE))","v":""}]
[null,null,null,null,null,{"$f":"IF(E2003=\"\",\"\",VLOOKUP(E2003,Insumos!AD:AE,2,FALSE))","v":""},null,{"$f":"IF(G2003=\"\",\"\",VLOOKUP(G2003,Insumos!G:H,2,FALSE))","v":""}]
[null,null,null,null,null,{"$f":"IF(E2004=\"\",\"\",VLOOKUP(E2004,Insumos!AD:AE,2,FALSE))","v":""},null,{"$f":"IF(G2004=\"\",\"\",VLOOKUP(G2004,Insumos!G:H,2,FALSE))","v":""}]
[null,null,null,null,null,{"$f":"IF(E2005=\"\",\"\",VLOOKUP(E2005,Insumos!AD:AE,2,FALSE))","v":""},null,{"$f":"IF(G2005=\"\",\"\",VLOOKUP(G2005,Insumos!G:H,2,FALSE))","v":""}]
[null,null,null,null,null,{"$f":"IF(E2006=\"\",\"\",VLOOKUP(E2006,Insumos!AD:AE,2,FALSE))","v":""},null,{"$f":"IF(G2006=\"\",\"\",VLOOKUP(G2006,Insumos!G:H,2,FALSE))","v":""}]
[null,null,null,null,null,{"$f":"IF(E2007=\"\",\"\",VLOOKUP(E2007,Insumos!AD:AE,2,FALSE))","v":""},null,{"$f":"IF(G2007=\"\",\"\",VLOOKUP(G2007,Insumos!G:H,2,FALSE))","v":""}]
[null,null,null,null,null,{"$f":"IF(E2008=\"\",\"\",VLOOKUP(E2008,Insumos!AD:AE,2,FALSE))","v":""},null,{"$f":"IF(G2008=\"\",\"\",VLOOKUP(G2008,Insumos!G:H,2,FALSE))","v":""}]
[null,null,null,null,null,{"$f":"IF(E2009=\"\",\"\",VLOOKUP(E2009,Insumos!AD:AE,2,FALSE))","v":""},null,{"$f":"IF(G2009=\"\",\"\",VLOOKUP(G2009,Insumos!G:H,2,FALSE))","v":""}]
[null,null,null,null,null,{"$f":"IF(E2010=\"\",\"\",VLOOKUP(E2010,Insumos!AD:AE,2,FALSE))","v":""},null,{"$f":"IF(G2010=\"\",\"\",VLOOKUP(G2010,Insumos!G:H,2,FALSE))","v":""}]
[null,null,null,null,null,{"$f":"IF(E2011=\"\",\"\",VLOOKUP(E2011,Insumos!AD:AE,2,FALSE))","v":""},null,{"$f":"IF(G2011=\"\",\"\",VLOOKUP(G2011,Insumos!G:H,2,FALSE))","v":""}]
[null,null,null,null,null,{"$f":"IF(E2012=\"\",\"\",VLOOKUP(E2012,Insumos!AD:AE,2,FALSE))","v":""},null,{"$f":"IF(G2012=\"\",\"\",VLOOKUP(G2012,Insumos!G:H,2,FALSE))","v":""}]
[null,null,null,null,null,{"$f":"IF(E2013=\"\",\"\",VLOOKUP(E2013,Insumos!AD:AE,2,FALSE))","v":""},null,{"$f":"IF(G2013=\"\",\"\",VLOOKUP(G2013,Insumos!G:H,2,FALSE))","v":""}]
[null,null,null,null,null,{"$f":"IF(E2014=\"\",\"\",VLOOKUP(E2014,Insumos!AD:AE,2,FALSE))","v":""},null,{"$f":"IF(G2014=\"\",\"\",VLOOKUP(G2014,Insumos!G:H,2,FALSE))","v":""}]
[null,null,null,null,null,{"$f":"IF(E2015=\"\",\"\",VLOOKUP(E2015,Insumos!AD:AE,2,FALSE))","v":""},null,{"$f":"IF(G2015=\"\",\"\",VLOOKUP(G2015,Insumos!G:H,2,FALSE))","v":""}]
[null,null,null,null,null,{"$f":"IF(E2016=\"\",\"\",VLOOKUP(E2016,Insumos!AD:AE,2,FALSE))","v":""},null,{"$f":"IF(G2016=\"\",\"\",VLOOKUP(G2016,Insumos!G:H,2,FALSE))","v":""}]
[null,null,null,null,null,{"$f":"IF(E2017=\"\",\"\",VLOOKUP(E2017,Insumos!AD:AE,2,FALSE))","v":""},null,{"$f":"IF(G2017=\"\",\"\",VLOOKUP(G2017,Insumos!G:H,2,FALSE))","v":""}]
[null,null,null,null,null,{"$f":"IF(E2018=\"\",\"\",VLOOKUP(E2018,Insumos!AD:AE,2,FALSE))","v":""},null,{"$f":"IF(G2018=\"\",\"\",VLOOKUP(G2018,Insumos!G:H,2,FALSE))","v":""}]
[null,null,null,null,null,{"$f":"IF(E2019=\"\",\"\",VLOOKUP(E2019,Insumos!AD:AE,2,FALSE))","v":""},null,{"$f":"IF(G2019=\"\",\"\",VLOOKUP(G2019,Insumos!G:H,2,FALSE))","v":""}]
[null,null,null,null,null,{"$f":"IF(E2020=\"\",\"\",VLOOKUP(E2020,Insumos!AD:AE,2,FALSE))","v":""},null,{"$f":"IF(G2020=\"\",\"\",VLOOKUP(G2020,Insumos!G:H,2,FALSE))","v":""}]
[null,null,null,null,null,{"$f":"IF(E2021=\"\",\"\",VLOOKUP(E2021,Insumos!AD:AE,2,FALSE))","v":""},null,{"$f":"IF(G2021=\"\",\"\",VLOOKUP(G2021,Insumos!G:H,2,FALSE))","v":""}]
[null,null,null,null,null,{"$f":"IF(E2022=\"\",\"\",VLOOKUP(E2022,Insumos!AD:AE,2,FALSE))","v":""},null,{"$f":"IF(G2022=\"\",\"\",VLOOKUP(G2022,Insumos!G:H,2,FALSE))","v":""}]
[null,null,null,null,null,{"$f":"IF(E2023=\"\",\"\",VLOOKUP(E2023,Insumos!AD:AE,2,FALSE))","v":""},null,{"$f":"IF(G2023=\"\",\"\",VLOOKUP(G2023,Insumos!G:H,2,FALSE))","v":""}]
[null,null,null,null,null,{"$f":"IF(E2024=\"\",\"\",VLOOKUP(E2024,Insumos!AD:AE,2,FALSE))","v":""},null,{"$f":"IF(G2024=\"\",\"\",VLOOKUP(G2024,Insumos!G:H,2,FALSE))","v":""}]
[null,null,null,null,null,{"$f":"IF(E2025=\"\",\"\",VLOOKUP(E2025,Insumos!AD:AE,2,FALSE))","v":""},null,{"$f":"IF(G2025=\"\",\"\",VLOOKUP(G2025,Insumos!G:H,2,FALSE))","v":""}]
[null,null,null,null,null,{"$f":"IF(E2026=\"\",\"\",VLOOKUP(E2026,Insumos!AD:AE,2,FALSE))","v":""},null,{"$f":"IF(G2026=\"\",\"\",VLOOKUP(G2026,Insumos!G:H,2,FALSE))","v":""}]
[null,null,null,null,null,{"$f":"IF(E2027=\"\",\"\",VLOOKUP(E2027,Insumos!AD:AE,2,FALSE))","v":""},null,{"$f":"IF(G2027=\"\",\"\",VLOOKUP(G2027,Insumos!G:H,2,FALSE))","v":""}]
[null,null,null,null,null,{"$f":"IF(E2028=\"\",\"\",VLOOKUP(E2028,Insumos!AD:AE,2,FALSE))","v":""},null,{"$f":"IF(G2028=\"\",\"\",VLOOKUP(G2028,Insumos!G:H,2,FALSE))","v":""}]
[null,null,null,null,null,{"$f":"IF(E2029=\"\",\"\",VLOOKUP(E2029,Insumos!AD:AE,2,FALSE))","v":""},null,{"$f":"IF(G2029=\"\",\"\",VLOOKUP(G2029,Insumos!G:H,2,FALSE))","v":""}]
[null,null,null,null,null,{"$f":"IF(E2030=\"\",\"\",VLOOKUP(E2030,Insumos!AD:AE,2,FALSE))","v":""},null,{"$f":"IF(G2030=\"\",\"\",VLOOKUP(G2030,Insumos!G:H,2,FALSE))","v":""}]
[null,null,null,null,null,{"$f":"IF(E2031=\"\",\"\",VLOOKUP(E2031,Insumos!AD:AE,2,FALSE))","v":""},null,{"$f":"IF(G2031=\"\",\"\",VLOOKUP(G2031,Insumos!G:H,2,FALSE))","v":""}]
[null,null,null,null,null,{"$f":"IF(E2032=\"\",\"\",VLOOKUP(E2032,Insumos!AD:AE,2,FALSE))","v":""},null,{"$f":"IF(G2032=\"\",\"\",VLOOKUP(G2032,Insumos!G:H,2,FALSE))","v":""}]
[null,null,null,null,null,{"$f":"IF(E2033=\"\",\"\",VLOOKUP(E2033,Insumos!AD:AE,2,FALSE))","v":""},null,{"$f":"IF(G2033=\"\",\"\",VLOOKUP(G2033,Insumos!G:H,2,FALSE))","v":""}]
[null,null,null,null,null,{"$f":"IF(E2034=\"\",\"\",VLOOKUP(E2034,Insumos!AD:AE,2,FALSE))","v":""},null,{"$f":"IF(G2034=\"\",\"\",VLOOKUP(G2034,Insumos!G:H,2,FALSE))","v":""}]
[null,null,null,null,null,{"$f":"IF(E2035=\"\",\"\",VLOOKUP(E2035,Insumos!AD:AE,2,FALSE))","v":""},null,{"$f":"IF(G2035=\"\",\"\",VLOOKUP(G2035,Insumos!G:H,2,FALSE))","v":""}]
[null,null,null,null,null,{"$f":"IF(E2036=\"\",\"\",VLOOKUP(E2036,Insumos!AD:AE,2,FALSE))","v":""},null,{"$f":"IF(G2036=\"\",\"\",VLOOKUP(G2036,Insumos!G:H,2,FALSE))","v":""}]
[null,null,null,null,null,{"$f":"IF(E2037=\"\",\"\",VLOOKUP(E2037,Insumos!AD:AE,2,FALSE))","v":""},null,{"$f":"IF(G2037=\"\",\"\",VLOOKUP(G2037,Insumos!G:H,2,FALSE))","v":""}]
[null,null,null,null,null,{"$f":"IF(E2038=\"\",\"\",VLOOKUP(E2038,Insumos!AD:AE,2,FALSE))","v":""},null,{"$f":"IF(G2038=\"\",\"\",VLOOKUP(G2038,Insumos!G:H,2,FALSE))","v":""}]
[null,null,null,null,null,{"$f":"IF(E2039=\"\",\"\",VLOOKUP(E2039,Insumos!AD:AE,2,FALSE))","v":""},null,{"$f":"IF(G2039=\"\",\"\",VLOOKUP(G2039,Insumos!G:H,2,FALSE))","v":""}]
[null,null,null,null,null,{"$f":"IF(E2040=\"\",\"\",VLOOKUP(E2040,Insumos!AD:AE,2,FALSE))","v":""},null,{"$f":"IF(G2040=\"\",\"\",VLOOKUP(G2040,Insumos!G:H,2,FALSE))","v":""}]
[null,null,null,null,null,{"$f":"IF(E2041=\"\",\"\",VLOOKUP(E2041,Insumos!AD:AE,2,FALSE))","v":""},null,{"$f":"IF(G2041=\"\",\"\",VLOOKUP(G2041,Insumos!G:H,2,FALSE))","v":""}]
[null,null,null,null,null,{"$f":"IF(E2042=\"\",\"\",VLOOKUP(E2042,Insumos!AD:AE,2,FALSE))","v":""},null,{"$f":"IF(G2042=\"\",\"\",VLOOKUP(G2042,Insumos!G:H,2,FALSE))","v":""}]
[null,null,null,null,null,{"$f":"IF(E2043=\"\",\"\",VLOOKUP(E2043,Insumos!AD:AE,2,FALSE))","v":""},null,{"$f":"IF(G2043=\"\",\"\",VLOOKUP(G2043,Insumos!G:H,2,FALSE))","v":""}]
[null,null,null,null,null,{"$f":"IF(E2044=\"\",\"\",VLOOKUP(E2044,Insumos!AD:AE,2,FALSE))","v":""},null,{"$f":"IF(G2044=\"\",\"\",VLOOKUP(G2044,Insumos!G:H,2,FALSE))","v":""}]
[null,null,null,null,null,{"$f":"IF(E2045=\"\",\"\",VLOOKUP(E2045,Insumos!AD:AE,2,FALSE))","v":""},null,{"$f":"IF(G2045=\"\",\"\",VLOOKUP(G2045,Insumos!G:H,2,FALSE))","v":""}]
[null,null,null,null,null,{"$f":"IF(E2046=\"\",\"\",VLOOKUP(E2046,Insumos!AD:AE,2,FALSE))","v":""},null,{"$f":"IF(G2046=\"\",\"\",VLOOKUP(G2046,Insumos!G:H,2,FALSE))","v":""}]
[null,null,null,null,null,{"$f":"IF(E2047=\"\",\"\",VLOOKUP(E2047,Insumos!AD:AE,2,FALSE))","v":""},null,{"$f":"IF(G2047=\"\",\"\",VLOOKUP(G2047,Insumos!G:H,2,FALSE))","v":""}]
[null,null,null,null,null,{"$f":"IF(E2048=\"\",\"\",VLOOKUP(E2048,Insumos!AD:AE,2,FALSE))","v":""},null,{"$f":"IF(G2048=\"\",\"\",VLOOKUP(G2048,Insumos!G:H,2,FALSE))","v":""}]
[null,null,null,null,null,{"$f":"IF(E2049=\"\",\"\",VLOOKUP(E2049,Insumos!AD:AE,2,FALSE))","v":""},null,{"$f":"IF(G2049=\"\",\"\",VLOOKUP(G2049,Insumos!G:H,2,FALSE))","v":""}]
[null,null,null,null,null,{"$f":"IF(E2050=\"\",\"\",VLOOKUP(E2050,Insumos!AD:AE,2,FALSE))","v":""},null,{"$f":"IF(G2050=\"\",\"\",VLOOKUP(G2050,Insumos!G:H,2,FALSE))","v":""}]
[null,null,null,null,null,{"$f":"IF(E2051=\"\",\"\",VLOOKUP(E2051,Insumos!AD:AE,2,FALSE))","v":""},null,{"$f":"IF(G2051=\"\",\"\",VLOOKUP(G2051,Insumos!G:H,2,FALSE))","v":""}]
[null,null,null,null,null,{"$f":"IF(E2052=\"\",\"\",VLOOKUP(E2052,Insumos!AD:AE,2,FALSE))","v":""},null,{"$f":"IF(G2052=\"\",\"\",VLOOKUP(G2052,Insumos!G:H,2,FALSE))","v":""}]
[null,null,null,null,null,{"$f":"IF(E2053=\"\",\"\",VLOOKUP(E2053,Insumos!AD:AE,2,FALSE))","v":""},null,{"$f":"IF(G2053=\"\",\"\",VLOOKUP(G2053,Insumos!G:H,2,FALSE))","v":""}]
[null,null,null,null,null,{"$f":"IF(E2054=\"\",\"\",VLOOKUP(E2054,Insumos!AD:AE,2,FALSE))","v":""},null,{"$f":"IF(G2054=\"\",\"\",VLOOKUP(G2054,Insumos!G:H,2,FALSE))","v":""}]
[null,null,null,null,null,{"$f":"IF(E2055=\"\",\"\",VLOOKUP(E2055,Insumos!AD:AE,2,FALSE))","v":""},null,{"$f":"IF(G2055=\"\",\"\",VLOOKUP(G2055,Insumos!G:H,2,FALSE))","v":""}]
[null,null,null,null,null,{"$f":"IF(E2056=\"\",\"\",VLOOKUP(E2056,Insumos!AD:AE,2,FALSE))","v":""},null,{"$f":"IF(G2056=\"\",\"\",VLOOKUP(G2056,Insumos!G:H,2,FALSE))","v":""}]
[null,null,null,null,null,{"$f":"IF(E2057=\"\",\"\",VLOOKUP(E2057,Insumos!AD:AE,2,FALSE))","v":""},null,{"$f":"IF(G2057=\"\",\"\",VLOOKUP(G2057,Insumos!G:H,2,FALSE))","v":""}]
[null,null,null,null,null,{"$f":"IF(E2058=\"\",\"\",VLOOKUP(E2058,Insumos!AD:AE,2,FALSE))","v":""},null,{"$f":"IF(G2058=\"\",\"\",VLOOKUP(G2058,Insumos!G:H,2,FALSE))","v":""}]
[null,null,null,null,null,{"$f":"IF(E2059=\"\",\"\",VLOOKUP(E2059,Insumos!AD:AE,2,FALSE))","v":""},null,{"$f":"IF(G2059=\"\",\"\",VLOOKUP(G2059,Insumos!G:H,2,FALSE))","v":""}]
[null,null,null,null,null,{"$f":"IF(E2060=\"\",\"\",VLOOKUP(E2060,Insumos!AD:AE,2,FALSE))","v":""},null,{"$f":"IF(G2060=\"\",\"\",VLOOKUP(G2060,Insumos!G:H,2,FALSE))","v":""}]
[null,null,null,null,null,{"$f":"IF(E2061=\"\",\"\",VLOOKUP(E2061,Insumos!AD:AE,2,FALSE))","v":""},null,{"$f":"IF(G2061=\"\",\"\",VLOOKUP(G2061,Insumos!G:H,2,FALSE))","v":""}]
[null,null,null,null,null,{"$f":"IF(E2062=\"\",\"\",VLOOKUP(E2062,Insumos!AD:AE,2,FALSE))","v":""},null,{"$f":"IF(G2062=\"\",\"\",VLOOKUP(G2062,Insumos!G:H,2,FALSE))","v":""}]
[null,null,null,null,null,{"$f":"IF(E2063=\"\",\"\",VLOOKUP(E2063,Insumos!AD:AE,2,FALSE))","v":""},null,{"$f":"IF(G2063=\"\",\"\",VLOOKUP(G2063,Insumos!G:H,2,FALSE))","v":""}]
[null,null,null,null,null,{"$f":"IF(E2064=\"\",\"\",VLOOKUP(E2064,Insumos!AD:AE,2,FALSE))","v":""},null,{"$f":"IF(G2064=\"\",\"\",VLOOKUP(G2064,Insumos!G:H,2,FALSE))","v":""}]
[null,null,null,null,null,{"$f":"IF(E2065=\"\",\"\",VLOOKUP(E2065,Insumos!AD:AE,2,FALSE))","v":""},null,{"$f":"IF(G2065=\"\",\"\",VLOOKUP(G2065,Insumos!G:H,2,FALSE))","v":""}]
[null,null,null,null,null,{"$f":"IF(E2066=\"\",\"\",VLOOKUP(E2066,Insumos!AD:AE,2,FALSE))","v":""},null,{"$f":"IF(G2066=\"\",\"\",VLOOKUP(G2066,Insumos!G:H,2,FALSE))","v":""}]
[null,null,null,null,null,{"$f":"IF(E2067=\"\",\"\",VLOOKUP(E2067,Insumos!AD:AE,2,FALSE))","v":""},null,{"$f":"IF(G2067=\"\",\"\",VLOOKUP(G2067,Insumos!G:H,2,FALSE))","v":""}]
[null,null,null,null,null,{"$f":"IF(E2068=\"\",\"\",VLOOKUP(E2068,Insumos!AD:AE,2,FALSE))","v":""},null,{"$f":"IF(G2068=\"\",\"\",VLOOKUP(G2068,Insumos!G:H,2,FALSE))","v":""}]
[null,null,null,null,null,{"$f":"IF(E2069=\"\",\"\",VLOOKUP(E2069,Insumos!AD:AE,2,FALSE))","v":""},null,{"$f":"IF(G2069=\"\",\"\",VLOOKUP(G2069,Insumos!G:H,2,FALSE))","v":""}]
[null,null,null,null,null,{"$f":"IF(E2070=\"\",\"\",VLOOKUP(E2070,Insumos!AD:AE,2,FALSE))","v":""},null,{"$f":"IF(G2070=\"\",\"\",VLOOKUP(G2070,Insumos!G:H,2,FALSE))","v":""}]
[null,null,null,null,null,{"$f":"IF(E2071=\"\",\"\",VLOOKUP(E2071,Insumos!AD:AE,2,FALSE))","v":""},null,{"$f":"IF(G2071=\"\",\"\",VLOOKUP(G2071,Insumos!G:H,2,FALSE))","v":""}]
[null,null,null,null,null,{"$f":"IF(E2072=\"\",\"\",VLOOKUP(E2072,Insumos!AD:AE,2,FALSE))","v":""},null,{"$f":"IF(G2072=\"\",\"\",VLOOKUP(G2072,Insumos!G:H,2,FALSE))","v":""}]
[null,null,null,null,null,{"$f":"IF(E2073=\"\",\"\",VLOOKUP(E2073,Insumos!AD:AE,2,FALSE))","v":""},null,{"$f":"IF(G2073=\"\",\"\",VLOOKUP(G2073,Insumos!G:H,2,FALSE))","v":""}]
[null,null,null,null,null,{"$f":"IF(E2074=\"\",\"\",VLOOKUP(E2074,Insumos!AD:AE,2,FALSE))","v":""},null,{"$f":"IF(G2074=\"\",\"\",VLOOKUP(G2074,Insumos!G:H,2,FALSE))","v":""}]
[null,null,null,null,null,{"$f":"IF(E2075=\"\",\"\",VLOOKUP(E2075,Insumos!AD:AE,2,FALSE))","v":""},null,{"$f":"IF(G2075=\"\",\"\",VLOOKUP(G2075,Insumos!G:H,2,FALSE))","v":""}]
[null,null,null,null,null,{"$f":"IF(E2076=\"\",\"\",VLOOKUP(E2076,Insumos!AD:AE,2,FALSE))","v":""},null,{"$f":"IF(G2076=\"\",\"\",VLOOKUP(G2076,Insumos!G:H,2,FALSE))","v":""}]
[null,null,null,null,null,{"$f":"IF(E2077=\"\",\"\",VLOOKUP(E2077,Insumos!AD:AE,2,FALSE))","v":""},null,{"$f":"IF(G2077=\"\",\"\",VLOOKUP(G2077,Insumos!G:H,2,FALSE))","v":""}]
[null,null,null,null,null,{"$f":"IF(E2078=\"\",\"\",VLOOKUP(E2078,Insumos!AD:AE,2,FALSE))","v":""},null,{"$f":"IF(G2078=\"\",\"\",VLOOKUP(G2078,Insumos!G:H,2,FALSE))","v":""}]
[null,null,null,null,null,{"$f":"IF(E2079=\"\",\"\",VLOOKUP(E2079,Insumos!AD:AE,2,FALSE))","v":""},null,{"$f":"IF(G2079=\"\",\"\",VLOOKUP(G2079,Insumos!G:H,2,FALSE))","v":""}]
[null,null,null,null,null,{"$f":"IF(E2080=\"\",\"\",VLOOKUP(E2080,Insumos!AD:AE,2,FALSE))","v":""},null,{"$f":"IF(G2080=\"\",\"\",VLOOKUP(G2080,Insumos!G:H,2,FALSE))","v":""}]
[null,null,null,null,null,{"$f":"IF(E2081=\"\",\"\",VLOOKUP(E2081,Insumos!AD:AE,2,FALSE))","v":""},null,{"$f":"IF(G2081=\"\",\"\",VLOOKUP(G2081,Insumos!G:H,2,FALSE))","v":""}]
[null,null,null,null,null,{"$f":"IF(E2082=\"\",\"\",VLOOKUP(E2082,Insumos!AD:AE,2,FALSE))","v":""},null,{"$f":"IF(G2082=\"\",\"\",VLOOKUP(G2082,Insumos!G:H,2,FALSE))","v":""}]
[null,null,null,null,null,{"$f":"IF(E2083=\"\",\"\",VLOOKUP(E2083,Insumos!AD:AE,2,FALSE))","v":""},null,{"$f":"IF(G2083=\"\",\"\",VLOOKUP(G2083,Insumos!G:H,2,FALSE))","v":""}]
[null,null,null,null,null,{"$f":"IF(E2084=\"\",\"\",VLOOKUP(E2084,Insumos!AD:AE,2,FALSE))","v":""},null,{"$f":"IF(G2084=\"\",\"\",VLOOKUP(G2084,Insumos!G:H,2,FALSE))","v":""}]
[null,null,null,null,null,{"$f":"IF(E2085=\"\",\"\",VLOOKUP(E2085,Insumos!AD:AE,2,FALSE))","v":""},null,{"$f":"IF(G2085=\"\",\"\",VLOOKUP(G2085,Insumos!G:H,2,FALSE))","v":""}]
[null,null,null,null,null,{"$f":"IF(E2086=\"\",\"\",VLOOKUP(E2086,Insumos!AD:AE,2,FALSE))","v":""},null,{"$f":"IF(G2086=\"\",\"\",VLOOKUP(G2086,Insumos!G:H,2,FALSE))","v":""}]
[null,null,null,null,null,{"$f":"IF(E2087=\"\",\"\",VLOOKUP(E2087,Insumos!AD:AE,2,FALSE))","v":""},null,{"$f":"IF(G2087=\"\",\"\",VLOOKUP(G2087,Insumos!G:H,2,FALSE))","v":""}]
[null,null,null,null,null,{"$f":"IF(E2088=\"\",\"\",VLOOKUP(E2088,Insumos!AD:AE,2,FALSE))","v":""},null,{"$f":"IF(G2088=\"\",\"\",VLOOKUP(G2088,Insumos!G:H,2,FALSE))","v":""}]
[null,null,null,null,null,{"$f":"IF(E2089=\"\",\"\",VLOOKUP(E2089,Insumos!AD:AE,2,FALSE))","v":""},null,{"$f":"IF(G2089=\"\",\"\",VLOOKUP(G2089,Insumos!G:H,2,FALSE))","v":""}]
[null,null,null,null,null,{"$f":"IF(E2090=\"\",\"\",VLOOKUP(E2090,Insumos!AD:AE,2,FALSE))","v":""},null,{"$f":"IF(G2090=\"\",\"\",VLOOKUP(G2090,Insumos!G:H,2,FALSE))","v":""}]
[null,null,null,null,null,{"$f":"IF(E2091=\"\",\"\",VLOOKUP(E2091,Insumos!AD:AE,2,FALSE))","v":""},null,{"$f":"IF(G2091=\"\",\"\",VLOOKUP(G2091,Insumos!G:H,2,FALSE))","v":""}]
[null,null,null,null,null,{"$f":"IF(E2092=\"\",\"\",VLOOKUP(E2092,Insumos!AD:AE,2,FALSE))","v":""},null,{"$f":"IF(G2092=\"\",\"\",VLOOKUP(G2092,Insumos!G:H,2,FALSE))","v":""}]
[null,null,null,null,null,{"$f":"IF(E2093=\"\",\"\",VLOOKUP(E2093,Insumos!AD:AE,2,FALSE))","v":""},null,{"$f":"IF(G2093=\"\",\"\",VLOOKUP(G2093,Insumos!G:H,2,FALSE))","v":""}]
[null,null,null,null,null,{"$f":"IF(E2094=\"\",\"\",VLOOKUP(E2094,Insumos!AD:AE,2,FALSE))","v":""},null,{"$f":"IF(G2094=\"\",\"\",VLOOKUP(G2094,Insumos!G:H,2,FALSE))","v":""}]
[null,null,null,null,null,{"$f":"IF(E2095=\"\",\"\",VLOOKUP(E2095,Insumos!AD:AE,2,FALSE))","v":""},null,{"$f":"IF(G2095=\"\",\"\",VLOOKUP(G2095,Insumos!G:H,2,FALSE))","v":""}]
[null,null,null,null,null,{"$f":"IF(E2096=\"\",\"\",VLOOKUP(E2096,Insumos!AD:AE,2,FALSE))","v":""},null,{"$f":"IF(G2096=\"\",\"\",VLOOKUP(G2096,Insumos!G:H,2,FALSE))","v":""}]
[null,null,null,null,null,{"$f":"IF(E2097=\"\",\"\",VLOOKUP(E2097,Insumos!AD:AE,2,FALSE))","v":""},null,{"$f":"IF(G2097=\"\",\"\",VLOOKUP(G2097,Insumos!G:H,2,FALSE))","v":""}]
[null,null,null,null,null,{"$f":"IF(E2098=\"\",\"\",VLOOKUP(E2098,Insumos!AD:AE,2,FALSE))","v":""},null,{"$f":"IF(G2098=\"\",\"\",VLOOKUP(G2098,Insumos!G:H,2,FALSE))","v":""}]
[null,null,null,null,null,{"$f":"IF(E2099=\"\",\"\",VLOOKUP(E2099,Insumos!AD:AE,2,FALSE))","v":""},null,{"$f":"IF(G2099=\"\",\"\",VLOOKUP(G2099,Insumos!G:H,2,FALSE))","v":""}]
[null,null,null,null,null,{"$f":"IF(E2100=\"\",\"\",VLOOKUP(E2100,Insumos!AD:AE,2,FALSE))","v":""},null,{"$f":"IF(G2100=\"\",\"\",VLOOKUP(G2100,Insumos!G:H,2,FALSE))","v":""}]
[null,null,null,null,null,{"$f":"IF(E2101=\"\",\"\",VLOOKUP(E2101,Insumos!AD:AE,2,FALSE))","v":""},null,{"$f":"IF(G2101=\"\",\"\",VLOOKUP(G2101,Insumos!G:H,2,FALSE))","v":""}]
[null,null,null,null,null,{"$f":"IF(E2102=\"\",\"\",VLOOKUP(E2102,Insumos!AD:AE,2,FALSE))","v":""},null,{"$f":"IF(G2102=\"\",\"\",VLOOKUP(G2102,Insumos!G:H,2,FALSE))","v":""}]
[null,null,null,null,null,{"$f":"IF(E2103=\"\",\"\",VLOOKUP(E2103,Insumos!AD:AE,2,FALSE))","v":""},null,{"$f":"IF(G2103=\"\",\"\",VLOOKUP(G2103,Insumos!G:H,2,FALSE))","v":""}]
[null,null,null,null,null,{"$f":"IF(E2104=\"\",\"\",VLOOKUP(E2104,Insumos!AD:AE,2,FALSE))","v":""},null,{"$f":"IF(G2104=\"\",\"\",VLOOKUP(G2104,Insumos!G:H,2,FALSE))","v":""}]
[null,null,null,null,null,{"$f":"IF(E2105=\"\",\"\",VLOOKUP(E2105,Insumos!AD:AE,2,FALSE))","v":""},null,{"$f":"IF(G2105=\"\",\"\",VLOOKUP(G2105,Insumos!G:H,2,FALSE))","v":""}]
[null,null,null,null,null,{"$f":"IF(E2106=\"\",\"\",VLOOKUP(E2106,Insumos!AD:AE,2,FALSE))","v":""},null,{"$f":"IF(G2106=\"\",\"\",VLOOKUP(G2106,Insumos!G:H,2,FALSE))","v":""}]
[null,null,null,null,null,{"$f":"IF(E2107=\"\",\"\",VLOOKUP(E2107,Insumos!AD:AE,2,FALSE))","v":""},null,{"$f":"IF(G2107=\"\",\"\",VLOOKUP(G2107,Insumos!G:H,2,FALSE))","v":""}]
[null,null,null,null,null,{"$f":"IF(E2108=\"\",\"\",VLOOKUP(E2108,Insumos!AD:AE,2,FALSE))","v":""},null,{"$f":"IF(G2108=\"\",\"\",VLOOKUP(G2108,Insumos!G:H,2,FALSE))","v":""}]
[null,null,null,null,null,{"$f":"IF(E2109=\"\",\"\",VLOOKUP(E2109,Insumos!AD:AE,2,FALSE))","v":""},null,{"$f":"IF(G2109=\"\",\"\",VLOOKUP(G2109,Insumos!G:H,2,FALSE))","v":""}]
[null,null,null,null,null,{"$f":"IF(E2110=\"\",\"\",VLOOKUP(E2110,Insumos!AD:AE,2,FALSE))","v":""},null,{"$f":"IF(G2110=\"\",\"\",VLOOKUP(G2110,Insumos!G:H,2,FALSE))","v":""}]
[null,null,null,null,null,{"$f":"IF(E2111=\"\",\"\",VLOOKUP(E2111,Insumos!AD:AE,2,FALSE))","v":""},null,{"$f":"IF(G2111=\"\",\"\",VLOOKUP(G2111,Insumos!G:H,2,FALSE))","v":""}]
[null,null,null,null,null,{"$f":"IF(E2112=\"\",\"\",VLOOKUP(E2112,Insumos!AD:AE,2,FALSE))","v":""},null,{"$f":"IF(G2112=\"\",\"\",VLOOKUP(G2112,Insumos!G:H,2,FALSE))","v":""}]
[null,null,null,null,null,{"$f":"IF(E2113=\"\",\"\",VLOOKUP(E2113,Insumos!AD:AE,2,FALSE))","v":""},null,{"$f":"IF(G2113=\"\",\"\",VLOOKUP(G2113,Insumos!G:H,2,FALSE))","v":""}]
[null,null,null,null,null,{"$f":"IF(E2114=\"\",\"\",VLOOKUP(E2114,Insumos!AD:AE,2,FALSE))","v":""},null,{"$f":"IF(G2114=\"\",\"\",VLOOKUP(G2114,Insumos!G:H,2,FALSE))","v":""}]
[null,null,null,null,null,{"$f":"IF(E2115=\"\",\"\",VLOOKUP(E2115,Insumos!AD:AE,2,FALSE))","v":""},null,{"$f":"IF(G2115=\"\",\"\",VLOOKUP(G2115,Insumos!G:H,2,FALSE))","v":""}]
[null,null,null,null,null,{"$f":"IF(E2116=\"\",\"\",VLOOKUP(E2116,Insumos!AD:AE,2,FALSE))","v":""},null,{"$f":"IF(G2116=\"\",\"\",VLOOKUP(G2116,Insumos!G:H,2,FALSE))","v":""}]
[null,null,null,null,null,{"$f":"IF(E2117=\"\",\"\",VLOOKUP(E2117,Insumos!AD:AE,2,FALSE))","v":""},null,{"$f":"IF(G2117=\"\",\"\",VLOOKUP(G2117,Insumos!G:H,2,FALSE))","v":""}]
[null,null,null,null,null,{"$f":"IF(E2118=\"\",\"\",VLOOKUP(E2118,Insumos!AD:AE,2,FALSE))","v":""},null,{"$f":"IF(G2118=\"\",\"\",VLOOKUP(G2118,Insumos!G:H,2,FALSE))","v":""}]
[null,null,null,null,null,{"$f":"IF(E2119=\"\",\"\",VLOOKUP(E2119,Insumos!AD:AE,2,FALSE))","v":""},null,{"$f":"IF(G2119=\"\",\"\",VLOOKUP(G2119,Insumos!G:H,2,FALSE))","v":""}]
[null,null,null,null,null,{"$f":"IF(E2120=\"\",\"\",VLOOKUP(E2120,Insumos!AD:AE,2,FALSE))","v":""},null,{"$f":"IF(G2120=\"\",\"\",VLOOKUP(G2120,Insumos!G:H,2,FALSE))","v":""}]
[null,null,null,null,null,{"$f":"IF(E2121=\"\",\"\",VLOOKUP(E2121,Insumos!AD:AE,2,FALSE))","v":""},null,{"$f":"IF(G2121=\"\",\"\",VLOOKUP(G2121,Insumos!G:H,2,FALSE))","v":""}]
[null,null,null,null,null,{"$f":"IF(E2122=\"\",\"\",VLOOKUP(E2122,Insumos!AD:AE,2,FALSE))","v":""},null,{"$f":"IF(G2122=\"\",\"\",VLOOKUP(G2122,Insumos!G:H,2,FALSE))","v":""}]
[null,null,null,null,null,{"$f":"IF(E2123=\"\",\"\",VLOOKUP(E2123,Insumos!AD:AE,2,FALSE))","v":""},null,{"$f":"IF(G2123=\"\",\"\",VLOOKUP(G2123,Insumos!G:H,2,FALSE))","v":""}]
[null,null,null,null,null,{"$f":"IF(E2124=\"\",\"\",VLOOKUP(E2124,Insumos!AD:AE,2,FALSE))","v":""},null,{"$f":"IF(G2124=\"\",\"\",VLOOKUP(G2124,Insumos!G:H,2,FALSE))","v":""}]
[null,null,null,null,null,{"$f":"IF(E2125=\"\",\"\",VLOOKUP(E2125,Insumos!AD:AE,2,FALSE))","v":""},null,{"$f":"IF(G2125=\"\",\"\",VLOOKUP(G2125,Insumos!G:H,2,FALSE))","v":""}]
[null,null,null,null,null,{"$f":"IF(E2126=\"\",\"\",VLOOKUP(E2126,Insumos!AD:AE,2,FALSE))","v":""},null,{"$f":"IF(G2126=\"\",\"\",VLOOKUP(G2126,Insumos!G:H,2,FALSE))","v":""}]
[null,null,null,null,null,{"$f":"IF(E2127=\"\",\"\",VLOOKUP(E2127,Insumos!AD:AE,2,FALSE))","v":""},null,{"$f":"IF(G2127=\"\",\"\",VLOOKUP(G2127,Insumos!G:H,2,FALSE))","v":""}]
[null,null,null,null,null,{"$f":"IF(E2128=\"\",\"\",VLOOKUP(E2128,Insumos!AD:AE,2,FALSE))","v":""},null,{"$f":"IF(G2128=\"\",\"\",VLOOKUP(G2128,Insumos!G:H,2,FALSE))","v":""}]
[null,null,null,null,null,{"$f":"IF(E2129=\"\",\"\",VLOOKUP(E2129,Insumos!AD:AE,2,FALSE))","v":""},null,{"$f":"IF(G2129=\"\",\"\",VLOOKUP(G2129,Insumos!G:H,2,FALSE))","v":""}]
[null,null,null,null,null,{"$f":"IF(E2130=\"\",\"\",VLOOKUP(E2130,Insumos!AD:AE,2,FALSE))","v":""},null,{"$f":"IF(G2130=\"\",\"\",VLOOKUP(G2130,Insumos!G:H,2,FALSE))","v":""}]
[null,null,null,null,null,{"$f":"IF(E2131=\"\",\"\",VLOOKUP(E2131,Insumos!AD:AE,2,FALSE))","v":""},null,{"$f":"IF(G2131=\"\",\"\",VLOOKUP(G2131,Insumos!G:H,2,FALSE))","v":""}]
[null,null,null,null,null,{"$f":"IF(E2132=\"\",\"\",VLOOKUP(E2132,Insumos!AD:AE,2,FALSE))","v":""},null,{"$f":"IF(G2132=\"\",\"\",VLOOKUP(G2132,Insumos!G:H,2,FALSE))","v":""}]
[null,null,null,null,null,{"$f":"IF(E2133=\"\",\"\",VLOOKUP(E2133,Insumos!AD:AE,2,FALSE))","v":""},null,{"$f":"IF(G2133=\"\",\"\",VLOOKUP(G2133,Insumos!G:H,2,FALSE))","v":""}]
[null,null,null,null,null,{"$f":"IF(E2134=\"\",\"\",VLOOKUP(E2134,Insumos!AD:AE,2,FALSE))","v":""},null,{"$f":"IF(G2134=\"\",\"\",VLOOKUP(G2134,Insumos!G:H,2,FALSE))","v":""}]
[null,null,null,null,null,{"$f":"IF(E2135=\"\",\"\",VLOOKUP(E2135,Insumos!AD:AE,2,FALSE))","v":""},null,{"$f":"IF(G2135=\"\",\"\",VLOOKUP(G2135,Insumos!G:H,2,FALSE))","v":""}]
[null,null,null,null,null,{"$f":"IF(E2136=\"\",\"\",VLOOKUP(E2136,Insumos!AD:AE,2,FALSE))","v":""},null,{"$f":"IF(G2136=\"\",\"\",VLOOKUP(G2136,Insumos!G:H,2,FALSE))","v":""}]
[null,null,null,null,null,{"$f":"IF(E2137=\"\",\"\",VLOOKUP(E2137,Insumos!AD:AE,2,FALSE))","v":""},null,{"$f":"IF(G2137=\"\",\"\",VLOOKUP(G2137,Insumos!G:H,2,FALSE))","v":""}]
[null,null,null,null,null,{"$f":"IF(E2138=\"\",\"\",VLOOKUP(E2138,Insumos!AD:AE,2,FALSE))","v":""},null,{"$f":"IF(G2138=\"\",\"\",VLOOKUP(G2138,Insumos!G:H,2,FALSE))","v":""}]
[null,null,null,null,null,{"$f":"IF(E2139=\"\",\"\",VLOOKUP(E2139,Insumos!AD:AE,2,FALSE))","v":""},null,{"$f":"IF(G2139=\"\",\"\",VLOOKUP(G2139,Insumos!G:H,2,FALSE))","v":""}]
[null,null,null,null,null,{"$f":"IF(E2140=\"\",\"\",VLOOKUP(E2140,Insumos!AD:AE,2,FALSE))","v":""},null,{"$f":"IF(G2140=\"\",\"\",VLOOKUP(G2140,Insumos!G:H,2,FALSE))","v":""}]
[null,null,null,null,null,{"$f":"IF(E2141=\"\",\"\",VLOOKUP(E2141,Insumos!AD:AE,2,FALSE))","v":""},null,{"$f":"IF(G2141=\"\",\"\",VLOOKUP(G2141,Insumos!G:H,2,FALSE))","v":""}]
[null,null,null,null,null,{"$f":"IF(E2142=\"\",\"\",VLOOKUP(E2142,Insumos!AD:AE,2,FALSE))","v":""},null,{"$f":"IF(G2142=\"\",\"\",VLOOKUP(G2142,Insumos!G:H,2,FALSE))","v":""}]
[null,null,null,null,null,{"$f":"IF(E2143=\"\",\"\",VLOOKUP(E2143,Insumos!AD:AE,2,FALSE))","v":""},null,{"$f":"IF(G2143=\"\",\"\",VLOOKUP(G2143,Insumos!G:H,2,FALSE))","v":""}]
[null,null,null,null,null,{"$f":"IF(E2144=\"\",\"\",VLOOKUP(E2144,Insumos!AD:AE,2,FALSE))","v":""},null,{"$f":"IF(G2144=\"\",\"\",VLOOKUP(G2144,Insumos!G:H,2,FALSE))","v":""}]
[null,null,null,null,null,{"$f":"IF(E2145=\"\",\"\",VLOOKUP(E2145,Insumos!AD:AE,2,FALSE))","v":""},null,{"$f":"IF(G2145=\"\",\"\",VLOOKUP(G2145,Insumos!G:H,2,FALSE))","v":""}]
[null,null,null,null,null,{"$f":"IF(E2146=\"\",\"\",VLOOKUP(E2146,Insumos!AD:AE,2,FALSE))","v":""},null,{"$f":"IF(G2146=\"\",\"\",VLOOKUP(G2146,Insumos!G:H,2,FALSE))","v":""}]
[null,null,null,null,null,{"$f":"IF(E2147=\"\",\"\",VLOOKUP(E2147,Insumos!AD:AE,2,FALSE))","v":""},null,{"$f":"IF(G2147=\"\",\"\",VLOOKUP(G2147,Insumos!G:H,2,FALSE))","v":""}]
[null,null,null,null,null,{"$f":"IF(E2148=\"\",\"\",VLOOKUP(E2148,Insumos!AD:AE,2,FALSE))","v":""},null,{"$f":"IF(G2148=\"\",\"\",VLOOKUP(G2148,Insumos!G:H,2,FALSE))","v":""}]
[null,null,null,null,null,{"$f":"IF(E2149=\"\",\"\",VLOOKUP(E2149,Insumos!AD:AE,2,FALSE))","v":""},null,{"$f":"IF(G2149=\"\",\"\",VLOOKUP(G2149,Insumos!G:H,2,FALSE))","v":""}]
[null,null,null,null,null,{"$f":"IF(E2150=\"\",\"\",VLOOKUP(E2150,Insumos!AD:AE,2,FALSE))","v":""},null,{"$f":"IF(G2150=\"\",\"\",VLOOKUP(G2150,Insumos!G:H,2,FALSE))","v":""}]
[null,null,null,null,null,{"$f":"IF(E2151=\"\",\"\",VLOOKUP(E2151,Insumos!AD:AE,2,FALSE))","v":""},null,{"$f":"IF(G2151=\"\",\"\",VLOOKUP(G2151,Insumos!G:H,2,FALSE))","v":""}]
[null,null,null,null,null,{"$f":"IF(E2152=\"\",\"\",VLOOKUP(E2152,Insumos!AD:AE,2,FALSE))","v":""},null,{"$f":"IF(G2152=\"\",\"\",VLOOKUP(G2152,Insumos!G:H,2,FALSE))","v":""}]
[null,null,null,null,null,{"$f":"IF(E2153=\"\",\"\",VLOOKUP(E2153,Insumos!AD:AE,2,FALSE))","v":""},null,{"$f":"IF(G2153=\"\",\"\",VLOOKUP(G2153,Insumos!G:H,2,FALSE))","v":""}]
[null,null,null,null,null,{"$f":"IF(E2154=\"\",\"\",VLOOKUP(E2154,Insumos!AD:AE,2,FALSE))","v":""},null,{"$f":"IF(G2154=\"\",\"\",VLOOKUP(G2154,Insumos!G:H,2,FALSE))","v":""}]
[null,null,null,null,null,{"$f":"IF(E2155=\"\",\"\",VLOOKUP(E2155,Insumos!AD:AE,2,FALSE))","v":""},null,{"$f":"IF(G2155=\"\",\"\",VLOOKUP(G2155,Insumos!G:H,2,FALSE))","v":""}]
[null,null,null,null,null,{"$f":"IF(E2156=\"\",\"\",VLOOKUP(E2156,Insumos!AD:AE,2,FALSE))","v":""},null,{"$f":"IF(G2156=\"\",\"\",VLOOKUP(G2156,Insumos!G:H,2,FALSE))","v":""}]
[null,null,null,null,null,{"$f":"IF(E2157=\"\",\"\",VLOOKUP(E2157,Insumos!AD:AE,2,FALSE))","v":""},null,{"$f":"IF(G2157=\"\",\"\",VLOOKUP(G2157,Insumos!G:H,2,FALSE))","v":""}]
[null,null,null,null,null,{"$f":"IF(E2158=\"\",\"\",VLOOKUP(E2158,Insumos!AD:AE,2,FALSE))","v":""},null,{"$f":"IF(G2158=\"\",\"\",VLOOKUP(G2158,Insumos!G:H,2,FALSE))","v":""}]
[null,null,null,null,null,{"$f":"IF(E2159=\"\",\"\",VLOOKUP(E2159,Insumos!AD:AE,2,FALSE))","v":""},null,{"$f":"IF(G2159=\"\",\"\",VLOOKUP(G2159,Insumos!G:H,2,FALSE))","v":""}]
[null,null,null,null,null,{"$f":"IF(E2160=\"\",\"\",VLOOKUP(E2160,Insumos!AD:AE,2,FALSE))","v":""},null,{"$f":"IF(G2160=\"\",\"\",VLOOKUP(G2160,Insumos!G:H,2,FALSE))","v":""}]
[null,null,null,null,null,{"$f":"IF(E2161=\"\",\"\",VLOOKUP(E2161,Insumos!AD:AE,2,FALSE))","v":""},null,{"$f":"IF(G2161=\"\",\"\",VLOOKUP(G2161,Insumos!G:H,2,FALSE))","v":""}]
[null,null,null,null,null,{"$f":"IF(E2162=\"\",\"\",VLOOKUP(E2162,Insumos!AD:AE,2,FALSE))","v":""},null,{"$f":"IF(G2162=\"\",\"\",VLOOKUP(G2162,Insumos!G:H,2,FALSE))","v":""}]
[null,null,null,null,null,{"$f":"IF(E2163=\"\",\"\",VLOOKUP(E2163,Insumos!AD:AE,2,FALSE))","v":""},null,{"$f":"IF(G2163=\"\",\"\",VLOOKUP(G2163,Insumos!G:H,2,FALSE))","v":""}]
[null,null,null,null,null,{"$f":"IF(E2164=\"\",\"\",VLOOKUP(E2164,Insumos!AD:AE,2,FALSE))","v":""},null,{"$f":"IF(G2164=\"\",\"\",VLOOKUP(G2164,Insumos!G:H,2,FALSE))","v":""}]
[null,null,null,null,null,{"$f":"IF(E2165=\"\",\"\",VLOOKUP(E2165,Insumos!AD:AE,2,FALSE))","v":""},null,{"$f":"IF(G2165=\"\",\"\",VLOOKUP(G2165,Insumos!G:H,2,FALSE))","v":""}]
[null,null,null,null,null,{"$f":"IF(E2166=\"\",\"\",VLOOKUP(E2166,Insumos!AD:AE,2,FALSE))","v":""},null,{"$f":"IF(G2166=\"\",\"\",VLOOKUP(G2166,Insumos!G:H,2,FALSE))","v":""}]
[null,null,null,null,null,{"$f":"IF(E2167=\"\",\"\",VLOOKUP(E2167,Insumos!AD:AE,2,FALSE))","v":""},null,{"$f":"IF(G2167=\"\",\"\",VLOOKUP(G2167,Insumos!G:H,2,FALSE))","v":""}]
[null,null,null,null,null,{"$f":"IF(E2168=\"\",\"\",VLOOKUP(E2168,Insumos!AD:AE,2,FALSE))","v":""},null,{"$f":"IF(G2168=\"\",\"\",VLOOKUP(G2168,Insumos!G:H,2,FALSE))","v":""}]
[null,null,null,null,null,{"$f":"IF(E2169=\"\",\"\",VLOOKUP(E2169,Insumos!AD:AE,2,FALSE))","v":""},null,{"$f":"IF(G2169=\"\",\"\",VLOOKUP(G2169,Insumos!G:H,2,FALSE))","v":""}]
[null,null,null,null,null,{"$f":"IF(E2170=\"\",\"\",VLOOKUP(E2170,Insumos!AD:AE,2,FALSE))","v":""},null,{"$f":"IF(G2170=\"\",\"\",VLOOKUP(G2170,Insumos!G:H,2,FALSE))","v":""}]
[null,null,null,null,null,{"$f":"IF(E2171=\"\",\"\",VLOOKUP(E2171,Insumos!AD:AE,2,FALSE))","v":""},null,{"$f":"IF(G2171=\"\",\"\",VLOOKUP(G2171,Insumos!G:H,2,FALSE))","v":""}]
[null,null,null,null,null,{"$f":"IF(E2172=\"\",\"\",VLOOKUP(E2172,Insumos!AD:AE,2,FALSE))","v":""},null,{"$f":"IF(G2172=\"\",\"\",VLOOKUP(G2172,Insumos!G:H,2,FALSE))","v":""}]
[null,null,null,null,null,{"$f":"IF(E2173=\"\",\"\",VLOOKUP(E2173,Insumos!AD:AE,2,FALSE))","v":""},null,{"$f":"IF(G2173=\"\",\"\",VLOOKUP(G2173,Insumos!G:H,2,FALSE))","v":""}]
[null,null,null,null,null,{"$f":"IF(E2174=\"\",\"\",VLOOKUP(E2174,Insumos!AD:AE,2,FALSE))","v":""},null,{"$f":"IF(G2174=\"\",\"\",VLOOKUP(G2174,Insumos!G:H,2,FALSE))","v":""}]
[null,null,null,null,null,{"$f":"IF(E2175=\"\",\"\",VLOOKUP(E2175,Insumos!AD:AE,2,FALSE))","v":""},null,{"$f":"IF(G2175=\"\",\"\",VLOOKUP(G2175,Insumos!G:H,2,FALSE))","v":""}]
[null,null,null,null,null,{"$f":"IF(E2176=\"\",\"\",VLOOKUP(E2176,Insumos!AD:AE,2,FALSE))","v":""},null,{"$f":"IF(G2176=\"\",\"\",VLOOKUP(G2176,Insumos!G:H,2,FALSE))","v":""}]
[null,null,null,null,null,{"$f":"IF(E2177=\"\",\"\",VLOOKUP(E2177,Insumos!AD:AE,2,FALSE))","v":""},null,{"$f":"IF(G2177=\"\",\"\",VLOOKUP(G2177,Insumos!G:H,2,FALSE))","v":""}]
[null,null,null,null,null,{"$f":"IF(E2178=\"\",\"\",VLOOKUP(E2178,Insumos!AD:AE,2,FALSE))","v":""},null,{"$f":"IF(G2178=\"\",\"\",VLOOKUP(G2178,Insumos!G:H,2,FALSE))","v":""}]
[null,null,null,null,null,{"$f":"IF(E2179=\"\",\"\",VLOOKUP(E2179,Insumos!AD:AE,2,FALSE))","v":""},null,{"$f":"IF(G2179=\"\",\"\",VLOOKUP(G2179,Insumos!G:H,2,FALSE))","v":""}]
[null,null,null,null,null,{"$f":"IF(E2180=\"\",\"\",VLOOKUP(E2180,Insumos!AD:AE,2,FALSE))","v":""},null,{"$f":"IF(G2180=\"\",\"\",VLOOKUP(G2180,Insumos!G:H,2,FALSE))","v":""}]
[null,null,null,null,null,{"$f":"IF(E2181=\"\",\"\",VLOOKUP(E2181,Insumos!AD:AE,2,FALSE))","v":""},null,{"$f":"IF(G2181=\"\",\"\",VLOOKUP(G2181,Insumos!G:H,2,FALSE))","v":""}]
[null,null,null,null,null,{"$f":"IF(E2182=\"\",\"\",VLOOKUP(E2182,Insumos!AD:AE,2,FALSE))","v":""},null,{"$f":"IF(G2182=\"\",\"\",VLOOKUP(G2182,Insumos!G:H,2,FALSE))","v":""}]
[null,null,null,null,null,{"$f":"IF(E2183=\"\",\"\",VLOOKUP(E2183,Insumos!AD:AE,2,FALSE))","v":""},null,{"$f":"IF(G2183=\"\",\"\",VLOOKUP(G2183,Insumos!G:H,2,FALSE))","v":""}]
[null,null,null,null,null,{"$f":"IF(E2184=\"\",\"\",VLOOKUP(E2184,Insumos!AD:AE,2,FALSE))","v":""},null,{"$f":"IF(G2184=\"\",\"\",VLOOKUP(G2184,Insumos!G:H,2,FALSE))","v":""}]
[null,null,null,null,null,{"$f":"IF(E2185=\"\",\"\",VLOOKUP(E2185,Insumos!AD:AE,2,FALSE))","v":""},null,{"$f":"IF(G2185=\"\",\"\",VLOOKUP(G2185,Insumos!G:H,2,FALSE))","v":""}]
[null,null,null,null,null,{"$f":"IF(E2186=\"\",\"\",VLOOKUP(E2186,Insumos!AD:AE,2,FALSE))","v":""},null,{"$f":"IF(G2186=\"\",\"\",VLOOKUP(G2186,Insumos!G:H,2,FALSE))","v":""}]
[null,null,null,null,null,{"$f":"IF(E2187=\"\",\"\",VLOOKUP(E2187,Insumos!AD:AE,2,FALSE))","v":""},null,{"$f":"IF(G2187=\"\",\"\",VLOOKUP(G2187,Insumos!G:H,2,FALSE))","v":""}]
[null,null,null,null,null,{"$f":"IF(E2188=\"\",\"\",VLOOKUP(E2188,Insumos!AD:AE,2,FALSE))","v":""},null,{"$f":"IF(G2188=\"\",\"\",VLOOKUP(G2188,Insumos!G:H,2,FALSE))","v":""}]
[null,null,null,null,null,{"$f":"IF(E2189=\"\",\"\",VLOOKUP(E2189,Insumos!AD:AE,2,FALSE))","v":""},null,{"$f":"IF(G2189=\"\",\"\",VLOOKUP(G2189,Insumos!G:H,2,FALSE))","v":""}]
[null,null,null,null,null,{"$f":"IF(E2190=\"\",\"\",VLOOKUP(E2190,Insumos!AD:AE,2,FALSE))","v":""},null,{"$f":"IF(G2190=\"\",\"\",VLOOKUP(G2190,Insumos!G:H,2,FALSE))","v":""}]
[null,null,null,null,null,{"$f":"IF(E2191=\"\",\"\",VLOOKUP(E2191,Insumos!AD:AE,2,FALSE))","v":""},null,{"$f":"IF(G2191=\"\",\"\",VLOOKUP(G2191,Insumos!G:H,2,FALSE))","v":""}]
[null,null,null,null,null,{"$f":"IF(E2192=\"\",\"\",VLOOKUP(E2192,Insumos!AD:AE,2,FALSE))","v":""},null,{"$f":"IF(G2192=\"\",\"\",VLOOKUP(G2192,Insumos!G:H,2,FALSE))","v":""}]
[null,null,null,null,null,{"$f":"IF(E2193=\"\",\"\",VLOOKUP(E2193,Insumos!AD:AE,2,FALSE))","v":""},null,{"$f":"IF(G2193=\"\",\"\",VLOOKUP(G2193,Insumos!G:H,2,FALSE))","v":""}]
[null,null,null,null,null,{"$f":"IF(E2194=\"\",\"\",VLOOKUP(E2194,Insumos!AD:AE,2,FALSE))","v":""},null,{"$f":"IF(G2194=\"\",\"\",VLOOKUP(G2194,Insumos!G:H,2,FALSE))","v":""}]
[null,null,null,null,null,{"$f":"IF(E2195=\"\",\"\",VLOOKUP(E2195,Insumos!AD:AE,2,FALSE))","v":""},null,{"$f":"IF(G2195=\"\",\"\",VLOOKUP(G2195,Insumos!G:H,2,FALSE))","v":""}]
[null,null,null,null,null,{"$f":"IF(E2196=\"\",\"\",VLOOKUP(E2196,Insumos!AD:AE,2,FALSE))","v":""},null,{"$f":"IF(G2196=\"\",\"\",VLOOKUP(G2196,Insumos!G:H,2,FALSE))","v":""}]
[null,null,null,null,null,{"$f":"IF(E2197=\"\",\"\",VLOOKUP(E2197,Insumos!AD:AE,2,FALSE))","v":""},null,{"$f":"IF(G2197=\"\",\"\",VLOOKUP(G2197,Insumos!G:H,2,FALSE))","v":""}]
[null,null,null,null,null,{"$f":"IF(E2198=\"\",\"\",VLOOKUP(E2198,Insumos!AD:AE,2,FALSE))","v":""},null,{"$f":"IF(G2198=\"\",\"\",VLOOKUP(G2198,Insumos!G:H,2,FALSE))","v":""}]
[null,null,null,null,null,{"$f":"IF(E2199=\"\",\"\",VLOOKUP(E2199,Insumos!AD:AE,2,FALSE))","v":""},null,{"$f":"IF(G2199=\"\",\"\",VLOOKUP(G2199,Insumos!G:H,2,FALSE))","v":""}]
[null,null,null,null,null,{"$f":"IF(E2200=\"\",\"\",VLOOKUP(E2200,Insumos!AD:AE,2,FALSE))","v":""},null,{"$f":"IF(G2200=\"\",\"\",VLOOKUP(G2200,Insumos!G:H,2,FALSE))","v":""}]
[null,null,null,null,null,{"$f":"IF(E2201=\"\",\"\",VLOOKUP(E2201,Insumos!AD:AE,2,FALSE))","v":""},null,{"$f":"IF(G2201=\"\",\"\",VLOOKUP(G2201,Insumos!G:H,2,FALSE))","v":""}]
[null,null,null,null,null,{"$f":"IF(E2202=\"\",\"\",VLOOKUP(E2202,Insumos!AD:AE,2,FALSE))","v":""},null,{"$f":"IF(G2202=\"\",\"\",VLOOKUP(G2202,Insumos!G:H,2,FALSE))","v":""}]
[null,null,null,null,null,{"$f":"IF(E2203=\"\",\"\",VLOOKUP(E2203,Insumos!AD:AE,2,FALSE))","v":""},null,{"$f":"IF(G2203=\"\",\"\",VLOOKUP(G2203,Insumos!G:H,2,FALSE))","v":""}]
[null,null,null,null,null,{"$f":"IF(E2204=\"\",\"\",VLOOKUP(E2204,Insumos!AD:AE,2,FALSE))","v":""},null,{"$f":"IF(G2204=\"\",\"\",VLOOKUP(G2204,Insumos!G:H,2,FALSE))","v":""}]
[null,null,null,null,null,{"$f":"IF(E2205=\"\",\"\",VLOOKUP(E2205,Insumos!AD:AE,2,FALSE))","v":""},null,{"$f":"IF(G2205=\"\",\"\",VLOOKUP(G2205,Insumos!G:H,2,FALSE))","v":""}]
[null,null,null,null,null,{"$f":"IF(E2206=\"\",\"\",VLOOKUP(E2206,Insumos!AD:AE,2,FALSE))","v":""},null,{"$f":"IF(G2206=\"\",\"\",VLOOKUP(G2206,Insumos!G:H,2,FALSE))","v":""}]
[null,null,null,null,null,{"$f":"IF(E2207=\"\",\"\",VLOOKUP(E2207,Insumos!AD:AE,2,FALSE))","v":""},null,{"$f":"IF(G2207=\"\",\"\",VLOOKUP(G2207,Insumos!G:H,2,FALSE))","v":""}]
[null,null,null,null,null,{"$f":"IF(E2208=\"\",\"\",VLOOKUP(E2208,Insumos!AD:AE,2,FALSE))","v":""},null,{"$f":"IF(G2208=\"\",\"\",VLOOKUP(G2208,Insumos!G:H,2,FALSE))","v":""}]
[null,null,null,null,null,{"$f":"IF(E2209=\"\",\"\",VLOOKUP(E2209,Insumos!AD:AE,2,FALSE))","v":""},null,{"$f":"IF(G2209=\"\",\"\",VLOOKUP(G2209,Insumos!G:H,2,FALSE))","v":""}]
[null,null,null,null,null,{"$f":"IF(E2210=\"\",\"\",VLOOKUP(E2210,Insumos!AD:AE,2,FALSE))","v":""},null,{"$f":"IF(G2210=\"\",\"\",VLOOKUP(G2210,Insumos!G:H,2,FALSE))","v":""}]
[null,null,null,null,null,{"$f":"IF(E2211=\"\",\"\",VLOOKUP(E2211,Insumos!AD:AE,2,FALSE))","v":""},null,{"$f":"IF(G2211=\"\",\"\",VLOOKUP(G2211,Insumos!G:H,2,FALSE))","v":""}]
[null,null,null,null,null,{"$f":"IF(E2212=\"\",\"\",VLOOKUP(E2212,Insumos!AD:AE,2,FALSE))","v":""},null,{"$f":"IF(G2212=\"\",\"\",VLOOKUP(G2212,Insumos!G:H,2,FALSE))","v":""}]
[null,null,null,null,null,{"$f":"IF(E2213=\"\",\"\",VLOOKUP(E2213,Insumos!AD:AE,2,FALSE))","v":""},null,{"$f":"IF(G2213=\"\",\"\",VLOOKUP(G2213,Insumos!G:H,2,FALSE))","v":""}]
[null,null,null,null,null,{"$f":"IF(E2214=\"\",\"\",VLOOKUP(E2214,Insumos!AD:AE,2,FALSE))","v":""},null,{"$f":"IF(G2214=\"\",\"\",VLOOKUP(G2214,Insumos!G:H,2,FALSE))","v":""}]
[null,null,null,null,null,{"$f":"IF(E2215=\"\",\"\",VLOOKUP(E2215,Insumos!AD:AE,2,FALSE))","v":""},null,{"$f":"IF(G2215=\"\",\"\",VLOOKUP(G2215,Insumos!G:H,2,FALSE))","v":""}]
[null,null,null,null,null,{"$f":"IF(E2216=\"\",\"\",VLOOKUP(E2216,Insumos!AD:AE,2,FALSE))","v":""},null,{"$f":"IF(G2216=\"\",\"\",VLOOKUP(G2216,Insumos!G:H,2,FALSE))","v":""}]
[null,null,null,null,null,{"$f":"IF(E2217=\"\",\"\",VLOOKUP(E2217,Insumos!AD:AE,2,FALSE))","v":""},null,{"$f":"IF(G2217=\"\",\"\",VLOOKUP(G2217,Insumos!G:H,2,FALSE))","v":""}]
[null,null,null,null,null,{"$f":"IF(E2218=\"\",\"\",VLOOKUP(E2218,Insumos!AD:AE,2,FALSE))","v":""},null,{"$f":"IF(G2218=\"\",\"\",VLOOKUP(G2218,Insumos!G:H,2,FALSE))","v":""}]
[null,null,null,null,null,{"$f":"IF(E2219=\"\",\"\",VLOOKUP(E2219,Insumos!AD:AE,2,FALSE))","v":""},null,{"$f":"IF(G2219=\"\",\"\",VLOOKUP(G2219,Insumos!G:H,2,FALSE))","v":""}]
[null,null,null,null,null,{"$f":"IF(E2220=\"\",\"\",VLOOKUP(E2220,Insumos!AD:AE,2,FALSE))","v":""},null,{"$f":"IF(G2220=\"\",\"\",VLOOKUP(G2220,Insumos!G:H,2,FALSE))","v":""}]
[null,null,null,null,null,{"$f":"IF(E2221=\"\",\"\",VLOOKUP(E2221,Insumos!AD:AE,2,FALSE))","v":""},null,{"$f":"IF(G2221=\"\",\"\",VLOOKUP(G2221,Insumos!G:H,2,FALSE))","v":""}]
[null,null,null,null,null,{"$f":"IF(E2222=\"\",\"\",VLOOKUP(E2222,Insumos!AD:AE,2,FALSE))","v":""},null,{"$f":"IF(G2222=\"\",\"\",VLOOKUP(G2222,Insumos!G:H,2,FALSE))","v":""}]
[null,null,null,null,null,{"$f":"IF(E2223=\"\",\"\",VLOOKUP(E2223,Insumos!AD:AE,2,FALSE))","v":""},null,{"$f":"IF(G2223=\"\",\"\",VLOOKUP(G2223,Insumos!G:H,2,FALSE))","v":""}]
[null,null,null,null,null,{"$f":"IF(E2224=\"\",\"\",VLOOKUP(E2224,Insumos!AD:AE,2,FALSE))","v":""},null,{"$f":"IF(G2224=\"\",\"\",VLOOKUP(G2224,Insumos!G:H,2,FALSE))","v":""}]
[null,null,null,null,null,{"$f":"IF(E2225=\"\",\"\",VLOOKUP(E2225,Insumos!AD:AE,2,FALSE))","v":""},null,{"$f":"IF(G2225=\"\",\"\",VLOOKUP(G2225,Insumos!G:H,2,FALSE))","v":""}]
[null,null,null,null,null,{"$f":"IF(E2226=\"\",\"\",VLOOKUP(E2226,Insumos!AD:AE,2,FALSE))","v":""},null,{"$f":"IF(G2226=\"\",\"\",VLOOKUP(G2226,Insumos!G:H,2,FALSE))","v":""}]
[null,null,null,null,null,{"$f":"IF(E2227=\"\",\"\",VLOOKUP(E2227,Insumos!AD:AE,2,FALSE))","v":""},null,{"$f":"IF(G2227=\"\",\"\",VLOOKUP(G2227,Insumos!G:H,2,FALSE))","v":""}]
[null,null,null,null,null,{"$f":"IF(E2228=\"\",\"\",VLOOKUP(E2228,Insumos!AD:AE,2,FALSE))","v":""},null,{"$f":"IF(G2228=\"\",\"\",VLOOKUP(G2228,Insumos!G:H,2,FALSE))","v":""}]
[null,null,null,null,null,{"$f":"IF(E2229=\"\",\"\",VLOOKUP(E2229,Insumos!AD:AE,2,FALSE))","v":""},null,{"$f":"IF(G2229=\"\",\"\",VLOOKUP(G2229,Insumos!G:H,2,FALSE))","v":""}]
[null,null,null,null,null,{"$f":"IF(E2230=\"\",\"\",VLOOKUP(E2230,Insumos!AD:AE,2,FALSE))","v":""},null,{"$f":"IF(G2230=\"\",\"\",VLOOKUP(G2230,Insumos!G:H,2,FALSE))","v":""}]
[null,null,null,null,null,{"$f":"IF(E2231=\"\",\"\",VLOOKUP(E2231,Insumos!AD:AE,2,FALSE))","v":""},null,{"$f":"IF(G2231=\"\",\"\",VLOOKUP(G2231,Insumos!G:H,2,FALSE))","v":""}]
[null,null,null,null,null,{"$f":"IF(E2232=\"\",\"\",VLOOKUP(E2232,Insumos!AD:AE,2,FALSE))","v":""},null,{"$f":"IF(G2232=\"\",\"\",VLOOKUP(G2232,Insumos!G:H,2,FALSE))","v":""}]
[null,null,null,null,null,{"$f":"IF(E2233=\"\",\"\",VLOOKUP(E2233,Insumos!AD:AE,2,FALSE))","v":""},null,{"$f":"IF(G2233=\"\",\"\",VLOOKUP(G2233,Insumos!G:H,2,FALSE))","v":""}]
[null,null,null,null,null,{"$f":"IF(E2234=\"\",\"\",VLOOKUP(E2234,Insumos!AD:AE,2,FALSE))","v":""},null,{"$f":"IF(G2234=\"\",\"\",VLOOKUP(G2234,Insumos!G:H,2,FALSE))","v":""}]
[null,null,null,null,null,{"$f":"IF(E2235=\"\",\"\",VLOOKUP(E2235,Insumos!AD:AE,2,FALSE))","v":""},null,{"$f":"IF(G2235=\"\",\"\",VLOOKUP(G2235,Insumos!G:H,2,FALSE))","v":""}]
[null,null,null,null,null,{"$f":"IF(E2236=\"\",\"\",VLOOKUP(E2236,Insumos!AD:AE,2,FALSE))","v":""},null,{"$f":"IF(G2236=\"\",\"\",VLOOKUP(G2236,Insumos!G:H,2,FALSE))","v":""}]
[null,null,null,null,null,{"$f":"IF(E2237=\"\",\"\",VLOOKUP(E2237,Insumos!AD:AE,2,FALSE))","v":""},null,{"$f":"IF(G2237=\"\",\"\",VLOOKUP(G2237,Insumos!G:H,2,FALSE))","v":""}]
[null,null,null,null,null,{"$f":"IF(E2238=\"\",\"\",VLOOKUP(E2238,Insumos!AD:AE,2,FALSE))","v":""},null,{"$f":"IF(G2238=\"\",\"\",VLOOKUP(G2238,Insumos!G:H,2,FALSE))","v":""}]
[null,null,null,null,null,{"$f":"IF(E2239=\"\",\"\",VLOOKUP(E2239,Insumos!AD:AE,2,FALSE))","v":""},null,{"$f":"IF(G2239=\"\",\"\",VLOOKUP(G2239,Insumos!G:H,2,FALSE))","v":""}]
[null,null,null,null,null,{"$f":"IF(E2240=\"\",\"\",VLOOKUP(E2240,Insumos!AD:AE,2,FALSE))","v":""},null,{"$f":"IF(G2240=\"\",\"\",VLOOKUP(G2240,Insumos!G:H,2,FALSE))","v":""}]
[null,null,null,null,null,{"$f":"IF(E2241=\"\",\"\",VLOOKUP(E2241,Insumos!AD:AE,2,FALSE))","v":""},null,{"$f":"IF(G2241=\"\",\"\",VLOOKUP(G2241,Insumos!G:H,2,FALSE))","v":""}]
[null,null,null,null,null,{"$f":"IF(E2242=\"\",\"\",VLOOKUP(E2242,Insumos!AD:AE,2,FALSE))","v":""},null,{"$f":"IF(G2242=\"\",\"\",VLOOKUP(G2242,Insumos!G:H,2,FALSE))","v":""}]
[null,null,null,null,null,{"$f":"IF(E2243=\"\",\"\",VLOOKUP(E2243,Insumos!AD:AE,2,FALSE))","v":""},null,{"$f":"IF(G2243=\"\",\"\",VLOOKUP(G2243,Insumos!G:H,2,FALSE))","v":""}]
[null,null,null,null,null,{"$f":"IF(E2244=\"\",\"\",VLOOKUP(E2244,Insumos!AD:AE,2,FALSE))","v":""},null,{"$f":"IF(G2244=\"\",\"\",VLOOKUP(G2244,Insumos!G:H,2,FALSE))","v":""}]
[null,null,null,null,null,{"$f":"IF(E2245=\"\",\"\",VLOOKUP(E2245,Insumos!AD:AE,2,FALSE))","v":""},null,{"$f":"IF(G2245=\"\",\"\",VLOOKUP(G2245,Insumos!G:H,2,FALSE))","v":""}]
[null,null,null,null,null,{"$f":"IF(E2246=\"\",\"\",VLOOKUP(E2246,Insumos!AD:AE,2,FALSE))","v":""},null,{"$f":"IF(G2246=\"\",\"\",VLOOKUP(G2246,Insumos!G:H,2,FALSE))","v":""}]
[null,null,null,null,null,{"$f":"IF(E2247=\"\",\"\",VLOOKUP(E2247,Insumos!AD:AE,2,FALSE))","v":""},null,{"$f":"IF(G2247=\"\",\"\",VLOOKUP(G2247,Insumos!G:H,2,FALSE))","v":""}]
[null,null,null,null,null,{"$f":"IF(E2248=\"\",\"\",VLOOKUP(E2248,Insumos!AD:AE,2,FALSE))","v":""},null,{"$f":"IF(G2248=\"\",\"\",VLOOKUP(G2248,Insumos!G:H,2,FALSE))","v":""}]
[null,null,null,null,null,{"$f":"IF(E2249=\"\",\"\",VLOOKUP(E2249,Insumos!AD:AE,2,FALSE))","v":""},null,{"$f":"IF(G2249=\"\",\"\",VLOOKUP(G2249,Insumos!G:H,2,FALSE))","v":""}]
[null,null,null,null,null,{"$f":"IF(E2250=\"\",\"\",VLOOKUP(E2250,Insumos!AD:AE,2,FALSE))","v":""},null,{"$f":"IF(G2250=\"\",\"\",VLOOKUP(G2250,Insumos!G:H,2,FALSE))","v":""}]
[null,null,null,null,null,{"$f":"IF(E2251=\"\",\"\",VLOOKUP(E2251,Insumos!AD:AE,2,FALSE))","v":""},null,{"$f":"IF(G2251=\"\",\"\",VLOOKUP(G2251,Insumos!G:H,2,FALSE))","v":""}]
[null,null,null,null,null,{"$f":"IF(E2252=\"\",\"\",VLOOKUP(E2252,Insumos!AD:AE,2,FALSE))","v":""},null,{"$f":"IF(G2252=\"\",\"\",VLOOKUP(G2252,Insumos!G:H,2,FALSE))","v":""}]
[null,null,null,null,null,{"$f":"IF(E2253=\"\",\"\",VLOOKUP(E2253,Insumos!AD:AE,2,FALSE))","v":""},null,{"$f":"IF(G2253=\"\",\"\",VLOOKUP(G2253,Insumos!G:H,2,FALSE))","v":""}]
[null,null,null,null,null,{"$f":"IF(E2254=\"\",\"\",VLOOKUP(E2254,Insumos!AD:AE,2,FALSE))","v":""},null,{"$f":"IF(G2254=\"\",\"\",VLOOKUP(G2254,Insumos!G:H,2,FALSE))","v":""}]
[null,null,null,null,null,{"$f":"IF(E2255=\"\",\"\",VLOOKUP(E2255,Insumos!AD:AE,2,FALSE))","v":""},null,{"$f":"IF(G2255=\"\",\"\",VLOOKUP(G2255,Insumos!G:H,2,FALSE))","v":""}]
[null,null,null,null,null,{"$f":"IF(E2256=\"\",\"\",VLOOKUP(E2256,Insumos!AD:AE,2,FALSE))","v":""},null,{"$f":"IF(G2256=\"\",\"\",VLOOKUP(G2256,Insumos!G:H,2,FALSE))","v":""}]
[null,null,null,null,null,{"$f":"IF(E2257=\"\",\"\",VLOOKUP(E2257,Insumos!AD:AE,2,FALSE))","v":""},null,{"$f":"IF(G2257=\"\",\"\",VLOOKUP(G2257,Insumos!G:H,2,FALSE))","v":""}]
[null,null,null,null,null,{"$f":"IF(E2258=\"\",\"\",VLOOKUP(E2258,Insumos!AD:AE,2,FALSE))","v":""},null,{"$f":"IF(G2258=\"\",\"\",VLOOKUP(G2258,Insumos!G:H,2,FALSE))","v":""}]
[null,null,null,null,null,{"$f":"IF(E2259=\"\",\"\",VLOOKUP(E2259,Insumos!AD:AE,2,FALSE))","v":""},null,{"$f":"IF(G2259=\"\",\"\",VLOOKUP(G2259,Insumos!G:H,2,FALSE))","v":""}]
[null,null,null,null,null,{"$f":"IF(E2260=\"\",\"\",VLOOKUP(E2260,Insumos!AD:AE,2,FALSE))","v":""},null,{"$f":"IF(G2260=\"\",\"\",VLOOKUP(G2260,Insumos!G:H,2,FALSE))","v":""}]
[null,null,null,null,null,{"$f":"IF(E2261=\"\",\"\",VLOOKUP(E2261,Insumos!AD:AE,2,FALSE))","v":""},null,{"$f":"IF(G2261=\"\",\"\",VLOOKUP(G2261,Insumos!G:H,2,FALSE))","v":""}]
[null,null,null,null,null,{"$f":"IF(E2262=\"\",\"\",VLOOKUP(E2262,Insumos!AD:AE,2,FALSE))","v":""},null,{"$f":"IF(G2262=\"\",\"\",VLOOKUP(G2262,Insumos!G:H,2,FALSE))","v":""}]
[null,null,null,null,null,{"$f":"IF(E2263=\"\",\"\",VLOOKUP(E2263,Insumos!AD:AE,2,FALSE))","v":""},null,{"$f":"IF(G2263=\"\",\"\",VLOOKUP(G2263,Insumos!G:H,2,FALSE))","v":""}]
[null,null,null,null,null,{"$f":"IF(E2264=\"\",\"\",VLOOKUP(E2264,Insumos!AD:AE,2,FALSE))","v":""},null,{"$f":"IF(G2264=\"\",\"\",VLOOKUP(G2264,Insumos!G:H,2,FALSE))","v":""}]
[null,null,null,null,null,{"$f":"IF(E2265=\"\",\"\",VLOOKUP(E2265,Insumos!AD:AE,2,FALSE))","v":""},null,{"$f":"IF(G2265=\"\",\"\",VLOOKUP(G2265,Insumos!G:H,2,FALSE))","v":""}]
[null,null,null,null,null,{"$f":"IF(E2266=\"\",\"\",VLOOKUP(E2266,Insumos!AD:AE,2,FALSE))","v":""},null,{"$f":"IF(G2266=\"\",\"\",VLOOKUP(G2266,Insumos!G:H,2,FALSE))","v":""}]
[null,null,null,null,null,{"$f":"IF(E2267=\"\",\"\",VLOOKUP(E2267,Insumos!AD:AE,2,FALSE))","v":""},null,{"$f":"IF(G2267=\"\",\"\",VLOOKUP(G2267,Insumos!G:H,2,FALSE))","v":""}]
[null,null,null,null,null,{"$f":"IF(E2268=\"\",\"\",VLOOKUP(E2268,Insumos!AD:AE,2,FALSE))","v":""},null,{"$f":"IF(G2268=\"\",\"\",VLOOKUP(G2268,Insumos!G:H,2,FALSE))","v":""}]
[null,null,null,null,null,{"$f":"IF(E2269=\"\",\"\",VLOOKUP(E2269,Insumos!AD:AE,2,FALSE))","v":""},null,{"$f":"IF(G2269=\"\",\"\",VLOOKUP(G2269,Insumos!G:H,2,FALSE))","v":""}]
[null,null,null,null,null,{"$f":"IF(E2270=\"\",\"\",VLOOKUP(E2270,Insumos!AD:AE,2,FALSE))","v":""},null,{"$f":"IF(G2270=\"\",\"\",VLOOKUP(G2270,Insumos!G:H,2,FALSE))","v":""}]
[null,null,null,null,null,{"$f":"IF(E2271=\"\",\"\",VLOOKUP(E2271,Insumos!AD:AE,2,FALSE))","v":""},null,{"$f":"IF(G2271=\"\",\"\",VLOOKUP(G2271,Insumos!G:H,2,FALSE))","v":""}]
[null,null,null,null,null,{"$f":"IF(E2272=\"\",\"\",VLOOKUP(E2272,Insumos!AD:AE,2,FALSE))","v":""},null,{"$f":"IF(G2272=\"\",\"\",VLOOKUP(G2272,Insumos!G:H,2,FALSE))","v":""}]
[null,null,null,null,null,{"$f":"IF(E2273=\"\",\"\",VLOOKUP(E2273,Insumos!AD:AE,2,FALSE))","v":""},null,{"$f":"IF(G2273=\"\",\"\",VLOOKUP(G2273,Insumos!G:H,2,FALSE))","v":""}]
[null,null,null,null,null,{"$f":"IF(E2274=\"\",\"\",VLOOKUP(E2274,Insumos!AD:AE,2,FALSE))","v":""},null,{"$f":"IF(G2274=\"\",\"\",VLOOKUP(G2274,Insumos!G:H,2,FALSE))","v":""}]
[null,null,null,null,null,{"$f":"IF(E2275=\"\",\"\",VLOOKUP(E2275,Insumos!AD:AE,2,FALSE))","v":""},null,{"$f":"IF(G2275=\"\",\"\",VLOOKUP(G2275,Insumos!G:H,2,FALSE))","v":""}]
[null,null,null,null,null,{"$f":"IF(E2276=\"\",\"\",VLOOKUP(E2276,Insumos!AD:AE,2,FALSE))","v":""},null,{"$f":"IF(G2276=\"\",\"\",VLOOKUP(G2276,Insumos!G:H,2,FALSE))","v":""}]
[null,null,null,null,null,{"$f":"IF(E2277=\"\",\"\",VLOOKUP(E2277,Insumos!AD:AE,2,FALSE))","v":""},null,{"$f":"IF(G2277=\"\",\"\",VLOOKUP(G2277,Insumos!G:H,2,FALSE))","v":""}]
[null,null,null,null,null,{"$f":"IF(E2278=\"\",\"\",VLOOKUP(E2278,Insumos!AD:AE,2,FALSE))","v":""},null,{"$f":"IF(G2278=\"\",\"\",VLOOKUP(G2278,Insumos!G:H,2,FALSE))","v":""}]
[null,null,null,null,null,{"$f":"IF(E2279=\"\",\"\",VLOOKUP(E2279,Insumos!AD:AE,2,FALSE))","v":""},null,{"$f":"IF(G2279=\"\",\"\",VLOOKUP(G2279,Insumos!G:H,2,FALSE))","v":""}]
[null,null,null,null,null,{"$f":"IF(E2280=\"\",\"\",VLOOKUP(E2280,Insumos!AD:AE,2,FALSE))","v":""},null,{"$f":"IF(G2280=\"\",\"\",VLOOKUP(G2280,Insumos!G:H,2,FALSE))","v":""}]
[null,null,null,null,null,{"$f":"IF(E2281=\"\",\"\",VLOOKUP(E2281,Insumos!AD:AE,2,FALSE))","v":""},null,{"$f":"IF(G2281=\"\",\"\",VLOOKUP(G2281,Insumos!G:H,2,FALSE))","v":""}]
[null,null,null,null,null,{"$f":"IF(E2282=\"\",\"\",VLOOKUP(E2282,Insumos!AD:AE,2,FALSE))","v":""},null,{"$f":"IF(G2282=\"\",\"\",VLOOKUP(G2282,Insumos!G:H,2,FALSE))","v":""}]
[null,null,null,null,null,{"$f":"IF(E2283=\"\",\"\",VLOOKUP(E2283,Insumos!AD:AE,2,FALSE))","v":""},null,{"$f":"IF(G2283=\"\",\"\",VLOOKUP(G2283,Insumos!G:H,2,FALSE))","v":""}]
[null,null,null,null,null,{"$f":"IF(E2284=\"\",\"\",VLOOKUP(E2284,Insumos!AD:AE,2,FALSE))","v":""},null,{"$f":"IF(G2284=\"\",\"\",VLOOKUP(G2284,Insumos!G:H,2,FALSE))","v":""}]
[null,null,null,null,null,{"$f":"IF(E2285=\"\",\"\",VLOOKUP(E2285,Insumos!AD:AE,2,FALSE))","v":""},null,{"$f":"IF(G2285=\"\",\"\",VLOOKUP(G2285,Insumos!G:H,2,FALSE))","v":""}]
[null,null,null,null,null,{"$f":"IF(E2286=\"\",\"\",VLOOKUP(E2286,Insumos!AD:AE,2,FALSE))","v":""},null,{"$f":"IF(G2286=\"\",\"\",VLOOKUP(G2286,Insumos!G:H,2,FALSE))","v":""}]
[null,null,null,null,null,{"$f":"IF(E2287=\"\",\"\",VLOOKUP(E2287,Insumos!AD:AE,2,FALSE))","v":""},null,{"$f":"IF(G2287=\"\",\"\",VLOOKUP(G2287,Insumos!G:H,2,FALSE))","v":""}]
[null,null,null,null,null,{"$f":"IF(E2288=\"\",\"\",VLOOKUP(E2288,Insumos!AD:AE,2,FALSE))","v":""},null,{"$f":"IF(G2288=\"\",\"\",VLOOKUP(G2288,Insumos!G:H,2,FALSE))","v":""}]
[null,null,null,null,null,{"$f":"IF(E2289=\"\",\"\",VLOOKUP(E2289,Insumos!AD:AE,2,FALSE))","v":""},null,{"$f":"IF(G2289=\"\",\"\",VLOOKUP(G2289,Insumos!G:H,2,FALSE))","v":""}]
[null,null,null,null,null,{"$f":"IF(E2290=\"\",\"\",VLOOKUP(E2290,Insumos!AD:AE,2,FALSE))","v":""},null,{"$f":"IF(G2290=\"\",\"\",VLOOKUP(G2290,Insumos!G:H,2,FALSE))","v":""}]
[null,null,null,null,null,{"$f":"IF(E2291=\"\",\"\",VLOOKUP(E2291,Insumos!AD:AE,2,FALSE))","v":""},null,{"$f":"IF(G2291=\"\",\"\",VLOOKUP(G2291,Insumos!G:H,2,FALSE))","v":""}]
[null,null,null,null,null,{"$f":"IF(E2292=\"\",\"\",VLOOKUP(E2292,Insumos!AD:AE,2,FALSE))","v":""},null,{"$f":"IF(G2292=\"\",\"\",VLOOKUP(G2292,Insumos!G:H,2,FALSE))","v":""}]
[null,null,null,null,null,{"$f":"IF(E2293=\"\",\"\",VLOOKUP(E2293,Insumos!AD:AE,2,FALSE))","v":""},null,{"$f":"IF(G2293=\"\",\"\",VLOOKUP(G2293,Insumos!G:H,2,FALSE))","v":""}]
[null,null,null,null,null,{"$f":"IF(E2294=\"\",\"\",VLOOKUP(E2294,Insumos!AD:AE,2,FALSE))","v":""},null,{"$f":"IF(G2294=\"\",\"\",VLOOKUP(G2294,Insumos!G:H,2,FALSE))","v":""}]
[null,null,null,null,null,{"$f":"IF(E2295=\"\",\"\",VLOOKUP(E2295,Insumos!AD:AE,2,FALSE))","v":""},null,{"$f":"IF(G2295=\"\",\"\",VLOOKUP(G2295,Insumos!G:H,2,FALSE))","v":""}]
[null,null,null,null,null,{"$f":"IF(E2296=\"\",\"\",VLOOKUP(E2296,Insumos!AD:AE,2,FALSE))","v":""},null,{"$f":"IF(G2296=\"\",\"\",VLOOKUP(G2296,Insumos!G:H,2,FALSE))","v":""}]
[null,null,null,null,null,{"$f":"IF(E2297=\"\",\"\",VLOOKUP(E2297,Insumos!AD:AE,2,FALSE))","v":""},null,{"$f":"IF(G2297=\"\",\"\",VLOOKUP(G2297,Insumos!G:H,2,FALSE))","v":""}]
[null,null,null,null,null,{"$f":"IF(E2298=\"\",\"\",VLOOKUP(E2298,Insumos!AD:AE,2,FALSE))","v":""},null,{"$f":"IF(G2298=\"\",\"\",VLOOKUP(G2298,Insumos!G:H,2,FALSE))","v":""}]
[null,null,null,null,null,{"$f":"IF(E2299=\"\",\"\",VLOOKUP(E2299,Insumos!AD:AE,2,FALSE))","v":""},null,{"$f":"IF(G2299=\"\",\"\",VLOOKUP(G2299,Insumos!G:H,2,FALSE))","v":""}]
[null,null,null,null,null,{"$f":"IF(E2300=\"\",\"\",VLOOKUP(E2300,Insumos!AD:AE,2,FALSE))","v":""},null,{"$f":"IF(G2300=\"\",\"\",VLOOKUP(G2300,Insumos!G:H,2,FALSE))","v":""}]
[null,null,null,null,null,{"$f":"IF(E2301=\"\",\"\",VLOOKUP(E2301,Insumos!AD:AE,2,FALSE))","v":""},null,{"$f":"IF(G2301=\"\",\"\",VLOOKUP(G2301,Insumos!G:H,2,FALSE))","v":""}]
[null,null,null,null,null,{"$f":"IF(E2302=\"\",\"\",VLOOKUP(E2302,Insumos!AD:AE,2,FALSE))","v":""},null,{"$f":"IF(G2302=\"\",\"\",VLOOKUP(G2302,Insumos!G:H,2,FALSE))","v":""}]
[null,null,null,null,null,{"$f":"IF(E2303=\"\",\"\",VLOOKUP(E2303,Insumos!AD:AE,2,FALSE))","v":""},null,{"$f":"IF(G2303=\"\",\"\",VLOOKUP(G2303,Insumos!G:H,2,FALSE))","v":""}]
[null,null,null,null,null,{"$f":"IF(E2304=\"\",\"\",VLOOKUP(E2304,Insumos!AD:AE,2,FALSE))","v":""},null,{"$f":"IF(G2304=\"\",\"\",VLOOKUP(G2304,Insumos!G:H,2,FALSE))","v":""}]
[null,null,null,null,null,{"$f":"IF(E2305=\"\",\"\",VLOOKUP(E2305,Insumos!AD:AE,2,FALSE))","v":""},null,{"$f":"IF(G2305=\"\",\"\",VLOOKUP(G2305,Insumos!G:H,2,FALSE))","v":""}]
[null,null,null,null,null,{"$f":"IF(E2306=\"\",\"\",VLOOKUP(E2306,Insumos!AD:AE,2,FALSE))","v":""},null,{"$f":"IF(G2306=\"\",\"\",VLOOKUP(G2306,Insumos!G:H,2,FALSE))","v":""}]
[null,null,null,null,null,{"$f":"IF(E2307=\"\",\"\",VLOOKUP(E2307,Insumos!AD:AE,2,FALSE))","v":""},null,{"$f":"IF(G2307=\"\",\"\",VLOOKUP(G2307,Insumos!G:H,2,FALSE))","v":""}]
[null,null,null,null,null,{"$f":"IF(E2308=\"\",\"\",VLOOKUP(E2308,Insumos!AD:AE,2,FALSE))","v":""},null,{"$f":"IF(G2308=\"\",\"\",VLOOKUP(G2308,Insumos!G:H,2,FALSE))","v":""}]
[null,null,null,null,null,{"$f":"IF(E2309=\"\",\"\",VLOOKUP(E2309,Insumos!AD:AE,2,FALSE))","v":""},null,{"$f":"IF(G2309=\"\",\"\",VLOOKUP(G2309,Insumos!G:H,2,FALSE))","v":""}]
[null,null,null,null,null,{"$f":"IF(E2310=\"\",\"\",VLOOKUP(E2310,Insumos!AD:AE,2,FALSE))","v":""},null,{"$f":"IF(G2310=\"\",\"\",VLOOKUP(G2310,Insumos!G:H,2,FALSE))","v":""}]
[null,null,null,null,null,{"$f":"IF(E2311=\"\",\"\",VLOOKUP(E2311,Insumos!AD:AE,2,FALSE))","v":""},null,{"$f":"IF(G2311=\"\",\"\",VLOOKUP(G2311,Insumos!G:H,2,FALSE))","v":""}]
[null,null,null,null,null,{"$f":"IF(E2312=\"\",\"\",VLOOKUP(E2312,Insumos!AD:AE,2,FALSE))","v":""},null,{"$f":"IF(G2312=\"\",\"\",VLOOKUP(G2312,Insumos!G:H,2,FALSE))","v":""}]
[null,null,null,null,null,{"$f":"IF(E2313=\"\",\"\",VLOOKUP(E2313,Insumos!AD:AE,2,FALSE))","v":""},null,{"$f":"IF(G2313=\"\",\"\",VLOOKUP(G2313,Insumos!G:H,2,FALSE))","v":""}]
[null,null,null,null,null,{"$f":"IF(E2314=\"\",\"\",VLOOKUP(E2314,Insumos!AD:AE,2,FALSE))","v":""},null,{"$f":"IF(G2314=\"\",\"\",VLOOKUP(G2314,Insumos!G:H,2,FALSE))","v":""}]
[null,null,null,null,null,{"$f":"IF(E2315=\"\",\"\",VLOOKUP(E2315,Insumos!AD:AE,2,FALSE))","v":""},null,{"$f":"IF(G2315=\"\",\"\",VLOOKUP(G2315,Insumos!G:H,2,FALSE))","v":""}]
[null,null,null,null,null,{"$f":"IF(E2316=\"\",\"\",VLOOKUP(E2316,Insumos!AD:AE,2,FALSE))","v":""},null,{"$f":"IF(G2316=\"\",\"\",VLOOKUP(G2316,Insumos!G:H,2,FALSE))","v":""}]
[null,null,null,null,null,{"$f":"IF(E2317=\"\",\"\",VLOOKUP(E2317,Insumos!AD:AE,2,FALSE))","v":""},null,{"$f":"IF(G2317=\"\",\"\",VLOOKUP(G2317,Insumos!G:H,2,FALSE))","v":""}]
[null,null,null,null,null,{"$f":"IF(E2318=\"\",\"\",VLOOKUP(E2318,Insumos!AD:AE,2,FALSE))","v":""},null,{"$f":"IF(G2318=\"\",\"\",VLOOKUP(G2318,Insumos!G:H,2,FALSE))","v":""}]
[null,null,null,null,null,{"$f":"IF(E2319=\"\",\"\",VLOOKUP(E2319,Insumos!AD:AE,2,FALSE))","v":""},null,{"$f":"IF(G2319=\"\",\"\",VLOOKUP(G2319,Insumos!G:H,2,FALSE))","v":""}]
[null,null,null,null,null,{"$f":"IF(E2320=\"\",\"\",VLOOKUP(E2320,Insumos!AD:AE,2,FALSE))","v":""},null,{"$f":"IF(G2320=\"\",\"\",VLOOKUP(G2320,Insumos!G:H,2,FALSE))","v":""}]
[null,null,null,null,null,{"$f":"IF(E2321=\"\",\"\",VLOOKUP(E2321,Insumos!AD:AE,2,FALSE))","v":""},null,{"$f":"IF(G2321=\"\",\"\",VLOOKUP(G2321,Insumos!G:H,2,FALSE))","v":""}]
[null,null,null,null,null,{"$f":"IF(E2322=\"\",\"\",VLOOKUP(E2322,Insumos!AD:AE,2,FALSE))","v":""},null,{"$f":"IF(G2322=\"\",\"\",VLOOKUP(G2322,Insumos!G:H,2,FALSE))","v":""}]
[null,null,null,null,null,{"$f":"IF(E2323=\"\",\"\",VLOOKUP(E2323,Insumos!AD:AE,2,FALSE))","v":""},null,{"$f":"IF(G2323=\"\",\"\",VLOOKUP(G2323,Insumos!G:H,2,FALSE))","v":""}]
[null,null,null,null,null,{"$f":"IF(E2324=\"\",\"\",VLOOKUP(E2324,Insumos!AD:AE,2,FALSE))","v":""},null,{"$f":"IF(G2324=\"\",\"\",VLOOKUP(G2324,Insumos!G:H,2,FALSE))","v":""}]
[null,null,null,null,null,{"$f":"IF(E2325=\"\",\"\",VLOOKUP(E2325,Insumos!AD:AE,2,FALSE))","v":""},null,{"$f":"IF(G2325=\"\",\"\",VLOOKUP(G2325,Insumos!G:H,2,FALSE))","v":""}]
[null,null,null,null,null,{"$f":"IF(E2326=\"\",\"\",VLOOKUP(E2326,Insumos!AD:AE,2,FALSE))","v":""},null,{"$f":"IF(G2326=\"\",\"\",VLOOKUP(G2326,Insumos!G:H,2,FALSE))","v":""}]
[null,null,null,null,null,{"$f":"IF(E2327=\"\",\"\",VLOOKUP(E2327,Insumos!AD:AE,2,FALSE))","v":""},null,{"$f":"IF(G2327=\"\",\"\",VLOOKUP(G2327,Insumos!G:H,2,FALSE))","v":""}]
[null,null,null,null,null,{"$f":"IF(E2328=\"\",\"\",VLOOKUP(E2328,Insumos!AD:AE,2,FALSE))","v":""},null,{"$f":"IF(G2328=\"\",\"\",VLOOKUP(G2328,Insumos!G:H,2,FALSE))","v":""}]
[null,null,null,null,null,{"$f":"IF(E2329=\"\",\"\",VLOOKUP(E2329,Insumos!AD:AE,2,FALSE))","v":""},null,{"$f":"IF(G2329=\"\",\"\",VLOOKUP(G2329,Insumos!G:H,2,FALSE))","v":""}]
[null,null,null,null,null,{"$f":"IF(E2330=\"\",\"\",VLOOKUP(E2330,Insumos!AD:AE,2,FALSE))","v":""},null,{"$f":"IF(G2330=\"\",\"\",VLOOKUP(G2330,Insumos!G:H,2,FALSE))","v":""}]
[null,null,null,null,null,{"$f":"IF(E2331=\"\",\"\",VLOOKUP(E2331,Insumos!AD:AE,2,FALSE))","v":""},null,{"$f":"IF(G2331=\"\",\"\",VLOOKUP(G2331,Insumos!G:H,2,FALSE))","v":""}]
[null,null,null,null,null,{"$f":"IF(E2332=\"\",\"\",VLOOKUP(E2332,Insumos!AD:AE,2,FALSE))","v":""},null,{"$f":"IF(G2332=\"\",\"\",VLOOKUP(G2332,Insumos!G:H,2,FALSE))","v":""}]
[null,null,null,null,null,{"$f":"IF(E2333=\"\",\"\",VLOOKUP(E2333,Insumos!AD:AE,2,FALSE))","v":""},null,{"$f":"IF(G2333=\"\",\"\",VLOOKUP(G2333,Insumos!G:H,2,FALSE))","v":""}]
[null,null,null,null,null,{"$f":"IF(E2334=\"\",\"\",VLOOKUP(E2334,Insumos!AD:AE,2,FALSE))","v":""},null,{"$f":"IF(G2334=\"\",\"\",VLOOKUP(G2334,Insumos!G:H,2,FALSE))","v":""}]
[null,null,null,null,null,{"$f":"IF(E2335=\"\",\"\",VLOOKUP(E2335,Insumos!AD:AE,2,FALSE))","v":""},null,{"$f":"IF(G2335=\"\",\"\",VLOOKUP(G2335,Insumos!G:H,2,FALSE))","v":""}]
[null,null,null,null,null,{"$f":"IF(E2336=\"\",\"\",VLOOKUP(E2336,Insumos!AD:AE,2,FALSE))","v":""},null,{"$f":"IF(G2336=\"\",\"\",VLOOKUP(G2336,Insumos!G:H,2,FALSE))","v":""}]
[null,null,null,null,null,{"$f":"IF(E2337=\"\",\"\",VLOOKUP(E2337,Insumos!AD:AE,2,FALSE))","v":""},null,{"$f":"IF(G2337=\"\",\"\",VLOOKUP(G2337,Insumos!G:H,2,FALSE))","v":""}]
[null,null,null,null,null,{"$f":"IF(E2338=\"\",\"\",VLOOKUP(E2338,Insumos!AD:AE,2,FALSE))","v":""},null,{"$f":"IF(G2338=\"\",\"\",VLOOKUP(G2338,Insumos!G:H,2,FALSE))","v":""}]
[null,null,null,null,null,{"$f":"IF(E2339=\"\",\"\",VLOOKUP(E2339,Insumos!AD:AE,2,FALSE))","v":""},null,{"$f":"IF(G2339=\"\",\"\",VLOOKUP(G2339,Insumos!G:H,2,FALSE))","v":""}]
[null,null,null,null,null,{"$f":"IF(E2340=\"\",\"\",VLOOKUP(E2340,Insumos!AD:AE,2,FALSE))","v":""},null,{"$f":"IF(G2340=\"\",\"\",VLOOKUP(G2340,Insumos!G:H,2,FALSE))","v":""}]
[null,null,null,null,null,{"$f":"IF(E2341=\"\",\"\",VLOOKUP(E2341,Insumos!AD:AE,2,FALSE))","v":""},null,{"$f":"IF(G2341=\"\",\"\",VLOOKUP(G2341,Insumos!G:H,2,FALSE))","v":""}]
[null,null,null,null,null,{"$f":"IF(E2342=\"\",\"\",VLOOKUP(E2342,Insumos!AD:AE,2,FALSE))","v":""},null,{"$f":"IF(G2342=\"\",\"\",VLOOKUP(G2342,Insumos!G:H,2,FALSE))","v":""}]
[null,null,null,null,null,{"$f":"IF(E2343=\"\",\"\",VLOOKUP(E2343,Insumos!AD:AE,2,FALSE))","v":""},null,{"$f":"IF(G2343=\"\",\"\",VLOOKUP(G2343,Insumos!G:H,2,FALSE))","v":""}]
[null,null,null,null,null,{"$f":"IF(E2344=\"\",\"\",VLOOKUP(E2344,Insumos!AD:AE,2,FALSE))","v":""},null,{"$f":"IF(G2344=\"\",\"\",VLOOKUP(G2344,Insumos!G:H,2,FALSE))","v":""}]
[null,null,null,null,null,{"$f":"IF(E2345=\"\",\"\",VLOOKUP(E2345,Insumos!AD:AE,2,FALSE))","v":""},null,{"$f":"IF(G2345=\"\",\"\",VLOOKUP(G2345,Insumos!G:H,2,FALSE))","v":""}]
[null,null,null,null,null,{"$f":"IF(E2346=\"\",\"\",VLOOKUP(E2346,Insumos!AD:AE,2,FALSE))","v":""},null,{"$f":"IF(G2346=\"\",\"\",VLOOKUP(G2346,Insumos!G:H,2,FALSE))","v":""}]
[null,null,null,null,null,{"$f":"IF(E2347=\"\",\"\",VLOOKUP(E2347,Insumos!AD:AE,2,FALSE))","v":""},null,{"$f":"IF(G2347=\"\",\"\",VLOOKUP(G2347,Insumos!G:H,2,FALSE))","v":""}]
[null,null,null,null,null,{"$f":"IF(E2348=\"\",\"\",VLOOKUP(E2348,Insumos!AD:AE,2,FALSE))","v":""},null,{"$f":"IF(G2348=\"\",\"\",VLOOKUP(G2348,Insumos!G:H,2,FALSE))","v":""}]
[null,null,null,null,null,{"$f":"IF(E2349=\"\",\"\",VLOOKUP(E2349,Insumos!AD:AE,2,FALSE))","v":""},null,{"$f":"IF(G2349=\"\",\"\",VLOOKUP(G2349,Insumos!G:H,2,FALSE))","v":""}]
[null,null,null,null,null,{"$f":"IF(E2350=\"\",\"\",VLOOKUP(E2350,Insumos!AD:AE,2,FALSE))","v":""},null,{"$f":"IF(G2350=\"\",\"\",VLOOKUP(G2350,Insumos!G:H,2,FALSE))","v":""}]
[null,null,null,null,null,{"$f":"IF(E2351=\"\",\"\",VLOOKUP(E2351,Insumos!AD:AE,2,FALSE))","v":""},null,{"$f":"IF(G2351=\"\",\"\",VLOOKUP(G2351,Insumos!G:H,2,FALSE))","v":""}]
[null,null,null,null,null,{"$f":"IF(E2352=\"\",\"\",VLOOKUP(E2352,Insumos!AD:AE,2,FALSE))","v":""},null,{"$f":"IF(G2352=\"\",\"\",VLOOKUP(G2352,Insumos!G:H,2,FALSE))","v":""}]
[null,null,null,null,null,{"$f":"IF(E2353=\"\",\"\",VLOOKUP(E2353,Insumos!AD:AE,2,FALSE))","v":""},null,{"$f":"IF(G2353=\"\",\"\",VLOOKUP(G2353,Insumos!G:H,2,FALSE))","v":""}]
[null,null,null,null,null,{"$f":"IF(E2354=\"\",\"\",VLOOKUP(E2354,Insumos!AD:AE,2,FALSE))","v":""},null,{"$f":"IF(G2354=\"\",\"\",VLOOKUP(G2354,Insumos!G:H,2,FALSE))","v":""}]
[null,null,null,null,null,{"$f":"IF(E2355=\"\",\"\",VLOOKUP(E2355,Insumos!AD:AE,2,FALSE))","v":""},null,{"$f":"IF(G2355=\"\",\"\",VLOOKUP(G2355,Insumos!G:H,2,FALSE))","v":""}]
[null,null,null,null,null,{"$f":"IF(E2356=\"\",\"\",VLOOKUP(E2356,Insumos!AD:AE,2,FALSE))","v":""},null,{"$f":"IF(G2356=\"\",\"\",VLOOKUP(G2356,Insumos!G:H,2,FALSE))","v":""}]
[null,null,null,null,null,{"$f":"IF(E2357=\"\",\"\",VLOOKUP(E2357,Insumos!AD:AE,2,FALSE))","v":""},null,{"$f":"IF(G2357=\"\",\"\",VLOOKUP(G2357,Insumos!G:H,2,FALSE))","v":""}]
[null,null,null,null,null,{"$f":"IF(E2358=\"\",\"\",VLOOKUP(E2358,Insumos!AD:AE,2,FALSE))","v":""},null,{"$f":"IF(G2358=\"\",\"\",VLOOKUP(G2358,Insumos!G:H,2,FALSE))","v":""}]
[null,null,null,null,null,{"$f":"IF(E2359=\"\",\"\",VLOOKUP(E2359,Insumos!AD:AE,2,FALSE))","v":""},null,{"$f":"IF(G2359=\"\",\"\",VLOOKUP(G2359,Insumos!G:H,2,FALSE))","v":""}]
[null,null,null,null,null,{"$f":"IF(E2360=\"\",\"\",VLOOKUP(E2360,Insumos!AD:AE,2,FALSE))","v":""},null,{"$f":"IF(G2360=\"\",\"\",VLOOKUP(G2360,Insumos!G:H,2,FALSE))","v":""}]
[null,null,null,null,null,{"$f":"IF(E2361=\"\",\"\",VLOOKUP(E2361,Insumos!AD:AE,2,FALSE))","v":""},null,{"$f":"IF(G2361=\"\",\"\",VLOOKUP(G2361,Insumos!G:H,2,FALSE))","v":""}]
[null,null,null,null,null,{"$f":"IF(E2362=\"\",\"\",VLOOKUP(E2362,Insumos!AD:AE,2,FALSE))","v":""},null,{"$f":"IF(G2362=\"\",\"\",VLOOKUP(G2362,Insumos!G:H,2,FALSE))","v":""}]
[null,null,null,null,null,{"$f":"IF(E2363=\"\",\"\",VLOOKUP(E2363,Insumos!AD:AE,2,FALSE))","v":""},null,{"$f":"IF(G2363=\"\",\"\",VLOOKUP(G2363,Insumos!G:H,2,FALSE))","v":""}]
[null,null,null,null,null,{"$f":"IF(E2364=\"\",\"\",VLOOKUP(E2364,Insumos!AD:AE,2,FALSE))","v":""},null,{"$f":"IF(G2364=\"\",\"\",VLOOKUP(G2364,Insumos!G:H,2,FALSE))","v":""}]
[null,null,null,null,null,{"$f":"IF(E2365=\"\",\"\",VLOOKUP(E2365,Insumos!AD:AE,2,FALSE))","v":""},null,{"$f":"IF(G2365=\"\",\"\",VLOOKUP(G2365,Insumos!G:H,2,FALSE))","v":""}]
[null,null,null,null,null,{"$f":"IF(E2366=\"\",\"\",VLOOKUP(E2366,Insumos!AD:AE,2,FALSE))","v":""},null,{"$f":"IF(G2366=\"\",\"\",VLOOKUP(G2366,Insumos!G:H,2,FALSE))","v":""}]
[null,null,null,null,null,{"$f":"IF(E2367=\"\",\"\",VLOOKUP(E2367,Insumos!AD:AE,2,FALSE))","v":""},null,{"$f":"IF(G2367=\"\",\"\",VLOOKUP(G2367,Insumos!G:H,2,FALSE))","v":""}]
[null,null,null,null,null,{"$f":"IF(E2368=\"\",\"\",VLOOKUP(E2368,Insumos!AD:AE,2,FALSE))","v":""},null,{"$f":"IF(G2368=\"\",\"\",VLOOKUP(G2368,Insumos!G:H,2,FALSE))","v":""}]
[null,null,null,null,null,{"$f":"IF(E2369=\"\",\"\",VLOOKUP(E2369,Insumos!AD:AE,2,FALSE))","v":""},null,{"$f":"IF(G2369=\"\",\"\",VLOOKUP(G2369,Insumos!G:H,2,FALSE))","v":""}]
[null,null,null,null,null,{"$f":"IF(E2370=\"\",\"\",VLOOKUP(E2370,Insumos!AD:AE,2,FALSE))","v":""},null,{"$f":"IF(G2370=\"\",\"\",VLOOKUP(G2370,Insumos!G:H,2,FALSE))","v":""}]
[null,null,null,null,null,{"$f":"IF(E2371=\"\",\"\",VLOOKUP(E2371,Insumos!AD:AE,2,FALSE))","v":""},null,{"$f":"IF(G2371=\"\",\"\",VLOOKUP(G2371,Insumos!G:H,2,FALSE))","v":""}]
[null,null,null,null,null,{"$f":"IF(E2372=\"\",\"\",VLOOKUP(E2372,Insumos!AD:AE,2,FALSE))","v":""},null,{"$f":"IF(G2372=\"\",\"\",VLOOKUP(G2372,Insumos!G:H,2,FALSE))","v":""}]
[null,null,null,null,null,{"$f":"IF(E2373=\"\",\"\",VLOOKUP(E2373,Insumos!AD:AE,2,FALSE))","v":""},null,{"$f":"IF(G2373=\"\",\"\",VLOOKUP(G2373,Insumos!G:H,2,FALSE))","v":""}]
[null,null,null,null,null,{"$f":"IF(E2374=\"\",\"\",VLOOKUP(E2374,Insumos!AD:AE,2,FALSE))","v":""},null,{"$f":"IF(G2374=\"\",\"\",VLOOKUP(G2374,Insumos!G:H,2,FALSE))","v":""}]
[null,null,null,null,null,{"$f":"IF(E2375=\"\",\"\",VLOOKUP(E2375,Insumos!AD:AE,2,FALSE))","v":""},null,{"$f":"IF(G2375=\"\",\"\",VLOOKUP(G2375,Insumos!G:H,2,FALSE))","v":""}]
[null,null,null,null,null,{"$f":"IF(E2376=\"\",\"\",VLOOKUP(E2376,Insumos!AD:AE,2,FALSE))","v":""},null,{"$f":"IF(G2376=\"\",\"\",VLOOKUP(G2376,Insumos!G:H,2,FALSE))","v":""}]
[null,null,null,null,null,{"$f":"IF(E2377=\"\",\"\",VLOOKUP(E2377,Insumos!AD:AE,2,FALSE))","v":""},null,{"$f":"IF(G2377=\"\",\"\",VLOOKUP(G2377,Insumos!G:H,2,FALSE))","v":""}]
[null,null,null,null,null,{"$f":"IF(E2378=\"\",\"\",VLOOKUP(E2378,Insumos!AD:AE,2,FALSE))","v":""},null,{"$f":"IF(G2378=\"\",\"\",VLOOKUP(G2378,Insumos!G:H,2,FALSE))","v":""}]
[null,null,null,null,null,{"$f":"IF(E2379=\"\",\"\",VLOOKUP(E2379,Insumos!AD:AE,2,FALSE))","v":""},null,{"$f":"IF(G2379=\"\",\"\",VLOOKUP(G2379,Insumos!G:H,2,FALSE))","v":""}]
[null,null,null,null,null,{"$f":"IF(E2380=\"\",\"\",VLOOKUP(E2380,Insumos!AD:AE,2,FALSE))","v":""},null,{"$f":"IF(G2380=\"\",\"\",VLOOKUP(G2380,Insumos!G:H,2,FALSE))","v":""}]
[null,null,null,null,null,{"$f":"IF(E2381=\"\",\"\",VLOOKUP(E2381,Insumos!AD:AE,2,FALSE))","v":""},null,{"$f":"IF(G2381=\"\",\"\",VLOOKUP(G2381,Insumos!G:H,2,FALSE))","v":""}]
[null,null,null,null,null,{"$f":"IF(E2382=\"\",\"\",VLOOKUP(E2382,Insumos!AD:AE,2,FALSE))","v":""},null,{"$f":"IF(G2382=\"\",\"\",VLOOKUP(G2382,Insumos!G:H,2,FALSE))","v":""}]
[null,null,null,null,null,{"$f":"IF(E2383=\"\",\"\",VLOOKUP(E2383,Insumos!AD:AE,2,FALSE))","v":""},null,{"$f":"IF(G2383=\"\",\"\",VLOOKUP(G2383,Insumos!G:H,2,FALSE))","v":""}]
[null,null,null,null,null,{"$f":"IF(E2384=\"\",\"\",VLOOKUP(E2384,Insumos!AD:AE,2,FALSE))","v":""},null,{"$f":"IF(G2384=\"\",\"\",VLOOKUP(G2384,Insumos!G:H,2,FALSE))","v":""}]
[null,null,null,null,null,{"$f":"IF(E2385=\"\",\"\",VLOOKUP(E2385,Insumos!AD:AE,2,FALSE))","v":""},null,{"$f":"IF(G2385=\"\",\"\",VLOOKUP(G2385,Insumos!G:H,2,FALSE))","v":""}]
[null,null,null,null,null,{"$f":"IF(E2386=\"\",\"\",VLOOKUP(E2386,Insumos!AD:AE,2,FALSE))","v":""},null,{"$f":"IF(G2386=\"\",\"\",VLOOKUP(G2386,Insumos!G:H,2,FALSE))","v":""}]
[null,null,null,null,null,{"$f":"IF(E2387=\"\",\"\",VLOOKUP(E2387,Insumos!AD:AE,2,FALSE))","v":""},null,{"$f":"IF(G2387=\"\",\"\",VLOOKUP(G2387,Insumos!G:H,2,FALSE))","v":""}]
[null,null,null,null,null,{"$f":"IF(E2388=\"\",\"\",VLOOKUP(E2388,Insumos!AD:AE,2,FALSE))","v":""},null,{"$f":"IF(G2388=\"\",\"\",VLOOKUP(G2388,Insumos!G:H,2,FALSE))","v":""}]
[null,null,null,null,null,{"$f":"IF(E2389=\"\",\"\",VLOOKUP(E2389,Insumos!AD:AE,2,FALSE))","v":""},null,{"$f":"IF(G2389=\"\",\"\",VLOOKUP(G2389,Insumos!G:H,2,FALSE))","v":""}]
[null,null,null,null,null,{"$f":"IF(E2390=\"\",\"\",VLOOKUP(E2390,Insumos!AD:AE,2,FALSE))","v":""},null,{"$f":"IF(G2390=\"\",\"\",VLOOKUP(G2390,Insumos!G:H,2,FALSE))","v":""}]
[null,null,null,null,null,{"$f":"IF(E2391=\"\",\"\",VLOOKUP(E2391,Insumos!AD:AE,2,FALSE))","v":""},null,{"$f":"IF(G2391=\"\",\"\",VLOOKUP(G2391,Insumos!G:H,2,FALSE))","v":""}]
[null,null,null,null,null,{"$f":"IF(E2392=\"\",\"\",VLOOKUP(E2392,Insumos!AD:AE,2,FALSE))","v":""},null,{"$f":"IF(G2392=\"\",\"\",VLOOKUP(G2392,Insumos!G:H,2,FALSE))","v":""}]
[null,null,null,null,null,{"$f":"IF(E2393=\"\",\"\",VLOOKUP(E2393,Insumos!AD:AE,2,FALSE))","v":""},null,{"$f":"IF(G2393=\"\",\"\",VLOOKUP(G2393,Insumos!G:H,2,FALSE))","v":""}]
[null,null,null,null,null,{"$f":"IF(E2394=\"\",\"\",VLOOKUP(E2394,Insumos!AD:AE,2,FALSE))","v":""},null,{"$f":"IF(G2394=\"\",\"\",VLOOKUP(G2394,Insumos!G:H,2,FALSE))","v":""}]
[null,null,null,null,null,{"$f":"IF(E2395=\"\",\"\",VLOOKUP(E2395,Insumos!AD:AE,2,FALSE))","v":""},null,{"$f":"IF(G2395=\"\",\"\",VLOOKUP(G2395,Insumos!G:H,2,FALSE))","v":""}]
[null,null,null,null,null,{"$f":"IF(E2396=\"\",\"\",VLOOKUP(E2396,Insumos!AD:AE,2,FALSE))","v":""},null,{"$f":"IF(G2396=\"\",\"\",VLOOKUP(G2396,Insumos!G:H,2,FALSE))","v":""}]
[null,null,null,null,null,{"$f":"IF(E2397=\"\",\"\",VLOOKUP(E2397,Insumos!AD:AE,2,FALSE))","v":""},null,{"$f":"IF(G2397=\"\",\"\",VLOOKUP(G2397,Insumos!G:H,2,FALSE))","v":""}]
[null,null,null,null,null,{"$f":"IF(E2398=\"\",\"\",VLOOKUP(E2398,Insumos!AD:AE,2,FALSE))","v":""},null,{"$f":"IF(G2398=\"\",\"\",VLOOKUP(G2398,Insumos!G:H,2,FALSE))","v":""}]
[null,null,null,null,null,{"$f":"IF(E2399=\"\",\"\",VLOOKUP(E2399,Insumos!AD:AE,2,FALSE))","v":""},null,{"$f":"IF(G2399=\"\",\"\",VLOOKUP(G2399,Insumos!G:H,2,FALSE))","v":""}]
[null,null,null,null,null,{"$f":"IF(E2400=\"\",\"\",VLOOKUP(E2400,Insumos!AD:AE,2,FALSE))","v":""},null,{"$f":"IF(G2400=\"\",\"\",VLOOKUP(G2400,Insumos!G:H,2,FALSE))","v":""}]
[null,null,null,null,null,{"$f":"IF(E2401=\"\",\"\",VLOOKUP(E2401,Insumos!AD:AE,2,FALSE))","v":""},null,{"$f":"IF(G2401=\"\",\"\",VLOOKUP(G2401,Insumos!G:H,2,FALSE))","v":""}]
[null,null,null,null,null,{"$f":"IF(E2402=\"\",\"\",VLOOKUP(E2402,Insumos!AD:AE,2,FALSE))","v":""},null,{"$f":"IF(G2402=\"\",\"\",VLOOKUP(G2402,Insumos!G:H,2,FALSE))","v":""}]
[null,null,null,null,null,{"$f":"IF(E2403=\"\",\"\",VLOOKUP(E2403,Insumos!AD:AE,2,FALSE))","v":""},null,{"$f":"IF(G2403=\"\",\"\",VLOOKUP(G2403,Insumos!G:H,2,FALSE))","v":""}]
[null,null,null,null,null,{"$f":"IF(E2404=\"\",\"\",VLOOKUP(E2404,Insumos!AD:AE,2,FALSE))","v":""},null,{"$f":"IF(G2404=\"\",\"\",VLOOKUP(G2404,Insumos!G:H,2,FALSE))","v":""}]
[null,null,null,null,null,{"$f":"IF(E2405=\"\",\"\",VLOOKUP(E2405,Insumos!AD:AE,2,FALSE))","v":""},null,{"$f":"IF(G2405=\"\",\"\",VLOOKUP(G2405,Insumos!G:H,2,FALSE))","v":""}]
[null,null,null,null,null,{"$f":"IF(E2406=\"\",\"\",VLOOKUP(E2406,Insumos!AD:AE,2,FALSE))","v":""},null,{"$f":"IF(G2406=\"\",\"\",VLOOKUP(G2406,Insumos!G:H,2,FALSE))","v":""}]
[null,null,null,null,null,{"$f":"IF(E2407=\"\",\"\",VLOOKUP(E2407,Insumos!AD:AE,2,FALSE))","v":""},null,{"$f":"IF(G2407=\"\",\"\",VLOOKUP(G2407,Insumos!G:H,2,FALSE))","v":""}]
[null,null,null,null,null,{"$f":"IF(E2408=\"\",\"\",VLOOKUP(E2408,Insumos!AD:AE,2,FALSE))","v":""},null,{"$f":"IF(G2408=\"\",\"\",VLOOKUP(G2408,Insumos!G:H,2,FALSE))","v":""}]
[null,null,null,null,null,{"$f":"IF(E2409=\"\",\"\",VLOOKUP(E2409,Insumos!AD:AE,2,FALSE))","v":""},null,{"$f":"IF(G2409=\"\",\"\",VLOOKUP(G2409,Insumos!G:H,2,FALSE))","v":""}]
[null,null,null,null,null,{"$f":"IF(E2410=\"\",\"\",VLOOKUP(E2410,Insumos!AD:AE,2,FALSE))","v":""},null,{"$f":"IF(G2410=\"\",\"\",VLOOKUP(G2410,Insumos!G:H,2,FALSE))","v":""}]
[null,null,null,null,null,{"$f":"IF(E2411=\"\",\"\",VLOOKUP(E2411,Insumos!AD:AE,2,FALSE))","v":""},null,{"$f":"IF(G2411=\"\",\"\",VLOOKUP(G2411,Insumos!G:H,2,FALSE))","v":""}]
[null,null,null,null,null,{"$f":"IF(E2412=\"\",\"\",VLOOKUP(E2412,Insumos!AD:AE,2,FALSE))","v":""},null,{"$f":"IF(G2412=\"\",\"\",VLOOKUP(G2412,Insumos!G:H,2,FALSE))","v":""}]
[null,null,null,null,null,{"$f":"IF(E2413=\"\",\"\",VLOOKUP(E2413,Insumos!AD:AE,2,FALSE))","v":""},null,{"$f":"IF(G2413=\"\",\"\",VLOOKUP(G2413,Insumos!G:H,2,FALSE))","v":""}]
[null,null,null,null,null,{"$f":"IF(E2414=\"\",\"\",VLOOKUP(E2414,Insumos!AD:AE,2,FALSE))","v":""},null,{"$f":"IF(G2414=\"\",\"\",VLOOKUP(G2414,Insumos!G:H,2,FALSE))","v":""}]
[null,null,null,null,null,{"$f":"IF(E2415=\"\",\"\",VLOOKUP(E2415,Insumos!AD:AE,2,FALSE))","v":""},null,{"$f":"IF(G2415=\"\",\"\",VLOOKUP(G2415,Insumos!G:H,2,FALSE))","v":""}]
[null,null,null,null,null,{"$f":"IF(E2416=\"\",\"\",VLOOKUP(E2416,Insumos!AD:AE,2,FALSE))","v":""},null,{"$f":"IF(G2416=\"\",\"\",VLOOKUP(G2416,Insumos!G:H,2,FALSE))","v":""}]
[null,null,null,null,null,{"$f":"IF(E2417=\"\",\"\",VLOOKUP(E2417,Insumos!AD:AE,2,FALSE))","v":""},null,{"$f":"IF(G2417=\"\",\"\",VLOOKUP(G2417,Insumos!G:H,2,FALSE))","v":""}]
[null,null,null,null,null,{"$f":"IF(E2418=\"\",\"\",VLOOKUP(E2418,Insumos!AD:AE,2,FALSE))","v":""},null,{"$f":"IF(G2418=\"\",\"\",VLOOKUP(G2418,Insumos!G:H,2,FALSE))","v":""}]
[null,null,null,null,null,{"$f":"IF(E2419=\"\",\"\",VLOOKUP(E2419,Insumos!AD:AE,2,FALSE))","v":""},null,{"$f":"IF(G2419=\"\",\"\",VLOOKUP(G2419,Insumos!G:H,2,FALSE))","v":""}]
[null,null,null,null,null,{"$f":"IF(E2420=\"\",\"\",VLOOKUP(E2420,Insumos!AD:AE,2,FALSE))","v":""},null,{"$f":"IF(G2420=\"\",\"\",VLOOKUP(G2420,Insumos!G:H,2,FALSE))","v":""}]
[null,null,null,null,null,{"$f":"IF(E2421=\"\",\"\",VLOOKUP(E2421,Insumos!AD:AE,2,FALSE))","v":""},null,{"$f":"IF(G2421=\"\",\"\",VLOOKUP(G2421,Insumos!G:H,2,FALSE))","v":""}]
[null,null,null,null,null,{"$f":"IF(E2422=\"\",\"\",VLOOKUP(E2422,Insumos!AD:AE,2,FALSE))","v":""},null,{"$f":"IF(G2422=\"\",\"\",VLOOKUP(G2422,Insumos!G:H,2,FALSE))","v":""}]
[null,null,null,null,null,{"$f":"IF(E2423=\"\",\"\",VLOOKUP(E2423,Insumos!AD:AE,2,FALSE))","v":""},null,{"$f":"IF(G2423=\"\",\"\",VLOOKUP(G2423,Insumos!G:H,2,FALSE))","v":""}]
[null,null,null,null,null,{"$f":"IF(E2424=\"\",\"\",VLOOKUP(E2424,Insumos!AD:AE,2,FALSE))","v":""},null,{"$f":"IF(G2424=\"\",\"\",VLOOKUP(G2424,Insumos!G:H,2,FALSE))","v":""}]
[null,null,null,null,null,{"$f":"IF(E2425=\"\",\"\",VLOOKUP(E2425,Insumos!AD:AE,2,FALSE))","v":""},null,{"$f":"IF(G2425=\"\",\"\",VLOOKUP(G2425,Insumos!G:H,2,FALSE))","v":""}]
[null,null,null,null,null,{"$f":"IF(E2426=\"\",\"\",VLOOKUP(E2426,Insumos!AD:AE,2,FALSE))","v":""},null,{"$f":"IF(G2426=\"\",\"\",VLOOKUP(G2426,Insumos!G:H,2,FALSE))","v":""}]
[null,null,null,null,null,{"$f":"IF(E2427=\"\",\"\",VLOOKUP(E2427,Insumos!AD:AE,2,FALSE))","v":""},null,{"$f":"IF(G2427=\"\",\"\",VLOOKUP(G2427,Insumos!G:H,2,FALSE))","v":""}]
[null,null,null,null,null,{"$f":"IF(E2428=\"\",\"\",VLOOKUP(E2428,Insumos!AD:AE,2,FALSE))","v":""},null,{"$f":"IF(G2428=\"\",\"\",VLOOKUP(G2428,Insumos!G:H,2,FALSE))","v":""}]
[null,null,null,null,null,{"$f":"IF(E2429=\"\",\"\",VLOOKUP(E2429,Insumos!AD:AE,2,FALSE))","v":""},null,{"$f":"IF(G2429=\"\",\"\",VLOOKUP(G2429,Insumos!G:H,2,FALSE))","v":""}]
[null,null,null,null,null,{"$f":"IF(E2430=\"\",\"\",VLOOKUP(E2430,Insumos!AD:AE,2,FALSE))","v":""},null,{"$f":"IF(G2430=\"\",\"\",VLOOKUP(G2430,Insumos!G:H,2,FALSE))","v":""}]
[null,null,null,null,null,{"$f":"IF(E2431=\"\",\"\",VLOOKUP(E2431,Insumos!AD:AE,2,FALSE))","v":""},null,{"$f":"IF(G2431=\"\",\"\",VLOOKUP(G2431,Insumos!G:H,2,FALSE))","v":""}]
[null,null,null,null,null,{"$f":"IF(E2432=\"\",\"\",VLOOKUP(E2432,Insumos!AD:AE,2,FALSE))","v":""},null,{"$f":"IF(G2432=\"\",\"\",VLOOKUP(G2432,Insumos!G:H,2,FALSE))","v":""}]
[null,null,null,null,null,{"$f":"IF(E2433=\"\",\"\",VLOOKUP(E2433,Insumos!AD:AE,2,FALSE))","v":""},null,{"$f":"IF(G2433=\"\",\"\",VLOOKUP(G2433,Insumos!G:H,2,FALSE))","v":""}]
[null,null,null,null,null,{"$f":"IF(E2434=\"\",\"\",VLOOKUP(E2434,Insumos!AD:AE,2,FALSE))","v":""},null,{"$f":"IF(G2434=\"\",\"\",VLOOKUP(G2434,Insumos!G:H,2,FALSE))","v":""}]
[null,null,null,null,null,{"$f":"IF(E2435=\"\",\"\",VLOOKUP(E2435,Insumos!AD:AE,2,FALSE))","v":""},null,{"$f":"IF(G2435=\"\",\"\",VLOOKUP(G2435,Insumos!G:H,2,FALSE))","v":""}]
[null,null,null,null,null,{"$f":"IF(E2436=\"\",\"\",VLOOKUP(E2436,Insumos!AD:AE,2,FALSE))","v":""},null,{"$f":"IF(G2436=\"\",\"\",VLOOKUP(G2436,Insumos!G:H,2,FALSE))","v":""}]
[null,null,null,null,null,{"$f":"IF(E2437=\"\",\"\",VLOOKUP(E2437,Insumos!AD:AE,2,FALSE))","v":""},null,{"$f":"IF(G2437=\"\",\"\",VLOOKUP(G2437,Insumos!G:H,2,FALSE))","v":""}]
[null,null,null,null,null,{"$f":"IF(E2438=\"\",\"\",VLOOKUP(E2438,Insumos!AD:AE,2,FALSE))","v":""},null,{"$f":"IF(G2438=\"\",\"\",VLOOKUP(G2438,Insumos!G:H,2,FALSE))","v":""}]
[null,null,null,null,null,{"$f":"IF(E2439=\"\",\"\",VLOOKUP(E2439,Insumos!AD:AE,2,FALSE))","v":""},null,{"$f":"IF(G2439=\"\",\"\",VLOOKUP(G2439,Insumos!G:H,2,FALSE))","v":""}]
[null,null,null,null,null,{"$f":"IF(E2440=\"\",\"\",VLOOKUP(E2440,Insumos!AD:AE,2,FALSE))","v":""},null,{"$f":"IF(G2440=\"\",\"\",VLOOKUP(G2440,Insumos!G:H,2,FALSE))","v":""}]
[null,null,null,null,null,{"$f":"IF(E2441=\"\",\"\",VLOOKUP(E2441,Insumos!AD:AE,2,FALSE))","v":""},null,{"$f":"IF(G2441=\"\",\"\",VLOOKUP(G2441,Insumos!G:H,2,FALSE))","v":""}]
[null,null,null,null,null,{"$f":"IF(E2442=\"\",\"\",VLOOKUP(E2442,Insumos!AD:AE,2,FALSE))","v":""},null,{"$f":"IF(G2442=\"\",\"\",VLOOKUP(G2442,Insumos!G:H,2,FALSE))","v":""}]
[null,null,null,null,null,{"$f":"IF(E2443=\"\",\"\",VLOOKUP(E2443,Insumos!AD:AE,2,FALSE))","v":""},null,{"$f":"IF(G2443=\"\",\"\",VLOOKUP(G2443,Insumos!G:H,2,FALSE))","v":""}]
[null,null,null,null,null,{"$f":"IF(E2444=\"\",\"\",VLOOKUP(E2444,Insumos!AD:AE,2,FALSE))","v":""},null,{"$f":"IF(G2444=\"\",\"\",VLOOKUP(G2444,Insumos!G:H,2,FALSE))","v":""}]
[null,null,null,null,null,{"$f":"IF(E2445=\"\",\"\",VLOOKUP(E2445,Insumos!AD:AE,2,FALSE))","v":""},null,{"$f":"IF(G2445=\"\",\"\",VLOOKUP(G2445,Insumos!G:H,2,FALSE))","v":""}]
[null,null,null,null,null,{"$f":"IF(E2446=\"\",\"\",VLOOKUP(E2446,Insumos!AD:AE,2,FALSE))","v":""},null,{"$f":"IF(G2446=\"\",\"\",VLOOKUP(G2446,Insumos!G:H,2,FALSE))","v":""}]
[null,null,null,null,null,{"$f":"IF(E2447=\"\",\"\",VLOOKUP(E2447,Insumos!AD:AE,2,FALSE))","v":""},null,{"$f":"IF(G2447=\"\",\"\",VLOOKUP(G2447,Insumos!G:H,2,FALSE))","v":""}]
[null,null,null,null,null,{"$f":"IF(E2448=\"\",\"\",VLOOKUP(E2448,Insumos!AD:AE,2,FALSE))","v":""},null,{"$f":"IF(G2448=\"\",\"\",VLOOKUP(G2448,Insumos!G:H,2,FALSE))","v":""}]
[null,null,null,null,null,{"$f":"IF(E2449=\"\",\"\",VLOOKUP(E2449,Insumos!AD:AE,2,FALSE))","v":""},null,{"$f":"IF(G2449=\"\",\"\",VLOOKUP(G2449,Insumos!G:H,2,FALSE))","v":""}]
[null,null,null,null,null,{"$f":"IF(E2450=\"\",\"\",VLOOKUP(E2450,Insumos!AD:AE,2,FALSE))","v":""},null,{"$f":"IF(G2450=\"\",\"\",VLOOKUP(G2450,Insumos!G:H,2,FALSE))","v":""}]
[null,null,null,null,null,{"$f":"IF(E2451=\"\",\"\",VLOOKUP(E2451,Insumos!AD:AE,2,FALSE))","v":""},null,{"$f":"IF(G2451=\"\",\"\",VLOOKUP(G2451,Insumos!G:H,2,FALSE))","v":""}]
[null,null,null,null,null,{"$f":"IF(E2452=\"\",\"\",VLOOKUP(E2452,Insumos!AD:AE,2,FALSE))","v":""},null,{"$f":"IF(G2452=\"\",\"\",VLOOKUP(G2452,Insumos!G:H,2,FALSE))","v":""}]
[null,null,null,null,null,{"$f":"IF(E2453=\"\",\"\",VLOOKUP(E2453,Insumos!AD:AE,2,FALSE))","v":""},null,{"$f":"IF(G2453=\"\",\"\",VLOOKUP(G2453,Insumos!G:H,2,FALSE))","v":""}]
[null,null,null,null,null,{"$f":"IF(E2454=\"\",\"\",VLOOKUP(E2454,Insumos!AD:AE,2,FALSE))","v":""},null,{"$f":"IF(G2454=\"\",\"\",VLOOKUP(G2454,Insumos!G:H,2,FALSE))","v":""}]
[null,null,null,null,null,{"$f":"IF(E2455=\"\",\"\",VLOOKUP(E2455,Insumos!AD:AE,2,FALSE))","v":""},null,{"$f":"IF(G2455=\"\",\"\",VLOOKUP(G2455,Insumos!G:H,2,FALSE))","v":""}]
[null,null,null,null,null,{"$f":"IF(E2456=\"\",\"\",VLOOKUP(E2456,Insumos!AD:AE,2,FALSE))","v":""},null,{"$f":"IF(G2456=\"\",\"\",VLOOKUP(G2456,Insumos!G:H,2,FALSE))","v":""}]
[null,null,null,null,null,{"$f":"IF(E2457=\"\",\"\",VLOOKUP(E2457,Insumos!AD:AE,2,FALSE))","v":""},null,{"$f":"IF(G2457=\"\",\"\",VLOOKUP(G2457,Insumos!G:H,2,FALSE))","v":""}]
[null,null,null,null,null,{"$f":"IF(E2458=\"\",\"\",VLOOKUP(E2458,Insumos!AD:AE,2,FALSE))","v":""},null,{"$f":"IF(G2458=\"\",\"\",VLOOKUP(G2458,Insumos!G:H,2,FALSE))","v":""}]
[null,null,null,null,null,{"$f":"IF(E2459=\"\",\"\",VLOOKUP(E2459,Insumos!AD:AE,2,FALSE))","v":""},null,{"$f":"IF(G2459=\"\",\"\",VLOOKUP(G2459,Insumos!G:H,2,FALSE))","v":""}]
[null,null,null,null,null,{"$f":"IF(E2460=\"\",\"\",VLOOKUP(E2460,Insumos!AD:AE,2,FALSE))","v":""},null,{"$f":"IF(G2460=\"\",\"\",VLOOKUP(G2460,Insumos!G:H,2,FALSE))","v":""}]
[null,null,null,null,null,{"$f":"IF(E2461=\"\",\"\",VLOOKUP(E2461,Insumos!AD:AE,2,FALSE))","v":""},null,{"$f":"IF(G2461=\"\",\"\",VLOOKUP(G2461,Insumos!G:H,2,FALSE))","v":""}]
[null,null,null,null,null,{"$f":"IF(E2462=\"\",\"\",VLOOKUP(E2462,Insumos!AD:AE,2,FALSE))","v":""},null,{"$f":"IF(G2462=\"\",\"\",VLOOKUP(G2462,Insumos!G:H,2,FALSE))","v":""}]
[null,null,null,null,null,{"$f":"IF(E2463=\"\",\"\",VLOOKUP(E2463,Insumos!AD:AE,2,FALSE))","v":""},null,{"$f":"IF(G2463=\"\",\"\",VLOOKUP(G2463,Insumos!G:H,2,FALSE))","v":""}]
[null,null,null,null,null,{"$f":"IF(E2464=\"\",\"\",VLOOKUP(E2464,Insumos!AD:AE,2,FALSE))","v":""},null,{"$f":"IF(G2464=\"\",\"\",VLOOKUP(G2464,Insumos!G:H,2,FALSE))","v":""}]
[null,null,null,null,null,{"$f":"IF(E2465=\"\",\"\",VLOOKUP(E2465,Insumos!AD:AE,2,FALSE))","v":""},null,{"$f":"IF(G2465=\"\",\"\",VLOOKUP(G2465,Insumos!G:H,2,FALSE))","v":""}]
[null,null,null,null,null,{"$f":"IF(E2466=\"\",\"\",VLOOKUP(E2466,Insumos!AD:AE,2,FALSE))","v":""},null,{"$f":"IF(G2466=\"\",\"\",VLOOKUP(G2466,Insumos!G:H,2,FALSE))","v":""}]
[null,null,null,null,null,{"$f":"IF(E2467=\"\",\"\",VLOOKUP(E2467,Insumos!AD:AE,2,FALSE))","v":""},null,{"$f":"IF(G2467=\"\",\"\",VLOOKUP(G2467,Insumos!G:H,2,FALSE))","v":""}]
[null,null,null,null,null,{"$f":"IF(E2468=\"\",\"\",VLOOKUP(E2468,Insumos!AD:AE,2,FALSE))","v":""},null,{"$f":"IF(G2468=\"\",\"\",VLOOKUP(G2468,Insumos!G:H,2,FALSE))","v":""}]
[null,null,null,null,null,{"$f":"IF(E2469=\"\",\"\",VLOOKUP(E2469,Insumos!AD:AE,2,FALSE))","v":""},null,{"$f":"IF(G2469=\"\",\"\",VLOOKUP(G2469,Insumos!G:H,2,FALSE))","v":""}]
[null,null,null,null,null,{"$f":"IF(E2470=\"\",\"\",VLOOKUP(E2470,Insumos!AD:AE,2,FALSE))","v":""},null,{"$f":"IF(G2470=\"\",\"\",VLOOKUP(G2470,Insumos!G:H,2,FALSE))","v":""}]
[null,null,null,null,null,{"$f":"IF(E2471=\"\",\"\",VLOOKUP(E2471,Insumos!AD:AE,2,FALSE))","v":""},null,{"$f":"IF(G2471=\"\",\"\",VLOOKUP(G2471,Insumos!G:H,2,FALSE))","v":""}]
[null,null,null,null,null,{"$f":"IF(E2472=\"\",\"\",VLOOKUP(E2472,Insumos!AD:AE,2,FALSE))","v":""},null,{"$f":"IF(G2472=\"\",\"\",VLOOKUP(G2472,Insumos!G:H,2,FALSE))","v":""}]
[null,null,null,null,null,{"$f":"IF(E2473=\"\",\"\",VLOOKUP(E2473,Insumos!AD:AE,2,FALSE))","v":""},null,{"$f":"IF(G2473=\"\",\"\",VLOOKUP(G2473,Insumos!G:H,2,FALSE))","v":""}]
[null,null,null,null,null,{"$f":"IF(E2474=\"\",\"\",VLOOKUP(E2474,Insumos!AD:AE,2,FALSE))","v":""},null,{"$f":"IF(G2474=\"\",\"\",VLOOKUP(G2474,Insumos!G:H,2,FALSE))","v":""}]
[null,null,null,null,null,{"$f":"IF(E2475=\"\",\"\",VLOOKUP(E2475,Insumos!AD:AE,2,FALSE))","v":""},null,{"$f":"IF(G2475=\"\",\"\",VLOOKUP(G2475,Insumos!G:H,2,FALSE))","v":""}]
[null,null,null,null,null,{"$f":"IF(E2476=\"\",\"\",VLOOKUP(E2476,Insumos!AD:AE,2,FALSE))","v":""},null,{"$f":"IF(G2476=\"\",\"\",VLOOKUP(G2476,Insumos!G:H,2,FALSE))","v":""}]
[null,null,null,null,null,{"$f":"IF(E2477=\"\",\"\",VLOOKUP(E2477,Insumos!AD:AE,2,FALSE))","v":""},null,{"$f":"IF(G2477=\"\",\"\",VLOOKUP(G2477,Insumos!G:H,2,FALSE))","v":""}]
[null,null,null,null,null,{"$f":"IF(E2478=\"\",\"\",VLOOKUP(E2478,Insumos!AD:AE,2,FALSE))","v":""},null,{"$f":"IF(G2478=\"\",\"\",VLOOKUP(G2478,Insumos!G:H,2,FALSE))","v":""}]
[null,null,null,null,null,{"$f":"IF(E2479=\"\",\"\",VLOOKUP(E2479,Insumos!AD:AE,2,FALSE))","v":""},null,{"$f":"IF(G2479=\"\",\"\",VLOOKUP(G2479,Insumos!G:H,2,FALSE))","v":""}]
[null,null,null,null,null,{"$f":"IF(E2480=\"\",\"\",VLOOKUP(E2480,Insumos!AD:AE,2,FALSE))","v":""},null,{"$f":"IF(G2480=\"\",\"\",VLOOKUP(G2480,Insumos!G:H,2,FALSE))","v":""}]
[null,null,null,null,null,{"$f":"IF(E2481=\"\",\"\",VLOOKUP(E2481,Insumos!AD:AE,2,FALSE))","v":""},null,{"$f":"IF(G2481=\"\",\"\",VLOOKUP(G2481,Insumos!G:H,2,FALSE))","v":""}]
[null,null,null,null,null,{"$f":"IF(E2482=\"\",\"\",VLOOKUP(E2482,Insumos!AD:AE,2,FALSE))","v":""},null,{"$f":"IF(G2482=\"\",\"\",VLOOKUP(G2482,Insumos!G:H,2,FALSE))","v":""}]
[null,null,null,null,null,{"$f":"IF(E2483=\"\",\"\",VLOOKUP(E2483,Insumos!AD:AE,2,FALSE))","v":""},null,{"$f":"IF(G2483=\"\",\"\",VLOOKUP(G2483,Insumos!G:H,2,FALSE))","v":""}]
[null,null,null,null,null,{"$f":"IF(E2484=\"\",\"\",VLOOKUP(E2484,Insumos!AD:AE,2,FALSE))","v":""},null,{"$f":"IF(G2484=\"\",\"\",VLOOKUP(G2484,Insumos!G:H,2,FALSE))","v":""}]
[null,null,null,null,null,{"$f":"IF(E2485=\"\",\"\",VLOOKUP(E2485,Insumos!AD:AE,2,FALSE))","v":""},null,{"$f":"IF(G2485=\"\",\"\",VLOOKUP(G2485,Insumos!G:H,2,FALSE))","v":""}]
[null,null,null,null,null,{"$f":"IF(E2486=\"\",\"\",VLOOKUP(E2486,Insumos!AD:AE,2,FALSE))","v":""},null,{"$f":"IF(G2486=\"\",\"\",VLOOKUP(G2486,Insumos!G:H,2,FALSE))","v":""}]
[null,null,null,null,null,{"$f":"IF(E2487=\"\",\"\",VLOOKUP(E2487,Insumos!AD:AE,2,FALSE))","v":""},null,{"$f":"IF(G2487=\"\",\"\",VLOOKUP(G2487,Insumos!G:H,2,FALSE))","v":""}]
[null,null,null,null,null,{"$f":"IF(E2488=\"\",\"\",VLOOKUP(E2488,Insumos!AD:AE,2,FALSE))","v":""},null,{"$f":"IF(G2488=\"\",\"\",VLOOKUP(G2488,Insumos!G:H,2,FALSE))","v":""}]
[null,null,null,null,null,{"$f":"IF(E2489=\"\",\"\",VLOOKUP(E2489,Insumos!AD:AE,2,FALSE))","v":""},null,{"$f":"IF(G2489=\"\",\"\",VLOOKUP(G2489,Insumos!G:H,2,FALSE))","v":""}]
[null,null,null,null,null,{"$f":"IF(E2490=\"\",\"\",VLOOKUP(E2490,Insumos!AD:AE,2,FALSE))","v":""},null,{"$f":"IF(G2490=\"\",\"\",VLOOKUP(G2490,Insumos!G:H,2,FALSE))","v":""}]
[null,null,null,null,null,{"$f":"IF(E2491=\"\",\"\",VLOOKUP(E2491,Insumos!AD:AE,2,FALSE))","v":""},null,{"$f":"IF(G2491=\"\",\"\",VLOOKUP(G2491,Insumos!G:H,2,FALSE))","v":""}]
[null,null,null,null,null,{"$f":"IF(E2492=\"\",\"\",VLOOKUP(E2492,Insumos!AD:AE,2,FALSE))","v":""},null,{"$f":"IF(G2492=\"\",\"\",VLOOKUP(G2492,Insumos!G:H,2,FALSE))","v":""}]
[null,null,null,null,null,{"$f":"IF(E2493=\"\",\"\",VLOOKUP(E2493,Insumos!AD:AE,2,FALSE))","v":""},null,{"$f":"IF(G2493=\"\",\"\",VLOOKUP(G2493,Insumos!G:H,2,FALSE))","v":""}]
[null,null,null,null,null,{"$f":"IF(E2494=\"\",\"\",VLOOKUP(E2494,Insumos!AD:AE,2,FALSE))","v":""},null,{"$f":"IF(G2494=\"\",\"\",VLOOKUP(G2494,Insumos!G:H,2,FALSE))","v":""}]
[null,null,null,null,null,{"$f":"IF(E2495=\"\",\"\",VLOOKUP(E2495,Insumos!AD:AE,2,FALSE))","v":""},null,{"$f":"IF(G2495=\"\",\"\",VLOOKUP(G2495,Insumos!G:H,2,FALSE))","v":""}]
[null,null,null,null,null,{"$f":"IF(E2496=\"\",\"\",VLOOKUP(E2496,Insumos!AD:AE,2,FALSE))","v":""},null,{"$f":"IF(G2496=\"\",\"\",VLOOKUP(G2496,Insumos!G:H,2,FALSE))","v":""}]
[null,null,null,null,null,{"$f":"IF(E2497=\"\",\"\",VLOOKUP(E2497,Insumos!AD:AE,2,FALSE))","v":""},null,{"$f":"IF(G2497=\"\",\"\",VLOOKUP(G2497,Insumos!G:H,2,FALSE))","v":""}]
[null,null,null,null,null,{"$f":"IF(E2498=\"\",\"\",VLOOKUP(E2498,Insumos!AD:AE,2,FALSE))","v":""},null,{"$f":"IF(G2498=\"\",\"\",VLOOKUP(G2498,Insumos!G:H,2,FALSE))","v":""}]
[null,null,null,null,null,{"$f":"IF(E2499=\"\",\"\",VLOOKUP(E2499,Insumos!AD:AE,2,FALSE))","v":""},null,{"$f":"IF(G2499=\"\",\"\",VLOOKUP(G2499,Insumos!G:H,2,FALSE))","v":""}]
[null,null,null,null,null,{"$f":"IF(E2500=\"\",\"\",VLOOKUP(E2500,Insumos!AD:AE,2,FALSE))","v":""},null,{"$f":"IF(G2500=\"\",\"\",VLOOKUP(G2500,Insumos!G:H,2,FALSE))","v":""}]
[null,null,null,null,null,{"$f":"IF(E2501=\"\",\"\",VLOOKUP(E2501,Insumos!AD:AE,2,FALSE))","v":""},null,{"$f":"IF(G2501=\"\",\"\",VLOOKUP(G2501,Insumos!G:H,2,FALSE))","v":""}]
[null,null,null,null,null,{"$f":"IF(E2502=\"\",\"\",VLOOKUP(E2502,Insumos!AD:AE,2,FALSE))","v":""},null,{"$f":"IF(G2502=\"\",\"\",VLOOKUP(G2502,Insumos!G:H,2,FALSE))","v":""}]
[null,null,null,null,null,{"$f":"IF(E2503=\"\",\"\",VLOOKUP(E2503,Insumos!AD:AE,2,FALSE))","v":""},null,{"$f":"IF(G2503=\"\",\"\",VLOOKUP(G2503,Insumos!G:H,2,FALSE))","v":""}]
[null,null,null,null,null,{"$f":"IF(E2504=\"\",\"\",VLOOKUP(E2504,Insumos!AD:AE,2,FALSE))","v":""},null,{"$f":"IF(G2504=\"\",\"\",VLOOKUP(G2504,Insumos!G:H,2,FALSE))","v":""}]
[null,null,null,null,null,{"$f":"IF(E2505=\"\",\"\",VLOOKUP(E2505,Insumos!AD:AE,2,FALSE))","v":""},null,{"$f":"IF(G2505=\"\",\"\",VLOOKUP(G2505,Insumos!G:H,2,FALSE))","v":""}]
[null,null,null,null,null,{"$f":"IF(E2506=\"\",\"\",VLOOKUP(E2506,Insumos!AD:AE,2,FALSE))","v":""},null,{"$f":"IF(G2506=\"\",\"\",VLOOKUP(G2506,Insumos!G:H,2,FALSE))","v":""}]
[null,null,null,null,null,{"$f":"IF(E2507=\"\",\"\",VLOOKUP(E2507,Insumos!AD:AE,2,FALSE))","v":""},null,{"$f":"IF(G2507=\"\",\"\",VLOOKUP(G2507,Insumos!G:H,2,FALSE))","v":""}]
[null,null,null,null,null,{"$f":"IF(E2508=\"\",\"\",VLOOKUP(E2508,Insumos!AD:AE,2,FALSE))","v":""},null,{"$f":"IF(G2508=\"\",\"\",VLOOKUP(G2508,Insumos!G:H,2,FALSE))","v":""}]
[null,null,null,null,null,{"$f":"IF(E2509=\"\",\"\",VLOOKUP(E2509,Insumos!AD:AE,2,FALSE))","v":""},null,{"$f":"IF(G2509=\"\",\"\",VLOOKUP(G2509,Insumos!G:H,2,FALSE))","v":""}]
[null,null,null,null,null,{"$f":"IF(E2510=\"\",\"\",VLOOKUP(E2510,Insumos!AD:AE,2,FALSE))","v":""},null,{"$f":"IF(G2510=\"\",\"\",VLOOKUP(G2510,Insumos!G:H,2,FALSE))","v":""}]
[null,null,null,null,null,{"$f":"IF(E2511=\"\",\"\",VLOOKUP(E2511,Insumos!AD:AE,2,FALSE))","v":""},null,{"$f":"IF(G2511=\"\",\"\",VLOOKUP(G2511,Insumos!G:H,2,FALSE))","v":""}]
[null,null,null,null,null,{"$f":"IF(E2512=\"\",\"\",VLOOKUP(E2512,Insumos!AD:AE,2,FALSE))","v":""},null,{"$f":"IF(G2512=\"\",\"\",VLOOKUP(G2512,Insumos!G:H,2,FALSE))","v":""}]
[null,null,null,null,null,{"$f":"IF(E2513=\"\",\"\",VLOOKUP(E2513,Insumos!AD:AE,2,FALSE))","v":""},null,{"$f":"IF(G2513=\"\",\"\",VLOOKUP(G2513,Insumos!G:H,2,FALSE))","v":""}]
[null,null,null,null,null,{"$f":"IF(E2514=\"\",\"\",VLOOKUP(E2514,Insumos!AD:AE,2,FALSE))","v":""},null,{"$f":"IF(G2514=\"\",\"\",VLOOKUP(G2514,Insumos!G:H,2,FALSE))","v":""}]
[null,null,null,null,null,{"$f":"IF(E2515=\"\",\"\",VLOOKUP(E2515,Insumos!AD:AE,2,FALSE))","v":""},null,{"$f":"IF(G2515=\"\",\"\",VLOOKUP(G2515,Insumos!G:H,2,FALSE))","v":""}]
[null,null,null,null,null,{"$f":"IF(E2516=\"\",\"\",VLOOKUP(E2516,Insumos!AD:AE,2,FALSE))","v":""},null,{"$f":"IF(G2516=\"\",\"\",VLOOKUP(G2516,Insumos!G:H,2,FALSE))","v":""}]
[null,null,null,null,null,{"$f":"IF(E2517=\"\",\"\",VLOOKUP(E2517,Insumos!AD:AE,2,FALSE))","v":""},null,{"$f":"IF(G2517=\"\",\"\",VLOOKUP(G2517,Insumos!G:H,2,FALSE))","v":""}]
[null,null,null,null,null,{"$f":"IF(E2518=\"\",\"\",VLOOKUP(E2518,Insumos!AD:AE,2,FALSE))","v":""},null,{"$f":"IF(G2518=\"\",\"\",VLOOKUP(G2518,Insumos!G:H,2,FALSE))","v":""}]
[null,null,null,null,null,{"$f":"IF(E2519=\"\",\"\",VLOOKUP(E2519,Insumos!AD:AE,2,FALSE))","v":""},null,{"$f":"IF(G2519=\"\",\"\",VLOOKUP(G2519,Insumos!G:H,2,FALSE))","v":""}]
[null,null,null,null,null,{"$f":"IF(E2520=\"\",\"\",VLOOKUP(E2520,Insumos!AD:AE,2,FALSE))","v":""},null,{"$f":"IF(G2520=\"\",\"\",VLOOKUP(G2520,Insumos!G:H,2,FALSE))","v":""}]
[null,null,null,null,null,{"$f":"IF(E2521=\"\",\"\",VLOOKUP(E2521,Insumos!AD:AE,2,FALSE))","v":""},null,{"$f":"IF(G2521=\"\",\"\",VLOOKUP(G2521,Insumos!G:H,2,FALSE))","v":""}]
[null,null,null,null,null,{"$f":"IF(E2522=\"\",\"\",VLOOKUP(E2522,Insumos!AD:AE,2,FALSE))","v":""},null,{"$f":"IF(G2522=\"\",\"\",VLOOKUP(G2522,Insumos!G:H,2,FALSE))","v":""}]
[null,null,null,null,null,{"$f":"IF(E2523=\"\",\"\",VLOOKUP(E2523,Insumos!AD:AE,2,FALSE))","v":""},null,{"$f":"IF(G2523=\"\",\"\",VLOOKUP(G2523,Insumos!G:H,2,FALSE))","v":""}]
[null,null,null,null,null,{"$f":"IF(E2524=\"\",\"\",VLOOKUP(E2524,Insumos!AD:AE,2,FALSE))","v":""},null,{"$f":"IF(G2524=\"\",\"\",VLOOKUP(G2524,Insumos!G:H,2,FALSE))","v":""}]
[null,null,null,null,null,{"$f":"IF(E2525=\"\",\"\",VLOOKUP(E2525,Insumos!AD:AE,2,FALSE))","v":""},null,{"$f":"IF(G2525=\"\",\"\",VLOOKUP(G2525,Insumos!G:H,2,FALSE))","v":""}]
[null,null,null,null,null,{"$f":"IF(E2526=\"\",\"\",VLOOKUP(E2526,Insumos!AD:AE,2,FALSE))","v":""},null,{"$f":"IF(G2526=\"\",\"\",VLOOKUP(G2526,Insumos!G:H,2,FALSE))","v":""}]
[null,null,null,null,null,{"$f":"IF(E2527=\"\",\"\",VLOOKUP(E2527,Insumos!AD:AE,2,FALSE))","v":""},null,{"$f":"IF(G2527=\"\",\"\",VLOOKUP(G2527,Insumos!G:H,2,FALSE))","v":""}]
[null,null,null,null,null,{"$f":"IF(E2528=\"\",\"\",VLOOKUP(E2528,Insumos!AD:AE,2,FALSE))","v":""},null,{"$f":"IF(G2528=\"\",\"\",VLOOKUP(G2528,Insumos!G:H,2,FALSE))","v":""}]
[null,null,null,null,null,{"$f":"IF(E2529=\"\",\"\",VLOOKUP(E2529,Insumos!AD:AE,2,FALSE))","v":""},null,{"$f":"IF(G2529=\"\",\"\",VLOOKUP(G2529,Insumos!G:H,2,FALSE))","v":""}]
[null,null,null,null,null,{"$f":"IF(E2530=\"\",\"\",VLOOKUP(E2530,Insumos!AD:AE,2,FALSE))","v":""},null,{"$f":"IF(G2530=\"\",\"\",VLOOKUP(G2530,Insumos!G:H,2,FALSE))","v":""}]
[null,null,null,null,null,{"$f":"IF(E2531=\"\",\"\",VLOOKUP(E2531,Insumos!AD:AE,2,FALSE))","v":""},null,{"$f":"IF(G2531=\"\",\"\",VLOOKUP(G2531,Insumos!G:H,2,FALSE))","v":""}]
[null,null,null,null,null,{"$f":"IF(E2532=\"\",\"\",VLOOKUP(E2532,Insumos!AD:AE,2,FALSE))","v":""},null,{"$f":"IF(G2532=\"\",\"\",VLOOKUP(G2532,Insumos!G:H,2,FALSE))","v":""}]
[null,null,null,null,null,{"$f":"IF(E2533=\"\",\"\",VLOOKUP(E2533,Insumos!AD:AE,2,FALSE))","v":""},null,{"$f":"IF(G2533=\"\",\"\",VLOOKUP(G2533,Insumos!G:H,2,FALSE))","v":""}]
[null,null,null,null,null,{"$f":"IF(E2534=\"\",\"\",VLOOKUP(E2534,Insumos!AD:AE,2,FALSE))","v":""},null,{"$f":"IF(G2534=\"\",\"\",VLOOKUP(G2534,Insumos!G:H,2,FALSE))","v":""}]
[null,null,null,null,null,{"$f":"IF(E2535=\"\",\"\",VLOOKUP(E2535,Insumos!AD:AE,2,FALSE))","v":""},null,{"$f":"IF(G2535=\"\",\"\",VLOOKUP(G2535,Insumos!G:H,2,FALSE))","v":""}]
[null,null,null,null,null,{"$f":"IF(E2536=\"\",\"\",VLOOKUP(E2536,Insumos!AD:AE,2,FALSE))","v":""},null,{"$f":"IF(G2536=\"\",\"\",VLOOKUP(G2536,Insumos!G:H,2,FALSE))","v":""}]
[null,null,null,null,null,{"$f":"IF(E2537=\"\",\"\",VLOOKUP(E2537,Insumos!AD:AE,2,FALSE))","v":""},null,{"$f":"IF(G2537=\"\",\"\",VLOOKUP(G2537,Insumos!G:H,2,FALSE))","v":""}]
[null,null,null,null,null,{"$f":"IF(E2538=\"\",\"\",VLOOKUP(E2538,Insumos!AD:AE,2,FALSE))","v":""},null,{"$f":"IF(G2538=\"\",\"\",VLOOKUP(G2538,Insumos!G:H,2,FALSE))","v":""}]
[null,null,null,null,null,{"$f":"IF(E2539=\"\",\"\",VLOOKUP(E2539,Insumos!AD:AE,2,FALSE))","v":""},null,{"$f":"IF(G2539=\"\",\"\",VLOOKUP(G2539,Insumos!G:H,2,FALSE))","v":""}]
[null,null,null,null,null,{"$f":"IF(E2540=\"\",\"\",VLOOKUP(E2540,Insumos!AD:AE,2,FALSE))","v":""},null,{"$f":"IF(G2540=\"\",\"\",VLOOKUP(G2540,Insumos!G:H,2,FALSE))","v":""}]
[null,null,null,null,null,{"$f":"IF(E2541=\"\",\"\",VLOOKUP(E2541,Insumos!AD:AE,2,FALSE))","v":""},null,{"$f":"IF(G2541=\"\",\"\",VLOOKUP(G2541,Insumos!G:H,2,FALSE))","v":""}]
[null,null,null,null,null,{"$f":"IF(E2542=\"\",\"\",VLOOKUP(E2542,Insumos!AD:AE,2,FALSE))","v":""},null,{"$f":"IF(G2542=\"\",\"\",VLOOKUP(G2542,Insumos!G:H,2,FALSE))","v":""}]
[null,null,null,null,null,{"$f":"IF(E2543=\"\",\"\",VLOOKUP(E2543,Insumos!AD:AE,2,FALSE))","v":""},null,{"$f":"IF(G2543=\"\",\"\",VLOOKUP(G2543,Insumos!G:H,2,FALSE))","v":""}]
[null,null,null,null,null,{"$f":"IF(E2544=\"\",\"\",VLOOKUP(E2544,Insumos!AD:AE,2,FALSE))","v":""},null,{"$f":"IF(G2544=\"\",\"\",VLOOKUP(G2544,Insumos!G:H,2,FALSE))","v":""}]
[null,null,null,null,null,{"$f":"IF(E2545=\"\",\"\",VLOOKUP(E2545,Insumos!AD:AE,2,FALSE))","v":""},null,{"$f":"IF(G2545=\"\",\"\",VLOOKUP(G2545,Insumos!G:H,2,FALSE))","v":""}]
[null,null,null,null,null,{"$f":"IF(E2546=\"\",\"\",VLOOKUP(E2546,Insumos!AD:AE,2,FALSE))","v":""},null,{"$f":"IF(G2546=\"\",\"\",VLOOKUP(G2546,Insumos!G:H,2,FALSE))","v":""}]
[null,null,null,null,null,{"$f":"IF(E2547=\"\",\"\",VLOOKUP(E2547,Insumos!AD:AE,2,FALSE))","v":""},null,{"$f":"IF(G2547=\"\",\"\",VLOOKUP(G2547,Insumos!G:H,2,FALSE))","v":""}]
[null,null,null,null,null,{"$f":"IF(E2548=\"\",\"\",VLOOKUP(E2548,Insumos!AD:AE,2,FALSE))","v":""},null,{"$f":"IF(G2548=\"\",\"\",VLOOKUP(G2548,Insumos!G:H,2,FALSE))","v":""}]
[null,null,null,null,null,{"$f":"IF(E2549=\"\",\"\",VLOOKUP(E2549,Insumos!AD:AE,2,FALSE))","v":""},null,{"$f":"IF(G2549=\"\",\"\",VLOOKUP(G2549,Insumos!G:H,2,FALSE))","v":""}]
[null,null,null,null,null,{"$f":"IF(E2550=\"\",\"\",VLOOKUP(E2550,Insumos!AD:AE,2,FALSE))","v":""},null,{"$f":"IF(G2550=\"\",\"\",VLOOKUP(G2550,Insumos!G:H,2,FALSE))","v":""}]
[null,null,null,null,null,{"$f":"IF(E2551=\"\",\"\",VLOOKUP(E2551,Insumos!AD:AE,2,FALSE))","v":""},null,{"$f":"IF(G2551=\"\",\"\",VLOOKUP(G2551,Insumos!G:H,2,FALSE))","v":""}]
[null,null,null,null,null,{"$f":"IF(E2552=\"\",\"\",VLOOKUP(E2552,Insumos!AD:AE,2,FALSE))","v":""},null,{"$f":"IF(G2552=\"\",\"\",VLOOKUP(G2552,Insumos!G:H,2,FALSE))","v":""}]
[null,null,null,null,null,{"$f":"IF(E2553=\"\",\"\",VLOOKUP(E2553,Insumos!AD:AE,2,FALSE))","v":""},null,{"$f":"IF(G2553=\"\",\"\",VLOOKUP(G2553,Insumos!G:H,2,FALSE))","v":""}]
[null,null,null,null,null,{"$f":"IF(E2554=\"\",\"\",VLOOKUP(E2554,Insumos!AD:AE,2,FALSE))","v":""},null,{"$f":"IF(G2554=\"\",\"\",VLOOKUP(G2554,Insumos!G:H,2,FALSE))","v":""}]
[null,null,null,null,null,{"$f":"IF(E2555=\"\",\"\",VLOOKUP(E2555,Insumos!AD:AE,2,FALSE))","v":""},null,{"$f":"IF(G2555=\"\",\"\",VLOOKUP(G2555,Insumos!G:H,2,FALSE))","v":""}]
[null,null,null,null,null,{"$f":"IF(E2556=\"\",\"\",VLOOKUP(E2556,Insumos!AD:AE,2,FALSE))","v":""},null,{"$f":"IF(G2556=\"\",\"\",VLOOKUP(G2556,Insumos!G:H,2,FALSE))","v":""}]
[null,null,null,null,null,{"$f":"IF(E2557=\"\",\"\",VLOOKUP(E2557,Insumos!AD:AE,2,FALSE))","v":""},null,{"$f":"IF(G2557=\"\",\"\",VLOOKUP(G2557,Insumos!G:H,2,FALSE))","v":""}]
[null,null,null,null,null,{"$f":"IF(E2558=\"\",\"\",VLOOKUP(E2558,Insumos!AD:AE,2,FALSE))","v":""},null,{"$f":"IF(G2558=\"\",\"\",VLOOKUP(G2558,Insumos!G:H,2,FALSE))","v":""}]
[null,null,null,null,null,{"$f":"IF(E2559=\"\",\"\",VLOOKUP(E2559,Insumos!AD:AE,2,FALSE))","v":""},null,{"$f":"IF(G2559=\"\",\"\",VLOOKUP(G2559,Insumos!G:H,2,FALSE))","v":""}]
[null,null,null,null,null,{"$f":"IF(E2560=\"\",\"\",VLOOKUP(E2560,Insumos!AD:AE,2,FALSE))","v":""},null,{"$f":"IF(G2560=\"\",\"\",VLOOKUP(G2560,Insumos!G:H,2,FALSE))","v":""}]
[null,null,null,null,null,{"$f":"IF(E2561=\"\",\"\",VLOOKUP(E2561,Insumos!AD:AE,2,FALSE))","v":""},null,{"$f":"IF(G2561=\"\",\"\",VLOOKUP(G2561,Insumos!G:H,2,FALSE))","v":""}]
[null,null,null,null,null,{"$f":"IF(E2562=\"\",\"\",VLOOKUP(E2562,Insumos!AD:AE,2,FALSE))","v":""},null,{"$f":"IF(G2562=\"\",\"\",VLOOKUP(G2562,Insumos!G:H,2,FALSE))","v":""}]
[null,null,null,null,null,{"$f":"IF(E2563=\"\",\"\",VLOOKUP(E2563,Insumos!AD:AE,2,FALSE))","v":""},null,{"$f":"IF(G2563=\"\",\"\",VLOOKUP(G2563,Insumos!G:H,2,FALSE))","v":""}]
[null,null,null,null,null,{"$f":"IF(E2564=\"\",\"\",VLOOKUP(E2564,Insumos!AD:AE,2,FALSE))","v":""},null,{"$f":"IF(G2564=\"\",\"\",VLOOKUP(G2564,Insumos!G:H,2,FALSE))","v":""}]
[null,null,null,null,null,{"$f":"IF(E2565=\"\",\"\",VLOOKUP(E2565,Insumos!AD:AE,2,FALSE))","v":""},null,{"$f":"IF(G2565=\"\",\"\",VLOOKUP(G2565,Insumos!G:H,2,FALSE))","v":""}]
[null,null,null,null,null,{"$f":"IF(E2566=\"\",\"\",VLOOKUP(E2566,Insumos!AD:AE,2,FALSE))","v":""},null,{"$f":"IF(G2566=\"\",\"\",VLOOKUP(G2566,Insumos!G:H,2,FALSE))","v":""}]
[null,null,null,null,null,{"$f":"IF(E2567=\"\",\"\",VLOOKUP(E2567,Insumos!AD:AE,2,FALSE))","v":""},null,{"$f":"IF(G2567=\"\",\"\",VLOOKUP(G2567,Insumos!G:H,2,FALSE))","v":""}]
[null,null,null,null,null,{"$f":"IF(E2568=\"\",\"\",VLOOKUP(E2568,Insumos!AD:AE,2,FALSE))","v":""},null,{"$f":"IF(G2568=\"\",\"\",VLOOKUP(G2568,Insumos!G:H,2,FALSE))","v":""}]
[null,null,null,null,null,{"$f":"IF(E2569=\"\",\"\",VLOOKUP(E2569,Insumos!AD:AE,2,FALSE))","v":""},null,{"$f":"IF(G2569=\"\",\"\",VLOOKUP(G2569,Insumos!G:H,2,FALSE))","v":""}]
[null,null,null,null,null,{"$f":"IF(E2570=\"\",\"\",VLOOKUP(E2570,Insumos!AD:AE,2,FALSE))","v":""},null,{"$f":"IF(G2570=\"\",\"\",VLOOKUP(G2570,Insumos!G:H,2,FALSE))","v":""}]
[null,null,null,null,null,{"$f":"IF(E2571=\"\",\"\",VLOOKUP(E2571,Insumos!AD:AE,2,FALSE))","v":""},null,{"$f":"IF(G2571=\"\",\"\",VLOOKUP(G2571,Insumos!G:H,2,FALSE))","v":""}]
[null,null,null,null,null,{"$f":"IF(E2572=\"\",\"\",VLOOKUP(E2572,Insumos!AD:AE,2,FALSE))","v":""},null,{"$f":"IF(G2572=\"\",\"\",VLOOKUP(G2572,Insumos!G:H,2,FALSE))","v":""}]
[null,null,null,null,null,{"$f":"IF(E2573=\"\",\"\",VLOOKUP(E2573,Insumos!AD:AE,2,FALSE))","v":""},null,{"$f":"IF(G2573=\"\",\"\",VLOOKUP(G2573,Insumos!G:H,2,FALSE))","v":""}]
[null,null,null,null,null,{"$f":"IF(E2574=\"\",\"\",VLOOKUP(E2574,Insumos!AD:AE,2,FALSE))","v":""},null,{"$f":"IF(G2574=\"\",\"\",VLOOKUP(G2574,Insumos!G:H,2,FALSE))","v":""}]
[null,null,null,null,null,{"$f":"IF(E2575=\"\",\"\",VLOOKUP(E2575,Insumos!AD:AE,2,FALSE))","v":""},null,{"$f":"IF(G2575=\"\",\"\",VLOOKUP(G2575,Insumos!G:H,2,FALSE))","v":""}]
[null,null,null,null,null,{"$f":"IF(E2576=\"\",\"\",VLOOKUP(E2576,Insumos!AD:AE,2,FALSE))","v":""},null,{"$f":"IF(G2576=\"\",\"\",VLOOKUP(G2576,Insumos!G:H,2,FALSE))","v":""}]
[null,null,null,null,null,{"$f":"IF(E2577=\"\",\"\",VLOOKUP(E2577,Insumos!AD:AE,2,FALSE))","v":""},null,{"$f":"IF(G2577=\"\",\"\",VLOOKUP(G2577,Insumos!G:H,2,FALSE))","v":""}]
[null,null,null,null,null,{"$f":"IF(E2578=\"\",\"\",VLOOKUP(E2578,Insumos!AD:AE,2,FALSE))","v":""},null,{"$f":"IF(G2578=\"\",\"\",VLOOKUP(G2578,Insumos!G:H,2,FALSE))","v":""}]
[null,null,null,null,null,{"$f":"IF(E2579=\"\",\"\",VLOOKUP(E2579,Insumos!AD:AE,2,FALSE))","v":""},null,{"$f":"IF(G2579=\"\",\"\",VLOOKUP(G2579,Insumos!G:H,2,FALSE))","v":""}]
[null,null,null,null,null,{"$f":"IF(E2580=\"\",\"\",VLOOKUP(E2580,Insumos!AD:AE,2,FALSE))","v":""},null,{"$f":"IF(G2580=\"\",\"\",VLOOKUP(G2580,Insumos!G:H,2,FALSE))","v":""}]
[null,null,null,null,null,{"$f":"IF(E2581=\"\",\"\",VLOOKUP(E2581,Insumos!AD:AE,2,FALSE))","v":""},null,{"$f":"IF(G2581=\"\",\"\",VLOOKUP(G2581,Insumos!G:H,2,FALSE))","v":""}]
[null,null,null,null,null,{"$f":"IF(E2582=\"\",\"\",VLOOKUP(E2582,Insumos!AD:AE,2,FALSE))","v":""},null,{"$f":"IF(G2582=\"\",\"\",VLOOKUP(G2582,Insumos!G:H,2,FALSE))","v":""}]
[null,null,null,null,null,{"$f":"IF(E2583=\"\",\"\",VLOOKUP(E2583,Insumos!AD:AE,2,FALSE))","v":""},null,{"$f":"IF(G2583=\"\",\"\",VLOOKUP(G2583,Insumos!G:H,2,FALSE))","v":""}]
[null,null,null,null,null,{"$f":"IF(E2584=\"\",\"\",VLOOKUP(E2584,Insumos!AD:AE,2,FALSE))","v":""},null,{"$f":"IF(G2584=\"\",\"\",VLOOKUP(G2584,Insumos!G:H,2,FALSE))","v":""}]
[null,null,null,null,null,{"$f":"IF(E2585=\"\",\"\",VLOOKUP(E2585,Insumos!AD:AE,2,FALSE))","v":""},null,{"$f":"IF(G2585=\"\",\"\",VLOOKUP(G2585,Insumos!G:H,2,FALSE))","v":""}]
[null,null,null,null,null,{"$f":"IF(E2586=\"\",\"\",VLOOKUP(E2586,Insumos!AD:AE,2,FALSE))","v":""},null,{"$f":"IF(G2586=\"\",\"\",VLOOKUP(G2586,Insumos!G:H,2,FALSE))","v":""}]
[null,null,null,null,null,{"$f":"IF(E2587=\"\",\"\",VLOOKUP(E2587,Insumos!AD:AE,2,FALSE))","v":""},null,{"$f":"IF(G2587=\"\",\"\",VLOOKUP(G2587,Insumos!G:H,2,FALSE))","v":""}]
[null,null,null,null,null,{"$f":"IF(E2588=\"\",\"\",VLOOKUP(E2588,Insumos!AD:AE,2,FALSE))","v":""},null,{"$f":"IF(G2588=\"\",\"\",VLOOKUP(G2588,Insumos!G:H,2,FALSE))","v":""}]
[null,null,null,null,null,{"$f":"IF(E2589=\"\",\"\",VLOOKUP(E2589,Insumos!AD:AE,2,FALSE))","v":""},null,{"$f":"IF(G2589=\"\",\"\",VLOOKUP(G2589,Insumos!G:H,2,FALSE))","v":""}]
[null,null,null,null,null,{"$f":"IF(E2590=\"\",\"\",VLOOKUP(E2590,Insumos!AD:AE,2,FALSE))","v":""},null,{"$f":"IF(G2590=\"\",\"\",VLOOKUP(G2590,Insumos!G:H,2,FALSE))","v":""}]
[null,null,null,null,null,{"$f":"IF(E2591=\"\",\"\",VLOOKUP(E2591,Insumos!AD:AE,2,FALSE))","v":""},null,{"$f":"IF(G2591=\"\",\"\",VLOOKUP(G2591,Insumos!G:H,2,FALSE))","v":""}]
[null,null,null,null,null,{"$f":"IF(E2592=\"\",\"\",VLOOKUP(E2592,Insumos!AD:AE,2,FALSE))","v":""},null,{"$f":"IF(G2592=\"\",\"\",VLOOKUP(G2592,Insumos!G:H,2,FALSE))","v":""}]
[null,null,null,null,null,{"$f":"IF(E2593=\"\",\"\",VLOOKUP(E2593,Insumos!AD:AE,2,FALSE))","v":""},null,{"$f":"IF(G2593=\"\",\"\",VLOOKUP(G2593,Insumos!G:H,2,FALSE))","v":""}]
[null,null,null,null,null,{"$f":"IF(E2594=\"\",\"\",VLOOKUP(E2594,Insumos!AD:AE,2,FALSE))","v":""},null,{"$f":"IF(G2594=\"\",\"\",VLOOKUP(G2594,Insumos!G:H,2,FALSE))","v":""}]
[null,null,null,null,null,{"$f":"IF(E2595=\"\",\"\",VLOOKUP(E2595,Insumos!AD:AE,2,FALSE))","v":""},null,{"$f":"IF(G2595=\"\",\"\",VLOOKUP(G2595,Insumos!G:H,2,FALSE))","v":""}]
[null,null,null,null,null,{"$f":"IF(E2596=\"\",\"\",VLOOKUP(E2596,Insumos!AD:AE,2,FALSE))","v":""},null,{"$f":"IF(G2596=\"\",\"\",VLOOKUP(G2596,Insumos!G:H,2,FALSE))","v":""}]
[null,null,null,null,null,{"$f":"IF(E2597=\"\",\"\",VLOOKUP(E2597,Insumos!AD:AE,2,FALSE))","v":""},null,{"$f":"IF(G2597=\"\",\"\",VLOOKUP(G2597,Insumos!G:H,2,FALSE))","v":""}]
[null,null,null,null,null,{"$f":"IF(E2598=\"\",\"\",VLOOKUP(E2598,Insumos!AD:AE,2,FALSE))","v":""},null,{"$f":"IF(G2598=\"\",\"\",VLOOKUP(G2598,Insumos!G:H,2,FALSE))","v":""}]
[null,null,null,null,null,{"$f":"IF(E2599=\"\",\"\",VLOOKUP(E2599,Insumos!AD:AE,2,FALSE))","v":""},null,{"$f":"IF(G2599=\"\",\"\",VLOOKUP(G2599,Insumos!G:H,2,FALSE))","v":""}]
[null,null,null,null,null,{"$f":"IF(E2600=\"\",\"\",VLOOKUP(E2600,Insumos!AD:AE,2,FALSE))","v":""},null,{"$f":"IF(G2600=\"\",\"\",VLOOKUP(G2600,Insumos!G:H,2,FALSE))","v":""}]
[null,null,null,null,null,{"$f":"IF(E2601=\"\",\"\",VLOOKUP(E2601,Insumos!AD:AE,2,FALSE))","v":""},null,{"$f":"IF(G2601=\"\",\"\",VLOOKUP(G2601,Insumos!G:H,2,FALSE))","v":""}]
[null,null,null,null,null,{"$f":"IF(E2602=\"\",\"\",VLOOKUP(E2602,Insumos!AD:AE,2,FALSE))","v":""},null,{"$f":"IF(G2602=\"\",\"\",VLOOKUP(G2602,Insumos!G:H,2,FALSE))","v":""}]
[null,null,null,null,null,{"$f":"IF(E2603=\"\",\"\",VLOOKUP(E2603,Insumos!AD:AE,2,FALSE))","v":""},null,{"$f":"IF(G2603=\"\",\"\",VLOOKUP(G2603,Insumos!G:H,2,FALSE))","v":""}]
[null,null,null,null,null,{"$f":"IF(E2604=\"\",\"\",VLOOKUP(E2604,Insumos!AD:AE,2,FALSE))","v":""},null,{"$f":"IF(G2604=\"\",\"\",VLOOKUP(G2604,Insumos!G:H,2,FALSE))","v":""}]
[null,null,null,null,null,{"$f":"IF(E2605=\"\",\"\",VLOOKUP(E2605,Insumos!AD:AE,2,FALSE))","v":""},null,{"$f":"IF(G2605=\"\",\"\",VLOOKUP(G2605,Insumos!G:H,2,FALSE))","v":""}]
[null,null,null,null,null,{"$f":"IF(E2606=\"\",\"\",VLOOKUP(E2606,Insumos!AD:AE,2,FALSE))","v":""},null,{"$f":"IF(G2606=\"\",\"\",VLOOKUP(G2606,Insumos!G:H,2,FALSE))","v":""}]
[null,null,null,null,null,{"$f":"IF(E2607=\"\",\"\",VLOOKUP(E2607,Insumos!AD:AE,2,FALSE))","v":""},null,{"$f":"IF(G2607=\"\",\"\",VLOOKUP(G2607,Insumos!G:H,2,FALSE))","v":""}]
[null,null,null,null,null,{"$f":"IF(E2608=\"\",\"\",VLOOKUP(E2608,Insumos!AD:AE,2,FALSE))","v":""},null,{"$f":"IF(G2608=\"\",\"\",VLOOKUP(G2608,Insumos!G:H,2,FALSE))","v":""}]
[null,null,null,null,null,{"$f":"IF(E2609=\"\",\"\",VLOOKUP(E2609,Insumos!AD:AE,2,FALSE))","v":""},null,{"$f":"IF(G2609=\"\",\"\",VLOOKUP(G2609,Insumos!G:H,2,FALSE))","v":""}]
[null,null,null,null,null,{"$f":"IF(E2610=\"\",\"\",VLOOKUP(E2610,Insumos!AD:AE,2,FALSE))","v":""},null,{"$f":"IF(G2610=\"\",\"\",VLOOKUP(G2610,Insumos!G:H,2,FALSE))","v":""}]
[null,null,null,null,null,{"$f":"IF(E2611=\"\",\"\",VLOOKUP(E2611,Insumos!AD:AE,2,FALSE))","v":""},null,{"$f":"IF(G2611=\"\",\"\",VLOOKUP(G2611,Insumos!G:H,2,FALSE))","v":""}]
[null,null,null,null,null,{"$f":"IF(E2612=\"\",\"\",VLOOKUP(E2612,Insumos!AD:AE,2,FALSE))","v":""},null,{"$f":"IF(G2612=\"\",\"\",VLOOKUP(G2612,Insumos!G:H,2,FALSE))","v":""}]
[null,null,null,null,null,{"$f":"IF(E2613=\"\",\"\",VLOOKUP(E2613,Insumos!AD:AE,2,FALSE))","v":""},null,{"$f":"IF(G2613=\"\",\"\",VLOOKUP(G2613,Insumos!G:H,2,FALSE))","v":""}]
[null,null,null,null,null,{"$f":"IF(E2614=\"\",\"\",VLOOKUP(E2614,Insumos!AD:AE,2,FALSE))","v":""},null,{"$f":"IF(G2614=\"\",\"\",VLOOKUP(G2614,Insumos!G:H,2,FALSE))","v":""}]
[null,null,null,null,null,{"$f":"IF(E2615=\"\",\"\",VLOOKUP(E2615,Insumos!AD:AE,2,FALSE))","v":""},null,{"$f":"IF(G2615=\"\",\"\",VLOOKUP(G2615,Insumos!G:H,2,FALSE))","v":""}]
[null,null,null,null,null,{"$f":"IF(E2616=\"\",\"\",VLOOKUP(E2616,Insumos!AD:AE,2,FALSE))","v":""},null,{"$f":"IF(G2616=\"\",\"\",VLOOKUP(G2616,Insumos!G:H,2,FALSE))","v":""}]
[null,null,null,null,null,{"$f":"IF(E2617=\"\",\"\",VLOOKUP(E2617,Insumos!AD:AE,2,FALSE))","v":""},null,{"$f":"IF(G2617=\"\",\"\",VLOOKUP(G2617,Insumos!G:H,2,FALSE))","v":""}]
[null,null,null,null,null,{"$f":"IF(E2618=\"\",\"\",VLOOKUP(E2618,Insumos!AD:AE,2,FALSE))","v":""},null,{"$f":"IF(G2618=\"\",\"\",VLOOKUP(G2618,Insumos!G:H,2,FALSE))","v":""}]
[null,null,null,null,null,{"$f":"IF(E2619=\"\",\"\",VLOOKUP(E2619,Insumos!AD:AE,2,FALSE))","v":""},null,{"$f":"IF(G2619=\"\",\"\",VLOOKUP(G2619,Insumos!G:H,2,FALSE))","v":""}]
[null,null,null,null,null,{"$f":"IF(E2620=\"\",\"\",VLOOKUP(E2620,Insumos!AD:AE,2,FALSE))","v":""},null,{"$f":"IF(G2620=\"\",\"\",VLOOKUP(G2620,Insumos!G:H,2,FALSE))","v":""}]
[null,null,null,null,null,{"$f":"IF(E2621=\"\",\"\",VLOOKUP(E2621,Insumos!AD:AE,2,FALSE))","v":""},null,{"$f":"IF(G2621=\"\",\"\",VLOOKUP(G2621,Insumos!G:H,2,FALSE))","v":""}]
[null,null,null,null,null,{"$f":"IF(E2622=\"\",\"\",VLOOKUP(E2622,Insumos!AD:AE,2,FALSE))","v":""},null,{"$f":"IF(G2622=\"\",\"\",VLOOKUP(G2622,Insumos!G:H,2,FALSE))","v":""}]
[null,null,null,null,null,{"$f":"IF(E2623=\"\",\"\",VLOOKUP(E2623,Insumos!AD:AE,2,FALSE))","v":""},null,{"$f":"IF(G2623=\"\",\"\",VLOOKUP(G2623,Insumos!G:H,2,FALSE))","v":""}]
[null,null,null,null,null,{"$f":"IF(E2624=\"\",\"\",VLOOKUP(E2624,Insumos!AD:AE,2,FALSE))","v":""},null,{"$f":"IF(G2624=\"\",\"\",VLOOKUP(G2624,Insumos!G:H,2,FALSE))","v":""}]
[null,null,null,null,null,{"$f":"IF(E2625=\"\",\"\",VLOOKUP(E2625,Insumos!AD:AE,2,FALSE))","v":""},null,{"$f":"IF(G2625=\"\",\"\",VLOOKUP(G2625,Insumos!G:H,2,FALSE))","v":""}]
[null,null,null,null,null,{"$f":"IF(E2626=\"\",\"\",VLOOKUP(E2626,Insumos!AD:AE,2,FALSE))","v":""},null,{"$f":"IF(G2626=\"\",\"\",VLOOKUP(G2626,Insumos!G:H,2,FALSE))","v":""}]
[null,null,null,null,null,{"$f":"IF(E2627=\"\",\"\",VLOOKUP(E2627,Insumos!AD:AE,2,FALSE))","v":""},null,{"$f":"IF(G2627=\"\",\"\",VLOOKUP(G2627,Insumos!G:H,2,FALSE))","v":""}]
[null,null,null,null,null,{"$f":"IF(E2628=\"\",\"\",VLOOKUP(E2628,Insumos!AD:AE,2,FALSE))","v":""},null,{"$f":"IF(G2628=\"\",\"\",VLOOKUP(G2628,Insumos!G:H,2,FALSE))","v":""}]
[null,null,null,null,null,{"$f":"IF(E2629=\"\",\"\",VLOOKUP(E2629,Insumos!AD:AE,2,FALSE))","v":""},null,{"$f":"IF(G2629=\"\",\"\",VLOOKUP(G2629,Insumos!G:H,2,FALSE))","v":""}]
[null,null,null,null,null,{"$f":"IF(E2630=\"\",\"\",VLOOKUP(E2630,Insumos!AD:AE,2,FALSE))","v":""},null,{"$f":"IF(G2630=\"\",\"\",VLOOKUP(G2630,Insumos!G:H,2,FALSE))","v":""}]
[null,null,null,null,null,{"$f":"IF(E2631=\"\",\"\",VLOOKUP(E2631,Insumos!AD:AE,2,FALSE))","v":""},null,{"$f":"IF(G2631=\"\",\"\",VLOOKUP(G2631,Insumos!G:H,2,FALSE))","v":""}]
[null,null,null,null,null,{"$f":"IF(E2632=\"\",\"\",VLOOKUP(E2632,Insumos!AD:AE,2,FALSE))","v":""},null,{"$f":"IF(G2632=\"\",\"\",VLOOKUP(G2632,Insumos!G:H,2,FALSE))","v":""}]
[null,null,null,null,null,{"$f":"IF(E2633=\"\",\"\",VLOOKUP(E2633,Insumos!AD:AE,2,FALSE))","v":""},null,{"$f":"IF(G2633=\"\",\"\",VLOOKUP(G2633,Insumos!G:H,2,FALSE))","v":""}]
[null,null,null,null,null,{"$f":"IF(E2634=\"\",\"\",VLOOKUP(E2634,Insumos!AD:AE,2,FALSE))","v":""},null,{"$f":"IF(G2634=\"\",\"\",VLOOKUP(G2634,Insumos!G:H,2,FALSE))","v":""}]
[null,null,null,null,null,{"$f":"IF(E2635=\"\",\"\",VLOOKUP(E2635,Insumos!AD:AE,2,FALSE))","v":""},null,{"$f":"IF(G2635=\"\",\"\",VLOOKUP(G2635,Insumos!G:H,2,FALSE))","v":""}]
[null,null,null,null,null,{"$f":"IF(E2636=\"\",\"\",VLOOKUP(E2636,Insumos!AD:AE,2,FALSE))","v":""},null,{"$f":"IF(G2636=\"\",\"\",VLOOKUP(G2636,Insumos!G:H,2,FALSE))","v":""}]
[null,null,null,null,null,{"$f":"IF(E2637=\"\",\"\",VLOOKUP(E2637,Insumos!AD:AE,2,FALSE))","v":""},null,{"$f":"IF(G2637=\"\",\"\",VLOOKUP(G2637,Insumos!G:H,2,FALSE))","v":""}]
[null,null,null,null,null,{"$f":"IF(E2638=\"\",\"\",VLOOKUP(E2638,Insumos!AD:AE,2,FALSE))","v":""},null,{"$f":"IF(G2638=\"\",\"\",VLOOKUP(G2638,Insumos!G:H,2,FALSE))","v":""}]
[null,null,null,null,null,{"$f":"IF(E2639=\"\",\"\",VLOOKUP(E2639,Insumos!AD:AE,2,FALSE))","v":""},null,{"$f":"IF(G2639=\"\",\"\",VLOOKUP(G2639,Insumos!G:H,2,FALSE))","v":""}]
[null,null,null,null,null,{"$f":"IF(E2640=\"\",\"\",VLOOKUP(E2640,Insumos!AD:AE,2,FALSE))","v":""},null,{"$f":"IF(G2640=\"\",\"\",VLOOKUP(G2640,Insumos!G:H,2,FALSE))","v":""}]
[null,null,null,null,null,{"$f":"IF(E2641=\"\",\"\",VLOOKUP(E2641,Insumos!AD:AE,2,FALSE))","v":""},null,{"$f":"IF(G2641=\"\",\"\",VLOOKUP(G2641,Insumos!G:H,2,FALSE))","v":""}]
[null,null,null,null,null,{"$f":"IF(E2642=\"\",\"\",VLOOKUP(E2642,Insumos!AD:AE,2,FALSE))","v":""},null,{"$f":"IF(G2642=\"\",\"\",VLOOKUP(G2642,Insumos!G:H,2,FALSE))","v":""}]
[null,null,null,null,null,{"$f":"IF(E2643=\"\",\"\",VLOOKUP(E2643,Insumos!AD:AE,2,FALSE))","v":""},null,{"$f":"IF(G2643=\"\",\"\",VLOOKUP(G2643,Insumos!G:H,2,FALSE))","v":""}]
[null,null,null,null,null,{"$f":"IF(E2644=\"\",\"\",VLOOKUP(E2644,Insumos!AD:AE,2,FALSE))","v":""},null,{"$f":"IF(G2644=\"\",\"\",VLOOKUP(G2644,Insumos!G:H,2,FALSE))","v":""}]
[null,null,null,null,null,{"$f":"IF(E2645=\"\",\"\",VLOOKUP(E2645,Insumos!AD:AE,2,FALSE))","v":""},null,{"$f":"IF(G2645=\"\",\"\",VLOOKUP(G2645,Insumos!G:H,2,FALSE))","v":""}]
[null,null,null,null,null,{"$f":"IF(E2646=\"\",\"\",VLOOKUP(E2646,Insumos!AD:AE,2,FALSE))","v":""},null,{"$f":"IF(G2646=\"\",\"\",VLOOKUP(G2646,Insumos!G:H,2,FALSE))","v":""}]
[null,null,null,null,null,{"$f":"IF(E2647=\"\",\"\",VLOOKUP(E2647,Insumos!AD:AE,2,FALSE))","v":""},null,{"$f":"IF(G2647=\"\",\"\",VLOOKUP(G2647,Insumos!G:H,2,FALSE))","v":""}]
[null,null,null,null,null,{"$f":"IF(E2648=\"\",\"\",VLOOKUP(E2648,Insumos!AD:AE,2,FALSE))","v":""},null,{"$f":"IF(G2648=\"\",\"\",VLOOKUP(G2648,Insumos!G:H,2,FALSE))","v":""}]
[null,null,null,null,null,{"$f":"IF(E2649=\"\",\"\",VLOOKUP(E2649,Insumos!AD:AE,2,FALSE))","v":""},null,{"$f":"IF(G2649=\"\",\"\",VLOOKUP(G2649,Insumos!G:H,2,FALSE))","v":""}]
[null,null,null,null,null,{"$f":"IF(E2650=\"\",\"\",VLOOKUP(E2650,Insumos!AD:AE,2,FALSE))","v":""},null,{"$f":"IF(G2650=\"\",\"\",VLOOKUP(G2650,Insumos!G:H,2,FALSE))","v":""}]
[null,null,null,null,null,{"$f":"IF(E2651=\"\",\"\",VLOOKUP(E2651,Insumos!AD:AE,2,FALSE))","v":""},null,{"$f":"IF(G2651=\"\",\"\",VLOOKUP(G2651,Insumos!G:H,2,FALSE))","v":""}]
[null,null,null,null,null,{"$f":"IF(E2652=\"\",\"\",VLOOKUP(E2652,Insumos!AD:AE,2,FALSE))","v":""},null,{"$f":"IF(G2652=\"\",\"\",VLOOKUP(G2652,Insumos!G:H,2,FALSE))","v":""}]
[null,null,null,null,null,{"$f":"IF(E2653=\"\",\"\",VLOOKUP(E2653,Insumos!AD:AE,2,FALSE))","v":""},null,{"$f":"IF(G2653=\"\",\"\",VLOOKUP(G2653,Insumos!G:H,2,FALSE))","v":""}]
[null,null,null,null,null,{"$f":"IF(E2654=\"\",\"\",VLOOKUP(E2654,Insumos!AD:AE,2,FALSE))","v":""},null,{"$f":"IF(G2654=\"\",\"\",VLOOKUP(G2654,Insumos!G:H,2,FALSE))","v":""}]
[null,null,null,null,null,{"$f":"IF(E2655=\"\",\"\",VLOOKUP(E2655,Insumos!AD:AE,2,FALSE))","v":""},null,{"$f":"IF(G2655=\"\",\"\",VLOOKUP(G2655,Insumos!G:H,2,FALSE))","v":""}]
[null,null,null,null,null,{"$f":"IF(E2656=\"\",\"\",VLOOKUP(E2656,Insumos!AD:AE,2,FALSE))","v":""},null,{"$f":"IF(G2656=\"\",\"\",VLOOKUP(G2656,Insumos!G:H,2,FALSE))","v":""}]
[null,null,null,null,null,{"$f":"IF(E2657=\"\",\"\",VLOOKUP(E2657,Insumos!AD:AE,2,FALSE))","v":""},null,{"$f":"IF(G2657=\"\",\"\",VLOOKUP(G2657,Insumos!G:H,2,FALSE))","v":""}]
[null,null,null,null,null,{"$f":"IF(E2658=\"\",\"\",VLOOKUP(E2658,Insumos!AD:AE,2,FALSE))","v":""},null,{"$f":"IF(G2658=\"\",\"\",VLOOKUP(G2658,Insumos!G:H,2,FALSE))","v":""}]
[null,null,null,null,null,{"$f":"IF(E2659=\"\",\"\",VLOOKUP(E2659,Insumos!AD:AE,2,FALSE))","v":""},null,{"$f":"IF(G2659=\"\",\"\",VLOOKUP(G2659,Insumos!G:H,2,FALSE))","v":""}]
[null,null,null,null,null,{"$f":"IF(E2660=\"\",\"\",VLOOKUP(E2660,Insumos!AD:AE,2,FALSE))","v":""},null,{"$f":"IF(G2660=\"\",\"\",VLOOKUP(G2660,Insumos!G:H,2,FALSE))","v":""}]
[null,null,null,null,null,{"$f":"IF(E2661=\"\",\"\",VLOOKUP(E2661,Insumos!AD:AE,2,FALSE))","v":""},null,{"$f":"IF(G2661=\"\",\"\",VLOOKUP(G2661,Insumos!G:H,2,FALSE))","v":""}]
[null,null,null,null,null,{"$f":"IF(E2662=\"\",\"\",VLOOKUP(E2662,Insumos!AD:AE,2,FALSE))","v":""},null,{"$f":"IF(G2662=\"\",\"\",VLOOKUP(G2662,Insumos!G:H,2,FALSE))","v":""}]
[null,null,null,null,null,{"$f":"IF(E2663=\"\",\"\",VLOOKUP(E2663,Insumos!AD:AE,2,FALSE))","v":""},null,{"$f":"IF(G2663=\"\",\"\",VLOOKUP(G2663,Insumos!G:H,2,FALSE))","v":""}]
[null,null,null,null,null,{"$f":"IF(E2664=\"\",\"\",VLOOKUP(E2664,Insumos!AD:AE,2,FALSE))","v":""},null,{"$f":"IF(G2664=\"\",\"\",VLOOKUP(G2664,Insumos!G:H,2,FALSE))","v":""}]
[null,null,null,null,null,{"$f":"IF(E2665=\"\",\"\",VLOOKUP(E2665,Insumos!AD:AE,2,FALSE))","v":""},null,{"$f":"IF(G2665=\"\",\"\",VLOOKUP(G2665,Insumos!G:H,2,FALSE))","v":""}]
[null,null,null,null,null,{"$f":"IF(E2666=\"\",\"\",VLOOKUP(E2666,Insumos!AD:AE,2,FALSE))","v":""},null,{"$f":"IF(G2666=\"\",\"\",VLOOKUP(G2666,Insumos!G:H,2,FALSE))","v":""}]
[null,null,null,null,null,{"$f":"IF(E2667=\"\",\"\",VLOOKUP(E2667,Insumos!AD:AE,2,FALSE))","v":""},null,{"$f":"IF(G2667=\"\",\"\",VLOOKUP(G2667,Insumos!G:H,2,FALSE))","v":""}]
[null,null,null,null,null,{"$f":"IF(E2668=\"\",\"\",VLOOKUP(E2668,Insumos!AD:AE,2,FALSE))","v":""},null,{"$f":"IF(G2668=\"\",\"\",VLOOKUP(G2668,Insumos!G:H,2,FALSE))","v":""}]
[null,null,null,null,null,{"$f":"IF(E2669=\"\",\"\",VLOOKUP(E2669,Insumos!AD:AE,2,FALSE))","v":""},null,{"$f":"IF(G2669=\"\",\"\",VLOOKUP(G2669,Insumos!G:H,2,FALSE))","v":""}]
[null,null,null,null,null,{"$f":"IF(E2670=\"\",\"\",VLOOKUP(E2670,Insumos!AD:AE,2,FALSE))","v":""},null,{"$f":"IF(G2670=\"\",\"\",VLOOKUP(G2670,Insumos!G:H,2,FALSE))","v":""}]
[null,null,null,null,null,{"$f":"IF(E2671=\"\",\"\",VLOOKUP(E2671,Insumos!AD:AE,2,FALSE))","v":""},null,{"$f":"IF(G2671=\"\",\"\",VLOOKUP(G2671,Insumos!G:H,2,FALSE))","v":""}]
[null,null,null,null,null,{"$f":"IF(E2672=\"\",\"\",VLOOKUP(E2672,Insumos!AD:AE,2,FALSE))","v":""},null,{"$f":"IF(G2672=\"\",\"\",VLOOKUP(G2672,Insumos!G:H,2,FALSE))","v":""}]
[null,null,null,null,null,{"$f":"IF(E2673=\"\",\"\",VLOOKUP(E2673,Insumos!AD:AE,2,FALSE))","v":""},null,{"$f":"IF(G2673=\"\",\"\",VLOOKUP(G2673,Insumos!G:H,2,FALSE))","v":""}]
[null,null,null,null,null,{"$f":"IF(E2674=\"\",\"\",VLOOKUP(E2674,Insumos!AD:AE,2,FALSE))","v":""},null,{"$f":"IF(G2674=\"\",\"\",VLOOKUP(G2674,Insumos!G:H,2,FALSE))","v":""}]
[null,null,null,null,null,{"$f":"IF(E2675=\"\",\"\",VLOOKUP(E2675,Insumos!AD:AE,2,FALSE))","v":""},null,{"$f":"IF(G2675=\"\",\"\",VLOOKUP(G2675,Insumos!G:H,2,FALSE))","v":""}]
[null,null,null,null,null,{"$f":"IF(E2676=\"\",\"\",VLOOKUP(E2676,Insumos!AD:AE,2,FALSE))","v":""},null,{"$f":"IF(G2676=\"\",\"\",VLOOKUP(G2676,Insumos!G:H,2,FALSE))","v":""}]
[null,null,null,null,null,{"$f":"IF(E2677=\"\",\"\",VLOOKUP(E2677,Insumos!AD:AE,2,FALSE))","v":""},null,{"$f":"IF(G2677=\"\",\"\",VLOOKUP(G2677,Insumos!G:H,2,FALSE))","v":""}]
[null,null,null,null,null,{"$f":"IF(E2678=\"\",\"\",VLOOKUP(E2678,Insumos!AD:AE,2,FALSE))","v":""},null,{"$f":"IF(G2678=\"\",\"\",VLOOKUP(G2678,Insumos!G:H,2,FALSE))","v":""}]
[null,null,null,null,null,{"$f":"IF(E2679=\"\",\"\",VLOOKUP(E2679,Insumos!AD:AE,2,FALSE))","v":""},null,{"$f":"IF(G2679=\"\",\"\",VLOOKUP(G2679,Insumos!G:H,2,FALSE))","v":""}]
[null,null,null,null,null,{"$f":"IF(E2680=\"\",\"\",VLOOKUP(E2680,Insumos!AD:AE,2,FALSE))","v":""},null,{"$f":"IF(G2680=\"\",\"\",VLOOKUP(G2680,Insumos!G:H,2,FALSE))","v":""}]
[null,null,null,null,null,{"$f":"IF(E2681=\"\",\"\",VLOOKUP(E2681,Insumos!AD:AE,2,FALSE))","v":""},null,{"$f":"IF(G2681=\"\",\"\",VLOOKUP(G2681,Insumos!G:H,2,FALSE))","v":""}]
[null,null,null,null,null,{"$f":"IF(E2682=\"\",\"\",VLOOKUP(E2682,Insumos!AD:AE,2,FALSE))","v":""},null,{"$f":"IF(G2682=\"\",\"\",VLOOKUP(G2682,Insumos!G:H,2,FALSE))","v":""}]
[null,null,null,null,null,{"$f":"IF(E2683=\"\",\"\",VLOOKUP(E2683,Insumos!AD:AE,2,FALSE))","v":""},null,{"$f":"IF(G2683=\"\",\"\",VLOOKUP(G2683,Insumos!G:H,2,FALSE))","v":""}]
[null,null,null,null,null,{"$f":"IF(E2684=\"\",\"\",VLOOKUP(E2684,Insumos!AD:AE,2,FALSE))","v":""},null,{"$f":"IF(G2684=\"\",\"\",VLOOKUP(G2684,Insumos!G:H,2,FALSE))","v":""}]
[null,null,null,null,null,{"$f":"IF(E2685=\"\",\"\",VLOOKUP(E2685,Insumos!AD:AE,2,FALSE))","v":""},null,{"$f":"IF(G2685=\"\",\"\",VLOOKUP(G2685,Insumos!G:H,2,FALSE))","v":""}]
[null,null,null,null,null,{"$f":"IF(E2686=\"\",\"\",VLOOKUP(E2686,Insumos!AD:AE,2,FALSE))","v":""},null,{"$f":"IF(G2686=\"\",\"\",VLOOKUP(G2686,Insumos!G:H,2,FALSE))","v":""}]
[null,null,null,null,null,{"$f":"IF(E2687=\"\",\"\",VLOOKUP(E2687,Insumos!AD:AE,2,FALSE))","v":""},null,{"$f":"IF(G2687=\"\",\"\",VLOOKUP(G2687,Insumos!G:H,2,FALSE))","v":""}]
[null,null,null,null,null,{"$f":"IF(E2688=\"\",\"\",VLOOKUP(E2688,Insumos!AD:AE,2,FALSE))","v":""},null,{"$f":"IF(G2688=\"\",\"\",VLOOKUP(G2688,Insumos!G:H,2,FALSE))","v":""}]
[null,null,null,null,null,{"$f":"IF(E2689=\"\",\"\",VLOOKUP(E2689,Insumos!AD:AE,2,FALSE))","v":""},null,{"$f":"IF(G2689=\"\",\"\",VLOOKUP(G2689,Insumos!G:H,2,FALSE))","v":""}]
[null,null,null,null,null,{"$f":"IF(E2690=\"\",\"\",VLOOKUP(E2690,Insumos!AD:AE,2,FALSE))","v":""},null,{"$f":"IF(G2690=\"\",\"\",VLOOKUP(G2690,Insumos!G:H,2,FALSE))","v":""}]
[null,null,null,null,null,{"$f":"IF(E2691=\"\",\"\",VLOOKUP(E2691,Insumos!AD:AE,2,FALSE))","v":""},null,{"$f":"IF(G2691=\"\",\"\",VLOOKUP(G2691,Insumos!G:H,2,FALSE))","v":""}]
[null,null,null,null,null,{"$f":"IF(E2692=\"\",\"\",VLOOKUP(E2692,Insumos!AD:AE,2,FALSE))","v":""},null,{"$f":"IF(G2692=\"\",\"\",VLOOKUP(G2692,Insumos!G:H,2,FALSE))","v":""}]
[null,null,null,null,null,{"$f":"IF(E2693=\"\",\"\",VLOOKUP(E2693,Insumos!AD:AE,2,FALSE))","v":""},null,{"$f":"IF(G2693=\"\",\"\",VLOOKUP(G2693,Insumos!G:H,2,FALSE))","v":""}]
[null,null,null,null,null,{"$f":"IF(E2694=\"\",\"\",VLOOKUP(E2694,Insumos!AD:AE,2,FALSE))","v":""},null,{"$f":"IF(G2694=\"\",\"\",VLOOKUP(G2694,Insumos!G:H,2,FALSE))","v":""}]
[null,null,null,null,null,{"$f":"IF(E2695=\"\",\"\",VLOOKUP(E2695,Insumos!AD:AE,2,FALSE))","v":""},null,{"$f":"IF(G2695=\"\",\"\",VLOOKUP(G2695,Insumos!G:H,2,FALSE))","v":""}]
[null,null,null,null,null,{"$f":"IF(E2696=\"\",\"\",VLOOKUP(E2696,Insumos!AD:AE,2,FALSE))","v":""},null,{"$f":"IF(G2696=\"\",\"\",VLOOKUP(G2696,Insumos!G:H,2,FALSE))","v":""}]
[null,null,null,null,null,{"$f":"IF(E2697=\"\",\"\",VLOOKUP(E2697,Insumos!AD:AE,2,FALSE))","v":""},null,{"$f":"IF(G2697=\"\",\"\",VLOOKUP(G2697,Insumos!G:H,2,FALSE))","v":""}]
[null,null,null,null,null,{"$f":"IF(E2698=\"\",\"\",VLOOKUP(E2698,Insumos!AD:AE,2,FALSE))","v":""},null,{"$f":"IF(G2698=\"\",\"\",VLOOKUP(G2698,Insumos!G:H,2,FALSE))","v":""}]
[null,null,null,null,null,{"$f":"IF(E2699=\"\",\"\",VLOOKUP(E2699,Insumos!AD:AE,2,FALSE))","v":""},null,{"$f":"IF(G2699=\"\",\"\",VLOOKUP(G2699,Insumos!G:H,2,FALSE))","v":""}]
[null,null,null,null,null,{"$f":"IF(E2700=\"\",\"\",VLOOKUP(E2700,Insumos!AD:AE,2,FALSE))","v":""},null,{"$f":"IF(G2700=\"\",\"\",VLOOKUP(G2700,Insumos!G:H,2,FALSE))","v":""}]
[null,null,null,null,null,{"$f":"IF(E2701=\"\",\"\",VLOOKUP(E2701,Insumos!AD:AE,2,FALSE))","v":""},null,{"$f":"IF(G2701=\"\",\"\",VLOOKUP(G2701,Insumos!G:H,2,FALSE))","v":""}]
[null,null,null,null,null,{"$f":"IF(E2702=\"\",\"\",VLOOKUP(E2702,Insumos!AD:AE,2,FALSE))","v":""},null,{"$f":"IF(G2702=\"\",\"\",VLOOKUP(G2702,Insumos!G:H,2,FALSE))","v":""}]
[null,null,null,null,null,{"$f":"IF(E2703=\"\",\"\",VLOOKUP(E2703,Insumos!AD:AE,2,FALSE))","v":""},null,{"$f":"IF(G2703=\"\",\"\",VLOOKUP(G2703,Insumos!G:H,2,FALSE))","v":""}]
[null,null,null,null,null,{"$f":"IF(E2704=\"\",\"\",VLOOKUP(E2704,Insumos!AD:AE,2,FALSE))","v":""},null,{"$f":"IF(G2704=\"\",\"\",VLOOKUP(G2704,Insumos!G:H,2,FALSE))","v":""}]
[null,null,null,null,null,{"$f":"IF(E2705=\"\",\"\",VLOOKUP(E2705,Insumos!AD:AE,2,FALSE))","v":""},null,{"$f":"IF(G2705=\"\",\"\",VLOOKUP(G2705,Insumos!G:H,2,FALSE))","v":""}]
[null,null,null,null,null,{"$f":"IF(E2706=\"\",\"\",VLOOKUP(E2706,Insumos!AD:AE,2,FALSE))","v":""},null,{"$f":"IF(G2706=\"\",\"\",VLOOKUP(G2706,Insumos!G:H,2,FALSE))","v":""}]
[null,null,null,null,null,{"$f":"IF(E2707=\"\",\"\",VLOOKUP(E2707,Insumos!AD:AE,2,FALSE))","v":""},null,{"$f":"IF(G2707=\"\",\"\",VLOOKUP(G2707,Insumos!G:H,2,FALSE))","v":""}]
[null,null,null,null,null,{"$f":"IF(E2708=\"\",\"\",VLOOKUP(E2708,Insumos!AD:AE,2,FALSE))","v":""},null,{"$f":"IF(G2708=\"\",\"\",VLOOKUP(G2708,Insumos!G:H,2,FALSE))","v":""}]
[null,null,null,null,null,{"$f":"IF(E2709=\"\",\"\",VLOOKUP(E2709,Insumos!AD:AE,2,FALSE))","v":""},null,{"$f":"IF(G2709=\"\",\"\",VLOOKUP(G2709,Insumos!G:H,2,FALSE))","v":""}]
[null,null,null,null,null,{"$f":"IF(E2710=\"\",\"\",VLOOKUP(E2710,Insumos!AD:AE,2,FALSE))","v":""},null,{"$f":"IF(G2710=\"\",\"\",VLOOKUP(G2710,Insumos!G:H,2,FALSE))","v":""}]
[null,null,null,null,null,{"$f":"IF(E2711=\"\",\"\",VLOOKUP(E2711,Insumos!AD:AE,2,FALSE))","v":""},null,{"$f":"IF(G2711=\"\",\"\",VLOOKUP(G2711,Insumos!G:H,2,FALSE))","v":""}]
[null,null,null,null,null,{"$f":"IF(E2712=\"\",\"\",VLOOKUP(E2712,Insumos!AD:AE,2,FALSE))","v":""},null,{"$f":"IF(G2712=\"\",\"\",VLOOKUP(G2712,Insumos!G:H,2,FALSE))","v":""}]
[null,null,null,null,null,{"$f":"IF(E2713=\"\",\"\",VLOOKUP(E2713,Insumos!AD:AE,2,FALSE))","v":""},null,{"$f":"IF(G2713=\"\",\"\",VLOOKUP(G2713,Insumos!G:H,2,FALSE))","v":""}]
[null,null,null,null,null,{"$f":"IF(E2714=\"\",\"\",VLOOKUP(E2714,Insumos!AD:AE,2,FALSE))","v":""},null,{"$f":"IF(G2714=\"\",\"\",VLOOKUP(G2714,Insumos!G:H,2,FALSE))","v":""}]
[null,null,null,null,null,{"$f":"IF(E2715=\"\",\"\",VLOOKUP(E2715,Insumos!AD:AE,2,FALSE))","v":""},null,{"$f":"IF(G2715=\"\",\"\",VLOOKUP(G2715,Insumos!G:H,2,FALSE))","v":""}]
[null,null,null,null,null,{"$f":"IF(E2716=\"\",\"\",VLOOKUP(E2716,Insumos!AD:AE,2,FALSE))","v":""},null,{"$f":"IF(G2716=\"\",\"\",VLOOKUP(G2716,Insumos!G:H,2,FALSE))","v":""}]
[null,null,null,null,null,{"$f":"IF(E2717=\"\",\"\",VLOOKUP(E2717,Insumos!AD:AE,2,FALSE))","v":""},null,{"$f":"IF(G2717=\"\",\"\",VLOOKUP(G2717,Insumos!G:H,2,FALSE))","v":""}]
[null,null,null,null,null,{"$f":"IF(E2718=\"\",\"\",VLOOKUP(E2718,Insumos!AD:AE,2,FALSE))","v":""},null,{"$f":"IF(G2718=\"\",\"\",VLOOKUP(G2718,Insumos!G:H,2,FALSE))","v":""}]
[null,null,null,null,null,{"$f":"IF(E2719=\"\",\"\",VLOOKUP(E2719,Insumos!AD:AE,2,FALSE))","v":""},null,{"$f":"IF(G2719=\"\",\"\",VLOOKUP(G2719,Insumos!G:H,2,FALSE))","v":""}]
[null,null,null,null,null,{"$f":"IF(E2720=\"\",\"\",VLOOKUP(E2720,Insumos!AD:AE,2,FALSE))","v":""},null,{"$f":"IF(G2720=\"\",\"\",VLOOKUP(G2720,Insumos!G:H,2,FALSE))","v":""}]
[null,null,null,null,null,{"$f":"IF(E2721=\"\",\"\",VLOOKUP(E2721,Insumos!AD:AE,2,FALSE))","v":""},null,{"$f":"IF(G2721=\"\",\"\",VLOOKUP(G2721,Insumos!G:H,2,FALSE))","v":""}]
[null,null,null,null,null,{"$f":"IF(E2722=\"\",\"\",VLOOKUP(E2722,Insumos!AD:AE,2,FALSE))","v":""},null,{"$f":"IF(G2722=\"\",\"\",VLOOKUP(G2722,Insumos!G:H,2,FALSE))","v":""}]
[null,null,null,null,null,{"$f":"IF(E2723=\"\",\"\",VLOOKUP(E2723,Insumos!AD:AE,2,FALSE))","v":""},null,{"$f":"IF(G2723=\"\",\"\",VLOOKUP(G2723,Insumos!G:H,2,FALSE))","v":""}]
[null,null,null,null,null,{"$f":"IF(E2724=\"\",\"\",VLOOKUP(E2724,Insumos!AD:AE,2,FALSE))","v":""},null,{"$f":"IF(G2724=\"\",\"\",VLOOKUP(G2724,Insumos!G:H,2,FALSE))","v":""}]
[null,null,null,null,null,{"$f":"IF(E2725=\"\",\"\",VLOOKUP(E2725,Insumos!AD:AE,2,FALSE))","v":""},null,{"$f":"IF(G2725=\"\",\"\",VLOOKUP(G2725,Insumos!G:H,2,FALSE))","v":""}]
[null,null,null,null,null,{"$f":"IF(E2726=\"\",\"\",VLOOKUP(E2726,Insumos!AD:AE,2,FALSE))","v":""},null,{"$f":"IF(G2726=\"\",\"\",VLOOKUP(G2726,Insumos!G:H,2,FALSE))","v":""}]
[null,null,null,null,null,{"$f":"IF(E2727=\"\",\"\",VLOOKUP(E2727,Insumos!AD:AE,2,FALSE))","v":""},null,{"$f":"IF(G2727=\"\",\"\",VLOOKUP(G2727,Insumos!G:H,2,FALSE))","v":""}]
[null,null,null,null,null,{"$f":"IF(E2728=\"\",\"\",VLOOKUP(E2728,Insumos!AD:AE,2,FALSE))","v":""},null,{"$f":"IF(G2728=\"\",\"\",VLOOKUP(G2728,Insumos!G:H,2,FALSE))","v":""}]
[null,null,null,null,null,{"$f":"IF(E2729=\"\",\"\",VLOOKUP(E2729,Insumos!AD:AE,2,FALSE))","v":""},null,{"$f":"IF(G2729=\"\",\"\",VLOOKUP(G2729,Insumos!G:H,2,FALSE))","v":""}]
[null,null,null,null,null,{"$f":"IF(E2730=\"\",\"\",VLOOKUP(E2730,Insumos!AD:AE,2,FALSE))","v":""},null,{"$f":"IF(G2730=\"\",\"\",VLOOKUP(G2730,Insumos!G:H,2,FALSE))","v":""}]
[null,null,null,null,null,{"$f":"IF(E2731=\"\",\"\",VLOOKUP(E2731,Insumos!AD:AE,2,FALSE))","v":""},null,{"$f":"IF(G2731=\"\",\"\",VLOOKUP(G2731,Insumos!G:H,2,FALSE))","v":""}]
[null,null,null,null,null,{"$f":"IF(E2732=\"\",\"\",VLOOKUP(E2732,Insumos!AD:AE,2,FALSE))","v":""},null,{"$f":"IF(G2732=\"\",\"\",VLOOKUP(G2732,Insumos!G:H,2,FALSE))","v":""}]
[null,null,null,null,null,{"$f":"IF(E2733=\"\",\"\",VLOOKUP(E2733,Insumos!AD:AE,2,FALSE))","v":""},null,{"$f":"IF(G2733=\"\",\"\",VLOOKUP(G2733,Insumos!G:H,2,FALSE))","v":""}]
[null,null,null,null,null,{"$f":"IF(E2734=\"\",\"\",VLOOKUP(E2734,Insumos!AD:AE,2,FALSE))","v":""},null,{"$f":"IF(G2734=\"\",\"\",VLOOKUP(G2734,Insumos!G:H,2,FALSE))","v":""}]
[null,null,null,null,null,{"$f":"IF(E2735=\"\",\"\",VLOOKUP(E2735,Insumos!AD:AE,2,FALSE))","v":""},null,{"$f":"IF(G2735=\"\",\"\",VLOOKUP(G2735,Insumos!G:H,2,FALSE))","v":""}]
[null,null,null,null,null,{"$f":"IF(E2736=\"\",\"\",VLOOKUP(E2736,Insumos!AD:AE,2,FALSE))","v":""},null,{"$f":"IF(G2736=\"\",\"\",VLOOKUP(G2736,Insumos!G:H,2,FALSE))","v":""}]
[null,null,null,null,null,{"$f":"IF(E2737=\"\",\"\",VLOOKUP(E2737,Insumos!AD:AE,2,FALSE))","v":""},null,{"$f":"IF(G2737=\"\",\"\",VLOOKUP(G2737,Insumos!G:H,2,FALSE))","v":""}]
[null,null,null,null,null,{"$f":"IF(E2738=\"\",\"\",VLOOKUP(E2738,Insumos!AD:AE,2,FALSE))","v":""},null,{"$f":"IF(G2738=\"\",\"\",VLOOKUP(G2738,Insumos!G:H,2,FALSE))","v":""}]
[null,null,null,null,null,{"$f":"IF(E2739=\"\",\"\",VLOOKUP(E2739,Insumos!AD:AE,2,FALSE))","v":""},null,{"$f":"IF(G2739=\"\",\"\",VLOOKUP(G2739,Insumos!G:H,2,FALSE))","v":""}]
[null,null,null,null,null,{"$f":"IF(E2740=\"\",\"\",VLOOKUP(E2740,Insumos!AD:AE,2,FALSE))","v":""},null,{"$f":"IF(G2740=\"\",\"\",VLOOKUP(G2740,Insumos!G:H,2,FALSE))","v":""}]
[null,null,null,null,null,{"$f":"IF(E2741=\"\",\"\",VLOOKUP(E2741,Insumos!AD:AE,2,FALSE))","v":""},null,{"$f":"IF(G2741=\"\",\"\",VLOOKUP(G2741,Insumos!G:H,2,FALSE))","v":""}]
[null,null,null,null,null,{"$f":"IF(E2742=\"\",\"\",VLOOKUP(E2742,Insumos!AD:AE,2,FALSE))","v":""},null,{"$f":"IF(G2742=\"\",\"\",VLOOKUP(G2742,Insumos!G:H,2,FALSE))","v":""}]
[null,null,null,null,null,{"$f":"IF(E2743=\"\",\"\",VLOOKUP(E2743,Insumos!AD:AE,2,FALSE))","v":""},null,{"$f":"IF(G2743=\"\",\"\",VLOOKUP(G2743,Insumos!G:H,2,FALSE))","v":""}]
[null,null,null,null,null,{"$f":"IF(E2744=\"\",\"\",VLOOKUP(E2744,Insumos!AD:AE,2,FALSE))","v":""},null,{"$f":"IF(G2744=\"\",\"\",VLOOKUP(G2744,Insumos!G:H,2,FALSE))","v":""}]
[null,null,null,null,null,{"$f":"IF(E2745=\"\",\"\",VLOOKUP(E2745,Insumos!AD:AE,2,FALSE))","v":""},null,{"$f":"IF(G2745=\"\",\"\",VLOOKUP(G2745,Insumos!G:H,2,FALSE))","v":""}]
[null,null,null,null,null,{"$f":"IF(E2746=\"\",\"\",VLOOKUP(E2746,Insumos!AD:AE,2,FALSE))","v":""},null,{"$f":"IF(G2746=\"\",\"\",VLOOKUP(G2746,Insumos!G:H,2,FALSE))","v":""}]
[null,null,null,null,null,{"$f":"IF(E2747=\"\",\"\",VLOOKUP(E2747,Insumos!AD:AE,2,FALSE))","v":""},null,{"$f":"IF(G2747=\"\",\"\",VLOOKUP(G2747,Insumos!G:H,2,FALSE))","v":""}]
[null,null,null,null,null,{"$f":"IF(E2748=\"\",\"\",VLOOKUP(E2748,Insumos!AD:AE,2,FALSE))","v":""},null,{"$f":"IF(G2748=\"\",\"\",VLOOKUP(G2748,Insumos!G:H,2,FALSE))","v":""}]
[null,null,null,null,null,{"$f":"IF(E2749=\"\",\"\",VLOOKUP(E2749,Insumos!AD:AE,2,FALSE))","v":""},null,{"$f":"IF(G2749=\"\",\"\",VLOOKUP(G2749,Insumos!G:H,2,FALSE))","v":""}]
[null,null,null,null,null,{"$f":"IF(E2750=\"\",\"\",VLOOKUP(E2750,Insumos!AD:AE,2,FALSE))","v":""},null,{"$f":"IF(G2750=\"\",\"\",VLOOKUP(G2750,Insumos!G:H,2,FALSE))","v":""}]
[null,null,null,null,null,{"$f":"IF(E2751=\"\",\"\",VLOOKUP(E2751,Insumos!AD:AE,2,FALSE))","v":""},null,{"$f":"IF(G2751=\"\",\"\",VLOOKUP(G2751,Insumos!G:H,2,FALSE))","v":""}]
[null,null,null,null,null,{"$f":"IF(E2752=\"\",\"\",VLOOKUP(E2752,Insumos!AD:AE,2,FALSE))","v":""},null,{"$f":"IF(G2752=\"\",\"\",VLOOKUP(G2752,Insumos!G:H,2,FALSE))","v":""}]
[null,null,null,null,null,{"$f":"IF(E2753=\"\",\"\",VLOOKUP(E2753,Insumos!AD:AE,2,FALSE))","v":""},null,{"$f":"IF(G2753=\"\",\"\",VLOOKUP(G2753,Insumos!G:H,2,FALSE))","v":""}]
[null,null,null,null,null,{"$f":"IF(E2754=\"\",\"\",VLOOKUP(E2754,Insumos!AD:AE,2,FALSE))","v":""},null,{"$f":"IF(G2754=\"\",\"\",VLOOKUP(G2754,Insumos!G:H,2,FALSE))","v":""}]
[null,null,null,null,null,{"$f":"IF(E2755=\"\",\"\",VLOOKUP(E2755,Insumos!AD:AE,2,FALSE))","v":""},null,{"$f":"IF(G2755=\"\",\"\",VLOOKUP(G2755,Insumos!G:H,2,FALSE))","v":""}]
[null,null,null,null,null,{"$f":"IF(E2756=\"\",\"\",VLOOKUP(E2756,Insumos!AD:AE,2,FALSE))","v":""},null,{"$f":"IF(G2756=\"\",\"\",VLOOKUP(G2756,Insumos!G:H,2,FALSE))","v":""}]
[null,null,null,null,null,{"$f":"IF(E2757=\"\",\"\",VLOOKUP(E2757,Insumos!AD:AE,2,FALSE))","v":""},null,{"$f":"IF(G2757=\"\",\"\",VLOOKUP(G2757,Insumos!G:H,2,FALSE))","v":""}]
[null,null,null,null,null,{"$f":"IF(E2758=\"\",\"\",VLOOKUP(E2758,Insumos!AD:AE,2,FALSE))","v":""},null,{"$f":"IF(G2758=\"\",\"\",VLOOKUP(G2758,Insumos!G:H,2,FALSE))","v":""}]
[null,null,null,null,null,{"$f":"IF(E2759=\"\",\"\",VLOOKUP(E2759,Insumos!AD:AE,2,FALSE))","v":""},null,{"$f":"IF(G2759=\"\",\"\",VLOOKUP(G2759,Insumos!G:H,2,FALSE))","v":""}]
[null,null,null,null,null,{"$f":"IF(E2760=\"\",\"\",VLOOKUP(E2760,Insumos!AD:AE,2,FALSE))","v":""},null,{"$f":"IF(G2760=\"\",\"\",VLOOKUP(G2760,Insumos!G:H,2,FALSE))","v":""}]
[null,null,null,null,null,{"$f":"IF(E2761=\"\",\"\",VLOOKUP(E2761,Insumos!AD:AE,2,FALSE))","v":""},null,{"$f":"IF(G2761=\"\",\"\",VLOOKUP(G2761,Insumos!G:H,2,FALSE))","v":""}]
[null,null,null,null,null,{"$f":"IF(E2762=\"\",\"\",VLOOKUP(E2762,Insumos!AD:AE,2,FALSE))","v":""},null,{"$f":"IF(G2762=\"\",\"\",VLOOKUP(G2762,Insumos!G:H,2,FALSE))","v":""}]
[null,null,null,null,null,{"$f":"IF(E2763=\"\",\"\",VLOOKUP(E2763,Insumos!AD:AE,2,FALSE))","v":""},null,{"$f":"IF(G2763=\"\",\"\",VLOOKUP(G2763,Insumos!G:H,2,FALSE))","v":""}]
[null,null,null,null,null,{"$f":"IF(E2764=\"\",\"\",VLOOKUP(E2764,Insumos!AD:AE,2,FALSE))","v":""},null,{"$f":"IF(G2764=\"\",\"\",VLOOKUP(G2764,Insumos!G:H,2,FALSE))","v":""}]
[null,null,null,null,null,{"$f":"IF(E2765=\"\",\"\",VLOOKUP(E2765,Insumos!AD:AE,2,FALSE))","v":""},null,{"$f":"IF(G2765=\"\",\"\",VLOOKUP(G2765,Insumos!G:H,2,FALSE))","v":""}]
[null,null,null,null,null,{"$f":"IF(E2766=\"\",\"\",VLOOKUP(E2766,Insumos!AD:AE,2,FALSE))","v":""},null,{"$f":"IF(G2766=\"\",\"\",VLOOKUP(G2766,Insumos!G:H,2,FALSE))","v":""}]
[null,null,null,null,null,{"$f":"IF(E2767=\"\",\"\",VLOOKUP(E2767,Insumos!AD:AE,2,FALSE))","v":""},null,{"$f":"IF(G2767=\"\",\"\",VLOOKUP(G2767,Insumos!G:H,2,FALSE))","v":""}]
[null,null,null,null,null,{"$f":"IF(E2768=\"\",\"\",VLOOKUP(E2768,Insumos!AD:AE,2,FALSE))","v":""},null,{"$f":"IF(G2768=\"\",\"\",VLOOKUP(G2768,Insumos!G:H,2,FALSE))","v":""}]
[null,null,null,null,null,{"$f":"IF(E2769=\"\",\"\",VLOOKUP(E2769,Insumos!AD:AE,2,FALSE))","v":""},null,{"$f":"IF(G2769=\"\",\"\",VLOOKUP(G2769,Insumos!G:H,2,FALSE))","v":""}]
[null,null,null,null,null,{"$f":"IF(E2770=\"\",\"\",VLOOKUP(E2770,Insumos!AD:AE,2,FALSE))","v":""},null,{"$f":"IF(G2770=\"\",\"\",VLOOKUP(G2770,Insumos!G:H,2,FALSE))","v":""}]
[null,null,null,null,null,{"$f":"IF(E2771=\"\",\"\",VLOOKUP(E2771,Insumos!AD:AE,2,FALSE))","v":""},null,{"$f":"IF(G2771=\"\",\"\",VLOOKUP(G2771,Insumos!G:H,2,FALSE))","v":""}]
[null,null,null,null,null,{"$f":"IF(E2772=\"\",\"\",VLOOKUP(E2772,Insumos!AD:AE,2,FALSE))","v":""},null,{"$f":"IF(G2772=\"\",\"\",VLOOKUP(G2772,Insumos!G:H,2,FALSE))","v":""}]
[null,null,null,null,null,{"$f":"IF(E2773=\"\",\"\",VLOOKUP(E2773,Insumos!AD:AE,2,FALSE))","v":""},null,{"$f":"IF(G2773=\"\",\"\",VLOOKUP(G2773,Insumos!G:H,2,FALSE))","v":""}]
[null,null,null,null,null,{"$f":"IF(E2774=\"\",\"\",VLOOKUP(E2774,Insumos!AD:AE,2,FALSE))","v":""},null,{"$f":"IF(G2774=\"\",\"\",VLOOKUP(G2774,Insumos!G:H,2,FALSE))","v":""}]
[null,null,null,null,null,{"$f":"IF(E2775=\"\",\"\",VLOOKUP(E2775,Insumos!AD:AE,2,FALSE))","v":""},null,{"$f":"IF(G2775=\"\",\"\",VLOOKUP(G2775,Insumos!G:H,2,FALSE))","v":""}]
[null,null,null,null,null,{"$f":"IF(E2776=\"\",\"\",VLOOKUP(E2776,Insumos!AD:AE,2,FALSE))","v":""},null,{"$f":"IF(G2776=\"\",\"\",VLOOKUP(G2776,Insumos!G:H,2,FALSE))","v":""}]
[null,null,null,null,null,{"$f":"IF(E2777=\"\",\"\",VLOOKUP(E2777,Insumos!AD:AE,2,FALSE))","v":""},null,{"$f":"IF(G2777=\"\",\"\",VLOOKUP(G2777,Insumos!G:H,2,FALSE))","v":""}]
[null,null,null,null,null,{"$f":"IF(E2778=\"\",\"\",VLOOKUP(E2778,Insumos!AD:AE,2,FALSE))","v":""},null,{"$f":"IF(G2778=\"\",\"\",VLOOKUP(G2778,Insumos!G:H,2,FALSE))","v":""}]
[null,null,null,null,null,{"$f":"IF(E2779=\"\",\"\",VLOOKUP(E2779,Insumos!AD:AE,2,FALSE))","v":""},null,{"$f":"IF(G2779=\"\",\"\",VLOOKUP(G2779,Insumos!G:H,2,FALSE))","v":""}]
[null,null,null,null,null,{"$f":"IF(E2780=\"\",\"\",VLOOKUP(E2780,Insumos!AD:AE,2,FALSE))","v":""},null,{"$f":"IF(G2780=\"\",\"\",VLOOKUP(G2780,Insumos!G:H,2,FALSE))","v":""}]
[null,null,null,null,null,{"$f":"IF(E2781=\"\",\"\",VLOOKUP(E2781,Insumos!AD:AE,2,FALSE))","v":""},null,{"$f":"IF(G2781=\"\",\"\",VLOOKUP(G2781,Insumos!G:H,2,FALSE))","v":""}]
[null,null,null,null,null,{"$f":"IF(E2782=\"\",\"\",VLOOKUP(E2782,Insumos!AD:AE,2,FALSE))","v":""},null,{"$f":"IF(G2782=\"\",\"\",VLOOKUP(G2782,Insumos!G:H,2,FALSE))","v":""}]
[null,null,null,null,null,{"$f":"IF(E2783=\"\",\"\",VLOOKUP(E2783,Insumos!AD:AE,2,FALSE))","v":""},null,{"$f":"IF(G2783=\"\",\"\",VLOOKUP(G2783,Insumos!G:H,2,FALSE))","v":""}]
[null,null,null,null,null,{"$f":"IF(E2784=\"\",\"\",VLOOKUP(E2784,Insumos!AD:AE,2,FALSE))","v":""},null,{"$f":"IF(G2784=\"\",\"\",VLOOKUP(G2784,Insumos!G:H,2,FALSE))","v":""}]
[null,null,null,null,null,{"$f":"IF(E2785=\"\",\"\",VLOOKUP(E2785,Insumos!AD:AE,2,FALSE))","v":""},null,{"$f":"IF(G2785=\"\",\"\",VLOOKUP(G2785,Insumos!G:H,2,FALSE))","v":""}]
[null,null,null,null,null,{"$f":"IF(E2786=\"\",\"\",VLOOKUP(E2786,Insumos!AD:AE,2,FALSE))","v":""},null,{"$f":"IF(G2786=\"\",\"\",VLOOKUP(G2786,Insumos!G:H,2,FALSE))","v":""}]
[null,null,null,null,null,{"$f":"IF(E2787=\"\",\"\",VLOOKUP(E2787,Insumos!AD:AE,2,FALSE))","v":""},null,{"$f":"IF(G2787=\"\",\"\",VLOOKUP(G2787,Insumos!G:H,2,FALSE))","v":""}]
[null,null,null,null,null,{"$f":"IF(E2788=\"\",\"\",VLOOKUP(E2788,Insumos!AD:AE,2,FALSE))","v":""},null,{"$f":"IF(G2788=\"\",\"\",VLOOKUP(G2788,Insumos!G:H,2,FALSE))","v":""}]
[null,null,null,null,null,{"$f":"IF(E2789=\"\",\"\",VLOOKUP(E2789,Insumos!AD:AE,2,FALSE))","v":""},null,{"$f":"IF(G2789=\"\",\"\",VLOOKUP(G2789,Insumos!G:H,2,FALSE))","v":""}]
[null,null,null,null,null,{"$f":"IF(E2790=\"\",\"\",VLOOKUP(E2790,Insumos!AD:AE,2,FALSE))","v":""},null,{"$f":"IF(G2790=\"\",\"\",VLOOKUP(G2790,Insumos!G:H,2,FALSE))","v":""}]
[null,null,null,null,null,{"$f":"IF(E2791=\"\",\"\",VLOOKUP(E2791,Insumos!AD:AE,2,FALSE))","v":""},null,{"$f":"IF(G2791=\"\",\"\",VLOOKUP(G2791,Insumos!G:H,2,FALSE))","v":""}]
[null,null,null,null,null,{"$f":"IF(E2792=\"\",\"\",VLOOKUP(E2792,Insumos!AD:AE,2,FALSE))","v":""},null,{"$f":"IF(G2792=\"\",\"\",VLOOKUP(G2792,Insumos!G:H,2,FALSE))","v":""}]
[null,null,null,null,null,{"$f":"IF(E2793=\"\",\"\",VLOOKUP(E2793,Insumos!AD:AE,2,FALSE))","v":""},null,{"$f":"IF(G2793=\"\",\"\",VLOOKUP(G2793,Insumos!G:H,2,FALSE))","v":""}]
[null,null,null,null,null,{"$f":"IF(E2794=\"\",\"\",VLOOKUP(E2794,Insumos!AD:AE,2,FALSE))","v":""},null,{"$f":"IF(G2794=\"\",\"\",VLOOKUP(G2794,Insumos!G:H,2,FALSE))","v":""}]
[null,null,null,null,null,{"$f":"IF(E2795=\"\",\"\",VLOOKUP(E2795,Insumos!AD:AE,2,FALSE))","v":""},null,{"$f":"IF(G2795=\"\",\"\",VLOOKUP(G2795,Insumos!G:H,2,FALSE))","v":""}]
[null,null,null,null,null,{"$f":"IF(E2796=\"\",\"\",VLOOKUP(E2796,Insumos!AD:AE,2,FALSE))","v":""},null,{"$f":"IF(G2796=\"\",\"\",VLOOKUP(G2796,Insumos!G:H,2,FALSE))","v":""}]
[null,null,null,null,null,{"$f":"IF(E2797=\"\",\"\",VLOOKUP(E2797,Insumos!AD:AE,2,FALSE))","v":""},null,{"$f":"IF(G2797=\"\",\"\",VLOOKUP(G2797,Insumos!G:H,2,FALSE))","v":""}]
[null,null,null,null,null,{"$f":"IF(E2798=\"\",\"\",VLOOKUP(E2798,Insumos!AD:AE,2,FALSE))","v":""},null,{"$f":"IF(G2798=\"\",\"\",VLOOKUP(G2798,Insumos!G:H,2,FALSE))","v":""}]
[null,null,null,null,null,{"$f":"IF(E2799=\"\",\"\",VLOOKUP(E2799,Insumos!AD:AE,2,FALSE))","v":""},null,{"$f":"IF(G2799=\"\",\"\",VLOOKUP(G2799,Insumos!G:H,2,FALSE))","v":""}]
[null,null,null,null,null,{"$f":"IF(E2800=\"\",\"\",VLOOKUP(E2800,Insumos!AD:AE,2,FALSE))","v":""},null,{"$f":"IF(G2800=\"\",\"\",VLOOKUP(G2800,Insumos!G:H,2,FALSE))","v":""}]
[null,null,null,null,null,{"$f":"IF(E2801=\"\",\"\",VLOOKUP(E2801,Insumos!AD:AE,2,FALSE))","v":""},null,{"$f":"IF(G2801=\"\",\"\",VLOOKUP(G2801,Insumos!G:H,2,FALSE))","v":""}]
[null,null,null,null,null,{"$f":"IF(E2802=\"\",\"\",VLOOKUP(E2802,Insumos!AD:AE,2,FALSE))","v":""},null,{"$f":"IF(G2802=\"\",\"\",VLOOKUP(G2802,Insumos!G:H,2,FALSE))","v":""}]
[null,null,null,null,null,{"$f":"IF(E2803=\"\",\"\",VLOOKUP(E2803,Insumos!AD:AE,2,FALSE))","v":""},null,{"$f":"IF(G2803=\"\",\"\",VLOOKUP(G2803,Insumos!G:H,2,FALSE))","v":""}]
[null,null,null,null,null,{"$f":"IF(E2804=\"\",\"\",VLOOKUP(E2804,Insumos!AD:AE,2,FALSE))","v":""},null,{"$f":"IF(G2804=\"\",\"\",VLOOKUP(G2804,Insumos!G:H,2,FALSE))","v":""}]
[null,null,null,null,null,{"$f":"IF(E2805=\"\",\"\",VLOOKUP(E2805,Insumos!AD:AE,2,FALSE))","v":""},null,{"$f":"IF(G2805=\"\",\"\",VLOOKUP(G2805,Insumos!G:H,2,FALSE))","v":""}]
[null,null,null,null,null,{"$f":"IF(E2806=\"\",\"\",VLOOKUP(E2806,Insumos!AD:AE,2,FALSE))","v":""},null,{"$f":"IF(G2806=\"\",\"\",VLOOKUP(G2806,Insumos!G:H,2,FALSE))","v":""}]
[null,null,null,null,null,{"$f":"IF(E2807=\"\",\"\",VLOOKUP(E2807,Insumos!AD:AE,2,FALSE))","v":""},null,{"$f":"IF(G2807=\"\",\"\",VLOOKUP(G2807,Insumos!G:H,2,FALSE))","v":""}]
[null,null,null,null,null,{"$f":"IF(E2808=\"\",\"\",VLOOKUP(E2808,Insumos!AD:AE,2,FALSE))","v":""},null,{"$f":"IF(G2808=\"\",\"\",VLOOKUP(G2808,Insumos!G:H,2,FALSE))","v":""}]
[null,null,null,null,null,{"$f":"IF(E2809=\"\",\"\",VLOOKUP(E2809,Insumos!AD:AE,2,FALSE))","v":""},null,{"$f":"IF(G2809=\"\",\"\",VLOOKUP(G2809,Insumos!G:H,2,FALSE))","v":""}]
[null,null,null,null,null,{"$f":"IF(E2810=\"\",\"\",VLOOKUP(E2810,Insumos!AD:AE,2,FALSE))","v":""},null,{"$f":"IF(G2810=\"\",\"\",VLOOKUP(G2810,Insumos!G:H,2,FALSE))","v":""}]
[null,null,null,null,null,{"$f":"IF(E2811=\"\",\"\",VLOOKUP(E2811,Insumos!AD:AE,2,FALSE))","v":""},null,{"$f":"IF(G2811=\"\",\"\",VLOOKUP(G2811,Insumos!G:H,2,FALSE))","v":""}]
[null,null,null,null,null,{"$f":"IF(E2812=\"\",\"\",VLOOKUP(E2812,Insumos!AD:AE,2,FALSE))","v":""},null,{"$f":"IF(G2812=\"\",\"\",VLOOKUP(G2812,Insumos!G:H,2,FALSE))","v":""}]
[null,null,null,null,null,{"$f":"IF(E2813=\"\",\"\",VLOOKUP(E2813,Insumos!AD:AE,2,FALSE))","v":""},null,{"$f":"IF(G2813=\"\",\"\",VLOOKUP(G2813,Insumos!G:H,2,FALSE))","v":""}]
[null,null,null,null,null,{"$f":"IF(E2814=\"\",\"\",VLOOKUP(E2814,Insumos!AD:AE,2,FALSE))","v":""},null,{"$f":"IF(G2814=\"\",\"\",VLOOKUP(G2814,Insumos!G:H,2,FALSE))","v":""}]
[null,null,null,null,null,{"$f":"IF(E2815=\"\",\"\",VLOOKUP(E2815,Insumos!AD:AE,2,FALSE))","v":""},null,{"$f":"IF(G2815=\"\",\"\",VLOOKUP(G2815,Insumos!G:H,2,FALSE))","v":""}]
[null,null,null,null,null,{"$f":"IF(E2816=\"\",\"\",VLOOKUP(E2816,Insumos!AD:AE,2,FALSE))","v":""},null,{"$f":"IF(G2816=\"\",\"\",VLOOKUP(G2816,Insumos!G:H,2,FALSE))","v":""}]
[null,null,null,null,null,{"$f":"IF(E2817=\"\",\"\",VLOOKUP(E2817,Insumos!AD:AE,2,FALSE))","v":""},null,{"$f":"IF(G2817=\"\",\"\",VLOOKUP(G2817,Insumos!G:H,2,FALSE))","v":""}]
[null,null,null,null,null,{"$f":"IF(E2818=\"\",\"\",VLOOKUP(E2818,Insumos!AD:AE,2,FALSE))","v":""},null,{"$f":"IF(G2818=\"\",\"\",VLOOKUP(G2818,Insumos!G:H,2,FALSE))","v":""}]
[null,null,null,null,null,{"$f":"IF(E2819=\"\",\"\",VLOOKUP(E2819,Insumos!AD:AE,2,FALSE))","v":""},null,{"$f":"IF(G2819=\"\",\"\",VLOOKUP(G2819,Insumos!G:H,2,FALSE))","v":""}]
[null,null,null,null,null,{"$f":"IF(E2820=\"\",\"\",VLOOKUP(E2820,Insumos!AD:AE,2,FALSE))","v":""},null,{"$f":"IF(G2820=\"\",\"\",VLOOKUP(G2820,Insumos!G:H,2,FALSE))","v":""}]
[null,null,null,null,null,{"$f":"IF(E2821=\"\",\"\",VLOOKUP(E2821,Insumos!AD:AE,2,FALSE))","v":""},null,{"$f":"IF(G2821=\"\",\"\",VLOOKUP(G2821,Insumos!G:H,2,FALSE))","v":""}]
[null,null,null,null,null,{"$f":"IF(E2822=\"\",\"\",VLOOKUP(E2822,Insumos!AD:AE,2,FALSE))","v":""},null,{"$f":"IF(G2822=\"\",\"\",VLOOKUP(G2822,Insumos!G:H,2,FALSE))","v":""}]
[null,null,null,null,null,{"$f":"IF(E2823=\"\",\"\",VLOOKUP(E2823,Insumos!AD:AE,2,FALSE))","v":""},null,{"$f":"IF(G2823=\"\",\"\",VLOOKUP(G2823,Insumos!G:H,2,FALSE))","v":""}]
[null,null,null,null,null,{"$f":"IF(E2824=\"\",\"\",VLOOKUP(E2824,Insumos!AD:AE,2,FALSE))","v":""},null,{"$f":"IF(G2824=\"\",\"\",VLOOKUP(G2824,Insumos!G:H,2,FALSE))","v":""}]
[null,null,null,null,null,{"$f":"IF(E2825=\"\",\"\",VLOOKUP(E2825,Insumos!AD:AE,2,FALSE))","v":""},null,{"$f":"IF(G2825=\"\",\"\",VLOOKUP(G2825,Insumos!G:H,2,FALSE))","v":""}]
[null,null,null,null,null,{"$f":"IF(E2826=\"\",\"\",VLOOKUP(E2826,Insumos!AD:AE,2,FALSE))","v":""},null,{"$f":"IF(G2826=\"\",\"\",VLOOKUP(G2826,Insumos!G:H,2,FALSE))","v":""}]
[null,null,null,null,null,{"$f":"IF(E2827=\"\",\"\",VLOOKUP(E2827,Insumos!AD:AE,2,FALSE))","v":""},null,{"$f":"IF(G2827=\"\",\"\",VLOOKUP(G2827,Insumos!G:H,2,FALSE))","v":""}]
[null,null,null,null,null,{"$f":"IF(E2828=\"\",\"\",VLOOKUP(E2828,Insumos!AD:AE,2,FALSE))","v":""},null,{"$f":"IF(G2828=\"\",\"\",VLOOKUP(G2828,Insumos!G:H,2,FALSE))","v":""}]
[null,null,null,null,null,{"$f":"IF(E2829=\"\",\"\",VLOOKUP(E2829,Insumos!AD:AE,2,FALSE))","v":""},null,{"$f":"IF(G2829=\"\",\"\",VLOOKUP(G2829,Insumos!G:H,2,FALSE))","v":""}]
[null,null,null,null,null,{"$f":"IF(E2830=\"\",\"\",VLOOKUP(E2830,Insumos!AD:AE,2,FALSE))","v":""},null,{"$f":"IF(G2830=\"\",\"\",VLOOKUP(G2830,Insumos!G:H,2,FALSE))","v":""}]
[null,null,null,null,null,{"$f":"IF(E2831=\"\",\"\",VLOOKUP(E2831,Insumos!AD:AE,2,FALSE))","v":""},null,{"$f":"IF(G2831=\"\",\"\",VLOOKUP(G2831,Insumos!G:H,2,FALSE))","v":""}]
[null,null,null,null,null,{"$f":"IF(E2832=\"\",\"\",VLOOKUP(E2832,Insumos!AD:AE,2,FALSE))","v":""},null,{"$f":"IF(G2832=\"\",\"\",VLOOKUP(G2832,Insumos!G:H,2,FALSE))","v":""}]
[null,null,null,null,null,{"$f":"IF(E2833=\"\",\"\",VLOOKUP(E2833,Insumos!AD:AE,2,FALSE))","v":""},null,{"$f":"IF(G2833=\"\",\"\",VLOOKUP(G2833,Insumos!G:H,2,FALSE))","v":""}]
[null,null,null,null,null,{"$f":"IF(E2834=\"\",\"\",VLOOKUP(E2834,Insumos!AD:AE,2,FALSE))","v":""},null,{"$f":"IF(G2834=\"\",\"\",VLOOKUP(G2834,Insumos!G:H,2,FALSE))","v":""}]
[null,null,null,null,null,{"$f":"IF(E2835=\"\",\"\",VLOOKUP(E2835,Insumos!AD:AE,2,FALSE))","v":""},null,{"$f":"IF(G2835=\"\",\"\",VLOOKUP(G2835,Insumos!G:H,2,FALSE))","v":""}]
[null,null,null,null,null,{"$f":"IF(E2836=\"\",\"\",VLOOKUP(E2836,Insumos!AD:AE,2,FALSE))","v":""},null,{"$f":"IF(G2836=\"\",\"\",VLOOKUP(G2836,Insumos!G:H,2,FALSE))","v":""}]
[null,null,null,null,null,{"$f":"IF(E2837=\"\",\"\",VLOOKUP(E2837,Insumos!AD:AE,2,FALSE))","v":""},null,{"$f":"IF(G2837=\"\",\"\",VLOOKUP(G2837,Insumos!G:H,2,FALSE))","v":""}]
[null,null,null,null,null,{"$f":"IF(E2838=\"\",\"\",VLOOKUP(E2838,Insumos!AD:AE,2,FALSE))","v":""},null,{"$f":"IF(G2838=\"\",\"\",VLOOKUP(G2838,Insumos!G:H,2,FALSE))","v":""}]
[null,null,null,null,null,{"$f":"IF(E2839=\"\",\"\",VLOOKUP(E2839,Insumos!AD:AE,2,FALSE))","v":""},null,{"$f":"IF(G2839=\"\",\"\",VLOOKUP(G2839,Insumos!G:H,2,FALSE))","v":""}]
[null,null,null,null,null,{"$f":"IF(E2840=\"\",\"\",VLOOKUP(E2840,Insumos!AD:AE,2,FALSE))","v":""},null,{"$f":"IF(G2840=\"\",\"\",VLOOKUP(G2840,Insumos!G:H,2,FALSE))","v":""}]
[null,null,null,null,null,{"$f":"IF(E2841=\"\",\"\",VLOOKUP(E2841,Insumos!AD:AE,2,FALSE))","v":""},null,{"$f":"IF(G2841=\"\",\"\",VLOOKUP(G2841,Insumos!G:H,2,FALSE))","v":""}]
[null,null,null,null,null,{"$f":"IF(E2842=\"\",\"\",VLOOKUP(E2842,Insumos!AD:AE,2,FALSE))","v":""},null,{"$f":"IF(G2842=\"\",\"\",VLOOKUP(G2842,Insumos!G:H,2,FALSE))","v":""}]
[null,null,null,null,null,{"$f":"IF(E2843=\"\",\"\",VLOOKUP(E2843,Insumos!AD:AE,2,FALSE))","v":""},null,{"$f":"IF(G2843=\"\",\"\",VLOOKUP(G2843,Insumos!G:H,2,FALSE))","v":""}]
[null,null,null,null,null,{"$f":"IF(E2844=\"\",\"\",VLOOKUP(E2844,Insumos!AD:AE,2,FALSE))","v":""},null,{"$f":"IF(G2844=\"\",\"\",VLOOKUP(G2844,Insumos!G:H,2,FALSE))","v":""}]
[null,null,null,null,null,{"$f":"IF(E2845=\"\",\"\",VLOOKUP(E2845,Insumos!AD:AE,2,FALSE))","v":""},null,{"$f":"IF(G2845=\"\",\"\",VLOOKUP(G2845,Insumos!G:H,2,FALSE))","v":""}]
[null,null,null,null,null,{"$f":"IF(E2846=\"\",\"\",VLOOKUP(E2846,Insumos!AD:AE,2,FALSE))","v":""},null,{"$f":"IF(G2846=\"\",\"\",VLOOKUP(G2846,Insumos!G:H,2,FALSE))","v":""}]
[null,null,null,null,null,{"$f":"IF(E2847=\"\",\"\",VLOOKUP(E2847,Insumos!AD:AE,2,FALSE))","v":""},null,{"$f":"IF(G2847=\"\",\"\",VLOOKUP(G2847,Insumos!G:H,2,FALSE))","v":""}]
[null,null,null,null,null,{"$f":"IF(E2848=\"\",\"\",VLOOKUP(E2848,Insumos!AD:AE,2,FALSE))","v":""},null,{"$f":"IF(G2848=\"\",\"\",VLOOKUP(G2848,Insumos!G:H,2,FALSE))","v":""}]
[null,null,null,null,null,{"$f":"IF(E2849=\"\",\"\",VLOOKUP(E2849,Insumos!AD:AE,2,FALSE))","v":""},null,{"$f":"IF(G2849=\"\",\"\",VLOOKUP(G2849,Insumos!G:H,2,FALSE))","v":""}]
[null,null,null,null,null,{"$f":"IF(E2850=\"\",\"\",VLOOKUP(E2850,Insumos!AD:AE,2,FALSE))","v":""},null,{"$f":"IF(G2850=\"\",\"\",VLOOKUP(G2850,Insumos!G:H,2,FALSE))","v":""}]
[null,null,null,null,null,{"$f":"IF(E2851=\"\",\"\",VLOOKUP(E2851,Insumos!AD:AE,2,FALSE))","v":""},null,{"$f":"IF(G2851=\"\",\"\",VLOOKUP(G2851,Insumos!G:H,2,FALSE))","v":""}]
[null,null,null,null,null,{"$f":"IF(E2852=\"\",\"\",VLOOKUP(E2852,Insumos!AD:AE,2,FALSE))","v":""},null,{"$f":"IF(G2852=\"\",\"\",VLOOKUP(G2852,Insumos!G:H,2,FALSE))","v":""}]
[null,null,null,null,null,{"$f":"IF(E2853=\"\",\"\",VLOOKUP(E2853,Insumos!AD:AE,2,FALSE))","v":""},null,{"$f":"IF(G2853=\"\",\"\",VLOOKUP(G2853,Insumos!G:H,2,FALSE))","v":""}]
[null,null,null,null,null,{"$f":"IF(E2854=\"\",\"\",VLOOKUP(E2854,Insumos!AD:AE,2,FALSE))","v":""},null,{"$f":"IF(G2854=\"\",\"\",VLOOKUP(G2854,Insumos!G:H,2,FALSE))","v":""}]
[null,null,null,null,null,{"$f":"IF(E2855=\"\",\"\",VLOOKUP(E2855,Insumos!AD:AE,2,FALSE))","v":""},null,{"$f":"IF(G2855=\"\",\"\",VLOOKUP(G2855,Insumos!G:H,2,FALSE))","v":""}]
[null,null,null,null,null,{"$f":"IF(E2856=\"\",\"\",VLOOKUP(E2856,Insumos!AD:AE,2,FALSE))","v":""},null,{"$f":"IF(G2856=\"\",\"\",VLOOKUP(G2856,Insumos!G:H,2,FALSE))","v":""}]
[null,null,null,null,null,{"$f":"IF(E2857=\"\",\"\",VLOOKUP(E2857,Insumos!AD:AE,2,FALSE))","v":""},null,{"$f":"IF(G2857=\"\",\"\",VLOOKUP(G2857,Insumos!G:H,2,FALSE))","v":""}]
[null,null,null,null,null,{"$f":"IF(E2858=\"\",\"\",VLOOKUP(E2858,Insumos!AD:AE,2,FALSE))","v":""},null,{"$f":"IF(G2858=\"\",\"\",VLOOKUP(G2858,Insumos!G:H,2,FALSE))","v":""}]
[null,null,null,null,null,{"$f":"IF(E2859=\"\",\"\",VLOOKUP(E2859,Insumos!AD:AE,2,FALSE))","v":""},null,{"$f":"IF(G2859=\"\",\"\",VLOOKUP(G2859,Insumos!G:H,2,FALSE))","v":""}]
[null,null,null,null,null,{"$f":"IF(E2860=\"\",\"\",VLOOKUP(E2860,Insumos!AD:AE,2,FALSE))","v":""},null,{"$f":"IF(G2860=\"\",\"\",VLOOKUP(G2860,Insumos!G:H,2,FALSE))","v":""}]
[null,null,null,null,null,{"$f":"IF(E2861=\"\",\"\",VLOOKUP(E2861,Insumos!AD:AE,2,FALSE))","v":""},null,{"$f":"IF(G2861=\"\",\"\",VLOOKUP(G2861,Insumos!G:H,2,FALSE))","v":""}]
[null,null,null,null,null,{"$f":"IF(E2862=\"\",\"\",VLOOKUP(E2862,Insumos!AD:AE,2,FALSE))","v":""},null,{"$f":"IF(G2862=\"\",\"\",VLOOKUP(G2862,Insumos!G:H,2,FALSE))","v":""}]
[null,null,null,null,null,{"$f":"IF(E2863=\"\",\"\",VLOOKUP(E2863,Insumos!AD:AE,2,FALSE))","v":""},null,{"$f":"IF(G2863=\"\",\"\",VLOOKUP(G2863,Insumos!G:H,2,FALSE))","v":""}]
[null,null,null,null,null,{"$f":"IF(E2864=\"\",\"\",VLOOKUP(E2864,Insumos!AD:AE,2,FALSE))","v":""},null,{"$f":"IF(G2864=\"\",\"\",VLOOKUP(G2864,Insumos!G:H,2,FALSE))","v":""}]
[null,null,null,null,null,{"$f":"IF(E2865=\"\",\"\",VLOOKUP(E2865,Insumos!AD:AE,2,FALSE))","v":""},null,{"$f":"IF(G2865=\"\",\"\",VLOOKUP(G2865,Insumos!G:H,2,FALSE))","v":""}]
[null,null,null,null,null,{"$f":"IF(E2866=\"\",\"\",VLOOKUP(E2866,Insumos!AD:AE,2,FALSE))","v":""},null,{"$f":"IF(G2866=\"\",\"\",VLOOKUP(G2866,Insumos!G:H,2,FALSE))","v":""}]
[null,null,null,null,null,{"$f":"IF(E2867=\"\",\"\",VLOOKUP(E2867,Insumos!AD:AE,2,FALSE))","v":""},null,{"$f":"IF(G2867=\"\",\"\",VLOOKUP(G2867,Insumos!G:H,2,FALSE))","v":""}]
[null,null,null,null,null,{"$f":"IF(E2868=\"\",\"\",VLOOKUP(E2868,Insumos!AD:AE,2,FALSE))","v":""},null,{"$f":"IF(G2868=\"\",\"\",VLOOKUP(G2868,Insumos!G:H,2,FALSE))","v":""}]
[null,null,null,null,null,{"$f":"IF(E2869=\"\",\"\",VLOOKUP(E2869,Insumos!AD:AE,2,FALSE))","v":""},null,{"$f":"IF(G2869=\"\",\"\",VLOOKUP(G2869,Insumos!G:H,2,FALSE))","v":""}]
[null,null,null,null,null,{"$f":"IF(E2870=\"\",\"\",VLOOKUP(E2870,Insumos!AD:AE,2,FALSE))","v":""},null,{"$f":"IF(G2870=\"\",\"\",VLOOKUP(G2870,Insumos!G:H,2,FALSE))","v":""}]
[null,null,null,null,null,{"$f":"IF(E2871=\"\",\"\",VLOOKUP(E2871,Insumos!AD:AE,2,FALSE))","v":""},null,{"$f":"IF(G2871=\"\",\"\",VLOOKUP(G2871,Insumos!G:H,2,FALSE))","v":""}]
[null,null,null,null,null,{"$f":"IF(E2872=\"\",\"\",VLOOKUP(E2872,Insumos!AD:AE,2,FALSE))","v":""},null,{"$f":"IF(G2872=\"\",\"\",VLOOKUP(G2872,Insumos!G:H,2,FALSE))","v":""}]
[null,null,null,null,null,{"$f":"IF(E2873=\"\",\"\",VLOOKUP(E2873,Insumos!AD:AE,2,FALSE))","v":""},null,{"$f":"IF(G2873=\"\",\"\",VLOOKUP(G2873,Insumos!G:H,2,FALSE))","v":""}]
[null,null,null,null,null,{"$f":"IF(E2874=\"\",\"\",VLOOKUP(E2874,Insumos!AD:AE,2,FALSE))","v":""},null,{"$f":"IF(G2874=\"\",\"\",VLOOKUP(G2874,Insumos!G:H,2,FALSE))","v":""}]
[null,null,null,null,null,{"$f":"IF(E2875=\"\",\"\",VLOOKUP(E2875,Insumos!AD:AE,2,FALSE))","v":""},null,{"$f":"IF(G2875=\"\",\"\",VLOOKUP(G2875,Insumos!G:H,2,FALSE))","v":""}]
[null,null,null,null,null,{"$f":"IF(E2876=\"\",\"\",VLOOKUP(E2876,Insumos!AD:AE,2,FALSE))","v":""},null,{"$f":"IF(G2876=\"\",\"\",VLOOKUP(G2876,Insumos!G:H,2,FALSE))","v":""}]
[null,null,null,null,null,{"$f":"IF(E2877=\"\",\"\",VLOOKUP(E2877,Insumos!AD:AE,2,FALSE))","v":""},null,{"$f":"IF(G2877=\"\",\"\",VLOOKUP(G2877,Insumos!G:H,2,FALSE))","v":""}]
[null,null,null,null,null,{"$f":"IF(E2878=\"\",\"\",VLOOKUP(E2878,Insumos!AD:AE,2,FALSE))","v":""},null,{"$f":"IF(G2878=\"\",\"\",VLOOKUP(G2878,Insumos!G:H,2,FALSE))","v":""}]
[null,null,null,null,null,{"$f":"IF(E2879=\"\",\"\",VLOOKUP(E2879,Insumos!AD:AE,2,FALSE))","v":""},null,{"$f":"IF(G2879=\"\",\"\",VLOOKUP(G2879,Insumos!G:H,2,FALSE))","v":""}]
[null,null,null,null,null,{"$f":"IF(E2880=\"\",\"\",VLOOKUP(E2880,Insumos!AD:AE,2,FALSE))","v":""},null,{"$f":"IF(G2880=\"\",\"\",VLOOKUP(G2880,Insumos!G:H,2,FALSE))","v":""}]
[null,null,null,null,null,{"$f":"IF(E2881=\"\",\"\",VLOOKUP(E2881,Insumos!AD:AE,2,FALSE))","v":""},null,{"$f":"IF(G2881=\"\",\"\",VLOOKUP(G2881,Insumos!G:H,2,FALSE))","v":""}]
[null,null,null,null,null,{"$f":"IF(E2882=\"\",\"\",VLOOKUP(E2882,Insumos!AD:AE,2,FALSE))","v":""},null,{"$f":"IF(G2882=\"\",\"\",VLOOKUP(G2882,Insumos!G:H,2,FALSE))","v":""}]
[null,null,null,null,null,{"$f":"IF(E2883=\"\",\"\",VLOOKUP(E2883,Insumos!AD:AE,2,FALSE))","v":""},null,{"$f":"IF(G2883=\"\",\"\",VLOOKUP(G2883,Insumos!G:H,2,FALSE))","v":""}]
[null,null,null,null,null,{"$f":"IF(E2884=\"\",\"\",VLOOKUP(E2884,Insumos!AD:AE,2,FALSE))","v":""},null,{"$f":"IF(G2884=\"\",\"\",VLOOKUP(G2884,Insumos!G:H,2,FALSE))","v":""}]
[null,null,null,null,null,{"$f":"IF(E2885=\"\",\"\",VLOOKUP(E2885,Insumos!AD:AE,2,FALSE))","v":""},null,{"$f":"IF(G2885=\"\",\"\",VLOOKUP(G2885,Insumos!G:H,2,FALSE))","v":""}]
[null,null,null,null,null,{"$f":"IF(E2886=\"\",\"\",VLOOKUP(E2886,Insumos!AD:AE,2,FALSE))","v":""},null,{"$f":"IF(G2886=\"\",\"\",VLOOKUP(G2886,Insumos!G:H,2,FALSE))","v":""}]
[null,null,null,null,null,{"$f":"IF(E2887=\"\",\"\",VLOOKUP(E2887,Insumos!AD:AE,2,FALSE))","v":""},null,{"$f":"IF(G2887=\"\",\"\",VLOOKUP(G2887,Insumos!G:H,2,FALSE))","v":""}]
[null,null,null,null,null,{"$f":"IF(E2888=\"\",\"\",VLOOKUP(E2888,Insumos!AD:AE,2,FALSE))","v":""},null,{"$f":"IF(G2888=\"\",\"\",VLOOKUP(G2888,Insumos!G:H,2,FALSE))","v":""}]
[null,null,null,null,null,{"$f":"IF(E2889=\"\",\"\",VLOOKUP(E2889,Insumos!AD:AE,2,FALSE))","v":""},null,{"$f":"IF(G2889=\"\",\"\",VLOOKUP(G2889,Insumos!G:H,2,FALSE))","v":""}]
[null,null,null,null,null,{"$f":"IF(E2890=\"\",\"\",VLOOKUP(E2890,Insumos!AD:AE,2,FALSE))","v":""},null,{"$f":"IF(G2890=\"\",\"\",VLOOKUP(G2890,Insumos!G:H,2,FALSE))","v":""}]
[null,null,null,null,null,{"$f":"IF(E2891=\"\",\"\",VLOOKUP(E2891,Insumos!AD:AE,2,FALSE))","v":""},null,{"$f":"IF(G2891=\"\",\"\",VLOOKUP(G2891,Insumos!G:H,2,FALSE))","v":""}]
[null,null,null,null,null,{"$f":"IF(E2892=\"\",\"\",VLOOKUP(E2892,Insumos!AD:AE,2,FALSE))","v":""},null,{"$f":"IF(G2892=\"\",\"\",VLOOKUP(G2892,Insumos!G:H,2,FALSE))","v":""}]
[null,null,null,null,null,{"$f":"IF(E2893=\"\",\"\",VLOOKUP(E2893,Insumos!AD:AE,2,FALSE))","v":""},null,{"$f":"IF(G2893=\"\",\"\",VLOOKUP(G2893,Insumos!G:H,2,FALSE))","v":""}]
[null,null,null,null,null,{"$f":"IF(E2894=\"\",\"\",VLOOKUP(E2894,Insumos!AD:AE,2,FALSE))","v":""},null,{"$f":"IF(G2894=\"\",\"\",VLOOKUP(G2894,Insumos!G:H,2,FALSE))","v":""}]
[null,null,null,null,null,{"$f":"IF(E2895=\"\",\"\",VLOOKUP(E2895,Insumos!AD:AE,2,FALSE))","v":""},null,{"$f":"IF(G2895=\"\",\"\",VLOOKUP(G2895,Insumos!G:H,2,FALSE))","v":""}]
[null,null,null,null,null,{"$f":"IF(E2896=\"\",\"\",VLOOKUP(E2896,Insumos!AD:AE,2,FALSE))","v":""},null,{"$f":"IF(G2896=\"\",\"\",VLOOKUP(G2896,Insumos!G:H,2,FALSE))","v":""}]
[null,null,null,null,null,{"$f":"IF(E2897=\"\",\"\",VLOOKUP(E2897,Insumos!AD:AE,2,FALSE))","v":""},null,{"$f":"IF(G2897=\"\",\"\",VLOOKUP(G2897,Insumos!G:H,2,FALSE))","v":""}]
[null,null,null,null,null,{"$f":"IF(E2898=\"\",\"\",VLOOKUP(E2898,Insumos!AD:AE,2,FALSE))","v":""},null,{"$f":"IF(G2898=\"\",\"\",VLOOKUP(G2898,Insumos!G:H,2,FALSE))","v":""}]
[null,null,null,null,null,{"$f":"IF(E2899=\"\",\"\",VLOOKUP(E2899,Insumos!AD:AE,2,FALSE))","v":""},null,{"$f":"IF(G2899=\"\",\"\",VLOOKUP(G2899,Insumos!G:H,2,FALSE))","v":""}]
[null,null,null,null,null,{"$f":"IF(E2900=\"\",\"\",VLOOKUP(E2900,Insumos!AD:AE,2,FALSE))","v":""},null,{"$f":"IF(G2900=\"\",\"\",VLOOKUP(G2900,Insumos!G:H,2,FALSE))","v":""}]
[null,null,null,null,null,{"$f":"IF(E2901=\"\",\"\",VLOOKUP(E2901,Insumos!AD:AE,2,FALSE))","v":""},null,{"$f":"IF(G2901=\"\",\"\",VLOOKUP(G2901,Insumos!G:H,2,FALSE))","v":""}]
[null,null,null,null,null,{"$f":"IF(E2902=\"\",\"\",VLOOKUP(E2902,Insumos!AD:AE,2,FALSE))","v":""},null,{"$f":"IF(G2902=\"\",\"\",VLOOKUP(G2902,Insumos!G:H,2,FALSE))","v":""}]
[null,null,null,null,null,{"$f":"IF(E2903=\"\",\"\",VLOOKUP(E2903,Insumos!AD:AE,2,FALSE))","v":""},null,{"$f":"IF(G2903=\"\",\"\",VLOOKUP(G2903,Insumos!G:H,2,FALSE))","v":""}]
[null,null,null,null,null,{"$f":"IF(E2904=\"\",\"\",VLOOKUP(E2904,Insumos!AD:AE,2,FALSE))","v":""},null,{"$f":"IF(G2904=\"\",\"\",VLOOKUP(G2904,Insumos!G:H,2,FALSE))","v":""}]
[null,null,null,null,null,{"$f":"IF(E2905=\"\",\"\",VLOOKUP(E2905,Insumos!AD:AE,2,FALSE))","v":""},null,{"$f":"IF(G2905=\"\",\"\",VLOOKUP(G2905,Insumos!G:H,2,FALSE))","v":""}]
[null,null,null,null,null,{"$f":"IF(E2906=\"\",\"\",VLOOKUP(E2906,Insumos!AD:AE,2,FALSE))","v":""},null,{"$f":"IF(G2906=\"\",\"\",VLOOKUP(G2906,Insumos!G:H,2,FALSE))","v":""}]
[null,null,null,null,null,{"$f":"IF(E2907=\"\",\"\",VLOOKUP(E2907,Insumos!AD:AE,2,FALSE))","v":""},null,{"$f":"IF(G2907=\"\",\"\",VLOOKUP(G2907,Insumos!G:H,2,FALSE))","v":""}]
[null,null,null,null,null,{"$f":"IF(E2908=\"\",\"\",VLOOKUP(E2908,Insumos!AD:AE,2,FALSE))","v":""},null,{"$f":"IF(G2908=\"\",\"\",VLOOKUP(G2908,Insumos!G:H,2,FALSE))","v":""}]
[null,null,null,null,null,{"$f":"IF(E2909=\"\",\"\",VLOOKUP(E2909,Insumos!AD:AE,2,FALSE))","v":""},null,{"$f":"IF(G2909=\"\",\"\",VLOOKUP(G2909,Insumos!G:H,2,FALSE))","v":""}]
[null,null,null,null,null,{"$f":"IF(E2910=\"\",\"\",VLOOKUP(E2910,Insumos!AD:AE,2,FALSE))","v":""},null,{"$f":"IF(G2910=\"\",\"\",VLOOKUP(G2910,Insumos!G:H,2,FALSE))","v":""}]
[null,null,null,null,null,{"$f":"IF(E2911=\"\",\"\",VLOOKUP(E2911,Insumos!AD:AE,2,FALSE))","v":""},null,{"$f":"IF(G2911=\"\",\"\",VLOOKUP(G2911,Insumos!G:H,2,FALSE))","v":""}]
[null,null,null,null,null,{"$f":"IF(E2912=\"\",\"\",VLOOKUP(E2912,Insumos!AD:AE,2,FALSE))","v":""},null,{"$f":"IF(G2912=\"\",\"\",VLOOKUP(G2912,Insumos!G:H,2,FALSE))","v":""}]
[null,null,null,null,null,{"$f":"IF(E2913=\"\",\"\",VLOOKUP(E2913,Insumos!AD:AE,2,FALSE))","v":""},null,{"$f":"IF(G2913=\"\",\"\",VLOOKUP(G2913,Insumos!G:H,2,FALSE))","v":""}]
[null,null,null,null,null,{"$f":"IF(E2914=\"\",\"\",VLOOKUP(E2914,Insumos!AD:AE,2,FALSE))","v":""},null,{"$f":"IF(G2914=\"\",\"\",VLOOKUP(G2914,Insumos!G:H,2,FALSE))","v":""}]
[null,null,null,null,null,{"$f":"IF(E2915=\"\",\"\",VLOOKUP(E2915,Insumos!AD:AE,2,FALSE))","v":""},null,{"$f":"IF(G2915=\"\",\"\",VLOOKUP(G2915,Insumos!G:H,2,FALSE))","v":""}]
[null,null,null,null,null,{"$f":"IF(E2916=\"\",\"\",VLOOKUP(E2916,Insumos!AD:AE,2,FALSE))","v":""},null,{"$f":"IF(G2916=\"\",\"\",VLOOKUP(G2916,Insumos!G:H,2,FALSE))","v":""}]
[null,null,null,null,null,{"$f":"IF(E2917=\"\",\"\",VLOOKUP(E2917,Insumos!AD:AE,2,FALSE))","v":""},null,{"$f":"IF(G2917=\"\",\"\",VLOOKUP(G2917,Insumos!G:H,2,FALSE))","v":""}]
[null,null,null,null,null,{"$f":"IF(E2918=\"\",\"\",VLOOKUP(E2918,Insumos!AD:AE,2,FALSE))","v":""},null,{"$f":"IF(G2918=\"\",\"\",VLOOKUP(G2918,Insumos!G:H,2,FALSE))","v":""}]
[null,null,null,null,null,{"$f":"IF(E2919=\"\",\"\",VLOOKUP(E2919,Insumos!AD:AE,2,FALSE))","v":""},null,{"$f":"IF(G2919=\"\",\"\",VLOOKUP(G2919,Insumos!G:H,2,FALSE))","v":""}]
[null,null,null,null,null,{"$f":"IF(E2920=\"\",\"\",VLOOKUP(E2920,Insumos!AD:AE,2,FALSE))","v":""},null,{"$f":"IF(G2920=\"\",\"\",VLOOKUP(G2920,Insumos!G:H,2,FALSE))","v":""}]
[null,null,null,null,null,{"$f":"IF(E2921=\"\",\"\",VLOOKUP(E2921,Insumos!AD:AE,2,FALSE))","v":""},null,{"$f":"IF(G2921=\"\",\"\",VLOOKUP(G2921,Insumos!G:H,2,FALSE))","v":""}]
[null,null,null,null,null,{"$f":"IF(E2922=\"\",\"\",VLOOKUP(E2922,Insumos!AD:AE,2,FALSE))","v":""},null,{"$f":"IF(G2922=\"\",\"\",VLOOKUP(G2922,Insumos!G:H,2,FALSE))","v":""}]
[null,null,null,null,null,{"$f":"IF(E2923=\"\",\"\",VLOOKUP(E2923,Insumos!AD:AE,2,FALSE))","v":""},null,{"$f":"IF(G2923=\"\",\"\",VLOOKUP(G2923,Insumos!G:H,2,FALSE))","v":""}]
[null,null,null,null,null,{"$f":"IF(E2924=\"\",\"\",VLOOKUP(E2924,Insumos!AD:AE,2,FALSE))","v":""},null,{"$f":"IF(G2924=\"\",\"\",VLOOKUP(G2924,Insumos!G:H,2,FALSE))","v":""}]
[null,null,null,null,null,{"$f":"IF(E2925=\"\",\"\",VLOOKUP(E2925,Insumos!AD:AE,2,FALSE))","v":""},null,{"$f":"IF(G2925=\"\",\"\",VLOOKUP(G2925,Insumos!G:H,2,FALSE))","v":""}]
[null,null,null,null,null,{"$f":"IF(E2926=\"\",\"\",VLOOKUP(E2926,Insumos!AD:AE,2,FALSE))","v":""},null,{"$f":"IF(G2926=\"\",\"\",VLOOKUP(G2926,Insumos!G:H,2,FALSE))","v":""}]
[null,null,null,null,null,{"$f":"IF(E2927=\"\",\"\",VLOOKUP(E2927,Insumos!AD:AE,2,FALSE))","v":""},null,{"$f":"IF(G2927=\"\",\"\",VLOOKUP(G2927,Insumos!G:H,2,FALSE))","v":""}]
[null,null,null,null,null,{"$f":"IF(E2928=\"\",\"\",VLOOKUP(E2928,Insumos!AD:AE,2,FALSE))","v":""},null,{"$f":"IF(G2928=\"\",\"\",VLOOKUP(G2928,Insumos!G:H,2,FALSE))","v":""}]
[null,null,null,null,null,{"$f":"IF(E2929=\"\",\"\",VLOOKUP(E2929,Insumos!AD:AE,2,FALSE))","v":""},null,{"$f":"IF(G2929=\"\",\"\",VLOOKUP(G2929,Insumos!G:H,2,FALSE))","v":""}]
[null,null,null,null,null,{"$f":"IF(E2930=\"\",\"\",VLOOKUP(E2930,Insumos!AD:AE,2,FALSE))","v":""},null,{"$f":"IF(G2930=\"\",\"\",VLOOKUP(G2930,Insumos!G:H,2,FALSE))","v":""}]
[null,null,null,null,null,{"$f":"IF(E2931=\"\",\"\",VLOOKUP(E2931,Insumos!AD:AE,2,FALSE))","v":""},null,{"$f":"IF(G2931=\"\",\"\",VLOOKUP(G2931,Insumos!G:H,2,FALSE))","v":""}]
[null,null,null,null,null,{"$f":"IF(E2932=\"\",\"\",VLOOKUP(E2932,Insumos!AD:AE,2,FALSE))","v":""},null,{"$f":"IF(G2932=\"\",\"\",VLOOKUP(G2932,Insumos!G:H,2,FALSE))","v":""}]
[null,null,null,null,null,{"$f":"IF(E2933=\"\",\"\",VLOOKUP(E2933,Insumos!AD:AE,2,FALSE))","v":""},null,{"$f":"IF(G2933=\"\",\"\",VLOOKUP(G2933,Insumos!G:H,2,FALSE))","v":""}]
[null,null,null,null,null,{"$f":"IF(E2934=\"\",\"\",VLOOKUP(E2934,Insumos!AD:AE,2,FALSE))","v":""},null,{"$f":"IF(G2934=\"\",\"\",VLOOKUP(G2934,Insumos!G:H,2,FALSE))","v":""}]
[null,null,null,null,null,{"$f":"IF(E2935=\"\",\"\",VLOOKUP(E2935,Insumos!AD:AE,2,FALSE))","v":""},null,{"$f":"IF(G2935=\"\",\"\",VLOOKUP(G2935,Insumos!G:H,2,FALSE))","v":""}]
[null,null,null,null,null,{"$f":"IF(E2936=\"\",\"\",VLOOKUP(E2936,Insumos!AD:AE,2,FALSE))","v":""},null,{"$f":"IF(G2936=\"\",\"\",VLOOKUP(G2936,Insumos!G:H,2,FALSE))","v":""}]
[null,null,null,null,null,{"$f":"IF(E2937=\"\",\"\",VLOOKUP(E2937,Insumos!AD:AE,2,FALSE))","v":""},null,{"$f":"IF(G2937=\"\",\"\",VLOOKUP(G2937,Insumos!G:H,2,FALSE))","v":""}]
[null,null,null,null,null,{"$f":"IF(E2938=\"\",\"\",VLOOKUP(E2938,Insumos!AD:AE,2,FALSE))","v":""},null,{"$f":"IF(G2938=\"\",\"\",VLOOKUP(G2938,Insumos!G:H,2,FALSE))","v":""}]
[null,null,null,null,null,{"$f":"IF(E2939=\"\",\"\",VLOOKUP(E2939,Insumos!AD:AE,2,FALSE))","v":""},null,{"$f":"IF(G2939=\"\",\"\",VLOOKUP(G2939,Insumos!G:H,2,FALSE))","v":""}]
[null,null,null,null,null,{"$f":"IF(E2940=\"\",\"\",VLOOKUP(E2940,Insumos!AD:AE,2,FALSE))","v":""},null,{"$f":"IF(G2940=\"\",\"\",VLOOKUP(G2940,Insumos!G:H,2,FALSE))","v":""}]
[null,null,null,null,null,{"$f":"IF(E2941=\"\",\"\",VLOOKUP(E2941,Insumos!AD:AE,2,FALSE))","v":""},null,{"$f":"IF(G2941=\"\",\"\",VLOOKUP(G2941,Insumos!G:H,2,FALSE))","v":""}]
[null,null,null,null,null,{"$f":"IF(E2942=\"\",\"\",VLOOKUP(E2942,Insumos!AD:AE,2,FALSE))","v":""},null,{"$f":"IF(G2942=\"\",\"\",VLOOKUP(G2942,Insumos!G:H,2,FALSE))","v":""}]
[null,null,null,null,null,{"$f":"IF(E2943=\"\",\"\",VLOOKUP(E2943,Insumos!AD:AE,2,FALSE))","v":""},null,{"$f":"IF(G2943=\"\",\"\",VLOOKUP(G2943,Insumos!G:H,2,FALSE))","v":""}]
[null,null,null,null,null,{"$f":"IF(E2944=\"\",\"\",VLOOKUP(E2944,Insumos!AD:AE,2,FALSE))","v":""},null,{"$f":"IF(G2944=\"\",\"\",VLOOKUP(G2944,Insumos!G:H,2,FALSE))","v":""}]
[null,null,null,null,null,{"$f":"IF(E2945=\"\",\"\",VLOOKUP(E2945,Insumos!AD:AE,2,FALSE))","v":""},null,{"$f":"IF(G2945=\"\",\"\",VLOOKUP(G2945,Insumos!G:H,2,FALSE))","v":""}]
[null,null,null,null,null,{"$f":"IF(E2946=\"\",\"\",VLOOKUP(E2946,Insumos!AD:AE,2,FALSE))","v":""},null,{"$f":"IF(G2946=\"\",\"\",VLOOKUP(G2946,Insumos!G:H,2,FALSE))","v":""}]
[null,null,null,null,null,{"$f":"IF(E2947=\"\",\"\",VLOOKUP(E2947,Insumos!AD:AE,2,FALSE))","v":""},null,{"$f":"IF(G2947=\"\",\"\",VLOOKUP(G2947,Insumos!G:H,2,FALSE))","v":""}]
[null,null,null,null,null,{"$f":"IF(E2948=\"\",\"\",VLOOKUP(E2948,Insumos!AD:AE,2,FALSE))","v":""},null,{"$f":"IF(G2948=\"\",\"\",VLOOKUP(G2948,Insumos!G:H,2,FALSE))","v":""}]
[null,null,null,null,null,{"$f":"IF(E2949=\"\",\"\",VLOOKUP(E2949,Insumos!AD:AE,2,FALSE))","v":""},null,{"$f":"IF(G2949=\"\",\"\",VLOOKUP(G2949,Insumos!G:H,2,FALSE))","v":""}]
[null,null,null,null,null,{"$f":"IF(E2950=\"\",\"\",VLOOKUP(E2950,Insumos!AD:AE,2,FALSE))","v":""},null,{"$f":"IF(G2950=\"\",\"\",VLOOKUP(G2950,Insumos!G:H,2,FALSE))","v":""}]
[null,null,null,null,null,{"$f":"IF(E2951=\"\",\"\",VLOOKUP(E2951,Insumos!AD:AE,2,FALSE))","v":""},null,{"$f":"IF(G2951=\"\",\"\",VLOOKUP(G2951,Insumos!G:H,2,FALSE))","v":""}]
[null,null,null,null,null,{"$f":"IF(E2952=\"\",\"\",VLOOKUP(E2952,Insumos!AD:AE,2,FALSE))","v":""},null,{"$f":"IF(G2952=\"\",\"\",VLOOKUP(G2952,Insumos!G:H,2,FALSE))","v":""}]
[null,null,null,null,null,{"$f":"IF(E2953=\"\",\"\",VLOOKUP(E2953,Insumos!AD:AE,2,FALSE))","v":""},null,{"$f":"IF(G2953=\"\",\"\",VLOOKUP(G2953,Insumos!G:H,2,FALSE))","v":""}]
[null,null,null,null,null,{"$f":"IF(E2954=\"\",\"\",VLOOKUP(E2954,Insumos!AD:AE,2,FALSE))","v":""},null,{"$f":"IF(G2954=\"\",\"\",VLOOKUP(G2954,Insumos!G:H,2,FALSE))","v":""}]
[null,null,null,null,null,{"$f":"IF(E2955=\"\",\"\",VLOOKUP(E2955,Insumos!AD:AE,2,FALSE))","v":""},null,{"$f":"IF(G2955=\"\",\"\",VLOOKUP(G2955,Insumos!G:H,2,FALSE))","v":""}]
[null,null,null,null,null,{"$f":"IF(E2956=\"\",\"\",VLOOKUP(E2956,Insumos!AD:AE,2,FALSE))","v":""},null,{"$f":"IF(G2956=\"\",\"\",VLOOKUP(G2956,Insumos!G:H,2,FALSE))","v":""}]
[null,null,null,null,null,{"$f":"IF(E2957=\"\",\"\",VLOOKUP(E2957,Insumos!AD:AE,2,FALSE))","v":""},null,{"$f":"IF(G2957=\"\",\"\",VLOOKUP(G2957,Insumos!G:H,2,FALSE))","v":""}]
[null,null,null,null,null,{"$f":"IF(E2958=\"\",\"\",VLOOKUP(E2958,Insumos!AD:AE,2,FALSE))","v":""},null,{"$f":"IF(G2958=\"\",\"\",VLOOKUP(G2958,Insumos!G:H,2,FALSE))","v":""}]
[null,null,null,null,null,{"$f":"IF(E2959=\"\",\"\",VLOOKUP(E2959,Insumos!AD:AE,2,FALSE))","v":""},null,{"$f":"IF(G2959=\"\",\"\",VLOOKUP(G2959,Insumos!G:H,2,FALSE))","v":""}]
[null,null,null,null,null,{"$f":"IF(E2960=\"\",\"\",VLOOKUP(E2960,Insumos!AD:AE,2,FALSE))","v":""},null,{"$f":"IF(G2960=\"\",\"\",VLOOKUP(G2960,Insumos!G:H,2,FALSE))","v":""}]
[null,null,null,null,null,{"$f":"IF(E2961=\"\",\"\",VLOOKUP(E2961,Insumos!AD:AE,2,FALSE))","v":""},null,{"$f":"IF(G2961=\"\",\"\",VLOOKUP(G2961,Insumos!G:H,2,FALSE))","v":""}]
[null,null,null,null,null,{"$f":"IF(E2962=\"\",\"\",VLOOKUP(E2962,Insumos!AD:AE,2,FALSE))","v":""},null,{"$f":"IF(G2962=\"\",\"\",VLOOKUP(G2962,Insumos!G:H,2,FALSE))","v":""}]
[null,null,null,null,null,{"$f":"IF(E2963=\"\",\"\",VLOOKUP(E2963,Insumos!AD:AE,2,FALSE))","v":""},null,{"$f":"IF(G2963=\"\",\"\",VLOOKUP(G2963,Insumos!G:H,2,FALSE))","v":""}]
[null,null,null,null,null,{"$f":"IF(E2964=\"\",\"\",VLOOKUP(E2964,Insumos!AD:AE,2,FALSE))","v":""},null,{"$f":"IF(G2964=\"\",\"\",VLOOKUP(G2964,Insumos!G:H,2,FALSE))","v":""}]
[null,null,null,null,null,{"$f":"IF(E2965=\"\",\"\",VLOOKUP(E2965,Insumos!AD:AE,2,FALSE))","v":""},null,{"$f":"IF(G2965=\"\",\"\",VLOOKUP(G2965,Insumos!G:H,2,FALSE))","v":""}]
[null,null,null,null,null,{"$f":"IF(E2966=\"\",\"\",VLOOKUP(E2966,Insumos!AD:AE,2,FALSE))","v":""},null,{"$f":"IF(G2966=\"\",\"\",VLOOKUP(G2966,Insumos!G:H,2,FALSE))","v":""}]
[null,null,null,null,null,{"$f":"IF(E2967=\"\",\"\",VLOOKUP(E2967,Insumos!AD:AE,2,FALSE))","v":""},null,{"$f":"IF(G2967=\"\",\"\",VLOOKUP(G2967,Insumos!G:H,2,FALSE))","v":""}]
[null,null,null,null,null,{"$f":"IF(E2968=\"\",\"\",VLOOKUP(E2968,Insumos!AD:AE,2,FALSE))","v":""},null,{"$f":"IF(G2968=\"\",\"\",VLOOKUP(G2968,Insumos!G:H,2,FALSE))","v":""}]
[null,null,null,null,null,{"$f":"IF(E2969=\"\",\"\",VLOOKUP(E2969,Insumos!AD:AE,2,FALSE))","v":""},null,{"$f":"IF(G2969=\"\",\"\",VLOOKUP(G2969,Insumos!G:H,2,FALSE))","v":""}]
[null,null,null,null,null,{"$f":"IF(E2970=\"\",\"\",VLOOKUP(E2970,Insumos!AD:AE,2,FALSE))","v":""},null,{"$f":"IF(G2970=\"\",\"\",VLOOKUP(G2970,Insumos!G:H,2,FALSE))","v":""}]
[null,null,null,null,null,{"$f":"IF(E2971=\"\",\"\",VLOOKUP(E2971,Insumos!AD:AE,2,FALSE))","v":""},null,{"$f":"IF(G2971=\"\",\"\",VLOOKUP(G2971,Insumos!G:H,2,FALSE))","v":""}]
[null,null,null,null,null,{"$f":"IF(E2972=\"\",\"\",VLOOKUP(E2972,Insumos!AD:AE,2,FALSE))","v":""},null,{"$f":"IF(G2972=\"\",\"\",VLOOKUP(G2972,Insumos!G:H,2,FALSE))","v":""}]
[null,null,null,null,null,{"$f":"IF(E2973=\"\",\"\",VLOOKUP(E2973,Insumos!AD:AE,2,FALSE))","v":""},null,{"$f":"IF(G2973=\"\",\"\",VLOOKUP(G2973,Insumos!G:H,2,FALSE))","v":""}]
[null,null,null,null,null,{"$f":"IF(E2974=\"\",\"\",VLOOKUP(E2974,Insumos!AD:AE,2,FALSE))","v":""},null,{"$f":"IF(G2974=\"\",\"\",VLOOKUP(G2974,Insumos!G:H,2,FALSE))","v":""}]
[null,null,null,null,null,{"$f":"IF(E2975=\"\",\"\",VLOOKUP(E2975,Insumos!AD:AE,2,FALSE))","v":""},null,{"$f":"IF(G2975=\"\",\"\",VLOOKUP(G2975,Insumos!G:H,2,FALSE))","v":""}]
[null,null,null,null,null,{"$f":"IF(E2976=\"\",\"\",VLOOKUP(E2976,Insumos!AD:AE,2,FALSE))","v":""},null,{"$f":"IF(G2976=\"\",\"\",VLOOKUP(G2976,Insumos!G:H,2,FALSE))","v":""}]
[null,null,null,null,null,{"$f":"IF(E2977=\"\",\"\",VLOOKUP(E2977,Insumos!AD:AE,2,FALSE))","v":""},null,{"$f":"IF(G2977=\"\",\"\",VLOOKUP(G2977,Insumos!G:H,2,FALSE))","v":""}]
[null,null,null,null,null,{"$f":"IF(E2978=\"\",\"\",VLOOKUP(E2978,Insumos!AD:AE,2,FALSE))","v":""},null,{"$f":"IF(G2978=\"\",\"\",VLOOKUP(G2978,Insumos!G:H,2,FALSE))","v":""}]
[null,null,null,null,null,{"$f":"IF(E2979=\"\",\"\",VLOOKUP(E2979,Insumos!AD:AE,2,FALSE))","v":""},null,{"$f":"IF(G2979=\"\",\"\",VLOOKUP(G2979,Insumos!G:H,2,FALSE))","v":""}]
[null,null,null,null,null,{"$f":"IF(E2980=\"\",\"\",VLOOKUP(E2980,Insumos!AD:AE,2,FALSE))","v":""},null,{"$f":"IF(G2980=\"\",\"\",VLOOKUP(G2980,Insumos!G:H,2,FALSE))","v":""}]
[null,null,null,null,null,{"$f":"IF(E2981=\"\",\"\",VLOOKUP(E2981,Insumos!AD:AE,2,FALSE))","v":""},null,{"$f":"IF(G2981=\"\",\"\",VLOOKUP(G2981,Insumos!G:H,2,FALSE))","v":""}]
[null,null,null,null,null,{"$f":"IF(E2982=\"\",\"\",VLOOKUP(E2982,Insumos!AD:AE,2,FALSE))","v":""},null,{"$f":"IF(G2982=\"\",\"\",VLOOKUP(G2982,Insumos!G:H,2,FALSE))","v":""}]
[null,null,null,null,null,{"$f":"IF(E2983=\"\",\"\",VLOOKUP(E2983,Insumos!AD:AE,2,FALSE))","v":""},null,{"$f":"IF(G2983=\"\",\"\",VLOOKUP(G2983,Insumos!G:H,2,FALSE))","v":""}]
[null,null,null,null,null,{"$f":"IF(E2984=\"\",\"\",VLOOKUP(E2984,Insumos!AD:AE,2,FALSE))","v":""},null,{"$f":"IF(G2984=\"\",\"\",VLOOKUP(G2984,Insumos!G:H,2,FALSE))","v":""}]
[null,null,null,null,null,{"$f":"IF(E2985=\"\",\"\",VLOOKUP(E2985,Insumos!AD:AE,2,FALSE))","v":""},null,{"$f":"IF(G2985=\"\",\"\",VLOOKUP(G2985,Insumos!G:H,2,FALSE))","v":""}]
[null,null,null,null,null,{"$f":"IF(E2986=\"\",\"\",VLOOKUP(E2986,Insumos!AD:AE,2,FALSE))","v":""},null,{"$f":"IF(G2986=\"\",\"\",VLOOKUP(G2986,Insumos!G:H,2,FALSE))","v":""}]
[null,null,null,null,null,{"$f":"IF(E2987=\"\",\"\",VLOOKUP(E2987,Insumos!AD:AE,2,FALSE))","v":""},null,{"$f":"IF(G2987=\"\",\"\",VLOOKUP(G2987,Insumos!G:H,2,FALSE))","v":""}]
[null,null,null,null,null,{"$f":"IF(E2988=\"\",\"\",VLOOKUP(E2988,Insumos!AD:AE,2,FALSE))","v":""},null,{"$f":"IF(G2988=\"\",\"\",VLOOKUP(G2988,Insumos!G:H,2,FALSE))","v":""}]
[null,null,null,null,null,{"$f":"IF(E2989=\"\",\"\",VLOOKUP(E2989,Insumos!AD:AE,2,FALSE))","v":""},null,{"$f":"IF(G2989=\"\",\"\",VLOOKUP(G2989,Insumos!G:H,2,FALSE))","v":""}]
[null,null,null,null,null,{"$f":"IF(E2990=\"\",\"\",VLOOKUP(E2990,Insumos!AD:AE,2,FALSE))","v":""},null,{"$f":"IF(G2990=\"\",\"\",VLOOKUP(G2990,Insumos!G:H,2,FALSE))","v":""}]
[null,null,null,null,null,{"$f":"IF(E2991=\"\",\"\",VLOOKUP(E2991,Insumos!AD:AE,2,FALSE))","v":""},null,{"$f":"IF(G2991=\"\",\"\",VLOOKUP(G2991,Insumos!G:H,2,FALSE))","v":""}]
[null,null,null,null,null,{"$f":"IF(E2992=\"\",\"\",VLOOKUP(E2992,Insumos!AD:AE,2,FALSE))","v":""},null,{"$f":"IF(G2992=\"\",\"\",VLOOKUP(G2992,Insumos!G:H,2,FALSE))","v":""}]
[null,null,null,null,null,{"$f":"IF(E2993=\"\",\"\",VLOOKUP(E2993,Insumos!AD:AE,2,FALSE))","v":""},null,{"$f":"IF(G2993=\"\",\"\",VLOOKUP(G2993,Insumos!G:H,2,FALSE))","v":""}]
[null,null,null,null,null,{"$f":"IF(E2994=\"\",\"\",VLOOKUP(E2994,Insumos!AD:AE,2,FALSE))","v":""},null,{"$f":"IF(G2994=\"\",\"\",VLOOKUP(G2994,Insumos!G:H,2,FALSE))","v":""}]
[null,null,null,null,null,{"$f":"IF(E2995=\"\",\"\",VLOOKUP(E2995,Insumos!AD:AE,2,FALSE))","v":""},null,{"$f":"IF(G2995=\"\",\"\",VLOOKUP(G2995,Insumos!G:H,2,FALSE))","v":""}]
[null,null,null,null,null,{"$f":"IF(E2996=\"\",\"\",VLOOKUP(E2996,Insumos!AD:AE,2,FALSE))","v":""},null,{"$f":"IF(G2996=\"\",\"\",VLOOKUP(G2996,Insumos!G:H,2,FALSE))","v":""}]
[null,null,null,null,null,{"$f":"IF(E2997=\"\",\"\",VLOOKUP(E2997,Insumos!AD:AE,2,FALSE))","v":""},null,{"$f":"IF(G2997=\"\",\"\",VLOOKUP(G2997,Insumos!G:H,2,FALSE))","v":""}]
[null,null,null,null,null,{"$f":"IF(E2998=\"\",\"\",VLOOKUP(E2998,Insumos!AD:AE,2,FALSE))","v":""},null,{"$f":"IF(G2998=\"\",\"\",VLOOKUP(G2998,Insumos!G:H,2,FALSE))","v":""}]
[null,null,null,null,null,{"$f":"IF(E2999=\"\",\"\",VLOOKUP(E2999,Insumos!AD:AE,2,FALSE))","v":""},null,{"$f":"IF(G2999=\"\",\"\",VLOOKUP(G2999,Insumos!G:H,2,FALSE))","v":""}]
[null,null,null,null,null,{"$f":"IF(E3000=\"\",\"\",VLOOKUP(E3000,Insumos!AD:AE,2,FALSE))","v":""},null,{"$f":"IF(G3000=\"\",\"\",VLOOKUP(G3000,Insumos!G:H,2,FALSE))","v":""}]
[null,null,null,null,null,{"$f":"IF(E3001=\"\",\"\",VLOOKUP(E3001,Insumos!AD:AE,2,FALSE))","v":""},null,{"$f":"IF(G3001=\"\",\"\",VLOOKUP(G3001,Insumos!G:H,2,FALSE))","v":""}]
[null,null,null,null,null,{"$f":"IF(E3002=\"\",\"\",VLOOKUP(E3002,Insumos!AD:AE,2,FALSE))","v":""},null,{"$f":"IF(G3002=\"\",\"\",VLOOKUP(G3002,Insumos!G:H,2,FALSE))","v":""}]
[null,null,null,null,null,{"$f":"IF(E3003=\"\",\"\",VLOOKUP(E3003,Insumos!AD:AE,2,FALSE))","v":""},null,{"$f":"IF(G3003=\"\",\"\",VLOOKUP(G3003,Insumos!G:H,2,FALSE))","v":""}]
[null,null,null,null,null,{"$f":"IF(E3004=\"\",\"\",VLOOKUP(E3004,Insumos!AD:AE,2,FALSE))","v":""},null,{"$f":"IF(G3004=\"\",\"\",VLOOKUP(G3004,Insumos!G:H,2,FALSE))","v":""}]
[null,null,null,null,null,{"$f":"IF(E3005=\"\",\"\",VLOOKUP(E3005,Insumos!AD:AE,2,FALSE))","v":""},null,{"$f":"IF(G3005=\"\",\"\",VLOOKUP(G3005,Insumos!G:H,2,FALSE))","v":""}]
[null,null,null,null,null,{"$f":"IF(E3006=\"\",\"\",VLOOKUP(E3006,Insumos!AD:AE,2,FALSE))","v":""},null,{"$f":"IF(G3006=\"\",\"\",VLOOKUP(G3006,Insumos!G:H,2,FALSE))","v":""}]
[null,null,null,null,null,{"$f":"IF(E3007=\"\",\"\",VLOOKUP(E3007,Insumos!AD:AE,2,FALSE))","v":""},null,{"$f":"IF(G3007=\"\",\"\",VLOOKUP(G3007,Insumos!G:H,2,FALSE))","v":""}]
[null,null,null,null,null,{"$f":"IF(E3008=\"\",\"\",VLOOKUP(E3008,Insumos!AD:AE,2,FALSE))","v":""},null,{"$f":"IF(G3008=\"\",\"\",VLOOKUP(G3008,Insumos!G:H,2,FALSE))","v":""}]
[null,null,null,null,null,{"$f":"IF(E3009=\"\",\"\",VLOOKUP(E3009,Insumos!AD:AE,2,FALSE))","v":""},null,{"$f":"IF(G3009=\"\",\"\",VLOOKUP(G3009,Insumos!G:H,2,FALSE))","v":""}]
[null,null,null,null,null,{"$f":"IF(E3010=\"\",\"\",VLOOKUP(E3010,Insumos!AD:AE,2,FALSE))","v":""},null,{"$f":"IF(G3010=\"\",\"\",VLOOKUP(G3010,Insumos!G:H,2,FALSE))","v":""}]
[null,null,null,null,null,{"$f":"IF(E3011=\"\",\"\",VLOOKUP(E3011,Insumos!AD:AE,2,FALSE))","v":""},null,{"$f":"IF(G3011=\"\",\"\",VLOOKUP(G3011,Insumos!G:H,2,FALSE))","v":""}]
[null,null,null,null,null,{"$f":"IF(E3012=\"\",\"\",VLOOKUP(E3012,Insumos!AD:AE,2,FALSE))","v":""},null,{"$f":"IF(G3012=\"\",\"\",VLOOKUP(G3012,Insumos!G:H,2,FALSE))","v":""}]
[null,null,null,null,null,{"$f":"IF(E3013=\"\",\"\",VLOOKUP(E3013,Insumos!AD:AE,2,FALSE))","v":""},null,{"$f":"IF(G3013=\"\",\"\",VLOOKUP(G3013,Insumos!G:H,2,FALSE))","v":""}]
[null,null,null,null,null,{"$f":"IF(E3014=\"\",\"\",VLOOKUP(E3014,Insumos!AD:AE,2,FALSE))","v":""},null,{"$f":"IF(G3014=\"\",\"\",VLOOKUP(G3014,Insumos!G:H,2,FALSE))","v":""}]
[null,null,null,null,null,{"$f":"IF(E3015=\"\",\"\",VLOOKUP(E3015,Insumos!AD:AE,2,FALSE))","v":""},null,{"$f":"IF(G3015=\"\",\"\",VLOOKUP(G3015,Insumos!G:H,2,FALSE))","v":""}]
[null,null,null,null,null,{"$f":"IF(E3016=\"\",\"\",VLOOKUP(E3016,Insumos!AD:AE,2,FALSE))","v":""},null,{"$f":"IF(G3016=\"\",\"\",VLOOKUP(G3016,Insumos!G:H,2,FALSE))","v":""}]
[null,null,null,null,null,{"$f":"IF(E3017=\"\",\"\",VLOOKUP(E3017,Insumos!AD:AE,2,FALSE))","v":""},null,{"$f":"IF(G3017=\"\",\"\",VLOOKUP(G3017,Insumos!G:H,2,FALSE))","v":""}]
[null,null,null,null,null,{"$f":"IF(E3018=\"\",\"\",VLOOKUP(E3018,Insumos!AD:AE,2,FALSE))","v":""},null,{"$f":"IF(G3018=\"\",\"\",VLOOKUP(G3018,Insumos!G:H,2,FALSE))","v":""}]
[null,null,null,null,null,{"$f":"IF(E3019=\"\",\"\",VLOOKUP(E3019,Insumos!AD:AE,2,FALSE))","v":""},null,{"$f":"IF(G3019=\"\",\"\",VLOOKUP(G3019,Insumos!G:H,2,FALSE))","v":""}]
[null,null,null,null,null,{"$f":"IF(E3020=\"\",\"\",VLOOKUP(E3020,Insumos!AD:AE,2,FALSE))","v":""},null,{"$f":"IF(G3020=\"\",\"\",VLOOKUP(G3020,Insumos!G:H,2,FALSE))","v":""}]
[null,null,null,null,null,{"$f":"IF(E3021=\"\",\"\",VLOOKUP(E3021,Insumos!AD:AE,2,FALSE))","v":""},null,{"$f":"IF(G3021=\"\",\"\",VLOOKUP(G3021,Insumos!G:H,2,FALSE))","v":""}]
[null,null,null,null,null,{"$f":"IF(E3022=\"\",\"\",VLOOKUP(E3022,Insumos!AD:AE,2,FALSE))","v":""},null,{"$f":"IF(G3022=\"\",\"\",VLOOKUP(G3022,Insumos!G:H,2,FALSE))","v":""}]
[null,null,null,null,null,{"$f":"IF(E3023=\"\",\"\",VLOOKUP(E3023,Insumos!AD:AE,2,FALSE))","v":""},null,{"$f":"IF(G3023=\"\",\"\",VLOOKUP(G3023,Insumos!G:H,2,FALSE))","v":""}]
[null,null,null,null,null,{"$f":"IF(E3024=\"\",\"\",VLOOKUP(E3024,Insumos!AD:AE,2,FALSE))","v":""},null,{"$f":"IF(G3024=\"\",\"\",VLOOKUP(G3024,Insumos!G:H,2,FALSE))","v":""}]
[null,null,null,null,null,{"$f":"IF(E3025=\"\",\"\",VLOOKUP(E3025,Insumos!AD:AE,2,FALSE))","v":""},null,{"$f":"IF(G3025=\"\",\"\",VLOOKUP(G3025,Insumos!G:H,2,FALSE))","v":""}]
[null,null,null,null,null,{"$f":"IF(E3026=\"\",\"\",VLOOKUP(E3026,Insumos!AD:AE,2,FALSE))","v":""},null,{"$f":"IF(G3026=\"\",\"\",VLOOKUP(G3026,Insumos!G:H,2,FALSE))","v":""}]
[null,null,null,null,null,{"$f":"IF(E3027=\"\",\"\",VLOOKUP(E3027,Insumos!AD:AE,2,FALSE))","v":""},null,{"$f":"IF(G3027=\"\",\"\",VLOOKUP(G3027,Insumos!G:H,2,FALSE))","v":""}]
[null,null,null,null,null,{"$f":"IF(E3028=\"\",\"\",VLOOKUP(E3028,Insumos!AD:AE,2,FALSE))","v":""},null,{"$f":"IF(G3028=\"\",\"\",VLOOKUP(G3028,Insumos!G:H,2,FALSE))","v":""}]
[null,null,null,null,null,{"$f":"IF(E3029=\"\",\"\",VLOOKUP(E3029,Insumos!AD:AE,2,FALSE))","v":""},null,{"$f":"IF(G3029=\"\",\"\",VLOOKUP(G3029,Insumos!G:H,2,FALSE))","v":""}]
[null,null,null,null,null,{"$f":"IF(E3030=\"\",\"\",VLOOKUP(E3030,Insumos!AD:AE,2,FALSE))","v":""},null,{"$f":"IF(G3030=\"\",\"\",VLOOKUP(G3030,Insumos!G:H,2,FALSE))","v":""}]
[null,null,null,null,null,{"$f":"IF(E3031=\"\",\"\",VLOOKUP(E3031,Insumos!AD:AE,2,FALSE))","v":""},null,{"$f":"IF(G3031=\"\",\"\",VLOOKUP(G3031,Insumos!G:H,2,FALSE))","v":""}]
[null,null,null,null,null,{"$f":"IF(E3032=\"\",\"\",VLOOKUP(E3032,Insumos!AD:AE,2,FALSE))","v":""},null,{"$f":"IF(G3032=\"\",\"\",VLOOKUP(G3032,Insumos!G:H,2,FALSE))","v":""}]
[null,null,null,null,null,{"$f":"IF(E3033=\"\",\"\",VLOOKUP(E3033,Insumos!AD:AE,2,FALSE))","v":""},null,{"$f":"IF(G3033=\"\",\"\",VLOOKUP(G3033,Insumos!G:H,2,FALSE))","v":""}]
[null,null,null,null,null,{"$f":"IF(E3034=\"\",\"\",VLOOKUP(E3034,Insumos!AD:AE,2,FALSE))","v":""},null,{"$f":"IF(G3034=\"\",\"\",VLOOKUP(G3034,Insumos!G:H,2,FALSE))","v":""}]
[null,null,null,null,null,{"$f":"IF(E3035=\"\",\"\",VLOOKUP(E3035,Insumos!AD:AE,2,FALSE))","v":""},null,{"$f":"IF(G3035=\"\",\"\",VLOOKUP(G3035,Insumos!G:H,2,FALSE))","v":""}]
[null,null,null,null,null,{"$f":"IF(E3036=\"\",\"\",VLOOKUP(E3036,Insumos!AD:AE,2,FALSE))","v":""},null,{"$f":"IF(G3036=\"\",\"\",VLOOKUP(G3036,Insumos!G:H,2,FALSE))","v":""}]
[null,null,null,null,null,{"$f":"IF(E3037=\"\",\"\",VLOOKUP(E3037,Insumos!AD:AE,2,FALSE))","v":""},null,{"$f":"IF(G3037=\"\",\"\",VLOOKUP(G3037,Insumos!G:H,2,FALSE))","v":""}]
[null,null,null,null,null,{"$f":"IF(E3038=\"\",\"\",VLOOKUP(E3038,Insumos!AD:AE,2,FALSE))","v":""},null,{"$f":"IF(G3038=\"\",\"\",VLOOKUP(G3038,Insumos!G:H,2,FALSE))","v":""}]
[null,null,null,null,null,{"$f":"IF(E3039=\"\",\"\",VLOOKUP(E3039,Insumos!AD:AE,2,FALSE))","v":""},null,{"$f":"IF(G3039=\"\",\"\",VLOOKUP(G3039,Insumos!G:H,2,FALSE))","v":""}]
[null,null,null,null,null,{"$f":"IF(E3040=\"\",\"\",VLOOKUP(E3040,Insumos!AD:AE,2,FALSE))","v":""},null,{"$f":"IF(G3040=\"\",\"\",VLOOKUP(G3040,Insumos!G:H,2,FALSE))","v":""}]
[null,null,null,null,null,{"$f":"IF(E3041=\"\",\"\",VLOOKUP(E3041,Insumos!AD:AE,2,FALSE))","v":""},null,{"$f":"IF(G3041=\"\",\"\",VLOOKUP(G3041,Insumos!G:H,2,FALSE))","v":""}]
[null,null,null,null,null,{"$f":"IF(E3042=\"\",\"\",VLOOKUP(E3042,Insumos!AD:AE,2,FALSE))","v":""},null,{"$f":"IF(G3042=\"\",\"\",VLOOKUP(G3042,Insumos!G:H,2,FALSE))","v":""}]
[null,null,null,null,null,{"$f":"IF(E3043=\"\",\"\",VLOOKUP(E3043,Insumos!AD:AE,2,FALSE))","v":""},null,{"$f":"IF(G3043=\"\",\"\",VLOOKUP(G3043,Insumos!G:H,2,FALSE))","v":""}]
[null,null,null,null,null,{"$f":"IF(E3044=\"\",\"\",VLOOKUP(E3044,Insumos!AD:AE,2,FALSE))","v":""},null,{"$f":"IF(G3044=\"\",\"\",VLOOKUP(G3044,Insumos!G:H,2,FALSE))","v":""}]
[null,null,null,null,null,{"$f":"IF(E3045=\"\",\"\",VLOOKUP(E3045,Insumos!AD:AE,2,FALSE))","v":""},null,{"$f":"IF(G3045=\"\",\"\",VLOOKUP(G3045,Insumos!G:H,2,FALSE))","v":""}]
[null,null,null,null,null,{"$f":"IF(E3046=\"\",\"\",VLOOKUP(E3046,Insumos!AD:AE,2,FALSE))","v":""},null,{"$f":"IF(G3046=\"\",\"\",VLOOKUP(G3046,Insumos!G:H,2,FALSE))","v":""}]
[null,null,null,null,null,{"$f":"IF(E3047=\"\",\"\",VLOOKUP(E3047,Insumos!AD:AE,2,FALSE))","v":""},null,{"$f":"IF(G3047=\"\",\"\",VLOOKUP(G3047,Insumos!G:H,2,FALSE))","v":""}]
[null,null,null,null,null,{"$f":"IF(E3048=\"\",\"\",VLOOKUP(E3048,Insumos!AD:AE,2,FALSE))","v":""},null,{"$f":"IF(G3048=\"\",\"\",VLOOKUP(G3048,Insumos!G:H,2,FALSE))","v":""}]
[null,null,null,null,null,{"$f":"IF(E3049=\"\",\"\",VLOOKUP(E3049,Insumos!AD:AE,2,FALSE))","v":""},null,{"$f":"IF(G3049=\"\",\"\",VLOOKUP(G3049,Insumos!G:H,2,FALSE))","v":""}]
[null,null,null,null,null,{"$f":"IF(E3050=\"\",\"\",VLOOKUP(E3050,Insumos!AD:AE,2,FALSE))","v":""},null,{"$f":"IF(G3050=\"\",\"\",VLOOKUP(G3050,Insumos!G:H,2,FALSE))","v":""}]
[null,null,null,null,null,{"$f":"IF(E3051=\"\",\"\",VLOOKUP(E3051,Insumos!AD:AE,2,FALSE))","v":""},null,{"$f":"IF(G3051=\"\",\"\",VLOOKUP(G3051,Insumos!G:H,2,FALSE))","v":""}]
[null,null,null,null,null,{"$f":"IF(E3052=\"\",\"\",VLOOKUP(E3052,Insumos!AD:AE,2,FALSE))","v":""},null,{"$f":"IF(G3052=\"\",\"\",VLOOKUP(G3052,Insumos!G:H,2,FALSE))","v":""}]
[null,null,null,null,null,{"$f":"IF(E3053=\"\",\"\",VLOOKUP(E3053,Insumos!AD:AE,2,FALSE))","v":""},null,{"$f":"IF(G3053=\"\",\"\",VLOOKUP(G3053,Insumos!G:H,2,FALSE))","v":""}]
[null,null,null,null,null,{"$f":"IF(E3054=\"\",\"\",VLOOKUP(E3054,Insumos!AD:AE,2,FALSE))","v":""},null,{"$f":"IF(G3054=\"\",\"\",VLOOKUP(G3054,Insumos!G:H,2,FALSE))","v":""}]
[null,null,null,null,null,{"$f":"IF(E3055=\"\",\"\",VLOOKUP(E3055,Insumos!AD:AE,2,FALSE))","v":""},null,{"$f":"IF(G3055=\"\",\"\",VLOOKUP(G3055,Insumos!G:H,2,FALSE))","v":""}]
[null,null,null,null,null,{"$f":"IF(E3056=\"\",\"\",VLOOKUP(E3056,Insumos!AD:AE,2,FALSE))","v":""},null,{"$f":"IF(G3056=\"\",\"\",VLOOKUP(G3056,Insumos!G:H,2,FALSE))","v":""}]
[null,null,null,null,null,{"$f":"IF(E3057=\"\",\"\",VLOOKUP(E3057,Insumos!AD:AE,2,FALSE))","v":""},null,{"$f":"IF(G3057=\"\",\"\",VLOOKUP(G3057,Insumos!G:H,2,FALSE))","v":""}]
[null,null,null,null,null,{"$f":"IF(E3058=\"\",\"\",VLOOKUP(E3058,Insumos!AD:AE,2,FALSE))","v":""},null,{"$f":"IF(G3058=\"\",\"\",VLOOKUP(G3058,Insumos!G:H,2,FALSE))","v":""}]
[null,null,null,null,null,{"$f":"IF(E3059=\"\",\"\",VLOOKUP(E3059,Insumos!AD:AE,2,FALSE))","v":""},null,{"$f":"IF(G3059=\"\",\"\",VLOOKUP(G3059,Insumos!G:H,2,FALSE))","v":""}]
[null,null,null,null,null,{"$f":"IF(E3060=\"\",\"\",VLOOKUP(E3060,Insumos!AD:AE,2,FALSE))","v":""},null,{"$f":"IF(G3060=\"\",\"\",VLOOKUP(G3060,Insumos!G:H,2,FALSE))","v":""}]
[null,null,null,null,null,{"$f":"IF(E3061=\"\",\"\",VLOOKUP(E3061,Insumos!AD:AE,2,FALSE))","v":""},null,{"$f":"IF(G3061=\"\",\"\",VLOOKUP(G3061,Insumos!G:H,2,FALSE))","v":""}]
[null,null,null,null,null,{"$f":"IF(E3062=\"\",\"\",VLOOKUP(E3062,Insumos!AD:AE,2,FALSE))","v":""},null,{"$f":"IF(G3062=\"\",\"\",VLOOKUP(G3062,Insumos!G:H,2,FALSE))","v":""}]
[null,null,null,null,null,{"$f":"IF(E3063=\"\",\"\",VLOOKUP(E3063,Insumos!AD:AE,2,FALSE))","v":""},null,{"$f":"IF(G3063=\"\",\"\",VLOOKUP(G3063,Insumos!G:H,2,FALSE))","v":""}]
[null,null,null,null,null,{"$f":"IF(E3064=\"\",\"\",VLOOKUP(E3064,Insumos!AD:AE,2,FALSE))","v":""},null,{"$f":"IF(G3064=\"\",\"\",VLOOKUP(G3064,Insumos!G:H,2,FALSE))","v":""}]
[null,null,null,null,null,{"$f":"IF(E3065=\"\",\"\",VLOOKUP(E3065,Insumos!AD:AE,2,FALSE))","v":""},null,{"$f":"IF(G3065=\"\",\"\",VLOOKUP(G3065,Insumos!G:H,2,FALSE))","v":""}]
[null,null,null,null,null,{"$f":"IF(E3066=\"\",\"\",VLOOKUP(E3066,Insumos!AD:AE,2,FALSE))","v":""},null,{"$f":"IF(G3066=\"\",\"\",VLOOKUP(G3066,Insumos!G:H,2,FALSE))","v":""}]
[null,null,null,null,null,{"$f":"IF(E3067=\"\",\"\",VLOOKUP(E3067,Insumos!AD:AE,2,FALSE))","v":""},null,{"$f":"IF(G3067=\"\",\"\",VLOOKUP(G3067,Insumos!G:H,2,FALSE))","v":""}]
[null,null,null,null,null,{"$f":"IF(E3068=\"\",\"\",VLOOKUP(E3068,Insumos!AD:AE,2,FALSE))","v":""},null,{"$f":"IF(G3068=\"\",\"\",VLOOKUP(G3068,Insumos!G:H,2,FALSE))","v":""}]
[null,null,null,null,null,{"$f":"IF(E3069=\"\",\"\",VLOOKUP(E3069,Insumos!AD:AE,2,FALSE))","v":""},null,{"$f":"IF(G3069=\"\",\"\",VLOOKUP(G3069,Insumos!G:H,2,FALSE))","v":""}]
[null,null,null,null,null,{"$f":"IF(E3070=\"\",\"\",VLOOKUP(E3070,Insumos!AD:AE,2,FALSE))","v":""},null,{"$f":"IF(G3070=\"\",\"\",VLOOKUP(G3070,Insumos!G:H,2,FALSE))","v":""}]
[null,null,null,null,null,{"$f":"IF(E3071=\"\",\"\",VLOOKUP(E3071,Insumos!AD:AE,2,FALSE))","v":""},null,{"$f":"IF(G3071=\"\",\"\",VLOOKUP(G3071,Insumos!G:H,2,FALSE))","v":""}]
[null,null,null,null,null,{"$f":"IF(E3072=\"\",\"\",VLOOKUP(E3072,Insumos!AD:AE,2,FALSE))","v":""},null,{"$f":"IF(G3072=\"\",\"\",VLOOKUP(G3072,Insumos!G:H,2,FALSE))","v":""}]
[null,null,null,null,null,{"$f":"IF(E3073=\"\",\"\",VLOOKUP(E3073,Insumos!AD:AE,2,FALSE))","v":""},null,{"$f":"IF(G3073=\"\",\"\",VLOOKUP(G3073,Insumos!G:H,2,FALSE))","v":""}]
[null,null,null,null,null,{"$f":"IF(E3074=\"\",\"\",VLOOKUP(E3074,Insumos!AD:AE,2,FALSE))","v":""},null,{"$f":"IF(G3074=\"\",\"\",VLOOKUP(G3074,Insumos!G:H,2,FALSE))","v":""}]
[null,null,null,null,null,{"$f":"IF(E3075=\"\",\"\",VLOOKUP(E3075,Insumos!AD:AE,2,FALSE))","v":""},null,{"$f":"IF(G3075=\"\",\"\",VLOOKUP(G3075,Insumos!G:H,2,FALSE))","v":""}]
[null,null,null,null,null,{"$f":"IF(E3076=\"\",\"\",VLOOKUP(E3076,Insumos!AD:AE,2,FALSE))","v":""},null,{"$f":"IF(G3076=\"\",\"\",VLOOKUP(G3076,Insumos!G:H,2,FALSE))","v":""}]
[null,null,null,null,null,{"$f":"IF(E3077=\"\",\"\",VLOOKUP(E3077,Insumos!AD:AE,2,FALSE))","v":""},null,{"$f":"IF(G3077=\"\",\"\",VLOOKUP(G3077,Insumos!G:H,2,FALSE))","v":""}]
[null,null,null,null,null,{"$f":"IF(E3078=\"\",\"\",VLOOKUP(E3078,Insumos!AD:AE,2,FALSE))","v":""},null,{"$f":"IF(G3078=\"\",\"\",VLOOKUP(G3078,Insumos!G:H,2,FALSE))","v":""}]
[null,null,null,null,null,{"$f":"IF(E3079=\"\",\"\",VLOOKUP(E3079,Insumos!AD:AE,2,FALSE))","v":""},null,{"$f":"IF(G3079=\"\",\"\",VLOOKUP(G3079,Insumos!G:H,2,FALSE))","v":""}]
[null,null,null,null,null,{"$f":"IF(E3080=\"\",\"\",VLOOKUP(E3080,Insumos!AD:AE,2,FALSE))","v":""},null,{"$f":"IF(G3080=\"\",\"\",VLOOKUP(G3080,Insumos!G:H,2,FALSE))","v":""}]
[null,null,null,null,null,{"$f":"IF(E3081=\"\",\"\",VLOOKUP(E3081,Insumos!AD:AE,2,FALSE))","v":""},null,{"$f":"IF(G3081=\"\",\"\",VLOOKUP(G3081,Insumos!G:H,2,FALSE))","v":""}]
[null,null,null,null,null,{"$f":"IF(E3082=\"\",\"\",VLOOKUP(E3082,Insumos!AD:AE,2,FALSE))","v":""},null,{"$f":"IF(G3082=\"\",\"\",VLOOKUP(G3082,Insumos!G:H,2,FALSE))","v":""}]
[null,null,null,null,null,{"$f":"IF(E3083=\"\",\"\",VLOOKUP(E3083,Insumos!AD:AE,2,FALSE))","v":""},null,{"$f":"IF(G3083=\"\",\"\",VLOOKUP(G3083,Insumos!G:H,2,FALSE))","v":""}]
[null,null,null,null,null,{"$f":"IF(E3084=\"\",\"\",VLOOKUP(E3084,Insumos!AD:AE,2,FALSE))","v":""},null,{"$f":"IF(G3084=\"\",\"\",VLOOKUP(G3084,Insumos!G:H,2,FALSE))","v":""}]
[null,null,null,null,null,{"$f":"IF(E3085=\"\",\"\",VLOOKUP(E3085,Insumos!AD:AE,2,FALSE))","v":""},null,{"$f":"IF(G3085=\"\",\"\",VLOOKUP(G3085,Insumos!G:H,2,FALSE))","v":""}]
[null,null,null,null,null,{"$f":"IF(E3086=\"\",\"\",VLOOKUP(E3086,Insumos!AD:AE,2,FALSE))","v":""},null,{"$f":"IF(G3086=\"\",\"\",VLOOKUP(G3086,Insumos!G:H,2,FALSE))","v":""}]
[null,null,null,null,null,{"$f":"IF(E3087=\"\",\"\",VLOOKUP(E3087,Insumos!AD:AE,2,FALSE))","v":""},null,{"$f":"IF(G3087=\"\",\"\",VLOOKUP(G3087,Insumos!G:H,2,FALSE))","v":""}]
[null,null,null,null,null,{"$f":"IF(E3088=\"\",\"\",VLOOKUP(E3088,Insumos!AD:AE,2,FALSE))","v":""},null,{"$f":"IF(G3088=\"\",\"\",VLOOKUP(G3088,Insumos!G:H,2,FALSE))","v":""}]
[null,null,null,null,null,{"$f":"IF(E3089=\"\",\"\",VLOOKUP(E3089,Insumos!AD:AE,2,FALSE))","v":""},null,{"$f":"IF(G3089=\"\",\"\",VLOOKUP(G3089,Insumos!G:H,2,FALSE))","v":""}]
[null,null,null,null,null,{"$f":"IF(E3090=\"\",\"\",VLOOKUP(E3090,Insumos!AD:AE,2,FALSE))","v":""},null,{"$f":"IF(G3090=\"\",\"\",VLOOKUP(G3090,Insumos!G:H,2,FALSE))","v":""}]
[null,null,null,null,null,{"$f":"IF(E3091=\"\",\"\",VLOOKUP(E3091,Insumos!AD:AE,2,FALSE))","v":""},null,{"$f":"IF(G3091=\"\",\"\",VLOOKUP(G3091,Insumos!G:H,2,FALSE))","v":""}]
[null,null,null,null,null,{"$f":"IF(E3092=\"\",\"\",VLOOKUP(E3092,Insumos!AD:AE,2,FALSE))","v":""},null,{"$f":"IF(G3092=\"\",\"\",VLOOKUP(G3092,Insumos!G:H,2,FALSE))","v":""}]
[null,null,null,null,null,{"$f":"IF(E3093=\"\",\"\",VLOOKUP(E3093,Insumos!AD:AE,2,FALSE))","v":""},null,{"$f":"IF(G3093=\"\",\"\",VLOOKUP(G3093,Insumos!G:H,2,FALSE))","v":""}]
[null,null,null,null,null,{"$f":"IF(E3094=\"\",\"\",VLOOKUP(E3094,Insumos!AD:AE,2,FALSE))","v":""},null,{"$f":"IF(G3094=\"\",\"\",VLOOKUP(G3094,Insumos!G:H,2,FALSE))","v":""}]
[null,null,null,null,null,{"$f":"IF(E3095=\"\",\"\",VLOOKUP(E3095,Insumos!AD:AE,2,FALSE))","v":""},null,{"$f":"IF(G3095=\"\",\"\",VLOOKUP(G3095,Insumos!G:H,2,FALSE))","v":""}]
[null,null,null,null,null,{"$f":"IF(E3096=\"\",\"\",VLOOKUP(E3096,Insumos!AD:AE,2,FALSE))","v":""},null,{"$f":"IF(G3096=\"\",\"\",VLOOKUP(G3096,Insumos!G:H,2,FALSE))","v":""}]
[null,null,null,null,null,{"$f":"IF(E3097=\"\",\"\",VLOOKUP(E3097,Insumos!AD:AE,2,FALSE))","v":""},null,{"$f":"IF(G3097=\"\",\"\",VLOOKUP(G3097,Insumos!G:H,2,FALSE))","v":""}]
[null,null,null,null,null,{"$f":"IF(E3098=\"\",\"\",VLOOKUP(E3098,Insumos!AD:AE,2,FALSE))","v":""},null,{"$f":"IF(G3098=\"\",\"\",VLOOKUP(G3098,Insumos!G:H,2,FALSE))","v":""}]
[null,null,null,null,null,{"$f":"IF(E3099=\"\",\"\",VLOOKUP(E3099,Insumos!AD:AE,2,FALSE))","v":""},null,{"$f":"IF(G3099=\"\",\"\",VLOOKUP(G3099,Insumos!G:H,2,FALSE))","v":""}]
[null,null,null,null,null,{"$f":"IF(E3100=\"\",\"\",VLOOKUP(E3100,Insumos!AD:AE,2,FALSE))","v":""},null,{"$f":"IF(G3100=\"\",\"\",VLOOKUP(G3100,Insumos!G:H,2,FALSE))","v":""}]
[null,null,null,null,null,{"$f":"IF(E3101=\"\",\"\",VLOOKUP(E3101,Insumos!AD:AE,2,FALSE))","v":""},null,{"$f":"IF(G3101=\"\",\"\",VLOOKUP(G3101,Insumos!G:H,2,FALSE))","v":""}]
[null,null,null,null,null,{"$f":"IF(E3102=\"\",\"\",VLOOKUP(E3102,Insumos!AD:AE,2,FALSE))","v":""},null,{"$f":"IF(G3102=\"\",\"\",VLOOKUP(G3102,Insumos!G:H,2,FALSE))","v":""}]
[null,null,null,null,null,{"$f":"IF(E3103=\"\",\"\",VLOOKUP(E3103,Insumos!AD:AE,2,FALSE))","v":""},null,{"$f":"IF(G3103=\"\",\"\",VLOOKUP(G3103,Insumos!G:H,2,FALSE))","v":""}]
[null,null,null,null,null,{"$f":"IF(E3104=\"\",\"\",VLOOKUP(E3104,Insumos!AD:AE,2,FALSE))","v":""},null,{"$f":"IF(G3104=\"\",\"\",VLOOKUP(G3104,Insumos!G:H,2,FALSE))","v":""}]
[null,null,null,null,null,{"$f":"IF(E3105=\"\",\"\",VLOOKUP(E3105,Insumos!AD:AE,2,FALSE))","v":""},null,{"$f":"IF(G3105=\"\",\"\",VLOOKUP(G3105,Insumos!G:H,2,FALSE))","v":""}]
[null,null,null,null,null,{"$f":"IF(E3106=\"\",\"\",VLOOKUP(E3106,Insumos!AD:AE,2,FALSE))","v":""},null,{"$f":"IF(G3106=\"\",\"\",VLOOKUP(G3106,Insumos!G:H,2,FALSE))","v":""}]
[null,null,null,null,null,{"$f":"IF(E3107=\"\",\"\",VLOOKUP(E3107,Insumos!AD:AE,2,FALSE))","v":""},null,{"$f":"IF(G3107=\"\",\"\",VLOOKUP(G3107,Insumos!G:H,2,FALSE))","v":""}]
[null,null,null,null,null,{"$f":"IF(E3108=\"\",\"\",VLOOKUP(E3108,Insumos!AD:AE,2,FALSE))","v":""},null,{"$f":"IF(G3108=\"\",\"\",VLOOKUP(G3108,Insumos!G:H,2,FALSE))","v":""}]
[null,null,null,null,null,{"$f":"IF(E3109=\"\",\"\",VLOOKUP(E3109,Insumos!AD:AE,2,FALSE))","v":""},null,{"$f":"IF(G3109=\"\",\"\",VLOOKUP(G3109,Insumos!G:H,2,FALSE))","v":""}]
[null,null,null,null,null,{"$f":"IF(E3110=\"\",\"\",VLOOKUP(E3110,Insumos!AD:AE,2,FALSE))","v":""},null,{"$f":"IF(G3110=\"\",\"\",VLOOKUP(G3110,Insumos!G:H,2,FALSE))","v":""}]
[null,null,null,null,null,{"$f":"IF(E3111=\"\",\"\",VLOOKUP(E3111,Insumos!AD:AE,2,FALSE))","v":""},null,{"$f":"IF(G3111=\"\",\"\",VLOOKUP(G3111,Insumos!G:H,2,FALSE))","v":""}]
[null,null,null,null,null,{"$f":"IF(E3112=\"\",\"\",VLOOKUP(E3112,Insumos!AD:AE,2,FALSE))","v":""},null,{"$f":"IF(G3112=\"\",\"\",VLOOKUP(G3112,Insumos!G:H,2,FALSE))","v":""}]
[null,null,null,null,null,{"$f":"IF(E3113=\"\",\"\",VLOOKUP(E3113,Insumos!AD:AE,2,FALSE))","v":""},null,{"$f":"IF(G3113=\"\",\"\",VLOOKUP(G3113,Insumos!G:H,2,FALSE))","v":""}]
[null,null,null,null,null,{"$f":"IF(E3114=\"\",\"\",VLOOKUP(E3114,Insumos!AD:AE,2,FALSE))","v":""},null,{"$f":"IF(G3114=\"\",\"\",VLOOKUP(G3114,Insumos!G:H,2,FALSE))","v":""}]
[null,null,null,null,null,{"$f":"IF(E3115=\"\",\"\",VLOOKUP(E3115,Insumos!AD:AE,2,FALSE))","v":""},null,{"$f":"IF(G3115=\"\",\"\",VLOOKUP(G3115,Insumos!G:H,2,FALSE))","v":""}]
[null,null,null,null,null,{"$f":"IF(E3116=\"\",\"\",VLOOKUP(E3116,Insumos!AD:AE,2,FALSE))","v":""},null,{"$f":"IF(G3116=\"\",\"\",VLOOKUP(G3116,Insumos!G:H,2,FALSE))","v":""}]
[null,null,null,null,null,{"$f":"IF(E3117=\"\",\"\",VLOOKUP(E3117,Insumos!AD:AE,2,FALSE))","v":""},null,{"$f":"IF(G3117=\"\",\"\",VLOOKUP(G3117,Insumos!G:H,2,FALSE))","v":""}]
[null,null,null,null,null,{"$f":"IF(E3118=\"\",\"\",VLOOKUP(E3118,Insumos!AD:AE,2,FALSE))","v":""},null,{"$f":"IF(G3118=\"\",\"\",VLOOKUP(G3118,Insumos!G:H,2,FALSE))","v":""}]
[null,null,null,null,null,{"$f":"IF(E3119=\"\",\"\",VLOOKUP(E3119,Insumos!AD:AE,2,FALSE))","v":""},null,{"$f":"IF(G3119=\"\",\"\",VLOOKUP(G3119,Insumos!G:H,2,FALSE))","v":""}]
[null,null,null,null,null,{"$f":"IF(E3120=\"\",\"\",VLOOKUP(E3120,Insumos!AD:AE,2,FALSE))","v":""},null,{"$f":"IF(G3120=\"\",\"\",VLOOKUP(G3120,Insumos!G:H,2,FALSE))","v":""}]
[null,null,null,null,null,{"$f":"IF(E3121=\"\",\"\",VLOOKUP(E3121,Insumos!AD:AE,2,FALSE))","v":""},null,{"$f":"IF(G3121=\"\",\"\",VLOOKUP(G3121,Insumos!G:H,2,FALSE))","v":""}]
[null,null,null,null,null,{"$f":"IF(E3122=\"\",\"\",VLOOKUP(E3122,Insumos!AD:AE,2,FALSE))","v":""},null,{"$f":"IF(G3122=\"\",\"\",VLOOKUP(G3122,Insumos!G:H,2,FALSE))","v":""}]
[null,null,null,null,null,{"$f":"IF(E3123=\"\",\"\",VLOOKUP(E3123,Insumos!AD:AE,2,FALSE))","v":""},null,{"$f":"IF(G3123=\"\",\"\",VLOOKUP(G3123,Insumos!G:H,2,FALSE))","v":""}]
[null,null,null,null,null,{"$f":"IF(E3124=\"\",\"\",VLOOKUP(E3124,Insumos!AD:AE,2,FALSE))","v":""},null,{"$f":"IF(G3124=\"\",\"\",VLOOKUP(G3124,Insumos!G:H,2,FALSE))","v":""}]
[null,null,null,null,null,{"$f":"IF(E3125=\"\",\"\",VLOOKUP(E3125,Insumos!AD:AE,2,FALSE))","v":""},null,{"$f":"IF(G3125=\"\",\"\",VLOOKUP(G3125,Insumos!G:H,2,FALSE))","v":""}]
[null,null,null,null,null,{"$f":"IF(E3126=\"\",\"\",VLOOKUP(E3126,Insumos!AD:AE,2,FALSE))","v":""},null,{"$f":"IF(G3126=\"\",\"\",VLOOKUP(G3126,Insumos!G:H,2,FALSE))","v":""}]
[null,null,null,null,null,{"$f":"IF(E3127=\"\",\"\",VLOOKUP(E3127,Insumos!AD:AE,2,FALSE))","v":""},null,{"$f":"IF(G3127=\"\",\"\",VLOOKUP(G3127,Insumos!G:H,2,FALSE))","v":""}]
[null,null,null,null,null,{"$f":"IF(E3128=\"\",\"\",VLOOKUP(E3128,Insumos!AD:AE,2,FALSE))","v":""},null,{"$f":"IF(G3128=\"\",\"\",VLOOKUP(G3128,Insumos!G:H,2,FALSE))","v":""}]
[null,null,null,null,null,{"$f":"IF(E3129=\"\",\"\",VLOOKUP(E3129,Insumos!AD:AE,2,FALSE))","v":""},null,{"$f":"IF(G3129=\"\",\"\",VLOOKUP(G3129,Insumos!G:H,2,FALSE))","v":""}]
[null,null,null,null,null,{"$f":"IF(E3130=\"\",\"\",VLOOKUP(E3130,Insumos!AD:AE,2,FALSE))","v":""},null,{"$f":"IF(G3130=\"\",\"\",VLOOKUP(G3130,Insumos!G:H,2,FALSE))","v":""}]
[null,null,null,null,null,{"$f":"IF(E3131=\"\",\"\",VLOOKUP(E3131,Insumos!AD:AE,2,FALSE))","v":""},null,{"$f":"IF(G3131=\"\",\"\",VLOOKUP(G3131,Insumos!G:H,2,FALSE))","v":""}]
[null,null,null,null,null,{"$f":"IF(E3132=\"\",\"\",VLOOKUP(E3132,Insumos!AD:AE,2,FALSE))","v":""},null,{"$f":"IF(G3132=\"\",\"\",VLOOKUP(G3132,Insumos!G:H,2,FALSE))","v":""}]
[null,null,null,null,null,{"$f":"IF(E3133=\"\",\"\",VLOOKUP(E3133,Insumos!AD:AE,2,FALSE))","v":""},null,{"$f":"IF(G3133=\"\",\"\",VLOOKUP(G3133,Insumos!G:H,2,FALSE))","v":""}]
[null,null,null,null,null,{"$f":"IF(E3134=\"\",\"\",VLOOKUP(E3134,Insumos!AD:AE,2,FALSE))","v":""},null,{"$f":"IF(G3134=\"\",\"\",VLOOKUP(G3134,Insumos!G:H,2,FALSE))","v":""}]
[null,null,null,null,null,{"$f":"IF(E3135=\"\",\"\",VLOOKUP(E3135,Insumos!AD:AE,2,FALSE))","v":""},null,{"$f":"IF(G3135=\"\",\"\",VLOOKUP(G3135,Insumos!G:H,2,FALSE))","v":""}]
[null,null,null,null,null,{"$f":"IF(E3136=\"\",\"\",VLOOKUP(E3136,Insumos!AD:AE,2,FALSE))","v":""},null,{"$f":"IF(G3136=\"\",\"\",VLOOKUP(G3136,Insumos!G:H,2,FALSE))","v":""}]
[null,null,null,null,null,{"$f":"IF(E3137=\"\",\"\",VLOOKUP(E3137,Insumos!AD:AE,2,FALSE))","v":""},null,{"$f":"IF(G3137=\"\",\"\",VLOOKUP(G3137,Insumos!G:H,2,FALSE))","v":""}]
[null,null,null,null,null,{"$f":"IF(E3138=\"\",\"\",VLOOKUP(E3138,Insumos!AD:AE,2,FALSE))","v":""},null,{"$f":"IF(G3138=\"\",\"\",VLOOKUP(G3138,Insumos!G:H,2,FALSE))","v":""}]
[null,null,null,null,null,{"$f":"IF(E3139=\"\",\"\",VLOOKUP(E3139,Insumos!AD:AE,2,FALSE))","v":""},null,{"$f":"IF(G3139=\"\",\"\",VLOOKUP(G3139,Insumos!G:H,2,FALSE))","v":""}]
[null,null,null,null,null,{"$f":"IF(E3140=\"\",\"\",VLOOKUP(E3140,Insumos!AD:AE,2,FALSE))","v":""},null,{"$f":"IF(G3140=\"\",\"\",VLOOKUP(G3140,Insumos!G:H,2,FALSE))","v":""}]
[null,null,null,null,null,{"$f":"IF(E3141=\"\",\"\",VLOOKUP(E3141,Insumos!AD:AE,2,FALSE))","v":""},null,{"$f":"IF(G3141=\"\",\"\",VLOOKUP(G3141,Insumos!G:H,2,FALSE))","v":""}]
[null,null,null,null,null,{"$f":"IF(E3142=\"\",\"\",VLOOKUP(E3142,Insumos!AD:AE,2,FALSE))","v":""},null,{"$f":"IF(G3142=\"\",\"\",VLOOKUP(G3142,Insumos!G:H,2,FALSE))","v":""}]
[null,null,null,null,null,{"$f":"IF(E3143=\"\",\"\",VLOOKUP(E3143,Insumos!AD:AE,2,FALSE))","v":""},null,{"$f":"IF(G3143=\"\",\"\",VLOOKUP(G3143,Insumos!G:H,2,FALSE))","v":""}]
[null,null,null,null,null,{"$f":"IF(E3144=\"\",\"\",VLOOKUP(E3144,Insumos!AD:AE,2,FALSE))","v":""},null,{"$f":"IF(G3144=\"\",\"\",VLOOKUP(G3144,Insumos!G:H,2,FALSE))","v":""}]
[null,null,null,null,null,{"$f":"IF(E3145=\"\",\"\",VLOOKUP(E3145,Insumos!AD:AE,2,FALSE))","v":""},null,{"$f":"IF(G3145=\"\",\"\",VLOOKUP(G3145,Insumos!G:H,2,FALSE))","v":""}]
[null,null,null,null,null,{"$f":"IF(E3146=\"\",\"\",VLOOKUP(E3146,Insumos!AD:AE,2,FALSE))","v":""},null,{"$f":"IF(G3146=\"\",\"\",VLOOKUP(G3146,Insumos!G:H,2,FALSE))","v":""}]
[null,null,null,null,null,{"$f":"IF(E3147=\"\",\"\",VLOOKUP(E3147,Insumos!AD:AE,2,FALSE))","v":""},null,{"$f":"IF(G3147=\"\",\"\",VLOOKUP(G3147,Insumos!G:H,2,FALSE))","v":""}]
[null,null,null,null,null,{"$f":"IF(E3148=\"\",\"\",VLOOKUP(E3148,Insumos!AD:AE,2,FALSE))","v":""},null,{"$f":"IF(G3148=\"\",\"\",VLOOKUP(G3148,Insumos!G:H,2,FALSE))","v":""}]
[null,null,null,null,null,{"$f":"IF(E3149=\"\",\"\",VLOOKUP(E3149,Insumos!AD:AE,2,FALSE))","v":""},null,{"$f":"IF(G3149=\"\",\"\",VLOOKUP(G3149,Insumos!G:H,2,FALSE))","v":""}]
[null,null,null,null,null,{"$f":"IF(E3150=\"\",\"\",VLOOKUP(E3150,Insumos!AD:AE,2,FALSE))","v":""},null,{"$f":"IF(G3150=\"\",\"\",VLOOKUP(G3150,Insumos!G:H,2,FALSE))","v":""}]
[null,null,null,null,null,{"$f":"IF(E3151=\"\",\"\",VLOOKUP(E3151,Insumos!AD:AE,2,FALSE))","v":""},null,{"$f":"IF(G3151=\"\",\"\",VLOOKUP(G3151,Insumos!G:H,2,FALSE))","v":""}]
[null,null,null,null,null,{"$f":"IF(E3152=\"\",\"\",VLOOKUP(E3152,Insumos!AD:AE,2,FALSE))","v":""},null,{"$f":"IF(G3152=\"\",\"\",VLOOKUP(G3152,Insumos!G:H,2,FALSE))","v":""}]
[null,null,null,null,null,{"$f":"IF(E3153=\"\",\"\",VLOOKUP(E3153,Insumos!AD:AE,2,FALSE))","v":""},null,{"$f":"IF(G3153=\"\",\"\",VLOOKUP(G3153,Insumos!G:H,2,FALSE))","v":""}]
[null,null,null,null,null,{"$f":"IF(E3154=\"\",\"\",VLOOKUP(E3154,Insumos!AD:AE,2,FALSE))","v":""},null,{"$f":"IF(G3154=\"\",\"\",VLOOKUP(G3154,Insumos!G:H,2,FALSE))","v":""}]
[null,null,null,null,null,{"$f":"IF(E3155=\"\",\"\",VLOOKUP(E3155,Insumos!AD:AE,2,FALSE))","v":""},null,{"$f":"IF(G3155=\"\",\"\",VLOOKUP(G3155,Insumos!G:H,2,FALSE))","v":""}]
[null,null,null,null,null,{"$f":"IF(E3156=\"\",\"\",VLOOKUP(E3156,Insumos!AD:AE,2,FALSE))","v":""},null,{"$f":"IF(G3156=\"\",\"\",VLOOKUP(G3156,Insumos!G:H,2,FALSE))","v":""}]
[null,null,null,null,null,{"$f":"IF(E3157=\"\",\"\",VLOOKUP(E3157,Insumos!AD:AE,2,FALSE))","v":""},null,{"$f":"IF(G3157=\"\",\"\",VLOOKUP(G3157,Insumos!G:H,2,FALSE))","v":""}]
[null,null,null,null,null,{"$f":"IF(E3158=\"\",\"\",VLOOKUP(E3158,Insumos!AD:AE,2,FALSE))","v":""},null,{"$f":"IF(G3158=\"\",\"\",VLOOKUP(G3158,Insumos!G:H,2,FALSE))","v":""}]
[null,null,null,null,null,{"$f":"IF(E3159=\"\",\"\",VLOOKUP(E3159,Insumos!AD:AE,2,FALSE))","v":""},null,{"$f":"IF(G3159=\"\",\"\",VLOOKUP(G3159,Insumos!G:H,2,FALSE))","v":""}]
[null,null,null,null,null,{"$f":"IF(E3160=\"\",\"\",VLOOKUP(E3160,Insumos!AD:AE,2,FALSE))","v":""},null,{"$f":"IF(G3160=\"\",\"\",VLOOKUP(G3160,Insumos!G:H,2,FALSE))","v":""}]
[null,null,null,null,null,{"$f":"IF(E3161=\"\",\"\",VLOOKUP(E3161,Insumos!AD:AE,2,FALSE))","v":""},null,{"$f":"IF(G3161=\"\",\"\",VLOOKUP(G3161,Insumos!G:H,2,FALSE))","v":""}]
[null,null,null,null,null,{"$f":"IF(E3162=\"\",\"\",VLOOKUP(E3162,Insumos!AD:AE,2,FALSE))","v":""},null,{"$f":"IF(G3162=\"\",\"\",VLOOKUP(G3162,Insumos!G:H,2,FALSE))","v":""}]
[null,null,null,null,null,{"$f":"IF(E3163=\"\",\"\",VLOOKUP(E3163,Insumos!AD:AE,2,FALSE))","v":""},null,{"$f":"IF(G3163=\"\",\"\",VLOOKUP(G3163,Insumos!G:H,2,FALSE))","v":""}]
[null,null,null,null,null,{"$f":"IF(E3164=\"\",\"\",VLOOKUP(E3164,Insumos!AD:AE,2,FALSE))","v":""},null,{"$f":"IF(G3164=\"\",\"\",VLOOKUP(G3164,Insumos!G:H,2,FALSE))","v":""}]
[null,null,null,null,null,{"$f":"IF(E3165=\"\",\"\",VLOOKUP(E3165,Insumos!AD:AE,2,FALSE))","v":""},null,{"$f":"IF(G3165=\"\",\"\",VLOOKUP(G3165,Insumos!G:H,2,FALSE))","v":""}]
[null,null,null,null,null,{"$f":"IF(E3166=\"\",\"\",VLOOKUP(E3166,Insumos!AD:AE,2,FALSE))","v":""},null,{"$f":"IF(G3166=\"\",\"\",VLOOKUP(G3166,Insumos!G:H,2,FALSE))","v":""}]
[null,null,null,null,null,{"$f":"IF(E3167=\"\",\"\",VLOOKUP(E3167,Insumos!AD:AE,2,FALSE))","v":""},null,{"$f":"IF(G3167=\"\",\"\",VLOOKUP(G3167,Insumos!G:H,2,FALSE))","v":""}]
[null,null,null,null,null,{"$f":"IF(E3168=\"\",\"\",VLOOKUP(E3168,Insumos!AD:AE,2,FALSE))","v":""},null,{"$f":"IF(G3168=\"\",\"\",VLOOKUP(G3168,Insumos!G:H,2,FALSE))","v":""}]
[null,null,null,null,null,{"$f":"IF(E3169=\"\",\"\",VLOOKUP(E3169,Insumos!AD:AE,2,FALSE))","v":""},null,{"$f":"IF(G3169=\"\",\"\",VLOOKUP(G3169,Insumos!G:H,2,FALSE))","v":""}]
[null,null,null,null,null,{"$f":"IF(E3170=\"\",\"\",VLOOKUP(E3170,Insumos!AD:AE,2,FALSE))","v":""},null,{"$f":"IF(G3170=\"\",\"\",VLOOKUP(G3170,Insumos!G:H,2,FALSE))","v":""}]
[null,null,null,null,null,{"$f":"IF(E3171=\"\",\"\",VLOOKUP(E3171,Insumos!AD:AE,2,FALSE))","v":""},null,{"$f":"IF(G3171=\"\",\"\",VLOOKUP(G3171,Insumos!G:H,2,FALSE))","v":""}]
[null,null,null,null,null,{"$f":"IF(E3172=\"\",\"\",VLOOKUP(E3172,Insumos!AD:AE,2,FALSE))","v":""},null,{"$f":"IF(G3172=\"\",\"\",VLOOKUP(G3172,Insumos!G:H,2,FALSE))","v":""}]
[null,null,null,null,null,{"$f":"IF(E3173=\"\",\"\",VLOOKUP(E3173,Insumos!AD:AE,2,FALSE))","v":""},null,{"$f":"IF(G3173=\"\",\"\",VLOOKUP(G3173,Insumos!G:H,2,FALSE))","v":""}]
[null,null,null,null,null,{"$f":"IF(E3174=\"\",\"\",VLOOKUP(E3174,Insumos!AD:AE,2,FALSE))","v":""},null,{"$f":"IF(G3174=\"\",\"\",VLOOKUP(G3174,Insumos!G:H,2,FALSE))","v":""}]
[null,null,null,null,null,{"$f":"IF(E3175=\"\",\"\",VLOOKUP(E3175,Insumos!AD:AE,2,FALSE))","v":""},null,{"$f":"IF(G3175=\"\",\"\",VLOOKUP(G3175,Insumos!G:H,2,FALSE))","v":""}]
[null,null,null,null,null,{"$f":"IF(E3176=\"\",\"\",VLOOKUP(E3176,Insumos!AD:AE,2,FALSE))","v":""},null,{"$f":"IF(G3176=\"\",\"\",VLOOKUP(G3176,Insumos!G:H,2,FALSE))","v":""}]
[null,null,null,null,null,{"$f":"IF(E3177=\"\",\"\",VLOOKUP(E3177,Insumos!AD:AE,2,FALSE))","v":""},null,{"$f":"IF(G3177=\"\",\"\",VLOOKUP(G3177,Insumos!G:H,2,FALSE))","v":""}]
[null,null,null,null,null,{"$f":"IF(E3178=\"\",\"\",VLOOKUP(E3178,Insumos!AD:AE,2,FALSE))","v":""},null,{"$f":"IF(G3178=\"\",\"\",VLOOKUP(G3178,Insumos!G:H,2,FALSE))","v":""}]
[null,null,null,null,null,{"$f":"IF(E3179=\"\",\"\",VLOOKUP(E3179,Insumos!AD:AE,2,FALSE))","v":""},null,{"$f":"IF(G3179=\"\",\"\",VLOOKUP(G3179,Insumos!G:H,2,FALSE))","v":""}]
[null,null,null,null,null,{"$f":"IF(E3180=\"\",\"\",VLOOKUP(E3180,Insumos!AD:AE,2,FALSE))","v":""},null,{"$f":"IF(G3180=\"\",\"\",VLOOKUP(G3180,Insumos!G:H,2,FALSE))","v":""}]
[null,null,null,null,null,{"$f":"IF(E3181=\"\",\"\",VLOOKUP(E3181,Insumos!AD:AE,2,FALSE))","v":""},null,{"$f":"IF(G3181=\"\",\"\",VLOOKUP(G3181,Insumos!G:H,2,FALSE))","v":""}]
[null,null,null,null,null,{"$f":"IF(E3182=\"\",\"\",VLOOKUP(E3182,Insumos!AD:AE,2,FALSE))","v":""},null,{"$f":"IF(G3182=\"\",\"\",VLOOKUP(G3182,Insumos!G:H,2,FALSE))","v":""}]
[null,null,null,null,null,{"$f":"IF(E3183=\"\",\"\",VLOOKUP(E3183,Insumos!AD:AE,2,FALSE))","v":""},null,{"$f":"IF(G3183=\"\",\"\",VLOOKUP(G3183,Insumos!G:H,2,FALSE))","v":""}]
[null,null,null,null,null,{"$f":"IF(E3184=\"\",\"\",VLOOKUP(E3184,Insumos!AD:AE,2,FALSE))","v":""},null,{"$f":"IF(G3184=\"\",\"\",VLOOKUP(G3184,Insumos!G:H,2,FALSE))","v":""}]
[null,null,null,null,null,{"$f":"IF(E3185=\"\",\"\",VLOOKUP(E3185,Insumos!AD:AE,2,FALSE))","v":""},null,{"$f":"IF(G3185=\"\",\"\",VLOOKUP(G3185,Insumos!G:H,2,FALSE))","v":""}]
[null,null,null,null,null,{"$f":"IF(E3186=\"\",\"\",VLOOKUP(E3186,Insumos!AD:AE,2,FALSE))","v":""},null,{"$f":"IF(G3186=\"\",\"\",VLOOKUP(G3186,Insumos!G:H,2,FALSE))","v":""}]
[null,null,null,null,null,{"$f":"IF(E3187=\"\",\"\",VLOOKUP(E3187,Insumos!AD:AE,2,FALSE))","v":""},null,{"$f":"IF(G3187=\"\",\"\",VLOOKUP(G3187,Insumos!G:H,2,FALSE))","v":""}]
[null,null,null,null,null,{"$f":"IF(E3188=\"\",\"\",VLOOKUP(E3188,Insumos!AD:AE,2,FALSE))","v":""},null,{"$f":"IF(G3188=\"\",\"\",VLOOKUP(G3188,Insumos!G:H,2,FALSE))","v":""}]
[null,null,null,null,null,{"$f":"IF(E3189=\"\",\"\",VLOOKUP(E3189,Insumos!AD:AE,2,FALSE))","v":""},null,{"$f":"IF(G3189=\"\",\"\",VLOOKUP(G3189,Insumos!G:H,2,FALSE))","v":""}]
[null,null,null,null,null,{"$f":"IF(E3190=\"\",\"\",VLOOKUP(E3190,Insumos!AD:AE,2,FALSE))","v":""},null,{"$f":"IF(G3190=\"\",\"\",VLOOKUP(G3190,Insumos!G:H,2,FALSE))","v":""}]
[null,null,null,null,null,{"$f":"IF(E3191=\"\",\"\",VLOOKUP(E3191,Insumos!AD:AE,2,FALSE))","v":""},null,{"$f":"IF(G3191=\"\",\"\",VLOOKUP(G3191,Insumos!G:H,2,FALSE))","v":""}]
[null,null,null,null,null,{"$f":"IF(E3192=\"\",\"\",VLOOKUP(E3192,Insumos!AD:AE,2,FALSE))","v":""},null,{"$f":"IF(G3192=\"\",\"\",VLOOKUP(G3192,Insumos!G:H,2,FALSE))","v":""}]
[null,null,null,null,null,{"$f":"IF(E3193=\"\",\"\",VLOOKUP(E3193,Insumos!AD:AE,2,FALSE))","v":""},null,{"$f":"IF(G3193=\"\",\"\",VLOOKUP(G3193,Insumos!G:H,2,FALSE))","v":""}]
[null,null,null,null,null,{"$f":"IF(E3194=\"\",\"\",VLOOKUP(E3194,Insumos!AD:AE,2,FALSE))","v":""},null,{"$f":"IF(G3194=\"\",\"\",VLOOKUP(G3194,Insumos!G:H,2,FALSE))","v":""}]
[null,null,null,null,null,{"$f":"IF(E3195=\"\",\"\",VLOOKUP(E3195,Insumos!AD:AE,2,FALSE))","v":""},null,{"$f":"IF(G3195=\"\",\"\",VLOOKUP(G3195,Insumos!G:H,2,FALSE))","v":""}]
[null,null,null,null,null,{"$f":"IF(E3196=\"\",\"\",VLOOKUP(E3196,Insumos!AD:AE,2,FALSE))","v":""},null,{"$f":"IF(G3196=\"\",\"\",VLOOKUP(G3196,Insumos!G:H,2,FALSE))","v":""}]
[null,null,null,null,null,{"$f":"IF(E3197=\"\",\"\",VLOOKUP(E3197,Insumos!AD:AE,2,FALSE))","v":""},null,{"$f":"IF(G3197=\"\",\"\",VLOOKUP(G3197,Insumos!G:H,2,FALSE))","v":""}]
[null,null,null,null,null,{"$f":"IF(E3198=\"\",\"\",VLOOKUP(E3198,Insumos!AD:AE,2,FALSE))","v":""},null,{"$f":"IF(G3198=\"\",\"\",VLOOKUP(G3198,Insumos!G:H,2,FALSE))","v":""}]
[null,null,null,null,null,{"$f":"IF(E3199=\"\",\"\",VLOOKUP(E3199,Insumos!AD:AE,2,FALSE))","v":""},null,{"$f":"IF(G3199=\"\",\"\",VLOOKUP(G3199,Insumos!G:H,2,FALSE))","v":""}]
[null,null,null,null,null,{"$f":"IF(E3200=\"\",\"\",VLOOKUP(E3200,Insumos!AD:AE,2,FALSE))","v":""},null,{"$f":"IF(G3200=\"\",\"\",VLOOKUP(G3200,Insumos!G:H,2,FALSE))","v":""}]
[null,null,null,null,null,{"$f":"IF(E3201=\"\",\"\",VLOOKUP(E3201,Insumos!AD:AE,2,FALSE))","v":""},null,{"$f":"IF(G3201=\"\",\"\",VLOOKUP(G3201,Insumos!G:H,2,FALSE))","v":""}]
[null,null,null,null,null,{"$f":"IF(E3202=\"\",\"\",VLOOKUP(E3202,Insumos!AD:AE,2,FALSE))","v":""},null,{"$f":"IF(G3202=\"\",\"\",VLOOKUP(G3202,Insumos!G:H,2,FALSE))","v":""}]
[null,null,null,null,null,{"$f":"IF(E3203=\"\",\"\",VLOOKUP(E3203,Insumos!AD:AE,2,FALSE))","v":""},null,{"$f":"IF(G3203=\"\",\"\",VLOOKUP(G3203,Insumos!G:H,2,FALSE))","v":""}]
[null,null,null,null,null,{"$f":"IF(E3204=\"\",\"\",VLOOKUP(E3204,Insumos!AD:AE,2,FALSE))","v":""},null,{"$f":"IF(G3204=\"\",\"\",VLOOKUP(G3204,Insumos!G:H,2,FALSE))","v":""}]
[null,null,null,null,null,{"$f":"IF(E3205=\"\",\"\",VLOOKUP(E3205,Insumos!AD:AE,2,FALSE))","v":""},null,{"$f":"IF(G3205=\"\",\"\",VLOOKUP(G3205,Insumos!G:H,2,FALSE))","v":""}]
[null,null,null,null,null,{"$f":"IF(E3206=\"\",\"\",VLOOKUP(E3206,Insumos!AD:AE,2,FALSE))","v":""},null,{"$f":"IF(G3206=\"\",\"\",VLOOKUP(G3206,Insumos!G:H,2,FALSE))","v":""}]
[null,null,null,null,null,{"$f":"IF(E3207=\"\",\"\",VLOOKUP(E3207,Insumos!AD:AE,2,FALSE))","v":""},null,{"$f":"IF(G3207=\"\",\"\",VLOOKUP(G3207,Insumos!G:H,2,FALSE))","v":""}]
[null,null,null,null,null,{"$f":"IF(E3208=\"\",\"\",VLOOKUP(E3208,Insumos!AD:AE,2,FALSE))","v":""},null,{"$f":"IF(G3208=\"\",\"\",VLOOKUP(G3208,Insumos!G:H,2,FALSE))","v":""}]
[null,null,null,null,null,{"$f":"IF(E3209=\"\",\"\",VLOOKUP(E3209,Insumos!AD:AE,2,FALSE))","v":""},null,{"$f":"IF(G3209=\"\",\"\",VLOOKUP(G3209,Insumos!G:H,2,FALSE))","v":""}]
[null,null,null,null,null,{"$f":"IF(E3210=\"\",\"\",VLOOKUP(E3210,Insumos!AD:AE,2,FALSE))","v":""},null,{"$f":"IF(G3210=\"\",\"\",VLOOKUP(G3210,Insumos!G:H,2,FALSE))","v":""}]
[null,null,null,null,null,{"$f":"IF(E3211=\"\",\"\",VLOOKUP(E3211,Insumos!AD:AE,2,FALSE))","v":""},null,{"$f":"IF(G3211=\"\",\"\",VLOOKUP(G3211,Insumos!G:H,2,FALSE))","v":""}]
[null,null,null,null,null,{"$f":"IF(E3212=\"\",\"\",VLOOKUP(E3212,Insumos!AD:AE,2,FALSE))","v":""},null,{"$f":"IF(G3212=\"\",\"\",VLOOKUP(G3212,Insumos!G:H,2,FALSE))","v":""}]
[null,null,null,null,null,{"$f":"IF(E3213=\"\",\"\",VLOOKUP(E3213,Insumos!AD:AE,2,FALSE))","v":""},null,{"$f":"IF(G3213=\"\",\"\",VLOOKUP(G3213,Insumos!G:H,2,FALSE))","v":""}]
[null,null,null,null,null,{"$f":"IF(E3214=\"\",\"\",VLOOKUP(E3214,Insumos!AD:AE,2,FALSE))","v":""},null,{"$f":"IF(G3214=\"\",\"\",VLOOKUP(G3214,Insumos!G:H,2,FALSE))","v":""}]
[null,null,null,null,null,{"$f":"IF(E3215=\"\",\"\",VLOOKUP(E3215,Insumos!AD:AE,2,FALSE))","v":""},null,{"$f":"IF(G3215=\"\",\"\",VLOOKUP(G3215,Insumos!G:H,2,FALSE))","v":""}]
[null,null,null,null,null,{"$f":"IF(E3216=\"\",\"\",VLOOKUP(E3216,Insumos!AD:AE,2,FALSE))","v":""},null,{"$f":"IF(G3216=\"\",\"\",VLOOKUP(G3216,Insumos!G:H,2,FALSE))","v":""}]
[null,null,null,null,null,{"$f":"IF(E3217=\"\",\"\",VLOOKUP(E3217,Insumos!AD:AE,2,FALSE))","v":""},null,{"$f":"IF(G3217=\"\",\"\",VLOOKUP(G3217,Insumos!G:H,2,FALSE))","v":""}]
[null,null,null,null,null,{"$f":"IF(E3218=\"\",\"\",VLOOKUP(E3218,Insumos!AD:AE,2,FALSE))","v":""},null,{"$f":"IF(G3218=\"\",\"\",VLOOKUP(G3218,Insumos!G:H,2,FALSE))","v":""}]
[null,null,null,null,null,{"$f":"IF(E3219=\"\",\"\",VLOOKUP(E3219,Insumos!AD:AE,2,FALSE))","v":""},null,{"$f":"IF(G3219=\"\",\"\",VLOOKUP(G3219,Insumos!G:H,2,FALSE))","v":""}]
[null,null,null,null,null,{"$f":"IF(E3220=\"\",\"\",VLOOKUP(E3220,Insumos!AD:AE,2,FALSE))","v":""},null,{"$f":"IF(G3220=\"\",\"\",VLOOKUP(G3220,Insumos!G:H,2,FALSE))","v":""}]
[null,null,null,null,null,{"$f":"IF(E3221=\"\",\"\",VLOOKUP(E3221,Insumos!AD:AE,2,FALSE))","v":""},null,{"$f":"IF(G3221=\"\",\"\",VLOOKUP(G3221,Insumos!G:H,2,FALSE))","v":""}]
[null,null,null,null,null,{"$f":"IF(E3222=\"\",\"\",VLOOKUP(E3222,Insumos!AD:AE,2,FALSE))","v":""},null,{"$f":"IF(G3222=\"\",\"\",VLOOKUP(G3222,Insumos!G:H,2,FALSE))","v":""}]
[null,null,null,null,null,{"$f":"IF(E3223=\"\",\"\",VLOOKUP(E3223,Insumos!AD:AE,2,FALSE))","v":""},null,{"$f":"IF(G3223=\"\",\"\",VLOOKUP(G3223,Insumos!G:H,2,FALSE))","v":""}]
[null,null,null,null,null,{"$f":"IF(E3224=\"\",\"\",VLOOKUP(E3224,Insumos!AD:AE,2,FALSE))","v":""},null,{"$f":"IF(G3224=\"\",\"\",VLOOKUP(G3224,Insumos!G:H,2,FALSE))","v":""}]
[null,null,null,null,null,{"$f":"IF(E3225=\"\",\"\",VLOOKUP(E3225,Insumos!AD:AE,2,FALSE))","v":""},null,{"$f":"IF(G3225=\"\",\"\",VLOOKUP(G3225,Insumos!G:H,2,FALSE))","v":""}]
[null,null,null,null,null,{"$f":"IF(E3226=\"\",\"\",VLOOKUP(E3226,Insumos!AD:AE,2,FALSE))","v":""},null,{"$f":"IF(G3226=\"\",\"\",VLOOKUP(G3226,Insumos!G:H,2,FALSE))","v":""}]
[null,null,null,null,null,{"$f":"IF(E3227=\"\",\"\",VLOOKUP(E3227,Insumos!AD:AE,2,FALSE))","v":""},null,{"$f":"IF(G3227=\"\",\"\",VLOOKUP(G3227,Insumos!G:H,2,FALSE))","v":""}]
[null,null,null,null,null,{"$f":"IF(E3228=\"\",\"\",VLOOKUP(E3228,Insumos!AD:AE,2,FALSE))","v":""},null,{"$f":"IF(G3228=\"\",\"\",VLOOKUP(G3228,Insumos!G:H,2,FALSE))","v":""}]
[null,null,null,null,null,{"$f":"IF(E3229=\"\",\"\",VLOOKUP(E3229,Insumos!AD:AE,2,FALSE))","v":""},null,{"$f":"IF(G3229=\"\",\"\",VLOOKUP(G3229,Insumos!G:H,2,FALSE))","v":""}]
[null,null,null,null,null,{"$f":"IF(E3230=\"\",\"\",VLOOKUP(E3230,Insumos!AD:AE,2,FALSE))","v":""},null,{"$f":"IF(G3230=\"\",\"\",VLOOKUP(G3230,Insumos!G:H,2,FALSE))","v":""}]
[null,null,null,null,null,{"$f":"IF(E3231=\"\",\"\",VLOOKUP(E3231,Insumos!AD:AE,2,FALSE))","v":""},null,{"$f":"IF(G3231=\"\",\"\",VLOOKUP(G3231,Insumos!G:H,2,FALSE))","v":""}]
[null,null,null,null,null,{"$f":"IF(E3232=\"\",\"\",VLOOKUP(E3232,Insumos!AD:AE,2,FALSE))","v":""},null,{"$f":"IF(G3232=\"\",\"\",VLOOKUP(G3232,Insumos!G:H,2,FALSE))","v":""}]
[null,null,null,null,null,{"$f":"IF(E3233=\"\",\"\",VLOOKUP(E3233,Insumos!AD:AE,2,FALSE))","v":""},null,{"$f":"IF(G3233=\"\",\"\",VLOOKUP(G3233,Insumos!G:H,2,FALSE))","v":""}]
[null,null,null,null,null,{"$f":"IF(E3234=\"\",\"\",VLOOKUP(E3234,Insumos!AD:AE,2,FALSE))","v":""},null,{"$f":"IF(G3234=\"\",\"\",VLOOKUP(G3234,Insumos!G:H,2,FALSE))","v":""}]
[null,null,null,null,null,{"$f":"IF(E3235=\"\",\"\",VLOOKUP(E3235,Insumos!AD:AE,2,FALSE))","v":""},null,{"$f":"IF(G3235=\"\",\"\",VLOOKUP(G3235,Insumos!G:H,2,FALSE))","v":""}]
[null,null,null,null,null,{"$f":"IF(E3236=\"\",\"\",VLOOKUP(E3236,Insumos!AD:AE,2,FALSE))","v":""},null,{"$f":"IF(G3236=\"\",\"\",VLOOKUP(G3236,Insumos!G:H,2,FALSE))","v":""}]
[null,null,null,null,null,{"$f":"IF(E3237=\"\",\"\",VLOOKUP(E3237,Insumos!AD:AE,2,FALSE))","v":""},null,{"$f":"IF(G3237=\"\",\"\",VLOOKUP(G3237,Insumos!G:H,2,FALSE))","v":""}]
[null,null,null,null,null,{"$f":"IF(E3238=\"\",\"\",VLOOKUP(E3238,Insumos!AD:AE,2,FALSE))","v":""},null,{"$f":"IF(G3238=\"\",\"\",VLOOKUP(G3238,Insumos!G:H,2,FALSE))","v":""}]
[null,null,null,null,null,{"$f":"IF(E3239=\"\",\"\",VLOOKUP(E3239,Insumos!AD:AE,2,FALSE))","v":""},null,{"$f":"IF(G3239=\"\",\"\",VLOOKUP(G3239,Insumos!G:H,2,FALSE))","v":""}]
[null,null,null,null,null,{"$f":"IF(E3240=\"\",\"\",VLOOKUP(E3240,Insumos!AD:AE,2,FALSE))","v":""},null,{"$f":"IF(G3240=\"\",\"\",VLOOKUP(G3240,Insumos!G:H,2,FALSE))","v":""}]
[null,null,null,null,null,{"$f":"IF(E3241=\"\",\"\",VLOOKUP(E3241,Insumos!AD:AE,2,FALSE))","v":""},null,{"$f":"IF(G3241=\"\",\"\",VLOOKUP(G3241,Insumos!G:H,2,FALSE))","v":""}]
[null,null,null,null,null,{"$f":"IF(E3242=\"\",\"\",VLOOKUP(E3242,Insumos!AD:AE,2,FALSE))","v":""},null,{"$f":"IF(G3242=\"\",\"\",VLOOKUP(G3242,Insumos!G:H,2,FALSE))","v":""}]
[null,null,null,null,null,{"$f":"IF(E3243=\"\",\"\",VLOOKUP(E3243,Insumos!AD:AE,2,FALSE))","v":""},null,{"$f":"IF(G3243=\"\",\"\",VLOOKUP(G3243,Insumos!G:H,2,FALSE))","v":""}]
[null,null,null,null,null,{"$f":"IF(E3244=\"\",\"\",VLOOKUP(E3244,Insumos!AD:AE,2,FALSE))","v":""},null,{"$f":"IF(G3244=\"\",\"\",VLOOKUP(G3244,Insumos!G:H,2,FALSE))","v":""}]
[null,null,null,null,null,{"$f":"IF(E3245=\"\",\"\",VLOOKUP(E3245,Insumos!AD:AE,2,FALSE))","v":""},null,{"$f":"IF(G3245=\"\",\"\",VLOOKUP(G3245,Insumos!G:H,2,FALSE))","v":""}]
[null,null,null,null,null,{"$f":"IF(E3246=\"\",\"\",VLOOKUP(E3246,Insumos!AD:AE,2,FALSE))","v":""},null,{"$f":"IF(G3246=\"\",\"\",VLOOKUP(G3246,Insumos!G:H,2,FALSE))","v":""}]
[null,null,null,null,null,{"$f":"IF(E3247=\"\",\"\",VLOOKUP(E3247,Insumos!AD:AE,2,FALSE))","v":""},null,{"$f":"IF(G3247=\"\",\"\",VLOOKUP(G3247,Insumos!G:H,2,FALSE))","v":""}]
[null,null,null,null,null,{"$f":"IF(E3248=\"\",\"\",VLOOKUP(E3248,Insumos!AD:AE,2,FALSE))","v":""},null,{"$f":"IF(G3248=\"\",\"\",VLOOKUP(G3248,Insumos!G:H,2,FALSE))","v":""}]
[null,null,null,null,null,{"$f":"IF(E3249=\"\",\"\",VLOOKUP(E3249,Insumos!AD:AE,2,FALSE))","v":""},null,{"$f":"IF(G3249=\"\",\"\",VLOOKUP(G3249,Insumos!G:H,2,FALSE))","v":""}]
[null,null,null,null,null,{"$f":"IF(E3250=\"\",\"\",VLOOKUP(E3250,Insumos!AD:AE,2,FALSE))","v":""},null,{"$f":"IF(G3250=\"\",\"\",VLOOKUP(G3250,Insumos!G:H,2,FALSE))","v":""}]
[null,null,null,null,null,{"$f":"IF(E3251=\"\",\"\",VLOOKUP(E3251,Insumos!AD:AE,2,FALSE))","v":""},null,{"$f":"IF(G3251=\"\",\"\",VLOOKUP(G3251,Insumos!G:H,2,FALSE))","v":""}]
[null,null,null,null,null,{"$f":"IF(E3252=\"\",\"\",VLOOKUP(E3252,Insumos!AD:AE,2,FALSE))","v":""},null,{"$f":"IF(G3252=\"\",\"\",VLOOKUP(G3252,Insumos!G:H,2,FALSE))","v":""}]
[null,null,null,null,null,{"$f":"IF(E3253=\"\",\"\",VLOOKUP(E3253,Insumos!AD:AE,2,FALSE))","v":""},null,{"$f":"IF(G3253=\"\",\"\",VLOOKUP(G3253,Insumos!G:H,2,FALSE))","v":""}]
[null,null,null,null,null,{"$f":"IF(E3254=\"\",\"\",VLOOKUP(E3254,Insumos!AD:AE,2,FALSE))","v":""},null,{"$f":"IF(G3254=\"\",\"\",VLOOKUP(G3254,Insumos!G:H,2,FALSE))","v":""}]
[null,null,null,null,null,{"$f":"IF(E3255=\"\",\"\",VLOOKUP(E3255,Insumos!AD:AE,2,FALSE))","v":""},null,{"$f":"IF(G3255=\"\",\"\",VLOOKUP(G3255,Insumos!G:H,2,FALSE))","v":""}]
[null,null,null,null,null,{"$f":"IF(E3256=\"\",\"\",VLOOKUP(E3256,Insumos!AD:AE,2,FALSE))","v":""},null,{"$f":"IF(G3256=\"\",\"\",VLOOKUP(G3256,Insumos!G:H,2,FALSE))","v":""}]
[null,null,null,null,null,{"$f":"IF(E3257=\"\",\"\",VLOOKUP(E3257,Insumos!AD:AE,2,FALSE))","v":""},null,{"$f":"IF(G3257=\"\",\"\",VLOOKUP(G3257,Insumos!G:H,2,FALSE))","v":""}]
[null,null,null,null,null,{"$f":"IF(E3258=\"\",\"\",VLOOKUP(E3258,Insumos!AD:AE,2,FALSE))","v":""},null,{"$f":"IF(G3258=\"\",\"\",VLOOKUP(G3258,Insumos!G:H,2,FALSE))","v":""}]
[null,null,null,null,null,{"$f":"IF(E3259=\"\",\"\",VLOOKUP(E3259,Insumos!AD:AE,2,FALSE))","v":""},null,{"$f":"IF(G3259=\"\",\"\",VLOOKUP(G3259,Insumos!G:H,2,FALSE))","v":""}]
[null,null,null,null,null,{"$f":"IF(E3260=\"\",\"\",VLOOKUP(E3260,Insumos!AD:AE,2,FALSE))","v":""},null,{"$f":"IF(G3260=\"\",\"\",VLOOKUP(G3260,Insumos!G:H,2,FALSE))","v":""}]
[null,null,null,null,null,{"$f":"IF(E3261=\"\",\"\",VLOOKUP(E3261,Insumos!AD:AE,2,FALSE))","v":""},null,{"$f":"IF(G3261=\"\",\"\",VLOOKUP(G3261,Insumos!G:H,2,FALSE))","v":""}]
[null,null,null,null,null,{"$f":"IF(E3262=\"\",\"\",VLOOKUP(E3262,Insumos!AD:AE,2,FALSE))","v":""},null,{"$f":"IF(G3262=\"\",\"\",VLOOKUP(G3262,Insumos!G:H,2,FALSE))","v":""}]
[null,null,null,null,null,{"$f":"IF(E3263=\"\",\"\",VLOOKUP(E3263,Insumos!AD:AE,2,FALSE))","v":""},null,{"$f":"IF(G3263=\"\",\"\",VLOOKUP(G3263,Insumos!G:H,2,FALSE))","v":""}]
[null,null,null,null,null,{"$f":"IF(E3264=\"\",\"\",VLOOKUP(E3264,Insumos!AD:AE,2,FALSE))","v":""},null,{"$f":"IF(G3264=\"\",\"\",VLOOKUP(G3264,Insumos!G:H,2,FALSE))","v":""}]
[null,null,null,null,null,{"$f":"IF(E3265=\"\",\"\",VLOOKUP(E3265,Insumos!AD:AE,2,FALSE))","v":""},null,{"$f":"IF(G3265=\"\",\"\",VLOOKUP(G3265,Insumos!G:H,2,FALSE))","v":""}]
[null,null,null,null,null,{"$f":"IF(E3266=\"\",\"\",VLOOKUP(E3266,Insumos!AD:AE,2,FALSE))","v":""},null,{"$f":"IF(G3266=\"\",\"\",VLOOKUP(G3266,Insumos!G:H,2,FALSE))","v":""}]
[null,null,null,null,null,{"$f":"IF(E3267=\"\",\"\",VLOOKUP(E3267,Insumos!AD:AE,2,FALSE))","v":""},null,{"$f":"IF(G3267=\"\",\"\",VLOOKUP(G3267,Insumos!G:H,2,FALSE))","v":""}]
[null,null,null,null,null,{"$f":"IF(E3268=\"\",\"\",VLOOKUP(E3268,Insumos!AD:AE,2,FALSE))","v":""},null,{"$f":"IF(G3268=\"\",\"\",VLOOKUP(G3268,Insumos!G:H,2,FALSE))","v":""}]
[null,null,null,null,null,{"$f":"IF(E3269=\"\",\"\",VLOOKUP(E3269,Insumos!AD:AE,2,FALSE))","v":""},null,{"$f":"IF(G3269=\"\",\"\",VLOOKUP(G3269,Insumos!G:H,2,FALSE))","v":""}]
[null,null,null,null,null,{"$f":"IF(E3270=\"\",\"\",VLOOKUP(E3270,Insumos!AD:AE,2,FALSE))","v":""},null,{"$f":"IF(G3270=\"\",\"\",VLOOKUP(G3270,Insumos!G:H,2,FALSE))","v":""}]
[null,null,null,null,null,{"$f":"IF(E3271=\"\",\"\",VLOOKUP(E3271,Insumos!AD:AE,2,FALSE))","v":""},null,{"$f":"IF(G3271=\"\",\"\",VLOOKUP(G3271,Insumos!G:H,2,FALSE))","v":""}]
[null,null,null,null,null,{"$f":"IF(E3272=\"\",\"\",VLOOKUP(E3272,Insumos!AD:AE,2,FALSE))","v":""},null,{"$f":"IF(G3272=\"\",\"\",VLOOKUP(G3272,Insumos!G:H,2,FALSE))","v":""}]
[null,null,null,null,null,{"$f":"IF(E3273=\"\",\"\",VLOOKUP(E3273,Insumos!AD:AE,2,FALSE))","v":""},null,{"$f":"IF(G3273=\"\",\"\",VLOOKUP(G3273,Insumos!G:H,2,FALSE))","v":""}]
[null,null,null,null,null,{"$f":"IF(E3274=\"\",\"\",VLOOKUP(E3274,Insumos!AD:AE,2,FALSE))","v":""},null,{"$f":"IF(G3274=\"\",\"\",VLOOKUP(G3274,Insumos!G:H,2,FALSE))","v":""}]
[null,null,null,null,null,{"$f":"IF(E3275=\"\",\"\",VLOOKUP(E3275,Insumos!AD:AE,2,FALSE))","v":""},null,{"$f":"IF(G3275=\"\",\"\",VLOOKUP(G3275,Insumos!G:H,2,FALSE))","v":""}]
[null,null,null,null,null,{"$f":"IF(E3276=\"\",\"\",VLOOKUP(E3276,Insumos!AD:AE,2,FALSE))","v":""},null,{"$f":"IF(G3276=\"\",\"\",VLOOKUP(G3276,Insumos!G:H,2,FALSE))","v":""}]
[null,null,null,null,null,{"$f":"IF(E3277=\"\",\"\",VLOOKUP(E3277,Insumos!AD:AE,2,FALSE))","v":""},null,{"$f":"IF(G3277=\"\",\"\",VLOOKUP(G3277,Insumos!G:H,2,FALSE))","v":""}]
[null,null,null,null,null,{"$f":"IF(E3278=\"\",\"\",VLOOKUP(E3278,Insumos!AD:AE,2,FALSE))","v":""},null,{"$f":"IF(G3278=\"\",\"\",VLOOKUP(G3278,Insumos!G:H,2,FALSE))","v":""}]
[null,null,null,null,null,{"$f":"IF(E3279=\"\",\"\",VLOOKUP(E3279,Insumos!AD:AE,2,FALSE))","v":""},null,{"$f":"IF(G3279=\"\",\"\",VLOOKUP(G3279,Insumos!G:H,2,FALSE))","v":""}]
[null,null,null,null,null,{"$f":"IF(E3280=\"\",\"\",VLOOKUP(E3280,Insumos!AD:AE,2,FALSE))","v":""},null,{"$f":"IF(G3280=\"\",\"\",VLOOKUP(G3280,Insumos!G:H,2,FALSE))","v":""}]
[null,null,null,null,null,{"$f":"IF(E3281=\"\",\"\",VLOOKUP(E3281,Insumos!AD:AE,2,FALSE))","v":""},null,{"$f":"IF(G3281=\"\",\"\",VLOOKUP(G3281,Insumos!G:H,2,FALSE))","v":""}]
[null,null,null,null,null,{"$f":"IF(E3282=\"\",\"\",VLOOKUP(E3282,Insumos!AD:AE,2,FALSE))","v":""},null,{"$f":"IF(G3282=\"\",\"\",VLOOKUP(G3282,Insumos!G:H,2,FALSE))","v":""}]
[null,null,null,null,null,{"$f":"IF(E3283=\"\",\"\",VLOOKUP(E3283,Insumos!AD:AE,2,FALSE))","v":""},null,{"$f":"IF(G3283=\"\",\"\",VLOOKUP(G3283,Insumos!G:H,2,FALSE))","v":""}]
[null,null,null,null,null,{"$f":"IF(E3284=\"\",\"\",VLOOKUP(E3284,Insumos!AD:AE,2,FALSE))","v":""},null,{"$f":"IF(G3284=\"\",\"\",VLOOKUP(G3284,Insumos!G:H,2,FALSE))","v":""}]
[null,null,null,null,null,{"$f":"IF(E3285=\"\",\"\",VLOOKUP(E3285,Insumos!AD:AE,2,FALSE))","v":""},null,{"$f":"IF(G3285=\"\",\"\",VLOOKUP(G3285,Insumos!G:H,2,FALSE))","v":""}]
[null,null,null,null,null,{"$f":"IF(E3286=\"\",\"\",VLOOKUP(E3286,Insumos!AD:AE,2,FALSE))","v":""},null,{"$f":"IF(G3286=\"\",\"\",VLOOKUP(G3286,Insumos!G:H,2,FALSE))","v":""}]
[null,null,null,null,null,{"$f":"IF(E3287=\"\",\"\",VLOOKUP(E3287,Insumos!AD:AE,2,FALSE))","v":""},null,{"$f":"IF(G3287=\"\",\"\",VLOOKUP(G3287,Insumos!G:H,2,FALSE))","v":""}]
[null,null,null,null,null,{"$f":"IF(E3288=\"\",\"\",VLOOKUP(E3288,Insumos!AD:AE,2,FALSE))","v":""},null,{"$f":"IF(G3288=\"\",\"\",VLOOKUP(G3288,Insumos!G:H,2,FALSE))","v":""}]
[null,null,null,null,null,{"$f":"IF(E3289=\"\",\"\",VLOOKUP(E3289,Insumos!AD:AE,2,FALSE))","v":""},null,{"$f":"IF(G3289=\"\",\"\",VLOOKUP(G3289,Insumos!G:H,2,FALSE))","v":""}]
[null,null,null,null,null,{"$f":"IF(E3290=\"\",\"\",VLOOKUP(E3290,Insumos!AD:AE,2,FALSE))","v":""},null,{"$f":"IF(G3290=\"\",\"\",VLOOKUP(G3290,Insumos!G:H,2,FALSE))","v":""}]
[null,null,null,null,null,{"$f":"IF(E3291=\"\",\"\",VLOOKUP(E3291,Insumos!AD:AE,2,FALSE))","v":""},null,{"$f":"IF(G3291=\"\",\"\",VLOOKUP(G3291,Insumos!G:H,2,FALSE))","v":""}]
[null,null,null,null,null,{"$f":"IF(E3292=\"\",\"\",VLOOKUP(E3292,Insumos!AD:AE,2,FALSE))","v":""},null,{"$f":"IF(G3292=\"\",\"\",VLOOKUP(G3292,Insumos!G:H,2,FALSE))","v":""}]
[null,null,null,null,null,{"$f":"IF(E3293=\"\",\"\",VLOOKUP(E3293,Insumos!AD:AE,2,FALSE))","v":""},null,{"$f":"IF(G3293=\"\",\"\",VLOOKUP(G3293,Insumos!G:H,2,FALSE))","v":""}]
[null,null,null,null,null,{"$f":"IF(E3294=\"\",\"\",VLOOKUP(E3294,Insumos!AD:AE,2,FALSE))","v":""},null,{"$f":"IF(G3294=\"\",\"\",VLOOKUP(G3294,Insumos!G:H,2,FALSE))","v":""}]
[null,null,null,null,null,{"$f":"IF(E3295=\"\",\"\",VLOOKUP(E3295,Insumos!AD:AE,2,FALSE))","v":""},null,{"$f":"IF(G3295=\"\",\"\",VLOOKUP(G3295,Insumos!G:H,2,FALSE))","v":""}]
[null,null,null,null,null,{"$f":"IF(E3296=\"\",\"\",VLOOKUP(E3296,Insumos!AD:AE,2,FALSE))","v":""},null,{"$f":"IF(G3296=\"\",\"\",VLOOKUP(G3296,Insumos!G:H,2,FALSE))","v":""}]
[null,null,null,null,null,{"$f":"IF(E3297=\"\",\"\",VLOOKUP(E3297,Insumos!AD:AE,2,FALSE))","v":""},null,{"$f":"IF(G3297=\"\",\"\",VLOOKUP(G3297,Insumos!G:H,2,FALSE))","v":""}]
[null,null,null,null,null,{"$f":"IF(E3298=\"\",\"\",VLOOKUP(E3298,Insumos!AD:AE,2,FALSE))","v":""},null,{"$f":"IF(G3298=\"\",\"\",VLOOKUP(G3298,Insumos!G:H,2,FALSE))","v":""}]
[null,null,null,null,null,{"$f":"IF(E3299=\"\",\"\",VLOOKUP(E3299,Insumos!AD:AE,2,FALSE))","v":""},null,{"$f":"IF(G3299=\"\",\"\",VLOOKUP(G3299,Insumos!G:H,2,FALSE))","v":""}]
[null,null,null,null,null,{"$f":"IF(E3300=\"\",\"\",VLOOKUP(E3300,Insumos!AD:AE,2,FALSE))","v":""},null,{"$f":"IF(G3300=\"\",\"\",VLOOKUP(G3300,Insumos!G:H,2,FALSE))","v":""}]
[null,null,null,null,null,{"$f":"IF(E3301=\"\",\"\",VLOOKUP(E3301,Insumos!AD:AE,2,FALSE))","v":""},null,{"$f":"IF(G3301=\"\",\"\",VLOOKUP(G3301,Insumos!G:H,2,FALSE))","v":""}]
[null,null,null,null,null,{"$f":"IF(E3302=\"\",\"\",VLOOKUP(E3302,Insumos!AD:AE,2,FALSE))","v":""},null,{"$f":"IF(G3302=\"\",\"\",VLOOKUP(G3302,Insumos!G:H,2,FALSE))","v":""}]
[null,null,null,null,null,{"$f":"IF(E3303=\"\",\"\",VLOOKUP(E3303,Insumos!AD:AE,2,FALSE))","v":""},null,{"$f":"IF(G3303=\"\",\"\",VLOOKUP(G3303,Insumos!G:H,2,FALSE))","v":""}]
[null,null,null,null,null,{"$f":"IF(E3304=\"\",\"\",VLOOKUP(E3304,Insumos!AD:AE,2,FALSE))","v":""},null,{"$f":"IF(G3304=\"\",\"\",VLOOKUP(G3304,Insumos!G:H,2,FALSE))","v":""}]
[null,null,null,null,null,{"$f":"IF(E3305=\"\",\"\",VLOOKUP(E3305,Insumos!AD:AE,2,FALSE))","v":""},null,{"$f":"IF(G3305=\"\",\"\",VLOOKUP(G3305,Insumos!G:H,2,FALSE))","v":""}]
[null,null,null,null,null,{"$f":"IF(E3306=\"\",\"\",VLOOKUP(E3306,Insumos!AD:AE,2,FALSE))","v":""},null,{"$f":"IF(G3306=\"\",\"\",VLOOKUP(G3306,Insumos!G:H,2,FALSE))","v":""}]
[null,null,null,null,null,{"$f":"IF(E3307=\"\",\"\",VLOOKUP(E3307,Insumos!AD:AE,2,FALSE))","v":""},null,{"$f":"IF(G3307=\"\",\"\",VLOOKUP(G3307,Insumos!G:H,2,FALSE))","v":""}]
[null,null,null,null,null,{"$f":"IF(E3308=\"\",\"\",VLOOKUP(E3308,Insumos!AD:AE,2,FALSE))","v":""},null,{"$f":"IF(G3308=\"\",\"\",VLOOKUP(G3308,Insumos!G:H,2,FALSE))","v":""}]
[null,null,null,null,null,{"$f":"IF(E3309=\"\",\"\",VLOOKUP(E3309,Insumos!AD:AE,2,FALSE))","v":""},null,{"$f":"IF(G3309=\"\",\"\",VLOOKUP(G3309,Insumos!G:H,2,FALSE))","v":""}]
[null,null,null,null,null,{"$f":"IF(E3310=\"\",\"\",VLOOKUP(E3310,Insumos!AD:AE,2,FALSE))","v":""},null,{"$f":"IF(G3310=\"\",\"\",VLOOKUP(G3310,Insumos!G:H,2,FALSE))","v":""}]
[null,null,null,null,null,{"$f":"IF(E3311=\"\",\"\",VLOOKUP(E3311,Insumos!AD:AE,2,FALSE))","v":""},null,{"$f":"IF(G3311=\"\",\"\",VLOOKUP(G3311,Insumos!G:H,2,FALSE))","v":""}]
[null,null,null,null,null,{"$f":"IF(E3312=\"\",\"\",VLOOKUP(E3312,Insumos!AD:AE,2,FALSE))","v":""},null,{"$f":"IF(G3312=\"\",\"\",VLOOKUP(G3312,Insumos!G:H,2,FALSE))","v":""}]
[null,null,null,null,null,{"$f":"IF(E3313=\"\",\"\",VLOOKUP(E3313,Insumos!AD:AE,2,FALSE))","v":""},null,{"$f":"IF(G3313=\"\",\"\",VLOOKUP(G3313,Insumos!G:H,2,FALSE))","v":""}]
[null,null,null,null,null,{"$f":"IF(E3314=\"\",\"\",VLOOKUP(E3314,Insumos!AD:AE,2,FALSE))","v":""},null,{"$f":"IF(G3314=\"\",\"\",VLOOKUP(G3314,Insumos!G:H,2,FALSE))","v":""}]
[null,null,null,null,null,{"$f":"IF(E3315=\"\",\"\",VLOOKUP(E3315,Insumos!AD:AE,2,FALSE))","v":""},null,{"$f":"IF(G3315=\"\",\"\",VLOOKUP(G3315,Insumos!G:H,2,FALSE))","v":""}]
[null,null,null,null,null,{"$f":"IF(E3316=\"\",\"\",VLOOKUP(E3316,Insumos!AD:AE,2,FALSE))","v":""},null,{"$f":"IF(G3316=\"\",\"\",VLOOKUP(G3316,Insumos!G:H,2,FALSE))","v":""}]
[null,null,null,null,null,{"$f":"IF(E3317=\"\",\"\",VLOOKUP(E3317,Insumos!AD:AE,2,FALSE))","v":""},null,{"$f":"IF(G3317=\"\",\"\",VLOOKUP(G3317,Insumos!G:H,2,FALSE))","v":""}]
[null,null,null,null,null,{"$f":"IF(E3318=\"\",\"\",VLOOKUP(E3318,Insumos!AD:AE,2,FALSE))","v":""},null,{"$f":"IF(G3318=\"\",\"\",VLOOKUP(G3318,Insumos!G:H,2,FALSE))","v":""}]
[null,null,null,null,null,{"$f":"IF(E3319=\"\",\"\",VLOOKUP(E3319,Insumos!AD:AE,2,FALSE))","v":""},null,{"$f":"IF(G3319=\"\",\"\",VLOOKUP(G3319,Insumos!G:H,2,FALSE))","v":""}]
[null,null,null,null,null,{"$f":"IF(E3320=\"\",\"\",VLOOKUP(E3320,Insumos!AD:AE,2,FALSE))","v":""},null,{"$f":"IF(G3320=\"\",\"\",VLOOKUP(G3320,Insumos!G:H,2,FALSE))","v":""}]
[null,null,null,null,null,{"$f":"IF(E3321=\"\",\"\",VLOOKUP(E3321,Insumos!AD:AE,2,FALSE))","v":""},null,{"$f":"IF(G3321=\"\",\"\",VLOOKUP(G3321,Insumos!G:H,2,FALSE))","v":""}]
[null,null,null,null,null,{"$f":"IF(E3322=\"\",\"\",VLOOKUP(E3322,Insumos!AD:AE,2,FALSE))","v":""},null,{"$f":"IF(G3322=\"\",\"\",VLOOKUP(G3322,Insumos!G:H,2,FALSE))","v":""}]
[null,null,null,null,null,{"$f":"IF(E3323=\"\",\"\",VLOOKUP(E3323,Insumos!AD:AE,2,FALSE))","v":""},null,{"$f":"IF(G3323=\"\",\"\",VLOOKUP(G3323,Insumos!G:H,2,FALSE))","v":""}]
[null,null,null,null,null,{"$f":"IF(E3324=\"\",\"\",VLOOKUP(E3324,Insumos!AD:AE,2,FALSE))","v":""},null,{"$f":"IF(G3324=\"\",\"\",VLOOKUP(G3324,Insumos!G:H,2,FALSE))","v":""}]
[null,null,null,null,null,{"$f":"IF(E3325=\"\",\"\",VLOOKUP(E3325,Insumos!AD:AE,2,FALSE))","v":""},null,{"$f":"IF(G3325=\"\",\"\",VLOOKUP(G3325,Insumos!G:H,2,FALSE))","v":""}]
[null,null,null,null,null,{"$f":"IF(E3326=\"\",\"\",VLOOKUP(E3326,Insumos!AD:AE,2,FALSE))","v":""},null,{"$f":"IF(G3326=\"\",\"\",VLOOKUP(G3326,Insumos!G:H,2,FALSE))","v":""}]
[null,null,null,null,null,{"$f":"IF(E3327=\"\",\"\",VLOOKUP(E3327,Insumos!AD:AE,2,FALSE))","v":""},null,{"$f":"IF(G3327=\"\",\"\",VLOOKUP(G3327,Insumos!G:H,2,FALSE))","v":""}]
[null,null,null,null,null,{"$f":"IF(E3328=\"\",\"\",VLOOKUP(E3328,Insumos!AD:AE,2,FALSE))","v":""},null,{"$f":"IF(G3328=\"\",\"\",VLOOKUP(G3328,Insumos!G:H,2,FALSE))","v":""}]
[null,null,null,null,null,{"$f":"IF(E3329=\"\",\"\",VLOOKUP(E3329,Insumos!AD:AE,2,FALSE))","v":""},null,{"$f":"IF(G3329=\"\",\"\",VLOOKUP(G3329,Insumos!G:H,2,FALSE))","v":""}]
[null,null,null,null,null,{"$f":"IF(E3330=\"\",\"\",VLOOKUP(E3330,Insumos!AD:AE,2,FALSE))","v":""},null,{"$f":"IF(G3330=\"\",\"\",VLOOKUP(G3330,Insumos!G:H,2,FALSE))","v":""}]
[null,null,null,null,null,{"$f":"IF(E3331=\"\",\"\",VLOOKUP(E3331,Insumos!AD:AE,2,FALSE))","v":""},null,{"$f":"IF(G3331=\"\",\"\",VLOOKUP(G3331,Insumos!G:H,2,FALSE))","v":""}]
[null,null,null,null,null,{"$f":"IF(E3332=\"\",\"\",VLOOKUP(E3332,Insumos!AD:AE,2,FALSE))","v":""},null,{"$f":"IF(G3332=\"\",\"\",VLOOKUP(G3332,Insumos!G:H,2,FALSE))","v":""}]
[null,null,null,null,null,{"$f":"IF(E3333=\"\",\"\",VLOOKUP(E3333,Insumos!AD:AE,2,FALSE))","v":""},null,{"$f":"IF(G3333=\"\",\"\",VLOOKUP(G3333,Insumos!G:H,2,FALSE))","v":""}]
[null,null,null,null,null,{"$f":"IF(E3334=\"\",\"\",VLOOKUP(E3334,Insumos!AD:AE,2,FALSE))","v":""},null,{"$f":"IF(G3334=\"\",\"\",VLOOKUP(G3334,Insumos!G:H,2,FALSE))","v":""}]
[null,null,null,null,null,{"$f":"IF(E3335=\"\",\"\",VLOOKUP(E3335,Insumos!AD:AE,2,FALSE))","v":""},null,{"$f":"IF(G3335=\"\",\"\",VLOOKUP(G3335,Insumos!G:H,2,FALSE))","v":""}]
[null,null,null,null,null,{"$f":"IF(E3336=\"\",\"\",VLOOKUP(E3336,Insumos!AD:AE,2,FALSE))","v":""},null,{"$f":"IF(G3336=\"\",\"\",VLOOKUP(G3336,Insumos!G:H,2,FALSE))","v":""}]
[null,null,null,null,null,{"$f":"IF(E3337=\"\",\"\",VLOOKUP(E3337,Insumos!AD:AE,2,FALSE))","v":""},null,{"$f":"IF(G3337=\"\",\"\",VLOOKUP(G3337,Insumos!G:H,2,FALSE))","v":""}]
[null,null,null,null,null,{"$f":"IF(E3338=\"\",\"\",VLOOKUP(E3338,Insumos!AD:AE,2,FALSE))","v":""},null,{"$f":"IF(G3338=\"\",\"\",VLOOKUP(G3338,Insumos!G:H,2,FALSE))","v":""}]
[null,null,null,null,null,{"$f":"IF(E3339=\"\",\"\",VLOOKUP(E3339,Insumos!AD:AE,2,FALSE))","v":""},null,{"$f":"IF(G3339=\"\",\"\",VLOOKUP(G3339,Insumos!G:H,2,FALSE))","v":""}]
[null,null,null,null,null,{"$f":"IF(E3340=\"\",\"\",VLOOKUP(E3340,Insumos!AD:AE,2,FALSE))","v":""},null,{"$f":"IF(G3340=\"\",\"\",VLOOKUP(G3340,Insumos!G:H,2,FALSE))","v":""}]
[null,null,null,null,null,{"$f":"IF(E3341=\"\",\"\",VLOOKUP(E3341,Insumos!AD:AE,2,FALSE))","v":""},null,{"$f":"IF(G3341=\"\",\"\",VLOOKUP(G3341,Insumos!G:H,2,FALSE))","v":""}]
[null,null,null,null,null,{"$f":"IF(E3342=\"\",\"\",VLOOKUP(E3342,Insumos!AD:AE,2,FALSE))","v":""},null,{"$f":"IF(G3342=\"\",\"\",VLOOKUP(G3342,Insumos!G:H,2,FALSE))","v":""}]
[null,null,null,null,null,{"$f":"IF(E3343=\"\",\"\",VLOOKUP(E3343,Insumos!AD:AE,2,FALSE))","v":""},null,{"$f":"IF(G3343=\"\",\"\",VLOOKUP(G3343,Insumos!G:H,2,FALSE))","v":""}]
[null,null,null,null,null,{"$f":"IF(E3344=\"\",\"\",VLOOKUP(E3344,Insumos!AD:AE,2,FALSE))","v":""},null,{"$f":"IF(G3344=\"\",\"\",VLOOKUP(G3344,Insumos!G:H,2,FALSE))","v":""}]
[null,null,null,null,null,{"$f":"IF(E3345=\"\",\"\",VLOOKUP(E3345,Insumos!AD:AE,2,FALSE))","v":""},null,{"$f":"IF(G3345=\"\",\"\",VLOOKUP(G3345,Insumos!G:H,2,FALSE))","v":""}]
[null,null,null,null,null,{"$f":"IF(E3346=\"\",\"\",VLOOKUP(E3346,Insumos!AD:AE,2,FALSE))","v":""},null,{"$f":"IF(G3346=\"\",\"\",VLOOKUP(G3346,Insumos!G:H,2,FALSE))","v":""}]
[null,null,null,null,null,{"$f":"IF(E3347=\"\",\"\",VLOOKUP(E3347,Insumos!AD:AE,2,FALSE))","v":""},null,{"$f":"IF(G3347=\"\",\"\",VLOOKUP(G3347,Insumos!G:H,2,FALSE))","v":""}]
[null,null,null,null,null,{"$f":"IF(E3348=\"\",\"\",VLOOKUP(E3348,Insumos!AD:AE,2,FALSE))","v":""},null,{"$f":"IF(G3348=\"\",\"\",VLOOKUP(G3348,Insumos!G:H,2,FALSE))","v":""}]
[null,null,null,null,null,{"$f":"IF(E3349=\"\",\"\",VLOOKUP(E3349,Insumos!AD:AE,2,FALSE))","v":""},null,{"$f":"IF(G3349=\"\",\"\",VLOOKUP(G3349,Insumos!G:H,2,FALSE))","v":""}]
[null,null,null,null,null,{"$f":"IF(E3350=\"\",\"\",VLOOKUP(E3350,Insumos!AD:AE,2,FALSE))","v":""},null,{"$f":"IF(G3350=\"\",\"\",VLOOKUP(G3350,Insumos!G:H,2,FALSE))","v":""}]
[null,null,null,null,null,{"$f":"IF(E3351=\"\",\"\",VLOOKUP(E3351,Insumos!AD:AE,2,FALSE))","v":""},null,{"$f":"IF(G3351=\"\",\"\",VLOOKUP(G3351,Insumos!G:H,2,FALSE))","v":""}]
[null,null,null,null,null,{"$f":"IF(E3352=\"\",\"\",VLOOKUP(E3352,Insumos!AD:AE,2,FALSE))","v":""},null,{"$f":"IF(G3352=\"\",\"\",VLOOKUP(G3352,Insumos!G:H,2,FALSE))","v":""}]
[null,null,null,null,null,{"$f":"IF(E3353=\"\",\"\",VLOOKUP(E3353,Insumos!AD:AE,2,FALSE))","v":""},null,{"$f":"IF(G3353=\"\",\"\",VLOOKUP(G3353,Insumos!G:H,2,FALSE))","v":""}]
[null,null,null,null,null,{"$f":"IF(E3354=\"\",\"\",VLOOKUP(E3354,Insumos!AD:AE,2,FALSE))","v":""},null,{"$f":"IF(G3354=\"\",\"\",VLOOKUP(G3354,Insumos!G:H,2,FALSE))","v":""}]
[null,null,null,null,null,{"$f":"IF(E3355=\"\",\"\",VLOOKUP(E3355,Insumos!AD:AE,2,FALSE))","v":""},null,{"$f":"IF(G3355=\"\",\"\",VLOOKUP(G3355,Insumos!G:H,2,FALSE))","v":""}]
[null,null,null,null,null,{"$f":"IF(E3356=\"\",\"\",VLOOKUP(E3356,Insumos!AD:AE,2,FALSE))","v":""},null,{"$f":"IF(G3356=\"\",\"\",VLOOKUP(G3356,Insumos!G:H,2,FALSE))","v":""}]
[null,null,null,null,null,{"$f":"IF(E3357=\"\",\"\",VLOOKUP(E3357,Insumos!AD:AE,2,FALSE))","v":""},null,{"$f":"IF(G3357=\"\",\"\",VLOOKUP(G3357,Insumos!G:H,2,FALSE))","v":""}]
[null,null,null,null,null,{"$f":"IF(E3358=\"\",\"\",VLOOKUP(E3358,Insumos!AD:AE,2,FALSE))","v":""},null,{"$f":"IF(G3358=\"\",\"\",VLOOKUP(G3358,Insumos!G:H,2,FALSE))","v":""}]
[null,null,null,null,null,{"$f":"IF(E3359=\"\",\"\",VLOOKUP(E3359,Insumos!AD:AE,2,FALSE))","v":""},null,{"$f":"IF(G3359=\"\",\"\",VLOOKUP(G3359,Insumos!G:H,2,FALSE))","v":""}]
[null,null,null,null,null,{"$f":"IF(E3360=\"\",\"\",VLOOKUP(E3360,Insumos!AD:AE,2,FALSE))","v":""},null,{"$f":"IF(G3360=\"\",\"\",VLOOKUP(G3360,Insumos!G:H,2,FALSE))","v":""}]
[null,null,null,null,null,{"$f":"IF(E3361=\"\",\"\",VLOOKUP(E3361,Insumos!AD:AE,2,FALSE))","v":""},null,{"$f":"IF(G3361=\"\",\"\",VLOOKUP(G3361,Insumos!G:H,2,FALSE))","v":""}]
[null,null,null,null,null,{"$f":"IF(E3362=\"\",\"\",VLOOKUP(E3362,Insumos!AD:AE,2,FALSE))","v":""},null,{"$f":"IF(G3362=\"\",\"\",VLOOKUP(G3362,Insumos!G:H,2,FALSE))","v":""}]
[null,null,null,null,null,{"$f":"IF(E3363=\"\",\"\",VLOOKUP(E3363,Insumos!AD:AE,2,FALSE))","v":""},null,{"$f":"IF(G3363=\"\",\"\",VLOOKUP(G3363,Insumos!G:H,2,FALSE))","v":""}]
[null,null,null,null,null,{"$f":"IF(E3364=\"\",\"\",VLOOKUP(E3364,Insumos!AD:AE,2,FALSE))","v":""},null,{"$f":"IF(G3364=\"\",\"\",VLOOKUP(G3364,Insumos!G:H,2,FALSE))","v":""}]
[null,null,null,null,null,{"$f":"IF(E3365=\"\",\"\",VLOOKUP(E3365,Insumos!AD:AE,2,FALSE))","v":""},null,{"$f":"IF(G3365=\"\",\"\",VLOOKUP(G3365,Insumos!G:H,2,FALSE))","v":""}]
[null,null,null,null,null,{"$f":"IF(E3366=\"\",\"\",VLOOKUP(E3366,Insumos!AD:AE,2,FALSE))","v":""},null,{"$f":"IF(G3366=\"\",\"\",VLOOKUP(G3366,Insumos!G:H,2,FALSE))","v":""}]
[null,null,null,null,null,{"$f":"IF(E3367=\"\",\"\",VLOOKUP(E3367,Insumos!AD:AE,2,FALSE))","v":""},null,{"$f":"IF(G3367=\"\",\"\",VLOOKUP(G3367,Insumos!G:H,2,FALSE))","v":""}]
[null,null,null,null,null,{"$f":"IF(E3368=\"\",\"\",VLOOKUP(E3368,Insumos!AD:AE,2,FALSE))","v":""},null,{"$f":"IF(G3368=\"\",\"\",VLOOKUP(G3368,Insumos!G:H,2,FALSE))","v":""}]
[null,null,null,null,null,{"$f":"IF(E3369=\"\",\"\",VLOOKUP(E3369,Insumos!AD:AE,2,FALSE))","v":""},null,{"$f":"IF(G3369=\"\",\"\",VLOOKUP(G3369,Insumos!G:H,2,FALSE))","v":""}]
[null,null,null,null,null,{"$f":"IF(E3370=\"\",\"\",VLOOKUP(E3370,Insumos!AD:AE,2,FALSE))","v":""},null,{"$f":"IF(G3370=\"\",\"\",VLOOKUP(G3370,Insumos!G:H,2,FALSE))","v":""}]
[null,null,null,null,null,{"$f":"IF(E3371=\"\",\"\",VLOOKUP(E3371,Insumos!AD:AE,2,FALSE))","v":""},null,{"$f":"IF(G3371=\"\",\"\",VLOOKUP(G3371,Insumos!G:H,2,FALSE))","v":""}]
[null,null,null,null,null,{"$f":"IF(E3372=\"\",\"\",VLOOKUP(E3372,Insumos!AD:AE,2,FALSE))","v":""},null,{"$f":"IF(G3372=\"\",\"\",VLOOKUP(G3372,Insumos!G:H,2,FALSE))","v":""}]
[null,null,null,null,null,{"$f":"IF(E3373=\"\",\"\",VLOOKUP(E3373,Insumos!AD:AE,2,FALSE))","v":""},null,{"$f":"IF(G3373=\"\",\"\",VLOOKUP(G3373,Insumos!G:H,2,FALSE))","v":""}]
[null,null,null,null,null,{"$f":"IF(E3374=\"\",\"\",VLOOKUP(E3374,Insumos!AD:AE,2,FALSE))","v":""},null,{"$f":"IF(G3374=\"\",\"\",VLOOKUP(G3374,Insumos!G:H,2,FALSE))","v":""}]
[null,null,null,null,null,{"$f":"IF(E3375=\"\",\"\",VLOOKUP(E3375,Insumos!AD:AE,2,FALSE))","v":""},null,{"$f":"IF(G3375=\"\",\"\",VLOOKUP(G3375,Insumos!G:H,2,FALSE))","v":""}]
[null,null,null,null,null,{"$f":"IF(E3376=\"\",\"\",VLOOKUP(E3376,Insumos!AD:AE,2,FALSE))","v":""},null,{"$f":"IF(G3376=\"\",\"\",VLOOKUP(G3376,Insumos!G:H,2,FALSE))","v":""}]
[null,null,null,null,null,{"$f":"IF(E3377=\"\",\"\",VLOOKUP(E3377,Insumos!AD:AE,2,FALSE))","v":""},null,{"$f":"IF(G3377=\"\",\"\",VLOOKUP(G3377,Insumos!G:H,2,FALSE))","v":""}]
[null,null,null,null,null,{"$f":"IF(E3378=\"\",\"\",VLOOKUP(E3378,Insumos!AD:AE,2,FALSE))","v":""},null,{"$f":"IF(G3378=\"\",\"\",VLOOKUP(G3378,Insumos!G:H,2,FALSE))","v":""}]
[null,null,null,null,null,{"$f":"IF(E3379=\"\",\"\",VLOOKUP(E3379,Insumos!AD:AE,2,FALSE))","v":""},null,{"$f":"IF(G3379=\"\",\"\",VLOOKUP(G3379,Insumos!G:H,2,FALSE))","v":""}]
[null,null,null,null,null,{"$f":"IF(E3380=\"\",\"\",VLOOKUP(E3380,Insumos!AD:AE,2,FALSE))","v":""},null,{"$f":"IF(G3380=\"\",\"\",VLOOKUP(G3380,Insumos!G:H,2,FALSE))","v":""}]
[null,null,null,null,null,{"$f":"IF(E3381=\"\",\"\",VLOOKUP(E3381,Insumos!AD:AE,2,FALSE))","v":""},null,{"$f":"IF(G3381=\"\",\"\",VLOOKUP(G3381,Insumos!G:H,2,FALSE))","v":""}]
[null,null,null,null,null,{"$f":"IF(E3382=\"\",\"\",VLOOKUP(E3382,Insumos!AD:AE,2,FALSE))","v":""},null,{"$f":"IF(G3382=\"\",\"\",VLOOKUP(G3382,Insumos!G:H,2,FALSE))","v":""}]
[null,null,null,null,null,{"$f":"IF(E3383=\"\",\"\",VLOOKUP(E3383,Insumos!AD:AE,2,FALSE))","v":""},null,{"$f":"IF(G3383=\"\",\"\",VLOOKUP(G3383,Insumos!G:H,2,FALSE))","v":""}]
[null,null,null,null,null,{"$f":"IF(E3384=\"\",\"\",VLOOKUP(E3384,Insumos!AD:AE,2,FALSE))","v":""},null,{"$f":"IF(G3384=\"\",\"\",VLOOKUP(G3384,Insumos!G:H,2,FALSE))","v":""}]
[null,null,null,null,null,{"$f":"IF(E3385=\"\",\"\",VLOOKUP(E3385,Insumos!AD:AE,2,FALSE))","v":""},null,{"$f":"IF(G3385=\"\",\"\",VLOOKUP(G3385,Insumos!G:H,2,FALSE))","v":""}]
[null,null,null,null,null,{"$f":"IF(E3386=\"\",\"\",VLOOKUP(E3386,Insumos!AD:AE,2,FALSE))","v":""},null,{"$f":"IF(G3386=\"\",\"\",VLOOKUP(G3386,Insumos!G:H,2,FALSE))","v":""}]
[null,null,null,null,null,{"$f":"IF(E3387=\"\",\"\",VLOOKUP(E3387,Insumos!AD:AE,2,FALSE))","v":""},null,{"$f":"IF(G3387=\"\",\"\",VLOOKUP(G3387,Insumos!G:H,2,FALSE))","v":""}]
[null,null,null,null,null,{"$f":"IF(E3388=\"\",\"\",VLOOKUP(E3388,Insumos!AD:AE,2,FALSE))","v":""},null,{"$f":"IF(G3388=\"\",\"\",VLOOKUP(G3388,Insumos!G:H,2,FALSE))","v":""}]
[null,null,null,null,null,{"$f":"IF(E3389=\"\",\"\",VLOOKUP(E3389,Insumos!AD:AE,2,FALSE))","v":""},null,{"$f":"IF(G3389=\"\",\"\",VLOOKUP(G3389,Insumos!G:H,2,FALSE))","v":""}]
[null,null,null,null,null,{"$f":"IF(E3390=\"\",\"\",VLOOKUP(E3390,Insumos!AD:AE,2,FALSE))","v":""},null,{"$f":"IF(G3390=\"\",\"\",VLOOKUP(G3390,Insumos!G:H,2,FALSE))","v":""}]
[null,null,null,null,null,{"$f":"IF(E3391=\"\",\"\",VLOOKUP(E3391,Insumos!AD:AE,2,FALSE))","v":""},null,{"$f":"IF(G3391=\"\",\"\",VLOOKUP(G3391,Insumos!G:H,2,FALSE))","v":""}]
[null,null,null,null,null,{"$f":"IF(E3392=\"\",\"\",VLOOKUP(E3392,Insumos!AD:AE,2,FALSE))","v":""},null,{"$f":"IF(G3392=\"\",\"\",VLOOKUP(G3392,Insumos!G:H,2,FALSE))","v":""}]
[null,null,null,null,null,{"$f":"IF(E3393=\"\",\"\",VLOOKUP(E3393,Insumos!AD:AE,2,FALSE))","v":""},null,{"$f":"IF(G3393=\"\",\"\",VLOOKUP(G3393,Insumos!G:H,2,FALSE))","v":""}]
[null,null,null,null,null,{"$f":"IF(E3394=\"\",\"\",VLOOKUP(E3394,Insumos!AD:AE,2,FALSE))","v":""},null,{"$f":"IF(G3394=\"\",\"\",VLOOKUP(G3394,Insumos!G:H,2,FALSE))","v":""}]
[null,null,null,null,null,{"$f":"IF(E3395=\"\",\"\",VLOOKUP(E3395,Insumos!AD:AE,2,FALSE))","v":""},null,{"$f":"IF(G3395=\"\",\"\",VLOOKUP(G3395,Insumos!G:H,2,FALSE))","v":""}]
[null,null,null,null,null,{"$f":"IF(E3396=\"\",\"\",VLOOKUP(E3396,Insumos!AD:AE,2,FALSE))","v":""},null,{"$f":"IF(G3396=\"\",\"\",VLOOKUP(G3396,Insumos!G:H,2,FALSE))","v":""}]
[null,null,null,null,null,{"$f":"IF(E3397=\"\",\"\",VLOOKUP(E3397,Insumos!AD:AE,2,FALSE))","v":""},null,{"$f":"IF(G3397=\"\",\"\",VLOOKUP(G3397,Insumos!G:H,2,FALSE))","v":""}]
[null,null,null,null,null,{"$f":"IF(E3398=\"\",\"\",VLOOKUP(E3398,Insumos!AD:AE,2,FALSE))","v":""},null,{"$f":"IF(G3398=\"\",\"\",VLOOKUP(G3398,Insumos!G:H,2,FALSE))","v":""}]
[null,null,null,null,null,{"$f":"IF(E3399=\"\",\"\",VLOOKUP(E3399,Insumos!AD:AE,2,FALSE))","v":""},null,{"$f":"IF(G3399=\"\",\"\",VLOOKUP(G3399,Insumos!G:H,2,FALSE))","v":""}]
[null,null,null,null,null,{"$f":"IF(E3400=\"\",\"\",VLOOKUP(E3400,Insumos!AD:AE,2,FALSE))","v":""},null,{"$f":"IF(G3400=\"\",\"\",VLOOKUP(G3400,Insumos!G:H,2,FALSE))","v":""}]
[null,null,null,null,null,{"$f":"IF(E3401=\"\",\"\",VLOOKUP(E3401,Insumos!AD:AE,2,FALSE))","v":""},null,{"$f":"IF(G3401=\"\",\"\",VLOOKUP(G3401,Insumos!G:H,2,FALSE))","v":""}]
[null,null,null,null,null,{"$f":"IF(E3402=\"\",\"\",VLOOKUP(E3402,Insumos!AD:AE,2,FALSE))","v":""},null,{"$f":"IF(G3402=\"\",\"\",VLOOKUP(G3402,Insumos!G:H,2,FALSE))","v":""}]
[null,null,null,null,null,{"$f":"IF(E3403=\"\",\"\",VLOOKUP(E3403,Insumos!AD:AE,2,FALSE))","v":""},null,{"$f":"IF(G3403=\"\",\"\",VLOOKUP(G3403,Insumos!G:H,2,FALSE))","v":""}]
[null,null,null,null,null,{"$f":"IF(E3404=\"\",\"\",VLOOKUP(E3404,Insumos!AD:AE,2,FALSE))","v":""},null,{"$f":"IF(G3404=\"\",\"\",VLOOKUP(G3404,Insumos!G:H,2,FALSE))","v":""}]
[null,null,null,null,null,{"$f":"IF(E3405=\"\",\"\",VLOOKUP(E3405,Insumos!AD:AE,2,FALSE))","v":""},null,{"$f":"IF(G3405=\"\",\"\",VLOOKUP(G3405,Insumos!G:H,2,FALSE))","v":""}]
[null,null,null,null,null,{"$f":"IF(E3406=\"\",\"\",VLOOKUP(E3406,Insumos!AD:AE,2,FALSE))","v":""},null,{"$f":"IF(G3406=\"\",\"\",VLOOKUP(G3406,Insumos!G:H,2,FALSE))","v":""}]
[null,null,null,null,null,{"$f":"IF(E3407=\"\",\"\",VLOOKUP(E3407,Insumos!AD:AE,2,FALSE))","v":""},null,{"$f":"IF(G3407=\"\",\"\",VLOOKUP(G3407,Insumos!G:H,2,FALSE))","v":""}]
[null,null,null,null,null,{"$f":"IF(E3408=\"\",\"\",VLOOKUP(E3408,Insumos!AD:AE,2,FALSE))","v":""},null,{"$f":"IF(G3408=\"\",\"\",VLOOKUP(G3408,Insumos!G:H,2,FALSE))","v":""}]
[null,null,null,null,null,{"$f":"IF(E3409=\"\",\"\",VLOOKUP(E3409,Insumos!AD:AE,2,FALSE))","v":""},null,{"$f":"IF(G3409=\"\",\"\",VLOOKUP(G3409,Insumos!G:H,2,FALSE))","v":""}]
[null,null,null,null,null,{"$f":"IF(E3410=\"\",\"\",VLOOKUP(E3410,Insumos!AD:AE,2,FALSE))","v":""},null,{"$f":"IF(G3410=\"\",\"\",VLOOKUP(G3410,Insumos!G:H,2,FALSE))","v":""}]
[null,null,null,null,null,{"$f":"IF(E3411=\"\",\"\",VLOOKUP(E3411,Insumos!AD:AE,2,FALSE))","v":""},null,{"$f":"IF(G3411=\"\",\"\",VLOOKUP(G3411,Insumos!G:H,2,FALSE))","v":""}]
[null,null,null,null,null,{"$f":"IF(E3412=\"\",\"\",VLOOKUP(E3412,Insumos!AD:AE,2,FALSE))","v":""},null,{"$f":"IF(G3412=\"\",\"\",VLOOKUP(G3412,Insumos!G:H,2,FALSE))","v":""}]
[null,null,null,null,null,{"$f":"IF(E3413=\"\",\"\",VLOOKUP(E3413,Insumos!AD:AE,2,FALSE))","v":""},null,{"$f":"IF(G3413=\"\",\"\",VLOOKUP(G3413,Insumos!G:H,2,FALSE))","v":""}]
[null,null,null,null,null,{"$f":"IF(E3414=\"\",\"\",VLOOKUP(E3414,Insumos!AD:AE,2,FALSE))","v":""},null,{"$f":"IF(G3414=\"\",\"\",VLOOKUP(G3414,Insumos!G:H,2,FALSE))","v":""}]
[null,null,null,null,null,{"$f":"IF(E3415=\"\",\"\",VLOOKUP(E3415,Insumos!AD:AE,2,FALSE))","v":""},null,{"$f":"IF(G3415=\"\",\"\",VLOOKUP(G3415,Insumos!G:H,2,FALSE))","v":""}]
[null,null,null,null,null,{"$f":"IF(E3416=\"\",\"\",VLOOKUP(E3416,Insumos!AD:AE,2,FALSE))","v":""},null,{"$f":"IF(G3416=\"\",\"\",VLOOKUP(G3416,Insumos!G:H,2,FALSE))","v":""}]
[null,null,null,null,null,{"$f":"IF(E3417=\"\",\"\",VLOOKUP(E3417,Insumos!AD:AE,2,FALSE))","v":""},null,{"$f":"IF(G3417=\"\",\"\",VLOOKUP(G3417,Insumos!G:H,2,FALSE))","v":""}]
[null,null,null,null,null,{"$f":"IF(E3418=\"\",\"\",VLOOKUP(E3418,Insumos!AD:AE,2,FALSE))","v":""},null,{"$f":"IF(G3418=\"\",\"\",VLOOKUP(G3418,Insumos!G:H,2,FALSE))","v":""}]
[null,null,null,null,null,{"$f":"IF(E3419=\"\",\"\",VLOOKUP(E3419,Insumos!AD:AE,2,FALSE))","v":""},null,{"$f":"IF(G3419=\"\",\"\",VLOOKUP(G3419,Insumos!G:H,2,FALSE))","v":""}]
[null,null,null,null,null,{"$f":"IF(E3420=\"\",\"\",VLOOKUP(E3420,Insumos!AD:AE,2,FALSE))","v":""},null,{"$f":"IF(G3420=\"\",\"\",VLOOKUP(G3420,Insumos!G:H,2,FALSE))","v":""}]
[null,null,null,null,null,{"$f":"IF(E3421=\"\",\"\",VLOOKUP(E3421,Insumos!AD:AE,2,FALSE))","v":""},null,{"$f":"IF(G3421=\"\",\"\",VLOOKUP(G3421,Insumos!G:H,2,FALSE))","v":""}]
[null,null,null,null,null,{"$f":"IF(E3422=\"\",\"\",VLOOKUP(E3422,Insumos!AD:AE,2,FALSE))","v":""},null,{"$f":"IF(G3422=\"\",\"\",VLOOKUP(G3422,Insumos!G:H,2,FALSE))","v":""}]
[null,null,null,null,null,{"$f":"IF(E3423=\"\",\"\",VLOOKUP(E3423,Insumos!AD:AE,2,FALSE))","v":""},null,{"$f":"IF(G3423=\"\",\"\",VLOOKUP(G3423,Insumos!G:H,2,FALSE))","v":""}]
[null,null,null,null,null,{"$f":"IF(E3424=\"\",\"\",VLOOKUP(E3424,Insumos!AD:AE,2,FALSE))","v":""},null,{"$f":"IF(G3424=\"\",\"\",VLOOKUP(G3424,Insumos!G:H,2,FALSE))","v":""}]
[null,null,null,null,null,{"$f":"IF(E3425=\"\",\"\",VLOOKUP(E3425,Insumos!AD:AE,2,FALSE))","v":""},null,{"$f":"IF(G3425=\"\",\"\",VLOOKUP(G3425,Insumos!G:H,2,FALSE))","v":""}]
[null,null,null,null,null,{"$f":"IF(E3426=\"\",\"\",VLOOKUP(E3426,Insumos!AD:AE,2,FALSE))","v":""},null,{"$f":"IF(G3426=\"\",\"\",VLOOKUP(G3426,Insumos!G:H,2,FALSE))","v":""}]
[null,null,null,null,null,{"$f":"IF(E3427=\"\",\"\",VLOOKUP(E3427,Insumos!AD:AE,2,FALSE))","v":""},null,{"$f":"IF(G3427=\"\",\"\",VLOOKUP(G3427,Insumos!G:H,2,FALSE))","v":""}]
[null,null,null,null,null,{"$f":"IF(E3428=\"\",\"\",VLOOKUP(E3428,Insumos!AD:AE,2,FALSE))","v":""},null,{"$f":"IF(G3428=\"\",\"\",VLOOKUP(G3428,Insumos!G:H,2,FALSE))","v":""}]
[null,null,null,null,null,{"$f":"IF(E3429=\"\",\"\",VLOOKUP(E3429,Insumos!AD:AE,2,FALSE))","v":""},null,{"$f":"IF(G3429=\"\",\"\",VLOOKUP(G3429,Insumos!G:H,2,FALSE))","v":""}]
[null,null,null,null,null,{"$f":"IF(E3430=\"\",\"\",VLOOKUP(E3430,Insumos!AD:AE,2,FALSE))","v":""},null,{"$f":"IF(G3430=\"\",\"\",VLOOKUP(G3430,Insumos!G:H,2,FALSE))","v":""}]
[null,null,null,null,null,{"$f":"IF(E3431=\"\",\"\",VLOOKUP(E3431,Insumos!AD:AE,2,FALSE))","v":""},null,{"$f":"IF(G3431=\"\",\"\",VLOOKUP(G3431,Insumos!G:H,2,FALSE))","v":""}]
[null,null,null,null,null,{"$f":"IF(E3432=\"\",\"\",VLOOKUP(E3432,Insumos!AD:AE,2,FALSE))","v":""},null,{"$f":"IF(G3432=\"\",\"\",VLOOKUP(G3432,Insumos!G:H,2,FALSE))","v":""}]
[null,null,null,null,null,{"$f":"IF(E3433=\"\",\"\",VLOOKUP(E3433,Insumos!AD:AE,2,FALSE))","v":""},null,{"$f":"IF(G3433=\"\",\"\",VLOOKUP(G3433,Insumos!G:H,2,FALSE))","v":""}]
[null,null,null,null,null,{"$f":"IF(E3434=\"\",\"\",VLOOKUP(E3434,Insumos!AD:AE,2,FALSE))","v":""},null,{"$f":"IF(G3434=\"\",\"\",VLOOKUP(G3434,Insumos!G:H,2,FALSE))","v":""}]
[null,null,null,null,null,{"$f":"IF(E3435=\"\",\"\",VLOOKUP(E3435,Insumos!AD:AE,2,FALSE))","v":""},null,{"$f":"IF(G3435=\"\",\"\",VLOOKUP(G3435,Insumos!G:H,2,FALSE))","v":""}]
[null,null,null,null,null,{"$f":"IF(E3436=\"\",\"\",VLOOKUP(E3436,Insumos!AD:AE,2,FALSE))","v":""},null,{"$f":"IF(G3436=\"\",\"\",VLOOKUP(G3436,Insumos!G:H,2,FALSE))","v":""}]
[null,null,null,null,null,{"$f":"IF(E3437=\"\",\"\",VLOOKUP(E3437,Insumos!AD:AE,2,FALSE))","v":""},null,{"$f":"IF(G3437=\"\",\"\",VLOOKUP(G3437,Insumos!G:H,2,FALSE))","v":""}]
[null,null,null,null,null,{"$f":"IF(E3438=\"\",\"\",VLOOKUP(E3438,Insumos!AD:AE,2,FALSE))","v":""},null,{"$f":"IF(G3438=\"\",\"\",VLOOKUP(G3438,Insumos!G:H,2,FALSE))","v":""}]
[null,null,null,null,null,{"$f":"IF(E3439=\"\",\"\",VLOOKUP(E3439,Insumos!AD:AE,2,FALSE))","v":""},null,{"$f":"IF(G3439=\"\",\"\",VLOOKUP(G3439,Insumos!G:H,2,FALSE))","v":""}]
[null,null,null,null,null,{"$f":"IF(E3440=\"\",\"\",VLOOKUP(E3440,Insumos!AD:AE,2,FALSE))","v":""},null,{"$f":"IF(G3440=\"\",\"\",VLOOKUP(G3440,Insumos!G:H,2,FALSE))","v":""}]
[null,null,null,null,null,{"$f":"IF(E3441=\"\",\"\",VLOOKUP(E3441,Insumos!AD:AE,2,FALSE))","v":""},null,{"$f":"IF(G3441=\"\",\"\",VLOOKUP(G3441,Insumos!G:H,2,FALSE))","v":""}]
[null,null,null,null,null,{"$f":"IF(E3442=\"\",\"\",VLOOKUP(E3442,Insumos!AD:AE,2,FALSE))","v":""},null,{"$f":"IF(G3442=\"\",\"\",VLOOKUP(G3442,Insumos!G:H,2,FALSE))","v":""}]
[null,null,null,null,null,{"$f":"IF(E3443=\"\",\"\",VLOOKUP(E3443,Insumos!AD:AE,2,FALSE))","v":""},null,{"$f":"IF(G3443=\"\",\"\",VLOOKUP(G3443,Insumos!G:H,2,FALSE))","v":""}]
[null,null,null,null,null,{"$f":"IF(E3444=\"\",\"\",VLOOKUP(E3444,Insumos!AD:AE,2,FALSE))","v":""},null,{"$f":"IF(G3444=\"\",\"\",VLOOKUP(G3444,Insumos!G:H,2,FALSE))","v":""}]
[null,null,null,null,null,{"$f":"IF(E3445=\"\",\"\",VLOOKUP(E3445,Insumos!AD:AE,2,FALSE))","v":""},null,{"$f":"IF(G3445=\"\",\"\",VLOOKUP(G3445,Insumos!G:H,2,FALSE))","v":""}]
[null,null,null,null,null,{"$f":"IF(E3446=\"\",\"\",VLOOKUP(E3446,Insumos!AD:AE,2,FALSE))","v":""},null,{"$f":"IF(G3446=\"\",\"\",VLOOKUP(G3446,Insumos!G:H,2,FALSE))","v":""}]
[null,null,null,null,null,{"$f":"IF(E3447=\"\",\"\",VLOOKUP(E3447,Insumos!AD:AE,2,FALSE))","v":""},null,{"$f":"IF(G3447=\"\",\"\",VLOOKUP(G3447,Insumos!G:H,2,FALSE))","v":""}]
[null,null,null,null,null,{"$f":"IF(E3448=\"\",\"\",VLOOKUP(E3448,Insumos!AD:AE,2,FALSE))","v":""},null,{"$f":"IF(G3448=\"\",\"\",VLOOKUP(G3448,Insumos!G:H,2,FALSE))","v":""}]
[null,null,null,null,null,{"$f":"IF(E3449=\"\",\"\",VLOOKUP(E3449,Insumos!AD:AE,2,FALSE))","v":""},null,{"$f":"IF(G3449=\"\",\"\",VLOOKUP(G3449,Insumos!G:H,2,FALSE))","v":""}]
[null,null,null,null,null,{"$f":"IF(E3450=\"\",\"\",VLOOKUP(E3450,Insumos!AD:AE,2,FALSE))","v":""},null,{"$f":"IF(G3450=\"\",\"\",VLOOKUP(G3450,Insumos!G:H,2,FALSE))","v":""}]
[null,null,null,null,null,{"$f":"IF(E3451=\"\",\"\",VLOOKUP(E3451,Insumos!AD:AE,2,FALSE))","v":""},null,{"$f":"IF(G3451=\"\",\"\",VLOOKUP(G3451,Insumos!G:H,2,FALSE))","v":""}]
[null,null,null,null,null,{"$f":"IF(E3452=\"\",\"\",VLOOKUP(E3452,Insumos!AD:AE,2,FALSE))","v":""},null,{"$f":"IF(G3452=\"\",\"\",VLOOKUP(G3452,Insumos!G:H,2,FALSE))","v":""}]
[null,null,null,null,null,{"$f":"IF(E3453=\"\",\"\",VLOOKUP(E3453,Insumos!AD:AE,2,FALSE))","v":""},null,{"$f":"IF(G3453=\"\",\"\",VLOOKUP(G3453,Insumos!G:H,2,FALSE))","v":""}]
[null,null,null,null,null,{"$f":"IF(E3454=\"\",\"\",VLOOKUP(E3454,Insumos!AD:AE,2,FALSE))","v":""},null,{"$f":"IF(G3454=\"\",\"\",VLOOKUP(G3454,Insumos!G:H,2,FALSE))","v":""}]
[null,null,null,null,null,{"$f":"IF(E3455=\"\",\"\",VLOOKUP(E3455,Insumos!AD:AE,2,FALSE))","v":""},null,{"$f":"IF(G3455=\"\",\"\",VLOOKUP(G3455,Insumos!G:H,2,FALSE))","v":""}]
[null,null,null,null,null,{"$f":"IF(E3456=\"\",\"\",VLOOKUP(E3456,Insumos!AD:AE,2,FALSE))","v":""},null,{"$f":"IF(G3456=\"\",\"\",VLOOKUP(G3456,Insumos!G:H,2,FALSE))","v":""}]
[null,null,null,null,null,{"$f":"IF(E3457=\"\",\"\",VLOOKUP(E3457,Insumos!AD:AE,2,FALSE))","v":""},null,{"$f":"IF(G3457=\"\",\"\",VLOOKUP(G3457,Insumos!G:H,2,FALSE))","v":""}]
[null,null,null,null,null,{"$f":"IF(E3458=\"\",\"\",VLOOKUP(E3458,Insumos!AD:AE,2,FALSE))","v":""},null,{"$f":"IF(G3458=\"\",\"\",VLOOKUP(G3458,Insumos!G:H,2,FALSE))","v":""}]
[null,null,null,null,null,{"$f":"IF(E3459=\"\",\"\",VLOOKUP(E3459,Insumos!AD:AE,2,FALSE))","v":""},null,{"$f":"IF(G3459=\"\",\"\",VLOOKUP(G3459,Insumos!G:H,2,FALSE))","v":""}]
[null,null,null,null,null,{"$f":"IF(E3460=\"\",\"\",VLOOKUP(E3460,Insumos!AD:AE,2,FALSE))","v":""},null,{"$f":"IF(G3460=\"\",\"\",VLOOKUP(G3460,Insumos!G:H,2,FALSE))","v":""}]
[null,null,null,null,null,{"$f":"IF(E3461=\"\",\"\",VLOOKUP(E3461,Insumos!AD:AE,2,FALSE))","v":""},null,{"$f":"IF(G3461=\"\",\"\",VLOOKUP(G3461,Insumos!G:H,2,FALSE))","v":""}]
[null,null,null,null,null,{"$f":"IF(E3462=\"\",\"\",VLOOKUP(E3462,Insumos!AD:AE,2,FALSE))","v":""},null,{"$f":"IF(G3462=\"\",\"\",VLOOKUP(G3462,Insumos!G:H,2,FALSE))","v":""}]
[null,null,null,null,null,{"$f":"IF(E3463=\"\",\"\",VLOOKUP(E3463,Insumos!AD:AE,2,FALSE))","v":""},null,{"$f":"IF(G3463=\"\",\"\",VLOOKUP(G3463,Insumos!G:H,2,FALSE))","v":""}]
[null,null,null,null,null,{"$f":"IF(E3464=\"\",\"\",VLOOKUP(E3464,Insumos!AD:AE,2,FALSE))","v":""},null,{"$f":"IF(G3464=\"\",\"\",VLOOKUP(G3464,Insumos!G:H,2,FALSE))","v":""}]
[null,null,null,null,null,{"$f":"IF(E3465=\"\",\"\",VLOOKUP(E3465,Insumos!AD:AE,2,FALSE))","v":""},null,{"$f":"IF(G3465=\"\",\"\",VLOOKUP(G3465,Insumos!G:H,2,FALSE))","v":""}]
[null,null,null,null,null,{"$f":"IF(E3466=\"\",\"\",VLOOKUP(E3466,Insumos!AD:AE,2,FALSE))","v":""},null,{"$f":"IF(G3466=\"\",\"\",VLOOKUP(G3466,Insumos!G:H,2,FALSE))","v":""}]
[null,null,null,null,null,{"$f":"IF(E3467=\"\",\"\",VLOOKUP(E3467,Insumos!AD:AE,2,FALSE))","v":""},null,{"$f":"IF(G3467=\"\",\"\",VLOOKUP(G3467,Insumos!G:H,2,FALSE))","v":""}]
[null,null,null,null,null,{"$f":"IF(E3468=\"\",\"\",VLOOKUP(E3468,Insumos!AD:AE,2,FALSE))","v":""},null,{"$f":"IF(G3468=\"\",\"\",VLOOKUP(G3468,Insumos!G:H,2,FALSE))","v":""}]
[null,null,null,null,null,{"$f":"IF(E3469=\"\",\"\",VLOOKUP(E3469,Insumos!AD:AE,2,FALSE))","v":""},null,{"$f":"IF(G3469=\"\",\"\",VLOOKUP(G3469,Insumos!G:H,2,FALSE))","v":""}]
[null,null,null,null,null,{"$f":"IF(E3470=\"\",\"\",VLOOKUP(E3470,Insumos!AD:AE,2,FALSE))","v":""},null,{"$f":"IF(G3470=\"\",\"\",VLOOKUP(G3470,Insumos!G:H,2,FALSE))","v":""}]
[null,null,null,null,null,{"$f":"IF(E3471=\"\",\"\",VLOOKUP(E3471,Insumos!AD:AE,2,FALSE))","v":""},null,{"$f":"IF(G3471=\"\",\"\",VLOOKUP(G3471,Insumos!G:H,2,FALSE))","v":""}]
[null,null,null,null,null,{"$f":"IF(E3472=\"\",\"\",VLOOKUP(E3472,Insumos!AD:AE,2,FALSE))","v":""},null,{"$f":"IF(G3472=\"\",\"\",VLOOKUP(G3472,Insumos!G:H,2,FALSE))","v":""}]
[null,null,null,null,null,{"$f":"IF(E3473=\"\",\"\",VLOOKUP(E3473,Insumos!AD:AE,2,FALSE))","v":""},null,{"$f":"IF(G3473=\"\",\"\",VLOOKUP(G3473,Insumos!G:H,2,FALSE))","v":""}]
[null,null,null,null,null,{"$f":"IF(E3474=\"\",\"\",VLOOKUP(E3474,Insumos!AD:AE,2,FALSE))","v":""},null,{"$f":"IF(G3474=\"\",\"\",VLOOKUP(G3474,Insumos!G:H,2,FALSE))","v":""}]
[null,null,null,null,null,{"$f":"IF(E3475=\"\",\"\",VLOOKUP(E3475,Insumos!AD:AE,2,FALSE))","v":""},null,{"$f":"IF(G3475=\"\",\"\",VLOOKUP(G3475,Insumos!G:H,2,FALSE))","v":""}]
[null,null,null,null,null,{"$f":"IF(E3476=\"\",\"\",VLOOKUP(E3476,Insumos!AD:AE,2,FALSE))","v":""},null,{"$f":"IF(G3476=\"\",\"\",VLOOKUP(G3476,Insumos!G:H,2,FALSE))","v":""}]
[null,null,null,null,null,{"$f":"IF(E3477=\"\",\"\",VLOOKUP(E3477,Insumos!AD:AE,2,FALSE))","v":""},null,{"$f":"IF(G3477=\"\",\"\",VLOOKUP(G3477,Insumos!G:H,2,FALSE))","v":""}]
[null,null,null,null,null,{"$f":"IF(E3478=\"\",\"\",VLOOKUP(E3478,Insumos!AD:AE,2,FALSE))","v":""},null,{"$f":"IF(G3478=\"\",\"\",VLOOKUP(G3478,Insumos!G:H,2,FALSE))","v":""}]
[null,null,null,null,null,{"$f":"IF(E3479=\"\",\"\",VLOOKUP(E3479,Insumos!AD:AE,2,FALSE))","v":""},null,{"$f":"IF(G3479=\"\",\"\",VLOOKUP(G3479,Insumos!G:H,2,FALSE))","v":""}]
[null,null,null,null,null,{"$f":"IF(E3480=\"\",\"\",VLOOKUP(E3480,Insumos!AD:AE,2,FALSE))","v":""},null,{"$f":"IF(G3480=\"\",\"\",VLOOKUP(G3480,Insumos!G:H,2,FALSE))","v":""}]
[null,null,null,null,null,{"$f":"IF(E3481=\"\",\"\",VLOOKUP(E3481,Insumos!AD:AE,2,FALSE))","v":""},null,{"$f":"IF(G3481=\"\",\"\",VLOOKUP(G3481,Insumos!G:H,2,FALSE))","v":""}]
[null,null,null,null,null,{"$f":"IF(E3482=\"\",\"\",VLOOKUP(E3482,Insumos!AD:AE,2,FALSE))","v":""},null,{"$f":"IF(G3482=\"\",\"\",VLOOKUP(G3482,Insumos!G:H,2,FALSE))","v":""}]
[null,null,null,null,null,{"$f":"IF(E3483=\"\",\"\",VLOOKUP(E3483,Insumos!AD:AE,2,FALSE))","v":""},null,{"$f":"IF(G3483=\"\",\"\",VLOOKUP(G3483,Insumos!G:H,2,FALSE))","v":""}]
[null,null,null,null,null,{"$f":"IF(E3484=\"\",\"\",VLOOKUP(E3484,Insumos!AD:AE,2,FALSE))","v":""},null,{"$f":"IF(G3484=\"\",\"\",VLOOKUP(G3484,Insumos!G:H,2,FALSE))","v":""}]
[null,null,null,null,null,{"$f":"IF(E3485=\"\",\"\",VLOOKUP(E3485,Insumos!AD:AE,2,FALSE))","v":""},null,{"$f":"IF(G3485=\"\",\"\",VLOOKUP(G3485,Insumos!G:H,2,FALSE))","v":""}]
[null,null,null,null,null,{"$f":"IF(E3486=\"\",\"\",VLOOKUP(E3486,Insumos!AD:AE,2,FALSE))","v":""},null,{"$f":"IF(G3486=\"\",\"\",VLOOKUP(G3486,Insumos!G:H,2,FALSE))","v":""}]
[null,null,null,null,null,{"$f":"IF(E3487=\"\",\"\",VLOOKUP(E3487,Insumos!AD:AE,2,FALSE))","v":""},null,{"$f":"IF(G3487=\"\",\"\",VLOOKUP(G3487,Insumos!G:H,2,FALSE))","v":""}]
[null,null,null,null,null,{"$f":"IF(E3488=\"\",\"\",VLOOKUP(E3488,Insumos!AD:AE,2,FALSE))","v":""},null,{"$f":"IF(G3488=\"\",\"\",VLOOKUP(G3488,Insumos!G:H,2,FALSE))","v":""}]
[null,null,null,null,null,{"$f":"IF(E3489=\"\",\"\",VLOOKUP(E3489,Insumos!AD:AE,2,FALSE))","v":""},null,{"$f":"IF(G3489=\"\",\"\",VLOOKUP(G3489,Insumos!G:H,2,FALSE))","v":""}]
[null,null,null,null,null,{"$f":"IF(E3490=\"\",\"\",VLOOKUP(E3490,Insumos!AD:AE,2,FALSE))","v":""},null,{"$f":"IF(G3490=\"\",\"\",VLOOKUP(G3490,Insumos!G:H,2,FALSE))","v":""}]
[null,null,null,null,null,{"$f":"IF(E3491=\"\",\"\",VLOOKUP(E3491,Insumos!AD:AE,2,FALSE))","v":""},null,{"$f":"IF(G3491=\"\",\"\",VLOOKUP(G3491,Insumos!G:H,2,FALSE))","v":""}]
[null,null,null,null,null,{"$f":"IF(E3492=\"\",\"\",VLOOKUP(E3492,Insumos!AD:AE,2,FALSE))","v":""},null,{"$f":"IF(G3492=\"\",\"\",VLOOKUP(G3492,Insumos!G:H,2,FALSE))","v":""}]
[null,null,null,null,null,{"$f":"IF(E3493=\"\",\"\",VLOOKUP(E3493,Insumos!AD:AE,2,FALSE))","v":""},null,{"$f":"IF(G3493=\"\",\"\",VLOOKUP(G3493,Insumos!G:H,2,FALSE))","v":""}]
[null,null,null,null,null,{"$f":"IF(E3494=\"\",\"\",VLOOKUP(E3494,Insumos!AD:AE,2,FALSE))","v":""},null,{"$f":"IF(G3494=\"\",\"\",VLOOKUP(G3494,Insumos!G:H,2,FALSE))","v":""}]
[null,null,null,null,null,{"$f":"IF(E3495=\"\",\"\",VLOOKUP(E3495,Insumos!AD:AE,2,FALSE))","v":""},null,{"$f":"IF(G3495=\"\",\"\",VLOOKUP(G3495,Insumos!G:H,2,FALSE))","v":""}]
[null,null,null,null,null,{"$f":"IF(E3496=\"\",\"\",VLOOKUP(E3496,Insumos!AD:AE,2,FALSE))","v":""},null,{"$f":"IF(G3496=\"\",\"\",VLOOKUP(G3496,Insumos!G:H,2,FALSE))","v":""}]
[null,null,null,null,null,{"$f":"IF(E3497=\"\",\"\",VLOOKUP(E3497,Insumos!AD:AE,2,FALSE))","v":""},null,{"$f":"IF(G3497=\"\",\"\",VLOOKUP(G3497,Insumos!G:H,2,FALSE))","v":""}]
[null,null,null,null,null,{"$f":"IF(E3498=\"\",\"\",VLOOKUP(E3498,Insumos!AD:AE,2,FALSE))","v":""},null,{"$f":"IF(G3498=\"\",\"\",VLOOKUP(G3498,Insumos!G:H,2,FALSE))","v":""}]
[null,null,null,null,null,{"$f":"IF(E3499=\"\",\"\",VLOOKUP(E3499,Insumos!AD:AE,2,FALSE))","v":""},null,{"$f":"IF(G3499=\"\",\"\",VLOOKUP(G3499,Insumos!G:H,2,FALSE))","v":""}]
[null,null,null,null,null,{"$f":"IF(E3500=\"\",\"\",VLOOKUP(E3500,Insumos!AD:AE,2,FALSE))","v":""},null,{"$f":"IF(G3500=\"\",\"\",VLOOKUP(G3500,Insumos!G:H,2,FALSE))","v":""}]
[null,null,null,null,null,{"$f":"IF(E3501=\"\",\"\",VLOOKUP(E3501,Insumos!AD:AE,2,FALSE))","v":""},null,{"$f":"IF(G3501=\"\",\"\",VLOOKUP(G3501,Insumos!G:H,2,FALSE))","v":""}]
[null,null,null,null,null,{"$f":"IF(E3502=\"\",\"\",VLOOKUP(E3502,Insumos!AD:AE,2,FALSE))","v":""},null,{"$f":"IF(G3502=\"\",\"\",VLOOKUP(G3502,Insumos!G:H,2,FALSE))","v":""}]
[null,null,null,null,null,{"$f":"IF(E3503=\"\",\"\",VLOOKUP(E3503,Insumos!AD:AE,2,FALSE))","v":""},null,{"$f":"IF(G3503=\"\",\"\",VLOOKUP(G3503,Insumos!G:H,2,FALSE))","v":""}]
[null,null,null,null,null,{"$f":"IF(E3504=\"\",\"\",VLOOKUP(E3504,Insumos!AD:AE,2,FALSE))","v":""},null,{"$f":"IF(G3504=\"\",\"\",VLOOKUP(G3504,Insumos!G:H,2,FALSE))","v":""}]
[null,null,null,null,null,{"$f":"IF(E3505=\"\",\"\",VLOOKUP(E3505,Insumos!AD:AE,2,FALSE))","v":""},null,{"$f":"IF(G3505=\"\",\"\",VLOOKUP(G3505,Insumos!G:H,2,FALSE))","v":""}]
[null,null,null,null,null,{"$f":"IF(E3506=\"\",\"\",VLOOKUP(E3506,Insumos!AD:AE,2,FALSE))","v":""},null,{"$f":"IF(G3506=\"\",\"\",VLOOKUP(G3506,Insumos!G:H,2,FALSE))","v":""}]
[null,null,null,null,null,{"$f":"IF(E3507=\"\",\"\",VLOOKUP(E3507,Insumos!AD:AE,2,FALSE))","v":""},null,{"$f":"IF(G3507=\"\",\"\",VLOOKUP(G3507,Insumos!G:H,2,FALSE))","v":""}]
[null,null,null,null,null,{"$f":"IF(E3508=\"\",\"\",VLOOKUP(E3508,Insumos!AD:AE,2,FALSE))","v":""},null,{"$f":"IF(G3508=\"\",\"\",VLOOKUP(G3508,Insumos!G:H,2,FALSE))","v":""}]
[null,null,null,null,null,{"$f":"IF(E3509=\"\",\"\",VLOOKUP(E3509,Insumos!AD:AE,2,FALSE))","v":""},null,{"$f":"IF(G3509=\"\",\"\",VLOOKUP(G3509,Insumos!G:H,2,FALSE))","v":""}]
[null,null,null,null,null,{"$f":"IF(E3510=\"\",\"\",VLOOKUP(E3510,Insumos!AD:AE,2,FALSE))","v":""},null,{"$f":"IF(G3510=\"\",\"\",VLOOKUP(G3510,Insumos!G:H,2,FALSE))","v":""}]
[null,null,null,null,null,{"$f":"IF(E3511=\"\",\"\",VLOOKUP(E3511,Insumos!AD:AE,2,FALSE))","v":""},null,{"$f":"IF(G3511=\"\",\"\",VLOOKUP(G3511,Insumos!G:H,2,FALSE))","v":""}]
[null,null,null,null,null,{"$f":"IF(E3512=\"\",\"\",VLOOKUP(E3512,Insumos!AD:AE,2,FALSE))","v":""},null,{"$f":"IF(G3512=\"\",\"\",VLOOKUP(G3512,Insumos!G:H,2,FALSE))","v":""}]
[null,null,null,null,null,{"$f":"IF(E3513=\"\",\"\",VLOOKUP(E3513,Insumos!AD:AE,2,FALSE))","v":""},null,{"$f":"IF(G3513=\"\",\"\",VLOOKUP(G3513,Insumos!G:H,2,FALSE))","v":""}]
[null,null,null,null,null,{"$f":"IF(E3514=\"\",\"\",VLOOKUP(E3514,Insumos!AD:AE,2,FALSE))","v":""},null,{"$f":"IF(G3514=\"\",\"\",VLOOKUP(G3514,Insumos!G:H,2,FALSE))","v":""}]
[null,null,null,null,null,{"$f":"IF(E3515=\"\",\"\",VLOOKUP(E3515,Insumos!AD:AE,2,FALSE))","v":""},null,{"$f":"IF(G3515=\"\",\"\",VLOOKUP(G3515,Insumos!G:H,2,FALSE))","v":""}]
[null,null,null,null,null,{"$f":"IF(E3516=\"\",\"\",VLOOKUP(E3516,Insumos!AD:AE,2,FALSE))","v":""},null,{"$f":"IF(G3516=\"\",\"\",VLOOKUP(G3516,Insumos!G:H,2,FALSE))","v":""}]
[null,null,null,null,null,{"$f":"IF(E3517=\"\",\"\",VLOOKUP(E3517,Insumos!AD:AE,2,FALSE))","v":""},null,{"$f":"IF(G3517=\"\",\"\",VLOOKUP(G3517,Insumos!G:H,2,FALSE))","v":""}]
[null,null,null,null,null,{"$f":"IF(E3518=\"\",\"\",VLOOKUP(E3518,Insumos!AD:AE,2,FALSE))","v":""},null,{"$f":"IF(G3518=\"\",\"\",VLOOKUP(G3518,Insumos!G:H,2,FALSE))","v":""}]
[null,null,null,null,null,{"$f":"IF(E3519=\"\",\"\",VLOOKUP(E3519,Insumos!AD:AE,2,FALSE))","v":""},null,{"$f":"IF(G3519=\"\",\"\",VLOOKUP(G3519,Insumos!G:H,2,FALSE))","v":""}]
[null,null,null,null,null,{"$f":"IF(E3520=\"\",\"\",VLOOKUP(E3520,Insumos!AD:AE,2,FALSE))","v":""},null,{"$f":"IF(G3520=\"\",\"\",VLOOKUP(G3520,Insumos!G:H,2,FALSE))","v":""}]
[null,null,null,null,null,{"$f":"IF(E3521=\"\",\"\",VLOOKUP(E3521,Insumos!AD:AE,2,FALSE))","v":""},null,{"$f":"IF(G3521=\"\",\"\",VLOOKUP(G3521,Insumos!G:H,2,FALSE))","v":""}]
[null,null,null,null,null,{"$f":"IF(E3522=\"\",\"\",VLOOKUP(E3522,Insumos!AD:AE,2,FALSE))","v":""},null,{"$f":"IF(G3522=\"\",\"\",VLOOKUP(G3522,Insumos!G:H,2,FALSE))","v":""}]
[null,null,null,null,null,{"$f":"IF(E3523=\"\",\"\",VLOOKUP(E3523,Insumos!AD:AE,2,FALSE))","v":""},null,{"$f":"IF(G3523=\"\",\"\",VLOOKUP(G3523,Insumos!G:H,2,FALSE))","v":""}]
[null,null,null,null,null,{"$f":"IF(E3524=\"\",\"\",VLOOKUP(E3524,Insumos!AD:AE,2,FALSE))","v":""},null,{"$f":"IF(G3524=\"\",\"\",VLOOKUP(G3524,Insumos!G:H,2,FALSE))","v":""}]
[null,null,null,null,null,{"$f":"IF(E3525=\"\",\"\",VLOOKUP(E3525,Insumos!AD:AE,2,FALSE))","v":""},null,{"$f":"IF(G3525=\"\",\"\",VLOOKUP(G3525,Insumos!G:H,2,FALSE))","v":""}]
[null,null,null,null,null,{"$f":"IF(E3526=\"\",\"\",VLOOKUP(E3526,Insumos!AD:AE,2,FALSE))","v":""},null,{"$f":"IF(G3526=\"\",\"\",VLOOKUP(G3526,Insumos!G:H,2,FALSE))","v":""}]
[null,null,null,null,null,{"$f":"IF(E3527=\"\",\"\",VLOOKUP(E3527,Insumos!AD:AE,2,FALSE))","v":""},null,{"$f":"IF(G3527=\"\",\"\",VLOOKUP(G3527,Insumos!G:H,2,FALSE))","v":""}]
[null,null,null,null,null,{"$f":"IF(E3528=\"\",\"\",VLOOKUP(E3528,Insumos!AD:AE,2,FALSE))","v":""},null,{"$f":"IF(G3528=\"\",\"\",VLOOKUP(G3528,Insumos!G:H,2,FALSE))","v":""}]
[null,null,null,null,null,{"$f":"IF(E3529=\"\",\"\",VLOOKUP(E3529,Insumos!AD:AE,2,FALSE))","v":""},null,{"$f":"IF(G3529=\"\",\"\",VLOOKUP(G3529,Insumos!G:H,2,FALSE))","v":""}]
[null,null,null,null,null,{"$f":"IF(E3530=\"\",\"\",VLOOKUP(E3530,Insumos!AD:AE,2,FALSE))","v":""},null,{"$f":"IF(G3530=\"\",\"\",VLOOKUP(G3530,Insumos!G:H,2,FALSE))","v":""}]
[null,null,null,null,null,{"$f":"IF(E3531=\"\",\"\",VLOOKUP(E3531,Insumos!AD:AE,2,FALSE))","v":""},null,{"$f":"IF(G3531=\"\",\"\",VLOOKUP(G3531,Insumos!G:H,2,FALSE))","v":""}]
[null,null,null,null,null,{"$f":"IF(E3532=\"\",\"\",VLOOKUP(E3532,Insumos!AD:AE,2,FALSE))","v":""},null,{"$f":"IF(G3532=\"\",\"\",VLOOKUP(G3532,Insumos!G:H,2,FALSE))","v":""}]
[null,null,null,null,null,{"$f":"IF(E3533=\"\",\"\",VLOOKUP(E3533,Insumos!AD:AE,2,FALSE))","v":""},null,{"$f":"IF(G3533=\"\",\"\",VLOOKUP(G3533,Insumos!G:H,2,FALSE))","v":""}]
[null,null,null,null,null,{"$f":"IF(E3534=\"\",\"\",VLOOKUP(E3534,Insumos!AD:AE,2,FALSE))","v":""},null,{"$f":"IF(G3534=\"\",\"\",VLOOKUP(G3534,Insumos!G:H,2,FALSE))","v":""}]
[null,null,null,null,null,{"$f":"IF(E3535=\"\",\"\",VLOOKUP(E3535,Insumos!AD:AE,2,FALSE))","v":""},null,{"$f":"IF(G3535=\"\",\"\",VLOOKUP(G3535,Insumos!G:H,2,FALSE))","v":""}]
[null,null,null,null,null,{"$f":"IF(E3536=\"\",\"\",VLOOKUP(E3536,Insumos!AD:AE,2,FALSE))","v":""},null,{"$f":"IF(G3536=\"\",\"\",VLOOKUP(G3536,Insumos!G:H,2,FALSE))","v":""}]
[null,null,null,null,null,{"$f":"IF(E3537=\"\",\"\",VLOOKUP(E3537,Insumos!AD:AE,2,FALSE))","v":""},null,{"$f":"IF(G3537=\"\",\"\",VLOOKUP(G3537,Insumos!G:H,2,FALSE))","v":""}]
[null,null,null,null,null,{"$f":"IF(E3538=\"\",\"\",VLOOKUP(E3538,Insumos!AD:AE,2,FALSE))","v":""},null,{"$f":"IF(G3538=\"\",\"\",VLOOKUP(G3538,Insumos!G:H,2,FALSE))","v":""}]
[null,null,null,null,null,{"$f":"IF(E3539=\"\",\"\",VLOOKUP(E3539,Insumos!AD:AE,2,FALSE))","v":""},null,{"$f":"IF(G3539=\"\",\"\",VLOOKUP(G3539,Insumos!G:H,2,FALSE))","v":""}]
[null,null,null,null,null,{"$f":"IF(E3540=\"\",\"\",VLOOKUP(E3540,Insumos!AD:AE,2,FALSE))","v":""},null,{"$f":"IF(G3540=\"\",\"\",VLOOKUP(G3540,Insumos!G:H,2,FALSE))","v":""}]
[null,null,null,null,null,{"$f":"IF(E3541=\"\",\"\",VLOOKUP(E3541,Insumos!AD:AE,2,FALSE))","v":""},null,{"$f":"IF(G3541=\"\",\"\",VLOOKUP(G3541,Insumos!G:H,2,FALSE))","v":""}]
[null,null,null,null,null,{"$f":"IF(E3542=\"\",\"\",VLOOKUP(E3542,Insumos!AD:AE,2,FALSE))","v":""},null,{"$f":"IF(G3542=\"\",\"\",VLOOKUP(G3542,Insumos!G:H,2,FALSE))","v":""}]
[null,null,null,null,null,{"$f":"IF(E3543=\"\",\"\",VLOOKUP(E3543,Insumos!AD:AE,2,FALSE))","v":""},null,{"$f":"IF(G3543=\"\",\"\",VLOOKUP(G3543,Insumos!G:H,2,FALSE))","v":""}]
[null,null,null,null,null,{"$f":"IF(E3544=\"\",\"\",VLOOKUP(E3544,Insumos!AD:AE,2,FALSE))","v":""},null,{"$f":"IF(G3544=\"\",\"\",VLOOKUP(G3544,Insumos!G:H,2,FALSE))","v":""}]
[null,null,null,null,null,{"$f":"IF(E3545=\"\",\"\",VLOOKUP(E3545,Insumos!AD:AE,2,FALSE))","v":""},null,{"$f":"IF(G3545=\"\",\"\",VLOOKUP(G3545,Insumos!G:H,2,FALSE))","v":""}]
[null,null,null,null,null,{"$f":"IF(E3546=\"\",\"\",VLOOKUP(E3546,Insumos!AD:AE,2,FALSE))","v":""},null,{"$f":"IF(G3546=\"\",\"\",VLOOKUP(G3546,Insumos!G:H,2,FALSE))","v":""}]
[null,null,null,null,null,{"$f":"IF(E3547=\"\",\"\",VLOOKUP(E3547,Insumos!AD:AE,2,FALSE))","v":""},null,{"$f":"IF(G3547=\"\",\"\",VLOOKUP(G3547,Insumos!G:H,2,FALSE))","v":""}]
[null,null,null,null,null,{"$f":"IF(E3548=\"\",\"\",VLOOKUP(E3548,Insumos!AD:AE,2,FALSE))","v":""},null,{"$f":"IF(G3548=\"\",\"\",VLOOKUP(G3548,Insumos!G:H,2,FALSE))","v":""}]
[null,null,null,null,null,{"$f":"IF(E3549=\"\",\"\",VLOOKUP(E3549,Insumos!AD:AE,2,FALSE))","v":""},null,{"$f":"IF(G3549=\"\",\"\",VLOOKUP(G3549,Insumos!G:H,2,FALSE))","v":""}]
[null,null,null,null,null,{"$f":"IF(E3550=\"\",\"\",VLOOKUP(E3550,Insumos!AD:AE,2,FALSE))","v":""},null,{"$f":"IF(G3550=\"\",\"\",VLOOKUP(G3550,Insumos!G:H,2,FALSE))","v":""}]
[null,null,null,null,null,{"$f":"IF(E3551=\"\",\"\",VLOOKUP(E3551,Insumos!AD:AE,2,FALSE))","v":""},null,{"$f":"IF(G3551=\"\",\"\",VLOOKUP(G3551,Insumos!G:H,2,FALSE))","v":""}]
[null,null,null,null,null,{"$f":"IF(E3552=\"\",\"\",VLOOKUP(E3552,Insumos!AD:AE,2,FALSE))","v":""},null,{"$f":"IF(G3552=\"\",\"\",VLOOKUP(G3552,Insumos!G:H,2,FALSE))","v":""}]
[null,null,null,null,null,{"$f":"IF(E3553=\"\",\"\",VLOOKUP(E3553,Insumos!AD:AE,2,FALSE))","v":""},null,{"$f":"IF(G3553=\"\",\"\",VLOOKUP(G3553,Insumos!G:H,2,FALSE))","v":""}]
[null,null,null,null,null,{"$f":"IF(E3554=\"\",\"\",VLOOKUP(E3554,Insumos!AD:AE,2,FALSE))","v":""},null,{"$f":"IF(G3554=\"\",\"\",VLOOKUP(G3554,Insumos!G:H,2,FALSE))","v":""}]
[null,null,null,null,null,{"$f":"IF(E3555=\"\",\"\",VLOOKUP(E3555,Insumos!AD:AE,2,FALSE))","v":""},null,{"$f":"IF(G3555=\"\",\"\",VLOOKUP(G3555,Insumos!G:H,2,FALSE))","v":""}]
[null,null,null,null,null,{"$f":"IF(E3556=\"\",\"\",VLOOKUP(E3556,Insumos!AD:AE,2,FALSE))","v":""},null,{"$f":"IF(G3556=\"\",\"\",VLOOKUP(G3556,Insumos!G:H,2,FALSE))","v":""}]
[null,null,null,null,null,{"$f":"IF(E3557=\"\",\"\",VLOOKUP(E3557,Insumos!AD:AE,2,FALSE))","v":""},null,{"$f":"IF(G3557=\"\",\"\",VLOOKUP(G3557,Insumos!G:H,2,FALSE))","v":""}]
[null,null,null,null,null,{"$f":"IF(E3558=\"\",\"\",VLOOKUP(E3558,Insumos!AD:AE,2,FALSE))","v":""},null,{"$f":"IF(G3558=\"\",\"\",VLOOKUP(G3558,Insumos!G:H,2,FALSE))","v":""}]
[null,null,null,null,null,{"$f":"IF(E3559=\"\",\"\",VLOOKUP(E3559,Insumos!AD:AE,2,FALSE))","v":""},null,{"$f":"IF(G3559=\"\",\"\",VLOOKUP(G3559,Insumos!G:H,2,FALSE))","v":""}]
[null,null,null,null,null,{"$f":"IF(E3560=\"\",\"\",VLOOKUP(E3560,Insumos!AD:AE,2,FALSE))","v":""},null,{"$f":"IF(G3560=\"\",\"\",VLOOKUP(G3560,Insumos!G:H,2,FALSE))","v":""}]
[null,null,null,null,null,{"$f":"IF(E3561=\"\",\"\",VLOOKUP(E3561,Insumos!AD:AE,2,FALSE))","v":""},null,{"$f":"IF(G3561=\"\",\"\",VLOOKUP(G3561,Insumos!G:H,2,FALSE))","v":""}]
[null,null,null,null,null,{"$f":"IF(E3562=\"\",\"\",VLOOKUP(E3562,Insumos!AD:AE,2,FALSE))","v":""},null,{"$f":"IF(G3562=\"\",\"\",VLOOKUP(G3562,Insumos!G:H,2,FALSE))","v":""}]
[null,null,null,null,null,{"$f":"IF(E3563=\"\",\"\",VLOOKUP(E3563,Insumos!AD:AE,2,FALSE))","v":""},null,{"$f":"IF(G3563=\"\",\"\",VLOOKUP(G3563,Insumos!G:H,2,FALSE))","v":""}]
[null,null,null,null,null,{"$f":"IF(E3564=\"\",\"\",VLOOKUP(E3564,Insumos!AD:AE,2,FALSE))","v":""},null,{"$f":"IF(G3564=\"\",\"\",VLOOKUP(G3564,Insumos!G:H,2,FALSE))","v":""}]
[null,null,null,null,null,{"$f":"IF(E3565=\"\",\"\",VLOOKUP(E3565,Insumos!AD:AE,2,FALSE))","v":""},null,{"$f":"IF(G3565=\"\",\"\",VLOOKUP(G3565,Insumos!G:H,2,FALSE))","v":""}]
[null,null,null,null,null,{"$f":"IF(E3566=\"\",\"\",VLOOKUP(E3566,Insumos!AD:AE,2,FALSE))","v":""},null,{"$f":"IF(G3566=\"\",\"\",VLOOKUP(G3566,Insumos!G:H,2,FALSE))","v":""}]
[null,null,null,null,null,{"$f":"IF(E3567=\"\",\"\",VLOOKUP(E3567,Insumos!AD:AE,2,FALSE))","v":""},null,{"$f":"IF(G3567=\"\",\"\",VLOOKUP(G3567,Insumos!G:H,2,FALSE))","v":""}]
[null,null,null,null,null,{"$f":"IF(E3568=\"\",\"\",VLOOKUP(E3568,Insumos!AD:AE,2,FALSE))","v":""},null,{"$f":"IF(G3568=\"\",\"\",VLOOKUP(G3568,Insumos!G:H,2,FALSE))","v":""}]
[null,null,null,null,null,{"$f":"IF(E3569=\"\",\"\",VLOOKUP(E3569,Insumos!AD:AE,2,FALSE))","v":""},null,{"$f":"IF(G3569=\"\",\"\",VLOOKUP(G3569,Insumos!G:H,2,FALSE))","v":""}]
[null,null,null,null,null,{"$f":"IF(E3570=\"\",\"\",VLOOKUP(E3570,Insumos!AD:AE,2,FALSE))","v":""},null,{"$f":"IF(G3570=\"\",\"\",VLOOKUP(G3570,Insumos!G:H,2,FALSE))","v":""}]
[null,null,null,null,null,{"$f":"IF(E3571=\"\",\"\",VLOOKUP(E3571,Insumos!AD:AE,2,FALSE))","v":""},null,{"$f":"IF(G3571=\"\",\"\",VLOOKUP(G3571,Insumos!G:H,2,FALSE))","v":""}]
[null,null,null,null,null,{"$f":"IF(E3572=\"\",\"\",VLOOKUP(E3572,Insumos!AD:AE,2,FALSE))","v":""},null,{"$f":"IF(G3572=\"\",\"\",VLOOKUP(G3572,Insumos!G:H,2,FALSE))","v":""}]
[null,null,null,null,null,{"$f":"IF(E3573=\"\",\"\",VLOOKUP(E3573,Insumos!AD:AE,2,FALSE))","v":""},null,{"$f":"IF(G3573=\"\",\"\",VLOOKUP(G3573,Insumos!G:H,2,FALSE))","v":""}]
[null,null,null,null,null,{"$f":"IF(E3574=\"\",\"\",VLOOKUP(E3574,Insumos!AD:AE,2,FALSE))","v":""},null,{"$f":"IF(G3574=\"\",\"\",VLOOKUP(G3574,Insumos!G:H,2,FALSE))","v":""}]
[null,null,null,null,null,{"$f":"IF(E3575=\"\",\"\",VLOOKUP(E3575,Insumos!AD:AE,2,FALSE))","v":""},null,{"$f":"IF(G3575=\"\",\"\",VLOOKUP(G3575,Insumos!G:H,2,FALSE))","v":""}]
[null,null,null,null,null,{"$f":"IF(E3576=\"\",\"\",VLOOKUP(E3576,Insumos!AD:AE,2,FALSE))","v":""},null,{"$f":"IF(G3576=\"\",\"\",VLOOKUP(G3576,Insumos!G:H,2,FALSE))","v":""}]
[null,null,null,null,null,{"$f":"IF(E3577=\"\",\"\",VLOOKUP(E3577,Insumos!AD:AE,2,FALSE))","v":""},null,{"$f":"IF(G3577=\"\",\"\",VLOOKUP(G3577,Insumos!G:H,2,FALSE))","v":""}]
[null,null,null,null,null,{"$f":"IF(E3578=\"\",\"\",VLOOKUP(E3578,Insumos!AD:AE,2,FALSE))","v":""},null,{"$f":"IF(G3578=\"\",\"\",VLOOKUP(G3578,Insumos!G:H,2,FALSE))","v":""}]
[null,null,null,null,null,{"$f":"IF(E3579=\"\",\"\",VLOOKUP(E3579,Insumos!AD:AE,2,FALSE))","v":""},null,{"$f":"IF(G3579=\"\",\"\",VLOOKUP(G3579,Insumos!G:H,2,FALSE))","v":""}]
[null,null,null,null,null,{"$f":"IF(E3580=\"\",\"\",VLOOKUP(E3580,Insumos!AD:AE,2,FALSE))","v":""},null,{"$f":"IF(G3580=\"\",\"\",VLOOKUP(G3580,Insumos!G:H,2,FALSE))","v":""}]
[null,null,null,null,null,{"$f":"IF(E3581=\"\",\"\",VLOOKUP(E3581,Insumos!AD:AE,2,FALSE))","v":""},null,{"$f":"IF(G3581=\"\",\"\",VLOOKUP(G3581,Insumos!G:H,2,FALSE))","v":""}]
[null,null,null,null,null,{"$f":"IF(E3582=\"\",\"\",VLOOKUP(E3582,Insumos!AD:AE,2,FALSE))","v":""},null,{"$f":"IF(G3582=\"\",\"\",VLOOKUP(G3582,Insumos!G:H,2,FALSE))","v":""}]
[null,null,null,null,null,{"$f":"IF(E3583=\"\",\"\",VLOOKUP(E3583,Insumos!AD:AE,2,FALSE))","v":""},null,{"$f":"IF(G3583=\"\",\"\",VLOOKUP(G3583,Insumos!G:H,2,FALSE))","v":""}]
[null,null,null,null,null,{"$f":"IF(E3584=\"\",\"\",VLOOKUP(E3584,Insumos!AD:AE,2,FALSE))","v":""},null,{"$f":"IF(G3584=\"\",\"\",VLOOKUP(G3584,Insumos!G:H,2,FALSE))","v":""}]
[null,null,null,null,null,{"$f":"IF(E3585=\"\",\"\",VLOOKUP(E3585,Insumos!AD:AE,2,FALSE))","v":""},null,{"$f":"IF(G3585=\"\",\"\",VLOOKUP(G3585,Insumos!G:H,2,FALSE))","v":""}]
[null,null,null,null,null,{"$f":"IF(E3586=\"\",\"\",VLOOKUP(E3586,Insumos!AD:AE,2,FALSE))","v":""},null,{"$f":"IF(G3586=\"\",\"\",VLOOKUP(G3586,Insumos!G:H,2,FALSE))","v":""}]
[null,null,null,null,null,{"$f":"IF(E3587=\"\",\"\",VLOOKUP(E3587,Insumos!AD:AE,2,FALSE))","v":""},null,{"$f":"IF(G3587=\"\",\"\",VLOOKUP(G3587,Insumos!G:H,2,FALSE))","v":""}]
[null,null,null,null,null,{"$f":"IF(E3588=\"\",\"\",VLOOKUP(E3588,Insumos!AD:AE,2,FALSE))","v":""},null,{"$f":"IF(G3588=\"\",\"\",VLOOKUP(G3588,Insumos!G:H,2,FALSE))","v":""}]
[null,null,null,null,null,{"$f":"IF(E3589=\"\",\"\",VLOOKUP(E3589,Insumos!AD:AE,2,FALSE))","v":""},null,{"$f":"IF(G3589=\"\",\"\",VLOOKUP(G3589,Insumos!G:H,2,FALSE))","v":""}]
[null,null,null,null,null,{"$f":"IF(E3590=\"\",\"\",VLOOKUP(E3590,Insumos!AD:AE,2,FALSE))","v":""},null,{"$f":"IF(G3590=\"\",\"\",VLOOKUP(G3590,Insumos!G:H,2,FALSE))","v":""}]
[null,null,null,null,null,{"$f":"IF(E3591=\"\",\"\",VLOOKUP(E3591,Insumos!AD:AE,2,FALSE))","v":""},null,{"$f":"IF(G3591=\"\",\"\",VLOOKUP(G3591,Insumos!G:H,2,FALSE))","v":""}]
[null,null,null,null,null,{"$f":"IF(E3592=\"\",\"\",VLOOKUP(E3592,Insumos!AD:AE,2,FALSE))","v":""},null,{"$f":"IF(G3592=\"\",\"\",VLOOKUP(G3592,Insumos!G:H,2,FALSE))","v":""}]
[null,null,null,null,null,{"$f":"IF(E3593=\"\",\"\",VLOOKUP(E3593,Insumos!AD:AE,2,FALSE))","v":""},null,{"$f":"IF(G3593=\"\",\"\",VLOOKUP(G3593,Insumos!G:H,2,FALSE))","v":""}]
[null,null,null,null,null,{"$f":"IF(E3594=\"\",\"\",VLOOKUP(E3594,Insumos!AD:AE,2,FALSE))","v":""},null,{"$f":"IF(G3594=\"\",\"\",VLOOKUP(G3594,Insumos!G:H,2,FALSE))","v":""}]
[null,null,null,null,null,{"$f":"IF(E3595=\"\",\"\",VLOOKUP(E3595,Insumos!AD:AE,2,FALSE))","v":""},null,{"$f":"IF(G3595=\"\",\"\",VLOOKUP(G3595,Insumos!G:H,2,FALSE))","v":""}]
[null,null,null,null,null,{"$f":"IF(E3596=\"\",\"\",VLOOKUP(E3596,Insumos!AD:AE,2,FALSE))","v":""},null,{"$f":"IF(G3596=\"\",\"\",VLOOKUP(G3596,Insumos!G:H,2,FALSE))","v":""}]
[null,null,null,null,null,{"$f":"IF(E3597=\"\",\"\",VLOOKUP(E3597,Insumos!AD:AE,2,FALSE))","v":""},null,{"$f":"IF(G3597=\"\",\"\",VLOOKUP(G3597,Insumos!G:H,2,FALSE))","v":""}]
[null,null,null,null,null,{"$f":"IF(E3598=\"\",\"\",VLOOKUP(E3598,Insumos!AD:AE,2,FALSE))","v":""},null,{"$f":"IF(G3598=\"\",\"\",VLOOKUP(G3598,Insumos!G:H,2,FALSE))","v":""}]
[null,null,null,null,null,{"$f":"IF(E3599=\"\",\"\",VLOOKUP(E3599,Insumos!AD:AE,2,FALSE))","v":""},null,{"$f":"IF(G3599=\"\",\"\",VLOOKUP(G3599,Insumos!G:H,2,FALSE))","v":""}]
[null,null,null,null,null,{"$f":"IF(E3600=\"\",\"\",VLOOKUP(E3600,Insumos!AD:AE,2,FALSE))","v":""},null,{"$f":"IF(G3600=\"\",\"\",VLOOKUP(G3600,Insumos!G:H,2,FALSE))","v":""}]
[null,null,null,null,null,{"$f":"IF(E3601=\"\",\"\",VLOOKUP(E3601,Insumos!AD:AE,2,FALSE))","v":""},null,{"$f":"IF(G3601=\"\",\"\",VLOOKUP(G3601,Insumos!G:H,2,FALSE))","v":""}]
[null,null,null,null,null,{"$f":"IF(E3602=\"\",\"\",VLOOKUP(E3602,Insumos!AD:AE,2,FALSE))","v":""},null,{"$f":"IF(G3602=\"\",\"\",VLOOKUP(G3602,Insumos!G:H,2,FALSE))","v":""}]
[null,null,null,null,null,{"$f":"IF(E3603=\"\",\"\",VLOOKUP(E3603,Insumos!AD:AE,2,FALSE))","v":""},null,{"$f":"IF(G3603=\"\",\"\",VLOOKUP(G3603,Insumos!G:H,2,FALSE))","v":""}]
[null,null,null,null,null,{"$f":"IF(E3604=\"\",\"\",VLOOKUP(E3604,Insumos!AD:AE,2,FALSE))","v":""},null,{"$f":"IF(G3604=\"\",\"\",VLOOKUP(G3604,Insumos!G:H,2,FALSE))","v":""}]
[null,null,null,null,null,{"$f":"IF(E3605=\"\",\"\",VLOOKUP(E3605,Insumos!AD:AE,2,FALSE))","v":""},null,{"$f":"IF(G3605=\"\",\"\",VLOOKUP(G3605,Insumos!G:H,2,FALSE))","v":""}]
[null,null,null,null,null,{"$f":"IF(E3606=\"\",\"\",VLOOKUP(E3606,Insumos!AD:AE,2,FALSE))","v":""},null,{"$f":"IF(G3606=\"\",\"\",VLOOKUP(G3606,Insumos!G:H,2,FALSE))","v":""}]
[null,null,null,null,null,{"$f":"IF(E3607=\"\",\"\",VLOOKUP(E3607,Insumos!AD:AE,2,FALSE))","v":""},null,{"$f":"IF(G3607=\"\",\"\",VLOOKUP(G3607,Insumos!G:H,2,FALSE))","v":""}]
[null,null,null,null,null,{"$f":"IF(E3608=\"\",\"\",VLOOKUP(E3608,Insumos!AD:AE,2,FALSE))","v":""},null,{"$f":"IF(G3608=\"\",\"\",VLOOKUP(G3608,Insumos!G:H,2,FALSE))","v":""}]
[null,null,null,null,null,{"$f":"IF(E3609=\"\",\"\",VLOOKUP(E3609,Insumos!AD:AE,2,FALSE))","v":""},null,{"$f":"IF(G3609=\"\",\"\",VLOOKUP(G3609,Insumos!G:H,2,FALSE))","v":""}]
[null,null,null,null,null,{"$f":"IF(E3610=\"\",\"\",VLOOKUP(E3610,Insumos!AD:AE,2,FALSE))","v":""},null,{"$f":"IF(G3610=\"\",\"\",VLOOKUP(G3610,Insumos!G:H,2,FALSE))","v":""}]
[null,null,null,null,null,{"$f":"IF(E3611=\"\",\"\",VLOOKUP(E3611,Insumos!AD:AE,2,FALSE))","v":""},null,{"$f":"IF(G3611=\"\",\"\",VLOOKUP(G3611,Insumos!G:H,2,FALSE))","v":""}]
[null,null,null,null,null,{"$f":"IF(E3612=\"\",\"\",VLOOKUP(E3612,Insumos!AD:AE,2,FALSE))","v":""},null,{"$f":"IF(G3612=\"\",\"\",VLOOKUP(G3612,Insumos!G:H,2,FALSE))","v":""}]
[null,null,null,null,null,{"$f":"IF(E3613=\"\",\"\",VLOOKUP(E3613,Insumos!AD:AE,2,FALSE))","v":""},null,{"$f":"IF(G3613=\"\",\"\",VLOOKUP(G3613,Insumos!G:H,2,FALSE))","v":""}]
[null,null,null,null,null,{"$f":"IF(E3614=\"\",\"\",VLOOKUP(E3614,Insumos!AD:AE,2,FALSE))","v":""},null,{"$f":"IF(G3614=\"\",\"\",VLOOKUP(G3614,Insumos!G:H,2,FALSE))","v":""}]
[null,null,null,null,null,{"$f":"IF(E3615=\"\",\"\",VLOOKUP(E3615,Insumos!AD:AE,2,FALSE))","v":""},null,{"$f":"IF(G3615=\"\",\"\",VLOOKUP(G3615,Insumos!G:H,2,FALSE))","v":""}]
[null,null,null,null,null,{"$f":"IF(E3616=\"\",\"\",VLOOKUP(E3616,Insumos!AD:AE,2,FALSE))","v":""},null,{"$f":"IF(G3616=\"\",\"\",VLOOKUP(G3616,Insumos!G:H,2,FALSE))","v":""}]
[null,null,null,null,null,{"$f":"IF(E3617=\"\",\"\",VLOOKUP(E3617,Insumos!AD:AE,2,FALSE))","v":""},null,{"$f":"IF(G3617=\"\",\"\",VLOOKUP(G3617,Insumos!G:H,2,FALSE))","v":""}]
[null,null,null,null,null,{"$f":"IF(E3618=\"\",\"\",VLOOKUP(E3618,Insumos!AD:AE,2,FALSE))","v":""},null,{"$f":"IF(G3618=\"\",\"\",VLOOKUP(G3618,Insumos!G:H,2,FALSE))","v":""}]
[null,null,null,null,null,{"$f":"IF(E3619=\"\",\"\",VLOOKUP(E3619,Insumos!AD:AE,2,FALSE))","v":""},null,{"$f":"IF(G3619=\"\",\"\",VLOOKUP(G3619,Insumos!G:H,2,FALSE))","v":""}]
[null,null,null,null,null,{"$f":"IF(E3620=\"\",\"\",VLOOKUP(E3620,Insumos!AD:AE,2,FALSE))","v":""},null,{"$f":"IF(G3620=\"\",\"\",VLOOKUP(G3620,Insumos!G:H,2,FALSE))","v":""}]
[null,null,null,null,null,{"$f":"IF(E3621=\"\",\"\",VLOOKUP(E3621,Insumos!AD:AE,2,FALSE))","v":""},null,{"$f":"IF(G3621=\"\",\"\",VLOOKUP(G3621,Insumos!G:H,2,FALSE))","v":""}]
[null,null,null,null,null,{"$f":"IF(E3622=\"\",\"\",VLOOKUP(E3622,Insumos!AD:AE,2,FALSE))","v":""},null,{"$f":"IF(G3622=\"\",\"\",VLOOKUP(G3622,Insumos!G:H,2,FALSE))","v":""}]
[null,null,null,null,null,{"$f":"IF(E3623=\"\",\"\",VLOOKUP(E3623,Insumos!AD:AE,2,FALSE))","v":""},null,{"$f":"IF(G3623=\"\",\"\",VLOOKUP(G3623,Insumos!G:H,2,FALSE))","v":""}]
[null,null,null,null,null,{"$f":"IF(E3624=\"\",\"\",VLOOKUP(E3624,Insumos!AD:AE,2,FALSE))","v":""},null,{"$f":"IF(G3624=\"\",\"\",VLOOKUP(G3624,Insumos!G:H,2,FALSE))","v":""}]
[null,null,null,null,null,{"$f":"IF(E3625=\"\",\"\",VLOOKUP(E3625,Insumos!AD:AE,2,FALSE))","v":""},null,{"$f":"IF(G3625=\"\",\"\",VLOOKUP(G3625,Insumos!G:H,2,FALSE))","v":""}]
[null,null,null,null,null,{"$f":"IF(E3626=\"\",\"\",VLOOKUP(E3626,Insumos!AD:AE,2,FALSE))","v":""},null,{"$f":"IF(G3626=\"\",\"\",VLOOKUP(G3626,Insumos!G:H,2,FALSE))","v":""}]
[null,null,null,null,null,{"$f":"IF(E3627=\"\",\"\",VLOOKUP(E3627,Insumos!AD:AE,2,FALSE))","v":""},null,{"$f":"IF(G3627=\"\",\"\",VLOOKUP(G3627,Insumos!G:H,2,FALSE))","v":""}]
[null,null,null,null,null,{"$f":"IF(E3628=\"\",\"\",VLOOKUP(E3628,Insumos!AD:AE,2,FALSE))","v":""},null,{"$f":"IF(G3628=\"\",\"\",VLOOKUP(G3628,Insumos!G:H,2,FALSE))","v":""}]
[null,null,null,null,null,{"$f":"IF(E3629=\"\",\"\",VLOOKUP(E3629,Insumos!AD:AE,2,FALSE))","v":""},null,{"$f":"IF(G3629=\"\",\"\",VLOOKUP(G3629,Insumos!G:H,2,FALSE))","v":""}]
[null,null,null,null,null,{"$f":"IF(E3630=\"\",\"\",VLOOKUP(E3630,Insumos!AD:AE,2,FALSE))","v":""},null,{"$f":"IF(G3630=\"\",\"\",VLOOKUP(G3630,Insumos!G:H,2,FALSE))","v":""}]
[null,null,null,null,null,{"$f":"IF(E3631=\"\",\"\",VLOOKUP(E3631,Insumos!AD:AE,2,FALSE))","v":""},null,{"$f":"IF(G3631=\"\",\"\",VLOOKUP(G3631,Insumos!G:H,2,FALSE))","v":""}]
[null,null,null,null,null,{"$f":"IF(E3632=\"\",\"\",VLOOKUP(E3632,Insumos!AD:AE,2,FALSE))","v":""},null,{"$f":"IF(G3632=\"\",\"\",VLOOKUP(G3632,Insumos!G:H,2,FALSE))","v":""}]
[null,null,null,null,null,{"$f":"IF(E3633=\"\",\"\",VLOOKUP(E3633,Insumos!AD:AE,2,FALSE))","v":""},null,{"$f":"IF(G3633=\"\",\"\",VLOOKUP(G3633,Insumos!G:H,2,FALSE))","v":""}]
[null,null,null,null,null,{"$f":"IF(E3634=\"\",\"\",VLOOKUP(E3634,Insumos!AD:AE,2,FALSE))","v":""},null,{"$f":"IF(G3634=\"\",\"\",VLOOKUP(G3634,Insumos!G:H,2,FALSE))","v":""}]
[null,null,null,null,null,{"$f":"IF(E3635=\"\",\"\",VLOOKUP(E3635,Insumos!AD:AE,2,FALSE))","v":""},null,{"$f":"IF(G3635=\"\",\"\",VLOOKUP(G3635,Insumos!G:H,2,FALSE))","v":""}]
[null,null,null,null,null,{"$f":"IF(E3636=\"\",\"\",VLOOKUP(E3636,Insumos!AD:AE,2,FALSE))","v":""},null,{"$f":"IF(G3636=\"\",\"\",VLOOKUP(G3636,Insumos!G:H,2,FALSE))","v":""}]
[null,null,null,null,null,{"$f":"IF(E3637=\"\",\"\",VLOOKUP(E3637,Insumos!AD:AE,2,FALSE))","v":""},null,{"$f":"IF(G3637=\"\",\"\",VLOOKUP(G3637,Insumos!G:H,2,FALSE))","v":""}]
[null,null,null,null,null,{"$f":"IF(E3638=\"\",\"\",VLOOKUP(E3638,Insumos!AD:AE,2,FALSE))","v":""},null,{"$f":"IF(G3638=\"\",\"\",VLOOKUP(G3638,Insumos!G:H,2,FALSE))","v":""}]
[null,null,null,null,null,{"$f":"IF(E3639=\"\",\"\",VLOOKUP(E3639,Insumos!AD:AE,2,FALSE))","v":""},null,{"$f":"IF(G3639=\"\",\"\",VLOOKUP(G3639,Insumos!G:H,2,FALSE))","v":""}]
[null,null,null,null,null,{"$f":"IF(E3640=\"\",\"\",VLOOKUP(E3640,Insumos!AD:AE,2,FALSE))","v":""},null,{"$f":"IF(G3640=\"\",\"\",VLOOKUP(G3640,Insumos!G:H,2,FALSE))","v":""}]
[null,null,null,null,null,{"$f":"IF(E3641=\"\",\"\",VLOOKUP(E3641,Insumos!AD:AE,2,FALSE))","v":""},null,{"$f":"IF(G3641=\"\",\"\",VLOOKUP(G3641,Insumos!G:H,2,FALSE))","v":""}]
[null,null,null,null,null,{"$f":"IF(E3642=\"\",\"\",VLOOKUP(E3642,Insumos!AD:AE,2,FALSE))","v":""},null,{"$f":"IF(G3642=\"\",\"\",VLOOKUP(G3642,Insumos!G:H,2,FALSE))","v":""}]
[null,null,null,null,null,{"$f":"IF(E3643=\"\",\"\",VLOOKUP(E3643,Insumos!AD:AE,2,FALSE))","v":""},null,{"$f":"IF(G3643=\"\",\"\",VLOOKUP(G3643,Insumos!G:H,2,FALSE))","v":""}]
[null,null,null,null,null,{"$f":"IF(E3644=\"\",\"\",VLOOKUP(E3644,Insumos!AD:AE,2,FALSE))","v":""},null,{"$f":"IF(G3644=\"\",\"\",VLOOKUP(G3644,Insumos!G:H,2,FALSE))","v":""}]
[null,null,null,null,null,{"$f":"IF(E3645=\"\",\"\",VLOOKUP(E3645,Insumos!AD:AE,2,FALSE))","v":""},null,{"$f":"IF(G3645=\"\",\"\",VLOOKUP(G3645,Insumos!G:H,2,FALSE))","v":""}]
[null,null,null,null,null,{"$f":"IF(E3646=\"\",\"\",VLOOKUP(E3646,Insumos!AD:AE,2,FALSE))","v":""},null,{"$f":"IF(G3646=\"\",\"\",VLOOKUP(G3646,Insumos!G:H,2,FALSE))","v":""}]
[null,null,null,null,null,{"$f":"IF(E3647=\"\",\"\",VLOOKUP(E3647,Insumos!AD:AE,2,FALSE))","v":""},null,{"$f":"IF(G3647=\"\",\"\",VLOOKUP(G3647,Insumos!G:H,2,FALSE))","v":""}]
[null,null,null,null,null,{"$f":"IF(E3648=\"\",\"\",VLOOKUP(E3648,Insumos!AD:AE,2,FALSE))","v":""},null,{"$f":"IF(G3648=\"\",\"\",VLOOKUP(G3648,Insumos!G:H,2,FALSE))","v":""}]
[null,null,null,null,null,{"$f":"IF(E3649=\"\",\"\",VLOOKUP(E3649,Insumos!AD:AE,2,FALSE))","v":""},null,{"$f":"IF(G3649=\"\",\"\",VLOOKUP(G3649,Insumos!G:H,2,FALSE))","v":""}]
[null,null,null,null,null,{"$f":"IF(E3650=\"\",\"\",VLOOKUP(E3650,Insumos!AD:AE,2,FALSE))","v":""},null,{"$f":"IF(G3650=\"\",\"\",VLOOKUP(G3650,Insumos!G:H,2,FALSE))","v":""}]
[null,null,null,null,null,{"$f":"IF(E3651=\"\",\"\",VLOOKUP(E3651,Insumos!AD:AE,2,FALSE))","v":""},null,{"$f":"IF(G3651=\"\",\"\",VLOOKUP(G3651,Insumos!G:H,2,FALSE))","v":""}]
[null,null,null,null,null,{"$f":"IF(E3652=\"\",\"\",VLOOKUP(E3652,Insumos!AD:AE,2,FALSE))","v":""},null,{"$f":"IF(G3652=\"\",\"\",VLOOKUP(G3652,Insumos!G:H,2,FALSE))","v":""}]
[null,null,null,null,null,{"$f":"IF(E3653=\"\",\"\",VLOOKUP(E3653,Insumos!AD:AE,2,FALSE))","v":""},null,{"$f":"IF(G3653=\"\",\"\",VLOOKUP(G3653,Insumos!G:H,2,FALSE))","v":""}]
[null,null,null,null,null,{"$f":"IF(E3654=\"\",\"\",VLOOKUP(E3654,Insumos!AD:AE,2,FALSE))","v":""},null,{"$f":"IF(G3654=\"\",\"\",VLOOKUP(G3654,Insumos!G:H,2,FALSE))","v":""}]
[null,null,null,null,null,{"$f":"IF(E3655=\"\",\"\",VLOOKUP(E3655,Insumos!AD:AE,2,FALSE))","v":""},null,{"$f":"IF(G3655=\"\",\"\",VLOOKUP(G3655,Insumos!G:H,2,FALSE))","v":""}]
[null,null,null,null,null,{"$f":"IF(E3656=\"\",\"\",VLOOKUP(E3656,Insumos!AD:AE,2,FALSE))","v":""},null,{"$f":"IF(G3656=\"\",\"\",VLOOKUP(G3656,Insumos!G:H,2,FALSE))","v":""}]
[null,null,null,null,null,{"$f":"IF(E3657=\"\",\"\",VLOOKUP(E3657,Insumos!AD:AE,2,FALSE))","v":""},null,{"$f":"IF(G3657=\"\",\"\",VLOOKUP(G3657,Insumos!G:H,2,FALSE))","v":""}]
[null,null,null,null,null,{"$f":"IF(E3658=\"\",\"\",VLOOKUP(E3658,Insumos!AD:AE,2,FALSE))","v":""},null,{"$f":"IF(G3658=\"\",\"\",VLOOKUP(G3658,Insumos!G:H,2,FALSE))","v":""}]
[null,null,null,null,null,{"$f":"IF(E3659=\"\",\"\",VLOOKUP(E3659,Insumos!AD:AE,2,FALSE))","v":""},null,{"$f":"IF(G3659=\"\",\"\",VLOOKUP(G3659,Insumos!G:H,2,FALSE))","v":""}]
[null,null,null,null,null,{"$f":"IF(E3660=\"\",\"\",VLOOKUP(E3660,Insumos!AD:AE,2,FALSE))","v":""},null,{"$f":"IF(G3660=\"\",\"\",VLOOKUP(G3660,Insumos!G:H,2,FALSE))","v":""}]
[null,null,null,null,null,{"$f":"IF(E3661=\"\",\"\",VLOOKUP(E3661,Insumos!AD:AE,2,FALSE))","v":""},null,{"$f":"IF(G3661=\"\",\"\",VLOOKUP(G3661,Insumos!G:H,2,FALSE))","v":""}]
[null,null,null,null,null,{"$f":"IF(E3662=\"\",\"\",VLOOKUP(E3662,Insumos!AD:AE,2,FALSE))","v":""},null,{"$f":"IF(G3662=\"\",\"\",VLOOKUP(G3662,Insumos!G:H,2,FALSE))","v":""}]
[null,null,null,null,null,{"$f":"IF(E3663=\"\",\"\",VLOOKUP(E3663,Insumos!AD:AE,2,FALSE))","v":""},null,{"$f":"IF(G3663=\"\",\"\",VLOOKUP(G3663,Insumos!G:H,2,FALSE))","v":""}]
[null,null,null,null,null,{"$f":"IF(E3664=\"\",\"\",VLOOKUP(E3664,Insumos!AD:AE,2,FALSE))","v":""},null,{"$f":"IF(G3664=\"\",\"\",VLOOKUP(G3664,Insumos!G:H,2,FALSE))","v":""}]
[null,null,null,null,null,{"$f":"IF(E3665=\"\",\"\",VLOOKUP(E3665,Insumos!AD:AE,2,FALSE))","v":""},null,{"$f":"IF(G3665=\"\",\"\",VLOOKUP(G3665,Insumos!G:H,2,FALSE))","v":""}]
[null,null,null,null,null,{"$f":"IF(E3666=\"\",\"\",VLOOKUP(E3666,Insumos!AD:AE,2,FALSE))","v":""},null,{"$f":"IF(G3666=\"\",\"\",VLOOKUP(G3666,Insumos!G:H,2,FALSE))","v":""}]
[null,null,null,null,null,{"$f":"IF(E3667=\"\",\"\",VLOOKUP(E3667,Insumos!AD:AE,2,FALSE))","v":""},null,{"$f":"IF(G3667=\"\",\"\",VLOOKUP(G3667,Insumos!G:H,2,FALSE))","v":""}]
[null,null,null,null,null,{"$f":"IF(E3668=\"\",\"\",VLOOKUP(E3668,Insumos!AD:AE,2,FALSE))","v":""},null,{"$f":"IF(G3668=\"\",\"\",VLOOKUP(G3668,Insumos!G:H,2,FALSE))","v":""}]
[null,null,null,null,null,{"$f":"IF(E3669=\"\",\"\",VLOOKUP(E3669,Insumos!AD:AE,2,FALSE))","v":""},null,{"$f":"IF(G3669=\"\",\"\",VLOOKUP(G3669,Insumos!G:H,2,FALSE))","v":""}]
[null,null,null,null,null,{"$f":"IF(E3670=\"\",\"\",VLOOKUP(E3670,Insumos!AD:AE,2,FALSE))","v":""},null,{"$f":"IF(G3670=\"\",\"\",VLOOKUP(G3670,Insumos!G:H,2,FALSE))","v":""}]
[null,null,null,null,null,{"$f":"IF(E3671=\"\",\"\",VLOOKUP(E3671,Insumos!AD:AE,2,FALSE))","v":""},null,{"$f":"IF(G3671=\"\",\"\",VLOOKUP(G3671,Insumos!G:H,2,FALSE))","v":""}]
[null,null,null,null,null,{"$f":"IF(E3672=\"\",\"\",VLOOKUP(E3672,Insumos!AD:AE,2,FALSE))","v":""},null,{"$f":"IF(G3672=\"\",\"\",VLOOKUP(G3672,Insumos!G:H,2,FALSE))","v":""}]
[null,null,null,null,null,{"$f":"IF(E3673=\"\",\"\",VLOOKUP(E3673,Insumos!AD:AE,2,FALSE))","v":""},null,{"$f":"IF(G3673=\"\",\"\",VLOOKUP(G3673,Insumos!G:H,2,FALSE))","v":""}]
[null,null,null,null,null,{"$f":"IF(E3674=\"\",\"\",VLOOKUP(E3674,Insumos!AD:AE,2,FALSE))","v":""},null,{"$f":"IF(G3674=\"\",\"\",VLOOKUP(G3674,Insumos!G:H,2,FALSE))","v":""}]
[null,null,null,null,null,{"$f":"IF(E3675=\"\",\"\",VLOOKUP(E3675,Insumos!AD:AE,2,FALSE))","v":""},null,{"$f":"IF(G3675=\"\",\"\",VLOOKUP(G3675,Insumos!G:H,2,FALSE))","v":""}]
[null,null,null,null,null,{"$f":"IF(E3676=\"\",\"\",VLOOKUP(E3676,Insumos!AD:AE,2,FALSE))","v":""},null,{"$f":"IF(G3676=\"\",\"\",VLOOKUP(G3676,Insumos!G:H,2,FALSE))","v":""}]
[null,null,null,null,null,{"$f":"IF(E3677=\"\",\"\",VLOOKUP(E3677,Insumos!AD:AE,2,FALSE))","v":""},null,{"$f":"IF(G3677=\"\",\"\",VLOOKUP(G3677,Insumos!G:H,2,FALSE))","v":""}]
[null,null,null,null,null,{"$f":"IF(E3678=\"\",\"\",VLOOKUP(E3678,Insumos!AD:AE,2,FALSE))","v":""},null,{"$f":"IF(G3678=\"\",\"\",VLOOKUP(G3678,Insumos!G:H,2,FALSE))","v":""}]
[null,null,null,null,null,{"$f":"IF(E3679=\"\",\"\",VLOOKUP(E3679,Insumos!AD:AE,2,FALSE))","v":""},null,{"$f":"IF(G3679=\"\",\"\",VLOOKUP(G3679,Insumos!G:H,2,FALSE))","v":""}]
[null,null,null,null,null,{"$f":"IF(E3680=\"\",\"\",VLOOKUP(E3680,Insumos!AD:AE,2,FALSE))","v":""},null,{"$f":"IF(G3680=\"\",\"\",VLOOKUP(G3680,Insumos!G:H,2,FALSE))","v":""}]
[null,null,null,null,null,{"$f":"IF(E3681=\"\",\"\",VLOOKUP(E3681,Insumos!AD:AE,2,FALSE))","v":""},null,{"$f":"IF(G3681=\"\",\"\",VLOOKUP(G3681,Insumos!G:H,2,FALSE))","v":""}]
[null,null,null,null,null,{"$f":"IF(E3682=\"\",\"\",VLOOKUP(E3682,Insumos!AD:AE,2,FALSE))","v":""},null,{"$f":"IF(G3682=\"\",\"\",VLOOKUP(G3682,Insumos!G:H,2,FALSE))","v":""}]
[null,null,null,null,null,{"$f":"IF(E3683=\"\",\"\",VLOOKUP(E3683,Insumos!AD:AE,2,FALSE))","v":""},null,{"$f":"IF(G3683=\"\",\"\",VLOOKUP(G3683,Insumos!G:H,2,FALSE))","v":""}]
[null,null,null,null,null,{"$f":"IF(E3684=\"\",\"\",VLOOKUP(E3684,Insumos!AD:AE,2,FALSE))","v":""},null,{"$f":"IF(G3684=\"\",\"\",VLOOKUP(G3684,Insumos!G:H,2,FALSE))","v":""}]
[null,null,null,null,null,{"$f":"IF(E3685=\"\",\"\",VLOOKUP(E3685,Insumos!AD:AE,2,FALSE))","v":""},null,{"$f":"IF(G3685=\"\",\"\",VLOOKUP(G3685,Insumos!G:H,2,FALSE))","v":""}]
[null,null,null,null,null,{"$f":"IF(E3686=\"\",\"\",VLOOKUP(E3686,Insumos!AD:AE,2,FALSE))","v":""},null,{"$f":"IF(G3686=\"\",\"\",VLOOKUP(G3686,Insumos!G:H,2,FALSE))","v":""}]
[null,null,null,null,null,{"$f":"IF(E3687=\"\",\"\",VLOOKUP(E3687,Insumos!AD:AE,2,FALSE))","v":""},null,{"$f":"IF(G3687=\"\",\"\",VLOOKUP(G3687,Insumos!G:H,2,FALSE))","v":""}]
[null,null,null,null,null,{"$f":"IF(E3688=\"\",\"\",VLOOKUP(E3688,Insumos!AD:AE,2,FALSE))","v":""},null,{"$f":"IF(G3688=\"\",\"\",VLOOKUP(G3688,Insumos!G:H,2,FALSE))","v":""}]
[null,null,null,null,null,{"$f":"IF(E3689=\"\",\"\",VLOOKUP(E3689,Insumos!AD:AE,2,FALSE))","v":""},null,{"$f":"IF(G3689=\"\",\"\",VLOOKUP(G3689,Insumos!G:H,2,FALSE))","v":""}]
[null,null,null,null,null,{"$f":"IF(E3690=\"\",\"\",VLOOKUP(E3690,Insumos!AD:AE,2,FALSE))","v":""},null,{"$f":"IF(G3690=\"\",\"\",VLOOKUP(G3690,Insumos!G:H,2,FALSE))","v":""}]
[null,null,null,null,null,{"$f":"IF(E3691=\"\",\"\",VLOOKUP(E3691,Insumos!AD:AE,2,FALSE))","v":""},null,{"$f":"IF(G3691=\"\",\"\",VLOOKUP(G3691,Insumos!G:H,2,FALSE))","v":""}]
[null,null,null,null,null,{"$f":"IF(E3692=\"\",\"\",VLOOKUP(E3692,Insumos!AD:AE,2,FALSE))","v":""},null,{"$f":"IF(G3692=\"\",\"\",VLOOKUP(G3692,Insumos!G:H,2,FALSE))","v":""}]
[null,null,null,null,null,{"$f":"IF(E3693=\"\",\"\",VLOOKUP(E3693,Insumos!AD:AE,2,FALSE))","v":""},null,{"$f":"IF(G3693=\"\",\"\",VLOOKUP(G3693,Insumos!G:H,2,FALSE))","v":""}]
[null,null,null,null,null,{"$f":"IF(E3694=\"\",\"\",VLOOKUP(E3694,Insumos!AD:AE,2,FALSE))","v":""},null,{"$f":"IF(G3694=\"\",\"\",VLOOKUP(G3694,Insumos!G:H,2,FALSE))","v":""}]
[null,null,null,null,null,{"$f":"IF(E3695=\"\",\"\",VLOOKUP(E3695,Insumos!AD:AE,2,FALSE))","v":""},null,{"$f":"IF(G3695=\"\",\"\",VLOOKUP(G3695,Insumos!G:H,2,FALSE))","v":""}]
[null,null,null,null,null,{"$f":"IF(E3696=\"\",\"\",VLOOKUP(E3696,Insumos!AD:AE,2,FALSE))","v":""},null,{"$f":"IF(G3696=\"\",\"\",VLOOKUP(G3696,Insumos!G:H,2,FALSE))","v":""}]
[null,null,null,null,null,{"$f":"IF(E3697=\"\",\"\",VLOOKUP(E3697,Insumos!AD:AE,2,FALSE))","v":""},null,{"$f":"IF(G3697=\"\",\"\",VLOOKUP(G3697,Insumos!G:H,2,FALSE))","v":""}]
[null,null,null,null,null,{"$f":"IF(E3698=\"\",\"\",VLOOKUP(E3698,Insumos!AD:AE,2,FALSE))","v":""},null,{"$f":"IF(G3698=\"\",\"\",VLOOKUP(G3698,Insumos!G:H,2,FALSE))","v":""}]
[null,null,null,null,null,{"$f":"IF(E3699=\"\",\"\",VLOOKUP(E3699,Insumos!AD:AE,2,FALSE))","v":""},null,{"$f":"IF(G3699=\"\",\"\",VLOOKUP(G3699,Insumos!G:H,2,FALSE))","v":""}]
[null,null,null,null,null,{"$f":"IF(E3700=\"\",\"\",VLOOKUP(E3700,Insumos!AD:AE,2,FALSE))","v":""},null,{"$f":"IF(G3700=\"\",\"\",VLOOKUP(G3700,Insumos!G:H,2,FALSE))","v":""}]
[null,null,null,null,null,{"$f":"IF(E3701=\"\",\"\",VLOOKUP(E3701,Insumos!AD:AE,2,FALSE))","v":""},null,{"$f":"IF(G3701=\"\",\"\",VLOOKUP(G3701,Insumos!G:H,2,FALSE))","v":""}]
[null,null,null,null,null,{"$f":"IF(E3702=\"\",\"\",VLOOKUP(E3702,Insumos!AD:AE,2,FALSE))","v":""},null,{"$f":"IF(G3702=\"\",\"\",VLOOKUP(G3702,Insumos!G:H,2,FALSE))","v":""}]
[null,null,null,null,null,{"$f":"IF(E3703=\"\",\"\",VLOOKUP(E3703,Insumos!AD:AE,2,FALSE))","v":""},null,{"$f":"IF(G3703=\"\",\"\",VLOOKUP(G3703,Insumos!G:H,2,FALSE))","v":""}]
[null,null,null,null,null,{"$f":"IF(E3704=\"\",\"\",VLOOKUP(E3704,Insumos!AD:AE,2,FALSE))","v":""},null,{"$f":"IF(G3704=\"\",\"\",VLOOKUP(G3704,Insumos!G:H,2,FALSE))","v":""}]
[null,null,null,null,null,{"$f":"IF(E3705=\"\",\"\",VLOOKUP(E3705,Insumos!AD:AE,2,FALSE))","v":""},null,{"$f":"IF(G3705=\"\",\"\",VLOOKUP(G3705,Insumos!G:H,2,FALSE))","v":""}]
[null,null,null,null,null,{"$f":"IF(E3706=\"\",\"\",VLOOKUP(E3706,Insumos!AD:AE,2,FALSE))","v":""},null,{"$f":"IF(G3706=\"\",\"\",VLOOKUP(G3706,Insumos!G:H,2,FALSE))","v":""}]
[null,null,null,null,null,{"$f":"IF(E3707=\"\",\"\",VLOOKUP(E3707,Insumos!AD:AE,2,FALSE))","v":""},null,{"$f":"IF(G3707=\"\",\"\",VLOOKUP(G3707,Insumos!G:H,2,FALSE))","v":""}]
[null,null,null,null,null,{"$f":"IF(E3708=\"\",\"\",VLOOKUP(E3708,Insumos!AD:AE,2,FALSE))","v":""},null,{"$f":"IF(G3708=\"\",\"\",VLOOKUP(G3708,Insumos!G:H,2,FALSE))","v":""}]
[null,null,null,null,null,{"$f":"IF(E3709=\"\",\"\",VLOOKUP(E3709,Insumos!AD:AE,2,FALSE))","v":""},null,{"$f":"IF(G3709=\"\",\"\",VLOOKUP(G3709,Insumos!G:H,2,FALSE))","v":""}]
[null,null,null,null,null,{"$f":"IF(E3710=\"\",\"\",VLOOKUP(E3710,Insumos!AD:AE,2,FALSE))","v":""},null,{"$f":"IF(G3710=\"\",\"\",VLOOKUP(G3710,Insumos!G:H,2,FALSE))","v":""}]
[null,null,null,null,null,{"$f":"IF(E3711=\"\",\"\",VLOOKUP(E3711,Insumos!AD:AE,2,FALSE))","v":""},null,{"$f":"IF(G3711=\"\",\"\",VLOOKUP(G3711,Insumos!G:H,2,FALSE))","v":""}]
[null,null,null,null,null,{"$f":"IF(E3712=\"\",\"\",VLOOKUP(E3712,Insumos!AD:AE,2,FALSE))","v":""},null,{"$f":"IF(G3712=\"\",\"\",VLOOKUP(G3712,Insumos!G:H,2,FALSE))","v":""}]
[null,null,null,null,null,{"$f":"IF(E3713=\"\",\"\",VLOOKUP(E3713,Insumos!AD:AE,2,FALSE))","v":""},null,{"$f":"IF(G3713=\"\",\"\",VLOOKUP(G3713,Insumos!G:H,2,FALSE))","v":""}]
[null,null,null,null,null,{"$f":"IF(E3714=\"\",\"\",VLOOKUP(E3714,Insumos!AD:AE,2,FALSE))","v":""},null,{"$f":"IF(G3714=\"\",\"\",VLOOKUP(G3714,Insumos!G:H,2,FALSE))","v":""}]
[null,null,null,null,null,{"$f":"IF(E3715=\"\",\"\",VLOOKUP(E3715,Insumos!AD:AE,2,FALSE))","v":""},null,{"$f":"IF(G3715=\"\",\"\",VLOOKUP(G3715,Insumos!G:H,2,FALSE))","v":""}]
[null,null,null,null,null,{"$f":"IF(E3716=\"\",\"\",VLOOKUP(E3716,Insumos!AD:AE,2,FALSE))","v":""},null,{"$f":"IF(G3716=\"\",\"\",VLOOKUP(G3716,Insumos!G:H,2,FALSE))","v":""}]
[null,null,null,null,null,{"$f":"IF(E3717=\"\",\"\",VLOOKUP(E3717,Insumos!AD:AE,2,FALSE))","v":""},null,{"$f":"IF(G3717=\"\",\"\",VLOOKUP(G3717,Insumos!G:H,2,FALSE))","v":""}]
[null,null,null,null,null,{"$f":"IF(E3718=\"\",\"\",VLOOKUP(E3718,Insumos!AD:AE,2,FALSE))","v":""},null,{"$f":"IF(G3718=\"\",\"\",VLOOKUP(G3718,Insumos!G:H,2,FALSE))","v":""}]
[null,null,null,null,null,{"$f":"IF(E3719=\"\",\"\",VLOOKUP(E3719,Insumos!AD:AE,2,FALSE))","v":""},null,{"$f":"IF(G3719=\"\",\"\",VLOOKUP(G3719,Insumos!G:H,2,FALSE))","v":""}]
[null,null,null,null,null,{"$f":"IF(E3720=\"\",\"\",VLOOKUP(E3720,Insumos!AD:AE,2,FALSE))","v":""},null,{"$f":"IF(G3720=\"\",\"\",VLOOKUP(G3720,Insumos!G:H,2,FALSE))","v":""}]
[null,null,null,null,null,{"$f":"IF(E3721=\"\",\"\",VLOOKUP(E3721,Insumos!AD:AE,2,FALSE))","v":""},null,{"$f":"IF(G3721=\"\",\"\",VLOOKUP(G3721,Insumos!G:H,2,FALSE))","v":""}]
[null,null,null,null,null,{"$f":"IF(E3722=\"\",\"\",VLOOKUP(E3722,Insumos!AD:AE,2,FALSE))","v":""},null,{"$f":"IF(G3722=\"\",\"\",VLOOKUP(G3722,Insumos!G:H,2,FALSE))","v":""}]
[null,null,null,null,null,{"$f":"IF(E3723=\"\",\"\",VLOOKUP(E3723,Insumos!AD:AE,2,FALSE))","v":""},null,{"$f":"IF(G3723=\"\",\"\",VLOOKUP(G3723,Insumos!G:H,2,FALSE))","v":""}]
[null,null,null,null,null,{"$f":"IF(E3724=\"\",\"\",VLOOKUP(E3724,Insumos!AD:AE,2,FALSE))","v":""},null,{"$f":"IF(G3724=\"\",\"\",VLOOKUP(G3724,Insumos!G:H,2,FALSE))","v":""}]
[null,null,null,null,null,{"$f":"IF(E3725=\"\",\"\",VLOOKUP(E3725,Insumos!AD:AE,2,FALSE))","v":""},null,{"$f":"IF(G3725=\"\",\"\",VLOOKUP(G3725,Insumos!G:H,2,FALSE))","v":""}]
[null,null,null,null,null,{"$f":"IF(E3726=\"\",\"\",VLOOKUP(E3726,Insumos!AD:AE,2,FALSE))","v":""},null,{"$f":"IF(G3726=\"\",\"\",VLOOKUP(G3726,Insumos!G:H,2,FALSE))","v":""}]
[null,null,null,null,null,{"$f":"IF(E3727=\"\",\"\",VLOOKUP(E3727,Insumos!AD:AE,2,FALSE))","v":""},null,{"$f":"IF(G3727=\"\",\"\",VLOOKUP(G3727,Insumos!G:H,2,FALSE))","v":""}]
[null,null,null,null,null,{"$f":"IF(E3728=\"\",\"\",VLOOKUP(E3728,Insumos!AD:AE,2,FALSE))","v":""},null,{"$f":"IF(G3728=\"\",\"\",VLOOKUP(G3728,Insumos!G:H,2,FALSE))","v":""}]
[null,null,null,null,null,{"$f":"IF(E3729=\"\",\"\",VLOOKUP(E3729,Insumos!AD:AE,2,FALSE))","v":""},null,{"$f":"IF(G3729=\"\",\"\",VLOOKUP(G3729,Insumos!G:H,2,FALSE))","v":""}]
[null,null,null,null,null,{"$f":"IF(E3730=\"\",\"\",VLOOKUP(E3730,Insumos!AD:AE,2,FALSE))","v":""},null,{"$f":"IF(G3730=\"\",\"\",VLOOKUP(G3730,Insumos!G:H,2,FALSE))","v":""}]
[null,null,null,null,null,{"$f":"IF(E3731=\"\",\"\",VLOOKUP(E3731,Insumos!AD:AE,2,FALSE))","v":""},null,{"$f":"IF(G3731=\"\",\"\",VLOOKUP(G3731,Insumos!G:H,2,FALSE))","v":""}]
[null,null,null,null,null,{"$f":"IF(E3732=\"\",\"\",VLOOKUP(E3732,Insumos!AD:AE,2,FALSE))","v":""},null,{"$f":"IF(G3732=\"\",\"\",VLOOKUP(G3732,Insumos!G:H,2,FALSE))","v":""}]
[null,null,null,null,null,{"$f":"IF(E3733=\"\",\"\",VLOOKUP(E3733,Insumos!AD:AE,2,FALSE))","v":""},null,{"$f":"IF(G3733=\"\",\"\",VLOOKUP(G3733,Insumos!G:H,2,FALSE))","v":""}]
[null,null,null,null,null,{"$f":"IF(E3734=\"\",\"\",VLOOKUP(E3734,Insumos!AD:AE,2,FALSE))","v":""},null,{"$f":"IF(G3734=\"\",\"\",VLOOKUP(G3734,Insumos!G:H,2,FALSE))","v":""}]
[null,null,null,null,null,{"$f":"IF(E3735=\"\",\"\",VLOOKUP(E3735,Insumos!AD:AE,2,FALSE))","v":""},null,{"$f":"IF(G3735=\"\",\"\",VLOOKUP(G3735,Insumos!G:H,2,FALSE))","v":""}]
[null,null,null,null,null,{"$f":"IF(E3736=\"\",\"\",VLOOKUP(E3736,Insumos!AD:AE,2,FALSE))","v":""},null,{"$f":"IF(G3736=\"\",\"\",VLOOKUP(G3736,Insumos!G:H,2,FALSE))","v":""}]
[null,null,null,null,null,{"$f":"IF(E3737=\"\",\"\",VLOOKUP(E3737,Insumos!AD:AE,2,FALSE))","v":""},null,{"$f":"IF(G3737=\"\",\"\",VLOOKUP(G3737,Insumos!G:H,2,FALSE))","v":""}]
[null,null,null,null,null,{"$f":"IF(E3738=\"\",\"\",VLOOKUP(E3738,Insumos!AD:AE,2,FALSE))","v":""},null,{"$f":"IF(G3738=\"\",\"\",VLOOKUP(G3738,Insumos!G:H,2,FALSE))","v":""}]
[null,null,null,null,null,{"$f":"IF(E3739=\"\",\"\",VLOOKUP(E3739,Insumos!AD:AE,2,FALSE))","v":""},null,{"$f":"IF(G3739=\"\",\"\",VLOOKUP(G3739,Insumos!G:H,2,FALSE))","v":""}]
[null,null,null,null,null,{"$f":"IF(E3740=\"\",\"\",VLOOKUP(E3740,Insumos!AD:AE,2,FALSE))","v":""},null,{"$f":"IF(G3740=\"\",\"\",VLOOKUP(G3740,Insumos!G:H,2,FALSE))","v":""}]
[null,null,null,null,null,{"$f":"IF(E3741=\"\",\"\",VLOOKUP(E3741,Insumos!AD:AE,2,FALSE))","v":""},null,{"$f":"IF(G3741=\"\",\"\",VLOOKUP(G3741,Insumos!G:H,2,FALSE))","v":""}]
[null,null,null,null,null,{"$f":"IF(E3742=\"\",\"\",VLOOKUP(E3742,Insumos!AD:AE,2,FALSE))","v":""},null,{"$f":"IF(G3742=\"\",\"\",VLOOKUP(G3742,Insumos!G:H,2,FALSE))","v":""}]
[null,null,null,null,null,{"$f":"IF(E3743=\"\",\"\",VLOOKUP(E3743,Insumos!AD:AE,2,FALSE))","v":""},null,{"$f":"IF(G3743=\"\",\"\",VLOOKUP(G3743,Insumos!G:H,2,FALSE))","v":""}]
[null,null,null,null,null,{"$f":"IF(E3744=\"\",\"\",VLOOKUP(E3744,Insumos!AD:AE,2,FALSE))","v":""},null,{"$f":"IF(G3744=\"\",\"\",VLOOKUP(G3744,Insumos!G:H,2,FALSE))","v":""}]
[null,null,null,null,null,{"$f":"IF(E3745=\"\",\"\",VLOOKUP(E3745,Insumos!AD:AE,2,FALSE))","v":""},null,{"$f":"IF(G3745=\"\",\"\",VLOOKUP(G3745,Insumos!G:H,2,FALSE))","v":""}]
[null,null,null,null,null,{"$f":"IF(E3746=\"\",\"\",VLOOKUP(E3746,Insumos!AD:AE,2,FALSE))","v":""},null,{"$f":"IF(G3746=\"\",\"\",VLOOKUP(G3746,Insumos!G:H,2,FALSE))","v":""}]
[null,null,null,null,null,{"$f":"IF(E3747=\"\",\"\",VLOOKUP(E3747,Insumos!AD:AE,2,FALSE))","v":""},null,{"$f":"IF(G3747=\"\",\"\",VLOOKUP(G3747,Insumos!G:H,2,FALSE))","v":""}]
[null,null,null,null,null,{"$f":"IF(E3748=\"\",\"\",VLOOKUP(E3748,Insumos!AD:AE,2,FALSE))","v":""},null,{"$f":"IF(G3748=\"\",\"\",VLOOKUP(G3748,Insumos!G:H,2,FALSE))","v":""}]
[null,null,null,null,null,{"$f":"IF(E3749=\"\",\"\",VLOOKUP(E3749,Insumos!AD:AE,2,FALSE))","v":""},null,{"$f":"IF(G3749=\"\",\"\",VLOOKUP(G3749,Insumos!G:H,2,FALSE))","v":""}]
[null,null,null,null,null,{"$f":"IF(E3750=\"\",\"\",VLOOKUP(E3750,Insumos!AD:AE,2,FALSE))","v":""},null,{"$f":"IF(G3750=\"\",\"\",VLOOKUP(G3750,Insumos!G:H,2,FALSE))","v":""}]
[null,null,null,null,null,{"$f":"IF(E3751=\"\",\"\",VLOOKUP(E3751,Insumos!AD:AE,2,FALSE))","v":""},null,{"$f":"IF(G3751=\"\",\"\",VLOOKUP(G3751,Insumos!G:H,2,FALSE))","v":""}]
[null,null,null,null,null,{"$f":"IF(E3752=\"\",\"\",VLOOKUP(E3752,Insumos!AD:AE,2,FALSE))","v":""},null,{"$f":"IF(G3752=\"\",\"\",VLOOKUP(G3752,Insumos!G:H,2,FALSE))","v":""}]
[null,null,null,null,null,{"$f":"IF(E3753=\"\",\"\",VLOOKUP(E3753,Insumos!AD:AE,2,FALSE))","v":""},null,{"$f":"IF(G3753=\"\",\"\",VLOOKUP(G3753,Insumos!G:H,2,FALSE))","v":""}]
[null,null,null,null,null,{"$f":"IF(E3754=\"\",\"\",VLOOKUP(E3754,Insumos!AD:AE,2,FALSE))","v":""},null,{"$f":"IF(G3754=\"\",\"\",VLOOKUP(G3754,Insumos!G:H,2,FALSE))","v":""}]
[null,null,null,null,null,{"$f":"IF(E3755=\"\",\"\",VLOOKUP(E3755,Insumos!AD:AE,2,FALSE))","v":""},null,{"$f":"IF(G3755=\"\",\"\",VLOOKUP(G3755,Insumos!G:H,2,FALSE))","v":""}]
[null,null,null,null,null,{"$f":"IF(E3756=\"\",\"\",VLOOKUP(E3756,Insumos!AD:AE,2,FALSE))","v":""},null,{"$f":"IF(G3756=\"\",\"\",VLOOKUP(G3756,Insumos!G:H,2,FALSE))","v":""}]
[null,null,null,null,null,{"$f":"IF(E3757=\"\",\"\",VLOOKUP(E3757,Insumos!AD:AE,2,FALSE))","v":""},null,{"$f":"IF(G3757=\"\",\"\",VLOOKUP(G3757,Insumos!G:H,2,FALSE))","v":""}]
[null,null,null,null,null,{"$f":"IF(E3758=\"\",\"\",VLOOKUP(E3758,Insumos!AD:AE,2,FALSE))","v":""},null,{"$f":"IF(G3758=\"\",\"\",VLOOKUP(G3758,Insumos!G:H,2,FALSE))","v":""}]
[null,null,null,null,null,{"$f":"IF(E3759=\"\",\"\",VLOOKUP(E3759,Insumos!AD:AE,2,FALSE))","v":""},null,{"$f":"IF(G3759=\"\",\"\",VLOOKUP(G3759,Insumos!G:H,2,FALSE))","v":""}]
[null,null,null,null,null,{"$f":"IF(E3760=\"\",\"\",VLOOKUP(E3760,Insumos!AD:AE,2,FALSE))","v":""},null,{"$f":"IF(G3760=\"\",\"\",VLOOKUP(G3760,Insumos!G:H,2,FALSE))","v":""}]
[null,null,null,null,null,{"$f":"IF(E3761=\"\",\"\",VLOOKUP(E3761,Insumos!AD:AE,2,FALSE))","v":""},null,{"$f":"IF(G3761=\"\",\"\",VLOOKUP(G3761,Insumos!G:H,2,FALSE))","v":""}]
[null,null,null,null,null,{"$f":"IF(E3762=\"\",\"\",VLOOKUP(E3762,Insumos!AD:AE,2,FALSE))","v":""},null,{"$f":"IF(G3762=\"\",\"\",VLOOKUP(G3762,Insumos!G:H,2,FALSE))","v":""}]
[null,null,null,null,null,{"$f":"IF(E3763=\"\",\"\",VLOOKUP(E3763,Insumos!AD:AE,2,FALSE))","v":""},null,{"$f":"IF(G3763=\"\",\"\",VLOOKUP(G3763,Insumos!G:H,2,FALSE))","v":""}]
[null,null,null,null,null,{"$f":"IF(E3764=\"\",\"\",VLOOKUP(E3764,Insumos!AD:AE,2,FALSE))","v":""},null,{"$f":"IF(G3764=\"\",\"\",VLOOKUP(G3764,Insumos!G:H,2,FALSE))","v":""}]
[null,null,null,null,null,{"$f":"IF(E3765=\"\",\"\",VLOOKUP(E3765,Insumos!AD:AE,2,FALSE))","v":""},null,{"$f":"IF(G3765=\"\",\"\",VLOOKUP(G3765,Insumos!G:H,2,FALSE))","v":""}]
[null,null,null,null,null,{"$f":"IF(E3766=\"\",\"\",VLOOKUP(E3766,Insumos!AD:AE,2,FALSE))","v":""},null,{"$f":"IF(G3766=\"\",\"\",VLOOKUP(G3766,Insumos!G:H,2,FALSE))","v":""}]
[null,null,null,null,null,{"$f":"IF(E3767=\"\",\"\",VLOOKUP(E3767,Insumos!AD:AE,2,FALSE))","v":""},null,{"$f":"IF(G3767=\"\",\"\",VLOOKUP(G3767,Insumos!G:H,2,FALSE))","v":""}]
[null,null,null,null,null,{"$f":"IF(E3768=\"\",\"\",VLOOKUP(E3768,Insumos!AD:AE,2,FALSE))","v":""},null,{"$f":"IF(G3768=\"\",\"\",VLOOKUP(G3768,Insumos!G:H,2,FALSE))","v":""}]
[null,null,null,null,null,{"$f":"IF(E3769=\"\",\"\",VLOOKUP(E3769,Insumos!AD:AE,2,FALSE))","v":""},null,{"$f":"IF(G3769=\"\",\"\",VLOOKUP(G3769,Insumos!G:H,2,FALSE))","v":""}]
[null,null,null,null,null,{"$f":"IF(E3770=\"\",\"\",VLOOKUP(E3770,Insumos!AD:AE,2,FALSE))","v":""},null,{"$f":"IF(G3770=\"\",\"\",VLOOKUP(G3770,Insumos!G:H,2,FALSE))","v":""}]
[null,null,null,null,null,{"$f":"IF(E3771=\"\",\"\",VLOOKUP(E3771,Insumos!AD:AE,2,FALSE))","v":""},null,{"$f":"IF(G3771=\"\",\"\",VLOOKUP(G3771,Insumos!G:H,2,FALSE))","v":""}]
[null,null,null,null,null,{"$f":"IF(E3772=\"\",\"\",VLOOKUP(E3772,Insumos!AD:AE,2,FALSE))","v":""},null,{"$f":"IF(G3772=\"\",\"\",VLOOKUP(G3772,Insumos!G:H,2,FALSE))","v":""}]
[null,null,null,null,null,{"$f":"IF(E3773=\"\",\"\",VLOOKUP(E3773,Insumos!AD:AE,2,FALSE))","v":""},null,{"$f":"IF(G3773=\"\",\"\",VLOOKUP(G3773,Insumos!G:H,2,FALSE))","v":""}]
[null,null,null,null,null,{"$f":"IF(E3774=\"\",\"\",VLOOKUP(E3774,Insumos!AD:AE,2,FALSE))","v":""},null,{"$f":"IF(G3774=\"\",\"\",VLOOKUP(G3774,Insumos!G:H,2,FALSE))","v":""}]
[null,null,null,null,null,{"$f":"IF(E3775=\"\",\"\",VLOOKUP(E3775,Insumos!AD:AE,2,FALSE))","v":""},null,{"$f":"IF(G3775=\"\",\"\",VLOOKUP(G3775,Insumos!G:H,2,FALSE))","v":""}]
[null,null,null,null,null,{"$f":"IF(E3776=\"\",\"\",VLOOKUP(E3776,Insumos!AD:AE,2,FALSE))","v":""},null,{"$f":"IF(G3776=\"\",\"\",VLOOKUP(G3776,Insumos!G:H,2,FALSE))","v":""}]
[null,null,null,null,null,{"$f":"IF(E3777=\"\",\"\",VLOOKUP(E3777,Insumos!AD:AE,2,FALSE))","v":""},null,{"$f":"IF(G3777=\"\",\"\",VLOOKUP(G3777,Insumos!G:H,2,FALSE))","v":""}]
[null,null,null,null,null,{"$f":"IF(E3778=\"\",\"\",VLOOKUP(E3778,Insumos!AD:AE,2,FALSE))","v":""},null,{"$f":"IF(G3778=\"\",\"\",VLOOKUP(G3778,Insumos!G:H,2,FALSE))","v":""}]
[null,null,null,null,null,{"$f":"IF(E3779=\"\",\"\",VLOOKUP(E3779,Insumos!AD:AE,2,FALSE))","v":""},null,{"$f":"IF(G3779=\"\",\"\",VLOOKUP(G3779,Insumos!G:H,2,FALSE))","v":""}]
[null,null,null,null,null,{"$f":"IF(E3780=\"\",\"\",VLOOKUP(E3780,Insumos!AD:AE,2,FALSE))","v":""},null,{"$f":"IF(G3780=\"\",\"\",VLOOKUP(G3780,Insumos!G:H,2,FALSE))","v":""}]
[null,null,null,null,null,{"$f":"IF(E3781=\"\",\"\",VLOOKUP(E3781,Insumos!AD:AE,2,FALSE))","v":""},null,{"$f":"IF(G3781=\"\",\"\",VLOOKUP(G3781,Insumos!G:H,2,FALSE))","v":""}]
[null,null,null,null,null,{"$f":"IF(E3782=\"\",\"\",VLOOKUP(E3782,Insumos!AD:AE,2,FALSE))","v":""},null,{"$f":"IF(G3782=\"\",\"\",VLOOKUP(G3782,Insumos!G:H,2,FALSE))","v":""}]
[null,null,null,null,null,{"$f":"IF(E3783=\"\",\"\",VLOOKUP(E3783,Insumos!AD:AE,2,FALSE))","v":""},null,{"$f":"IF(G3783=\"\",\"\",VLOOKUP(G3783,Insumos!G:H,2,FALSE))","v":""}]
[null,null,null,null,null,{"$f":"IF(E3784=\"\",\"\",VLOOKUP(E3784,Insumos!AD:AE,2,FALSE))","v":""},null,{"$f":"IF(G3784=\"\",\"\",VLOOKUP(G3784,Insumos!G:H,2,FALSE))","v":""}]
[null,null,null,null,null,{"$f":"IF(E3785=\"\",\"\",VLOOKUP(E3785,Insumos!AD:AE,2,FALSE))","v":""},null,{"$f":"IF(G3785=\"\",\"\",VLOOKUP(G3785,Insumos!G:H,2,FALSE))","v":""}]
[null,null,null,null,null,{"$f":"IF(E3786=\"\",\"\",VLOOKUP(E3786,Insumos!AD:AE,2,FALSE))","v":""},null,{"$f":"IF(G3786=\"\",\"\",VLOOKUP(G3786,Insumos!G:H,2,FALSE))","v":""}]
[null,null,null,null,null,{"$f":"IF(E3787=\"\",\"\",VLOOKUP(E3787,Insumos!AD:AE,2,FALSE))","v":""},null,{"$f":"IF(G3787=\"\",\"\",VLOOKUP(G3787,Insumos!G:H,2,FALSE))","v":""}]
[null,null,null,null,null,{"$f":"IF(E3788=\"\",\"\",VLOOKUP(E3788,Insumos!AD:AE,2,FALSE))","v":""},null,{"$f":"IF(G3788=\"\",\"\",VLOOKUP(G3788,Insumos!G:H,2,FALSE))","v":""}]
[null,null,null,null,null,{"$f":"IF(E3789=\"\",\"\",VLOOKUP(E3789,Insumos!AD:AE,2,FALSE))","v":""},null,{"$f":"IF(G3789=\"\",\"\",VLOOKUP(G3789,Insumos!G:H,2,FALSE))","v":""}]
[null,null,null,null,null,{"$f":"IF(E3790=\"\",\"\",VLOOKUP(E3790,Insumos!AD:AE,2,FALSE))","v":""},null,{"$f":"IF(G3790=\"\",\"\",VLOOKUP(G3790,Insumos!G:H,2,FALSE))","v":""}]
[null,null,null,null,null,{"$f":"IF(E3791=\"\",\"\",VLOOKUP(E3791,Insumos!AD:AE,2,FALSE))","v":""},null,{"$f":"IF(G3791=\"\",\"\",VLOOKUP(G3791,Insumos!G:H,2,FALSE))","v":""}]
[null,null,null,null,null,{"$f":"IF(E3792=\"\",\"\",VLOOKUP(E3792,Insumos!AD:AE,2,FALSE))","v":""},null,{"$f":"IF(G3792=\"\",\"\",VLOOKUP(G3792,Insumos!G:H,2,FALSE))","v":""}]
[null,null,null,null,null,{"$f":"IF(E3793=\"\",\"\",VLOOKUP(E3793,Insumos!AD:AE,2,FALSE))","v":""},null,{"$f":"IF(G3793=\"\",\"\",VLOOKUP(G3793,Insumos!G:H,2,FALSE))","v":""}]
[null,null,null,null,null,{"$f":"IF(E3794=\"\",\"\",VLOOKUP(E3794,Insumos!AD:AE,2,FALSE))","v":""},null,{"$f":"IF(G3794=\"\",\"\",VLOOKUP(G3794,Insumos!G:H,2,FALSE))","v":""}]
[null,null,null,null,null,{"$f":"IF(E3795=\"\",\"\",VLOOKUP(E3795,Insumos!AD:AE,2,FALSE))","v":""},null,{"$f":"IF(G3795=\"\",\"\",VLOOKUP(G3795,Insumos!G:H,2,FALSE))","v":""}]
[null,null,null,null,null,{"$f":"IF(E3796=\"\",\"\",VLOOKUP(E3796,Insumos!AD:AE,2,FALSE))","v":""},null,{"$f":"IF(G3796=\"\",\"\",VLOOKUP(G3796,Insumos!G:H,2,FALSE))","v":""}]
[null,null,null,null,null,{"$f":"IF(E3797=\"\",\"\",VLOOKUP(E3797,Insumos!AD:AE,2,FALSE))","v":""},null,{"$f":"IF(G3797=\"\",\"\",VLOOKUP(G3797,Insumos!G:H,2,FALSE))","v":""}]
[null,null,null,null,null,{"$f":"IF(E3798=\"\",\"\",VLOOKUP(E3798,Insumos!AD:AE,2,FALSE))","v":""},null,{"$f":"IF(G3798=\"\",\"\",VLOOKUP(G3798,Insumos!G:H,2,FALSE))","v":""}]
[null,null,null,null,null,{"$f":"IF(E3799=\"\",\"\",VLOOKUP(E3799,Insumos!AD:AE,2,FALSE))","v":""},null,{"$f":"IF(G3799=\"\",\"\",VLOOKUP(G3799,Insumos!G:H,2,FALSE))","v":""}]
[null,null,null,null,null,{"$f":"IF(E3800=\"\",\"\",VLOOKUP(E3800,Insumos!AD:AE,2,FALSE))","v":""},null,{"$f":"IF(G3800=\"\",\"\",VLOOKUP(G3800,Insumos!G:H,2,FALSE))","v":""}]
[null,null,null,null,null,{"$f":"IF(E3801=\"\",\"\",VLOOKUP(E3801,Insumos!AD:AE,2,FALSE))","v":""},null,{"$f":"IF(G3801=\"\",\"\",VLOOKUP(G3801,Insumos!G:H,2,FALSE))","v":""}]
[null,null,null,null,null,{"$f":"IF(E3802=\"\",\"\",VLOOKUP(E3802,Insumos!AD:AE,2,FALSE))","v":""},null,{"$f":"IF(G3802=\"\",\"\",VLOOKUP(G3802,Insumos!G:H,2,FALSE))","v":""}]
[null,null,null,null,null,{"$f":"IF(E3803=\"\",\"\",VLOOKUP(E3803,Insumos!AD:AE,2,FALSE))","v":""},null,{"$f":"IF(G3803=\"\",\"\",VLOOKUP(G3803,Insumos!G:H,2,FALSE))","v":""}]
[null,null,null,null,null,{"$f":"IF(E3804=\"\",\"\",VLOOKUP(E3804,Insumos!AD:AE,2,FALSE))","v":""},null,{"$f":"IF(G3804=\"\",\"\",VLOOKUP(G3804,Insumos!G:H,2,FALSE))","v":""}]
[null,null,null,null,null,{"$f":"IF(E3805=\"\",\"\",VLOOKUP(E3805,Insumos!AD:AE,2,FALSE))","v":""},null,{"$f":"IF(G3805=\"\",\"\",VLOOKUP(G3805,Insumos!G:H,2,FALSE))","v":""}]
[null,null,null,null,null,{"$f":"IF(E3806=\"\",\"\",VLOOKUP(E3806,Insumos!AD:AE,2,FALSE))","v":""},null,{"$f":"IF(G3806=\"\",\"\",VLOOKUP(G3806,Insumos!G:H,2,FALSE))","v":""}]
[null,null,null,null,null,{"$f":"IF(E3807=\"\",\"\",VLOOKUP(E3807,Insumos!AD:AE,2,FALSE))","v":""},null,{"$f":"IF(G3807=\"\",\"\",VLOOKUP(G3807,Insumos!G:H,2,FALSE))","v":""}]
[null,null,null,null,null,{"$f":"IF(E3808=\"\",\"\",VLOOKUP(E3808,Insumos!AD:AE,2,FALSE))","v":""},null,{"$f":"IF(G3808=\"\",\"\",VLOOKUP(G3808,Insumos!G:H,2,FALSE))","v":""}]
[null,null,null,null,null,{"$f":"IF(E3809=\"\",\"\",VLOOKUP(E3809,Insumos!AD:AE,2,FALSE))","v":""},null,{"$f":"IF(G3809=\"\",\"\",VLOOKUP(G3809,Insumos!G:H,2,FALSE))","v":""}]
[null,null,null,null,null,{"$f":"IF(E3810=\"\",\"\",VLOOKUP(E3810,Insumos!AD:AE,2,FALSE))","v":""},null,{"$f":"IF(G3810=\"\",\"\",VLOOKUP(G3810,Insumos!G:H,2,FALSE))","v":""}]
[null,null,null,null,null,{"$f":"IF(E3811=\"\",\"\",VLOOKUP(E3811,Insumos!AD:AE,2,FALSE))","v":""},null,{"$f":"IF(G3811=\"\",\"\",VLOOKUP(G3811,Insumos!G:H,2,FALSE))","v":""}]
[null,null,null,null,null,{"$f":"IF(E3812=\"\",\"\",VLOOKUP(E3812,Insumos!AD:AE,2,FALSE))","v":""},null,{"$f":"IF(G3812=\"\",\"\",VLOOKUP(G3812,Insumos!G:H,2,FALSE))","v":""}]
[null,null,null,null,null,{"$f":"IF(E3813=\"\",\"\",VLOOKUP(E3813,Insumos!AD:AE,2,FALSE))","v":""},null,{"$f":"IF(G3813=\"\",\"\",VLOOKUP(G3813,Insumos!G:H,2,FALSE))","v":""}]
[null,null,null,null,null,{"$f":"IF(E3814=\"\",\"\",VLOOKUP(E3814,Insumos!AD:AE,2,FALSE))","v":""},null,{"$f":"IF(G3814=\"\",\"\",VLOOKUP(G3814,Insumos!G:H,2,FALSE))","v":""}]
[null,null,null,null,null,{"$f":"IF(E3815=\"\",\"\",VLOOKUP(E3815,Insumos!AD:AE,2,FALSE))","v":""},null,{"$f":"IF(G3815=\"\",\"\",VLOOKUP(G3815,Insumos!G:H,2,FALSE))","v":""}]
[null,null,null,null,null,{"$f":"IF(E3816=\"\",\"\",VLOOKUP(E3816,Insumos!AD:AE,2,FALSE))","v":""},null,{"$f":"IF(G3816=\"\",\"\",VLOOKUP(G3816,Insumos!G:H,2,FALSE))","v":""}]
[null,null,null,null,null,{"$f":"IF(E3817=\"\",\"\",VLOOKUP(E3817,Insumos!AD:AE,2,FALSE))","v":""},null,{"$f":"IF(G3817=\"\",\"\",VLOOKUP(G3817,Insumos!G:H,2,FALSE))","v":""}]
[null,null,null,null,null,{"$f":"IF(E3818=\"\",\"\",VLOOKUP(E3818,Insumos!AD:AE,2,FALSE))","v":""},null,{"$f":"IF(G3818=\"\",\"\",VLOOKUP(G3818,Insumos!G:H,2,FALSE))","v":""}]
[null,null,null,null,null,{"$f":"IF(E3819=\"\",\"\",VLOOKUP(E3819,Insumos!AD:AE,2,FALSE))","v":""},null,{"$f":"IF(G3819=\"\",\"\",VLOOKUP(G3819,Insumos!G:H,2,FALSE))","v":""}]
[null,null,null,null,null,{"$f":"IF(E3820=\"\",\"\",VLOOKUP(E3820,Insumos!AD:AE,2,FALSE))","v":""},null,{"$f":"IF(G3820=\"\",\"\",VLOOKUP(G3820,Insumos!G:H,2,FALSE))","v":""}]
[null,null,null,null,null,{"$f":"IF(E3821=\"\",\"\",VLOOKUP(E3821,Insumos!AD:AE,2,FALSE))","v":""},null,{"$f":"IF(G3821=\"\",\"\",VLOOKUP(G3821,Insumos!G:H,2,FALSE))","v":""}]
[null,null,null,null,null,{"$f":"IF(E3822=\"\",\"\",VLOOKUP(E3822,Insumos!AD:AE,2,FALSE))","v":""},null,{"$f":"IF(G3822=\"\",\"\",VLOOKUP(G3822,Insumos!G:H,2,FALSE))","v":""}]
[null,null,null,null,null,{"$f":"IF(E3823=\"\",\"\",VLOOKUP(E3823,Insumos!AD:AE,2,FALSE))","v":""},null,{"$f":"IF(G3823=\"\",\"\",VLOOKUP(G3823,Insumos!G:H,2,FALSE))","v":""}]
[null,null,null,null,null,{"$f":"IF(E3824=\"\",\"\",VLOOKUP(E3824,Insumos!AD:AE,2,FALSE))","v":""},null,{"$f":"IF(G3824=\"\",\"\",VLOOKUP(G3824,Insumos!G:H,2,FALSE))","v":""}]
[null,null,null,null,null,{"$f":"IF(E3825=\"\",\"\",VLOOKUP(E3825,Insumos!AD:AE,2,FALSE))","v":""},null,{"$f":"IF(G3825=\"\",\"\",VLOOKUP(G3825,Insumos!G:H,2,FALSE))","v":""}]
[null,null,null,null,null,{"$f":"IF(E3826=\"\",\"\",VLOOKUP(E3826,Insumos!AD:AE,2,FALSE))","v":""},null,{"$f":"IF(G3826=\"\",\"\",VLOOKUP(G3826,Insumos!G:H,2,FALSE))","v":""}]
[null,null,null,null,null,{"$f":"IF(E3827=\"\",\"\",VLOOKUP(E3827,Insumos!AD:AE,2,FALSE))","v":""},null,{"$f":"IF(G3827=\"\",\"\",VLOOKUP(G3827,Insumos!G:H,2,FALSE))","v":""}]
[null,null,null,null,null,{"$f":"IF(E3828=\"\",\"\",VLOOKUP(E3828,Insumos!AD:AE,2,FALSE))","v":""},null,{"$f":"IF(G3828=\"\",\"\",VLOOKUP(G3828,Insumos!G:H,2,FALSE))","v":""}]
[null,null,null,null,null,{"$f":"IF(E3829=\"\",\"\",VLOOKUP(E3829,Insumos!AD:AE,2,FALSE))","v":""},null,{"$f":"IF(G3829=\"\",\"\",VLOOKUP(G3829,Insumos!G:H,2,FALSE))","v":""}]
[null,null,null,null,null,{"$f":"IF(E3830=\"\",\"\",VLOOKUP(E3830,Insumos!AD:AE,2,FALSE))","v":""},null,{"$f":"IF(G3830=\"\",\"\",VLOOKUP(G3830,Insumos!G:H,2,FALSE))","v":""}]
[null,null,null,null,null,{"$f":"IF(E3831=\"\",\"\",VLOOKUP(E3831,Insumos!AD:AE,2,FALSE))","v":""},null,{"$f":"IF(G3831=\"\",\"\",VLOOKUP(G3831,Insumos!G:H,2,FALSE))","v":""}]
[null,null,null,null,null,{"$f":"IF(E3832=\"\",\"\",VLOOKUP(E3832,Insumos!AD:AE,2,FALSE))","v":""},null,{"$f":"IF(G3832=\"\",\"\",VLOOKUP(G3832,Insumos!G:H,2,FALSE))","v":""}]
[null,null,null,null,null,{"$f":"IF(E3833=\"\",\"\",VLOOKUP(E3833,Insumos!AD:AE,2,FALSE))","v":""},null,{"$f":"IF(G3833=\"\",\"\",VLOOKUP(G3833,Insumos!G:H,2,FALSE))","v":""}]
[null,null,null,null,null,{"$f":"IF(E3834=\"\",\"\",VLOOKUP(E3834,Insumos!AD:AE,2,FALSE))","v":""},null,{"$f":"IF(G3834=\"\",\"\",VLOOKUP(G3834,Insumos!G:H,2,FALSE))","v":""}]
[null,null,null,null,null,{"$f":"IF(E3835=\"\",\"\",VLOOKUP(E3835,Insumos!AD:AE,2,FALSE))","v":""},null,{"$f":"IF(G3835=\"\",\"\",VLOOKUP(G3835,Insumos!G:H,2,FALSE))","v":""}]
[null,null,null,null,null,{"$f":"IF(E3836=\"\",\"\",VLOOKUP(E3836,Insumos!AD:AE,2,FALSE))","v":""},null,{"$f":"IF(G3836=\"\",\"\",VLOOKUP(G3836,Insumos!G:H,2,FALSE))","v":""}]
[null,null,null,null,null,{"$f":"IF(E3837=\"\",\"\",VLOOKUP(E3837,Insumos!AD:AE,2,FALSE))","v":""},null,{"$f":"IF(G3837=\"\",\"\",VLOOKUP(G3837,Insumos!G:H,2,FALSE))","v":""}]
[null,null,null,null,null,{"$f":"IF(E3838=\"\",\"\",VLOOKUP(E3838,Insumos!AD:AE,2,FALSE))","v":""},null,{"$f":"IF(G3838=\"\",\"\",VLOOKUP(G3838,Insumos!G:H,2,FALSE))","v":""}]
[null,null,null,null,null,{"$f":"IF(E3839=\"\",\"\",VLOOKUP(E3839,Insumos!AD:AE,2,FALSE))","v":""},null,{"$f":"IF(G3839=\"\",\"\",VLOOKUP(G3839,Insumos!G:H,2,FALSE))","v":""}]
[null,null,null,null,null,{"$f":"IF(E3840=\"\",\"\",VLOOKUP(E3840,Insumos!AD:AE,2,FALSE))","v":""},null,{"$f":"IF(G3840=\"\",\"\",VLOOKUP(G3840,Insumos!G:H,2,FALSE))","v":""}]
[null,null,null,null,null,{"$f":"IF(E3841=\"\",\"\",VLOOKUP(E3841,Insumos!AD:AE,2,FALSE))","v":""},null,{"$f":"IF(G3841=\"\",\"\",VLOOKUP(G3841,Insumos!G:H,2,FALSE))","v":""}]
[null,null,null,null,null,{"$f":"IF(E3842=\"\",\"\",VLOOKUP(E3842,Insumos!AD:AE,2,FALSE))","v":""},null,{"$f":"IF(G3842=\"\",\"\",VLOOKUP(G3842,Insumos!G:H,2,FALSE))","v":""}]
[null,null,null,null,null,{"$f":"IF(E3843=\"\",\"\",VLOOKUP(E3843,Insumos!AD:AE,2,FALSE))","v":""},null,{"$f":"IF(G3843=\"\",\"\",VLOOKUP(G3843,Insumos!G:H,2,FALSE))","v":""}]
[null,null,null,null,null,{"$f":"IF(E3844=\"\",\"\",VLOOKUP(E3844,Insumos!AD:AE,2,FALSE))","v":""},null,{"$f":"IF(G3844=\"\",\"\",VLOOKUP(G3844,Insumos!G:H,2,FALSE))","v":""}]
[null,null,null,null,null,{"$f":"IF(E3845=\"\",\"\",VLOOKUP(E3845,Insumos!AD:AE,2,FALSE))","v":""},null,{"$f":"IF(G3845=\"\",\"\",VLOOKUP(G3845,Insumos!G:H,2,FALSE))","v":""}]
[null,null,null,null,null,{"$f":"IF(E3846=\"\",\"\",VLOOKUP(E3846,Insumos!AD:AE,2,FALSE))","v":""},null,{"$f":"IF(G3846=\"\",\"\",VLOOKUP(G3846,Insumos!G:H,2,FALSE))","v":""}]
[null,null,null,null,null,{"$f":"IF(E3847=\"\",\"\",VLOOKUP(E3847,Insumos!AD:AE,2,FALSE))","v":""},null,{"$f":"IF(G3847=\"\",\"\",VLOOKUP(G3847,Insumos!G:H,2,FALSE))","v":""}]
[null,null,null,null,null,{"$f":"IF(E3848=\"\",\"\",VLOOKUP(E3848,Insumos!AD:AE,2,FALSE))","v":""},null,{"$f":"IF(G3848=\"\",\"\",VLOOKUP(G3848,Insumos!G:H,2,FALSE))","v":""}]
[null,null,null,null,null,{"$f":"IF(E3849=\"\",\"\",VLOOKUP(E3849,Insumos!AD:AE,2,FALSE))","v":""},null,{"$f":"IF(G3849=\"\",\"\",VLOOKUP(G3849,Insumos!G:H,2,FALSE))","v":""}]
[null,null,null,null,null,{"$f":"IF(E3850=\"\",\"\",VLOOKUP(E3850,Insumos!AD:AE,2,FALSE))","v":""},null,{"$f":"IF(G3850=\"\",\"\",VLOOKUP(G3850,Insumos!G:H,2,FALSE))","v":""}]
[null,null,null,null,null,{"$f":"IF(E3851=\"\",\"\",VLOOKUP(E3851,Insumos!AD:AE,2,FALSE))","v":""},null,{"$f":"IF(G3851=\"\",\"\",VLOOKUP(G3851,Insumos!G:H,2,FALSE))","v":""}]
[null,null,null,null,null,{"$f":"IF(E3852=\"\",\"\",VLOOKUP(E3852,Insumos!AD:AE,2,FALSE))","v":""},null,{"$f":"IF(G3852=\"\",\"\",VLOOKUP(G3852,Insumos!G:H,2,FALSE))","v":""}]
[null,null,null,null,null,{"$f":"IF(E3853=\"\",\"\",VLOOKUP(E3853,Insumos!AD:AE,2,FALSE))","v":""},null,{"$f":"IF(G3853=\"\",\"\",VLOOKUP(G3853,Insumos!G:H,2,FALSE))","v":""}]
[null,null,null,null,null,{"$f":"IF(E3854=\"\",\"\",VLOOKUP(E3854,Insumos!AD:AE,2,FALSE))","v":""},null,{"$f":"IF(G3854=\"\",\"\",VLOOKUP(G3854,Insumos!G:H,2,FALSE))","v":""}]
[null,null,null,null,null,{"$f":"IF(E3855=\"\",\"\",VLOOKUP(E3855,Insumos!AD:AE,2,FALSE))","v":""},null,{"$f":"IF(G3855=\"\",\"\",VLOOKUP(G3855,Insumos!G:H,2,FALSE))","v":""}]
[null,null,null,null,null,{"$f":"IF(E3856=\"\",\"\",VLOOKUP(E3856,Insumos!AD:AE,2,FALSE))","v":""},null,{"$f":"IF(G3856=\"\",\"\",VLOOKUP(G3856,Insumos!G:H,2,FALSE))","v":""}]
[null,null,null,null,null,{"$f":"IF(E3857=\"\",\"\",VLOOKUP(E3857,Insumos!AD:AE,2,FALSE))","v":""},null,{"$f":"IF(G3857=\"\",\"\",VLOOKUP(G3857,Insumos!G:H,2,FALSE))","v":""}]
[null,null,null,null,null,{"$f":"IF(E3858=\"\",\"\",VLOOKUP(E3858,Insumos!AD:AE,2,FALSE))","v":""},null,{"$f":"IF(G3858=\"\",\"\",VLOOKUP(G3858,Insumos!G:H,2,FALSE))","v":""}]
[null,null,null,null,null,{"$f":"IF(E3859=\"\",\"\",VLOOKUP(E3859,Insumos!AD:AE,2,FALSE))","v":""},null,{"$f":"IF(G3859=\"\",\"\",VLOOKUP(G3859,Insumos!G:H,2,FALSE))","v":""}]
[null,null,null,null,null,{"$f":"IF(E3860=\"\",\"\",VLOOKUP(E3860,Insumos!AD:AE,2,FALSE))","v":""},null,{"$f":"IF(G3860=\"\",\"\",VLOOKUP(G3860,Insumos!G:H,2,FALSE))","v":""}]
[null,null,null,null,null,{"$f":"IF(E3861=\"\",\"\",VLOOKUP(E3861,Insumos!AD:AE,2,FALSE))","v":""},null,{"$f":"IF(G3861=\"\",\"\",VLOOKUP(G3861,Insumos!G:H,2,FALSE))","v":""}]
[null,null,null,null,null,{"$f":"IF(E3862=\"\",\"\",VLOOKUP(E3862,Insumos!AD:AE,2,FALSE))","v":""},null,{"$f":"IF(G3862=\"\",\"\",VLOOKUP(G3862,Insumos!G:H,2,FALSE))","v":""}]
[null,null,null,null,null,{"$f":"IF(E3863=\"\",\"\",VLOOKUP(E3863,Insumos!AD:AE,2,FALSE))","v":""},null,{"$f":"IF(G3863=\"\",\"\",VLOOKUP(G3863,Insumos!G:H,2,FALSE))","v":""}]
[null,null,null,null,null,{"$f":"IF(E3864=\"\",\"\",VLOOKUP(E3864,Insumos!AD:AE,2,FALSE))","v":""},null,{"$f":"IF(G3864=\"\",\"\",VLOOKUP(G3864,Insumos!G:H,2,FALSE))","v":""}]
[null,null,null,null,null,{"$f":"IF(E3865=\"\",\"\",VLOOKUP(E3865,Insumos!AD:AE,2,FALSE))","v":""},null,{"$f":"IF(G3865=\"\",\"\",VLOOKUP(G3865,Insumos!G:H,2,FALSE))","v":""}]
[null,null,null,null,null,{"$f":"IF(E3866=\"\",\"\",VLOOKUP(E3866,Insumos!AD:AE,2,FALSE))","v":""},null,{"$f":"IF(G3866=\"\",\"\",VLOOKUP(G3866,Insumos!G:H,2,FALSE))","v":""}]
[null,null,null,null,null,{"$f":"IF(E3867=\"\",\"\",VLOOKUP(E3867,Insumos!AD:AE,2,FALSE))","v":""},null,{"$f":"IF(G3867=\"\",\"\",VLOOKUP(G3867,Insumos!G:H,2,FALSE))","v":""}]
[null,null,null,null,null,{"$f":"IF(E3868=\"\",\"\",VLOOKUP(E3868,Insumos!AD:AE,2,FALSE))","v":""},null,{"$f":"IF(G3868=\"\",\"\",VLOOKUP(G3868,Insumos!G:H,2,FALSE))","v":""}]
[null,null,null,null,null,{"$f":"IF(E3869=\"\",\"\",VLOOKUP(E3869,Insumos!AD:AE,2,FALSE))","v":""},null,{"$f":"IF(G3869=\"\",\"\",VLOOKUP(G3869,Insumos!G:H,2,FALSE))","v":""}]
[null,null,null,null,null,{"$f":"IF(E3870=\"\",\"\",VLOOKUP(E3870,Insumos!AD:AE,2,FALSE))","v":""},null,{"$f":"IF(G3870=\"\",\"\",VLOOKUP(G3870,Insumos!G:H,2,FALSE))","v":""}]
[null,null,null,null,null,{"$f":"IF(E3871=\"\",\"\",VLOOKUP(E3871,Insumos!AD:AE,2,FALSE))","v":""},null,{"$f":"IF(G3871=\"\",\"\",VLOOKUP(G3871,Insumos!G:H,2,FALSE))","v":""}]
[null,null,null,null,null,{"$f":"IF(E3872=\"\",\"\",VLOOKUP(E3872,Insumos!AD:AE,2,FALSE))","v":""},null,{"$f":"IF(G3872=\"\",\"\",VLOOKUP(G3872,Insumos!G:H,2,FALSE))","v":""}]
[null,null,null,null,null,{"$f":"IF(E3873=\"\",\"\",VLOOKUP(E3873,Insumos!AD:AE,2,FALSE))","v":""},null,{"$f":"IF(G3873=\"\",\"\",VLOOKUP(G3873,Insumos!G:H,2,FALSE))","v":""}]
[null,null,null,null,null,{"$f":"IF(E3874=\"\",\"\",VLOOKUP(E3874,Insumos!AD:AE,2,FALSE))","v":""},null,{"$f":"IF(G3874=\"\",\"\",VLOOKUP(G3874,Insumos!G:H,2,FALSE))","v":""}]
[null,null,null,null,null,{"$f":"IF(E3875=\"\",\"\",VLOOKUP(E3875,Insumos!AD:AE,2,FALSE))","v":""},null,{"$f":"IF(G3875=\"\",\"\",VLOOKUP(G3875,Insumos!G:H,2,FALSE))","v":""}]
[null,null,null,null,null,{"$f":"IF(E3876=\"\",\"\",VLOOKUP(E3876,Insumos!AD:AE,2,FALSE))","v":""},null,{"$f":"IF(G3876=\"\",\"\",VLOOKUP(G3876,Insumos!G:H,2,FALSE))","v":""}]
[null,null,null,null,null,{"$f":"IF(E3877=\"\",\"\",VLOOKUP(E3877,Insumos!AD:AE,2,FALSE))","v":""},null,{"$f":"IF(G3877=\"\",\"\",VLOOKUP(G3877,Insumos!G:H,2,FALSE))","v":""}]
[null,null,null,null,null,{"$f":"IF(E3878=\"\",\"\",VLOOKUP(E3878,Insumos!AD:AE,2,FALSE))","v":""},null,{"$f":"IF(G3878=\"\",\"\",VLOOKUP(G3878,Insumos!G:H,2,FALSE))","v":""}]
[null,null,null,null,null,{"$f":"IF(E3879=\"\",\"\",VLOOKUP(E3879,Insumos!AD:AE,2,FALSE))","v":""},null,{"$f":"IF(G3879=\"\",\"\",VLOOKUP(G3879,Insumos!G:H,2,FALSE))","v":""}]
[null,null,null,null,null,{"$f":"IF(E3880=\"\",\"\",VLOOKUP(E3880,Insumos!AD:AE,2,FALSE))","v":""},null,{"$f":"IF(G3880=\"\",\"\",VLOOKUP(G3880,Insumos!G:H,2,FALSE))","v":""}]
[null,null,null,null,null,{"$f":"IF(E3881=\"\",\"\",VLOOKUP(E3881,Insumos!AD:AE,2,FALSE))","v":""},null,{"$f":"IF(G3881=\"\",\"\",VLOOKUP(G3881,Insumos!G:H,2,FALSE))","v":""}]
[null,null,null,null,null,{"$f":"IF(E3882=\"\",\"\",VLOOKUP(E3882,Insumos!AD:AE,2,FALSE))","v":""},null,{"$f":"IF(G3882=\"\",\"\",VLOOKUP(G3882,Insumos!G:H,2,FALSE))","v":""}]
[null,null,null,null,null,{"$f":"IF(E3883=\"\",\"\",VLOOKUP(E3883,Insumos!AD:AE,2,FALSE))","v":""},null,{"$f":"IF(G3883=\"\",\"\",VLOOKUP(G3883,Insumos!G:H,2,FALSE))","v":""}]
[null,null,null,null,null,{"$f":"IF(E3884=\"\",\"\",VLOOKUP(E3884,Insumos!AD:AE,2,FALSE))","v":""},null,{"$f":"IF(G3884=\"\",\"\",VLOOKUP(G3884,Insumos!G:H,2,FALSE))","v":""}]
[null,null,null,null,null,{"$f":"IF(E3885=\"\",\"\",VLOOKUP(E3885,Insumos!AD:AE,2,FALSE))","v":""},null,{"$f":"IF(G3885=\"\",\"\",VLOOKUP(G3885,Insumos!G:H,2,FALSE))","v":""}]
[null,null,null,null,null,{"$f":"IF(E3886=\"\",\"\",VLOOKUP(E3886,Insumos!AD:AE,2,FALSE))","v":""},null,{"$f":"IF(G3886=\"\",\"\",VLOOKUP(G3886,Insumos!G:H,2,FALSE))","v":""}]
[null,null,null,null,null,{"$f":"IF(E3887=\"\",\"\",VLOOKUP(E3887,Insumos!AD:AE,2,FALSE))","v":""},null,{"$f":"IF(G3887=\"\",\"\",VLOOKUP(G3887,Insumos!G:H,2,FALSE))","v":""}]
[null,null,null,null,null,{"$f":"IF(E3888=\"\",\"\",VLOOKUP(E3888,Insumos!AD:AE,2,FALSE))","v":""},null,{"$f":"IF(G3888=\"\",\"\",VLOOKUP(G3888,Insumos!G:H,2,FALSE))","v":""}]
[null,null,null,null,null,{"$f":"IF(E3889=\"\",\"\",VLOOKUP(E3889,Insumos!AD:AE,2,FALSE))","v":""},null,{"$f":"IF(G3889=\"\",\"\",VLOOKUP(G3889,Insumos!G:H,2,FALSE))","v":""}]
[null,null,null,null,null,{"$f":"IF(E3890=\"\",\"\",VLOOKUP(E3890,Insumos!AD:AE,2,FALSE))","v":""},null,{"$f":"IF(G3890=\"\",\"\",VLOOKUP(G3890,Insumos!G:H,2,FALSE))","v":""}]
[null,null,null,null,null,{"$f":"IF(E3891=\"\",\"\",VLOOKUP(E3891,Insumos!AD:AE,2,FALSE))","v":""},null,{"$f":"IF(G3891=\"\",\"\",VLOOKUP(G3891,Insumos!G:H,2,FALSE))","v":""}]
[null,null,null,null,null,{"$f":"IF(E3892=\"\",\"\",VLOOKUP(E3892,Insumos!AD:AE,2,FALSE))","v":""},null,{"$f":"IF(G3892=\"\",\"\",VLOOKUP(G3892,Insumos!G:H,2,FALSE))","v":""}]
[null,null,null,null,null,{"$f":"IF(E3893=\"\",\"\",VLOOKUP(E3893,Insumos!AD:AE,2,FALSE))","v":""},null,{"$f":"IF(G3893=\"\",\"\",VLOOKUP(G3893,Insumos!G:H,2,FALSE))","v":""}]
[null,null,null,null,null,{"$f":"IF(E3894=\"\",\"\",VLOOKUP(E3894,Insumos!AD:AE,2,FALSE))","v":""},null,{"$f":"IF(G3894=\"\",\"\",VLOOKUP(G3894,Insumos!G:H,2,FALSE))","v":""}]
[null,null,null,null,null,{"$f":"IF(E3895=\"\",\"\",VLOOKUP(E3895,Insumos!AD:AE,2,FALSE))","v":""},null,{"$f":"IF(G3895=\"\",\"\",VLOOKUP(G3895,Insumos!G:H,2,FALSE))","v":""}]
[null,null,null,null,null,{"$f":"IF(E3896=\"\",\"\",VLOOKUP(E3896,Insumos!AD:AE,2,FALSE))","v":""},null,{"$f":"IF(G3896=\"\",\"\",VLOOKUP(G3896,Insumos!G:H,2,FALSE))","v":""}]
[null,null,null,null,null,{"$f":"IF(E3897=\"\",\"\",VLOOKUP(E3897,Insumos!AD:AE,2,FALSE))","v":""},null,{"$f":"IF(G3897=\"\",\"\",VLOOKUP(G3897,Insumos!G:H,2,FALSE))","v":""}]
[null,null,null,null,null,{"$f":"IF(E3898=\"\",\"\",VLOOKUP(E3898,Insumos!AD:AE,2,FALSE))","v":""},null,{"$f":"IF(G3898=\"\",\"\",VLOOKUP(G3898,Insumos!G:H,2,FALSE))","v":""}]
[null,null,null,null,null,{"$f":"IF(E3899=\"\",\"\",VLOOKUP(E3899,Insumos!AD:AE,2,FALSE))","v":""},null,{"$f":"IF(G3899=\"\",\"\",VLOOKUP(G3899,Insumos!G:H,2,FALSE))","v":""}]
[null,null,null,null,null,{"$f":"IF(E3900=\"\",\"\",VLOOKUP(E3900,Insumos!AD:AE,2,FALSE))","v":""},null,{"$f":"IF(G3900=\"\",\"\",VLOOKUP(G3900,Insumos!G:H,2,FALSE))","v":""}]
[null,null,null,null,null,{"$f":"IF(E3901=\"\",\"\",VLOOKUP(E3901,Insumos!AD:AE,2,FALSE))","v":""},null,{"$f":"IF(G3901=\"\",\"\",VLOOKUP(G3901,Insumos!G:H,2,FALSE))","v":""}]
[null,null,null,null,null,{"$f":"IF(E3902=\"\",\"\",VLOOKUP(E3902,Insumos!AD:AE,2,FALSE))","v":""},null,{"$f":"IF(G3902=\"\",\"\",VLOOKUP(G3902,Insumos!G:H,2,FALSE))","v":""}]
[null,null,null,null,null,{"$f":"IF(E3903=\"\",\"\",VLOOKUP(E3903,Insumos!AD:AE,2,FALSE))","v":""},null,{"$f":"IF(G3903=\"\",\"\",VLOOKUP(G3903,Insumos!G:H,2,FALSE))","v":""}]
[null,null,null,null,null,{"$f":"IF(E3904=\"\",\"\",VLOOKUP(E3904,Insumos!AD:AE,2,FALSE))","v":""},null,{"$f":"IF(G3904=\"\",\"\",VLOOKUP(G3904,Insumos!G:H,2,FALSE))","v":""}]
[null,null,null,null,null,{"$f":"IF(E3905=\"\",\"\",VLOOKUP(E3905,Insumos!AD:AE,2,FALSE))","v":""},null,{"$f":"IF(G3905=\"\",\"\",VLOOKUP(G3905,Insumos!G:H,2,FALSE))","v":""}]
[null,null,null,null,null,{"$f":"IF(E3906=\"\",\"\",VLOOKUP(E3906,Insumos!AD:AE,2,FALSE))","v":""},null,{"$f":"IF(G3906=\"\",\"\",VLOOKUP(G3906,Insumos!G:H,2,FALSE))","v":""}]
[null,null,null,null,null,{"$f":"IF(E3907=\"\",\"\",VLOOKUP(E3907,Insumos!AD:AE,2,FALSE))","v":""},null,{"$f":"IF(G3907=\"\",\"\",VLOOKUP(G3907,Insumos!G:H,2,FALSE))","v":""}]
[null,null,null,null,null,{"$f":"IF(E3908=\"\",\"\",VLOOKUP(E3908,Insumos!AD:AE,2,FALSE))","v":""},null,{"$f":"IF(G3908=\"\",\"\",VLOOKUP(G3908,Insumos!G:H,2,FALSE))","v":""}]
[null,null,null,null,null,{"$f":"IF(E3909=\"\",\"\",VLOOKUP(E3909,Insumos!AD:AE,2,FALSE))","v":""},null,{"$f":"IF(G3909=\"\",\"\",VLOOKUP(G3909,Insumos!G:H,2,FALSE))","v":""}]
[null,null,null,null,null,{"$f":"IF(E3910=\"\",\"\",VLOOKUP(E3910,Insumos!AD:AE,2,FALSE))","v":""},null,{"$f":"IF(G3910=\"\",\"\",VLOOKUP(G3910,Insumos!G:H,2,FALSE))","v":""}]
[null,null,null,null,null,{"$f":"IF(E3911=\"\",\"\",VLOOKUP(E3911,Insumos!AD:AE,2,FALSE))","v":""},null,{"$f":"IF(G3911=\"\",\"\",VLOOKUP(G3911,Insumos!G:H,2,FALSE))","v":""}]
[null,null,null,null,null,{"$f":"IF(E3912=\"\",\"\",VLOOKUP(E3912,Insumos!AD:AE,2,FALSE))","v":""},null,{"$f":"IF(G3912=\"\",\"\",VLOOKUP(G3912,Insumos!G:H,2,FALSE))","v":""}]
[null,null,null,null,null,{"$f":"IF(E3913=\"\",\"\",VLOOKUP(E3913,Insumos!AD:AE,2,FALSE))","v":""},null,{"$f":"IF(G3913=\"\",\"\",VLOOKUP(G3913,Insumos!G:H,2,FALSE))","v":""}]
[null,null,null,null,null,{"$f":"IF(E3914=\"\",\"\",VLOOKUP(E3914,Insumos!AD:AE,2,FALSE))","v":""},null,{"$f":"IF(G3914=\"\",\"\",VLOOKUP(G3914,Insumos!G:H,2,FALSE))","v":""}]
[null,null,null,null,null,{"$f":"IF(E3915=\"\",\"\",VLOOKUP(E3915,Insumos!AD:AE,2,FALSE))","v":""},null,{"$f":"IF(G3915=\"\",\"\",VLOOKUP(G3915,Insumos!G:H,2,FALSE))","v":""}]
[null,null,null,null,null,{"$f":"IF(E3916=\"\",\"\",VLOOKUP(E3916,Insumos!AD:AE,2,FALSE))","v":""},null,{"$f":"IF(G3916=\"\",\"\",VLOOKUP(G3916,Insumos!G:H,2,FALSE))","v":""}]
[null,null,null,null,null,{"$f":"IF(E3917=\"\",\"\",VLOOKUP(E3917,Insumos!AD:AE,2,FALSE))","v":""},null,{"$f":"IF(G3917=\"\",\"\",VLOOKUP(G3917,Insumos!G:H,2,FALSE))","v":""}]
[null,null,null,null,null,{"$f":"IF(E3918=\"\",\"\",VLOOKUP(E3918,Insumos!AD:AE,2,FALSE))","v":""},null,{"$f":"IF(G3918=\"\",\"\",VLOOKUP(G3918,Insumos!G:H,2,FALSE))","v":""}]
[null,null,null,null,null,{"$f":"IF(E3919=\"\",\"\",VLOOKUP(E3919,Insumos!AD:AE,2,FALSE))","v":""},null,{"$f":"IF(G3919=\"\",\"\",VLOOKUP(G3919,Insumos!G:H,2,FALSE))","v":""}]
[null,null,null,null,null,{"$f":"IF(E3920=\"\",\"\",VLOOKUP(E3920,Insumos!AD:AE,2,FALSE))","v":""},null,{"$f":"IF(G3920=\"\",\"\",VLOOKUP(G3920,Insumos!G:H,2,FALSE))","v":""}]
[null,null,null,null,null,{"$f":"IF(E3921=\"\",\"\",VLOOKUP(E3921,Insumos!AD:AE,2,FALSE))","v":""},null,{"$f":"IF(G3921=\"\",\"\",VLOOKUP(G3921,Insumos!G:H,2,FALSE))","v":""}]
[null,null,null,null,null,{"$f":"IF(E3922=\"\",\"\",VLOOKUP(E3922,Insumos!AD:AE,2,FALSE))","v":""},null,{"$f":"IF(G3922=\"\",\"\",VLOOKUP(G3922,Insumos!G:H,2,FALSE))","v":""}]
[null,null,null,null,null,{"$f":"IF(E3923=\"\",\"\",VLOOKUP(E3923,Insumos!AD:AE,2,FALSE))","v":""},null,{"$f":"IF(G3923=\"\",\"\",VLOOKUP(G3923,Insumos!G:H,2,FALSE))","v":""}]
[null,null,null,null,null,{"$f":"IF(E3924=\"\",\"\",VLOOKUP(E3924,Insumos!AD:AE,2,FALSE))","v":""},null,{"$f":"IF(G3924=\"\",\"\",VLOOKUP(G3924,Insumos!G:H,2,FALSE))","v":""}]
[null,null,null,null,null,{"$f":"IF(E3925=\"\",\"\",VLOOKUP(E3925,Insumos!AD:AE,2,FALSE))","v":""},null,{"$f":"IF(G3925=\"\",\"\",VLOOKUP(G3925,Insumos!G:H,2,FALSE))","v":""}]
[null,null,null,null,null,{"$f":"IF(E3926=\"\",\"\",VLOOKUP(E3926,Insumos!AD:AE,2,FALSE))","v":""},null,{"$f":"IF(G3926=\"\",\"\",VLOOKUP(G3926,Insumos!G:H,2,FALSE))","v":""}]
[null,null,null,null,null,{"$f":"IF(E3927=\"\",\"\",VLOOKUP(E3927,Insumos!AD:AE,2,FALSE))","v":""},null,{"$f":"IF(G3927=\"\",\"\",VLOOKUP(G3927,Insumos!G:H,2,FALSE))","v":""}]
[null,null,null,null,null,{"$f":"IF(E3928=\"\",\"\",VLOOKUP(E3928,Insumos!AD:AE,2,FALSE))","v":""},null,{"$f":"IF(G3928=\"\",\"\",VLOOKUP(G3928,Insumos!G:H,2,FALSE))","v":""}]
[null,null,null,null,null,{"$f":"IF(E3929=\"\",\"\",VLOOKUP(E3929,Insumos!AD:AE,2,FALSE))","v":""},null,{"$f":"IF(G3929=\"\",\"\",VLOOKUP(G3929,Insumos!G:H,2,FALSE))","v":""}]
[null,null,null,null,null,{"$f":"IF(E3930=\"\",\"\",VLOOKUP(E3930,Insumos!AD:AE,2,FALSE))","v":""},null,{"$f":"IF(G3930=\"\",\"\",VLOOKUP(G3930,Insumos!G:H,2,FALSE))","v":""}]
[null,null,null,null,null,{"$f":"IF(E3931=\"\",\"\",VLOOKUP(E3931,Insumos!AD:AE,2,FALSE))","v":""},null,{"$f":"IF(G3931=\"\",\"\",VLOOKUP(G3931,Insumos!G:H,2,FALSE))","v":""}]
[null,null,null,null,null,{"$f":"IF(E3932=\"\",\"\",VLOOKUP(E3932,Insumos!AD:AE,2,FALSE))","v":""},null,{"$f":"IF(G3932=\"\",\"\",VLOOKUP(G3932,Insumos!G:H,2,FALSE))","v":""}]
[null,null,null,null,null,{"$f":"IF(E3933=\"\",\"\",VLOOKUP(E3933,Insumos!AD:AE,2,FALSE))","v":""},null,{"$f":"IF(G3933=\"\",\"\",VLOOKUP(G3933,Insumos!G:H,2,FALSE))","v":""}]
[null,null,null,null,null,{"$f":"IF(E3934=\"\",\"\",VLOOKUP(E3934,Insumos!AD:AE,2,FALSE))","v":""},null,{"$f":"IF(G3934=\"\",\"\",VLOOKUP(G3934,Insumos!G:H,2,FALSE))","v":""}]
[null,null,null,null,null,{"$f":"IF(E3935=\"\",\"\",VLOOKUP(E3935,Insumos!AD:AE,2,FALSE))","v":""},null,{"$f":"IF(G3935=\"\",\"\",VLOOKUP(G3935,Insumos!G:H,2,FALSE))","v":""}]
[null,null,null,null,null,{"$f":"IF(E3936=\"\",\"\",VLOOKUP(E3936,Insumos!AD:AE,2,FALSE))","v":""},null,{"$f":"IF(G3936=\"\",\"\",VLOOKUP(G3936,Insumos!G:H,2,FALSE))","v":""}]
[null,null,null,null,null,{"$f":"IF(E3937=\"\",\"\",VLOOKUP(E3937,Insumos!AD:AE,2,FALSE))","v":""},null,{"$f":"IF(G3937=\"\",\"\",VLOOKUP(G3937,Insumos!G:H,2,FALSE))","v":""}]
[null,null,null,null,null,{"$f":"IF(E3938=\"\",\"\",VLOOKUP(E3938,Insumos!AD:AE,2,FALSE))","v":""},null,{"$f":"IF(G3938=\"\",\"\",VLOOKUP(G3938,Insumos!G:H,2,FALSE))","v":""}]
[null,null,null,null,null,{"$f":"IF(E3939=\"\",\"\",VLOOKUP(E3939,Insumos!AD:AE,2,FALSE))","v":""},null,{"$f":"IF(G3939=\"\",\"\",VLOOKUP(G3939,Insumos!G:H,2,FALSE))","v":""}]
[null,null,null,null,null,{"$f":"IF(E3940=\"\",\"\",VLOOKUP(E3940,Insumos!AD:AE,2,FALSE))","v":""},null,{"$f":"IF(G3940=\"\",\"\",VLOOKUP(G3940,Insumos!G:H,2,FALSE))","v":""}]
[null,null,null,null,null,{"$f":"IF(E3941=\"\",\"\",VLOOKUP(E3941,Insumos!AD:AE,2,FALSE))","v":""},null,{"$f":"IF(G3941=\"\",\"\",VLOOKUP(G3941,Insumos!G:H,2,FALSE))","v":""}]
[null,null,null,null,null,{"$f":"IF(E3942=\"\",\"\",VLOOKUP(E3942,Insumos!AD:AE,2,FALSE))","v":""},null,{"$f":"IF(G3942=\"\",\"\",VLOOKUP(G3942,Insumos!G:H,2,FALSE))","v":""}]
[null,null,null,null,null,{"$f":"IF(E3943=\"\",\"\",VLOOKUP(E3943,Insumos!AD:AE,2,FALSE))","v":""},null,{"$f":"IF(G3943=\"\",\"\",VLOOKUP(G3943,Insumos!G:H,2,FALSE))","v":""}]
[null,null,null,null,null,{"$f":"IF(E3944=\"\",\"\",VLOOKUP(E3944,Insumos!AD:AE,2,FALSE))","v":""},null,{"$f":"IF(G3944=\"\",\"\",VLOOKUP(G3944,Insumos!G:H,2,FALSE))","v":""}]
[null,null,null,null,null,{"$f":"IF(E3945=\"\",\"\",VLOOKUP(E3945,Insumos!AD:AE,2,FALSE))","v":""},null,{"$f":"IF(G3945=\"\",\"\",VLOOKUP(G3945,Insumos!G:H,2,FALSE))","v":""}]
[null,null,null,null,null,{"$f":"IF(E3946=\"\",\"\",VLOOKUP(E3946,Insumos!AD:AE,2,FALSE))","v":""},null,{"$f":"IF(G3946=\"\",\"\",VLOOKUP(G3946,Insumos!G:H,2,FALSE))","v":""}]
[null,null,null,null,null,{"$f":"IF(E3947=\"\",\"\",VLOOKUP(E3947,Insumos!AD:AE,2,FALSE))","v":""},null,{"$f":"IF(G3947=\"\",\"\",VLOOKUP(G3947,Insumos!G:H,2,FALSE))","v":""}]
[null,null,null,null,null,{"$f":"IF(E3948=\"\",\"\",VLOOKUP(E3948,Insumos!AD:AE,2,FALSE))","v":""},null,{"$f":"IF(G3948=\"\",\"\",VLOOKUP(G3948,Insumos!G:H,2,FALSE))","v":""}]
[null,null,null,null,null,{"$f":"IF(E3949=\"\",\"\",VLOOKUP(E3949,Insumos!AD:AE,2,FALSE))","v":""},null,{"$f":"IF(G3949=\"\",\"\",VLOOKUP(G3949,Insumos!G:H,2,FALSE))","v":""}]
[null,null,null,null,null,{"$f":"IF(E3950=\"\",\"\",VLOOKUP(E3950,Insumos!AD:AE,2,FALSE))","v":""},null,{"$f":"IF(G3950=\"\",\"\",VLOOKUP(G3950,Insumos!G:H,2,FALSE))","v":""}]
[null,null,null,null,null,{"$f":"IF(E3951=\"\",\"\",VLOOKUP(E3951,Insumos!AD:AE,2,FALSE))","v":""},null,{"$f":"IF(G3951=\"\",\"\",VLOOKUP(G3951,Insumos!G:H,2,FALSE))","v":""}]
[null,null,null,null,null,{"$f":"IF(E3952=\"\",\"\",VLOOKUP(E3952,Insumos!AD:AE,2,FALSE))","v":""},null,{"$f":"IF(G3952=\"\",\"\",VLOOKUP(G3952,Insumos!G:H,2,FALSE))","v":""}]
[null,null,null,null,null,{"$f":"IF(E3953=\"\",\"\",VLOOKUP(E3953,Insumos!AD:AE,2,FALSE))","v":""},null,{"$f":"IF(G3953=\"\",\"\",VLOOKUP(G3953,Insumos!G:H,2,FALSE))","v":""}]
[null,null,null,null,null,{"$f":"IF(E3954=\"\",\"\",VLOOKUP(E3954,Insumos!AD:AE,2,FALSE))","v":""},null,{"$f":"IF(G3954=\"\",\"\",VLOOKUP(G3954,Insumos!G:H,2,FALSE))","v":""}]
[null,null,null,null,null,{"$f":"IF(E3955=\"\",\"\",VLOOKUP(E3955,Insumos!AD:AE,2,FALSE))","v":""},null,{"$f":"IF(G3955=\"\",\"\",VLOOKUP(G3955,Insumos!G:H,2,FALSE))","v":""}]
[null,null,null,null,null,{"$f":"IF(E3956=\"\",\"\",VLOOKUP(E3956,Insumos!AD:AE,2,FALSE))","v":""},null,{"$f":"IF(G3956=\"\",\"\",VLOOKUP(G3956,Insumos!G:H,2,FALSE))","v":""}]
[null,null,null,null,null,{"$f":"IF(E3957=\"\",\"\",VLOOKUP(E3957,Insumos!AD:AE,2,FALSE))","v":""},null,{"$f":"IF(G3957=\"\",\"\",VLOOKUP(G3957,Insumos!G:H,2,FALSE))","v":""}]
[null,null,null,null,null,{"$f":"IF(E3958=\"\",\"\",VLOOKUP(E3958,Insumos!AD:AE,2,FALSE))","v":""},null,{"$f":"IF(G3958=\"\",\"\",VLOOKUP(G3958,Insumos!G:H,2,FALSE))","v":""}]
[null,null,null,null,null,{"$f":"IF(E3959=\"\",\"\",VLOOKUP(E3959,Insumos!AD:AE,2,FALSE))","v":""},null,{"$f":"IF(G3959=\"\",\"\",VLOOKUP(G3959,Insumos!G:H,2,FALSE))","v":""}]
[null,null,null,null,null,{"$f":"IF(E3960=\"\",\"\",VLOOKUP(E3960,Insumos!AD:AE,2,FALSE))","v":""},null,{"$f":"IF(G3960=\"\",\"\",VLOOKUP(G3960,Insumos!G:H,2,FALSE))","v":""}]
[null,null,null,null,null,{"$f":"IF(E3961=\"\",\"\",VLOOKUP(E3961,Insumos!AD:AE,2,FALSE))","v":""},null,{"$f":"IF(G3961=\"\",\"\",VLOOKUP(G3961,Insumos!G:H,2,FALSE))","v":""}]
[null,null,null,null,null,{"$f":"IF(E3962=\"\",\"\",VLOOKUP(E3962,Insumos!AD:AE,2,FALSE))","v":""},null,{"$f":"IF(G3962=\"\",\"\",VLOOKUP(G3962,Insumos!G:H,2,FALSE))","v":""}]
[null,null,null,null,null,{"$f":"IF(E3963=\"\",\"\",VLOOKUP(E3963,Insumos!AD:AE,2,FALSE))","v":""},null,{"$f":"IF(G3963=\"\",\"\",VLOOKUP(G3963,Insumos!G:H,2,FALSE))","v":""}]
[null,null,null,null,null,{"$f":"IF(E3964=\"\",\"\",VLOOKUP(E3964,Insumos!AD:AE,2,FALSE))","v":""},null,{"$f":"IF(G3964=\"\",\"\",VLOOKUP(G3964,Insumos!G:H,2,FALSE))","v":""}]
[null,null,null,null,null,{"$f":"IF(E3965=\"\",\"\",VLOOKUP(E3965,Insumos!AD:AE,2,FALSE))","v":""},null,{"$f":"IF(G3965=\"\",\"\",VLOOKUP(G3965,Insumos!G:H,2,FALSE))","v":""}]
[null,null,null,null,null,{"$f":"IF(E3966=\"\",\"\",VLOOKUP(E3966,Insumos!AD:AE,2,FALSE))","v":""},null,{"$f":"IF(G3966=\"\",\"\",VLOOKUP(G3966,Insumos!G:H,2,FALSE))","v":""}]
[null,null,null,null,null,{"$f":"IF(E3967=\"\",\"\",VLOOKUP(E3967,Insumos!AD:AE,2,FALSE))","v":""},null,{"$f":"IF(G3967=\"\",\"\",VLOOKUP(G3967,Insumos!G:H,2,FALSE))","v":""}]
[null,null,null,null,null,{"$f":"IF(E3968=\"\",\"\",VLOOKUP(E3968,Insumos!AD:AE,2,FALSE))","v":""},null,{"$f":"IF(G3968=\"\",\"\",VLOOKUP(G3968,Insumos!G:H,2,FALSE))","v":""}]
[null,null,null,null,null,{"$f":"IF(E3969=\"\",\"\",VLOOKUP(E3969,Insumos!AD:AE,2,FALSE))","v":""},null,{"$f":"IF(G3969=\"\",\"\",VLOOKUP(G3969,Insumos!G:H,2,FALSE))","v":""}]
[null,null,null,null,null,{"$f":"IF(E3970=\"\",\"\",VLOOKUP(E3970,Insumos!AD:AE,2,FALSE))","v":""},null,{"$f":"IF(G3970=\"\",\"\",VLOOKUP(G3970,Insumos!G:H,2,FALSE))","v":""}]
[null,null,null,null,null,{"$f":"IF(E3971=\"\",\"\",VLOOKUP(E3971,Insumos!AD:AE,2,FALSE))","v":""},null,{"$f":"IF(G3971=\"\",\"\",VLOOKUP(G3971,Insumos!G:H,2,FALSE))","v":""}]
[null,null,null,null,null,{"$f":"IF(E3972=\"\",\"\",VLOOKUP(E3972,Insumos!AD:AE,2,FALSE))","v":""},null,{"$f":"IF(G3972=\"\",\"\",VLOOKUP(G3972,Insumos!G:H,2,FALSE))","v":""}]
[null,null,null,null,null,{"$f":"IF(E3973=\"\",\"\",VLOOKUP(E3973,Insumos!AD:AE,2,FALSE))","v":""},null,{"$f":"IF(G3973=\"\",\"\",VLOOKUP(G3973,Insumos!G:H,2,FALSE))","v":""}]
[null,null,null,null,null,{"$f":"IF(E3974=\"\",\"\",VLOOKUP(E3974,Insumos!AD:AE,2,FALSE))","v":""},null,{"$f":"IF(G3974=\"\",\"\",VLOOKUP(G3974,Insumos!G:H,2,FALSE))","v":""}]
[null,null,null,null,null,{"$f":"IF(E3975=\"\",\"\",VLOOKUP(E3975,Insumos!AD:AE,2,FALSE))","v":""},null,{"$f":"IF(G3975=\"\",\"\",VLOOKUP(G3975,Insumos!G:H,2,FALSE))","v":""}]
[null,null,null,null,null,{"$f":"IF(E3976=\"\",\"\",VLOOKUP(E3976,Insumos!AD:AE,2,FALSE))","v":""},null,{"$f":"IF(G3976=\"\",\"\",VLOOKUP(G3976,Insumos!G:H,2,FALSE))","v":""}]
[null,null,null,null,null,{"$f":"IF(E3977=\"\",\"\",VLOOKUP(E3977,Insumos!AD:AE,2,FALSE))","v":""},null,{"$f":"IF(G3977=\"\",\"\",VLOOKUP(G3977,Insumos!G:H,2,FALSE))","v":""}]
[null,null,null,null,null,{"$f":"IF(E3978=\"\",\"\",VLOOKUP(E3978,Insumos!AD:AE,2,FALSE))","v":""},null,{"$f":"IF(G3978=\"\",\"\",VLOOKUP(G3978,Insumos!G:H,2,FALSE))","v":""}]
[null,null,null,null,null,{"$f":"IF(E3979=\"\",\"\",VLOOKUP(E3979,Insumos!AD:AE,2,FALSE))","v":""},null,{"$f":"IF(G3979=\"\",\"\",VLOOKUP(G3979,Insumos!G:H,2,FALSE))","v":""}]
[null,null,null,null,null,{"$f":"IF(E3980=\"\",\"\",VLOOKUP(E3980,Insumos!AD:AE,2,FALSE))","v":""},null,{"$f":"IF(G3980=\"\",\"\",VLOOKUP(G3980,Insumos!G:H,2,FALSE))","v":""}]
[null,null,null,null,null,{"$f":"IF(E3981=\"\",\"\",VLOOKUP(E3981,Insumos!AD:AE,2,FALSE))","v":""},null,{"$f":"IF(G3981=\"\",\"\",VLOOKUP(G3981,Insumos!G:H,2,FALSE))","v":""}]
[null,null,null,null,null,{"$f":"IF(E3982=\"\",\"\",VLOOKUP(E3982,Insumos!AD:AE,2,FALSE))","v":""},null,{"$f":"IF(G3982=\"\",\"\",VLOOKUP(G3982,Insumos!G:H,2,FALSE))","v":""}]
[null,null,null,null,null,{"$f":"IF(E3983=\"\",\"\",VLOOKUP(E3983,Insumos!AD:AE,2,FALSE))","v":""},null,{"$f":"IF(G3983=\"\",\"\",VLOOKUP(G3983,Insumos!G:H,2,FALSE))","v":""}]
[null,null,null,null,null,{"$f":"IF(E3984=\"\",\"\",VLOOKUP(E3984,Insumos!AD:AE,2,FALSE))","v":""},null,{"$f":"IF(G3984=\"\",\"\",VLOOKUP(G3984,Insumos!G:H,2,FALSE))","v":""}]
[null,null,null,null,null,{"$f":"IF(E3985=\"\",\"\",VLOOKUP(E3985,Insumos!AD:AE,2,FALSE))","v":""},null,{"$f":"IF(G3985=\"\",\"\",VLOOKUP(G3985,Insumos!G:H,2,FALSE))","v":""}]
[null,null,null,null,null,{"$f":"IF(E3986=\"\",\"\",VLOOKUP(E3986,Insumos!AD:AE,2,FALSE))","v":""},null,{"$f":"IF(G3986=\"\",\"\",VLOOKUP(G3986,Insumos!G:H,2,FALSE))","v":""}]
[null,null,null,null,null,{"$f":"IF(E3987=\"\",\"\",VLOOKUP(E3987,Insumos!AD:AE,2,FALSE))","v":""},null,{"$f":"IF(G3987=\"\",\"\",VLOOKUP(G3987,Insumos!G:H,2,FALSE))","v":""}]
[null,null,null,null,null,{"$f":"IF(E3988=\"\",\"\",VLOOKUP(E3988,Insumos!AD:AE,2,FALSE))","v":""},null,{"$f":"IF(G3988=\"\",\"\",VLOOKUP(G3988,Insumos!G:H,2,FALSE))","v":""}]
[null,null,null,null,null,{"$f":"IF(E3989=\"\",\"\",VLOOKUP(E3989,Insumos!AD:AE,2,FALSE))","v":""},null,{"$f":"IF(G3989=\"\",\"\",VLOOKUP(G3989,Insumos!G:H,2,FALSE))","v":""}]
[null,null,null,null,null,{"$f":"IF(E3990=\"\",\"\",VLOOKUP(E3990,Insumos!AD:AE,2,FALSE))","v":""},null,{"$f":"IF(G3990=\"\",\"\",VLOOKUP(G3990,Insumos!G:H,2,FALSE))","v":""}]
[null,null,null,null,null,{"$f":"IF(E3991=\"\",\"\",VLOOKUP(E3991,Insumos!AD:AE,2,FALSE))","v":""},null,{"$f":"IF(G3991=\"\",\"\",VLOOKUP(G3991,Insumos!G:H,2,FALSE))","v":""}]
[null,null,null,null,null,{"$f":"IF(E3992=\"\",\"\",VLOOKUP(E3992,Insumos!AD:AE,2,FALSE))","v":""},null,{"$f":"IF(G3992=\"\",\"\",VLOOKUP(G3992,Insumos!G:H,2,FALSE))","v":""}]
[null,null,null,null,null,{"$f":"IF(E3993=\"\",\"\",VLOOKUP(E3993,Insumos!AD:AE,2,FALSE))","v":""},null,{"$f":"IF(G3993=\"\",\"\",VLOOKUP(G3993,Insumos!G:H,2,FALSE))","v":""}]
[null,null,null,null,null,{"$f":"IF(E3994=\"\",\"\",VLOOKUP(E3994,Insumos!AD:AE,2,FALSE))","v":""},null,{"$f":"IF(G3994=\"\",\"\",VLOOKUP(G3994,Insumos!G:H,2,FALSE))","v":""}]
[null,null,null,null,null,{"$f":"IF(E3995=\"\",\"\",VLOOKUP(E3995,Insumos!AD:AE,2,FALSE))","v":""},null,{"$f":"IF(G3995=\"\",\"\",VLOOKUP(G3995,Insumos!G:H,2,FALSE))","v":""}]
[null,null,null,null,null,{"$f":"IF(E3996=\"\",\"\",VLOOKUP(E3996,Insumos!AD:AE,2,FALSE))","v":""},null,{"$f":"IF(G3996=\"\",\"\",VLOOKUP(G3996,Insumos!G:H,2,FALSE))","v":""}]
[null,null,null,null,null,{"$f":"IF(E3997=\"\",\"\",VLOOKUP(E3997,Insumos!AD:AE,2,FALSE))","v":""},null,{"$f":"IF(G3997=\"\",\"\",VLOOKUP(G3997,Insumos!G:H,2,FALSE))","v":""}]
[null,null,null,null,null,{"$f":"IF(E3998=\"\",\"\",VLOOKUP(E3998,Insumos!AD:AE,2,FALSE))","v":""},null,{"$f":"IF(G3998=\"\",\"\",VLOOKUP(G3998,Insumos!G:H,2,FALSE))","v":""}]
[null,null,null,null,null,{"$f":"IF(E3999=\"\",\"\",VLOOKUP(E3999,Insumos!AD:AE,2,FALSE))","v":""},null,{"$f":"IF(G3999=\"\",\"\",VLOOKUP(G3999,Insumos!G:H,2,FALSE))","v":""}]
[null,null,null,null,null,{"$f":"IF(E4000=\"\",\"\",VLOOKUP(E4000,Insumos!AD:AE,2,FALSE))","v":""},null,{"$f":"IF(G4000=\"\",\"\",VLOOKUP(G4000,Insumos!G:H,2,FALSE))","v":""}]
[null,null,null,null,null,{"$f":"IF(E4001=\"\",\"\",VLOOKUP(E4001,Insumos!AD:AE,2,FALSE))","v":""},null,{"$f":"IF(G4001=\"\",\"\",VLOOKUP(G4001,Insumos!G:H,2,FALSE))","v":""}]
[null,null,null,null,null,{"$f":"IF(E4002=\"\",\"\",VLOOKUP(E4002,Insumos!AD:AE,2,FALSE))","v":""},null,{"$f":"IF(G4002=\"\",\"\",VLOOKUP(G4002,Insumos!G:H,2,FALSE))","v":""}]
[null,null,null,null,null,{"$f":"IF(E4003=\"\",\"\",VLOOKUP(E4003,Insumos!AD:AE,2,FALSE))","v":""},null,{"$f":"IF(G4003=\"\",\"\",VLOOKUP(G4003,Insumos!G:H,2,FALSE))","v":""}]
[null,null,null,null,null,{"$f":"IF(E4004=\"\",\"\",VLOOKUP(E4004,Insumos!AD:AE,2,FALSE))","v":""},null,{"$f":"IF(G4004=\"\",\"\",VLOOKUP(G4004,Insumos!G:H,2,FALSE))","v":""}]
[null,null,null,null,null,{"$f":"IF(E4005=\"\",\"\",VLOOKUP(E4005,Insumos!AD:AE,2,FALSE))","v":""},null,{"$f":"IF(G4005=\"\",\"\",VLOOKUP(G4005,Insumos!G:H,2,FALSE))","v":""}]
[null,null,null,null,null,{"$f":"IF(E4006=\"\",\"\",VLOOKUP(E4006,Insumos!AD:AE,2,FALSE))","v":""},null,{"$f":"IF(G4006=\"\",\"\",VLOOKUP(G4006,Insumos!G:H,2,FALSE))","v":""}]
[null,null,null,null,null,{"$f":"IF(E4007=\"\",\"\",VLOOKUP(E4007,Insumos!AD:AE,2,FALSE))","v":""},null,{"$f":"IF(G4007=\"\",\"\",VLOOKUP(G4007,Insumos!G:H,2,FALSE))","v":""}]
[null,null,null,null,null,{"$f":"IF(E4008=\"\",\"\",VLOOKUP(E4008,Insumos!AD:AE,2,FALSE))","v":""},null,{"$f":"IF(G4008=\"\",\"\",VLOOKUP(G4008,Insumos!G:H,2,FALSE))","v":""}]
[null,null,null,null,null,{"$f":"IF(E4009=\"\",\"\",VLOOKUP(E4009,Insumos!AD:AE,2,FALSE))","v":""},null,{"$f":"IF(G4009=\"\",\"\",VLOOKUP(G4009,Insumos!G:H,2,FALSE))","v":""}]
[null,null,null,null,null,{"$f":"IF(E4010=\"\",\"\",VLOOKUP(E4010,Insumos!AD:AE,2,FALSE))","v":""},null,{"$f":"IF(G4010=\"\",\"\",VLOOKUP(G4010,Insumos!G:H,2,FALSE))","v":""}]
[null,null,null,null,null,{"$f":"IF(E4011=\"\",\"\",VLOOKUP(E4011,Insumos!AD:AE,2,FALSE))","v":""},null,{"$f":"IF(G4011=\"\",\"\",VLOOKUP(G4011,Insumos!G:H,2,FALSE))","v":""}]
[null,null,null,null,null,{"$f":"IF(E4012=\"\",\"\",VLOOKUP(E4012,Insumos!AD:AE,2,FALSE))","v":""},null,{"$f":"IF(G4012=\"\",\"\",VLOOKUP(G4012,Insumos!G:H,2,FALSE))","v":""}]
[null,null,null,null,null,{"$f":"IF(E4013=\"\",\"\",VLOOKUP(E4013,Insumos!AD:AE,2,FALSE))","v":""},null,{"$f":"IF(G4013=\"\",\"\",VLOOKUP(G4013,Insumos!G:H,2,FALSE))","v":""}]
[null,null,null,null,null,{"$f":"IF(E4014=\"\",\"\",VLOOKUP(E4014,Insumos!AD:AE,2,FALSE))","v":""},null,{"$f":"IF(G4014=\"\",\"\",VLOOKUP(G4014,Insumos!G:H,2,FALSE))","v":""}]
[null,null,null,null,null,{"$f":"IF(E4015=\"\",\"\",VLOOKUP(E4015,Insumos!AD:AE,2,FALSE))","v":""},null,{"$f":"IF(G4015=\"\",\"\",VLOOKUP(G4015,Insumos!G:H,2,FALSE))","v":""}]
[null,null,null,null,null,{"$f":"IF(E4016=\"\",\"\",VLOOKUP(E4016,Insumos!AD:AE,2,FALSE))","v":""},null,{"$f":"IF(G4016=\"\",\"\",VLOOKUP(G4016,Insumos!G:H,2,FALSE))","v":""}]
[null,null,null,null,null,{"$f":"IF(E4017=\"\",\"\",VLOOKUP(E4017,Insumos!AD:AE,2,FALSE))","v":""},null,{"$f":"IF(G4017=\"\",\"\",VLOOKUP(G4017,Insumos!G:H,2,FALSE))","v":""}]
[null,null,null,null,null,{"$f":"IF(E4018=\"\",\"\",VLOOKUP(E4018,Insumos!AD:AE,2,FALSE))","v":""},null,{"$f":"IF(G4018=\"\",\"\",VLOOKUP(G4018,Insumos!G:H,2,FALSE))","v":""}]
[null,null,null,null,null,{"$f":"IF(E4019=\"\",\"\",VLOOKUP(E4019,Insumos!AD:AE,2,FALSE))","v":""},null,{"$f":"IF(G4019=\"\",\"\",VLOOKUP(G4019,Insumos!G:H,2,FALSE))","v":""}]
[null,null,null,null,null,{"$f":"IF(E4020=\"\",\"\",VLOOKUP(E4020,Insumos!AD:AE,2,FALSE))","v":""},null,{"$f":"IF(G4020=\"\",\"\",VLOOKUP(G4020,Insumos!G:H,2,FALSE))","v":""}]
[null,null,null,null,null,{"$f":"IF(E4021=\"\",\"\",VLOOKUP(E4021,Insumos!AD:AE,2,FALSE))","v":""},null,{"$f":"IF(G4021=\"\",\"\",VLOOKUP(G4021,Insumos!G:H,2,FALSE))","v":""}]
[null,null,null,null,null,{"$f":"IF(E4022=\"\",\"\",VLOOKUP(E4022,Insumos!AD:AE,2,FALSE))","v":""},null,{"$f":"IF(G4022=\"\",\"\",VLOOKUP(G4022,Insumos!G:H,2,FALSE))","v":""}]
[null,null,null,null,null,{"$f":"IF(E4023=\"\",\"\",VLOOKUP(E4023,Insumos!AD:AE,2,FALSE))","v":""},null,{"$f":"IF(G4023=\"\",\"\",VLOOKUP(G4023,Insumos!G:H,2,FALSE))","v":""}]
[null,null,null,null,null,{"$f":"IF(E4024=\"\",\"\",VLOOKUP(E4024,Insumos!AD:AE,2,FALSE))","v":""},null,{"$f":"IF(G4024=\"\",\"\",VLOOKUP(G4024,Insumos!G:H,2,FALSE))","v":""}]
[null,null,null,null,null,{"$f":"IF(E4025=\"\",\"\",VLOOKUP(E4025,Insumos!AD:AE,2,FALSE))","v":""},null,{"$f":"IF(G4025=\"\",\"\",VLOOKUP(G4025,Insumos!G:H,2,FALSE))","v":""}]
[null,null,null,null,null,{"$f":"IF(E4026=\"\",\"\",VLOOKUP(E4026,Insumos!AD:AE,2,FALSE))","v":""},null,{"$f":"IF(G4026=\"\",\"\",VLOOKUP(G4026,Insumos!G:H,2,FALSE))","v":""}]
[null,null,null,null,null,{"$f":"IF(E4027=\"\",\"\",VLOOKUP(E4027,Insumos!AD:AE,2,FALSE))","v":""},null,{"$f":"IF(G4027=\"\",\"\",VLOOKUP(G4027,Insumos!G:H,2,FALSE))","v":""}]
[null,null,null,null,null,{"$f":"IF(E4028=\"\",\"\",VLOOKUP(E4028,Insumos!AD:AE,2,FALSE))","v":""},null,{"$f":"IF(G4028=\"\",\"\",VLOOKUP(G4028,Insumos!G:H,2,FALSE))","v":""}]
[null,null,null,null,null,{"$f":"IF(E4029=\"\",\"\",VLOOKUP(E4029,Insumos!AD:AE,2,FALSE))","v":""},null,{"$f":"IF(G4029=\"\",\"\",VLOOKUP(G4029,Insumos!G:H,2,FALSE))","v":""}]
[null,null,null,null,null,{"$f":"IF(E4030=\"\",\"\",VLOOKUP(E4030,Insumos!AD:AE,2,FALSE))","v":""},null,{"$f":"IF(G4030=\"\",\"\",VLOOKUP(G4030,Insumos!G:H,2,FALSE))","v":""}]
[null,null,null,null,null,{"$f":"IF(E4031=\"\",\"\",VLOOKUP(E4031,Insumos!AD:AE,2,FALSE))","v":""},null,{"$f":"IF(G4031=\"\",\"\",VLOOKUP(G4031,Insumos!G:H,2,FALSE))","v":""}]
[null,null,null,null,null,{"$f":"IF(E4032=\"\",\"\",VLOOKUP(E4032,Insumos!AD:AE,2,FALSE))","v":""},null,{"$f":"IF(G4032=\"\",\"\",VLOOKUP(G4032,Insumos!G:H,2,FALSE))","v":""}]
[null,null,null,null,null,{"$f":"IF(E4033=\"\",\"\",VLOOKUP(E4033,Insumos!AD:AE,2,FALSE))","v":""},null,{"$f":"IF(G4033=\"\",\"\",VLOOKUP(G4033,Insumos!G:H,2,FALSE))","v":""}]
[null,null,null,null,null,{"$f":"IF(E4034=\"\",\"\",VLOOKUP(E4034,Insumos!AD:AE,2,FALSE))","v":""},null,{"$f":"IF(G4034=\"\",\"\",VLOOKUP(G4034,Insumos!G:H,2,FALSE))","v":""}]
[null,null,null,null,null,{"$f":"IF(E4035=\"\",\"\",VLOOKUP(E4035,Insumos!AD:AE,2,FALSE))","v":""},null,{"$f":"IF(G4035=\"\",\"\",VLOOKUP(G4035,Insumos!G:H,2,FALSE))","v":""}]
[null,null,null,null,null,{"$f":"IF(E4036=\"\",\"\",VLOOKUP(E4036,Insumos!AD:AE,2,FALSE))","v":""},null,{"$f":"IF(G4036=\"\",\"\",VLOOKUP(G4036,Insumos!G:H,2,FALSE))","v":""}]
[null,null,null,null,null,{"$f":"IF(E4037=\"\",\"\",VLOOKUP(E4037,Insumos!AD:AE,2,FALSE))","v":""},null,{"$f":"IF(G4037=\"\",\"\",VLOOKUP(G4037,Insumos!G:H,2,FALSE))","v":""}]
[null,null,null,null,null,{"$f":"IF(E4038=\"\",\"\",VLOOKUP(E4038,Insumos!AD:AE,2,FALSE))","v":""},null,{"$f":"IF(G4038=\"\",\"\",VLOOKUP(G4038,Insumos!G:H,2,FALSE))","v":""}]
[null,null,null,null,null,{"$f":"IF(E4039=\"\",\"\",VLOOKUP(E4039,Insumos!AD:AE,2,FALSE))","v":""},null,{"$f":"IF(G4039=\"\",\"\",VLOOKUP(G4039,Insumos!G:H,2,FALSE))","v":""}]
[null,null,null,null,null,{"$f":"IF(E4040=\"\",\"\",VLOOKUP(E4040,Insumos!AD:AE,2,FALSE))","v":""},null,{"$f":"IF(G4040=\"\",\"\",VLOOKUP(G4040,Insumos!G:H,2,FALSE))","v":""}]
[null,null,null,null,null,{"$f":"IF(E4041=\"\",\"\",VLOOKUP(E4041,Insumos!AD:AE,2,FALSE))","v":""},null,{"$f":"IF(G4041=\"\",\"\",VLOOKUP(G4041,Insumos!G:H,2,FALSE))","v":""}]
[null,null,null,null,null,{"$f":"IF(E4042=\"\",\"\",VLOOKUP(E4042,Insumos!AD:AE,2,FALSE))","v":""},null,{"$f":"IF(G4042=\"\",\"\",VLOOKUP(G4042,Insumos!G:H,2,FALSE))","v":""}]
[null,null,null,null,null,{"$f":"IF(E4043=\"\",\"\",VLOOKUP(E4043,Insumos!AD:AE,2,FALSE))","v":""},null,{"$f":"IF(G4043=\"\",\"\",VLOOKUP(G4043,Insumos!G:H,2,FALSE))","v":""}]
[null,null,null,null,null,{"$f":"IF(E4044=\"\",\"\",VLOOKUP(E4044,Insumos!AD:AE,2,FALSE))","v":""},null,{"$f":"IF(G4044=\"\",\"\",VLOOKUP(G4044,Insumos!G:H,2,FALSE))","v":""}]
[null,null,null,null,null,{"$f":"IF(E4045=\"\",\"\",VLOOKUP(E4045,Insumos!AD:AE,2,FALSE))","v":""},null,{"$f":"IF(G4045=\"\",\"\",VLOOKUP(G4045,Insumos!G:H,2,FALSE))","v":""}]
[null,null,null,null,null,{"$f":"IF(E4046=\"\",\"\",VLOOKUP(E4046,Insumos!AD:AE,2,FALSE))","v":""},null,{"$f":"IF(G4046=\"\",\"\",VLOOKUP(G4046,Insumos!G:H,2,FALSE))","v":""}]
[null,null,null,null,null,{"$f":"IF(E4047=\"\",\"\",VLOOKUP(E4047,Insumos!AD:AE,2,FALSE))","v":""},null,{"$f":"IF(G4047=\"\",\"\",VLOOKUP(G4047,Insumos!G:H,2,FALSE))","v":""}]
[null,null,null,null,null,{"$f":"IF(E4048=\"\",\"\",VLOOKUP(E4048,Insumos!AD:AE,2,FALSE))","v":""},null,{"$f":"IF(G4048=\"\",\"\",VLOOKUP(G4048,Insumos!G:H,2,FALSE))","v":""}]
[null,null,null,null,null,{"$f":"IF(E4049=\"\",\"\",VLOOKUP(E4049,Insumos!AD:AE,2,FALSE))","v":""},null,{"$f":"IF(G4049=\"\",\"\",VLOOKUP(G4049,Insumos!G:H,2,FALSE))","v":""}]
[null,null,null,null,null,{"$f":"IF(E4050=\"\",\"\",VLOOKUP(E4050,Insumos!AD:AE,2,FALSE))","v":""},null,{"$f":"IF(G4050=\"\",\"\",VLOOKUP(G4050,Insumos!G:H,2,FALSE))","v":""}]
[null,null,null,null,null,{"$f":"IF(E4051=\"\",\"\",VLOOKUP(E4051,Insumos!AD:AE,2,FALSE))","v":""},null,{"$f":"IF(G4051=\"\",\"\",VLOOKUP(G4051,Insumos!G:H,2,FALSE))","v":""}]
[null,null,null,null,null,{"$f":"IF(E4052=\"\",\"\",VLOOKUP(E4052,Insumos!AD:AE,2,FALSE))","v":""},null,{"$f":"IF(G4052=\"\",\"\",VLOOKUP(G4052,Insumos!G:H,2,FALSE))","v":""}]
[null,null,null,null,null,{"$f":"IF(E4053=\"\",\"\",VLOOKUP(E4053,Insumos!AD:AE,2,FALSE))","v":""},null,{"$f":"IF(G4053=\"\",\"\",VLOOKUP(G4053,Insumos!G:H,2,FALSE))","v":""}]
[null,null,null,null,null,{"$f":"IF(E4054=\"\",\"\",VLOOKUP(E4054,Insumos!AD:AE,2,FALSE))","v":""},null,{"$f":"IF(G4054=\"\",\"\",VLOOKUP(G4054,Insumos!G:H,2,FALSE))","v":""}]
[null,null,null,null,null,{"$f":"IF(E4055=\"\",\"\",VLOOKUP(E4055,Insumos!AD:AE,2,FALSE))","v":""},null,{"$f":"IF(G4055=\"\",\"\",VLOOKUP(G4055,Insumos!G:H,2,FALSE))","v":""}]
[null,null,null,null,null,{"$f":"IF(E4056=\"\",\"\",VLOOKUP(E4056,Insumos!AD:AE,2,FALSE))","v":""},null,{"$f":"IF(G4056=\"\",\"\",VLOOKUP(G4056,Insumos!G:H,2,FALSE))","v":""}]
[null,null,null,null,null,{"$f":"IF(E4057=\"\",\"\",VLOOKUP(E4057,Insumos!AD:AE,2,FALSE))","v":""},null,{"$f":"IF(G4057=\"\",\"\",VLOOKUP(G4057,Insumos!G:H,2,FALSE))","v":""}]
[null,null,null,null,null,{"$f":"IF(E4058=\"\",\"\",VLOOKUP(E4058,Insumos!AD:AE,2,FALSE))","v":""},null,{"$f":"IF(G4058=\"\",\"\",VLOOKUP(G4058,Insumos!G:H,2,FALSE))","v":""}]
[null,null,null,null,null,{"$f":"IF(E4059=\"\",\"\",VLOOKUP(E4059,Insumos!AD:AE,2,FALSE))","v":""},null,{"$f":"IF(G4059=\"\",\"\",VLOOKUP(G4059,Insumos!G:H,2,FALSE))","v":""}]
[null,null,null,null,null,{"$f":"IF(E4060=\"\",\"\",VLOOKUP(E4060,Insumos!AD:AE,2,FALSE))","v":""},null,{"$f":"IF(G4060=\"\",\"\",VLOOKUP(G4060,Insumos!G:H,2,FALSE))","v":""}]
[null,null,null,null,null,{"$f":"IF(E4061=\"\",\"\",VLOOKUP(E4061,Insumos!AD:AE,2,FALSE))","v":""},null,{"$f":"IF(G4061=\"\",\"\",VLOOKUP(G4061,Insumos!G:H,2,FALSE))","v":""}]
[null,null,null,null,null,{"$f":"IF(E4062=\"\",\"\",VLOOKUP(E4062,Insumos!AD:AE,2,FALSE))","v":""},null,{"$f":"IF(G4062=\"\",\"\",VLOOKUP(G4062,Insumos!G:H,2,FALSE))","v":""}]
[null,null,null,null,null,{"$f":"IF(E4063=\"\",\"\",VLOOKUP(E4063,Insumos!AD:AE,2,FALSE))","v":""},null,{"$f":"IF(G4063=\"\",\"\",VLOOKUP(G4063,Insumos!G:H,2,FALSE))","v":""}]
[null,null,null,null,null,{"$f":"IF(E4064=\"\",\"\",VLOOKUP(E4064,Insumos!AD:AE,2,FALSE))","v":""},null,{"$f":"IF(G4064=\"\",\"\",VLOOKUP(G4064,Insumos!G:H,2,FALSE))","v":""}]
[null,null,null,null,null,{"$f":"IF(E4065=\"\",\"\",VLOOKUP(E4065,Insumos!AD:AE,2,FALSE))","v":""},null,{"$f":"IF(G4065=\"\",\"\",VLOOKUP(G4065,Insumos!G:H,2,FALSE))","v":""}]
[null,null,null,null,null,{"$f":"IF(E4066=\"\",\"\",VLOOKUP(E4066,Insumos!AD:AE,2,FALSE))","v":""},null,{"$f":"IF(G4066=\"\",\"\",VLOOKUP(G4066,Insumos!G:H,2,FALSE))","v":""}]
[null,null,null,null,null,{"$f":"IF(E4067=\"\",\"\",VLOOKUP(E4067,Insumos!AD:AE,2,FALSE))","v":""},null,{"$f":"IF(G4067=\"\",\"\",VLOOKUP(G4067,Insumos!G:H,2,FALSE))","v":""}]
[null,null,null,null,null,{"$f":"IF(E4068=\"\",\"\",VLOOKUP(E4068,Insumos!AD:AE,2,FALSE))","v":""},null,{"$f":"IF(G4068=\"\",\"\",VLOOKUP(G4068,Insumos!G:H,2,FALSE))","v":""}]
[null,null,null,null,null,{"$f":"IF(E4069=\"\",\"\",VLOOKUP(E4069,Insumos!AD:AE,2,FALSE))","v":""},null,{"$f":"IF(G4069=\"\",\"\",VLOOKUP(G4069,Insumos!G:H,2,FALSE))","v":""}]
[null,null,null,null,null,{"$f":"IF(E4070=\"\",\"\",VLOOKUP(E4070,Insumos!AD:AE,2,FALSE))","v":""},null,{"$f":"IF(G4070=\"\",\"\",VLOOKUP(G4070,Insumos!G:H,2,FALSE))","v":""}]
[null,null,null,null,null,{"$f":"IF(E4071=\"\",\"\",VLOOKUP(E4071,Insumos!AD:AE,2,FALSE))","v":""},null,{"$f":"IF(G4071=\"\",\"\",VLOOKUP(G4071,Insumos!G:H,2,FALSE))","v":""}]
[null,null,null,null,null,{"$f":"IF(E4072=\"\",\"\",VLOOKUP(E4072,Insumos!AD:AE,2,FALSE))","v":""},null,{"$f":"IF(G4072=\"\",\"\",VLOOKUP(G4072,Insumos!G:H,2,FALSE))","v":""}]
[null,null,null,null,null,{"$f":"IF(E4073=\"\",\"\",VLOOKUP(E4073,Insumos!AD:AE,2,FALSE))","v":""},null,{"$f":"IF(G4073=\"\",\"\",VLOOKUP(G4073,Insumos!G:H,2,FALSE))","v":""}]
[null,null,null,null,null,{"$f":"IF(E4074=\"\",\"\",VLOOKUP(E4074,Insumos!AD:AE,2,FALSE))","v":""},null,{"$f":"IF(G4074=\"\",\"\",VLOOKUP(G4074,Insumos!G:H,2,FALSE))","v":""}]
[null,null,null,null,null,{"$f":"IF(E4075=\"\",\"\",VLOOKUP(E4075,Insumos!AD:AE,2,FALSE))","v":""},null,{"$f":"IF(G4075=\"\",\"\",VLOOKUP(G4075,Insumos!G:H,2,FALSE))","v":""}]
[null,null,null,null,null,{"$f":"IF(E4076=\"\",\"\",VLOOKUP(E4076,Insumos!AD:AE,2,FALSE))","v":""},null,{"$f":"IF(G4076=\"\",\"\",VLOOKUP(G4076,Insumos!G:H,2,FALSE))","v":""}]
[null,null,null,null,null,{"$f":"IF(E4077=\"\",\"\",VLOOKUP(E4077,Insumos!AD:AE,2,FALSE))","v":""},null,{"$f":"IF(G4077=\"\",\"\",VLOOKUP(G4077,Insumos!G:H,2,FALSE))","v":""}]
[null,null,null,null,null,{"$f":"IF(E4078=\"\",\"\",VLOOKUP(E4078,Insumos!AD:AE,2,FALSE))","v":""},null,{"$f":"IF(G4078=\"\",\"\",VLOOKUP(G4078,Insumos!G:H,2,FALSE))","v":""}]
[null,null,null,null,null,{"$f":"IF(E4079=\"\",\"\",VLOOKUP(E4079,Insumos!AD:AE,2,FALSE))","v":""},null,{"$f":"IF(G4079=\"\",\"\",VLOOKUP(G4079,Insumos!G:H,2,FALSE))","v":""}]
[null,null,null,null,null,{"$f":"IF(E4080=\"\",\"\",VLOOKUP(E4080,Insumos!AD:AE,2,FALSE))","v":""},null,{"$f":"IF(G4080=\"\",\"\",VLOOKUP(G4080,Insumos!G:H,2,FALSE))","v":""}]
[null,null,null,null,null,{"$f":"IF(E4081=\"\",\"\",VLOOKUP(E4081,Insumos!AD:AE,2,FALSE))","v":""},null,{"$f":"IF(G4081=\"\",\"\",VLOOKUP(G4081,Insumos!G:H,2,FALSE))","v":""}]
[null,null,null,null,null,{"$f":"IF(E4082=\"\",\"\",VLOOKUP(E4082,Insumos!AD:AE,2,FALSE))","v":""},null,{"$f":"IF(G4082=\"\",\"\",VLOOKUP(G4082,Insumos!G:H,2,FALSE))","v":""}]
[null,null,null,null,null,{"$f":"IF(E4083=\"\",\"\",VLOOKUP(E4083,Insumos!AD:AE,2,FALSE))","v":""},null,{"$f":"IF(G4083=\"\",\"\",VLOOKUP(G4083,Insumos!G:H,2,FALSE))","v":""}]
[null,null,null,null,null,{"$f":"IF(E4084=\"\",\"\",VLOOKUP(E4084,Insumos!AD:AE,2,FALSE))","v":""},null,{"$f":"IF(G4084=\"\",\"\",VLOOKUP(G4084,Insumos!G:H,2,FALSE))","v":""}]
[null,null,null,null,null,{"$f":"IF(E4085=\"\",\"\",VLOOKUP(E4085,Insumos!AD:AE,2,FALSE))","v":""},null,{"$f":"IF(G4085=\"\",\"\",VLOOKUP(G4085,Insumos!G:H,2,FALSE))","v":""}]
[null,null,null,null,null,{"$f":"IF(E4086=\"\",\"\",VLOOKUP(E4086,Insumos!AD:AE,2,FALSE))","v":""},null,{"$f":"IF(G4086=\"\",\"\",VLOOKUP(G4086,Insumos!G:H,2,FALSE))","v":""}]
[null,null,null,null,null,{"$f":"IF(E4087=\"\",\"\",VLOOKUP(E4087,Insumos!AD:AE,2,FALSE))","v":""},null,{"$f":"IF(G4087=\"\",\"\",VLOOKUP(G4087,Insumos!G:H,2,FALSE))","v":""}]
[null,null,null,null,null,{"$f":"IF(E4088=\"\",\"\",VLOOKUP(E4088,Insumos!AD:AE,2,FALSE))","v":""},null,{"$f":"IF(G4088=\"\",\"\",VLOOKUP(G4088,Insumos!G:H,2,FALSE))","v":""}]
[null,null,null,null,null,{"$f":"IF(E4089=\"\",\"\",VLOOKUP(E4089,Insumos!AD:AE,2,FALSE))","v":""},null,{"$f":"IF(G4089=\"\",\"\",VLOOKUP(G4089,Insumos!G:H,2,FALSE))","v":""}]
[null,null,null,null,null,{"$f":"IF(E4090=\"\",\"\",VLOOKUP(E4090,Insumos!AD:AE,2,FALSE))","v":""},null,{"$f":"IF(G4090=\"\",\"\",VLOOKUP(G4090,Insumos!G:H,2,FALSE))","v":""}]
[null,null,null,null,null,{"$f":"IF(E4091=\"\",\"\",VLOOKUP(E4091,Insumos!AD:AE,2,FALSE))","v":""},null,{"$f":"IF(G4091=\"\",\"\",VLOOKUP(G4091,Insumos!G:H,2,FALSE))","v":""}]
[null,null,null,null,null,{"$f":"IF(E4092=\"\",\"\",VLOOKUP(E4092,Insumos!AD:AE,2,FALSE))","v":""},null,{"$f":"IF(G4092=\"\",\"\",VLOOKUP(G4092,Insumos!G:H,2,FALSE))","v":""}]
[null,null,null,null,null,{"$f":"IF(E4093=\"\",\"\",VLOOKUP(E4093,Insumos!AD:AE,2,FALSE))","v":""},null,{"$f":"IF(G4093=\"\",\"\",VLOOKUP(G4093,Insumos!G:H,2,FALSE))","v":""}]
[null,null,null,null,null,{"$f":"IF(E4094=\"\",\"\",VLOOKUP(E4094,Insumos!AD:AE,2,FALSE))","v":""},null,{"$f":"IF(G4094=\"\",\"\",VLOOKUP(G4094,Insumos!G:H,2,FALSE))","v":""}]
[null,null,null,null,null,{"$f":"IF(E4095=\"\",\"\",VLOOKUP(E4095,Insumos!AD:AE,2,FALSE))","v":""},null,{"$f":"IF(G4095=\"\",\"\",VLOOKUP(G4095,Insumos!G:H,2,FALSE))","v":""}]
[null,null,null,null,null,{"$f":"IF(E4096=\"\",\"\",VLOOKUP(E4096,Insumos!AD:AE,2,FALSE))","v":""},null,{"$f":"IF(G4096=\"\",\"\",VLOOKUP(G4096,Insumos!G:H,2,FALSE))","v":""}]
[null,null,null,null,null,{"$f":"IF(E4097=\"\",\"\",VLOOKUP(E4097,Insumos!AD:AE,2,FALSE))","v":""},null,{"$f":"IF(G4097=\"\",\"\",VLOOKUP(G4097,Insumos!G:H,2,FALSE))","v":""}]
[null,null,null,null,null,{"$f":"IF(E4098=\"\",\"\",VLOOKUP(E4098,Insumos!AD:AE,2,FALSE))","v":""},null,{"$f":"IF(G4098=\"\",\"\",VLOOKUP(G4098,Insumos!G:H,2,FALSE))","v":""}]
[null,null,null,null,null,{"$f":"IF(E4099=\"\",\"\",VLOOKUP(E4099,Insumos!AD:AE,2,FALSE))","v":""},null,{"$f":"IF(G4099=\"\",\"\",VLOOKUP(G4099,Insumos!G:H,2,FALSE))","v":""}]
[null,null,null,null,null,{"$f":"IF(E4100=\"\",\"\",VLOOKUP(E4100,Insumos!AD:AE,2,FALSE))","v":""},null,{"$f":"IF(G4100=\"\",\"\",VLOOKUP(G4100,Insumos!G:H,2,FALSE))","v":""}]
[null,null,null,null,null,{"$f":"IF(E4101=\"\",\"\",VLOOKUP(E4101,Insumos!AD:AE,2,FALSE))","v":""},null,{"$f":"IF(G4101=\"\",\"\",VLOOKUP(G4101,Insumos!G:H,2,FALSE))","v":""}]
[null,null,null,null,null,{"$f":"IF(E4102=\"\",\"\",VLOOKUP(E4102,Insumos!AD:AE,2,FALSE))","v":""},null,{"$f":"IF(G4102=\"\",\"\",VLOOKUP(G4102,Insumos!G:H,2,FALSE))","v":""}]
[null,null,null,null,null,{"$f":"IF(E4103=\"\",\"\",VLOOKUP(E4103,Insumos!AD:AE,2,FALSE))","v":""},null,{"$f":"IF(G4103=\"\",\"\",VLOOKUP(G4103,Insumos!G:H,2,FALSE))","v":""}]
[null,null,null,null,null,{"$f":"IF(E4104=\"\",\"\",VLOOKUP(E4104,Insumos!AD:AE,2,FALSE))","v":""},null,{"$f":"IF(G4104=\"\",\"\",VLOOKUP(G4104,Insumos!G:H,2,FALSE))","v":""}]
[null,null,null,null,null,{"$f":"IF(E4105=\"\",\"\",VLOOKUP(E4105,Insumos!AD:AE,2,FALSE))","v":""},null,{"$f":"IF(G4105=\"\",\"\",VLOOKUP(G4105,Insumos!G:H,2,FALSE))","v":""}]
[null,null,null,null,null,{"$f":"IF(E4106=\"\",\"\",VLOOKUP(E4106,Insumos!AD:AE,2,FALSE))","v":""},null,{"$f":"IF(G4106=\"\",\"\",VLOOKUP(G4106,Insumos!G:H,2,FALSE))","v":""}]
[null,null,null,null,null,{"$f":"IF(E4107=\"\",\"\",VLOOKUP(E4107,Insumos!AD:AE,2,FALSE))","v":""},null,{"$f":"IF(G4107=\"\",\"\",VLOOKUP(G4107,Insumos!G:H,2,FALSE))","v":""}]
[null,null,null,null,null,{"$f":"IF(E4108=\"\",\"\",VLOOKUP(E4108,Insumos!AD:AE,2,FALSE))","v":""},null,{"$f":"IF(G4108=\"\",\"\",VLOOKUP(G4108,Insumos!G:H,2,FALSE))","v":""}]
[null,null,null,null,null,{"$f":"IF(E4109=\"\",\"\",VLOOKUP(E4109,Insumos!AD:AE,2,FALSE))","v":""},null,{"$f":"IF(G4109=\"\",\"\",VLOOKUP(G4109,Insumos!G:H,2,FALSE))","v":""}]
[null,null,null,null,null,{"$f":"IF(E4110=\"\",\"\",VLOOKUP(E4110,Insumos!AD:AE,2,FALSE))","v":""},null,{"$f":"IF(G4110=\"\",\"\",VLOOKUP(G4110,Insumos!G:H,2,FALSE))","v":""}]
[null,null,null,null,null,{"$f":"IF(E4111=\"\",\"\",VLOOKUP(E4111,Insumos!AD:AE,2,FALSE))","v":""},null,{"$f":"IF(G4111=\"\",\"\",VLOOKUP(G4111,Insumos!G:H,2,FALSE))","v":""}]
[null,null,null,null,null,{"$f":"IF(E4112=\"\",\"\",VLOOKUP(E4112,Insumos!AD:AE,2,FALSE))","v":""},null,{"$f":"IF(G4112=\"\",\"\",VLOOKUP(G4112,Insumos!G:H,2,FALSE))","v":""}]
[null,null,null,null,null,{"$f":"IF(E4113=\"\",\"\",VLOOKUP(E4113,Insumos!AD:AE,2,FALSE))","v":""},null,{"$f":"IF(G4113=\"\",\"\",VLOOKUP(G4113,Insumos!G:H,2,FALSE))","v":""}]
[null,null,null,null,null,{"$f":"IF(E4114=\"\",\"\",VLOOKUP(E4114,Insumos!AD:AE,2,FALSE))","v":""},null,{"$f":"IF(G4114=\"\",\"\",VLOOKUP(G4114,Insumos!G:H,2,FALSE))","v":""}]
[null,null,null,null,null,{"$f":"IF(E4115=\"\",\"\",VLOOKUP(E4115,Insumos!AD:AE,2,FALSE))","v":""},null,{"$f":"IF(G4115=\"\",\"\",VLOOKUP(G4115,Insumos!G:H,2,FALSE))","v":""}]
[null,null,null,null,null,{"$f":"IF(E4116=\"\",\"\",VLOOKUP(E4116,Insumos!AD:AE,2,FALSE))","v":""},null,{"$f":"IF(G4116=\"\",\"\",VLOOKUP(G4116,Insumos!G:H,2,FALSE))","v":""}]
[null,null,null,null,null,{"$f":"IF(E4117=\"\",\"\",VLOOKUP(E4117,Insumos!AD:AE,2,FALSE))","v":""},null,{"$f":"IF(G4117=\"\",\"\",VLOOKUP(G4117,Insumos!G:H,2,FALSE))","v":""}]
[null,null,null,null,null,{"$f":"IF(E4118=\"\",\"\",VLOOKUP(E4118,Insumos!AD:AE,2,FALSE))","v":""},null,{"$f":"IF(G4118=\"\",\"\",VLOOKUP(G4118,Insumos!G:H,2,FALSE))","v":""}]
[null,null,null,null,null,{"$f":"IF(E4119=\"\",\"\",VLOOKUP(E4119,Insumos!AD:AE,2,FALSE))","v":""},null,{"$f":"IF(G4119=\"\",\"\",VLOOKUP(G4119,Insumos!G:H,2,FALSE))","v":""}]
[null,null,null,null,null,{"$f":"IF(E4120=\"\",\"\",VLOOKUP(E4120,Insumos!AD:AE,2,FALSE))","v":""},null,{"$f":"IF(G4120=\"\",\"\",VLOOKUP(G4120,Insumos!G:H,2,FALSE))","v":""}]
[null,null,null,null,null,{"$f":"IF(E4121=\"\",\"\",VLOOKUP(E4121,Insumos!AD:AE,2,FALSE))","v":""},null,{"$f":"IF(G4121=\"\",\"\",VLOOKUP(G4121,Insumos!G:H,2,FALSE))","v":""}]
[null,null,null,null,null,{"$f":"IF(E4122=\"\",\"\",VLOOKUP(E4122,Insumos!AD:AE,2,FALSE))","v":""},null,{"$f":"IF(G4122=\"\",\"\",VLOOKUP(G4122,Insumos!G:H,2,FALSE))","v":""}]
[null,null,null,null,null,{"$f":"IF(E4123=\"\",\"\",VLOOKUP(E4123,Insumos!AD:AE,2,FALSE))","v":""},null,{"$f":"IF(G4123=\"\",\"\",VLOOKUP(G4123,Insumos!G:H,2,FALSE))","v":""}]
[null,null,null,null,null,{"$f":"IF(E4124=\"\",\"\",VLOOKUP(E4124,Insumos!AD:AE,2,FALSE))","v":""},null,{"$f":"IF(G4124=\"\",\"\",VLOOKUP(G4124,Insumos!G:H,2,FALSE))","v":""}]
[null,null,null,null,null,{"$f":"IF(E4125=\"\",\"\",VLOOKUP(E4125,Insumos!AD:AE,2,FALSE))","v":""},null,{"$f":"IF(G4125=\"\",\"\",VLOOKUP(G4125,Insumos!G:H,2,FALSE))","v":""}]
[null,null,null,null,null,{"$f":"IF(E4126=\"\",\"\",VLOOKUP(E4126,Insumos!AD:AE,2,FALSE))","v":""},null,{"$f":"IF(G4126=\"\",\"\",VLOOKUP(G4126,Insumos!G:H,2,FALSE))","v":""}]
[null,null,null,null,null,{"$f":"IF(E4127=\"\",\"\",VLOOKUP(E4127,Insumos!AD:AE,2,FALSE))","v":""},null,{"$f":"IF(G4127=\"\",\"\",VLOOKUP(G4127,Insumos!G:H,2,FALSE))","v":""}]
[null,null,null,null,null,{"$f":"IF(E4128=\"\",\"\",VLOOKUP(E4128,Insumos!AD:AE,2,FALSE))","v":""},null,{"$f":"IF(G4128=\"\",\"\",VLOOKUP(G4128,Insumos!G:H,2,FALSE))","v":""}]
[null,null,null,null,null,{"$f":"IF(E4129=\"\",\"\",VLOOKUP(E4129,Insumos!AD:AE,2,FALSE))","v":""},null,{"$f":"IF(G4129=\"\",\"\",VLOOKUP(G4129,Insumos!G:H,2,FALSE))","v":""}]
[null,null,null,null,null,{"$f":"IF(E4130=\"\",\"\",VLOOKUP(E4130,Insumos!AD:AE,2,FALSE))","v":""},null,{"$f":"IF(G4130=\"\",\"\",VLOOKUP(G4130,Insumos!G:H,2,FALSE))","v":""}]
[null,null,null,null,null,{"$f":"IF(E4131=\"\",\"\",VLOOKUP(E4131,Insumos!AD:AE,2,FALSE))","v":""},null,{"$f":"IF(G4131=\"\",\"\",VLOOKUP(G4131,Insumos!G:H,2,FALSE))","v":""}]
[null,null,null,null,null,{"$f":"IF(E4132=\"\",\"\",VLOOKUP(E4132,Insumos!AD:AE,2,FALSE))","v":""},null,{"$f":"IF(G4132=\"\",\"\",VLOOKUP(G4132,Insumos!G:H,2,FALSE))","v":""}]
[null,null,null,null,null,{"$f":"IF(E4133=\"\",\"\",VLOOKUP(E4133,Insumos!AD:AE,2,FALSE))","v":""},null,{"$f":"IF(G4133=\"\",\"\",VLOOKUP(G4133,Insumos!G:H,2,FALSE))","v":""}]
[null,null,null,null,null,{"$f":"IF(E4134=\"\",\"\",VLOOKUP(E4134,Insumos!AD:AE,2,FALSE))","v":""},null,{"$f":"IF(G4134=\"\",\"\",VLOOKUP(G4134,Insumos!G:H,2,FALSE))","v":""}]
[null,null,null,null,null,{"$f":"IF(E4135=\"\",\"\",VLOOKUP(E4135,Insumos!AD:AE,2,FALSE))","v":""},null,{"$f":"IF(G4135=\"\",\"\",VLOOKUP(G4135,Insumos!G:H,2,FALSE))","v":""}]
[null,null,null,null,null,{"$f":"IF(E4136=\"\",\"\",VLOOKUP(E4136,Insumos!AD:AE,2,FALSE))","v":""},null,{"$f":"IF(G4136=\"\",\"\",VLOOKUP(G4136,Insumos!G:H,2,FALSE))","v":""}]
[null,null,null,null,null,{"$f":"IF(E4137=\"\",\"\",VLOOKUP(E4137,Insumos!AD:AE,2,FALSE))","v":""},null,{"$f":"IF(G4137=\"\",\"\",VLOOKUP(G4137,Insumos!G:H,2,FALSE))","v":""}]
[null,null,null,null,null,{"$f":"IF(E4138=\"\",\"\",VLOOKUP(E4138,Insumos!AD:AE,2,FALSE))","v":""},null,{"$f":"IF(G4138=\"\",\"\",VLOOKUP(G4138,Insumos!G:H,2,FALSE))","v":""}]
[null,null,null,null,null,{"$f":"IF(E4139=\"\",\"\",VLOOKUP(E4139,Insumos!AD:AE,2,FALSE))","v":""},null,{"$f":"IF(G4139=\"\",\"\",VLOOKUP(G4139,Insumos!G:H,2,FALSE))","v":""}]
[null,null,null,null,null,{"$f":"IF(E4140=\"\",\"\",VLOOKUP(E4140,Insumos!AD:AE,2,FALSE))","v":""},null,{"$f":"IF(G4140=\"\",\"\",VLOOKUP(G4140,Insumos!G:H,2,FALSE))","v":""}]
[null,null,null,null,null,{"$f":"IF(E4141=\"\",\"\",VLOOKUP(E4141,Insumos!AD:AE,2,FALSE))","v":""},null,{"$f":"IF(G4141=\"\",\"\",VLOOKUP(G4141,Insumos!G:H,2,FALSE))","v":""}]
[null,null,null,null,null,{"$f":"IF(E4142=\"\",\"\",VLOOKUP(E4142,Insumos!AD:AE,2,FALSE))","v":""},null,{"$f":"IF(G4142=\"\",\"\",VLOOKUP(G4142,Insumos!G:H,2,FALSE))","v":""}]
[null,null,null,null,null,{"$f":"IF(E4143=\"\",\"\",VLOOKUP(E4143,Insumos!AD:AE,2,FALSE))","v":""},null,{"$f":"IF(G4143=\"\",\"\",VLOOKUP(G4143,Insumos!G:H,2,FALSE))","v":""}]
[null,null,null,null,null,{"$f":"IF(E4144=\"\",\"\",VLOOKUP(E4144,Insumos!AD:AE,2,FALSE))","v":""},null,{"$f":"IF(G4144=\"\",\"\",VLOOKUP(G4144,Insumos!G:H,2,FALSE))","v":""}]
[null,null,null,null,null,{"$f":"IF(E4145=\"\",\"\",VLOOKUP(E4145,Insumos!AD:AE,2,FALSE))","v":""},null,{"$f":"IF(G4145=\"\",\"\",VLOOKUP(G4145,Insumos!G:H,2,FALSE))","v":""}]
[null,null,null,null,null,{"$f":"IF(E4146=\"\",\"\",VLOOKUP(E4146,Insumos!AD:AE,2,FALSE))","v":""},null,{"$f":"IF(G4146=\"\",\"\",VLOOKUP(G4146,Insumos!G:H,2,FALSE))","v":""}]
[null,null,null,null,null,{"$f":"IF(E4147=\"\",\"\",VLOOKUP(E4147,Insumos!AD:AE,2,FALSE))","v":""},null,{"$f":"IF(G4147=\"\",\"\",VLOOKUP(G4147,Insumos!G:H,2,FALSE))","v":""}]
[null,null,null,null,null,{"$f":"IF(E4148=\"\",\"\",VLOOKUP(E4148,Insumos!AD:AE,2,FALSE))","v":""},null,{"$f":"IF(G4148=\"\",\"\",VLOOKUP(G4148,Insumos!G:H,2,FALSE))","v":""}]
[null,null,null,null,null,{"$f":"IF(E4149=\"\",\"\",VLOOKUP(E4149,Insumos!AD:AE,2,FALSE))","v":""},null,{"$f":"IF(G4149=\"\",\"\",VLOOKUP(G4149,Insumos!G:H,2,FALSE))","v":""}]
[null,null,null,null,null,{"$f":"IF(E4150=\"\",\"\",VLOOKUP(E4150,Insumos!AD:AE,2,FALSE))","v":""},null,{"$f":"IF(G4150=\"\",\"\",VLOOKUP(G4150,Insumos!G:H,2,FALSE))","v":""}]
[null,null,null,null,null,{"$f":"IF(E4151=\"\",\"\",VLOOKUP(E4151,Insumos!AD:AE,2,FALSE))","v":""},null,{"$f":"IF(G4151=\"\",\"\",VLOOKUP(G4151,Insumos!G:H,2,FALSE))","v":""}]
[null,null,null,null,null,{"$f":"IF(E4152=\"\",\"\",VLOOKUP(E4152,Insumos!AD:AE,2,FALSE))","v":""},null,{"$f":"IF(G4152=\"\",\"\",VLOOKUP(G4152,Insumos!G:H,2,FALSE))","v":""}]
[null,null,null,null,null,{"$f":"IF(E4153=\"\",\"\",VLOOKUP(E4153,Insumos!AD:AE,2,FALSE))","v":""},null,{"$f":"IF(G4153=\"\",\"\",VLOOKUP(G4153,Insumos!G:H,2,FALSE))","v":""}]
[null,null,null,null,null,{"$f":"IF(E4154=\"\",\"\",VLOOKUP(E4154,Insumos!AD:AE,2,FALSE))","v":""},null,{"$f":"IF(G4154=\"\",\"\",VLOOKUP(G4154,Insumos!G:H,2,FALSE))","v":""}]
[null,null,null,null,null,{"$f":"IF(E4155=\"\",\"\",VLOOKUP(E4155,Insumos!AD:AE,2,FALSE))","v":""},null,{"$f":"IF(G4155=\"\",\"\",VLOOKUP(G4155,Insumos!G:H,2,FALSE))","v":""}]
[null,null,null,null,null,{"$f":"IF(E4156=\"\",\"\",VLOOKUP(E4156,Insumos!AD:AE,2,FALSE))","v":""},null,{"$f":"IF(G4156=\"\",\"\",VLOOKUP(G4156,Insumos!G:H,2,FALSE))","v":""}]
[null,null,null,null,null,{"$f":"IF(E4157=\"\",\"\",VLOOKUP(E4157,Insumos!AD:AE,2,FALSE))","v":""},null,{"$f":"IF(G4157=\"\",\"\",VLOOKUP(G4157,Insumos!G:H,2,FALSE))","v":""}]
[null,null,null,null,null,{"$f":"IF(E4158=\"\",\"\",VLOOKUP(E4158,Insumos!AD:AE,2,FALSE))","v":""},null,{"$f":"IF(G4158=\"\",\"\",VLOOKUP(G4158,Insumos!G:H,2,FALSE))","v":""}]
[null,null,null,null,null,{"$f":"IF(E4159=\"\",\"\",VLOOKUP(E4159,Insumos!AD:AE,2,FALSE))","v":""},null,{"$f":"IF(G4159=\"\",\"\",VLOOKUP(G4159,Insumos!G:H,2,FALSE))","v":""}]
[null,null,null,null,null,{"$f":"IF(E4160=\"\",\"\",VLOOKUP(E4160,Insumos!AD:AE,2,FALSE))","v":""},null,{"$f":"IF(G4160=\"\",\"\",VLOOKUP(G4160,Insumos!G:H,2,FALSE))","v":""}]
[null,null,null,null,null,{"$f":"IF(E4161=\"\",\"\",VLOOKUP(E4161,Insumos!AD:AE,2,FALSE))","v":""},null,{"$f":"IF(G4161=\"\",\"\",VLOOKUP(G4161,Insumos!G:H,2,FALSE))","v":""}]
[null,null,null,null,null,{"$f":"IF(E4162=\"\",\"\",VLOOKUP(E4162,Insumos!AD:AE,2,FALSE))","v":""},null,{"$f":"IF(G4162=\"\",\"\",VLOOKUP(G4162,Insumos!G:H,2,FALSE))","v":""}]
[null,null,null,null,null,{"$f":"IF(E4163=\"\",\"\",VLOOKUP(E4163,Insumos!AD:AE,2,FALSE))","v":""},null,{"$f":"IF(G4163=\"\",\"\",VLOOKUP(G4163,Insumos!G:H,2,FALSE))","v":""}]
[null,null,null,null,null,{"$f":"IF(E4164=\"\",\"\",VLOOKUP(E4164,Insumos!AD:AE,2,FALSE))","v":""},null,{"$f":"IF(G4164=\"\",\"\",VLOOKUP(G4164,Insumos!G:H,2,FALSE))","v":""}]
[null,null,null,null,null,{"$f":"IF(E4165=\"\",\"\",VLOOKUP(E4165,Insumos!AD:AE,2,FALSE))","v":""},null,{"$f":"IF(G4165=\"\",\"\",VLOOKUP(G4165,Insumos!G:H,2,FALSE))","v":""}]
[null,null,null,null,null,{"$f":"IF(E4166=\"\",\"\",VLOOKUP(E4166,Insumos!AD:AE,2,FALSE))","v":""},null,{"$f":"IF(G4166=\"\",\"\",VLOOKUP(G4166,Insumos!G:H,2,FALSE))","v":""}]
[null,null,null,null,null,{"$f":"IF(E4167=\"\",\"\",VLOOKUP(E4167,Insumos!AD:AE,2,FALSE))","v":""},null,{"$f":"IF(G4167=\"\",\"\",VLOOKUP(G4167,Insumos!G:H,2,FALSE))","v":""}]
[null,null,null,null,null,{"$f":"IF(E4168=\"\",\"\",VLOOKUP(E4168,Insumos!AD:AE,2,FALSE))","v":""},null,{"$f":"IF(G4168=\"\",\"\",VLOOKUP(G4168,Insumos!G:H,2,FALSE))","v":""}]
[null,null,null,null,null,{"$f":"IF(E4169=\"\",\"\",VLOOKUP(E4169,Insumos!AD:AE,2,FALSE))","v":""},null,{"$f":"IF(G4169=\"\",\"\",VLOOKUP(G4169,Insumos!G:H,2,FALSE))","v":""}]
[null,null,null,null,null,{"$f":"IF(E4170=\"\",\"\",VLOOKUP(E4170,Insumos!AD:AE,2,FALSE))","v":""},null,{"$f":"IF(G4170=\"\",\"\",VLOOKUP(G4170,Insumos!G:H,2,FALSE))","v":""}]
[null,null,null,null,null,{"$f":"IF(E4171=\"\",\"\",VLOOKUP(E4171,Insumos!AD:AE,2,FALSE))","v":""},null,{"$f":"IF(G4171=\"\",\"\",VLOOKUP(G4171,Insumos!G:H,2,FALSE))","v":""}]
[null,null,null,null,null,{"$f":"IF(E4172=\"\",\"\",VLOOKUP(E4172,Insumos!AD:AE,2,FALSE))","v":""},null,{"$f":"IF(G4172=\"\",\"\",VLOOKUP(G4172,Insumos!G:H,2,FALSE))","v":""}]
[null,null,null,null,null,{"$f":"IF(E4173=\"\",\"\",VLOOKUP(E4173,Insumos!AD:AE,2,FALSE))","v":""},null,{"$f":"IF(G4173=\"\",\"\",VLOOKUP(G4173,Insumos!G:H,2,FALSE))","v":""}]
[null,null,null,null,null,{"$f":"IF(E4174=\"\",\"\",VLOOKUP(E4174,Insumos!AD:AE,2,FALSE))","v":""},null,{"$f":"IF(G4174=\"\",\"\",VLOOKUP(G4174,Insumos!G:H,2,FALSE))","v":""}]
[null,null,null,null,null,{"$f":"IF(E4175=\"\",\"\",VLOOKUP(E4175,Insumos!AD:AE,2,FALSE))","v":""},null,{"$f":"IF(G4175=\"\",\"\",VLOOKUP(G4175,Insumos!G:H,2,FALSE))","v":""}]
[null,null,null,null,null,{"$f":"IF(E4176=\"\",\"\",VLOOKUP(E4176,Insumos!AD:AE,2,FALSE))","v":""},null,{"$f":"IF(G4176=\"\",\"\",VLOOKUP(G4176,Insumos!G:H,2,FALSE))","v":""}]
[null,null,null,null,null,{"$f":"IF(E4177=\"\",\"\",VLOOKUP(E4177,Insumos!AD:AE,2,FALSE))","v":""},null,{"$f":"IF(G4177=\"\",\"\",VLOOKUP(G4177,Insumos!G:H,2,FALSE))","v":""}]
[null,null,null,null,null,{"$f":"IF(E4178=\"\",\"\",VLOOKUP(E4178,Insumos!AD:AE,2,FALSE))","v":""},null,{"$f":"IF(G4178=\"\",\"\",VLOOKUP(G4178,Insumos!G:H,2,FALSE))","v":""}]
[null,null,null,null,null,{"$f":"IF(E4179=\"\",\"\",VLOOKUP(E4179,Insumos!AD:AE,2,FALSE))","v":""},null,{"$f":"IF(G4179=\"\",\"\",VLOOKUP(G4179,Insumos!G:H,2,FALSE))","v":""}]
[null,null,null,null,null,{"$f":"IF(E4180=\"\",\"\",VLOOKUP(E4180,Insumos!AD:AE,2,FALSE))","v":""},null,{"$f":"IF(G4180=\"\",\"\",VLOOKUP(G4180,Insumos!G:H,2,FALSE))","v":""}]
[null,null,null,null,null,{"$f":"IF(E4181=\"\",\"\",VLOOKUP(E4181,Insumos!AD:AE,2,FALSE))","v":""},null,{"$f":"IF(G4181=\"\",\"\",VLOOKUP(G4181,Insumos!G:H,2,FALSE))","v":""}]
[null,null,null,null,null,{"$f":"IF(E4182=\"\",\"\",VLOOKUP(E4182,Insumos!AD:AE,2,FALSE))","v":""},null,{"$f":"IF(G4182=\"\",\"\",VLOOKUP(G4182,Insumos!G:H,2,FALSE))","v":""}]
[null,null,null,null,null,{"$f":"IF(E4183=\"\",\"\",VLOOKUP(E4183,Insumos!AD:AE,2,FALSE))","v":""},null,{"$f":"IF(G4183=\"\",\"\",VLOOKUP(G4183,Insumos!G:H,2,FALSE))","v":""}]
[null,null,null,null,null,{"$f":"IF(E4184=\"\",\"\",VLOOKUP(E4184,Insumos!AD:AE,2,FALSE))","v":""},null,{"$f":"IF(G4184=\"\",\"\",VLOOKUP(G4184,Insumos!G:H,2,FALSE))","v":""}]
[null,null,null,null,null,{"$f":"IF(E4185=\"\",\"\",VLOOKUP(E4185,Insumos!AD:AE,2,FALSE))","v":""},null,{"$f":"IF(G4185=\"\",\"\",VLOOKUP(G4185,Insumos!G:H,2,FALSE))","v":""}]
[null,null,null,null,null,{"$f":"IF(E4186=\"\",\"\",VLOOKUP(E4186,Insumos!AD:AE,2,FALSE))","v":""},null,{"$f":"IF(G4186=\"\",\"\",VLOOKUP(G4186,Insumos!G:H,2,FALSE))","v":""}]
[null,null,null,null,null,{"$f":"IF(E4187=\"\",\"\",VLOOKUP(E4187,Insumos!AD:AE,2,FALSE))","v":""},null,{"$f":"IF(G4187=\"\",\"\",VLOOKUP(G4187,Insumos!G:H,2,FALSE))","v":""}]
[null,null,null,null,null,{"$f":"IF(E4188=\"\",\"\",VLOOKUP(E4188,Insumos!AD:AE,2,FALSE))","v":""},null,{"$f":"IF(G4188=\"\",\"\",VLOOKUP(G4188,Insumos!G:H,2,FALSE))","v":""}]
[null,null,null,null,null,{"$f":"IF(E4189=\"\",\"\",VLOOKUP(E4189,Insumos!AD:AE,2,FALSE))","v":""},null,{"$f":"IF(G4189=\"\",\"\",VLOOKUP(G4189,Insumos!G:H,2,FALSE))","v":""}]
[null,null,null,null,null,{"$f":"IF(E4190=\"\",\"\",VLOOKUP(E4190,Insumos!AD:AE,2,FALSE))","v":""},null,{"$f":"IF(G4190=\"\",\"\",VLOOKUP(G4190,Insumos!G:H,2,FALSE))","v":""}]
[null,null,null,null,null,{"$f":"IF(E4191=\"\",\"\",VLOOKUP(E4191,Insumos!AD:AE,2,FALSE))","v":""},null,{"$f":"IF(G4191=\"\",\"\",VLOOKUP(G4191,Insumos!G:H,2,FALSE))","v":""}]
[null,null,null,null,null,{"$f":"IF(E4192=\"\",\"\",VLOOKUP(E4192,Insumos!AD:AE,2,FALSE))","v":""},null,{"$f":"IF(G4192=\"\",\"\",VLOOKUP(G4192,Insumos!G:H,2,FALSE))","v":""}]
[null,null,null,null,null,{"$f":"IF(E4193=\"\",\"\",VLOOKUP(E4193,Insumos!AD:AE,2,FALSE))","v":""},null,{"$f":"IF(G4193=\"\",\"\",VLOOKUP(G4193,Insumos!G:H,2,FALSE))","v":""}]
[null,null,null,null,null,{"$f":"IF(E4194=\"\",\"\",VLOOKUP(E4194,Insumos!AD:AE,2,FALSE))","v":""},null,{"$f":"IF(G4194=\"\",\"\",VLOOKUP(G4194,Insumos!G:H,2,FALSE))","v":""}]
[null,null,null,null,null,{"$f":"IF(E4195=\"\",\"\",VLOOKUP(E4195,Insumos!AD:AE,2,FALSE))","v":""},null,{"$f":"IF(G4195=\"\",\"\",VLOOKUP(G4195,Insumos!G:H,2,FALSE))","v":""}]
[null,null,null,null,null,{"$f":"IF(E4196=\"\",\"\",VLOOKUP(E4196,Insumos!AD:AE,2,FALSE))","v":""},null,{"$f":"IF(G4196=\"\",\"\",VLOOKUP(G4196,Insumos!G:H,2,FALSE))","v":""}]
[null,null,null,null,null,{"$f":"IF(E4197=\"\",\"\",VLOOKUP(E4197,Insumos!AD:AE,2,FALSE))","v":""},null,{"$f":"IF(G4197=\"\",\"\",VLOOKUP(G4197,Insumos!G:H,2,FALSE))","v":""}]
[null,null,null,null,null,{"$f":"IF(E4198=\"\",\"\",VLOOKUP(E4198,Insumos!AD:AE,2,FALSE))","v":""},null,{"$f":"IF(G4198=\"\",\"\",VLOOKUP(G4198,Insumos!G:H,2,FALSE))","v":""}]
[null,null,null,null,null,{"$f":"IF(E4199=\"\",\"\",VLOOKUP(E4199,Insumos!AD:AE,2,FALSE))","v":""},null,{"$f":"IF(G4199=\"\",\"\",VLOOKUP(G4199,Insumos!G:H,2,FALSE))","v":""}]
[null,null,null,null,null,{"$f":"IF(E4200=\"\",\"\",VLOOKUP(E4200,Insumos!AD:AE,2,FALSE))","v":""},null,{"$f":"IF(G4200=\"\",\"\",VLOOKUP(G4200,Insumos!G:H,2,FALSE))","v":""}]
[null,null,null,null,null,{"$f":"IF(E4201=\"\",\"\",VLOOKUP(E4201,Insumos!AD:AE,2,FALSE))","v":""},null,{"$f":"IF(G4201=\"\",\"\",VLOOKUP(G4201,Insumos!G:H,2,FALSE))","v":""}]
[null,null,null,null,null,{"$f":"IF(E4202=\"\",\"\",VLOOKUP(E4202,Insumos!AD:AE,2,FALSE))","v":""},null,{"$f":"IF(G4202=\"\",\"\",VLOOKUP(G4202,Insumos!G:H,2,FALSE))","v":""}]
[null,null,null,null,null,{"$f":"IF(E4203=\"\",\"\",VLOOKUP(E4203,Insumos!AD:AE,2,FALSE))","v":""},null,{"$f":"IF(G4203=\"\",\"\",VLOOKUP(G4203,Insumos!G:H,2,FALSE))","v":""}]
[null,null,null,null,null,{"$f":"IF(E4204=\"\",\"\",VLOOKUP(E4204,Insumos!AD:AE,2,FALSE))","v":""},null,{"$f":"IF(G4204=\"\",\"\",VLOOKUP(G4204,Insumos!G:H,2,FALSE))","v":""}]
[null,null,null,null,null,{"$f":"IF(E4205=\"\",\"\",VLOOKUP(E4205,Insumos!AD:AE,2,FALSE))","v":""},null,{"$f":"IF(G4205=\"\",\"\",VLOOKUP(G4205,Insumos!G:H,2,FALSE))","v":""}]
[null,null,null,null,null,{"$f":"IF(E4206=\"\",\"\",VLOOKUP(E4206,Insumos!AD:AE,2,FALSE))","v":""},null,{"$f":"IF(G4206=\"\",\"\",VLOOKUP(G4206,Insumos!G:H,2,FALSE))","v":""}]
[null,null,null,null,null,{"$f":"IF(E4207=\"\",\"\",VLOOKUP(E4207,Insumos!AD:AE,2,FALSE))","v":""},null,{"$f":"IF(G4207=\"\",\"\",VLOOKUP(G4207,Insumos!G:H,2,FALSE))","v":""}]
[null,null,null,null,null,{"$f":"IF(E4208=\"\",\"\",VLOOKUP(E4208,Insumos!AD:AE,2,FALSE))","v":""},null,{"$f":"IF(G4208=\"\",\"\",VLOOKUP(G4208,Insumos!G:H,2,FALSE))","v":""}]
[null,null,null,null,null,{"$f":"IF(E4209=\"\",\"\",VLOOKUP(E4209,Insumos!AD:AE,2,FALSE))","v":""},null,{"$f":"IF(G4209=\"\",\"\",VLOOKUP(G4209,Insumos!G:H,2,FALSE))","v":""}]
[null,null,null,null,null,{"$f":"IF(E4210=\"\",\"\",VLOOKUP(E4210,Insumos!AD:AE,2,FALSE))","v":""},null,{"$f":"IF(G4210=\"\",\"\",VLOOKUP(G4210,Insumos!G:H,2,FALSE))","v":""}]
[null,null,null,null,null,{"$f":"IF(E4211=\"\",\"\",VLOOKUP(E4211,Insumos!AD:AE,2,FALSE))","v":""},null,{"$f":"IF(G4211=\"\",\"\",VLOOKUP(G4211,Insumos!G:H,2,FALSE))","v":""}]
[null,null,null,null,null,{"$f":"IF(E4212=\"\",\"\",VLOOKUP(E4212,Insumos!AD:AE,2,FALSE))","v":""},null,{"$f":"IF(G4212=\"\",\"\",VLOOKUP(G4212,Insumos!G:H,2,FALSE))","v":""}]
[null,null,null,null,null,{"$f":"IF(E4213=\"\",\"\",VLOOKUP(E4213,Insumos!AD:AE,2,FALSE))","v":""},null,{"$f":"IF(G4213=\"\",\"\",VLOOKUP(G4213,Insumos!G:H,2,FALSE))","v":""}]
[null,null,null,null,null,{"$f":"IF(E4214=\"\",\"\",VLOOKUP(E4214,Insumos!AD:AE,2,FALSE))","v":""},null,{"$f":"IF(G4214=\"\",\"\",VLOOKUP(G4214,Insumos!G:H,2,FALSE))","v":""}]
[null,null,null,null,null,{"$f":"IF(E4215=\"\",\"\",VLOOKUP(E4215,Insumos!AD:AE,2,FALSE))","v":""},null,{"$f":"IF(G4215=\"\",\"\",VLOOKUP(G4215,Insumos!G:H,2,FALSE))","v":""}]
[null,null,null,null,null,{"$f":"IF(E4216=\"\",\"\",VLOOKUP(E4216,Insumos!AD:AE,2,FALSE))","v":""},null,{"$f":"IF(G4216=\"\",\"\",VLOOKUP(G4216,Insumos!G:H,2,FALSE))","v":""}]
[null,null,null,null,null,{"$f":"IF(E4217=\"\",\"\",VLOOKUP(E4217,Insumos!AD:AE,2,FALSE))","v":""},null,{"$f":"IF(G4217=\"\",\"\",VLOOKUP(G4217,Insumos!G:H,2,FALSE))","v":""}]
[null,null,null,null,null,{"$f":"IF(E4218=\"\",\"\",VLOOKUP(E4218,Insumos!AD:AE,2,FALSE))","v":""},null,{"$f":"IF(G4218=\"\",\"\",VLOOKUP(G4218,Insumos!G:H,2,FALSE))","v":""}]
[null,null,null,null,null,{"$f":"IF(E4219=\"\",\"\",VLOOKUP(E4219,Insumos!AD:AE,2,FALSE))","v":""},null,{"$f":"IF(G4219=\"\",\"\",VLOOKUP(G4219,Insumos!G:H,2,FALSE))","v":""}]
[null,null,null,null,null,{"$f":"IF(E4220=\"\",\"\",VLOOKUP(E4220,Insumos!AD:AE,2,FALSE))","v":""},null,{"$f":"IF(G4220=\"\",\"\",VLOOKUP(G4220,Insumos!G:H,2,FALSE))","v":""}]
[null,null,null,null,null,{"$f":"IF(E4221=\"\",\"\",VLOOKUP(E4221,Insumos!AD:AE,2,FALSE))","v":""},null,{"$f":"IF(G4221=\"\",\"\",VLOOKUP(G4221,Insumos!G:H,2,FALSE))","v":""}]
[null,null,null,null,null,{"$f":"IF(E4222=\"\",\"\",VLOOKUP(E4222,Insumos!AD:AE,2,FALSE))","v":""},null,{"$f":"IF(G4222=\"\",\"\",VLOOKUP(G4222,Insumos!G:H,2,FALSE))","v":""}]
[null,null,null,null,null,{"$f":"IF(E4223=\"\",\"\",VLOOKUP(E4223,Insumos!AD:AE,2,FALSE))","v":""},null,{"$f":"IF(G4223=\"\",\"\",VLOOKUP(G4223,Insumos!G:H,2,FALSE))","v":""}]
[null,null,null,null,null,{"$f":"IF(E4224=\"\",\"\",VLOOKUP(E4224,Insumos!AD:AE,2,FALSE))","v":""},null,{"$f":"IF(G4224=\"\",\"\",VLOOKUP(G4224,Insumos!G:H,2,FALSE))","v":""}]
[null,null,null,null,null,{"$f":"IF(E4225=\"\",\"\",VLOOKUP(E4225,Insumos!AD:AE,2,FALSE))","v":""},null,{"$f":"IF(G4225=\"\",\"\",VLOOKUP(G4225,Insumos!G:H,2,FALSE))","v":""}]
[null,null,null,null,null,{"$f":"IF(E4226=\"\",\"\",VLOOKUP(E4226,Insumos!AD:AE,2,FALSE))","v":""},null,{"$f":"IF(G4226=\"\",\"\",VLOOKUP(G4226,Insumos!G:H,2,FALSE))","v":""}]
[null,null,null,null,null,{"$f":"IF(E4227=\"\",\"\",VLOOKUP(E4227,Insumos!AD:AE,2,FALSE))","v":""},null,{"$f":"IF(G4227=\"\",\"\",VLOOKUP(G4227,Insumos!G:H,2,FALSE))","v":""}]
[null,null,null,null,null,{"$f":"IF(E4228=\"\",\"\",VLOOKUP(E4228,Insumos!AD:AE,2,FALSE))","v":""},null,{"$f":"IF(G4228=\"\",\"\",VLOOKUP(G4228,Insumos!G:H,2,FALSE))","v":""}]
[null,null,null,null,null,{"$f":"IF(E4229=\"\",\"\",VLOOKUP(E4229,Insumos!AD:AE,2,FALSE))","v":""},null,{"$f":"IF(G4229=\"\",\"\",VLOOKUP(G4229,Insumos!G:H,2,FALSE))","v":""}]
[null,null,null,null,null,{"$f":"IF(E4230=\"\",\"\",VLOOKUP(E4230,Insumos!AD:AE,2,FALSE))","v":""},null,{"$f":"IF(G4230=\"\",\"\",VLOOKUP(G4230,Insumos!G:H,2,FALSE))","v":""}]
[null,null,null,null,null,{"$f":"IF(E4231=\"\",\"\",VLOOKUP(E4231,Insumos!AD:AE,2,FALSE))","v":""},null,{"$f":"IF(G4231=\"\",\"\",VLOOKUP(G4231,Insumos!G:H,2,FALSE))","v":""}]
[null,null,null,null,null,{"$f":"IF(E4232=\"\",\"\",VLOOKUP(E4232,Insumos!AD:AE,2,FALSE))","v":""},null,{"$f":"IF(G4232=\"\",\"\",VLOOKUP(G4232,Insumos!G:H,2,FALSE))","v":""}]
[null,null,null,null,null,{"$f":"IF(E4233=\"\",\"\",VLOOKUP(E4233,Insumos!AD:AE,2,FALSE))","v":""},null,{"$f":"IF(G4233=\"\",\"\",VLOOKUP(G4233,Insumos!G:H,2,FALSE))","v":""}]
[null,null,null,null,null,{"$f":"IF(E4234=\"\",\"\",VLOOKUP(E4234,Insumos!AD:AE,2,FALSE))","v":""},null,{"$f":"IF(G4234=\"\",\"\",VLOOKUP(G4234,Insumos!G:H,2,FALSE))","v":""}]
[null,null,null,null,null,{"$f":"IF(E4235=\"\",\"\",VLOOKUP(E4235,Insumos!AD:AE,2,FALSE))","v":""},null,{"$f":"IF(G4235=\"\",\"\",VLOOKUP(G4235,Insumos!G:H,2,FALSE))","v":""}]
[null,null,null,null,null,{"$f":"IF(E4236=\"\",\"\",VLOOKUP(E4236,Insumos!AD:AE,2,FALSE))","v":""},null,{"$f":"IF(G4236=\"\",\"\",VLOOKUP(G4236,Insumos!G:H,2,FALSE))","v":""}]
[null,null,null,null,null,{"$f":"IF(E4237=\"\",\"\",VLOOKUP(E4237,Insumos!AD:AE,2,FALSE))","v":""},null,{"$f":"IF(G4237=\"\",\"\",VLOOKUP(G4237,Insumos!G:H,2,FALSE))","v":""}]
[null,null,null,null,null,{"$f":"IF(E4238=\"\",\"\",VLOOKUP(E4238,Insumos!AD:AE,2,FALSE))","v":""},null,{"$f":"IF(G4238=\"\",\"\",VLOOKUP(G4238,Insumos!G:H,2,FALSE))","v":""}]
[null,null,null,null,null,{"$f":"IF(E4239=\"\",\"\",VLOOKUP(E4239,Insumos!AD:AE,2,FALSE))","v":""},null,{"$f":"IF(G4239=\"\",\"\",VLOOKUP(G4239,Insumos!G:H,2,FALSE))","v":""}]
[null,null,null,null,null,{"$f":"IF(E4240=\"\",\"\",VLOOKUP(E4240,Insumos!AD:AE,2,FALSE))","v":""},null,{"$f":"IF(G4240=\"\",\"\",VLOOKUP(G4240,Insumos!G:H,2,FALSE))","v":""}]
[null,null,null,null,null,{"$f":"IF(E4241=\"\",\"\",VLOOKUP(E4241,Insumos!AD:AE,2,FALSE))","v":""},null,{"$f":"IF(G4241=\"\",\"\",VLOOKUP(G4241,Insumos!G:H,2,FALSE))","v":""}]
[null,null,null,null,null,{"$f":"IF(E4242=\"\",\"\",VLOOKUP(E4242,Insumos!AD:AE,2,FALSE))","v":""},null,{"$f":"IF(G4242=\"\",\"\",VLOOKUP(G4242,Insumos!G:H,2,FALSE))","v":""}]
[null,null,null,null,null,{"$f":"IF(E4243=\"\",\"\",VLOOKUP(E4243,Insumos!AD:AE,2,FALSE))","v":""},null,{"$f":"IF(G4243=\"\",\"\",VLOOKUP(G4243,Insumos!G:H,2,FALSE))","v":""}]
[null,null,null,null,null,{"$f":"IF(E4244=\"\",\"\",VLOOKUP(E4244,Insumos!AD:AE,2,FALSE))","v":""},null,{"$f":"IF(G4244=\"\",\"\",VLOOKUP(G4244,Insumos!G:H,2,FALSE))","v":""}]
[null,null,null,null,null,{"$f":"IF(E4245=\"\",\"\",VLOOKUP(E4245,Insumos!AD:AE,2,FALSE))","v":""},null,{"$f":"IF(G4245=\"\",\"\",VLOOKUP(G4245,Insumos!G:H,2,FALSE))","v":""}]
[null,null,null,null,null,{"$f":"IF(E4246=\"\",\"\",VLOOKUP(E4246,Insumos!AD:AE,2,FALSE))","v":""},null,{"$f":"IF(G4246=\"\",\"\",VLOOKUP(G4246,Insumos!G:H,2,FALSE))","v":""}]
[null,null,null,null,null,{"$f":"IF(E4247=\"\",\"\",VLOOKUP(E4247,Insumos!AD:AE,2,FALSE))","v":""},null,{"$f":"IF(G4247=\"\",\"\",VLOOKUP(G4247,Insumos!G:H,2,FALSE))","v":""}]
[null,null,null,null,null,{"$f":"IF(E4248=\"\",\"\",VLOOKUP(E4248,Insumos!AD:AE,2,FALSE))","v":""},null,{"$f":"IF(G4248=\"\",\"\",VLOOKUP(G4248,Insumos!G:H,2,FALSE))","v":""}]
[null,null,null,null,null,{"$f":"IF(E4249=\"\",\"\",VLOOKUP(E4249,Insumos!AD:AE,2,FALSE))","v":""},null,{"$f":"IF(G4249=\"\",\"\",VLOOKUP(G4249,Insumos!G:H,2,FALSE))","v":""}]
[null,null,null,null,null,{"$f":"IF(E4250=\"\",\"\",VLOOKUP(E4250,Insumos!AD:AE,2,FALSE))","v":""},null,{"$f":"IF(G4250=\"\",\"\",VLOOKUP(G4250,Insumos!G:H,2,FALSE))","v":""}]
[null,null,null,null,null,{"$f":"IF(E4251=\"\",\"\",VLOOKUP(E4251,Insumos!AD:AE,2,FALSE))","v":""},null,{"$f":"IF(G4251=\"\",\"\",VLOOKUP(G4251,Insumos!G:H,2,FALSE))","v":""}]
[null,null,null,null,null,{"$f":"IF(E4252=\"\",\"\",VLOOKUP(E4252,Insumos!AD:AE,2,FALSE))","v":""},null,{"$f":"IF(G4252=\"\",\"\",VLOOKUP(G4252,Insumos!G:H,2,FALSE))","v":""}]
[null,null,null,null,null,{"$f":"IF(E4253=\"\",\"\",VLOOKUP(E4253,Insumos!AD:AE,2,FALSE))","v":""},null,{"$f":"IF(G4253=\"\",\"\",VLOOKUP(G4253,Insumos!G:H,2,FALSE))","v":""}]
[null,null,null,null,null,{"$f":"IF(E4254=\"\",\"\",VLOOKUP(E4254,Insumos!AD:AE,2,FALSE))","v":""},null,{"$f":"IF(G4254=\"\",\"\",VLOOKUP(G4254,Insumos!G:H,2,FALSE))","v":""}]
[null,null,null,null,null,{"$f":"IF(E4255=\"\",\"\",VLOOKUP(E4255,Insumos!AD:AE,2,FALSE))","v":""},null,{"$f":"IF(G4255=\"\",\"\",VLOOKUP(G4255,Insumos!G:H,2,FALSE))","v":""}]
[null,null,null,null,null,{"$f":"IF(E4256=\"\",\"\",VLOOKUP(E4256,Insumos!AD:AE,2,FALSE))","v":""},null,{"$f":"IF(G4256=\"\",\"\",VLOOKUP(G4256,Insumos!G:H,2,FALSE))","v":""}]
[null,null,null,null,null,{"$f":"IF(E4257=\"\",\"\",VLOOKUP(E4257,Insumos!AD:AE,2,FALSE))","v":""},null,{"$f":"IF(G4257=\"\",\"\",VLOOKUP(G4257,Insumos!G:H,2,FALSE))","v":""}]
[null,null,null,null,null,{"$f":"IF(E4258=\"\",\"\",VLOOKUP(E4258,Insumos!AD:AE,2,FALSE))","v":""},null,{"$f":"IF(G4258=\"\",\"\",VLOOKUP(G4258,Insumos!G:H,2,FALSE))","v":""}]
[null,null,null,null,null,{"$f":"IF(E4259=\"\",\"\",VLOOKUP(E4259,Insumos!AD:AE,2,FALSE))","v":""},null,{"$f":"IF(G4259=\"\",\"\",VLOOKUP(G4259,Insumos!G:H,2,FALSE))","v":""}]
[null,null,null,null,null,{"$f":"IF(E4260=\"\",\"\",VLOOKUP(E4260,Insumos!AD:AE,2,FALSE))","v":""},null,{"$f":"IF(G4260=\"\",\"\",VLOOKUP(G4260,Insumos!G:H,2,FALSE))","v":""}]
[null,null,null,null,null,{"$f":"IF(E4261=\"\",\"\",VLOOKUP(E4261,Insumos!AD:AE,2,FALSE))","v":""},null,{"$f":"IF(G4261=\"\",\"\",VLOOKUP(G4261,Insumos!G:H,2,FALSE))","v":""}]
[null,null,null,null,null,{"$f":"IF(E4262=\"\",\"\",VLOOKUP(E4262,Insumos!AD:AE,2,FALSE))","v":""},null,{"$f":"IF(G4262=\"\",\"\",VLOOKUP(G4262,Insumos!G:H,2,FALSE))","v":""}]
[null,null,null,null,null,{"$f":"IF(E4263=\"\",\"\",VLOOKUP(E4263,Insumos!AD:AE,2,FALSE))","v":""},null,{"$f":"IF(G4263=\"\",\"\",VLOOKUP(G4263,Insumos!G:H,2,FALSE))","v":""}]
[null,null,null,null,null,{"$f":"IF(E4264=\"\",\"\",VLOOKUP(E4264,Insumos!AD:AE,2,FALSE))","v":""},null,{"$f":"IF(G4264=\"\",\"\",VLOOKUP(G4264,Insumos!G:H,2,FALSE))","v":""}]
[null,null,null,null,null,{"$f":"IF(E4265=\"\",\"\",VLOOKUP(E4265,Insumos!AD:AE,2,FALSE))","v":""},null,{"$f":"IF(G4265=\"\",\"\",VLOOKUP(G4265,Insumos!G:H,2,FALSE))","v":""}]
[null,null,null,null,null,{"$f":"IF(E4266=\"\",\"\",VLOOKUP(E4266,Insumos!AD:AE,2,FALSE))","v":""},null,{"$f":"IF(G4266=\"\",\"\",VLOOKUP(G4266,Insumos!G:H,2,FALSE))","v":""}]
[null,null,null,null,null,{"$f":"IF(E4267=\"\",\"\",VLOOKUP(E4267,Insumos!AD:AE,2,FALSE))","v":""},null,{"$f":"IF(G4267=\"\",\"\",VLOOKUP(G4267,Insumos!G:H,2,FALSE))","v":""}]
[null,null,null,null,null,{"$f":"IF(E4268=\"\",\"\",VLOOKUP(E4268,Insumos!AD:AE,2,FALSE))","v":""},null,{"$f":"IF(G4268=\"\",\"\",VLOOKUP(G4268,Insumos!G:H,2,FALSE))","v":""}]
[null,null,null,null,null,{"$f":"IF(E4269=\"\",\"\",VLOOKUP(E4269,Insumos!AD:AE,2,FALSE))","v":""},null,{"$f":"IF(G4269=\"\",\"\",VLOOKUP(G4269,Insumos!G:H,2,FALSE))","v":""}]
[null,null,null,null,null,{"$f":"IF(E4270=\"\",\"\",VLOOKUP(E4270,Insumos!AD:AE,2,FALSE))","v":""},null,{"$f":"IF(G4270=\"\",\"\",VLOOKUP(G4270,Insumos!G:H,2,FALSE))","v":""}]
[null,null,null,null,null,{"$f":"IF(E4271=\"\",\"\",VLOOKUP(E4271,Insumos!AD:AE,2,FALSE))","v":""},null,{"$f":"IF(G4271=\"\",\"\",VLOOKUP(G4271,Insumos!G:H,2,FALSE))","v":""}]
[null,null,null,null,null,{"$f":"IF(E4272=\"\",\"\",VLOOKUP(E4272,Insumos!AD:AE,2,FALSE))","v":""},null,{"$f":"IF(G4272=\"\",\"\",VLOOKUP(G4272,Insumos!G:H,2,FALSE))","v":""}]
[null,null,null,null,null,{"$f":"IF(E4273=\"\",\"\",VLOOKUP(E4273,Insumos!AD:AE,2,FALSE))","v":""},null,{"$f":"IF(G4273=\"\",\"\",VLOOKUP(G4273,Insumos!G:H,2,FALSE))","v":""}]
[null,null,null,null,null,{"$f":"IF(E4274=\"\",\"\",VLOOKUP(E4274,Insumos!AD:AE,2,FALSE))","v":""},null,{"$f":"IF(G4274=\"\",\"\",VLOOKUP(G4274,Insumos!G:H,2,FALSE))","v":""}]
[null,null,null,null,null,{"$f":"IF(E4275=\"\",\"\",VLOOKUP(E4275,Insumos!AD:AE,2,FALSE))","v":""},null,{"$f":"IF(G4275=\"\",\"\",VLOOKUP(G4275,Insumos!G:H,2,FALSE))","v":""}]
[null,null,null,null,null,{"$f":"IF(E4276=\"\",\"\",VLOOKUP(E4276,Insumos!AD:AE,2,FALSE))","v":""},null,{"$f":"IF(G4276=\"\",\"\",VLOOKUP(G4276,Insumos!G:H,2,FALSE))","v":""}]
[null,null,null,null,null,{"$f":"IF(E4277=\"\",\"\",VLOOKUP(E4277,Insumos!AD:AE,2,FALSE))","v":""},null,{"$f":"IF(G4277=\"\",\"\",VLOOKUP(G4277,Insumos!G:H,2,FALSE))","v":""}]
[null,null,null,null,null,{"$f":"IF(E4278=\"\",\"\",VLOOKUP(E4278,Insumos!AD:AE,2,FALSE))","v":""},null,{"$f":"IF(G4278=\"\",\"\",VLOOKUP(G4278,Insumos!G:H,2,FALSE))","v":""}]
[null,null,null,null,null,{"$f":"IF(E4279=\"\",\"\",VLOOKUP(E4279,Insumos!AD:AE,2,FALSE))","v":""},null,{"$f":"IF(G4279=\"\",\"\",VLOOKUP(G4279,Insumos!G:H,2,FALSE))","v":""}]
[null,null,null,null,null,{"$f":"IF(E4280=\"\",\"\",VLOOKUP(E4280,Insumos!AD:AE,2,FALSE))","v":""},null,{"$f":"IF(G4280=\"\",\"\",VLOOKUP(G4280,Insumos!G:H,2,FALSE))","v":""}]
[null,null,null,null,null,{"$f":"IF(E4281=\"\",\"\",VLOOKUP(E4281,Insumos!AD:AE,2,FALSE))","v":""},null,{"$f":"IF(G4281=\"\",\"\",VLOOKUP(G4281,Insumos!G:H,2,FALSE))","v":""}]
[null,null,null,null,null,{"$f":"IF(E4282=\"\",\"\",VLOOKUP(E4282,Insumos!AD:AE,2,FALSE))","v":""},null,{"$f":"IF(G4282=\"\",\"\",VLOOKUP(G4282,Insumos!G:H,2,FALSE))","v":""}]
[null,null,null,null,null,{"$f":"IF(E4283=\"\",\"\",VLOOKUP(E4283,Insumos!AD:AE,2,FALSE))","v":""},null,{"$f":"IF(G4283=\"\",\"\",VLOOKUP(G4283,Insumos!G:H,2,FALSE))","v":""}]
[null,null,null,null,null,{"$f":"IF(E4284=\"\",\"\",VLOOKUP(E4284,Insumos!AD:AE,2,FALSE))","v":""},null,{"$f":"IF(G4284=\"\",\"\",VLOOKUP(G4284,Insumos!G:H,2,FALSE))","v":""}]
[null,null,null,null,null,{"$f":"IF(E4285=\"\",\"\",VLOOKUP(E4285,Insumos!AD:AE,2,FALSE))","v":""},null,{"$f":"IF(G4285=\"\",\"\",VLOOKUP(G4285,Insumos!G:H,2,FALSE))","v":""}]
[null,null,null,null,null,{"$f":"IF(E4286=\"\",\"\",VLOOKUP(E4286,Insumos!AD:AE,2,FALSE))","v":""},null,{"$f":"IF(G4286=\"\",\"\",VLOOKUP(G4286,Insumos!G:H,2,FALSE))","v":""}]
[null,null,null,null,null,{"$f":"IF(E4287=\"\",\"\",VLOOKUP(E4287,Insumos!AD:AE,2,FALSE))","v":""},null,{"$f":"IF(G4287=\"\",\"\",VLOOKUP(G4287,Insumos!G:H,2,FALSE))","v":""}]
[null,null,null,null,null,{"$f":"IF(E4288=\"\",\"\",VLOOKUP(E4288,Insumos!AD:AE,2,FALSE))","v":""},null,{"$f":"IF(G4288=\"\",\"\",VLOOKUP(G4288,Insumos!G:H,2,FALSE))","v":""}]
[null,null,null,null,null,{"$f":"IF(E4289=\"\",\"\",VLOOKUP(E4289,Insumos!AD:AE,2,FALSE))","v":""},null,{"$f":"IF(G4289=\"\",\"\",VLOOKUP(G4289,Insumos!G:H,2,FALSE))","v":""}]
[null,null,null,null,null,{"$f":"IF(E4290=\"\",\"\",VLOOKUP(E4290,Insumos!AD:AE,2,FALSE))","v":""},null,{"$f":"IF(G4290=\"\",\"\",VLOOKUP(G4290,Insumos!G:H,2,FALSE))","v":""}]
[null,null,null,null,null,{"$f":"IF(E4291=\"\",\"\",VLOOKUP(E4291,Insumos!AD:AE,2,FALSE))","v":""},null,{"$f":"IF(G4291=\"\",\"\",VLOOKUP(G4291,Insumos!G:H,2,FALSE))","v":""}]
[null,null,null,null,null,{"$f":"IF(E4292=\"\",\"\",VLOOKUP(E4292,Insumos!AD:AE,2,FALSE))","v":""},null,{"$f":"IF(G4292=\"\",\"\",VLOOKUP(G4292,Insumos!G:H,2,FALSE))","v":""}]
[null,null,null,null,null,{"$f":"IF(E4293=\"\",\"\",VLOOKUP(E4293,Insumos!AD:AE,2,FALSE))","v":""},null,{"$f":"IF(G4293=\"\",\"\",VLOOKUP(G4293,Insumos!G:H,2,FALSE))","v":""}]
[null,null,null,null,null,{"$f":"IF(E4294=\"\",\"\",VLOOKUP(E4294,Insumos!AD:AE,2,FALSE))","v":""},null,{"$f":"IF(G4294=\"\",\"\",VLOOKUP(G4294,Insumos!G:H,2,FALSE))","v":""}]
[null,null,null,null,null,{"$f":"IF(E4295=\"\",\"\",VLOOKUP(E4295,Insumos!AD:AE,2,FALSE))","v":""},null,{"$f":"IF(G4295=\"\",\"\",VLOOKUP(G4295,Insumos!G:H,2,FALSE))","v":""}]
[null,null,null,null,null,{"$f":"IF(E4296=\"\",\"\",VLOOKUP(E4296,Insumos!AD:AE,2,FALSE))","v":""},null,{"$f":"IF(G4296=\"\",\"\",VLOOKUP(G4296,Insumos!G:H,2,FALSE))","v":""}]
[null,null,null,null,null,{"$f":"IF(E4297=\"\",\"\",VLOOKUP(E4297,Insumos!AD:AE,2,FALSE))","v":""},null,{"$f":"IF(G4297=\"\",\"\",VLOOKUP(G4297,Insumos!G:H,2,FALSE))","v":""}]
[null,null,null,null,null,{"$f":"IF(E4298=\"\",\"\",VLOOKUP(E4298,Insumos!AD:AE,2,FALSE))","v":""},null,{"$f":"IF(G4298=\"\",\"\",VLOOKUP(G4298,Insumos!G:H,2,FALSE))","v":""}]
[null,null,null,null,null,{"$f":"IF(E4299=\"\",\"\",VLOOKUP(E4299,Insumos!AD:AE,2,FALSE))","v":""},null,{"$f":"IF(G4299=\"\",\"\",VLOOKUP(G4299,Insumos!G:H,2,FALSE))","v":""}]
[null,null,null,null,null,{"$f":"IF(E4300=\"\",\"\",VLOOKUP(E4300,Insumos!AD:AE,2,FALSE))","v":""},null,{"$f":"IF(G4300=\"\",\"\",VLOOKUP(G4300,Insumos!G:H,2,FALSE))","v":""}]
[null,null,null,null,null,{"$f":"IF(E4301=\"\",\"\",VLOOKUP(E4301,Insumos!AD:AE,2,FALSE))","v":""},null,{"$f":"IF(G4301=\"\",\"\",VLOOKUP(G4301,Insumos!G:H,2,FALSE))","v":""}]
[null,null,null,null,null,{"$f":"IF(E4302=\"\",\"\",VLOOKUP(E4302,Insumos!AD:AE,2,FALSE))","v":""},null,{"$f":"IF(G4302=\"\",\"\",VLOOKUP(G4302,Insumos!G:H,2,FALSE))","v":""}]
[null,null,null,null,null,{"$f":"IF(E4303=\"\",\"\",VLOOKUP(E4303,Insumos!AD:AE,2,FALSE))","v":""},null,{"$f":"IF(G4303=\"\",\"\",VLOOKUP(G4303,Insumos!G:H,2,FALSE))","v":""}]
[null,null,null,null,null,{"$f":"IF(E4304=\"\",\"\",VLOOKUP(E4304,Insumos!AD:AE,2,FALSE))","v":""},null,{"$f":"IF(G4304=\"\",\"\",VLOOKUP(G4304,Insumos!G:H,2,FALSE))","v":""}]
[null,null,null,null,null,{"$f":"IF(E4305=\"\",\"\",VLOOKUP(E4305,Insumos!AD:AE,2,FALSE))","v":""},null,{"$f":"IF(G4305=\"\",\"\",VLOOKUP(G4305,Insumos!G:H,2,FALSE))","v":""}]
[null,null,null,null,null,{"$f":"IF(E4306=\"\",\"\",VLOOKUP(E4306,Insumos!AD:AE,2,FALSE))","v":""},null,{"$f":"IF(G4306=\"\",\"\",VLOOKUP(G4306,Insumos!G:H,2,FALSE))","v":""}]
[null,null,null,null,null,{"$f":"IF(E4307=\"\",\"\",VLOOKUP(E4307,Insumos!AD:AE,2,FALSE))","v":""},null,{"$f":"IF(G4307=\"\",\"\",VLOOKUP(G4307,Insumos!G:H,2,FALSE))","v":""}]
[null,null,null,null,null,{"$f":"IF(E4308=\"\",\"\",VLOOKUP(E4308,Insumos!AD:AE,2,FALSE))","v":""},null,{"$f":"IF(G4308=\"\",\"\",VLOOKUP(G4308,Insumos!G:H,2,FALSE))","v":""}]
[null,null,null,null,null,{"$f":"IF(E4309=\"\",\"\",VLOOKUP(E4309,Insumos!AD:AE,2,FALSE))","v":""},null,{"$f":"IF(G4309=\"\",\"\",VLOOKUP(G4309,Insumos!G:H,2,FALSE))","v":""}]
[null,null,null,null,null,{"$f":"IF(E4310=\"\",\"\",VLOOKUP(E4310,Insumos!AD:AE,2,FALSE))","v":""},null,{"$f":"IF(G4310=\"\",\"\",VLOOKUP(G4310,Insumos!G:H,2,FALSE))","v":""}]
[null,null,null,null,null,{"$f":"IF(E4311=\"\",\"\",VLOOKUP(E4311,Insumos!AD:AE,2,FALSE))","v":""},null,{"$f":"IF(G4311=\"\",\"\",VLOOKUP(G4311,Insumos!G:H,2,FALSE))","v":""}]
[null,null,null,null,null,{"$f":"IF(E4312=\"\",\"\",VLOOKUP(E4312,Insumos!AD:AE,2,FALSE))","v":""},null,{"$f":"IF(G4312=\"\",\"\",VLOOKUP(G4312,Insumos!G:H,2,FALSE))","v":""}]
[null,null,null,null,null,{"$f":"IF(E4313=\"\",\"\",VLOOKUP(E4313,Insumos!AD:AE,2,FALSE))","v":""},null,{"$f":"IF(G4313=\"\",\"\",VLOOKUP(G4313,Insumos!G:H,2,FALSE))","v":""}]
[null,null,null,null,null,{"$f":"IF(E4314=\"\",\"\",VLOOKUP(E4314,Insumos!AD:AE,2,FALSE))","v":""},null,{"$f":"IF(G4314=\"\",\"\",VLOOKUP(G4314,Insumos!G:H,2,FALSE))","v":""}]
[null,null,null,null,null,{"$f":"IF(E4315=\"\",\"\",VLOOKUP(E4315,Insumos!AD:AE,2,FALSE))","v":""},null,{"$f":"IF(G4315=\"\",\"\",VLOOKUP(G4315,Insumos!G:H,2,FALSE))","v":""}]
[null,null,null,null,null,{"$f":"IF(E4316=\"\",\"\",VLOOKUP(E4316,Insumos!AD:AE,2,FALSE))","v":""},null,{"$f":"IF(G4316=\"\",\"\",VLOOKUP(G4316,Insumos!G:H,2,FALSE))","v":""}]
[null,null,null,null,null,{"$f":"IF(E4317=\"\",\"\",VLOOKUP(E4317,Insumos!AD:AE,2,FALSE))","v":""},null,{"$f":"IF(G4317=\"\",\"\",VLOOKUP(G4317,Insumos!G:H,2,FALSE))","v":""}]
[null,null,null,null,null,{"$f":"IF(E4318=\"\",\"\",VLOOKUP(E4318,Insumos!AD:AE,2,FALSE))","v":""},null,{"$f":"IF(G4318=\"\",\"\",VLOOKUP(G4318,Insumos!G:H,2,FALSE))","v":""}]
[null,null,null,null,null,{"$f":"IF(E4319=\"\",\"\",VLOOKUP(E4319,Insumos!AD:AE,2,FALSE))","v":""},null,{"$f":"IF(G4319=\"\",\"\",VLOOKUP(G4319,Insumos!G:H,2,FALSE))","v":""}]
[null,null,null,null,null,{"$f":"IF(E4320=\"\",\"\",VLOOKUP(E4320,Insumos!AD:AE,2,FALSE))","v":""},null,{"$f":"IF(G4320=\"\",\"\",VLOOKUP(G4320,Insumos!G:H,2,FALSE))","v":""}]
[null,null,null,null,null,{"$f":"IF(E4321=\"\",\"\",VLOOKUP(E4321,Insumos!AD:AE,2,FALSE))","v":""},null,{"$f":"IF(G4321=\"\",\"\",VLOOKUP(G4321,Insumos!G:H,2,FALSE))","v":""}]
[null,null,null,null,null,{"$f":"IF(E4322=\"\",\"\",VLOOKUP(E4322,Insumos!AD:AE,2,FALSE))","v":""},null,{"$f":"IF(G4322=\"\",\"\",VLOOKUP(G4322,Insumos!G:H,2,FALSE))","v":""}]
[null,null,null,null,null,{"$f":"IF(E4323=\"\",\"\",VLOOKUP(E4323,Insumos!AD:AE,2,FALSE))","v":""},null,{"$f":"IF(G4323=\"\",\"\",VLOOKUP(G4323,Insumos!G:H,2,FALSE))","v":""}]
[null,null,null,null,null,{"$f":"IF(E4324=\"\",\"\",VLOOKUP(E4324,Insumos!AD:AE,2,FALSE))","v":""},null,{"$f":"IF(G4324=\"\",\"\",VLOOKUP(G4324,Insumos!G:H,2,FALSE))","v":""}]
[null,null,null,null,null,{"$f":"IF(E4325=\"\",\"\",VLOOKUP(E4325,Insumos!AD:AE,2,FALSE))","v":""},null,{"$f":"IF(G4325=\"\",\"\",VLOOKUP(G4325,Insumos!G:H,2,FALSE))","v":""}]
[null,null,null,null,null,{"$f":"IF(E4326=\"\",\"\",VLOOKUP(E4326,Insumos!AD:AE,2,FALSE))","v":""},null,{"$f":"IF(G4326=\"\",\"\",VLOOKUP(G4326,Insumos!G:H,2,FALSE))","v":""}]
[null,null,null,null,null,{"$f":"IF(E4327=\"\",\"\",VLOOKUP(E4327,Insumos!AD:AE,2,FALSE))","v":""},null,{"$f":"IF(G4327=\"\",\"\",VLOOKUP(G4327,Insumos!G:H,2,FALSE))","v":""}]
[null,null,null,null,null,{"$f":"IF(E4328=\"\",\"\",VLOOKUP(E4328,Insumos!AD:AE,2,FALSE))","v":""},null,{"$f":"IF(G4328=\"\",\"\",VLOOKUP(G4328,Insumos!G:H,2,FALSE))","v":""}]
[null,null,null,null,null,{"$f":"IF(E4329=\"\",\"\",VLOOKUP(E4329,Insumos!AD:AE,2,FALSE))","v":""},null,{"$f":"IF(G4329=\"\",\"\",VLOOKUP(G4329,Insumos!G:H,2,FALSE))","v":""}]
[null,null,null,null,null,{"$f":"IF(E4330=\"\",\"\",VLOOKUP(E4330,Insumos!AD:AE,2,FALSE))","v":""},null,{"$f":"IF(G4330=\"\",\"\",VLOOKUP(G4330,Insumos!G:H,2,FALSE))","v":""}]
[null,null,null,null,null,{"$f":"IF(E4331=\"\",\"\",VLOOKUP(E4331,Insumos!AD:AE,2,FALSE))","v":""},null,{"$f":"IF(G4331=\"\",\"\",VLOOKUP(G4331,Insumos!G:H,2,FALSE))","v":""}]
[null,null,null,null,null,{"$f":"IF(E4332=\"\",\"\",VLOOKUP(E4332,Insumos!AD:AE,2,FALSE))","v":""},null,{"$f":"IF(G4332=\"\",\"\",VLOOKUP(G4332,Insumos!G:H,2,FALSE))","v":""}]
[null,null,null,null,null,{"$f":"IF(E4333=\"\",\"\",VLOOKUP(E4333,Insumos!AD:AE,2,FALSE))","v":""},null,{"$f":"IF(G4333=\"\",\"\",VLOOKUP(G4333,Insumos!G:H,2,FALSE))","v":""}]
[null,null,null,null,null,{"$f":"IF(E4334=\"\",\"\",VLOOKUP(E4334,Insumos!AD:AE,2,FALSE))","v":""},null,{"$f":"IF(G4334=\"\",\"\",VLOOKUP(G4334,Insumos!G:H,2,FALSE))","v":""}]
[null,null,null,null,null,{"$f":"IF(E4335=\"\",\"\",VLOOKUP(E4335,Insumos!AD:AE,2,FALSE))","v":""},null,{"$f":"IF(G4335=\"\",\"\",VLOOKUP(G4335,Insumos!G:H,2,FALSE))","v":""}]
[null,null,null,null,null,{"$f":"IF(E4336=\"\",\"\",VLOOKUP(E4336,Insumos!AD:AE,2,FALSE))","v":""},null,{"$f":"IF(G4336=\"\",\"\",VLOOKUP(G4336,Insumos!G:H,2,FALSE))","v":""}]
[null,null,null,null,null,{"$f":"IF(E4337=\"\",\"\",VLOOKUP(E4337,Insumos!AD:AE,2,FALSE))","v":""},null,{"$f":"IF(G4337=\"\",\"\",VLOOKUP(G4337,Insumos!G:H,2,FALSE))","v":""}]
[null,null,null,null,null,{"$f":"IF(E4338=\"\",\"\",VLOOKUP(E4338,Insumos!AD:AE,2,FALSE))","v":""},null,{"$f":"IF(G4338=\"\",\"\",VLOOKUP(G4338,Insumos!G:H,2,FALSE))","v":""}]
[null,null,null,null,null,{"$f":"IF(E4339=\"\",\"\",VLOOKUP(E4339,Insumos!AD:AE,2,FALSE))","v":""},null,{"$f":"IF(G4339=\"\",\"\",VLOOKUP(G4339,Insumos!G:H,2,FALSE))","v":""}]
[null,null,null,null,null,{"$f":"IF(E4340=\"\",\"\",VLOOKUP(E4340,Insumos!AD:AE,2,FALSE))","v":""},null,{"$f":"IF(G4340=\"\",\"\",VLOOKUP(G4340,Insumos!G:H,2,FALSE))","v":""}]
[null,null,null,null,null,{"$f":"IF(E4341=\"\",\"\",VLOOKUP(E4341,Insumos!AD:AE,2,FALSE))","v":""},null,{"$f":"IF(G4341=\"\",\"\",VLOOKUP(G4341,Insumos!G:H,2,FALSE))","v":""}]
[null,null,null,null,null,{"$f":"IF(E4342=\"\",\"\",VLOOKUP(E4342,Insumos!AD:AE,2,FALSE))","v":""},null,{"$f":"IF(G4342=\"\",\"\",VLOOKUP(G4342,Insumos!G:H,2,FALSE))","v":""}]
[null,null,null,null,null,{"$f":"IF(E4343=\"\",\"\",VLOOKUP(E4343,Insumos!AD:AE,2,FALSE))","v":""},null,{"$f":"IF(G4343=\"\",\"\",VLOOKUP(G4343,Insumos!G:H,2,FALSE))","v":""}]
[null,null,null,null,null,{"$f":"IF(E4344=\"\",\"\",VLOOKUP(E4344,Insumos!AD:AE,2,FALSE))","v":""},null,{"$f":"IF(G4344=\"\",\"\",VLOOKUP(G4344,Insumos!G:H,2,FALSE))","v":""}]
[null,null,null,null,null,{"$f":"IF(E4345=\"\",\"\",VLOOKUP(E4345,Insumos!AD:AE,2,FALSE))","v":""},null,{"$f":"IF(G4345=\"\",\"\",VLOOKUP(G4345,Insumos!G:H,2,FALSE))","v":""}]
[null,null,null,null,null,{"$f":"IF(E4346=\"\",\"\",VLOOKUP(E4346,Insumos!AD:AE,2,FALSE))","v":""},null,{"$f":"IF(G4346=\"\",\"\",VLOOKUP(G4346,Insumos!G:H,2,FALSE))","v":""}]
[null,null,null,null,null,{"$f":"IF(E4347=\"\",\"\",VLOOKUP(E4347,Insumos!AD:AE,2,FALSE))","v":""},null,{"$f":"IF(G4347=\"\",\"\",VLOOKUP(G4347,Insumos!G:H,2,FALSE))","v":""}]
[null,null,null,null,null,{"$f":"IF(E4348=\"\",\"\",VLOOKUP(E4348,Insumos!AD:AE,2,FALSE))","v":""},null,{"$f":"IF(G4348=\"\",\"\",VLOOKUP(G4348,Insumos!G:H,2,FALSE))","v":""}]
[null,null,null,null,null,{"$f":"IF(E4349=\"\",\"\",VLOOKUP(E4349,Insumos!AD:AE,2,FALSE))","v":""},null,{"$f":"IF(G4349=\"\",\"\",VLOOKUP(G4349,Insumos!G:H,2,FALSE))","v":""}]
[null,null,null,null,null,{"$f":"IF(E4350=\"\",\"\",VLOOKUP(E4350,Insumos!AD:AE,2,FALSE))","v":""},null,{"$f":"IF(G4350=\"\",\"\",VLOOKUP(G4350,Insumos!G:H,2,FALSE))","v":""}]
[null,null,null,null,null,{"$f":"IF(E4351=\"\",\"\",VLOOKUP(E4351,Insumos!AD:AE,2,FALSE))","v":""},null,{"$f":"IF(G4351=\"\",\"\",VLOOKUP(G4351,Insumos!G:H,2,FALSE))","v":""}]
[null,null,null,null,null,{"$f":"IF(E4352=\"\",\"\",VLOOKUP(E4352,Insumos!AD:AE,2,FALSE))","v":""},null,{"$f":"IF(G4352=\"\",\"\",VLOOKUP(G4352,Insumos!G:H,2,FALSE))","v":""}]
[null,null,null,null,null,{"$f":"IF(E4353=\"\",\"\",VLOOKUP(E4353,Insumos!AD:AE,2,FALSE))","v":""},null,{"$f":"IF(G4353=\"\",\"\",VLOOKUP(G4353,Insumos!G:H,2,FALSE))","v":""}]
[null,null,null,null,null,{"$f":"IF(E4354=\"\",\"\",VLOOKUP(E4354,Insumos!AD:AE,2,FALSE))","v":""},null,{"$f":"IF(G4354=\"\",\"\",VLOOKUP(G4354,Insumos!G:H,2,FALSE))","v":""}]
[null,null,null,null,null,{"$f":"IF(E4355=\"\",\"\",VLOOKUP(E4355,Insumos!AD:AE,2,FALSE))","v":""},null,{"$f":"IF(G4355=\"\",\"\",VLOOKUP(G4355,Insumos!G:H,2,FALSE))","v":""}]
[null,null,null,null,null,{"$f":"IF(E4356=\"\",\"\",VLOOKUP(E4356,Insumos!AD:AE,2,FALSE))","v":""},null,{"$f":"IF(G4356=\"\",\"\",VLOOKUP(G4356,Insumos!G:H,2,FALSE))","v":""}]
[null,null,null,null,null,{"$f":"IF(E4357=\"\",\"\",VLOOKUP(E4357,Insumos!AD:AE,2,FALSE))","v":""},null,{"$f":"IF(G4357=\"\",\"\",VLOOKUP(G4357,Insumos!G:H,2,FALSE))","v":""}]
[null,null,null,null,null,{"$f":"IF(E4358=\"\",\"\",VLOOKUP(E4358,Insumos!AD:AE,2,FALSE))","v":""},null,{"$f":"IF(G4358=\"\",\"\",VLOOKUP(G4358,Insumos!G:H,2,FALSE))","v":""}]
[null,null,null,null,null,{"$f":"IF(E4359=\"\",\"\",VLOOKUP(E4359,Insumos!AD:AE,2,FALSE))","v":""},null,{"$f":"IF(G4359=\"\",\"\",VLOOKUP(G4359,Insumos!G:H,2,FALSE))","v":""}]
[null,null,null,null,null,{"$f":"IF(E4360=\"\",\"\",VLOOKUP(E4360,Insumos!AD:AE,2,FALSE))","v":""},null,{"$f":"IF(G4360=\"\",\"\",VLOOKUP(G4360,Insumos!G:H,2,FALSE))","v":""}]
[null,null,null,null,null,{"$f":"IF(E4361=\"\",\"\",VLOOKUP(E4361,Insumos!AD:AE,2,FALSE))","v":""},null,{"$f":"IF(G4361=\"\",\"\",VLOOKUP(G4361,Insumos!G:H,2,FALSE))","v":""}]
[null,null,null,null,null,{"$f":"IF(E4362=\"\",\"\",VLOOKUP(E4362,Insumos!AD:AE,2,FALSE))","v":""},null,{"$f":"IF(G4362=\"\",\"\",VLOOKUP(G4362,Insumos!G:H,2,FALSE))","v":""}]
[null,null,null,null,null,{"$f":"IF(E4363=\"\",\"\",VLOOKUP(E4363,Insumos!AD:AE,2,FALSE))","v":""},null,{"$f":"IF(G4363=\"\",\"\",VLOOKUP(G4363,Insumos!G:H,2,FALSE))","v":""}]
[null,null,null,null,null,{"$f":"IF(E4364=\"\",\"\",VLOOKUP(E4364,Insumos!AD:AE,2,FALSE))","v":""},null,{"$f":"IF(G4364=\"\",\"\",VLOOKUP(G4364,Insumos!G:H,2,FALSE))","v":""}]
[null,null,null,null,null,{"$f":"IF(E4365=\"\",\"\",VLOOKUP(E4365,Insumos!AD:AE,2,FALSE))","v":""},null,{"$f":"IF(G4365=\"\",\"\",VLOOKUP(G4365,Insumos!G:H,2,FALSE))","v":""}]
[null,null,null,null,null,{"$f":"IF(E4366=\"\",\"\",VLOOKUP(E4366,Insumos!AD:AE,2,FALSE))","v":""},null,{"$f":"IF(G4366=\"\",\"\",VLOOKUP(G4366,Insumos!G:H,2,FALSE))","v":""}]
[null,null,null,null,null,{"$f":"IF(E4367=\"\",\"\",VLOOKUP(E4367,Insumos!AD:AE,2,FALSE))","v":""},null,{"$f":"IF(G4367=\"\",\"\",VLOOKUP(G4367,Insumos!G:H,2,FALSE))","v":""}]
[null,null,null,null,null,{"$f":"IF(E4368=\"\",\"\",VLOOKUP(E4368,Insumos!AD:AE,2,FALSE))","v":""},null,{"$f":"IF(G4368=\"\",\"\",VLOOKUP(G4368,Insumos!G:H,2,FALSE))","v":""}]
[null,null,null,null,null,{"$f":"IF(E4369=\"\",\"\",VLOOKUP(E4369,Insumos!AD:AE,2,FALSE))","v":""},null,{"$f":"IF(G4369=\"\",\"\",VLOOKUP(G4369,Insumos!G:H,2,FALSE))","v":""}]
[null,null,null,null,null,{"$f":"IF(E4370=\"\",\"\",VLOOKUP(E4370,Insumos!AD:AE,2,FALSE))","v":""},null,{"$f":"IF(G4370=\"\",\"\",VLOOKUP(G4370,Insumos!G:H,2,FALSE))","v":""}]
[null,null,null,null,null,{"$f":"IF(E4371=\"\",\"\",VLOOKUP(E4371,Insumos!AD:AE,2,FALSE))","v":""},null,{"$f":"IF(G4371=\"\",\"\",VLOOKUP(G4371,Insumos!G:H,2,FALSE))","v":""}]
[null,null,null,null,null,{"$f":"IF(E4372=\"\",\"\",VLOOKUP(E4372,Insumos!AD:AE,2,FALSE))","v":""},null,{"$f":"IF(G4372=\"\",\"\",VLOOKUP(G4372,Insumos!G:H,2,FALSE))","v":""}]
[null,null,null,null,null,{"$f":"IF(E4373=\"\",\"\",VLOOKUP(E4373,Insumos!AD:AE,2,FALSE))","v":""},null,{"$f":"IF(G4373=\"\",\"\",VLOOKUP(G4373,Insumos!G:H,2,FALSE))","v":""}]
[null,null,null,null,null,{"$f":"IF(E4374=\"\",\"\",VLOOKUP(E4374,Insumos!AD:AE,2,FALSE))","v":""},null,{"$f":"IF(G4374=\"\",\"\",VLOOKUP(G4374,Insumos!G:H,2,FALSE))","v":""}]
[null,null,null,null,null,{"$f":"IF(E4375=\"\",\"\",VLOOKUP(E4375,Insumos!AD:AE,2,FALSE))","v":""},null,{"$f":"IF(G4375=\"\",\"\",VLOOKUP(G4375,Insumos!G:H,2,FALSE))","v":""}]
[null,null,null,null,null,{"$f":"IF(E4376=\"\",\"\",VLOOKUP(E4376,Insumos!AD:AE,2,FALSE))","v":""},null,{"$f":"IF(G4376=\"\",\"\",VLOOKUP(G4376,Insumos!G:H,2,FALSE))","v":""}]
[null,null,null,null,null,{"$f":"IF(E4377=\"\",\"\",VLOOKUP(E4377,Insumos!AD:AE,2,FALSE))","v":""},null,{"$f":"IF(G4377=\"\",\"\",VLOOKUP(G4377,Insumos!G:H,2,FALSE))","v":""}]
[null,null,null,null,null,{"$f":"IF(E4378=\"\",\"\",VLOOKUP(E4378,Insumos!AD:AE,2,FALSE))","v":""},null,{"$f":"IF(G4378=\"\",\"\",VLOOKUP(G4378,Insumos!G:H,2,FALSE))","v":""}]
[null,null,null,null,null,{"$f":"IF(E4379=\"\",\"\",VLOOKUP(E4379,Insumos!AD:AE,2,FALSE))","v":""},null,{"$f":"IF(G4379=\"\",\"\",VLOOKUP(G4379,Insumos!G:H,2,FALSE))","v":""}]
[null,null,null,null,null,{"$f":"IF(E4380=\"\",\"\",VLOOKUP(E4380,Insumos!AD:AE,2,FALSE))","v":""},null,{"$f":"IF(G4380=\"\",\"\",VLOOKUP(G4380,Insumos!G:H,2,FALSE))","v":""}]
[null,null,null,null,null,{"$f":"IF(E4381=\"\",\"\",VLOOKUP(E4381,Insumos!AD:AE,2,FALSE))","v":""},null,{"$f":"IF(G4381=\"\",\"\",VLOOKUP(G4381,Insumos!G:H,2,FALSE))","v":""}]
[null,null,null,null,null,{"$f":"IF(E4382=\"\",\"\",VLOOKUP(E4382,Insumos!AD:AE,2,FALSE))","v":""},null,{"$f":"IF(G4382=\"\",\"\",VLOOKUP(G4382,Insumos!G:H,2,FALSE))","v":""}]
[null,null,null,null,null,{"$f":"IF(E4383=\"\",\"\",VLOOKUP(E4383,Insumos!AD:AE,2,FALSE))","v":""},null,{"$f":"IF(G4383=\"\",\"\",VLOOKUP(G4383,Insumos!G:H,2,FALSE))","v":""}]
[null,null,null,null,null,{"$f":"IF(E4384=\"\",\"\",VLOOKUP(E4384,Insumos!AD:AE,2,FALSE))","v":""},null,{"$f":"IF(G4384=\"\",\"\",VLOOKUP(G4384,Insumos!G:H,2,FALSE))","v":""}]
[null,null,null,null,null,{"$f":"IF(E4385=\"\",\"\",VLOOKUP(E4385,Insumos!AD:AE,2,FALSE))","v":""},null,{"$f":"IF(G4385=\"\",\"\",VLOOKUP(G4385,Insumos!G:H,2,FALSE))","v":""}]
[null,null,null,null,null,{"$f":"IF(E4386=\"\",\"\",VLOOKUP(E4386,Insumos!AD:AE,2,FALSE))","v":""},null,{"$f":"IF(G4386=\"\",\"\",VLOOKUP(G4386,Insumos!G:H,2,FALSE))","v":""}]
[null,null,null,null,null,{"$f":"IF(E4387=\"\",\"\",VLOOKUP(E4387,Insumos!AD:AE,2,FALSE))","v":""},null,{"$f":"IF(G4387=\"\",\"\",VLOOKUP(G4387,Insumos!G:H,2,FALSE))","v":""}]
[null,null,null,null,null,{"$f":"IF(E4388=\"\",\"\",VLOOKUP(E4388,Insumos!AD:AE,2,FALSE))","v":""},null,{"$f":"IF(G4388=\"\",\"\",VLOOKUP(G4388,Insumos!G:H,2,FALSE))","v":""}]
[null,null,null,null,null,{"$f":"IF(E4389=\"\",\"\",VLOOKUP(E4389,Insumos!AD:AE,2,FALSE))","v":""},null,{"$f":"IF(G4389=\"\",\"\",VLOOKUP(G4389,Insumos!G:H,2,FALSE))","v":""}]
[null,null,null,null,null,{"$f":"IF(E4390=\"\",\"\",VLOOKUP(E4390,Insumos!AD:AE,2,FALSE))","v":""},null,{"$f":"IF(G4390=\"\",\"\",VLOOKUP(G4390,Insumos!G:H,2,FALSE))","v":""}]
[null,null,null,null,null,{"$f":"IF(E4391=\"\",\"\",VLOOKUP(E4391,Insumos!AD:AE,2,FALSE))","v":""},null,{"$f":"IF(G4391=\"\",\"\",VLOOKUP(G4391,Insumos!G:H,2,FALSE))","v":""}]
[null,null,null,null,null,{"$f":"IF(E4392=\"\",\"\",VLOOKUP(E4392,Insumos!AD:AE,2,FALSE))","v":""},null,{"$f":"IF(G4392=\"\",\"\",VLOOKUP(G4392,Insumos!G:H,2,FALSE))","v":""}]
[null,null,null,null,null,{"$f":"IF(E4393=\"\",\"\",VLOOKUP(E4393,Insumos!AD:AE,2,FALSE))","v":""},null,{"$f":"IF(G4393=\"\",\"\",VLOOKUP(G4393,Insumos!G:H,2,FALSE))","v":""}]
[null,null,null,null,null,{"$f":"IF(E4394=\"\",\"\",VLOOKUP(E4394,Insumos!AD:AE,2,FALSE))","v":""},null,{"$f":"IF(G4394=\"\",\"\",VLOOKUP(G4394,Insumos!G:H,2,FALSE))","v":""}]
[null,null,null,null,null,{"$f":"IF(E4395=\"\",\"\",VLOOKUP(E4395,Insumos!AD:AE,2,FALSE))","v":""},null,{"$f":"IF(G4395=\"\",\"\",VLOOKUP(G4395,Insumos!G:H,2,FALSE))","v":""}]
[null,null,null,null,null,{"$f":"IF(E4396=\"\",\"\",VLOOKUP(E4396,Insumos!AD:AE,2,FALSE))","v":""},null,{"$f":"IF(G4396=\"\",\"\",VLOOKUP(G4396,Insumos!G:H,2,FALSE))","v":""}]
[null,null,null,null,null,{"$f":"IF(E4397=\"\",\"\",VLOOKUP(E4397,Insumos!AD:AE,2,FALSE))","v":""},null,{"$f":"IF(G4397=\"\",\"\",VLOOKUP(G4397,Insumos!G:H,2,FALSE))","v":""}]
[null,null,null,null,null,{"$f":"IF(E4398=\"\",\"\",VLOOKUP(E4398,Insumos!AD:AE,2,FALSE))","v":""},null,{"$f":"IF(G4398=\"\",\"\",VLOOKUP(G4398,Insumos!G:H,2,FALSE))","v":""}]
[null,null,null,null,null,{"$f":"IF(E4399=\"\",\"\",VLOOKUP(E4399,Insumos!AD:AE,2,FALSE))","v":""},null,{"$f":"IF(G4399=\"\",\"\",VLOOKUP(G4399,Insumos!G:H,2,FALSE))","v":""}]
[null,null,null,null,null,{"$f":"IF(E4400=\"\",\"\",VLOOKUP(E4400,Insumos!AD:AE,2,FALSE))","v":""},null,{"$f":"IF(G4400=\"\",\"\",VLOOKUP(G4400,Insumos!G:H,2,FALSE))","v":""}]
[null,null,null,null,null,{"$f":"IF(E4401=\"\",\"\",VLOOKUP(E4401,Insumos!AD:AE,2,FALSE))","v":""},null,{"$f":"IF(G4401=\"\",\"\",VLOOKUP(G4401,Insumos!G:H,2,FALSE))","v":""}]
[null,null,null,null,null,{"$f":"IF(E4402=\"\",\"\",VLOOKUP(E4402,Insumos!AD:AE,2,FALSE))","v":""},null,{"$f":"IF(G4402=\"\",\"\",VLOOKUP(G4402,Insumos!G:H,2,FALSE))","v":""}]
[null,null,null,null,null,{"$f":"IF(E4403=\"\",\"\",VLOOKUP(E4403,Insumos!AD:AE,2,FALSE))","v":""},null,{"$f":"IF(G4403=\"\",\"\",VLOOKUP(G4403,Insumos!G:H,2,FALSE))","v":""}]
[null,null,null,null,null,{"$f":"IF(E4404=\"\",\"\",VLOOKUP(E4404,Insumos!AD:AE,2,FALSE))","v":""},null,{"$f":"IF(G4404=\"\",\"\",VLOOKUP(G4404,Insumos!G:H,2,FALSE))","v":""}]
[null,null,null,null,null,{"$f":"IF(E4405=\"\",\"\",VLOOKUP(E4405,Insumos!AD:AE,2,FALSE))","v":""},null,{"$f":"IF(G4405=\"\",\"\",VLOOKUP(G4405,Insumos!G:H,2,FALSE))","v":""}]
[null,null,null,null,null,{"$f":"IF(E4406=\"\",\"\",VLOOKUP(E4406,Insumos!AD:AE,2,FALSE))","v":""},null,{"$f":"IF(G4406=\"\",\"\",VLOOKUP(G4406,Insumos!G:H,2,FALSE))","v":""}]
[null,null,null,null,null,{"$f":"IF(E4407=\"\",\"\",VLOOKUP(E4407,Insumos!AD:AE,2,FALSE))","v":""},null,{"$f":"IF(G4407=\"\",\"\",VLOOKUP(G4407,Insumos!G:H,2,FALSE))","v":""}]
[null,null,null,null,null,{"$f":"IF(E4408=\"\",\"\",VLOOKUP(E4408,Insumos!AD:AE,2,FALSE))","v":""},null,{"$f":"IF(G4408=\"\",\"\",VLOOKUP(G4408,Insumos!G:H,2,FALSE))","v":""}]
[null,null,null,null,null,{"$f":"IF(E4409=\"\",\"\",VLOOKUP(E4409,Insumos!AD:AE,2,FALSE))","v":""},null,{"$f":"IF(G4409=\"\",\"\",VLOOKUP(G4409,Insumos!G:H,2,FALSE))","v":""}]
[null,null,null,null,null,{"$f":"IF(E4410=\"\",\"\",VLOOKUP(E4410,Insumos!AD:AE,2,FALSE))","v":""},null,{"$f":"IF(G4410=\"\",\"\",VLOOKUP(G4410,Insumos!G:H,2,FALSE))","v":""}]
[null,null,null,null,null,{"$f":"IF(E4411=\"\",\"\",VLOOKUP(E4411,Insumos!AD:AE,2,FALSE))","v":""},null,{"$f":"IF(G4411=\"\",\"\",VLOOKUP(G4411,Insumos!G:H,2,FALSE))","v":""}]
[null,null,null,null,null,{"$f":"IF(E4412=\"\",\"\",VLOOKUP(E4412,Insumos!AD:AE,2,FALSE))","v":""},null,{"$f":"IF(G4412=\"\",\"\",VLOOKUP(G4412,Insumos!G:H,2,FALSE))","v":""}]
[null,null,null,null,null,{"$f":"IF(E4413=\"\",\"\",VLOOKUP(E4413,Insumos!AD:AE,2,FALSE))","v":""},null,{"$f":"IF(G4413=\"\",\"\",VLOOKUP(G4413,Insumos!G:H,2,FALSE))","v":""}]
[null,null,null,null,null,{"$f":"IF(E4414=\"\",\"\",VLOOKUP(E4414,Insumos!AD:AE,2,FALSE))","v":""},null,{"$f":"IF(G4414=\"\",\"\",VLOOKUP(G4414,Insumos!G:H,2,FALSE))","v":""}]
[null,null,null,null,null,{"$f":"IF(E4415=\"\",\"\",VLOOKUP(E4415,Insumos!AD:AE,2,FALSE))","v":""},null,{"$f":"IF(G4415=\"\",\"\",VLOOKUP(G4415,Insumos!G:H,2,FALSE))","v":""}]
[null,null,null,null,null,{"$f":"IF(E4416=\"\",\"\",VLOOKUP(E4416,Insumos!AD:AE,2,FALSE))","v":""},null,{"$f":"IF(G4416=\"\",\"\",VLOOKUP(G4416,Insumos!G:H,2,FALSE))","v":""}]
[null,null,null,null,null,{"$f":"IF(E4417=\"\",\"\",VLOOKUP(E4417,Insumos!AD:AE,2,FALSE))","v":""},null,{"$f":"IF(G4417=\"\",\"\",VLOOKUP(G4417,Insumos!G:H,2,FALSE))","v":""}]
[null,null,null,null,null,{"$f":"IF(E4418=\"\",\"\",VLOOKUP(E4418,Insumos!AD:AE,2,FALSE))","v":""},null,{"$f":"IF(G4418=\"\",\"\",VLOOKUP(G4418,Insumos!G:H,2,FALSE))","v":""}]
[null,null,null,null,null,{"$f":"IF(E4419=\"\",\"\",VLOOKUP(E4419,Insumos!AD:AE,2,FALSE))","v":""},null,{"$f":"IF(G4419=\"\",\"\",VLOOKUP(G4419,Insumos!G:H,2,FALSE))","v":""}]
[null,null,null,null,null,{"$f":"IF(E4420=\"\",\"\",VLOOKUP(E4420,Insumos!AD:AE,2,FALSE))","v":""},null,{"$f":"IF(G4420=\"\",\"\",VLOOKUP(G4420,Insumos!G:H,2,FALSE))","v":""}]
[null,null,null,null,null,{"$f":"IF(E4421=\"\",\"\",VLOOKUP(E4421,Insumos!AD:AE,2,FALSE))","v":""},null,{"$f":"IF(G4421=\"\",\"\",VLOOKUP(G4421,Insumos!G:H,2,FALSE))","v":""}]
[null,null,null,null,null,{"$f":"IF(E4422=\"\",\"\",VLOOKUP(E4422,Insumos!AD:AE,2,FALSE))","v":""},null,{"$f":"IF(G4422=\"\",\"\",VLOOKUP(G4422,Insumos!G:H,2,FALSE))","v":""}]
[null,null,null,null,null,{"$f":"IF(E4423=\"\",\"\",VLOOKUP(E4423,Insumos!AD:AE,2,FALSE))","v":""},null,{"$f":"IF(G4423=\"\",\"\",VLOOKUP(G4423,Insumos!G:H,2,FALSE))","v":""}]
[null,null,null,null,null,{"$f":"IF(E4424=\"\",\"\",VLOOKUP(E4424,Insumos!AD:AE,2,FALSE))","v":""},null,{"$f":"IF(G4424=\"\",\"\",VLOOKUP(G4424,Insumos!G:H,2,FALSE))","v":""}]
[null,null,null,null,null,{"$f":"IF(E4425=\"\",\"\",VLOOKUP(E4425,Insumos!AD:AE,2,FALSE))","v":""},null,{"$f":"IF(G4425=\"\",\"\",VLOOKUP(G4425,Insumos!G:H,2,FALSE))","v":""}]
[null,null,null,null,null,{"$f":"IF(E4426=\"\",\"\",VLOOKUP(E4426,Insumos!AD:AE,2,FALSE))","v":""},null,{"$f":"IF(G4426=\"\",\"\",VLOOKUP(G4426,Insumos!G:H,2,FALSE))","v":""}]
[null,null,null,null,null,{"$f":"IF(E4427=\"\",\"\",VLOOKUP(E4427,Insumos!AD:AE,2,FALSE))","v":""},null,{"$f":"IF(G4427=\"\",\"\",VLOOKUP(G4427,Insumos!G:H,2,FALSE))","v":""}]
[null,null,null,null,null,{"$f":"IF(E4428=\"\",\"\",VLOOKUP(E4428,Insumos!AD:AE,2,FALSE))","v":""},null,{"$f":"IF(G4428=\"\",\"\",VLOOKUP(G4428,Insumos!G:H,2,FALSE))","v":""}]
[null,null,null,null,null,{"$f":"IF(E4429=\"\",\"\",VLOOKUP(E4429,Insumos!AD:AE,2,FALSE))","v":""},null,{"$f":"IF(G4429=\"\",\"\",VLOOKUP(G4429,Insumos!G:H,2,FALSE))","v":""}]
[null,null,null,null,null,{"$f":"IF(E4430=\"\",\"\",VLOOKUP(E4430,Insumos!AD:AE,2,FALSE))","v":""},null,{"$f":"IF(G4430=\"\",\"\",VLOOKUP(G4430,Insumos!G:H,2,FALSE))","v":""}]
[null,null,null,null,null,{"$f":"IF(E4431=\"\",\"\",VLOOKUP(E4431,Insumos!AD:AE,2,FALSE))","v":""},null,{"$f":"IF(G4431=\"\",\"\",VLOOKUP(G4431,Insumos!G:H,2,FALSE))","v":""}]
[null,null,null,null,null,{"$f":"IF(E4432=\"\",\"\",VLOOKUP(E4432,Insumos!AD:AE,2,FALSE))","v":""},null,{"$f":"IF(G4432=\"\",\"\",VLOOKUP(G4432,Insumos!G:H,2,FALSE))","v":""}]
[null,null,null,null,null,{"$f":"IF(E4433=\"\",\"\",VLOOKUP(E4433,Insumos!AD:AE,2,FALSE))","v":""},null,{"$f":"IF(G4433=\"\",\"\",VLOOKUP(G4433,Insumos!G:H,2,FALSE))","v":""}]
[null,null,null,null,null,{"$f":"IF(E4434=\"\",\"\",VLOOKUP(E4434,Insumos!AD:AE,2,FALSE))","v":""},null,{"$f":"IF(G4434=\"\",\"\",VLOOKUP(G4434,Insumos!G:H,2,FALSE))","v":""}]
[null,null,null,null,null,{"$f":"IF(E4435=\"\",\"\",VLOOKUP(E4435,Insumos!AD:AE,2,FALSE))","v":""},null,{"$f":"IF(G4435=\"\",\"\",VLOOKUP(G4435,Insumos!G:H,2,FALSE))","v":""}]
[null,null,null,null,null,{"$f":"IF(E4436=\"\",\"\",VLOOKUP(E4436,Insumos!AD:AE,2,FALSE))","v":""},null,{"$f":"IF(G4436=\"\",\"\",VLOOKUP(G4436,Insumos!G:H,2,FALSE))","v":""}]
[null,null,null,null,null,{"$f":"IF(E4437=\"\",\"\",VLOOKUP(E4437,Insumos!AD:AE,2,FALSE))","v":""},null,{"$f":"IF(G4437=\"\",\"\",VLOOKUP(G4437,Insumos!G:H,2,FALSE))","v":""}]
[null,null,null,null,null,{"$f":"IF(E4438=\"\",\"\",VLOOKUP(E4438,Insumos!AD:AE,2,FALSE))","v":""},null,{"$f":"IF(G4438=\"\",\"\",VLOOKUP(G4438,Insumos!G:H,2,FALSE))","v":""}]
[null,null,null,null,null,{"$f":"IF(E4439=\"\",\"\",VLOOKUP(E4439,Insumos!AD:AE,2,FALSE))","v":""},null,{"$f":"IF(G4439=\"\",\"\",VLOOKUP(G4439,Insumos!G:H,2,FALSE))","v":""}]
[null,null,null,null,null,{"$f":"IF(E4440=\"\",\"\",VLOOKUP(E4440,Insumos!AD:AE,2,FALSE))","v":""},null,{"$f":"IF(G4440=\"\",\"\",VLOOKUP(G4440,Insumos!G:H,2,FALSE))","v":""}]
[null,null,null,null,null,{"$f":"IF(E4441=\"\",\"\",VLOOKUP(E4441,Insumos!AD:AE,2,FALSE))","v":""},null,{"$f":"IF(G4441=\"\",\"\",VLOOKUP(G4441,Insumos!G:H,2,FALSE))","v":""}]
[null,null,null,null,null,{"$f":"IF(E4442=\"\",\"\",VLOOKUP(E4442,Insumos!AD:AE,2,FALSE))","v":""},null,{"$f":"IF(G4442=\"\",\"\",VLOOKUP(G4442,Insumos!G:H,2,FALSE))","v":""}]
[null,null,null,null,null,{"$f":"IF(E4443=\"\",\"\",VLOOKUP(E4443,Insumos!AD:AE,2,FALSE))","v":""},null,{"$f":"IF(G4443=\"\",\"\",VLOOKUP(G4443,Insumos!G:H,2,FALSE))","v":""}]
[null,null,null,null,null,{"$f":"IF(E4444=\"\",\"\",VLOOKUP(E4444,Insumos!AD:AE,2,FALSE))","v":""},null,{"$f":"IF(G4444=\"\",\"\",VLOOKUP(G4444,Insumos!G:H,2,FALSE))","v":""}]
[null,null,null,null,null,{"$f":"IF(E4445=\"\",\"\",VLOOKUP(E4445,Insumos!AD:AE,2,FALSE))","v":""},null,{"$f":"IF(G4445=\"\",\"\",VLOOKUP(G4445,Insumos!G:H,2,FALSE))","v":""}]
[null,null,null,null,null,{"$f":"IF(E4446=\"\",\"\",VLOOKUP(E4446,Insumos!AD:AE,2,FALSE))","v":""},null,{"$f":"IF(G4446=\"\",\"\",VLOOKUP(G4446,Insumos!G:H,2,FALSE))","v":""}]
[null,null,null,null,null,{"$f":"IF(E4447=\"\",\"\",VLOOKUP(E4447,Insumos!AD:AE,2,FALSE))","v":""},null,{"$f":"IF(G4447=\"\",\"\",VLOOKUP(G4447,Insumos!G:H,2,FALSE))","v":""}]
[null,null,null,null,null,{"$f":"IF(E4448=\"\",\"\",VLOOKUP(E4448,Insumos!AD:AE,2,FALSE))","v":""},null,{"$f":"IF(G4448=\"\",\"\",VLOOKUP(G4448,Insumos!G:H,2,FALSE))","v":""}]
[null,null,null,null,null,{"$f":"IF(E4449=\"\",\"\",VLOOKUP(E4449,Insumos!AD:AE,2,FALSE))","v":""},null,{"$f":"IF(G4449=\"\",\"\",VLOOKUP(G4449,Insumos!G:H,2,FALSE))","v":""}]
[null,null,null,null,null,{"$f":"IF(E4450=\"\",\"\",VLOOKUP(E4450,Insumos!AD:AE,2,FALSE))","v":""},null,{"$f":"IF(G4450=\"\",\"\",VLOOKUP(G4450,Insumos!G:H,2,FALSE))","v":""}]
[null,null,null,null,null,{"$f":"IF(E4451=\"\",\"\",VLOOKUP(E4451,Insumos!AD:AE,2,FALSE))","v":""},null,{"$f":"IF(G4451=\"\",\"\",VLOOKUP(G4451,Insumos!G:H,2,FALSE))","v":""}]
[null,null,null,null,null,{"$f":"IF(E4452=\"\",\"\",VLOOKUP(E4452,Insumos!AD:AE,2,FALSE))","v":""},null,{"$f":"IF(G4452=\"\",\"\",VLOOKUP(G4452,Insumos!G:H,2,FALSE))","v":""}]
[null,null,null,null,null,{"$f":"IF(E4453=\"\",\"\",VLOOKUP(E4453,Insumos!AD:AE,2,FALSE))","v":""},null,{"$f":"IF(G4453=\"\",\"\",VLOOKUP(G4453,Insumos!G:H,2,FALSE))","v":""}]
[null,null,null,null,null,{"$f":"IF(E4454=\"\",\"\",VLOOKUP(E4454,Insumos!AD:AE,2,FALSE))","v":""},null,{"$f":"IF(G4454=\"\",\"\",VLOOKUP(G4454,Insumos!G:H,2,FALSE))","v":""}]
[null,null,null,null,null,{"$f":"IF(E4455=\"\",\"\",VLOOKUP(E4455,Insumos!AD:AE,2,FALSE))","v":""},null,{"$f":"IF(G4455=\"\",\"\",VLOOKUP(G4455,Insumos!G:H,2,FALSE))","v":""}]
[null,null,null,null,null,{"$f":"IF(E4456=\"\",\"\",VLOOKUP(E4456,Insumos!AD:AE,2,FALSE))","v":""},null,{"$f":"IF(G4456=\"\",\"\",VLOOKUP(G4456,Insumos!G:H,2,FALSE))","v":""}]
[null,null,null,null,null,{"$f":"IF(E4457=\"\",\"\",VLOOKUP(E4457,Insumos!AD:AE,2,FALSE))","v":""},null,{"$f":"IF(G4457=\"\",\"\",VLOOKUP(G4457,Insumos!G:H,2,FALSE))","v":""}]
[null,null,null,null,null,{"$f":"IF(E4458=\"\",\"\",VLOOKUP(E4458,Insumos!AD:AE,2,FALSE))","v":""},null,{"$f":"IF(G4458=\"\",\"\",VLOOKUP(G4458,Insumos!G:H,2,FALSE))","v":""}]
[null,null,null,null,null,{"$f":"IF(E4459=\"\",\"\",VLOOKUP(E4459,Insumos!AD:AE,2,FALSE))","v":""},null,{"$f":"IF(G4459=\"\",\"\",VLOOKUP(G4459,Insumos!G:H,2,FALSE))","v":""}]
[null,null,null,null,null,{"$f":"IF(E4460=\"\",\"\",VLOOKUP(E4460,Insumos!AD:AE,2,FALSE))","v":""},null,{"$f":"IF(G4460=\"\",\"\",VLOOKUP(G4460,Insumos!G:H,2,FALSE))","v":""}]
[null,null,null,null,null,{"$f":"IF(E4461=\"\",\"\",VLOOKUP(E4461,Insumos!AD:AE,2,FALSE))","v":""},null,{"$f":"IF(G4461=\"\",\"\",VLOOKUP(G4461,Insumos!G:H,2,FALSE))","v":""}]
[null,null,null,null,null,{"$f":"IF(E4462=\"\",\"\",VLOOKUP(E4462,Insumos!AD:AE,2,FALSE))","v":""},null,{"$f":"IF(G4462=\"\",\"\",VLOOKUP(G4462,Insumos!G:H,2,FALSE))","v":""}]
[null,null,null,null,null,{"$f":"IF(E4463=\"\",\"\",VLOOKUP(E4463,Insumos!AD:AE,2,FALSE))","v":""},null,{"$f":"IF(G4463=\"\",\"\",VLOOKUP(G4463,Insumos!G:H,2,FALSE))","v":""}]
[null,null,null,null,null,{"$f":"IF(E4464=\"\",\"\",VLOOKUP(E4464,Insumos!AD:AE,2,FALSE))","v":""},null,{"$f":"IF(G4464=\"\",\"\",VLOOKUP(G4464,Insumos!G:H,2,FALSE))","v":""}]
[null,null,null,null,null,{"$f":"IF(E4465=\"\",\"\",VLOOKUP(E4465,Insumos!AD:AE,2,FALSE))","v":""},null,{"$f":"IF(G4465=\"\",\"\",VLOOKUP(G4465,Insumos!G:H,2,FALSE))","v":""}]
[null,null,null,null,null,{"$f":"IF(E4466=\"\",\"\",VLOOKUP(E4466,Insumos!AD:AE,2,FALSE))","v":""},null,{"$f":"IF(G4466=\"\",\"\",VLOOKUP(G4466,Insumos!G:H,2,FALSE))","v":""}]
[null,null,null,null,null,{"$f":"IF(E4467=\"\",\"\",VLOOKUP(E4467,Insumos!AD:AE,2,FALSE))","v":""},null,{"$f":"IF(G4467=\"\",\"\",VLOOKUP(G4467,Insumos!G:H,2,FALSE))","v":""}]
[null,null,null,null,null,{"$f":"IF(E4468=\"\",\"\",VLOOKUP(E4468,Insumos!AD:AE,2,FALSE))","v":""},null,{"$f":"IF(G4468=\"\",\"\",VLOOKUP(G4468,Insumos!G:H,2,FALSE))","v":""}]
[null,null,null,null,null,{"$f":"IF(E4469=\"\",\"\",VLOOKUP(E4469,Insumos!AD:AE,2,FALSE))","v":""},null,{"$f":"IF(G4469=\"\",\"\",VLOOKUP(G4469,Insumos!G:H,2,FALSE))","v":""}]
[null,null,null,null,null,{"$f":"IF(E4470=\"\",\"\",VLOOKUP(E4470,Insumos!AD:AE,2,FALSE))","v":""},null,{"$f":"IF(G4470=\"\",\"\",VLOOKUP(G4470,Insumos!G:H,2,FALSE))","v":""}]
[null,null,null,null,null,{"$f":"IF(E4471=\"\",\"\",VLOOKUP(E4471,Insumos!AD:AE,2,FALSE))","v":""},null,{"$f":"IF(G4471=\"\",\"\",VLOOKUP(G4471,Insumos!G:H,2,FALSE))","v":""}]
[null,null,null,null,null,{"$f":"IF(E4472=\"\",\"\",VLOOKUP(E4472,Insumos!AD:AE,2,FALSE))","v":""},null,{"$f":"IF(G4472=\"\",\"\",VLOOKUP(G4472,Insumos!G:H,2,FALSE))","v":""}]
[null,null,null,null,null,{"$f":"IF(E4473=\"\",\"\",VLOOKUP(E4473,Insumos!AD:AE,2,FALSE))","v":""},null,{"$f":"IF(G4473=\"\",\"\",VLOOKUP(G4473,Insumos!G:H,2,FALSE))","v":""}]
[null,null,null,null,null,{"$f":"IF(E4474=\"\",\"\",VLOOKUP(E4474,Insumos!AD:AE,2,FALSE))","v":""},null,{"$f":"IF(G4474=\"\",\"\",VLOOKUP(G4474,Insumos!G:H,2,FALSE))","v":""}]
[null,null,null,null,null,{"$f":"IF(E4475=\"\",\"\",VLOOKUP(E4475,Insumos!AD:AE,2,FALSE))","v":""},null,{"$f":"IF(G4475=\"\",\"\",VLOOKUP(G4475,Insumos!G:H,2,FALSE))","v":""}]
[null,null,null,null,null,{"$f":"IF(E4476=\"\",\"\",VLOOKUP(E4476,Insumos!AD:AE,2,FALSE))","v":""},null,{"$f":"IF(G4476=\"\",\"\",VLOOKUP(G4476,Insumos!G:H,2,FALSE))","v":""}]
[null,null,null,null,null,{"$f":"IF(E4477=\"\",\"\",VLOOKUP(E4477,Insumos!AD:AE,2,FALSE))","v":""},null,{"$f":"IF(G4477=\"\",\"\",VLOOKUP(G4477,Insumos!G:H,2,FALSE))","v":""}]
[null,null,null,null,null,{"$f":"IF(E4478=\"\",\"\",VLOOKUP(E4478,Insumos!AD:AE,2,FALSE))","v":""},null,{"$f":"IF(G4478=\"\",\"\",VLOOKUP(G4478,Insumos!G:H,2,FALSE))","v":""}]
[null,null,null,null,null,{"$f":"IF(E4479=\"\",\"\",VLOOKUP(E4479,Insumos!AD:AE,2,FALSE))","v":""},null,{"$f":"IF(G4479=\"\",\"\",VLOOKUP(G4479,Insumos!G:H,2,FALSE))","v":""}]
[null,null,null,null,null,{"$f":"IF(E4480=\"\",\"\",VLOOKUP(E4480,Insumos!AD:AE,2,FALSE))","v":""},null,{"$f":"IF(G4480=\"\",\"\",VLOOKUP(G4480,Insumos!G:H,2,FALSE))","v":""}]
[null,null,null,null,null,{"$f":"IF(E4481=\"\",\"\",VLOOKUP(E4481,Insumos!AD:AE,2,FALSE))","v":""},null,{"$f":"IF(G4481=\"\",\"\",VLOOKUP(G4481,Insumos!G:H,2,FALSE))","v":""}]
[null,null,null,null,null,{"$f":"IF(E4482=\"\",\"\",VLOOKUP(E4482,Insumos!AD:AE,2,FALSE))","v":""},null,{"$f":"IF(G4482=\"\",\"\",VLOOKUP(G4482,Insumos!G:H,2,FALSE))","v":""}]
[null,null,null,null,null,{"$f":"IF(E4483=\"\",\"\",VLOOKUP(E4483,Insumos!AD:AE,2,FALSE))","v":""},null,{"$f":"IF(G4483=\"\",\"\",VLOOKUP(G4483,Insumos!G:H,2,FALSE))","v":""}]
[null,null,null,null,null,{"$f":"IF(E4484=\"\",\"\",VLOOKUP(E4484,Insumos!AD:AE,2,FALSE))","v":""},null,{"$f":"IF(G4484=\"\",\"\",VLOOKUP(G4484,Insumos!G:H,2,FALSE))","v":""}]
[null,null,null,null,null,{"$f":"IF(E4485=\"\",\"\",VLOOKUP(E4485,Insumos!AD:AE,2,FALSE))","v":""},null,{"$f":"IF(G4485=\"\",\"\",VLOOKUP(G4485,Insumos!G:H,2,FALSE))","v":""}]
[null,null,null,null,null,{"$f":"IF(E4486=\"\",\"\",VLOOKUP(E4486,Insumos!AD:AE,2,FALSE))","v":""},null,{"$f":"IF(G4486=\"\",\"\",VLOOKUP(G4486,Insumos!G:H,2,FALSE))","v":""}]
[null,null,null,null,null,{"$f":"IF(E4487=\"\",\"\",VLOOKUP(E4487,Insumos!AD:AE,2,FALSE))","v":""},null,{"$f":"IF(G4487=\"\",\"\",VLOOKUP(G4487,Insumos!G:H,2,FALSE))","v":""}]
[null,null,null,null,null,{"$f":"IF(E4488=\"\",\"\",VLOOKUP(E4488,Insumos!AD:AE,2,FALSE))","v":""},null,{"$f":"IF(G4488=\"\",\"\",VLOOKUP(G4488,Insumos!G:H,2,FALSE))","v":""}]
[null,null,null,null,null,{"$f":"IF(E4489=\"\",\"\",VLOOKUP(E4489,Insumos!AD:AE,2,FALSE))","v":""},null,{"$f":"IF(G4489=\"\",\"\",VLOOKUP(G4489,Insumos!G:H,2,FALSE))","v":""}]
[null,null,null,null,null,{"$f":"IF(E4490=\"\",\"\",VLOOKUP(E4490,Insumos!AD:AE,2,FALSE))","v":""},null,{"$f":"IF(G4490=\"\",\"\",VLOOKUP(G4490,Insumos!G:H,2,FALSE))","v":""}]
[null,null,null,null,null,{"$f":"IF(E4491=\"\",\"\",VLOOKUP(E4491,Insumos!AD:AE,2,FALSE))","v":""},null,{"$f":"IF(G4491=\"\",\"\",VLOOKUP(G4491,Insumos!G:H,2,FALSE))","v":""}]
[null,null,null,null,null,{"$f":"IF(E4492=\"\",\"\",VLOOKUP(E4492,Insumos!AD:AE,2,FALSE))","v":""},null,{"$f":"IF(G4492=\"\",\"\",VLOOKUP(G4492,Insumos!G:H,2,FALSE))","v":""}]
[null,null,null,null,null,{"$f":"IF(E4493=\"\",\"\",VLOOKUP(E4493,Insumos!AD:AE,2,FALSE))","v":""},null,{"$f":"IF(G4493=\"\",\"\",VLOOKUP(G4493,Insumos!G:H,2,FALSE))","v":""}]
[null,null,null,null,null,{"$f":"IF(E4494=\"\",\"\",VLOOKUP(E4494,Insumos!AD:AE,2,FALSE))","v":""},null,{"$f":"IF(G4494=\"\",\"\",VLOOKUP(G4494,Insumos!G:H,2,FALSE))","v":""}]
[null,null,null,null,null,{"$f":"IF(E4495=\"\",\"\",VLOOKUP(E4495,Insumos!AD:AE,2,FALSE))","v":""},null,{"$f":"IF(G4495=\"\",\"\",VLOOKUP(G4495,Insumos!G:H,2,FALSE))","v":""}]
[null,null,null,null,null,{"$f":"IF(E4496=\"\",\"\",VLOOKUP(E4496,Insumos!AD:AE,2,FALSE))","v":""},null,{"$f":"IF(G4496=\"\",\"\",VLOOKUP(G4496,Insumos!G:H,2,FALSE))","v":""}]
[null,null,null,null,null,{"$f":"IF(E4497=\"\",\"\",VLOOKUP(E4497,Insumos!AD:AE,2,FALSE))","v":""},null,{"$f":"IF(G4497=\"\",\"\",VLOOKUP(G4497,Insumos!G:H,2,FALSE))","v":""}]
[null,null,null,null,null,{"$f":"IF(E4498=\"\",\"\",VLOOKUP(E4498,Insumos!AD:AE,2,FALSE))","v":""},null,{"$f":"IF(G4498=\"\",\"\",VLOOKUP(G4498,Insumos!G:H,2,FALSE))","v":""}]
[null,null,null,null,null,{"$f":"IF(E4499=\"\",\"\",VLOOKUP(E4499,Insumos!AD:AE,2,FALSE))","v":""},null,{"$f":"IF(G4499=\"\",\"\",VLOOKUP(G4499,Insumos!G:H,2,FALSE))","v":""}]
[null,null,null,null,null,{"$f":"IF(E4500=\"\",\"\",VLOOKUP(E4500,Insumos!AD:AE,2,FALSE))","v":""},null,{"$f":"IF(G4500=\"\",\"\",VLOOKUP(G4500,Insumos!G:H,2,FALSE))","v":""}]
[null,null,null,null,null,{"$f":"IF(E4501=\"\",\"\",VLOOKUP(E4501,Insumos!AD:AE,2,FALSE))","v":""},null,{"$f":"IF(G4501=\"\",\"\",VLOOKUP(G4501,Insumos!G:H,2,FALSE))","v":""}]
[null,null,null,null,null,{"$f":"IF(E4502=\"\",\"\",VLOOKUP(E4502,Insumos!AD:AE,2,FALSE))","v":""},null,{"$f":"IF(G4502=\"\",\"\",VLOOKUP(G4502,Insumos!G:H,2,FALSE))","v":""}]
[null,null,null,null,null,{"$f":"IF(E4503=\"\",\"\",VLOOKUP(E4503,Insumos!AD:AE,2,FALSE))","v":""},null,{"$f":"IF(G4503=\"\",\"\",VLOOKUP(G4503,Insumos!G:H,2,FALSE))","v":""}]
[null,null,null,null,null,{"$f":"IF(E4504=\"\",\"\",VLOOKUP(E4504,Insumos!AD:AE,2,FALSE))","v":""},null,{"$f":"IF(G4504=\"\",\"\",VLOOKUP(G4504,Insumos!G:H,2,FALSE))","v":""}]
[null,null,null,null,null,{"$f":"IF(E4505=\"\",\"\",VLOOKUP(E4505,Insumos!AD:AE,2,FALSE))","v":""},null,{"$f":"IF(G4505=\"\",\"\",VLOOKUP(G4505,Insumos!G:H,2,FALSE))","v":""}]
[null,null,null,null,null,{"$f":"IF(E4506=\"\",\"\",VLOOKUP(E4506,Insumos!AD:AE,2,FALSE))","v":""},null,{"$f":"IF(G4506=\"\",\"\",VLOOKUP(G4506,Insumos!G:H,2,FALSE))","v":""}]
[null,null,null,null,null,{"$f":"IF(E4507=\"\",\"\",VLOOKUP(E4507,Insumos!AD:AE,2,FALSE))","v":""},null,{"$f":"IF(G4507=\"\",\"\",VLOOKUP(G4507,Insumos!G:H,2,FALSE))","v":""}]
[null,null,null,null,null,{"$f":"IF(E4508=\"\",\"\",VLOOKUP(E4508,Insumos!AD:AE,2,FALSE))","v":""},null,{"$f":"IF(G4508=\"\",\"\",VLOOKUP(G4508,Insumos!G:H,2,FALSE))","v":""}]
[null,null,null,null,null,{"$f":"IF(E4509=\"\",\"\",VLOOKUP(E4509,Insumos!AD:AE,2,FALSE))","v":""},null,{"$f":"IF(G4509=\"\",\"\",VLOOKUP(G4509,Insumos!G:H,2,FALSE))","v":""}]
[null,null,null,null,null,{"$f":"IF(E4510=\"\",\"\",VLOOKUP(E4510,Insumos!AD:AE,2,FALSE))","v":""},null,{"$f":"IF(G4510=\"\",\"\",VLOOKUP(G4510,Insumos!G:H,2,FALSE))","v":""}]
[null,null,null,null,null,{"$f":"IF(E4511=\"\",\"\",VLOOKUP(E4511,Insumos!AD:AE,2,FALSE))","v":""},null,{"$f":"IF(G4511=\"\",\"\",VLOOKUP(G4511,Insumos!G:H,2,FALSE))","v":""}]
[null,null,null,null,null,{"$f":"IF(E4512=\"\",\"\",VLOOKUP(E4512,Insumos!AD:AE,2,FALSE))","v":""},null,{"$f":"IF(G4512=\"\",\"\",VLOOKUP(G4512,Insumos!G:H,2,FALSE))","v":""}]
[null,null,null,null,null,{"$f":"IF(E4513=\"\",\"\",VLOOKUP(E4513,Insumos!AD:AE,2,FALSE))","v":""},null,{"$f":"IF(G4513=\"\",\"\",VLOOKUP(G4513,Insumos!G:H,2,FALSE))","v":""}]
[null,null,null,null,null,{"$f":"IF(E4514=\"\",\"\",VLOOKUP(E4514,Insumos!AD:AE,2,FALSE))","v":""},null,{"$f":"IF(G4514=\"\",\"\",VLOOKUP(G4514,Insumos!G:H,2,FALSE))","v":""}]
[null,null,null,null,null,{"$f":"IF(E4515=\"\",\"\",VLOOKUP(E4515,Insumos!AD:AE,2,FALSE))","v":""},null,{"$f":"IF(G4515=\"\",\"\",VLOOKUP(G4515,Insumos!G:H,2,FALSE))","v":""}]
[null,null,null,null,null,{"$f":"IF(E4516=\"\",\"\",VLOOKUP(E4516,Insumos!AD:AE,2,FALSE))","v":""},null,{"$f":"IF(G4516=\"\",\"\",VLOOKUP(G4516,Insumos!G:H,2,FALSE))","v":""}]
[null,null,null,null,null,{"$f":"IF(E4517=\"\",\"\",VLOOKUP(E4517,Insumos!AD:AE,2,FALSE))","v":""},null,{"$f":"IF(G4517=\"\",\"\",VLOOKUP(G4517,Insumos!G:H,2,FALSE))","v":""}]
[null,null,null,null,null,{"$f":"IF(E4518=\"\",\"\",VLOOKUP(E4518,Insumos!AD:AE,2,FALSE))","v":""},null,{"$f":"IF(G4518=\"\",\"\",VLOOKUP(G4518,Insumos!G:H,2,FALSE))","v":""}]
[null,null,null,null,null,{"$f":"IF(E4519=\"\",\"\",VLOOKUP(E4519,Insumos!AD:AE,2,FALSE))","v":""},null,{"$f":"IF(G4519=\"\",\"\",VLOOKUP(G4519,Insumos!G:H,2,FALSE))","v":""}]
[null,null,null,null,null,{"$f":"IF(E4520=\"\",\"\",VLOOKUP(E4520,Insumos!AD:AE,2,FALSE))","v":""},null,{"$f":"IF(G4520=\"\",\"\",VLOOKUP(G4520,Insumos!G:H,2,FALSE))","v":""}]
[null,null,null,null,null,{"$f":"IF(E4521=\"\",\"\",VLOOKUP(E4521,Insumos!AD:AE,2,FALSE))","v":""},null,{"$f":"IF(G4521=\"\",\"\",VLOOKUP(G4521,Insumos!G:H,2,FALSE))","v":""}]
[null,null,null,null,null,{"$f":"IF(E4522=\"\",\"\",VLOOKUP(E4522,Insumos!AD:AE,2,FALSE))","v":""},null,{"$f":"IF(G4522=\"\",\"\",VLOOKUP(G4522,Insumos!G:H,2,FALSE))","v":""}]
[null,null,null,null,null,{"$f":"IF(E4523=\"\",\"\",VLOOKUP(E4523,Insumos!AD:AE,2,FALSE))","v":""},null,{"$f":"IF(G4523=\"\",\"\",VLOOKUP(G4523,Insumos!G:H,2,FALSE))","v":""}]
[null,null,null,null,null,{"$f":"IF(E4524=\"\",\"\",VLOOKUP(E4524,Insumos!AD:AE,2,FALSE))","v":""},null,{"$f":"IF(G4524=\"\",\"\",VLOOKUP(G4524,Insumos!G:H,2,FALSE))","v":""}]
[null,null,null,null,null,{"$f":"IF(E4525=\"\",\"\",VLOOKUP(E4525,Insumos!AD:AE,2,FALSE))","v":""},null,{"$f":"IF(G4525=\"\",\"\",VLOOKUP(G4525,Insumos!G:H,2,FALSE))","v":""}]
[null,null,null,null,null,{"$f":"IF(E4526=\"\",\"\",VLOOKUP(E4526,Insumos!AD:AE,2,FALSE))","v":""},null,{"$f":"IF(G4526=\"\",\"\",VLOOKUP(G4526,Insumos!G:H,2,FALSE))","v":""}]
[null,null,null,null,null,{"$f":"IF(E4527=\"\",\"\",VLOOKUP(E4527,Insumos!AD:AE,2,FALSE))","v":""},null,{"$f":"IF(G4527=\"\",\"\",VLOOKUP(G4527,Insumos!G:H,2,FALSE))","v":""}]
[null,null,null,null,null,{"$f":"IF(E4528=\"\",\"\",VLOOKUP(E4528,Insumos!AD:AE,2,FALSE))","v":""},null,{"$f":"IF(G4528=\"\",\"\",VLOOKUP(G4528,Insumos!G:H,2,FALSE))","v":""}]
[null,null,null,null,null,{"$f":"IF(E4529=\"\",\"\",VLOOKUP(E4529,Insumos!AD:AE,2,FALSE))","v":""},null,{"$f":"IF(G4529=\"\",\"\",VLOOKUP(G4529,Insumos!G:H,2,FALSE))","v":""}]
[null,null,null,null,null,{"$f":"IF(E4530=\"\",\"\",VLOOKUP(E4530,Insumos!AD:AE,2,FALSE))","v":""},null,{"$f":"IF(G4530=\"\",\"\",VLOOKUP(G4530,Insumos!G:H,2,FALSE))","v":""}]
[null,null,null,null,null,{"$f":"IF(E4531=\"\",\"\",VLOOKUP(E4531,Insumos!AD:AE,2,FALSE))","v":""},null,{"$f":"IF(G4531=\"\",\"\",VLOOKUP(G4531,Insumos!G:H,2,FALSE))","v":""}]
[null,null,null,null,null,{"$f":"IF(E4532=\"\",\"\",VLOOKUP(E4532,Insumos!AD:AE,2,FALSE))","v":""},null,{"$f":"IF(G4532=\"\",\"\",VLOOKUP(G4532,Insumos!G:H,2,FALSE))","v":""}]
[null,null,null,null,null,{"$f":"IF(E4533=\"\",\"\",VLOOKUP(E4533,Insumos!AD:AE,2,FALSE))","v":""},null,{"$f":"IF(G4533=\"\",\"\",VLOOKUP(G4533,Insumos!G:H,2,FALSE))","v":""}]
[null,null,null,null,null,{"$f":"IF(E4534=\"\",\"\",VLOOKUP(E4534,Insumos!AD:AE,2,FALSE))","v":""},null,{"$f":"IF(G4534=\"\",\"\",VLOOKUP(G4534,Insumos!G:H,2,FALSE))","v":""}]
[null,null,null,null,null,{"$f":"IF(E4535=\"\",\"\",VLOOKUP(E4535,Insumos!AD:AE,2,FALSE))","v":""},null,{"$f":"IF(G4535=\"\",\"\",VLOOKUP(G4535,Insumos!G:H,2,FALSE))","v":""}]
[null,null,null,null,null,{"$f":"IF(E4536=\"\",\"\",VLOOKUP(E4536,Insumos!AD:AE,2,FALSE))","v":""},null,{"$f":"IF(G4536=\"\",\"\",VLOOKUP(G4536,Insumos!G:H,2,FALSE))","v":""}]
[null,null,null,null,null,{"$f":"IF(E4537=\"\",\"\",VLOOKUP(E4537,Insumos!AD:AE,2,FALSE))","v":""},null,{"$f":"IF(G4537=\"\",\"\",VLOOKUP(G4537,Insumos!G:H,2,FALSE))","v":""}]
[null,null,null,null,null,{"$f":"IF(E4538=\"\",\"\",VLOOKUP(E4538,Insumos!AD:AE,2,FALSE))","v":""},null,{"$f":"IF(G4538=\"\",\"\",VLOOKUP(G4538,Insumos!G:H,2,FALSE))","v":""}]
[null,null,null,null,null,{"$f":"IF(E4539=\"\",\"\",VLOOKUP(E4539,Insumos!AD:AE,2,FALSE))","v":""},null,{"$f":"IF(G4539=\"\",\"\",VLOOKUP(G4539,Insumos!G:H,2,FALSE))","v":""}]
[null,null,null,null,null,{"$f":"IF(E4540=\"\",\"\",VLOOKUP(E4540,Insumos!AD:AE,2,FALSE))","v":""},null,{"$f":"IF(G4540=\"\",\"\",VLOOKUP(G4540,Insumos!G:H,2,FALSE))","v":""}]
[null,null,null,null,null,{"$f":"IF(E4541=\"\",\"\",VLOOKUP(E4541,Insumos!AD:AE,2,FALSE))","v":""},null,{"$f":"IF(G4541=\"\",\"\",VLOOKUP(G4541,Insumos!G:H,2,FALSE))","v":""}]
[null,null,null,null,null,{"$f":"IF(E4542=\"\",\"\",VLOOKUP(E4542,Insumos!AD:AE,2,FALSE))","v":""},null,{"$f":"IF(G4542=\"\",\"\",VLOOKUP(G4542,Insumos!G:H,2,FALSE))","v":""}]
[null,null,null,null,null,{"$f":"IF(E4543=\"\",\"\",VLOOKUP(E4543,Insumos!AD:AE,2,FALSE))","v":""},null,{"$f":"IF(G4543=\"\",\"\",VLOOKUP(G4543,Insumos!G:H,2,FALSE))","v":""}]
[null,null,null,null,null,{"$f":"IF(E4544=\"\",\"\",VLOOKUP(E4544,Insumos!AD:AE,2,FALSE))","v":""},null,{"$f":"IF(G4544=\"\",\"\",VLOOKUP(G4544,Insumos!G:H,2,FALSE))","v":""}]
[null,null,null,null,null,{"$f":"IF(E4545=\"\",\"\",VLOOKUP(E4545,Insumos!AD:AE,2,FALSE))","v":""},null,{"$f":"IF(G4545=\"\",\"\",VLOOKUP(G4545,Insumos!G:H,2,FALSE))","v":""}]
[null,null,null,null,null,{"$f":"IF(E4546=\"\",\"\",VLOOKUP(E4546,Insumos!AD:AE,2,FALSE))","v":""},null,{"$f":"IF(G4546=\"\",\"\",VLOOKUP(G4546,Insumos!G:H,2,FALSE))","v":""}]
[null,null,null,null,null,{"$f":"IF(E4547=\"\",\"\",VLOOKUP(E4547,Insumos!AD:AE,2,FALSE))","v":""},null,{"$f":"IF(G4547=\"\",\"\",VLOOKUP(G4547,Insumos!G:H,2,FALSE))","v":""}]
[null,null,null,null,null,{"$f":"IF(E4548=\"\",\"\",VLOOKUP(E4548,Insumos!AD:AE,2,FALSE))","v":""},null,{"$f":"IF(G4548=\"\",\"\",VLOOKUP(G4548,Insumos!G:H,2,FALSE))","v":""}]
[null,null,null,null,null,{"$f":"IF(E4549=\"\",\"\",VLOOKUP(E4549,Insumos!AD:AE,2,FALSE))","v":""},null,{"$f":"IF(G4549=\"\",\"\",VLOOKUP(G4549,Insumos!G:H,2,FALSE))","v":""}]
[null,null,null,null,null,{"$f":"IF(E4550=\"\",\"\",VLOOKUP(E4550,Insumos!AD:AE,2,FALSE))","v":""},null,{"$f":"IF(G4550=\"\",\"\",VLOOKUP(G4550,Insumos!G:H,2,FALSE))","v":""}]
[null,null,null,null,null,{"$f":"IF(E4551=\"\",\"\",VLOOKUP(E4551,Insumos!AD:AE,2,FALSE))","v":""},null,{"$f":"IF(G4551=\"\",\"\",VLOOKUP(G4551,Insumos!G:H,2,FALSE))","v":""}]
[null,null,null,null,null,{"$f":"IF(E4552=\"\",\"\",VLOOKUP(E4552,Insumos!AD:AE,2,FALSE))","v":""},null,{"$f":"IF(G4552=\"\",\"\",VLOOKUP(G4552,Insumos!G:H,2,FALSE))","v":""}]
[null,null,null,null,null,{"$f":"IF(E4553=\"\",\"\",VLOOKUP(E4553,Insumos!AD:AE,2,FALSE))","v":""},null,{"$f":"IF(G4553=\"\",\"\",VLOOKUP(G4553,Insumos!G:H,2,FALSE))","v":""}]
[null,null,null,null,null,{"$f":"IF(E4554=\"\",\"\",VLOOKUP(E4554,Insumos!AD:AE,2,FALSE))","v":""},null,{"$f":"IF(G4554=\"\",\"\",VLOOKUP(G4554,Insumos!G:H,2,FALSE))","v":""}]
[null,null,null,null,null,{"$f":"IF(E4555=\"\",\"\",VLOOKUP(E4555,Insumos!AD:AE,2,FALSE))","v":""},null,{"$f":"IF(G4555=\"\",\"\",VLOOKUP(G4555,Insumos!G:H,2,FALSE))","v":""}]
[null,null,null,null,null,{"$f":"IF(E4556=\"\",\"\",VLOOKUP(E4556,Insumos!AD:AE,2,FALSE))","v":""},null,{"$f":"IF(G4556=\"\",\"\",VLOOKUP(G4556,Insumos!G:H,2,FALSE))","v":""}]
[null,null,null,null,null,{"$f":"IF(E4557=\"\",\"\",VLOOKUP(E4557,Insumos!AD:AE,2,FALSE))","v":""},null,{"$f":"IF(G4557=\"\",\"\",VLOOKUP(G4557,Insumos!G:H,2,FALSE))","v":""}]
[null,null,null,null,null,{"$f":"IF(E4558=\"\",\"\",VLOOKUP(E4558,Insumos!AD:AE,2,FALSE))","v":""},null,{"$f":"IF(G4558=\"\",\"\",VLOOKUP(G4558,Insumos!G:H,2,FALSE))","v":""}]
[null,null,null,null,null,{"$f":"IF(E4559=\"\",\"\",VLOOKUP(E4559,Insumos!AD:AE,2,FALSE))","v":""},null,{"$f":"IF(G4559=\"\",\"\",VLOOKUP(G4559,Insumos!G:H,2,FALSE))","v":""}]
[null,null,null,null,null,{"$f":"IF(E4560=\"\",\"\",VLOOKUP(E4560,Insumos!AD:AE,2,FALSE))","v":""},null,{"$f":"IF(G4560=\"\",\"\",VLOOKUP(G4560,Insumos!G:H,2,FALSE))","v":""}]
[null,null,null,null,null,{"$f":"IF(E4561=\"\",\"\",VLOOKUP(E4561,Insumos!AD:AE,2,FALSE))","v":""},null,{"$f":"IF(G4561=\"\",\"\",VLOOKUP(G4561,Insumos!G:H,2,FALSE))","v":""}]
[null,null,null,null,null,{"$f":"IF(E4562=\"\",\"\",VLOOKUP(E4562,Insumos!AD:AE,2,FALSE))","v":""},null,{"$f":"IF(G4562=\"\",\"\",VLOOKUP(G4562,Insumos!G:H,2,FALSE))","v":""}]
[null,null,null,null,null,{"$f":"IF(E4563=\"\",\"\",VLOOKUP(E4563,Insumos!AD:AE,2,FALSE))","v":""},null,{"$f":"IF(G4563=\"\",\"\",VLOOKUP(G4563,Insumos!G:H,2,FALSE))","v":""}]
[null,null,null,null,null,{"$f":"IF(E4564=\"\",\"\",VLOOKUP(E4564,Insumos!AD:AE,2,FALSE))","v":""},null,{"$f":"IF(G4564=\"\",\"\",VLOOKUP(G4564,Insumos!G:H,2,FALSE))","v":""}]
[null,null,null,null,null,{"$f":"IF(E4565=\"\",\"\",VLOOKUP(E4565,Insumos!AD:AE,2,FALSE))","v":""},null,{"$f":"IF(G4565=\"\",\"\",VLOOKUP(G4565,Insumos!G:H,2,FALSE))","v":""}]
[null,null,null,null,null,{"$f":"IF(E4566=\"\",\"\",VLOOKUP(E4566,Insumos!AD:AE,2,FALSE))","v":""},null,{"$f":"IF(G4566=\"\",\"\",VLOOKUP(G4566,Insumos!G:H,2,FALSE))","v":""}]
[null,null,null,null,null,{"$f":"IF(E4567=\"\",\"\",VLOOKUP(E4567,Insumos!AD:AE,2,FALSE))","v":""},null,{"$f":"IF(G4567=\"\",\"\",VLOOKUP(G4567,Insumos!G:H,2,FALSE))","v":""}]
[null,null,null,null,null,{"$f":"IF(E4568=\"\",\"\",VLOOKUP(E4568,Insumos!AD:AE,2,FALSE))","v":""},null,{"$f":"IF(G4568=\"\",\"\",VLOOKUP(G4568,Insumos!G:H,2,FALSE))","v":""}]
[null,null,null,null,null,{"$f":"IF(E4569=\"\",\"\",VLOOKUP(E4569,Insumos!AD:AE,2,FALSE))","v":""},null,{"$f":"IF(G4569=\"\",\"\",VLOOKUP(G4569,Insumos!G:H,2,FALSE))","v":""}]
[null,null,null,null,null,{"$f":"IF(E4570=\"\",\"\",VLOOKUP(E4570,Insumos!AD:AE,2,FALSE))","v":""},null,{"$f":"IF(G4570=\"\",\"\",VLOOKUP(G4570,Insumos!G:H,2,FALSE))","v":""}]
[null,null,null,null,null,{"$f":"IF(E4571=\"\",\"\",VLOOKUP(E4571,Insumos!AD:AE,2,FALSE))","v":""},null,{"$f":"IF(G4571=\"\",\"\",VLOOKUP(G4571,Insumos!G:H,2,FALSE))","v":""}]
[null,null,null,null,null,{"$f":"IF(E4572=\"\",\"\",VLOOKUP(E4572,Insumos!AD:AE,2,FALSE))","v":""},null,{"$f":"IF(G4572=\"\",\"\",VLOOKUP(G4572,Insumos!G:H,2,FALSE))","v":""}]
[null,null,null,null,null,{"$f":"IF(E4573=\"\",\"\",VLOOKUP(E4573,Insumos!AD:AE,2,FALSE))","v":""},null,{"$f":"IF(G4573=\"\",\"\",VLOOKUP(G4573,Insumos!G:H,2,FALSE))","v":""}]
[null,null,null,null,null,{"$f":"IF(E4574=\"\",\"\",VLOOKUP(E4574,Insumos!AD:AE,2,FALSE))","v":""},null,{"$f":"IF(G4574=\"\",\"\",VLOOKUP(G4574,Insumos!G:H,2,FALSE))","v":""}]
[null,null,null,null,null,{"$f":"IF(E4575=\"\",\"\",VLOOKUP(E4575,Insumos!AD:AE,2,FALSE))","v":""},null,{"$f":"IF(G4575=\"\",\"\",VLOOKUP(G4575,Insumos!G:H,2,FALSE))","v":""}]
[null,null,null,null,null,{"$f":"IF(E4576=\"\",\"\",VLOOKUP(E4576,Insumos!AD:AE,2,FALSE))","v":""},null,{"$f":"IF(G4576=\"\",\"\",VLOOKUP(G4576,Insumos!G:H,2,FALSE))","v":""}]
[null,null,null,null,null,{"$f":"IF(E4577=\"\",\"\",VLOOKUP(E4577,Insumos!AD:AE,2,FALSE))","v":""},null,{"$f":"IF(G4577=\"\",\"\",VLOOKUP(G4577,Insumos!G:H,2,FALSE))","v":""}]
[null,null,null,null,null,{"$f":"IF(E4578=\"\",\"\",VLOOKUP(E4578,Insumos!AD:AE,2,FALSE))","v":""},null,{"$f":"IF(G4578=\"\",\"\",VLOOKUP(G4578,Insumos!G:H,2,FALSE))","v":""}]
[null,null,null,null,null,{"$f":"IF(E4579=\"\",\"\",VLOOKUP(E4579,Insumos!AD:AE,2,FALSE))","v":""},null,{"$f":"IF(G4579=\"\",\"\",VLOOKUP(G4579,Insumos!G:H,2,FALSE))","v":""}]
[null,null,null,null,null,{"$f":"IF(E4580=\"\",\"\",VLOOKUP(E4580,Insumos!AD:AE,2,FALSE))","v":""},null,{"$f":"IF(G4580=\"\",\"\",VLOOKUP(G4580,Insumos!G:H,2,FALSE))","v":""}]
[null,null,null,null,null,{"$f":"IF(E4581=\"\",\"\",VLOOKUP(E4581,Insumos!AD:AE,2,FALSE))","v":""},null,{"$f":"IF(G4581=\"\",\"\",VLOOKUP(G4581,Insumos!G:H,2,FALSE))","v":""}]
[null,null,null,null,null,{"$f":"IF(E4582=\"\",\"\",VLOOKUP(E4582,Insumos!AD:AE,2,FALSE))","v":""},null,{"$f":"IF(G4582=\"\",\"\",VLOOKUP(G4582,Insumos!G:H,2,FALSE))","v":""}]
[null,null,null,null,null,{"$f":"IF(E4583=\"\",\"\",VLOOKUP(E4583,Insumos!AD:AE,2,FALSE))","v":""},null,{"$f":"IF(G4583=\"\",\"\",VLOOKUP(G4583,Insumos!G:H,2,FALSE))","v":""}]
[null,null,null,null,null,{"$f":"IF(E4584=\"\",\"\",VLOOKUP(E4584,Insumos!AD:AE,2,FALSE))","v":""},null,{"$f":"IF(G4584=\"\",\"\",VLOOKUP(G4584,Insumos!G:H,2,FALSE))","v":""}]
[null,null,null,null,null,{"$f":"IF(E4585=\"\",\"\",VLOOKUP(E4585,Insumos!AD:AE,2,FALSE))","v":""},null,{"$f":"IF(G4585=\"\",\"\",VLOOKUP(G4585,Insumos!G:H,2,FALSE))","v":""}]
[null,null,null,null,null,{"$f":"IF(E4586=\"\",\"\",VLOOKUP(E4586,Insumos!AD:AE,2,FALSE))","v":""},null,{"$f":"IF(G4586=\"\",\"\",VLOOKUP(G4586,Insumos!G:H,2,FALSE))","v":""}]
[null,null,null,null,null,{"$f":"IF(E4587=\"\",\"\",VLOOKUP(E4587,Insumos!AD:AE,2,FALSE))","v":""},null,{"$f":"IF(G4587=\"\",\"\",VLOOKUP(G4587,Insumos!G:H,2,FALSE))","v":""}]
[null,null,null,null,null,{"$f":"IF(E4588=\"\",\"\",VLOOKUP(E4588,Insumos!AD:AE,2,FALSE))","v":""},null,{"$f":"IF(G4588=\"\",\"\",VLOOKUP(G4588,Insumos!G:H,2,FALSE))","v":""}]
[null,null,null,null,null,{"$f":"IF(E4589=\"\",\"\",VLOOKUP(E4589,Insumos!AD:AE,2,FALSE))","v":""},null,{"$f":"IF(G4589=\"\",\"\",VLOOKUP(G4589,Insumos!G:H,2,FALSE))","v":""}]
[null,null,null,null,null,{"$f":"IF(E4590=\"\",\"\",VLOOKUP(E4590,Insumos!AD:AE,2,FALSE))","v":""},null,{"$f":"IF(G4590=\"\",\"\",VLOOKUP(G4590,Insumos!G:H,2,FALSE))","v":""}]
[null,null,null,null,null,{"$f":"IF(E4591=\"\",\"\",VLOOKUP(E4591,Insumos!AD:AE,2,FALSE))","v":""},null,{"$f":"IF(G4591=\"\",\"\",VLOOKUP(G4591,Insumos!G:H,2,FALSE))","v":""}]
[null,null,null,null,null,{"$f":"IF(E4592=\"\",\"\",VLOOKUP(E4592,Insumos!AD:AE,2,FALSE))","v":""},null,{"$f":"IF(G4592=\"\",\"\",VLOOKUP(G4592,Insumos!G:H,2,FALSE))","v":""}]
[null,null,null,null,null,{"$f":"IF(E4593=\"\",\"\",VLOOKUP(E4593,Insumos!AD:AE,2,FALSE))","v":""},null,{"$f":"IF(G4593=\"\",\"\",VLOOKUP(G4593,Insumos!G:H,2,FALSE))","v":""}]
[null,null,null,null,null,{"$f":"IF(E4594=\"\",\"\",VLOOKUP(E4594,Insumos!AD:AE,2,FALSE))","v":""},null,{"$f":"IF(G4594=\"\",\"\",VLOOKUP(G4594,Insumos!G:H,2,FALSE))","v":""}]
[null,null,null,null,null,{"$f":"IF(E4595=\"\",\"\",VLOOKUP(E4595,Insumos!AD:AE,2,FALSE))","v":""},null,{"$f":"IF(G4595=\"\",\"\",VLOOKUP(G4595,Insumos!G:H,2,FALSE))","v":""}]
[null,null,null,null,null,{"$f":"IF(E4596=\"\",\"\",VLOOKUP(E4596,Insumos!AD:AE,2,FALSE))","v":""},null,{"$f":"IF(G4596=\"\",\"\",VLOOKUP(G4596,Insumos!G:H,2,FALSE))","v":""}]
[null,null,null,null,null,{"$f":"IF(E4597=\"\",\"\",VLOOKUP(E4597,Insumos!AD:AE,2,FALSE))","v":""},null,{"$f":"IF(G4597=\"\",\"\",VLOOKUP(G4597,Insumos!G:H,2,FALSE))","v":""}]
[null,null,null,null,null,{"$f":"IF(E4598=\"\",\"\",VLOOKUP(E4598,Insumos!AD:AE,2,FALSE))","v":""},null,{"$f":"IF(G4598=\"\",\"\",VLOOKUP(G4598,Insumos!G:H,2,FALSE))","v":""}]
[null,null,null,null,null,{"$f":"IF(E4599=\"\",\"\",VLOOKUP(E4599,Insumos!AD:AE,2,FALSE))","v":""},null,{"$f":"IF(G4599=\"\",\"\",VLOOKUP(G4599,Insumos!G:H,2,FALSE))","v":""}]
[null,null,null,null,null,{"$f":"IF(E4600=\"\",\"\",VLOOKUP(E4600,Insumos!AD:AE,2,FALSE))","v":""},null,{"$f":"IF(G4600=\"\",\"\",VLOOKUP(G4600,Insumos!G:H,2,FALSE))","v":""}]
[null,null,null,null,null,{"$f":"IF(E4601=\"\",\"\",VLOOKUP(E4601,Insumos!AD:AE,2,FALSE))","v":""},null,{"$f":"IF(G4601=\"\",\"\",VLOOKUP(G4601,Insumos!G:H,2,FALSE))","v":""}]
[null,null,null,null,null,{"$f":"IF(E4602=\"\",\"\",VLOOKUP(E4602,Insumos!AD:AE,2,FALSE))","v":""},null,{"$f":"IF(G4602=\"\",\"\",VLOOKUP(G4602,Insumos!G:H,2,FALSE))","v":""}]
[null,null,null,null,null,{"$f":"IF(E4603=\"\",\"\",VLOOKUP(E4603,Insumos!AD:AE,2,FALSE))","v":""},null,{"$f":"IF(G4603=\"\",\"\",VLOOKUP(G4603,Insumos!G:H,2,FALSE))","v":""}]
[null,null,null,null,null,{"$f":"IF(E4604=\"\",\"\",VLOOKUP(E4604,Insumos!AD:AE,2,FALSE))","v":""},null,{"$f":"IF(G4604=\"\",\"\",VLOOKUP(G4604,Insumos!G:H,2,FALSE))","v":""}]
[null,null,null,null,null,{"$f":"IF(E4605=\"\",\"\",VLOOKUP(E4605,Insumos!AD:AE,2,FALSE))","v":""},null,{"$f":"IF(G4605=\"\",\"\",VLOOKUP(G4605,Insumos!G:H,2,FALSE))","v":""}]
[null,null,null,null,null,{"$f":"IF(E4606=\"\",\"\",VLOOKUP(E4606,Insumos!AD:AE,2,FALSE))","v":""},null,{"$f":"IF(G4606=\"\",\"\",VLOOKUP(G4606,Insumos!G:H,2,FALSE))","v":""}]
[null,null,null,null,null,{"$f":"IF(E4607=\"\",\"\",VLOOKUP(E4607,Insumos!AD:AE,2,FALSE))","v":""},null,{"$f":"IF(G4607=\"\",\"\",VLOOKUP(G4607,Insumos!G:H,2,FALSE))","v":""}]
[null,null,null,null,null,{"$f":"IF(E4608=\"\",\"\",VLOOKUP(E4608,Insumos!AD:AE,2,FALSE))","v":""},null,{"$f":"IF(G4608=\"\",\"\",VLOOKUP(G4608,Insumos!G:H,2,FALSE))","v":""}]
[null,null,null,null,null,{"$f":"IF(E4609=\"\",\"\",VLOOKUP(E4609,Insumos!AD:AE,2,FALSE))","v":""},null,{"$f":"IF(G4609=\"\",\"\",VLOOKUP(G4609,Insumos!G:H,2,FALSE))","v":""}]
[null,null,null,null,null,{"$f":"IF(E4610=\"\",\"\",VLOOKUP(E4610,Insumos!AD:AE,2,FALSE))","v":""},null,{"$f":"IF(G4610=\"\",\"\",VLOOKUP(G4610,Insumos!G:H,2,FALSE))","v":""}]
[null,null,null,null,null,{"$f":"IF(E4611=\"\",\"\",VLOOKUP(E4611,Insumos!AD:AE,2,FALSE))","v":""},null,{"$f":"IF(G4611=\"\",\"\",VLOOKUP(G4611,Insumos!G:H,2,FALSE))","v":""}]
[null,null,null,null,null,{"$f":"IF(E4612=\"\",\"\",VLOOKUP(E4612,Insumos!AD:AE,2,FALSE))","v":""},null,{"$f":"IF(G4612=\"\",\"\",VLOOKUP(G4612,Insumos!G:H,2,FALSE))","v":""}]
[null,null,null,null,null,{"$f":"IF(E4613=\"\",\"\",VLOOKUP(E4613,Insumos!AD:AE,2,FALSE))","v":""},null,{"$f":"IF(G4613=\"\",\"\",VLOOKUP(G4613,Insumos!G:H,2,FALSE))","v":""}]
[null,null,null,null,null,{"$f":"IF(E4614=\"\",\"\",VLOOKUP(E4614,Insumos!AD:AE,2,FALSE))","v":""},null,{"$f":"IF(G4614=\"\",\"\",VLOOKUP(G4614,Insumos!G:H,2,FALSE))","v":""}]
[null,null,null,null,null,{"$f":"IF(E4615=\"\",\"\",VLOOKUP(E4615,Insumos!AD:AE,2,FALSE))","v":""},null,{"$f":"IF(G4615=\"\",\"\",VLOOKUP(G4615,Insumos!G:H,2,FALSE))","v":""}]
[null,null,null,null,null,{"$f":"IF(E4616=\"\",\"\",VLOOKUP(E4616,Insumos!AD:AE,2,FALSE))","v":""},null,{"$f":"IF(G4616=\"\",\"\",VLOOKUP(G4616,Insumos!G:H,2,FALSE))","v":""}]
[null,null,null,null,null,{"$f":"IF(E4617=\"\",\"\",VLOOKUP(E4617,Insumos!AD:AE,2,FALSE))","v":""},null,{"$f":"IF(G4617=\"\",\"\",VLOOKUP(G4617,Insumos!G:H,2,FALSE))","v":""}]
[null,null,null,null,null,{"$f":"IF(E4618=\"\",\"\",VLOOKUP(E4618,Insumos!AD:AE,2,FALSE))","v":""},null,{"$f":"IF(G4618=\"\",\"\",VLOOKUP(G4618,Insumos!G:H,2,FALSE))","v":""}]
[null,null,null,null,null,{"$f":"IF(E4619=\"\",\"\",VLOOKUP(E4619,Insumos!AD:AE,2,FALSE))","v":""},null,{"$f":"IF(G4619=\"\",\"\",VLOOKUP(G4619,Insumos!G:H,2,FALSE))","v":""}]
[null,null,null,null,null,{"$f":"IF(E4620=\"\",\"\",VLOOKUP(E4620,Insumos!AD:AE,2,FALSE))","v":""},null,{"$f":"IF(G4620=\"\",\"\",VLOOKUP(G4620,Insumos!G:H,2,FALSE))","v":""}]
[null,null,null,null,null,{"$f":"IF(E4621=\"\",\"\",VLOOKUP(E4621,Insumos!AD:AE,2,FALSE))","v":""},null,{"$f":"IF(G4621=\"\",\"\",VLOOKUP(G4621,Insumos!G:H,2,FALSE))","v":""}]
[null,null,null,null,null,{"$f":"IF(E4622=\"\",\"\",VLOOKUP(E4622,Insumos!AD:AE,2,FALSE))","v":""},null,{"$f":"IF(G4622=\"\",\"\",VLOOKUP(G4622,Insumos!G:H,2,FALSE))","v":""}]
[null,null,null,null,null,{"$f":"IF(E4623=\"\",\"\",VLOOKUP(E4623,Insumos!AD:AE,2,FALSE))","v":""},null,{"$f":"IF(G4623=\"\",\"\",VLOOKUP(G4623,Insumos!G:H,2,FALSE))","v":""}]
[null,null,null,null,null,{"$f":"IF(E4624=\"\",\"\",VLOOKUP(E4624,Insumos!AD:AE,2,FALSE))","v":""},null,{"$f":"IF(G4624=\"\",\"\",VLOOKUP(G4624,Insumos!G:H,2,FALSE))","v":""}]
[null,null,null,null,null,{"$f":"IF(E4625=\"\",\"\",VLOOKUP(E4625,Insumos!AD:AE,2,FALSE))","v":""},null,{"$f":"IF(G4625=\"\",\"\",VLOOKUP(G4625,Insumos!G:H,2,FALSE))","v":""}]
[null,null,null,null,null,{"$f":"IF(E4626=\"\",\"\",VLOOKUP(E4626,Insumos!AD:AE,2,FALSE))","v":""},null,{"$f":"IF(G4626=\"\",\"\",VLOOKUP(G4626,Insumos!G:H,2,FALSE))","v":""}]
[null,null,null,null,null,{"$f":"IF(E4627=\"\",\"\",VLOOKUP(E4627,Insumos!AD:AE,2,FALSE))","v":""},null,{"$f":"IF(G4627=\"\",\"\",VLOOKUP(G4627,Insumos!G:H,2,FALSE))","v":""}]
[null,null,null,null,null,{"$f":"IF(E4628=\"\",\"\",VLOOKUP(E4628,Insumos!AD:AE,2,FALSE))","v":""},null,{"$f":"IF(G4628=\"\",\"\",VLOOKUP(G4628,Insumos!G:H,2,FALSE))","v":""}]
[null,null,null,null,null,{"$f":"IF(E4629=\"\",\"\",VLOOKUP(E4629,Insumos!AD:AE,2,FALSE))","v":""},null,{"$f":"IF(G4629=\"\",\"\",VLOOKUP(G4629,Insumos!G:H,2,FALSE))","v":""}]
[null,null,null,null,null,{"$f":"IF(E4630=\"\",\"\",VLOOKUP(E4630,Insumos!AD:AE,2,FALSE))","v":""},null,{"$f":"IF(G4630=\"\",\"\",VLOOKUP(G4630,Insumos!G:H,2,FALSE))","v":""}]
[null,null,null,null,null,{"$f":"IF(E4631=\"\",\"\",VLOOKUP(E4631,Insumos!AD:AE,2,FALSE))","v":""},null,{"$f":"IF(G4631=\"\",\"\",VLOOKUP(G4631,Insumos!G:H,2,FALSE))","v":""}]
[null,null,null,null,null,{"$f":"IF(E4632=\"\",\"\",VLOOKUP(E4632,Insumos!AD:AE,2,FALSE))","v":""},null,{"$f":"IF(G4632=\"\",\"\",VLOOKUP(G4632,Insumos!G:H,2,FALSE))","v":""}]
[null,null,null,null,null,{"$f":"IF(E4633=\"\",\"\",VLOOKUP(E4633,Insumos!AD:AE,2,FALSE))","v":""},null,{"$f":"IF(G4633=\"\",\"\",VLOOKUP(G4633,Insumos!G:H,2,FALSE))","v":""}]
[null,null,null,null,null,{"$f":"IF(E4634=\"\",\"\",VLOOKUP(E4634,Insumos!AD:AE,2,FALSE))","v":""},null,{"$f":"IF(G4634=\"\",\"\",VLOOKUP(G4634,Insumos!G:H,2,FALSE))","v":""}]
[null,null,null,null,null,{"$f":"IF(E4635=\"\",\"\",VLOOKUP(E4635,Insumos!AD:AE,2,FALSE))","v":""},null,{"$f":"IF(G4635=\"\",\"\",VLOOKUP(G4635,Insumos!G:H,2,FALSE))","v":""}]
[null,null,null,null,null,{"$f":"IF(E4636=\"\",\"\",VLOOKUP(E4636,Insumos!AD:AE,2,FALSE))","v":""},null,{"$f":"IF(G4636=\"\",\"\",VLOOKUP(G4636,Insumos!G:H,2,FALSE))","v":""}]
[null,null,null,null,null,{"$f":"IF(E4637=\"\",\"\",VLOOKUP(E4637,Insumos!AD:AE,2,FALSE))","v":""},null,{"$f":"IF(G4637=\"\",\"\",VLOOKUP(G4637,Insumos!G:H,2,FALSE))","v":""}]
[null,null,null,null,null,{"$f":"IF(E4638=\"\",\"\",VLOOKUP(E4638,Insumos!AD:AE,2,FALSE))","v":""},null,{"$f":"IF(G4638=\"\",\"\",VLOOKUP(G4638,Insumos!G:H,2,FALSE))","v":""}]
[null,null,null,null,null,{"$f":"IF(E4639=\"\",\"\",VLOOKUP(E4639,Insumos!AD:AE,2,FALSE))","v":""},null,{"$f":"IF(G4639=\"\",\"\",VLOOKUP(G4639,Insumos!G:H,2,FALSE))","v":""}]
[null,null,null,null,null,{"$f":"IF(E4640=\"\",\"\",VLOOKUP(E4640,Insumos!AD:AE,2,FALSE))","v":""},null,{"$f":"IF(G4640=\"\",\"\",VLOOKUP(G4640,Insumos!G:H,2,FALSE))","v":""}]
[null,null,null,null,null,{"$f":"IF(E4641=\"\",\"\",VLOOKUP(E4641,Insumos!AD:AE,2,FALSE))","v":""},null,{"$f":"IF(G4641=\"\",\"\",VLOOKUP(G4641,Insumos!G:H,2,FALSE))","v":""}]
[null,null,null,null,null,{"$f":"IF(E4642=\"\",\"\",VLOOKUP(E4642,Insumos!AD:AE,2,FALSE))","v":""},null,{"$f":"IF(G4642=\"\",\"\",VLOOKUP(G4642,Insumos!G:H,2,FALSE))","v":""}]
[null,null,null,null,null,{"$f":"IF(E4643=\"\",\"\",VLOOKUP(E4643,Insumos!AD:AE,2,FALSE))","v":""},null,{"$f":"IF(G4643=\"\",\"\",VLOOKUP(G4643,Insumos!G:H,2,FALSE))","v":""}]
[null,null,null,null,null,{"$f":"IF(E4644=\"\",\"\",VLOOKUP(E4644,Insumos!AD:AE,2,FALSE))","v":""},null,{"$f":"IF(G4644=\"\",\"\",VLOOKUP(G4644,Insumos!G:H,2,FALSE))","v":""}]
[null,null,null,null,null,{"$f":"IF(E4645=\"\",\"\",VLOOKUP(E4645,Insumos!AD:AE,2,FALSE))","v":""},null,{"$f":"IF(G4645=\"\",\"\",VLOOKUP(G4645,Insumos!G:H,2,FALSE))","v":""}]
[null,null,null,null,null,{"$f":"IF(E4646=\"\",\"\",VLOOKUP(E4646,Insumos!AD:AE,2,FALSE))","v":""},null,{"$f":"IF(G4646=\"\",\"\",VLOOKUP(G4646,Insumos!G:H,2,FALSE))","v":""}]
[null,null,null,null,null,{"$f":"IF(E4647=\"\",\"\",VLOOKUP(E4647,Insumos!AD:AE,2,FALSE))","v":""},null,{"$f":"IF(G4647=\"\",\"\",VLOOKUP(G4647,Insumos!G:H,2,FALSE))","v":""}]
[null,null,null,null,null,{"$f":"IF(E4648=\"\",\"\",VLOOKUP(E4648,Insumos!AD:AE,2,FALSE))","v":""},null,{"$f":"IF(G4648=\"\",\"\",VLOOKUP(G4648,Insumos!G:H,2,FALSE))","v":""}]
[null,null,null,null,null,{"$f":"IF(E4649=\"\",\"\",VLOOKUP(E4649,Insumos!AD:AE,2,FALSE))","v":""},null,{"$f":"IF(G4649=\"\",\"\",VLOOKUP(G4649,Insumos!G:H,2,FALSE))","v":""}]
[null,null,null,null,null,{"$f":"IF(E4650=\"\",\"\",VLOOKUP(E4650,Insumos!AD:AE,2,FALSE))","v":""},null,{"$f":"IF(G4650=\"\",\"\",VLOOKUP(G4650,Insumos!G:H,2,FALSE))","v":""}]
[null,null,null,null,null,{"$f":"IF(E4651=\"\",\"\",VLOOKUP(E4651,Insumos!AD:AE,2,FALSE))","v":""},null,{"$f":"IF(G4651=\"\",\"\",VLOOKUP(G4651,Insumos!G:H,2,FALSE))","v":""}]
[null,null,null,null,null,{"$f":"IF(E4652=\"\",\"\",VLOOKUP(E4652,Insumos!AD:AE,2,FALSE))","v":""},null,{"$f":"IF(G4652=\"\",\"\",VLOOKUP(G4652,Insumos!G:H,2,FALSE))","v":""}]
[null,null,null,null,null,{"$f":"IF(E4653=\"\",\"\",VLOOKUP(E4653,Insumos!AD:AE,2,FALSE))","v":""},null,{"$f":"IF(G4653=\"\",\"\",VLOOKUP(G4653,Insumos!G:H,2,FALSE))","v":""}]
[null,null,null,null,null,{"$f":"IF(E4654=\"\",\"\",VLOOKUP(E4654,Insumos!AD:AE,2,FALSE))","v":""},null,{"$f":"IF(G4654=\"\",\"\",VLOOKUP(G4654,Insumos!G:H,2,FALSE))","v":""}]
[null,null,null,null,null,{"$f":"IF(E4655=\"\",\"\",VLOOKUP(E4655,Insumos!AD:AE,2,FALSE))","v":""},null,{"$f":"IF(G4655=\"\",\"\",VLOOKUP(G4655,Insumos!G:H,2,FALSE))","v":""}]
[null,null,null,null,null,{"$f":"IF(E4656=\"\",\"\",VLOOKUP(E4656,Insumos!AD:AE,2,FALSE))","v":""},null,{"$f":"IF(G4656=\"\",\"\",VLOOKUP(G4656,Insumos!G:H,2,FALSE))","v":""}]
[null,null,null,null,null,{"$f":"IF(E4657=\"\",\"\",VLOOKUP(E4657,Insumos!AD:AE,2,FALSE))","v":""},null,{"$f":"IF(G4657=\"\",\"\",VLOOKUP(G4657,Insumos!G:H,2,FALSE))","v":""}]
[null,null,null,null,null,{"$f":"IF(E4658=\"\",\"\",VLOOKUP(E4658,Insumos!AD:AE,2,FALSE))","v":""},null,{"$f":"IF(G4658=\"\",\"\",VLOOKUP(G4658,Insumos!G:H,2,FALSE))","v":""}]
[null,null,null,null,null,{"$f":"IF(E4659=\"\",\"\",VLOOKUP(E4659,Insumos!AD:AE,2,FALSE))","v":""},null,{"$f":"IF(G4659=\"\",\"\",VLOOKUP(G4659,Insumos!G:H,2,FALSE))","v":""}]
[null,null,null,null,null,{"$f":"IF(E4660=\"\",\"\",VLOOKUP(E4660,Insumos!AD:AE,2,FALSE))","v":""},null,{"$f":"IF(G4660=\"\",\"\",VLOOKUP(G4660,Insumos!G:H,2,FALSE))","v":""}]
[null,null,null,null,null,{"$f":"IF(E4661=\"\",\"\",VLOOKUP(E4661,Insumos!AD:AE,2,FALSE))","v":""},null,{"$f":"IF(G4661=\"\",\"\",VLOOKUP(G4661,Insumos!G:H,2,FALSE))","v":""}]
[null,null,null,null,null,{"$f":"IF(E4662=\"\",\"\",VLOOKUP(E4662,Insumos!AD:AE,2,FALSE))","v":""},null,{"$f":"IF(G4662=\"\",\"\",VLOOKUP(G4662,Insumos!G:H,2,FALSE))","v":""}]
[null,null,null,null,null,{"$f":"IF(E4663=\"\",\"\",VLOOKUP(E4663,Insumos!AD:AE,2,FALSE))","v":""},null,{"$f":"IF(G4663=\"\",\"\",VLOOKUP(G4663,Insumos!G:H,2,FALSE))","v":""}]
[null,null,null,null,null,{"$f":"IF(E4664=\"\",\"\",VLOOKUP(E4664,Insumos!AD:AE,2,FALSE))","v":""},null,{"$f":"IF(G4664=\"\",\"\",VLOOKUP(G4664,Insumos!G:H,2,FALSE))","v":""}]
[null,null,null,null,null,{"$f":"IF(E4665=\"\",\"\",VLOOKUP(E4665,Insumos!AD:AE,2,FALSE))","v":""},null,{"$f":"IF(G4665=\"\",\"\",VLOOKUP(G4665,Insumos!G:H,2,FALSE))","v":""}]
[null,null,null,null,null,{"$f":"IF(E4666=\"\",\"\",VLOOKUP(E4666,Insumos!AD:AE,2,FALSE))","v":""},null,{"$f":"IF(G4666=\"\",\"\",VLOOKUP(G4666,Insumos!G:H,2,FALSE))","v":""}]
[null,null,null,null,null,{"$f":"IF(E4667=\"\",\"\",VLOOKUP(E4667,Insumos!AD:AE,2,FALSE))","v":""},null,{"$f":"IF(G4667=\"\",\"\",VLOOKUP(G4667,Insumos!G:H,2,FALSE))","v":""}]
[null,null,null,null,null,{"$f":"IF(E4668=\"\",\"\",VLOOKUP(E4668,Insumos!AD:AE,2,FALSE))","v":""},null,{"$f":"IF(G4668=\"\",\"\",VLOOKUP(G4668,Insumos!G:H,2,FALSE))","v":""}]
[null,null,null,null,null,{"$f":"IF(E4669=\"\",\"\",VLOOKUP(E4669,Insumos!AD:AE,2,FALSE))","v":""},null,{"$f":"IF(G4669=\"\",\"\",VLOOKUP(G4669,Insumos!G:H,2,FALSE))","v":""}]
[null,null,null,null,null,{"$f":"IF(E4670=\"\",\"\",VLOOKUP(E4670,Insumos!AD:AE,2,FALSE))","v":""},null,{"$f":"IF(G4670=\"\",\"\",VLOOKUP(G4670,Insumos!G:H,2,FALSE))","v":""}]
[null,null,null,null,null,{"$f":"IF(E4671=\"\",\"\",VLOOKUP(E4671,Insumos!AD:AE,2,FALSE))","v":""},null,{"$f":"IF(G4671=\"\",\"\",VLOOKUP(G4671,Insumos!G:H,2,FALSE))","v":""}]
[null,null,null,null,null,{"$f":"IF(E4672=\"\",\"\",VLOOKUP(E4672,Insumos!AD:AE,2,FALSE))","v":""},null,{"$f":"IF(G4672=\"\",\"\",VLOOKUP(G4672,Insumos!G:H,2,FALSE))","v":""}]
[null,null,null,null,null,{"$f":"IF(E4673=\"\",\"\",VLOOKUP(E4673,Insumos!AD:AE,2,FALSE))","v":""},null,{"$f":"IF(G4673=\"\",\"\",VLOOKUP(G4673,Insumos!G:H,2,FALSE))","v":""}]
[null,null,null,null,null,{"$f":"IF(E4674=\"\",\"\",VLOOKUP(E4674,Insumos!AD:AE,2,FALSE))","v":""},null,{"$f":"IF(G4674=\"\",\"\",VLOOKUP(G4674,Insumos!G:H,2,FALSE))","v":""}]
[null,null,null,null,null,{"$f":"IF(E4675=\"\",\"\",VLOOKUP(E4675,Insumos!AD:AE,2,FALSE))","v":""},null,{"$f":"IF(G4675=\"\",\"\",VLOOKUP(G4675,Insumos!G:H,2,FALSE))","v":""}]
[null,null,null,null,null,{"$f":"IF(E4676=\"\",\"\",VLOOKUP(E4676,Insumos!AD:AE,2,FALSE))","v":""},null,{"$f":"IF(G4676=\"\",\"\",VLOOKUP(G4676,Insumos!G:H,2,FALSE))","v":""}]
[null,null,null,null,null,{"$f":"IF(E4677=\"\",\"\",VLOOKUP(E4677,Insumos!AD:AE,2,FALSE))","v":""},null,{"$f":"IF(G4677=\"\",\"\",VLOOKUP(G4677,Insumos!G:H,2,FALSE))","v":""}]
[null,null,null,null,null,{"$f":"IF(E4678=\"\",\"\",VLOOKUP(E4678,Insumos!AD:AE,2,FALSE))","v":""},null,{"$f":"IF(G4678=\"\",\"\",VLOOKUP(G4678,Insumos!G:H,2,FALSE))","v":""}]
[null,null,null,null,null,{"$f":"IF(E4679=\"\",\"\",VLOOKUP(E4679,Insumos!AD:AE,2,FALSE))","v":""},null,{"$f":"IF(G4679=\"\",\"\",VLOOKUP(G4679,Insumos!G:H,2,FALSE))","v":""}]
[null,null,null,null,null,{"$f":"IF(E4680=\"\",\"\",VLOOKUP(E4680,Insumos!AD:AE,2,FALSE))","v":""},null,{"$f":"IF(G4680=\"\",\"\",VLOOKUP(G4680,Insumos!G:H,2,FALSE))","v":""}]
[null,null,null,null,null,{"$f":"IF(E4681=\"\",\"\",VLOOKUP(E4681,Insumos!AD:AE,2,FALSE))","v":""},null,{"$f":"IF(G4681=\"\",\"\",VLOOKUP(G4681,Insumos!G:H,2,FALSE))","v":""}]
[null,null,null,null,null,{"$f":"IF(E4682=\"\",\"\",VLOOKUP(E4682,Insumos!AD:AE,2,FALSE))","v":""},null,{"$f":"IF(G4682=\"\",\"\",VLOOKUP(G4682,Insumos!G:H,2,FALSE))","v":""}]
[null,null,null,null,null,{"$f":"IF(E4683=\"\",\"\",VLOOKUP(E4683,Insumos!AD:AE,2,FALSE))","v":""},null,{"$f":"IF(G4683=\"\",\"\",VLOOKUP(G4683,Insumos!G:H,2,FALSE))","v":""}]
[null,null,null,null,null,{"$f":"IF(E4684=\"\",\"\",VLOOKUP(E4684,Insumos!AD:AE,2,FALSE))","v":""},null,{"$f":"IF(G4684=\"\",\"\",VLOOKUP(G4684,Insumos!G:H,2,FALSE))","v":""}]
[null,null,null,null,null,{"$f":"IF(E4685=\"\",\"\",VLOOKUP(E4685,Insumos!AD:AE,2,FALSE))","v":""},null,{"$f":"IF(G4685=\"\",\"\",VLOOKUP(G4685,Insumos!G:H,2,FALSE))","v":""}]
[null,null,null,null,null,{"$f":"IF(E4686=\"\",\"\",VLOOKUP(E4686,Insumos!AD:AE,2,FALSE))","v":""},null,{"$f":"IF(G4686=\"\",\"\",VLOOKUP(G4686,Insumos!G:H,2,FALSE))","v":""}]
[null,null,null,null,null,{"$f":"IF(E4687=\"\",\"\",VLOOKUP(E4687,Insumos!AD:AE,2,FALSE))","v":""},null,{"$f":"IF(G4687=\"\",\"\",VLOOKUP(G4687,Insumos!G:H,2,FALSE))","v":""}]
[null,null,null,null,null,{"$f":"IF(E4688=\"\",\"\",VLOOKUP(E4688,Insumos!AD:AE,2,FALSE))","v":""},null,{"$f":"IF(G4688=\"\",\"\",VLOOKUP(G4688,Insumos!G:H,2,FALSE))","v":""}]
[null,null,null,null,null,{"$f":"IF(E4689=\"\",\"\",VLOOKUP(E4689,Insumos!AD:AE,2,FALSE))","v":""},null,{"$f":"IF(G4689=\"\",\"\",VLOOKUP(G4689,Insumos!G:H,2,FALSE))","v":""}]
[null,null,null,null,null,{"$f":"IF(E4690=\"\",\"\",VLOOKUP(E4690,Insumos!AD:AE,2,FALSE))","v":""},null,{"$f":"IF(G4690=\"\",\"\",VLOOKUP(G4690,Insumos!G:H,2,FALSE))","v":""}]
[null,null,null,null,null,{"$f":"IF(E4691=\"\",\"\",VLOOKUP(E4691,Insumos!AD:AE,2,FALSE))","v":""},null,{"$f":"IF(G4691=\"\",\"\",VLOOKUP(G4691,Insumos!G:H,2,FALSE))","v":""}]
[null,null,null,null,null,{"$f":"IF(E4692=\"\",\"\",VLOOKUP(E4692,Insumos!AD:AE,2,FALSE))","v":""},null,{"$f":"IF(G4692=\"\",\"\",VLOOKUP(G4692,Insumos!G:H,2,FALSE))","v":""}]
[null,null,null,null,null,{"$f":"IF(E4693=\"\",\"\",VLOOKUP(E4693,Insumos!AD:AE,2,FALSE))","v":""},null,{"$f":"IF(G4693=\"\",\"\",VLOOKUP(G4693,Insumos!G:H,2,FALSE))","v":""}]
[null,null,null,null,null,{"$f":"IF(E4694=\"\",\"\",VLOOKUP(E4694,Insumos!AD:AE,2,FALSE))","v":""},null,{"$f":"IF(G4694=\"\",\"\",VLOOKUP(G4694,Insumos!G:H,2,FALSE))","v":""}]
[null,null,null,null,null,{"$f":"IF(E4695=\"\",\"\",VLOOKUP(E4695,Insumos!AD:AE,2,FALSE))","v":""},null,{"$f":"IF(G4695=\"\",\"\",VLOOKUP(G4695,Insumos!G:H,2,FALSE))","v":""}]
[null,null,null,null,null,{"$f":"IF(E4696=\"\",\"\",VLOOKUP(E4696,Insumos!AD:AE,2,FALSE))","v":""},null,{"$f":"IF(G4696=\"\",\"\",VLOOKUP(G4696,Insumos!G:H,2,FALSE))","v":""}]
[null,null,null,null,null,{"$f":"IF(E4697=\"\",\"\",VLOOKUP(E4697,Insumos!AD:AE,2,FALSE))","v":""},null,{"$f":"IF(G4697=\"\",\"\",VLOOKUP(G4697,Insumos!G:H,2,FALSE))","v":""}]
[null,null,null,null,null,{"$f":"IF(E4698=\"\",\"\",VLOOKUP(E4698,Insumos!AD:AE,2,FALSE))","v":""},null,{"$f":"IF(G4698=\"\",\"\",VLOOKUP(G4698,Insumos!G:H,2,FALSE))","v":""}]
[null,null,null,null,null,{"$f":"IF(E4699=\"\",\"\",VLOOKUP(E4699,Insumos!AD:AE,2,FALSE))","v":""},null,{"$f":"IF(G4699=\"\",\"\",VLOOKUP(G4699,Insumos!G:H,2,FALSE))","v":""}]
[null,null,null,null,null,{"$f":"IF(E4700=\"\",\"\",VLOOKUP(E4700,Insumos!AD:AE,2,FALSE))","v":""},null,{"$f":"IF(G4700=\"\",\"\",VLOOKUP(G4700,Insumos!G:H,2,FALSE))","v":""}]
[null,null,null,null,null,{"$f":"IF(E4701=\"\",\"\",VLOOKUP(E4701,Insumos!AD:AE,2,FALSE))","v":""},null,{"$f":"IF(G4701=\"\",\"\",VLOOKUP(G4701,Insumos!G:H,2,FALSE))","v":""}]
[null,null,null,null,null,{"$f":"IF(E4702=\"\",\"\",VLOOKUP(E4702,Insumos!AD:AE,2,FALSE))","v":""},null,{"$f":"IF(G4702=\"\",\"\",VLOOKUP(G4702,Insumos!G:H,2,FALSE))","v":""}]
[null,null,null,null,null,{"$f":"IF(E4703=\"\",\"\",VLOOKUP(E4703,Insumos!AD:AE,2,FALSE))","v":""},null,{"$f":"IF(G4703=\"\",\"\",VLOOKUP(G4703,Insumos!G:H,2,FALSE))","v":""}]
[null,null,null,null,null,{"$f":"IF(E4704=\"\",\"\",VLOOKUP(E4704,Insumos!AD:AE,2,FALSE))","v":""},null,{"$f":"IF(G4704=\"\",\"\",VLOOKUP(G4704,Insumos!G:H,2,FALSE))","v":""}]
[null,null,null,null,null,{"$f":"IF(E4705=\"\",\"\",VLOOKUP(E4705,Insumos!AD:AE,2,FALSE))","v":""},null,{"$f":"IF(G4705=\"\",\"\",VLOOKUP(G4705,Insumos!G:H,2,FALSE))","v":""}]
[null,null,null,null,null,{"$f":"IF(E4706=\"\",\"\",VLOOKUP(E4706,Insumos!AD:AE,2,FALSE))","v":""},null,{"$f":"IF(G4706=\"\",\"\",VLOOKUP(G4706,Insumos!G:H,2,FALSE))","v":""}]
[null,null,null,null,null,{"$f":"IF(E4707=\"\",\"\",VLOOKUP(E4707,Insumos!AD:AE,2,FALSE))","v":""},null,{"$f":"IF(G4707=\"\",\"\",VLOOKUP(G4707,Insumos!G:H,2,FALSE))","v":""}]
[null,null,null,null,null,{"$f":"IF(E4708=\"\",\"\",VLOOKUP(E4708,Insumos!AD:AE,2,FALSE))","v":""},null,{"$f":"IF(G4708=\"\",\"\",VLOOKUP(G4708,Insumos!G:H,2,FALSE))","v":""}]
[null,null,null,null,null,{"$f":"IF(E4709=\"\",\"\",VLOOKUP(E4709,Insumos!AD:AE,2,FALSE))","v":""},null,{"$f":"IF(G4709=\"\",\"\",VLOOKUP(G4709,Insumos!G:H,2,FALSE))","v":""}]
[null,null,null,null,null,{"$f":"IF(E4710=\"\",\"\",VLOOKUP(E4710,Insumos!AD:AE,2,FALSE))","v":""},null,{"$f":"IF(G4710=\"\",\"\",VLOOKUP(G4710,Insumos!G:H,2,FALSE))","v":""}]
[null,null,null,null,null,{"$f":"IF(E4711=\"\",\"\",VLOOKUP(E4711,Insumos!AD:AE,2,FALSE))","v":""},null,{"$f":"IF(G4711=\"\",\"\",VLOOKUP(G4711,Insumos!G:H,2,FALSE))","v":""}]
[null,null,null,null,null,{"$f":"IF(E4712=\"\",\"\",VLOOKUP(E4712,Insumos!AD:AE,2,FALSE))","v":""},null,{"$f":"IF(G4712=\"\",\"\",VLOOKUP(G4712,Insumos!G:H,2,FALSE))","v":""}]
[null,null,null,null,null,{"$f":"IF(E4713=\"\",\"\",VLOOKUP(E4713,Insumos!AD:AE,2,FALSE))","v":""},null,{"$f":"IF(G4713=\"\",\"\",VLOOKUP(G4713,Insumos!G:H,2,FALSE))","v":""}]
[null,null,null,null,null,{"$f":"IF(E4714=\"\",\"\",VLOOKUP(E4714,Insumos!AD:AE,2,FALSE))","v":""},null,{"$f":"IF(G4714=\"\",\"\",VLOOKUP(G4714,Insumos!G:H,2,FALSE))","v":""}]
[null,null,null,null,null,{"$f":"IF(E4715=\"\",\"\",VLOOKUP(E4715,Insumos!AD:AE,2,FALSE))","v":""},null,{"$f":"IF(G4715=\"\",\"\",VLOOKUP(G4715,Insumos!G:H,2,FALSE))","v":""}]
[null,null,null,null,null,{"$f":"IF(E4716=\"\",\"\",VLOOKUP(E4716,Insumos!AD:AE,2,FALSE))","v":""},null,{"$f":"IF(G4716=\"\",\"\",VLOOKUP(G4716,Insumos!G:H,2,FALSE))","v":""}]
[null,null,null,null,null,{"$f":"IF(E4717=\"\",\"\",VLOOKUP(E4717,Insumos!AD:AE,2,FALSE))","v":""},null,{"$f":"IF(G4717=\"\",\"\",VLOOKUP(G4717,Insumos!G:H,2,FALSE))","v":""}]
[null,null,null,null,null,{"$f":"IF(E4718=\"\",\"\",VLOOKUP(E4718,Insumos!AD:AE,2,FALSE))","v":""},null,{"$f":"IF(G4718=\"\",\"\",VLOOKUP(G4718,Insumos!G:H,2,FALSE))","v":""}]
[null,null,null,null,null,{"$f":"IF(E4719=\"\",\"\",VLOOKUP(E4719,Insumos!AD:AE,2,FALSE))","v":""},null,{"$f":"IF(G4719=\"\",\"\",VLOOKUP(G4719,Insumos!G:H,2,FALSE))","v":""}]
[null,null,null,null,null,{"$f":"IF(E4720=\"\",\"\",VLOOKUP(E4720,Insumos!AD:AE,2,FALSE))","v":""},null,{"$f":"IF(G4720=\"\",\"\",VLOOKUP(G4720,Insumos!G:H,2,FALSE))","v":""}]
[null,null,null,null,null,{"$f":"IF(E4721=\"\",\"\",VLOOKUP(E4721,Insumos!AD:AE,2,FALSE))","v":""},null,{"$f":"IF(G4721=\"\",\"\",VLOOKUP(G4721,Insumos!G:H,2,FALSE))","v":""}]
[null,null,null,null,null,{"$f":"IF(E4722=\"\",\"\",VLOOKUP(E4722,Insumos!AD:AE,2,FALSE))","v":""},null,{"$f":"IF(G4722=\"\",\"\",VLOOKUP(G4722,Insumos!G:H,2,FALSE))","v":""}]
[null,null,null,null,null,{"$f":"IF(E4723=\"\",\"\",VLOOKUP(E4723,Insumos!AD:AE,2,FALSE))","v":""},null,{"$f":"IF(G4723=\"\",\"\",VLOOKUP(G4723,Insumos!G:H,2,FALSE))","v":""}]
[null,null,null,null,null,{"$f":"IF(E4724=\"\",\"\",VLOOKUP(E4724,Insumos!AD:AE,2,FALSE))","v":""},null,{"$f":"IF(G4724=\"\",\"\",VLOOKUP(G4724,Insumos!G:H,2,FALSE))","v":""}]
[null,null,null,null,null,{"$f":"IF(E4725=\"\",\"\",VLOOKUP(E4725,Insumos!AD:AE,2,FALSE))","v":""},null,{"$f":"IF(G4725=\"\",\"\",VLOOKUP(G4725,Insumos!G:H,2,FALSE))","v":""}]
[null,null,null,null,null,{"$f":"IF(E4726=\"\",\"\",VLOOKUP(E4726,Insumos!AD:AE,2,FALSE))","v":""},null,{"$f":"IF(G4726=\"\",\"\",VLOOKUP(G4726,Insumos!G:H,2,FALSE))","v":""}]
[null,null,null,null,null,{"$f":"IF(E4727=\"\",\"\",VLOOKUP(E4727,Insumos!AD:AE,2,FALSE))","v":""},null,{"$f":"IF(G4727=\"\",\"\",VLOOKUP(G4727,Insumos!G:H,2,FALSE))","v":""}]
[null,null,null,null,null,{"$f":"IF(E4728=\"\",\"\",VLOOKUP(E4728,Insumos!AD:AE,2,FALSE))","v":""},null,{"$f":"IF(G4728=\"\",\"\",VLOOKUP(G4728,Insumos!G:H,2,FALSE))","v":""}]
[null,null,null,null,null,{"$f":"IF(E4729=\"\",\"\",VLOOKUP(E4729,Insumos!AD:AE,2,FALSE))","v":""},null,{"$f":"IF(G4729=\"\",\"\",VLOOKUP(G4729,Insumos!G:H,2,FALSE))","v":""}]
[null,null,null,null,null,{"$f":"IF(E4730=\"\",\"\",VLOOKUP(E4730,Insumos!AD:AE,2,FALSE))","v":""},null,{"$f":"IF(G4730=\"\",\"\",VLOOKUP(G4730,Insumos!G:H,2,FALSE))","v":""}]
[null,null,null,null,null,{"$f":"IF(E4731=\"\",\"\",VLOOKUP(E4731,Insumos!AD:AE,2,FALSE))","v":""},null,{"$f":"IF(G4731=\"\",\"\",VLOOKUP(G4731,Insumos!G:H,2,FALSE))","v":""}]
[null,null,null,null,null,{"$f":"IF(E4732=\"\",\"\",VLOOKUP(E4732,Insumos!AD:AE,2,FALSE))","v":""},null,{"$f":"IF(G4732=\"\",\"\",VLOOKUP(G4732,Insumos!G:H,2,FALSE))","v":""}]
[null,null,null,null,null,{"$f":"IF(E4733=\"\",\"\",VLOOKUP(E4733,Insumos!AD:AE,2,FALSE))","v":""},null,{"$f":"IF(G4733=\"\",\"\",VLOOKUP(G4733,Insumos!G:H,2,FALSE))","v":""}]
[null,null,null,null,null,{"$f":"IF(E4734=\"\",\"\",VLOOKUP(E4734,Insumos!AD:AE,2,FALSE))","v":""},null,{"$f":"IF(G4734=\"\",\"\",VLOOKUP(G4734,Insumos!G:H,2,FALSE))","v":""}]
[null,null,null,null,null,{"$f":"IF(E4735=\"\",\"\",VLOOKUP(E4735,Insumos!AD:AE,2,FALSE))","v":""},null,{"$f":"IF(G4735=\"\",\"\",VLOOKUP(G4735,Insumos!G:H,2,FALSE))","v":""}]
[null,null,null,null,null,{"$f":"IF(E4736=\"\",\"\",VLOOKUP(E4736,Insumos!AD:AE,2,FALSE))","v":""},null,{"$f":"IF(G4736=\"\",\"\",VLOOKUP(G4736,Insumos!G:H,2,FALSE))","v":""}]
[null,null,null,null,null,{"$f":"IF(E4737=\"\",\"\",VLOOKUP(E4737,Insumos!AD:AE,2,FALSE))","v":""},null,{"$f":"IF(G4737=\"\",\"\",VLOOKUP(G4737,Insumos!G:H,2,FALSE))","v":""}]
[null,null,null,null,null,{"$f":"IF(E4738=\"\",\"\",VLOOKUP(E4738,Insumos!AD:AE,2,FALSE))","v":""},null,{"$f":"IF(G4738=\"\",\"\",VLOOKUP(G4738,Insumos!G:H,2,FALSE))","v":""}]
[null,null,null,null,null,{"$f":"IF(E4739=\"\",\"\",VLOOKUP(E4739,Insumos!AD:AE,2,FALSE))","v":""},null,{"$f":"IF(G4739=\"\",\"\",VLOOKUP(G4739,Insumos!G:H,2,FALSE))","v":""}]
[null,null,null,null,null,{"$f":"IF(E4740=\"\",\"\",VLOOKUP(E4740,Insumos!AD:AE,2,FALSE))","v":""},null,{"$f":"IF(G4740=\"\",\"\",VLOOKUP(G4740,Insumos!G:H,2,FALSE))","v":""}]
[null,null,null,null,null,{"$f":"IF(E4741=\"\",\"\",VLOOKUP(E4741,Insumos!AD:AE,2,FALSE))","v":""},null,{"$f":"IF(G4741=\"\",\"\",VLOOKUP(G4741,Insumos!G:H,2,FALSE))","v":""}]
[null,null,null,null,null,{"$f":"IF(E4742=\"\",\"\",VLOOKUP(E4742,Insumos!AD:AE,2,FALSE))","v":""},null,{"$f":"IF(G4742=\"\",\"\",VLOOKUP(G4742,Insumos!G:H,2,FALSE))","v":""}]
[null,null,null,null,null,{"$f":"IF(E4743=\"\",\"\",VLOOKUP(E4743,Insumos!AD:AE,2,FALSE))","v":""},null,{"$f":"IF(G4743=\"\",\"\",VLOOKUP(G4743,Insumos!G:H,2,FALSE))","v":""}]
[null,null,null,null,null,{"$f":"IF(E4744=\"\",\"\",VLOOKUP(E4744,Insumos!AD:AE,2,FALSE))","v":""},null,{"$f":"IF(G4744=\"\",\"\",VLOOKUP(G4744,Insumos!G:H,2,FALSE))","v":""}]
[null,null,null,null,null,{"$f":"IF(E4745=\"\",\"\",VLOOKUP(E4745,Insumos!AD:AE,2,FALSE))","v":""},null,{"$f":"IF(G4745=\"\",\"\",VLOOKUP(G4745,Insumos!G:H,2,FALSE))","v":""}]
[null,null,null,null,null,{"$f":"IF(E4746=\"\",\"\",VLOOKUP(E4746,Insumos!AD:AE,2,FALSE))","v":""},null,{"$f":"IF(G4746=\"\",\"\",VLOOKUP(G4746,Insumos!G:H,2,FALSE))","v":""}]
[null,null,null,null,null,{"$f":"IF(E4747=\"\",\"\",VLOOKUP(E4747,Insumos!AD:AE,2,FALSE))","v":""},null,{"$f":"IF(G4747=\"\",\"\",VLOOKUP(G4747,Insumos!G:H,2,FALSE))","v":""}]
[null,null,null,null,null,{"$f":"IF(E4748=\"\",\"\",VLOOKUP(E4748,Insumos!AD:AE,2,FALSE))","v":""},null,{"$f":"IF(G4748=\"\",\"\",VLOOKUP(G4748,Insumos!G:H,2,FALSE))","v":""}]
[null,null,null,null,null,{"$f":"IF(E4749=\"\",\"\",VLOOKUP(E4749,Insumos!AD:AE,2,FALSE))","v":""},null,{"$f":"IF(G4749=\"\",\"\",VLOOKUP(G4749,Insumos!G:H,2,FALSE))","v":""}]
[null,null,null,null,null,{"$f":"IF(E4750=\"\",\"\",VLOOKUP(E4750,Insumos!AD:AE,2,FALSE))","v":""},null,{"$f":"IF(G4750=\"\",\"\",VLOOKUP(G4750,Insumos!G:H,2,FALSE))","v":""}]
[null,null,null,null,null,{"$f":"IF(E4751=\"\",\"\",VLOOKUP(E4751,Insumos!AD:AE,2,FALSE))","v":""},null,{"$f":"IF(G4751=\"\",\"\",VLOOKUP(G4751,Insumos!G:H,2,FALSE))","v":""}]
[null,null,null,null,null,{"$f":"IF(E4752=\"\",\"\",VLOOKUP(E4752,Insumos!AD:AE,2,FALSE))","v":""},null,{"$f":"IF(G4752=\"\",\"\",VLOOKUP(G4752,Insumos!G:H,2,FALSE))","v":""}]
[null,null,null,null,null,{"$f":"IF(E4753=\"\",\"\",VLOOKUP(E4753,Insumos!AD:AE,2,FALSE))","v":""},null,{"$f":"IF(G4753=\"\",\"\",VLOOKUP(G4753,Insumos!G:H,2,FALSE))","v":""}]
[null,null,null,null,null,{"$f":"IF(E4754=\"\",\"\",VLOOKUP(E4754,Insumos!AD:AE,2,FALSE))","v":""},null,{"$f":"IF(G4754=\"\",\"\",VLOOKUP(G4754,Insumos!G:H,2,FALSE))","v":""}]
[null,null,null,null,null,{"$f":"IF(E4755=\"\",\"\",VLOOKUP(E4755,Insumos!AD:AE,2,FALSE))","v":""},null,{"$f":"IF(G4755=\"\",\"\",VLOOKUP(G4755,Insumos!G:H,2,FALSE))","v":""}]
[null,null,null,null,null,{"$f":"IF(E4756=\"\",\"\",VLOOKUP(E4756,Insumos!AD:AE,2,FALSE))","v":""},null,{"$f":"IF(G4756=\"\",\"\",VLOOKUP(G4756,Insumos!G:H,2,FALSE))","v":""}]
[null,null,null,null,null,{"$f":"IF(E4757=\"\",\"\",VLOOKUP(E4757,Insumos!AD:AE,2,FALSE))","v":""},null,{"$f":"IF(G4757=\"\",\"\",VLOOKUP(G4757,Insumos!G:H,2,FALSE))","v":""}]
[null,null,null,null,null,{"$f":"IF(E4758=\"\",\"\",VLOOKUP(E4758,Insumos!AD:AE,2,FALSE))","v":""},null,{"$f":"IF(G4758=\"\",\"\",VLOOKUP(G4758,Insumos!G:H,2,FALSE))","v":""}]
[null,null,null,null,null,{"$f":"IF(E4759=\"\",\"\",VLOOKUP(E4759,Insumos!AD:AE,2,FALSE))","v":""},null,{"$f":"IF(G4759=\"\",\"\",VLOOKUP(G4759,Insumos!G:H,2,FALSE))","v":""}]
[null,null,null,null,null,{"$f":"IF(E4760=\"\",\"\",VLOOKUP(E4760,Insumos!AD:AE,2,FALSE))","v":""},null,{"$f":"IF(G4760=\"\",\"\",VLOOKUP(G4760,Insumos!G:H,2,FALSE))","v":""}]
[null,null,null,null,null,{"$f":"IF(E4761=\"\",\"\",VLOOKUP(E4761,Insumos!AD:AE,2,FALSE))","v":""},null,{"$f":"IF(G4761=\"\",\"\",VLOOKUP(G4761,Insumos!G:H,2,FALSE))","v":""}]
[null,null,null,null,null,{"$f":"IF(E4762=\"\",\"\",VLOOKUP(E4762,Insumos!AD:AE,2,FALSE))","v":""},null,{"$f":"IF(G4762=\"\",\"\",VLOOKUP(G4762,Insumos!G:H,2,FALSE))","v":""}]
[null,null,null,null,null,{"$f":"IF(E4763=\"\",\"\",VLOOKUP(E4763,Insumos!AD:AE,2,FALSE))","v":""},null,{"$f":"IF(G4763=\"\",\"\",VLOOKUP(G4763,Insumos!G:H,2,FALSE))","v":""}]
[null,null,null,null,null,{"$f":"IF(E4764=\"\",\"\",VLOOKUP(E4764,Insumos!AD:AE,2,FALSE))","v":""},null,{"$f":"IF(G4764=\"\",\"\",VLOOKUP(G4764,Insumos!G:H,2,FALSE))","v":""}]
[null,null,null,null,null,{"$f":"IF(E4765=\"\",\"\",VLOOKUP(E4765,Insumos!AD:AE,2,FALSE))","v":""},null,{"$f":"IF(G4765=\"\",\"\",VLOOKUP(G4765,Insumos!G:H,2,FALSE))","v":""}]
[null,null,null,null,null,{"$f":"IF(E4766=\"\",\"\",VLOOKUP(E4766,Insumos!AD:AE,2,FALSE))","v":""},null,{"$f":"IF(G4766=\"\",\"\",VLOOKUP(G4766,Insumos!G:H,2,FALSE))","v":""}]
[null,null,null,null,null,{"$f":"IF(E4767=\"\",\"\",VLOOKUP(E4767,Insumos!AD:AE,2,FALSE))","v":""},null,{"$f":"IF(G4767=\"\",\"\",VLOOKUP(G4767,Insumos!G:H,2,FALSE))","v":""}]
[null,null,null,null,null,{"$f":"IF(E4768=\"\",\"\",VLOOKUP(E4768,Insumos!AD:AE,2,FALSE))","v":""},null,{"$f":"IF(G4768=\"\",\"\",VLOOKUP(G4768,Insumos!G:H,2,FALSE))","v":""}]
[null,null,null,null,null,{"$f":"IF(E4769=\"\",\"\",VLOOKUP(E4769,Insumos!AD:AE,2,FALSE))","v":""},null,{"$f":"IF(G4769=\"\",\"\",VLOOKUP(G4769,Insumos!G:H,2,FALSE))","v":""}]
[null,null,null,null,null,{"$f":"IF(E4770=\"\",\"\",VLOOKUP(E4770,Insumos!AD:AE,2,FALSE))","v":""},null,{"$f":"IF(G4770=\"\",\"\",VLOOKUP(G4770,Insumos!G:H,2,FALSE))","v":""}]
[null,null,null,null,null,{"$f":"IF(E4771=\"\",\"\",VLOOKUP(E4771,Insumos!AD:AE,2,FALSE))","v":""},null,{"$f":"IF(G4771=\"\",\"\",VLOOKUP(G4771,Insumos!G:H,2,FALSE))","v":""}]
[null,null,null,null,null,{"$f":"IF(E4772=\"\",\"\",VLOOKUP(E4772,Insumos!AD:AE,2,FALSE))","v":""},null,{"$f":"IF(G4772=\"\",\"\",VLOOKUP(G4772,Insumos!G:H,2,FALSE))","v":""}]
[null,null,null,null,null,{"$f":"IF(E4773=\"\",\"\",VLOOKUP(E4773,Insumos!AD:AE,2,FALSE))","v":""},null,{"$f":"IF(G4773=\"\",\"\",VLOOKUP(G4773,Insumos!G:H,2,FALSE))","v":""}]
[null,null,null,null,null,{"$f":"IF(E4774=\"\",\"\",VLOOKUP(E4774,Insumos!AD:AE,2,FALSE))","v":""},null,{"$f":"IF(G4774=\"\",\"\",VLOOKUP(G4774,Insumos!G:H,2,FALSE))","v":""}]
[null,null,null,null,null,{"$f":"IF(E4775=\"\",\"\",VLOOKUP(E4775,Insumos!AD:AE,2,FALSE))","v":""},null,{"$f":"IF(G4775=\"\",\"\",VLOOKUP(G4775,Insumos!G:H,2,FALSE))","v":""}]
[null,null,null,null,null,{"$f":"IF(E4776=\"\",\"\",VLOOKUP(E4776,Insumos!AD:AE,2,FALSE))","v":""},null,{"$f":"IF(G4776=\"\",\"\",VLOOKUP(G4776,Insumos!G:H,2,FALSE))","v":""}]
[null,null,null,null,null,{"$f":"IF(E4777=\"\",\"\",VLOOKUP(E4777,Insumos!AD:AE,2,FALSE))","v":""},null,{"$f":"IF(G4777=\"\",\"\",VLOOKUP(G4777,Insumos!G:H,2,FALSE))","v":""}]
[null,null,null,null,null,{"$f":"IF(E4778=\"\",\"\",VLOOKUP(E4778,Insumos!AD:AE,2,FALSE))","v":""},null,{"$f":"IF(G4778=\"\",\"\",VLOOKUP(G4778,Insumos!G:H,2,FALSE))","v":""}]
[null,null,null,null,null,{"$f":"IF(E4779=\"\",\"\",VLOOKUP(E4779,Insumos!AD:AE,2,FALSE))","v":""},null,{"$f":"IF(G4779=\"\",\"\",VLOOKUP(G4779,Insumos!G:H,2,FALSE))","v":""}]
[null,null,null,null,null,{"$f":"IF(E4780=\"\",\"\",VLOOKUP(E4780,Insumos!AD:AE,2,FALSE))","v":""},null,{"$f":"IF(G4780=\"\",\"\",VLOOKUP(G4780,Insumos!G:H,2,FALSE))","v":""}]
[null,null,null,null,null,{"$f":"IF(E4781=\"\",\"\",VLOOKUP(E4781,Insumos!AD:AE,2,FALSE))","v":""},null,{"$f":"IF(G4781=\"\",\"\",VLOOKUP(G4781,Insumos!G:H,2,FALSE))","v":""}]
[null,null,null,null,null,{"$f":"IF(E4782=\"\",\"\",VLOOKUP(E4782,Insumos!AD:AE,2,FALSE))","v":""},null,{"$f":"IF(G4782=\"\",\"\",VLOOKUP(G4782,Insumos!G:H,2,FALSE))","v":""}]
[null,null,null,null,null,{"$f":"IF(E4783=\"\",\"\",VLOOKUP(E4783,Insumos!AD:AE,2,FALSE))","v":""},null,{"$f":"IF(G4783=\"\",\"\",VLOOKUP(G4783,Insumos!G:H,2,FALSE))","v":""}]
[null,null,null,null,null,{"$f":"IF(E4784=\"\",\"\",VLOOKUP(E4784,Insumos!AD:AE,2,FALSE))","v":""},null,{"$f":"IF(G4784=\"\",\"\",VLOOKUP(G4784,Insumos!G:H,2,FALSE))","v":""}]
[null,null,null,null,null,{"$f":"IF(E4785=\"\",\"\",VLOOKUP(E4785,Insumos!AD:AE,2,FALSE))","v":""},null,{"$f":"IF(G4785=\"\",\"\",VLOOKUP(G4785,Insumos!G:H,2,FALSE))","v":""}]
[null,null,null,null,null,{"$f":"IF(E4786=\"\",\"\",VLOOKUP(E4786,Insumos!AD:AE,2,FALSE))","v":""},null,{"$f":"IF(G4786=\"\",\"\",VLOOKUP(G4786,Insumos!G:H,2,FALSE))","v":""}]
[null,null,null,null,null,{"$f":"IF(E4787=\"\",\"\",VLOOKUP(E4787,Insumos!AD:AE,2,FALSE))","v":""},null,{"$f":"IF(G4787=\"\",\"\",VLOOKUP(G4787,Insumos!G:H,2,FALSE))","v":""}]
[null,null,null,null,null,{"$f":"IF(E4788=\"\",\"\",VLOOKUP(E4788,Insumos!AD:AE,2,FALSE))","v":""},null,{"$f":"IF(G4788=\"\",\"\",VLOOKUP(G4788,Insumos!G:H,2,FALSE))","v":""}]
[null,null,null,null,null,{"$f":"IF(E4789=\"\",\"\",VLOOKUP(E4789,Insumos!AD:AE,2,FALSE))","v":""},null,{"$f":"IF(G4789=\"\",\"\",VLOOKUP(G4789,Insumos!G:H,2,FALSE))","v":""}]
[null,null,null,null,null,{"$f":"IF(E4790=\"\",\"\",VLOOKUP(E4790,Insumos!AD:AE,2,FALSE))","v":""},null,{"$f":"IF(G4790=\"\",\"\",VLOOKUP(G4790,Insumos!G:H,2,FALSE))","v":""}]
[null,null,null,null,null,{"$f":"IF(E4791=\"\",\"\",VLOOKUP(E4791,Insumos!AD:AE,2,FALSE))","v":""},null,{"$f":"IF(G4791=\"\",\"\",VLOOKUP(G4791,Insumos!G:H,2,FALSE))","v":""}]
[null,null,null,null,null,{"$f":"IF(E4792=\"\",\"\",VLOOKUP(E4792,Insumos!AD:AE,2,FALSE))","v":""},null,{"$f":"IF(G4792=\"\",\"\",VLOOKUP(G4792,Insumos!G:H,2,FALSE))","v":""}]
[null,null,null,null,null,{"$f":"IF(E4793=\"\",\"\",VLOOKUP(E4793,Insumos!AD:AE,2,FALSE))","v":""},null,{"$f":"IF(G4793=\"\",\"\",VLOOKUP(G4793,Insumos!G:H,2,FALSE))","v":""}]
[null,null,null,null,null,{"$f":"IF(E4794=\"\",\"\",VLOOKUP(E4794,Insumos!AD:AE,2,FALSE))","v":""},null,{"$f":"IF(G4794=\"\",\"\",VLOOKUP(G4794,Insumos!G:H,2,FALSE))","v":""}]
[null,null,null,null,null,{"$f":"IF(E4795=\"\",\"\",VLOOKUP(E4795,Insumos!AD:AE,2,FALSE))","v":""},null,{"$f":"IF(G4795=\"\",\"\",VLOOKUP(G4795,Insumos!G:H,2,FALSE))","v":""}]
[null,null,null,null,null,{"$f":"IF(E4796=\"\",\"\",VLOOKUP(E4796,Insumos!AD:AE,2,FALSE))","v":""},null,{"$f":"IF(G4796=\"\",\"\",VLOOKUP(G4796,Insumos!G:H,2,FALSE))","v":""}]
[null,null,null,null,null,{"$f":"IF(E4797=\"\",\"\",VLOOKUP(E4797,Insumos!AD:AE,2,FALSE))","v":""},null,{"$f":"IF(G4797=\"\",\"\",VLOOKUP(G4797,Insumos!G:H,2,FALSE))","v":""}]
[null,null,null,null,null,{"$f":"IF(E4798=\"\",\"\",VLOOKUP(E4798,Insumos!AD:AE,2,FALSE))","v":""},null,{"$f":"IF(G4798=\"\",\"\",VLOOKUP(G4798,Insumos!G:H,2,FALSE))","v":""}]
[null,null,null,null,null,{"$f":"IF(E4799=\"\",\"\",VLOOKUP(E4799,Insumos!AD:AE,2,FALSE))","v":""},null,{"$f":"IF(G4799=\"\",\"\",VLOOKUP(G4799,Insumos!G:H,2,FALSE))","v":""}]
[null,null,null,null,null,{"$f":"IF(E4800=\"\",\"\",VLOOKUP(E4800,Insumos!AD:AE,2,FALSE))","v":""},null,{"$f":"IF(G4800=\"\",\"\",VLOOKUP(G4800,Insumos!G:H,2,FALSE))","v":""}]
[null,null,null,null,null,{"$f":"IF(E4801=\"\",\"\",VLOOKUP(E4801,Insumos!AD:AE,2,FALSE))","v":""},null,{"$f":"IF(G4801=\"\",\"\",VLOOKUP(G4801,Insumos!G:H,2,FALSE))","v":""}]
[null,null,null,null,null,{"$f":"IF(E4802=\"\",\"\",VLOOKUP(E4802,Insumos!AD:AE,2,FALSE))","v":""},null,{"$f":"IF(G4802=\"\",\"\",VLOOKUP(G4802,Insumos!G:H,2,FALSE))","v":""}]
[null,null,null,null,null,{"$f":"IF(E4803=\"\",\"\",VLOOKUP(E4803,Insumos!AD:AE,2,FALSE))","v":""},null,{"$f":"IF(G4803=\"\",\"\",VLOOKUP(G4803,Insumos!G:H,2,FALSE))","v":""}]
[null,null,null,null,null,{"$f":"IF(E4804=\"\",\"\",VLOOKUP(E4804,Insumos!AD:AE,2,FALSE))","v":""},null,{"$f":"IF(G4804=\"\",\"\",VLOOKUP(G4804,Insumos!G:H,2,FALSE))","v":""}]
[null,null,null,null,null,{"$f":"IF(E4805=\"\",\"\",VLOOKUP(E4805,Insumos!AD:AE,2,FALSE))","v":""},null,{"$f":"IF(G4805=\"\",\"\",VLOOKUP(G4805,Insumos!G:H,2,FALSE))","v":""}]
[null,null,null,null,null,{"$f":"IF(E4806=\"\",\"\",VLOOKUP(E4806,Insumos!AD:AE,2,FALSE))","v":""},null,{"$f":"IF(G4806=\"\",\"\",VLOOKUP(G4806,Insumos!G:H,2,FALSE))","v":""}]
[null,null,null,null,null,{"$f":"IF(E4807=\"\",\"\",VLOOKUP(E4807,Insumos!AD:AE,2,FALSE))","v":""},null,{"$f":"IF(G4807=\"\",\"\",VLOOKUP(G4807,Insumos!G:H,2,FALSE))","v":""}]
[null,null,null,null,null,{"$f":"IF(E4808=\"\",\"\",VLOOKUP(E4808,Insumos!AD:AE,2,FALSE))","v":""},null,{"$f":"IF(G4808=\"\",\"\",VLOOKUP(G4808,Insumos!G:H,2,FALSE))","v":""}]
[null,null,null,null,null,{"$f":"IF(E4809=\"\",\"\",VLOOKUP(E4809,Insumos!AD:AE,2,FALSE))","v":""},null,{"$f":"IF(G4809=\"\",\"\",VLOOKUP(G4809,Insumos!G:H,2,FALSE))","v":""}]
[null,null,null,null,null,{"$f":"IF(E4810=\"\",\"\",VLOOKUP(E4810,Insumos!AD:AE,2,FALSE))","v":""},null,{"$f":"IF(G4810=\"\",\"\",VLOOKUP(G4810,Insumos!G:H,2,FALSE))","v":""}]
[null,null,null,null,null,{"$f":"IF(E4811=\"\",\"\",VLOOKUP(E4811,Insumos!AD:AE,2,FALSE))","v":""},null,{"$f":"IF(G4811=\"\",\"\",VLOOKUP(G4811,Insumos!G:H,2,FALSE))","v":""}]
[null,null,null,null,null,{"$f":"IF(E4812=\"\",\"\",VLOOKUP(E4812,Insumos!AD:AE,2,FALSE))","v":""},null,{"$f":"IF(G4812=\"\",\"\",VLOOKUP(G4812,Insumos!G:H,2,FALSE))","v":""}]
[null,null,null,null,null,{"$f":"IF(E4813=\"\",\"\",VLOOKUP(E4813,Insumos!AD:AE,2,FALSE))","v":""},null,{"$f":"IF(G4813=\"\",\"\",VLOOKUP(G4813,Insumos!G:H,2,FALSE))","v":""}]
[null,null,null,null,null,{"$f":"IF(E4814=\"\",\"\",VLOOKUP(E4814,Insumos!AD:AE,2,FALSE))","v":""},null,{"$f":"IF(G4814=\"\",\"\",VLOOKUP(G4814,Insumos!G:H,2,FALSE))","v":""}]
[null,null,null,null,null,{"$f":"IF(E4815=\"\",\"\",VLOOKUP(E4815,Insumos!AD:AE,2,FALSE))","v":""},null,{"$f":"IF(G4815=\"\",\"\",VLOOKUP(G4815,Insumos!G:H,2,FALSE))","v":""}]
[null,null,null,null,null,{"$f":"IF(E4816=\"\",\"\",VLOOKUP(E4816,Insumos!AD:AE,2,FALSE))","v":""},null,{"$f":"IF(G4816=\"\",\"\",VLOOKUP(G4816,Insumos!G:H,2,FALSE))","v":""}]
[null,null,null,null,null,{"$f":"IF(E4817=\"\",\"\",VLOOKUP(E4817,Insumos!AD:AE,2,FALSE))","v":""},null,{"$f":"IF(G4817=\"\",\"\",VLOOKUP(G4817,Insumos!G:H,2,FALSE))","v":""}]
[null,null,null,null,null,{"$f":"IF(E4818=\"\",\"\",VLOOKUP(E4818,Insumos!AD:AE,2,FALSE))","v":""},null,{"$f":"IF(G4818=\"\",\"\",VLOOKUP(G4818,Insumos!G:H,2,FALSE))","v":""}]
[null,null,null,null,null,{"$f":"IF(E4819=\"\",\"\",VLOOKUP(E4819,Insumos!AD:AE,2,FALSE))","v":""},null,{"$f":"IF(G4819=\"\",\"\",VLOOKUP(G4819,Insumos!G:H,2,FALSE))","v":""}]
[null,null,null,null,null,{"$f":"IF(E4820=\"\",\"\",VLOOKUP(E4820,Insumos!AD:AE,2,FALSE))","v":""},null,{"$f":"IF(G4820=\"\",\"\",VLOOKUP(G4820,Insumos!G:H,2,FALSE))","v":""}]
[null,null,null,null,null,{"$f":"IF(E4821=\"\",\"\",VLOOKUP(E4821,Insumos!AD:AE,2,FALSE))","v":""},null,{"$f":"IF(G4821=\"\",\"\",VLOOKUP(G4821,Insumos!G:H,2,FALSE))","v":""}]
[null,null,null,null,null,{"$f":"IF(E4822=\"\",\"\",VLOOKUP(E4822,Insumos!AD:AE,2,FALSE))","v":""},null,{"$f":"IF(G4822=\"\",\"\",VLOOKUP(G4822,Insumos!G:H,2,FALSE))","v":""}]
[null,null,null,null,null,{"$f":"IF(E4823=\"\",\"\",VLOOKUP(E4823,Insumos!AD:AE,2,FALSE))","v":""},null,{"$f":"IF(G4823=\"\",\"\",VLOOKUP(G4823,Insumos!G:H,2,FALSE))","v":""}]
[null,null,null,null,null,{"$f":"IF(E4824=\"\",\"\",VLOOKUP(E4824,Insumos!AD:AE,2,FALSE))","v":""},null,{"$f":"IF(G4824=\"\",\"\",VLOOKUP(G4824,Insumos!G:H,2,FALSE))","v":""}]
[null,null,null,null,null,{"$f":"IF(E4825=\"\",\"\",VLOOKUP(E4825,Insumos!AD:AE,2,FALSE))","v":""},null,{"$f":"IF(G4825=\"\",\"\",VLOOKUP(G4825,Insumos!G:H,2,FALSE))","v":""}]
[null,null,null,null,null,{"$f":"IF(E4826=\"\",\"\",VLOOKUP(E4826,Insumos!AD:AE,2,FALSE))","v":""},null,{"$f":"IF(G4826=\"\",\"\",VLOOKUP(G4826,Insumos!G:H,2,FALSE))","v":""}]
[null,null,null,null,null,{"$f":"IF(E4827=\"\",\"\",VLOOKUP(E4827,Insumos!AD:AE,2,FALSE))","v":""},null,{"$f":"IF(G4827=\"\",\"\",VLOOKUP(G4827,Insumos!G:H,2,FALSE))","v":""}]
[null,null,null,null,null,{"$f":"IF(E4828=\"\",\"\",VLOOKUP(E4828,Insumos!AD:AE,2,FALSE))","v":""},null,{"$f":"IF(G4828=\"\",\"\",VLOOKUP(G4828,Insumos!G:H,2,FALSE))","v":""}]
[null,null,null,null,null,{"$f":"IF(E4829=\"\",\"\",VLOOKUP(E4829,Insumos!AD:AE,2,FALSE))","v":""},null,{"$f":"IF(G4829=\"\",\"\",VLOOKUP(G4829,Insumos!G:H,2,FALSE))","v":""}]
[null,null,null,null,null,{"$f":"IF(E4830=\"\",\"\",VLOOKUP(E4830,Insumos!AD:AE,2,FALSE))","v":""},null,{"$f":"IF(G4830=\"\",\"\",VLOOKUP(G4830,Insumos!G:H,2,FALSE))","v":""}]
[null,null,null,null,null,{"$f":"IF(E4831=\"\",\"\",VLOOKUP(E4831,Insumos!AD:AE,2,FALSE))","v":""},null,{"$f":"IF(G4831=\"\",\"\",VLOOKUP(G4831,Insumos!G:H,2,FALSE))","v":""}]
[null,null,null,null,null,{"$f":"IF(E4832=\"\",\"\",VLOOKUP(E4832,Insumos!AD:AE,2,FALSE))","v":""},null,{"$f":"IF(G4832=\"\",\"\",VLOOKUP(G4832,Insumos!G:H,2,FALSE))","v":""}]
[null,null,null,null,null,{"$f":"IF(E4833=\"\",\"\",VLOOKUP(E4833,Insumos!AD:AE,2,FALSE))","v":""},null,{"$f":"IF(G4833=\"\",\"\",VLOOKUP(G4833,Insumos!G:H,2,FALSE))","v":""}]
[null,null,null,null,null,{"$f":"IF(E4834=\"\",\"\",VLOOKUP(E4834,Insumos!AD:AE,2,FALSE))","v":""},null,{"$f":"IF(G4834=\"\",\"\",VLOOKUP(G4834,Insumos!G:H,2,FALSE))","v":""}]
[null,null,null,null,null,{"$f":"IF(E4835=\"\",\"\",VLOOKUP(E4835,Insumos!AD:AE,2,FALSE))","v":""},null,{"$f":"IF(G4835=\"\",\"\",VLOOKUP(G4835,Insumos!G:H,2,FALSE))","v":""}]
[null,null,null,null,null,{"$f":"IF(E4836=\"\",\"\",VLOOKUP(E4836,Insumos!AD:AE,2,FALSE))","v":""},null,{"$f":"IF(G4836=\"\",\"\",VLOOKUP(G4836,Insumos!G:H,2,FALSE))","v":""}]
[null,null,null,null,null,{"$f":"IF(E4837=\"\",\"\",VLOOKUP(E4837,Insumos!AD:AE,2,FALSE))","v":""},null,{"$f":"IF(G4837=\"\",\"\",VLOOKUP(G4837,Insumos!G:H,2,FALSE))","v":""}]
[null,null,null,null,null,{"$f":"IF(E4838=\"\",\"\",VLOOKUP(E4838,Insumos!AD:AE,2,FALSE))","v":""},null,{"$f":"IF(G4838=\"\",\"\",VLOOKUP(G4838,Insumos!G:H,2,FALSE))","v":""}]
[null,null,null,null,null,{"$f":"IF(E4839=\"\",\"\",VLOOKUP(E4839,Insumos!AD:AE,2,FALSE))","v":""},null,{"$f":"IF(G4839=\"\",\"\",VLOOKUP(G4839,Insumos!G:H,2,FALSE))","v":""}]
[null,null,null,null,null,{"$f":"IF(E4840=\"\",\"\",VLOOKUP(E4840,Insumos!AD:AE,2,FALSE))","v":""},null,{"$f":"IF(G4840=\"\",\"\",VLOOKUP(G4840,Insumos!G:H,2,FALSE))","v":""}]
[null,null,null,null,null,{"$f":"IF(E4841=\"\",\"\",VLOOKUP(E4841,Insumos!AD:AE,2,FALSE))","v":""},null,{"$f":"IF(G4841=\"\",\"\",VLOOKUP(G4841,Insumos!G:H,2,FALSE))","v":""}]
[null,null,null,null,null,{"$f":"IF(E4842=\"\",\"\",VLOOKUP(E4842,Insumos!AD:AE,2,FALSE))","v":""},null,{"$f":"IF(G4842=\"\",\"\",VLOOKUP(G4842,Insumos!G:H,2,FALSE))","v":""}]
[null,null,null,null,null,{"$f":"IF(E4843=\"\",\"\",VLOOKUP(E4843,Insumos!AD:AE,2,FALSE))","v":""},null,{"$f":"IF(G4843=\"\",\"\",VLOOKUP(G4843,Insumos!G:H,2,FALSE))","v":""}]
[null,null,null,null,null,{"$f":"IF(E4844=\"\",\"\",VLOOKUP(E4844,Insumos!AD:AE,2,FALSE))","v":""},null,{"$f":"IF(G4844=\"\",\"\",VLOOKUP(G4844,Insumos!G:H,2,FALSE))","v":""}]
[null,null,null,null,null,{"$f":"IF(E4845=\"\",\"\",VLOOKUP(E4845,Insumos!AD:AE,2,FALSE))","v":""},null,{"$f":"IF(G4845=\"\",\"\",VLOOKUP(G4845,Insumos!G:H,2,FALSE))","v":""}]
[null,null,null,null,null,{"$f":"IF(E4846=\"\",\"\",VLOOKUP(E4846,Insumos!AD:AE,2,FALSE))","v":""},null,{"$f":"IF(G4846=\"\",\"\",VLOOKUP(G4846,Insumos!G:H,2,FALSE))","v":""}]
[null,null,null,null,null,{"$f":"IF(E4847=\"\",\"\",VLOOKUP(E4847,Insumos!AD:AE,2,FALSE))","v":""},null,{"$f":"IF(G4847=\"\",\"\",VLOOKUP(G4847,Insumos!G:H,2,FALSE))","v":""}]
[null,null,null,null,null,{"$f":"IF(E4848=\"\",\"\",VLOOKUP(E4848,Insumos!AD:AE,2,FALSE))","v":""},null,{"$f":"IF(G4848=\"\",\"\",VLOOKUP(G4848,Insumos!G:H,2,FALSE))","v":""}]
[null,null,null,null,null,{"$f":"IF(E4849=\"\",\"\",VLOOKUP(E4849,Insumos!AD:AE,2,FALSE))","v":""},null,{"$f":"IF(G4849=\"\",\"\",VLOOKUP(G4849,Insumos!G:H,2,FALSE))","v":""}]
[null,null,null,null,null,{"$f":"IF(E4850=\"\",\"\",VLOOKUP(E4850,Insumos!AD:AE,2,FALSE))","v":""},null,{"$f":"IF(G4850=\"\",\"\",VLOOKUP(G4850,Insumos!G:H,2,FALSE))","v":""}]
[null,null,null,null,null,{"$f":"IF(E4851=\"\",\"\",VLOOKUP(E4851,Insumos!AD:AE,2,FALSE))","v":""},null,{"$f":"IF(G4851=\"\",\"\",VLOOKUP(G4851,Insumos!G:H,2,FALSE))","v":""}]
[null,null,null,null,null,{"$f":"IF(E4852=\"\",\"\",VLOOKUP(E4852,Insumos!AD:AE,2,FALSE))","v":""},null,{"$f":"IF(G4852=\"\",\"\",VLOOKUP(G4852,Insumos!G:H,2,FALSE))","v":""}]
[null,null,null,null,null,{"$f":"IF(E4853=\"\",\"\",VLOOKUP(E4853,Insumos!AD:AE,2,FALSE))","v":""},null,{"$f":"IF(G4853=\"\",\"\",VLOOKUP(G4853,Insumos!G:H,2,FALSE))","v":""}]
[null,null,null,null,null,{"$f":"IF(E4854=\"\",\"\",VLOOKUP(E4854,Insumos!AD:AE,2,FALSE))","v":""},null,{"$f":"IF(G4854=\"\",\"\",VLOOKUP(G4854,Insumos!G:H,2,FALSE))","v":""}]
[null,null,null,null,null,{"$f":"IF(E4855=\"\",\"\",VLOOKUP(E4855,Insumos!AD:AE,2,FALSE))","v":""},null,{"$f":"IF(G4855=\"\",\"\",VLOOKUP(G4855,Insumos!G:H,2,FALSE))","v":""}]
[null,null,null,null,null,{"$f":"IF(E4856=\"\",\"\",VLOOKUP(E4856,Insumos!AD:AE,2,FALSE))","v":""},null,{"$f":"IF(G4856=\"\",\"\",VLOOKUP(G4856,Insumos!G:H,2,FALSE))","v":""}]
[null,null,null,null,null,{"$f":"IF(E4857=\"\",\"\",VLOOKUP(E4857,Insumos!AD:AE,2,FALSE))","v":""},null,{"$f":"IF(G4857=\"\",\"\",VLOOKUP(G4857,Insumos!G:H,2,FALSE))","v":""}]
[null,null,null,null,null,{"$f":"IF(E4858=\"\",\"\",VLOOKUP(E4858,Insumos!AD:AE,2,FALSE))","v":""},null,{"$f":"IF(G4858=\"\",\"\",VLOOKUP(G4858,Insumos!G:H,2,FALSE))","v":""}]
[null,null,null,null,null,{"$f":"IF(E4859=\"\",\"\",VLOOKUP(E4859,Insumos!AD:AE,2,FALSE))","v":""},null,{"$f":"IF(G4859=\"\",\"\",VLOOKUP(G4859,Insumos!G:H,2,FALSE))","v":""}]
[null,null,null,null,null,{"$f":"IF(E4860=\"\",\"\",VLOOKUP(E4860,Insumos!AD:AE,2,FALSE))","v":""},null,{"$f":"IF(G4860=\"\",\"\",VLOOKUP(G4860,Insumos!G:H,2,FALSE))","v":""}]
[null,null,null,null,null,{"$f":"IF(E4861=\"\",\"\",VLOOKUP(E4861,Insumos!AD:AE,2,FALSE))","v":""},null,{"$f":"IF(G4861=\"\",\"\",VLOOKUP(G4861,Insumos!G:H,2,FALSE))","v":""}]
[null,null,null,null,null,{"$f":"IF(E4862=\"\",\"\",VLOOKUP(E4862,Insumos!AD:AE,2,FALSE))","v":""},null,{"$f":"IF(G4862=\"\",\"\",VLOOKUP(G4862,Insumos!G:H,2,FALSE))","v":""}]
[null,null,null,null,null,{"$f":"IF(E4863=\"\",\"\",VLOOKUP(E4863,Insumos!AD:AE,2,FALSE))","v":""},null,{"$f":"IF(G4863=\"\",\"\",VLOOKUP(G4863,Insumos!G:H,2,FALSE))","v":""}]
[null,null,null,null,null,{"$f":"IF(E4864=\"\",\"\",VLOOKUP(E4864,Insumos!AD:AE,2,FALSE))","v":""},null,{"$f":"IF(G4864=\"\",\"\",VLOOKUP(G4864,Insumos!G:H,2,FALSE))","v":""}]
[null,null,null,null,null,{"$f":"IF(E4865=\"\",\"\",VLOOKUP(E4865,Insumos!AD:AE,2,FALSE))","v":""},null,{"$f":"IF(G4865=\"\",\"\",VLOOKUP(G4865,Insumos!G:H,2,FALSE))","v":""}]
[null,null,null,null,null,{"$f":"IF(E4866=\"\",\"\",VLOOKUP(E4866,Insumos!AD:AE,2,FALSE))","v":""},null,{"$f":"IF(G4866=\"\",\"\",VLOOKUP(G4866,Insumos!G:H,2,FALSE))","v":""}]
[null,null,null,null,null,{"$f":"IF(E4867=\"\",\"\",VLOOKUP(E4867,Insumos!AD:AE,2,FALSE))","v":""},null,{"$f":"IF(G4867=\"\",\"\",VLOOKUP(G4867,Insumos!G:H,2,FALSE))","v":""}]
[null,null,null,null,null,{"$f":"IF(E4868=\"\",\"\",VLOOKUP(E4868,Insumos!AD:AE,2,FALSE))","v":""},null,{"$f":"IF(G4868=\"\",\"\",VLOOKUP(G4868,Insumos!G:H,2,FALSE))","v":""}]
[null,null,null,null,null,{"$f":"IF(E4869=\"\",\"\",VLOOKUP(E4869,Insumos!AD:AE,2,FALSE))","v":""},null,{"$f":"IF(G4869=\"\",\"\",VLOOKUP(G4869,Insumos!G:H,2,FALSE))","v":""}]
[null,null,null,null,null,{"$f":"IF(E4870=\"\",\"\",VLOOKUP(E4870,Insumos!AD:AE,2,FALSE))","v":""},null,{"$f":"IF(G4870=\"\",\"\",VLOOKUP(G4870,Insumos!G:H,2,FALSE))","v":""}]
[null,null,null,null,null,{"$f":"IF(E4871=\"\",\"\",VLOOKUP(E4871,Insumos!AD:AE,2,FALSE))","v":""},null,{"$f":"IF(G4871=\"\",\"\",VLOOKUP(G4871,Insumos!G:H,2,FALSE))","v":""}]
[null,null,null,null,null,{"$f":"IF(E4872=\"\",\"\",VLOOKUP(E4872,Insumos!AD:AE,2,FALSE))","v":""},null,{"$f":"IF(G4872=\"\",\"\",VLOOKUP(G4872,Insumos!G:H,2,FALSE))","v":""}]
[null,null,null,null,null,{"$f":"IF(E4873=\"\",\"\",VLOOKUP(E4873,Insumos!AD:AE,2,FALSE))","v":""},null,{"$f":"IF(G4873=\"\",\"\",VLOOKUP(G4873,Insumos!G:H,2,FALSE))","v":""}]
[null,null,null,null,null,{"$f":"IF(E4874=\"\",\"\",VLOOKUP(E4874,Insumos!AD:AE,2,FALSE))","v":""},null,{"$f":"IF(G4874=\"\",\"\",VLOOKUP(G4874,Insumos!G:H,2,FALSE))","v":""}]
[null,null,null,null,null,{"$f":"IF(E4875=\"\",\"\",VLOOKUP(E4875,Insumos!AD:AE,2,FALSE))","v":""},null,{"$f":"IF(G4875=\"\",\"\",VLOOKUP(G4875,Insumos!G:H,2,FALSE))","v":""}]
[null,null,null,null,null,{"$f":"IF(E4876=\"\",\"\",VLOOKUP(E4876,Insumos!AD:AE,2,FALSE))","v":""},null,{"$f":"IF(G4876=\"\",\"\",VLOOKUP(G4876,Insumos!G:H,2,FALSE))","v":""}]
[null,null,null,null,null,{"$f":"IF(E4877=\"\",\"\",VLOOKUP(E4877,Insumos!AD:AE,2,FALSE))","v":""},null,{"$f":"IF(G4877=\"\",\"\",VLOOKUP(G4877,Insumos!G:H,2,FALSE))","v":""}]
[null,null,null,null,null,{"$f":"IF(E4878=\"\",\"\",VLOOKUP(E4878,Insumos!AD:AE,2,FALSE))","v":""},null,{"$f":"IF(G4878=\"\",\"\",VLOOKUP(G4878,Insumos!G:H,2,FALSE))","v":""}]
[null,null,null,null,null,{"$f":"IF(E4879=\"\",\"\",VLOOKUP(E4879,Insumos!AD:AE,2,FALSE))","v":""},null,{"$f":"IF(G4879=\"\",\"\",VLOOKUP(G4879,Insumos!G:H,2,FALSE))","v":""}]
[null,null,null,null,null,{"$f":"IF(E4880=\"\",\"\",VLOOKUP(E4880,Insumos!AD:AE,2,FALSE))","v":""},null,{"$f":"IF(G4880=\"\",\"\",VLOOKUP(G4880,Insumos!G:H,2,FALSE))","v":""}]
[null,null,null,null,null,{"$f":"IF(E4881=\"\",\"\",VLOOKUP(E4881,Insumos!AD:AE,2,FALSE))","v":""},null,{"$f":"IF(G4881=\"\",\"\",VLOOKUP(G4881,Insumos!G:H,2,FALSE))","v":""}]
[null,null,null,null,null,{"$f":"IF(E4882=\"\",\"\",VLOOKUP(E4882,Insumos!AD:AE,2,FALSE))","v":""},null,{"$f":"IF(G4882=\"\",\"\",VLOOKUP(G4882,Insumos!G:H,2,FALSE))","v":""}]
[null,null,null,null,null,{"$f":"IF(E4883=\"\",\"\",VLOOKUP(E4883,Insumos!AD:AE,2,FALSE))","v":""},null,{"$f":"IF(G4883=\"\",\"\",VLOOKUP(G4883,Insumos!G:H,2,FALSE))","v":""}]
[null,null,null,null,null,{"$f":"IF(E4884=\"\",\"\",VLOOKUP(E4884,Insumos!AD:AE,2,FALSE))","v":""},null,{"$f":"IF(G4884=\"\",\"\",VLOOKUP(G4884,Insumos!G:H,2,FALSE))","v":""}]
[null,null,null,null,null,{"$f":"IF(E4885=\"\",\"\",VLOOKUP(E4885,Insumos!AD:AE,2,FALSE))","v":""},null,{"$f":"IF(G4885=\"\",\"\",VLOOKUP(G4885,Insumos!G:H,2,FALSE))","v":""}]
[null,null,null,null,null,{"$f":"IF(E4886=\"\",\"\",VLOOKUP(E4886,Insumos!AD:AE,2,FALSE))","v":""},null,{"$f":"IF(G4886=\"\",\"\",VLOOKUP(G4886,Insumos!G:H,2,FALSE))","v":""}]
[null,null,null,null,null,{"$f":"IF(E4887=\"\",\"\",VLOOKUP(E4887,Insumos!AD:AE,2,FALSE))","v":""},null,{"$f":"IF(G4887=\"\",\"\",VLOOKUP(G4887,Insumos!G:H,2,FALSE))","v":""}]
[null,null,null,null,null,{"$f":"IF(E4888=\"\",\"\",VLOOKUP(E4888,Insumos!AD:AE,2,FALSE))","v":""},null,{"$f":"IF(G4888=\"\",\"\",VLOOKUP(G4888,Insumos!G:H,2,FALSE))","v":""}]
[null,null,null,null,null,{"$f":"IF(E4889=\"\",\"\",VLOOKUP(E4889,Insumos!AD:AE,2,FALSE))","v":""},null,{"$f":"IF(G4889=\"\",\"\",VLOOKUP(G4889,Insumos!G:H,2,FALSE))","v":""}]
[null,null,null,null,null,{"$f":"IF(E4890=\"\",\"\",VLOOKUP(E4890,Insumos!AD:AE,2,FALSE))","v":""},null,{"$f":"IF(G4890=\"\",\"\",VLOOKUP(G4890,Insumos!G:H,2,FALSE))","v":""}]
[null,null,null,null,null,{"$f":"IF(E4891=\"\",\"\",VLOOKUP(E4891,Insumos!AD:AE,2,FALSE))","v":""},null,{"$f":"IF(G4891=\"\",\"\",VLOOKUP(G4891,Insumos!G:H,2,FALSE))","v":""}]
[null,null,null,null,null,{"$f":"IF(E4892=\"\",\"\",VLOOKUP(E4892,Insumos!AD:AE,2,FALSE))","v":""},null,{"$f":"IF(G4892=\"\",\"\",VLOOKUP(G4892,Insumos!G:H,2,FALSE))","v":""}]
[null,null,null,null,null,{"$f":"IF(E4893=\"\",\"\",VLOOKUP(E4893,Insumos!AD:AE,2,FALSE))","v":""},null,{"$f":"IF(G4893=\"\",\"\",VLOOKUP(G4893,Insumos!G:H,2,FALSE))","v":""}]
[null,null,null,null,null,{"$f":"IF(E4894=\"\",\"\",VLOOKUP(E4894,Insumos!AD:AE,2,FALSE))","v":""},null,{"$f":"IF(G4894=\"\",\"\",VLOOKUP(G4894,Insumos!G:H,2,FALSE))","v":""}]
[null,null,null,null,null,{"$f":"IF(E4895=\"\",\"\",VLOOKUP(E4895,Insumos!AD:AE,2,FALSE))","v":""},null,{"$f":"IF(G4895=\"\",\"\",VLOOKUP(G4895,Insumos!G:H,2,FALSE))","v":""}]
[null,null,null,null,null,{"$f":"IF(E4896=\"\",\"\",VLOOKUP(E4896,Insumos!AD:AE,2,FALSE))","v":""},null,{"$f":"IF(G4896=\"\",\"\",VLOOKUP(G4896,Insumos!G:H,2,FALSE))","v":""}]
[null,null,null,null,null,{"$f":"IF(E4897=\"\",\"\",VLOOKUP(E4897,Insumos!AD:AE,2,FALSE))","v":""},null,{"$f":"IF(G4897=\"\",\"\",VLOOKUP(G4897,Insumos!G:H,2,FALSE))","v":""}]
[null,null,null,null,null,{"$f":"IF(E4898=\"\",\"\",VLOOKUP(E4898,Insumos!AD:AE,2,FALSE))","v":""},null,{"$f":"IF(G4898=\"\",\"\",VLOOKUP(G4898,Insumos!G:H,2,FALSE))","v":""}]
[null,null,null,null,null,{"$f":"IF(E4899=\"\",\"\",VLOOKUP(E4899,Insumos!AD:AE,2,FALSE))","v":""},null,{"$f":"IF(G4899=\"\",\"\",VLOOKUP(G4899,Insumos!G:H,2,FALSE))","v":""}]
[null,null,null,null,null,{"$f":"IF(E4900=\"\",\"\",VLOOKUP(E4900,Insumos!AD:AE,2,FALSE))","v":""},null,{"$f":"IF(G4900=\"\",\"\",VLOOKUP(G4900,Insumos!G:H,2,FALSE))","v":""}]
[null,null,null,null,null,{"$f":"IF(E4901=\"\",\"\",VLOOKUP(E4901,Insumos!AD:AE,2,FALSE))","v":""},null,{"$f":"IF(G4901=\"\",\"\",VLOOKUP(G4901,Insumos!G:H,2,FALSE))","v":""}]
[null,null,null,null,null,{"$f":"IF(E4902=\"\",\"\",VLOOKUP(E4902,Insumos!AD:AE,2,FALSE))","v":""},null,{"$f":"IF(G4902=\"\",\"\",VLOOKUP(G4902,Insumos!G:H,2,FALSE))","v":""}]
[null,null,null,null,null,{"$f":"IF(E4903=\"\",\"\",VLOOKUP(E4903,Insumos!AD:AE,2,FALSE))","v":""},null,{"$f":"IF(G4903=\"\",\"\",VLOOKUP(G4903,Insumos!G:H,2,FALSE))","v":""}]
[null,null,null,null,null,{"$f":"IF(E4904=\"\",\"\",VLOOKUP(E4904,Insumos!AD:AE,2,FALSE))","v":""},null,{"$f":"IF(G4904=\"\",\"\",VLOOKUP(G4904,Insumos!G:H,2,FALSE))","v":""}]
[null,null,null,null,null,{"$f":"IF(E4905=\"\",\"\",VLOOKUP(E4905,Insumos!AD:AE,2,FALSE))","v":""},null,{"$f":"IF(G4905=\"\",\"\",VLOOKUP(G4905,Insumos!G:H,2,FALSE))","v":""}]
[null,null,null,null,null,{"$f":"IF(E4906=\"\",\"\",VLOOKUP(E4906,Insumos!AD:AE,2,FALSE))","v":""},null,{"$f":"IF(G4906=\"\",\"\",VLOOKUP(G4906,Insumos!G:H,2,FALSE))","v":""}]
[null,null,null,null,null,{"$f":"IF(E4907=\"\",\"\",VLOOKUP(E4907,Insumos!AD:AE,2,FALSE))","v":""},null,{"$f":"IF(G4907=\"\",\"\",VLOOKUP(G4907,Insumos!G:H,2,FALSE))","v":""}]
[null,null,null,null,null,{"$f":"IF(E4908=\"\",\"\",VLOOKUP(E4908,Insumos!AD:AE,2,FALSE))","v":""},null,{"$f":"IF(G4908=\"\",\"\",VLOOKUP(G4908,Insumos!G:H,2,FALSE))","v":""}]
[null,null,null,null,null,{"$f":"IF(E4909=\"\",\"\",VLOOKUP(E4909,Insumos!AD:AE,2,FALSE))","v":""},null,{"$f":"IF(G4909=\"\",\"\",VLOOKUP(G4909,Insumos!G:H,2,FALSE))","v":""}]
[null,null,null,null,null,{"$f":"IF(E4910=\"\",\"\",VLOOKUP(E4910,Insumos!AD:AE,2,FALSE))","v":""},null,{"$f":"IF(G4910=\"\",\"\",VLOOKUP(G4910,Insumos!G:H,2,FALSE))","v":""}]
[null,null,null,null,null,{"$f":"IF(E4911=\"\",\"\",VLOOKUP(E4911,Insumos!AD:AE,2,FALSE))","v":""},null,{"$f":"IF(G4911=\"\",\"\",VLOOKUP(G4911,Insumos!G:H,2,FALSE))","v":""}]
[null,null,null,null,null,{"$f":"IF(E4912=\"\",\"\",VLOOKUP(E4912,Insumos!AD:AE,2,FALSE))","v":""},null,{"$f":"IF(G4912=\"\",\"\",VLOOKUP(G4912,Insumos!G:H,2,FALSE))","v":""}]
[null,null,null,null,null,{"$f":"IF(E4913=\"\",\"\",VLOOKUP(E4913,Insumos!AD:AE,2,FALSE))","v":""},null,{"$f":"IF(G4913=\"\",\"\",VLOOKUP(G4913,Insumos!G:H,2,FALSE))","v":""}]
[null,null,null,null,null,{"$f":"IF(E4914=\"\",\"\",VLOOKUP(E4914,Insumos!AD:AE,2,FALSE))","v":""},null,{"$f":"IF(G4914=\"\",\"\",VLOOKUP(G4914,Insumos!G:H,2,FALSE))","v":""}]
[null,null,null,null,null,{"$f":"IF(E4915=\"\",\"\",VLOOKUP(E4915,Insumos!AD:AE,2,FALSE))","v":""},null,{"$f":"IF(G4915=\"\",\"\",VLOOKUP(G4915,Insumos!G:H,2,FALSE))","v":""}]
[null,null,null,null,null,{"$f":"IF(E4916=\"\",\"\",VLOOKUP(E4916,Insumos!AD:AE,2,FALSE))","v":""},null,{"$f":"IF(G4916=\"\",\"\",VLOOKUP(G4916,Insumos!G:H,2,FALSE))","v":""}]
[null,null,null,null,null,{"$f":"IF(E4917=\"\",\"\",VLOOKUP(E4917,Insumos!AD:AE,2,FALSE))","v":""},null,{"$f":"IF(G4917=\"\",\"\",VLOOKUP(G4917,Insumos!G:H,2,FALSE))","v":""}]
[null,null,null,null,null,{"$f":"IF(E4918=\"\",\"\",VLOOKUP(E4918,Insumos!AD:AE,2,FALSE))","v":""},null,{"$f":"IF(G4918=\"\",\"\",VLOOKUP(G4918,Insumos!G:H,2,FALSE))","v":""}]
[null,null,null,null,null,{"$f":"IF(E4919=\"\",\"\",VLOOKUP(E4919,Insumos!AD:AE,2,FALSE))","v":""},null,{"$f":"IF(G4919=\"\",\"\",VLOOKUP(G4919,Insumos!G:H,2,FALSE))","v":""}]
[null,null,null,null,null,{"$f":"IF(E4920=\"\",\"\",VLOOKUP(E4920,Insumos!AD:AE,2,FALSE))","v":""},null,{"$f":"IF(G4920=\"\",\"\",VLOOKUP(G4920,Insumos!G:H,2,FALSE))","v":""}]
[null,null,null,null,null,{"$f":"IF(E4921=\"\",\"\",VLOOKUP(E4921,Insumos!AD:AE,2,FALSE))","v":""},null,{"$f":"IF(G4921=\"\",\"\",VLOOKUP(G4921,Insumos!G:H,2,FALSE))","v":""}]
[null,null,null,null,null,{"$f":"IF(E4922=\"\",\"\",VLOOKUP(E4922,Insumos!AD:AE,2,FALSE))","v":""},null,{"$f":"IF(G4922=\"\",\"\",VLOOKUP(G4922,Insumos!G:H,2,FALSE))","v":""}]
[null,null,null,null,null,{"$f":"IF(E4923=\"\",\"\",VLOOKUP(E4923,Insumos!AD:AE,2,FALSE))","v":""},null,{"$f":"IF(G4923=\"\",\"\",VLOOKUP(G4923,Insumos!G:H,2,FALSE))","v":""}]
[null,null,null,null,null,{"$f":"IF(E4924=\"\",\"\",VLOOKUP(E4924,Insumos!AD:AE,2,FALSE))","v":""},null,{"$f":"IF(G4924=\"\",\"\",VLOOKUP(G4924,Insumos!G:H,2,FALSE))","v":""}]
[null,null,null,null,null,{"$f":"IF(E4925=\"\",\"\",VLOOKUP(E4925,Insumos!AD:AE,2,FALSE))","v":""},null,{"$f":"IF(G4925=\"\",\"\",VLOOKUP(G4925,Insumos!G:H,2,FALSE))","v":""}]
[null,null,null,null,null,{"$f":"IF(E4926=\"\",\"\",VLOOKUP(E4926,Insumos!AD:AE,2,FALSE))","v":""},null,{"$f":"IF(G4926=\"\",\"\",VLOOKUP(G4926,Insumos!G:H,2,FALSE))","v":""}]
[null,null,null,null,null,{"$f":"IF(E4927=\"\",\"\",VLOOKUP(E4927,Insumos!AD:AE,2,FALSE))","v":""},null,{"$f":"IF(G4927=\"\",\"\",VLOOKUP(G4927,Insumos!G:H,2,FALSE))","v":""}]
[null,null,null,null,null,{"$f":"IF(E4928=\"\",\"\",VLOOKUP(E4928,Insumos!AD:AE,2,FALSE))","v":""},null,{"$f":"IF(G4928=\"\",\"\",VLOOKUP(G4928,Insumos!G:H,2,FALSE))","v":""}]
[null,null,null,null,null,{"$f":"IF(E4929=\"\",\"\",VLOOKUP(E4929,Insumos!AD:AE,2,FALSE))","v":""},null,{"$f":"IF(G4929=\"\",\"\",VLOOKUP(G4929,Insumos!G:H,2,FALSE))","v":""}]
[null,null,null,null,null,{"$f":"IF(E4930=\"\",\"\",VLOOKUP(E4930,Insumos!AD:AE,2,FALSE))","v":""},null,{"$f":"IF(G4930=\"\",\"\",VLOOKUP(G4930,Insumos!G:H,2,FALSE))","v":""}]
[null,null,null,null,null,{"$f":"IF(E4931=\"\",\"\",VLOOKUP(E4931,Insumos!AD:AE,2,FALSE))","v":""},null,{"$f":"IF(G4931=\"\",\"\",VLOOKUP(G4931,Insumos!G:H,2,FALSE))","v":""}]
[null,null,null,null,null,{"$f":"IF(E4932=\"\",\"\",VLOOKUP(E4932,Insumos!AD:AE,2,FALSE))","v":""},null,{"$f":"IF(G4932=\"\",\"\",VLOOKUP(G4932,Insumos!G:H,2,FALSE))","v":""}]
[null,null,null,null,null,{"$f":"IF(E4933=\"\",\"\",VLOOKUP(E4933,Insumos!AD:AE,2,FALSE))","v":""},null,{"$f":"IF(G4933=\"\",\"\",VLOOKUP(G4933,Insumos!G:H,2,FALSE))","v":""}]
[null,null,null,null,null,{"$f":"IF(E4934=\"\",\"\",VLOOKUP(E4934,Insumos!AD:AE,2,FALSE))","v":""},null,{"$f":"IF(G4934=\"\",\"\",VLOOKUP(G4934,Insumos!G:H,2,FALSE))","v":""}]
[null,null,null,null,null,{"$f":"IF(E4935=\"\",\"\",VLOOKUP(E4935,Insumos!AD:AE,2,FALSE))","v":""},null,{"$f":"IF(G4935=\"\",\"\",VLOOKUP(G4935,Insumos!G:H,2,FALSE))","v":""}]
[null,null,null,null,null,{"$f":"IF(E4936=\"\",\"\",VLOOKUP(E4936,Insumos!AD:AE,2,FALSE))","v":""},null,{"$f":"IF(G4936=\"\",\"\",VLOOKUP(G4936,Insumos!G:H,2,FALSE))","v":""}]
[null,null,null,null,null,{"$f":"IF(E4937=\"\",\"\",VLOOKUP(E4937,Insumos!AD:AE,2,FALSE))","v":""},null,{"$f":"IF(G4937=\"\",\"\",VLOOKUP(G4937,Insumos!G:H,2,FALSE))","v":""}]
[null,null,null,null,null,{"$f":"IF(E4938=\"\",\"\",VLOOKUP(E4938,Insumos!AD:AE,2,FALSE))","v":""},null,{"$f":"IF(G4938=\"\",\"\",VLOOKUP(G4938,Insumos!G:H,2,FALSE))","v":""}]
[null,null,null,null,null,{"$f":"IF(E4939=\"\",\"\",VLOOKUP(E4939,Insumos!AD:AE,2,FALSE))","v":""},null,{"$f":"IF(G4939=\"\",\"\",VLOOKUP(G4939,Insumos!G:H,2,FALSE))","v":""}]
[null,null,null,null,null,{"$f":"IF(E4940=\"\",\"\",VLOOKUP(E4940,Insumos!AD:AE,2,FALSE))","v":""},null,{"$f":"IF(G4940=\"\",\"\",VLOOKUP(G4940,Insumos!G:H,2,FALSE))","v":""}]
[null,null,null,null,null,{"$f":"IF(E4941=\"\",\"\",VLOOKUP(E4941,Insumos!AD:AE,2,FALSE))","v":""},null,{"$f":"IF(G4941=\"\",\"\",VLOOKUP(G4941,Insumos!G:H,2,FALSE))","v":""}]
[null,null,null,null,null,{"$f":"IF(E4942=\"\",\"\",VLOOKUP(E4942,Insumos!AD:AE,2,FALSE))","v":""},null,{"$f":"IF(G4942=\"\",\"\",VLOOKUP(G4942,Insumos!G:H,2,FALSE))","v":""}]
[null,null,null,null,null,{"$f":"IF(E4943=\"\",\"\",VLOOKUP(E4943,Insumos!AD:AE,2,FALSE))","v":""},null,{"$f":"IF(G4943=\"\",\"\",VLOOKUP(G4943,Insumos!G:H,2,FALSE))","v":""}]
[null,null,null,null,null,{"$f":"IF(E4944=\"\",\"\",VLOOKUP(E4944,Insumos!AD:AE,2,FALSE))","v":""},null,{"$f":"IF(G4944=\"\",\"\",VLOOKUP(G4944,Insumos!G:H,2,FALSE))","v":""}]
[null,null,null,null,null,{"$f":"IF(E4945=\"\",\"\",VLOOKUP(E4945,Insumos!AD:AE,2,FALSE))","v":""},null,{"$f":"IF(G4945=\"\",\"\",VLOOKUP(G4945,Insumos!G:H,2,FALSE))","v":""}]
[null,null,null,null,null,{"$f":"IF(E4946=\"\",\"\",VLOOKUP(E4946,Insumos!AD:AE,2,FALSE))","v":""},null,{"$f":"IF(G4946=\"\",\"\",VLOOKUP(G4946,Insumos!G:H,2,FALSE))","v":""}]
[null,null,null,null,null,{"$f":"IF(E4947=\"\",\"\",VLOOKUP(E4947,Insumos!AD:AE,2,FALSE))","v":""},null,{"$f":"IF(G4947=\"\",\"\",VLOOKUP(G4947,Insumos!G:H,2,FALSE))","v":""}]
[null,null,null,null,null,{"$f":"IF(E4948=\"\",\"\",VLOOKUP(E4948,Insumos!AD:AE,2,FALSE))","v":""},null,{"$f":"IF(G4948=\"\",\"\",VLOOKUP(G4948,Insumos!G:H,2,FALSE))","v":""}]
[null,null,null,null,null,{"$f":"IF(E4949=\"\",\"\",VLOOKUP(E4949,Insumos!AD:AE,2,FALSE))","v":""},null,{"$f":"IF(G4949=\"\",\"\",VLOOKUP(G4949,Insumos!G:H,2,FALSE))","v":""}]
[null,null,null,null,null,{"$f":"IF(E4950=\"\",\"\",VLOOKUP(E4950,Insumos!AD:AE,2,FALSE))","v":""},null,{"$f":"IF(G4950=\"\",\"\",VLOOKUP(G4950,Insumos!G:H,2,FALSE))","v":""}]
[null,null,null,null,null,{"$f":"IF(E4951=\"\",\"\",VLOOKUP(E4951,Insumos!AD:AE,2,FALSE))","v":""},null,{"$f":"IF(G4951=\"\",\"\",VLOOKUP(G4951,Insumos!G:H,2,FALSE))","v":""}]
[null,null,null,null,null,{"$f":"IF(E4952=\"\",\"\",VLOOKUP(E4952,Insumos!AD:AE,2,FALSE))","v":""},null,{"$f":"IF(G4952=\"\",\"\",VLOOKUP(G4952,Insumos!G:H,2,FALSE))","v":""}]
[null,null,null,null,null,{"$f":"IF(E4953=\"\",\"\",VLOOKUP(E4953,Insumos!AD:AE,2,FALSE))","v":""},null,{"$f":"IF(G4953=\"\",\"\",VLOOKUP(G4953,Insumos!G:H,2,FALSE))","v":""}]
[null,null,null,null,null,{"$f":"IF(E4954=\"\",\"\",VLOOKUP(E4954,Insumos!AD:AE,2,FALSE))","v":""},null,{"$f":"IF(G4954=\"\",\"\",VLOOKUP(G4954,Insumos!G:H,2,FALSE))","v":""}]
[null,null,null,null,null,{"$f":"IF(E4955=\"\",\"\",VLOOKUP(E4955,Insumos!AD:AE,2,FALSE))","v":""},null,{"$f":"IF(G4955=\"\",\"\",VLOOKUP(G4955,Insumos!G:H,2,FALSE))","v":""}]
[null,null,null,null,null,{"$f":"IF(E4956=\"\",\"\",VLOOKUP(E4956,Insumos!AD:AE,2,FALSE))","v":""},null,{"$f":"IF(G4956=\"\",\"\",VLOOKUP(G4956,Insumos!G:H,2,FALSE))","v":""}]
[null,null,null,null,null,{"$f":"IF(E4957=\"\",\"\",VLOOKUP(E4957,Insumos!AD:AE,2,FALSE))","v":""},null,{"$f":"IF(G4957=\"\",\"\",VLOOKUP(G4957,Insumos!G:H,2,FALSE))","v":""}]
[null,null,null,null,null,{"$f":"IF(E4958=\"\",\"\",VLOOKUP(E4958,Insumos!AD:AE,2,FALSE))","v":""},null,{"$f":"IF(G4958=\"\",\"\",VLOOKUP(G4958,Insumos!G:H,2,FALSE))","v":""}]
[null,null,null,null,null,{"$f":"IF(E4959=\"\",\"\",VLOOKUP(E4959,Insumos!AD:AE,2,FALSE))","v":""},null,{"$f":"IF(G4959=\"\",\"\",VLOOKUP(G4959,Insumos!G:H,2,FALSE))","v":""}]
[null,null,null,null,null,{"$f":"IF(E4960=\"\",\"\",VLOOKUP(E4960,Insumos!AD:AE,2,FALSE))","v":""},null,{"$f":"IF(G4960=\"\",\"\",VLOOKUP(G4960,Insumos!G:H,2,FALSE))","v":""}]
[null,null,null,null,null,{"$f":"IF(E4961=\"\",\"\",VLOOKUP(E4961,Insumos!AD:AE,2,FALSE))","v":""},null,{"$f":"IF(G4961=\"\",\"\",VLOOKUP(G4961,Insumos!G:H,2,FALSE))","v":""}]
[null,null,null,null,null,{"$f":"IF(E4962=\"\",\"\",VLOOKUP(E4962,Insumos!AD:AE,2,FALSE))","v":""},null,{"$f":"IF(G4962=\"\",\"\",VLOOKUP(G4962,Insumos!G:H,2,FALSE))","v":""}]
[null,null,null,null,null,{"$f":"IF(E4963=\"\",\"\",VLOOKUP(E4963,Insumos!AD:AE,2,FALSE))","v":""},null,{"$f":"IF(G4963=\"\",\"\",VLOOKUP(G4963,Insumos!G:H,2,FALSE))","v":""}]
[null,null,null,null,null,{"$f":"IF(E4964=\"\",\"\",VLOOKUP(E4964,Insumos!AD:AE,2,FALSE))","v":""},null,{"$f":"IF(G4964=\"\",\"\",VLOOKUP(G4964,Insumos!G:H,2,FALSE))","v":""}]
[null,null,null,null,null,{"$f":"IF(E4965=\"\",\"\",VLOOKUP(E4965,Insumos!AD:AE,2,FALSE))","v":""},null,{"$f":"IF(G4965=\"\",\"\",VLOOKUP(G4965,Insumos!G:H,2,FALSE))","v":""}]
[null,null,null,null,null,{"$f":"IF(E4966=\"\",\"\",VLOOKUP(E4966,Insumos!AD:AE,2,FALSE))","v":""},null,{"$f":"IF(G4966=\"\",\"\",VLOOKUP(G4966,Insumos!G:H,2,FALSE))","v":""}]
[null,null,null,null,null,{"$f":"IF(E4967=\"\",\"\",VLOOKUP(E4967,Insumos!AD:AE,2,FALSE))","v":""},null,{"$f":"IF(G4967=\"\",\"\",VLOOKUP(G4967,Insumos!G:H,2,FALSE))","v":""}]
[null,null,null,null,null,{"$f":"IF(E4968=\"\",\"\",VLOOKUP(E4968,Insumos!AD:AE,2,FALSE))","v":""},null,{"$f":"IF(G4968=\"\",\"\",VLOOKUP(G4968,Insumos!G:H,2,FALSE))","v":""}]
[null,null,null,null,null,{"$f":"IF(E4969=\"\",\"\",VLOOKUP(E4969,Insumos!AD:AE,2,FALSE))","v":""},null,{"$f":"IF(G4969=\"\",\"\",VLOOKUP(G4969,Insumos!G:H,2,FALSE))","v":""}]
[null,null,null,null,null,{"$f":"IF(E4970=\"\",\"\",VLOOKUP(E4970,Insumos!AD:AE,2,FALSE))","v":""},null,{"$f":"IF(G4970=\"\",\"\",VLOOKUP(G4970,Insumos!G:H,2,FALSE))","v":""}]
[null,null,null,null,null,{"$f":"IF(E4971=\"\",\"\",VLOOKUP(E4971,Insumos!AD:AE,2,FALSE))","v":""},null,{"$f":"IF(G4971=\"\",\"\",VLOOKUP(G4971,Insumos!G:H,2,FALSE))","v":""}]
[null,null,null,null,null,{"$f":"IF(E4972=\"\",\"\",VLOOKUP(E4972,Insumos!AD:AE,2,FALSE))","v":""},null,{"$f":"IF(G4972=\"\",\"\",VLOOKUP(G4972,Insumos!G:H,2,FALSE))","v":""}]
[null,null,null,null,null,{"$f":"IF(E4973=\"\",\"\",VLOOKUP(E4973,Insumos!AD:AE,2,FALSE))","v":""},null,{"$f":"IF(G4973=\"\",\"\",VLOOKUP(G4973,Insumos!G:H,2,FALSE))","v":""}]
[null,null,null,null,null,{"$f":"IF(E4974=\"\",\"\",VLOOKUP(E4974,Insumos!AD:AE,2,FALSE))","v":""},null,{"$f":"IF(G4974=\"\",\"\",VLOOKUP(G4974,Insumos!G:H,2,FALSE))","v":""}]
[null,null,null,null,null,{"$f":"IF(E4975=\"\",\"\",VLOOKUP(E4975,Insumos!AD:AE,2,FALSE))","v":""},null,{"$f":"IF(G4975=\"\",\"\",VLOOKUP(G4975,Insumos!G:H,2,FALSE))","v":""}]
[null,null,null,null,null,{"$f":"IF(E4976=\"\",\"\",VLOOKUP(E4976,Insumos!AD:AE,2,FALSE))","v":""},null,{"$f":"IF(G4976=\"\",\"\",VLOOKUP(G4976,Insumos!G:H,2,FALSE))","v":""}]
[null,null,null,null,null,{"$f":"IF(E4977=\"\",\"\",VLOOKUP(E4977,Insumos!AD:AE,2,FALSE))","v":""},null,{"$f":"IF(G4977=\"\",\"\",VLOOKUP(G4977,Insumos!G:H,2,FALSE))","v":""}]
[null,null,null,null,null,{"$f":"IF(E4978=\"\",\"\",VLOOKUP(E4978,Insumos!AD:AE,2,FALSE))","v":""},null,{"$f":"IF(G4978=\"\",\"\",VLOOKUP(G4978,Insumos!G:H,2,FALSE))","v":""}]
[null,null,null,null,null,{"$f":"IF(E4979=\"\",\"\",VLOOKUP(E4979,Insumos!AD:AE,2,FALSE))","v":""},null,{"$f":"IF(G4979=\"\",\"\",VLOOKUP(G4979,Insumos!G:H,2,FALSE))","v":""}]
[null,null,null,null,null,{"$f":"IF(E4980=\"\",\"\",VLOOKUP(E4980,Insumos!AD:AE,2,FALSE))","v":""},null,{"$f":"IF(G4980=\"\",\"\",VLOOKUP(G4980,Insumos!G:H,2,FALSE))","v":""}]
[null,null,null,null,null,{"$f":"IF(E4981=\"\",\"\",VLOOKUP(E4981,Insumos!AD:AE,2,FALSE))","v":""},null,{"$f":"IF(G4981=\"\",\"\",VLOOKUP(G4981,Insumos!G:H,2,FALSE))","v":""}]
[null,null,null,null,null,{"$f":"IF(E4982=\"\",\"\",VLOOKUP(E4982,Insumos!AD:AE,2,FALSE))","v":""},null,{"$f":"IF(G4982=\"\",\"\",VLOOKUP(G4982,Insumos!G:H,2,FALSE))","v":""}]
[null,null,null,null,null,{"$f":"IF(E4983=\"\",\"\",VLOOKUP(E4983,Insumos!AD:AE,2,FALSE))","v":""},null,{"$f":"IF(G4983=\"\",\"\",VLOOKUP(G4983,Insumos!G:H,2,FALSE))","v":""}]
[null,null,null,null,null,{"$f":"IF(E4984=\"\",\"\",VLOOKUP(E4984,Insumos!AD:AE,2,FALSE))","v":""},null,{"$f":"IF(G4984=\"\",\"\",VLOOKUP(G4984,Insumos!G:H,2,FALSE))","v":""}]
[null,null,null,null,null,{"$f":"IF(E4985=\"\",\"\",VLOOKUP(E4985,Insumos!AD:AE,2,FALSE))","v":""},null,{"$f":"IF(G4985=\"\",\"\",VLOOKUP(G4985,Insumos!G:H,2,FALSE))","v":""}]
[null,null,null,null,null,{"$f":"IF(E4986=\"\",\"\",VLOOKUP(E4986,Insumos!AD:AE,2,FALSE))","v":""},null,{"$f":"IF(G4986=\"\",\"\",VLOOKUP(G4986,Insumos!G:H,2,FALSE))","v":""}]
[null,null,null,null,null,{"$f":"IF(E4987=\"\",\"\",VLOOKUP(E4987,Insumos!AD:AE,2,FALSE))","v":""},null,{"$f":"IF(G4987=\"\",\"\",VLOOKUP(G4987,Insumos!G:H,2,FALSE))","v":""}]
[null,null,null,null,null,{"$f":"IF(E4988=\"\",\"\",VLOOKUP(E4988,Insumos!AD:AE,2,FALSE))","v":""},null,{"$f":"IF(G4988=\"\",\"\",VLOOKUP(G4988,Insumos!G:H,2,FALSE))","v":""}]
[null,null,null,null,null,{"$f":"IF(E4989=\"\",\"\",VLOOKUP(E4989,Insumos!AD:AE,2,FALSE))","v":""},null,{"$f":"IF(G4989=\"\",\"\",VLOOKUP(G4989,Insumos!G:H,2,FALSE))","v":""}]
[null,null,null,null,null,{"$f":"IF(E4990=\"\",\"\",VLOOKUP(E4990,Insumos!AD:AE,2,FALSE))","v":""},null,{"$f":"IF(G4990=\"\",\"\",VLOOKUP(G4990,Insumos!G:H,2,FALSE))","v":""}]
[null,null,null,null,null,{"$f":"IF(E4991=\"\",\"\",VLOOKUP(E4991,Insumos!AD:AE,2,FALSE))","v":""},null,{"$f":"IF(G4991=\"\",\"\",VLOOKUP(G4991,Insumos!G:H,2,FALSE))","v":""}]
[null,null,null,null,null,{"$f":"IF(E4992=\"\",\"\",VLOOKUP(E4992,Insumos!AD:AE,2,FALSE))","v":""},null,{"$f":"IF(G4992=\"\",\"\",VLOOKUP(G4992,Insumos!G:H,2,FALSE))","v":""}]
[null,null,null,null,null,{"$f":"IF(E4993=\"\",\"\",VLOOKUP(E4993,Insumos!AD:AE,2,FALSE))","v":""},null,{"$f":"IF(G4993=\"\",\"\",VLOOKUP(G4993,Insumos!G:H,2,FALSE))","v":""}]
[null,null,null,null,null,{"$f":"IF(E4994=\"\",\"\",VLOOKUP(E4994,Insumos!AD:AE,2,FALSE))","v":""},null,{"$f":"IF(G4994=\"\",\"\",VLOOKUP(G4994,Insumos!G:H,2,FALSE))","v":""}]
[null,null,null,null,null,{"$f":"IF(E4995=\"\",\"\",VLOOKUP(E4995,Insumos!AD:AE,2,FALSE))","v":""},null,{"$f":"IF(G4995=\"\",\"\",VLOOKUP(G4995,Insumos!G:H,2,FALSE))","v":""}]
[null,null,null,null,null,{"$f":"IF(E4996=\"\",\"\",VLOOKUP(E4996,Insumos!AD:AE,2,FALSE))","v":""},null,{"$f":"IF(G4996=\"\",\"\",VLOOKUP(G4996,Insumos!G:H,2,FALSE))","v":""}]
[null,null,null,null,null,{"$f":"IF(E4997=\"\",\"\",VLOOKUP(E4997,Insumos!AD:AE,2,FALSE))","v":""},null,{"$f":"IF(G4997=\"\",\"\",VLOOKUP(G4997,Insumos!G:H,2,FALSE))","v":""}]
[null,null,null,null,null,{"$f":"IF(E4998=\"\",\"\",VLOOKUP(E4998,Insumos!AD:AE,2,FALSE))","v":""},null,{"$f":"IF(G4998=\"\",\"\",VLOOKUP(G4998,Insumos!G:H,2,FALSE))","v":""}]
[null,null,null,null,null,{"$f":"IF(E4999=\"\",\"\",VLOOKUP(E4999,Insumos!AD:AE,2,FALSE))","v":""},null,{"$f":"IF(G4999=\"\",\"\",VLOOKUP(G4999,Insumos!G:H,2,FALSE))","v":""}]
[null,null,null,null,null,{"$f":"IF(E5000=\"\",\"\",VLOOKUP(E5000,Insumos!AD:AE,2,FALSE))","v":""},null,{"$f":"IF(G5000=\"\",\"\",VLOOKUP(G5000,Insumos!G:H,2,FALSE))","v":""}]
[null,null,null,null,null,{"$f":"IF(E5001=\"\",\"\",VLOOKUP(E5001,Insumos!AD:AE,2,FALSE))","v":""},null,{"$f":"IF(G5001=\"\",\"\",VLOOKUP(G5001,Insumos!G:H,2,FALSE))","v":""}]
[null,null,null,null,null,{"$f":"IF(E5002=\"\",\"\",VLOOKUP(E5002,Insumos!AD:AE,2,FALSE))","v":""},null,{"$f":"IF(G5002=\"\",\"\",VLOOKUP(G5002,Insumos!G:H,2,FALSE))","v":""}]
[null,null,null,null,null,{"$f":"IF(E5003=\"\",\"\",VLOOKUP(E5003,Insumos!AD:AE,2,FALSE))","v":""},null,{"$f":"IF(G5003=\"\",\"\",VLOOKUP(G5003,Insumos!G:H,2,FALSE))","v":""}]
[null,null,null,null,null,{"$f":"IF(E5004=\"\",\"\",VLOOKUP(E5004,Insumos!AD:AE,2,FALSE))","v":""},null,{"$f":"IF(G5004=\"\",\"\",VLOOKUP(G5004,Insumos!G:H,2,FALSE))","v":""}]
[null,null,null,null,null,{"$f":"IF(E5005=\"\",\"\",VLOOKUP(E5005,Insumos!AD:AE,2,FALSE))","v":""},null,{"$f":"IF(G5005=\"\",\"\",VLOOKUP(G5005,Insumos!G:H,2,FALSE))","v":""}]
[null,null,null,null,null,{"$f":"IF(E5006=\"\",\"\",VLOOKUP(E5006,Insumos!AD:AE,2,FALSE))","v":""},null,{"$f":"IF(G5006=\"\",\"\",VLOOKUP(G5006,Insumos!G:H,2,FALSE))","v":""}]
[null,null,null,null,null,{"$f":"IF(E5007=\"\",\"\",VLOOKUP(E5007,Insumos!AD:AE,2,FALSE))","v":""},null,{"$f":"IF(G5007=\"\",\"\",VLOOKUP(G5007,Insumos!G:H,2,FALSE))","v":""}]
[null,null,null,null,null,{"$f":"IF(E5008=\"\",\"\",VLOOKUP(E5008,Insumos!AD:AE,2,FALSE))","v":""},null,{"$f":"IF(G5008=\"\",\"\",VLOOKUP(G5008,Insumos!G:H,2,FALSE))","v":""}]
[null,null,null,null,null,{"$f":"IF(E5009=\"\",\"\",VLOOKUP(E5009,Insumos!AD:AE,2,FALSE))","v":""},null,{"$f":"IF(G5009=\"\",\"\",VLOOKUP(G5009,Insumos!G:H,2,FALSE))","v":""}]
[null,null,null,null,null,{"$f":"IF(E5010=\"\",\"\",VLOOKUP(E5010,Insumos!AD:AE,2,FALSE))","v":""},null,{"$f":"IF(G5010=\"\",\"\",VLOOKUP(G5010,Insumos!G:H,2,FALSE))","v":""}]
[null,null,null,null,null,{"$f":"IF(E5011=\"\",\"\",VLOOKUP(E5011,Insumos!AD:AE,2,FALSE))","v":""},null,{"$f":"IF(G5011=\"\",\"\",VLOOKUP(G5011,Insumos!G:H,2,FALSE))","v":""}]
[null,null,null,null,null,{"$f":"IF(E5012=\"\",\"\",VLOOKUP(E5012,Insumos!AD:AE,2,FALSE))","v":""},null,{"$f":"IF(G5012=\"\",\"\",VLOOKUP(G5012,Insumos!G:H,2,FALSE))","v":""}]
[null,null,null,null,null,{"$f":"IF(E5013=\"\",\"\",VLOOKUP(E5013,Insumos!AD:AE,2,FALSE))","v":""},null,{"$f":"IF(G5013=\"\",\"\",VLOOKUP(G5013,Insumos!G:H,2,FALSE))","v":""}]
[null,null,null,null,null,{"$f":"IF(E5014=\"\",\"\",VLOOKUP(E5014,Insumos!AD:AE,2,FALSE))","v":""},null,{"$f":"IF(G5014=\"\",\"\",VLOOKUP(G5014,Insumos!G:H,2,FALSE))","v":""}]
[null,null,null,null,null,{"$f":"IF(E5015=\"\",\"\",VLOOKUP(E5015,Insumos!AD:AE,2,FALSE))","v":""},null,{"$f":"IF(G5015=\"\",\"\",VLOOKUP(G5015,Insumos!G:H,2,FALSE))","v":""}]
[null,null,null,null,null,{"$f":"IF(E5016=\"\",\"\",VLOOKUP(E5016,Insumos!AD:AE,2,FALSE))","v":""},null,{"$f":"IF(G5016=\"\",\"\",VLOOKUP(G5016,Insumos!G:H,2,FALSE))","v":""}]
[null,null,null,null,null,{"$f":"IF(E5017=\"\",\"\",VLOOKUP(E5017,Insumos!AD:AE,2,FALSE))","v":""},null,{"$f":"IF(G5017=\"\",\"\",VLOOKUP(G5017,Insumos!G:H,2,FALSE))","v":""}]
[null,null,null,null,null,{"$f":"IF(E5018=\"\",\"\",VLOOKUP(E5018,Insumos!AD:AE,2,FALSE))","v":""},null,{"$f":"IF(G5018=\"\",\"\",VLOOKUP(G5018,Insumos!G:H,2,FALSE))","v":""}]
[null,null,null,null,null,{"$f":"IF(E5019=\"\",\"\",VLOOKUP(E5019,Insumos!AD:AE,2,FALSE))","v":""},null,{"$f":"IF(G5019=\"\",\"\",VLOOKUP(G5019,Insumos!G:H,2,FALSE))","v":""}]
[null,null,null,null,null,{"$f":"IF(E5020=\"\",\"\",VLOOKUP(E5020,Insumos!AD:AE,2,FALSE))","v":""},null,{"$f":"IF(G5020=\"\",\"\",VLOOKUP(G5020,Insumos!G:H,2,FALSE))","v":""}]
[null,null,null,null,null,{"$f":"IF(E5021=\"\",\"\",VLOOKUP(E5021,Insumos!AD:AE,2,FALSE))","v":""},null,{"$f":"IF(G5021=\"\",\"\",VLOOKUP(G5021,Insumos!G:H,2,FALSE))","v":""}]
[null,null,null,null,null,{"$f":"IF(E5022=\"\",\"\",VLOOKUP(E5022,Insumos!AD:AE,2,FALSE))","v":""},null,{"$f":"IF(G5022=\"\",\"\",VLOOKUP(G5022,Insumos!G:H,2,FALSE))","v":""}]
[null,null,null,null,null,{"$f":"IF(E5023=\"\",\"\",VLOOKUP(E5023,Insumos!AD:AE,2,FALSE))","v":""},null,{"$f":"IF(G5023=\"\",\"\",VLOOKUP(G5023,Insumos!G:H,2,FALSE))","v":""}]
[null,null,null,null,null,{"$f":"IF(E5024=\"\",\"\",VLOOKUP(E5024,Insumos!AD:AE,2,FALSE))","v":""},null,{"$f":"IF(G5024=\"\",\"\",VLOOKUP(G5024,Insumos!G:H,2,FALSE))","v":""}]
[null,null,null,null,null,{"$f":"IF(E5025=\"\",\"\",VLOOKUP(E5025,Insumos!AD:AE,2,FALSE))","v":""},null,{"$f":"IF(G5025=\"\",\"\",VLOOKUP(G5025,Insumos!G:H,2,FALSE))","v":""}]
[null,null,null,null,null,{"$f":"IF(E5026=\"\",\"\",VLOOKUP(E5026,Insumos!AD:AE,2,FALSE))","v":""},null,{"$f":"IF(G5026=\"\",\"\",VLOOKUP(G5026,Insumos!G:H,2,FALSE))","v":""}]
[null,null,null,null,null,{"$f":"IF(E5027=\"\",\"\",VLOOKUP(E5027,Insumos!AD:AE,2,FALSE))","v":""},null,{"$f":"IF(G5027=\"\",\"\",VLOOKUP(G5027,Insumos!G:H,2,FALSE))","v":""}]
[null,null,null,null,null,{"$f":"IF(E5028=\"\",\"\",VLOOKUP(E5028,Insumos!AD:AE,2,FALSE))","v":""},null,{"$f":"IF(G5028=\"\",\"\",VLOOKUP(G5028,Insumos!G:H,2,FALSE))","v":""}]
[null,null,null,null,null,{"$f":"IF(E5029=\"\",\"\",VLOOKUP(E5029,Insumos!AD:AE,2,FALSE))","v":""},null,{"$f":"IF(G5029=\"\",\"\",VLOOKUP(G5029,Insumos!G:H,2,FALSE))","v":""}]
[null,null,null,null,null,{"$f":"IF(E5030=\"\",\"\",VLOOKUP(E5030,Insumos!AD:AE,2,FALSE))","v":""},null,{"$f":"IF(G5030=\"\",\"\",VLOOKUP(G5030,Insumos!G:H,2,FALSE))","v":""}]
[null,null,null,null,null,{"$f":"IF(E5031=\"\",\"\",VLOOKUP(E5031,Insumos!AD:AE,2,FALSE))","v":""},null,{"$f":"IF(G5031=\"\",\"\",VLOOKUP(G5031,Insumos!G:H,2,FALSE))","v":""}]
[null,null,null,null,null,{"$f":"IF(E5032=\"\",\"\",VLOOKUP(E5032,Insumos!AD:AE,2,FALSE))","v":""},null,{"$f":"IF(G5032=\"\",\"\",VLOOKUP(G5032,Insumos!G:H,2,FALSE))","v":""}]
[null,null,null,null,null,{"$f":"IF(E5033=\"\",\"\",VLOOKUP(E5033,Insumos!AD:AE,2,FALSE))","v":""},null,{"$f":"IF(G5033=\"\",\"\",VLOOKUP(G5033,Insumos!G:H,2,FALSE))","v":""}]
[null,null,null,null,null,{"$f":"IF(E5034=\"\",\"\",VLOOKUP(E5034,Insumos!AD:AE,2,FALSE))","v":""},null,{"$f":"IF(G5034=\"\",\"\",VLOOKUP(G5034,Insumos!G:H,2,FALSE))","v":""}]
[null,null,null,null,null,{"$f":"IF(E5035=\"\",\"\",VLOOKUP(E5035,Insumos!AD:AE,2,FALSE))","v":""},null,{"$f":"IF(G5035=\"\",\"\",VLOOKUP(G5035,Insumos!G:H,2,FALSE))","v":""}]
[null,null,null,null,null,{"$f":"IF(E5036=\"\",\"\",VLOOKUP(E5036,Insumos!AD:AE,2,FALSE))","v":""},null,{"$f":"IF(G5036=\"\",\"\",VLOOKUP(G5036,Insumos!G:H,2,FALSE))","v":""}]
[null,null,null,null,null,{"$f":"IF(E5037=\"\",\"\",VLOOKUP(E5037,Insumos!AD:AE,2,FALSE))","v":""},null,{"$f":"IF(G5037=\"\",\"\",VLOOKUP(G5037,Insumos!G:H,2,FALSE))","v":""}]
[null,null,null,null,null,{"$f":"IF(E5038=\"\",\"\",VLOOKUP(E5038,Insumos!AD:AE,2,FALSE))","v":""},null,{"$f":"IF(G5038=\"\",\"\",VLOOKUP(G5038,Insumos!G:H,2,FALSE))","v":""}]
[null,null,null,null,null,{"$f":"IF(E5039=\"\",\"\",VLOOKUP(E5039,Insumos!AD:AE,2,FALSE))","v":""},null,{"$f":"IF(G5039=\"\",\"\",VLOOKUP(G5039,Insumos!G:H,2,FALSE))","v":""}]
[null,null,null,null,null,{"$f":"IF(E5040=\"\",\"\",VLOOKUP(E5040,Insumos!AD:AE,2,FALSE))","v":""},null,{"$f":"IF(G5040=\"\",\"\",VLOOKUP(G5040,Insumos!G:H,2,FALSE))","v":""}]
[null,null,null,null,null,{"$f":"IF(E5041=\"\",\"\",VLOOKUP(E5041,Insumos!AD:AE,2,FALSE))","v":""},null,{"$f":"IF(G5041=\"\",\"\",VLOOKUP(G5041,Insumos!G:H,2,FALSE))","v":""}]
[null,null,null,null,null,{"$f":"IF(E5042=\"\",\"\",VLOOKUP(E5042,Insumos!AD:AE,2,FALSE))","v":""},null,{"$f":"IF(G5042=\"\",\"\",VLOOKUP(G5042,Insumos!G:H,2,FALSE))","v":""}]
[null,null,null,null,null,{"$f":"IF(E5043=\"\",\"\",VLOOKUP(E5043,Insumos!AD:AE,2,FALSE))","v":""},null,{"$f":"IF(G5043=\"\",\"\",VLOOKUP(G5043,Insumos!G:H,2,FALSE))","v":""}]
[null,null,null,null,null,{"$f":"IF(E5044=\"\",\"\",VLOOKUP(E5044,Insumos!AD:AE,2,FALSE))","v":""},null,{"$f":"IF(G5044=\"\",\"\",VLOOKUP(G5044,Insumos!G:H,2,FALSE))","v":""}]
[null,null,null,null,null,{"$f":"IF(E5045=\"\",\"\",VLOOKUP(E5045,Insumos!AD:AE,2,FALSE))","v":""},null,{"$f":"IF(G5045=\"\",\"\",VLOOKUP(G5045,Insumos!G:H,2,FALSE))","v":""}]
[null,null,null,null,null,{"$f":"IF(E5046=\"\",\"\",VLOOKUP(E5046,Insumos!AD:AE,2,FALSE))","v":""},null,{"$f":"IF(G5046=\"\",\"\",VLOOKUP(G5046,Insumos!G:H,2,FALSE))","v":""}]
[null,null,null,null,null,{"$f":"IF(E5047=\"\",\"\",VLOOKUP(E5047,Insumos!AD:AE,2,FALSE))","v":""},null,{"$f":"IF(G5047=\"\",\"\",VLOOKUP(G5047,Insumos!G:H,2,FALSE))","v":""}]
[null,null,null,null,null,{"$f":"IF(E5048=\"\",\"\",VLOOKUP(E5048,Insumos!AD:AE,2,FALSE))","v":""},null,{"$f":"IF(G5048=\"\",\"\",VLOOKUP(G5048,Insumos!G:H,2,FALSE))","v":""}]
[null,null,null,null,null,{"$f":"IF(E5049=\"\",\"\",VLOOKUP(E5049,Insumos!AD:AE,2,FALSE))","v":""},null,{"$f":"IF(G5049=\"\",\"\",VLOOKUP(G5049,Insumos!G:H,2,FALSE))","v":""}]
[null,null,null,null,null,{"$f":"IF(E5050=\"\",\"\",VLOOKUP(E5050,Insumos!AD:AE,2,FALSE))","v":""},null,{"$f":"IF(G5050=\"\",\"\",VLOOKUP(G5050,Insumos!G:H,2,FALSE))","v":""}]
[null,null,null,null,null,{"$f":"IF(E5051=\"\",\"\",VLOOKUP(E5051,Insumos!AD:AE,2,FALSE))","v":""},null,{"$f":"IF(G5051=\"\",\"\",VLOOKUP(G5051,Insumos!G:H,2,FALSE))","v":""}]
[null,null,null,null,null,{"$f":"IF(E5052=\"\",\"\",VLOOKUP(E5052,Insumos!AD:AE,2,FALSE))","v":""},null,{"$f":"IF(G5052=\"\",\"\",VLOOKUP(G5052,Insumos!G:H,2,FALSE))","v":""}]
[null,null,null,null,null,{"$f":"IF(E5053=\"\",\"\",VLOOKUP(E5053,Insumos!AD:AE,2,FALSE))","v":""},null,{"$f":"IF(G5053=\"\",\"\",VLOOKUP(G5053,Insumos!G:H,2,FALSE))","v":""}]
[null,null,null,null,null,{"$f":"IF(E5054=\"\",\"\",VLOOKUP(E5054,Insumos!AD:AE,2,FALSE))","v":""},null,{"$f":"IF(G5054=\"\",\"\",VLOOKUP(G5054,Insumos!G:H,2,FALSE))","v":""}]
[null,null,null,null,null,{"$f":"IF(E5055=\"\",\"\",VLOOKUP(E5055,Insumos!AD:AE,2,FALSE))","v":""},null,{"$f":"IF(G5055=\"\",\"\",VLOOKUP(G5055,Insumos!G:H,2,FALSE))","v":""}]
[null,null,null,null,null,{"$f":"IF(E5056=\"\",\"\",VLOOKUP(E5056,Insumos!AD:AE,2,FALSE))","v":""},null,{"$f":"IF(G5056=\"\",\"\",VLOOKUP(G5056,Insumos!G:H,2,FALSE))","v":""}]
[null,null,null,null,null,{"$f":"IF(E5057=\"\",\"\",VLOOKUP(E5057,Insumos!AD:AE,2,FALSE))","v":""},null,{"$f":"IF(G5057=\"\",\"\",VLOOKUP(G5057,Insumos!G:H,2,FALSE))","v":""}]
[null,null,null,null,null,{"$f":"IF(E5058=\"\",\"\",VLOOKUP(E5058,Insumos!AD:AE,2,FALSE))","v":""},null,{"$f":"IF(G5058=\"\",\"\",VLOOKUP(G5058,Insumos!G:H,2,FALSE))","v":""}]
[null,null,null,null,null,{"$f":"IF(E5059=\"\",\"\",VLOOKUP(E5059,Insumos!AD:AE,2,FALSE))","v":""},null,{"$f":"IF(G5059=\"\",\"\",VLOOKUP(G5059,Insumos!G:H,2,FALSE))","v":""}]
[null,null,null,null,null,{"$f":"IF(E5060=\"\",\"\",VLOOKUP(E5060,Insumos!AD:AE,2,FALSE))","v":""},null,{"$f":"IF(G5060=\"\",\"\",VLOOKUP(G5060,Insumos!G:H,2,FALSE))","v":""}]
[null,null,null,null,null,{"$f":"IF(E5061=\"\",\"\",VLOOKUP(E5061,Insumos!AD:AE,2,FALSE))","v":""},null,{"$f":"IF(G5061=\"\",\"\",VLOOKUP(G5061,Insumos!G:H,2,FALSE))","v":""}]
[null,null,null,null,null,{"$f":"IF(E5062=\"\",\"\",VLOOKUP(E5062,Insumos!AD:AE,2,FALSE))","v":""},null,{"$f":"IF(G5062=\"\",\"\",VLOOKUP(G5062,Insumos!G:H,2,FALSE))","v":""}]
[null,null,null,null,null,{"$f":"IF(E5063=\"\",\"\",VLOOKUP(E5063,Insumos!AD:AE,2,FALSE))","v":""},null,{"$f":"IF(G5063=\"\",\"\",VLOOKUP(G5063,Insumos!G:H,2,FALSE))","v":""}]
[null,null,null,null,null,{"$f":"IF(E5064=\"\",\"\",VLOOKUP(E5064,Insumos!AD:AE,2,FALSE))","v":""},null,{"$f":"IF(G5064=\"\",\"\",VLOOKUP(G5064,Insumos!G:H,2,FALSE))","v":""}]
[null,null,null,null,null,{"$f":"IF(E5065=\"\",\"\",VLOOKUP(E5065,Insumos!AD:AE,2,FALSE))","v":""},null,{"$f":"IF(G5065=\"\",\"\",VLOOKUP(G5065,Insumos!G:H,2,FALSE))","v":""}]
[null,null,null,null,null,{"$f":"IF(E5066=\"\",\"\",VLOOKUP(E5066,Insumos!AD:AE,2,FALSE))","v":""},null,{"$f":"IF(G5066=\"\",\"\",VLOOKUP(G5066,Insumos!G:H,2,FALSE))","v":""}]
[null,null,null,null,null,{"$f":"IF(E5067=\"\",\"\",VLOOKUP(E5067,Insumos!AD:AE,2,FALSE))","v":""},null,{"$f":"IF(G5067=\"\",\"\",VLOOKUP(G5067,Insumos!G:H,2,FALSE))","v":""}]
[null,null,null,null,null,{"$f":"IF(E5068=\"\",\"\",VLOOKUP(E5068,Insumos!AD:AE,2,FALSE))","v":""},null,{"$f":"IF(G5068=\"\",\"\",VLOOKUP(G5068,Insumos!G:H,2,FALSE))","v":""}]
[null,null,null,null,null,{"$f":"IF(E5069=\"\",\"\",VLOOKUP(E5069,Insumos!AD:AE,2,FALSE))","v":""},null,{"$f":"IF(G5069=\"\",\"\",VLOOKUP(G5069,Insumos!G:H,2,FALSE))","v":""}]
[null,null,null,null,null,{"$f":"IF(E5070=\"\",\"\",VLOOKUP(E5070,Insumos!AD:AE,2,FALSE))","v":""},null,{"$f":"IF(G5070=\"\",\"\",VLOOKUP(G5070,Insumos!G:H,2,FALSE))","v":""}]
[null,null,null,null,null,{"$f":"IF(E5071=\"\",\"\",VLOOKUP(E5071,Insumos!AD:AE,2,FALSE))","v":""},null,{"$f":"IF(G5071=\"\",\"\",VLOOKUP(G5071,Insumos!G:H,2,FALSE))","v":""}]
[null,null,null,null,null,{"$f":"IF(E5072=\"\",\"\",VLOOKUP(E5072,Insumos!AD:AE,2,FALSE))","v":""},null,{"$f":"IF(G5072=\"\",\"\",VLOOKUP(G5072,Insumos!G:H,2,FALSE))","v":""}]
[null,null,null,null,null,{"$f":"IF(E5073=\"\",\"\",VLOOKUP(E5073,Insumos!AD:AE,2,FALSE))","v":""},null,{"$f":"IF(G5073=\"\",\"\",VLOOKUP(G5073,Insumos!G:H,2,FALSE))","v":""}]
[null,null,null,null,null,{"$f":"IF(E5074=\"\",\"\",VLOOKUP(E5074,Insumos!AD:AE,2,FALSE))","v":""},null,{"$f":"IF(G5074=\"\",\"\",VLOOKUP(G5074,Insumos!G:H,2,FALSE))","v":""}]
[null,null,null,null,null,{"$f":"IF(E5075=\"\",\"\",VLOOKUP(E5075,Insumos!AD:AE,2,FALSE))","v":""},null,{"$f":"IF(G5075=\"\",\"\",VLOOKUP(G5075,Insumos!G:H,2,FALSE))","v":""}]
[null,null,null,null,null,{"$f":"IF(E5076=\"\",\"\",VLOOKUP(E5076,Insumos!AD:AE,2,FALSE))","v":""},null,{"$f":"IF(G5076=\"\",\"\",VLOOKUP(G5076,Insumos!G:H,2,FALSE))","v":""}]
[null,null,null,null,null,{"$f":"IF(E5077=\"\",\"\",VLOOKUP(E5077,Insumos!AD:AE,2,FALSE))","v":""},null,{"$f":"IF(G5077=\"\",\"\",VLOOKUP(G5077,Insumos!G:H,2,FALSE))","v":""}]
[null,null,null,null,null,{"$f":"IF(E5078=\"\",\"\",VLOOKUP(E5078,Insumos!AD:AE,2,FALSE))","v":""},null,{"$f":"IF(G5078=\"\",\"\",VLOOKUP(G5078,Insumos!G:H,2,FALSE))","v":""}]
[null,null,null,null,null,{"$f":"IF(E5079=\"\",\"\",VLOOKUP(E5079,Insumos!AD:AE,2,FALSE))","v":""},null,{"$f":"IF(G5079=\"\",\"\",VLOOKUP(G5079,Insumos!G:H,2,FALSE))","v":""}]
[null,null,null,null,null,{"$f":"IF(E5080=\"\",\"\",VLOOKUP(E5080,Insumos!AD:AE,2,FALSE))","v":""},null,{"$f":"IF(G5080=\"\",\"\",VLOOKUP(G5080,Insumos!G:H,2,FALSE))","v":""}]
[null,null,null,null,null,{"$f":"IF(E5081=\"\",\"\",VLOOKUP(E5081,Insumos!AD:AE,2,FALSE))","v":""},null,{"$f":"IF(G5081=\"\",\"\",VLOOKUP(G5081,Insumos!G:H,2,FALSE))","v":""}]
[null,null,null,null,null,{"$f":"IF(E5082=\"\",\"\",VLOOKUP(E5082,Insumos!AD:AE,2,FALSE))","v":""},null,{"$f":"IF(G5082=\"\",\"\",VLOOKUP(G5082,Insumos!G:H,2,FALSE))","v":""}]
[null,null,null,null,null,{"$f":"IF(E5083=\"\",\"\",VLOOKUP(E5083,Insumos!AD:AE,2,FALSE))","v":""},null,{"$f":"IF(G5083=\"\",\"\",VLOOKUP(G5083,Insumos!G:H,2,FALSE))","v":""}]
[null,null,null,null,null,{"$f":"IF(E5084=\"\",\"\",VLOOKUP(E5084,Insumos!AD:AE,2,FALSE))","v":""},null,{"$f":"IF(G5084=\"\",\"\",VLOOKUP(G5084,Insumos!G:H,2,FALSE))","v":""}]
[null,null,null,null,null,{"$f":"IF(E5085=\"\",\"\",VLOOKUP(E5085,Insumos!AD:AE,2,FALSE))","v":""},null,{"$f":"IF(G5085=\"\",\"\",VLOOKUP(G5085,Insumos!G:H,2,FALSE))","v":""}]
[null,null,null,null,null,{"$f":"IF(E5086=\"\",\"\",VLOOKUP(E5086,Insumos!AD:AE,2,FALSE))","v":""},null,{"$f":"IF(G5086=\"\",\"\",VLOOKUP(G5086,Insumos!G:H,2,FALSE))","v":""}]
[null,null,null,null,null,{"$f":"IF(E5087=\"\",\"\",VLOOKUP(E5087,Insumos!AD:AE,2,FALSE))","v":""},null,{"$f":"IF(G5087=\"\",\"\",VLOOKUP(G5087,Insumos!G:H,2,FALSE))","v":""}]
[null,null,null,null,null,{"$f":"IF(E5088=\"\",\"\",VLOOKUP(E5088,Insumos!AD:AE,2,FALSE))","v":""},null,{"$f":"IF(G5088=\"\",\"\",VLOOKUP(G5088,Insumos!G:H,2,FALSE))","v":""}]
[null,null,null,null,null,{"$f":"IF(E5089=\"\",\"\",VLOOKUP(E5089,Insumos!AD:AE,2,FALSE))","v":""},null,{"$f":"IF(G5089=\"\",\"\",VLOOKUP(G5089,Insumos!G:H,2,FALSE))","v":""}]
[null,null,null,null,null,{"$f":"IF(E5090=\"\",\"\",VLOOKUP(E5090,Insumos!AD:AE,2,FALSE))","v":""},null,{"$f":"IF(G5090=\"\",\"\",VLOOKUP(G5090,Insumos!G:H,2,FALSE))","v":""}]
[null,null,null,null,null,{"$f":"IF(E5091=\"\",\"\",VLOOKUP(E5091,Insumos!AD:AE,2,FALSE))","v":""},null,{"$f":"IF(G5091=\"\",\"\",VLOOKUP(G5091,Insumos!G:H,2,FALSE))","v":""}]
[null,null,null,null,null,{"$f":"IF(E5092=\"\",\"\",VLOOKUP(E5092,Insumos!AD:AE,2,FALSE))","v":""},null,{"$f":"IF(G5092=\"\",\"\",VLOOKUP(G5092,Insumos!G:H,2,FALSE))","v":""}]
[null,null,null,null,null,{"$f":"IF(E5093=\"\",\"\",VLOOKUP(E5093,Insumos!AD:AE,2,FALSE))","v":""},null,{"$f":"IF(G5093=\"\",\"\",VLOOKUP(G5093,Insumos!G:H,2,FALSE))","v":""}]
[null,null,null,null,null,{"$f":"IF(E5094=\"\",\"\",VLOOKUP(E5094,Insumos!AD:AE,2,FALSE))","v":""},null,{"$f":"IF(G5094=\"\",\"\",VLOOKUP(G5094,Insumos!G:H,2,FALSE))","v":""}]
[null,null,null,null,null,{"$f":"IF(E5095=\"\",\"\",VLOOKUP(E5095,Insumos!AD:AE,2,FALSE))","v":""},null,{"$f":"IF(G5095=\"\",\"\",VLOOKUP(G5095,Insumos!G:H,2,FALSE))","v":""}]
[null,null,null,null,null,{"$f":"IF(E5096=\"\",\"\",VLOOKUP(E5096,Insumos!AD:AE,2,FALSE))","v":""},null,{"$f":"IF(G5096=\"\",\"\",VLOOKUP(G5096,Insumos!G:H,2,FALSE))","v":""}]
[null,null,null,null,null,{"$f":"IF(E5097=\"\",\"\",VLOOKUP(E5097,Insumos!AD:AE,2,FALSE))","v":""},null,{"$f":"IF(G5097=\"\",\"\",VLOOKUP(G5097,Insumos!G:H,2,FALSE))","v":""}]
[null,null,null,null,null,{"$f":"IF(E5098=\"\",\"\",VLOOKUP(E5098,Insumos!AD:AE,2,FALSE))","v":""},null,{"$f":"IF(G5098=\"\",\"\",VLOOKUP(G5098,Insumos!G:H,2,FALSE))","v":""}]
[null,null,null,null,null,{"$f":"IF(E5099=\"\",\"\",VLOOKUP(E5099,Insumos!AD:AE,2,FALSE))","v":""},null,{"$f":"IF(G5099=\"\",\"\",VLOOKUP(G5099,Insumos!G:H,2,FALSE))","v":""}]
[null,null,null,null,null,{"$f":"IF(E5100=\"\",\"\",VLOOKUP(E5100,Insumos!AD:AE,2,FALSE))","v":""},null,{"$f":"IF(G5100=\"\",\"\",VLOOKUP(G5100,Insumos!G:H,2,FALSE))","v":""}]
[null,null,null,null,null,{"$f":"IF(E5101=\"\",\"\",VLOOKUP(E5101,Insumos!AD:AE,2,FALSE))","v":""},null,{"$f":"IF(G5101=\"\",\"\",VLOOKUP(G5101,Insumos!G:H,2,FALSE))","v":""}]
[null,null,null,null,null,{"$f":"IF(E5102=\"\",\"\",VLOOKUP(E5102,Insumos!AD:AE,2,FALSE))","v":""},null,{"$f":"IF(G5102=\"\",\"\",VLOOKUP(G5102,Insumos!G:H,2,FALSE))","v":""}]
[null,null,null,null,null,{"$f":"IF(E5103=\"\",\"\",VLOOKUP(E5103,Insumos!AD:AE,2,FALSE))","v":""},null,{"$f":"IF(G5103=\"\",\"\",VLOOKUP(G5103,Insumos!G:H,2,FALSE))","v":""}]
[null,null,null,null,null,{"$f":"IF(E5104=\"\",\"\",VLOOKUP(E5104,Insumos!AD:AE,2,FALSE))","v":""},null,{"$f":"IF(G5104=\"\",\"\",VLOOKUP(G5104,Insumos!G:H,2,FALSE))","v":""}]
[null,null,null,null,null,{"$f":"IF(E5105=\"\",\"\",VLOOKUP(E5105,Insumos!AD:AE,2,FALSE))","v":""},null,{"$f":"IF(G5105=\"\",\"\",VLOOKUP(G5105,Insumos!G:H,2,FALSE))","v":""}]
[null,null,null,null,null,{"$f":"IF(E5106=\"\",\"\",VLOOKUP(E5106,Insumos!AD:AE,2,FALSE))","v":""},null,{"$f":"IF(G5106=\"\",\"\",VLOOKUP(G5106,Insumos!G:H,2,FALSE))","v":""}]
[null,null,null,null,null,{"$f":"IF(E5107=\"\",\"\",VLOOKUP(E5107,Insumos!AD:AE,2,FALSE))","v":""},null,{"$f":"IF(G5107=\"\",\"\",VLOOKUP(G5107,Insumos!G:H,2,FALSE))","v":""}]
[null,null,null,null,null,{"$f":"IF(E5108=\"\",\"\",VLOOKUP(E5108,Insumos!AD:AE,2,FALSE))","v":""},null,{"$f":"IF(G5108=\"\",\"\",VLOOKUP(G5108,Insumos!G:H,2,FALSE))","v":""}]
[null,null,null,null,null,{"$f":"IF(E5109=\"\",\"\",VLOOKUP(E5109,Insumos!AD:AE,2,FALSE))","v":""},null,{"$f":"IF(G5109=\"\",\"\",VLOOKUP(G5109,Insumos!G:H,2,FALSE))","v":""}]
[null,null,null,null,null,{"$f":"IF(E5110=\"\",\"\",VLOOKUP(E5110,Insumos!AD:AE,2,FALSE))","v":""},null,{"$f":"IF(G5110=\"\",\"\",VLOOKUP(G5110,Insumos!G:H,2,FALSE))","v":""}]
[null,null,null,null,null,{"$f":"IF(E5111=\"\",\"\",VLOOKUP(E5111,Insumos!AD:AE,2,FALSE))","v":""},null,{"$f":"IF(G5111=\"\",\"\",VLOOKUP(G5111,Insumos!G:H,2,FALSE))","v":""}]
[null,null,null,null,null,{"$f":"IF(E5112=\"\",\"\",VLOOKUP(E5112,Insumos!AD:AE,2,FALSE))","v":""},null,{"$f":"IF(G5112=\"\",\"\",VLOOKUP(G5112,Insumos!G:H,2,FALSE))","v":""}]
[null,null,null,null,null,{"$f":"IF(E5113=\"\",\"\",VLOOKUP(E5113,Insumos!AD:AE,2,FALSE))","v":""},null,{"$f":"IF(G5113=\"\",\"\",VLOOKUP(G5113,Insumos!G:H,2,FALSE))","v":""}]
[null,null,null,null,null,{"$f":"IF(E5114=\"\",\"\",VLOOKUP(E5114,Insumos!AD:AE,2,FALSE))","v":""},null,{"$f":"IF(G5114=\"\",\"\",VLOOKUP(G5114,Insumos!G:H,2,FALSE))","v":""}]
[null,null,null,null,null,{"$f":"IF(E5115=\"\",\"\",VLOOKUP(E5115,Insumos!AD:AE,2,FALSE))","v":""},null,{"$f":"IF(G5115=\"\",\"\",VLOOKUP(G5115,Insumos!G:H,2,FALSE))","v":""}]
[null,null,null,null,null,{"$f":"IF(E5116=\"\",\"\",VLOOKUP(E5116,Insumos!AD:AE,2,FALSE))","v":""},null,{"$f":"IF(G5116=\"\",\"\",VLOOKUP(G5116,Insumos!G:H,2,FALSE))","v":""}]
[null,null,null,null,null,{"$f":"IF(E5117=\"\",\"\",VLOOKUP(E5117,Insumos!AD:AE,2,FALSE))","v":""},null,{"$f":"IF(G5117=\"\",\"\",VLOOKUP(G5117,Insumos!G:H,2,FALSE))","v":""}]
[null,null,null,null,null,{"$f":"IF(E5118=\"\",\"\",VLOOKUP(E5118,Insumos!AD:AE,2,FALSE))","v":""},null,{"$f":"IF(G5118=\"\",\"\",VLOOKUP(G5118,Insumos!G:H,2,FALSE))","v":""}]
[null,null,null,null,null,{"$f":"IF(E5119=\"\",\"\",VLOOKUP(E5119,Insumos!AD:AE,2,FALSE))","v":""},null,{"$f":"IF(G5119=\"\",\"\",VLOOKUP(G5119,Insumos!G:H,2,FALSE))","v":""}]
[null,null,null,null,null,{"$f":"IF(E5120=\"\",\"\",VLOOKUP(E5120,Insumos!AD:AE,2,FALSE))","v":""},null,{"$f":"IF(G5120=\"\",\"\",VLOOKUP(G5120,Insumos!G:H,2,FALSE))","v":""}]
[null,null,null,null,null,{"$f":"IF(E5121=\"\",\"\",VLOOKUP(E5121,Insumos!AD:AE,2,FALSE))","v":""},null,{"$f":"IF(G5121=\"\",\"\",VLOOKUP(G5121,Insumos!G:H,2,FALSE))","v":""}]
[null,null,null,null,null,{"$f":"IF(E5122=\"\",\"\",VLOOKUP(E5122,Insumos!AD:AE,2,FALSE))","v":""},null,{"$f":"IF(G5122=\"\",\"\",VLOOKUP(G5122,Insumos!G:H,2,FALSE))","v":""}]
[null,null,null,null,null,{"$f":"IF(E5123=\"\",\"\",VLOOKUP(E5123,Insumos!AD:AE,2,FALSE))","v":""},null,{"$f":"IF(G5123=\"\",\"\",VLOOKUP(G5123,Insumos!G:H,2,FALSE))","v":""}]
[null,null,null,null,null,{"$f":"IF(E5124=\"\",\"\",VLOOKUP(E5124,Insumos!AD:AE,2,FALSE))","v":""},null,{"$f":"IF(G5124=\"\",\"\",VLOOKUP(G5124,Insumos!G:H,2,FALSE))","v":""}]
[null,null,null,null,null,{"$f":"IF(E5125=\"\",\"\",VLOOKUP(E5125,Insumos!AD:AE,2,FALSE))","v":""},null,{"$f":"IF(G5125=\"\",\"\",VLOOKUP(G5125,Insumos!G:H,2,FALSE))","v":""}]
[null,null,null,null,null,{"$f":"IF(E5126=\"\",\"\",VLOOKUP(E5126,Insumos!AD:AE,2,FALSE))","v":""},null,{"$f":"IF(G5126=\"\",\"\",VLOOKUP(G5126,Insumos!G:H,2,FALSE))","v":""}]
[null,null,null,null,null,{"$f":"IF(E5127=\"\",\"\",VLOOKUP(E5127,Insumos!AD:AE,2,FALSE))","v":""},null,{"$f":"IF(G5127=\"\",\"\",VLOOKUP(G5127,Insumos!G:H,2,FALSE))","v":""}]
[null,null,null,null,null,{"$f":"IF(E5128=\"\",\"\",VLOOKUP(E5128,Insumos!AD:AE,2,FALSE))","v":""},null,{"$f":"IF(G5128=\"\",\"\",VLOOKUP(G5128,Insumos!G:H,2,FALSE))","v":""}]
[null,null,null,null,null,{"$f":"IF(E5129=\"\",\"\",VLOOKUP(E5129,Insumos!AD:AE,2,FALSE))","v":""},null,{"$f":"IF(G5129=\"\",\"\",VLOOKUP(G5129,Insumos!G:H,2,FALSE))","v":""}]
[null,null,null,null,null,{"$f":"IF(E5130=\"\",\"\",VLOOKUP(E5130,Insumos!AD:AE,2,FALSE))","v":""},null,{"$f":"IF(G5130=\"\",\"\",VLOOKUP(G5130,Insumos!G:H,2,FALSE))","v":""}]
[null,null,null,null,null,{"$f":"IF(E5131=\"\",\"\",VLOOKUP(E5131,Insumos!AD:AE,2,FALSE))","v":""},null,{"$f":"IF(G5131=\"\",\"\",VLOOKUP(G5131,Insumos!G:H,2,FALSE))","v":""}]
[null,null,null,null,null,{"$f":"IF(E5132=\"\",\"\",VLOOKUP(E5132,Insumos!AD:AE,2,FALSE))","v":""},null,{"$f":"IF(G5132=\"\",\"\",VLOOKUP(G5132,Insumos!G:H,2,FALSE))","v":""}]
[null,null,null,null,null,{"$f":"IF(E5133=\"\",\"\",VLOOKUP(E5133,Insumos!AD:AE,2,FALSE))","v":""},null,{"$f":"IF(G5133=\"\",\"\",VLOOKUP(G5133,Insumos!G:H,2,FALSE))","v":""}]
[null,null,null,null,null,{"$f":"IF(E5134=\"\",\"\",VLOOKUP(E5134,Insumos!AD:AE,2,FALSE))","v":""},null,{"$f":"IF(G5134=\"\",\"\",VLOOKUP(G5134,Insumos!G:H,2,FALSE))","v":""}]
[null,null,null,null,null,{"$f":"IF(E5135=\"\",\"\",VLOOKUP(E5135,Insumos!AD:AE,2,FALSE))","v":""},null,{"$f":"IF(G5135=\"\",\"\",VLOOKUP(G5135,Insumos!G:H,2,FALSE))","v":""}]
[null,null,null,null,null,{"$f":"IF(E5136=\"\",\"\",VLOOKUP(E5136,Insumos!AD:AE,2,FALSE))","v":""},null,{"$f":"IF(G5136=\"\",\"\",VLOOKUP(G5136,Insumos!G:H,2,FALSE))","v":""}]
[null,null,null,null,null,{"$f":"IF(E5137=\"\",\"\",VLOOKUP(E5137,Insumos!AD:AE,2,FALSE))","v":""},null,{"$f":"IF(G5137=\"\",\"\",VLOOKUP(G5137,Insumos!G:H,2,FALSE))","v":""}]
[null,null,null,null,null,{"$f":"IF(E5138=\"\",\"\",VLOOKUP(E5138,Insumos!AD:AE,2,FALSE))","v":""},null,{"$f":"IF(G5138=\"\",\"\",VLOOKUP(G5138,Insumos!G:H,2,FALSE))","v":""}]
[null,null,null,null,null,{"$f":"IF(E5139=\"\",\"\",VLOOKUP(E5139,Insumos!AD:AE,2,FALSE))","v":""},null,{"$f":"IF(G5139=\"\",\"\",VLOOKUP(G5139,Insumos!G:H,2,FALSE))","v":""}]
[null,null,null,null,null,{"$f":"IF(E5140=\"\",\"\",VLOOKUP(E5140,Insumos!AD:AE,2,FALSE))","v":""},null,{"$f":"IF(G5140=\"\",\"\",VLOOKUP(G5140,Insumos!G:H,2,FALSE))","v":""}]
[null,null,null,null,null,{"$f":"IF(E5141=\"\",\"\",VLOOKUP(E5141,Insumos!AD:AE,2,FALSE))","v":""},null,{"$f":"IF(G5141=\"\",\"\",VLOOKUP(G5141,Insumos!G:H,2,FALSE))","v":""}]
[null,null,null,null,null,{"$f":"IF(E5142=\"\",\"\",VLOOKUP(E5142,Insumos!AD:AE,2,FALSE))","v":""},null,{"$f":"IF(G5142=\"\",\"\",VLOOKUP(G5142,Insumos!G:H,2,FALSE))","v":""}]
[null,null,null,null,null,{"$f":"IF(E5143=\"\",\"\",VLOOKUP(E5143,Insumos!AD:AE,2,FALSE))","v":""},null,{"$f":"IF(G5143=\"\",\"\",VLOOKUP(G5143,Insumos!G:H,2,FALSE))","v":""}]
[null,null,null,null,null,{"$f":"IF(E5144=\"\",\"\",VLOOKUP(E5144,Insumos!AD:AE,2,FALSE))","v":""},null,{"$f":"IF(G5144=\"\",\"\",VLOOKUP(G5144,Insumos!G:H,2,FALSE))","v":""}]
[null,null,null,null,null,{"$f":"IF(E5145=\"\",\"\",VLOOKUP(E5145,Insumos!AD:AE,2,FALSE))","v":""},null,{"$f":"IF(G5145=\"\",\"\",VLOOKUP(G5145,Insumos!G:H,2,FALSE))","v":""}]
[null,null,null,null,null,{"$f":"IF(E5146=\"\",\"\",VLOOKUP(E5146,Insumos!AD:AE,2,FALSE))","v":""},null,{"$f":"IF(G5146=\"\",\"\",VLOOKUP(G5146,Insumos!G:H,2,FALSE))","v":""}]
[null,null,null,null,null,{"$f":"IF(E5147=\"\",\"\",VLOOKUP(E5147,Insumos!AD:AE,2,FALSE))","v":""},null,{"$f":"IF(G5147=\"\",\"\",VLOOKUP(G5147,Insumos!G:H,2,FALSE))","v":""}]
[null,null,null,null,null,{"$f":"IF(E5148=\"\",\"\",VLOOKUP(E5148,Insumos!AD:AE,2,FALSE))","v":""},null,{"$f":"IF(G5148=\"\",\"\",VLOOKUP(G5148,Insumos!G:H,2,FALSE))","v":""}]
[null,null,null,null,null,{"$f":"IF(E5149=\"\",\"\",VLOOKUP(E5149,Insumos!AD:AE,2,FALSE))","v":""},null,{"$f":"IF(G5149=\"\",\"\",VLOOKUP(G5149,Insumos!G:H,2,FALSE))","v":""}]
[null,null,null,null,null,{"$f":"IF(E5150=\"\",\"\",VLOOKUP(E5150,Insumos!AD:AE,2,FALSE))","v":""},null,{"$f":"IF(G5150=\"\",\"\",VLOOKUP(G5150,Insumos!G:H,2,FALSE))","v":""}]
[null,null,null,null,null,{"$f":"IF(E5151=\"\",\"\",VLOOKUP(E5151,Insumos!AD:AE,2,FALSE))","v":""},null,{"$f":"IF(G5151=\"\",\"\",VLOOKUP(G5151,Insumos!G:H,2,FALSE))","v":""}]
[null,null,null,null,null,{"$f":"IF(E5152=\"\",\"\",VLOOKUP(E5152,Insumos!AD:AE,2,FALSE))","v":""},null,{"$f":"IF(G5152=\"\",\"\",VLOOKUP(G5152,Insumos!G:H,2,FALSE))","v":""}]
[null,null,null,null,null,{"$f":"IF(E5153=\"\",\"\",VLOOKUP(E5153,Insumos!AD:AE,2,FALSE))","v":""},null,{"$f":"IF(G5153=\"\",\"\",VLOOKUP(G5153,Insumos!G:H,2,FALSE))","v":""}]
[null,null,null,null,null,{"$f":"IF(E5154=\"\",\"\",VLOOKUP(E5154,Insumos!AD:AE,2,FALSE))","v":""},null,{"$f":"IF(G5154=\"\",\"\",VLOOKUP(G5154,Insumos!G:H,2,FALSE))","v":""}]
[null,null,null,null,null,{"$f":"IF(E5155=\"\",\"\",VLOOKUP(E5155,Insumos!AD:AE,2,FALSE))","v":""},null,{"$f":"IF(G5155=\"\",\"\",VLOOKUP(G5155,Insumos!G:H,2,FALSE))","v":""}]
[null,null,null,null,null,{"$f":"IF(E5156=\"\",\"\",VLOOKUP(E5156,Insumos!AD:AE,2,FALSE))","v":""},null,{"$f":"IF(G5156=\"\",\"\",VLOOKUP(G5156,Insumos!G:H,2,FALSE))","v":""}]
[null,null,null,null,null,{"$f":"IF(E5157=\"\",\"\",VLOOKUP(E5157,Insumos!AD:AE,2,FALSE))","v":""},null,{"$f":"IF(G5157=\"\",\"\",VLOOKUP(G5157,Insumos!G:H,2,FALSE))","v":""}]
[null,null,null,null,null,{"$f":"IF(E5158=\"\",\"\",VLOOKUP(E5158,Insumos!AD:AE,2,FALSE))","v":""},null,{"$f":"IF(G5158=\"\",\"\",VLOOKUP(G5158,Insumos!G:H,2,FALSE))","v":""}]
[null,null,null,null,null,{"$f":"IF(E5159=\"\",\"\",VLOOKUP(E5159,Insumos!AD:AE,2,FALSE))","v":""},null,{"$f":"IF(G5159=\"\",\"\",VLOOKUP(G5159,Insumos!G:H,2,FALSE))","v":""}]
[null,null,null,null,null,{"$f":"IF(E5160=\"\",\"\",VLOOKUP(E5160,Insumos!AD:AE,2,FALSE))","v":""},null,{"$f":"IF(G5160=\"\",\"\",VLOOKUP(G5160,Insumos!G:H,2,FALSE))","v":""}]
[null,null,null,null,null,{"$f":"IF(E5161=\"\",\"\",VLOOKUP(E5161,Insumos!AD:AE,2,FALSE))","v":""},null,{"$f":"IF(G5161=\"\",\"\",VLOOKUP(G5161,Insumos!G:H,2,FALSE))","v":""}]
[null,null,null,null,null,{"$f":"IF(E5162=\"\",\"\",VLOOKUP(E5162,Insumos!AD:AE,2,FALSE))","v":""},null,{"$f":"IF(G5162=\"\",\"\",VLOOKUP(G5162,Insumos!G:H,2,FALSE))","v":""}]
[null,null,null,null,null,{"$f":"IF(E5163=\"\",\"\",VLOOKUP(E5163,Insumos!AD:AE,2,FALSE))","v":""},null,{"$f":"IF(G5163=\"\",\"\",VLOOKUP(G5163,Insumos!G:H,2,FALSE))","v":""}]
[null,null,null,null,null,{"$f":"IF(E5164=\"\",\"\",VLOOKUP(E5164,Insumos!AD:AE,2,FALSE))","v":""},null,{"$f":"IF(G5164=\"\",\"\",VLOOKUP(G5164,Insumos!G:H,2,FALSE))","v":""}]
[null,null,null,null,null,{"$f":"IF(E5165=\"\",\"\",VLOOKUP(E5165,Insumos!AD:AE,2,FALSE))","v":""},null,{"$f":"IF(G5165=\"\",\"\",VLOOKUP(G5165,Insumos!G:H,2,FALSE))","v":""}]
[null,null,null,null,null,{"$f":"IF(E5166=\"\",\"\",VLOOKUP(E5166,Insumos!AD:AE,2,FALSE))","v":""},null,{"$f":"IF(G5166=\"\",\"\",VLOOKUP(G5166,Insumos!G:H,2,FALSE))","v":""}]
[null,null,null,null,null,{"$f":"IF(E5167=\"\",\"\",VLOOKUP(E5167,Insumos!AD:AE,2,FALSE))","v":""},null,{"$f":"IF(G5167=\"\",\"\",VLOOKUP(G5167,Insumos!G:H,2,FALSE))","v":""}]
[null,null,null,null,null,{"$f":"IF(E5168=\"\",\"\",VLOOKUP(E5168,Insumos!AD:AE,2,FALSE))","v":""},null,{"$f":"IF(G5168=\"\",\"\",VLOOKUP(G5168,Insumos!G:H,2,FALSE))","v":""}]
[null,null,null,null,null,{"$f":"IF(E5169=\"\",\"\",VLOOKUP(E5169,Insumos!AD:AE,2,FALSE))","v":""},null,{"$f":"IF(G5169=\"\",\"\",VLOOKUP(G5169,Insumos!G:H,2,FALSE))","v":""}]
[null,null,null,null,null,{"$f":"IF(E5170=\"\",\"\",VLOOKUP(E5170,Insumos!AD:AE,2,FALSE))","v":""},null,{"$f":"IF(G5170=\"\",\"\",VLOOKUP(G5170,Insumos!G:H,2,FALSE))","v":""}]
[null,null,null,null,null,{"$f":"IF(E5171=\"\",\"\",VLOOKUP(E5171,Insumos!AD:AE,2,FALSE))","v":""},null,{"$f":"IF(G5171=\"\",\"\",VLOOKUP(G5171,Insumos!G:H,2,FALSE))","v":""}]
[null,null,null,null,null,{"$f":"IF(E5172=\"\",\"\",VLOOKUP(E5172,Insumos!AD:AE,2,FALSE))","v":""},null,{"$f":"IF(G5172=\"\",\"\",VLOOKUP(G5172,Insumos!G:H,2,FALSE))","v":""}]
[null,null,null,null,null,{"$f":"IF(E5173=\"\",\"\",VLOOKUP(E5173,Insumos!AD:AE,2,FALSE))","v":""},null,{"$f":"IF(G5173=\"\",\"\",VLOOKUP(G5173,Insumos!G:H,2,FALSE))","v":""}]
[null,null,null,null,null,{"$f":"IF(E5174=\"\",\"\",VLOOKUP(E5174,Insumos!AD:AE,2,FALSE))","v":""},null,{"$f":"IF(G5174=\"\",\"\",VLOOKUP(G5174,Insumos!G:H,2,FALSE))","v":""}]
[null,null,null,null,null,{"$f":"IF(E5175=\"\",\"\",VLOOKUP(E5175,Insumos!AD:AE,2,FALSE))","v":""},null,{"$f":"IF(G5175=\"\",\"\",VLOOKUP(G5175,Insumos!G:H,2,FALSE))","v":""}]
[null,null,null,null,null,{"$f":"IF(E5176=\"\",\"\",VLOOKUP(E5176,Insumos!AD:AE,2,FALSE))","v":""},null,{"$f":"IF(G5176=\"\",\"\",VLOOKUP(G5176,Insumos!G:H,2,FALSE))","v":""}]
[null,null,null,null,null,{"$f":"IF(E5177=\"\",\"\",VLOOKUP(E5177,Insumos!AD:AE,2,FALSE))","v":""},null,{"$f":"IF(G5177=\"\",\"\",VLOOKUP(G5177,Insumos!G:H,2,FALSE))","v":""}]
[null,null,null,null,null,{"$f":"IF(E5178=\"\",\"\",VLOOKUP(E5178,Insumos!AD:AE,2,FALSE))","v":""},null,{"$f":"IF(G5178=\"\",\"\",VLOOKUP(G5178,Insumos!G:H,2,FALSE))","v":""}]
[null,null,null,null,null,{"$f":"IF(E5179=\"\",\"\",VLOOKUP(E5179,Insumos!AD:AE,2,FALSE))","v":""},null,{"$f":"IF(G5179=\"\",\"\",VLOOKUP(G5179,Insumos!G:H,2,FALSE))","v":""}]
[null,null,null,null,null,{"$f":"IF(E5180=\"\",\"\",VLOOKUP(E5180,Insumos!AD:AE,2,FALSE))","v":""},null,{"$f":"IF(G5180=\"\",\"\",VLOOKUP(G5180,Insumos!G:H,2,FALSE))","v":""}]
[null,null,null,null,null,{"$f":"IF(E5181=\"\",\"\",VLOOKUP(E5181,Insumos!AD:AE,2,FALSE))","v":""},null,{"$f":"IF(G5181=\"\",\"\",VLOOKUP(G5181,Insumos!G:H,2,FALSE))","v":""}]
[null,null,null,null,null,{"$f":"IF(E5182=\"\",\"\",VLOOKUP(E5182,Insumos!AD:AE,2,FALSE))","v":""},null,{"$f":"IF(G5182=\"\",\"\",VLOOKUP(G5182,Insumos!G:H,2,FALSE))","v":""}]
[null,null,null,null,null,{"$f":"IF(E5183=\"\",\"\",VLOOKUP(E5183,Insumos!AD:AE,2,FALSE))","v":""},null,{"$f":"IF(G5183=\"\",\"\",VLOOKUP(G5183,Insumos!G:H,2,FALSE))","v":""}]
[null,null,null,null,null,{"$f":"IF(E5184=\"\",\"\",VLOOKUP(E5184,Insumos!AD:AE,2,FALSE))","v":""},null,{"$f":"IF(G5184=\"\",\"\",VLOOKUP(G5184,Insumos!G:H,2,FALSE))","v":""}]
[null,null,null,null,null,{"$f":"IF(E5185=\"\",\"\",VLOOKUP(E5185,Insumos!AD:AE,2,FALSE))","v":""},null,{"$f":"IF(G5185=\"\",\"\",VLOOKUP(G5185,Insumos!G:H,2,FALSE))","v":""}]
[null,null,null,null,null,{"$f":"IF(E5186=\"\",\"\",VLOOKUP(E5186,Insumos!AD:AE,2,FALSE))","v":""},null,{"$f":"IF(G5186=\"\",\"\",VLOOKUP(G5186,Insumos!G:H,2,FALSE))","v":""}]
[null,null,null,null,null,{"$f":"IF(E5187=\"\",\"\",VLOOKUP(E5187,Insumos!AD:AE,2,FALSE))","v":""},null,{"$f":"IF(G5187=\"\",\"\",VLOOKUP(G5187,Insumos!G:H,2,FALSE))","v":""}]
[null,null,null,null,null,{"$f":"IF(E5188=\"\",\"\",VLOOKUP(E5188,Insumos!AD:AE,2,FALSE))","v":""},null,{"$f":"IF(G5188=\"\",\"\",VLOOKUP(G5188,Insumos!G:H,2,FALSE))","v":""}]
[null,null,null,null,null,{"$f":"IF(E5189=\"\",\"\",VLOOKUP(E5189,Insumos!AD:AE,2,FALSE))","v":""},null,{"$f":"IF(G5189=\"\",\"\",VLOOKUP(G5189,Insumos!G:H,2,FALSE))","v":""}]
[null,null,null,null,null,{"$f":"IF(E5190=\"\",\"\",VLOOKUP(E5190,Insumos!AD:AE,2,FALSE))","v":""},null,{"$f":"IF(G5190=\"\",\"\",VLOOKUP(G5190,Insumos!G:H,2,FALSE))","v":""}]
[null,null,null,null,null,{"$f":"IF(E5191=\"\",\"\",VLOOKUP(E5191,Insumos!AD:AE,2,FALSE))","v":""},null,{"$f":"IF(G5191=\"\",\"\",VLOOKUP(G5191,Insumos!G:H,2,FALSE))","v":""}]
[null,null,null,null,null,{"$f":"IF(E5192=\"\",\"\",VLOOKUP(E5192,Insumos!AD:AE,2,FALSE))","v":""},null,{"$f":"IF(G5192=\"\",\"\",VLOOKUP(G5192,Insumos!G:H,2,FALSE))","v":""}]
[null,null,null,null,null,{"$f":"IF(E5193=\"\",\"\",VLOOKUP(E5193,Insumos!AD:AE,2,FALSE))","v":""},null,{"$f":"IF(G5193=\"\",\"\",VLOOKUP(G5193,Insumos!G:H,2,FALSE))","v":""}]
[null,null,null,null,null,{"$f":"IF(E5194=\"\",\"\",VLOOKUP(E5194,Insumos!AD:AE,2,FALSE))","v":""},null,{"$f":"IF(G5194=\"\",\"\",VLOOKUP(G5194,Insumos!G:H,2,FALSE))","v":""}]
[null,null,null,null,null,{"$f":"IF(E5195=\"\",\"\",VLOOKUP(E5195,Insumos!AD:AE,2,FALSE))","v":""},null,{"$f":"IF(G5195=\"\",\"\",VLOOKUP(G5195,Insumos!G:H,2,FALSE))","v":""}]
[null,null,null,null,null,{"$f":"IF(E5196=\"\",\"\",VLOOKUP(E5196,Insumos!AD:AE,2,FALSE))","v":""},null,{"$f":"IF(G5196=\"\",\"\",VLOOKUP(G5196,Insumos!G:H,2,FALSE))","v":""}]
[null,null,null,null,null,{"$f":"IF(E5197=\"\",\"\",VLOOKUP(E5197,Insumos!AD:AE,2,FALSE))","v":""},null,{"$f":"IF(G5197=\"\",\"\",VLOOKUP(G5197,Insumos!G:H,2,FALSE))","v":""}]
[null,null,null,null,null,{"$f":"IF(E5198=\"\",\"\",VLOOKUP(E5198,Insumos!AD:AE,2,FALSE))","v":""},null,{"$f":"IF(G5198=\"\",\"\",VLOOKUP(G5198,Insumos!G:H,2,FALSE))","v":""}]
[null,null,null,null,null,{"$f":"IF(E5199=\"\",\"\",VLOOKUP(E5199,Insumos!AD:AE,2,FALSE))","v":""},null,{"$f":"IF(G5199=\"\",\"\",VLOOKUP(G5199,Insumos!G:H,2,FALSE))","v":""}]
[null,null,null,null,null,{"$f":"IF(E5200=\"\",\"\",VLOOKUP(E5200,Insumos!AD:AE,2,FALSE))","v":""},null,{"$f":"IF(G5200=\"\",\"\",VLOOKUP(G5200,Insumos!G:H,2,FALSE))","v":""}]
[null,null,null,null,null,{"$f":"IF(E5201=\"\",\"\",VLOOKUP(E5201,Insumos!AD:AE,2,FALSE))","v":""},null,{"$f":"IF(G5201=\"\",\"\",VLOOKUP(G5201,Insumos!G:H,2,FALSE))","v":""}]
[null,null,null,null,null,{"$f":"IF(E5202=\"\",\"\",VLOOKUP(E5202,Insumos!AD:AE,2,FALSE))","v":""},null,{"$f":"IF(G5202=\"\",\"\",VLOOKUP(G5202,Insumos!G:H,2,FALSE))","v":""}]
[null,null,null,null,null,{"$f":"IF(E5203=\"\",\"\",VLOOKUP(E5203,Insumos!AD:AE,2,FALSE))","v":""},null,{"$f":"IF(G5203=\"\",\"\",VLOOKUP(G5203,Insumos!G:H,2,FALSE))","v":""}]
[null,null,null,null,null,{"$f":"IF(E5204=\"\",\"\",VLOOKUP(E5204,Insumos!AD:AE,2,FALSE))","v":""},null,{"$f":"IF(G5204=\"\",\"\",VLOOKUP(G5204,Insumos!G:H,2,FALSE))","v":""}]
[null,null,null,null,null,{"$f":"IF(E5205=\"\",\"\",VLOOKUP(E5205,Insumos!AD:AE,2,FALSE))","v":""},null,{"$f":"IF(G5205=\"\",\"\",VLOOKUP(G5205,Insumos!G:H,2,FALSE))","v":""}]
[null,null,null,null,null,{"$f":"IF(E5206=\"\",\"\",VLOOKUP(E5206,Insumos!AD:AE,2,FALSE))","v":""},null,{"$f":"IF(G5206=\"\",\"\",VLOOKUP(G5206,Insumos!G:H,2,FALSE))","v":""}]
[null,null,null,null,null,{"$f":"IF(E5207=\"\",\"\",VLOOKUP(E5207,Insumos!AD:AE,2,FALSE))","v":""},null,{"$f":"IF(G5207=\"\",\"\",VLOOKUP(G5207,Insumos!G:H,2,FALSE))","v":""}]
[null,null,null,null,null,{"$f":"IF(E5208=\"\",\"\",VLOOKUP(E5208,Insumos!AD:AE,2,FALSE))","v":""},null,{"$f":"IF(G5208=\"\",\"\",VLOOKUP(G5208,Insumos!G:H,2,FALSE))","v":""}]
[null,null,null,null,null,{"$f":"IF(E5209=\"\",\"\",VLOOKUP(E5209,Insumos!AD:AE,2,FALSE))","v":""},null,{"$f":"IF(G5209=\"\",\"\",VLOOKUP(G5209,Insumos!G:H,2,FALSE))","v":""}]
[null,null,null,null,null,{"$f":"IF(E5210=\"\",\"\",VLOOKUP(E5210,Insumos!AD:AE,2,FALSE))","v":""},null,{"$f":"IF(G5210=\"\",\"\",VLOOKUP(G5210,Insumos!G:H,2,FALSE))","v":""}]
[null,null,null,null,null,{"$f":"IF(E5211=\"\",\"\",VLOOKUP(E5211,Insumos!AD:AE,2,FALSE))","v":""},null,{"$f":"IF(G5211=\"\",\"\",VLOOKUP(G5211,Insumos!G:H,2,FALSE))","v":""}]
[null,null,null,null,null,{"$f":"IF(E5212=\"\",\"\",VLOOKUP(E5212,Insumos!AD:AE,2,FALSE))","v":""},null,{"$f":"IF(G5212=\"\",\"\",VLOOKUP(G5212,Insumos!G:H,2,FALSE))","v":""}]
[null,null,null,null,null,{"$f":"IF(E5213=\"\",\"\",VLOOKUP(E5213,Insumos!AD:AE,2,FALSE))","v":""},null,{"$f":"IF(G5213=\"\",\"\",VLOOKUP(G5213,Insumos!G:H,2,FALSE))","v":""}]
[null,null,null,null,null,{"$f":"IF(E5214=\"\",\"\",VLOOKUP(E5214,Insumos!AD:AE,2,FALSE))","v":""},null,{"$f":"IF(G5214=\"\",\"\",VLOOKUP(G5214,Insumos!G:H,2,FALSE))","v":""}]
[null,null,null,null,null,{"$f":"IF(E5215=\"\",\"\",VLOOKUP(E5215,Insumos!AD:AE,2,FALSE))","v":""},null,{"$f":"IF(G5215=\"\",\"\",VLOOKUP(G5215,Insumos!G:H,2,FALSE))","v":""}]
[null,null,null,null,null,{"$f":"IF(E5216=\"\",\"\",VLOOKUP(E5216,Insumos!AD:AE,2,FALSE))","v":""},null,{"$f":"IF(G5216=\"\",\"\",VLOOKUP(G5216,Insumos!G:H,2,FALSE))","v":""}]
[null,null,null,null,null,{"$f":"IF(E5217=\"\",\"\",VLOOKUP(E5217,Insumos!AD:AE,2,FALSE))","v":""},null,{"$f":"IF(G5217=\"\",\"\",VLOOKUP(G5217,Insumos!G:H,2,FALSE))","v":""}]
[null,null,null,null,null,{"$f":"IF(E5218=\"\",\"\",VLOOKUP(E5218,Insumos!AD:AE,2,FALSE))","v":""},null,{"$f":"IF(G5218=\"\",\"\",VLOOKUP(G5218,Insumos!G:H,2,FALSE))","v":""}]
[null,null,null,null,null,{"$f":"IF(E5219=\"\",\"\",VLOOKUP(E5219,Insumos!AD:AE,2,FALSE))","v":""},null,{"$f":"IF(G5219=\"\",\"\",VLOOKUP(G5219,Insumos!G:H,2,FALSE))","v":""}]
[null,null,null,null,null,{"$f":"IF(E5220=\"\",\"\",VLOOKUP(E5220,Insumos!AD:AE,2,FALSE))","v":""},null,{"$f":"IF(G5220=\"\",\"\",VLOOKUP(G5220,Insumos!G:H,2,FALSE))","v":""}]
[null,null,null,null,null,{"$f":"IF(E5221=\"\",\"\",VLOOKUP(E5221,Insumos!AD:AE,2,FALSE))","v":""},null,{"$f":"IF(G5221=\"\",\"\",VLOOKUP(G5221,Insumos!G:H,2,FALSE))","v":""}]
[null,null,null,null,null,{"$f":"IF(E5222=\"\",\"\",VLOOKUP(E5222,Insumos!AD:AE,2,FALSE))","v":""},null,{"$f":"IF(G5222=\"\",\"\",VLOOKUP(G5222,Insumos!G:H,2,FALSE))","v":""}]
[null,null,null,null,null,{"$f":"IF(E5223=\"\",\"\",VLOOKUP(E5223,Insumos!AD:AE,2,FALSE))","v":""},null,{"$f":"IF(G5223=\"\",\"\",VLOOKUP(G5223,Insumos!G:H,2,FALSE))","v":""}]
[null,null,null,null,null,{"$f":"IF(E5224=\"\",\"\",VLOOKUP(E5224,Insumos!AD:AE,2,FALSE))","v":""},null,{"$f":"IF(G5224=\"\",\"\",VLOOKUP(G5224,Insumos!G:H,2,FALSE))","v":""}]
[null,null,null,null,null,{"$f":"IF(E5225=\"\",\"\",VLOOKUP(E5225,Insumos!AD:AE,2,FALSE))","v":""},null,{"$f":"IF(G5225=\"\",\"\",VLOOKUP(G5225,Insumos!G:H,2,FALSE))","v":""}]
[null,null,null,null,null,{"$f":"IF(E5226=\"\",\"\",VLOOKUP(E5226,Insumos!AD:AE,2,FALSE))","v":""},null,{"$f":"IF(G5226=\"\",\"\",VLOOKUP(G5226,Insumos!G:H,2,FALSE))","v":""}]
[null,null,null,null,null,{"$f":"IF(E5227=\"\",\"\",VLOOKUP(E5227,Insumos!AD:AE,2,FALSE))","v":""},null,{"$f":"IF(G5227=\"\",\"\",VLOOKUP(G5227,Insumos!G:H,2,FALSE))","v":""}]
[null,null,null,null,null,{"$f":"IF(E5228=\"\",\"\",VLOOKUP(E5228,Insumos!AD:AE,2,FALSE))","v":""},null,{"$f":"IF(G5228=\"\",\"\",VLOOKUP(G5228,Insumos!G:H,2,FALSE))","v":""}]
[null,null,null,null,null,{"$f":"IF(E5229=\"\",\"\",VLOOKUP(E5229,Insumos!AD:AE,2,FALSE))","v":""},null,{"$f":"IF(G5229=\"\",\"\",VLOOKUP(G5229,Insumos!G:H,2,FALSE))","v":""}]
[null,null,null,null,null,{"$f":"IF(E5230=\"\",\"\",VLOOKUP(E5230,Insumos!AD:AE,2,FALSE))","v":""},null,{"$f":"IF(G5230=\"\",\"\",VLOOKUP(G5230,Insumos!G:H,2,FALSE))","v":""}]
[null,null,null,null,null,{"$f":"IF(E5231=\"\",\"\",VLOOKUP(E5231,Insumos!AD:AE,2,FALSE))","v":""},null,{"$f":"IF(G5231=\"\",\"\",VLOOKUP(G5231,Insumos!G:H,2,FALSE))","v":""}]
[null,null,null,null,null,{"$f":"IF(E5232=\"\",\"\",VLOOKUP(E5232,Insumos!AD:AE,2,FALSE))","v":""},null,{"$f":"IF(G5232=\"\",\"\",VLOOKUP(G5232,Insumos!G:H,2,FALSE))","v":""}]
[null,null,null,null,null,{"$f":"IF(E5233=\"\",\"\",VLOOKUP(E5233,Insumos!AD:AE,2,FALSE))","v":""},null,{"$f":"IF(G5233=\"\",\"\",VLOOKUP(G5233,Insumos!G:H,2,FALSE))","v":""}]
[null,null,null,null,null,{"$f":"IF(E5234=\"\",\"\",VLOOKUP(E5234,Insumos!AD:AE,2,FALSE))","v":""},null,{"$f":"IF(G5234=\"\",\"\",VLOOKUP(G5234,Insumos!G:H,2,FALSE))","v":""}]
[null,null,null,null,null,{"$f":"IF(E5235=\"\",\"\",VLOOKUP(E5235,Insumos!AD:AE,2,FALSE))","v":""},null,{"$f":"IF(G5235=\"\",\"\",VLOOKUP(G5235,Insumos!G:H,2,FALSE))","v":""}]
[null,null,null,null,null,{"$f":"IF(E5236=\"\",\"\",VLOOKUP(E5236,Insumos!AD:AE,2,FALSE))","v":""},null,{"$f":"IF(G5236=\"\",\"\",VLOOKUP(G5236,Insumos!G:H,2,FALSE))","v":""}]
[null,null,null,null,null,{"$f":"IF(E5237=\"\",\"\",VLOOKUP(E5237,Insumos!AD:AE,2,FALSE))","v":""},null,{"$f":"IF(G5237=\"\",\"\",VLOOKUP(G5237,Insumos!G:H,2,FALSE))","v":""}]
[null,null,null,null,null,{"$f":"IF(E5238=\"\",\"\",VLOOKUP(E5238,Insumos!AD:AE,2,FALSE))","v":""},null,{"$f":"IF(G5238=\"\",\"\",VLOOKUP(G5238,Insumos!G:H,2,FALSE))","v":""}]
[null,null,null,null,null,{"$f":"IF(E5239=\"\",\"\",VLOOKUP(E5239,Insumos!AD:AE,2,FALSE))","v":""},null,{"$f":"IF(G5239=\"\",\"\",VLOOKUP(G5239,Insumos!G:H,2,FALSE))","v":""}]
[null,null,null,null,null,{"$f":"IF(E5240=\"\",\"\",VLOOKUP(E5240,Insumos!AD:AE,2,FALSE))","v":""},null,{"$f":"IF(G5240=\"\",\"\",VLOOKUP(G5240,Insumos!G:H,2,FALSE))","v":""}]
[null,null,null,null,null,{"$f":"IF(E5241=\"\",\"\",VLOOKUP(E5241,Insumos!AD:AE,2,FALSE))","v":""},null,{"$f":"IF(G5241=\"\",\"\",VLOOKUP(G5241,Insumos!G:H,2,FALSE))","v":""}]
[null,null,null,null,null,{"$f":"IF(E5242=\"\",\"\",VLOOKUP(E5242,Insumos!AD:AE,2,FALSE))","v":""},null,{"$f":"IF(G5242=\"\",\"\",VLOOKUP(G5242,Insumos!G:H,2,FALSE))","v":""}]
[null,null,null,null,null,{"$f":"IF(E5243=\"\",\"\",VLOOKUP(E5243,Insumos!AD:AE,2,FALSE))","v":""},null,{"$f":"IF(G5243=\"\",\"\",VLOOKUP(G5243,Insumos!G:H,2,FALSE))","v":""}]
[null,null,null,null,null,{"$f":"IF(E5244=\"\",\"\",VLOOKUP(E5244,Insumos!AD:AE,2,FALSE))","v":""},null,{"$f":"IF(G5244=\"\",\"\",VLOOKUP(G5244,Insumos!G:H,2,FALSE))","v":""}]
[null,null,null,null,null,{"$f":"IF(E5245=\"\",\"\",VLOOKUP(E5245,Insumos!AD:AE,2,FALSE))","v":""},null,{"$f":"IF(G5245=\"\",\"\",VLOOKUP(G5245,Insumos!G:H,2,FALSE))","v":""}]
[null,null,null,null,null,{"$f":"IF(E5246=\"\",\"\",VLOOKUP(E5246,Insumos!AD:AE,2,FALSE))","v":""},null,{"$f":"IF(G5246=\"\",\"\",VLOOKUP(G5246,Insumos!G:H,2,FALSE))","v":""}]
[null,null,null,null,null,{"$f":"IF(E5247=\"\",\"\",VLOOKUP(E5247,Insumos!AD:AE,2,FALSE))","v":""},null,{"$f":"IF(G5247=\"\",\"\",VLOOKUP(G5247,Insumos!G:H,2,FALSE))","v":""}]
[null,null,null,null,null,{"$f":"IF(E5248=\"\",\"\",VLOOKUP(E5248,Insumos!AD:AE,2,FALSE))","v":""},null,{"$f":"IF(G5248=\"\",\"\",VLOOKUP(G5248,Insumos!G:H,2,FALSE))","v":""}]
[null,null,null,null,null,{"$f":"IF(E5249=\"\",\"\",VLOOKUP(E5249,Insumos!AD:AE,2,FALSE))","v":""},null,{"$f":"IF(G5249=\"\",\"\",VLOOKUP(G5249,Insumos!G:H,2,FALSE))","v":""}]
[null,null,null,null,null,{"$f":"IF(E5250=\"\",\"\",VLOOKUP(E5250,Insumos!AD:AE,2,FALSE))","v":""},null,{"$f":"IF(G5250=\"\",\"\",VLOOKUP(G5250,Insumos!G:H,2,FALSE))","v":""}]
[null,null,null,null,null,{"$f":"IF(E5251=\"\",\"\",VLOOKUP(E5251,Insumos!AD:AE,2,FALSE))","v":""},null,{"$f":"IF(G5251=\"\",\"\",VLOOKUP(G5251,Insumos!G:H,2,FALSE))","v":""}]
[null,null,null,null,null,{"$f":"IF(E5252=\"\",\"\",VLOOKUP(E5252,Insumos!AD:AE,2,FALSE))","v":""},null,{"$f":"IF(G5252=\"\",\"\",VLOOKUP(G5252,Insumos!G:H,2,FALSE))","v":""}]
[null,null,null,null,null,{"$f":"IF(E5253=\"\",\"\",VLOOKUP(E5253,Insumos!AD:AE,2,FALSE))","v":""},null,{"$f":"IF(G5253=\"\",\"\",VLOOKUP(G5253,Insumos!G:H,2,FALSE))","v":""}]
[null,null,null,null,null,{"$f":"IF(E5254=\"\",\"\",VLOOKUP(E5254,Insumos!AD:AE,2,FALSE))","v":""},null,{"$f":"IF(G5254=\"\",\"\",VLOOKUP(G5254,Insumos!G:H,2,FALSE))","v":""}]
[null,null,null,null,null,{"$f":"IF(E5255=\"\",\"\",VLOOKUP(E5255,Insumos!AD:AE,2,FALSE))","v":""},null,{"$f":"IF(G5255=\"\",\"\",VLOOKUP(G5255,Insumos!G:H,2,FALSE))","v":""}]
[null,null,null,null,null,{"$f":"IF(E5256=\"\",\"\",VLOOKUP(E5256,Insumos!AD:AE,2,FALSE))","v":""},null,{"$f":"IF(G5256=\"\",\"\",VLOOKUP(G5256,Insumos!G:H,2,FALSE))","v":""}]
[null,null,null,null,null,{"$f":"IF(E5257=\"\",\"\",VLOOKUP(E5257,Insumos!AD:AE,2,FALSE))","v":""},null,{"$f":"IF(G5257=\"\",\"\",VLOOKUP(G5257,Insumos!G:H,2,FALSE))","v":""}]
[null,null,null,null,null,{"$f":"IF(E5258=\"\",\"\",VLOOKUP(E5258,Insumos!AD:AE,2,FALSE))","v":""},null,{"$f":"IF(G5258=\"\",\"\",VLOOKUP(G5258,Insumos!G:H,2,FALSE))","v":""}]
[null,null,null,null,null,{"$f":"IF(E5259=\"\",\"\",VLOOKUP(E5259,Insumos!AD:AE,2,FALSE))","v":""},null,{"$f":"IF(G5259=\"\",\"\",VLOOKUP(G5259,Insumos!G:H,2,FALSE))","v":""}]
[null,null,null,null,null,{"$f":"IF(E5260=\"\",\"\",VLOOKUP(E5260,Insumos!AD:AE,2,FALSE))","v":""},null,{"$f":"IF(G5260=\"\",\"\",VLOOKUP(G5260,Insumos!G:H,2,FALSE))","v":""}]
[null,null,null,null,null,{"$f":"IF(E5261=\"\",\"\",VLOOKUP(E5261,Insumos!AD:AE,2,FALSE))","v":""},null,{"$f":"IF(G5261=\"\",\"\",VLOOKUP(G5261,Insumos!G:H,2,FALSE))","v":""}]
[null,null,null,null,null,{"$f":"IF(E5262=\"\",\"\",VLOOKUP(E5262,Insumos!AD:AE,2,FALSE))","v":""},null,{"$f":"IF(G5262=\"\",\"\",VLOOKUP(G5262,Insumos!G:H,2,FALSE))","v":""}]
[null,null,null,null,null,{"$f":"IF(E5263=\"\",\"\",VLOOKUP(E5263,Insumos!AD:AE,2,FALSE))","v":""},null,{"$f":"IF(G5263=\"\",\"\",VLOOKUP(G5263,Insumos!G:H,2,FALSE))","v":""}]
[null,null,null,null,null,{"$f":"IF(E5264=\"\",\"\",VLOOKUP(E5264,Insumos!AD:AE,2,FALSE))","v":""},null,{"$f":"IF(G5264=\"\",\"\",VLOOKUP(G5264,Insumos!G:H,2,FALSE))","v":""}]
[null,null,null,null,null,{"$f":"IF(E5265=\"\",\"\",VLOOKUP(E5265,Insumos!AD:AE,2,FALSE))","v":""},null,{"$f":"IF(G5265=\"\",\"\",VLOOKUP(G5265,Insumos!G:H,2,FALSE))","v":""}]
[null,null,null,null,null,{"$f":"IF(E5266=\"\",\"\",VLOOKUP(E5266,Insumos!AD:AE,2,FALSE))","v":""},null,{"$f":"IF(G5266=\"\",\"\",VLOOKUP(G5266,Insumos!G:H,2,FALSE))","v":""}]
[null,null,null,null,null,{"$f":"IF(E5267=\"\",\"\",VLOOKUP(E5267,Insumos!AD:AE,2,FALSE))","v":""},null,{"$f":"IF(G5267=\"\",\"\",VLOOKUP(G5267,Insumos!G:H,2,FALSE))","v":""}]
[null,null,null,null,null,{"$f":"IF(E5268=\"\",\"\",VLOOKUP(E5268,Insumos!AD:AE,2,FALSE))","v":""},null,{"$f":"IF(G5268=\"\",\"\",VLOOKUP(G5268,Insumos!G:H,2,FALSE))","v":""}]
[null,null,null,null,null,{"$f":"IF(E5269=\"\",\"\",VLOOKUP(E5269,Insumos!AD:AE,2,FALSE))","v":""},null,{"$f":"IF(G5269=\"\",\"\",VLOOKUP(G5269,Insumos!G:H,2,FALSE))","v":""}]
[null,null,null,null,null,{"$f":"IF(E5270=\"\",\"\",VLOOKUP(E5270,Insumos!AD:AE,2,FALSE))","v":""},null,{"$f":"IF(G5270=\"\",\"\",VLOOKUP(G5270,Insumos!G:H,2,FALSE))","v":""}]
[null,null,null,null,null,{"$f":"IF(E5271=\"\",\"\",VLOOKUP(E5271,Insumos!AD:AE,2,FALSE))","v":""},null,{"$f":"IF(G5271=\"\",\"\",VLOOKUP(G5271,Insumos!G:H,2,FALSE))","v":""}]
[null,null,null,null,null,{"$f":"IF(E5272=\"\",\"\",VLOOKUP(E5272,Insumos!AD:AE,2,FALSE))","v":""},null,{"$f":"IF(G5272=\"\",\"\",VLOOKUP(G5272,Insumos!G:H,2,FALSE))","v":""}]
[null,null,null,null,null,{"$f":"IF(E5273=\"\",\"\",VLOOKUP(E5273,Insumos!AD:AE,2,FALSE))","v":""},null,{"$f":"IF(G5273=\"\",\"\",VLOOKUP(G5273,Insumos!G:H,2,FALSE))","v":""}]
[null,null,null,null,null,{"$f":"IF(E5274=\"\",\"\",VLOOKUP(E5274,Insumos!AD:AE,2,FALSE))","v":""},null,{"$f":"IF(G5274=\"\",\"\",VLOOKUP(G5274,Insumos!G:H,2,FALSE))","v":""}]
[null,null,null,null,null,{"$f":"IF(E5275=\"\",\"\",VLOOKUP(E5275,Insumos!AD:AE,2,FALSE))","v":""},null,{"$f":"IF(G5275=\"\",\"\",VLOOKUP(G5275,Insumos!G:H,2,FALSE))","v":""}]
[null,null,null,null,null,{"$f":"IF(E5276=\"\",\"\",VLOOKUP(E5276,Insumos!AD:AE,2,FALSE))","v":""},null,{"$f":"IF(G5276=\"\",\"\",VLOOKUP(G5276,Insumos!G:H,2,FALSE))","v":""}]
[null,null,null,null,null,{"$f":"IF(E5277=\"\",\"\",VLOOKUP(E5277,Insumos!AD:AE,2,FALSE))","v":""},null,{"$f":"IF(G5277=\"\",\"\",VLOOKUP(G5277,Insumos!G:H,2,FALSE))","v":""}]
[null,null,null,null,null,{"$f":"IF(E5278=\"\",\"\",VLOOKUP(E5278,Insumos!AD:AE,2,FALSE))","v":""},null,{"$f":"IF(G5278=\"\",\"\",VLOOKUP(G5278,Insumos!G:H,2,FALSE))","v":""}]
[null,null,null,null,null,{"$f":"IF(E5279=\"\",\"\",VLOOKUP(E5279,Insumos!AD:AE,2,FALSE))","v":""},null,{"$f":"IF(G5279=\"\",\"\",VLOOKUP(G5279,Insumos!G:H,2,FALSE))","v":""}]
[null,null,null,null,null,{"$f":"IF(E5280=\"\",\"\",VLOOKUP(E5280,Insumos!AD:AE,2,FALSE))","v":""},null,{"$f":"IF(G5280=\"\",\"\",VLOOKUP(G5280,Insumos!G:H,2,FALSE))","v":""}]
[null,null,null,null,null,{"$f":"IF(E5281=\"\",\"\",VLOOKUP(E5281,Insumos!AD:AE,2,FALSE))","v":""},null,{"$f":"IF(G5281=\"\",\"\",VLOOKUP(G5281,Insumos!G:H,2,FALSE))","v":""}]
[null,null,null,null,null,{"$f":"IF(E5282=\"\",\"\",VLOOKUP(E5282,Insumos!AD:AE,2,FALSE))","v":""},null,{"$f":"IF(G5282=\"\",\"\",VLOOKUP(G5282,Insumos!G:H,2,FALSE))","v":""}]
[null,null,null,null,null,{"$f":"IF(E5283=\"\",\"\",VLOOKUP(E5283,Insumos!AD:AE,2,FALSE))","v":""},null,{"$f":"IF(G5283=\"\",\"\",VLOOKUP(G5283,Insumos!G:H,2,FALSE))","v":""}]
[null,null,null,null,null,{"$f":"IF(E5284=\"\",\"\",VLOOKUP(E5284,Insumos!AD:AE,2,FALSE))","v":""},null,{"$f":"IF(G5284=\"\",\"\",VLOOKUP(G5284,Insumos!G:H,2,FALSE))","v":""}]
[null,null,null,null,null,{"$f":"IF(E5285=\"\",\"\",VLOOKUP(E5285,Insumos!AD:AE,2,FALSE))","v":""},null,{"$f":"IF(G5285=\"\",\"\",VLOOKUP(G5285,Insumos!G:H,2,FALSE))","v":""}]
[null,null,null,null,null,{"$f":"IF(E5286=\"\",\"\",VLOOKUP(E5286,Insumos!AD:AE,2,FALSE))","v":""},null,{"$f":"IF(G5286=\"\",\"\",VLOOKUP(G5286,Insumos!G:H,2,FALSE))","v":""}]
[null,null,null,null,null,{"$f":"IF(E5287=\"\",\"\",VLOOKUP(E5287,Insumos!AD:AE,2,FALSE))","v":""},null,{"$f":"IF(G5287=\"\",\"\",VLOOKUP(G5287,Insumos!G:H,2,FALSE))","v":""}]
[null,null,null,null,null,{"$f":"IF(E5288=\"\",\"\",VLOOKUP(E5288,Insumos!AD:AE,2,FALSE))","v":""},null,{"$f":"IF(G5288=\"\",\"\",VLOOKUP(G5288,Insumos!G:H,2,FALSE))","v":""}]
[null,null,null,null,null,{"$f":"IF(E5289=\"\",\"\",VLOOKUP(E5289,Insumos!AD:AE,2,FALSE))","v":""},null,{"$f":"IF(G5289=\"\",\"\",VLOOKUP(G5289,Insumos!G:H,2,FALSE))","v":""}]
[null,null,null,null,null,{"$f":"IF(E5290=\"\",\"\",VLOOKUP(E5290,Insumos!AD:AE,2,FALSE))","v":""},null,{"$f":"IF(G5290=\"\",\"\",VLOOKUP(G5290,Insumos!G:H,2,FALSE))","v":""}]
[null,null,null,null,null,{"$f":"IF(E5291=\"\",\"\",VLOOKUP(E5291,Insumos!AD:AE,2,FALSE))","v":""},null,{"$f":"IF(G5291=\"\",\"\",VLOOKUP(G5291,Insumos!G:H,2,FALSE))","v":""}]
[null,null,null,null,null,{"$f":"IF(E5292=\"\",\"\",VLOOKUP(E5292,Insumos!AD:AE,2,FALSE))","v":""},null,{"$f":"IF(G5292=\"\",\"\",VLOOKUP(G5292,Insumos!G:H,2,FALSE))","v":""}]
[null,null,null,null,null,{"$f":"IF(E5293=\"\",\"\",VLOOKUP(E5293,Insumos!AD:AE,2,FALSE))","v":""},null,{"$f":"IF(G5293=\"\",\"\",VLOOKUP(G5293,Insumos!G:H,2,FALSE))","v":""}]
[null,null,null,null,null,{"$f":"IF(E5294=\"\",\"\",VLOOKUP(E5294,Insumos!AD:AE,2,FALSE))","v":""},null,{"$f":"IF(G5294=\"\",\"\",VLOOKUP(G5294,Insumos!G:H,2,FALSE))","v":""}]
[null,null,null,null,null,{"$f":"IF(E5295=\"\",\"\",VLOOKUP(E5295,Insumos!AD:AE,2,FALSE))","v":""},null,{"$f":"IF(G5295=\"\",\"\",VLOOKUP(G5295,Insumos!G:H,2,FALSE))","v":""}]
[null,null,null,null,null,{"$f":"IF(E5296=\"\",\"\",VLOOKUP(E5296,Insumos!AD:AE,2,FALSE))","v":""},null,{"$f":"IF(G5296=\"\",\"\",VLOOKUP(G5296,Insumos!G:H,2,FALSE))","v":""}]
[null,null,null,null,null,{"$f":"IF(E5297=\"\",\"\",VLOOKUP(E5297,Insumos!AD:AE,2,FALSE))","v":""},null,{"$f":"IF(G5297=\"\",\"\",VLOOKUP(G5297,Insumos!G:H,2,FALSE))","v":""}]
[null,null,null,null,null,{"$f":"IF(E5298=\"\",\"\",VLOOKUP(E5298,Insumos!AD:AE,2,FALSE))","v":""},null,{"$f":"IF(G5298=\"\",\"\",VLOOKUP(G5298,Insumos!G:H,2,FALSE))","v":""}]
[null,null,null,null,null,{"$f":"IF(E5299=\"\",\"\",VLOOKUP(E5299,Insumos!AD:AE,2,FALSE))","v":""},null,{"$f":"IF(G5299=\"\",\"\",VLOOKUP(G5299,Insumos!G:H,2,FALSE))","v":""}]
[null,null,null,null,null,{"$f":"IF(E5300=\"\",\"\",VLOOKUP(E5300,Insumos!AD:AE,2,FALSE))","v":""},null,{"$f":"IF(G5300=\"\",\"\",VLOOKUP(G5300,Insumos!G:H,2,FALSE))","v":""}]
[null,null,null,null,null,{"$f":"IF(E5301=\"\",\"\",VLOOKUP(E5301,Insumos!AD:AE,2,FALSE))","v":""},null,{"$f":"IF(G5301=\"\",\"\",VLOOKUP(G5301,Insumos!G:H,2,FALSE))","v":""}]
[null,null,null,null,null,{"$f":"IF(E5302=\"\",\"\",VLOOKUP(E5302,Insumos!AD:AE,2,FALSE))","v":""},null,{"$f":"IF(G5302=\"\",\"\",VLOOKUP(G5302,Insumos!G:H,2,FALSE))","v":""}]
[null,null,null,null,null,{"$f":"IF(E5303=\"\",\"\",VLOOKUP(E5303,Insumos!AD:AE,2,FALSE))","v":""},null,{"$f":"IF(G5303=\"\",\"\",VLOOKUP(G5303,Insumos!G:H,2,FALSE))","v":""}]
[null,null,null,null,null,{"$f":"IF(E5304=\"\",\"\",VLOOKUP(E5304,Insumos!AD:AE,2,FALSE))","v":""},null,{"$f":"IF(G5304=\"\",\"\",VLOOKUP(G5304,Insumos!G:H,2,FALSE))","v":""}]
[null,null,null,null,null,{"$f":"IF(E5305=\"\",\"\",VLOOKUP(E5305,Insumos!AD:AE,2,FALSE))","v":""},null,{"$f":"IF(G5305=\"\",\"\",VLOOKUP(G5305,Insumos!G:H,2,FALSE))","v":""}]
[null,null,null,null,null,{"$f":"IF(E5306=\"\",\"\",VLOOKUP(E5306,Insumos!AD:AE,2,FALSE))","v":""},null,{"$f":"IF(G5306=\"\",\"\",VLOOKUP(G5306,Insumos!G:H,2,FALSE))","v":""}]
[null,null,null,null,null,{"$f":"IF(E5307=\"\",\"\",VLOOKUP(E5307,Insumos!AD:AE,2,FALSE))","v":""},null,{"$f":"IF(G5307=\"\",\"\",VLOOKUP(G5307,Insumos!G:H,2,FALSE))","v":""}]
[null,null,null,null,null,{"$f":"IF(E5308=\"\",\"\",VLOOKUP(E5308,Insumos!AD:AE,2,FALSE))","v":""},null,{"$f":"IF(G5308=\"\",\"\",VLOOKUP(G5308,Insumos!G:H,2,FALSE))","v":""}]
[null,null,null,null,null,{"$f":"IF(E5309=\"\",\"\",VLOOKUP(E5309,Insumos!AD:AE,2,FALSE))","v":""},null,{"$f":"IF(G5309=\"\",\"\",VLOOKUP(G5309,Insumos!G:H,2,FALSE))","v":""}]
[null,null,null,null,null,{"$f":"IF(E5310=\"\",\"\",VLOOKUP(E5310,Insumos!AD:AE,2,FALSE))","v":""},null,{"$f":"IF(G5310=\"\",\"\",VLOOKUP(G5310,Insumos!G:H,2,FALSE))","v":""}]
[null,null,null,null,null,{"$f":"IF(E5311=\"\",\"\",VLOOKUP(E5311,Insumos!AD:AE,2,FALSE))","v":""},null,{"$f":"IF(G5311=\"\",\"\",VLOOKUP(G5311,Insumos!G:H,2,FALSE))","v":""}]
[null,null,null,null,null,{"$f":"IF(E5312=\"\",\"\",VLOOKUP(E5312,Insumos!AD:AE,2,FALSE))","v":""},null,{"$f":"IF(G5312=\"\",\"\",VLOOKUP(G5312,Insumos!G:H,2,FALSE))","v":""}]
[null,null,null,null,null,{"$f":"IF(E5313=\"\",\"\",VLOOKUP(E5313,Insumos!AD:AE,2,FALSE))","v":""},null,{"$f":"IF(G5313=\"\",\"\",VLOOKUP(G5313,Insumos!G:H,2,FALSE))","v":""}]
[null,null,null,null,null,{"$f":"IF(E5314=\"\",\"\",VLOOKUP(E5314,Insumos!AD:AE,2,FALSE))","v":""},null,{"$f":"IF(G5314=\"\",\"\",VLOOKUP(G5314,Insumos!G:H,2,FALSE))","v":""}]
[null,null,null,null,null,{"$f":"IF(E5315=\"\",\"\",VLOOKUP(E5315,Insumos!AD:AE,2,FALSE))","v":""},null,{"$f":"IF(G5315=\"\",\"\",VLOOKUP(G5315,Insumos!G:H,2,FALSE))","v":""}]
[null,null,null,null,null,{"$f":"IF(E5316=\"\",\"\",VLOOKUP(E5316,Insumos!AD:AE,2,FALSE))","v":""},null,{"$f":"IF(G5316=\"\",\"\",VLOOKUP(G5316,Insumos!G:H,2,FALSE))","v":""}]
[null,null,null,null,null,{"$f":"IF(E5317=\"\",\"\",VLOOKUP(E5317,Insumos!AD:AE,2,FALSE))","v":""},null,{"$f":"IF(G5317=\"\",\"\",VLOOKUP(G5317,Insumos!G:H,2,FALSE))","v":""}]
[null,null,null,null,null,{"$f":"IF(E5318=\"\",\"\",VLOOKUP(E5318,Insumos!AD:AE,2,FALSE))","v":""},null,{"$f":"IF(G5318=\"\",\"\",VLOOKUP(G5318,Insumos!G:H,2,FALSE))","v":""}]
[null,null,null,null,null,{"$f":"IF(E5319=\"\",\"\",VLOOKUP(E5319,Insumos!AD:AE,2,FALSE))","v":""},null,{"$f":"IF(G5319=\"\",\"\",VLOOKUP(G5319,Insumos!G:H,2,FALSE))","v":""}]
[null,null,null,null,null,{"$f":"IF(E5320=\"\",\"\",VLOOKUP(E5320,Insumos!AD:AE,2,FALSE))","v":""},null,{"$f":"IF(G5320=\"\",\"\",VLOOKUP(G5320,Insumos!G:H,2,FALSE))","v":""}]
[null,null,null,null,null,{"$f":"IF(E5321=\"\",\"\",VLOOKUP(E5321,Insumos!AD:AE,2,FALSE))","v":""},null,{"$f":"IF(G5321=\"\",\"\",VLOOKUP(G5321,Insumos!G:H,2,FALSE))","v":""}]
[null,null,null,null,null,{"$f":"IF(E5322=\"\",\"\",VLOOKUP(E5322,Insumos!AD:AE,2,FALSE))","v":""},null,{"$f":"IF(G5322=\"\",\"\",VLOOKUP(G5322,Insumos!G:H,2,FALSE))","v":""}]
[null,null,null,null,null,{"$f":"IF(E5323=\"\",\"\",VLOOKUP(E5323,Insumos!AD:AE,2,FALSE))","v":""},null,{"$f":"IF(G5323=\"\",\"\",VLOOKUP(G5323,Insumos!G:H,2,FALSE))","v":""}]
[null,null,null,null,null,{"$f":"IF(E5324=\"\",\"\",VLOOKUP(E5324,Insumos!AD:AE,2,FALSE))","v":""},null,{"$f":"IF(G5324=\"\",\"\",VLOOKUP(G5324,Insumos!G:H,2,FALSE))","v":""}]
[null,null,null,null,null,{"$f":"IF(E5325=\"\",\"\",VLOOKUP(E5325,Insumos!AD:AE,2,FALSE))","v":""},null,{"$f":"IF(G5325=\"\",\"\",VLOOKUP(G5325,Insumos!G:H,2,FALSE))","v":""}]
[null,null,null,null,null,{"$f":"IF(E5326=\"\",\"\",VLOOKUP(E5326,Insumos!AD:AE,2,FALSE))","v":""},null,{"$f":"IF(G5326=\"\",\"\",VLOOKUP(G5326,Insumos!G:H,2,FALSE))","v":""}]
[null,null,null,null,null,{"$f":"IF(E5327=\"\",\"\",VLOOKUP(E5327,Insumos!AD:AE,2,FALSE))","v":""},null,{"$f":"IF(G5327=\"\",\"\",VLOOKUP(G5327,Insumos!G:H,2,FALSE))","v":""}]
[null,null,null,null,null,{"$f":"IF(E5328=\"\",\"\",VLOOKUP(E5328,Insumos!AD:AE,2,FALSE))","v":""},null,{"$f":"IF(G5328=\"\",\"\",VLOOKUP(G5328,Insumos!G:H,2,FALSE))","v":""}]
[null,null,null,null,null,{"$f":"IF(E5329=\"\",\"\",VLOOKUP(E5329,Insumos!AD:AE,2,FALSE))","v":""},null,{"$f":"IF(G5329=\"\",\"\",VLOOKUP(G5329,Insumos!G:H,2,FALSE))","v":""}]
[null,null,null,null,null,{"$f":"IF(E5330=\"\",\"\",VLOOKUP(E5330,Insumos!AD:AE,2,FALSE))","v":""},null,{"$f":"IF(G5330=\"\",\"\",VLOOKUP(G5330,Insumos!G:H,2,FALSE))","v":""}]
[null,null,null,null,null,{"$f":"IF(E5331=\"\",\"\",VLOOKUP(E5331,Insumos!AD:AE,2,FALSE))","v":""},null,{"$f":"IF(G5331=\"\",\"\",VLOOKUP(G5331,Insumos!G:H,2,FALSE))","v":""}]
[null,null,null,null,null,{"$f":"IF(E5332=\"\",\"\",VLOOKUP(E5332,Insumos!AD:AE,2,FALSE))","v":""},null,{"$f":"IF(G5332=\"\",\"\",VLOOKUP(G5332,Insumos!G:H,2,FALSE))","v":""}]
[null,null,null,null,null,{"$f":"IF(E5333=\"\",\"\",VLOOKUP(E5333,Insumos!AD:AE,2,FALSE))","v":""},null,{"$f":"IF(G5333=\"\",\"\",VLOOKUP(G5333,Insumos!G:H,2,FALSE))","v":""}]
[null,null,null,null,null,{"$f":"IF(E5334=\"\",\"\",VLOOKUP(E5334,Insumos!AD:AE,2,FALSE))","v":""},null,{"$f":"IF(G5334=\"\",\"\",VLOOKUP(G5334,Insumos!G:H,2,FALSE))","v":""}]
[null,null,null,null,null,{"$f":"IF(E5335=\"\",\"\",VLOOKUP(E5335,Insumos!AD:AE,2,FALSE))","v":""},null,{"$f":"IF(G5335=\"\",\"\",VLOOKUP(G5335,Insumos!G:H,2,FALSE))","v":""}]
[null,null,null,null,null,{"$f":"IF(E5336=\"\",\"\",VLOOKUP(E5336,Insumos!AD:AE,2,FALSE))","v":""},null,{"$f":"IF(G5336=\"\",\"\",VLOOKUP(G5336,Insumos!G:H,2,FALSE))","v":""}]
[null,null,null,null,null,{"$f":"IF(E5337=\"\",\"\",VLOOKUP(E5337,Insumos!AD:AE,2,FALSE))","v":""},null,{"$f":"IF(G5337=\"\",\"\",VLOOKUP(G5337,Insumos!G:H,2,FALSE))","v":""}]
[null,null,null,null,null,{"$f":"IF(E5338=\"\",\"\",VLOOKUP(E5338,Insumos!AD:AE,2,FALSE))","v":""},null,{"$f":"IF(G5338=\"\",\"\",VLOOKUP(G5338,Insumos!G:H,2,FALSE))","v":""}]
[null,null,null,null,null,{"$f":"IF(E5339=\"\",\"\",VLOOKUP(E5339,Insumos!AD:AE,2,FALSE))","v":""},null,{"$f":"IF(G5339=\"\",\"\",VLOOKUP(G5339,Insumos!G:H,2,FALSE))","v":""}]
[null,null,null,null,null,{"$f":"IF(E5340=\"\",\"\",VLOOKUP(E5340,Insumos!AD:AE,2,FALSE))","v":""},null,{"$f":"IF(G5340=\"\",\"\",VLOOKUP(G5340,Insumos!G:H,2,FALSE))","v":""}]
[null,null,null,null,null,{"$f":"IF(E5341=\"\",\"\",VLOOKUP(E5341,Insumos!AD:AE,2,FALSE))","v":""},null,{"$f":"IF(G5341=\"\",\"\",VLOOKUP(G5341,Insumos!G:H,2,FALSE))","v":""}]
[null,null,null,null,null,{"$f":"IF(E5342=\"\",\"\",VLOOKUP(E5342,Insumos!AD:AE,2,FALSE))","v":""},null,{"$f":"IF(G5342=\"\",\"\",VLOOKUP(G5342,Insumos!G:H,2,FALSE))","v":""}]
[null,null,null,null,null,{"$f":"IF(E5343=\"\",\"\",VLOOKUP(E5343,Insumos!AD:AE,2,FALSE))","v":""},null,{"$f":"IF(G5343=\"\",\"\",VLOOKUP(G5343,Insumos!G:H,2,FALSE))","v":""}]
[null,null,null,null,null,{"$f":"IF(E5344=\"\",\"\",VLOOKUP(E5344,Insumos!AD:AE,2,FALSE))","v":""},null,{"$f":"IF(G5344=\"\",\"\",VLOOKUP(G5344,Insumos!G:H,2,FALSE))","v":""}]
[null,null,null,null,null,{"$f":"IF(E5345=\"\",\"\",VLOOKUP(E5345,Insumos!AD:AE,2,FALSE))","v":""},null,{"$f":"IF(G5345=\"\",\"\",VLOOKUP(G5345,Insumos!G:H,2,FALSE))","v":""}]
[null,null,null,null,null,{"$f":"IF(E5346=\"\",\"\",VLOOKUP(E5346,Insumos!AD:AE,2,FALSE))","v":""},null,{"$f":"IF(G5346=\"\",\"\",VLOOKUP(G5346,Insumos!G:H,2,FALSE))","v":""}]
[null,null,null,null,null,{"$f":"IF(E5347=\"\",\"\",VLOOKUP(E5347,Insumos!AD:AE,2,FALSE))","v":""},null,{"$f":"IF(G5347=\"\",\"\",VLOOKUP(G5347,Insumos!G:H,2,FALSE))","v":""}]
[null,null,null,null,null,{"$f":"IF(E5348=\"\",\"\",VLOOKUP(E5348,Insumos!AD:AE,2,FALSE))","v":""},null,{"$f":"IF(G5348=\"\",\"\",VLOOKUP(G5348,Insumos!G:H,2,FALSE))","v":""}]
[null,null,null,null,null,{"$f":"IF(E5349=\"\",\"\",VLOOKUP(E5349,Insumos!AD:AE,2,FALSE))","v":""},null,{"$f":"IF(G5349=\"\",\"\",VLOOKUP(G5349,Insumos!G:H,2,FALSE))","v":""}]
[null,null,null,null,null,{"$f":"IF(E5350=\"\",\"\",VLOOKUP(E5350,Insumos!AD:AE,2,FALSE))","v":""},null,{"$f":"IF(G5350=\"\",\"\",VLOOKUP(G5350,Insumos!G:H,2,FALSE))","v":""}]
[null,null,null,null,null,{"$f":"IF(E5351=\"\",\"\",VLOOKUP(E5351,Insumos!AD:AE,2,FALSE))","v":""},null,{"$f":"IF(G5351=\"\",\"\",VLOOKUP(G5351,Insumos!G:H,2,FALSE))","v":""}]
[null,null,null,null,null,{"$f":"IF(E5352=\"\",\"\",VLOOKUP(E5352,Insumos!AD:AE,2,FALSE))","v":""},null,{"$f":"IF(G5352=\"\",\"\",VLOOKUP(G5352,Insumos!G:H,2,FALSE))","v":""}]
[null,null,null,null,null,{"$f":"IF(E5353=\"\",\"\",VLOOKUP(E5353,Insumos!AD:AE,2,FALSE))","v":""},null,{"$f":"IF(G5353=\"\",\"\",VLOOKUP(G5353,Insumos!G:H,2,FALSE))","v":""}]
[null,null,null,null,null,{"$f":"IF(E5354=\"\",\"\",VLOOKUP(E5354,Insumos!AD:AE,2,FALSE))","v":""},null,{"$f":"IF(G5354=\"\",\"\",VLOOKUP(G5354,Insumos!G:H,2,FALSE))","v":""}]
[null,null,null,null,null,{"$f":"IF(E5355=\"\",\"\",VLOOKUP(E5355,Insumos!AD:AE,2,FALSE))","v":""},null,{"$f":"IF(G5355=\"\",\"\",VLOOKUP(G5355,Insumos!G:H,2,FALSE))","v":""}]
[null,null,null,null,null,{"$f":"IF(E5356=\"\",\"\",VLOOKUP(E5356,Insumos!AD:AE,2,FALSE))","v":""},null,{"$f":"IF(G5356=\"\",\"\",VLOOKUP(G5356,Insumos!G:H,2,FALSE))","v":""}]
[null,null,null,null,null,{"$f":"IF(E5357=\"\",\"\",VLOOKUP(E5357,Insumos!AD:AE,2,FALSE))","v":""},null,{"$f":"IF(G5357=\"\",\"\",VLOOKUP(G5357,Insumos!G:H,2,FALSE))","v":""}]
[null,null,null,null,null,{"$f":"IF(E5358=\"\",\"\",VLOOKUP(E5358,Insumos!AD:AE,2,FALSE))","v":""},null,{"$f":"IF(G5358=\"\",\"\",VLOOKUP(G5358,Insumos!G:H,2,FALSE))","v":""}]
[null,null,null,null,null,{"$f":"IF(E5359=\"\",\"\",VLOOKUP(E5359,Insumos!AD:AE,2,FALSE))","v":""},null,{"$f":"IF(G5359=\"\",\"\",VLOOKUP(G5359,Insumos!G:H,2,FALSE))","v":""}]
[null,null,null,null,null,{"$f":"IF(E5360=\"\",\"\",VLOOKUP(E5360,Insumos!AD:AE,2,FALSE))","v":""},null,{"$f":"IF(G5360=\"\",\"\",VLOOKUP(G5360,Insumos!G:H,2,FALSE))","v":""}]
[null,null,null,null,null,{"$f":"IF(E5361=\"\",\"\",VLOOKUP(E5361,Insumos!AD:AE,2,FALSE))","v":""},null,{"$f":"IF(G5361=\"\",\"\",VLOOKUP(G5361,Insumos!G:H,2,FALSE))","v":""}]
[null,null,null,null,null,{"$f":"IF(E5362=\"\",\"\",VLOOKUP(E5362,Insumos!AD:AE,2,FALSE))","v":""},null,{"$f":"IF(G5362=\"\",\"\",VLOOKUP(G5362,Insumos!G:H,2,FALSE))","v":""}]
[null,null,null,null,null,{"$f":"IF(E5363=\"\",\"\",VLOOKUP(E5363,Insumos!AD:AE,2,FALSE))","v":""},null,{"$f":"IF(G5363=\"\",\"\",VLOOKUP(G5363,Insumos!G:H,2,FALSE))","v":""}]
[null,null,null,null,null,{"$f":"IF(E5364=\"\",\"\",VLOOKUP(E5364,Insumos!AD:AE,2,FALSE))","v":""},null,{"$f":"IF(G5364=\"\",\"\",VLOOKUP(G5364,Insumos!G:H,2,FALSE))","v":""}]
[null,null,null,null,null,{"$f":"IF(E5365=\"\",\"\",VLOOKUP(E5365,Insumos!AD:AE,2,FALSE))","v":""},null,{"$f":"IF(G5365=\"\",\"\",VLOOKUP(G5365,Insumos!G:H,2,FALSE))","v":""}]
[null,null,null,null,null,{"$f":"IF(E5366=\"\",\"\",VLOOKUP(E5366,Insumos!AD:AE,2,FALSE))","v":""},null,{"$f":"IF(G5366=\"\",\"\",VLOOKUP(G5366,Insumos!G:H,2,FALSE))","v":""}]
[null,null,null,null,null,{"$f":"IF(E5367=\"\",\"\",VLOOKUP(E5367,Insumos!AD:AE,2,FALSE))","v":""},null,{"$f":"IF(G5367=\"\",\"\",VLOOKUP(G5367,Insumos!G:H,2,FALSE))","v":""}]
[null,null,null,null,null,{"$f":"IF(E5368=\"\",\"\",VLOOKUP(E5368,Insumos!AD:AE,2,FALSE))","v":""},null,{"$f":"IF(G5368=\"\",\"\",VLOOKUP(G5368,Insumos!G:H,2,FALSE))","v":""}]
[null,null,null,null,null,{"$f":"IF(E5369=\"\",\"\",VLOOKUP(E5369,Insumos!AD:AE,2,FALSE))","v":""},null,{"$f":"IF(G5369=\"\",\"\",VLOOKUP(G5369,Insumos!G:H,2,FALSE))","v":""}]
[null,null,null,null,null,{"$f":"IF(E5370=\"\",\"\",VLOOKUP(E5370,Insumos!AD:AE,2,FALSE))","v":""},null,{"$f":"IF(G5370=\"\",\"\",VLOOKUP(G5370,Insumos!G:H,2,FALSE))","v":""}]
[null,null,null,null,null,{"$f":"IF(E5371=\"\",\"\",VLOOKUP(E5371,Insumos!AD:AE,2,FALSE))","v":""},null,{"$f":"IF(G5371=\"\",\"\",VLOOKUP(G5371,Insumos!G:H,2,FALSE))","v":""}]
[null,null,null,null,null,{"$f":"IF(E5372=\"\",\"\",VLOOKUP(E5372,Insumos!AD:AE,2,FALSE))","v":""},null,{"$f":"IF(G5372=\"\",\"\",VLOOKUP(G5372,Insumos!G:H,2,FALSE))","v":""}]
[null,null,null,null,null,{"$f":"IF(E5373=\"\",\"\",VLOOKUP(E5373,Insumos!AD:AE,2,FALSE))","v":""},null,{"$f":"IF(G5373=\"\",\"\",VLOOKUP(G5373,Insumos!G:H,2,FALSE))","v":""}]
[null,null,null,null,null,{"$f":"IF(E5374=\"\",\"\",VLOOKUP(E5374,Insumos!AD:AE,2,FALSE))","v":""},null,{"$f":"IF(G5374=\"\",\"\",VLOOKUP(G5374,Insumos!G:H,2,FALSE))","v":""}]
[null,null,null,null,null,{"$f":"IF(E5375=\"\",\"\",VLOOKUP(E5375,Insumos!AD:AE,2,FALSE))","v":""},null,{"$f":"IF(G5375=\"\",\"\",VLOOKUP(G5375,Insumos!G:H,2,FALSE))","v":""}]
[null,null,null,null,null,{"$f":"IF(E5376=\"\",\"\",VLOOKUP(E5376,Insumos!AD:AE,2,FALSE))","v":""},null,{"$f":"IF(G5376=\"\",\"\",VLOOKUP(G5376,Insumos!G:H,2,FALSE))","v":""}]
[null,null,null,null,null,{"$f":"IF(E5377=\"\",\"\",VLOOKUP(E5377,Insumos!AD:AE,2,FALSE))","v":""},null,{"$f":"IF(G5377=\"\",\"\",VLOOKUP(G5377,Insumos!G:H,2,FALSE))","v":""}]
[null,null,null,null,null,{"$f":"IF(E5378=\"\",\"\",VLOOKUP(E5378,Insumos!AD:AE,2,FALSE))","v":""},null,{"$f":"IF(G5378=\"\",\"\",VLOOKUP(G5378,Insumos!G:H,2,FALSE))","v":""}]
[null,null,null,null,null,{"$f":"IF(E5379=\"\",\"\",VLOOKUP(E5379,Insumos!AD:AE,2,FALSE))","v":""},null,{"$f":"IF(G5379=\"\",\"\",VLOOKUP(G5379,Insumos!G:H,2,FALSE))","v":""}]
[null,null,null,null,null,{"$f":"IF(E5380=\"\",\"\",VLOOKUP(E5380,Insumos!AD:AE,2,FALSE))","v":""},null,{"$f":"IF(G5380=\"\",\"\",VLOOKUP(G5380,Insumos!G:H,2,FALSE))","v":""}]
[null,null,null,null,null,{"$f":"IF(E5381=\"\",\"\",VLOOKUP(E5381,Insumos!AD:AE,2,FALSE))","v":""},null,{"$f":"IF(G5381=\"\",\"\",VLOOKUP(G5381,Insumos!G:H,2,FALSE))","v":""}]
[null,null,null,null,null,{"$f":"IF(E5382=\"\",\"\",VLOOKUP(E5382,Insumos!AD:AE,2,FALSE))","v":""},null,{"$f":"IF(G5382=\"\",\"\",VLOOKUP(G5382,Insumos!G:H,2,FALSE))","v":""}]
[null,null,null,null,null,{"$f":"IF(E5383=\"\",\"\",VLOOKUP(E5383,Insumos!AD:AE,2,FALSE))","v":""},null,{"$f":"IF(G5383=\"\",\"\",VLOOKUP(G5383,Insumos!G:H,2,FALSE))","v":""}]
[null,null,null,null,null,{"$f":"IF(E5384=\"\",\"\",VLOOKUP(E5384,Insumos!AD:AE,2,FALSE))","v":""},null,{"$f":"IF(G5384=\"\",\"\",VLOOKUP(G5384,Insumos!G:H,2,FALSE))","v":""}]
[null,null,null,null,null,{"$f":"IF(E5385=\"\",\"\",VLOOKUP(E5385,Insumos!AD:AE,2,FALSE))","v":""},null,{"$f":"IF(G5385=\"\",\"\",VLOOKUP(G5385,Insumos!G:H,2,FALSE))","v":""}]
[null,null,null,null,null,{"$f":"IF(E5386=\"\",\"\",VLOOKUP(E5386,Insumos!AD:AE,2,FALSE))","v":""},null,{"$f":"IF(G5386=\"\",\"\",VLOOKUP(G5386,Insumos!G:H,2,FALSE))","v":""}]
[null,null,null,null,null,{"$f":"IF(E5387=\"\",\"\",VLOOKUP(E5387,Insumos!AD:AE,2,FALSE))","v":""},null,{"$f":"IF(G5387=\"\",\"\",VLOOKUP(G5387,Insumos!G:H,2,FALSE))","v":""}]
[null,null,null,null,null,{"$f":"IF(E5388=\"\",\"\",VLOOKUP(E5388,Insumos!AD:AE,2,FALSE))","v":""},null,{"$f":"IF(G5388=\"\",\"\",VLOOKUP(G5388,Insumos!G:H,2,FALSE))","v":""}]
[null,null,null,null,null,{"$f":"IF(E5389=\"\",\"\",VLOOKUP(E5389,Insumos!AD:AE,2,FALSE))","v":""},null,{"$f":"IF(G5389=\"\",\"\",VLOOKUP(G5389,Insumos!G:H,2,FALSE))","v":""}]
[null,null,null,null,null,{"$f":"IF(E5390=\"\",\"\",VLOOKUP(E5390,Insumos!AD:AE,2,FALSE))","v":""},null,{"$f":"IF(G5390=\"\",\"\",VLOOKUP(G5390,Insumos!G:H,2,FALSE))","v":""}]
[null,null,null,null,null,{"$f":"IF(E5391=\"\",\"\",VLOOKUP(E5391,Insumos!AD:AE,2,FALSE))","v":""},null,{"$f":"IF(G5391=\"\",\"\",VLOOKUP(G5391,Insumos!G:H,2,FALSE))","v":""}]
[null,null,null,null,null,{"$f":"IF(E5392=\"\",\"\",VLOOKUP(E5392,Insumos!AD:AE,2,FALSE))","v":""},null,{"$f":"IF(G5392=\"\",\"\",VLOOKUP(G5392,Insumos!G:H,2,FALSE))","v":""}]
[null,null,null,null,null,{"$f":"IF(E5393=\"\",\"\",VLOOKUP(E5393,Insumos!AD:AE,2,FALSE))","v":""},null,{"$f":"IF(G5393=\"\",\"\",VLOOKUP(G5393,Insumos!G:H,2,FALSE))","v":""}]
[null,null,null,null,null,{"$f":"IF(E5394=\"\",\"\",VLOOKUP(E5394,Insumos!AD:AE,2,FALSE))","v":""},null,{"$f":"IF(G5394=\"\",\"\",VLOOKUP(G5394,Insumos!G:H,2,FALSE))","v":""}]
[null,null,null,null,null,{"$f":"IF(E5395=\"\",\"\",VLOOKUP(E5395,Insumos!AD:AE,2,FALSE))","v":""},null,{"$f":"IF(G5395=\"\",\"\",VLOOKUP(G5395,Insumos!G:H,2,FALSE))","v":""}]
[null,null,null,null,null,{"$f":"IF(E5396=\"\",\"\",VLOOKUP(E5396,Insumos!AD:AE,2,FALSE))","v":""},null,{"$f":"IF(G5396=\"\",\"\",VLOOKUP(G5396,Insumos!G:H,2,FALSE))","v":""}]
[null,null,null,null,null,{"$f":"IF(E5397=\"\",\"\",VLOOKUP(E5397,Insumos!AD:AE,2,FALSE))","v":""},null,{"$f":"IF(G5397=\"\",\"\",VLOOKUP(G5397,Insumos!G:H,2,FALSE))","v":""}]
[null,null,null,null,null,{"$f":"IF(E5398=\"\",\"\",VLOOKUP(E5398,Insumos!AD:AE,2,FALSE))","v":""},null,{"$f":"IF(G5398=\"\",\"\",VLOOKUP(G5398,Insumos!G:H,2,FALSE))","v":""}]
[null,null,null,null,null,{"$f":"IF(E5399=\"\",\"\",VLOOKUP(E5399,Insumos!AD:AE,2,FALSE))","v":""},null,{"$f":"IF(G5399=\"\",\"\",VLOOKUP(G5399,Insumos!G:H,2,FALSE))","v":""}]
[null,null,null,null,null,{"$f":"IF(E5400=\"\",\"\",VLOOKUP(E5400,Insumos!AD:AE,2,FALSE))","v":""},null,{"$f":"IF(G5400=\"\",\"\",VLOOKUP(G5400,Insumos!G:H,2,FALSE))","v":""}]
[null,null,null,null,null,{"$f":"IF(E5401=\"\",\"\",VLOOKUP(E5401,Insumos!AD:AE,2,FALSE))","v":""},null,{"$f":"IF(G5401=\"\",\"\",VLOOKUP(G5401,Insumos!G:H,2,FALSE))","v":""}]
[null,null,null,null,null,{"$f":"IF(E5402=\"\",\"\",VLOOKUP(E5402,Insumos!AD:AE,2,FALSE))","v":""},null,{"$f":"IF(G5402=\"\",\"\",VLOOKUP(G5402,Insumos!G:H,2,FALSE))","v":""}]
[null,null,null,null,null,{"$f":"IF(E5403=\"\",\"\",VLOOKUP(E5403,Insumos!AD:AE,2,FALSE))","v":""},null,{"$f":"IF(G5403=\"\",\"\",VLOOKUP(G5403,Insumos!G:H,2,FALSE))","v":""}]
[null,null,null,null,null,{"$f":"IF(E5404=\"\",\"\",VLOOKUP(E5404,Insumos!AD:AE,2,FALSE))","v":""},null,{"$f":"IF(G5404=\"\",\"\",VLOOKUP(G5404,Insumos!G:H,2,FALSE))","v":""}]
[null,null,null,null,null,{"$f":"IF(E5405=\"\",\"\",VLOOKUP(E5405,Insumos!AD:AE,2,FALSE))","v":""},null,{"$f":"IF(G5405=\"\",\"\",VLOOKUP(G5405,Insumos!G:H,2,FALSE))","v":""}]
[null,null,null,null,null,{"$f":"IF(E5406=\"\",\"\",VLOOKUP(E5406,Insumos!AD:AE,2,FALSE))","v":""},null,{"$f":"IF(G5406=\"\",\"\",VLOOKUP(G5406,Insumos!G:H,2,FALSE))","v":""}]
[null,null,null,null,null,{"$f":"IF(E5407=\"\",\"\",VLOOKUP(E5407,Insumos!AD:AE,2,FALSE))","v":""},null,{"$f":"IF(G5407=\"\",\"\",VLOOKUP(G5407,Insumos!G:H,2,FALSE))","v":""}]
[null,null,null,null,null,{"$f":"IF(E5408=\"\",\"\",VLOOKUP(E5408,Insumos!AD:AE,2,FALSE))","v":""},null,{"$f":"IF(G5408=\"\",\"\",VLOOKUP(G5408,Insumos!G:H,2,FALSE))","v":""}]
[null,null,null,null,null,{"$f":"IF(E5409=\"\",\"\",VLOOKUP(E5409,Insumos!AD:AE,2,FALSE))","v":""},null,{"$f":"IF(G5409=\"\",\"\",VLOOKUP(G5409,Insumos!G:H,2,FALSE))","v":""}]
[null,null,null,null,null,{"$f":"IF(E5410=\"\",\"\",VLOOKUP(E5410,Insumos!AD:AE,2,FALSE))","v":""},null,{"$f":"IF(G5410=\"\",\"\",VLOOKUP(G5410,Insumos!G:H,2,FALSE))","v":""}]
[null,null,null,null,null,{"$f":"IF(E5411=\"\",\"\",VLOOKUP(E5411,Insumos!AD:AE,2,FALSE))","v":""},null,{"$f":"IF(G5411=\"\",\"\",VLOOKUP(G5411,Insumos!G:H,2,FALSE))","v":""}]
[null,null,null,null,null,{"$f":"IF(E5412=\"\",\"\",VLOOKUP(E5412,Insumos!AD:AE,2,FALSE))","v":""},null,{"$f":"IF(G5412=\"\",\"\",VLOOKUP(G5412,Insumos!G:H,2,FALSE))","v":""}]
[null,null,null,null,null,{"$f":"IF(E5413=\"\",\"\",VLOOKUP(E5413,Insumos!AD:AE,2,FALSE))","v":""},null,{"$f":"IF(G5413=\"\",\"\",VLOOKUP(G5413,Insumos!G:H,2,FALSE))","v":""}]
[null,null,null,null,null,{"$f":"IF(E5414=\"\",\"\",VLOOKUP(E5414,Insumos!AD:AE,2,FALSE))","v":""},null,{"$f":"IF(G5414=\"\",\"\",VLOOKUP(G5414,Insumos!G:H,2,FALSE))","v":""}]
[null,null,null,null,null,{"$f":"IF(E5415=\"\",\"\",VLOOKUP(E5415,Insumos!AD:AE,2,FALSE))","v":""},null,{"$f":"IF(G5415=\"\",\"\",VLOOKUP(G5415,Insumos!G:H,2,FALSE))","v":""}]
[null,null,null,null,null,{"$f":"IF(E5416=\"\",\"\",VLOOKUP(E5416,Insumos!AD:AE,2,FALSE))","v":""},null,{"$f":"IF(G5416=\"\",\"\",VLOOKUP(G5416,Insumos!G:H,2,FALSE))","v":""}]
[null,null,null,null,null,{"$f":"IF(E5417=\"\",\"\",VLOOKUP(E5417,Insumos!AD:AE,2,FALSE))","v":""},null,{"$f":"IF(G5417=\"\",\"\",VLOOKUP(G5417,Insumos!G:H,2,FALSE))","v":""}]
[null,null,null,null,null,{"$f":"IF(E5418=\"\",\"\",VLOOKUP(E5418,Insumos!AD:AE,2,FALSE))","v":""},null,{"$f":"IF(G5418=\"\",\"\",VLOOKUP(G5418,Insumos!G:H,2,FALSE))","v":""}]
[null,null,null,null,null,{"$f":"IF(E5419=\"\",\"\",VLOOKUP(E5419,Insumos!AD:AE,2,FALSE))","v":""},null,{"$f":"IF(G5419=\"\",\"\",VLOOKUP(G5419,Insumos!G:H,2,FALSE))","v":""}]
[null,null,null,null,null,{"$f":"IF(E5420=\"\",\"\",VLOOKUP(E5420,Insumos!AD:AE,2,FALSE))","v":""},null,{"$f":"IF(G5420=\"\",\"\",VLOOKUP(G5420,Insumos!G:H,2,FALSE))","v":""}]
[null,null,null,null,null,{"$f":"IF(E5421=\"\",\"\",VLOOKUP(E5421,Insumos!AD:AE,2,FALSE))","v":""},null,{"$f":"IF(G5421=\"\",\"\",VLOOKUP(G5421,Insumos!G:H,2,FALSE))","v":""}]
[null,null,null,null,null,{"$f":"IF(E5422=\"\",\"\",VLOOKUP(E5422,Insumos!AD:AE,2,FALSE))","v":""},null,{"$f":"IF(G5422=\"\",\"\",VLOOKUP(G5422,Insumos!G:H,2,FALSE))","v":""}]
[null,null,null,null,null,{"$f":"IF(E5423=\"\",\"\",VLOOKUP(E5423,Insumos!AD:AE,2,FALSE))","v":""},null,{"$f":"IF(G5423=\"\",\"\",VLOOKUP(G5423,Insumos!G:H,2,FALSE))","v":""}]
[null,null,null,null,null,{"$f":"IF(E5424=\"\",\"\",VLOOKUP(E5424,Insumos!AD:AE,2,FALSE))","v":""},null,{"$f":"IF(G5424=\"\",\"\",VLOOKUP(G5424,Insumos!G:H,2,FALSE))","v":""}]
[null,null,null,null,null,{"$f":"IF(E5425=\"\",\"\",VLOOKUP(E5425,Insumos!AD:AE,2,FALSE))","v":""},null,{"$f":"IF(G5425=\"\",\"\",VLOOKUP(G5425,Insumos!G:H,2,FALSE))","v":""}]
[null,null,null,null,null,{"$f":"IF(E5426=\"\",\"\",VLOOKUP(E5426,Insumos!AD:AE,2,FALSE))","v":""},null,{"$f":"IF(G5426=\"\",\"\",VLOOKUP(G5426,Insumos!G:H,2,FALSE))","v":""}]
[null,null,null,null,null,{"$f":"IF(E5427=\"\",\"\",VLOOKUP(E5427,Insumos!AD:AE,2,FALSE))","v":""},null,{"$f":"IF(G5427=\"\",\"\",VLOOKUP(G5427,Insumos!G:H,2,FALSE))","v":""}]
[null,null,null,null,null,{"$f":"IF(E5428=\"\",\"\",VLOOKUP(E5428,Insumos!AD:AE,2,FALSE))","v":""},null,{"$f":"IF(G5428=\"\",\"\",VLOOKUP(G5428,Insumos!G:H,2,FALSE))","v":""}]
[null,null,null,null,null,{"$f":"IF(E5429=\"\",\"\",VLOOKUP(E5429,Insumos!AD:AE,2,FALSE))","v":""},null,{"$f":"IF(G5429=\"\",\"\",VLOOKUP(G5429,Insumos!G:H,2,FALSE))","v":""}]
[null,null,null,null,null,{"$f":"IF(E5430=\"\",\"\",VLOOKUP(E5430,Insumos!AD:AE,2,FALSE))","v":""},null,{"$f":"IF(G5430=\"\",\"\",VLOOKUP(G5430,Insumos!G:H,2,FALSE))","v":""}]
[null,null,null,null,null,{"$f":"IF(E5431=\"\",\"\",VLOOKUP(E5431,Insumos!AD:AE,2,FALSE))","v":""},null,{"$f":"IF(G5431=\"\",\"\",VLOOKUP(G5431,Insumos!G:H,2,FALSE))","v":""}]
[null,null,null,null,null,{"$f":"IF(E5432=\"\",\"\",VLOOKUP(E5432,Insumos!AD:AE,2,FALSE))","v":""},null,{"$f":"IF(G5432=\"\",\"\",VLOOKUP(G5432,Insumos!G:H,2,FALSE))","v":""}]
[null,null,null,null,null,{"$f":"IF(E5433=\"\",\"\",VLOOKUP(E5433,Insumos!AD:AE,2,FALSE))","v":""},null,{"$f":"IF(G5433=\"\",\"\",VLOOKUP(G5433,Insumos!G:H,2,FALSE))","v":""}]
[null,null,null,null,null,{"$f":"IF(E5434=\"\",\"\",VLOOKUP(E5434,Insumos!AD:AE,2,FALSE))","v":""},null,{"$f":"IF(G5434=\"\",\"\",VLOOKUP(G5434,Insumos!G:H,2,FALSE))","v":""}]
[null,null,null,null,null,{"$f":"IF(E5435=\"\",\"\",VLOOKUP(E5435,Insumos!AD:AE,2,FALSE))","v":""},null,{"$f":"IF(G5435=\"\",\"\",VLOOKUP(G5435,Insumos!G:H,2,FALSE))","v":""}]
[null,null,null,null,null,{"$f":"IF(E5436=\"\",\"\",VLOOKUP(E5436,Insumos!AD:AE,2,FALSE))","v":""},null,{"$f":"IF(G5436=\"\",\"\",VLOOKUP(G5436,Insumos!G:H,2,FALSE))","v":""}]
[null,null,null,null,null,{"$f":"IF(E5437=\"\",\"\",VLOOKUP(E5437,Insumos!AD:AE,2,FALSE))","v":""},null,{"$f":"IF(G5437=\"\",\"\",VLOOKUP(G5437,Insumos!G:H,2,FALSE))","v":""}]
[null,null,null,null,null,{"$f":"IF(E5438=\"\",\"\",VLOOKUP(E5438,Insumos!AD:AE,2,FALSE))","v":""},null,{"$f":"IF(G5438=\"\",\"\",VLOOKUP(G5438,Insumos!G:H,2,FALSE))","v":""}]
[null,null,null,null,null,{"$f":"IF(E5439=\"\",\"\",VLOOKUP(E5439,Insumos!AD:AE,2,FALSE))","v":""},null,{"$f":"IF(G5439=\"\",\"\",VLOOKUP(G5439,Insumos!G:H,2,FALSE))","v":""}]
[null,null,null,null,null,{"$f":"IF(E5440=\"\",\"\",VLOOKUP(E5440,Insumos!AD:AE,2,FALSE))","v":""},null,{"$f":"IF(G5440=\"\",\"\",VLOOKUP(G5440,Insumos!G:H,2,FALSE))","v":""}]
[null,null,null,null,null,{"$f":"IF(E5441=\"\",\"\",VLOOKUP(E5441,Insumos!AD:AE,2,FALSE))","v":""},null,{"$f":"IF(G5441=\"\",\"\",VLOOKUP(G5441,Insumos!G:H,2,FALSE))","v":""}]
[null,null,null,null,null,{"$f":"IF(E5442=\"\",\"\",VLOOKUP(E5442,Insumos!AD:AE,2,FALSE))","v":""},null,{"$f":"IF(G5442=\"\",\"\",VLOOKUP(G5442,Insumos!G:H,2,FALSE))","v":""}]
[null,null,null,null,null,{"$f":"IF(E5443=\"\",\"\",VLOOKUP(E5443,Insumos!AD:AE,2,FALSE))","v":""},null,{"$f":"IF(G5443=\"\",\"\",VLOOKUP(G5443,Insumos!G:H,2,FALSE))","v":""}]
[null,null,null,null,null,{"$f":"IF(E5444=\"\",\"\",VLOOKUP(E5444,Insumos!AD:AE,2,FALSE))","v":""},null,{"$f":"IF(G5444=\"\",\"\",VLOOKUP(G5444,Insumos!G:H,2,FALSE))","v":""}]
[null,null,null,null,null,{"$f":"IF(E5445=\"\",\"\",VLOOKUP(E5445,Insumos!AD:AE,2,FALSE))","v":""},null,{"$f":"IF(G5445=\"\",\"\",VLOOKUP(G5445,Insumos!G:H,2,FALSE))","v":""}]
[null,null,null,null,null,{"$f":"IF(E5446=\"\",\"\",VLOOKUP(E5446,Insumos!AD:AE,2,FALSE))","v":""},null,{"$f":"IF(G5446=\"\",\"\",VLOOKUP(G5446,Insumos!G:H,2,FALSE))","v":""}]
[null,null,null,null,null,{"$f":"IF(E5447=\"\",\"\",VLOOKUP(E5447,Insumos!AD:AE,2,FALSE))","v":""},null,{"$f":"IF(G5447=\"\",\"\",VLOOKUP(G5447,Insumos!G:H,2,FALSE))","v":""}]
[null,null,null,null,null,{"$f":"IF(E5448=\"\",\"\",VLOOKUP(E5448,Insumos!AD:AE,2,FALSE))","v":""},null,{"$f":"IF(G5448=\"\",\"\",VLOOKUP(G5448,Insumos!G:H,2,FALSE))","v":""}]
[null,null,null,null,null,{"$f":"IF(E5449=\"\",\"\",VLOOKUP(E5449,Insumos!AD:AE,2,FALSE))","v":""},null,{"$f":"IF(G5449=\"\",\"\",VLOOKUP(G5449,Insumos!G:H,2,FALSE))","v":""}]
[null,null,null,null,null,{"$f":"IF(E5450=\"\",\"\",VLOOKUP(E5450,Insumos!AD:AE,2,FALSE))","v":""},null,{"$f":"IF(G5450=\"\",\"\",VLOOKUP(G5450,Insumos!G:H,2,FALSE))","v":""}]
[null,null,null,null,null,{"$f":"IF(E5451=\"\",\"\",VLOOKUP(E5451,Insumos!AD:AE,2,FALSE))","v":""},null,{"$f":"IF(G5451=\"\",\"\",VLOOKUP(G5451,Insumos!G:H,2,FALSE))","v":""}]
[null,null,null,null,null,{"$f":"IF(E5452=\"\",\"\",VLOOKUP(E5452,Insumos!AD:AE,2,FALSE))","v":""},null,{"$f":"IF(G5452=\"\",\"\",VLOOKUP(G5452,Insumos!G:H,2,FALSE))","v":""}]
[null,null,null,null,null,{"$f":"IF(E5453=\"\",\"\",VLOOKUP(E5453,Insumos!AD:AE,2,FALSE))","v":""},null,{"$f":"IF(G5453=\"\",\"\",VLOOKUP(G5453,Insumos!G:H,2,FALSE))","v":""}]
[null,null,null,null,null,{"$f":"IF(E5454=\"\",\"\",VLOOKUP(E5454,Insumos!AD:AE,2,FALSE))","v":""},null,{"$f":"IF(G5454=\"\",\"\",VLOOKUP(G5454,Insumos!G:H,2,FALSE))","v":""}]
[null,null,null,null,null,{"$f":"IF(E5455=\"\",\"\",VLOOKUP(E5455,Insumos!AD:AE,2,FALSE))","v":""},null,{"$f":"IF(G5455=\"\",\"\",VLOOKUP(G5455,Insumos!G:H,2,FALSE))","v":""}]
[null,null,null,null,null,{"$f":"IF(E5456=\"\",\"\",VLOOKUP(E5456,Insumos!AD:AE,2,FALSE))","v":""},null,{"$f":"IF(G5456=\"\",\"\",VLOOKUP(G5456,Insumos!G:H,2,FALSE))","v":""}]
[null,null,null,null,null,{"$f":"IF(E5457=\"\",\"\",VLOOKUP(E5457,Insumos!AD:AE,2,FALSE))","v":""},null,{"$f":"IF(G5457=\"\",\"\",VLOOKUP(G5457,Insumos!G:H,2,FALSE))","v":""}]
[null,null,null,null,null,{"$f":"IF(E5458=\"\",\"\",VLOOKUP(E5458,Insumos!AD:AE,2,FALSE))","v":""},null,{"$f":"IF(G5458=\"\",\"\",VLOOKUP(G5458,Insumos!G:H,2,FALSE))","v":""}]
[null,null,null,null,null,{"$f":"IF(E5459=\"\",\"\",VLOOKUP(E5459,Insumos!AD:AE,2,FALSE))","v":""},null,{"$f":"IF(G5459=\"\",\"\",VLOOKUP(G5459,Insumos!G:H,2,FALSE))","v":""}]
[null,null,null,null,null,{"$f":"IF(E5460=\"\",\"\",VLOOKUP(E5460,Insumos!AD:AE,2,FALSE))","v":""},null,{"$f":"IF(G5460=\"\",\"\",VLOOKUP(G5460,Insumos!G:H,2,FALSE))","v":""}]
[null,null,null,null,null,{"$f":"IF(E5461=\"\",\"\",VLOOKUP(E5461,Insumos!AD:AE,2,FALSE))","v":""},null,{"$f":"IF(G5461=\"\",\"\",VLOOKUP(G5461,Insumos!G:H,2,FALSE))","v":""}]
[null,null,null,null,null,{"$f":"IF(E5462=\"\",\"\",VLOOKUP(E5462,Insumos!AD:AE,2,FALSE))","v":""},null,{"$f":"IF(G5462=\"\",\"\",VLOOKUP(G5462,Insumos!G:H,2,FALSE))","v":""}]
[null,null,null,null,null,{"$f":"IF(E5463=\"\",\"\",VLOOKUP(E5463,Insumos!AD:AE,2,FALSE))","v":""},null,{"$f":"IF(G5463=\"\",\"\",VLOOKUP(G5463,Insumos!G:H,2,FALSE))","v":""}]
[null,null,null,null,null,{"$f":"IF(E5464=\"\",\"\",VLOOKUP(E5464,Insumos!AD:AE,2,FALSE))","v":""},null,{"$f":"IF(G5464=\"\",\"\",VLOOKUP(G5464,Insumos!G:H,2,FALSE))","v":""}]
[null,null,null,null,null,{"$f":"IF(E5465=\"\",\"\",VLOOKUP(E5465,Insumos!AD:AE,2,FALSE))","v":""},null,{"$f":"IF(G5465=\"\",\"\",VLOOKUP(G5465,Insumos!G:H,2,FALSE))","v":""}]
[null,null,null,null,null,{"$f":"IF(E5466=\"\",\"\",VLOOKUP(E5466,Insumos!AD:AE,2,FALSE))","v":""},null,{"$f":"IF(G5466=\"\",\"\",VLOOKUP(G5466,Insumos!G:H,2,FALSE))","v":""}]
[null,null,null,null,null,{"$f":"IF(E5467=\"\",\"\",VLOOKUP(E5467,Insumos!AD:AE,2,FALSE))","v":""},null,{"$f":"IF(G5467=\"\",\"\",VLOOKUP(G5467,Insumos!G:H,2,FALSE))","v":""}]
[null,null,null,null,null,{"$f":"IF(E5468=\"\",\"\",VLOOKUP(E5468,Insumos!AD:AE,2,FALSE))","v":""},null,{"$f":"IF(G5468=\"\",\"\",VLOOKUP(G5468,Insumos!G:H,2,FALSE))","v":""}]
[null,null,null,null,null,{"$f":"IF(E5469=\"\",\"\",VLOOKUP(E5469,Insumos!AD:AE,2,FALSE))","v":""},null,{"$f":"IF(G5469=\"\",\"\",VLOOKUP(G5469,Insumos!G:H,2,FALSE))","v":""}]
[null,null,null,null,null,{"$f":"IF(E5470=\"\",\"\",VLOOKUP(E5470,Insumos!AD:AE,2,FALSE))","v":""},null,{"$f":"IF(G5470=\"\",\"\",VLOOKUP(G5470,Insumos!G:H,2,FALSE))","v":""}]
[null,null,null,null,null,{"$f":"IF(E5471=\"\",\"\",VLOOKUP(E5471,Insumos!AD:AE,2,FALSE))","v":""},null,{"$f":"IF(G5471=\"\",\"\",VLOOKUP(G5471,Insumos!G:H,2,FALSE))","v":""}]
[null,null,null,null,null,{"$f":"IF(E5472=\"\",\"\",VLOOKUP(E5472,Insumos!AD:AE,2,FALSE))","v":""},null,{"$f":"IF(G5472=\"\",\"\",VLOOKUP(G5472,Insumos!G:H,2,FALSE))","v":""}]
[null,null,null,null,null,{"$f":"IF(E5473=\"\",\"\",VLOOKUP(E5473,Insumos!AD:AE,2,FALSE))","v":""},null,{"$f":"IF(G5473=\"\",\"\",VLOOKUP(G5473,Insumos!G:H,2,FALSE))","v":""}]
[null,null,null,null,null,{"$f":"IF(E5474=\"\",\"\",VLOOKUP(E5474,Insumos!AD:AE,2,FALSE))","v":""},null,{"$f":"IF(G5474=\"\",\"\",VLOOKUP(G5474,Insumos!G:H,2,FALSE))","v":""}]
[null,null,null,null,null,{"$f":"IF(E5475=\"\",\"\",VLOOKUP(E5475,Insumos!AD:AE,2,FALSE))","v":""},null,{"$f":"IF(G5475=\"\",\"\",VLOOKUP(G5475,Insumos!G:H,2,FALSE))","v":""}]
[null,null,null,null,null,{"$f":"IF(E5476=\"\",\"\",VLOOKUP(E5476,Insumos!AD:AE,2,FALSE))","v":""},null,{"$f":"IF(G5476=\"\",\"\",VLOOKUP(G5476,Insumos!G:H,2,FALSE))","v":""}]
[null,null,null,null,null,{"$f":"IF(E5477=\"\",\"\",VLOOKUP(E5477,Insumos!AD:AE,2,FALSE))","v":""},null,{"$f":"IF(G5477=\"\",\"\",VLOOKUP(G5477,Insumos!G:H,2,FALSE))","v":""}]
[null,null,null,null,null,{"$f":"IF(E5478=\"\",\"\",VLOOKUP(E5478,Insumos!AD:AE,2,FALSE))","v":""},null,{"$f":"IF(G5478=\"\",\"\",VLOOKUP(G5478,Insumos!G:H,2,FALSE))","v":""}]
[null,null,null,null,null,{"$f":"IF(E5479=\"\",\"\",VLOOKUP(E5479,Insumos!AD:AE,2,FALSE))","v":""},null,{"$f":"IF(G5479=\"\",\"\",VLOOKUP(G5479,Insumos!G:H,2,FALSE))","v":""}]
[null,null,null,null,null,{"$f":"IF(E5480=\"\",\"\",VLOOKUP(E5480,Insumos!AD:AE,2,FALSE))","v":""},null,{"$f":"IF(G5480=\"\",\"\",VLOOKUP(G5480,Insumos!G:H,2,FALSE))","v":""}]
[null,null,null,null,null,{"$f":"IF(E5481=\"\",\"\",VLOOKUP(E5481,Insumos!AD:AE,2,FALSE))","v":""},null,{"$f":"IF(G5481=\"\",\"\",VLOOKUP(G5481,Insumos!G:H,2,FALSE))","v":""}]
[null,null,null,null,null,{"$f":"IF(E5482=\"\",\"\",VLOOKUP(E5482,Insumos!AD:AE,2,FALSE))","v":""},null,{"$f":"IF(G5482=\"\",\"\",VLOOKUP(G5482,Insumos!G:H,2,FALSE))","v":""}]
[null,null,null,null,null,{"$f":"IF(E5483=\"\",\"\",VLOOKUP(E5483,Insumos!AD:AE,2,FALSE))","v":""},null,{"$f":"IF(G5483=\"\",\"\",VLOOKUP(G5483,Insumos!G:H,2,FALSE))","v":""}]
[null,null,null,null,null,{"$f":"IF(E5484=\"\",\"\",VLOOKUP(E5484,Insumos!AD:AE,2,FALSE))","v":""},null,{"$f":"IF(G5484=\"\",\"\",VLOOKUP(G5484,Insumos!G:H,2,FALSE))","v":""}]
[null,null,null,null,null,{"$f":"IF(E5485=\"\",\"\",VLOOKUP(E5485,Insumos!AD:AE,2,FALSE))","v":""},null,{"$f":"IF(G5485=\"\",\"\",VLOOKUP(G5485,Insumos!G:H,2,FALSE))","v":""}]
[null,null,null,null,null,{"$f":"IF(E5486=\"\",\"\",VLOOKUP(E5486,Insumos!AD:AE,2,FALSE))","v":""},null,{"$f":"IF(G5486=\"\",\"\",VLOOKUP(G5486,Insumos!G:H,2,FALSE))","v":""}]
[null,null,null,null,null,{"$f":"IF(E5487=\"\",\"\",VLOOKUP(E5487,Insumos!AD:AE,2,FALSE))","v":""},null,{"$f":"IF(G5487=\"\",\"\",VLOOKUP(G5487,Insumos!G:H,2,FALSE))","v":""}]
[null,null,null,null,null,{"$f":"IF(E5488=\"\",\"\",VLOOKUP(E5488,Insumos!AD:AE,2,FALSE))","v":""},null,{"$f":"IF(G5488=\"\",\"\",VLOOKUP(G5488,Insumos!G:H,2,FALSE))","v":""}]
[null,null,null,null,null,{"$f":"IF(E5489=\"\",\"\",VLOOKUP(E5489,Insumos!AD:AE,2,FALSE))","v":""},null,{"$f":"IF(G5489=\"\",\"\",VLOOKUP(G5489,Insumos!G:H,2,FALSE))","v":""}]
[null,null,null,null,null,{"$f":"IF(E5490=\"\",\"\",VLOOKUP(E5490,Insumos!AD:AE,2,FALSE))","v":""},null,{"$f":"IF(G5490=\"\",\"\",VLOOKUP(G5490,Insumos!G:H,2,FALSE))","v":""}]
[null,null,null,null,null,{"$f":"IF(E5491=\"\",\"\",VLOOKUP(E5491,Insumos!AD:AE,2,FALSE))","v":""},null,{"$f":"IF(G5491=\"\",\"\",VLOOKUP(G5491,Insumos!G:H,2,FALSE))","v":""}]
[null,null,null,null,null,{"$f":"IF(E5492=\"\",\"\",VLOOKUP(E5492,Insumos!AD:AE,2,FALSE))","v":""},null,{"$f":"IF(G5492=\"\",\"\",VLOOKUP(G5492,Insumos!G:H,2,FALSE))","v":""}]
[null,null,null,null,null,{"$f":"IF(E5493=\"\",\"\",VLOOKUP(E5493,Insumos!AD:AE,2,FALSE))","v":""},null,{"$f":"IF(G5493=\"\",\"\",VLOOKUP(G5493,Insumos!G:H,2,FALSE))","v":""}]
[null,null,null,null,null,{"$f":"IF(E5494=\"\",\"\",VLOOKUP(E5494,Insumos!AD:AE,2,FALSE))","v":""},null,{"$f":"IF(G5494=\"\",\"\",VLOOKUP(G5494,Insumos!G:H,2,FALSE))","v":""}]
[null,null,null,null,null,{"$f":"IF(E5495=\"\",\"\",VLOOKUP(E5495,Insumos!AD:AE,2,FALSE))","v":""},null,{"$f":"IF(G5495=\"\",\"\",VLOOKUP(G5495,Insumos!G:H,2,FALSE))","v":""}]
[null,null,null,null,null,{"$f":"IF(E5496=\"\",\"\",VLOOKUP(E5496,Insumos!AD:AE,2,FALSE))","v":""},null,{"$f":"IF(G5496=\"\",\"\",VLOOKUP(G5496,Insumos!G:H,2,FALSE))","v":""}]
[null,null,null,null,null,{"$f":"IF(E5497=\"\",\"\",VLOOKUP(E5497,Insumos!AD:AE,2,FALSE))","v":""},null,{"$f":"IF(G5497=\"\",\"\",VLOOKUP(G5497,Insumos!G:H,2,FALSE))","v":""}]
[null,null,null,null,null,{"$f":"IF(E5498=\"\",\"\",VLOOKUP(E5498,Insumos!AD:AE,2,FALSE))","v":""},null,{"$f":"IF(G5498=\"\",\"\",VLOOKUP(G5498,Insumos!G:H,2,FALSE))","v":""}]
[null,null,null,null,null,{"$f":"IF(E5499=\"\",\"\",VLOOKUP(E5499,Insumos!AD:AE,2,FALSE))","v":""},null,{"$f":"IF(G5499=\"\",\"\",VLOOKUP(G5499,Insumos!G:H,2,FALSE))","v":""}]
[null,null,null,null,null,{"$f":"IF(E5500=\"\",\"\",VLOOKUP(E5500,Insumos!AD:AE,2,FALSE))","v":""},null,{"$f":"IF(G5500=\"\",\"\",VLOOKUP(G5500,Insumos!G:H,2,FALSE))","v":""}]
[null,null,null,null,null,{"$f":"IF(E5501=\"\",\"\",VLOOKUP(E5501,Insumos!AD:AE,2,FALSE))","v":""},null,{"$f":"IF(G5501=\"\",\"\",VLOOKUP(G5501,Insumos!G:H,2,FALSE))","v":""}]
[null,null,null,null,null,{"$f":"IF(E5502=\"\",\"\",VLOOKUP(E5502,Insumos!AD:AE,2,FALSE))","v":""},null,{"$f":"IF(G5502=\"\",\"\",VLOOKUP(G5502,Insumos!G:H,2,FALSE))","v":""}]
[null,null,null,null,null,{"$f":"IF(E5503=\"\",\"\",VLOOKUP(E5503,Insumos!AD:AE,2,FALSE))","v":""},null,{"$f":"IF(G5503=\"\",\"\",VLOOKUP(G5503,Insumos!G:H,2,FALSE))","v":""}]
[null,null,null,null,null,{"$f":"IF(E5504=\"\",\"\",VLOOKUP(E5504,Insumos!AD:AE,2,FALSE))","v":""},null,{"$f":"IF(G5504=\"\",\"\",VLOOKUP(G5504,Insumos!G:H,2,FALSE))","v":""}]
[null,null,null,null,null,{"$f":"IF(E5505=\"\",\"\",VLOOKUP(E5505,Insumos!AD:AE,2,FALSE))","v":""},null,{"$f":"IF(G5505=\"\",\"\",VLOOKUP(G5505,Insumos!G:H,2,FALSE))","v":""}]
[null,null,null,null,null,{"$f":"IF(E5506=\"\",\"\",VLOOKUP(E5506,Insumos!AD:AE,2,FALSE))","v":""},null,{"$f":"IF(G5506=\"\",\"\",VLOOKUP(G5506,Insumos!G:H,2,FALSE))","v":""}]
[null,null,null,null,null,{"$f":"IF(E5507=\"\",\"\",VLOOKUP(E5507,Insumos!AD:AE,2,FALSE))","v":""},null,{"$f":"IF(G5507=\"\",\"\",VLOOKUP(G5507,Insumos!G:H,2,FALSE))","v":""}]
[null,null,null,null,null,{"$f":"IF(E5508=\"\",\"\",VLOOKUP(E5508,Insumos!AD:AE,2,FALSE))","v":""},null,{"$f":"IF(G5508=\"\",\"\",VLOOKUP(G5508,Insumos!G:H,2,FALSE))","v":""}]
[null,null,null,null,null,{"$f":"IF(E5509=\"\",\"\",VLOOKUP(E5509,Insumos!AD:AE,2,FALSE))","v":""},null,{"$f":"IF(G5509=\"\",\"\",VLOOKUP(G5509,Insumos!G:H,2,FALSE))","v":""}]
[null,null,null,null,null,{"$f":"IF(E5510=\"\",\"\",VLOOKUP(E5510,Insumos!AD:AE,2,FALSE))","v":""},null,{"$f":"IF(G5510=\"\",\"\",VLOOKUP(G5510,Insumos!G:H,2,FALSE))","v":""}]
[null,null,null,null,null,{"$f":"IF(E5511=\"\",\"\",VLOOKUP(E5511,Insumos!AD:AE,2,FALSE))","v":""},null,{"$f":"IF(G5511=\"\",\"\",VLOOKUP(G5511,Insumos!G:H,2,FALSE))","v":""}]
[null,null,null,null,null,{"$f":"IF(E5512=\"\",\"\",VLOOKUP(E5512,Insumos!AD:AE,2,FALSE))","v":""},null,{"$f":"IF(G5512=\"\",\"\",VLOOKUP(G5512,Insumos!G:H,2,FALSE))","v":""}]
[null,null,null,null,null,{"$f":"IF(E5513=\"\",\"\",VLOOKUP(E5513,Insumos!AD:AE,2,FALSE))","v":""},null,{"$f":"IF(G5513=\"\",\"\",VLOOKUP(G5513,Insumos!G:H,2,FALSE))","v":""}]
[null,null,null,null,null,{"$f":"IF(E5514=\"\",\"\",VLOOKUP(E5514,Insumos!AD:AE,2,FALSE))","v":""},null,{"$f":"IF(G5514=\"\",\"\",VLOOKUP(G5514,Insumos!G:H,2,FALSE))","v":""}]
[null,null,null,null,null,{"$f":"IF(E5515=\"\",\"\",VLOOKUP(E5515,Insumos!AD:AE,2,FALSE))","v":""},null,{"$f":"IF(G5515=\"\",\"\",VLOOKUP(G5515,Insumos!G:H,2,FALSE))","v":""}]
[null,null,null,null,null,{"$f":"IF(E5516=\"\",\"\",VLOOKUP(E5516,Insumos!AD:AE,2,FALSE))","v":""},null,{"$f":"IF(G5516=\"\",\"\",VLOOKUP(G5516,Insumos!G:H,2,FALSE))","v":""}]
[null,null,null,null,null,{"$f":"IF(E5517=\"\",\"\",VLOOKUP(E5517,Insumos!AD:AE,2,FALSE))","v":""},null,{"$f":"IF(G5517=\"\",\"\",VLOOKUP(G5517,Insumos!G:H,2,FALSE))","v":""}]
[null,null,null,null,null,{"$f":"IF(E5518=\"\",\"\",VLOOKUP(E5518,Insumos!AD:AE,2,FALSE))","v":""},null,{"$f":"IF(G5518=\"\",\"\",VLOOKUP(G5518,Insumos!G:H,2,FALSE))","v":""}]
[null,null,null,null,null,{"$f":"IF(E5519=\"\",\"\",VLOOKUP(E5519,Insumos!AD:AE,2,FALSE))","v":""},null,{"$f":"IF(G5519=\"\",\"\",VLOOKUP(G5519,Insumos!G:H,2,FALSE))","v":""}]
[null,null,null,null,null,{"$f":"IF(E5520=\"\",\"\",VLOOKUP(E5520,Insumos!AD:AE,2,FALSE))","v":""},null,{"$f":"IF(G5520=\"\",\"\",VLOOKUP(G5520,Insumos!G:H,2,FALSE))","v":""}]
[null,null,null,null,null,{"$f":"IF(E5521=\"\",\"\",VLOOKUP(E5521,Insumos!AD:AE,2,FALSE))","v":""},null,{"$f":"IF(G5521=\"\",\"\",VLOOKUP(G5521,Insumos!G:H,2,FALSE))","v":""}]
[null,null,null,null,null,{"$f":"IF(E5522=\"\",\"\",VLOOKUP(E5522,Insumos!AD:AE,2,FALSE))","v":""},null,{"$f":"IF(G5522=\"\",\"\",VLOOKUP(G5522,Insumos!G:H,2,FALSE))","v":""}]
[null,null,null,null,null,{"$f":"IF(E5523=\"\",\"\",VLOOKUP(E5523,Insumos!AD:AE,2,FALSE))","v":""},null,{"$f":"IF(G5523=\"\",\"\",VLOOKUP(G5523,Insumos!G:H,2,FALSE))","v":""}]
[null,null,null,null,null,{"$f":"IF(E5524=\"\",\"\",VLOOKUP(E5524,Insumos!AD:AE,2,FALSE))","v":""},null,{"$f":"IF(G5524=\"\",\"\",VLOOKUP(G5524,Insumos!G:H,2,FALSE))","v":""}]
[null,null,null,null,null,{"$f":"IF(E5525=\"\",\"\",VLOOKUP(E5525,Insumos!AD:AE,2,FALSE))","v":""},null,{"$f":"IF(G5525=\"\",\"\",VLOOKUP(G5525,Insumos!G:H,2,FALSE))","v":""}]
[null,null,null,null,null,{"$f":"IF(E5526=\"\",\"\",VLOOKUP(E5526,Insumos!AD:AE,2,FALSE))","v":""},null,{"$f":"IF(G5526=\"\",\"\",VLOOKUP(G5526,Insumos!G:H,2,FALSE))","v":""}]
[null,null,null,null,null,{"$f":"IF(E5527=\"\",\"\",VLOOKUP(E5527,Insumos!AD:AE,2,FALSE))","v":""},null,{"$f":"IF(G5527=\"\",\"\",VLOOKUP(G5527,Insumos!G:H,2,FALSE))","v":""}]
[null,null,null,null,null,{"$f":"IF(E5528=\"\",\"\",VLOOKUP(E5528,Insumos!AD:AE,2,FALSE))","v":""},null,{"$f":"IF(G5528=\"\",\"\",VLOOKUP(G5528,Insumos!G:H,2,FALSE))","v":""}]
[null,null,null,null,null,{"$f":"IF(E5529=\"\",\"\",VLOOKUP(E5529,Insumos!AD:AE,2,FALSE))","v":""},null,{"$f":"IF(G5529=\"\",\"\",VLOOKUP(G5529,Insumos!G:H,2,FALSE))","v":""}]
[null,null,null,null,null,{"$f":"IF(E5530=\"\",\"\",VLOOKUP(E5530,Insumos!AD:AE,2,FALSE))","v":""},null,{"$f":"IF(G5530=\"\",\"\",VLOOKUP(G5530,Insumos!G:H,2,FALSE))","v":""}]
[null,null,null,null,null,{"$f":"IF(E5531=\"\",\"\",VLOOKUP(E5531,Insumos!AD:AE,2,FALSE))","v":""},null,{"$f":"IF(G5531=\"\",\"\",VLOOKUP(G5531,Insumos!G:H,2,FALSE))","v":""}]
[null,null,null,null,null,{"$f":"IF(E5532=\"\",\"\",VLOOKUP(E5532,Insumos!AD:AE,2,FALSE))","v":""},null,{"$f":"IF(G5532=\"\",\"\",VLOOKUP(G5532,Insumos!G:H,2,FALSE))","v":""}]
[null,null,null,null,null,{"$f":"IF(E5533=\"\",\"\",VLOOKUP(E5533,Insumos!AD:AE,2,FALSE))","v":""},null,{"$f":"IF(G5533=\"\",\"\",VLOOKUP(G5533,Insumos!G:H,2,FALSE))","v":""}]
[null,null,null,null,null,{"$f":"IF(E5534=\"\",\"\",VLOOKUP(E5534,Insumos!AD:AE,2,FALSE))","v":""},null,{"$f":"IF(G5534=\"\",\"\",VLOOKUP(G5534,Insumos!G:H,2,FALSE))","v":""}]
[null,null,null,null,null,{"$f":"IF(E5535=\"\",\"\",VLOOKUP(E5535,Insumos!AD:AE,2,FALSE))","v":""},null,{"$f":"IF(G5535=\"\",\"\",VLOOKUP(G5535,Insumos!G:H,2,FALSE))","v":""}]
[null,null,null,null,null,{"$f":"IF(E5536=\"\",\"\",VLOOKUP(E5536,Insumos!AD:AE,2,FALSE))","v":""},null,{"$f":"IF(G5536=\"\",\"\",VLOOKUP(G5536,Insumos!G:H,2,FALSE))","v":""}]
[null,null,null,null,null,{"$f":"IF(E5537=\"\",\"\",VLOOKUP(E5537,Insumos!AD:AE,2,FALSE))","v":""},null,{"$f":"IF(G5537=\"\",\"\",VLOOKUP(G5537,Insumos!G:H,2,FALSE))","v":""}]
[null,null,null,null,null,{"$f":"IF(E5538=\"\",\"\",VLOOKUP(E5538,Insumos!AD:AE,2,FALSE))","v":""},null,{"$f":"IF(G5538=\"\",\"\",VLOOKUP(G5538,Insumos!G:H,2,FALSE))","v":""}]
[null,null,null,null,null,{"$f":"IF(E5539=\"\",\"\",VLOOKUP(E5539,Insumos!AD:AE,2,FALSE))","v":""},null,{"$f":"IF(G5539=\"\",\"\",VLOOKUP(G5539,Insumos!G:H,2,FALSE))","v":""}]
[null,null,null,null,null,{"$f":"IF(E5540=\"\",\"\",VLOOKUP(E5540,Insumos!AD:AE,2,FALSE))","v":""},null,{"$f":"IF(G5540=\"\",\"\",VLOOKUP(G5540,Insumos!G:H,2,FALSE))","v":""}]
[null,null,null,null,null,{"$f":"IF(E5541=\"\",\"\",VLOOKUP(E5541,Insumos!AD:AE,2,FALSE))","v":""},null,{"$f":"IF(G5541=\"\",\"\",VLOOKUP(G5541,Insumos!G:H,2,FALSE))","v":""}]
[null,null,null,null,null,{"$f":"IF(E5542=\"\",\"\",VLOOKUP(E5542,Insumos!AD:AE,2,FALSE))","v":""},null,{"$f":"IF(G5542=\"\",\"\",VLOOKUP(G5542,Insumos!G:H,2,FALSE))","v":""}]
[null,null,null,null,null,{"$f":"IF(E5543=\"\",\"\",VLOOKUP(E5543,Insumos!AD:AE,2,FALSE))","v":""},null,{"$f":"IF(G5543=\"\",\"\",VLOOKUP(G5543,Insumos!G:H,2,FALSE))","v":""}]
[null,null,null,null,null,{"$f":"IF(E5544=\"\",\"\",VLOOKUP(E5544,Insumos!AD:AE,2,FALSE))","v":""},null,{"$f":"IF(G5544=\"\",\"\",VLOOKUP(G5544,Insumos!G:H,2,FALSE))","v":""}]
[null,null,null,null,null,{"$f":"IF(E5545=\"\",\"\",VLOOKUP(E5545,Insumos!AD:AE,2,FALSE))","v":""},null,{"$f":"IF(G5545=\"\",\"\",VLOOKUP(G5545,Insumos!G:H,2,FALSE))","v":""}]
[null,null,null,null,null,{"$f":"IF(E5546=\"\",\"\",VLOOKUP(E5546,Insumos!AD:AE,2,FALSE))","v":""},null,{"$f":"IF(G5546=\"\",\"\",VLOOKUP(G5546,Insumos!G:H,2,FALSE))","v":""}]
[null,null,null,null,null,{"$f":"IF(E5547=\"\",\"\",VLOOKUP(E5547,Insumos!AD:AE,2,FALSE))","v":""},null,{"$f":"IF(G5547=\"\",\"\",VLOOKUP(G5547,Insumos!G:H,2,FALSE))","v":""}]
[null,null,null,null,null,{"$f":"IF(E5548=\"\",\"\",VLOOKUP(E5548,Insumos!AD:AE,2,FALSE))","v":""},null,{"$f":"IF(G5548=\"\",\"\",VLOOKUP(G5548,Insumos!G:H,2,FALSE))","v":""}]
[null,null,null,null,null,{"$f":"IF(E5549=\"\",\"\",VLOOKUP(E5549,Insumos!AD:AE,2,FALSE))","v":""},null,{"$f":"IF(G5549=\"\",\"\",VLOOKUP(G5549,Insumos!G:H,2,FALSE))","v":""}]
[null,null,null,null,null,{"$f":"IF(E5550=\"\",\"\",VLOOKUP(E5550,Insumos!AD:AE,2,FALSE))","v":""},null,{"$f":"IF(G5550=\"\",\"\",VLOOKUP(G5550,Insumos!G:H,2,FALSE))","v":""}]
[null,null,null,null,null,{"$f":"IF(E5551=\"\",\"\",VLOOKUP(E5551,Insumos!AD:AE,2,FALSE))","v":""},null,{"$f":"IF(G5551=\"\",\"\",VLOOKUP(G5551,Insumos!G:H,2,FALSE))","v":""}]
[null,null,null,null,null,{"$f":"IF(E5552=\"\",\"\",VLOOKUP(E5552,Insumos!AD:AE,2,FALSE))","v":""},null,{"$f":"IF(G5552=\"\",\"\",VLOOKUP(G5552,Insumos!G:H,2,FALSE))","v":""}]
[null,null,null,null,null,{"$f":"IF(E5553=\"\",\"\",VLOOKUP(E5553,Insumos!AD:AE,2,FALSE))","v":""},null,{"$f":"IF(G5553=\"\",\"\",VLOOKUP(G5553,Insumos!G:H,2,FALSE))","v":""}]
[null,null,null,null,null,{"$f":"IF(E5554=\"\",\"\",VLOOKUP(E5554,Insumos!AD:AE,2,FALSE))","v":""},null,{"$f":"IF(G5554=\"\",\"\",VLOOKUP(G5554,Insumos!G:H,2,FALSE))","v":""}]
[null,null,null,null,null,{"$f":"IF(E5555=\"\",\"\",VLOOKUP(E5555,Insumos!AD:AE,2,FALSE))","v":""},null,{"$f":"IF(G5555=\"\",\"\",VLOOKUP(G5555,Insumos!G:H,2,FALSE))","v":""}]
[null,null,null,null,null,{"$f":"IF(E5556=\"\",\"\",VLOOKUP(E5556,Insumos!AD:AE,2,FALSE))","v":""},null,{"$f":"IF(G5556=\"\",\"\",VLOOKUP(G5556,Insumos!G:H,2,FALSE))","v":""}]
[null,null,null,null,null,{"$f":"IF(E5557=\"\",\"\",VLOOKUP(E5557,Insumos!AD:AE,2,FALSE))","v":""},null,{"$f":"IF(G5557=\"\",\"\",VLOOKUP(G5557,Insumos!G:H,2,FALSE))","v":""}]
[null,null,null,null,null,{"$f":"IF(E5558=\"\",\"\",VLOOKUP(E5558,Insumos!AD:AE,2,FALSE))","v":""},null,{"$f":"IF(G5558=\"\",\"\",VLOOKUP(G5558,Insumos!G:H,2,FALSE))","v":""}]
[null,null,null,null,null,{"$f":"IF(E5559=\"\",\"\",VLOOKUP(E5559,Insumos!AD:AE,2,FALSE))","v":""},null,{"$f":"IF(G5559=\"\",\"\",VLOOKUP(G5559,Insumos!G:H,2,FALSE))","v":""}]
[null,null,null,null,null,{"$f":"IF(E5560=\"\",\"\",VLOOKUP(E5560,Insumos!AD:AE,2,FALSE))","v":""},null,{"$f":"IF(G5560=\"\",\"\",VLOOKUP(G5560,Insumos!G:H,2,FALSE))","v":""}]
[null,null,null,null,null,{"$f":"IF(E5561=\"\",\"\",VLOOKUP(E5561,Insumos!AD:AE,2,FALSE))","v":""},null,{"$f":"IF(G5561=\"\",\"\",VLOOKUP(G5561,Insumos!G:H,2,FALSE))","v":""}]
[null,null,null,null,null,{"$f":"IF(E5562=\"\",\"\",VLOOKUP(E5562,Insumos!AD:AE,2,FALSE))","v":""},null,{"$f":"IF(G5562=\"\",\"\",VLOOKUP(G5562,Insumos!G:H,2,FALSE))","v":""}]
[null,null,null,null,null,{"$f":"IF(E5563=\"\",\"\",VLOOKUP(E5563,Insumos!AD:AE,2,FALSE))","v":""},null,{"$f":"IF(G5563=\"\",\"\",VLOOKUP(G5563,Insumos!G:H,2,FALSE))","v":""}]
[null,null,null,null,null,{"$f":"IF(E5564=\"\",\"\",VLOOKUP(E5564,Insumos!AD:AE,2,FALSE))","v":""},null,{"$f":"IF(G5564=\"\",\"\",VLOOKUP(G5564,Insumos!G:H,2,FALSE))","v":""}]
[null,null,null,null,null,{"$f":"IF(E5565=\"\",\"\",VLOOKUP(E5565,Insumos!AD:AE,2,FALSE))","v":""},null,{"$f":"IF(G5565=\"\",\"\",VLOOKUP(G5565,Insumos!G:H,2,FALSE))","v":""}]
[null,null,null,null,null,{"$f":"IF(E5566=\"\",\"\",VLOOKUP(E5566,Insumos!AD:AE,2,FALSE))","v":""},null,{"$f":"IF(G5566=\"\",\"\",VLOOKUP(G5566,Insumos!G:H,2,FALSE))","v":""}]
[null,null,null,null,null,{"$f":"IF(E5567=\"\",\"\",VLOOKUP(E5567,Insumos!AD:AE,2,FALSE))","v":""},null,{"$f":"IF(G5567=\"\",\"\",VLOOKUP(G5567,Insumos!G:H,2,FALSE))","v":""}]
[null,null,null,null,null,{"$f":"IF(E5568=\"\",\"\",VLOOKUP(E5568,Insumos!AD:AE,2,FALSE))","v":""},null,{"$f":"IF(G5568=\"\",\"\",VLOOKUP(G5568,Insumos!G:H,2,FALSE))","v":""}]
[null,null,null,null,null,{"$f":"IF(E5569=\"\",\"\",VLOOKUP(E5569,Insumos!AD:AE,2,FALSE))","v":""},null,{"$f":"IF(G5569=\"\",\"\",VLOOKUP(G5569,Insumos!G:H,2,FALSE))","v":""}]
[null,null,null,null,null,{"$f":"IF(E5570=\"\",\"\",VLOOKUP(E5570,Insumos!AD:AE,2,FALSE))","v":""},null,{"$f":"IF(G5570=\"\",\"\",VLOOKUP(G5570,Insumos!G:H,2,FALSE))","v":""}]
[null,null,null,null,null,{"$f":"IF(E5571=\"\",\"\",VLOOKUP(E5571,Insumos!AD:AE,2,FALSE))","v":""},null,{"$f":"IF(G5571=\"\",\"\",VLOOKUP(G5571,Insumos!G:H,2,FALSE))","v":""}]
[null,null,null,null,null,{"$f":"IF(E5572=\"\",\"\",VLOOKUP(E5572,Insumos!AD:AE,2,FALSE))","v":""},null,{"$f":"IF(G5572=\"\",\"\",VLOOKUP(G5572,Insumos!G:H,2,FALSE))","v":""}]
[null,null,null,null,null,{"$f":"IF(E5573=\"\",\"\",VLOOKUP(E5573,Insumos!AD:AE,2,FALSE))","v":""},null,{"$f":"IF(G5573=\"\",\"\",VLOOKUP(G5573,Insumos!G:H,2,FALSE))","v":""}]
[null,null,null,null,null,{"$f":"IF(E5574=\"\",\"\",VLOOKUP(E5574,Insumos!AD:AE,2,FALSE))","v":""},null,{"$f":"IF(G5574=\"\",\"\",VLOOKUP(G5574,Insumos!G:H,2,FALSE))","v":""}]
[null,null,null,null,null,{"$f":"IF(E5575=\"\",\"\",VLOOKUP(E5575,Insumos!AD:AE,2,FALSE))","v":""},null,{"$f":"IF(G5575=\"\",\"\",VLOOKUP(G5575,Insumos!G:H,2,FALSE))","v":""}]
[null,null,null,null,null,{"$f":"IF(E5576=\"\",\"\",VLOOKUP(E5576,Insumos!AD:AE,2,FALSE))","v":""},null,{"$f":"IF(G5576=\"\",\"\",VLOOKUP(G5576,Insumos!G:H,2,FALSE))","v":""}]
[null,null,null,null,null,{"$f":"IF(E5577=\"\",\"\",VLOOKUP(E5577,Insumos!AD:AE,2,FALSE))","v":""},null,{"$f":"IF(G5577=\"\",\"\",VLOOKUP(G5577,Insumos!G:H,2,FALSE))","v":""}]
[null,null,null,null,null,{"$f":"IF(E5578=\"\",\"\",VLOOKUP(E5578,Insumos!AD:AE,2,FALSE))","v":""},null,{"$f":"IF(G5578=\"\",\"\",VLOOKUP(G5578,Insumos!G:H,2,FALSE))","v":""}]
[null,null,null,null,null,{"$f":"IF(E5579=\"\",\"\",VLOOKUP(E5579,Insumos!AD:AE,2,FALSE))","v":""},null,{"$f":"IF(G5579=\"\",\"\",VLOOKUP(G5579,Insumos!G:H,2,FALSE))","v":""}]
[null,null,null,null,null,{"$f":"IF(E5580=\"\",\"\",VLOOKUP(E5580,Insumos!AD:AE,2,FALSE))","v":""},null,{"$f":"IF(G5580=\"\",\"\",VLOOKUP(G5580,Insumos!G:H,2,FALSE))","v":""}]
[null,null,null,null,null,{"$f":"IF(E5581=\"\",\"\",VLOOKUP(E5581,Insumos!AD:AE,2,FALSE))","v":""},null,{"$f":"IF(G5581=\"\",\"\",VLOOKUP(G5581,Insumos!G:H,2,FALSE))","v":""}]
[null,null,null,null,null,{"$f":"IF(E5582=\"\",\"\",VLOOKUP(E5582,Insumos!AD:AE,2,FALSE))","v":""},null,{"$f":"IF(G5582=\"\",\"\",VLOOKUP(G5582,Insumos!G:H,2,FALSE))","v":""}]
[null,null,null,null,null,{"$f":"IF(E5583=\"\",\"\",VLOOKUP(E5583,Insumos!AD:AE,2,FALSE))","v":""},null,{"$f":"IF(G5583=\"\",\"\",VLOOKUP(G5583,Insumos!G:H,2,FALSE))","v":""}]
[null,null,null,null,null,{"$f":"IF(E5584=\"\",\"\",VLOOKUP(E5584,Insumos!AD:AE,2,FALSE))","v":""},null,{"$f":"IF(G5584=\"\",\"\",VLOOKUP(G5584,Insumos!G:H,2,FALSE))","v":""}]
[null,null,null,null,null,{"$f":"IF(E5585=\"\",\"\",VLOOKUP(E5585,Insumos!AD:AE,2,FALSE))","v":""},null,{"$f":"IF(G5585=\"\",\"\",VLOOKUP(G5585,Insumos!G:H,2,FALSE))","v":""}]
[null,null,null,null,null,{"$f":"IF(E5586=\"\",\"\",VLOOKUP(E5586,Insumos!AD:AE,2,FALSE))","v":""},null,{"$f":"IF(G5586=\"\",\"\",VLOOKUP(G5586,Insumos!G:H,2,FALSE))","v":""}]
[null,null,null,null,null,{"$f":"IF(E5587=\"\",\"\",VLOOKUP(E5587,Insumos!AD:AE,2,FALSE))","v":""},null,{"$f":"IF(G5587=\"\",\"\",VLOOKUP(G5587,Insumos!G:H,2,FALSE))","v":""}]
[null,null,null,null,null,{"$f":"IF(E5588=\"\",\"\",VLOOKUP(E5588,Insumos!AD:AE,2,FALSE))","v":""},null,{"$f":"IF(G5588=\"\",\"\",VLOOKUP(G5588,Insumos!G:H,2,FALSE))","v":""}]
[null,null,null,null,null,{"$f":"IF(E5589=\"\",\"\",VLOOKUP(E5589,Insumos!AD:AE,2,FALSE))","v":""},null,{"$f":"IF(G5589=\"\",\"\",VLOOKUP(G5589,Insumos!G:H,2,FALSE))","v":""}]
[null,null,null,null,null,{"$f":"IF(E5590=\"\",\"\",VLOOKUP(E5590,Insumos!AD:AE,2,FALSE))","v":""},null,{"$f":"IF(G5590=\"\",\"\",VLOOKUP(G5590,Insumos!G:H,2,FALSE))","v":""}]
[null,null,null,null,null,{"$f":"IF(E5591=\"\",\"\",VLOOKUP(E5591,Insumos!AD:AE,2,FALSE))","v":""},null,{"$f":"IF(G5591=\"\",\"\",VLOOKUP(G5591,Insumos!G:H,2,FALSE))","v":""}]
[null,null,null,null,null,{"$f":"IF(E5592=\"\",\"\",VLOOKUP(E5592,Insumos!AD:AE,2,FALSE))","v":""},null,{"$f":"IF(G5592=\"\",\"\",VLOOKUP(G5592,Insumos!G:H,2,FALSE))","v":""}]
[null,null,null,null,null,{"$f":"IF(E5593=\"\",\"\",VLOOKUP(E5593,Insumos!AD:AE,2,FALSE))","v":""},null,{"$f":"IF(G5593=\"\",\"\",VLOOKUP(G5593,Insumos!G:H,2,FALSE))","v":""}]
[null,null,null,null,null,{"$f":"IF(E5594=\"\",\"\",VLOOKUP(E5594,Insumos!AD:AE,2,FALSE))","v":""},null,{"$f":"IF(G5594=\"\",\"\",VLOOKUP(G5594,Insumos!G:H,2,FALSE))","v":""}]
[null,null,null,null,null,{"$f":"IF(E5595=\"\",\"\",VLOOKUP(E5595,Insumos!AD:AE,2,FALSE))","v":""},null,{"$f":"IF(G5595=\"\",\"\",VLOOKUP(G5595,Insumos!G:H,2,FALSE))","v":""}]
[null,null,null,null,null,{"$f":"IF(E5596=\"\",\"\",VLOOKUP(E5596,Insumos!AD:AE,2,FALSE))","v":""},null,{"$f":"IF(G5596=\"\",\"\",VLOOKUP(G5596,Insumos!G:H,2,FALSE))","v":""}]
[null,null,null,null,null,{"$f":"IF(E5597=\"\",\"\",VLOOKUP(E5597,Insumos!AD:AE,2,FALSE))","v":""},null,{"$f":"IF(G5597=\"\",\"\",VLOOKUP(G5597,Insumos!G:H,2,FALSE))","v":""}]
[null,null,null,null,null,{"$f":"IF(E5598=\"\",\"\",VLOOKUP(E5598,Insumos!AD:AE,2,FALSE))","v":""},null,{"$f":"IF(G5598=\"\",\"\",VLOOKUP(G5598,Insumos!G:H,2,FALSE))","v":""}]
[null,null,null,null,null,{"$f":"IF(E5599=\"\",\"\",VLOOKUP(E5599,Insumos!AD:AE,2,FALSE))","v":""},null,{"$f":"IF(G5599=\"\",\"\",VLOOKUP(G5599,Insumos!G:H,2,FALSE))","v":""}]
[null,null,null,null,null,{"$f":"IF(E5600=\"\",\"\",VLOOKUP(E5600,Insumos!AD:AE,2,FALSE))","v":""},null,{"$f":"IF(G5600=\"\",\"\",VLOOKUP(G5600,Insumos!G:H,2,FALSE))","v":""}]
[null,null,null,null,null,{"$f":"IF(E5601=\"\",\"\",VLOOKUP(E5601,Insumos!AD:AE,2,FALSE))","v":""},null,{"$f":"IF(G5601=\"\",\"\",VLOOKUP(G5601,Insumos!G:H,2,FALSE))","v":""}]
[null,null,null,null,null,{"$f":"IF(E5602=\"\",\"\",VLOOKUP(E5602,Insumos!AD:AE,2,FALSE))","v":""},null,{"$f":"IF(G5602=\"\",\"\",VLOOKUP(G5602,Insumos!G:H,2,FALSE))","v":""}]
[null,null,null,null,null,{"$f":"IF(E5603=\"\",\"\",VLOOKUP(E5603,Insumos!AD:AE,2,FALSE))","v":""},null,{"$f":"IF(G5603=\"\",\"\",VLOOKUP(G5603,Insumos!G:H,2,FALSE))","v":""}]
[null,null,null,null,null,{"$f":"IF(E5604=\"\",\"\",VLOOKUP(E5604,Insumos!AD:AE,2,FALSE))","v":""},null,{"$f":"IF(G5604=\"\",\"\",VLOOKUP(G5604,Insumos!G:H,2,FALSE))","v":""}]
[null,null,null,null,null,{"$f":"IF(E5605=\"\",\"\",VLOOKUP(E5605,Insumos!AD:AE,2,FALSE))","v":""},null,{"$f":"IF(G5605=\"\",\"\",VLOOKUP(G5605,Insumos!G:H,2,FALSE))","v":""}]
[null,null,null,null,null,{"$f":"IF(E5606=\"\",\"\",VLOOKUP(E5606,Insumos!AD:AE,2,FALSE))","v":""},null,{"$f":"IF(G5606=\"\",\"\",VLOOKUP(G5606,Insumos!G:H,2,FALSE))","v":""}]
[null,null,null,null,null,{"$f":"IF(E5607=\"\",\"\",VLOOKUP(E5607,Insumos!AD:AE,2,FALSE))","v":""},null,{"$f":"IF(G5607=\"\",\"\",VLOOKUP(G5607,Insumos!G:H,2,FALSE))","v":""}]
[null,null,null,null,null,{"$f":"IF(E5608=\"\",\"\",VLOOKUP(E5608,Insumos!AD:AE,2,FALSE))","v":""},null,{"$f":"IF(G5608=\"\",\"\",VLOOKUP(G5608,Insumos!G:H,2,FALSE))","v":""}]
[null,null,null,null,null,{"$f":"IF(E5609=\"\",\"\",VLOOKUP(E5609,Insumos!AD:AE,2,FALSE))","v":""},null,{"$f":"IF(G5609=\"\",\"\",VLOOKUP(G5609,Insumos!G:H,2,FALSE))","v":""}]
[null,null,null,null,null,{"$f":"IF(E5610=\"\",\"\",VLOOKUP(E5610,Insumos!AD:AE,2,FALSE))","v":""},null,{"$f":"IF(G5610=\"\",\"\",VLOOKUP(G5610,Insumos!G:H,2,FALSE))","v":""}]
[null,null,null,null,null,{"$f":"IF(E5611=\"\",\"\",VLOOKUP(E5611,Insumos!AD:AE,2,FALSE))","v":""},null,{"$f":"IF(G5611=\"\",\"\",VLOOKUP(G5611,Insumos!G:H,2,FALSE))","v":""}]
[null,null,null,null,null,{"$f":"IF(E5612=\"\",\"\",VLOOKUP(E5612,Insumos!AD:AE,2,FALSE))","v":""},null,{"$f":"IF(G5612=\"\",\"\",VLOOKUP(G5612,Insumos!G:H,2,FALSE))","v":""}]
[null,null,null,null,null,{"$f":"IF(E5613=\"\",\"\",VLOOKUP(E5613,Insumos!AD:AE,2,FALSE))","v":""},null,{"$f":"IF(G5613=\"\",\"\",VLOOKUP(G5613,Insumos!G:H,2,FALSE))","v":""}]
[null,null,null,null,null,{"$f":"IF(E5614=\"\",\"\",VLOOKUP(E5614,Insumos!AD:AE,2,FALSE))","v":""},null,{"$f":"IF(G5614=\"\",\"\",VLOOKUP(G5614,Insumos!G:H,2,FALSE))","v":""}]
[null,null,null,null,null,{"$f":"IF(E5615=\"\",\"\",VLOOKUP(E5615,Insumos!AD:AE,2,FALSE))","v":""},null,{"$f":"IF(G5615=\"\",\"\",VLOOKUP(G5615,Insumos!G:H,2,FALSE))","v":""}]
[null,null,null,null,null,{"$f":"IF(E5616=\"\",\"\",VLOOKUP(E5616,Insumos!AD:AE,2,FALSE))","v":""},null,{"$f":"IF(G5616=\"\",\"\",VLOOKUP(G5616,Insumos!G:H,2,FALSE))","v":""}]
[null,null,null,null,null,{"$f":"IF(E5617=\"\",\"\",VLOOKUP(E5617,Insumos!AD:AE,2,FALSE))","v":""},null,{"$f":"IF(G5617=\"\",\"\",VLOOKUP(G5617,Insumos!G:H,2,FALSE))","v":""}]
[null,null,null,null,null,{"$f":"IF(E5618=\"\",\"\",VLOOKUP(E5618,Insumos!AD:AE,2,FALSE))","v":""},null,{"$f":"IF(G5618=\"\",\"\",VLOOKUP(G5618,Insumos!G:H,2,FALSE))","v":""}]
[null,null,null,null,null,{"$f":"IF(E5619=\"\",\"\",VLOOKUP(E5619,Insumos!AD:AE,2,FALSE))","v":""},null,{"$f":"IF(G5619=\"\",\"\",VLOOKUP(G5619,Insumos!G:H,2,FALSE))","v":""}]
[null,null,null,null,null,{"$f":"IF(E5620=\"\",\"\",VLOOKUP(E5620,Insumos!AD:AE,2,FALSE))","v":""},null,{"$f":"IF(G5620=\"\",\"\",VLOOKUP(G5620,Insumos!G:H,2,FALSE))","v":""}]
[null,null,null,null,null,{"$f":"IF(E5621=\"\",\"\",VLOOKUP(E5621,Insumos!AD:AE,2,FALSE))","v":""},null,{"$f":"IF(G5621=\"\",\"\",VLOOKUP(G5621,Insumos!G:H,2,FALSE))","v":""}]
[null,null,null,null,null,{"$f":"IF(E5622=\"\",\"\",VLOOKUP(E5622,Insumos!AD:AE,2,FALSE))","v":""},null,{"$f":"IF(G5622=\"\",\"\",VLOOKUP(G5622,Insumos!G:H,2,FALSE))","v":""}]
[null,null,null,null,null,{"$f":"IF(E5623=\"\",\"\",VLOOKUP(E5623,Insumos!AD:AE,2,FALSE))","v":""},null,{"$f":"IF(G5623=\"\",\"\",VLOOKUP(G5623,Insumos!G:H,2,FALSE))","v":""}]
[null,null,null,null,null,{"$f":"IF(E5624=\"\",\"\",VLOOKUP(E5624,Insumos!AD:AE,2,FALSE))","v":""},null,{"$f":"IF(G5624=\"\",\"\",VLOOKUP(G5624,Insumos!G:H,2,FALSE))","v":""}]
[null,null,null,null,null,{"$f":"IF(E5625=\"\",\"\",VLOOKUP(E5625,Insumos!AD:AE,2,FALSE))","v":""},null,{"$f":"IF(G5625=\"\",\"\",VLOOKUP(G5625,Insumos!G:H,2,FALSE))","v":""}]
[null,null,null,null,null,{"$f":"IF(E5626=\"\",\"\",VLOOKUP(E5626,Insumos!AD:AE,2,FALSE))","v":""},null,{"$f":"IF(G5626=\"\",\"\",VLOOKUP(G5626,Insumos!G:H,2,FALSE))","v":""}]
[null,null,null,null,null,{"$f":"IF(E5627=\"\",\"\",VLOOKUP(E5627,Insumos!AD:AE,2,FALSE))","v":""},null,{"$f":"IF(G5627=\"\",\"\",VLOOKUP(G5627,Insumos!G:H,2,FALSE))","v":""}]
[null,null,null,null,null,{"$f":"IF(E5628=\"\",\"\",VLOOKUP(E5628,Insumos!AD:AE,2,FALSE))","v":""},null,{"$f":"IF(G5628=\"\",\"\",VLOOKUP(G5628,Insumos!G:H,2,FALSE))","v":""}]
[null,null,null,null,null,{"$f":"IF(E5629=\"\",\"\",VLOOKUP(E5629,Insumos!AD:AE,2,FALSE))","v":""},null,{"$f":"IF(G5629=\"\",\"\",VLOOKUP(G5629,Insumos!G:H,2,FALSE))","v":""}]
[null,null,null,null,null,{"$f":"IF(E5630=\"\",\"\",VLOOKUP(E5630,Insumos!AD:AE,2,FALSE))","v":""},null,{"$f":"IF(G5630=\"\",\"\",VLOOKUP(G5630,Insumos!G:H,2,FALSE))","v":""}]
[null,null,null,null,null,{"$f":"IF(E5631=\"\",\"\",VLOOKUP(E5631,Insumos!AD:AE,2,FALSE))","v":""},null,{"$f":"IF(G5631=\"\",\"\",VLOOKUP(G5631,Insumos!G:H,2,FALSE))","v":""}]
[null,null,null,null,null,{"$f":"IF(E5632=\"\",\"\",VLOOKUP(E5632,Insumos!AD:AE,2,FALSE))","v":""},null,{"$f":"IF(G5632=\"\",\"\",VLOOKUP(G5632,Insumos!G:H,2,FALSE))","v":""}]
[null,null,null,null,null,{"$f":"IF(E5633=\"\",\"\",VLOOKUP(E5633,Insumos!AD:AE,2,FALSE))","v":""},null,{"$f":"IF(G5633=\"\",\"\",VLOOKUP(G5633,Insumos!G:H,2,FALSE))","v":""}]
[null,null,null,null,null,{"$f":"IF(E5634=\"\",\"\",VLOOKUP(E5634,Insumos!AD:AE,2,FALSE))","v":""},null,{"$f":"IF(G5634=\"\",\"\",VLOOKUP(G5634,Insumos!G:H,2,FALSE))","v":""}]
[null,null,null,null,null,{"$f":"IF(E5635=\"\",\"\",VLOOKUP(E5635,Insumos!AD:AE,2,FALSE))","v":""},null,{"$f":"IF(G5635=\"\",\"\",VLOOKUP(G5635,Insumos!G:H,2,FALSE))","v":""}]
[null,null,null,null,null,{"$f":"IF(E5636=\"\",\"\",VLOOKUP(E5636,Insumos!AD:AE,2,FALSE))","v":""},null,{"$f":"IF(G5636=\"\",\"\",VLOOKUP(G5636,Insumos!G:H,2,FALSE))","v":""}]
[null,null,null,null,null,{"$f":"IF(E5637=\"\",\"\",VLOOKUP(E5637,Insumos!AD:AE,2,FALSE))","v":""},null,{"$f":"IF(G5637=\"\",\"\",VLOOKUP(G5637,Insumos!G:H,2,FALSE))","v":""}]
[null,null,null,null,null,{"$f":"IF(E5638=\"\",\"\",VLOOKUP(E5638,Insumos!AD:AE,2,FALSE))","v":""},null,{"$f":"IF(G5638=\"\",\"\",VLOOKUP(G5638,Insumos!G:H,2,FALSE))","v":""}]
[null,null,null,null,null,{"$f":"IF(E5639=\"\",\"\",VLOOKUP(E5639,Insumos!AD:AE,2,FALSE))","v":""},null,{"$f":"IF(G5639=\"\",\"\",VLOOKUP(G5639,Insumos!G:H,2,FALSE))","v":""}]
[null,null,null,null,null,{"$f":"IF(E5640=\"\",\"\",VLOOKUP(E5640,Insumos!AD:AE,2,FALSE))","v":""},null,{"$f":"IF(G5640=\"\",\"\",VLOOKUP(G5640,Insumos!G:H,2,FALSE))","v":""}]
[null,null,null,null,null,{"$f":"IF(E5641=\"\",\"\",VLOOKUP(E5641,Insumos!AD:AE,2,FALSE))","v":""},null,{"$f":"IF(G5641=\"\",\"\",VLOOKUP(G5641,Insumos!G:H,2,FALSE))","v":""}]
[null,null,null,null,null,{"$f":"IF(E5642=\"\",\"\",VLOOKUP(E5642,Insumos!AD:AE,2,FALSE))","v":""},null,{"$f":"IF(G5642=\"\",\"\",VLOOKUP(G5642,Insumos!G:H,2,FALSE))","v":""}]
[null,null,null,null,null,{"$f":"IF(E5643=\"\",\"\",VLOOKUP(E5643,Insumos!AD:AE,2,FALSE))","v":""},null,{"$f":"IF(G5643=\"\",\"\",VLOOKUP(G5643,Insumos!G:H,2,FALSE))","v":""}]
[null,null,null,null,null,{"$f":"IF(E5644=\"\",\"\",VLOOKUP(E5644,Insumos!AD:AE,2,FALSE))","v":""},null,{"$f":"IF(G5644=\"\",\"\",VLOOKUP(G5644,Insumos!G:H,2,FALSE))","v":""}]
[null,null,null,null,null,{"$f":"IF(E5645=\"\",\"\",VLOOKUP(E5645,Insumos!AD:AE,2,FALSE))","v":""},null,{"$f":"IF(G5645=\"\",\"\",VLOOKUP(G5645,Insumos!G:H,2,FALSE))","v":""}]
[null,null,null,null,null,{"$f":"IF(E5646=\"\",\"\",VLOOKUP(E5646,Insumos!AD:AE,2,FALSE))","v":""},null,{"$f":"IF(G5646=\"\",\"\",VLOOKUP(G5646,Insumos!G:H,2,FALSE))","v":""}]
[null,null,null,null,null,{"$f":"IF(E5647=\"\",\"\",VLOOKUP(E5647,Insumos!AD:AE,2,FALSE))","v":""},null,{"$f":"IF(G5647=\"\",\"\",VLOOKUP(G5647,Insumos!G:H,2,FALSE))","v":""}]
[null,null,null,null,null,{"$f":"IF(E5648=\"\",\"\",VLOOKUP(E5648,Insumos!AD:AE,2,FALSE))","v":""},null,{"$f":"IF(G5648=\"\",\"\",VLOOKUP(G5648,Insumos!G:H,2,FALSE))","v":""}]
[null,null,null,null,null,{"$f":"IF(E5649=\"\",\"\",VLOOKUP(E5649,Insumos!AD:AE,2,FALSE))","v":""},null,{"$f":"IF(G5649=\"\",\"\",VLOOKUP(G5649,Insumos!G:H,2,FALSE))","v":""}]
[null,null,null,null,null,{"$f":"IF(E5650=\"\",\"\",VLOOKUP(E5650,Insumos!AD:AE,2,FALSE))","v":""},null,{"$f":"IF(G5650=\"\",\"\",VLOOKUP(G5650,Insumos!G:H,2,FALSE))","v":""}]
[null,null,null,null,null,{"$f":"IF(E5651=\"\",\"\",VLOOKUP(E5651,Insumos!AD:AE,2,FALSE))","v":""},null,{"$f":"IF(G5651=\"\",\"\",VLOOKUP(G5651,Insumos!G:H,2,FALSE))","v":""}]
[null,null,null,null,null,{"$f":"IF(E5652=\"\",\"\",VLOOKUP(E5652,Insumos!AD:AE,2,FALSE))","v":""},null,{"$f":"IF(G5652=\"\",\"\",VLOOKUP(G5652,Insumos!G:H,2,FALSE))","v":""}]
[null,null,null,null,null,{"$f":"IF(E5653=\"\",\"\",VLOOKUP(E5653,Insumos!AD:AE,2,FALSE))","v":""},null,{"$f":"IF(G5653=\"\",\"\",VLOOKUP(G5653,Insumos!G:H,2,FALSE))","v":""}]
[null,null,null,null,null,{"$f":"IF(E5654=\"\",\"\",VLOOKUP(E5654,Insumos!AD:AE,2,FALSE))","v":""},null,{"$f":"IF(G5654=\"\",\"\",VLOOKUP(G5654,Insumos!G:H,2,FALSE))","v":""}]
[null,null,null,null,null,{"$f":"IF(E5655=\"\",\"\",VLOOKUP(E5655,Insumos!AD:AE,2,FALSE))","v":""},null,{"$f":"IF(G5655=\"\",\"\",VLOOKUP(G5655,Insumos!G:H,2,FALSE))","v":""}]
[null,null,null,null,null,{"$f":"IF(E5656=\"\",\"\",VLOOKUP(E5656,Insumos!AD:AE,2,FALSE))","v":""},null,{"$f":"IF(G5656=\"\",\"\",VLOOKUP(G5656,Insumos!G:H,2,FALSE))","v":""}]
[null,null,null,null,null,{"$f":"IF(E5657=\"\",\"\",VLOOKUP(E5657,Insumos!AD:AE,2,FALSE))","v":""},null,{"$f":"IF(G5657=\"\",\"\",VLOOKUP(G5657,Insumos!G:H,2,FALSE))","v":""}]
[null,null,null,null,null,{"$f":"IF(E5658=\"\",\"\",VLOOKUP(E5658,Insumos!AD:AE,2,FALSE))","v":""},null,{"$f":"IF(G5658=\"\",\"\",VLOOKUP(G5658,Insumos!G:H,2,FALSE))","v":""}]
[null,null,null,null,null,{"$f":"IF(E5659=\"\",\"\",VLOOKUP(E5659,Insumos!AD:AE,2,FALSE))","v":""},null,{"$f":"IF(G5659=\"\",\"\",VLOOKUP(G5659,Insumos!G:H,2,FALSE))","v":""}]
[null,null,null,null,null,{"$f":"IF(E5660=\"\",\"\",VLOOKUP(E5660,Insumos!AD:AE,2,FALSE))","v":""},null,{"$f":"IF(G5660=\"\",\"\",VLOOKUP(G5660,Insumos!G:H,2,FALSE))","v":""}]
[null,null,null,null,null,{"$f":"IF(E5661=\"\",\"\",VLOOKUP(E5661,Insumos!AD:AE,2,FALSE))","v":""},null,{"$f":"IF(G5661=\"\",\"\",VLOOKUP(G5661,Insumos!G:H,2,FALSE))","v":""}]
[null,null,null,null,null,{"$f":"IF(E5662=\"\",\"\",VLOOKUP(E5662,Insumos!AD:AE,2,FALSE))","v":""},null,{"$f":"IF(G5662=\"\",\"\",VLOOKUP(G5662,Insumos!G:H,2,FALSE))","v":""}]
[null,null,null,null,null,{"$f":"IF(E5663=\"\",\"\",VLOOKUP(E5663,Insumos!AD:AE,2,FALSE))","v":""},null,{"$f":"IF(G5663=\"\",\"\",VLOOKUP(G5663,Insumos!G:H,2,FALSE))","v":""}]
[null,null,null,null,null,{"$f":"IF(E5664=\"\",\"\",VLOOKUP(E5664,Insumos!AD:AE,2,FALSE))","v":""},null,{"$f":"IF(G5664=\"\",\"\",VLOOKUP(G5664,Insumos!G:H,2,FALSE))","v":""}]
[null,null,null,null,null,{"$f":"IF(E5665=\"\",\"\",VLOOKUP(E5665,Insumos!AD:AE,2,FALSE))","v":""},null,{"$f":"IF(G5665=\"\",\"\",VLOOKUP(G5665,Insumos!G:H,2,FALSE))","v":""}]
[null,null,null,null,null,{"$f":"IF(E5666=\"\",\"\",VLOOKUP(E5666,Insumos!AD:AE,2,FALSE))","v":""},null,{"$f":"IF(G5666=\"\",\"\",VLOOKUP(G5666,Insumos!G:H,2,FALSE))","v":""}]
[null,null,null,null,null,{"$f":"IF(E5667=\"\",\"\",VLOOKUP(E5667,Insumos!AD:AE,2,FALSE))","v":""},null,{"$f":"IF(G5667=\"\",\"\",VLOOKUP(G5667,Insumos!G:H,2,FALSE))","v":""}]
[null,null,null,null,null,{"$f":"IF(E5668=\"\",\"\",VLOOKUP(E5668,Insumos!AD:AE,2,FALSE))","v":""},null,{"$f":"IF(G5668=\"\",\"\",VLOOKUP(G5668,Insumos!G:H,2,FALSE))","v":""}]
[null,null,null,null,null,{"$f":"IF(E5669=\"\",\"\",VLOOKUP(E5669,Insumos!AD:AE,2,FALSE))","v":""},null,{"$f":"IF(G5669=\"\",\"\",VLOOKUP(G5669,Insumos!G:H,2,FALSE))","v":""}]
[null,null,null,null,null,{"$f":"IF(E5670=\"\",\"\",VLOOKUP(E5670,Insumos!AD:AE,2,FALSE))","v":""},null,{"$f":"IF(G5670=\"\",\"\",VLOOKUP(G5670,Insumos!G:H,2,FALSE))","v":""}]
[null,null,null,null,null,{"$f":"IF(E5671=\"\",\"\",VLOOKUP(E5671,Insumos!AD:AE,2,FALSE))","v":""},null,{"$f":"IF(G5671=\"\",\"\",VLOOKUP(G5671,Insumos!G:H,2,FALSE))","v":""}]
[null,null,null,null,null,{"$f":"IF(E5672=\"\",\"\",VLOOKUP(E5672,Insumos!AD:AE,2,FALSE))","v":""},null,{"$f":"IF(G5672=\"\",\"\",VLOOKUP(G5672,Insumos!G:H,2,FALSE))","v":""}]
[null,null,null,null,null,{"$f":"IF(E5673=\"\",\"\",VLOOKUP(E5673,Insumos!AD:AE,2,FALSE))","v":""},null,{"$f":"IF(G5673=\"\",\"\",VLOOKUP(G5673,Insumos!G:H,2,FALSE))","v":""}]
[null,null,null,null,null,{"$f":"IF(E5674=\"\",\"\",VLOOKUP(E5674,Insumos!AD:AE,2,FALSE))","v":""},null,{"$f":"IF(G5674=\"\",\"\",VLOOKUP(G5674,Insumos!G:H,2,FALSE))","v":""}]
[null,null,null,null,null,{"$f":"IF(E5675=\"\",\"\",VLOOKUP(E5675,Insumos!AD:AE,2,FALSE))","v":""},null,{"$f":"IF(G5675=\"\",\"\",VLOOKUP(G5675,Insumos!G:H,2,FALSE))","v":""}]
[null,null,null,null,null,{"$f":"IF(E5676=\"\",\"\",VLOOKUP(E5676,Insumos!AD:AE,2,FALSE))","v":""},null,{"$f":"IF(G5676=\"\",\"\",VLOOKUP(G5676,Insumos!G:H,2,FALSE))","v":""}]
[null,null,null,null,null,{"$f":"IF(E5677=\"\",\"\",VLOOKUP(E5677,Insumos!AD:AE,2,FALSE))","v":""},null,{"$f":"IF(G5677=\"\",\"\",VLOOKUP(G5677,Insumos!G:H,2,FALSE))","v":""}]
[null,null,null,null,null,{"$f":"IF(E5678=\"\",\"\",VLOOKUP(E5678,Insumos!AD:AE,2,FALSE))","v":""},null,{"$f":"IF(G5678=\"\",\"\",VLOOKUP(G5678,Insumos!G:H,2,FALSE))","v":""}]
[null,null,null,null,null,{"$f":"IF(E5679=\"\",\"\",VLOOKUP(E5679,Insumos!AD:AE,2,FALSE))","v":""},null,{"$f":"IF(G5679=\"\",\"\",VLOOKUP(G5679,Insumos!G:H,2,FALSE))","v":""}]
[null,null,null,null,null,{"$f":"IF(E5680=\"\",\"\",VLOOKUP(E5680,Insumos!AD:AE,2,FALSE))","v":""},null,{"$f":"IF(G5680=\"\",\"\",VLOOKUP(G5680,Insumos!G:H,2,FALSE))","v":""}]
[null,null,null,null,null,{"$f":"IF(E5681=\"\",\"\",VLOOKUP(E5681,Insumos!AD:AE,2,FALSE))","v":""},null,{"$f":"IF(G5681=\"\",\"\",VLOOKUP(G5681,Insumos!G:H,2,FALSE))","v":""}]
[null,null,null,null,null,{"$f":"IF(E5682=\"\",\"\",VLOOKUP(E5682,Insumos!AD:AE,2,FALSE))","v":""},null,{"$f":"IF(G5682=\"\",\"\",VLOOKUP(G5682,Insumos!G:H,2,FALSE))","v":""}]
[null,null,null,null,null,{"$f":"IF(E5683=\"\",\"\",VLOOKUP(E5683,Insumos!AD:AE,2,FALSE))","v":""},null,{"$f":"IF(G5683=\"\",\"\",VLOOKUP(G5683,Insumos!G:H,2,FALSE))","v":""}]
[null,null,null,null,null,{"$f":"IF(E5684=\"\",\"\",VLOOKUP(E5684,Insumos!AD:AE,2,FALSE))","v":""},null,{"$f":"IF(G5684=\"\",\"\",VLOOKUP(G5684,Insumos!G:H,2,FALSE))","v":""}]
[null,null,null,null,null,{"$f":"IF(E5685=\"\",\"\",VLOOKUP(E5685,Insumos!AD:AE,2,FALSE))","v":""},null,{"$f":"IF(G5685=\"\",\"\",VLOOKUP(G5685,Insumos!G:H,2,FALSE))","v":""}]
[null,null,null,null,null,{"$f":"IF(E5686=\"\",\"\",VLOOKUP(E5686,Insumos!AD:AE,2,FALSE))","v":""},null,{"$f":"IF(G5686=\"\",\"\",VLOOKUP(G5686,Insumos!G:H,2,FALSE))","v":""}]
[null,null,null,null,null,{"$f":"IF(E5687=\"\",\"\",VLOOKUP(E5687,Insumos!AD:AE,2,FALSE))","v":""},null,{"$f":"IF(G5687=\"\",\"\",VLOOKUP(G5687,Insumos!G:H,2,FALSE))","v":""}]
[null,null,null,null,null,{"$f":"IF(E5688=\"\",\"\",VLOOKUP(E5688,Insumos!AD:AE,2,FALSE))","v":""},null,{"$f":"IF(G5688=\"\",\"\",VLOOKUP(G5688,Insumos!G:H,2,FALSE))","v":""}]
[null,null,null,null,null,{"$f":"IF(E5689=\"\",\"\",VLOOKUP(E5689,Insumos!AD:AE,2,FALSE))","v":""},null,{"$f":"IF(G5689=\"\",\"\",VLOOKUP(G5689,Insumos!G:H,2,FALSE))","v":""}]
[null,null,null,null,null,{"$f":"IF(E5690=\"\",\"\",VLOOKUP(E5690,Insumos!AD:AE,2,FALSE))","v":""},null,{"$f":"IF(G5690=\"\",\"\",VLOOKUP(G5690,Insumos!G:H,2,FALSE))","v":""}]
[null,null,null,null,null,{"$f":"IF(E5691=\"\",\"\",VLOOKUP(E5691,Insumos!AD:AE,2,FALSE))","v":""},null,{"$f":"IF(G5691=\"\",\"\",VLOOKUP(G5691,Insumos!G:H,2,FALSE))","v":""}]
[null,null,null,null,null,{"$f":"IF(E5692=\"\",\"\",VLOOKUP(E5692,Insumos!AD:AE,2,FALSE))","v":""},null,{"$f":"IF(G5692=\"\",\"\",VLOOKUP(G5692,Insumos!G:H,2,FALSE))","v":""}]
[null,null,null,null,null,{"$f":"IF(E5693=\"\",\"\",VLOOKUP(E5693,Insumos!AD:AE,2,FALSE))","v":""},null,{"$f":"IF(G5693=\"\",\"\",VLOOKUP(G5693,Insumos!G:H,2,FALSE))","v":""}]
[null,null,null,null,null,{"$f":"IF(E5694=\"\",\"\",VLOOKUP(E5694,Insumos!AD:AE,2,FALSE))","v":""},null,{"$f":"IF(G5694=\"\",\"\",VLOOKUP(G5694,Insumos!G:H,2,FALSE))","v":""}]
[null,null,null,null,null,{"$f":"IF(E5695=\"\",\"\",VLOOKUP(E5695,Insumos!AD:AE,2,FALSE))","v":""},null,{"$f":"IF(G5695=\"\",\"\",VLOOKUP(G5695,Insumos!G:H,2,FALSE))","v":""}]
[null,null,null,null,null,{"$f":"IF(E5696=\"\",\"\",VLOOKUP(E5696,Insumos!AD:AE,2,FALSE))","v":""},null,{"$f":"IF(G5696=\"\",\"\",VLOOKUP(G5696,Insumos!G:H,2,FALSE))","v":""}]
[null,null,null,null,null,{"$f":"IF(E5697=\"\",\"\",VLOOKUP(E5697,Insumos!AD:AE,2,FALSE))","v":""},null,{"$f":"IF(G5697=\"\",\"\",VLOOKUP(G5697,Insumos!G:H,2,FALSE))","v":""}]
[null,null,null,null,null,{"$f":"IF(E5698=\"\",\"\",VLOOKUP(E5698,Insumos!AD:AE,2,FALSE))","v":""},null,{"$f":"IF(G5698=\"\",\"\",VLOOKUP(G5698,Insumos!G:H,2,FALSE))","v":""}]
[null,null,null,null,null,{"$f":"IF(E5699=\"\",\"\",VLOOKUP(E5699,Insumos!AD:AE,2,FALSE))","v":""},null,{"$f":"IF(G5699=\"\",\"\",VLOOKUP(G5699,Insumos!G:H,2,FALSE))","v":""}]
[null,null,null,null,null,{"$f":"IF(E5700=\"\",\"\",VLOOKUP(E5700,Insumos!AD:AE,2,FALSE))","v":""},null,{"$f":"IF(G5700=\"\",\"\",VLOOKUP(G5700,Insumos!G:H,2,FALSE))","v":""}]
[null,null,null,null,null,{"$f":"IF(E5701=\"\",\"\",VLOOKUP(E5701,Insumos!AD:AE,2,FALSE))","v":""},null,{"$f":"IF(G5701=\"\",\"\",VLOOKUP(G5701,Insumos!G:H,2,FALSE))","v":""}]
[null,null,null,null,null,{"$f":"IF(E5702=\"\",\"\",VLOOKUP(E5702,Insumos!AD:AE,2,FALSE))","v":""},null,{"$f":"IF(G5702=\"\",\"\",VLOOKUP(G5702,Insumos!G:H,2,FALSE))","v":""}]
[null,null,null,null,null,{"$f":"IF(E5703=\"\",\"\",VLOOKUP(E5703,Insumos!AD:AE,2,FALSE))","v":""},null,{"$f":"IF(G5703=\"\",\"\",VLOOKUP(G5703,Insumos!G:H,2,FALSE))","v":""}]
[null,null,null,null,null,{"$f":"IF(E5704=\"\",\"\",VLOOKUP(E5704,Insumos!AD:AE,2,FALSE))","v":""},null,{"$f":"IF(G5704=\"\",\"\",VLOOKUP(G5704,Insumos!G:H,2,FALSE))","v":""}]
[null,null,null,null,null,{"$f":"IF(E5705=\"\",\"\",VLOOKUP(E5705,Insumos!AD:AE,2,FALSE))","v":""},null,{"$f":"IF(G5705=\"\",\"\",VLOOKUP(G5705,Insumos!G:H,2,FALSE))","v":""}]
[null,null,null,null,null,{"$f":"IF(E5706=\"\",\"\",VLOOKUP(E5706,Insumos!AD:AE,2,FALSE))","v":""},null,{"$f":"IF(G5706=\"\",\"\",VLOOKUP(G5706,Insumos!G:H,2,FALSE))","v":""}]
[null,null,null,null,null,{"$f":"IF(E5707=\"\",\"\",VLOOKUP(E5707,Insumos!AD:AE,2,FALSE))","v":""},null,{"$f":"IF(G5707=\"\",\"\",VLOOKUP(G5707,Insumos!G:H,2,FALSE))","v":""}]
[null,null,null,null,null,{"$f":"IF(E5708=\"\",\"\",VLOOKUP(E5708,Insumos!AD:AE,2,FALSE))","v":""},null,{"$f":"IF(G5708=\"\",\"\",VLOOKUP(G5708,Insumos!G:H,2,FALSE))","v":""}]
[null,null,null,null,null,{"$f":"IF(E5709=\"\",\"\",VLOOKUP(E5709,Insumos!AD:AE,2,FALSE))","v":""},null,{"$f":"IF(G5709=\"\",\"\",VLOOKUP(G5709,Insumos!G:H,2,FALSE))","v":""}]
[null,null,null,null,null,{"$f":"IF(E5710=\"\",\"\",VLOOKUP(E5710,Insumos!AD:AE,2,FALSE))","v":""},null,{"$f":"IF(G5710=\"\",\"\",VLOOKUP(G5710,Insumos!G:H,2,FALSE))","v":""}]
[null,null,null,null,null,{"$f":"IF(E5711=\"\",\"\",VLOOKUP(E5711,Insumos!AD:AE,2,FALSE))","v":""},null,{"$f":"IF(G5711=\"\",\"\",VLOOKUP(G5711,Insumos!G:H,2,FALSE))","v":""}]
[null,null,null,null,null,{"$f":"IF(E5712=\"\",\"\",VLOOKUP(E5712,Insumos!AD:AE,2,FALSE))","v":""},null,{"$f":"IF(G5712=\"\",\"\",VLOOKUP(G5712,Insumos!G:H,2,FALSE))","v":""}]
[null,null,null,null,null,{"$f":"IF(E5713=\"\",\"\",VLOOKUP(E5713,Insumos!AD:AE,2,FALSE))","v":""},null,{"$f":"IF(G5713=\"\",\"\",VLOOKUP(G5713,Insumos!G:H,2,FALSE))","v":""}]
[null,null,null,null,null,{"$f":"IF(E5714=\"\",\"\",VLOOKUP(E5714,Insumos!AD:AE,2,FALSE))","v":""},null,{"$f":"IF(G5714=\"\",\"\",VLOOKUP(G5714,Insumos!G:H,2,FALSE))","v":""}]
[null,null,null,null,null,{"$f":"IF(E5715=\"\",\"\",VLOOKUP(E5715,Insumos!AD:AE,2,FALSE))","v":""},null,{"$f":"IF(G5715=\"\",\"\",VLOOKUP(G5715,Insumos!G:H,2,FALSE))","v":""}]
[null,null,null,null,null,{"$f":"IF(E5716=\"\",\"\",VLOOKUP(E5716,Insumos!AD:AE,2,FALSE))","v":""},null,{"$f":"IF(G5716=\"\",\"\",VLOOKUP(G5716,Insumos!G:H,2,FALSE))","v":""}]
[null,null,null,null,null,{"$f":"IF(E5717=\"\",\"\",VLOOKUP(E5717,Insumos!AD:AE,2,FALSE))","v":""},null,{"$f":"IF(G5717=\"\",\"\",VLOOKUP(G5717,Insumos!G:H,2,FALSE))","v":""}]
[null,null,null,null,null,{"$f":"IF(E5718=\"\",\"\",VLOOKUP(E5718,Insumos!AD:AE,2,FALSE))","v":""},null,{"$f":"IF(G5718=\"\",\"\",VLOOKUP(G5718,Insumos!G:H,2,FALSE))","v":""}]
[null,null,null,null,null,{"$f":"IF(E5719=\"\",\"\",VLOOKUP(E5719,Insumos!AD:AE,2,FALSE))","v":""},null,{"$f":"IF(G5719=\"\",\"\",VLOOKUP(G5719,Insumos!G:H,2,FALSE))","v":""}]
[null,null,null,null,null,{"$f":"IF(E5720=\"\",\"\",VLOOKUP(E5720,Insumos!AD:AE,2,FALSE))","v":""},null,{"$f":"IF(G5720=\"\",\"\",VLOOKUP(G5720,Insumos!G:H,2,FALSE))","v":""}]
[null,null,null,null,null,{"$f":"IF(E5721=\"\",\"\",VLOOKUP(E5721,Insumos!AD:AE,2,FALSE))","v":""},null,{"$f":"IF(G5721=\"\",\"\",VLOOKUP(G5721,Insumos!G:H,2,FALSE))","v":""}]
[null,null,null,null,null,{"$f":"IF(E5722=\"\",\"\",VLOOKUP(E5722,Insumos!AD:AE,2,FALSE))","v":""},null,{"$f":"IF(G5722=\"\",\"\",VLOOKUP(G5722,Insumos!G:H,2,FALSE))","v":""}]
[null,null,null,null,null,{"$f":"IF(E5723=\"\",\"\",VLOOKUP(E5723,Insumos!AD:AE,2,FALSE))","v":""},null,{"$f":"IF(G5723=\"\",\"\",VLOOKUP(G5723,Insumos!G:H,2,FALSE))","v":""}]
[null,null,null,null,null,{"$f":"IF(E5724=\"\",\"\",VLOOKUP(E5724,Insumos!AD:AE,2,FALSE))","v":""},null,{"$f":"IF(G5724=\"\",\"\",VLOOKUP(G5724,Insumos!G:H,2,FALSE))","v":""}]
[null,null,null,null,null,{"$f":"IF(E5725=\"\",\"\",VLOOKUP(E5725,Insumos!AD:AE,2,FALSE))","v":""},null,{"$f":"IF(G5725=\"\",\"\",VLOOKUP(G5725,Insumos!G:H,2,FALSE))","v":""}]
[null,null,null,null,null,{"$f":"IF(E5726=\"\",\"\",VLOOKUP(E5726,Insumos!AD:AE,2,FALSE))","v":""},null,{"$f":"IF(G5726=\"\",\"\",VLOOKUP(G5726,Insumos!G:H,2,FALSE))","v":""}]
[null,null,null,null,null,{"$f":"IF(E5727=\"\",\"\",VLOOKUP(E5727,Insumos!AD:AE,2,FALSE))","v":""},null,{"$f":"IF(G5727=\"\",\"\",VLOOKUP(G5727,Insumos!G:H,2,FALSE))","v":""}]
[null,null,null,null,null,{"$f":"IF(E5728=\"\",\"\",VLOOKUP(E5728,Insumos!AD:AE,2,FALSE))","v":""},null,{"$f":"IF(G5728=\"\",\"\",VLOOKUP(G5728,Insumos!G:H,2,FALSE))","v":""}]
[null,null,null,null,null,{"$f":"IF(E5729=\"\",\"\",VLOOKUP(E5729,Insumos!AD:AE,2,FALSE))","v":""},null,{"$f":"IF(G5729=\"\",\"\",VLOOKUP(G5729,Insumos!G:H,2,FALSE))","v":""}]
[null,null,null,null,null,{"$f":"IF(E5730=\"\",\"\",VLOOKUP(E5730,Insumos!AD:AE,2,FALSE))","v":""},null,{"$f":"IF(G5730=\"\",\"\",VLOOKUP(G5730,Insumos!G:H,2,FALSE))","v":""}]
[null,null,null,null,null,{"$f":"IF(E5731=\"\",\"\",VLOOKUP(E5731,Insumos!AD:AE,2,FALSE))","v":""},null,{"$f":"IF(G5731=\"\",\"\",VLOOKUP(G5731,Insumos!G:H,2,FALSE))","v":""}]
[null,null,null,null,null,{"$f":"IF(E5732=\"\",\"\",VLOOKUP(E5732,Insumos!AD:AE,2,FALSE))","v":""},null,{"$f":"IF(G5732=\"\",\"\",VLOOKUP(G5732,Insumos!G:H,2,FALSE))","v":""}]
[null,null,null,null,null,{"$f":"IF(E5733=\"\",\"\",VLOOKUP(E5733,Insumos!AD:AE,2,FALSE))","v":""},null,{"$f":"IF(G5733=\"\",\"\",VLOOKUP(G5733,Insumos!G:H,2,FALSE))","v":""}]
[null,null,null,null,null,{"$f":"IF(E5734=\"\",\"\",VLOOKUP(E5734,Insumos!AD:AE,2,FALSE))","v":""},null,{"$f":"IF(G5734=\"\",\"\",VLOOKUP(G5734,Insumos!G:H,2,FALSE))","v":""}]
[null,null,null,null,null,{"$f":"IF(E5735=\"\",\"\",VLOOKUP(E5735,Insumos!AD:AE,2,FALSE))","v":""},null,{"$f":"IF(G5735=\"\",\"\",VLOOKUP(G5735,Insumos!G:H,2,FALSE))","v":""}]
[null,null,null,null,null,{"$f":"IF(E5736=\"\",\"\",VLOOKUP(E5736,Insumos!AD:AE,2,FALSE))","v":""},null,{"$f":"IF(G5736=\"\",\"\",VLOOKUP(G5736,Insumos!G:H,2,FALSE))","v":""}]
[null,null,null,null,null,{"$f":"IF(E5737=\"\",\"\",VLOOKUP(E5737,Insumos!AD:AE,2,FALSE))","v":""},null,{"$f":"IF(G5737=\"\",\"\",VLOOKUP(G5737,Insumos!G:H,2,FALSE))","v":""}]
[null,null,null,null,null,{"$f":"IF(E5738=\"\",\"\",VLOOKUP(E5738,Insumos!AD:AE,2,FALSE))","v":""},null,{"$f":"IF(G5738=\"\",\"\",VLOOKUP(G5738,Insumos!G:H,2,FALSE))","v":""}]
[null,null,null,null,null,{"$f":"IF(E5739=\"\",\"\",VLOOKUP(E5739,Insumos!AD:AE,2,FALSE))","v":""},null,{"$f":"IF(G5739=\"\",\"\",VLOOKUP(G5739,Insumos!G:H,2,FALSE))","v":""}]
[null,null,null,null,null,{"$f":"IF(E5740=\"\",\"\",VLOOKUP(E5740,Insumos!AD:AE,2,FALSE))","v":""},null,{"$f":"IF(G5740=\"\",\"\",VLOOKUP(G5740,Insumos!G:H,2,FALSE))","v":""}]
[null,null,null,null,null,{"$f":"IF(E5741=\"\",\"\",VLOOKUP(E5741,Insumos!AD:AE,2,FALSE))","v":""},null,{"$f":"IF(G5741=\"\",\"\",VLOOKUP(G5741,Insumos!G:H,2,FALSE))","v":""}]
[null,null,null,null,null,{"$f":"IF(E5742=\"\",\"\",VLOOKUP(E5742,Insumos!AD:AE,2,FALSE))","v":""},null,{"$f":"IF(G5742=\"\",\"\",VLOOKUP(G5742,Insumos!G:H,2,FALSE))","v":""}]
[null,null,null,null,null,{"$f":"IF(E5743=\"\",\"\",VLOOKUP(E5743,Insumos!AD:AE,2,FALSE))","v":""},null,{"$f":"IF(G5743=\"\",\"\",VLOOKUP(G5743,Insumos!G:H,2,FALSE))","v":""}]
[null,null,null,null,null,{"$f":"IF(E5744=\"\",\"\",VLOOKUP(E5744,Insumos!AD:AE,2,FALSE))","v":""},null,{"$f":"IF(G5744=\"\",\"\",VLOOKUP(G5744,Insumos!G:H,2,FALSE))","v":""}]
[null,null,null,null,null,{"$f":"IF(E5745=\"\",\"\",VLOOKUP(E5745,Insumos!AD:AE,2,FALSE))","v":""},null,{"$f":"IF(G5745=\"\",\"\",VLOOKUP(G5745,Insumos!G:H,2,FALSE))","v":""}]
[null,null,null,null,null,{"$f":"IF(E5746=\"\",\"\",VLOOKUP(E5746,Insumos!AD:AE,2,FALSE))","v":""},null,{"$f":"IF(G5746=\"\",\"\",VLOOKUP(G5746,Insumos!G:H,2,FALSE))","v":""}]
[null,null,null,null,null,{"$f":"IF(E5747=\"\",\"\",VLOOKUP(E5747,Insumos!AD:AE,2,FALSE))","v":""},null,{"$f":"IF(G5747=\"\",\"\",VLOOKUP(G5747,Insumos!G:H,2,FALSE))","v":""}]
[null,null,null,null,null,{"$f":"IF(E5748=\"\",\"\",VLOOKUP(E5748,Insumos!AD:AE,2,FALSE))","v":""},null,{"$f":"IF(G5748=\"\",\"\",VLOOKUP(G5748,Insumos!G:H,2,FALSE))","v":""}]
[null,null,null,null,null,{"$f":"IF(E5749=\"\",\"\",VLOOKUP(E5749,Insumos!AD:AE,2,FALSE))","v":""},null,{"$f":"IF(G5749=\"\",\"\",VLOOKUP(G5749,Insumos!G:H,2,FALSE))","v":""}]
[null,null,null,null,null,{"$f":"IF(E5750=\"\",\"\",VLOOKUP(E5750,Insumos!AD:AE,2,FALSE))","v":""},null,{"$f":"IF(G5750=\"\",\"\",VLOOKUP(G5750,Insumos!G:H,2,FALSE))","v":""}]
[null,null,null,null,null,{"$f":"IF(E5751=\"\",\"\",VLOOKUP(E5751,Insumos!AD:AE,2,FALSE))","v":""},null,{"$f":"IF(G5751=\"\",\"\",VLOOKUP(G5751,Insumos!G:H,2,FALSE))","v":""}]
[null,null,null,null,null,{"$f":"IF(E5752=\"\",\"\",VLOOKUP(E5752,Insumos!AD:AE,2,FALSE))","v":""},null,{"$f":"IF(G5752=\"\",\"\",VLOOKUP(G5752,Insumos!G:H,2,FALSE))","v":""}]
[null,null,null,null,null,{"$f":"IF(E5753=\"\",\"\",VLOOKUP(E5753,Insumos!AD:AE,2,FALSE))","v":""},null,{"$f":"IF(G5753=\"\",\"\",VLOOKUP(G5753,Insumos!G:H,2,FALSE))","v":""}]
[null,null,null,null,null,{"$f":"IF(E5754=\"\",\"\",VLOOKUP(E5754,Insumos!AD:AE,2,FALSE))","v":""},null,{"$f":"IF(G5754=\"\",\"\",VLOOKUP(G5754,Insumos!G:H,2,FALSE))","v":""}]
[null,null,null,null,null,{"$f":"IF(E5755=\"\",\"\",VLOOKUP(E5755,Insumos!AD:AE,2,FALSE))","v":""},null,{"$f":"IF(G5755=\"\",\"\",VLOOKUP(G5755,Insumos!G:H,2,FALSE))","v":""}]
[null,null,null,null,null,{"$f":"IF(E5756=\"\",\"\",VLOOKUP(E5756,Insumos!AD:AE,2,FALSE))","v":""},null,{"$f":"IF(G5756=\"\",\"\",VLOOKUP(G5756,Insumos!G:H,2,FALSE))","v":""}]
[null,null,null,null,null,{"$f":"IF(E5757=\"\",\"\",VLOOKUP(E5757,Insumos!AD:AE,2,FALSE))","v":""},null,{"$f":"IF(G5757=\"\",\"\",VLOOKUP(G5757,Insumos!G:H,2,FALSE))","v":""}]
[null,null,null,null,null,{"$f":"IF(E5758=\"\",\"\",VLOOKUP(E5758,Insumos!AD:AE,2,FALSE))","v":""},null,{"$f":"IF(G5758=\"\",\"\",VLOOKUP(G5758,Insumos!G:H,2,FALSE))","v":""}]
[null,null,null,null,null,{"$f":"IF(E5759=\"\",\"\",VLOOKUP(E5759,Insumos!AD:AE,2,FALSE))","v":""},null,{"$f":"IF(G5759=\"\",\"\",VLOOKUP(G5759,Insumos!G:H,2,FALSE))","v":""}]
[null,null,null,null,null,{"$f":"IF(E5760=\"\",\"\",VLOOKUP(E5760,Insumos!AD:AE,2,FALSE))","v":""},null,{"$f":"IF(G5760=\"\",\"\",VLOOKUP(G5760,Insumos!G:H,2,FALSE))","v":""}]
[null,null,null,null,null,{"$f":"IF(E5761=\"\",\"\",VLOOKUP(E5761,Insumos!AD:AE,2,FALSE))","v":""},null,{"$f":"IF(G5761=\"\",\"\",VLOOKUP(G5761,Insumos!G:H,2,FALSE))","v":""}]
[null,null,null,null,null,{"$f":"IF(E5762=\"\",\"\",VLOOKUP(E5762,Insumos!AD:AE,2,FALSE))","v":""},null,{"$f":"IF(G5762=\"\",\"\",VLOOKUP(G5762,Insumos!G:H,2,FALSE))","v":""}]
[null,null,null,null,null,{"$f":"IF(E5763=\"\",\"\",VLOOKUP(E5763,Insumos!AD:AE,2,FALSE))","v":""},null,{"$f":"IF(G5763=\"\",\"\",VLOOKUP(G5763,Insumos!G:H,2,FALSE))","v":""}]
[null,null,null,null,null,{"$f":"IF(E5764=\"\",\"\",VLOOKUP(E5764,Insumos!AD:AE,2,FALSE))","v":""},null,{"$f":"IF(G5764=\"\",\"\",VLOOKUP(G5764,Insumos!G:H,2,FALSE))","v":""}]
[null,null,null,null,null,{"$f":"IF(E5765=\"\",\"\",VLOOKUP(E5765,Insumos!AD:AE,2,FALSE))","v":""},null,{"$f":"IF(G5765=\"\",\"\",VLOOKUP(G5765,Insumos!G:H,2,FALSE))","v":""}]
[null,null,null,null,null,{"$f":"IF(E5766=\"\",\"\",VLOOKUP(E5766,Insumos!AD:AE,2,FALSE))","v":""},null,{"$f":"IF(G5766=\"\",\"\",VLOOKUP(G5766,Insumos!G:H,2,FALSE))","v":""}]
[null,null,null,null,null,{"$f":"IF(E5767=\"\",\"\",VLOOKUP(E5767,Insumos!AD:AE,2,FALSE))","v":""},null,{"$f":"IF(G5767=\"\",\"\",VLOOKUP(G5767,Insumos!G:H,2,FALSE))","v":""}]
[null,null,null,null,null,{"$f":"IF(E5768=\"\",\"\",VLOOKUP(E5768,Insumos!AD:AE,2,FALSE))","v":""},null,{"$f":"IF(G5768=\"\",\"\",VLOOKUP(G5768,Insumos!G:H,2,FALSE))","v":""}]
[null,null,null,null,null,{"$f":"IF(E5769=\"\",\"\",VLOOKUP(E5769,Insumos!AD:AE,2,FALSE))","v":""},null,{"$f":"IF(G5769=\"\",\"\",VLOOKUP(G5769,Insumos!G:H,2,FALSE))","v":""}]
[null,null,null,null,null,{"$f":"IF(E5770=\"\",\"\",VLOOKUP(E5770,Insumos!AD:AE,2,FALSE))","v":""},null,{"$f":"IF(G5770=\"\",\"\",VLOOKUP(G5770,Insumos!G:H,2,FALSE))","v":""}]
[null,null,null,null,null,{"$f":"IF(E5771=\"\",\"\",VLOOKUP(E5771,Insumos!AD:AE,2,FALSE))","v":""},null,{"$f":"IF(G5771=\"\",\"\",VLOOKUP(G5771,Insumos!G:H,2,FALSE))","v":""}]
[null,null,null,null,null,{"$f":"IF(E5772=\"\",\"\",VLOOKUP(E5772,Insumos!AD:AE,2,FALSE))","v":""},null,{"$f":"IF(G5772=\"\",\"\",VLOOKUP(G5772,Insumos!G:H,2,FALSE))","v":""}]
[null,null,null,null,null,{"$f":"IF(E5773=\"\",\"\",VLOOKUP(E5773,Insumos!AD:AE,2,FALSE))","v":""},null,{"$f":"IF(G5773=\"\",\"\",VLOOKUP(G5773,Insumos!G:H,2,FALSE))","v":""}]
[null,null,null,null,null,{"$f":"IF(E5774=\"\",\"\",VLOOKUP(E5774,Insumos!AD:AE,2,FALSE))","v":""},null,{"$f":"IF(G5774=\"\",\"\",VLOOKUP(G5774,Insumos!G:H,2,FALSE))","v":""}]
[null,null,null,null,null,{"$f":"IF(E5775=\"\",\"\",VLOOKUP(E5775,Insumos!AD:AE,2,FALSE))","v":""},null,{"$f":"IF(G5775=\"\",\"\",VLOOKUP(G5775,Insumos!G:H,2,FALSE))","v":""}]
[null,null,null,null,null,{"$f":"IF(E5776=\"\",\"\",VLOOKUP(E5776,Insumos!AD:AE,2,FALSE))","v":""},null,{"$f":"IF(G5776=\"\",\"\",VLOOKUP(G5776,Insumos!G:H,2,FALSE))","v":""}]
[null,null,null,null,null,{"$f":"IF(E5777=\"\",\"\",VLOOKUP(E5777,Insumos!AD:AE,2,FALSE))","v":""},null,{"$f":"IF(G5777=\"\",\"\",VLOOKUP(G5777,Insumos!G:H,2,FALSE))","v":""}]
[null,null,null,null,null,{"$f":"IF(E5778=\"\",\"\",VLOOKUP(E5778,Insumos!AD:AE,2,FALSE))","v":""},null,{"$f":"IF(G5778=\"\",\"\",VLOOKUP(G5778,Insumos!G:H,2,FALSE))","v":""}]
[null,null,null,null,null,{"$f":"IF(E5779=\"\",\"\",VLOOKUP(E5779,Insumos!AD:AE,2,FALSE))","v":""},null,{"$f":"IF(G5779=\"\",\"\",VLOOKUP(G5779,Insumos!G:H,2,FALSE))","v":""}]
[null,null,null,null,null,{"$f":"IF(E5780=\"\",\"\",VLOOKUP(E5780,Insumos!AD:AE,2,FALSE))","v":""},null,{"$f":"IF(G5780=\"\",\"\",VLOOKUP(G5780,Insumos!G:H,2,FALSE))","v":""}]
[null,null,null,null,null,{"$f":"IF(E5781=\"\",\"\",VLOOKUP(E5781,Insumos!AD:AE,2,FALSE))","v":""},null,{"$f":"IF(G5781=\"\",\"\",VLOOKUP(G5781,Insumos!G:H,2,FALSE))","v":""}]
[null,null,null,null,null,{"$f":"IF(E5782=\"\",\"\",VLOOKUP(E5782,Insumos!AD:AE,2,FALSE))","v":""},null,{"$f":"IF(G5782=\"\",\"\",VLOOKUP(G5782,Insumos!G:H,2,FALSE))","v":""}]
[null,null,null,null,null,{"$f":"IF(E5783=\"\",\"\",VLOOKUP(E5783,Insumos!AD:AE,2,FALSE))","v":""},null,{"$f":"IF(G5783=\"\",\"\",VLOOKUP(G5783,Insumos!G:H,2,FALSE))","v":""}]
[null,null,null,null,null,{"$f":"IF(E5784=\"\",\"\",VLOOKUP(E5784,Insumos!AD:AE,2,FALSE))","v":""},null,{"$f":"IF(G5784=\"\",\"\",VLOOKUP(G5784,Insumos!G:H,2,FALSE))","v":""}]
[null,null,null,null,null,{"$f":"IF(E5785=\"\",\"\",VLOOKUP(E5785,Insumos!AD:AE,2,FALSE))","v":""},null,{"$f":"IF(G5785=\"\",\"\",VLOOKUP(G5785,Insumos!G:H,2,FALSE))","v":""}]
[null,null,null,null,null,{"$f":"IF(E5786=\"\",\"\",VLOOKUP(E5786,Insumos!AD:AE,2,FALSE))","v":""},null,{"$f":"IF(G5786=\"\",\"\",VLOOKUP(G5786,Insumos!G:H,2,FALSE))","v":""}]
[null,null,null,null,null,{"$f":"IF(E5787=\"\",\"\",VLOOKUP(E5787,Insumos!AD:AE,2,FALSE))","v":""},null,{"$f":"IF(G5787=\"\",\"\",VLOOKUP(G5787,Insumos!G:H,2,FALSE))","v":""}]
[null,null,null,null,null,{"$f":"IF(E5788=\"\",\"\",VLOOKUP(E5788,Insumos!AD:AE,2,FALSE))","v":""},null,{"$f":"IF(G5788=\"\",\"\",VLOOKUP(G5788,Insumos!G:H,2,FALSE))","v":""}]
[null,null,null,null,null,{"$f":"IF(E5789=\"\",\"\",VLOOKUP(E5789,Insumos!AD:AE,2,FALSE))","v":""},null,{"$f":"IF(G5789=\"\",\"\",VLOOKUP(G5789,Insumos!G:H,2,FALSE))","v":""}]
[null,null,null,null,null,{"$f":"IF(E5790=\"\",\"\",VLOOKUP(E5790,Insumos!AD:AE,2,FALSE))","v":""},null,{"$f":"IF(G5790=\"\",\"\",VLOOKUP(G5790,Insumos!G:H,2,FALSE))","v":""}]
[null,null,null,null,null,{"$f":"IF(E5791=\"\",\"\",VLOOKUP(E5791,Insumos!AD:AE,2,FALSE))","v":""},null,{"$f":"IF(G5791=\"\",\"\",VLOOKUP(G5791,Insumos!G:H,2,FALSE))","v":""}]
[null,null,null,null,null,{"$f":"IF(E5792=\"\",\"\",VLOOKUP(E5792,Insumos!AD:AE,2,FALSE))","v":""},null,{"$f":"IF(G5792=\"\",\"\",VLOOKUP(G5792,Insumos!G:H,2,FALSE))","v":""}]
[null,null,null,null,null,{"$f":"IF(E5793=\"\",\"\",VLOOKUP(E5793,Insumos!AD:AE,2,FALSE))","v":""},null,{"$f":"IF(G5793=\"\",\"\",VLOOKUP(G5793,Insumos!G:H,2,FALSE))","v":""}]
[null,null,null,null,null,{"$f":"IF(E5794=\"\",\"\",VLOOKUP(E5794,Insumos!AD:AE,2,FALSE))","v":""},null,{"$f":"IF(G5794=\"\",\"\",VLOOKUP(G5794,Insumos!G:H,2,FALSE))","v":""}]
[null,null,null,null,null,{"$f":"IF(E5795=\"\",\"\",VLOOKUP(E5795,Insumos!AD:AE,2,FALSE))","v":""},null,{"$f":"IF(G5795=\"\",\"\",VLOOKUP(G5795,Insumos!G:H,2,FALSE))","v":""}]
[null,null,null,null,null,{"$f":"IF(E5796=\"\",\"\",VLOOKUP(E5796,Insumos!AD:AE,2,FALSE))","v":""},null,{"$f":"IF(G5796=\"\",\"\",VLOOKUP(G5796,Insumos!G:H,2,FALSE))","v":""}]
[null,null,null,null,null,{"$f":"IF(E5797=\"\",\"\",VLOOKUP(E5797,Insumos!AD:AE,2,FALSE))","v":""},null,{"$f":"IF(G5797=\"\",\"\",VLOOKUP(G5797,Insumos!G:H,2,FALSE))","v":""}]
[null,null,null,null,null,{"$f":"IF(E5798=\"\",\"\",VLOOKUP(E5798,Insumos!AD:AE,2,FALSE))","v":""},null,{"$f":"IF(G5798=\"\",\"\",VLOOKUP(G5798,Insumos!G:H,2,FALSE))","v":""}]
[null,null,null,null,null,{"$f":"IF(E5799=\"\",\"\",VLOOKUP(E5799,Insumos!AD:AE,2,FALSE))","v":""},null,{"$f":"IF(G5799=\"\",\"\",VLOOKUP(G5799,Insumos!G:H,2,FALSE))","v":""}]
[null,null,null,null,null,{"$f":"IF(E5800=\"\",\"\",VLOOKUP(E5800,Insumos!AD:AE,2,FALSE))","v":""},null,{"$f":"IF(G5800=\"\",\"\",VLOOKUP(G5800,Insumos!G:H,2,FALSE))","v":""}]
[null,null,null,null,null,{"$f":"IF(E5801=\"\",\"\",VLOOKUP(E5801,Insumos!AD:AE,2,FALSE))","v":""},null,{"$f":"IF(G5801=\"\",\"\",VLOOKUP(G5801,Insumos!G:H,2,FALSE))","v":""}]
[null,null,null,null,null,{"$f":"IF(E5802=\"\",\"\",VLOOKUP(E5802,Insumos!AD:AE,2,FALSE))","v":""},null,{"$f":"IF(G5802=\"\",\"\",VLOOKUP(G5802,Insumos!G:H,2,FALSE))","v":""}]
[null,null,null,null,null,{"$f":"IF(E5803=\"\",\"\",VLOOKUP(E5803,Insumos!AD:AE,2,FALSE))","v":""},null,{"$f":"IF(G5803=\"\",\"\",VLOOKUP(G5803,Insumos!G:H,2,FALSE))","v":""}]
[null,null,null,null,null,{"$f":"IF(E5804=\"\",\"\",VLOOKUP(E5804,Insumos!AD:AE,2,FALSE))","v":""},null,{"$f":"IF(G5804=\"\",\"\",VLOOKUP(G5804,Insumos!G:H,2,FALSE))","v":""}]
[null,null,null,null,null,{"$f":"IF(E5805=\"\",\"\",VLOOKUP(E5805,Insumos!AD:AE,2,FALSE))","v":""},null,{"$f":"IF(G5805=\"\",\"\",VLOOKUP(G5805,Insumos!G:H,2,FALSE))","v":""}]
[null,null,null,null,null,{"$f":"IF(E5806=\"\",\"\",VLOOKUP(E5806,Insumos!AD:AE,2,FALSE))","v":""},null,{"$f":"IF(G5806=\"\",\"\",VLOOKUP(G5806,Insumos!G:H,2,FALSE))","v":""}]
[null,null,null,null,null,{"$f":"IF(E5807=\"\",\"\",VLOOKUP(E5807,Insumos!AD:AE,2,FALSE))","v":""},null,{"$f":"IF(G5807=\"\",\"\",VLOOKUP(G5807,Insumos!G:H,2,FALSE))","v":""}]
[null,null,null,null,null,{"$f":"IF(E5808=\"\",\"\",VLOOKUP(E5808,Insumos!AD:AE,2,FALSE))","v":""},null,{"$f":"IF(G5808=\"\",\"\",VLOOKUP(G5808,Insumos!G:H,2,FALSE))","v":""}]
[null,null,null,null,null,{"$f":"IF(E5809=\"\",\"\",VLOOKUP(E5809,Insumos!AD:AE,2,FALSE))","v":""},null,{"$f":"IF(G5809=\"\",\"\",VLOOKUP(G5809,Insumos!G:H,2,FALSE))","v":""}]
[null,null,null,null,null,{"$f":"IF(E5810=\"\",\"\",VLOOKUP(E5810,Insumos!AD:AE,2,FALSE))","v":""},null,{"$f":"IF(G5810=\"\",\"\",VLOOKUP(G5810,Insumos!G:H,2,FALSE))","v":""}]
[null,null,null,null,null,{"$f":"IF(E5811=\"\",\"\",VLOOKUP(E5811,Insumos!AD:AE,2,FALSE))","v":""},null,{"$f":"IF(G5811=\"\",\"\",VLOOKUP(G5811,Insumos!G:H,2,FALSE))","v":""}]
[null,null,null,null,null,{"$f":"IF(E5812=\"\",\"\",VLOOKUP(E5812,Insumos!AD:AE,2,FALSE))","v":""},null,{"$f":"IF(G5812=\"\",\"\",VLOOKUP(G5812,Insumos!G:H,2,FALSE))","v":""}]
[null,null,null,null,null,{"$f":"IF(E5813=\"\",\"\",VLOOKUP(E5813,Insumos!AD:AE,2,FALSE))","v":""},null,{"$f":"IF(G5813=\"\",\"\",VLOOKUP(G5813,Insumos!G:H,2,FALSE))","v":""}]
[null,null,null,null,null,{"$f":"IF(E5814=\"\",\"\",VLOOKUP(E5814,Insumos!AD:AE,2,FALSE))","v":""},null,{"$f":"IF(G5814=\"\",\"\",VLOOKUP(G5814,Insumos!G:H,2,FALSE))","v":""}]
[null,null,null,null,null,{"$f":"IF(E5815=\"\",\"\",VLOOKUP(E5815,Insumos!AD:AE,2,FALSE))","v":""},null,{"$f":"IF(G5815=\"\",\"\",VLOOKUP(G5815,Insumos!G:H,2,FALSE))","v":""}]
[null,null,null,null,null,{"$f":"IF(E5816=\"\",\"\",VLOOKUP(E5816,Insumos!AD:AE,2,FALSE))","v":""},null,{"$f":"IF(G5816=\"\",\"\",VLOOKUP(G5816,Insumos!G:H,2,FALSE))","v":""}]
[null,null,null,null,null,{"$f":"IF(E5817=\"\",\"\",VLOOKUP(E5817,Insumos!AD:AE,2,FALSE))","v":""},null,{"$f":"IF(G5817=\"\",\"\",VLOOKUP(G5817,Insumos!G:H,2,FALSE))","v":""}]
[null,null,null,null,null,{"$f":"IF(E5818=\"\",\"\",VLOOKUP(E5818,Insumos!AD:AE,2,FALSE))","v":""},null,{"$f":"IF(G5818=\"\",\"\",VLOOKUP(G5818,Insumos!G:H,2,FALSE))","v":""}]
[null,null,null,null,null,{"$f":"IF(E5819=\"\",\"\",VLOOKUP(E5819,Insumos!AD:AE,2,FALSE))","v":""},null,{"$f":"IF(G5819=\"\",\"\",VLOOKUP(G5819,Insumos!G:H,2,FALSE))","v":""}]
[null,null,null,null,null,{"$f":"IF(E5820=\"\",\"\",VLOOKUP(E5820,Insumos!AD:AE,2,FALSE))","v":""},null,{"$f":"IF(G5820=\"\",\"\",VLOOKUP(G5820,Insumos!G:H,2,FALSE))","v":""}]
[null,null,null,null,null,{"$f":"IF(E5821=\"\",\"\",VLOOKUP(E5821,Insumos!AD:AE,2,FALSE))","v":""},null,{"$f":"IF(G5821=\"\",\"\",VLOOKUP(G5821,Insumos!G:H,2,FALSE))","v":""}]
[null,null,null,null,null,{"$f":"IF(E5822=\"\",\"\",VLOOKUP(E5822,Insumos!AD:AE,2,FALSE))","v":""},null,{"$f":"IF(G5822=\"\",\"\",VLOOKUP(G5822,Insumos!G:H,2,FALSE))","v":""}]
[null,null,null,null,null,{"$f":"IF(E5823=\"\",\"\",VLOOKUP(E5823,Insumos!AD:AE,2,FALSE))","v":""},null,{"$f":"IF(G5823=\"\",\"\",VLOOKUP(G5823,Insumos!G:H,2,FALSE))","v":""}]
[null,null,null,null,null,{"$f":"IF(E5824=\"\",\"\",VLOOKUP(E5824,Insumos!AD:AE,2,FALSE))","v":""},null,{"$f":"IF(G5824=\"\",\"\",VLOOKUP(G5824,Insumos!G:H,2,FALSE))","v":""}]
[null,null,null,null,null,{"$f":"IF(E5825=\"\",\"\",VLOOKUP(E5825,Insumos!AD:AE,2,FALSE))","v":""},null,{"$f":"IF(G5825=\"\",\"\",VLOOKUP(G5825,Insumos!G:H,2,FALSE))","v":""}]
[null,null,null,null,null,{"$f":"IF(E5826=\"\",\"\",VLOOKUP(E5826,Insumos!AD:AE,2,FALSE))","v":""},null,{"$f":"IF(G5826=\"\",\"\",VLOOKUP(G5826,Insumos!G:H,2,FALSE))","v":""}]
[null,null,null,null,null,{"$f":"IF(E5827=\"\",\"\",VLOOKUP(E5827,Insumos!AD:AE,2,FALSE))","v":""},null,{"$f":"IF(G5827=\"\",\"\",VLOOKUP(G5827,Insumos!G:H,2,FALSE))","v":""}]
[null,null,null,null,null,{"$f":"IF(E5828=\"\",\"\",VLOOKUP(E5828,Insumos!AD:AE,2,FALSE))","v":""},null,{"$f":"IF(G5828=\"\",\"\",VLOOKUP(G5828,Insumos!G:H,2,FALSE))","v":""}]
[null,null,null,null,null,{"$f":"IF(E5829=\"\",\"\",VLOOKUP(E5829,Insumos!AD:AE,2,FALSE))","v":""},null,{"$f":"IF(G5829=\"\",\"\",VLOOKUP(G5829,Insumos!G:H,2,FALSE))","v":""}]
[null,null,null,null,null,{"$f":"IF(E5830=\"\",\"\",VLOOKUP(E5830,Insumos!AD:AE,2,FALSE))","v":""},null,{"$f":"IF(G5830=\"\",\"\",VLOOKUP(G5830,Insumos!G:H,2,FALSE))","v":""}]
[null,null,null,null,null,{"$f":"IF(E5831=\"\",\"\",VLOOKUP(E5831,Insumos!AD:AE,2,FALSE))","v":""},null,{"$f":"IF(G5831=\"\",\"\",VLOOKUP(G5831,Insumos!G:H,2,FALSE))","v":""}]
[null,null,null,null,null,{"$f":"IF(E5832=\"\",\"\",VLOOKUP(E5832,Insumos!AD:AE,2,FALSE))","v":""},null,{"$f":"IF(G5832=\"\",\"\",VLOOKUP(G5832,Insumos!G:H,2,FALSE))","v":""}]
[null,null,null,null,null,{"$f":"IF(E5833=\"\",\"\",VLOOKUP(E5833,Insumos!AD:AE,2,FALSE))","v":""},null,{"$f":"IF(G5833=\"\",\"\",VLOOKUP(G5833,Insumos!G:H,2,FALSE))","v":""}]
[null,null,null,null,null,{"$f":"IF(E5834=\"\",\"\",VLOOKUP(E5834,Insumos!AD:AE,2,FALSE))","v":""},null,{"$f":"IF(G5834=\"\",\"\",VLOOKUP(G5834,Insumos!G:H,2,FALSE))","v":""}]
[null,null,null,null,null,{"$f":"IF(E5835=\"\",\"\",VLOOKUP(E5835,Insumos!AD:AE,2,FALSE))","v":""},null,{"$f":"IF(G5835=\"\",\"\",VLOOKUP(G5835,Insumos!G:H,2,FALSE))","v":""}]
[null,null,null,null,null,{"$f":"IF(E5836=\"\",\"\",VLOOKUP(E5836,Insumos!AD:AE,2,FALSE))","v":""},null,{"$f":"IF(G5836=\"\",\"\",VLOOKUP(G5836,Insumos!G:H,2,FALSE))","v":""}]
[null,null,null,null,null,{"$f":"IF(E5837=\"\",\"\",VLOOKUP(E5837,Insumos!AD:AE,2,FALSE))","v":""},null,{"$f":"IF(G5837=\"\",\"\",VLOOKUP(G5837,Insumos!G:H,2,FALSE))","v":""}]
[null,null,null,null,null,{"$f":"IF(E5838=\"\",\"\",VLOOKUP(E5838,Insumos!AD:AE,2,FALSE))","v":""},null,{"$f":"IF(G5838=\"\",\"\",VLOOKUP(G5838,Insumos!G:H,2,FALSE))","v":""}]
[null,null,null,null,null,{"$f":"IF(E5839=\"\",\"\",VLOOKUP(E5839,Insumos!AD:AE,2,FALSE))","v":""},null,{"$f":"IF(G5839=\"\",\"\",VLOOKUP(G5839,Insumos!G:H,2,FALSE))","v":""}]
[null,null,null,null,null,{"$f":"IF(E5840=\"\",\"\",VLOOKUP(E5840,Insumos!AD:AE,2,FALSE))","v":""},null,{"$f":"IF(G5840=\"\",\"\",VLOOKUP(G5840,Insumos!G:H,2,FALSE))","v":""}]
[null,null,null,null,null,{"$f":"IF(E5841=\"\",\"\",VLOOKUP(E5841,Insumos!AD:AE,2,FALSE))","v":""},null,{"$f":"IF(G5841=\"\",\"\",VLOOKUP(G5841,Insumos!G:H,2,FALSE))","v":""}]
[null,null,null,null,null,{"$f":"IF(E5842=\"\",\"\",VLOOKUP(E5842,Insumos!AD:AE,2,FALSE))","v":""},null,{"$f":"IF(G5842=\"\",\"\",VLOOKUP(G5842,Insumos!G:H,2,FALSE))","v":""}]
[null,null,null,null,null,{"$f":"IF(E5843=\"\",\"\",VLOOKUP(E5843,Insumos!AD:AE,2,FALSE))","v":""},null,{"$f":"IF(G5843=\"\",\"\",VLOOKUP(G5843,Insumos!G:H,2,FALSE))","v":""}]
[null,null,null,null,null,{"$f":"IF(E5844=\"\",\"\",VLOOKUP(E5844,Insumos!AD:AE,2,FALSE))","v":""},null,{"$f":"IF(G5844=\"\",\"\",VLOOKUP(G5844,Insumos!G:H,2,FALSE))","v":""}]
[null,null,null,null,null,{"$f":"IF(E5845=\"\",\"\",VLOOKUP(E5845,Insumos!AD:AE,2,FALSE))","v":""},null,{"$f":"IF(G5845=\"\",\"\",VLOOKUP(G5845,Insumos!G:H,2,FALSE))","v":""}]
[null,null,null,null,null,{"$f":"IF(E5846=\"\",\"\",VLOOKUP(E5846,Insumos!AD:AE,2,FALSE))","v":""},null,{"$f":"IF(G5846=\"\",\"\",VLOOKUP(G5846,Insumos!G:H,2,FALSE))","v":""}]
[null,null,null,null,null,{"$f":"IF(E5847=\"\",\"\",VLOOKUP(E5847,Insumos!AD:AE,2,FALSE))","v":""},null,{"$f":"IF(G5847=\"\",\"\",VLOOKUP(G5847,Insumos!G:H,2,FALSE))","v":""}]
[null,null,null,null,null,{"$f":"IF(E5848=\"\",\"\",VLOOKUP(E5848,Insumos!AD:AE,2,FALSE))","v":""},null,{"$f":"IF(G5848=\"\",\"\",VLOOKUP(G5848,Insumos!G:H,2,FALSE))","v":""}]
[null,null,null,null,null,{"$f":"IF(E5849=\"\",\"\",VLOOKUP(E5849,Insumos!AD:AE,2,FALSE))","v":""},null,{"$f":"IF(G5849=\"\",\"\",VLOOKUP(G5849,Insumos!G:H,2,FALSE))","v":""}]
[null,null,null,null,null,{"$f":"IF(E5850=\"\",\"\",VLOOKUP(E5850,Insumos!AD:AE,2,FALSE))","v":""},null,{"$f":"IF(G5850=\"\",\"\",VLOOKUP(G5850,Insumos!G:H,2,FALSE))","v":""}]
[null,null,null,null,null,{"$f":"IF(E5851=\"\",\"\",VLOOKUP(E5851,Insumos!AD:AE,2,FALSE))","v":""},null,{"$f":"IF(G5851=\"\",\"\",VLOOKUP(G5851,Insumos!G:H,2,FALSE))","v":""}]
[null,null,null,null,null,{"$f":"IF(E5852=\"\",\"\",VLOOKUP(E5852,Insumos!AD:AE,2,FALSE))","v":""},null,{"$f":"IF(G5852=\"\",\"\",VLOOKUP(G5852,Insumos!G:H,2,FALSE))","v":""}]
[null,null,null,null,null,{"$f":"IF(E5853=\"\",\"\",VLOOKUP(E5853,Insumos!AD:AE,2,FALSE))","v":""},null,{"$f":"IF(G5853=\"\",\"\",VLOOKUP(G5853,Insumos!G:H,2,FALSE))","v":""}]
[null,null,null,null,null,{"$f":"IF(E5854=\"\",\"\",VLOOKUP(E5854,Insumos!AD:AE,2,FALSE))","v":""},null,{"$f":"IF(G5854=\"\",\"\",VLOOKUP(G5854,Insumos!G:H,2,FALSE))","v":""}]
[null,null,null,null,null,{"$f":"IF(E5855=\"\",\"\",VLOOKUP(E5855,Insumos!AD:AE,2,FALSE))","v":""},null,{"$f":"IF(G5855=\"\",\"\",VLOOKUP(G5855,Insumos!G:H,2,FALSE))","v":""}]
[null,null,null,null,null,{"$f":"IF(E5856=\"\",\"\",VLOOKUP(E5856,Insumos!AD:AE,2,FALSE))","v":""},null,{"$f":"IF(G5856=\"\",\"\",VLOOKUP(G5856,Insumos!G:H,2,FALSE))","v":""}]
[null,null,null,null,null,{"$f":"IF(E5857=\"\",\"\",VLOOKUP(E5857,Insumos!AD:AE,2,FALSE))","v":""},null,{"$f":"IF(G5857=\"\",\"\",VLOOKUP(G5857,Insumos!G:H,2,FALSE))","v":""}]
[null,null,null,null,null,{"$f":"IF(E5858=\"\",\"\",VLOOKUP(E5858,Insumos!AD:AE,2,FALSE))","v":""},null,{"$f":"IF(G5858=\"\",\"\",VLOOKUP(G5858,Insumos!G:H,2,FALSE))","v":""}]
[null,null,null,null,null,{"$f":"IF(E5859=\"\",\"\",VLOOKUP(E5859,Insumos!AD:AE,2,FALSE))","v":""},null,{"$f":"IF(G5859=\"\",\"\",VLOOKUP(G5859,Insumos!G:H,2,FALSE))","v":""}]
[null,null,null,null,null,{"$f":"IF(E5860=\"\",\"\",VLOOKUP(E5860,Insumos!AD:AE,2,FALSE))","v":""},null,{"$f":"IF(G5860=\"\",\"\",VLOOKUP(G5860,Insumos!G:H,2,FALSE))","v":""}]
[null,null,null,null,null,{"$f":"IF(E5861=\"\",\"\",VLOOKUP(E5861,Insumos!AD:AE,2,FALSE))","v":""},null,{"$f":"IF(G5861=\"\",\"\",VLOOKUP(G5861,Insumos!G:H,2,FALSE))","v":""}]
[null,null,null,null,null,{"$f":"IF(E5862=\"\",\"\",VLOOKUP(E5862,Insumos!AD:AE,2,FALSE))","v":""},null,{"$f":"IF(G5862=\"\",\"\",VLOOKUP(G5862,Insumos!G:H,2,FALSE))","v":""}]
[null,null,null,null,null,{"$f":"IF(E5863=\"\",\"\",VLOOKUP(E5863,Insumos!AD:AE,2,FALSE))","v":""},null,{"$f":"IF(G5863=\"\",\"\",VLOOKUP(G5863,Insumos!G:H,2,FALSE))","v":""}]
[null,null,null,null,null,{"$f":"IF(E5864=\"\",\"\",VLOOKUP(E5864,Insumos!AD:AE,2,FALSE))","v":""},null,{"$f":"IF(G5864=\"\",\"\",VLOOKUP(G5864,Insumos!G:H,2,FALSE))","v":""}]
[null,null,null,null,null,{"$f":"IF(E5865=\"\",\"\",VLOOKUP(E5865,Insumos!AD:AE,2,FALSE))","v":""},null,{"$f":"IF(G5865=\"\",\"\",VLOOKUP(G5865,Insumos!G:H,2,FALSE))","v":""}]
[null,null,null,null,null,{"$f":"IF(E5866=\"\",\"\",VLOOKUP(E5866,Insumos!AD:AE,2,FALSE))","v":""},null,{"$f":"IF(G5866=\"\",\"\",VLOOKUP(G5866,Insumos!G:H,2,FALSE))","v":""}]
[null,null,null,null,null,{"$f":"IF(E5867=\"\",\"\",VLOOKUP(E5867,Insumos!AD:AE,2,FALSE))","v":""},null,{"$f":"IF(G5867=\"\",\"\",VLOOKUP(G5867,Insumos!G:H,2,FALSE))","v":""}]
[null,null,null,null,null,{"$f":"IF(E5868=\"\",\"\",VLOOKUP(E5868,Insumos!AD:AE,2,FALSE))","v":""},null,{"$f":"IF(G5868=\"\",\"\",VLOOKUP(G5868,Insumos!G:H,2,FALSE))","v":""}]
[null,null,null,null,null,{"$f":"IF(E5869=\"\",\"\",VLOOKUP(E5869,Insumos!AD:AE,2,FALSE))","v":""},null,{"$f":"IF(G5869=\"\",\"\",VLOOKUP(G5869,Insumos!G:H,2,FALSE))","v":""}]
[null,null,null,null,null,{"$f":"IF(E5870=\"\",\"\",VLOOKUP(E5870,Insumos!AD:AE,2,FALSE))","v":""},null,{"$f":"IF(G5870=\"\",\"\",VLOOKUP(G5870,Insumos!G:H,2,FALSE))","v":""}]
[null,null,null,null,null,{"$f":"IF(E5871=\"\",\"\",VLOOKUP(E5871,Insumos!AD:AE,2,FALSE))","v":""},null,{"$f":"IF(G5871=\"\",\"\",VLOOKUP(G5871,Insumos!G:H,2,FALSE))","v":""}]
[null,null,null,null,null,{"$f":"IF(E5872=\"\",\"\",VLOOKUP(E5872,Insumos!AD:AE,2,FALSE))","v":""},null,{"$f":"IF(G5872=\"\",\"\",VLOOKUP(G5872,Insumos!G:H,2,FALSE))","v":""}]
[null,null,null,null,null,{"$f":"IF(E5873=\"\",\"\",VLOOKUP(E5873,Insumos!AD:AE,2,FALSE))","v":""},null,{"$f":"IF(G5873=\"\",\"\",VLOOKUP(G5873,Insumos!G:H,2,FALSE))","v":""}]
[null,null,null,null,null,{"$f":"IF(E5874=\"\",\"\",VLOOKUP(E5874,Insumos!AD:AE,2,FALSE))","v":""},null,{"$f":"IF(G5874=\"\",\"\",VLOOKUP(G5874,Insumos!G:H,2,FALSE))","v":""}]
[null,null,null,null,null,{"$f":"IF(E5875=\"\",\"\",VLOOKUP(E5875,Insumos!AD:AE,2,FALSE))","v":""},null,{"$f":"IF(G5875=\"\",\"\",VLOOKUP(G5875,Insumos!G:H,2,FALSE))","v":""}]
[null,null,null,null,null,{"$f":"IF(E5876=\"\",\"\",VLOOKUP(E5876,Insumos!AD:AE,2,FALSE))","v":""},null,{"$f":"IF(G5876=\"\",\"\",VLOOKUP(G5876,Insumos!G:H,2,FALSE))","v":""}]
[null,null,null,null,null,{"$f":"IF(E5877=\"\",\"\",VLOOKUP(E5877,Insumos!AD:AE,2,FALSE))","v":""},null,{"$f":"IF(G5877=\"\",\"\",VLOOKUP(G5877,Insumos!G:H,2,FALSE))","v":""}]
[null,null,null,null,null,{"$f":"IF(E5878=\"\",\"\",VLOOKUP(E5878,Insumos!AD:AE,2,FALSE))","v":""},null,{"$f":"IF(G5878=\"\",\"\",VLOOKUP(G5878,Insumos!G:H,2,FALSE))","v":""}]
[null,null,null,null,null,{"$f":"IF(E5879=\"\",\"\",VLOOKUP(E5879,Insumos!AD:AE,2,FALSE))","v":""},null,{"$f":"IF(G5879=\"\",\"\",VLOOKUP(G5879,Insumos!G:H,2,FALSE))","v":""}]
[null,null,null,null,null,{"$f":"IF(E5880=\"\",\"\",VLOOKUP(E5880,Insumos!AD:AE,2,FALSE))","v":""},null,{"$f":"IF(G5880=\"\",\"\",VLOOKUP(G5880,Insumos!G:H,2,FALSE))","v":""}]
[null,null,null,null,null,{"$f":"IF(E5881=\"\",\"\",VLOOKUP(E5881,Insumos!AD:AE,2,FALSE))","v":""},null,{"$f":"IF(G5881=\"\",\"\",VLOOKUP(G5881,Insumos!G:H,2,FALSE))","v":""}]
[null,null,null,null,null,{"$f":"IF(E5882=\"\",\"\",VLOOKUP(E5882,Insumos!AD:AE,2,FALSE))","v":""},null,{"$f":"IF(G5882=\"\",\"\",VLOOKUP(G5882,Insumos!G:H,2,FALSE))","v":""}]
[null,null,null,null,null,{"$f":"IF(E5883=\"\",\"\",VLOOKUP(E5883,Insumos!AD:AE,2,FALSE))","v":""},null,{"$f":"IF(G5883=\"\",\"\",VLOOKUP(G5883,Insumos!G:H,2,FALSE))","v":""}]
[null,null,null,null,null,{"$f":"IF(E5884=\"\",\"\",VLOOKUP(E5884,Insumos!AD:AE,2,FALSE))","v":""},null,{"$f":"IF(G5884=\"\",\"\",VLOOKUP(G5884,Insumos!G:H,2,FALSE))","v":""}]
[null,null,null,null,null,{"$f":"IF(E5885=\"\",\"\",VLOOKUP(E5885,Insumos!AD:AE,2,FALSE))","v":""},null,{"$f":"IF(G5885=\"\",\"\",VLOOKUP(G5885,Insumos!G:H,2,FALSE))","v":""}]
[null,null,null,null,null,{"$f":"IF(E5886=\"\",\"\",VLOOKUP(E5886,Insumos!AD:AE,2,FALSE))","v":""},null,{"$f":"IF(G5886=\"\",\"\",VLOOKUP(G5886,Insumos!G:H,2,FALSE))","v":""}]
[null,null,null,null,null,{"$f":"IF(E5887=\"\",\"\",VLOOKUP(E5887,Insumos!AD:AE,2,FALSE))","v":""},null,{"$f":"IF(G5887=\"\",\"\",VLOOKUP(G5887,Insumos!G:H,2,FALSE))","v":""}]
[null,null,null,null,null,{"$f":"IF(E5888=\"\",\"\",VLOOKUP(E5888,Insumos!AD:AE,2,FALSE))","v":""},null,{"$f":"IF(G5888=\"\",\"\",VLOOKUP(G5888,Insumos!G:H,2,FALSE))","v":""}]
[null,null,null,null,null,{"$f":"IF(E5889=\"\",\"\",VLOOKUP(E5889,Insumos!AD:AE,2,FALSE))","v":""},null,{"$f":"IF(G5889=\"\",\"\",VLOOKUP(G5889,Insumos!G:H,2,FALSE))","v":""}]
[null,null,null,null,null,{"$f":"IF(E5890=\"\",\"\",VLOOKUP(E5890,Insumos!AD:AE,2,FALSE))","v":""},null,{"$f":"IF(G5890=\"\",\"\",VLOOKUP(G5890,Insumos!G:H,2,FALSE))","v":""}]
[null,null,null,null,null,{"$f":"IF(E5891=\"\",\"\",VLOOKUP(E5891,Insumos!AD:AE,2,FALSE))","v":""},null,{"$f":"IF(G5891=\"\",\"\",VLOOKUP(G5891,Insumos!G:H,2,FALSE))","v":""}]
[null,null,null,null,null,{"$f":"IF(E5892=\"\",\"\",VLOOKUP(E5892,Insumos!AD:AE,2,FALSE))","v":""},null,{"$f":"IF(G5892=\"\",\"\",VLOOKUP(G5892,Insumos!G:H,2,FALSE))","v":""}]
[null,null,null,null,null,{"$f":"IF(E5893=\"\",\"\",VLOOKUP(E5893,Insumos!AD:AE,2,FALSE))","v":""},null,{"$f":"IF(G5893=\"\",\"\",VLOOKUP(G5893,Insumos!G:H,2,FALSE))","v":""}]
[null,null,null,null,null,{"$f":"IF(E5894=\"\",\"\",VLOOKUP(E5894,Insumos!AD:AE,2,FALSE))","v":""},null,{"$f":"IF(G5894=\"\",\"\",VLOOKUP(G5894,Insumos!G:H,2,FALSE))","v":""}]
[null,null,null,null,null,{"$f":"IF(E5895=\"\",\"\",VLOOKUP(E5895,Insumos!AD:AE,2,FALSE))","v":""},null,{"$f":"IF(G5895=\"\",\"\",VLOOKUP(G5895,Insumos!G:H,2,FALSE))","v":""}]
[null,null,null,null,null,{"$f":"IF(E5896=\"\",\"\",VLOOKUP(E5896,Insumos!AD:AE,2,FALSE))","v":""},null,{"$f":"IF(G5896=\"\",\"\",VLOOKUP(G5896,Insumos!G:H,2,FALSE))","v":""}]
[null,null,null,null,null,{"$f":"IF(E5897=\"\",\"\",VLOOKUP(E5897,Insumos!AD:AE,2,FALSE))","v":""},null,{"$f":"IF(G5897=\"\",\"\",VLOOKUP(G5897,Insumos!G:H,2,FALSE))","v":""}]
[null,null,null,null,null,{"$f":"IF(E5898=\"\",\"\",VLOOKUP(E5898,Insumos!AD:AE,2,FALSE))","v":""},null,{"$f":"IF(G5898=\"\",\"\",VLOOKUP(G5898,Insumos!G:H,2,FALSE))","v":""}]
[null,null,null,null,null,{"$f":"IF(E5899=\"\",\"\",VLOOKUP(E5899,Insumos!AD:AE,2,FALSE))","v":""},null,{"$f":"IF(G5899=\"\",\"\",VLOOKUP(G5899,Insumos!G:H,2,FALSE))","v":""}]
[null,null,null,null,null,{"$f":"IF(E5900=\"\",\"\",VLOOKUP(E5900,Insumos!AD:AE,2,FALSE))","v":""},null,{"$f":"IF(G5900=\"\",\"\",VLOOKUP(G5900,Insumos!G:H,2,FALSE))","v":""}]
[null,null,null,null,null,{"$f":"IF(E5901=\"\",\"\",VLOOKUP(E5901,Insumos!AD:AE,2,FALSE))","v":""},null,{"$f":"IF(G5901=\"\",\"\",VLOOKUP(G5901,Insumos!G:H,2,FALSE))","v":""}]
[null,null,null,null,null,{"$f":"IF(E5902=\"\",\"\",VLOOKUP(E5902,Insumos!AD:AE,2,FALSE))","v":""},null,{"$f":"IF(G5902=\"\",\"\",VLOOKUP(G5902,Insumos!G:H,2,FALSE))","v":""}]
[null,null,null,null,null,{"$f":"IF(E5903=\"\",\"\",VLOOKUP(E5903,Insumos!AD:AE,2,FALSE))","v":""},null,{"$f":"IF(G5903=\"\",\"\",VLOOKUP(G5903,Insumos!G:H,2,FALSE))","v":""}]
[null,null,null,null,null,{"$f":"IF(E5904=\"\",\"\",VLOOKUP(E5904,Insumos!AD:AE,2,FALSE))","v":""},null,{"$f":"IF(G5904=\"\",\"\",VLOOKUP(G5904,Insumos!G:H,2,FALSE))","v":""}]
[null,null,null,null,null,{"$f":"IF(E5905=\"\",\"\",VLOOKUP(E5905,Insumos!AD:AE,2,FALSE))","v":""},null,{"$f":"IF(G5905=\"\",\"\",VLOOKUP(G5905,Insumos!G:H,2,FALSE))","v":""}]
[null,null,null,null,null,{"$f":"IF(E5906=\"\",\"\",VLOOKUP(E5906,Insumos!AD:AE,2,FALSE))","v":""},null,{"$f":"IF(G5906=\"\",\"\",VLOOKUP(G5906,Insumos!G:H,2,FALSE))","v":""}]
[null,null,null,null,null,{"$f":"IF(E5907=\"\",\"\",VLOOKUP(E5907,Insumos!AD:AE,2,FALSE))","v":""},null,{"$f":"IF(G5907=\"\",\"\",VLOOKUP(G5907,Insumos!G:H,2,FALSE))","v":""}]
[null,null,null,null,null,{"$f":"IF(E5908=\"\",\"\",VLOOKUP(E5908,Insumos!AD:AE,2,FALSE))","v":""},null,{"$f":"IF(G5908=\"\",\"\",VLOOKUP(G5908,Insumos!G:H,2,FALSE))","v":""}]
[null,null,null,null,null,{"$f":"IF(E5909=\"\",\"\",VLOOKUP(E5909,Insumos!AD:AE,2,FALSE))","v":""},null,{"$f":"IF(G5909=\"\",\"\",VLOOKUP(G5909,Insumos!G:H,2,FALSE))","v":""}]
[null,null,null,null,null,{"$f":"IF(E5910=\"\",\"\",VLOOKUP(E5910,Insumos!AD:AE,2,FALSE))","v":""},null,{"$f":"IF(G5910=\"\",\"\",VLOOKUP(G5910,Insumos!G:H,2,FALSE))","v":""}]
[null,null,null,null,null,{"$f":"IF(E5911=\"\",\"\",VLOOKUP(E5911,Insumos!AD:AE,2,FALSE))","v":""},null,{"$f":"IF(G5911=\"\",\"\",VLOOKUP(G5911,Insumos!G:H,2,FALSE))","v":""}]
[null,null,null,null,null,{"$f":"IF(E5912=\"\",\"\",VLOOKUP(E5912,Insumos!AD:AE,2,FALSE))","v":""},null,{"$f":"IF(G5912=\"\",\"\",VLOOKUP(G5912,Insumos!G:H,2,FALSE))","v":""}]
[null,null,null,null,null,{"$f":"IF(E5913=\"\",\"\",VLOOKUP(E5913,Insumos!AD:AE,2,FALSE))","v":""},null,{"$f":"IF(G5913=\"\",\"\",VLOOKUP(G5913,Insumos!G:H,2,FALSE))","v":""}]
[null,null,null,null,null,{"$f":"IF(E5914=\"\",\"\",VLOOKUP(E5914,Insumos!AD:AE,2,FALSE))","v":""},null,{"$f":"IF(G5914=\"\",\"\",VLOOKUP(G5914,Insumos!G:H,2,FALSE))","v":""}]
[null,null,null,null,null,{"$f":"IF(E5915=\"\",\"\",VLOOKUP(E5915,Insumos!AD:AE,2,FALSE))","v":""},null,{"$f":"IF(G5915=\"\",\"\",VLOOKUP(G5915,Insumos!G:H,2,FALSE))","v":""}]
[null,null,null,null,null,{"$f":"IF(E5916=\"\",\"\",VLOOKUP(E5916,Insumos!AD:AE,2,FALSE))","v":""},null,{"$f":"IF(G5916=\"\",\"\",VLOOKUP(G5916,Insumos!G:H,2,FALSE))","v":""}]
[null,null,null,null,null,{"$f":"IF(E5917=\"\",\"\",VLOOKUP(E5917,Insumos!AD:AE,2,FALSE))","v":""},null,{"$f":"IF(G5917=\"\",\"\",VLOOKUP(G5917,Insumos!G:H,2,FALSE))","v":""}]
[null,null,null,null,null,{"$f":"IF(E5918=\"\",\"\",VLOOKUP(E5918,Insumos!AD:AE,2,FALSE))","v":""},null,{"$f":"IF(G5918=\"\",\"\",VLOOKUP(G5918,Insumos!G:H,2,FALSE))","v":""}]
[null,null,null,null,null,{"$f":"IF(E5919=\"\",\"\",VLOOKUP(E5919,Insumos!AD:AE,2,FALSE))","v":""},null,{"$f":"IF(G5919=\"\",\"\",VLOOKUP(G5919,Insumos!G:H,2,FALSE))","v":""}]
[null,null,null,null,null,{"$f":"IF(E5920=\"\",\"\",VLOOKUP(E5920,Insumos!AD:AE,2,FALSE))","v":""},null,{"$f":"IF(G5920=\"\",\"\",VLOOKUP(G5920,Insumos!G:H,2,FALSE))","v":""}]
[null,null,null,null,null,{"$f":"IF(E5921=\"\",\"\",VLOOKUP(E5921,Insumos!AD:AE,2,FALSE))","v":""},null,{"$f":"IF(G5921=\"\",\"\",VLOOKUP(G5921,Insumos!G:H,2,FALSE))","v":""}]
[null,null,null,null,null,{"$f":"IF(E5922=\"\",\"\",VLOOKUP(E5922,Insumos!AD:AE,2,FALSE))","v":""},null,{"$f":"IF(G5922=\"\",\"\",VLOOKUP(G5922,Insumos!G:H,2,FALSE))","v":""}]
[null,null,null,null,null,{"$f":"IF(E5923=\"\",\"\",VLOOKUP(E5923,Insumos!AD:AE,2,FALSE))","v":""},null,{"$f":"IF(G5923=\"\",\"\",VLOOKUP(G5923,Insumos!G:H,2,FALSE))","v":""}]
[null,null,null,null,null,{"$f":"IF(E5924=\"\",\"\",VLOOKUP(E5924,Insumos!AD:AE,2,FALSE))","v":""},null,{"$f":"IF(G5924=\"\",\"\",VLOOKUP(G5924,Insumos!G:H,2,FALSE))","v":""}]
[null,null,null,null,null,{"$f":"IF(E5925=\"\",\"\",VLOOKUP(E5925,Insumos!AD:AE,2,FALSE))","v":""},null,{"$f":"IF(G5925=\"\",\"\",VLOOKUP(G5925,Insumos!G:H,2,FALSE))","v":""}]
[null,null,null,null,null,{"$f":"IF(E5926=\"\",\"\",VLOOKUP(E5926,Insumos!AD:AE,2,FALSE))","v":""},null,{"$f":"IF(G5926=\"\",\"\",VLOOKUP(G5926,Insumos!G:H,2,FALSE))","v":""}]
[null,null,null,null,null,{"$f":"IF(E5927=\"\",\"\",VLOOKUP(E5927,Insumos!AD:AE,2,FALSE))","v":""},null,{"$f":"IF(G5927=\"\",\"\",VLOOKUP(G5927,Insumos!G:H,2,FALSE))","v":""}]
[null,null,null,null,null,{"$f":"IF(E5928=\"\",\"\",VLOOKUP(E5928,Insumos!AD:AE,2,FALSE))","v":""},null,{"$f":"IF(G5928=\"\",\"\",VLOOKUP(G5928,Insumos!G:H,2,FALSE))","v":""}]
[null,null,null,null,null,{"$f":"IF(E5929=\"\",\"\",VLOOKUP(E5929,Insumos!AD:AE,2,FALSE))","v":""},null,{"$f":"IF(G5929=\"\",\"\",VLOOKUP(G5929,Insumos!G:H,2,FALSE))","v":""}]
[null,null,null,null,null,{"$f":"IF(E5930=\"\",\"\",VLOOKUP(E5930,Insumos!AD:AE,2,FALSE))","v":""},null,{"$f":"IF(G5930=\"\",\"\",VLOOKUP(G5930,Insumos!G:H,2,FALSE))","v":""}]
[null,null,null,null,null,{"$f":"IF(E5931=\"\",\"\",VLOOKUP(E5931,Insumos!AD:AE,2,FALSE))","v":""},null,{"$f":"IF(G5931=\"\",\"\",VLOOKUP(G5931,Insumos!G:H,2,FALSE))","v":""}]
[null,null,null,null,null,{"$f":"IF(E5932=\"\",\"\",VLOOKUP(E5932,Insumos!AD:AE,2,FALSE))","v":""},null,{"$f":"IF(G5932=\"\",\"\",VLOOKUP(G5932,Insumos!G:H,2,FALSE))","v":""}]
[null,null,null,null,null,{"$f":"IF(E5933=\"\",\"\",VLOOKUP(E5933,Insumos!AD:AE,2,FALSE))","v":""},null,{"$f":"IF(G5933=\"\",\"\",VLOOKUP(G5933,Insumos!G:H,2,FALSE))","v":""}]
[null,null,null,null,null,{"$f":"IF(E5934=\"\",\"\",VLOOKUP(E5934,Insumos!AD:AE,2,FALSE))","v":""},null,{"$f":"IF(G5934=\"\",\"\",VLOOKUP(G5934,Insumos!G:H,2,FALSE))","v":""}]
[null,null,null,null,null,{"$f":"IF(E5935=\"\",\"\",VLOOKUP(E5935,Insumos!AD:AE,2,FALSE))","v":""},null,{"$f":"IF(G5935=\"\",\"\",VLOOKUP(G5935,Insumos!G:H,2,FALSE))","v":""}]
[null,null,null,null,null,{"$f":"IF(E5936=\"\",\"\",VLOOKUP(E5936,Insumos!AD:AE,2,FALSE))","v":""},null,{"$f":"IF(G5936=\"\",\"\",VLOOKUP(G5936,Insumos!G:H,2,FALSE))","v":""}]
[null,null,null,null,null,{"$f":"IF(E5937=\"\",\"\",VLOOKUP(E5937,Insumos!AD:AE,2,FALSE))","v":""},null,{"$f":"IF(G5937=\"\",\"\",VLOOKUP(G5937,Insumos!G:H,2,FALSE))","v":""}]
[null,null,null,null,null,{"$f":"IF(E5938=\"\",\"\",VLOOKUP(E5938,Insumos!AD:AE,2,FALSE))","v":""},null,{"$f":"IF(G5938=\"\",\"\",VLOOKUP(G5938,Insumos!G:H,2,FALSE))","v":""}]
[null,null,null,null,null,{"$f":"IF(E5939=\"\",\"\",VLOOKUP(E5939,Insumos!AD:AE,2,FALSE))","v":""},null,{"$f":"IF(G5939=\"\",\"\",VLOOKUP(G5939,Insumos!G:H,2,FALSE))","v":""}]
[null,null,null,null,null,{"$f":"IF(E5940=\"\",\"\",VLOOKUP(E5940,Insumos!AD:AE,2,FALSE))","v":""},null,{"$f":"IF(G5940=\"\",\"\",VLOOKUP(G5940,Insumos!G:H,2,FALSE))","v":""}]
[null,null,null,null,null,{"$f":"IF(E5941=\"\",\"\",VLOOKUP(E5941,Insumos!AD:AE,2,FALSE))","v":""},null,{"$f":"IF(G5941=\"\",\"\",VLOOKUP(G5941,Insumos!G:H,2,FALSE))","v":""}]
[null,null,null,null,null,{"$f":"IF(E5942=\"\",\"\",VLOOKUP(E5942,Insumos!AD:AE,2,FALSE))","v":""},null,{"$f":"IF(G5942=\"\",\"\",VLOOKUP(G5942,Insumos!G:H,2,FALSE))","v":""}]
[null,null,null,null,null,{"$f":"IF(E5943=\"\",\"\",VLOOKUP(E5943,Insumos!AD:AE,2,FALSE))","v":""},null,{"$f":"IF(G5943=\"\",\"\",VLOOKUP(G5943,Insumos!G:H,2,FALSE))","v":""}]
[null,null,null,null,null,{"$f":"IF(E5944=\"\",\"\",VLOOKUP(E5944,Insumos!AD:AE,2,FALSE))","v":""},null,{"$f":"IF(G5944=\"\",\"\",VLOOKUP(G5944,Insumos!G:H,2,FALSE))","v":""}]
[null,null,null,null,null,{"$f":"IF(E5945=\"\",\"\",VLOOKUP(E5945,Insumos!AD:AE,2,FALSE))","v":""},null,{"$f":"IF(G5945=\"\",\"\",VLOOKUP(G5945,Insumos!G:H,2,FALSE))","v":""}]
[null,null,null,null,null,{"$f":"IF(E5946=\"\",\"\",VLOOKUP(E5946,Insumos!AD:AE,2,FALSE))","v":""},null,{"$f":"IF(G5946=\"\",\"\",VLOOKUP(G5946,Insumos!G:H,2,FALSE))","v":""}]
[null,null,null,null,null,{"$f":"IF(E5947=\"\",\"\",VLOOKUP(E5947,Insumos!AD:AE,2,FALSE))","v":""},null,{"$f":"IF(G5947=\"\",\"\",VLOOKUP(G5947,Insumos!G:H,2,FALSE))","v":""}]
[null,null,null,null,null,{"$f":"IF(E5948=\"\",\"\",VLOOKUP(E5948,Insumos!AD:AE,2,FALSE))","v":""},null,{"$f":"IF(G5948=\"\",\"\",VLOOKUP(G5948,Insumos!G:H,2,FALSE))","v":""}]
[null,null,null,null,null,{"$f":"IF(E5949=\"\",\"\",VLOOKUP(E5949,Insumos!AD:AE,2,FALSE))","v":""},null,{"$f":"IF(G5949=\"\",\"\",VLOOKUP(G5949,Insumos!G:H,2,FALSE))","v":""}]
[null,null,null,null,null,{"$f":"IF(E5950=\"\",\"\",VLOOKUP(E5950,Insumos!AD:AE,2,FALSE))","v":""},null,{"$f":"IF(G5950=\"\",\"\",VLOOKUP(G5950,Insumos!G:H,2,FALSE))","v":""}]
[null,null,null,null,null,{"$f":"IF(E5951=\"\",\"\",VLOOKUP(E5951,Insumos!AD:AE,2,FALSE))","v":""},null,{"$f":"IF(G5951=\"\",\"\",VLOOKUP(G5951,Insumos!G:H,2,FALSE))","v":""}]
[null,null,null,null,null,{"$f":"IF(E5952=\"\",\"\",VLOOKUP(E5952,Insumos!AD:AE,2,FALSE))","v":""},null,{"$f":"IF(G5952=\"\",\"\",VLOOKUP(G5952,Insumos!G:H,2,FALSE))","v":""}]
[null,null,null,null,null,{"$f":"IF(E5953=\"\",\"\",VLOOKUP(E5953,Insumos!AD:AE,2,FALSE))","v":""},null,{"$f":"IF(G5953=\"\",\"\",VLOOKUP(G5953,Insumos!G:H,2,FALSE))","v":""}]
[null,null,null,null,null,{"$f":"IF(E5954=\"\",\"\",VLOOKUP(E5954,Insumos!AD:AE,2,FALSE))","v":""},null,{"$f":"IF(G5954=\"\",\"\",VLOOKUP(G5954,Insumos!G:H,2,FALSE))","v":""}]
[null,null,null,null,null,{"$f":"IF(E5955=\"\",\"\",VLOOKUP(E5955,Insumos!AD:AE,2,FALSE))","v":""},null,{"$f":"IF(G5955=\"\",\"\",VLOOKUP(G5955,Insumos!G:H,2,FALSE))","v":""}]
[null,null,null,null,null,{"$f":"IF(E5956=\"\",\"\",VLOOKUP(E5956,Insumos!AD:AE,2,FALSE))","v":""},null,{"$f":"IF(G5956=\"\",\"\",VLOOKUP(G5956,Insumos!G:H,2,FALSE))","v":""}]
[null,null,null,null,null,{"$f":"IF(E5957=\"\",\"\",VLOOKUP(E5957,Insumos!AD:AE,2,FALSE))","v":""},null,{"$f":"IF(G5957=\"\",\"\",VLOOKUP(G5957,Insumos!G:H,2,FALSE))","v":""}]
[null,null,null,null,null,{"$f":"IF(E5958=\"\",\"\",VLOOKUP(E5958,Insumos!AD:AE,2,FALSE))","v":""},null,{"$f":"IF(G5958=\"\",\"\",VLOOKUP(G5958,Insumos!G:H,2,FALSE))","v":""}]
[null,null,null,null,null,{"$f":"IF(E5959=\"\",\"\",VLOOKUP(E5959,Insumos!AD:AE,2,FALSE))","v":""},null,{"$f":"IF(G5959=\"\",\"\",VLOOKUP(G5959,Insumos!G:H,2,FALSE))","v":""}]
[null,null,null,null,null,{"$f":"IF(E5960=\"\",\"\",VLOOKUP(E5960,Insumos!AD:AE,2,FALSE))","v":""},null,{"$f":"IF(G5960=\"\",\"\",VLOOKUP(G5960,Insumos!G:H,2,FALSE))","v":""}]
[null,null,null,null,null,{"$f":"IF(E5961=\"\",\"\",VLOOKUP(E5961,Insumos!AD:AE,2,FALSE))","v":""},null,{"$f":"IF(G5961=\"\",\"\",VLOOKUP(G5961,Insumos!G:H,2,FALSE))","v":""}]
[null,null,null,null,null,{"$f":"IF(E5962=\"\",\"\",VLOOKUP(E5962,Insumos!AD:AE,2,FALSE))","v":""},null,{"$f":"IF(G5962=\"\",\"\",VLOOKUP(G5962,Insumos!G:H,2,FALSE))","v":""}]
[null,null,null,null,null,{"$f":"IF(E5963=\"\",\"\",VLOOKUP(E5963,Insumos!AD:AE,2,FALSE))","v":""},null,{"$f":"IF(G5963=\"\",\"\",VLOOKUP(G5963,Insumos!G:H,2,FALSE))","v":""}]
[null,null,null,null,null,{"$f":"IF(E5964=\"\",\"\",VLOOKUP(E5964,Insumos!AD:AE,2,FALSE))","v":""},null,{"$f":"IF(G5964=\"\",\"\",VLOOKUP(G5964,Insumos!G:H,2,FALSE))","v":""}]
[null,null,null,null,null,{"$f":"IF(E5965=\"\",\"\",VLOOKUP(E5965,Insumos!AD:AE,2,FALSE))","v":""},null,{"$f":"IF(G5965=\"\",\"\",VLOOKUP(G5965,Insumos!G:H,2,FALSE))","v":""}]
[null,null,null,null,null,{"$f":"IF(E5966=\"\",\"\",VLOOKUP(E5966,Insumos!AD:AE,2,FALSE))","v":""},null,{"$f":"IF(G5966=\"\",\"\",VLOOKUP(G5966,Insumos!G:H,2,FALSE))","v":""}]
[null,null,null,null,null,{"$f":"IF(E5967=\"\",\"\",VLOOKUP(E5967,Insumos!AD:AE,2,FALSE))","v":""},null,{"$f":"IF(G5967=\"\",\"\",VLOOKUP(G5967,Insumos!G:H,2,FALSE))","v":""}]
[null,null,null,null,null,{"$f":"IF(E5968=\"\",\"\",VLOOKUP(E5968,Insumos!AD:AE,2,FALSE))","v":""},null,{"$f":"IF(G5968=\"\",\"\",VLOOKUP(G5968,Insumos!G:H,2,FALSE))","v":""}]
[null,null,null,null,null,{"$f":"IF(E5969=\"\",\"\",VLOOKUP(E5969,Insumos!AD:AE,2,FALSE))","v":""},null,{"$f":"IF(G5969=\"\",\"\",VLOOKUP(G5969,Insumos!G:H,2,FALSE))","v":""}]
[null,null,null,null,null,{"$f":"IF(E5970=\"\",\"\",VLOOKUP(E5970,Insumos!AD:AE,2,FALSE))","v":""},null,{"$f":"IF(G5970=\"\",\"\",VLOOKUP(G5970,Insumos!G:H,2,FALSE))","v":""}]
[null,null,null,null,null,{"$f":"IF(E5971=\"\",\"\",VLOOKUP(E5971,Insumos!AD:AE,2,FALSE))","v":""},null,{"$f":"IF(G5971=\"\",\"\",VLOOKUP(G5971,Insumos!G:H,2,FALSE))","v":""}]
[null,null,null,null,null,{"$f":"IF(E5972=\"\",\"\",VLOOKUP(E5972,Insumos!AD:AE,2,FALSE))","v":""},null,{"$f":"IF(G5972=\"\",\"\",VLOOKUP(G5972,Insumos!G:H,2,FALSE))","v":""}]
[null,null,null,null,null,{"$f":"IF(E5973=\"\",\"\",VLOOKUP(E5973,Insumos!AD:AE,2,FALSE))","v":""},null,{"$f":"IF(G5973=\"\",\"\",VLOOKUP(G5973,Insumos!G:H,2,FALSE))","v":""}]
[null,null,null,null,null,{"$f":"IF(E5974=\"\",\"\",VLOOKUP(E5974,Insumos!AD:AE,2,FALSE))","v":""},null,{"$f":"IF(G5974=\"\",\"\",VLOOKUP(G5974,Insumos!G:H,2,FALSE))","v":""}]
[null,null,null,null,null,{"$f":"IF(E5975=\"\",\"\",VLOOKUP(E5975,Insumos!AD:AE,2,FALSE))","v":""},null,{"$f":"IF(G5975=\"\",\"\",VLOOKUP(G5975,Insumos!G:H,2,FALSE))","v":""}]
[null,null,null,null,null,{"$f":"IF(E5976=\"\",\"\",VLOOKUP(E5976,Insumos!AD:AE,2,FALSE))","v":""},null,{"$f":"IF(G5976=\"\",\"\",VLOOKUP(G5976,Insumos!G:H,2,FALSE))","v":""}]
[null,null,null,null,null,{"$f":"IF(E5977=\"\",\"\",VLOOKUP(E5977,Insumos!AD:AE,2,FALSE))","v":""},null,{"$f":"IF(G5977=\"\",\"\",VLOOKUP(G5977,Insumos!G:H,2,FALSE))","v":""}]
[null,null,null,null,null,{"$f":"IF(E5978=\"\",\"\",VLOOKUP(E5978,Insumos!AD:AE,2,FALSE))","v":""},null,{"$f":"IF(G5978=\"\",\"\",VLOOKUP(G5978,Insumos!G:H,2,FALSE))","v":""}]
[null,null,null,null,null,{"$f":"IF(E5979=\"\",\"\",VLOOKUP(E5979,Insumos!AD:AE,2,FALSE))","v":""},null,{"$f":"IF(G5979=\"\",\"\",VLOOKUP(G5979,Insumos!G:H,2,FALSE))","v":""}]
[null,null,null,null,null,{"$f":"IF(E5980=\"\",\"\",VLOOKUP(E5980,Insumos!AD:AE,2,FALSE))","v":""},null,{"$f":"IF(G5980=\"\",\"\",VLOOKUP(G5980,Insumos!G:H,2,FALSE))","v":""}]
[null,null,null,null,null,{"$f":"IF(E5981=\"\",\"\",VLOOKUP(E5981,Insumos!AD:AE,2,FALSE))","v":""},null,{"$f":"IF(G5981=\"\",\"\",VLOOKUP(G5981,Insumos!G:H,2,FALSE))","v":""}]
[null,null,null,null,null,{"$f":"IF(E5982=\"\",\"\",VLOOKUP(E5982,Insumos!AD:AE,2,FALSE))","v":""},null,{"$f":"IF(G5982=\"\",\"\",VLOOKUP(G5982,Insumos!G:H,2,FALSE))","v":""}]
[null,null,null,null,null,{"$f":"IF(E5983=\"\",\"\",VLOOKUP(E5983,Insumos!AD:AE,2,FALSE))","v":""},null,{"$f":"IF(G5983=\"\",\"\",VLOOKUP(G5983,Insumos!G:H,2,FALSE))","v":""}]
[null,null,null,null,null,{"$f":"IF(E5984=\"\",\"\",VLOOKUP(E5984,Insumos!AD:AE,2,FALSE))","v":""},null,{"$f":"IF(G5984=\"\",\"\",VLOOKUP(G5984,Insumos!G:H,2,FALSE))","v":""}]
[null,null,null,null,null,{"$f":"IF(E5985=\"\",\"\",VLOOKUP(E5985,Insumos!AD:AE,2,FALSE))","v":""},null,{"$f":"IF(G5985=\"\",\"\",VLOOKUP(G5985,Insumos!G:H,2,FALSE))","v":""}]
[null,null,null,null,null,{"$f":"IF(E5986=\"\",\"\",VLOOKUP(E5986,Insumos!AD:AE,2,FALSE))","v":""},null,{"$f":"IF(G5986=\"\",\"\",VLOOKUP(G5986,Insumos!G:H,2,FALSE))","v":""}]
[null,null,null,null,null,{"$f":"IF(E5987=\"\",\"\",VLOOKUP(E5987,Insumos!AD:AE,2,FALSE))","v":""},null,{"$f":"IF(G5987=\"\",\"\",VLOOKUP(G5987,Insumos!G:H,2,FALSE))","v":""}]
[null,null,null,null,null,{"$f":"IF(E5988=\"\",\"\",VLOOKUP(E5988,Insumos!AD:AE,2,FALSE))","v":""},null,{"$f":"IF(G5988=\"\",\"\",VLOOKUP(G5988,Insumos!G:H,2,FALSE))","v":""}]
[null,null,null,null,null,{"$f":"IF(E5989=\"\",\"\",VLOOKUP(E5989,Insumos!AD:AE,2,FALSE))","v":""},null,{"$f":"IF(G5989=\"\",\"\",VLOOKUP(G5989,Insumos!G:H,2,FALSE))","v":""}]
[null,null,null,null,null,{"$f":"IF(E5990=\"\",\"\",VLOOKUP(E5990,Insumos!AD:AE,2,FALSE))","v":""},null,{"$f":"IF(G5990=\"\",\"\",VLOOKUP(G5990,Insumos!G:H,2,FALSE))","v":""}]
[null,null,null,null,null,{"$f":"IF(E5991=\"\",\"\",VLOOKUP(E5991,Insumos!AD:AE,2,FALSE))","v":""},null,{"$f":"IF(G5991=\"\",\"\",VLOOKUP(G5991,Insumos!G:H,2,FALSE))","v":""}]
[null,null,null,null,null,{"$f":"IF(E5992=\"\",\"\",VLOOKUP(E5992,Insumos!AD:AE,2,FALSE))","v":""},null,{"$f":"IF(G5992=\"\",\"\",VLOOKUP(G5992,Insumos!G:H,2,FALSE))","v":""}]
[null,null,null,null,null,{"$f":"IF(E5993=\"\",\"\",VLOOKUP(E5993,Insumos!AD:AE,2,FALSE))","v":""},null,{"$f":"IF(G5993=\"\",\"\",VLOOKUP(G5993,Insumos!G:H,2,FALSE))","v":""}]
[null,null,null,null,null,{"$f":"IF(E5994=\"\",\"\",VLOOKUP(E5994,Insumos!AD:AE,2,FALSE))","v":""},null,{"$f":"IF(G5994=\"\",\"\",VLOOKUP(G5994,Insumos!G:H,2,FALSE))","v":""}]
[null,null,null,null,null,{"$f":"IF(E5995=\"\",\"\",VLOOKUP(E5995,Insumos!AD:AE,2,FALSE))","v":""},null,{"$f":"IF(G5995=\"\",\"\",VLOOKUP(G5995,Insumos!G:H,2,FALSE))","v":""}]
[null,null,null,null,null,{"$f":"IF(E5996=\"\",\"\",VLOOKUP(E5996,Insumos!AD:AE,2,FALSE))","v":""},null,{"$f":"IF(G5996=\"\",\"\",VLOOKUP(G5996,Insumos!G:H,2,FALSE))","v":""}]
[null,null,null,null,null,{"$f":"IF(E5997=\"\",\"\",VLOOKUP(E5997,Insumos!AD:AE,2,FALSE))","v":""},null,{"$f":"IF(G5997=\"\",\"\",VLOOKUP(G5997,Insumos!G:H,2,FALSE))","v":""}]
[null,null,null,null,null,{"$f":"IF(E5998=\"\",\"\",VLOOKUP(E5998,Insumos!AD:AE,2,FALSE))","v":""},null,{"$f":"IF(G5998=\"\",\"\",VLOOKUP(G5998,Insumos!G:H,2,FALSE))","v":""}]
[null,null,null,null,null,{"$f":"IF(E5999=\"\",\"\",VLOOKUP(E5999,Insumos!AD:AE,2,FALSE))","v":""},null,{"$f":"IF(G5999=\"\",\"\",VLOOKUP(G5999,Insumos!G:H,2,FALSE))","v":""}]
[null,null,null,null,null,{"$f":"IF(E6000=\"\",\"\",VLOOKUP(E6000,Insumos!AD:AE,2,FALSE))","v":""},null,{"$f":"IF(G6000=\"\",\"\",VLOOKUP(G6000,Insumos!G:H,2,FALSE))","v":""}]
[null,null,null,null,null,{"$f":"IF(E6001=\"\",\"\",VLOOKUP(E6001,Insumos!AD:AE,2,FALSE))","v":""},null,{"$f":"IF(G6001=\"\",\"\",VLOOKUP(G6001,Insumos!G:H,2,FALSE))","v":""}]
[null,null,null,null,null,{"$f":"IF(E6002=\"\",\"\",VLOOKUP(E6002,Insumos!AD:AE,2,FALSE))","v":""},null,{"$f":"IF(G6002=\"\",\"\",VLOOKUP(G6002,Insumos!G:H,2,FALSE))","v":""}]
[null,null,null,null,null,{"$f":"IF(E6003=\"\",\"\",VLOOKUP(E6003,Insumos!AD:AE,2,FALSE))","v":""},null,{"$f":"IF(G6003=\"\",\"\",VLOOKUP(G6003,Insumos!G:H,2,FALSE))","v":""}]
[null,null,null,null,null,{"$f":"IF(E6004=\"\",\"\",VLOOKUP(E6004,Insumos!AD:AE,2,FALSE))","v":""},null,{"$f":"IF(G6004=\"\",\"\",VLOOKUP(G6004,Insumos!G:H,2,FALSE))","v":""}]
[null,null,null,null,null,{"$f":"IF(E6005=\"\",\"\",VLOOKUP(E6005,Insumos!AD:AE,2,FALSE))","v":""},null,{"$f":"IF(G6005=\"\",\"\",VLOOKUP(G6005,Insumos!G:H,2,FALSE))","v":""}]
[null,null,null,null,null,{"$f":"IF(E6006=\"\",\"\",VLOOKUP(E6006,Insumos!AD:AE,2,FALSE))","v":""},null,{"$f":"IF(G6006=\"\",\"\",VLOOKUP(G6006,Insumos!G:H,2,FALSE))","v":""}]
[null,null,null,null,null,{"$f":"IF(E6007=\"\",\"\",VLOOKUP(E6007,Insumos!AD:AE,2,FALSE))","v":""},null,{"$f":"IF(G6007=\"\",\"\",VLOOKUP(G6007,Insumos!G:H,2,FALSE))","v":""}]
[null,null,null,null,null,{"$f":"IF(E6008=\"\",\"\",VLOOKUP(E6008,Insumos!AD:AE,2,FALSE))","v":""},null,{"$f":"IF(G6008=\"\",\"\",VLOOKUP(G6008,Insumos!G:H,2,FALSE))","v":""}]
[null,null,null,null,null,{"$f":"IF(E6009=\"\",\"\",VLOOKUP(E6009,Insumos!AD:AE,2,FALSE))","v":""},null,{"$f":"IF(G6009=\"\",\"\",VLOOKUP(G6009,Insumos!G:H,2,FALSE))","v":""}]
[null,null,null,null,null,{"$f":"IF(E6010=\"\",\"\",VLOOKUP(E6010,Insumos!AD:AE,2,FALSE))","v":""},null,{"$f":"IF(G6010=\"\",\"\",VLOOKUP(G6010,Insumos!G:H,2,FALSE))","v":""}]
[null,null,null,null,null,{"$f":"IF(E6011=\"\",\"\",VLOOKUP(E6011,Insumos!AD:AE,2,FALSE))","v":""},null,{"$f":"IF(G6011=\"\",\"\",VLOOKUP(G6011,Insumos!G:H,2,FALSE))","v":""}]
[null,null,null,null,null,{"$f":"IF(E6012=\"\",\"\",VLOOKUP(E6012,Insumos!AD:AE,2,FALSE))","v":""},null,{"$f":"IF(G6012=\"\",\"\",VLOOKUP(G6012,Insumos!G:H,2,FALSE))","v":""}]
[null,null,null,null,null,{"$f":"IF(E6013=\"\",\"\",VLOOKUP(E6013,Insumos!AD:AE,2,FALSE))","v":""},null,{"$f":"IF(G6013=\"\",\"\",VLOOKUP(G6013,Insumos!G:H,2,FALSE))","v":""}]
[null,null,null,null,null,{"$f":"IF(E6014=\"\",\"\",VLOOKUP(E6014,Insumos!AD:AE,2,FALSE))","v":""},null,{"$f":"IF(G6014=\"\",\"\",VLOOKUP(G6014,Insumos!G:H,2,FALSE))","v":""}]
[null,null,null,null,null,{"$f":"IF(E6015=\"\",\"\",VLOOKUP(E6015,Insumos!AD:AE,2,FALSE))","v":""},null,{"$f":"IF(G6015=\"\",\"\",VLOOKUP(G6015,Insumos!G:H,2,FALSE))","v":""}]
[null,null,null,null,null,{"$f":"IF(E6016=\"\",\"\",VLOOKUP(E6016,Insumos!AD:AE,2,FALSE))","v":""},null,{"$f":"IF(G6016=\"\",\"\",VLOOKUP(G6016,Insumos!G:H,2,FALSE))","v":""}]
[null,null,null,null,null,{"$f":"IF(E6017=\"\",\"\",VLOOKUP(E6017,Insumos!AD:AE,2,FALSE))","v":""},null,{"$f":"IF(G6017=\"\",\"\",VLOOKUP(G6017,Insumos!G:H,2,FALSE))","v":""}]
[null,null,null,null,null,{"$f":"IF(E6018=\"\",\"\",VLOOKUP(E6018,Insumos!AD:AE,2,FALSE))","v":""},null,{"$f":"IF(G6018=\"\",\"\",VLOOKUP(G6018,Insumos!G:H,2,FALSE))","v":""}]
[null,null,null,null,null,{"$f":"IF(E6019=\"\",\"\",VLOOKUP(E6019,Insumos!AD:AE,2,FALSE))","v":""},null,{"$f":"IF(G6019=\"\",\"\",VLOOKUP(G6019,Insumos!G:H,2,FALSE))","v":""}]
[null,null,null,null,null,{"$f":"IF(E6020=\"\",\"\",VLOOKUP(E6020,Insumos!AD:AE,2,FALSE))","v":""},null,{"$f":"IF(G6020=\"\",\"\",VLOOKUP(G6020,Insumos!G:H,2,FALSE))","v":""}]
[null,null,null,null,null,{"$f":"IF(E6021=\"\",\"\",VLOOKUP(E6021,Insumos!AD:AE,2,FALSE))","v":""},null,{"$f":"IF(G6021=\"\",\"\",VLOOKUP(G6021,Insumos!G:H,2,FALSE))","v":""}]
[null,null,null,null,null,{"$f":"IF(E6022=\"\",\"\",VLOOKUP(E6022,Insumos!AD:AE,2,FALSE))","v":""},null,{"$f":"IF(G6022=\"\",\"\",VLOOKUP(G6022,Insumos!G:H,2,FALSE))","v":""}]
[null,null,null,null,null,{"$f":"IF(E6023=\"\",\"\",VLOOKUP(E6023,Insumos!AD:AE,2,FALSE))","v":""},null,{"$f":"IF(G6023=\"\",\"\",VLOOKUP(G6023,Insumos!G:H,2,FALSE))","v":""}]
[null,null,null,null,null,{"$f":"IF(E6024=\"\",\"\",VLOOKUP(E6024,Insumos!AD:AE,2,FALSE))","v":""},null,{"$f":"IF(G6024=\"\",\"\",VLOOKUP(G6024,Insumos!G:H,2,FALSE))","v":""}]
[null,null,null,null,null,{"$f":"IF(E6025=\"\",\"\",VLOOKUP(E6025,Insumos!AD:AE,2,FALSE))","v":""},null,{"$f":"IF(G6025=\"\",\"\",VLOOKUP(G6025,Insumos!G:H,2,FALSE))","v":""}]
[null,null,null,null,null,{"$f":"IF(E6026=\"\",\"\",VLOOKUP(E6026,Insumos!AD:AE,2,FALSE))","v":""},null,{"$f":"IF(G6026=\"\",\"\",VLOOKUP(G6026,Insumos!G:H,2,FALSE))","v":""}]
[null,null,null,null,null,{"$f":"IF(E6027=\"\",\"\",VLOOKUP(E6027,Insumos!AD:AE,2,FALSE))","v":""},null,{"$f":"IF(G6027=\"\",\"\",VLOOKUP(G6027,Insumos!G:H,2,FALSE))","v":""}]
[null,null,null,null,null,{"$f":"IF(E6028=\"\",\"\",VLOOKUP(E6028,Insumos!AD:AE,2,FALSE))","v":""},null,{"$f":"IF(G6028=\"\",\"\",VLOOKUP(G6028,Insumos!G:H,2,FALSE))","v":""}]
[null,null,null,null,null,{"$f":"IF(E6029=\"\",\"\",VLOOKUP(E6029,Insumos!AD:AE,2,FALSE))","v":""},null,{"$f":"IF(G6029=\"\",\"\",VLOOKUP(G6029,Insumos!G:H,2,FALSE))","v":""}]
[null,null,null,null,null,{"$f":"IF(E6030=\"\",\"\",VLOOKUP(E6030,Insumos!AD:AE,2,FALSE))","v":""},null,{"$f":"IF(G6030=\"\",\"\",VLOOKUP(G6030,Insumos!G:H,2,FALSE))","v":""}]
[null,null,null,null,null,{"$f":"IF(E6031=\"\",\"\",VLOOKUP(E6031,Insumos!AD:AE,2,FALSE))","v":""},null,{"$f":"IF(G6031=\"\",\"\",VLOOKUP(G6031,Insumos!G:H,2,FALSE))","v":""}]
[null,null,null,null,null,{"$f":"IF(E6032=\"\",\"\",VLOOKUP(E6032,Insumos!AD:AE,2,FALSE))","v":""},null,{"$f":"IF(G6032=\"\",\"\",VLOOKUP(G6032,Insumos!G:H,2,FALSE))","v":""}]
[null,null,null,null,null,{"$f":"IF(E6033=\"\",\"\",VLOOKUP(E6033,Insumos!AD:AE,2,FALSE))","v":""},null,{"$f":"IF(G6033=\"\",\"\",VLOOKUP(G6033,Insumos!G:H,2,FALSE))","v":""}]
[null,null,null,null,null,{"$f":"IF(E6034=\"\",\"\",VLOOKUP(E6034,Insumos!AD:AE,2,FALSE))","v":""},null,{"$f":"IF(G6034=\"\",\"\",VLOOKUP(G6034,Insumos!G:H,2,FALSE))","v":""}]
[null,null,null,null,null,{"$f":"IF(E6035=\"\",\"\",VLOOKUP(E6035,Insumos!AD:AE,2,FALSE))","v":""},null,{"$f":"IF(G6035=\"\",\"\",VLOOKUP(G6035,Insumos!G:H,2,FALSE))","v":""}]
[null,null,null,null,null,{"$f":"IF(E6036=\"\",\"\",VLOOKUP(E6036,Insumos!AD:AE,2,FALSE))","v":""},null,{"$f":"IF(G6036=\"\",\"\",VLOOKUP(G6036,Insumos!G:H,2,FALSE))","v":""}]
[null,null,null,null,null,{"$f":"IF(E6037=\"\",\"\",VLOOKUP(E6037,Insumos!AD:AE,2,FALSE))","v":""},null,{"$f":"IF(G6037=\"\",\"\",VLOOKUP(G6037,Insumos!G:H,2,FALSE))","v":""}]
[null,null,null,null,null,{"$f":"IF(E6038=\"\",\"\",VLOOKUP(E6038,Insumos!AD:AE,2,FALSE))","v":""},null,{"$f":"IF(G6038=\"\",\"\",VLOOKUP(G6038,Insumos!G:H,2,FALSE))","v":""}]
[null,null,null,null,null,{"$f":"IF(E6039=\"\",\"\",VLOOKUP(E6039,Insumos!AD:AE,2,FALSE))","v":""},null,{"$f":"IF(G6039=\"\",\"\",VLOOKUP(G6039,Insumos!G:H,2,FALSE))","v":""}]
[null,null,null,null,null,{"$f":"IF(E6040=\"\",\"\",VLOOKUP(E6040,Insumos!AD:AE,2,FALSE))","v":""},null,{"$f":"IF(G6040=\"\",\"\",VLOOKUP(G6040,Insumos!G:H,2,FALSE))","v":""}]
[null,null,null,null,null,{"$f":"IF(E6041=\"\",\"\",VLOOKUP(E6041,Insumos!AD:AE,2,FALSE))","v":""},null,{"$f":"IF(G6041=\"\",\"\",VLOOKUP(G6041,Insumos!G:H,2,FALSE))","v":""}]
[null,null,null,null,null,{"$f":"IF(E6042=\"\",\"\",VLOOKUP(E6042,Insumos!AD:AE,2,FALSE))","v":""},null,{"$f":"IF(G6042=\"\",\"\",VLOOKUP(G6042,Insumos!G:H,2,FALSE))","v":""}]
[null,null,null,null,null,{"$f":"IF(E6043=\"\",\"\",VLOOKUP(E6043,Insumos!AD:AE,2,FALSE))","v":""},null,{"$f":"IF(G6043=\"\",\"\",VLOOKUP(G6043,Insumos!G:H,2,FALSE))","v":""}]
[null,null,null,null,null,{"$f":"IF(E6044=\"\",\"\",VLOOKUP(E6044,Insumos!AD:AE,2,FALSE))","v":""},null,{"$f":"IF(G6044=\"\",\"\",VLOOKUP(G6044,Insumos!G:H,2,FALSE))","v":""}]
[null,null,null,null,null,{"$f":"IF(E6045=\"\",\"\",VLOOKUP(E6045,Insumos!AD:AE,2,FALSE))","v":""},null,{"$f":"IF(G6045=\"\",\"\",VLOOKUP(G6045,Insumos!G:H,2,FALSE))","v":""}]
[null,null,null,null,null,{"$f":"IF(E6046=\"\",\"\",VLOOKUP(E6046,Insumos!AD:AE,2,FALSE))","v":""},null,{"$f":"IF(G6046=\"\",\"\",VLOOKUP(G6046,Insumos!G:H,2,FALSE))","v":""}]
[null,null,null,null,null,{"$f":"IF(E6047=\"\",\"\",VLOOKUP(E6047,Insumos!AD:AE,2,FALSE))","v":""},null,{"$f":"IF(G6047=\"\",\"\",VLOOKUP(G6047,Insumos!G:H,2,FALSE))","v":""}]
[null,null,null,null,null,{"$f":"IF(E6048=\"\",\"\",VLOOKUP(E6048,Insumos!AD:AE,2,FALSE))","v":""},null,{"$f":"IF(G6048=\"\",\"\",VLOOKUP(G6048,Insumos!G:H,2,FALSE))","v":""}]
[null,null,null,null,null,{"$f":"IF(E6049=\"\",\"\",VLOOKUP(E6049,Insumos!AD:AE,2,FALSE))","v":""},null,{"$f":"IF(G6049=\"\",\"\",VLOOKUP(G6049,Insumos!G:H,2,FALSE))","v":""}]
[null,null,null,null,null,{"$f":"IF(E6050=\"\",\"\",VLOOKUP(E6050,Insumos!AD:AE,2,FALSE))","v":""},null,{"$f":"IF(G6050=\"\",\"\",VLOOKUP(G6050,Insumos!G:H,2,FALSE))","v":""}]
[null,null,null,null,null,{"$f":"IF(E6051=\"\",\"\",VLOOKUP(E6051,Insumos!AD:AE,2,FALSE))","v":""},null,{"$f":"IF(G6051=\"\",\"\",VLOOKUP(G6051,Insumos!G:H,2,FALSE))","v":""}]
[null,null,null,null,null,{"$f":"IF(E6052=\"\",\"\",VLOOKUP(E6052,Insumos!AD:AE,2,FALSE))","v":""},null,{"$f":"IF(G6052=\"\",\"\",VLOOKUP(G6052,Insumos!G:H,2,FALSE))","v":""}]
[null,null,null,null,null,{"$f":"IF(E6053=\"\",\"\",VLOOKUP(E6053,Insumos!AD:AE,2,FALSE))","v":""},null,{"$f":"IF(G6053=\"\",\"\",VLOOKUP(G6053,Insumos!G:H,2,FALSE))","v":""}]
[null,null,null,null,null,{"$f":"IF(E6054=\"\",\"\",VLOOKUP(E6054,Insumos!AD:AE,2,FALSE))","v":""},null,{"$f":"IF(G6054=\"\",\"\",VLOOKUP(G6054,Insumos!G:H,2,FALSE))","v":""}]
[null,null,null,null,null,{"$f":"IF(E6055=\"\",\"\",VLOOKUP(E6055,Insumos!AD:AE,2,FALSE))","v":""},null,{"$f":"IF(G6055=\"\",\"\",VLOOKUP(G6055,Insumos!G:H,2,FALSE))","v":""}]
[null,null,null,null,null,{"$f":"IF(E6056=\"\",\"\",VLOOKUP(E6056,Insumos!AD:AE,2,FALSE))","v":""},null,{"$f":"IF(G6056=\"\",\"\",VLOOKUP(G6056,Insumos!G:H,2,FALSE))","v":""}]
[null,null,null,null,null,{"$f":"IF(E6057=\"\",\"\",VLOOKUP(E6057,Insumos!AD:AE,2,FALSE))","v":""},null,{"$f":"IF(G6057=\"\",\"\",VLOOKUP(G6057,Insumos!G:H,2,FALSE))","v":""}]
[null,null,null,null,null,{"$f":"IF(E6058=\"\",\"\",VLOOKUP(E6058,Insumos!AD:AE,2,FALSE))","v":""},null,{"$f":"IF(G6058=\"\",\"\",VLOOKUP(G6058,Insumos!G:H,2,FALSE))","v":""}]
[null,null,null,null,null,{"$f":"IF(E6059=\"\",\"\",VLOOKUP(E6059,Insumos!AD:AE,2,FALSE))","v":""},null,{"$f":"IF(G6059=\"\",\"\",VLOOKUP(G6059,Insumos!G:H,2,FALSE))","v":""}]
[null,null,null,null,null,{"$f":"IF(E6060=\"\",\"\",VLOOKUP(E6060,Insumos!AD:AE,2,FALSE))","v":""},null,{"$f":"IF(G6060=\"\",\"\",VLOOKUP(G6060,Insumos!G:H,2,FALSE))","v":""}]
[null,null,null,null,null,{"$f":"IF(E6061=\"\",\"\",VLOOKUP(E6061,Insumos!AD:AE,2,FALSE))","v":""},null,{"$f":"IF(G6061=\"\",\"\",VLOOKUP(G6061,Insumos!G:H,2,FALSE))","v":""}]
[null,null,null,null,null,{"$f":"IF(E6062=\"\",\"\",VLOOKUP(E6062,Insumos!AD:AE,2,FALSE))","v":""},null,{"$f":"IF(G6062=\"\",\"\",VLOOKUP(G6062,Insumos!G:H,2,FALSE))","v":""}]
[null,null,null,null,null,{"$f":"IF(E6063=\"\",\"\",VLOOKUP(E6063,Insumos!AD:AE,2,FALSE))","v":""},null,{"$f":"IF(G6063=\"\",\"\",VLOOKUP(G6063,Insumos!G:H,2,FALSE))","v":""}]
[null,null,null,null,null,{"$f":"IF(E6064=\"\",\"\",VLOOKUP(E6064,Insumos!AD:AE,2,FALSE))","v":""},null,{"$f":"IF(G6064=\"\",\"\",VLOOKUP(G6064,Insumos!G:H,2,FALSE))","v":""}]
[null,null,null,null,null,{"$f":"IF(E6065=\"\",\"\",VLOOKUP(E6065,Insumos!AD:AE,2,FALSE))","v":""},null,{"$f":"IF(G6065=\"\",\"\",VLOOKUP(G6065,Insumos!G:H,2,FALSE))","v":""}]
[null,null,null,null,null,{"$f":"IF(E6066=\"\",\"\",VLOOKUP(E6066,Insumos!AD:AE,2,FALSE))","v":""},null,{"$f":"IF(G6066=\"\",\"\",VLOOKUP(G6066,Insumos!G:H,2,FALSE))","v":""}]
[null,null,null,null,null,{"$f":"IF(E6067=\"\",\"\",VLOOKUP(E6067,Insumos!AD:AE,2,FALSE))","v":""},null,{"$f":"IF(G6067=\"\",\"\",VLOOKUP(G6067,Insumos!G:H,2,FALSE))","v":""}]
[null,null,null,null,null,{"$f":"IF(E6068=\"\",\"\",VLOOKUP(E6068,Insumos!AD:AE,2,FALSE))","v":""},null,{"$f":"IF(G6068=\"\",\"\",VLOOKUP(G6068,Insumos!G:H,2,FALSE))","v":""}]
[null,null,null,null,null,{"$f":"IF(E6069=\"\",\"\",VLOOKUP(E6069,Insumos!AD:AE,2,FALSE))","v":""},null,{"$f":"IF(G6069=\"\",\"\",VLOOKUP(G6069,Insumos!G:H,2,FALSE))","v":""}]
[null,null,null,null,null,{"$f":"IF(E6070=\"\",\"\",VLOOKUP(E6070,Insumos!AD:AE,2,FALSE))","v":""},null,{"$f":"IF(G6070=\"\",\"\",VLOOKUP(G6070,Insumos!G:H,2,FALSE))","v":""}]
[null,null,null,null,null,{"$f":"IF(E6071=\"\",\"\",VLOOKUP(E6071,Insumos!AD:AE,2,FALSE))","v":""},null,{"$f":"IF(G6071=\"\",\"\",VLOOKUP(G6071,Insumos!G:H,2,FALSE))","v":""}]
[null,null,null,null,null,{"$f":"IF(E6072=\"\",\"\",VLOOKUP(E6072,Insumos!AD:AE,2,FALSE))","v":""},null,{"$f":"IF(G6072=\"\",\"\",VLOOKUP(G6072,Insumos!G:H,2,FALSE))","v":""}]
[null,null,null,null,null,{"$f":"IF(E6073=\"\",\"\",VLOOKUP(E6073,Insumos!AD:AE,2,FALSE))","v":""},null,{"$f":"IF(G6073=\"\",\"\",VLOOKUP(G6073,Insumos!G:H,2,FALSE))","v":""}]
[null,null,null,null,null,{"$f":"IF(E6074=\"\",\"\",VLOOKUP(E6074,Insumos!AD:AE,2,FALSE))","v":""},null,{"$f":"IF(G6074=\"\",\"\",VLOOKUP(G6074,Insumos!G:H,2,FALSE))","v":""}]
[null,null,null,null,null,{"$f":"IF(E6075=\"\",\"\",VLOOKUP(E6075,Insumos!AD:AE,2,FALSE))","v":""},null,{"$f":"IF(G6075=\"\",\"\",VLOOKUP(G6075,Insumos!G:H,2,FALSE))","v":""}]
[null,null,null,null,null,{"$f":"IF(E6076=\"\",\"\",VLOOKUP(E6076,Insumos!AD:AE,2,FALSE))","v":""},null,{"$f":"IF(G6076=\"\",\"\",VLOOKUP(G6076,Insumos!G:H,2,FALSE))","v":""}]
[null,null,null,null,null,{"$f":"IF(E6077=\"\",\"\",VLOOKUP(E6077,Insumos!AD:AE,2,FALSE))","v":""},null,{"$f":"IF(G6077=\"\",\"\",VLOOKUP(G6077,Insumos!G:H,2,FALSE))","v":""}]
[null,null,null,null,null,{"$f":"IF(E6078=\"\",\"\",VLOOKUP(E6078,Insumos!AD:AE,2,FALSE))","v":""},null,{"$f":"IF(G6078=\"\",\"\",VLOOKUP(G6078,Insumos!G:H,2,FALSE))","v":""}]
[null,null,null,null,null,{"$f":"IF(E6079=\"\",\"\",VLOOKUP(E6079,Insumos!AD:AE,2,FALSE))","v":""},null,{"$f":"IF(G6079=\"\",\"\",VLOOKUP(G6079,Insumos!G:H,2,FALSE))","v":""}]
[null,null,null,null,null,{"$f":"IF(E6080=\"\",\"\",VLOOKUP(E6080,Insumos!AD:AE,2,FALSE))","v":""},null,{"$f":"IF(G6080=\"\",\"\",VLOOKUP(G6080,Insumos!G:H,2,FALSE))","v":""}]
[null,null,null,null,null,{"$f":"IF(E6081=\"\",\"\",VLOOKUP(E6081,Insumos!AD:AE,2,FALSE))","v":""},null,{"$f":"IF(G6081=\"\",\"\",VLOOKUP(G6081,Insumos!G:H,2,FALSE))","v":""}]
[null,null,null,null,null,{"$f":"IF(E6082=\"\",\"\",VLOOKUP(E6082,Insumos!AD:AE,2,FALSE))","v":""},null,{"$f":"IF(G6082=\"\",\"\",VLOOKUP(G6082,Insumos!G:H,2,FALSE))","v":""}]
[null,null,null,null,null,{"$f":"IF(E6083=\"\",\"\",VLOOKUP(E6083,Insumos!AD:AE,2,FALSE))","v":""},null,{"$f":"IF(G6083=\"\",\"\",VLOOKUP(G6083,Insumos!G:H,2,FALSE))","v":""}]
[null,null,null,null,null,{"$f":"IF(E6084=\"\",\"\",VLOOKUP(E6084,Insumos!AD:AE,2,FALSE))","v":""},null,{"$f":"IF(G6084=\"\",\"\",VLOOKUP(G6084,Insumos!G:H,2,FALSE))","v":""}]
[null,null,null,null,null,{"$f":"IF(E6085=\"\",\"\",VLOOKUP(E6085,Insumos!AD:AE,2,FALSE))","v":""},null,{"$f":"IF(G6085=\"\",\"\",VLOOKUP(G6085,Insumos!G:H,2,FALSE))","v":""}]
[null,null,null,null,null,{"$f":"IF(E6086=\"\",\"\",VLOOKUP(E6086,Insumos!AD:AE,2,FALSE))","v":""},null,{"$f":"IF(G6086=\"\",\"\",VLOOKUP(G6086,Insumos!G:H,2,FALSE))","v":""}]
[null,null,null,null,null,{"$f":"IF(E6087=\"\",\"\",VLOOKUP(E6087,Insumos!AD:AE,2,FALSE))","v":""},null,{"$f":"IF(G6087=\"\",\"\",VLOOKUP(G6087,Insumos!G:H,2,FALSE))","v":""}]
[null,null,null,null,null,{"$f":"IF(E6088=\"\",\"\",VLOOKUP(E6088,Insumos!AD:AE,2,FALSE))","v":""},null,{"$f":"IF(G6088=\"\",\"\",VLOOKUP(G6088,Insumos!G:H,2,FALSE))","v":""}]
[null,null,null,null,null,{"$f":"IF(E6089=\"\",\"\",VLOOKUP(E6089,Insumos!AD:AE,2,FALSE))","v":""},null,{"$f":"IF(G6089=\"\",\"\",VLOOKUP(G6089,Insumos!G:H,2,FALSE))","v":""}]
[null,null,null,null,null,{"$f":"IF(E6090=\"\",\"\",VLOOKUP(E6090,Insumos!AD:AE,2,FALSE))","v":""},null,{"$f":"IF(G6090=\"\",\"\",VLOOKUP(G6090,Insumos!G:H,2,FALSE))","v":""}]
[null,null,null,null,null,{"$f":"IF(E6091=\"\",\"\",VLOOKUP(E6091,Insumos!AD:AE,2,FALSE))","v":""},null,{"$f":"IF(G6091=\"\",\"\",VLOOKUP(G6091,Insumos!G:H,2,FALSE))","v":""}]
[null,null,null,null,null,{"$f":"IF(E6092=\"\",\"\",VLOOKUP(E6092,Insumos!AD:AE,2,FALSE))","v":""},null,{"$f":"IF(G6092=\"\",\"\",VLOOKUP(G6092,Insumos!G:H,2,FALSE))","v":""}]
[null,null,null,null,null,{"$f":"IF(E6093=\"\",\"\",VLOOKUP(E6093,Insumos!AD:AE,2,FALSE))","v":""},null,{"$f":"IF(G6093=\"\",\"\",VLOOKUP(G6093,Insumos!G:H,2,FALSE))","v":""}]
[null,null,null,null,null,{"$f":"IF(E6094=\"\",\"\",VLOOKUP(E6094,Insumos!AD:AE,2,FALSE))","v":""},null,{"$f":"IF(G6094=\"\",\"\",VLOOKUP(G6094,Insumos!G:H,2,FALSE))","v":""}]
[null,null,null,null,null,{"$f":"IF(E6095=\"\",\"\",VLOOKUP(E6095,Insumos!AD:AE,2,FALSE))","v":""},null,{"$f":"IF(G6095=\"\",\"\",VLOOKUP(G6095,Insumos!G:H,2,FALSE))","v":""}]
[null,null,null,null,null,{"$f":"IF(E6096=\"\",\"\",VLOOKUP(E6096,Insumos!AD:AE,2,FALSE))","v":""},null,{"$f":"IF(G6096=\"\",\"\",VLOOKUP(G6096,Insumos!G:H,2,FALSE))","v":""}]
[null,null,null,null,null,{"$f":"IF(E6097=\"\",\"\",VLOOKUP(E6097,Insumos!AD:AE,2,FALSE))","v":""},null,{"$f":"IF(G6097=\"\",\"\",VLOOKUP(G6097,Insumos!G:H,2,FALSE))","v":""}]
[null,null,null,null,null,{"$f":"IF(E6098=\"\",\"\",VLOOKUP(E6098,Insumos!AD:AE,2,FALSE))","v":""},null,{"$f":"IF(G6098=\"\",\"\",VLOOKUP(G6098,Insumos!G:H,2,FALSE))","v":""}]
[null,null,null,null,null,{"$f":"IF(E6099=\"\",\"\",VLOOKUP(E6099,Insumos!AD:AE,2,FALSE))","v":""},null,{"$f":"IF(G6099=\"\",\"\",VLOOKUP(G6099,Insumos!G:H,2,FALSE))","v":""}]
[null,null,null,null,null,{"$f":"IF(E6100=\"\",\"\",VLOOKUP(E6100,Insumos!AD:AE,2,FALSE))","v":""},null,{"$f":"IF(G6100=\"\",\"\",VLOOKUP(G6100,Insumos!G:H,2,FALSE))","v":""}]
[null,null,null,null,null,{"$f":"IF(E6101=\"\",\"\",VLOOKUP(E6101,Insumos!AD:AE,2,FALSE))","v":""},null,{"$f":"IF(G6101=\"\",\"\",VLOOKUP(G6101,Insumos!G:H,2,FALSE))","v":""}]
[null,null,null,null,null,{"$f":"IF(E6102=\"\",\"\",VLOOKUP(E6102,Insumos!AD:AE,2,FALSE))","v":""},null,{"$f":"IF(G6102=\"\",\"\",VLOOKUP(G6102,Insumos!G:H,2,FALSE))","v":""}]
[null,null,null,null,null,{"$f":"IF(E6103=\"\",\"\",VLOOKUP(E6103,Insumos!AD:AE,2,FALSE))","v":""},null,{"$f":"IF(G6103=\"\",\"\",VLOOKUP(G6103,Insumos!G:H,2,FALSE))","v":""}]
[null,null,null,null,null,{"$f":"IF(E6104=\"\",\"\",VLOOKUP(E6104,Insumos!AD:AE,2,FALSE))","v":""},null,{"$f":"IF(G6104=\"\",\"\",VLOOKUP(G6104,Insumos!G:H,2,FALSE))","v":""}]
[null,null,null,null,null,{"$f":"IF(E6105=\"\",\"\",VLOOKUP(E6105,Insumos!AD:AE,2,FALSE))","v":""},null,{"$f":"IF(G6105=\"\",\"\",VLOOKUP(G6105,Insumos!G:H,2,FALSE))","v":""}]
[null,null,null,null,null,{"$f":"IF(E6106=\"\",\"\",VLOOKUP(E6106,Insumos!AD:AE,2,FALSE))","v":""},null,{"$f":"IF(G6106=\"\",\"\",VLOOKUP(G6106,Insumos!G:H,2,FALSE))","v":""}]
[null,null,null,null,null,{"$f":"IF(E6107=\"\",\"\",VLOOKUP(E6107,Insumos!AD:AE,2,FALSE))","v":""},null,{"$f":"IF(G6107=\"\",\"\",VLOOKUP(G6107,Insumos!G:H,2,FALSE))","v":""}]
[null,null,null,null,null,{"$f":"IF(E6108=\"\",\"\",VLOOKUP(E6108,Insumos!AD:AE,2,FALSE))","v":""},null,{"$f":"IF(G6108=\"\",\"\",VLOOKUP(G6108,Insumos!G:H,2,FALSE))","v":""}]
[null,null,null,null,null,{"$f":"IF(E6109=\"\",\"\",VLOOKUP(E6109,Insumos!AD:AE,2,FALSE))","v":""},null,{"$f":"IF(G6109=\"\",\"\",VLOOKUP(G6109,Insumos!G:H,2,FALSE))","v":""}]
[null,null,null,null,null,{"$f":"IF(E6110=\"\",\"\",VLOOKUP(E6110,Insumos!AD:AE,2,FALSE))","v":""},null,{"$f":"IF(G6110=\"\",\"\",VLOOKUP(G6110,Insumos!G:H,2,FALSE))","v":""}]
[null,null,null,null,null,{"$f":"IF(E6111=\"\",\"\",VLOOKUP(E6111,Insumos!AD:AE,2,FALSE))","v":""},null,{"$f":"IF(G6111=\"\",\"\",VLOOKUP(G6111,Insumos!G:H,2,FALSE))","v":""}]
[null,null,null,null,null,{"$f":"IF(E6112=\"\",\"\",VLOOKUP(E6112,Insumos!AD:AE,2,FALSE))","v":""},null,{"$f":"IF(G6112=\"\",\"\",VLOOKUP(G6112,Insumos!G:H,2,FALSE))","v":""}]
[null,null,null,null,null,{"$f":"IF(E6113=\"\",\"\",VLOOKUP(E6113,Insumos!AD:AE,2,FALSE))","v":""},null,{"$f":"IF(G6113=\"\",\"\",VLOOKUP(G6113,Insumos!G:H,2,FALSE))","v":""}]
[null,null,null,null,null,{"$f":"IF(E6114=\"\",\"\",VLOOKUP(E6114,Insumos!AD:AE,2,FALSE))","v":""},null,{"$f":"IF(G6114=\"\",\"\",VLOOKUP(G6114,Insumos!G:H,2,FALSE))","v":""}]
[null,null,null,null,null,{"$f":"IF(E6115=\"\",\"\",VLOOKUP(E6115,Insumos!AD:AE,2,FALSE))","v":""},null,{"$f":"IF(G6115=\"\",\"\",VLOOKUP(G6115,Insumos!G:H,2,FALSE))","v":""}]
[null,null,null,null,null,{"$f":"IF(E6116=\"\",\"\",VLOOKUP(E6116,Insumos!AD:AE,2,FALSE))","v":""},null,{"$f":"IF(G6116=\"\",\"\",VLOOKUP(G6116,Insumos!G:H,2,FALSE))","v":""}]
[null,null,null,null,null,{"$f":"IF(E6117=\"\",\"\",VLOOKUP(E6117,Insumos!AD:AE,2,FALSE))","v":""},null,{"$f":"IF(G6117=\"\",\"\",VLOOKUP(G6117,Insumos!G:H,2,FALSE))","v":""}]
[null,null,null,null,null,{"$f":"IF(E6118=\"\",\"\",VLOOKUP(E6118,Insumos!AD:AE,2,FALSE))","v":""},null,{"$f":"IF(G6118=\"\",\"\",VLOOKUP(G6118,Insumos!G:H,2,FALSE))","v":""}]
[null,null,null,null,null,{"$f":"IF(E6119=\"\",\"\",VLOOKUP(E6119,Insumos!AD:AE,2,FALSE))","v":""},null,{"$f":"IF(G6119=\"\",\"\",VLOOKUP(G6119,Insumos!G:H,2,FALSE))","v":""}]
[null,null,null,null,null,{"$f":"IF(E6120=\"\",\"\",VLOOKUP(E6120,Insumos!AD:AE,2,FALSE))","v":""},null,{"$f":"IF(G6120=\"\",\"\",VLOOKUP(G6120,Insumos!G:H,2,FALSE))","v":""}]
[null,null,null,null,null,{"$f":"IF(E6121=\"\",\"\",VLOOKUP(E6121,Insumos!AD:AE,2,FALSE))","v":""},null,{"$f":"IF(G6121=\"\",\"\",VLOOKUP(G6121,Insumos!G:H,2,FALSE))","v":""}]
[null,null,null,null,null,{"$f":"IF(E6122=\"\",\"\",VLOOKUP(E6122,Insumos!AD:AE,2,FALSE))","v":""},null,{"$f":"IF(G6122=\"\",\"\",VLOOKUP(G6122,Insumos!G:H,2,FALSE))","v":""}]
[null,null,null,null,null,{"$f":"IF(E6123=\"\",\"\",VLOOKUP(E6123,Insumos!AD:AE,2,FALSE))","v":""},null,{"$f":"IF(G6123=\"\",\"\",VLOOKUP(G6123,Insumos!G:H,2,FALSE))","v":""}]
[null,null,null,null,null,{"$f":"IF(E6124=\"\",\"\",VLOOKUP(E6124,Insumos!AD:AE,2,FALSE))","v":""},null,{"$f":"IF(G6124=\"\",\"\",VLOOKUP(G6124,Insumos!G:H,2,FALSE))","v":""}]
[null,null,null,null,null,{"$f":"IF(E6125=\"\",\"\",VLOOKUP(E6125,Insumos!AD:AE,2,FALSE))","v":""},null,{"$f":"IF(G6125=\"\",\"\",VLOOKUP(G6125,Insumos!G:H,2,FALSE))","v":""}]
[null,null,null,null,null,{"$f":"IF(E6126=\"\",\"\",VLOOKUP(E6126,Insumos!AD:AE,2,FALSE))","v":""},null,{"$f":"IF(G6126=\"\",\"\",VLOOKUP(G6126,Insumos!G:H,2,FALSE))","v":""}]
[null,null,null,null,null,{"$f":"IF(E6127=\"\",\"\",VLOOKUP(E6127,Insumos!AD:AE,2,FALSE))","v":""},null,{"$f":"IF(G6127=\"\",\"\",VLOOKUP(G6127,Insumos!G:H,2,FALSE))","v":""}]
[null,null,null,null,null,{"$f":"IF(E6128=\"\",\"\",VLOOKUP(E6128,Insumos!AD:AE,2,FALSE))","v":""},null,{"$f":"IF(G6128=\"\",\"\",VLOOKUP(G6128,Insumos!G:H,2,FALSE))","v":""}]
[null,null,null,null,null,{"$f":"IF(E6129=\"\",\"\",VLOOKUP(E6129,Insumos!AD:AE,2,FALSE))","v":""},null,{"$f":"IF(G6129=\"\",\"\",VLOOKUP(G6129,Insumos!G:H,2,FALSE))","v":""}]
[null,null,null,null,null,{"$f":"IF(E6130=\"\",\"\",VLOOKUP(E6130,Insumos!AD:AE,2,FALSE))","v":""},null,{"$f":"IF(G6130=\"\",\"\",VLOOKUP(G6130,Insumos!G:H,2,FALSE))","v":""}]
[null,null,null,null,null,{"$f":"IF(E6131=\"\",\"\",VLOOKUP(E6131,Insumos!AD:AE,2,FALSE))","v":""},null,{"$f":"IF(G6131=\"\",\"\",VLOOKUP(G6131,Insumos!G:H,2,FALSE))","v":""}]
[null,null,null,null,null,{"$f":"IF(E6132=\"\",\"\",VLOOKUP(E6132,Insumos!AD:AE,2,FALSE))","v":""},null,{"$f":"IF(G6132=\"\",\"\",VLOOKUP(G6132,Insumos!G:H,2,FALSE))","v":""}]
[null,null,null,null,null,{"$f":"IF(E6133=\"\",\"\",VLOOKUP(E6133,Insumos!AD:AE,2,FALSE))","v":""},null,{"$f":"IF(G6133=\"\",\"\",VLOOKUP(G6133,Insumos!G:H,2,FALSE))","v":""}]
[null,null,null,null,null,{"$f":"IF(E6134=\"\",\"\",VLOOKUP(E6134,Insumos!AD:AE,2,FALSE))","v":""},null,{"$f":"IF(G6134=\"\",\"\",VLOOKUP(G6134,Insumos!G:H,2,FALSE))","v":""}]
[null,null,null,null,null,{"$f":"IF(E6135=\"\",\"\",VLOOKUP(E6135,Insumos!AD:AE,2,FALSE))","v":""},null,{"$f":"IF(G6135=\"\",\"\",VLOOKUP(G6135,Insumos!G:H,2,FALSE))","v":""}]
[null,null,null,null,null,{"$f":"IF(E6136=\"\",\"\",VLOOKUP(E6136,Insumos!AD:AE,2,FALSE))","v":""},null,{"$f":"IF(G6136=\"\",\"\",VLOOKUP(G6136,Insumos!G:H,2,FALSE))","v":""}]
[null,null,null,null,null,{"$f":"IF(E6137=\"\",\"\",VLOOKUP(E6137,Insumos!AD:AE,2,FALSE))","v":""},null,{"$f":"IF(G6137=\"\",\"\",VLOOKUP(G6137,Insumos!G:H,2,FALSE))","v":""}]
[null,null,null,null,null,{"$f":"IF(E6138=\"\",\"\",VLOOKUP(E6138,Insumos!AD:AE,2,FALSE))","v":""},null,{"$f":"IF(G6138=\"\",\"\",VLOOKUP(G6138,Insumos!G:H,2,FALSE))","v":""}]
[null,null,null,null,null,{"$f":"IF(E6139=\"\",\"\",VLOOKUP(E6139,Insumos!AD:AE,2,FALSE))","v":""},null,{"$f":"IF(G6139=\"\",\"\",VLOOKUP(G6139,Insumos!G:H,2,FALSE))","v":""}]
[null,null,null,null,null,{"$f":"IF(E6140=\"\",\"\",VLOOKUP(E6140,Insumos!AD:AE,2,FALSE))","v":""},null,{"$f":"IF(G6140=\"\",\"\",VLOOKUP(G6140,Insumos!G:H,2,FALSE))","v":""}]
[null,null,null,null,null,{"$f":"IF(E6141=\"\",\"\",VLOOKUP(E6141,Insumos!AD:AE,2,FALSE))","v":""},null,{"$f":"IF(G6141=\"\",\"\",VLOOKUP(G6141,Insumos!G:H,2,FALSE))","v":""}]
[null,null,null,null,null,{"$f":"IF(E6142=\"\",\"\",VLOOKUP(E6142,Insumos!AD:AE,2,FALSE))","v":""},null,{"$f":"IF(G6142=\"\",\"\",VLOOKUP(G6142,Insumos!G:H,2,FALSE))","v":""}]
[null,null,null,null,null,{"$f":"IF(E6143=\"\",\"\",VLOOKUP(E6143,Insumos!AD:AE,2,FALSE))","v":""},null,{"$f":"IF(G6143=\"\",\"\",VLOOKUP(G6143,Insumos!G:H,2,FALSE))","v":""}]
[null,null,null,null,null,{"$f":"IF(E6144=\"\",\"\",VLOOKUP(E6144,Insumos!AD:AE,2,FALSE))","v":""},null,{"$f":"IF(G6144=\"\",\"\",VLOOKUP(G6144,Insumos!G:H,2,FALSE))","v":""}]
[null,null,null,null,null,{"$f":"IF(E6145=\"\",\"\",VLOOKUP(E6145,Insumos!AD:AE,2,FALSE))","v":""},null,{"$f":"IF(G6145=\"\",\"\",VLOOKUP(G6145,Insumos!G:H,2,FALSE))","v":""}]
[null,null,null,null,null,{"$f":"IF(E6146=\"\",\"\",VLOOKUP(E6146,Insumos!AD:AE,2,FALSE))","v":""},null,{"$f":"IF(G6146=\"\",\"\",VLOOKUP(G6146,Insumos!G:H,2,FALSE))","v":""}]
[null,null,null,null,null,{"$f":"IF(E6147=\"\",\"\",VLOOKUP(E6147,Insumos!AD:AE,2,FALSE))","v":""},null,{"$f":"IF(G6147=\"\",\"\",VLOOKUP(G6147,Insumos!G:H,2,FALSE))","v":""}]
[null,null,null,null,null,{"$f":"IF(E6148=\"\",\"\",VLOOKUP(E6148,Insumos!AD:AE,2,FALSE))","v":""},null,{"$f":"IF(G6148=\"\",\"\",VLOOKUP(G6148,Insumos!G:H,2,FALSE))","v":""}]
[null,null,null,null,null,{"$f":"IF(E6149=\"\",\"\",VLOOKUP(E6149,Insumos!AD:AE,2,FALSE))","v":""},null,{"$f":"IF(G6149=\"\",\"\",VLOOKUP(G6149,Insumos!G:H,2,FALSE))","v":""}]
[null,null,null,null,null,{"$f":"IF(E6150=\"\",\"\",VLOOKUP(E6150,Insumos!AD:AE,2,FALSE))","v":""},null,{"$f":"IF(G6150=\"\",\"\",VLOOKUP(G6150,Insumos!G:H,2,FALSE))","v":""}]
[null,null,null,null,null,{"$f":"IF(E6151=\"\",\"\",VLOOKUP(E6151,Insumos!AD:AE,2,FALSE))","v":""},null,{"$f":"IF(G6151=\"\",\"\",VLOOKUP(G6151,Insumos!G:H,2,FALSE))","v":""}]
[null,null,null,null,null,{"$f":"IF(E6152=\"\",\"\",VLOOKUP(E6152,Insumos!AD:AE,2,FALSE))","v":""},null,{"$f":"IF(G6152=\"\",\"\",VLOOKUP(G6152,Insumos!G:H,2,FALSE))","v":""}]
[null,null,null,null,null,{"$f":"IF(E6153=\"\",\"\",VLOOKUP(E6153,Insumos!AD:AE,2,FALSE))","v":""},null,{"$f":"IF(G6153=\"\",\"\",VLOOKUP(G6153,Insumos!G:H,2,FALSE))","v":""}]
[null,null,null,null,null,{"$f":"IF(E6154=\"\",\"\",VLOOKUP(E6154,Insumos!AD:AE,2,FALSE))","v":""},null,{"$f":"IF(G6154=\"\",\"\",VLOOKUP(G6154,Insumos!G:H,2,FALSE))","v":""}]
[null,null,null,null,null,{"$f":"IF(E6155=\"\",\"\",VLOOKUP(E6155,Insumos!AD:AE,2,FALSE))","v":""},null,{"$f":"IF(G6155=\"\",\"\",VLOOKUP(G6155,Insumos!G:H,2,FALSE))","v":""}]
[null,null,null,null,null,{"$f":"IF(E6156=\"\",\"\",VLOOKUP(E6156,Insumos!AD:AE,2,FALSE))","v":""},null,{"$f":"IF(G6156=\"\",\"\",VLOOKUP(G6156,Insumos!G:H,2,FALSE))","v":""}]
[null,null,null,null,null,{"$f":"IF(E6157=\"\",\"\",VLOOKUP(E6157,Insumos!AD:AE,2,FALSE))","v":""},null,{"$f":"IF(G6157=\"\",\"\",VLOOKUP(G6157,Insumos!G:H,2,FALSE))","v":""}]
[null,null,null,null,null,{"$f":"IF(E6158=\"\",\"\",VLOOKUP(E6158,Insumos!AD:AE,2,FALSE))","v":""},null,{"$f":"IF(G6158=\"\",\"\",VLOOKUP(G6158,Insumos!G:H,2,FALSE))","v":""}]
[null,null,null,null,null,{"$f":"IF(E6159=\"\",\"\",VLOOKUP(E6159,Insumos!AD:AE,2,FALSE))","v":""},null,{"$f":"IF(G6159=\"\",\"\",VLOOKUP(G6159,Insumos!G:H,2,FALSE))","v":""}]
[null,null,null,null,null,{"$f":"IF(E6160=\"\",\"\",VLOOKUP(E6160,Insumos!AD:AE,2,FALSE))","v":""},null,{"$f":"IF(G6160=\"\",\"\",VLOOKUP(G6160,Insumos!G:H,2,FALSE))","v":""}]
[null,null,null,null,null,{"$f":"IF(E6161=\"\",\"\",VLOOKUP(E6161,Insumos!AD:AE,2,FALSE))","v":""},null,{"$f":"IF(G6161=\"\",\"\",VLOOKUP(G6161,Insumos!G:H,2,FALSE))","v":""}]
[null,null,null,null,null,{"$f":"IF(E6162=\"\",\"\",VLOOKUP(E6162,Insumos!AD:AE,2,FALSE))","v":""},null,{"$f":"IF(G6162=\"\",\"\",VLOOKUP(G6162,Insumos!G:H,2,FALSE))","v":""}]
[null,null,null,null,null,{"$f":"IF(E6163=\"\",\"\",VLOOKUP(E6163,Insumos!AD:AE,2,FALSE))","v":""},null,{"$f":"IF(G6163=\"\",\"\",VLOOKUP(G6163,Insumos!G:H,2,FALSE))","v":""}]
[null,null,null,null,null,{"$f":"IF(E6164=\"\",\"\",VLOOKUP(E6164,Insumos!AD:AE,2,FALSE))","v":""},null,{"$f":"IF(G6164=\"\",\"\",VLOOKUP(G6164,Insumos!G:H,2,FALSE))","v":""}]
[null,null,null,null,null,{"$f":"IF(E6165=\"\",\"\",VLOOKUP(E6165,Insumos!AD:AE,2,FALSE))","v":""},null,{"$f":"IF(G6165=\"\",\"\",VLOOKUP(G6165,Insumos!G:H,2,FALSE))","v":""}]
[null,null,null,null,null,{"$f":"IF(E6166=\"\",\"\",VLOOKUP(E6166,Insumos!AD:AE,2,FALSE))","v":""},null,{"$f":"IF(G6166=\"\",\"\",VLOOKUP(G6166,Insumos!G:H,2,FALSE))","v":""}]
[null,null,null,null,null,{"$f":"IF(E6167=\"\",\"\",VLOOKUP(E6167,Insumos!AD:AE,2,FALSE))","v":""},null,{"$f":"IF(G6167=\"\",\"\",VLOOKUP(G6167,Insumos!G:H,2,FALSE))","v":""}]
[null,null,null,null,null,{"$f":"IF(E6168=\"\",\"\",VLOOKUP(E6168,Insumos!AD:AE,2,FALSE))","v":""},null,{"$f":"IF(G6168=\"\",\"\",VLOOKUP(G6168,Insumos!G:H,2,FALSE))","v":""}]
[null,null,null,null,null,{"$f":"IF(E6169=\"\",\"\",VLOOKUP(E6169,Insumos!AD:AE,2,FALSE))","v":""},null,{"$f":"IF(G6169=\"\",\"\",VLOOKUP(G6169,Insumos!G:H,2,FALSE))","v":""}]
[null,null,null,null,null,{"$f":"IF(E6170=\"\",\"\",VLOOKUP(E6170,Insumos!AD:AE,2,FALSE))","v":""},null,{"$f":"IF(G6170=\"\",\"\",VLOOKUP(G6170,Insumos!G:H,2,FALSE))","v":""}]
[null,null,null,null,null,{"$f":"IF(E6171=\"\",\"\",VLOOKUP(E6171,Insumos!AD:AE,2,FALSE))","v":""},null,{"$f":"IF(G6171=\"\",\"\",VLOOKUP(G6171,Insumos!G:H,2,FALSE))","v":""}]
[null,null,null,null,null,{"$f":"IF(E6172=\"\",\"\",VLOOKUP(E6172,Insumos!AD:AE,2,FALSE))","v":""},null,{"$f":"IF(G6172=\"\",\"\",VLOOKUP(G6172,Insumos!G:H,2,FALSE))","v":""}]
[null,null,null,null,null,{"$f":"IF(E6173=\"\",\"\",VLOOKUP(E6173,Insumos!AD:AE,2,FALSE))","v":""},null,{"$f":"IF(G6173=\"\",\"\",VLOOKUP(G6173,Insumos!G:H,2,FALSE))","v":""}]
[null,null,null,null,null,{"$f":"IF(E6174=\"\",\"\",VLOOKUP(E6174,Insumos!AD:AE,2,FALSE))","v":""},null,{"$f":"IF(G6174=\"\",\"\",VLOOKUP(G6174,Insumos!G:H,2,FALSE))","v":""}]
[null,null,null,null,null,{"$f":"IF(E6175=\"\",\"\",VLOOKUP(E6175,Insumos!AD:AE,2,FALSE))","v":""},null,{"$f":"IF(G6175=\"\",\"\",VLOOKUP(G6175,Insumos!G:H,2,FALSE))","v":""}]
[null,null,null,null,null,{"$f":"IF(E6176=\"\",\"\",VLOOKUP(E6176,Insumos!AD:AE,2,FALSE))","v":""},null,{"$f":"IF(G6176=\"\",\"\",VLOOKUP(G6176,Insumos!G:H,2,FALSE))","v":""}]
[null,null,null,null,null,{"$f":"IF(E6177=\"\",\"\",VLOOKUP(E6177,Insumos!AD:AE,2,FALSE))","v":""},null,{"$f":"IF(G6177=\"\",\"\",VLOOKUP(G6177,Insumos!G:H,2,FALSE))","v":""}]
[null,null,null,null,null,{"$f":"IF(E6178=\"\",\"\",VLOOKUP(E6178,Insumos!AD:AE,2,FALSE))","v":""},null,{"$f":"IF(G6178=\"\",\"\",VLOOKUP(G6178,Insumos!G:H,2,FALSE))","v":""}]
[null,null,null,null,null,{"$f":"IF(E6179=\"\",\"\",VLOOKUP(E6179,Insumos!AD:AE,2,FALSE))","v":""},null,{"$f":"IF(G6179=\"\",\"\",VLOOKUP(G6179,Insumos!G:H,2,FALSE))","v":""}]
[null,null,null,null,null,{"$f":"IF(E6180=\"\",\"\",VLOOKUP(E6180,Insumos!AD:AE,2,FALSE))","v":""},null,{"$f":"IF(G6180=\"\",\"\",VLOOKUP(G6180,Insumos!G:H,2,FALSE))","v":""}]
[null,null,null,null,null,{"$f":"IF(E6181=\"\",\"\",VLOOKUP(E6181,Insumos!AD:AE,2,FALSE))","v":""},null,{"$f":"IF(G6181=\"\",\"\",VLOOKUP(G6181,Insumos!G:H,2,FALSE))","v":""}]
[null,null,null,null,null,{"$f":"IF(E6182=\"\",\"\",VLOOKUP(E6182,Insumos!AD:AE,2,FALSE))","v":""},null,{"$f":"IF(G6182=\"\",\"\",VLOOKUP(G6182,Insumos!G:H,2,FALSE))","v":""}]
[null,null,null,null,null,{"$f":"IF(E6183=\"\",\"\",VLOOKUP(E6183,Insumos!AD:AE,2,FALSE))","v":""},null,{"$f":"IF(G6183=\"\",\"\",VLOOKUP(G6183,Insumos!G:H,2,FALSE))","v":""}]
[null,null,null,null,null,{"$f":"IF(E6184=\"\",\"\",VLOOKUP(E6184,Insumos!AD:AE,2,FALSE))","v":""},null,{"$f":"IF(G6184=\"\",\"\",VLOOKUP(G6184,Insumos!G:H,2,FALSE))","v":""}]
[null,null,null,null,null,{"$f":"IF(E6185=\"\",\"\",VLOOKUP(E6185,Insumos!AD:AE,2,FALSE))","v":""},null,{"$f":"IF(G6185=\"\",\"\",VLOOKUP(G6185,Insumos!G:H,2,FALSE))","v":""}]
[null,null,null,null,null,{"$f":"IF(E6186=\"\",\"\",VLOOKUP(E6186,Insumos!AD:AE,2,FALSE))","v":""},null,{"$f":"IF(G6186=\"\",\"\",VLOOKUP(G6186,Insumos!G:H,2,FALSE))","v":""}]
[null,null,null,null,null,{"$f":"IF(E6187=\"\",\"\",VLOOKUP(E6187,Insumos!AD:AE,2,FALSE))","v":""},null,{"$f":"IF(G6187=\"\",\"\",VLOOKUP(G6187,Insumos!G:H,2,FALSE))","v":""}]
[null,null,null,null,null,{"$f":"IF(E6188=\"\",\"\",VLOOKUP(E6188,Insumos!AD:AE,2,FALSE))","v":""},null,{"$f":"IF(G6188=\"\",\"\",VLOOKUP(G6188,Insumos!G:H,2,FALSE))","v":""}]
[null,null,null,null,null,{"$f":"IF(E6189=\"\",\"\",VLOOKUP(E6189,Insumos!AD:AE,2,FALSE))","v":""},null,{"$f":"IF(G6189=\"\",\"\",VLOOKUP(G6189,Insumos!G:H,2,FALSE))","v":""}]
[null,null,null,null,null,{"$f":"IF(E6190=\"\",\"\",VLOOKUP(E6190,Insumos!AD:AE,2,FALSE))","v":""},null,{"$f":"IF(G6190=\"\",\"\",VLOOKUP(G6190,Insumos!G:H,2,FALSE))","v":""}]
[null,null,null,null,null,{"$f":"IF(E6191=\"\",\"\",VLOOKUP(E6191,Insumos!AD:AE,2,FALSE))","v":""},null,{"$f":"IF(G6191=\"\",\"\",VLOOKUP(G6191,Insumos!G:H,2,FALSE))","v":""}]
[null,null,null,null,null,{"$f":"IF(E6192=\"\",\"\",VLOOKUP(E6192,Insumos!AD:AE,2,FALSE))","v":""},null,{"$f":"IF(G6192=\"\",\"\",VLOOKUP(G6192,Insumos!G:H,2,FALSE))","v":""}]
[null,null,null,null,null,{"$f":"IF(E6193=\"\",\"\",VLOOKUP(E6193,Insumos!AD:AE,2,FALSE))","v":""},null,{"$f":"IF(G6193=\"\",\"\",VLOOKUP(G6193,Insumos!G:H,2,FALSE))","v":""}]
[null,null,null,null,null,{"$f":"IF(E6194=\"\",\"\",VLOOKUP(E6194,Insumos!AD:AE,2,FALSE))","v":""},null,{"$f":"IF(G6194=\"\",\"\",VLOOKUP(G6194,Insumos!G:H,2,FALSE))","v":""}]
[null,null,null,null,null,{"$f":"IF(E6195=\"\",\"\",VLOOKUP(E6195,Insumos!AD:AE,2,FALSE))","v":""},null,{"$f":"IF(G6195=\"\",\"\",VLOOKUP(G6195,Insumos!G:H,2,FALSE))","v":""}]
[null,null,null,null,null,{"$f":"IF(E6196=\"\",\"\",VLOOKUP(E6196,Insumos!AD:AE,2,FALSE))","v":""},null,{"$f":"IF(G6196=\"\",\"\",VLOOKUP(G6196,Insumos!G:H,2,FALSE))","v":""}]
[null,null,null,null,null,{"$f":"IF(E6197=\"\",\"\",VLOOKUP(E6197,Insumos!AD:AE,2,FALSE))","v":""},null,{"$f":"IF(G6197=\"\",\"\",VLOOKUP(G6197,Insumos!G:H,2,FALSE))","v":""}]
[null,null,null,null,null,{"$f":"IF(E6198=\"\",\"\",VLOOKUP(E6198,Insumos!AD:AE,2,FALSE))","v":""},null,{"$f":"IF(G6198=\"\",\"\",VLOOKUP(G6198,Insumos!G:H,2,FALSE))","v":""}]
[null,null,null,null,null,{"$f":"IF(E6199=\"\",\"\",VLOOKUP(E6199,Insumos!AD:AE,2,FALSE))","v":""},null,{"$f":"IF(G6199=\"\",\"\",VLOOKUP(G6199,Insumos!G:H,2,FALSE))","v":""}]
[null,null,null,null,null,{"$f":"IF(E6200=\"\",\"\",VLOOKUP(E6200,Insumos!AD:AE,2,FALSE))","v":""},null,{"$f":"IF(G6200=\"\",\"\",VLOOKUP(G6200,Insumos!G:H,2,FALSE))","v":""}]
[null,null,null,null,null,{"$f":"IF(E6201=\"\",\"\",VLOOKUP(E6201,Insumos!AD:AE,2,FALSE))","v":""},null,{"$f":"IF(G6201=\"\",\"\",VLOOKUP(G6201,Insumos!G:H,2,FALSE))","v":""}]
[null,null,null,null,null,{"$f":"IF(E6202=\"\",\"\",VLOOKUP(E6202,Insumos!AD:AE,2,FALSE))","v":""},null,{"$f":"IF(G6202=\"\",\"\",VLOOKUP(G6202,Insumos!G:H,2,FALSE))","v":""}]
[null,null,null,null,null,{"$f":"IF(E6203=\"\",\"\",VLOOKUP(E6203,Insumos!AD:AE,2,FALSE))","v":""},null,{"$f":"IF(G6203=\"\",\"\",VLOOKUP(G6203,Insumos!G:H,2,FALSE))","v":""}]
[null,null,null,null,null,{"$f":"IF(E6204=\"\",\"\",VLOOKUP(E6204,Insumos!AD:AE,2,FALSE))","v":""},null,{"$f":"IF(G6204=\"\",\"\",VLOOKUP(G6204,Insumos!G:H,2,FALSE))","v":""}]
[null,null,null,null,null,{"$f":"IF(E6205=\"\",\"\",VLOOKUP(E6205,Insumos!AD:AE,2,FALSE))","v":""},null,{"$f":"IF(G6205=\"\",\"\",VLOOKUP(G6205,Insumos!G:H,2,FALSE))","v":""}]
[null,null,null,null,null,{"$f":"IF(E6206=\"\",\"\",VLOOKUP(E6206,Insumos!AD:AE,2,FALSE))","v":""},null,{"$f":"IF(G6206=\"\",\"\",VLOOKUP(G6206,Insumos!G:H,2,FALSE))","v":""}]
[null,null,null,null,null,{"$f":"IF(E6207=\"\",\"\",VLOOKUP(E6207,Insumos!AD:AE,2,FALSE))","v":""},null,{"$f":"IF(G6207=\"\",\"\",VLOOKUP(G6207,Insumos!G:H,2,FALSE))","v":""}]
[null,null,null,null,null,{"$f":"IF(E6208=\"\",\"\",VLOOKUP(E6208,Insumos!AD:AE,2,FALSE))","v":""},null,{"$f":"IF(G6208=\"\",\"\",VLOOKUP(G6208,Insumos!G:H,2,FALSE))","v":""}]
[null,null,null,null,null,{"$f":"IF(E6209=\"\",\"\",VLOOKUP(E6209,Insumos!AD:AE,2,FALSE))","v":""},null,{"$f":"IF(G6209=\"\",\"\",VLOOKUP(G6209,Insumos!G:H,2,FALSE))","v":""}]
[null,null,null,null,null,{"$f":"IF(E6210=\"\",\"\",VLOOKUP(E6210,Insumos!AD:AE,2,FALSE))","v":""},null,{"$f":"IF(G6210=\"\",\"\",VLOOKUP(G6210,Insumos!G:H,2,FALSE))","v":""}]
[null,null,null,null,null,{"$f":"IF(E6211=\"\",\"\",VLOOKUP(E6211,Insumos!AD:AE,2,FALSE))","v":""},null,{"$f":"IF(G6211=\"\",\"\",VLOOKUP(G6211,Insumos!G:H,2,FALSE))","v":""}]
[null,null,null,null,null,{"$f":"IF(E6212=\"\",\"\",VLOOKUP(E6212,Insumos!AD:AE,2,FALSE))","v":""},null,{"$f":"IF(G6212=\"\",\"\",VLOOKUP(G6212,Insumos!G:H,2,FALSE))","v":""}]
[null,null,null,null,null,{"$f":"IF(E6213=\"\",\"\",VLOOKUP(E6213,Insumos!AD:AE,2,FALSE))","v":""},null,{"$f":"IF(G6213=\"\",\"\",VLOOKUP(G6213,Insumos!G:H,2,FALSE))","v":""}]
[null,null,null,null,null,{"$f":"IF(E6214=\"\",\"\",VLOOKUP(E6214,Insumos!AD:AE,2,FALSE))","v":""},null,{"$f":"IF(G6214=\"\",\"\",VLOOKUP(G6214,Insumos!G:H,2,FALSE))","v":""}]
[null,null,null,null,null,{"$f":"IF(E6215=\"\",\"\",VLOOKUP(E6215,Insumos!AD:AE,2,FALSE))","v":""},null,{"$f":"IF(G6215=\"\",\"\",VLOOKUP(G6215,Insumos!G:H,2,FALSE))","v":""}]
[null,null,null,null,null,{"$f":"IF(E6216=\"\",\"\",VLOOKUP(E6216,Insumos!AD:AE,2,FALSE))","v":""},null,{"$f":"IF(G6216=\"\",\"\",VLOOKUP(G6216,Insumos!G:H,2,FALSE))","v":""}]
[null,null,null,null,null,{"$f":"IF(E6217=\"\",\"\",VLOOKUP(E6217,Insumos!AD:AE,2,FALSE))","v":""},null,{"$f":"IF(G6217=\"\",\"\",VLOOKUP(G6217,Insumos!G:H,2,FALSE))","v":""}]
[null,null,null,null,null,{"$f":"IF(E6218=\"\",\"\",VLOOKUP(E6218,Insumos!AD:AE,2,FALSE))","v":""},null,{"$f":"IF(G6218=\"\",\"\",VLOOKUP(G6218,Insumos!G:H,2,FALSE))","v":""}]
[null,null,null,null,null,{"$f":"IF(E6219=\"\",\"\",VLOOKUP(E6219,Insumos!AD:AE,2,FALSE))","v":""},null,{"$f":"IF(G6219=\"\",\"\",VLOOKUP(G6219,Insumos!G:H,2,FALSE))","v":""}]
[null,null,null,null,null,{"$f":"IF(E6220=\"\",\"\",VLOOKUP(E6220,Insumos!AD:AE,2,FALSE))","v":""},null,{"$f":"IF(G6220=\"\",\"\",VLOOKUP(G6220,Insumos!G:H,2,FALSE))","v":""}]
[null,null,null,null,null,{"$f":"IF(E6221=\"\",\"\",VLOOKUP(E6221,Insumos!AD:AE,2,FALSE))","v":""},null,{"$f":"IF(G6221=\"\",\"\",VLOOKUP(G6221,Insumos!G:H,2,FALSE))","v":""}]
[null,null,null,null,null,{"$f":"IF(E6222=\"\",\"\",VLOOKUP(E6222,Insumos!AD:AE,2,FALSE))","v":""},null,{"$f":"IF(G6222=\"\",\"\",VLOOKUP(G6222,Insumos!G:H,2,FALSE))","v":""}]
[null,null,null,null,null,{"$f":"IF(E6223=\"\",\"\",VLOOKUP(E6223,Insumos!AD:AE,2,FALSE))","v":""},null,{"$f":"IF(G6223=\"\",\"\",VLOOKUP(G6223,Insumos!G:H,2,FALSE))","v":""}]
[null,null,null,null,null,{"$f":"IF(E6224=\"\",\"\",VLOOKUP(E6224,Insumos!AD:AE,2,FALSE))","v":""},null,{"$f":"IF(G6224=\"\",\"\",VLOOKUP(G6224,Insumos!G:H,2,FALSE))","v":""}]
[null,null,null,null,null,{"$f":"IF(E6225=\"\",\"\",VLOOKUP(E6225,Insumos!AD:AE,2,FALSE))","v":""},null,{"$f":"IF(G6225=\"\",\"\",VLOOKUP(G6225,Insumos!G:H,2,FALSE))","v":""}]
[null,null,null,null,null,{"$f":"IF(E6226=\"\",\"\",VLOOKUP(E6226,Insumos!AD:AE,2,FALSE))","v":""},null,{"$f":"IF(G6226=\"\",\"\",VLOOKUP(G6226,Insumos!G:H,2,FALSE))","v":""}]
[null,null,null,null,null,{"$f":"IF(E6227=\"\",\"\",VLOOKUP(E6227,Insumos!AD:AE,2,FALSE))","v":""},null,{"$f":"IF(G6227=\"\",\"\",VLOOKUP(G6227,Insumos!G:H,2,FALSE))","v":""}]
[null,null,null,null,null,{"$f":"IF(E6228=\"\",\"\",VLOOKUP(E6228,Insumos!AD:AE,2,FALSE))","v":""},null,{"$f":"IF(G6228=\"\",\"\",VLOOKUP(G6228,Insumos!G:H,2,FALSE))","v":""}]
[null,null,null,null,null,{"$f":"IF(E6229=\"\",\"\",VLOOKUP(E6229,Insumos!AD:AE,2,FALSE))","v":""},null,{"$f":"IF(G6229=\"\",\"\",VLOOKUP(G6229,Insumos!G:H,2,FALSE))","v":""}]
[null,null,null,null,null,{"$f":"IF(E6230=\"\",\"\",VLOOKUP(E6230,Insumos!AD:AE,2,FALSE))","v":""},null,{"$f":"IF(G6230=\"\",\"\",VLOOKUP(G6230,Insumos!G:H,2,FALSE))","v":""}]
[null,null,null,null,null,{"$f":"IF(E6231=\"\",\"\",VLOOKUP(E6231,Insumos!AD:AE,2,FALSE))","v":""},null,{"$f":"IF(G6231=\"\",\"\",VLOOKUP(G6231,Insumos!G:H,2,FALSE))","v":""}]
[null,null,null,null,null,{"$f":"IF(E6232=\"\",\"\",VLOOKUP(E6232,Insumos!AD:AE,2,FALSE))","v":""},null,{"$f":"IF(G6232=\"\",\"\",VLOOKUP(G6232,Insumos!G:H,2,FALSE))","v":""}]
[null,null,null,null,null,{"$f":"IF(E6233=\"\",\"\",VLOOKUP(E6233,Insumos!AD:AE,2,FALSE))","v":""},null,{"$f":"IF(G6233=\"\",\"\",VLOOKUP(G6233,Insumos!G:H,2,FALSE))","v":""}]
[null,null,null,null,null,{"$f":"IF(E6234=\"\",\"\",VLOOKUP(E6234,Insumos!AD:AE,2,FALSE))","v":""},null,{"$f":"IF(G6234=\"\",\"\",VLOOKUP(G6234,Insumos!G:H,2,FALSE))","v":""}]
[null,null,null,null,null,{"$f":"IF(E6235=\"\",\"\",VLOOKUP(E6235,Insumos!AD:AE,2,FALSE))","v":""},null,{"$f":"IF(G6235=\"\",\"\",VLOOKUP(G6235,Insumos!G:H,2,FALSE))","v":""}]
[null,null,null,null,null,{"$f":"IF(E6236=\"\",\"\",VLOOKUP(E6236,Insumos!AD:AE,2,FALSE))","v":""},null,{"$f":"IF(G6236=\"\",\"\",VLOOKUP(G6236,Insumos!G:H,2,FALSE))","v":""}]
[null,null,null,null,null,{"$f":"IF(E6237=\"\",\"\",VLOOKUP(E6237,Insumos!AD:AE,2,FALSE))","v":""},null,{"$f":"IF(G6237=\"\",\"\",VLOOKUP(G6237,Insumos!G:H,2,FALSE))","v":""}]
[null,null,null,null,null,{"$f":"IF(E6238=\"\",\"\",VLOOKUP(E6238,Insumos!AD:AE,2,FALSE))","v":""},null,{"$f":"IF(G6238=\"\",\"\",VLOOKUP(G6238,Insumos!G:H,2,FALSE))","v":""}]
[null,null,null,null,null,{"$f":"IF(E6239=\"\",\"\",VLOOKUP(E6239,Insumos!AD:AE,2,FALSE))","v":""},null,{"$f":"IF(G6239=\"\",\"\",VLOOKUP(G6239,Insumos!G:H,2,FALSE))","v":""}]
[null,null,null,null,null,{"$f":"IF(E6240=\"\",\"\",VLOOKUP(E6240,Insumos!AD:AE,2,FALSE))","v":""},null,{"$f":"IF(G6240=\"\",\"\",VLOOKUP(G6240,Insumos!G:H,2,FALSE))","v":""}]
[null,null,null,null,null,{"$f":"IF(E6241=\"\",\"\",VLOOKUP(E6241,Insumos!AD:AE,2,FALSE))","v":""},null,{"$f":"IF(G6241=\"\",\"\",VLOOKUP(G6241,Insumos!G:H,2,FALSE))","v":""}]
[null,null,null,null,null,{"$f":"IF(E6242=\"\",\"\",VLOOKUP(E6242,Insumos!AD:AE,2,FALSE))","v":""},null,{"$f":"IF(G6242=\"\",\"\",VLOOKUP(G6242,Insumos!G:H,2,FALSE))","v":""}]
[null,null,null,null,null,{"$f":"IF(E6243=\"\",\"\",VLOOKUP(E6243,Insumos!AD:AE,2,FALSE))","v":""},null,{"$f":"IF(G6243=\"\",\"\",VLOOKUP(G6243,Insumos!G:H,2,FALSE))","v":""}]
[null,null,null,null,null,{"$f":"IF(E6244=\"\",\"\",VLOOKUP(E6244,Insumos!AD:AE,2,FALSE))","v":""},null,{"$f":"IF(G6244=\"\",\"\",VLOOKUP(G6244,Insumos!G:H,2,FALSE))","v":""}]
[null,null,null,null,null,{"$f":"IF(E6245=\"\",\"\",VLOOKUP(E6245,Insumos!AD:AE,2,FALSE))","v":""},null,{"$f":"IF(G6245=\"\",\"\",VLOOKUP(G6245,Insumos!G:H,2,FALSE))","v":""}]
[null,null,null,null,null,{"$f":"IF(E6246=\"\",\"\",VLOOKUP(E6246,Insumos!AD:AE,2,FALSE))","v":""},null,{"$f":"IF(G6246=\"\",\"\",VLOOKUP(G6246,Insumos!G:H,2,FALSE))","v":""}]
[null,null,null,null,null,{"$f":"IF(E6247=\"\",\"\",VLOOKUP(E6247,Insumos!AD:AE,2,FALSE))","v":""},null,{"$f":"IF(G6247=\"\",\"\",VLOOKUP(G6247,Insumos!G:H,2,FALSE))","v":""}]
[null,null,null,null,null,{"$f":"IF(E6248=\"\",\"\",VLOOKUP(E6248,Insumos!AD:AE,2,FALSE))","v":""},null,{"$f":"IF(G6248=\"\",\"\",VLOOKUP(G6248,Insumos!G:H,2,FALSE))","v":""}]
[null,null,null,null,null,{"$f":"IF(E6249=\"\",\"\",VLOOKUP(E6249,Insumos!AD:AE,2,FALSE))","v":""},null,{"$f":"IF(G6249=\"\",\"\",VLOOKUP(G6249,Insumos!G:H,2,FALSE))","v":""}]
[null,null,null,null,null,{"$f":"IF(E6250=\"\",\"\",VLOOKUP(E6250,Insumos!AD:AE,2,FALSE))","v":""},null,{"$f":"IF(G6250=\"\",\"\",VLOOKUP(G6250,Insumos!G:H,2,FALSE))","v":""}]
[null,null,null,null,null,{"$f":"IF(E6251=\"\",\"\",VLOOKUP(E6251,Insumos!AD:AE,2,FALSE))","v":""},null,{"$f":"IF(G6251=\"\",\"\",VLOOKUP(G6251,Insumos!G:H,2,FALSE))","v":""}]
[null,null,null,null,null,{"$f":"IF(E6252=\"\",\"\",VLOOKUP(E6252,Insumos!AD:AE,2,FALSE))","v":""},null,{"$f":"IF(G6252=\"\",\"\",VLOOKUP(G6252,Insumos!G:H,2,FALSE))","v":""}]
[null,null,null,null,null,{"$f":"IF(E6253=\"\",\"\",VLOOKUP(E6253,Insumos!AD:AE,2,FALSE))","v":""},null,{"$f":"IF(G6253=\"\",\"\",VLOOKUP(G6253,Insumos!G:H,2,FALSE))","v":""}]
[null,null,null,null,null,{"$f":"IF(E6254=\"\",\"\",VLOOKUP(E6254,Insumos!AD:AE,2,FALSE))","v":""},null,{"$f":"IF(G6254=\"\",\"\",VLOOKUP(G6254,Insumos!G:H,2,FALSE))","v":""}]
[null,null,null,null,null,{"$f":"IF(E6255=\"\",\"\",VLOOKUP(E6255,Insumos!AD:AE,2,FALSE))","v":""},null,{"$f":"IF(G6255=\"\",\"\",VLOOKUP(G6255,Insumos!G:H,2,FALSE))","v":""}]
[null,null,null,null,null,{"$f":"IF(E6256=\"\",\"\",VLOOKUP(E6256,Insumos!AD:AE,2,FALSE))","v":""},null,{"$f":"IF(G6256=\"\",\"\",VLOOKUP(G6256,Insumos!G:H,2,FALSE))","v":""}]
[null,null,null,null,null,{"$f":"IF(E6257=\"\",\"\",VLOOKUP(E6257,Insumos!AD:AE,2,FALSE))","v":""},null,{"$f":"IF(G6257=\"\",\"\",VLOOKUP(G6257,Insumos!G:H,2,FALSE))","v":""}]
[null,null,null,null,null,{"$f":"IF(E6258=\"\",\"\",VLOOKUP(E6258,Insumos!AD:AE,2,FALSE))","v":""},null,{"$f":"IF(G6258=\"\",\"\",VLOOKUP(G6258,Insumos!G:H,2,FALSE))","v":""}]
[null,null,null,null,null,{"$f":"IF(E6259=\"\",\"\",VLOOKUP(E6259,Insumos!AD:AE,2,FALSE))","v":""},null,{"$f":"IF(G6259=\"\",\"\",VLOOKUP(G6259,Insumos!G:H,2,FALSE))","v":""}]
[null,null,null,null,null,{"$f":"IF(E6260=\"\",\"\",VLOOKUP(E6260,Insumos!AD:AE,2,FALSE))","v":""},null,{"$f":"IF(G6260=\"\",\"\",VLOOKUP(G6260,Insumos!G:H,2,FALSE))","v":""}]
[null,null,null,null,null,{"$f":"IF(E6261=\"\",\"\",VLOOKUP(E6261,Insumos!AD:AE,2,FALSE))","v":""},null,{"$f":"IF(G6261=\"\",\"\",VLOOKUP(G6261,Insumos!G:H,2,FALSE))","v":""}]
[null,null,null,null,null,{"$f":"IF(E6262=\"\",\"\",VLOOKUP(E6262,Insumos!AD:AE,2,FALSE))","v":""},null,{"$f":"IF(G6262=\"\",\"\",VLOOKUP(G6262,Insumos!G:H,2,FALSE))","v":""}]
[null,null,null,null,null,{"$f":"IF(E6263=\"\",\"\",VLOOKUP(E6263,Insumos!AD:AE,2,FALSE))","v":""},null,{"$f":"IF(G6263=\"\",\"\",VLOOKUP(G6263,Insumos!G:H,2,FALSE))","v":""}]
[null,null,null,null,null,{"$f":"IF(E6264=\"\",\"\",VLOOKUP(E6264,Insumos!AD:AE,2,FALSE))","v":""},null,{"$f":"IF(G6264=\"\",\"\",VLOOKUP(G6264,Insumos!G:H,2,FALSE))","v":""}]
[null,null,null,null,null,{"$f":"IF(E6265=\"\",\"\",VLOOKUP(E6265,Insumos!AD:AE,2,FALSE))","v":""},null,{"$f":"IF(G6265=\"\",\"\",VLOOKUP(G6265,Insumos!G:H,2,FALSE))","v":""}]
[null,null,null,null,null,{"$f":"IF(E6266=\"\",\"\",VLOOKUP(E6266,Insumos!AD:AE,2,FALSE))","v":""},null,{"$f":"IF(G6266=\"\",\"\",VLOOKUP(G6266,Insumos!G:H,2,FALSE))","v":""}]
[null,null,null,null,null,{"$f":"IF(E6267=\"\",\"\",VLOOKUP(E6267,Insumos!AD:AE,2,FALSE))","v":""},null,{"$f":"IF(G6267=\"\",\"\",VLOOKUP(G6267,Insumos!G:H,2,FALSE))","v":""}]
[null,null,null,null,null,{"$f":"IF(E6268=\"\",\"\",VLOOKUP(E6268,Insumos!AD:AE,2,FALSE))","v":""},null,{"$f":"IF(G6268=\"\",\"\",VLOOKUP(G6268,Insumos!G:H,2,FALSE))","v":""}]
[null,null,null,null,null,{"$f":"IF(E6269=\"\",\"\",VLOOKUP(E6269,Insumos!AD:AE,2,FALSE))","v":""},null,{"$f":"IF(G6269=\"\",\"\",VLOOKUP(G6269,Insumos!G:H,2,FALSE))","v":""}]
[null,null,null,null,null,{"$f":"IF(E6270=\"\",\"\",VLOOKUP(E6270,Insumos!AD:AE,2,FALSE))","v":""},null,{"$f":"IF(G6270=\"\",\"\",VLOOKUP(G6270,Insumos!G:H,2,FALSE))","v":""}]
[null,null,null,null,null,{"$f":"IF(E6271=\"\",\"\",VLOOKUP(E6271,Insumos!AD:AE,2,FALSE))","v":""},null,{"$f":"IF(G6271=\"\",\"\",VLOOKUP(G6271,Insumos!G:H,2,FALSE))","v":""}]
[null,null,null,null,null,{"$f":"IF(E6272=\"\",\"\",VLOOKUP(E6272,Insumos!AD:AE,2,FALSE))","v":""},null,{"$f":"IF(G6272=\"\",\"\",VLOOKUP(G6272,Insumos!G:H,2,FALSE))","v":""}]
[null,null,null,null,null,{"$f":"IF(E6273=\"\",\"\",VLOOKUP(E6273,Insumos!AD:AE,2,FALSE))","v":""},null,{"$f":"IF(G6273=\"\",\"\",VLOOKUP(G6273,Insumos!G:H,2,FALSE))","v":""}]
[null,null,null,null,null,{"$f":"IF(E6274=\"\",\"\",VLOOKUP(E6274,Insumos!AD:AE,2,FALSE))","v":""},null,{"$f":"IF(G6274=\"\",\"\",VLOOKUP(G6274,Insumos!G:H,2,FALSE))","v":""}]
[null,null,null,null,null,{"$f":"IF(E6275=\"\",\"\",VLOOKUP(E6275,Insumos!AD:AE,2,FALSE))","v":""},null,{"$f":"IF(G6275=\"\",\"\",VLOOKUP(G6275,Insumos!G:H,2,FALSE))","v":""}]
[null,null,null,null,null,{"$f":"IF(E6276=\"\",\"\",VLOOKUP(E6276,Insumos!AD:AE,2,FALSE))","v":""},null,{"$f":"IF(G6276=\"\",\"\",VLOOKUP(G6276,Insumos!G:H,2,FALSE))","v":""}]
[null,null,null,null,null,{"$f":"IF(E6277=\"\",\"\",VLOOKUP(E6277,Insumos!AD:AE,2,FALSE))","v":""},null,{"$f":"IF(G6277=\"\",\"\",VLOOKUP(G6277,Insumos!G:H,2,FALSE))","v":""}]
[null,null,null,null,null,{"$f":"IF(E6278=\"\",\"\",VLOOKUP(E6278,Insumos!AD:AE,2,FALSE))","v":""},null,{"$f":"IF(G6278=\"\",\"\",VLOOKUP(G6278,Insumos!G:H,2,FALSE))","v":""}]
[null,null,null,null,null,{"$f":"IF(E6279=\"\",\"\",VLOOKUP(E6279,Insumos!AD:AE,2,FALSE))","v":""},null,{"$f":"IF(G6279=\"\",\"\",VLOOKUP(G6279,Insumos!G:H,2,FALSE))","v":""}]
[null,null,null,null,null,{"$f":"IF(E6280=\"\",\"\",VLOOKUP(E6280,Insumos!AD:AE,2,FALSE))","v":""},null,{"$f":"IF(G6280=\"\",\"\",VLOOKUP(G6280,Insumos!G:H,2,FALSE))","v":""}]
[null,null,null,null,null,{"$f":"IF(E6281=\"\",\"\",VLOOKUP(E6281,Insumos!AD:AE,2,FALSE))","v":""},null,{"$f":"IF(G6281=\"\",\"\",VLOOKUP(G6281,Insumos!G:H,2,FALSE))","v":""}]
[null,null,null,null,null,{"$f":"IF(E6282=\"\",\"\",VLOOKUP(E6282,Insumos!AD:AE,2,FALSE))","v":""},null,{"$f":"IF(G6282=\"\",\"\",VLOOKUP(G6282,Insumos!G:H,2,FALSE))","v":""}]
[null,null,null,null,null,{"$f":"IF(E6283=\"\",\"\",VLOOKUP(E6283,Insumos!AD:AE,2,FALSE))","v":""},null,{"$f":"IF(G6283=\"\",\"\",VLOOKUP(G6283,Insumos!G:H,2,FALSE))","v":""}]
[null,null,null,null,null,{"$f":"IF(E6284=\"\",\"\",VLOOKUP(E6284,Insumos!AD:AE,2,FALSE))","v":""},null,{"$f":"IF(G6284=\"\",\"\",VLOOKUP(G6284,Insumos!G:H,2,FALSE))","v":""}]
[null,null,null,null,null,{"$f":"IF(E6285=\"\",\"\",VLOOKUP(E6285,Insumos!AD:AE,2,FALSE))","v":""},null,{"$f":"IF(G6285=\"\",\"\",VLOOKUP(G6285,Insumos!G:H,2,FALSE))","v":""}]
[null,null,null,null,null,{"$f":"IF(E6286=\"\",\"\",VLOOKUP(E6286,Insumos!AD:AE,2,FALSE))","v":""},null,{"$f":"IF(G6286=\"\",\"\",VLOOKUP(G6286,Insumos!G:H,2,FALSE))","v":""}]
[null,null,null,null,null,{"$f":"IF(E6287=\"\",\"\",VLOOKUP(E6287,Insumos!AD:AE,2,FALSE))","v":""},null,{"$f":"IF(G6287=\"\",\"\",VLOOKUP(G6287,Insumos!G:H,2,FALSE))","v":""}]
[null,null,null,null,null,{"$f":"IF(E6288=\"\",\"\",VLOOKUP(E6288,Insumos!AD:AE,2,FALSE))","v":""},null,{"$f":"IF(G6288=\"\",\"\",VLOOKUP(G6288,Insumos!G:H,2,FALSE))","v":""}]
[null,null,null,null,null,{"$f":"IF(E6289=\"\",\"\",VLOOKUP(E6289,Insumos!AD:AE,2,FALSE))","v":""},null,{"$f":"IF(G6289=\"\",\"\",VLOOKUP(G6289,Insumos!G:H,2,FALSE))","v":""}]
[null,null,null,null,null,{"$f":"IF(E6290=\"\",\"\",VLOOKUP(E6290,Insumos!AD:AE,2,FALSE))","v":""},null,{"$f":"IF(G6290=\"\",\"\",VLOOKUP(G6290,Insumos!G:H,2,FALSE))","v":""}]
[null,null,null,null,null,{"$f":"IF(E6291=\"\",\"\",VLOOKUP(E6291,Insumos!AD:AE,2,FALSE))","v":""},null,{"$f":"IF(G6291=\"\",\"\",VLOOKUP(G6291,Insumos!G:H,2,FALSE))","v":""}]
[null,null,null,null,null,{"$f":"IF(E6292=\"\",\"\",VLOOKUP(E6292,Insumos!AD:AE,2,FALSE))","v":""},null,{"$f":"IF(G6292=\"\",\"\",VLOOKUP(G6292,Insumos!G:H,2,FALSE))","v":""}]
[null,null,null,null,null,{"$f":"IF(E6293=\"\",\"\",VLOOKUP(E6293,Insumos!AD:AE,2,FALSE))","v":""},null,{"$f":"IF(G6293=\"\",\"\",VLOOKUP(G6293,Insumos!G:H,2,FALSE))","v":""}]
[null,null,null,null,null,{"$f":"IF(E6294=\"\",\"\",VLOOKUP(E6294,Insumos!AD:AE,2,FALSE))","v":""},null,{"$f":"IF(G6294=\"\",\"\",VLOOKUP(G6294,Insumos!G:H,2,FALSE))","v":""}]
[null,null,null,null,null,{"$f":"IF(E6295=\"\",\"\",VLOOKUP(E6295,Insumos!AD:AE,2,FALSE))","v":""},null,{"$f":"IF(G6295=\"\",\"\",VLOOKUP(G6295,Insumos!G:H,2,FALSE))","v":""}]
[null,null,null,null,null,{"$f":"IF(E6296=\"\",\"\",VLOOKUP(E6296,Insumos!AD:AE,2,FALSE))","v":""},null,{"$f":"IF(G6296=\"\",\"\",VLOOKUP(G6296,Insumos!G:H,2,FALSE))","v":""}]
[null,null,null,null,null,{"$f":"IF(E6297=\"\",\"\",VLOOKUP(E6297,Insumos!AD:AE,2,FALSE))","v":""},null,{"$f":"IF(G6297=\"\",\"\",VLOOKUP(G6297,Insumos!G:H,2,FALSE))","v":""}]
[null,null,null,null,null,{"$f":"IF(E6298=\"\",\"\",VLOOKUP(E6298,Insumos!AD:AE,2,FALSE))","v":""},null,{"$f":"IF(G6298=\"\",\"\",VLOOKUP(G6298,Insumos!G:H,2,FALSE))","v":""}]
[null,null,null,null,null,{"$f":"IF(E6299=\"\",\"\",VLOOKUP(E6299,Insumos!AD:AE,2,FALSE))","v":""},null,{"$f":"IF(G6299=\"\",\"\",VLOOKUP(G6299,Insumos!G:H,2,FALSE))","v":""}]
[null,null,null,null,null,{"$f":"IF(E6300=\"\",\"\",VLOOKUP(E6300,Insumos!AD:AE,2,FALSE))","v":""},null,{"$f":"IF(G6300=\"\",\"\",VLOOKUP(G6300,Insumos!G:H,2,FALSE))","v":""}]
[null,null,null,null,null,{"$f":"IF(E6301=\"\",\"\",VLOOKUP(E6301,Insumos!AD:AE,2,FALSE))","v":""},null,{"$f":"IF(G6301=\"\",\"\",VLOOKUP(G6301,Insumos!G:H,2,FALSE))","v":""}]
[null,null,null,null,null,{"$f":"IF(E6302=\"\",\"\",VLOOKUP(E6302,Insumos!AD:AE,2,FALSE))","v":""},null,{"$f":"IF(G6302=\"\",\"\",VLOOKUP(G6302,Insumos!G:H,2,FALSE))","v":""}]
[null,null,null,null,null,{"$f":"IF(E6303=\"\",\"\",VLOOKUP(E6303,Insumos!AD:AE,2,FALSE))","v":""},null,{"$f":"IF(G6303=\"\",\"\",VLOOKUP(G6303,Insumos!G:H,2,FALSE))","v":""}]
[null,null,null,null,null,{"$f":"IF(E6304=\"\",\"\",VLOOKUP(E6304,Insumos!AD:AE,2,FALSE))","v":""},null,{"$f":"IF(G6304=\"\",\"\",VLOOKUP(G6304,Insumos!G:H,2,FALSE))","v":""}]
[null,null,null,null,null,{"$f":"IF(E6305=\"\",\"\",VLOOKUP(E6305,Insumos!AD:AE,2,FALSE))","v":""},null,{"$f":"IF(G6305=\"\",\"\",VLOOKUP(G6305,Insumos!G:H,2,FALSE))","v":""}]
[null,null,null,null,null,{"$f":"IF(E6306=\"\",\"\",VLOOKUP(E6306,Insumos!AD:AE,2,FALSE))","v":""},null,{"$f":"IF(G6306=\"\",\"\",VLOOKUP(G6306,Insumos!G:H,2,FALSE))","v":""}]
[null,null,null,null,null,{"$f":"IF(E6307=\"\",\"\",VLOOKUP(E6307,Insumos!AD:AE,2,FALSE))","v":""},null,{"$f":"IF(G6307=\"\",\"\",VLOOKUP(G6307,Insumos!G:H,2,FALSE))","v":""}]
[null,null,null,null,null,{"$f":"IF(E6308=\"\",\"\",VLOOKUP(E6308,Insumos!AD:AE,2,FALSE))","v":""},null,{"$f":"IF(G6308=\"\",\"\",VLOOKUP(G6308,Insumos!G:H,2,FALSE))","v":""}]
[null,null,null,null,null,{"$f":"IF(E6309=\"\",\"\",VLOOKUP(E6309,Insumos!AD:AE,2,FALSE))","v":""},null,{"$f":"IF(G6309=\"\",\"\",VLOOKUP(G6309,Insumos!G:H,2,FALSE))","v":""}]
[null,null,null,null,null,{"$f":"IF(E6310=\"\",\"\",VLOOKUP(E6310,Insumos!AD:AE,2,FALSE))","v":""},null,{"$f":"IF(G6310=\"\",\"\",VLOOKUP(G6310,Insumos!G:H,2,FALSE))","v":""}]
[null,null,null,null,null,{"$f":"IF(E6311=\"\",\"\",VLOOKUP(E6311,Insumos!AD:AE,2,FALSE))","v":""},null,{"$f":"IF(G6311=\"\",\"\",VLOOKUP(G6311,Insumos!G:H,2,FALSE))","v":""}]
[null,null,null,null,null,{"$f":"IF(E6312=\"\",\"\",VLOOKUP(E6312,Insumos!AD:AE,2,FALSE))","v":""},null,{"$f":"IF(G6312=\"\",\"\",VLOOKUP(G6312,Insumos!G:H,2,FALSE))","v":""}]
[null,null,null,null,null,{"$f":"IF(E6313=\"\",\"\",VLOOKUP(E6313,Insumos!AD:AE,2,FALSE))","v":""},null,{"$f":"IF(G6313=\"\",\"\",VLOOKUP(G6313,Insumos!G:H,2,FALSE))","v":""}]
[null,null,null,null,null,{"$f":"IF(E6314=\"\",\"\",VLOOKUP(E6314,Insumos!AD:AE,2,FALSE))","v":""},null,{"$f":"IF(G6314=\"\",\"\",VLOOKUP(G6314,Insumos!G:H,2,FALSE))","v":""}]
[null,null,null,null,null,{"$f":"IF(E6315=\"\",\"\",VLOOKUP(E6315,Insumos!AD:AE,2,FALSE))","v":""},null,{"$f":"IF(G6315=\"\",\"\",VLOOKUP(G6315,Insumos!G:H,2,FALSE))","v":""}]
[null,null,null,null,null,{"$f":"IF(E6316=\"\",\"\",VLOOKUP(E6316,Insumos!AD:AE,2,FALSE))","v":""},null,{"$f":"IF(G6316=\"\",\"\",VLOOKUP(G6316,Insumos!G:H,2,FALSE))","v":""}]
[null,null,null,null,null,{"$f":"IF(E6317=\"\",\"\",VLOOKUP(E6317,Insumos!AD:AE,2,FALSE))","v":""},null,{"$f":"IF(G6317=\"\",\"\",VLOOKUP(G6317,Insumos!G:H,2,FALSE))","v":""}]
[null,null,null,null,null,{"$f":"IF(E6318=\"\",\"\",VLOOKUP(E6318,Insumos!AD:AE,2,FALSE))","v":""},null,{"$f":"IF(G6318=\"\",\"\",VLOOKUP(G6318,Insumos!G:H,2,FALSE))","v":""}]
[null,null,null,null,null,{"$f":"IF(E6319=\"\",\"\",VLOOKUP(E6319,Insumos!AD:AE,2,FALSE))","v":""},null,{"$f":"IF(G6319=\"\",\"\",VLOOKUP(G6319,Insumos!G:H,2,FALSE))","v":""}]
[null,null,null,null,null,{"$f":"IF(E6320=\"\",\"\",VLOOKUP(E6320,Insumos!AD:AE,2,FALSE))","v":""},null,{"$f":"IF(G6320=\"\",\"\",VLOOKUP(G6320,Insumos!G:H,2,FALSE))","v":""}]
[null,null,null,null,null,{"$f":"IF(E6321=\"\",\"\",VLOOKUP(E6321,Insumos!AD:AE,2,FALSE))","v":""},null,{"$f":"IF(G6321=\"\",\"\",VLOOKUP(G6321,Insumos!G:H,2,FALSE))","v":""}]
[null,null,null,null,null,{"$f":"IF(E6322=\"\",\"\",VLOOKUP(E6322,Insumos!AD:AE,2,FALSE))","v":""},null,{"$f":"IF(G6322=\"\",\"\",VLOOKUP(G6322,Insumos!G:H,2,FALSE))","v":""}]
[null,null,null,null,null,{"$f":"IF(E6323=\"\",\"\",VLOOKUP(E6323,Insumos!AD:AE,2,FALSE))","v":""},null,{"$f":"IF(G6323=\"\",\"\",VLOOKUP(G6323,Insumos!G:H,2,FALSE))","v":""}]
[null,null,null,null,null,{"$f":"IF(E6324=\"\",\"\",VLOOKUP(E6324,Insumos!AD:AE,2,FALSE))","v":""},null,{"$f":"IF(G6324=\"\",\"\",VLOOKUP(G6324,Insumos!G:H,2,FALSE))","v":""}]
[null,null,null,null,null,{"$f":"IF(E6325=\"\",\"\",VLOOKUP(E6325,Insumos!AD:AE,2,FALSE))","v":""},null,{"$f":"IF(G6325=\"\",\"\",VLOOKUP(G6325,Insumos!G:H,2,FALSE))","v":""}]
[null,null,null,null,null,{"$f":"IF(E6326=\"\",\"\",VLOOKUP(E6326,Insumos!AD:AE,2,FALSE))","v":""},null,{"$f":"IF(G6326=\"\",\"\",VLOOKUP(G6326,Insumos!G:H,2,FALSE))","v":""}]
[null,null,null,null,null,{"$f":"IF(E6327=\"\",\"\",VLOOKUP(E6327,Insumos!AD:AE,2,FALSE))","v":""},null,{"$f":"IF(G6327=\"\",\"\",VLOOKUP(G6327,Insumos!G:H,2,FALSE))","v":""}]
[null,null,null,null,null,{"$f":"IF(E6328=\"\",\"\",VLOOKUP(E6328,Insumos!AD:AE,2,FALSE))","v":""},null,{"$f":"IF(G6328=\"\",\"\",VLOOKUP(G6328,Insumos!G:H,2,FALSE))","v":""}]
[null,null,null,null,null,{"$f":"IF(E6329=\"\",\"\",VLOOKUP(E6329,Insumos!AD:AE,2,FALSE))","v":""},null,{"$f":"IF(G6329=\"\",\"\",VLOOKUP(G6329,Insumos!G:H,2,FALSE))","v":""}]
[null,null,null,null,null,{"$f":"IF(E6330=\"\",\"\",VLOOKUP(E6330,Insumos!AD:AE,2,FALSE))","v":""},null,{"$f":"IF(G6330=\"\",\"\",VLOOKUP(G6330,Insumos!G:H,2,FALSE))","v":""}]
[null,null,null,null,null,{"$f":"IF(E6331=\"\",\"\",VLOOKUP(E6331,Insumos!AD:AE,2,FALSE))","v":""},null,{"$f":"IF(G6331=\"\",\"\",VLOOKUP(G6331,Insumos!G:H,2,FALSE))","v":""}]
[null,null,null,null,null,{"$f":"IF(E6332=\"\",\"\",VLOOKUP(E6332,Insumos!AD:AE,2,FALSE))","v":""},null,{"$f":"IF(G6332=\"\",\"\",VLOOKUP(G6332,Insumos!G:H,2,FALSE))","v":""}]
[null,null,null,null,null,{"$f":"IF(E6333=\"\",\"\",VLOOKUP(E6333,Insumos!AD:AE,2,FALSE))","v":""},null,{"$f":"IF(G6333=\"\",\"\",VLOOKUP(G6333,Insumos!G:H,2,FALSE))","v":""}]
[null,null,null,null,null,{"$f":"IF(E6334=\"\",\"\",VLOOKUP(E6334,Insumos!AD:AE,2,FALSE))","v":""},null,{"$f":"IF(G6334=\"\",\"\",VLOOKUP(G6334,Insumos!G:H,2,FALSE))","v":""}]
[null,null,null,null,null,{"$f":"IF(E6335=\"\",\"\",VLOOKUP(E6335,Insumos!AD:AE,2,FALSE))","v":""},null,{"$f":"IF(G6335=\"\",\"\",VLOOKUP(G6335,Insumos!G:H,2,FALSE))","v":""}]
[null,null,null,null,null,{"$f":"IF(E6336=\"\",\"\",VLOOKUP(E6336,Insumos!AD:AE,2,FALSE))","v":""},null,{"$f":"IF(G6336=\"\",\"\",VLOOKUP(G6336,Insumos!G:H,2,FALSE))","v":""}]
[null,null,null,null,null,{"$f":"IF(E6337=\"\",\"\",VLOOKUP(E6337,Insumos!AD:AE,2,FALSE))","v":""},null,{"$f":"IF(G6337=\"\",\"\",VLOOKUP(G6337,Insumos!G:H,2,FALSE))","v":""}]
[null,null,null,null,null,{"$f":"IF(E6338=\"\",\"\",VLOOKUP(E6338,Insumos!AD:AE,2,FALSE))","v":""},null,{"$f":"IF(G6338=\"\",\"\",VLOOKUP(G6338,Insumos!G:H,2,FALSE))","v":""}]
[null,null,null,null,null,{"$f":"IF(E6339=\"\",\"\",VLOOKUP(E6339,Insumos!AD:AE,2,FALSE))","v":""},null,{"$f":"IF(G6339=\"\",\"\",VLOOKUP(G6339,Insumos!G:H,2,FALSE))","v":""}]
[null,null,null,null,null,{"$f":"IF(E6340=\"\",\"\",VLOOKUP(E6340,Insumos!AD:AE,2,FALSE))","v":""},null,{"$f":"IF(G6340=\"\",\"\",VLOOKUP(G6340,Insumos!G:H,2,FALSE))","v":""}]
[null,null,null,null,null,{"$f":"IF(E6341=\"\",\"\",VLOOKUP(E6341,Insumos!AD:AE,2,FALSE))","v":""},null,{"$f":"IF(G6341=\"\",\"\",VLOOKUP(G6341,Insumos!G:H,2,FALSE))","v":""}]
[null,null,null,null,null,{"$f":"IF(E6342=\"\",\"\",VLOOKUP(E6342,Insumos!AD:AE,2,FALSE))","v":""},null,{"$f":"IF(G6342=\"\",\"\",VLOOKUP(G6342,Insumos!G:H,2,FALSE))","v":""}]
[null,null,null,null,null,{"$f":"IF(E6343=\"\",\"\",VLOOKUP(E6343,Insumos!AD:AE,2,FALSE))","v":""},null,{"$f":"IF(G6343=\"\",\"\",VLOOKUP(G6343,Insumos!G:H,2,FALSE))","v":""}]
[null,null,null,null,null,{"$f":"IF(E6344=\"\",\"\",VLOOKUP(E6344,Insumos!AD:AE,2,FALSE))","v":""},null,{"$f":"IF(G6344=\"\",\"\",VLOOKUP(G6344,Insumos!G:H,2,FALSE))","v":""}]
[null,null,null,null,null,{"$f":"IF(E6345=\"\",\"\",VLOOKUP(E6345,Insumos!AD:AE,2,FALSE))","v":""},null,{"$f":"IF(G6345=\"\",\"\",VLOOKUP(G6345,Insumos!G:H,2,FALSE))","v":""}]
[null,null,null,null,null,{"$f":"IF(E6346=\"\",\"\",VLOOKUP(E6346,Insumos!AD:AE,2,FALSE))","v":""},null,{"$f":"IF(G6346=\"\",\"\",VLOOKUP(G6346,Insumos!G:H,2,FALSE))","v":""}]
[null,null,null,null,null,{"$f":"IF(E6347=\"\",\"\",VLOOKUP(E6347,Insumos!AD:AE,2,FALSE))","v":""},null,{"$f":"IF(G6347=\"\",\"\",VLOOKUP(G6347,Insumos!G:H,2,FALSE))","v":""}]
[null,null,null,null,null,{"$f":"IF(E6348=\"\",\"\",VLOOKUP(E6348,Insumos!AD:AE,2,FALSE))","v":""},null,{"$f":"IF(G6348=\"\",\"\",VLOOKUP(G6348,Insumos!G:H,2,FALSE))","v":""}]
[null,null,null,null,null,{"$f":"IF(E6349=\"\",\"\",VLOOKUP(E6349,Insumos!AD:AE,2,FALSE))","v":""},null,{"$f":"IF(G6349=\"\",\"\",VLOOKUP(G6349,Insumos!G:H,2,FALSE))","v":""}]
[null,null,null,null,null,{"$f":"IF(E6350=\"\",\"\",VLOOKUP(E6350,Insumos!AD:AE,2,FALSE))","v":""},null,{"$f":"IF(G6350=\"\",\"\",VLOOKUP(G6350,Insumos!G:H,2,FALSE))","v":""}]
[null,null,null,null,null,{"$f":"IF(E6351=\"\",\"\",VLOOKUP(E6351,Insumos!AD:AE,2,FALSE))","v":""},null,{"$f":"IF(G6351=\"\",\"\",VLOOKUP(G6351,Insumos!G:H,2,FALSE))","v":""}]
[null,null,null,null,null,{"$f":"IF(E6352=\"\",\"\",VLOOKUP(E6352,Insumos!AD:AE,2,FALSE))","v":""},null,{"$f":"IF(G6352=\"\",\"\",VLOOKUP(G6352,Insumos!G:H,2,FALSE))","v":""}]
[null,null,null,null,null,{"$f":"IF(E6353=\"\",\"\",VLOOKUP(E6353,Insumos!AD:AE,2,FALSE))","v":""},null,{"$f":"IF(G6353=\"\",\"\",VLOOKUP(G6353,Insumos!G:H,2,FALSE))","v":""}]
[null,null,null,null,null,{"$f":"IF(E6354=\"\",\"\",VLOOKUP(E6354,Insumos!AD:AE,2,FALSE))","v":""},null,{"$f":"IF(G6354=\"\",\"\",VLOOKUP(G6354,Insumos!G:H,2,FALSE))","v":""}]
[null,null,null,null,null,{"$f":"IF(E6355=\"\",\"\",VLOOKUP(E6355,Insumos!AD:AE,2,FALSE))","v":""},null,{"$f":"IF(G6355=\"\",\"\",VLOOKUP(G6355,Insumos!G:H,2,FALSE))","v":""}]
[null,null,null,null,null,{"$f":"IF(E6356=\"\",\"\",VLOOKUP(E6356,Insumos!AD:AE,2,FALSE))","v":""},null,{"$f":"IF(G6356=\"\",\"\",VLOOKUP(G6356,Insumos!G:H,2,FALSE))","v":""}]
[null,null,null,null,null,{"$f":"IF(E6357=\"\",\"\",VLOOKUP(E6357,Insumos!AD:AE,2,FALSE))","v":""},null,{"$f":"IF(G6357=\"\",\"\",VLOOKUP(G6357,Insumos!G:H,2,FALSE))","v":""}]
[null,null,null,null,null,{"$f":"IF(E6358=\"\",\"\",VLOOKUP(E6358,Insumos!AD:AE,2,FALSE))","v":""},null,{"$f":"IF(G6358=\"\",\"\",VLOOKUP(G6358,Insumos!G:H,2,FALSE))","v":""}]
[null,null,null,null,null,{"$f":"IF(E6359=\"\",\"\",VLOOKUP(E6359,Insumos!AD:AE,2,FALSE))","v":""},null,{"$f":"IF(G6359=\"\",\"\",VLOOKUP(G6359,Insumos!G:H,2,FALSE))","v":""}]
[null,null,null,null,null,{"$f":"IF(E6360=\"\",\"\",VLOOKUP(E6360,Insumos!AD:AE,2,FALSE))","v":""},null,{"$f":"IF(G6360=\"\",\"\",VLOOKUP(G6360,Insumos!G:H,2,FALSE))","v":""}]
[null,null,null,null,null,{"$f":"IF(E6361=\"\",\"\",VLOOKUP(E6361,Insumos!AD:AE,2,FALSE))","v":""},null,{"$f":"IF(G6361=\"\",\"\",VLOOKUP(G6361,Insumos!G:H,2,FALSE))","v":""}]
[null,null,null,null,null,{"$f":"IF(E6362=\"\",\"\",VLOOKUP(E6362,Insumos!AD:AE,2,FALSE))","v":""},null,{"$f":"IF(G6362=\"\",\"\",VLOOKUP(G6362,Insumos!G:H,2,FALSE))","v":""}]
[null,null,null,null,null,{"$f":"IF(E6363=\"\",\"\",VLOOKUP(E6363,Insumos!AD:AE,2,FALSE))","v":""},null,{"$f":"IF(G6363=\"\",\"\",VLOOKUP(G6363,Insumos!G:H,2,FALSE))","v":""}]
[null,null,null,null,null,{"$f":"IF(E6364=\"\",\"\",VLOOKUP(E6364,Insumos!AD:AE,2,FALSE))","v":""},null,{"$f":"IF(G6364=\"\",\"\",VLOOKUP(G6364,Insumos!G:H,2,FALSE))","v":""}]
[null,null,null,null,null,{"$f":"IF(E6365=\"\",\"\",VLOOKUP(E6365,Insumos!AD:AE,2,FALSE))","v":""},null,{"$f":"IF(G6365=\"\",\"\",VLOOKUP(G6365,Insumos!G:H,2,FALSE))","v":""}]
[null,null,null,null,null,{"$f":"IF(E6366=\"\",\"\",VLOOKUP(E6366,Insumos!AD:AE,2,FALSE))","v":""},null,{"$f":"IF(G6366=\"\",\"\",VLOOKUP(G6366,Insumos!G:H,2,FALSE))","v":""}]
[null,null,null,null,null,{"$f":"IF(E6367=\"\",\"\",VLOOKUP(E6367,Insumos!AD:AE,2,FALSE))","v":""},null,{"$f":"IF(G6367=\"\",\"\",VLOOKUP(G6367,Insumos!G:H,2,FALSE))","v":""}]
[null,null,null,null,null,{"$f":"IF(E6368=\"\",\"\",VLOOKUP(E6368,Insumos!AD:AE,2,FALSE))","v":""},null,{"$f":"IF(G6368=\"\",\"\",VLOOKUP(G6368,Insumos!G:H,2,FALSE))","v":""}]
[null,null,null,null,null,{"$f":"IF(E6369=\"\",\"\",VLOOKUP(E6369,Insumos!AD:AE,2,FALSE))","v":""},null,{"$f":"IF(G6369=\"\",\"\",VLOOKUP(G6369,Insumos!G:H,2,FALSE))","v":""}]
[null,null,null,null,null,{"$f":"IF(E6370=\"\",\"\",VLOOKUP(E6370,Insumos!AD:AE,2,FALSE))","v":""},null,{"$f":"IF(G6370=\"\",\"\",VLOOKUP(G6370,Insumos!G:H,2,FALSE))","v":""}]
[null,null,null,null,null,{"$f":"IF(E6371=\"\",\"\",VLOOKUP(E6371,Insumos!AD:AE,2,FALSE))","v":""},null,{"$f":"IF(G6371=\"\",\"\",VLOOKUP(G6371,Insumos!G:H,2,FALSE))","v":""}]
[null,null,null,null,null,{"$f":"IF(E6372=\"\",\"\",VLOOKUP(E6372,Insumos!AD:AE,2,FALSE))","v":""},null,{"$f":"IF(G6372=\"\",\"\",VLOOKUP(G6372,Insumos!G:H,2,FALSE))","v":""}]
[null,null,null,null,null,{"$f":"IF(E6373=\"\",\"\",VLOOKUP(E6373,Insumos!AD:AE,2,FALSE))","v":""},null,{"$f":"IF(G6373=\"\",\"\",VLOOKUP(G6373,Insumos!G:H,2,FALSE))","v":""}]
[null,null,null,null,null,{"$f":"IF(E6374=\"\",\"\",VLOOKUP(E6374,Insumos!AD:AE,2,FALSE))","v":""},null,{"$f":"IF(G6374=\"\",\"\",VLOOKUP(G6374,Insumos!G:H,2,FALSE))","v":""}]
[null,null,null,null,null,{"$f":"IF(E6375=\"\",\"\",VLOOKUP(E6375,Insumos!AD:AE,2,FALSE))","v":""},null,{"$f":"IF(G6375=\"\",\"\",VLOOKUP(G6375,Insumos!G:H,2,FALSE))","v":""}]
[null,null,null,null,null,{"$f":"IF(E6376=\"\",\"\",VLOOKUP(E6376,Insumos!AD:AE,2,FALSE))","v":""},null,{"$f":"IF(G6376=\"\",\"\",VLOOKUP(G6376,Insumos!G:H,2,FALSE))","v":""}]
[null,null,null,null,null,{"$f":"IF(E6377=\"\",\"\",VLOOKUP(E6377,Insumos!AD:AE,2,FALSE))","v":""},null,{"$f":"IF(G6377=\"\",\"\",VLOOKUP(G6377,Insumos!G:H,2,FALSE))","v":""}]
[null,null,null,null,null,{"$f":"IF(E6378=\"\",\"\",VLOOKUP(E6378,Insumos!AD:AE,2,FALSE))","v":""},null,{"$f":"IF(G6378=\"\",\"\",VLOOKUP(G6378,Insumos!G:H,2,FALSE))","v":""}]
[null,null,null,null,null,{"$f":"IF(E6379=\"\",\"\",VLOOKUP(E6379,Insumos!AD:AE,2,FALSE))","v":""},null,{"$f":"IF(G6379=\"\",\"\",VLOOKUP(G6379,Insumos!G:H,2,FALSE))","v":""}]
[null,null,null,null,null,{"$f":"IF(E6380=\"\",\"\",VLOOKUP(E6380,Insumos!AD:AE,2,FALSE))","v":""},null,{"$f":"IF(G6380=\"\",\"\",VLOOKUP(G6380,Insumos!G:H,2,FALSE))","v":""}]
[null,null,null,null,null,{"$f":"IF(E6381=\"\",\"\",VLOOKUP(E6381,Insumos!AD:AE,2,FALSE))","v":""},null,{"$f":"IF(G6381=\"\",\"\",VLOOKUP(G6381,Insumos!G:H,2,FALSE))","v":""}]
[null,null,null,null,null,{"$f":"IF(E6382=\"\",\"\",VLOOKUP(E6382,Insumos!AD:AE,2,FALSE))","v":""},null,{"$f":"IF(G6382=\"\",\"\",VLOOKUP(G6382,Insumos!G:H,2,FALSE))","v":""}]
[null,null,null,null,null,{"$f":"IF(E6383=\"\",\"\",VLOOKUP(E6383,Insumos!AD:AE,2,FALSE))","v":""},null,{"$f":"IF(G6383=\"\",\"\",VLOOKUP(G6383,Insumos!G:H,2,FALSE))","v":""}]
[null,null,null,null,null,{"$f":"IF(E6384=\"\",\"\",VLOOKUP(E6384,Insumos!AD:AE,2,FALSE))","v":""},null,{"$f":"IF(G6384=\"\",\"\",VLOOKUP(G6384,Insumos!G:H,2,FALSE))","v":""}]
[null,null,null,null,null,{"$f":"IF(E6385=\"\",\"\",VLOOKUP(E6385,Insumos!AD:AE,2,FALSE))","v":""},null,{"$f":"IF(G6385=\"\",\"\",VLOOKUP(G6385,Insumos!G:H,2,FALSE))","v":""}]
[null,null,null,null,null,{"$f":"IF(E6386=\"\",\"\",VLOOKUP(E6386,Insumos!AD:AE,2,FALSE))","v":""},null,{"$f":"IF(G6386=\"\",\"\",VLOOKUP(G6386,Insumos!G:H,2,FALSE))","v":""}]
[null,null,null,null,null,{"$f":"IF(E6387=\"\",\"\",VLOOKUP(E6387,Insumos!AD:AE,2,FALSE))","v":""},null,{"$f":"IF(G6387=\"\",\"\",VLOOKUP(G6387,Insumos!G:H,2,FALSE))","v":""}]
[null,null,null,null,null,{"$f":"IF(E6388=\"\",\"\",VLOOKUP(E6388,Insumos!AD:AE,2,FALSE))","v":""},null,{"$f":"IF(G6388=\"\",\"\",VLOOKUP(G6388,Insumos!G:H,2,FALSE))","v":""}]
[null,null,null,null,null,{"$f":"IF(E6389=\"\",\"\",VLOOKUP(E6389,Insumos!AD:AE,2,FALSE))","v":""},null,{"$f":"IF(G6389=\"\",\"\",VLOOKUP(G6389,Insumos!G:H,2,FALSE))","v":""}]
[null,null,null,null,null,{"$f":"IF(E6390=\"\",\"\",VLOOKUP(E6390,Insumos!AD:AE,2,FALSE))","v":""},null,{"$f":"IF(G6390=\"\",\"\",VLOOKUP(G6390,Insumos!G:H,2,FALSE))","v":""}]
[null,null,null,null,null,{"$f":"IF(E6391=\"\",\"\",VLOOKUP(E6391,Insumos!AD:AE,2,FALSE))","v":""},null,{"$f":"IF(G6391=\"\",\"\",VLOOKUP(G6391,Insumos!G:H,2,FALSE))","v":""}]
[null,null,null,null,null,{"$f":"IF(E6392=\"\",\"\",VLOOKUP(E6392,Insumos!AD:AE,2,FALSE))","v":""},null,{"$f":"IF(G6392=\"\",\"\",VLOOKUP(G6392,Insumos!G:H,2,FALSE))","v":""}]
[null,null,null,null,null,{"$f":"IF(E6393=\"\",\"\",VLOOKUP(E6393,Insumos!AD:AE,2,FALSE))","v":""},null,{"$f":"IF(G6393=\"\",\"\",VLOOKUP(G6393,Insumos!G:H,2,FALSE))","v":""}]
[null,null,null,null,null,{"$f":"IF(E6394=\"\",\"\",VLOOKUP(E6394,Insumos!AD:AE,2,FALSE))","v":""},null,{"$f":"IF(G6394=\"\",\"\",VLOOKUP(G6394,Insumos!G:H,2,FALSE))","v":""}]
[null,null,null,null,null,{"$f":"IF(E6395=\"\",\"\",VLOOKUP(E6395,Insumos!AD:AE,2,FALSE))","v":""},null,{"$f":"IF(G6395=\"\",\"\",VLOOKUP(G6395,Insumos!G:H,2,FALSE))","v":""}]
[null,null,null,null,null,{"$f":"IF(E6396=\"\",\"\",VLOOKUP(E6396,Insumos!AD:AE,2,FALSE))","v":""},null,{"$f":"IF(G6396=\"\",\"\",VLOOKUP(G6396,Insumos!G:H,2,FALSE))","v":""}]
[null,null,null,null,null,{"$f":"IF(E6397=\"\",\"\",VLOOKUP(E6397,Insumos!AD:AE,2,FALSE))","v":""},null,{"$f":"IF(G6397=\"\",\"\",VLOOKUP(G6397,Insumos!G:H,2,FALSE))","v":""}]
[null,null,null,null,null,{"$f":"IF(E6398=\"\",\"\",VLOOKUP(E6398,Insumos!AD:AE,2,FALSE))","v":""},null,{"$f":"IF(G6398=\"\",\"\",VLOOKUP(G6398,Insumos!G:H,2,FALSE))","v":""}]
[null,null,null,null,null,{"$f":"IF(E6399=\"\",\"\",VLOOKUP(E6399,Insumos!AD:AE,2,FALSE))","v":""},null,{"$f":"IF(G6399=\"\",\"\",VLOOKUP(G6399,Insumos!G:H,2,FALSE))","v":""}]
[null,null,null,null,null,{"$f":"IF(E6400=\"\",\"\",VLOOKUP(E6400,Insumos!AD:AE,2,FALSE))","v":""},null,{"$f":"IF(G6400=\"\",\"\",VLOOKUP(G6400,Insumos!G:H,2,FALSE))","v":""}]
[null,null,null,null,null,{"$f":"IF(E6401=\"\",\"\",VLOOKUP(E6401,Insumos!AD:AE,2,FALSE))","v":""},null,{"$f":"IF(G6401=\"\",\"\",VLOOKUP(G6401,Insumos!G:H,2,FALSE))","v":""}]
[null,null,null,null,null,{"$f":"IF(E6402=\"\",\"\",VLOOKUP(E6402,Insumos!AD:AE,2,FALSE))","v":""},null,{"$f":"IF(G6402=\"\",\"\",VLOOKUP(G6402,Insumos!G:H,2,FALSE))","v":""}]
[null,null,null,null,null,{"$f":"IF(E6403=\"\",\"\",VLOOKUP(E6403,Insumos!AD:AE,2,FALSE))","v":""},null,{"$f":"IF(G6403=\"\",\"\",VLOOKUP(G6403,Insumos!G:H,2,FALSE))","v":""}]
[null,null,null,null,null,{"$f":"IF(E6404=\"\",\"\",VLOOKUP(E6404,Insumos!AD:AE,2,FALSE))","v":""},null,{"$f":"IF(G6404=\"\",\"\",VLOOKUP(G6404,Insumos!G:H,2,FALSE))","v":""}]
[null,null,null,null,null,{"$f":"IF(E6405=\"\",\"\",VLOOKUP(E6405,Insumos!AD:AE,2,FALSE))","v":""},null,{"$f":"IF(G6405=\"\",\"\",VLOOKUP(G6405,Insumos!G:H,2,FALSE))","v":""}]
[null,null,null,null,null,{"$f":"IF(E6406=\"\",\"\",VLOOKUP(E6406,Insumos!AD:AE,2,FALSE))","v":""},null,{"$f":"IF(G6406=\"\",\"\",VLOOKUP(G6406,Insumos!G:H,2,FALSE))","v":""}]
[null,null,null,null,null,{"$f":"IF(E6407=\"\",\"\",VLOOKUP(E6407,Insumos!AD:AE,2,FALSE))","v":""},null,{"$f":"IF(G6407=\"\",\"\",VLOOKUP(G6407,Insumos!G:H,2,FALSE))","v":""}]
[null,null,null,null,null,{"$f":"IF(E6408=\"\",\"\",VLOOKUP(E6408,Insumos!AD:AE,2,FALSE))","v":""},null,{"$f":"IF(G6408=\"\",\"\",VLOOKUP(G6408,Insumos!G:H,2,FALSE))","v":""}]
[null,null,null,null,null,{"$f":"IF(E6409=\"\",\"\",VLOOKUP(E6409,Insumos!AD:AE,2,FALSE))","v":""},null,{"$f":"IF(G6409=\"\",\"\",VLOOKUP(G6409,Insumos!G:H,2,FALSE))","v":""}]
[null,null,null,null,null,{"$f":"IF(E6410=\"\",\"\",VLOOKUP(E6410,Insumos!AD:AE,2,FALSE))","v":""},null,{"$f":"IF(G6410=\"\",\"\",VLOOKUP(G6410,Insumos!G:H,2,FALSE))","v":""}]
[null,null,null,null,null,{"$f":"IF(E6411=\"\",\"\",VLOOKUP(E6411,Insumos!AD:AE,2,FALSE))","v":""},null,{"$f":"IF(G6411=\"\",\"\",VLOOKUP(G6411,Insumos!G:H,2,FALSE))","v":""}]
[null,null,null,null,null,{"$f":"IF(E6412=\"\",\"\",VLOOKUP(E6412,Insumos!AD:AE,2,FALSE))","v":""},null,{"$f":"IF(G6412=\"\",\"\",VLOOKUP(G6412,Insumos!G:H,2,FALSE))","v":""}]
[null,null,null,null,null,{"$f":"IF(E6413=\"\",\"\",VLOOKUP(E6413,Insumos!AD:AE,2,FALSE))","v":""},null,{"$f":"IF(G6413=\"\",\"\",VLOOKUP(G6413,Insumos!G:H,2,FALSE))","v":""}]
[null,null,null,null,null,{"$f":"IF(E6414=\"\",\"\",VLOOKUP(E6414,Insumos!AD:AE,2,FALSE))","v":""},null,{"$f":"IF(G6414=\"\",\"\",VLOOKUP(G6414,Insumos!G:H,2,FALSE))","v":""}]
[null,null,null,null,null,{"$f":"IF(E6415=\"\",\"\",VLOOKUP(E6415,Insumos!AD:AE,2,FALSE))","v":""},null,{"$f":"IF(G6415=\"\",\"\",VLOOKUP(G6415,Insumos!G:H,2,FALSE))","v":""}]
[null,null,null,null,null,{"$f":"IF(E6416=\"\",\"\",VLOOKUP(E6416,Insumos!AD:AE,2,FALSE))","v":""},null,{"$f":"IF(G6416=\"\",\"\",VLOOKUP(G6416,Insumos!G:H,2,FALSE))","v":""}]
[null,null,null,null,null,{"$f":"IF(E6417=\"\",\"\",VLOOKUP(E6417,Insumos!AD:AE,2,FALSE))","v":""},null,{"$f":"IF(G6417=\"\",\"\",VLOOKUP(G6417,Insumos!G:H,2,FALSE))","v":""}]
[null,null,null,null,null,{"$f":"IF(E6418=\"\",\"\",VLOOKUP(E6418,Insumos!AD:AE,2,FALSE))","v":""},null,{"$f":"IF(G6418=\"\",\"\",VLOOKUP(G6418,Insumos!G:H,2,FALSE))","v":""}]
[null,null,null,null,null,{"$f":"IF(E6419=\"\",\"\",VLOOKUP(E6419,Insumos!AD:AE,2,FALSE))","v":""},null,{"$f":"IF(G6419=\"\",\"\",VLOOKUP(G6419,Insumos!G:H,2,FALSE))","v":""}]
[null,null,null,null,null,{"$f":"IF(E6420=\"\",\"\",VLOOKUP(E6420,Insumos!AD:AE,2,FALSE))","v":""},null,{"$f":"IF(G6420=\"\",\"\",VLOOKUP(G6420,Insumos!G:H,2,FALSE))","v":""}]
[null,null,null,null,null,{"$f":"IF(E6421=\"\",\"\",VLOOKUP(E6421,Insumos!AD:AE,2,FALSE))","v":""},null,{"$f":"IF(G6421=\"\",\"\",VLOOKUP(G6421,Insumos!G:H,2,FALSE))","v":""}]
[null,null,null,null,null,{"$f":"IF(E6422=\"\",\"\",VLOOKUP(E6422,Insumos!AD:AE,2,FALSE))","v":""},null,{"$f":"IF(G6422=\"\",\"\",VLOOKUP(G6422,Insumos!G:H,2,FALSE))","v":""}]
[null,null,null,null,null,{"$f":"IF(E6423=\"\",\"\",VLOOKUP(E6423,Insumos!AD:AE,2,FALSE))","v":""},null,{"$f":"IF(G6423=\"\",\"\",VLOOKUP(G6423,Insumos!G:H,2,FALSE))","v":""}]
[null,null,null,null,null,{"$f":"IF(E6424=\"\",\"\",VLOOKUP(E6424,Insumos!AD:AE,2,FALSE))","v":""},null,{"$f":"IF(G6424=\"\",\"\",VLOOKUP(G6424,Insumos!G:H,2,FALSE))","v":""}]
[null,null,null,null,null,{"$f":"IF(E6425=\"\",\"\",VLOOKUP(E6425,Insumos!AD:AE,2,FALSE))","v":""},null,{"$f":"IF(G6425=\"\",\"\",VLOOKUP(G6425,Insumos!G:H,2,FALSE))","v":""}]
[null,null,null,null,null,{"$f":"IF(E6426=\"\",\"\",VLOOKUP(E6426,Insumos!AD:AE,2,FALSE))","v":""},null,{"$f":"IF(G6426=\"\",\"\",VLOOKUP(G6426,Insumos!G:H,2,FALSE))","v":""}]
[null,null,null,null,null,{"$f":"IF(E6427=\"\",\"\",VLOOKUP(E6427,Insumos!AD:AE,2,FALSE))","v":""},null,{"$f":"IF(G6427=\"\",\"\",VLOOKUP(G6427,Insumos!G:H,2,FALSE))","v":""}]
[null,null,null,null,null,{"$f":"IF(E6428=\"\",\"\",VLOOKUP(E6428,Insumos!AD:AE,2,FALSE))","v":""},null,{"$f":"IF(G6428=\"\",\"\",VLOOKUP(G6428,Insumos!G:H,2,FALSE))","v":""}]
[null,null,null,null,null,{"$f":"IF(E6429=\"\",\"\",VLOOKUP(E6429,Insumos!AD:AE,2,FALSE))","v":""},null,{"$f":"IF(G6429=\"\",\"\",VLOOKUP(G6429,Insumos!G:H,2,FALSE))","v":""}]
[null,null,null,null,null,{"$f":"IF(E6430=\"\",\"\",VLOOKUP(E6430,Insumos!AD:AE,2,FALSE))","v":""},null,{"$f":"IF(G6430=\"\",\"\",VLOOKUP(G6430,Insumos!G:H,2,FALSE))","v":""}]
[null,null,null,null,null,{"$f":"IF(E6431=\"\",\"\",VLOOKUP(E6431,Insumos!AD:AE,2,FALSE))","v":""},null,{"$f":"IF(G6431=\"\",\"\",VLOOKUP(G6431,Insumos!G:H,2,FALSE))","v":""}]
[null,null,null,null,null,{"$f":"IF(E6432=\"\",\"\",VLOOKUP(E6432,Insumos!AD:AE,2,FALSE))","v":""},null,{"$f":"IF(G6432=\"\",\"\",VLOOKUP(G6432,Insumos!G:H,2,FALSE))","v":""}]
[null,null,null,null,null,{"$f":"IF(E6433=\"\",\"\",VLOOKUP(E6433,Insumos!AD:AE,2,FALSE))","v":""},null,{"$f":"IF(G6433=\"\",\"\",VLOOKUP(G6433,Insumos!G:H,2,FALSE))","v":""}]
[null,null,null,null,null,{"$f":"IF(E6434=\"\",\"\",VLOOKUP(E6434,Insumos!AD:AE,2,FALSE))","v":""},null,{"$f":"IF(G6434=\"\",\"\",VLOOKUP(G6434,Insumos!G:H,2,FALSE))","v":""}]
[null,null,null,null,null,{"$f":"IF(E6435=\"\",\"\",VLOOKUP(E6435,Insumos!AD:AE,2,FALSE))","v":""},null,{"$f":"IF(G6435=\"\",\"\",VLOOKUP(G6435,Insumos!G:H,2,FALSE))","v":""}]
[null,null,null,null,null,{"$f":"IF(E6436=\"\",\"\",VLOOKUP(E6436,Insumos!AD:AE,2,FALSE))","v":""},null,{"$f":"IF(G6436=\"\",\"\",VLOOKUP(G6436,Insumos!G:H,2,FALSE))","v":""}]
[null,null,null,null,null,{"$f":"IF(E6437=\"\",\"\",VLOOKUP(E6437,Insumos!AD:AE,2,FALSE))","v":""},null,{"$f":"IF(G6437=\"\",\"\",VLOOKUP(G6437,Insumos!G:H,2,FALSE))","v":""}]
[null,null,null,null,null,{"$f":"IF(E6438=\"\",\"\",VLOOKUP(E6438,Insumos!AD:AE,2,FALSE))","v":""},null,{"$f":"IF(G6438=\"\",\"\",VLOOKUP(G6438,Insumos!G:H,2,FALSE))","v":""}]
[null,null,null,null,null,{"$f":"IF(E6439=\"\",\"\",VLOOKUP(E6439,Insumos!AD:AE,2,FALSE))","v":""},null,{"$f":"IF(G6439=\"\",\"\",VLOOKUP(G6439,Insumos!G:H,2,FALSE))","v":""}]
[null,null,null,null,null,{"$f":"IF(E6440=\"\",\"\",VLOOKUP(E6440,Insumos!AD:AE,2,FALSE))","v":""},null,{"$f":"IF(G6440=\"\",\"\",VLOOKUP(G6440,Insumos!G:H,2,FALSE))","v":""}]
[null,null,null,null,null,{"$f":"IF(E6441=\"\",\"\",VLOOKUP(E6441,Insumos!AD:AE,2,FALSE))","v":""},null,{"$f":"IF(G6441=\"\",\"\",VLOOKUP(G6441,Insumos!G:H,2,FALSE))","v":""}]
[null,null,null,null,null,{"$f":"IF(E6442=\"\",\"\",VLOOKUP(E6442,Insumos!AD:AE,2,FALSE))","v":""},null,{"$f":"IF(G6442=\"\",\"\",VLOOKUP(G6442,Insumos!G:H,2,FALSE))","v":""}]
[null,null,null,null,null,{"$f":"IF(E6443=\"\",\"\",VLOOKUP(E6443,Insumos!AD:AE,2,FALSE))","v":""},null,{"$f":"IF(G6443=\"\",\"\",VLOOKUP(G6443,Insumos!G:H,2,FALSE))","v":""}]
[null,null,null,null,null,{"$f":"IF(E6444=\"\",\"\",VLOOKUP(E6444,Insumos!AD:AE,2,FALSE))","v":""},null,{"$f":"IF(G6444=\"\",\"\",VLOOKUP(G6444,Insumos!G:H,2,FALSE))","v":""}]
[null,null,null,null,null,{"$f":"IF(E6445=\"\",\"\",VLOOKUP(E6445,Insumos!AD:AE,2,FALSE))","v":""},null,{"$f":"IF(G6445=\"\",\"\",VLOOKUP(G6445,Insumos!G:H,2,FALSE))","v":""}]
[null,null,null,null,null,{"$f":"IF(E6446=\"\",\"\",VLOOKUP(E6446,Insumos!AD:AE,2,FALSE))","v":""},null,{"$f":"IF(G6446=\"\",\"\",VLOOKUP(G6446,Insumos!G:H,2,FALSE))","v":""}]
[null,null,null,null,null,{"$f":"IF(E6447=\"\",\"\",VLOOKUP(E6447,Insumos!AD:AE,2,FALSE))","v":""},null,{"$f":"IF(G6447=\"\",\"\",VLOOKUP(G6447,Insumos!G:H,2,FALSE))","v":""}]
[null,null,null,null,null,{"$f":"IF(E6448=\"\",\"\",VLOOKUP(E6448,Insumos!AD:AE,2,FALSE))","v":""},null,{"$f":"IF(G6448=\"\",\"\",VLOOKUP(G6448,Insumos!G:H,2,FALSE))","v":""}]
[null,null,null,null,null,{"$f":"IF(E6449=\"\",\"\",VLOOKUP(E6449,Insumos!AD:AE,2,FALSE))","v":""},null,{"$f":"IF(G6449=\"\",\"\",VLOOKUP(G6449,Insumos!G:H,2,FALSE))","v":""}]
[null,null,null,null,null,{"$f":"IF(E6450=\"\",\"\",VLOOKUP(E6450,Insumos!AD:AE,2,FALSE))","v":""},null,{"$f":"IF(G6450=\"\",\"\",VLOOKUP(G6450,Insumos!G:H,2,FALSE))","v":""}]
[null,null,null,null,null,{"$f":"IF(E6451=\"\",\"\",VLOOKUP(E6451,Insumos!AD:AE,2,FALSE))","v":""},null,{"$f":"IF(G6451=\"\",\"\",VLOOKUP(G6451,Insumos!G:H,2,FALSE))","v":""}]
[null,null,null,null,null,{"$f":"IF(E6452=\"\",\"\",VLOOKUP(E6452,Insumos!AD:AE,2,FALSE))","v":""},null,{"$f":"IF(G6452=\"\",\"\",VLOOKUP(G6452,Insumos!G:H,2,FALSE))","v":""}]
[null,null,null,null,null,{"$f":"IF(E6453=\"\",\"\",VLOOKUP(E6453,Insumos!AD:AE,2,FALSE))","v":""},null,{"$f":"IF(G6453=\"\",\"\",VLOOKUP(G6453,Insumos!G:H,2,FALSE))","v":""}]
[null,null,null,null,null,{"$f":"IF(E6454=\"\",\"\",VLOOKUP(E6454,Insumos!AD:AE,2,FALSE))","v":""},null,{"$f":"IF(G6454=\"\",\"\",VLOOKUP(G6454,Insumos!G:H,2,FALSE))","v":""}]
[null,null,null,null,null,{"$f":"IF(E6455=\"\",\"\",VLOOKUP(E6455,Insumos!AD:AE,2,FALSE))","v":""},null,{"$f":"IF(G6455=\"\",\"\",VLOOKUP(G6455,Insumos!G:H,2,FALSE))","v":""}]
[null,null,null,null,null,{"$f":"IF(E6456=\"\",\"\",VLOOKUP(E6456,Insumos!AD:AE,2,FALSE))","v":""},null,{"$f":"IF(G6456=\"\",\"\",VLOOKUP(G6456,Insumos!G:H,2,FALSE))","v":""}]
[null,null,null,null,null,{"$f":"IF(E6457=\"\",\"\",VLOOKUP(E6457,Insumos!AD:AE,2,FALSE))","v":""},null,{"$f":"IF(G6457=\"\",\"\",VLOOKUP(G6457,Insumos!G:H,2,FALSE))","v":""}]
[null,null,null,null,null,{"$f":"IF(E6458=\"\",\"\",VLOOKUP(E6458,Insumos!AD:AE,2,FALSE))","v":""},null,{"$f":"IF(G6458=\"\",\"\",VLOOKUP(G6458,Insumos!G:H,2,FALSE))","v":""}]
[null,null,null,null,null,{"$f":"IF(E6459=\"\",\"\",VLOOKUP(E6459,Insumos!AD:AE,2,FALSE))","v":""},null,{"$f":"IF(G6459=\"\",\"\",VLOOKUP(G6459,Insumos!G:H,2,FALSE))","v":""}]
[null,null,null,null,null,{"$f":"IF(E6460=\"\",\"\",VLOOKUP(E6460,Insumos!AD:AE,2,FALSE))","v":""},null,{"$f":"IF(G6460=\"\",\"\",VLOOKUP(G6460,Insumos!G:H,2,FALSE))","v":""}]
[null,null,null,null,null,{"$f":"IF(E6461=\"\",\"\",VLOOKUP(E6461,Insumos!AD:AE,2,FALSE))","v":""},null,{"$f":"IF(G6461=\"\",\"\",VLOOKUP(G6461,Insumos!G:H,2,FALSE))","v":""}]
[null,null,null,null,null,{"$f":"IF(E6462=\"\",\"\",VLOOKUP(E6462,Insumos!AD:AE,2,FALSE))","v":""},null,{"$f":"IF(G6462=\"\",\"\",VLOOKUP(G6462,Insumos!G:H,2,FALSE))","v":""}]
[null,null,null,null,null,{"$f":"IF(E6463=\"\",\"\",VLOOKUP(E6463,Insumos!AD:AE,2,FALSE))","v":""},null,{"$f":"IF(G6463=\"\",\"\",VLOOKUP(G6463,Insumos!G:H,2,FALSE))","v":""}]
[null,null,null,null,null,{"$f":"IF(E6464=\"\",\"\",VLOOKUP(E6464,Insumos!AD:AE,2,FALSE))","v":""},null,{"$f":"IF(G6464=\"\",\"\",VLOOKUP(G6464,Insumos!G:H,2,FALSE))","v":""}]
[null,null,null,null,null,{"$f":"IF(E6465=\"\",\"\",VLOOKUP(E6465,Insumos!AD:AE,2,FALSE))","v":""},null,{"$f":"IF(G6465=\"\",\"\",VLOOKUP(G6465,Insumos!G:H,2,FALSE))","v":""}]
[null,null,null,null,null,{"$f":"IF(E6466=\"\",\"\",VLOOKUP(E6466,Insumos!AD:AE,2,FALSE))","v":""},null,{"$f":"IF(G6466=\"\",\"\",VLOOKUP(G6466,Insumos!G:H,2,FALSE))","v":""}]
[null,null,null,null,null,{"$f":"IF(E6467=\"\",\"\",VLOOKUP(E6467,Insumos!AD:AE,2,FALSE))","v":""},null,{"$f":"IF(G6467=\"\",\"\",VLOOKUP(G6467,Insumos!G:H,2,FALSE))","v":""}]
[null,null,null,null,null,{"$f":"IF(E6468=\"\",\"\",VLOOKUP(E6468,Insumos!AD:AE,2,FALSE))","v":""},null,{"$f":"IF(G6468=\"\",\"\",VLOOKUP(G6468,Insumos!G:H,2,FALSE))","v":""}]
[null,null,null,null,null,{"$f":"IF(E6469=\"\",\"\",VLOOKUP(E6469,Insumos!AD:AE,2,FALSE))","v":""},null,{"$f":"IF(G6469=\"\",\"\",VLOOKUP(G6469,Insumos!G:H,2,FALSE))","v":""}]
[null,null,null,null,null,{"$f":"IF(E6470=\"\",\"\",VLOOKUP(E6470,Insumos!AD:AE,2,FALSE))","v":""},null,{"$f":"IF(G6470=\"\",\"\",VLOOKUP(G6470,Insumos!G:H,2,FALSE))","v":""}]
[null,null,null,null,null,{"$f":"IF(E6471=\"\",\"\",VLOOKUP(E6471,Insumos!AD:AE,2,FALSE))","v":""},null,{"$f":"IF(G6471=\"\",\"\",VLOOKUP(G6471,Insumos!G:H,2,FALSE))","v":""}]
[null,null,null,null,null,{"$f":"IF(E6472=\"\",\"\",VLOOKUP(E6472,Insumos!AD:AE,2,FALSE))","v":""},null,{"$f":"IF(G6472=\"\",\"\",VLOOKUP(G6472,Insumos!G:H,2,FALSE))","v":""}]
[null,null,null,null,null,{"$f":"IF(E6473=\"\",\"\",VLOOKUP(E6473,Insumos!AD:AE,2,FALSE))","v":""},null,{"$f":"IF(G6473=\"\",\"\",VLOOKUP(G6473,Insumos!G:H,2,FALSE))","v":""}]
[null,null,null,null,null,{"$f":"IF(E6474=\"\",\"\",VLOOKUP(E6474,Insumos!AD:AE,2,FALSE))","v":""},null,{"$f":"IF(G6474=\"\",\"\",VLOOKUP(G6474,Insumos!G:H,2,FALSE))","v":""}]
[null,null,null,null,null,{"$f":"IF(E6475=\"\",\"\",VLOOKUP(E6475,Insumos!AD:AE,2,FALSE))","v":""},null,{"$f":"IF(G6475=\"\",\"\",VLOOKUP(G6475,Insumos!G:H,2,FALSE))","v":""}]
[null,null,null,null,null,{"$f":"IF(E6476=\"\",\"\",VLOOKUP(E6476,Insumos!AD:AE,2,FALSE))","v":""},null,{"$f":"IF(G6476=\"\",\"\",VLOOKUP(G6476,Insumos!G:H,2,FALSE))","v":""}]
[null,null,null,null,null,{"$f":"IF(E6477=\"\",\"\",VLOOKUP(E6477,Insumos!AD:AE,2,FALSE))","v":""},null,{"$f":"IF(G6477=\"\",\"\",VLOOKUP(G6477,Insumos!G:H,2,FALSE))","v":""}]
[null,null,null,null,null,{"$f":"IF(E6478=\"\",\"\",VLOOKUP(E6478,Insumos!AD:AE,2,FALSE))","v":""},null,{"$f":"IF(G6478=\"\",\"\",VLOOKUP(G6478,Insumos!G:H,2,FALSE))","v":""}]
[null,null,null,null,null,{"$f":"IF(E6479=\"\",\"\",VLOOKUP(E6479,Insumos!AD:AE,2,FALSE))","v":""},null,{"$f":"IF(G6479=\"\",\"\",VLOOKUP(G6479,Insumos!G:H,2,FALSE))","v":""}]
[null,null,null,null,null,{"$f":"IF(E6480=\"\",\"\",VLOOKUP(E6480,Insumos!AD:AE,2,FALSE))","v":""},null,{"$f":"IF(G6480=\"\",\"\",VLOOKUP(G6480,Insumos!G:H,2,FALSE))","v":""}]
[null,null,null,null,null,{"$f":"IF(E6481=\"\",\"\",VLOOKUP(E6481,Insumos!AD:AE,2,FALSE))","v":""},null,{"$f":"IF(G6481=\"\",\"\",VLOOKUP(G6481,Insumos!G:H,2,FALSE))","v":""}]
[null,null,null,null,null,{"$f":"IF(E6482=\"\",\"\",VLOOKUP(E6482,Insumos!AD:AE,2,FALSE))","v":""},null,{"$f":"IF(G6482=\"\",\"\",VLOOKUP(G6482,Insumos!G:H,2,FALSE))","v":""}]
[null,null,null,null,null,{"$f":"IF(E6483=\"\",\"\",VLOOKUP(E6483,Insumos!AD:AE,2,FALSE))","v":""},null,{"$f":"IF(G6483=\"\",\"\",VLOOKUP(G6483,Insumos!G:H,2,FALSE))","v":""}]
[null,null,null,null,null,{"$f":"IF(E6484=\"\",\"\",VLOOKUP(E6484,Insumos!AD:AE,2,FALSE))","v":""},null,{"$f":"IF(G6484=\"\",\"\",VLOOKUP(G6484,Insumos!G:H,2,FALSE))","v":""}]
[null,null,null,null,null,{"$f":"IF(E6485=\"\",\"\",VLOOKUP(E6485,Insumos!AD:AE,2,FALSE))","v":""},null,{"$f":"IF(G6485=\"\",\"\",VLOOKUP(G6485,Insumos!G:H,2,FALSE))","v":""}]
[null,null,null,null,null,{"$f":"IF(E6486=\"\",\"\",VLOOKUP(E6486,Insumos!AD:AE,2,FALSE))","v":""},null,{"$f":"IF(G6486=\"\",\"\",VLOOKUP(G6486,Insumos!G:H,2,FALSE))","v":""}]
[null,null,null,null,null,{"$f":"IF(E6487=\"\",\"\",VLOOKUP(E6487,Insumos!AD:AE,2,FALSE))","v":""},null,{"$f":"IF(G6487=\"\",\"\",VLOOKUP(G6487,Insumos!G:H,2,FALSE))","v":""}]
[null,null,null,null,null,{"$f":"IF(E6488=\"\",\"\",VLOOKUP(E6488,Insumos!AD:AE,2,FALSE))","v":""},null,{"$f":"IF(G6488=\"\",\"\",VLOOKUP(G6488,Insumos!G:H,2,FALSE))","v":""}]
[null,null,null,null,null,{"$f":"IF(E6489=\"\",\"\",VLOOKUP(E6489,Insumos!AD:AE,2,FALSE))","v":""},null,{"$f":"IF(G6489=\"\",\"\",VLOOKUP(G6489,Insumos!G:H,2,FALSE))","v":""}]
[null,null,null,null,null,{"$f":"IF(E6490=\"\",\"\",VLOOKUP(E6490,Insumos!AD:AE,2,FALSE))","v":""},null,{"$f":"IF(G6490=\"\",\"\",VLOOKUP(G6490,Insumos!G:H,2,FALSE))","v":""}]
[null,null,null,null,null,{"$f":"IF(E6491=\"\",\"\",VLOOKUP(E6491,Insumos!AD:AE,2,FALSE))","v":""},null,{"$f":"IF(G6491=\"\",\"\",VLOOKUP(G6491,Insumos!G:H,2,FALSE))","v":""}]
[null,null,null,null,null,{"$f":"IF(E6492=\"\",\"\",VLOOKUP(E6492,Insumos!AD:AE,2,FALSE))","v":""},null,{"$f":"IF(G6492=\"\",\"\",VLOOKUP(G6492,Insumos!G:H,2,FALSE))","v":""}]
[null,null,null,null,null,{"$f":"IF(E6493=\"\",\"\",VLOOKUP(E6493,Insumos!AD:AE,2,FALSE))","v":""},null,{"$f":"IF(G6493=\"\",\"\",VLOOKUP(G6493,Insumos!G:H,2,FALSE))","v":""}]
[null,null,null,null,null,{"$f":"IF(E6494=\"\",\"\",VLOOKUP(E6494,Insumos!AD:AE,2,FALSE))","v":""},null,{"$f":"IF(G6494=\"\",\"\",VLOOKUP(G6494,Insumos!G:H,2,FALSE))","v":""}]
[null,null,null,null,null,{"$f":"IF(E6495=\"\",\"\",VLOOKUP(E6495,Insumos!AD:AE,2,FALSE))","v":""},null,{"$f":"IF(G6495=\"\",\"\",VLOOKUP(G6495,Insumos!G:H,2,FALSE))","v":""}]
[null,null,null,null,null,{"$f":"IF(E6496=\"\",\"\",VLOOKUP(E6496,Insumos!AD:AE,2,FALSE))","v":""},null,{"$f":"IF(G6496=\"\",\"\",VLOOKUP(G6496,Insumos!G:H,2,FALSE))","v":""}]
[null,null,null,null,null,{"$f":"IF(E6497=\"\",\"\",VLOOKUP(E6497,Insumos!AD:AE,2,FALSE))","v":""},null,{"$f":"IF(G6497=\"\",\"\",VLOOKUP(G6497,Insumos!G:H,2,FALSE))","v":""}]
[null,null,null,null,null,{"$f":"IF(E6498=\"\",\"\",VLOOKUP(E6498,Insumos!AD:AE,2,FALSE))","v":""},null,{"$f":"IF(G6498=\"\",\"\",VLOOKUP(G6498,Insumos!G:H,2,FALSE))","v":""}]
[null,null,null,null,null,{"$f":"IF(E6499=\"\",\"\",VLOOKUP(E6499,Insumos!AD:AE,2,FALSE))","v":""},null,{"$f":"IF(G6499=\"\",\"\",VLOOKUP(G6499,Insumos!G:H,2,FALSE))","v":""}]
[null,null,null,null,null,{"$f":"IF(E6500=\"\",\"\",VLOOKUP(E6500,Insumos!AD:AE,2,FALSE))","v":""},null,{"$f":"IF(G6500=\"\",\"\",VLOOKUP(G6500,Insumos!G:H,2,FALSE))","v":""}]
[null,null,null,null,null,{"$f":"IF(E6501=\"\",\"\",VLOOKUP(E6501,Insumos!AD:AE,2,FALSE))","v":""},null,{"$f":"IF(G6501=\"\",\"\",VLOOKUP(G6501,Insumos!G:H,2,FALSE))","v":""}]
[null,null,null,null,null,{"$f":"IF(E6502=\"\",\"\",VLOOKUP(E6502,Insumos!AD:AE,2,FALSE))","v":""},null,{"$f":"IF(G6502=\"\",\"\",VLOOKUP(G6502,Insumos!G:H,2,FALSE))","v":""}]
[null,null,null,null,null,{"$f":"IF(E6503=\"\",\"\",VLOOKUP(E6503,Insumos!AD:AE,2,FALSE))","v":""},null,{"$f":"IF(G6503=\"\",\"\",VLOOKUP(G6503,Insumos!G:H,2,FALSE))","v":""}]
[null,null,null,null,null,{"$f":"IF(E6504=\"\",\"\",VLOOKUP(E6504,Insumos!AD:AE,2,FALSE))","v":""},null,{"$f":"IF(G6504=\"\",\"\",VLOOKUP(G6504,Insumos!G:H,2,FALSE))","v":""}]
[null,null,null,null,null,{"$f":"IF(E6505=\"\",\"\",VLOOKUP(E6505,Insumos!AD:AE,2,FALSE))","v":""},null,{"$f":"IF(G6505=\"\",\"\",VLOOKUP(G6505,Insumos!G:H,2,FALSE))","v":""}]
[null,null,null,null,null,{"$f":"IF(E6506=\"\",\"\",VLOOKUP(E6506,Insumos!AD:AE,2,FALSE))","v":""},null,{"$f":"IF(G6506=\"\",\"\",VLOOKUP(G6506,Insumos!G:H,2,FALSE))","v":""}]
[null,null,null,null,null,{"$f":"IF(E6507=\"\",\"\",VLOOKUP(E6507,Insumos!AD:AE,2,FALSE))","v":""},null,{"$f":"IF(G6507=\"\",\"\",VLOOKUP(G6507,Insumos!G:H,2,FALSE))","v":""}]
[null,null,null,null,null,{"$f":"IF(E6508=\"\",\"\",VLOOKUP(E6508,Insumos!AD:AE,2,FALSE))","v":""},null,{"$f":"IF(G6508=\"\",\"\",VLOOKUP(G6508,Insumos!G:H,2,FALSE))","v":""}]
[null,null,null,null,null,{"$f":"IF(E6509=\"\",\"\",VLOOKUP(E6509,Insumos!AD:AE,2,FALSE))","v":""},null,{"$f":"IF(G6509=\"\",\"\",VLOOKUP(G6509,Insumos!G:H,2,FALSE))","v":""}]
[null,null,null,null,null,{"$f":"IF(E6510=\"\",\"\",VLOOKUP(E6510,Insumos!AD:AE,2,FALSE))","v":""},null,{"$f":"IF(G6510=\"\",\"\",VLOOKUP(G6510,Insumos!G:H,2,FALSE))","v":""}]
[null,null,null,null,null,{"$f":"IF(E6511=\"\",\"\",VLOOKUP(E6511,Insumos!AD:AE,2,FALSE))","v":""},null,{"$f":"IF(G6511=\"\",\"\",VLOOKUP(G6511,Insumos!G:H,2,FALSE))","v":""}]
[null,null,null,null,null,{"$f":"IF(E6512=\"\",\"\",VLOOKUP(E6512,Insumos!AD:AE,2,FALSE))","v":""},null,{"$f":"IF(G6512=\"\",\"\",VLOOKUP(G6512,Insumos!G:H,2,FALSE))","v":""}]
[null,null,null,null,null,{"$f":"IF(E6513=\"\",\"\",VLOOKUP(E6513,Insumos!AD:AE,2,FALSE))","v":""},null,{"$f":"IF(G6513=\"\",\"\",VLOOKUP(G6513,Insumos!G:H,2,FALSE))","v":""}]
[null,null,null,null,null,{"$f":"IF(E6514=\"\",\"\",VLOOKUP(E6514,Insumos!AD:AE,2,FALSE))","v":""},null,{"$f":"IF(G6514=\"\",\"\",VLOOKUP(G6514,Insumos!G:H,2,FALSE))","v":""}]
[null,null,null,null,null,{"$f":"IF(E6515=\"\",\"\",VLOOKUP(E6515,Insumos!AD:AE,2,FALSE))","v":""},null,{"$f":"IF(G6515=\"\",\"\",VLOOKUP(G6515,Insumos!G:H,2,FALSE))","v":""}]
[null,null,null,null,null,{"$f":"IF(E6516=\"\",\"\",VLOOKUP(E6516,Insumos!AD:AE,2,FALSE))","v":""},null,{"$f":"IF(G6516=\"\",\"\",VLOOKUP(G6516,Insumos!G:H,2,FALSE))","v":""}]
[null,null,null,null,null,{"$f":"IF(E6517=\"\",\"\",VLOOKUP(E6517,Insumos!AD:AE,2,FALSE))","v":""},null,{"$f":"IF(G6517=\"\",\"\",VLOOKUP(G6517,Insumos!G:H,2,FALSE))","v":""}]
[null,null,null,null,null,{"$f":"IF(E6518=\"\",\"\",VLOOKUP(E6518,Insumos!AD:AE,2,FALSE))","v":""},null,{"$f":"IF(G6518=\"\",\"\",VLOOKUP(G6518,Insumos!G:H,2,FALSE))","v":""}]
[null,null,null,null,null,{"$f":"IF(E6519=\"\",\"\",VLOOKUP(E6519,Insumos!AD:AE,2,FALSE))","v":""},null,{"$f":"IF(G6519=\"\",\"\",VLOOKUP(G6519,Insumos!G:H,2,FALSE))","v":""}]
[null,null,null,null,null,{"$f":"IF(E6520=\"\",\"\",VLOOKUP(E6520,Insumos!AD:AE,2,FALSE))","v":""},null,{"$f":"IF(G6520=\"\",\"\",VLOOKUP(G6520,Insumos!G:H,2,FALSE))","v":""}]
[null,null,null,null,null,{"$f":"IF(E6521=\"\",\"\",VLOOKUP(E6521,Insumos!AD:AE,2,FALSE))","v":""},null,{"$f":"IF(G6521=\"\",\"\",VLOOKUP(G6521,Insumos!G:H,2,FALSE))","v":""}]
[null,null,null,null,null,{"$f":"IF(E6522=\"\",\"\",VLOOKUP(E6522,Insumos!AD:AE,2,FALSE))","v":""},null,{"$f":"IF(G6522=\"\",\"\",VLOOKUP(G6522,Insumos!G:H,2,FALSE))","v":""}]
[null,null,null,null,null,{"$f":"IF(E6523=\"\",\"\",VLOOKUP(E6523,Insumos!AD:AE,2,FALSE))","v":""},null,{"$f":"IF(G6523=\"\",\"\",VLOOKUP(G6523,Insumos!G:H,2,FALSE))","v":""}]
[null,null,null,null,null,{"$f":"IF(E6524=\"\",\"\",VLOOKUP(E6524,Insumos!AD:AE,2,FALSE))","v":""},null,{"$f":"IF(G6524=\"\",\"\",VLOOKUP(G6524,Insumos!G:H,2,FALSE))","v":""}]
[null,null,null,null,null,{"$f":"IF(E6525=\"\",\"\",VLOOKUP(E6525,Insumos!AD:AE,2,FALSE))","v":""},null,{"$f":"IF(G6525=\"\",\"\",VLOOKUP(G6525,Insumos!G:H,2,FALSE))","v":""}]
[null,null,null,null,null,{"$f":"IF(E6526=\"\",\"\",VLOOKUP(E6526,Insumos!AD:AE,2,FALSE))","v":""},null,{"$f":"IF(G6526=\"\",\"\",VLOOKUP(G6526,Insumos!G:H,2,FALSE))","v":""}]
[null,null,null,null,null,{"$f":"IF(E6527=\"\",\"\",VLOOKUP(E6527,Insumos!AD:AE,2,FALSE))","v":""},null,{"$f":"IF(G6527=\"\",\"\",VLOOKUP(G6527,Insumos!G:H,2,FALSE))","v":""}]
[null,null,null,null,null,{"$f":"IF(E6528=\"\",\"\",VLOOKUP(E6528,Insumos!AD:AE,2,FALSE))","v":""},null,{"$f":"IF(G6528=\"\",\"\",VLOOKUP(G6528,Insumos!G:H,2,FALSE))","v":""}]
[null,null,null,null,null,{"$f":"IF(E6529=\"\",\"\",VLOOKUP(E6529,Insumos!AD:AE,2,FALSE))","v":""},null,{"$f":"IF(G6529=\"\",\"\",VLOOKUP(G6529,Insumos!G:H,2,FALSE))","v":""}]
[null,null,null,null,null,{"$f":"IF(E6530=\"\",\"\",VLOOKUP(E6530,Insumos!AD:AE,2,FALSE))","v":""},null,{"$f":"IF(G6530=\"\",\"\",VLOOKUP(G6530,Insumos!G:H,2,FALSE))","v":""}]
[null,null,null,null,null,{"$f":"IF(E6531=\"\",\"\",VLOOKUP(E6531,Insumos!AD:AE,2,FALSE))","v":""},null,{"$f":"IF(G6531=\"\",\"\",VLOOKUP(G6531,Insumos!G:H,2,FALSE))","v":""}]
[null,null,null,null,null,{"$f":"IF(E6532=\"\",\"\",VLOOKUP(E6532,Insumos!AD:AE,2,FALSE))","v":""},null,{"$f":"IF(G6532=\"\",\"\",VLOOKUP(G6532,Insumos!G:H,2,FALSE))","v":""}]
[null,null,null,null,null,{"$f":"IF(E6533=\"\",\"\",VLOOKUP(E6533,Insumos!AD:AE,2,FALSE))","v":""},null,{"$f":"IF(G6533=\"\",\"\",VLOOKUP(G6533,Insumos!G:H,2,FALSE))","v":""}]
[null,null,null,null,null,{"$f":"IF(E6534=\"\",\"\",VLOOKUP(E6534,Insumos!AD:AE,2,FALSE))","v":""},null,{"$f":"IF(G6534=\"\",\"\",VLOOKUP(G6534,Insumos!G:H,2,FALSE))","v":""}]
[null,null,null,null,null,{"$f":"IF(E6535=\"\",\"\",VLOOKUP(E6535,Insumos!AD:AE,2,FALSE))","v":""},null,{"$f":"IF(G6535=\"\",\"\",VLOOKUP(G6535,Insumos!G:H,2,FALSE))","v":""}]
[null,null,null,null,null,{"$f":"IF(E6536=\"\",\"\",VLOOKUP(E6536,Insumos!AD:AE,2,FALSE))","v":""},null,{"$f":"IF(G6536=\"\",\"\",VLOOKUP(G6536,Insumos!G:H,2,FALSE))","v":""}]
[null,null,null,null,null,{"$f":"IF(E6537=\"\",\"\",VLOOKUP(E6537,Insumos!AD:AE,2,FALSE))","v":""},null,{"$f":"IF(G6537=\"\",\"\",VLOOKUP(G6537,Insumos!G:H,2,FALSE))","v":""}]
[null,null,null,null,null,{"$f":"IF(E6538=\"\",\"\",VLOOKUP(E6538,Insumos!AD:AE,2,FALSE))","v":""},null,{"$f":"IF(G6538=\"\",\"\",VLOOKUP(G6538,Insumos!G:H,2,FALSE))","v":""}]
[null,null,null,null,null,{"$f":"IF(E6539=\"\",\"\",VLOOKUP(E6539,Insumos!AD:AE,2,FALSE))","v":""},null,{"$f":"IF(G6539=\"\",\"\",VLOOKUP(G6539,Insumos!G:H,2,FALSE))","v":""}]
[null,null,null,null,null,{"$f":"IF(E6540=\"\",\"\",VLOOKUP(E6540,Insumos!AD:AE,2,FALSE))","v":""},null,{"$f":"IF(G6540=\"\",\"\",VLOOKUP(G6540,Insumos!G:H,2,FALSE))","v":""}]
[null,null,null,null,null,{"$f":"IF(E6541=\"\",\"\",VLOOKUP(E6541,Insumos!AD:AE,2,FALSE))","v":""},null,{"$f":"IF(G6541=\"\",\"\",VLOOKUP(G6541,Insumos!G:H,2,FALSE))","v":""}]
[null,null,null,null,null,{"$f":"IF(E6542=\"\",\"\",VLOOKUP(E6542,Insumos!AD:AE,2,FALSE))","v":""},null,{"$f":"IF(G6542=\"\",\"\",VLOOKUP(G6542,Insumos!G:H,2,FALSE))","v":""}]
[null,null,null,null,null,{"$f":"IF(E6543=\"\",\"\",VLOOKUP(E6543,Insumos!AD:AE,2,FALSE))","v":""},null,{"$f":"IF(G6543=\"\",\"\",VLOOKUP(G6543,Insumos!G:H,2,FALSE))","v":""}]
[null,null,null,null,null,{"$f":"IF(E6544=\"\",\"\",VLOOKUP(E6544,Insumos!AD:AE,2,FALSE))","v":""},null,{"$f":"IF(G6544=\"\",\"\",VLOOKUP(G6544,Insumos!G:H,2,FALSE))","v":""}]
[null,null,null,null,null,{"$f":"IF(E6545=\"\",\"\",VLOOKUP(E6545,Insumos!AD:AE,2,FALSE))","v":""},null,{"$f":"IF(G6545=\"\",\"\",VLOOKUP(G6545,Insumos!G:H,2,FALSE))","v":""}]
[null,null,null,null,null,{"$f":"IF(E6546=\"\",\"\",VLOOKUP(E6546,Insumos!AD:AE,2,FALSE))","v":""},null,{"$f":"IF(G6546=\"\",\"\",VLOOKUP(G6546,Insumos!G:H,2,FALSE))","v":""}]
[null,null,null,null,null,{"$f":"IF(E6547=\"\",\"\",VLOOKUP(E6547,Insumos!AD:AE,2,FALSE))","v":""},null,{"$f":"IF(G6547=\"\",\"\",VLOOKUP(G6547,Insumos!G:H,2,FALSE))","v":""}]
[null,null,null,null,null,{"$f":"IF(E6548=\"\",\"\",VLOOKUP(E6548,Insumos!AD:AE,2,FALSE))","v":""},null,{"$f":"IF(G6548=\"\",\"\",VLOOKUP(G6548,Insumos!G:H,2,FALSE))","v":""}]
[null,null,null,null,null,{"$f":"IF(E6549=\"\",\"\",VLOOKUP(E6549,Insumos!AD:AE,2,FALSE))","v":""},null,{"$f":"IF(G6549=\"\",\"\",VLOOKUP(G6549,Insumos!G:H,2,FALSE))","v":""}]
[null,null,null,null,null,{"$f":"IF(E6550=\"\",\"\",VLOOKUP(E6550,Insumos!AD:AE,2,FALSE))","v":""},null,{"$f":"IF(G6550=\"\",\"\",VLOOKUP(G6550,Insumos!G:H,2,FALSE))","v":""}]
[null,null,null,null,null,{"$f":"IF(E6551=\"\",\"\",VLOOKUP(E6551,Insumos!AD:AE,2,FALSE))","v":""},null,{"$f":"IF(G6551=\"\",\"\",VLOOKUP(G6551,Insumos!G:H,2,FALSE))","v":""}]
[null,null,null,null,null,{"$f":"IF(E6552=\"\",\"\",VLOOKUP(E6552,Insumos!AD:AE,2,FALSE))","v":""},null,{"$f":"IF(G6552=\"\",\"\",VLOOKUP(G6552,Insumos!G:H,2,FALSE))","v":""}]
[null,null,null,null,null,{"$f":"IF(E6553=\"\",\"\",VLOOKUP(E6553,Insumos!AD:AE,2,FALSE))","v":""},null,{"$f":"IF(G6553=\"\",\"\",VLOOKUP(G6553,Insumos!G:H,2,FALSE))","v":""}]
[null,null,null,null,null,{"$f":"IF(E6554=\"\",\"\",VLOOKUP(E6554,Insumos!AD:AE,2,FALSE))","v":""},null,{"$f":"IF(G6554=\"\",\"\",VLOOKUP(G6554,Insumos!G:H,2,FALSE))","v":""}]
[null,null,null,null,null,{"$f":"IF(E6555=\"\",\"\",VLOOKUP(E6555,Insumos!AD:AE,2,FALSE))","v":""},null,{"$f":"IF(G6555=\"\",\"\",VLOOKUP(G6555,Insumos!G:H,2,FALSE))","v":""}]
[null,null,null,null,null,{"$f":"IF(E6556=\"\",\"\",VLOOKUP(E6556,Insumos!AD:AE,2,FALSE))","v":""},null,{"$f":"IF(G6556=\"\",\"\",VLOOKUP(G6556,Insumos!G:H,2,FALSE))","v":""}]
[null,null,null,null,null,{"$f":"IF(E6557=\"\",\"\",VLOOKUP(E6557,Insumos!AD:AE,2,FALSE))","v":""},null,{"$f":"IF(G6557=\"\",\"\",VLOOKUP(G6557,Insumos!G:H,2,FALSE))","v":""}]
[null,null,null,null,null,{"$f":"IF(E6558=\"\",\"\",VLOOKUP(E6558,Insumos!AD:AE,2,FALSE))","v":""},null,{"$f":"IF(G6558=\"\",\"\",VLOOKUP(G6558,Insumos!G:H,2,FALSE))","v":""}]
[null,null,null,null,null,{"$f":"IF(E6559=\"\",\"\",VLOOKUP(E6559,Insumos!AD:AE,2,FALSE))","v":""},null,{"$f":"IF(G6559=\"\",\"\",VLOOKUP(G6559,Insumos!G:H,2,FALSE))","v":""}]
[null,null,null,null,null,{"$f":"IF(E6560=\"\",\"\",VLOOKUP(E6560,Insumos!AD:AE,2,FALSE))","v":""},null,{"$f":"IF(G6560=\"\",\"\",VLOOKUP(G6560,Insumos!G:H,2,FALSE))","v":""}]
[null,null,null,null,null,{"$f":"IF(E6561=\"\",\"\",VLOOKUP(E6561,Insumos!AD:AE,2,FALSE))","v":""},null,{"$f":"IF(G6561=\"\",\"\",VLOOKUP(G6561,Insumos!G:H,2,FALSE))","v":""}]
[null,null,null,null,null,{"$f":"IF(E6562=\"\",\"\",VLOOKUP(E6562,Insumos!AD:AE,2,FALSE))","v":""},null,{"$f":"IF(G6562=\"\",\"\",VLOOKUP(G6562,Insumos!G:H,2,FALSE))","v":""}]
[null,null,null,null,null,{"$f":"IF(E6563=\"\",\"\",VLOOKUP(E6563,Insumos!AD:AE,2,FALSE))","v":""},null,{"$f":"IF(G6563=\"\",\"\",VLOOKUP(G6563,Insumos!G:H,2,FALSE))","v":""}]
[null,null,null,null,null,{"$f":"IF(E6564=\"\",\"\",VLOOKUP(E6564,Insumos!AD:AE,2,FALSE))","v":""},null,{"$f":"IF(G6564=\"\",\"\",VLOOKUP(G6564,Insumos!G:H,2,FALSE))","v":""}]
[null,null,null,null,null,{"$f":"IF(E6565=\"\",\"\",VLOOKUP(E6565,Insumos!AD:AE,2,FALSE))","v":""},null,{"$f":"IF(G6565=\"\",\"\",VLOOKUP(G6565,Insumos!G:H,2,FALSE))","v":""}]
[null,null,null,null,null,{"$f":"IF(E6566=\"\",\"\",VLOOKUP(E6566,Insumos!AD:AE,2,FALSE))","v":""},null,{"$f":"IF(G6566=\"\",\"\",VLOOKUP(G6566,Insumos!G:H,2,FALSE))","v":""}]
[null,null,null,null,null,{"$f":"IF(E6567=\"\",\"\",VLOOKUP(E6567,Insumos!AD:AE,2,FALSE))","v":""},null,{"$f":"IF(G6567=\"\",\"\",VLOOKUP(G6567,Insumos!G:H,2,FALSE))","v":""}]
[null,null,null,null,null,{"$f":"IF(E6568=\"\",\"\",VLOOKUP(E6568,Insumos!AD:AE,2,FALSE))","v":""},null,{"$f":"IF(G6568=\"\",\"\",VLOOKUP(G6568,Insumos!G:H,2,FALSE))","v":""}]
[null,null,null,null,null,{"$f":"IF(E6569=\"\",\"\",VLOOKUP(E6569,Insumos!AD:AE,2,FALSE))","v":""},null,{"$f":"IF(G6569=\"\",\"\",VLOOKUP(G6569,Insumos!G:H,2,FALSE))","v":""}]
[null,null,null,null,null,{"$f":"IF(E6570=\"\",\"\",VLOOKUP(E6570,Insumos!AD:AE,2,FALSE))","v":""},null,{"$f":"IF(G6570=\"\",\"\",VLOOKUP(G6570,Insumos!G:H,2,FALSE))","v":""}]
[null,null,null,null,null,{"$f":"IF(E6571=\"\",\"\",VLOOKUP(E6571,Insumos!AD:AE,2,FALSE))","v":""},null,{"$f":"IF(G6571=\"\",\"\",VLOOKUP(G6571,Insumos!G:H,2,FALSE))","v":""}]
[null,null,null,null,null,{"$f":"IF(E6572=\"\",\"\",VLOOKUP(E6572,Insumos!AD:AE,2,FALSE))","v":""},null,{"$f":"IF(G6572=\"\",\"\",VLOOKUP(G6572,Insumos!G:H,2,FALSE))","v":""}]
[null,null,null,null,null,{"$f":"IF(E6573=\"\",\"\",VLOOKUP(E6573,Insumos!AD:AE,2,FALSE))","v":""},null,{"$f":"IF(G6573=\"\",\"\",VLOOKUP(G6573,Insumos!G:H,2,FALSE))","v":""}]
[null,null,null,null,null,{"$f":"IF(E6574=\"\",\"\",VLOOKUP(E6574,Insumos!AD:AE,2,FALSE))","v":""},null,{"$f":"IF(G6574=\"\",\"\",VLOOKUP(G6574,Insumos!G:H,2,FALSE))","v":""}]
[null,null,null,null,null,{"$f":"IF(E6575=\"\",\"\",VLOOKUP(E6575,Insumos!AD:AE,2,FALSE))","v":""},null,{"$f":"IF(G6575=\"\",\"\",VLOOKUP(G6575,Insumos!G:H,2,FALSE))","v":""}]
[null,null,null,null,null,{"$f":"IF(E6576=\"\",\"\",VLOOKUP(E6576,Insumos!AD:AE,2,FALSE))","v":""},null,{"$f":"IF(G6576=\"\",\"\",VLOOKUP(G6576,Insumos!G:H,2,FALSE))","v":""}]
[null,null,null,null,null,{"$f":"IF(E6577=\"\",\"\",VLOOKUP(E6577,Insumos!AD:AE,2,FALSE))","v":""},null,{"$f":"IF(G6577=\"\",\"\",VLOOKUP(G6577,Insumos!G:H,2,FALSE))","v":""}]
[null,null,null,null,null,{"$f":"IF(E6578=\"\",\"\",VLOOKUP(E6578,Insumos!AD:AE,2,FALSE))","v":""},null,{"$f":"IF(G6578=\"\",\"\",VLOOKUP(G6578,Insumos!G:H,2,FALSE))","v":""}]
[null,null,null,null,null,{"$f":"IF(E6579=\"\",\"\",VLOOKUP(E6579,Insumos!AD:AE,2,FALSE))","v":""},null,{"$f":"IF(G6579=\"\",\"\",VLOOKUP(G6579,Insumos!G:H,2,FALSE))","v":""}]
[null,null,null,null,null,{"$f":"IF(E6580=\"\",\"\",VLOOKUP(E6580,Insumos!AD:AE,2,FALSE))","v":""},null,{"$f":"IF(G6580=\"\",\"\",VLOOKUP(G6580,Insumos!G:H,2,FALSE))","v":""}]
[null,null,null,null,null,{"$f":"IF(E6581=\"\",\"\",VLOOKUP(E6581,Insumos!AD:AE,2,FALSE))","v":""},null,{"$f":"IF(G6581=\"\",\"\",VLOOKUP(G6581,Insumos!G:H,2,FALSE))","v":""}]
[null,null,null,null,null,{"$f":"IF(E6582=\"\",\"\",VLOOKUP(E6582,Insumos!AD:AE,2,FALSE))","v":""},null,{"$f":"IF(G6582=\"\",\"\",VLOOKUP(G6582,Insumos!G:H,2,FALSE))","v":""}]
[null,null,null,null,null,{"$f":"IF(E6583=\"\",\"\",VLOOKUP(E6583,Insumos!AD:AE,2,FALSE))","v":""},null,{"$f":"IF(G6583=\"\",\"\",VLOOKUP(G6583,Insumos!G:H,2,FALSE))","v":""}]
[null,null,null,null,null,{"$f":"IF(E6584=\"\",\"\",VLOOKUP(E6584,Insumos!AD:AE,2,FALSE))","v":""},null,{"$f":"IF(G6584=\"\",\"\",VLOOKUP(G6584,Insumos!G:H,2,FALSE))","v":""}]
[null,null,null,null,null,{"$f":"IF(E6585=\"\",\"\",VLOOKUP(E6585,Insumos!AD:AE,2,FALSE))","v":""},null,{"$f":"IF(G6585=\"\",\"\",VLOOKUP(G6585,Insumos!G:H,2,FALSE))","v":""}]
[null,null,null,null,null,{"$f":"IF(E6586=\"\",\"\",VLOOKUP(E6586,Insumos!AD:AE,2,FALSE))","v":""},null,{"$f":"IF(G6586=\"\",\"\",VLOOKUP(G6586,Insumos!G:H,2,FALSE))","v":""}]
[null,null,null,null,null,{"$f":"IF(E6587=\"\",\"\",VLOOKUP(E6587,Insumos!AD:AE,2,FALSE))","v":""},null,{"$f":"IF(G6587=\"\",\"\",VLOOKUP(G6587,Insumos!G:H,2,FALSE))","v":""}]
[null,null,null,null,null,{"$f":"IF(E6588=\"\",\"\",VLOOKUP(E6588,Insumos!AD:AE,2,FALSE))","v":""},null,{"$f":"IF(G6588=\"\",\"\",VLOOKUP(G6588,Insumos!G:H,2,FALSE))","v":""}]
[null,null,null,null,null,{"$f":"IF(E6589=\"\",\"\",VLOOKUP(E6589,Insumos!AD:AE,2,FALSE))","v":""},null,{"$f":"IF(G6589=\"\",\"\",VLOOKUP(G6589,Insumos!G:H,2,FALSE))","v":""}]
[null,null,null,null,null,{"$f":"IF(E6590=\"\",\"\",VLOOKUP(E6590,Insumos!AD:AE,2,FALSE))","v":""},null,{"$f":"IF(G6590=\"\",\"\",VLOOKUP(G6590,Insumos!G:H,2,FALSE))","v":""}]
[null,null,null,null,null,{"$f":"IF(E6591=\"\",\"\",VLOOKUP(E6591,Insumos!AD:AE,2,FALSE))","v":""},null,{"$f":"IF(G6591=\"\",\"\",VLOOKUP(G6591,Insumos!G:H,2,FALSE))","v":""}]
[null,null,null,null,null,{"$f":"IF(E6592=\"\",\"\",VLOOKUP(E6592,Insumos!AD:AE,2,FALSE))","v":""},null,{"$f":"IF(G6592=\"\",\"\",VLOOKUP(G6592,Insumos!G:H,2,FALSE))","v":""}]
[null,null,null,null,null,{"$f":"IF(E6593=\"\",\"\",VLOOKUP(E6593,Insumos!AD:AE,2,FALSE))","v":""},null,{"$f":"IF(G6593=\"\",\"\",VLOOKUP(G6593,Insumos!G:H,2,FALSE))","v":""}]
[null,null,null,null,null,{"$f":"IF(E6594=\"\",\"\",VLOOKUP(E6594,Insumos!AD:AE,2,FALSE))","v":""},null,{"$f":"IF(G6594=\"\",\"\",VLOOKUP(G6594,Insumos!G:H,2,FALSE))","v":""}]
[null,null,null,null,null,{"$f":"IF(E6595=\"\",\"\",VLOOKUP(E6595,Insumos!AD:AE,2,FALSE))","v":""},null,{"$f":"IF(G6595=\"\",\"\",VLOOKUP(G6595,Insumos!G:H,2,FALSE))","v":""}]
[null,null,null,null,null,{"$f":"IF(E6596=\"\",\"\",VLOOKUP(E6596,Insumos!AD:AE,2,FALSE))","v":""},null,{"$f":"IF(G6596=\"\",\"\",VLOOKUP(G6596,Insumos!G:H,2,FALSE))","v":""}]
[null,null,null,null,null,{"$f":"IF(E6597=\"\",\"\",VLOOKUP(E6597,Insumos!AD:AE,2,FALSE))","v":""},null,{"$f":"IF(G6597=\"\",\"\",VLOOKUP(G6597,Insumos!G:H,2,FALSE))","v":""}]
[null,null,null,null,null,{"$f":"IF(E6598=\"\",\"\",VLOOKUP(E6598,Insumos!AD:AE,2,FALSE))","v":""},null,{"$f":"IF(G6598=\"\",\"\",VLOOKUP(G6598,Insumos!G:H,2,FALSE))","v":""}]
[null,null,null,null,null,{"$f":"IF(E6599=\"\",\"\",VLOOKUP(E6599,Insumos!AD:AE,2,FALSE))","v":""},null,{"$f":"IF(G6599=\"\",\"\",VLOOKUP(G6599,Insumos!G:H,2,FALSE))","v":""}]
[null,null,null,null,null,{"$f":"IF(E6600=\"\",\"\",VLOOKUP(E6600,Insumos!AD:AE,2,FALSE))","v":""},null,{"$f":"IF(G6600=\"\",\"\",VLOOKUP(G6600,Insumos!G:H,2,FALSE))","v":""}]
[null,null,null,null,null,{"$f":"IF(E6601=\"\",\"\",VLOOKUP(E6601,Insumos!AD:AE,2,FALSE))","v":""},null,{"$f":"IF(G6601=\"\",\"\",VLOOKUP(G6601,Insumos!G:H,2,FALSE))","v":""}]
[null,null,null,null,null,{"$f":"IF(E6602=\"\",\"\",VLOOKUP(E6602,Insumos!AD:AE,2,FALSE))","v":""},null,{"$f":"IF(G6602=\"\",\"\",VLOOKUP(G6602,Insumos!G:H,2,FALSE))","v":""}]
[null,null,null,null,null,{"$f":"IF(E6603=\"\",\"\",VLOOKUP(E6603,Insumos!AD:AE,2,FALSE))","v":""},null,{"$f":"IF(G6603=\"\",\"\",VLOOKUP(G6603,Insumos!G:H,2,FALSE))","v":""}]
[null,null,null,null,null,{"$f":"IF(E6604=\"\",\"\",VLOOKUP(E6604,Insumos!AD:AE,2,FALSE))","v":""},null,{"$f":"IF(G6604=\"\",\"\",VLOOKUP(G6604,Insumos!G:H,2,FALSE))","v":""}]
[null,null,null,null,null,{"$f":"IF(E6605=\"\",\"\",VLOOKUP(E6605,Insumos!AD:AE,2,FALSE))","v":""},null,{"$f":"IF(G6605=\"\",\"\",VLOOKUP(G6605,Insumos!G:H,2,FALSE))","v":""}]
[null,null,null,null,null,{"$f":"IF(E6606=\"\",\"\",VLOOKUP(E6606,Insumos!AD:AE,2,FALSE))","v":""},null,{"$f":"IF(G6606=\"\",\"\",VLOOKUP(G6606,Insumos!G:H,2,FALSE))","v":""}]
[null,null,null,null,null,{"$f":"IF(E6607=\"\",\"\",VLOOKUP(E6607,Insumos!AD:AE,2,FALSE))","v":""},null,{"$f":"IF(G6607=\"\",\"\",VLOOKUP(G6607,Insumos!G:H,2,FALSE))","v":""}]
[null,null,null,null,null,{"$f":"IF(E6608=\"\",\"\",VLOOKUP(E6608,Insumos!AD:AE,2,FALSE))","v":""},null,{"$f":"IF(G6608=\"\",\"\",VLOOKUP(G6608,Insumos!G:H,2,FALSE))","v":""}]
[null,null,null,null,null,{"$f":"IF(E6609=\"\",\"\",VLOOKUP(E6609,Insumos!AD:AE,2,FALSE))","v":""},null,{"$f":"IF(G6609=\"\",\"\",VLOOKUP(G6609,Insumos!G:H,2,FALSE))","v":""}]
[null,null,null,null,null,{"$f":"IF(E6610=\"\",\"\",VLOOKUP(E6610,Insumos!AD:AE,2,FALSE))","v":""},null,{"$f":"IF(G6610=\"\",\"\",VLOOKUP(G6610,Insumos!G:H,2,FALSE))","v":""}]
[null,null,null,null,null,{"$f":"IF(E6611=\"\",\"\",VLOOKUP(E6611,Insumos!AD:AE,2,FALSE))","v":""},null,{"$f":"IF(G6611=\"\",\"\",VLOOKUP(G6611,Insumos!G:H,2,FALSE))","v":""}]
[null,null,null,null,null,{"$f":"IF(E6612=\"\",\"\",VLOOKUP(E6612,Insumos!AD:AE,2,FALSE))","v":""},null,{"$f":"IF(G6612=\"\",\"\",VLOOKUP(G6612,Insumos!G:H,2,FALSE))","v":""}]
[null,null,null,null,null,{"$f":"IF(E6613=\"\",\"\",VLOOKUP(E6613,Insumos!AD:AE,2,FALSE))","v":""},null,{"$f":"IF(G6613=\"\",\"\",VLOOKUP(G6613,Insumos!G:H,2,FALSE))","v":""}]
[null,null,null,null,null,{"$f":"IF(E6614=\"\",\"\",VLOOKUP(E6614,Insumos!AD:AE,2,FALSE))","v":""},null,{"$f":"IF(G6614=\"\",\"\",VLOOKUP(G6614,Insumos!G:H,2,FALSE))","v":""}]
[null,null,null,null,null,{"$f":"IF(E6615=\"\",\"\",VLOOKUP(E6615,Insumos!AD:AE,2,FALSE))","v":""},null,{"$f":"IF(G6615=\"\",\"\",VLOOKUP(G6615,Insumos!G:H,2,FALSE))","v":""}]
[null,null,null,null,null,{"$f":"IF(E6616=\"\",\"\",VLOOKUP(E6616,Insumos!AD:AE,2,FALSE))","v":""},null,{"$f":"IF(G6616=\"\",\"\",VLOOKUP(G6616,Insumos!G:H,2,FALSE))","v":""}]
[null,null,null,null,null,{"$f":"IF(E6617=\"\",\"\",VLOOKUP(E6617,Insumos!AD:AE,2,FALSE))","v":""},null,{"$f":"IF(G6617=\"\",\"\",VLOOKUP(G6617,Insumos!G:H,2,FALSE))","v":""}]
[null,null,null,null,null,{"$f":"IF(E6618=\"\",\"\",VLOOKUP(E6618,Insumos!AD:AE,2,FALSE))","v":""},null,{"$f":"IF(G6618=\"\",\"\",VLOOKUP(G6618,Insumos!G:H,2,FALSE))","v":""}]
[null,null,null,null,null,{"$f":"IF(E6619=\"\",\"\",VLOOKUP(E6619,Insumos!AD:AE,2,FALSE))","v":""},null,{"$f":"IF(G6619=\"\",\"\",VLOOKUP(G6619,Insumos!G:H,2,FALSE))","v":""}]
[null,null,null,null,null,{"$f":"IF(E6620=\"\",\"\",VLOOKUP(E6620,Insumos!AD:AE,2,FALSE))","v":""},null,{"$f":"IF(G6620=\"\",\"\",VLOOKUP(G6620,Insumos!G:H,2,FALSE))","v":""}]
[null,null,null,null,null,{"$f":"IF(E6621=\"\",\"\",VLOOKUP(E6621,Insumos!AD:AE,2,FALSE))","v":""},null,{"$f":"IF(G6621=\"\",\"\",VLOOKUP(G6621,Insumos!G:H,2,FALSE))","v":""}]
[null,null,null,null,null,{"$f":"IF(E6622=\"\",\"\",VLOOKUP(E6622,Insumos!AD:AE,2,FALSE))","v":""},null,{"$f":"IF(G6622=\"\",\"\",VLOOKUP(G6622,Insumos!G:H,2,FALSE))","v":""}]
[null,null,null,null,null,{"$f":"IF(E6623=\"\",\"\",VLOOKUP(E6623,Insumos!AD:AE,2,FALSE))","v":""},null,{"$f":"IF(G6623=\"\",\"\",VLOOKUP(G6623,Insumos!G:H,2,FALSE))","v":""}]
[null,null,null,null,null,{"$f":"IF(E6624=\"\",\"\",VLOOKUP(E6624,Insumos!AD:AE,2,FALSE))","v":""},null,{"$f":"IF(G6624=\"\",\"\",VLOOKUP(G6624,Insumos!G:H,2,FALSE))","v":""}]
[null,null,null,null,null,{"$f":"IF(E6625=\"\",\"\",VLOOKUP(E6625,Insumos!AD:AE,2,FALSE))","v":""},null,{"$f":"IF(G6625=\"\",\"\",VLOOKUP(G6625,Insumos!G:H,2,FALSE))","v":""}]
[null,null,null,null,null,{"$f":"IF(E6626=\"\",\"\",VLOOKUP(E6626,Insumos!AD:AE,2,FALSE))","v":""},null,{"$f":"IF(G6626=\"\",\"\",VLOOKUP(G6626,Insumos!G:H,2,FALSE))","v":""}]
[null,null,null,null,null,{"$f":"IF(E6627=\"\",\"\",VLOOKUP(E6627,Insumos!AD:AE,2,FALSE))","v":""},null,{"$f":"IF(G6627=\"\",\"\",VLOOKUP(G6627,Insumos!G:H,2,FALSE))","v":""}]
[null,null,null,null,null,{"$f":"IF(E6628=\"\",\"\",VLOOKUP(E6628,Insumos!AD:AE,2,FALSE))","v":""},null,{"$f":"IF(G6628=\"\",\"\",VLOOKUP(G6628,Insumos!G:H,2,FALSE))","v":""}]
[null,null,null,null,null,{"$f":"IF(E6629=\"\",\"\",VLOOKUP(E6629,Insumos!AD:AE,2,FALSE))","v":""},null,{"$f":"IF(G6629=\"\",\"\",VLOOKUP(G6629,Insumos!G:H,2,FALSE))","v":""}]
[null,null,null,null,null,{"$f":"IF(E6630=\"\",\"\",VLOOKUP(E6630,Insumos!AD:AE,2,FALSE))","v":""},null,{"$f":"IF(G6630=\"\",\"\",VLOOKUP(G6630,Insumos!G:H,2,FALSE))","v":""}]
[null,null,null,null,null,{"$f":"IF(E6631=\"\",\"\",VLOOKUP(E6631,Insumos!AD:AE,2,FALSE))","v":""},null,{"$f":"IF(G6631=\"\",\"\",VLOOKUP(G6631,Insumos!G:H,2,FALSE))","v":""}]
[null,null,null,null,null,{"$f":"IF(E6632=\"\",\"\",VLOOKUP(E6632,Insumos!AD:AE,2,FALSE))","v":""},null,{"$f":"IF(G6632=\"\",\"\",VLOOKUP(G6632,Insumos!G:H,2,FALSE))","v":""}]
[null,null,null,null,null,{"$f":"IF(E6633=\"\",\"\",VLOOKUP(E6633,Insumos!AD:AE,2,FALSE))","v":""},null,{"$f":"IF(G6633=\"\",\"\",VLOOKUP(G6633,Insumos!G:H,2,FALSE))","v":""}]
[null,null,null,null,null,{"$f":"IF(E6634=\"\",\"\",VLOOKUP(E6634,Insumos!AD:AE,2,FALSE))","v":""},null,{"$f":"IF(G6634=\"\",\"\",VLOOKUP(G6634,Insumos!G:H,2,FALSE))","v":""}]
[null,null,null,null,null,{"$f":"IF(E6635=\"\",\"\",VLOOKUP(E6635,Insumos!AD:AE,2,FALSE))","v":""},null,{"$f":"IF(G6635=\"\",\"\",VLOOKUP(G6635,Insumos!G:H,2,FALSE))","v":""}]
[null,null,null,null,null,{"$f":"IF(E6636=\"\",\"\",VLOOKUP(E6636,Insumos!AD:AE,2,FALSE))","v":""},null,{"$f":"IF(G6636=\"\",\"\",VLOOKUP(G6636,Insumos!G:H,2,FALSE))","v":""}]
[null,null,null,null,null,{"$f":"IF(E6637=\"\",\"\",VLOOKUP(E6637,Insumos!AD:AE,2,FALSE))","v":""},null,{"$f":"IF(G6637=\"\",\"\",VLOOKUP(G6637,Insumos!G:H,2,FALSE))","v":""}]
[null,null,null,null,null,{"$f":"IF(E6638=\"\",\"\",VLOOKUP(E6638,Insumos!AD:AE,2,FALSE))","v":""},null,{"$f":"IF(G6638=\"\",\"\",VLOOKUP(G6638,Insumos!G:H,2,FALSE))","v":""}]
[null,null,null,null,null,{"$f":"IF(E6639=\"\",\"\",VLOOKUP(E6639,Insumos!AD:AE,2,FALSE))","v":""},null,{"$f":"IF(G6639=\"\",\"\",VLOOKUP(G6639,Insumos!G:H,2,FALSE))","v":""}]
[null,null,null,null,null,{"$f":"IF(E6640=\"\",\"\",VLOOKUP(E6640,Insumos!AD:AE,2,FALSE))","v":""},null,{"$f":"IF(G6640=\"\",\"\",VLOOKUP(G6640,Insumos!G:H,2,FALSE))","v":""}]
[null,null,null,null,null,{"$f":"IF(E6641=\"\",\"\",VLOOKUP(E6641,Insumos!AD:AE,2,FALSE))","v":""},null,{"$f":"IF(G6641=\"\",\"\",VLOOKUP(G6641,Insumos!G:H,2,FALSE))","v":""}]
[null,null,null,null,null,{"$f":"IF(E6642=\"\",\"\",VLOOKUP(E6642,Insumos!AD:AE,2,FALSE))","v":""},null,{"$f":"IF(G6642=\"\",\"\",VLOOKUP(G6642,Insumos!G:H,2,FALSE))","v":""}]
[null,null,null,null,null,{"$f":"IF(E6643=\"\",\"\",VLOOKUP(E6643,Insumos!AD:AE,2,FALSE))","v":""},null,{"$f":"IF(G6643=\"\",\"\",VLOOKUP(G6643,Insumos!G:H,2,FALSE))","v":""}]
[null,null,null,null,null,{"$f":"IF(E6644=\"\",\"\",VLOOKUP(E6644,Insumos!AD:AE,2,FALSE))","v":""},null,{"$f":"IF(G6644=\"\",\"\",VLOOKUP(G6644,Insumos!G:H,2,FALSE))","v":""}]
[null,null,null,null,null,{"$f":"IF(E6645=\"\",\"\",VLOOKUP(E6645,Insumos!AD:AE,2,FALSE))","v":""},null,{"$f":"IF(G6645=\"\",\"\",VLOOKUP(G6645,Insumos!G:H,2,FALSE))","v":""}]
[null,null,null,null,null,{"$f":"IF(E6646=\"\",\"\",VLOOKUP(E6646,Insumos!AD:AE,2,FALSE))","v":""},null,{"$f":"IF(G6646=\"\",\"\",VLOOKUP(G6646,Insumos!G:H,2,FALSE))","v":""}]
[null,null,null,null,null,{"$f":"IF(E6647=\"\",\"\",VLOOKUP(E6647,Insumos!AD:AE,2,FALSE))","v":""},null,{"$f":"IF(G6647=\"\",\"\",VLOOKUP(G6647,Insumos!G:H,2,FALSE))","v":""}]
[null,null,null,null,null,{"$f":"IF(E6648=\"\",\"\",VLOOKUP(E6648,Insumos!AD:AE,2,FALSE))","v":""},null,{"$f":"IF(G6648=\"\",\"\",VLOOKUP(G6648,Insumos!G:H,2,FALSE))","v":""}]
[null,null,null,null,null,{"$f":"IF(E6649=\"\",\"\",VLOOKUP(E6649,Insumos!AD:AE,2,FALSE))","v":""},null,{"$f":"IF(G6649=\"\",\"\",VLOOKUP(G6649,Insumos!G:H,2,FALSE))","v":""}]
[null,null,null,null,null,{"$f":"IF(E6650=\"\",\"\",VLOOKUP(E6650,Insumos!AD:AE,2,FALSE))","v":""},null,{"$f":"IF(G6650=\"\",\"\",VLOOKUP(G6650,Insumos!G:H,2,FALSE))","v":""}]
[null,null,null,null,null,{"$f":"IF(E6651=\"\",\"\",VLOOKUP(E6651,Insumos!AD:AE,2,FALSE))","v":""},null,{"$f":"IF(G6651=\"\",\"\",VLOOKUP(G6651,Insumos!G:H,2,FALSE))","v":""}]
[null,null,null,null,null,{"$f":"IF(E6652=\"\",\"\",VLOOKUP(E6652,Insumos!AD:AE,2,FALSE))","v":""},null,{"$f":"IF(G6652=\"\",\"\",VLOOKUP(G6652,Insumos!G:H,2,FALSE))","v":""}]
[null,null,null,null,null,{"$f":"IF(E6653=\"\",\"\",VLOOKUP(E6653,Insumos!AD:AE,2,FALSE))","v":""},null,{"$f":"IF(G6653=\"\",\"\",VLOOKUP(G6653,Insumos!G:H,2,FALSE))","v":""}]
[null,null,null,null,null,{"$f":"IF(E6654=\"\",\"\",VLOOKUP(E6654,Insumos!AD:AE,2,FALSE))","v":""},null,{"$f":"IF(G6654=\"\",\"\",VLOOKUP(G6654,Insumos!G:H,2,FALSE))","v":""}]
[null,null,null,null,null,{"$f":"IF(E6655=\"\",\"\",VLOOKUP(E6655,Insumos!AD:AE,2,FALSE))","v":""},null,{"$f":"IF(G6655=\"\",\"\",VLOOKUP(G6655,Insumos!G:H,2,FALSE))","v":""}]
[null,null,null,null,null,{"$f":"IF(E6656=\"\",\"\",VLOOKUP(E6656,Insumos!AD:AE,2,FALSE))","v":""},null,{"$f":"IF(G6656=\"\",\"\",VLOOKUP(G6656,Insumos!G:H,2,FALSE))","v":""}]
[null,null,null,null,null,{"$f":"IF(E6657=\"\",\"\",VLOOKUP(E6657,Insumos!AD:AE,2,FALSE))","v":""},null,{"$f":"IF(G6657=\"\",\"\",VLOOKUP(G6657,Insumos!G:H,2,FALSE))","v":""}]
[null,null,null,null,null,{"$f":"IF(E6658=\"\",\"\",VLOOKUP(E6658,Insumos!AD:AE,2,FALSE))","v":""},null,{"$f":"IF(G6658=\"\",\"\",VLOOKUP(G6658,Insumos!G:H,2,FALSE))","v":""}]
[null,null,null,null,null,{"$f":"IF(E6659=\"\",\"\",VLOOKUP(E6659,Insumos!AD:AE,2,FALSE))","v":""},null,{"$f":"IF(G6659=\"\",\"\",VLOOKUP(G6659,Insumos!G:H,2,FALSE))","v":""}]
[null,null,null,null,null,{"$f":"IF(E6660=\"\",\"\",VLOOKUP(E6660,Insumos!AD:AE,2,FALSE))","v":""},null,{"$f":"IF(G6660=\"\",\"\",VLOOKUP(G6660,Insumos!G:H,2,FALSE))","v":""}]
[null,null,null,null,null,{"$f":"IF(E6661=\"\",\"\",VLOOKUP(E6661,Insumos!AD:AE,2,FALSE))","v":""},null,{"$f":"IF(G6661=\"\",\"\",VLOOKUP(G6661,Insumos!G:H,2,FALSE))","v":""}]
[null,null,null,null,null,{"$f":"IF(E6662=\"\",\"\",VLOOKUP(E6662,Insumos!AD:AE,2,FALSE))","v":""},null,{"$f":"IF(G6662=\"\",\"\",VLOOKUP(G6662,Insumos!G:H,2,FALSE))","v":""}]
[null,null,null,null,null,{"$f":"IF(E6663=\"\",\"\",VLOOKUP(E6663,Insumos!AD:AE,2,FALSE))","v":""},null,{"$f":"IF(G6663=\"\",\"\",VLOOKUP(G6663,Insumos!G:H,2,FALSE))","v":""}]
[null,null,null,null,null,{"$f":"IF(E6664=\"\",\"\",VLOOKUP(E6664,Insumos!AD:AE,2,FALSE))","v":""},null,{"$f":"IF(G6664=\"\",\"\",VLOOKUP(G6664,Insumos!G:H,2,FALSE))","v":""}]
[null,null,null,null,null,{"$f":"IF(E6665=\"\",\"\",VLOOKUP(E6665,Insumos!AD:AE,2,FALSE))","v":""},null,{"$f":"IF(G6665=\"\",\"\",VLOOKUP(G6665,Insumos!G:H,2,FALSE))","v":""}]
[null,null,null,null,null,{"$f":"IF(E6666=\"\",\"\",VLOOKUP(E6666,Insumos!AD:AE,2,FALSE))","v":""},null,{"$f":"IF(G6666=\"\",\"\",VLOOKUP(G6666,Insumos!G:H,2,FALSE))","v":""}]
[null,null,null,null,null,{"$f":"IF(E6667=\"\",\"\",VLOOKUP(E6667,Insumos!AD:AE,2,FALSE))","v":""},null,{"$f":"IF(G6667=\"\",\"\",VLOOKUP(G6667,Insumos!G:H,2,FALSE))","v":""}]
[null,null,null,null,null,{"$f":"IF(E6668=\"\",\"\",VLOOKUP(E6668,Insumos!AD:AE,2,FALSE))","v":""},null,{"$f":"IF(G6668=\"\",\"\",VLOOKUP(G6668,Insumos!G:H,2,FALSE))","v":""}]
[null,null,null,null,null,{"$f":"IF(E6669=\"\",\"\",VLOOKUP(E6669,Insumos!AD:AE,2,FALSE))","v":""},null,{"$f":"IF(G6669=\"\",\"\",VLOOKUP(G6669,Insumos!G:H,2,FALSE))","v":""}]
[null,null,null,null,null,{"$f":"IF(E6670=\"\",\"\",VLOOKUP(E6670,Insumos!AD:AE,2,FALSE))","v":""},null,{"$f":"IF(G6670=\"\",\"\",VLOOKUP(G6670,Insumos!G:H,2,FALSE))","v":""}]
[null,null,null,null,null,{"$f":"IF(E6671=\"\",\"\",VLOOKUP(E6671,Insumos!AD:AE,2,FALSE))","v":""},null,{"$f":"IF(G6671=\"\",\"\",VLOOKUP(G6671,Insumos!G:H,2,FALSE))","v":""}]
[null,null,null,null,null,{"$f":"IF(E6672=\"\",\"\",VLOOKUP(E6672,Insumos!AD:AE,2,FALSE))","v":""},null,{"$f":"IF(G6672=\"\",\"\",VLOOKUP(G6672,Insumos!G:H,2,FALSE))","v":""}]
[null,null,null,null,null,{"$f":"IF(E6673=\"\",\"\",VLOOKUP(E6673,Insumos!AD:AE,2,FALSE))","v":""},null,{"$f":"IF(G6673=\"\",\"\",VLOOKUP(G6673,Insumos!G:H,2,FALSE))","v":""}]
[null,null,null,null,null,{"$f":"IF(E6674=\"\",\"\",VLOOKUP(E6674,Insumos!AD:AE,2,FALSE))","v":""},null,{"$f":"IF(G6674=\"\",\"\",VLOOKUP(G6674,Insumos!G:H,2,FALSE))","v":""}]
[null,null,null,null,null,{"$f":"IF(E6675=\"\",\"\",VLOOKUP(E6675,Insumos!AD:AE,2,FALSE))","v":""},null,{"$f":"IF(G6675=\"\",\"\",VLOOKUP(G6675,Insumos!G:H,2,FALSE))","v":""}]
[null,null,null,null,null,{"$f":"IF(E6676=\"\",\"\",VLOOKUP(E6676,Insumos!AD:AE,2,FALSE))","v":""},null,{"$f":"IF(G6676=\"\",\"\",VLOOKUP(G6676,Insumos!G:H,2,FALSE))","v":""}]
[null,null,null,null,null,{"$f":"IF(E6677=\"\",\"\",VLOOKUP(E6677,Insumos!AD:AE,2,FALSE))","v":""},null,{"$f":"IF(G6677=\"\",\"\",VLOOKUP(G6677,Insumos!G:H,2,FALSE))","v":""}]
[null,null,null,null,null,{"$f":"IF(E6678=\"\",\"\",VLOOKUP(E6678,Insumos!AD:AE,2,FALSE))","v":""},null,{"$f":"IF(G6678=\"\",\"\",VLOOKUP(G6678,Insumos!G:H,2,FALSE))","v":""}]
[null,null,null,null,null,{"$f":"IF(E6679=\"\",\"\",VLOOKUP(E6679,Insumos!AD:AE,2,FALSE))","v":""},null,{"$f":"IF(G6679=\"\",\"\",VLOOKUP(G6679,Insumos!G:H,2,FALSE))","v":""}]
[null,null,null,null,null,{"$f":"IF(E6680=\"\",\"\",VLOOKUP(E6680,Insumos!AD:AE,2,FALSE))","v":""},null,{"$f":"IF(G6680=\"\",\"\",VLOOKUP(G6680,Insumos!G:H,2,FALSE))","v":""}]
[null,null,null,null,null,{"$f":"IF(E6681=\"\",\"\",VLOOKUP(E6681,Insumos!AD:AE,2,FALSE))","v":""},null,{"$f":"IF(G6681=\"\",\"\",VLOOKUP(G6681,Insumos!G:H,2,FALSE))","v":""}]
[null,null,null,null,null,{"$f":"IF(E6682=\"\",\"\",VLOOKUP(E6682,Insumos!AD:AE,2,FALSE))","v":""},null,{"$f":"IF(G6682=\"\",\"\",VLOOKUP(G6682,Insumos!G:H,2,FALSE))","v":""}]
[null,null,null,null,null,{"$f":"IF(E6683=\"\",\"\",VLOOKUP(E6683,Insumos!AD:AE,2,FALSE))","v":""},null,{"$f":"IF(G6683=\"\",\"\",VLOOKUP(G6683,Insumos!G:H,2,FALSE))","v":""}]
[null,null,null,null,null,{"$f":"IF(E6684=\"\",\"\",VLOOKUP(E6684,Insumos!AD:AE,2,FALSE))","v":""},null,{"$f":"IF(G6684=\"\",\"\",VLOOKUP(G6684,Insumos!G:H,2,FALSE))","v":""}]
[null,null,null,null,null,{"$f":"IF(E6685=\"\",\"\",VLOOKUP(E6685,Insumos!AD:AE,2,FALSE))","v":""},null,{"$f":"IF(G6685=\"\",\"\",VLOOKUP(G6685,Insumos!G:H,2,FALSE))","v":""}]
[null,null,null,null,null,{"$f":"IF(E6686=\"\",\"\",VLOOKUP(E6686,Insumos!AD:AE,2,FALSE))","v":""},null,{"$f":"IF(G6686=\"\",\"\",VLOOKUP(G6686,Insumos!G:H,2,FALSE))","v":""}]
[null,null,null,null,null,{"$f":"IF(E6687=\"\",\"\",VLOOKUP(E6687,Insumos!AD:AE,2,FALSE))","v":""},null,{"$f":"IF(G6687=\"\",\"\",VLOOKUP(G6687,Insumos!G:H,2,FALSE))","v":""}]
[null,null,null,null,null,{"$f":"IF(E6688=\"\",\"\",VLOOKUP(E6688,Insumos!AD:AE,2,FALSE))","v":""},null,{"$f":"IF(G6688=\"\",\"\",VLOOKUP(G6688,Insumos!G:H,2,FALSE))","v":""}]
[null,null,null,null,null,{"$f":"IF(E6689=\"\",\"\",VLOOKUP(E6689,Insumos!AD:AE,2,FALSE))","v":""},null,{"$f":"IF(G6689=\"\",\"\",VLOOKUP(G6689,Insumos!G:H,2,FALSE))","v":""}]
[null,null,null,null,null,{"$f":"IF(E6690=\"\",\"\",VLOOKUP(E6690,Insumos!AD:AE,2,FALSE))","v":""},null,{"$f":"IF(G6690=\"\",\"\",VLOOKUP(G6690,Insumos!G:H,2,FALSE))","v":""}]
[null,null,null,null,null,{"$f":"IF(E6691=\"\",\"\",VLOOKUP(E6691,Insumos!AD:AE,2,FALSE))","v":""},null,{"$f":"IF(G6691=\"\",\"\",VLOOKUP(G6691,Insumos!G:H,2,FALSE))","v":""}]
[null,null,null,null,null,{"$f":"IF(E6692=\"\",\"\",VLOOKUP(E6692,Insumos!AD:AE,2,FALSE))","v":""},null,{"$f":"IF(G6692=\"\",\"\",VLOOKUP(G6692,Insumos!G:H,2,FALSE))","v":""}]
[null,null,null,null,null,{"$f":"IF(E6693=\"\",\"\",VLOOKUP(E6693,Insumos!AD:AE,2,FALSE))","v":""},null,{"$f":"IF(G6693=\"\",\"\",VLOOKUP(G6693,Insumos!G:H,2,FALSE))","v":""}]
[null,null,null,null,null,{"$f":"IF(E6694=\"\",\"\",VLOOKUP(E6694,Insumos!AD:AE,2,FALSE))","v":""},null,{"$f":"IF(G6694=\"\",\"\",VLOOKUP(G6694,Insumos!G:H,2,FALSE))","v":""}]
[null,null,null,null,null,{"$f":"IF(E6695=\"\",\"\",VLOOKUP(E6695,Insumos!AD:AE,2,FALSE))","v":""},null,{"$f":"IF(G6695=\"\",\"\",VLOOKUP(G6695,Insumos!G:H,2,FALSE))","v":""}]
[null,null,null,null,null,{"$f":"IF(E6696=\"\",\"\",VLOOKUP(E6696,Insumos!AD:AE,2,FALSE))","v":""},null,{"$f":"IF(G6696=\"\",\"\",VLOOKUP(G6696,Insumos!G:H,2,FALSE))","v":""}]
[null,null,null,null,null,{"$f":"IF(E6697=\"\",\"\",VLOOKUP(E6697,Insumos!AD:AE,2,FALSE))","v":""},null,{"$f":"IF(G6697=\"\",\"\",VLOOKUP(G6697,Insumos!G:H,2,FALSE))","v":""}]
[null,null,null,null,null,{"$f":"IF(E6698=\"\",\"\",VLOOKUP(E6698,Insumos!AD:AE,2,FALSE))","v":""},null,{"$f":"IF(G6698=\"\",\"\",VLOOKUP(G6698,Insumos!G:H,2,FALSE))","v":""}]
[null,null,null,null,null,{"$f":"IF(E6699=\"\",\"\",VLOOKUP(E6699,Insumos!AD:AE,2,FALSE))","v":""},null,{"$f":"IF(G6699=\"\",\"\",VLOOKUP(G6699,Insumos!G:H,2,FALSE))","v":""}]
[null,null,null,null,null,{"$f":"IF(E6700=\"\",\"\",VLOOKUP(E6700,Insumos!AD:AE,2,FALSE))","v":""},null,{"$f":"IF(G6700=\"\",\"\",VLOOKUP(G6700,Insumos!G:H,2,FALSE))","v":""}]
[null,null,null,null,null,{"$f":"IF(E6701=\"\",\"\",VLOOKUP(E6701,Insumos!AD:AE,2,FALSE))","v":""},null,{"$f":"IF(G6701=\"\",\"\",VLOOKUP(G6701,Insumos!G:H,2,FALSE))","v":""}]
[null,null,null,null,null,{"$f":"IF(E6702=\"\",\"\",VLOOKUP(E6702,Insumos!AD:AE,2,FALSE))","v":""},null,{"$f":"IF(G6702=\"\",\"\",VLOOKUP(G6702,Insumos!G:H,2,FALSE))","v":""}]
[null,null,null,null,null,{"$f":"IF(E6703=\"\",\"\",VLOOKUP(E6703,Insumos!AD:AE,2,FALSE))","v":""},null,{"$f":"IF(G6703=\"\",\"\",VLOOKUP(G6703,Insumos!G:H,2,FALSE))","v":""}]
[null,null,null,null,null,{"$f":"IF(E6704=\"\",\"\",VLOOKUP(E6704,Insumos!AD:AE,2,FALSE))","v":""},null,{"$f":"IF(G6704=\"\",\"\",VLOOKUP(G6704,Insumos!G:H,2,FALSE))","v":""}]
[null,null,null,null,null,{"$f":"IF(E6705=\"\",\"\",VLOOKUP(E6705,Insumos!AD:AE,2,FALSE))","v":""},null,{"$f":"IF(G6705=\"\",\"\",VLOOKUP(G6705,Insumos!G:H,2,FALSE))","v":""}]
[null,null,null,null,null,{"$f":"IF(E6706=\"\",\"\",VLOOKUP(E6706,Insumos!AD:AE,2,FALSE))","v":""},null,{"$f":"IF(G6706=\"\",\"\",VLOOKUP(G6706,Insumos!G:H,2,FALSE))","v":""}]
[null,null,null,null,null,{"$f":"IF(E6707=\"\",\"\",VLOOKUP(E6707,Insumos!AD:AE,2,FALSE))","v":""},null,{"$f":"IF(G6707=\"\",\"\",VLOOKUP(G6707,Insumos!G:H,2,FALSE))","v":""}]
[null,null,null,null,null,{"$f":"IF(E6708=\"\",\"\",VLOOKUP(E6708,Insumos!AD:AE,2,FALSE))","v":""},null,{"$f":"IF(G6708=\"\",\"\",VLOOKUP(G6708,Insumos!G:H,2,FALSE))","v":""}]
[null,null,null,null,null,{"$f":"IF(E6709=\"\",\"\",VLOOKUP(E6709,Insumos!AD:AE,2,FALSE))","v":""},null,{"$f":"IF(G6709=\"\",\"\",VLOOKUP(G6709,Insumos!G:H,2,FALSE))","v":""}]
[null,null,null,null,null,{"$f":"IF(E6710=\"\",\"\",VLOOKUP(E6710,Insumos!AD:AE,2,FALSE))","v":""},null,{"$f":"IF(G6710=\"\",\"\",VLOOKUP(G6710,Insumos!G:H,2,FALSE))","v":""}]
[null,null,null,null,null,{"$f":"IF(E6711=\"\",\"\",VLOOKUP(E6711,Insumos!AD:AE,2,FALSE))","v":""},null,{"$f":"IF(G6711=\"\",\"\",VLOOKUP(G6711,Insumos!G:H,2,FALSE))","v":""}]
[null,null,null,null,null,{"$f":"IF(E6712=\"\",\"\",VLOOKUP(E6712,Insumos!AD:AE,2,FALSE))","v":""},null,{"$f":"IF(G6712=\"\",\"\",VLOOKUP(G6712,Insumos!G:H,2,FALSE))","v":""}]
[null,null,null,null,null,{"$f":"IF(E6713=\"\",\"\",VLOOKUP(E6713,Insumos!AD:AE,2,FALSE))","v":""},null,{"$f":"IF(G6713=\"\",\"\",VLOOKUP(G6713,Insumos!G:H,2,FALSE))","v":""}]
[null,null,null,null,null,{"$f":"IF(E6714=\"\",\"\",VLOOKUP(E6714,Insumos!AD:AE,2,FALSE))","v":""},null,{"$f":"IF(G6714=\"\",\"\",VLOOKUP(G6714,Insumos!G:H,2,FALSE))","v":""}]
[null,null,null,null,null,{"$f":"IF(E6715=\"\",\"\",VLOOKUP(E6715,Insumos!AD:AE,2,FALSE))","v":""},null,{"$f":"IF(G6715=\"\",\"\",VLOOKUP(G6715,Insumos!G:H,2,FALSE))","v":""}]
[null,null,null,null,null,{"$f":"IF(E6716=\"\",\"\",VLOOKUP(E6716,Insumos!AD:AE,2,FALSE))","v":""},null,{"$f":"IF(G6716=\"\",\"\",VLOOKUP(G6716,Insumos!G:H,2,FALSE))","v":""}]
[null,null,null,null,null,{"$f":"IF(E6717=\"\",\"\",VLOOKUP(E6717,Insumos!AD:AE,2,FALSE))","v":""},null,{"$f":"IF(G6717=\"\",\"\",VLOOKUP(G6717,Insumos!G:H,2,FALSE))","v":""}]
[null,null,null,null,null,{"$f":"IF(E6718=\"\",\"\",VLOOKUP(E6718,Insumos!AD:AE,2,FALSE))","v":""},null,{"$f":"IF(G6718=\"\",\"\",VLOOKUP(G6718,Insumos!G:H,2,FALSE))","v":""}]
[null,null,null,null,null,{"$f":"IF(E6719=\"\",\"\",VLOOKUP(E6719,Insumos!AD:AE,2,FALSE))","v":""},null,{"$f":"IF(G6719=\"\",\"\",VLOOKUP(G6719,Insumos!G:H,2,FALSE))","v":""}]
[null,null,null,null,null,{"$f":"IF(E6720=\"\",\"\",VLOOKUP(E6720,Insumos!AD:AE,2,FALSE))","v":""},null,{"$f":"IF(G6720=\"\",\"\",VLOOKUP(G6720,Insumos!G:H,2,FALSE))","v":""}]
[null,null,null,null,null,{"$f":"IF(E6721=\"\",\"\",VLOOKUP(E6721,Insumos!AD:AE,2,FALSE))","v":""},null,{"$f":"IF(G6721=\"\",\"\",VLOOKUP(G6721,Insumos!G:H,2,FALSE))","v":""}]
[null,null,null,null,null,{"$f":"IF(E6722=\"\",\"\",VLOOKUP(E6722,Insumos!AD:AE,2,FALSE))","v":""},null,{"$f":"IF(G6722=\"\",\"\",VLOOKUP(G6722,Insumos!G:H,2,FALSE))","v":""}]
[null,null,null,null,null,{"$f":"IF(E6723=\"\",\"\",VLOOKUP(E6723,Insumos!AD:AE,2,FALSE))","v":""},null,{"$f":"IF(G6723=\"\",\"\",VLOOKUP(G6723,Insumos!G:H,2,FALSE))","v":""}]
[null,null,null,null,null,{"$f":"IF(E6724=\"\",\"\",VLOOKUP(E6724,Insumos!AD:AE,2,FALSE))","v":""},null,{"$f":"IF(G6724=\"\",\"\",VLOOKUP(G6724,Insumos!G:H,2,FALSE))","v":""}]
[null,null,null,null,null,{"$f":"IF(E6725=\"\",\"\",VLOOKUP(E6725,Insumos!AD:AE,2,FALSE))","v":""},null,{"$f":"IF(G6725=\"\",\"\",VLOOKUP(G6725,Insumos!G:H,2,FALSE))","v":""}]
[null,null,null,null,null,{"$f":"IF(E6726=\"\",\"\",VLOOKUP(E6726,Insumos!AD:AE,2,FALSE))","v":""},null,{"$f":"IF(G6726=\"\",\"\",VLOOKUP(G6726,Insumos!G:H,2,FALSE))","v":""}]
[null,null,null,null,null,{"$f":"IF(E6727=\"\",\"\",VLOOKUP(E6727,Insumos!AD:AE,2,FALSE))","v":""},null,{"$f":"IF(G6727=\"\",\"\",VLOOKUP(G6727,Insumos!G:H,2,FALSE))","v":""}]
[null,null,null,null,null,{"$f":"IF(E6728=\"\",\"\",VLOOKUP(E6728,Insumos!AD:AE,2,FALSE))","v":""},null,{"$f":"IF(G6728=\"\",\"\",VLOOKUP(G6728,Insumos!G:H,2,FALSE))","v":""}]
[null,null,null,null,null,{"$f":"IF(E6729=\"\",\"\",VLOOKUP(E6729,Insumos!AD:AE,2,FALSE))","v":""},null,{"$f":"IF(G6729=\"\",\"\",VLOOKUP(G6729,Insumos!G:H,2,FALSE))","v":""}]
[null,null,null,null,null,{"$f":"IF(E6730=\"\",\"\",VLOOKUP(E6730,Insumos!AD:AE,2,FALSE))","v":""},null,{"$f":"IF(G6730=\"\",\"\",VLOOKUP(G6730,Insumos!G:H,2,FALSE))","v":""}]
[null,null,null,null,null,{"$f":"IF(E6731=\"\",\"\",VLOOKUP(E6731,Insumos!AD:AE,2,FALSE))","v":""},null,{"$f":"IF(G6731=\"\",\"\",VLOOKUP(G6731,Insumos!G:H,2,FALSE))","v":""}]
[null,null,null,null,null,{"$f":"IF(E6732=\"\",\"\",VLOOKUP(E6732,Insumos!AD:AE,2,FALSE))","v":""},null,{"$f":"IF(G6732=\"\",\"\",VLOOKUP(G6732,Insumos!G:H,2,FALSE))","v":""}]
[null,null,null,null,null,{"$f":"IF(E6733=\"\",\"\",VLOOKUP(E6733,Insumos!AD:AE,2,FALSE))","v":""},null,{"$f":"IF(G6733=\"\",\"\",VLOOKUP(G6733,Insumos!G:H,2,FALSE))","v":""}]
[null,null,null,null,null,{"$f":"IF(E6734=\"\",\"\",VLOOKUP(E6734,Insumos!AD:AE,2,FALSE))","v":""},null,{"$f":"IF(G6734=\"\",\"\",VLOOKUP(G6734,Insumos!G:H,2,FALSE))","v":""}]
[null,null,null,null,null,{"$f":"IF(E6735=\"\",\"\",VLOOKUP(E6735,Insumos!AD:AE,2,FALSE))","v":""},null,{"$f":"IF(G6735=\"\",\"\",VLOOKUP(G6735,Insumos!G:H,2,FALSE))","v":""}]
[null,null,null,null,null,{"$f":"IF(E6736=\"\",\"\",VLOOKUP(E6736,Insumos!AD:AE,2,FALSE))","v":""},null,{"$f":"IF(G6736=\"\",\"\",VLOOKUP(G6736,Insumos!G:H,2,FALSE))","v":""}]
[null,null,null,null,null,{"$f":"IF(E6737=\"\",\"\",VLOOKUP(E6737,Insumos!AD:AE,2,FALSE))","v":""},null,{"$f":"IF(G6737=\"\",\"\",VLOOKUP(G6737,Insumos!G:H,2,FALSE))","v":""}]
[null,null,null,null,null,{"$f":"IF(E6738=\"\",\"\",VLOOKUP(E6738,Insumos!AD:AE,2,FALSE))","v":""},null,{"$f":"IF(G6738=\"\",\"\",VLOOKUP(G6738,Insumos!G:H,2,FALSE))","v":""}]
[null,null,null,null,null,{"$f":"IF(E6739=\"\",\"\",VLOOKUP(E6739,Insumos!AD:AE,2,FALSE))","v":""},null,{"$f":"IF(G6739=\"\",\"\",VLOOKUP(G6739,Insumos!G:H,2,FALSE))","v":""}]
[null,null,null,null,null,{"$f":"IF(E6740=\"\",\"\",VLOOKUP(E6740,Insumos!AD:AE,2,FALSE))","v":""},null,{"$f":"IF(G6740=\"\",\"\",VLOOKUP(G6740,Insumos!G:H,2,FALSE))","v":""}]
[null,null,null,null,null,{"$f":"IF(E6741=\"\",\"\",VLOOKUP(E6741,Insumos!AD:AE,2,FALSE))","v":""},null,{"$f":"IF(G6741=\"\",\"\",VLOOKUP(G6741,Insumos!G:H,2,FALSE))","v":""}]
[null,null,null,null,null,{"$f":"IF(E6742=\"\",\"\",VLOOKUP(E6742,Insumos!AD:AE,2,FALSE))","v":""},null,{"$f":"IF(G6742=\"\",\"\",VLOOKUP(G6742,Insumos!G:H,2,FALSE))","v":""}]
[null,null,null,null,null,{"$f":"IF(E6743=\"\",\"\",VLOOKUP(E6743,Insumos!AD:AE,2,FALSE))","v":""},null,{"$f":"IF(G6743=\"\",\"\",VLOOKUP(G6743,Insumos!G:H,2,FALSE))","v":""}]
[null,null,null,null,null,{"$f":"IF(E6744=\"\",\"\",VLOOKUP(E6744,Insumos!AD:AE,2,FALSE))","v":""},null,{"$f":"IF(G6744=\"\",\"\",VLOOKUP(G6744,Insumos!G:H,2,FALSE))","v":""}]
[null,null,null,null,null,{"$f":"IF(E6745=\"\",\"\",VLOOKUP(E6745,Insumos!AD:AE,2,FALSE))","v":""},null,{"$f":"IF(G6745=\"\",\"\",VLOOKUP(G6745,Insumos!G:H,2,FALSE))","v":""}]
[null,null,null,null,null,{"$f":"IF(E6746=\"\",\"\",VLOOKUP(E6746,Insumos!AD:AE,2,FALSE))","v":""},null,{"$f":"IF(G6746=\"\",\"\",VLOOKUP(G6746,Insumos!G:H,2,FALSE))","v":""}]
[null,null,null,null,null,{"$f":"IF(E6747=\"\",\"\",VLOOKUP(E6747,Insumos!AD:AE,2,FALSE))","v":""},null,{"$f":"IF(G6747=\"\",\"\",VLOOKUP(G6747,Insumos!G:H,2,FALSE))","v":""}]
[null,null,null,null,null,{"$f":"IF(E6748=\"\",\"\",VLOOKUP(E6748,Insumos!AD:AE,2,FALSE))","v":""},null,{"$f":"IF(G6748=\"\",\"\",VLOOKUP(G6748,Insumos!G:H,2,FALSE))","v":""}]
[null,null,null,null,null,{"$f":"IF(E6749=\"\",\"\",VLOOKUP(E6749,Insumos!AD:AE,2,FALSE))","v":""},null,{"$f":"IF(G6749=\"\",\"\",VLOOKUP(G6749,Insumos!G:H,2,FALSE))","v":""}]
[null,null,null,null,null,{"$f":"IF(E6750=\"\",\"\",VLOOKUP(E6750,Insumos!AD:AE,2,FALSE))","v":""},null,{"$f":"IF(G6750=\"\",\"\",VLOOKUP(G6750,Insumos!G:H,2,FALSE))","v":""}]
[null,null,null,null,null,{"$f":"IF(E6751=\"\",\"\",VLOOKUP(E6751,Insumos!AD:AE,2,FALSE))","v":""},null,{"$f":"IF(G6751=\"\",\"\",VLOOKUP(G6751,Insumos!G:H,2,FALSE))","v":""}]
[null,null,null,null,null,{"$f":"IF(E6752=\"\",\"\",VLOOKUP(E6752,Insumos!AD:AE,2,FALSE))","v":""},null,{"$f":"IF(G6752=\"\",\"\",VLOOKUP(G6752,Insumos!G:H,2,FALSE))","v":""}]
[null,null,null,null,null,{"$f":"IF(E6753=\"\",\"\",VLOOKUP(E6753,Insumos!AD:AE,2,FALSE))","v":""},null,{"$f":"IF(G6753=\"\",\"\",VLOOKUP(G6753,Insumos!G:H,2,FALSE))","v":""}]
[null,null,null,null,null,{"$f":"IF(E6754=\"\",\"\",VLOOKUP(E6754,Insumos!AD:AE,2,FALSE))","v":""},null,{"$f":"IF(G6754=\"\",\"\",VLOOKUP(G6754,Insumos!G:H,2,FALSE))","v":""}]
[null,null,null,null,null,{"$f":"IF(E6755=\"\",\"\",VLOOKUP(E6755,Insumos!AD:AE,2,FALSE))","v":""},null,{"$f":"IF(G6755=\"\",\"\",VLOOKUP(G6755,Insumos!G:H,2,FALSE))","v":""}]
[null,null,null,null,null,{"$f":"IF(E6756=\"\",\"\",VLOOKUP(E6756,Insumos!AD:AE,2,FALSE))","v":""},null,{"$f":"IF(G6756=\"\",\"\",VLOOKUP(G6756,Insumos!G:H,2,FALSE))","v":""}]
[null,null,null,null,null,{"$f":"IF(E6757=\"\",\"\",VLOOKUP(E6757,Insumos!AD:AE,2,FALSE))","v":""},null,{"$f":"IF(G6757=\"\",\"\",VLOOKUP(G6757,Insumos!G:H,2,FALSE))","v":""}]
[null,null,null,null,null,{"$f":"IF(E6758=\"\",\"\",VLOOKUP(E6758,Insumos!AD:AE,2,FALSE))","v":""},null,{"$f":"IF(G6758=\"\",\"\",VLOOKUP(G6758,Insumos!G:H,2,FALSE))","v":""}]
[null,null,null,null,null,{"$f":"IF(E6759=\"\",\"\",VLOOKUP(E6759,Insumos!AD:AE,2,FALSE))","v":""},null,{"$f":"IF(G6759=\"\",\"\",VLOOKUP(G6759,Insumos!G:H,2,FALSE))","v":""}]
[null,null,null,null,null,{"$f":"IF(E6760=\"\",\"\",VLOOKUP(E6760,Insumos!AD:AE,2,FALSE))","v":""},null,{"$f":"IF(G6760=\"\",\"\",VLOOKUP(G6760,Insumos!G:H,2,FALSE))","v":""}]
[null,null,null,null,null,{"$f":"IF(E6761=\"\",\"\",VLOOKUP(E6761,Insumos!AD:AE,2,FALSE))","v":""},null,{"$f":"IF(G6761=\"\",\"\",VLOOKUP(G6761,Insumos!G:H,2,FALSE))","v":""}]
[null,null,null,null,null,{"$f":"IF(E6762=\"\",\"\",VLOOKUP(E6762,Insumos!AD:AE,2,FALSE))","v":""},null,{"$f":"IF(G6762=\"\",\"\",VLOOKUP(G6762,Insumos!G:H,2,FALSE))","v":""}]
[null,null,null,null,null,{"$f":"IF(E6763=\"\",\"\",VLOOKUP(E6763,Insumos!AD:AE,2,FALSE))","v":""},null,{"$f":"IF(G6763=\"\",\"\",VLOOKUP(G6763,Insumos!G:H,2,FALSE))","v":""}]
[null,null,null,null,null,{"$f":"IF(E6764=\"\",\"\",VLOOKUP(E6764,Insumos!AD:AE,2,FALSE))","v":""},null,{"$f":"IF(G6764=\"\",\"\",VLOOKUP(G6764,Insumos!G:H,2,FALSE))","v":""}]
[null,null,null,null,null,{"$f":"IF(E6765=\"\",\"\",VLOOKUP(E6765,Insumos!AD:AE,2,FALSE))","v":""},null,{"$f":"IF(G6765=\"\",\"\",VLOOKUP(G6765,Insumos!G:H,2,FALSE))","v":""}]
[null,null,null,null,null,{"$f":"IF(E6766=\"\",\"\",VLOOKUP(E6766,Insumos!AD:AE,2,FALSE))","v":""},null,{"$f":"IF(G6766=\"\",\"\",VLOOKUP(G6766,Insumos!G:H,2,FALSE))","v":""}]
[null,null,null,null,null,{"$f":"IF(E6767=\"\",\"\",VLOOKUP(E6767,Insumos!AD:AE,2,FALSE))","v":""},null,{"$f":"IF(G6767=\"\",\"\",VLOOKUP(G6767,Insumos!G:H,2,FALSE))","v":""}]
[null,null,null,null,null,{"$f":"IF(E6768=\"\",\"\",VLOOKUP(E6768,Insumos!AD:AE,2,FALSE))","v":""},null,{"$f":"IF(G6768=\"\",\"\",VLOOKUP(G6768,Insumos!G:H,2,FALSE))","v":""}]
[null,null,null,null,null,{"$f":"IF(E6769=\"\",\"\",VLOOKUP(E6769,Insumos!AD:AE,2,FALSE))","v":""},null,{"$f":"IF(G6769=\"\",\"\",VLOOKUP(G6769,Insumos!G:H,2,FALSE))","v":""}]
[null,null,null,null,null,{"$f":"IF(E6770=\"\",\"\",VLOOKUP(E6770,Insumos!AD:AE,2,FALSE))","v":""},null,{"$f":"IF(G6770=\"\",\"\",VLOOKUP(G6770,Insumos!G:H,2,FALSE))","v":""}]
[null,null,null,null,null,{"$f":"IF(E6771=\"\",\"\",VLOOKUP(E6771,Insumos!AD:AE,2,FALSE))","v":""},null,{"$f":"IF(G6771=\"\",\"\",VLOOKUP(G6771,Insumos!G:H,2,FALSE))","v":""}]
[null,null,null,null,null,{"$f":"IF(E6772=\"\",\"\",VLOOKUP(E6772,Insumos!AD:AE,2,FALSE))","v":""},null,{"$f":"IF(G6772=\"\",\"\",VLOOKUP(G6772,Insumos!G:H,2,FALSE))","v":""}]
[null,null,null,null,null,{"$f":"IF(E6773=\"\",\"\",VLOOKUP(E6773,Insumos!AD:AE,2,FALSE))","v":""},null,{"$f":"IF(G6773=\"\",\"\",VLOOKUP(G6773,Insumos!G:H,2,FALSE))","v":""}]
[null,null,null,null,null,{"$f":"IF(E6774=\"\",\"\",VLOOKUP(E6774,Insumos!AD:AE,2,FALSE))","v":""},null,{"$f":"IF(G6774=\"\",\"\",VLOOKUP(G6774,Insumos!G:H,2,FALSE))","v":""}]
[null,null,null,null,null,{"$f":"IF(E6775=\"\",\"\",VLOOKUP(E6775,Insumos!AD:AE,2,FALSE))","v":""},null,{"$f":"IF(G6775=\"\",\"\",VLOOKUP(G6775,Insumos!G:H,2,FALSE))","v":""}]
[null,null,null,null,null,{"$f":"IF(E6776=\"\",\"\",VLOOKUP(E6776,Insumos!AD:AE,2,FALSE))","v":""},null,{"$f":"IF(G6776=\"\",\"\",VLOOKUP(G6776,Insumos!G:H,2,FALSE))","v":""}]
[null,null,null,null,null,{"$f":"IF(E6777=\"\",\"\",VLOOKUP(E6777,Insumos!AD:AE,2,FALSE))","v":""},null,{"$f":"IF(G6777=\"\",\"\",VLOOKUP(G6777,Insumos!G:H,2,FALSE))","v":""}]
[null,null,null,null,null,{"$f":"IF(E6778=\"\",\"\",VLOOKUP(E6778,Insumos!AD:AE,2,FALSE))","v":""},null,{"$f":"IF(G6778=\"\",\"\",VLOOKUP(G6778,Insumos!G:H,2,FALSE))","v":""}]
[null,null,null,null,null,{"$f":"IF(E6779=\"\",\"\",VLOOKUP(E6779,Insumos!AD:AE,2,FALSE))","v":""},null,{"$f":"IF(G6779=\"\",\"\",VLOOKUP(G6779,Insumos!G:H,2,FALSE))","v":""}]
[null,null,null,null,null,{"$f":"IF(E6780=\"\",\"\",VLOOKUP(E6780,Insumos!AD:AE,2,FALSE))","v":""},null,{"$f":"IF(G6780=\"\",\"\",VLOOKUP(G6780,Insumos!G:H,2,FALSE))","v":""}]
[null,null,null,null,null,{"$f":"IF(E6781=\"\",\"\",VLOOKUP(E6781,Insumos!AD:AE,2,FALSE))","v":""},null,{"$f":"IF(G6781=\"\",\"\",VLOOKUP(G6781,Insumos!G:H,2,FALSE))","v":""}]
[null,null,null,null,null,{"$f":"IF(E6782=\"\",\"\",VLOOKUP(E6782,Insumos!AD:AE,2,FALSE))","v":""},null,{"$f":"IF(G6782=\"\",\"\",VLOOKUP(G6782,Insumos!G:H,2,FALSE))","v":""}]
[null,null,null,null,null,{"$f":"IF(E6783=\"\",\"\",VLOOKUP(E6783,Insumos!AD:AE,2,FALSE))","v":""},null,{"$f":"IF(G6783=\"\",\"\",VLOOKUP(G6783,Insumos!G:H,2,FALSE))","v":""}]
[null,null,null,null,null,{"$f":"IF(E6784=\"\",\"\",VLOOKUP(E6784,Insumos!AD:AE,2,FALSE))","v":""},null,{"$f":"IF(G6784=\"\",\"\",VLOOKUP(G6784,Insumos!G:H,2,FALSE))","v":""}]
[null,null,null,null,null,{"$f":"IF(E6785=\"\",\"\",VLOOKUP(E6785,Insumos!AD:AE,2,FALSE))","v":""},null,{"$f":"IF(G6785=\"\",\"\",VLOOKUP(G6785,Insumos!G:H,2,FALSE))","v":""}]
[null,null,null,null,null,{"$f":"IF(E6786=\"\",\"\",VLOOKUP(E6786,Insumos!AD:AE,2,FALSE))","v":""},null,{"$f":"IF(G6786=\"\",\"\",VLOOKUP(G6786,Insumos!G:H,2,FALSE))","v":""}]
[null,null,null,null,null,{"$f":"IF(E6787=\"\",\"\",VLOOKUP(E6787,Insumos!AD:AE,2,FALSE))","v":""},null,{"$f":"IF(G6787=\"\",\"\",VLOOKUP(G6787,Insumos!G:H,2,FALSE))","v":""}]
[null,null,null,null,null,{"$f":"IF(E6788=\"\",\"\",VLOOKUP(E6788,Insumos!AD:AE,2,FALSE))","v":""},null,{"$f":"IF(G6788=\"\",\"\",VLOOKUP(G6788,Insumos!G:H,2,FALSE))","v":""}]
[null,null,null,null,null,{"$f":"IF(E6789=\"\",\"\",VLOOKUP(E6789,Insumos!AD:AE,2,FALSE))","v":""},null,{"$f":"IF(G6789=\"\",\"\",VLOOKUP(G6789,Insumos!G:H,2,FALSE))","v":""}]
[null,null,null,null,null,{"$f":"IF(E6790=\"\",\"\",VLOOKUP(E6790,Insumos!AD:AE,2,FALSE))","v":""},null,{"$f":"IF(G6790=\"\",\"\",VLOOKUP(G6790,Insumos!G:H,2,FALSE))","v":""}]
[null,null,null,null,null,{"$f":"IF(E6791=\"\",\"\",VLOOKUP(E6791,Insumos!AD:AE,2,FALSE))","v":""},null,{"$f":"IF(G6791=\"\",\"\",VLOOKUP(G6791,Insumos!G:H,2,FALSE))","v":""}]
[null,null,null,null,null,{"$f":"IF(E6792=\"\",\"\",VLOOKUP(E6792,Insumos!AD:AE,2,FALSE))","v":""},null,{"$f":"IF(G6792=\"\",\"\",VLOOKUP(G6792,Insumos!G:H,2,FALSE))","v":""}]
[null,null,null,null,null,{"$f":"IF(E6793=\"\",\"\",VLOOKUP(E6793,Insumos!AD:AE,2,FALSE))","v":""},null,{"$f":"IF(G6793=\"\",\"\",VLOOKUP(G6793,Insumos!G:H,2,FALSE))","v":""}]
[null,null,null,null,null,{"$f":"IF(E6794=\"\",\"\",VLOOKUP(E6794,Insumos!AD:AE,2,FALSE))","v":""},null,{"$f":"IF(G6794=\"\",\"\",VLOOKUP(G6794,Insumos!G:H,2,FALSE))","v":""}]
[null,null,null,null,null,{"$f":"IF(E6795=\"\",\"\",VLOOKUP(E6795,Insumos!AD:AE,2,FALSE))","v":""},null,{"$f":"IF(G6795=\"\",\"\",VLOOKUP(G6795,Insumos!G:H,2,FALSE))","v":""}]
[null,null,null,null,null,{"$f":"IF(E6796=\"\",\"\",VLOOKUP(E6796,Insumos!AD:AE,2,FALSE))","v":""},null,{"$f":"IF(G6796=\"\",\"\",VLOOKUP(G6796,Insumos!G:H,2,FALSE))","v":""}]
[null,null,null,null,null,{"$f":"IF(E6797=\"\",\"\",VLOOKUP(E6797,Insumos!AD:AE,2,FALSE))","v":""},null,{"$f":"IF(G6797=\"\",\"\",VLOOKUP(G6797,Insumos!G:H,2,FALSE))","v":""}]
[null,null,null,null,null,{"$f":"IF(E6798=\"\",\"\",VLOOKUP(E6798,Insumos!AD:AE,2,FALSE))","v":""},null,{"$f":"IF(G6798=\"\",\"\",VLOOKUP(G6798,Insumos!G:H,2,FALSE))","v":""}]
[null,null,null,null,null,{"$f":"IF(E6799=\"\",\"\",VLOOKUP(E6799,Insumos!AD:AE,2,FALSE))","v":""},null,{"$f":"IF(G6799=\"\",\"\",VLOOKUP(G6799,Insumos!G:H,2,FALSE))","v":""}]
[null,null,null,null,null,{"$f":"IF(E6800=\"\",\"\",VLOOKUP(E6800,Insumos!AD:AE,2,FALSE))","v":""},null,{"$f":"IF(G6800=\"\",\"\",VLOOKUP(G6800,Insumos!G:H,2,FALSE))","v":""}]
[null,null,null,null,null,{"$f":"IF(E6801=\"\",\"\",VLOOKUP(E6801,Insumos!AD:AE,2,FALSE))","v":""},null,{"$f":"IF(G6801=\"\",\"\",VLOOKUP(G6801,Insumos!G:H,2,FALSE))","v":""}]
[null,null,null,null,null,{"$f":"IF(E6802=\"\",\"\",VLOOKUP(E6802,Insumos!AD:AE,2,FALSE))","v":""},null,{"$f":"IF(G6802=\"\",\"\",VLOOKUP(G6802,Insumos!G:H,2,FALSE))","v":""}]
[null,null,null,null,null,{"$f":"IF(E6803=\"\",\"\",VLOOKUP(E6803,Insumos!AD:AE,2,FALSE))","v":""},null,{"$f":"IF(G6803=\"\",\"\",VLOOKUP(G6803,Insumos!G:H,2,FALSE))","v":""}]
[null,null,null,null,null,{"$f":"IF(E6804=\"\",\"\",VLOOKUP(E6804,Insumos!AD:AE,2,FALSE))","v":""},null,{"$f":"IF(G6804=\"\",\"\",VLOOKUP(G6804,Insumos!G:H,2,FALSE))","v":""}]
[null,null,null,null,null,{"$f":"IF(E6805=\"\",\"\",VLOOKUP(E6805,Insumos!AD:AE,2,FALSE))","v":""},null,{"$f":"IF(G6805=\"\",\"\",VLOOKUP(G6805,Insumos!G:H,2,FALSE))","v":""}]
[null,null,null,null,null,{"$f":"IF(E6806=\"\",\"\",VLOOKUP(E6806,Insumos!AD:AE,2,FALSE))","v":""},null,{"$f":"IF(G6806=\"\",\"\",VLOOKUP(G6806,Insumos!G:H,2,FALSE))","v":""}]
[null,null,null,null,null,{"$f":"IF(E6807=\"\",\"\",VLOOKUP(E6807,Insumos!AD:AE,2,FALSE))","v":""},null,{"$f":"IF(G6807=\"\",\"\",VLOOKUP(G6807,Insumos!G:H,2,FALSE))","v":""}]
[null,null,null,null,null,{"$f":"IF(E6808=\"\",\"\",VLOOKUP(E6808,Insumos!AD:AE,2,FALSE))","v":""},null,{"$f":"IF(G6808=\"\",\"\",VLOOKUP(G6808,Insumos!G:H,2,FALSE))","v":""}]
[null,null,null,null,null,{"$f":"IF(E6809=\"\",\"\",VLOOKUP(E6809,Insumos!AD:AE,2,FALSE))","v":""},null,{"$f":"IF(G6809=\"\",\"\",VLOOKUP(G6809,Insumos!G:H,2,FALSE))","v":""}]
[null,null,null,null,null,{"$f":"IF(E6810=\"\",\"\",VLOOKUP(E6810,Insumos!AD:AE,2,FALSE))","v":""},null,{"$f":"IF(G6810=\"\",\"\",VLOOKUP(G6810,Insumos!G:H,2,FALSE))","v":""}]
[null,null,null,null,null,{"$f":"IF(E6811=\"\",\"\",VLOOKUP(E6811,Insumos!AD:AE,2,FALSE))","v":""},null,{"$f":"IF(G6811=\"\",\"\",VLOOKUP(G6811,Insumos!G:H,2,FALSE))","v":""}]
[null,null,null,null,null,{"$f":"IF(E6812=\"\",\"\",VLOOKUP(E6812,Insumos!AD:AE,2,FALSE))","v":""},null,{"$f":"IF(G6812=\"\",\"\",VLOOKUP(G6812,Insumos!G:H,2,FALSE))","v":""}]
[null,null,null,null,null,{"$f":"IF(E6813=\"\",\"\",VLOOKUP(E6813,Insumos!AD:AE,2,FALSE))","v":""},null,{"$f":"IF(G6813=\"\",\"\",VLOOKUP(G6813,Insumos!G:H,2,FALSE))","v":""}]
[null,null,null,null,null,{"$f":"IF(E6814=\"\",\"\",VLOOKUP(E6814,Insumos!AD:AE,2,FALSE))","v":""},null,{"$f":"IF(G6814=\"\",\"\",VLOOKUP(G6814,Insumos!G:H,2,FALSE))","v":""}]
[null,null,null,null,null,{"$f":"IF(E6815=\"\",\"\",VLOOKUP(E6815,Insumos!AD:AE,2,FALSE))","v":""},null,{"$f":"IF(G6815=\"\",\"\",VLOOKUP(G6815,Insumos!G:H,2,FALSE))","v":""}]
[null,null,null,null,null,{"$f":"IF(E6816=\"\",\"\",VLOOKUP(E6816,Insumos!AD:AE,2,FALSE))","v":""},null,{"$f":"IF(G6816=\"\",\"\",VLOOKUP(G6816,Insumos!G:H,2,FALSE))","v":""}]
[null,null,null,null,null,{"$f":"IF(E6817=\"\",\"\",VLOOKUP(E6817,Insumos!AD:AE,2,FALSE))","v":""},null,{"$f":"IF(G6817=\"\",\"\",VLOOKUP(G6817,Insumos!G:H,2,FALSE))","v":""}]
[null,null,null,null,null,{"$f":"IF(E6818=\"\",\"\",VLOOKUP(E6818,Insumos!AD:AE,2,FALSE))","v":""},null,{"$f":"IF(G6818=\"\",\"\",VLOOKUP(G6818,Insumos!G:H,2,FALSE))","v":""}]
[null,null,null,null,null,{"$f":"IF(E6819=\"\",\"\",VLOOKUP(E6819,Insumos!AD:AE,2,FALSE))","v":""},null,{"$f":"IF(G6819=\"\",\"\",VLOOKUP(G6819,Insumos!G:H,2,FALSE))","v":""}]
[null,null,null,null,null,{"$f":"IF(E6820=\"\",\"\",VLOOKUP(E6820,Insumos!AD:AE,2,FALSE))","v":""},null,{"$f":"IF(G6820=\"\",\"\",VLOOKUP(G6820,Insumos!G:H,2,FALSE))","v":""}]
[null,null,null,null,null,{"$f":"IF(E6821=\"\",\"\",VLOOKUP(E6821,Insumos!AD:AE,2,FALSE))","v":""},null,{"$f":"IF(G6821=\"\",\"\",VLOOKUP(G6821,Insumos!G:H,2,FALSE))","v":""}]
[null,null,null,null,null,{"$f":"IF(E6822=\"\",\"\",VLOOKUP(E6822,Insumos!AD:AE,2,FALSE))","v":""},null,{"$f":"IF(G6822=\"\",\"\",VLOOKUP(G6822,Insumos!G:H,2,FALSE))","v":""}]
[null,null,null,null,null,{"$f":"IF(E6823=\"\",\"\",VLOOKUP(E6823,Insumos!AD:AE,2,FALSE))","v":""},null,{"$f":"IF(G6823=\"\",\"\",VLOOKUP(G6823,Insumos!G:H,2,FALSE))","v":""}]
[null,null,null,null,null,{"$f":"IF(E6824=\"\",\"\",VLOOKUP(E6824,Insumos!AD:AE,2,FALSE))","v":""},null,{"$f":"IF(G6824=\"\",\"\",VLOOKUP(G6824,Insumos!G:H,2,FALSE))","v":""}]
[null,null,null,null,null,{"$f":"IF(E6825=\"\",\"\",VLOOKUP(E6825,Insumos!AD:AE,2,FALSE))","v":""},null,{"$f":"IF(G6825=\"\",\"\",VLOOKUP(G6825,Insumos!G:H,2,FALSE))","v":""}]
[null,null,null,null,null,{"$f":"IF(E6826=\"\",\"\",VLOOKUP(E6826,Insumos!AD:AE,2,FALSE))","v":""},null,{"$f":"IF(G6826=\"\",\"\",VLOOKUP(G6826,Insumos!G:H,2,FALSE))","v":""}]
[null,null,null,null,null,{"$f":"IF(E6827=\"\",\"\",VLOOKUP(E6827,Insumos!AD:AE,2,FALSE))","v":""},null,{"$f":"IF(G6827=\"\",\"\",VLOOKUP(G6827,Insumos!G:H,2,FALSE))","v":""}]
[null,null,null,null,null,{"$f":"IF(E6828=\"\",\"\",VLOOKUP(E6828,Insumos!AD:AE,2,FALSE))","v":""},null,{"$f":"IF(G6828=\"\",\"\",VLOOKUP(G6828,Insumos!G:H,2,FALSE))","v":""}]
[null,null,null,null,null,{"$f":"IF(E6829=\"\",\"\",VLOOKUP(E6829,Insumos!AD:AE,2,FALSE))","v":""},null,{"$f":"IF(G6829=\"\",\"\",VLOOKUP(G6829,Insumos!G:H,2,FALSE))","v":""}]
[null,null,null,null,null,{"$f":"IF(E6830=\"\",\"\",VLOOKUP(E6830,Insumos!AD:AE,2,FALSE))","v":""},null,{"$f":"IF(G6830=\"\",\"\",VLOOKUP(G6830,Insumos!G:H,2,FALSE))","v":""}]
[null,null,null,null,null,{"$f":"IF(E6831=\"\",\"\",VLOOKUP(E6831,Insumos!AD:AE,2,FALSE))","v":""},null,{"$f":"IF(G6831=\"\",\"\",VLOOKUP(G6831,Insumos!G:H,2,FALSE))","v":""}]
[null,null,null,null,null,{"$f":"IF(E6832=\"\",\"\",VLOOKUP(E6832,Insumos!AD:AE,2,FALSE))","v":""},null,{"$f":"IF(G6832=\"\",\"\",VLOOKUP(G6832,Insumos!G:H,2,FALSE))","v":""}]
[null,null,null,null,null,{"$f":"IF(E6833=\"\",\"\",VLOOKUP(E6833,Insumos!AD:AE,2,FALSE))","v":""},null,{"$f":"IF(G6833=\"\",\"\",VLOOKUP(G6833,Insumos!G:H,2,FALSE))","v":""}]
[null,null,null,null,null,{"$f":"IF(E6834=\"\",\"\",VLOOKUP(E6834,Insumos!AD:AE,2,FALSE))","v":""},null,{"$f":"IF(G6834=\"\",\"\",VLOOKUP(G6834,Insumos!G:H,2,FALSE))","v":""}]
[null,null,null,null,null,{"$f":"IF(E6835=\"\",\"\",VLOOKUP(E6835,Insumos!AD:AE,2,FALSE))","v":""},null,{"$f":"IF(G6835=\"\",\"\",VLOOKUP(G6835,Insumos!G:H,2,FALSE))","v":""}]
[null,null,null,null,null,{"$f":"IF(E6836=\"\",\"\",VLOOKUP(E6836,Insumos!AD:AE,2,FALSE))","v":""},null,{"$f":"IF(G6836=\"\",\"\",VLOOKUP(G6836,Insumos!G:H,2,FALSE))","v":""}]
[null,null,null,null,null,{"$f":"IF(E6837=\"\",\"\",VLOOKUP(E6837,Insumos!AD:AE,2,FALSE))","v":""},null,{"$f":"IF(G6837=\"\",\"\",VLOOKUP(G6837,Insumos!G:H,2,FALSE))","v":""}]
[null,null,null,null,null,{"$f":"IF(E6838=\"\",\"\",VLOOKUP(E6838,Insumos!AD:AE,2,FALSE))","v":""},null,{"$f":"IF(G6838=\"\",\"\",VLOOKUP(G6838,Insumos!G:H,2,FALSE))","v":""}]
[null,null,null,null,null,{"$f":"IF(E6839=\"\",\"\",VLOOKUP(E6839,Insumos!AD:AE,2,FALSE))","v":""},null,{"$f":"IF(G6839=\"\",\"\",VLOOKUP(G6839,Insumos!G:H,2,FALSE))","v":""}]
[null,null,null,null,null,{"$f":"IF(E6840=\"\",\"\",VLOOKUP(E6840,Insumos!AD:AE,2,FALSE))","v":""},null,{"$f":"IF(G6840=\"\",\"\",VLOOKUP(G6840,Insumos!G:H,2,FALSE))","v":""}]
[null,null,null,null,null,{"$f":"IF(E6841=\"\",\"\",VLOOKUP(E6841,Insumos!AD:AE,2,FALSE))","v":""},null,{"$f":"IF(G6841=\"\",\"\",VLOOKUP(G6841,Insumos!G:H,2,FALSE))","v":""}]
[null,null,null,null,null,{"$f":"IF(E6842=\"\",\"\",VLOOKUP(E6842,Insumos!AD:AE,2,FALSE))","v":""},null,{"$f":"IF(G6842=\"\",\"\",VLOOKUP(G6842,Insumos!G:H,2,FALSE))","v":""}]
[null,null,null,null,null,{"$f":"IF(E6843=\"\",\"\",VLOOKUP(E6843,Insumos!AD:AE,2,FALSE))","v":""},null,{"$f":"IF(G6843=\"\",\"\",VLOOKUP(G6843,Insumos!G:H,2,FALSE))","v":""}]
[null,null,null,null,null,{"$f":"IF(E6844=\"\",\"\",VLOOKUP(E6844,Insumos!AD:AE,2,FALSE))","v":""},null,{"$f":"IF(G6844=\"\",\"\",VLOOKUP(G6844,Insumos!G:H,2,FALSE))","v":""}]
[null,null,null,null,null,{"$f":"IF(E6845=\"\",\"\",VLOOKUP(E6845,Insumos!AD:AE,2,FALSE))","v":""},null,{"$f":"IF(G6845=\"\",\"\",VLOOKUP(G6845,Insumos!G:H,2,FALSE))","v":""}]
[null,null,null,null,null,{"$f":"IF(E6846=\"\",\"\",VLOOKUP(E6846,Insumos!AD:AE,2,FALSE))","v":""},null,{"$f":"IF(G6846=\"\",\"\",VLOOKUP(G6846,Insumos!G:H,2,FALSE))","v":""}]
[null,null,null,null,null,{"$f":"IF(E6847=\"\",\"\",VLOOKUP(E6847,Insumos!AD:AE,2,FALSE))","v":""},null,{"$f":"IF(G6847=\"\",\"\",VLOOKUP(G6847,Insumos!G:H,2,FALSE))","v":""}]
[null,null,null,null,null,{"$f":"IF(E6848=\"\",\"\",VLOOKUP(E6848,Insumos!AD:AE,2,FALSE))","v":""},null,{"$f":"IF(G6848=\"\",\"\",VLOOKUP(G6848,Insumos!G:H,2,FALSE))","v":""}]
[null,null,null,null,null,{"$f":"IF(E6849=\"\",\"\",VLOOKUP(E6849,Insumos!AD:AE,2,FALSE))","v":""},null,{"$f":"IF(G6849=\"\",\"\",VLOOKUP(G6849,Insumos!G:H,2,FALSE))","v":""}]
[null,null,null,null,null,{"$f":"IF(E6850=\"\",\"\",VLOOKUP(E6850,Insumos!AD:AE,2,FALSE))","v":""},null,{"$f":"IF(G6850=\"\",\"\",VLOOKUP(G6850,Insumos!G:H,2,FALSE))","v":""}]
[null,null,null,null,null,{"$f":"IF(E6851=\"\",\"\",VLOOKUP(E6851,Insumos!AD:AE,2,FALSE))","v":""},null,{"$f":"IF(G6851=\"\",\"\",VLOOKUP(G6851,Insumos!G:H,2,FALSE))","v":""}]
[null,null,null,null,null,{"$f":"IF(E6852=\"\",\"\",VLOOKUP(E6852,Insumos!AD:AE,2,FALSE))","v":""},null,{"$f":"IF(G6852=\"\",\"\",VLOOKUP(G6852,Insumos!G:H,2,FALSE))","v":""}]
[null,null,null,null,null,{"$f":"IF(E6853=\"\",\"\",VLOOKUP(E6853,Insumos!AD:AE,2,FALSE))","v":""},null,{"$f":"IF(G6853=\"\",\"\",VLOOKUP(G6853,Insumos!G:H,2,FALSE))","v":""}]
[null,null,null,null,null,{"$f":"IF(E6854=\"\",\"\",VLOOKUP(E6854,Insumos!AD:AE,2,FALSE))","v":""},null,{"$f":"IF(G6854=\"\",\"\",VLOOKUP(G6854,Insumos!G:H,2,FALSE))","v":""}]
[null,null,null,null,null,{"$f":"IF(E6855=\"\",\"\",VLOOKUP(E6855,Insumos!AD:AE,2,FALSE))","v":""},null,{"$f":"IF(G6855=\"\",\"\",VLOOKUP(G6855,Insumos!G:H,2,FALSE))","v":""}]
[null,null,null,null,null,{"$f":"IF(E6856=\"\",\"\",VLOOKUP(E6856,Insumos!AD:AE,2,FALSE))","v":""},null,{"$f":"IF(G6856=\"\",\"\",VLOOKUP(G6856,Insumos!G:H,2,FALSE))","v":""}]
[null,null,null,null,null,{"$f":"IF(E6857=\"\",\"\",VLOOKUP(E6857,Insumos!AD:AE,2,FALSE))","v":""},null,{"$f":"IF(G6857=\"\",\"\",VLOOKUP(G6857,Insumos!G:H,2,FALSE))","v":""}]
[null,null,null,null,null,{"$f":"IF(E6858=\"\",\"\",VLOOKUP(E6858,Insumos!AD:AE,2,FALSE))","v":""},null,{"$f":"IF(G6858=\"\",\"\",VLOOKUP(G6858,Insumos!G:H,2,FALSE))","v":""}]
[null,null,null,null,null,{"$f":"IF(E6859=\"\",\"\",VLOOKUP(E6859,Insumos!AD:AE,2,FALSE))","v":""},null,{"$f":"IF(G6859=\"\",\"\",VLOOKUP(G6859,Insumos!G:H,2,FALSE))","v":""}]
[null,null,null,null,null,{"$f":"IF(E6860=\"\",\"\",VLOOKUP(E6860,Insumos!AD:AE,2,FALSE))","v":""},null,{"$f":"IF(G6860=\"\",\"\",VLOOKUP(G6860,Insumos!G:H,2,FALSE))","v":""}]
[null,null,null,null,null,{"$f":"IF(E6861=\"\",\"\",VLOOKUP(E6861,Insumos!AD:AE,2,FALSE))","v":""},null,{"$f":"IF(G6861=\"\",\"\",VLOOKUP(G6861,Insumos!G:H,2,FALSE))","v":""}]
[null,null,null,null,null,{"$f":"IF(E6862=\"\",\"\",VLOOKUP(E6862,Insumos!AD:AE,2,FALSE))","v":""},null,{"$f":"IF(G6862=\"\",\"\",VLOOKUP(G6862,Insumos!G:H,2,FALSE))","v":""}]
[null,null,null,null,null,{"$f":"IF(E6863=\"\",\"\",VLOOKUP(E6863,Insumos!AD:AE,2,FALSE))","v":""},null,{"$f":"IF(G6863=\"\",\"\",VLOOKUP(G6863,Insumos!G:H,2,FALSE))","v":""}]
[null,null,null,null,null,{"$f":"IF(E6864=\"\",\"\",VLOOKUP(E6864,Insumos!AD:AE,2,FALSE))","v":""},null,{"$f":"IF(G6864=\"\",\"\",VLOOKUP(G6864,Insumos!G:H,2,FALSE))","v":""}]
[null,null,null,null,null,{"$f":"IF(E6865=\"\",\"\",VLOOKUP(E6865,Insumos!AD:AE,2,FALSE))","v":""},null,{"$f":"IF(G6865=\"\",\"\",VLOOKUP(G6865,Insumos!G:H,2,FALSE))","v":""}]
[null,null,null,null,null,{"$f":"IF(E6866=\"\",\"\",VLOOKUP(E6866,Insumos!AD:AE,2,FALSE))","v":""},null,{"$f":"IF(G6866=\"\",\"\",VLOOKUP(G6866,Insumos!G:H,2,FALSE))","v":""}]
[null,null,null,null,null,{"$f":"IF(E6867=\"\",\"\",VLOOKUP(E6867,Insumos!AD:AE,2,FALSE))","v":""},null,{"$f":"IF(G6867=\"\",\"\",VLOOKUP(G6867,Insumos!G:H,2,FALSE))","v":""}]
[null,null,null,null,null,{"$f":"IF(E6868=\"\",\"\",VLOOKUP(E6868,Insumos!AD:AE,2,FALSE))","v":""},null,{"$f":"IF(G6868=\"\",\"\",VLOOKUP(G6868,Insumos!G:H,2,FALSE))","v":""}]
[null,null,null,null,null,{"$f":"IF(E6869=\"\",\"\",VLOOKUP(E6869,Insumos!AD:AE,2,FALSE))","v":""},null,{"$f":"IF(G6869=\"\",\"\",VLOOKUP(G6869,Insumos!G:H,2,FALSE))","v":""}]
[null,null,null,null,null,{"$f":"IF(E6870=\"\",\"\",VLOOKUP(E6870,Insumos!AD:AE,2,FALSE))","v":""},null,{"$f":"IF(G6870=\"\",\"\",VLOOKUP(G6870,Insumos!G:H,2,FALSE))","v":""}]
[null,null,null,null,null,{"$f":"IF(E6871=\"\",\"\",VLOOKUP(E6871,Insumos!AD:AE,2,FALSE))","v":""},null,{"$f":"IF(G6871=\"\",\"\",VLOOKUP(G6871,Insumos!G:H,2,FALSE))","v":""}]
[null,null,null,null,null,{"$f":"IF(E6872=\"\",\"\",VLOOKUP(E6872,Insumos!AD:AE,2,FALSE))","v":""},null,{"$f":"IF(G6872=\"\",\"\",VLOOKUP(G6872,Insumos!G:H,2,FALSE))","v":""}]
[null,null,null,null,null,{"$f":"IF(E6873=\"\",\"\",VLOOKUP(E6873,Insumos!AD:AE,2,FALSE))","v":""},null,{"$f":"IF(G6873=\"\",\"\",VLOOKUP(G6873,Insumos!G:H,2,FALSE))","v":""}]
[null,null,null,null,null,{"$f":"IF(E6874=\"\",\"\",VLOOKUP(E6874,Insumos!AD:AE,2,FALSE))","v":""},null,{"$f":"IF(G6874=\"\",\"\",VLOOKUP(G6874,Insumos!G:H,2,FALSE))","v":""}]
[null,null,null,null,null,{"$f":"IF(E6875=\"\",\"\",VLOOKUP(E6875,Insumos!AD:AE,2,FALSE))","v":""},null,{"$f":"IF(G6875=\"\",\"\",VLOOKUP(G6875,Insumos!G:H,2,FALSE))","v":""}]
[null,null,null,null,null,{"$f":"IF(E6876=\"\",\"\",VLOOKUP(E6876,Insumos!AD:AE,2,FALSE))","v":""},null,{"$f":"IF(G6876=\"\",\"\",VLOOKUP(G6876,Insumos!G:H,2,FALSE))","v":""}]
[null,null,null,null,null,{"$f":"IF(E6877=\"\",\"\",VLOOKUP(E6877,Insumos!AD:AE,2,FALSE))","v":""},null,{"$f":"IF(G6877=\"\",\"\",VLOOKUP(G6877,Insumos!G:H,2,FALSE))","v":""}]
[null,null,null,null,null,{"$f":"IF(E6878=\"\",\"\",VLOOKUP(E6878,Insumos!AD:AE,2,FALSE))","v":""},null,{"$f":"IF(G6878=\"\",\"\",VLOOKUP(G6878,Insumos!G:H,2,FALSE))","v":""}]
[null,null,null,null,null,{"$f":"IF(E6879=\"\",\"\",VLOOKUP(E6879,Insumos!AD:AE,2,FALSE))","v":""},null,{"$f":"IF(G6879=\"\",\"\",VLOOKUP(G6879,Insumos!G:H,2,FALSE))","v":""}]
[null,null,null,null,null,{"$f":"IF(E6880=\"\",\"\",VLOOKUP(E6880,Insumos!AD:AE,2,FALSE))","v":""},null,{"$f":"IF(G6880=\"\",\"\",VLOOKUP(G6880,Insumos!G:H,2,FALSE))","v":""}]
[null,null,null,null,null,{"$f":"IF(E6881=\"\",\"\",VLOOKUP(E6881,Insumos!AD:AE,2,FALSE))","v":""},null,{"$f":"IF(G6881=\"\",\"\",VLOOKUP(G6881,Insumos!G:H,2,FALSE))","v":""}]
[null,null,null,null,null,{"$f":"IF(E6882=\"\",\"\",VLOOKUP(E6882,Insumos!AD:AE,2,FALSE))","v":""},null,{"$f":"IF(G6882=\"\",\"\",VLOOKUP(G6882,Insumos!G:H,2,FALSE))","v":""}]
[null,null,null,null,null,{"$f":"IF(E6883=\"\",\"\",VLOOKUP(E6883,Insumos!AD:AE,2,FALSE))","v":""},null,{"$f":"IF(G6883=\"\",\"\",VLOOKUP(G6883,Insumos!G:H,2,FALSE))","v":""}]
[null,null,null,null,null,{"$f":"IF(E6884=\"\",\"\",VLOOKUP(E6884,Insumos!AD:AE,2,FALSE))","v":""},null,{"$f":"IF(G6884=\"\",\"\",VLOOKUP(G6884,Insumos!G:H,2,FALSE))","v":""}]
[null,null,null,null,null,{"$f":"IF(E6885=\"\",\"\",VLOOKUP(E6885,Insumos!AD:AE,2,FALSE))","v":""},null,{"$f":"IF(G6885=\"\",\"\",VLOOKUP(G6885,Insumos!G:H,2,FALSE))","v":""}]
[null,null,null,null,null,{"$f":"IF(E6886=\"\",\"\",VLOOKUP(E6886,Insumos!AD:AE,2,FALSE))","v":""},null,{"$f":"IF(G6886=\"\",\"\",VLOOKUP(G6886,Insumos!G:H,2,FALSE))","v":""}]
[null,null,null,null,null,{"$f":"IF(E6887=\"\",\"\",VLOOKUP(E6887,Insumos!AD:AE,2,FALSE))","v":""},null,{"$f":"IF(G6887=\"\",\"\",VLOOKUP(G6887,Insumos!G:H,2,FALSE))","v":""}]
[null,null,null,null,null,{"$f":"IF(E6888=\"\",\"\",VLOOKUP(E6888,Insumos!AD:AE,2,FALSE))","v":""},null,{"$f":"IF(G6888=\"\",\"\",VLOOKUP(G6888,Insumos!G:H,2,FALSE))","v":""}]
[null,null,null,null,null,{"$f":"IF(E6889=\"\",\"\",VLOOKUP(E6889,Insumos!AD:AE,2,FALSE))","v":""},null,{"$f":"IF(G6889=\"\",\"\",VLOOKUP(G6889,Insumos!G:H,2,FALSE))","v":""}]
[null,null,null,null,null,{"$f":"IF(E6890=\"\",\"\",VLOOKUP(E6890,Insumos!AD:AE,2,FALSE))","v":""},null,{"$f":"IF(G6890=\"\",\"\",VLOOKUP(G6890,Insumos!G:H,2,FALSE))","v":""}]
[null,null,null,null,null,{"$f":"IF(E6891=\"\",\"\",VLOOKUP(E6891,Insumos!AD:AE,2,FALSE))","v":""},null,{"$f":"IF(G6891=\"\",\"\",VLOOKUP(G6891,Insumos!G:H,2,FALSE))","v":""}]
[null,null,null,null,null,{"$f":"IF(E6892=\"\",\"\",VLOOKUP(E6892,Insumos!AD:AE,2,FALSE))","v":""},null,{"$f":"IF(G6892=\"\",\"\",VLOOKUP(G6892,Insumos!G:H,2,FALSE))","v":""}]
[null,null,null,null,null,{"$f":"IF(E6893=\"\",\"\",VLOOKUP(E6893,Insumos!AD:AE,2,FALSE))","v":""},null,{"$f":"IF(G6893=\"\",\"\",VLOOKUP(G6893,Insumos!G:H,2,FALSE))","v":""}]
[null,null,null,null,null,{"$f":"IF(E6894=\"\",\"\",VLOOKUP(E6894,Insumos!AD:AE,2,FALSE))","v":""},null,{"$f":"IF(G6894=\"\",\"\",VLOOKUP(G6894,Insumos!G:H,2,FALSE))","v":""}]
[null,null,null,null,null,{"$f":"IF(E6895=\"\",\"\",VLOOKUP(E6895,Insumos!AD:AE,2,FALSE))","v":""},null,{"$f":"IF(G6895=\"\",\"\",VLOOKUP(G6895,Insumos!G:H,2,FALSE))","v":""}]
[null,null,null,null,null,{"$f":"IF(E6896=\"\",\"\",VLOOKUP(E6896,Insumos!AD:AE,2,FALSE))","v":""},null,{"$f":"IF(G6896=\"\",\"\",VLOOKUP(G6896,Insumos!G:H,2,FALSE))","v":""}]
[null,null,null,null,null,{"$f":"IF(E6897=\"\",\"\",VLOOKUP(E6897,Insumos!AD:AE,2,FALSE))","v":""},null,{"$f":"IF(G6897=\"\",\"\",VLOOKUP(G6897,Insumos!G:H,2,FALSE))","v":""}]
[null,null,null,null,null,{"$f":"IF(E6898=\"\",\"\",VLOOKUP(E6898,Insumos!AD:AE,2,FALSE))","v":""},null,{"$f":"IF(G6898=\"\",\"\",VLOOKUP(G6898,Insumos!G:H,2,FALSE))","v":""}]
[null,null,null,null,null,{"$f":"IF(E6899=\"\",\"\",VLOOKUP(E6899,Insumos!AD:AE,2,FALSE))","v":""},null,{"$f":"IF(G6899=\"\",\"\",VLOOKUP(G6899,Insumos!G:H,2,FALSE))","v":""}]
[null,null,null,null,null,{"$f":"IF(E6900=\"\",\"\",VLOOKUP(E6900,Insumos!AD:AE,2,FALSE))","v":""},null,{"$f":"IF(G6900=\"\",\"\",VLOOKUP(G6900,Insumos!G:H,2,FALSE))","v":""}]
[null,null,null,null,null,{"$f":"IF(E6901=\"\",\"\",VLOOKUP(E6901,Insumos!AD:AE,2,FALSE))","v":""},null,{"$f":"IF(G6901=\"\",\"\",VLOOKUP(G6901,Insumos!G:H,2,FALSE))","v":""}]
[null,null,null,null,null,{"$f":"IF(E6902=\"\",\"\",VLOOKUP(E6902,Insumos!AD:AE,2,FALSE))","v":""},null,{"$f":"IF(G6902=\"\",\"\",VLOOKUP(G6902,Insumos!G:H,2,FALSE))","v":""}]
[null,null,null,null,null,{"$f":"IF(E6903=\"\",\"\",VLOOKUP(E6903,Insumos!AD:AE,2,FALSE))","v":""},null,{"$f":"IF(G6903=\"\",\"\",VLOOKUP(G6903,Insumos!G:H,2,FALSE))","v":""}]
[null,null,null,null,null,{"$f":"IF(E6904=\"\",\"\",VLOOKUP(E6904,Insumos!AD:AE,2,FALSE))","v":""},null,{"$f":"IF(G6904=\"\",\"\",VLOOKUP(G6904,Insumos!G:H,2,FALSE))","v":""}]
[null,null,null,null,null,{"$f":"IF(E6905=\"\",\"\",VLOOKUP(E6905,Insumos!AD:AE,2,FALSE))","v":""},null,{"$f":"IF(G6905=\"\",\"\",VLOOKUP(G6905,Insumos!G:H,2,FALSE))","v":""}]
[null,null,null,null,null,{"$f":"IF(E6906=\"\",\"\",VLOOKUP(E6906,Insumos!AD:AE,2,FALSE))","v":""},null,{"$f":"IF(G6906=\"\",\"\",VLOOKUP(G6906,Insumos!G:H,2,FALSE))","v":""}]
[null,null,null,null,null,{"$f":"IF(E6907=\"\",\"\",VLOOKUP(E6907,Insumos!AD:AE,2,FALSE))","v":""},null,{"$f":"IF(G6907=\"\",\"\",VLOOKUP(G6907,Insumos!G:H,2,FALSE))","v":""}]
[null,null,null,null,null,{"$f":"IF(E6908=\"\",\"\",VLOOKUP(E6908,Insumos!AD:AE,2,FALSE))","v":""},null,{"$f":"IF(G6908=\"\",\"\",VLOOKUP(G6908,Insumos!G:H,2,FALSE))","v":""}]
[null,null,null,null,null,{"$f":"IF(E6909=\"\",\"\",VLOOKUP(E6909,Insumos!AD:AE,2,FALSE))","v":""},null,{"$f":"IF(G6909=\"\",\"\",VLOOKUP(G6909,Insumos!G:H,2,FALSE))","v":""}]
[null,null,null,null,null,{"$f":"IF(E6910=\"\",\"\",VLOOKUP(E6910,Insumos!AD:AE,2,FALSE))","v":""},null,{"$f":"IF(G6910=\"\",\"\",VLOOKUP(G6910,Insumos!G:H,2,FALSE))","v":""}]
[null,null,null,null,null,{"$f":"IF(E6911=\"\",\"\",VLOOKUP(E6911,Insumos!AD:AE,2,FALSE))","v":""},null,{"$f":"IF(G6911=\"\",\"\",VLOOKUP(G6911,Insumos!G:H,2,FALSE))","v":""}]
[null,null,null,null,null,{"$f":"IF(E6912=\"\",\"\",VLOOKUP(E6912,Insumos!AD:AE,2,FALSE))","v":""},null,{"$f":"IF(G6912=\"\",\"\",VLOOKUP(G6912,Insumos!G:H,2,FALSE))","v":""}]
[null,null,null,null,null,{"$f":"IF(E6913=\"\",\"\",VLOOKUP(E6913,Insumos!AD:AE,2,FALSE))","v":""},null,{"$f":"IF(G6913=\"\",\"\",VLOOKUP(G6913,Insumos!G:H,2,FALSE))","v":""}]
[null,null,null,null,null,{"$f":"IF(E6914=\"\",\"\",VLOOKUP(E6914,Insumos!AD:AE,2,FALSE))","v":""},null,{"$f":"IF(G6914=\"\",\"\",VLOOKUP(G6914,Insumos!G:H,2,FALSE))","v":""}]
[null,null,null,null,null,{"$f":"IF(E6915=\"\",\"\",VLOOKUP(E6915,Insumos!AD:AE,2,FALSE))","v":""},null,{"$f":"IF(G6915=\"\",\"\",VLOOKUP(G6915,Insumos!G:H,2,FALSE))","v":""}]
[null,null,null,null,null,{"$f":"IF(E6916=\"\",\"\",VLOOKUP(E6916,Insumos!AD:AE,2,FALSE))","v":""},null,{"$f":"IF(G6916=\"\",\"\",VLOOKUP(G6916,Insumos!G:H,2,FALSE))","v":""}]
[null,null,null,null,null,{"$f":"IF(E6917=\"\",\"\",VLOOKUP(E6917,Insumos!AD:AE,2,FALSE))","v":""},null,{"$f":"IF(G6917=\"\",\"\",VLOOKUP(G6917,Insumos!G:H,2,FALSE))","v":""}]
[null,null,null,null,null,{"$f":"IF(E6918=\"\",\"\",VLOOKUP(E6918,Insumos!AD:AE,2,FALSE))","v":""},null,{"$f":"IF(G6918=\"\",\"\",VLOOKUP(G6918,Insumos!G:H,2,FALSE))","v":""}]
[null,null,null,null,null,{"$f":"IF(E6919=\"\",\"\",VLOOKUP(E6919,Insumos!AD:AE,2,FALSE))","v":""},null,{"$f":"IF(G6919=\"\",\"\",VLOOKUP(G6919,Insumos!G:H,2,FALSE))","v":""}]
[null,null,null,null,null,{"$f":"IF(E6920=\"\",\"\",VLOOKUP(E6920,Insumos!AD:AE,2,FALSE))","v":""},null,{"$f":"IF(G6920=\"\",\"\",VLOOKUP(G6920,Insumos!G:H,2,FALSE))","v":""}]
[null,null,null,null,null,{"$f":"IF(E6921=\"\",\"\",VLOOKUP(E6921,Insumos!AD:AE,2,FALSE))","v":""},null,{"$f":"IF(G6921=\"\",\"\",VLOOKUP(G6921,Insumos!G:H,2,FALSE))","v":""}]
[null,null,null,null,null,{"$f":"IF(E6922=\"\",\"\",VLOOKUP(E6922,Insumos!AD:AE,2,FALSE))","v":""},null,{"$f":"IF(G6922=\"\",\"\",VLOOKUP(G6922,Insumos!G:H,2,FALSE))","v":""}]
[null,null,null,null,null,{"$f":"IF(E6923=\"\",\"\",VLOOKUP(E6923,Insumos!AD:AE,2,FALSE))","v":""},null,{"$f":"IF(G6923=\"\",\"\",VLOOKUP(G6923,Insumos!G:H,2,FALSE))","v":""}]
[null,null,null,null,null,{"$f":"IF(E6924=\"\",\"\",VLOOKUP(E6924,Insumos!AD:AE,2,FALSE))","v":""},null,{"$f":"IF(G6924=\"\",\"\",VLOOKUP(G6924,Insumos!G:H,2,FALSE))","v":""}]
[null,null,null,null,null,{"$f":"IF(E6925=\"\",\"\",VLOOKUP(E6925,Insumos!AD:AE,2,FALSE))","v":""},null,{"$f":"IF(G6925=\"\",\"\",VLOOKUP(G6925,Insumos!G:H,2,FALSE))","v":""}]
[null,null,null,null,null,{"$f":"IF(E6926=\"\",\"\",VLOOKUP(E6926,Insumos!AD:AE,2,FALSE))","v":""},null,{"$f":"IF(G6926=\"\",\"\",VLOOKUP(G6926,Insumos!G:H,2,FALSE))","v":""}]
[null,null,null,null,null,{"$f":"IF(E6927=\"\",\"\",VLOOKUP(E6927,Insumos!AD:AE,2,FALSE))","v":""},null,{"$f":"IF(G6927=\"\",\"\",VLOOKUP(G6927,Insumos!G:H,2,FALSE))","v":""}]
[null,null,null,null,null,{"$f":"IF(E6928=\"\",\"\",VLOOKUP(E6928,Insumos!AD:AE,2,FALSE))","v":""},null,{"$f":"IF(G6928=\"\",\"\",VLOOKUP(G6928,Insumos!G:H,2,FALSE))","v":""}]
[null,null,null,null,null,{"$f":"IF(E6929=\"\",\"\",VLOOKUP(E6929,Insumos!AD:AE,2,FALSE))","v":""},null,{"$f":"IF(G6929=\"\",\"\",VLOOKUP(G6929,Insumos!G:H,2,FALSE))","v":""}]
[null,null,null,null,null,{"$f":"IF(E6930=\"\",\"\",VLOOKUP(E6930,Insumos!AD:AE,2,FALSE))","v":""},null,{"$f":"IF(G6930=\"\",\"\",VLOOKUP(G6930,Insumos!G:H,2,FALSE))","v":""}]
[null,null,null,null,null,{"$f":"IF(E6931=\"\",\"\",VLOOKUP(E6931,Insumos!AD:AE,2,FALSE))","v":""},null,{"$f":"IF(G6931=\"\",\"\",VLOOKUP(G6931,Insumos!G:H,2,FALSE))","v":""}]
[null,null,null,null,null,{"$f":"IF(E6932=\"\",\"\",VLOOKUP(E6932,Insumos!AD:AE,2,FALSE))","v":""},null,{"$f":"IF(G6932=\"\",\"\",VLOOKUP(G6932,Insumos!G:H,2,FALSE))","v":""}]
[null,null,null,null,null,{"$f":"IF(E6933=\"\",\"\",VLOOKUP(E6933,Insumos!AD:AE,2,FALSE))","v":""},null,{"$f":"IF(G6933=\"\",\"\",VLOOKUP(G6933,Insumos!G:H,2,FALSE))","v":""}]
[null,null,null,null,null,{"$f":"IF(E6934=\"\",\"\",VLOOKUP(E6934,Insumos!AD:AE,2,FALSE))","v":""},null,{"$f":"IF(G6934=\"\",\"\",VLOOKUP(G6934,Insumos!G:H,2,FALSE))","v":""}]
[null,null,null,null,null,{"$f":"IF(E6935=\"\",\"\",VLOOKUP(E6935,Insumos!AD:AE,2,FALSE))","v":""},null,{"$f":"IF(G6935=\"\",\"\",VLOOKUP(G6935,Insumos!G:H,2,FALSE))","v":""}]
[null,null,null,null,null,{"$f":"IF(E6936=\"\",\"\",VLOOKUP(E6936,Insumos!AD:AE,2,FALSE))","v":""},null,{"$f":"IF(G6936=\"\",\"\",VLOOKUP(G6936,Insumos!G:H,2,FALSE))","v":""}]
[null,null,null,null,null,{"$f":"IF(E6937=\"\",\"\",VLOOKUP(E6937,Insumos!AD:AE,2,FALSE))","v":""},null,{"$f":"IF(G6937=\"\",\"\",VLOOKUP(G6937,Insumos!G:H,2,FALSE))","v":""}]
[null,null,null,null,null,{"$f":"IF(E6938=\"\",\"\",VLOOKUP(E6938,Insumos!AD:AE,2,FALSE))","v":""},null,{"$f":"IF(G6938=\"\",\"\",VLOOKUP(G6938,Insumos!G:H,2,FALSE))","v":""}]
[null,null,null,null,null,{"$f":"IF(E6939=\"\",\"\",VLOOKUP(E6939,Insumos!AD:AE,2,FALSE))","v":""},null,{"$f":"IF(G6939=\"\",\"\",VLOOKUP(G6939,Insumos!G:H,2,FALSE))","v":""}]
[null,null,null,null,null,{"$f":"IF(E6940=\"\",\"\",VLOOKUP(E6940,Insumos!AD:AE,2,FALSE))","v":""},null,{"$f":"IF(G6940=\"\",\"\",VLOOKUP(G6940,Insumos!G:H,2,FALSE))","v":""}]
[null,null,null,null,null,{"$f":"IF(E6941=\"\",\"\",VLOOKUP(E6941,Insumos!AD:AE,2,FALSE))","v":""},null,{"$f":"IF(G6941=\"\",\"\",VLOOKUP(G6941,Insumos!G:H,2,FALSE))","v":""}]
[null,null,null,null,null,{"$f":"IF(E6942=\"\",\"\",VLOOKUP(E6942,Insumos!AD:AE,2,FALSE))","v":""},null,{"$f":"IF(G6942=\"\",\"\",VLOOKUP(G6942,Insumos!G:H,2,FALSE))","v":""}]
[null,null,null,null,null,{"$f":"IF(E6943=\"\",\"\",VLOOKUP(E6943,Insumos!AD:AE,2,FALSE))","v":""},null,{"$f":"IF(G6943=\"\",\"\",VLOOKUP(G6943,Insumos!G:H,2,FALSE))","v":""}]
[null,null,null,null,null,{"$f":"IF(E6944=\"\",\"\",VLOOKUP(E6944,Insumos!AD:AE,2,FALSE))","v":""},null,{"$f":"IF(G6944=\"\",\"\",VLOOKUP(G6944,Insumos!G:H,2,FALSE))","v":""}]
[null,null,null,null,null,{"$f":"IF(E6945=\"\",\"\",VLOOKUP(E6945,Insumos!AD:AE,2,FALSE))","v":""},null,{"$f":"IF(G6945=\"\",\"\",VLOOKUP(G6945,Insumos!G:H,2,FALSE))","v":""}]
[null,null,null,null,null,{"$f":"IF(E6946=\"\",\"\",VLOOKUP(E6946,Insumos!AD:AE,2,FALSE))","v":""},null,{"$f":"IF(G6946=\"\",\"\",VLOOKUP(G6946,Insumos!G:H,2,FALSE))","v":""}]
[null,null,null,null,null,{"$f":"IF(E6947=\"\",\"\",VLOOKUP(E6947,Insumos!AD:AE,2,FALSE))","v":""},null,{"$f":"IF(G6947=\"\",\"\",VLOOKUP(G6947,Insumos!G:H,2,FALSE))","v":""}]
[null,null,null,null,null,{"$f":"IF(E6948=\"\",\"\",VLOOKUP(E6948,Insumos!AD:AE,2,FALSE))","v":""},null,{"$f":"IF(G6948=\"\",\"\",VLOOKUP(G6948,Insumos!G:H,2,FALSE))","v":""}]
[null,null,null,null,null,{"$f":"IF(E6949=\"\",\"\",VLOOKUP(E6949,Insumos!AD:AE,2,FALSE))","v":""},null,{"$f":"IF(G6949=\"\",\"\",VLOOKUP(G6949,Insumos!G:H,2,FALSE))","v":""}]
[null,null,null,null,null,{"$f":"IF(E6950=\"\",\"\",VLOOKUP(E6950,Insumos!AD:AE,2,FALSE))","v":""},null,{"$f":"IF(G6950=\"\",\"\",VLOOKUP(G6950,Insumos!G:H,2,FALSE))","v":""}]
[null,null,null,null,null,{"$f":"IF(E6951=\"\",\"\",VLOOKUP(E6951,Insumos!AD:AE,2,FALSE))","v":""},null,{"$f":"IF(G6951=\"\",\"\",VLOOKUP(G6951,Insumos!G:H,2,FALSE))","v":""}]
[null,null,null,null,null,{"$f":"IF(E6952=\"\",\"\",VLOOKUP(E6952,Insumos!AD:AE,2,FALSE))","v":""},null,{"$f":"IF(G6952=\"\",\"\",VLOOKUP(G6952,Insumos!G:H,2,FALSE))","v":""}]
[null,null,null,null,null,{"$f":"IF(E6953=\"\",\"\",VLOOKUP(E6953,Insumos!AD:AE,2,FALSE))","v":""},null,{"$f":"IF(G6953=\"\",\"\",VLOOKUP(G6953,Insumos!G:H,2,FALSE))","v":""}]
[null,null,null,null,null,{"$f":"IF(E6954=\"\",\"\",VLOOKUP(E6954,Insumos!AD:AE,2,FALSE))","v":""},null,{"$f":"IF(G6954=\"\",\"\",VLOOKUP(G6954,Insumos!G:H,2,FALSE))","v":""}]
[null,null,null,null,null,{"$f":"IF(E6955=\"\",\"\",VLOOKUP(E6955,Insumos!AD:AE,2,FALSE))","v":""},null,{"$f":"IF(G6955=\"\",\"\",VLOOKUP(G6955,Insumos!G:H,2,FALSE))","v":""}]
[null,null,null,null,null,{"$f":"IF(E6956=\"\",\"\",VLOOKUP(E6956,Insumos!AD:AE,2,FALSE))","v":""},null,{"$f":"IF(G6956=\"\",\"\",VLOOKUP(G6956,Insumos!G:H,2,FALSE))","v":""}]
[null,null,null,null,null,{"$f":"IF(E6957=\"\",\"\",VLOOKUP(E6957,Insumos!AD:AE,2,FALSE))","v":""},null,{"$f":"IF(G6957=\"\",\"\",VLOOKUP(G6957,Insumos!G:H,2,FALSE))","v":""}]
[null,null,null,null,null,{"$f":"IF(E6958=\"\",\"\",VLOOKUP(E6958,Insumos!AD:AE,2,FALSE))","v":""},null,{"$f":"IF(G6958=\"\",\"\",VLOOKUP(G6958,Insumos!G:H,2,FALSE))","v":""}]
[null,null,null,null,null,{"$f":"IF(E6959=\"\",\"\",VLOOKUP(E6959,Insumos!AD:AE,2,FALSE))","v":""},null,{"$f":"IF(G6959=\"\",\"\",VLOOKUP(G6959,Insumos!G:H,2,FALSE))","v":""}]
[null,null,null,null,null,{"$f":"IF(E6960=\"\",\"\",VLOOKUP(E6960,Insumos!AD:AE,2,FALSE))","v":""},null,{"$f":"IF(G6960=\"\",\"\",VLOOKUP(G6960,Insumos!G:H,2,FALSE))","v":""}]
[null,null,null,null,null,{"$f":"IF(E6961=\"\",\"\",VLOOKUP(E6961,Insumos!AD:AE,2,FALSE))","v":""},null,{"$f":"IF(G6961=\"\",\"\",VLOOKUP(G6961,Insumos!G:H,2,FALSE))","v":""}]
[null,null,null,null,null,{"$f":"IF(E6962=\"\",\"\",VLOOKUP(E6962,Insumos!AD:AE,2,FALSE))","v":""},null,{"$f":"IF(G6962=\"\",\"\",VLOOKUP(G6962,Insumos!G:H,2,FALSE))","v":""}]
[null,null,null,null,null,{"$f":"IF(E6963=\"\",\"\",VLOOKUP(E6963,Insumos!AD:AE,2,FALSE))","v":""},null,{"$f":"IF(G6963=\"\",\"\",VLOOKUP(G6963,Insumos!G:H,2,FALSE))","v":""}]
[null,null,null,null,null,{"$f":"IF(E6964=\"\",\"\",VLOOKUP(E6964,Insumos!AD:AE,2,FALSE))","v":""},null,{"$f":"IF(G6964=\"\",\"\",VLOOKUP(G6964,Insumos!G:H,2,FALSE))","v":""}]
[null,null,null,null,null,{"$f":"IF(E6965=\"\",\"\",VLOOKUP(E6965,Insumos!AD:AE,2,FALSE))","v":""},null,{"$f":"IF(G6965=\"\",\"\",VLOOKUP(G6965,Insumos!G:H,2,FALSE))","v":""}]
[null,null,null,null,null,{"$f":"IF(E6966=\"\",\"\",VLOOKUP(E6966,Insumos!AD:AE,2,FALSE))","v":""},null,{"$f":"IF(G6966=\"\",\"\",VLOOKUP(G6966,Insumos!G:H,2,FALSE))","v":""}]
[null,null,null,null,null,{"$f":"IF(E6967=\"\",\"\",VLOOKUP(E6967,Insumos!AD:AE,2,FALSE))","v":""},null,{"$f":"IF(G6967=\"\",\"\",VLOOKUP(G6967,Insumos!G:H,2,FALSE))","v":""}]
[null,null,null,null,null,{"$f":"IF(E6968=\"\",\"\",VLOOKUP(E6968,Insumos!AD:AE,2,FALSE))","v":""},null,{"$f":"IF(G6968=\"\",\"\",VLOOKUP(G6968,Insumos!G:H,2,FALSE))","v":""}]
[null,null,null,null,null,{"$f":"IF(E6969=\"\",\"\",VLOOKUP(E6969,Insumos!AD:AE,2,FALSE))","v":""},null,{"$f":"IF(G6969=\"\",\"\",VLOOKUP(G6969,Insumos!G:H,2,FALSE))","v":""}]
[null,null,null,null,null,{"$f":"IF(E6970=\"\",\"\",VLOOKUP(E6970,Insumos!AD:AE,2,FALSE))","v":""},null,{"$f":"IF(G6970=\"\",\"\",VLOOKUP(G6970,Insumos!G:H,2,FALSE))","v":""}]
[null,null,null,null,null,{"$f":"IF(E6971=\"\",\"\",VLOOKUP(E6971,Insumos!AD:AE,2,FALSE))","v":""},null,{"$f":"IF(G6971=\"\",\"\",VLOOKUP(G6971,Insumos!G:H,2,FALSE))","v":""}]
[null,null,null,null,null,{"$f":"IF(E6972=\"\",\"\",VLOOKUP(E6972,Insumos!AD:AE,2,FALSE))","v":""},null,{"$f":"IF(G6972=\"\",\"\",VLOOKUP(G6972,Insumos!G:H,2,FALSE))","v":""}]
[null,null,null,null,null,{"$f":"IF(E6973=\"\",\"\",VLOOKUP(E6973,Insumos!AD:AE,2,FALSE))","v":""},null,{"$f":"IF(G6973=\"\",\"\",VLOOKUP(G6973,Insumos!G:H,2,FALSE))","v":""}]
[null,null,null,null,null,{"$f":"IF(E6974=\"\",\"\",VLOOKUP(E6974,Insumos!AD:AE,2,FALSE))","v":""},null,{"$f":"IF(G6974=\"\",\"\",VLOOKUP(G6974,Insumos!G:H,2,FALSE))","v":""}]
[null,null,null,null,null,{"$f":"IF(E6975=\"\",\"\",VLOOKUP(E6975,Insumos!AD:AE,2,FALSE))","v":""},null,{"$f":"IF(G6975=\"\",\"\",VLOOKUP(G6975,Insumos!G:H,2,FALSE))","v":""}]
[null,null,null,null,null,{"$f":"IF(E6976=\"\",\"\",VLOOKUP(E6976,Insumos!AD:AE,2,FALSE))","v":""},null,{"$f":"IF(G6976=\"\",\"\",VLOOKUP(G6976,Insumos!G:H,2,FALSE))","v":""}]
[null,null,null,null,null,{"$f":"IF(E6977=\"\",\"\",VLOOKUP(E6977,Insumos!AD:AE,2,FALSE))","v":""},null,{"$f":"IF(G6977=\"\",\"\",VLOOKUP(G6977,Insumos!G:H,2,FALSE))","v":""}]
[null,null,null,null,null,{"$f":"IF(E6978=\"\",\"\",VLOOKUP(E6978,Insumos!AD:AE,2,FALSE))","v":""},null,{"$f":"IF(G6978=\"\",\"\",VLOOKUP(G6978,Insumos!G:H,2,FALSE))","v":""}]
[null,null,null,null,null,{"$f":"IF(E6979=\"\",\"\",VLOOKUP(E6979,Insumos!AD:AE,2,FALSE))","v":""},null,{"$f":"IF(G6979=\"\",\"\",VLOOKUP(G6979,Insumos!G:H,2,FALSE))","v":""}]
[null,null,null,null,null,{"$f":"IF(E6980=\"\",\"\",VLOOKUP(E6980,Insumos!AD:AE,2,FALSE))","v":""},null,{"$f":"IF(G6980=\"\",\"\",VLOOKUP(G6980,Insumos!G:H,2,FALSE))","v":""}]
[null,null,null,null,null,{"$f":"IF(E6981=\"\",\"\",VLOOKUP(E6981,Insumos!AD:AE,2,FALSE))","v":""},null,{"$f":"IF(G6981=\"\",\"\",VLOOKUP(G6981,Insumos!G:H,2,FALSE))","v":""}]
[null,null,null,null,null,{"$f":"IF(E6982=\"\",\"\",VLOOKUP(E6982,Insumos!AD:AE,2,FALSE))","v":""},null,{"$f":"IF(G6982=\"\",\"\",VLOOKUP(G6982,Insumos!G:H,2,FALSE))","v":""}]
[null,null,null,null,null,{"$f":"IF(E6983=\"\",\"\",VLOOKUP(E6983,Insumos!AD:AE,2,FALSE))","v":""},null,{"$f":"IF(G6983=\"\",\"\",VLOOKUP(G6983,Insumos!G:H,2,FALSE))","v":""}]
[null,null,null,null,null,{"$f":"IF(E6984=\"\",\"\",VLOOKUP(E6984,Insumos!AD:AE,2,FALSE))","v":""},null,{"$f":"IF(G6984=\"\",\"\",VLOOKUP(G6984,Insumos!G:H,2,FALSE))","v":""}]
[null,null,null,null,null,{"$f":"IF(E6985=\"\",\"\",VLOOKUP(E6985,Insumos!AD:AE,2,FALSE))","v":""},null,{"$f":"IF(G6985=\"\",\"\",VLOOKUP(G6985,Insumos!G:H,2,FALSE))","v":""}]
[null,null,null,null,null,{"$f":"IF(E6986=\"\",\"\",VLOOKUP(E6986,Insumos!AD:AE,2,FALSE))","v":""},null,{"$f":"IF(G6986=\"\",\"\",VLOOKUP(G6986,Insumos!G:H,2,FALSE))","v":""}]
[null,null,null,null,null,{"$f":"IF(E6987=\"\",\"\",VLOOKUP(E6987,Insumos!AD:AE,2,FALSE))","v":""},null,{"$f":"IF(G6987=\"\",\"\",VLOOKUP(G6987,Insumos!G:H,2,FALSE))","v":""}]
[null,null,null,null,null,{"$f":"IF(E6988=\"\",\"\",VLOOKUP(E6988,Insumos!AD:AE,2,FALSE))","v":""},null,{"$f":"IF(G6988=\"\",\"\",VLOOKUP(G6988,Insumos!G:H,2,FALSE))","v":""}]
[null,null,null,null,null,{"$f":"IF(E6989=\"\",\"\",VLOOKUP(E6989,Insumos!AD:AE,2,FALSE))","v":""},null,{"$f":"IF(G6989=\"\",\"\",VLOOKUP(G6989,Insumos!G:H,2,FALSE))","v":""}]
[null,null,null,null,null,{"$f":"IF(E6990=\"\",\"\",VLOOKUP(E6990,Insumos!AD:AE,2,FALSE))","v":""},null,{"$f":"IF(G6990=\"\",\"\",VLOOKUP(G6990,Insumos!G:H,2,FALSE))","v":""}]
[null,null,null,null,null,{"$f":"IF(E6991=\"\",\"\",VLOOKUP(E6991,Insumos!AD:AE,2,FALSE))","v":""},null,{"$f":"IF(G6991=\"\",\"\",VLOOKUP(G6991,Insumos!G:H,2,FALSE))","v":""}]
[null,null,null,null,null,{"$f":"IF(E6992=\"\",\"\",VLOOKUP(E6992,Insumos!AD:AE,2,FALSE))","v":""},null,{"$f":"IF(G6992=\"\",\"\",VLOOKUP(G6992,Insumos!G:H,2,FALSE))","v":""}]
[null,null,null,null,null,{"$f":"IF(E6993=\"\",\"\",VLOOKUP(E6993,Insumos!AD:AE,2,FALSE))","v":""},null,{"$f":"IF(G6993=\"\",\"\",VLOOKUP(G6993,Insumos!G:H,2,FALSE))","v":""}]
[null,null,null,null,null,{"$f":"IF(E6994=\"\",\"\",VLOOKUP(E6994,Insumos!AD:AE,2,FALSE))","v":""},null,{"$f":"IF(G6994=\"\",\"\",VLOOKUP(G6994,Insumos!G:H,2,FALSE))","v":""}]
[null,null,null,null,null,{"$f":"IF(E6995=\"\",\"\",VLOOKUP(E6995,Insumos!AD:AE,2,FALSE))","v":""},null,{"$f":"IF(G6995=\"\",\"\",VLOOKUP(G6995,Insumos!G:H,2,FALSE))","v":""}]
[null,null,null,null,null,{"$f":"IF(E6996=\"\",\"\",VLOOKUP(E6996,Insumos!AD:AE,2,FALSE))","v":""},null,{"$f":"IF(G6996=\"\",\"\",VLOOKUP(G6996,Insumos!G:H,2,FALSE))","v":""}]
[null,null,null,null,null,{"$f":"IF(E6997=\"\",\"\",VLOOKUP(E6997,Insumos!AD:AE,2,FALSE))","v":""},null,{"$f":"IF(G6997=\"\",\"\",VLOOKUP(G6997,Insumos!G:H,2,FALSE))","v":""}]
[null,null,null,null,null,{"$f":"IF(E6998=\"\",\"\",VLOOKUP(E6998,Insumos!AD:AE,2,FALSE))","v":""},null,{"$f":"IF(G6998=\"\",\"\",VLOOKUP(G6998,Insumos!G:H,2,FALSE))","v":""}]
[null,null,null,null,null,{"$f":"IF(E6999=\"\",\"\",VLOOKUP(E6999,Insumos!AD:AE,2,FALSE))","v":""},null,{"$f":"IF(G6999=\"\",\"\",VLOOKUP(G6999,Insumos!G:H,2,FALSE))","v":""}]
[null,null,null,null,null,{"$f":"IF(E7000=\"\",\"\",VLOOKUP(E7000,Insumos!AD:AE,2,FALSE))","v":""},null,{"$f":"IF(G7000=\"\",\"\",VLOOKUP(G7000,Insumos!G:H,2,FALSE))","v":""}]
[null,null,null,null,null,{"$f":"IF(E7001=\"\",\"\",VLOOKUP(E7001,Insumos!AD:AE,2,FALSE))","v":""},null,{"$f":"IF(G7001=\"\",\"\",VLOOKUP(G7001,Insumos!G:H,2,FALSE))","v":""}]
[null,null,null,null,null,{"$f":"IF(E7002=\"\",\"\",VLOOKUP(E7002,Insumos!AD:AE,2,FALSE))","v":""},null,{"$f":"IF(G7002=\"\",\"\",VLOOKUP(G7002,Insumos!G:H,2,FALSE))","v":""}]
[null,null,null,null,null,{"$f":"IF(E7003=\"\",\"\",VLOOKUP(E7003,Insumos!AD:AE,2,FALSE))","v":""},null,{"$f":"IF(G7003=\"\",\"\",VLOOKUP(G7003,Insumos!G:H,2,FALSE))","v":""}]
[null,null,null,null,null,{"$f":"IF(E7004=\"\",\"\",VLOOKUP(E7004,Insumos!AD:AE,2,FALSE))","v":""},null,{"$f":"IF(G7004=\"\",\"\",VLOOKUP(G7004,Insumos!G:H,2,FALSE))","v":""}]
[null,null,null,null,null,{"$f":"IF(E7005=\"\",\"\",VLOOKUP(E7005,Insumos!AD:AE,2,FALSE))","v":""},null,{"$f":"IF(G7005=\"\",\"\",VLOOKUP(G7005,Insumos!G:H,2,FALSE))","v":""}]
[null,null,null,null,null,{"$f":"IF(E7006=\"\",\"\",VLOOKUP(E7006,Insumos!AD:AE,2,FALSE))","v":""},null,{"$f":"IF(G7006=\"\",\"\",VLOOKUP(G7006,Insumos!G:H,2,FALSE))","v":""}]
[null,null,null,null,null,{"$f":"IF(E7007=\"\",\"\",VLOOKUP(E7007,Insumos!AD:AE,2,FALSE))","v":""},null,{"$f":"IF(G7007=\"\",\"\",VLOOKUP(G7007,Insumos!G:H,2,FALSE))","v":""}]
[null,null,null,null,null,{"$f":"IF(E7008=\"\",\"\",VLOOKUP(E7008,Insumos!AD:AE,2,FALSE))","v":""},null,{"$f":"IF(G7008=\"\",\"\",VLOOKUP(G7008,Insumos!G:H,2,FALSE))","v":""}]
[null,null,null,null,null,{"$f":"IF(E7009=\"\",\"\",VLOOKUP(E7009,Insumos!AD:AE,2,FALSE))","v":""},null,{"$f":"IF(G7009=\"\",\"\",VLOOKUP(G7009,Insumos!G:H,2,FALSE))","v":""}]
[null,null,null,null,null,{"$f":"IF(E7010=\"\",\"\",VLOOKUP(E7010,Insumos!AD:AE,2,FALSE))","v":""},null,{"$f":"IF(G7010=\"\",\"\",VLOOKUP(G7010,Insumos!G:H,2,FALSE))","v":""}]
[null,null,null,null,null,{"$f":"IF(E7011=\"\",\"\",VLOOKUP(E7011,Insumos!AD:AE,2,FALSE))","v":""},null,{"$f":"IF(G7011=\"\",\"\",VLOOKUP(G7011,Insumos!G:H,2,FALSE))","v":""}]
[null,null,null,null,null,{"$f":"IF(E7012=\"\",\"\",VLOOKUP(E7012,Insumos!AD:AE,2,FALSE))","v":""},null,{"$f":"IF(G7012=\"\",\"\",VLOOKUP(G7012,Insumos!G:H,2,FALSE))","v":""}]
[null,null,null,null,null,{"$f":"IF(E7013=\"\",\"\",VLOOKUP(E7013,Insumos!AD:AE,2,FALSE))","v":""},null,{"$f":"IF(G7013=\"\",\"\",VLOOKUP(G7013,Insumos!G:H,2,FALSE))","v":""}]
[null,null,null,null,null,{"$f":"IF(E7014=\"\",\"\",VLOOKUP(E7014,Insumos!AD:AE,2,FALSE))","v":""},null,{"$f":"IF(G7014=\"\",\"\",VLOOKUP(G7014,Insumos!G:H,2,FALSE))","v":""}]
[null,null,null,null,null,{"$f":"IF(E7015=\"\",\"\",VLOOKUP(E7015,Insumos!AD:AE,2,FALSE))","v":""},null,{"$f":"IF(G7015=\"\",\"\",VLOOKUP(G7015,Insumos!G:H,2,FALSE))","v":""}]
[null,null,null,null,null,{"$f":"IF(E7016=\"\",\"\",VLOOKUP(E7016,Insumos!AD:AE,2,FALSE))","v":""},null,{"$f":"IF(G7016=\"\",\"\",VLOOKUP(G7016,Insumos!G:H,2,FALSE))","v":""}]
[null,null,null,null,null,{"$f":"IF(E7017=\"\",\"\",VLOOKUP(E7017,Insumos!AD:AE,2,FALSE))","v":""},null,{"$f":"IF(G7017=\"\",\"\",VLOOKUP(G7017,Insumos!G:H,2,FALSE))","v":""}]
[null,null,null,null,null,{"$f":"IF(E7018=\"\",\"\",VLOOKUP(E7018,Insumos!AD:AE,2,FALSE))","v":""},null,{"$f":"IF(G7018=\"\",\"\",VLOOKUP(G7018,Insumos!G:H,2,FALSE))","v":""}]
[null,null,null,null,null,{"$f":"IF(E7019=\"\",\"\",VLOOKUP(E7019,Insumos!AD:AE,2,FALSE))","v":""},null,{"$f":"IF(G7019=\"\",\"\",VLOOKUP(G7019,Insumos!G:H,2,FALSE))","v":""}]
[null,null,null,null,null,{"$f":"IF(E7020=\"\",\"\",VLOOKUP(E7020,Insumos!AD:AE,2,FALSE))","v":""},null,{"$f":"IF(G7020=\"\",\"\",VLOOKUP(G7020,Insumos!G:H,2,FALSE))","v":""}]
[null,null,null,null,null,{"$f":"IF(E7021=\"\",\"\",VLOOKUP(E7021,Insumos!AD:AE,2,FALSE))","v":""},null,{"$f":"IF(G7021=\"\",\"\",VLOOKUP(G7021,Insumos!G:H,2,FALSE))","v":""}]
[null,null,null,null,null,{"$f":"IF(E7022=\"\",\"\",VLOOKUP(E7022,Insumos!AD:AE,2,FALSE))","v":""},null,{"$f":"IF(G7022=\"\",\"\",VLOOKUP(G7022,Insumos!G:H,2,FALSE))","v":""}]
[null,null,null,null,null,{"$f":"IF(E7023=\"\",\"\",VLOOKUP(E7023,Insumos!AD:AE,2,FALSE))","v":""},null,{"$f":"IF(G7023=\"\",\"\",VLOOKUP(G7023,Insumos!G:H,2,FALSE))","v":""}]
[null,null,null,null,null,{"$f":"IF(E7024=\"\",\"\",VLOOKUP(E7024,Insumos!AD:AE,2,FALSE))","v":""},null,{"$f":"IF(G7024=\"\",\"\",VLOOKUP(G7024,Insumos!G:H,2,FALSE))","v":""}]
[null,null,null,null,null,{"$f":"IF(E7025=\"\",\"\",VLOOKUP(E7025,Insumos!AD:AE,2,FALSE))","v":""},null,{"$f":"IF(G7025=\"\",\"\",VLOOKUP(G7025,Insumos!G:H,2,FALSE))","v":""}]
[null,null,null,null,null,{"$f":"IF(E7026=\"\",\"\",VLOOKUP(E7026,Insumos!AD:AE,2,FALSE))","v":""},null,{"$f":"IF(G7026=\"\",\"\",VLOOKUP(G7026,Insumos!G:H,2,FALSE))","v":""}]
[null,null,null,null,null,{"$f":"IF(E7027=\"\",\"\",VLOOKUP(E7027,Insumos!AD:AE,2,FALSE))","v":""},null,{"$f":"IF(G7027=\"\",\"\",VLOOKUP(G7027,Insumos!G:H,2,FALSE))","v":""}]
[null,null,null,null,null,{"$f":"IF(E7028=\"\",\"\",VLOOKUP(E7028,Insumos!AD:AE,2,FALSE))","v":""},null,{"$f":"IF(G7028=\"\",\"\",VLOOKUP(G7028,Insumos!G:H,2,FALSE))","v":""}]
[null,null,null,null,null,{"$f":"IF(E7029=\"\",\"\",VLOOKUP(E7029,Insumos!AD:AE,2,FALSE))","v":""},null,{"$f":"IF(G7029=\"\",\"\",VLOOKUP(G7029,Insumos!G:H,2,FALSE))","v":""}]
[null,null,null,null,null,{"$f":"IF(E7030=\"\",\"\",VLOOKUP(E7030,Insumos!AD:AE,2,FALSE))","v":""},null,{"$f":"IF(G7030=\"\",\"\",VLOOKUP(G7030,Insumos!G:H,2,FALSE))","v":""}]
[null,null,null,null,null,{"$f":"IF(E7031=\"\",\"\",VLOOKUP(E7031,Insumos!AD:AE,2,FALSE))","v":""},null,{"$f":"IF(G7031=\"\",\"\",VLOOKUP(G7031,Insumos!G:H,2,FALSE))","v":""}]
[null,null,null,null,null,{"$f":"IF(E7032=\"\",\"\",VLOOKUP(E7032,Insumos!AD:AE,2,FALSE))","v":""},null,{"$f":"IF(G7032=\"\",\"\",VLOOKUP(G7032,Insumos!G:H,2,FALSE))","v":""}]
[null,null,null,null,null,{"$f":"IF(E7033=\"\",\"\",VLOOKUP(E7033,Insumos!AD:AE,2,FALSE))","v":""},null,{"$f":"IF(G7033=\"\",\"\",VLOOKUP(G7033,Insumos!G:H,2,FALSE))","v":""}]
[null,null,null,null,null,{"$f":"IF(E7034=\"\",\"\",VLOOKUP(E7034,Insumos!AD:AE,2,FALSE))","v":""},null,{"$f":"IF(G7034=\"\",\"\",VLOOKUP(G7034,Insumos!G:H,2,FALSE))","v":""}]
[null,null,null,null,null,{"$f":"IF(E7035=\"\",\"\",VLOOKUP(E7035,Insumos!AD:AE,2,FALSE))","v":""},null,{"$f":"IF(G7035=\"\",\"\",VLOOKUP(G7035,Insumos!G:H,2,FALSE))","v":""}]
[null,null,null,null,null,{"$f":"IF(E7036=\"\",\"\",VLOOKUP(E7036,Insumos!AD:AE,2,FALSE))","v":""},null,{"$f":"IF(G7036=\"\",\"\",VLOOKUP(G7036,Insumos!G:H,2,FALSE))","v":""}]
[null,null,null,null,null,{"$f":"IF(E7037=\"\",\"\",VLOOKUP(E7037,Insumos!AD:AE,2,FALSE))","v":""},null,{"$f":"IF(G7037=\"\",\"\",VLOOKUP(G7037,Insumos!G:H,2,FALSE))","v":""}]
[null,null,null,null,null,{"$f":"IF(E7038=\"\",\"\",VLOOKUP(E7038,Insumos!AD:AE,2,FALSE))","v":""},null,{"$f":"IF(G7038=\"\",\"\",VLOOKUP(G7038,Insumos!G:H,2,FALSE))","v":""}]
[null,null,null,null,null,{"$f":"IF(E7039=\"\",\"\",VLOOKUP(E7039,Insumos!AD:AE,2,FALSE))","v":""},null,{"$f":"IF(G7039=\"\",\"\",VLOOKUP(G7039,Insumos!G:H,2,FALSE))","v":""}]
[null,null,null,null,null,{"$f":"IF(E7040=\"\",\"\",VLOOKUP(E7040,Insumos!AD:AE,2,FALSE))","v":""},null,{"$f":"IF(G7040=\"\",\"\",VLOOKUP(G7040,Insumos!G:H,2,FALSE))","v":""}]
[null,null,null,null,null,{"$f":"IF(E7041=\"\",\"\",VLOOKUP(E7041,Insumos!AD:AE,2,FALSE))","v":""},null,{"$f":"IF(G7041=\"\",\"\",VLOOKUP(G7041,Insumos!G:H,2,FALSE))","v":""}]
[null,null,null,null,null,{"$f":"IF(E7042=\"\",\"\",VLOOKUP(E7042,Insumos!AD:AE,2,FALSE))","v":""},null,{"$f":"IF(G7042=\"\",\"\",VLOOKUP(G7042,Insumos!G:H,2,FALSE))","v":""}]
[null,null,null,null,null,{"$f":"IF(E7043=\"\",\"\",VLOOKUP(E7043,Insumos!AD:AE,2,FALSE))","v":""},null,{"$f":"IF(G7043=\"\",\"\",VLOOKUP(G7043,Insumos!G:H,2,FALSE))","v":""}]
[null,null,null,null,null,{"$f":"IF(E7044=\"\",\"\",VLOOKUP(E7044,Insumos!AD:AE,2,FALSE))","v":""},null,{"$f":"IF(G7044=\"\",\"\",VLOOKUP(G7044,Insumos!G:H,2,FALSE))","v":""}]
[null,null,null,null,null,{"$f":"IF(E7045=\"\",\"\",VLOOKUP(E7045,Insumos!AD:AE,2,FALSE))","v":""},null,{"$f":"IF(G7045=\"\",\"\",VLOOKUP(G7045,Insumos!G:H,2,FALSE))","v":""}]
[null,null,null,null,null,{"$f":"IF(E7046=\"\",\"\",VLOOKUP(E7046,Insumos!AD:AE,2,FALSE))","v":""},null,{"$f":"IF(G7046=\"\",\"\",VLOOKUP(G7046,Insumos!G:H,2,FALSE))","v":""}]
[null,null,null,null,null,{"$f":"IF(E7047=\"\",\"\",VLOOKUP(E7047,Insumos!AD:AE,2,FALSE))","v":""},null,{"$f":"IF(G7047=\"\",\"\",VLOOKUP(G7047,Insumos!G:H,2,FALSE))","v":""}]
[null,null,null,null,null,{"$f":"IF(E7048=\"\",\"\",VLOOKUP(E7048,Insumos!AD:AE,2,FALSE))","v":""},null,{"$f":"IF(G7048=\"\",\"\",VLOOKUP(G7048,Insumos!G:H,2,FALSE))","v":""}]
[null,null,null,null,null,{"$f":"IF(E7049=\"\",\"\",VLOOKUP(E7049,Insumos!AD:AE,2,FALSE))","v":""},null,{"$f":"IF(G7049=\"\",\"\",VLOOKUP(G7049,Insumos!G:H,2,FALSE))","v":""}]
[null,null,null,null,null,{"$f":"IF(E7050=\"\",\"\",VLOOKUP(E7050,Insumos!AD:AE,2,FALSE))","v":""},null,{"$f":"IF(G7050=\"\",\"\",VLOOKUP(G7050,Insumos!G:H,2,FALSE))","v":""}]
[null,null,null,null,null,{"$f":"IF(E7051=\"\",\"\",VLOOKUP(E7051,Insumos!AD:AE,2,FALSE))","v":""},null,{"$f":"IF(G7051=\"\",\"\",VLOOKUP(G7051,Insumos!G:H,2,FALSE))","v":""}]
[null,null,null,null,null,{"$f":"IF(E7052=\"\",\"\",VLOOKUP(E7052,Insumos!AD:AE,2,FALSE))","v":""},null,{"$f":"IF(G7052=\"\",\"\",VLOOKUP(G7052,Insumos!G:H,2,FALSE))","v":""}]
[null,null,null,null,null,{"$f":"IF(E7053=\"\",\"\",VLOOKUP(E7053,Insumos!AD:AE,2,FALSE))","v":""},null,{"$f":"IF(G7053=\"\",\"\",VLOOKUP(G7053,Insumos!G:H,2,FALSE))","v":""}]
[null,null,null,null,null,{"$f":"IF(E7054=\"\",\"\",VLOOKUP(E7054,Insumos!AD:AE,2,FALSE))","v":""},null,{"$f":"IF(G7054=\"\",\"\",VLOOKUP(G7054,Insumos!G:H,2,FALSE))","v":""}]
[null,null,null,null,null,{"$f":"IF(E7055=\"\",\"\",VLOOKUP(E7055,Insumos!AD:AE,2,FALSE))","v":""},null,{"$f":"IF(G7055=\"\",\"\",VLOOKUP(G7055,Insumos!G:H,2,FALSE))","v":""}]
[null,null,null,null,null,{"$f":"IF(E7056=\"\",\"\",VLOOKUP(E7056,Insumos!AD:AE,2,FALSE))","v":""},null,{"$f":"IF(G7056=\"\",\"\",VLOOKUP(G7056,Insumos!G:H,2,FALSE))","v":""}]
[null,null,null,null,null,{"$f":"IF(E7057=\"\",\"\",VLOOKUP(E7057,Insumos!AD:AE,2,FALSE))","v":""},null,{"$f":"IF(G7057=\"\",\"\",VLOOKUP(G7057,Insumos!G:H,2,FALSE))","v":""}]
[null,null,null,null,null,{"$f":"IF(E7058=\"\",\"\",VLOOKUP(E7058,Insumos!AD:AE,2,FALSE))","v":""},null,{"$f":"IF(G7058=\"\",\"\",VLOOKUP(G7058,Insumos!G:H,2,FALSE))","v":""}]
[null,null,null,null,null,{"$f":"IF(E7059=\"\",\"\",VLOOKUP(E7059,Insumos!AD:AE,2,FALSE))","v":""},null,{"$f":"IF(G7059=\"\",\"\",VLOOKUP(G7059,Insumos!G:H,2,FALSE))","v":""}]
[null,null,null,null,null,{"$f":"IF(E7060=\"\",\"\",VLOOKUP(E7060,Insumos!AD:AE,2,FALSE))","v":""},null,{"$f":"IF(G7060=\"\",\"\",VLOOKUP(G7060,Insumos!G:H,2,FALSE))","v":""}]
[null,null,null,null,null,{"$f":"IF(E7061=\"\",\"\",VLOOKUP(E7061,Insumos!AD:AE,2,FALSE))","v":""},null,{"$f":"IF(G7061=\"\",\"\",VLOOKUP(G7061,Insumos!G:H,2,FALSE))","v":""}]
[null,null,null,null,null,{"$f":"IF(E7062=\"\",\"\",VLOOKUP(E7062,Insumos!AD:AE,2,FALSE))","v":""},null,{"$f":"IF(G7062=\"\",\"\",VLOOKUP(G7062,Insumos!G:H,2,FALSE))","v":""}]
[null,null,null,null,null,{"$f":"IF(E7063=\"\",\"\",VLOOKUP(E7063,Insumos!AD:AE,2,FALSE))","v":""},null,{"$f":"IF(G7063=\"\",\"\",VLOOKUP(G7063,Insumos!G:H,2,FALSE))","v":""}]
[null,null,null,null,null,{"$f":"IF(E7064=\"\",\"\",VLOOKUP(E7064,Insumos!AD:AE,2,FALSE))","v":""},null,{"$f":"IF(G7064=\"\",\"\",VLOOKUP(G7064,Insumos!G:H,2,FALSE))","v":""}]
[null,null,null,null,null,{"$f":"IF(E7065=\"\",\"\",VLOOKUP(E7065,Insumos!AD:AE,2,FALSE))","v":""},null,{"$f":"IF(G7065=\"\",\"\",VLOOKUP(G7065,Insumos!G:H,2,FALSE))","v":""}]
[null,null,null,null,null,{"$f":"IF(E7066=\"\",\"\",VLOOKUP(E7066,Insumos!AD:AE,2,FALSE))","v":""},null,{"$f":"IF(G7066=\"\",\"\",VLOOKUP(G7066,Insumos!G:H,2,FALSE))","v":""}]
[null,null,null,null,null,{"$f":"IF(E7067=\"\",\"\",VLOOKUP(E7067,Insumos!AD:AE,2,FALSE))","v":""},null,{"$f":"IF(G7067=\"\",\"\",VLOOKUP(G7067,Insumos!G:H,2,FALSE))","v":""}]
[null,null,null,null,null,{"$f":"IF(E7068=\"\",\"\",VLOOKUP(E7068,Insumos!AD:AE,2,FALSE))","v":""},null,{"$f":"IF(G7068=\"\",\"\",VLOOKUP(G7068,Insumos!G:H,2,FALSE))","v":""}]
[null,null,null,null,null,{"$f":"IF(E7069=\"\",\"\",VLOOKUP(E7069,Insumos!AD:AE,2,FALSE))","v":""},null,{"$f":"IF(G7069=\"\",\"\",VLOOKUP(G7069,Insumos!G:H,2,FALSE))","v":""}]
[null,null,null,null,null,{"$f":"IF(E7070=\"\",\"\",VLOOKUP(E7070,Insumos!AD:AE,2,FALSE))","v":""},null,{"$f":"IF(G7070=\"\",\"\",VLOOKUP(G7070,Insumos!G:H,2,FALSE))","v":""}]
[null,null,null,null,null,{"$f":"IF(E7071=\"\",\"\",VLOOKUP(E7071,Insumos!AD:AE,2,FALSE))","v":""},null,{"$f":"IF(G7071=\"\",\"\",VLOOKUP(G7071,Insumos!G:H,2,FALSE))","v":""}]
[null,null,null,null,null,{"$f":"IF(E7072=\"\",\"\",VLOOKUP(E7072,Insumos!AD:AE,2,FALSE))","v":""},null,{"$f":"IF(G7072=\"\",\"\",VLOOKUP(G7072,Insumos!G:H,2,FALSE))","v":""}]
[null,null,null,null,null,{"$f":"IF(E7073=\"\",\"\",VLOOKUP(E7073,Insumos!AD:AE,2,FALSE))","v":""},null,{"$f":"IF(G7073=\"\",\"\",VLOOKUP(G7073,Insumos!G:H,2,FALSE))","v":""}]
[null,null,null,null,null,{"$f":"IF(E7074=\"\",\"\",VLOOKUP(E7074,Insumos!AD:AE,2,FALSE))","v":""},null,{"$f":"IF(G7074=\"\",\"\",VLOOKUP(G7074,Insumos!G:H,2,FALSE))","v":""}]
[null,null,null,null,null,{"$f":"IF(E7075=\"\",\"\",VLOOKUP(E7075,Insumos!AD:AE,2,FALSE))","v":""},null,{"$f":"IF(G7075=\"\",\"\",VLOOKUP(G7075,Insumos!G:H,2,FALSE))","v":""}]
[null,null,null,null,null,{"$f":"IF(E7076=\"\",\"\",VLOOKUP(E7076,Insumos!AD:AE,2,FALSE))","v":""},null,{"$f":"IF(G7076=\"\",\"\",VLOOKUP(G7076,Insumos!G:H,2,FALSE))","v":""}]
[null,null,null,null,null,{"$f":"IF(E7077=\"\",\"\",VLOOKUP(E7077,Insumos!AD:AE,2,FALSE))","v":""},null,{"$f":"IF(G7077=\"\",\"\",VLOOKUP(G7077,Insumos!G:H,2,FALSE))","v":""}]
[null,null,null,null,null,{"$f":"IF(E7078=\"\",\"\",VLOOKUP(E7078,Insumos!AD:AE,2,FALSE))","v":""},null,{"$f":"IF(G7078=\"\",\"\",VLOOKUP(G7078,Insumos!G:H,2,FALSE))","v":""}]
[null,null,null,null,null,{"$f":"IF(E7079=\"\",\"\",VLOOKUP(E7079,Insumos!AD:AE,2,FALSE))","v":""},null,{"$f":"IF(G7079=\"\",\"\",VLOOKUP(G7079,Insumos!G:H,2,FALSE))","v":""}]
[null,null,null,null,null,{"$f":"IF(E7080=\"\",\"\",VLOOKUP(E7080,Insumos!AD:AE,2,FALSE))","v":""},null,{"$f":"IF(G7080=\"\",\"\",VLOOKUP(G7080,Insumos!G:H,2,FALSE))","v":""}]
[null,null,null,null,null,{"$f":"IF(E7081=\"\",\"\",VLOOKUP(E7081,Insumos!AD:AE,2,FALSE))","v":""},null,{"$f":"IF(G7081=\"\",\"\",VLOOKUP(G7081,Insumos!G:H,2,FALSE))","v":""}]
[null,null,null,null,null,{"$f":"IF(E7082=\"\",\"\",VLOOKUP(E7082,Insumos!AD:AE,2,FALSE))","v":""},null,{"$f":"IF(G7082=\"\",\"\",VLOOKUP(G7082,Insumos!G:H,2,FALSE))","v":""}]
[null,null,null,null,null,{"$f":"IF(E7083=\"\",\"\",VLOOKUP(E7083,Insumos!AD:AE,2,FALSE))","v":""},null,{"$f":"IF(G7083=\"\",\"\",VLOOKUP(G7083,Insumos!G:H,2,FALSE))","v":""}]
[null,null,null,null,null,{"$f":"IF(E7084=\"\",\"\",VLOOKUP(E7084,Insumos!AD:AE,2,FALSE))","v":""},null,{"$f":"IF(G7084=\"\",\"\",VLOOKUP(G7084,Insumos!G:H,2,FALSE))","v":""}]
[null,null,null,null,null,{"$f":"IF(E7085=\"\",\"\",VLOOKUP(E7085,Insumos!AD:AE,2,FALSE))","v":""},null,{"$f":"IF(G7085=\"\",\"\",VLOOKUP(G7085,Insumos!G:H,2,FALSE))","v":""}]
[null,null,null,null,null,{"$f":"IF(E7086=\"\",\"\",VLOOKUP(E7086,Insumos!AD:AE,2,FALSE))","v":""},null,{"$f":"IF(G7086=\"\",\"\",VLOOKUP(G7086,Insumos!G:H,2,FALSE))","v":""}]
[null,null,null,null,null,{"$f":"IF(E7087=\"\",\"\",VLOOKUP(E7087,Insumos!AD:AE,2,FALSE))","v":""},null,{"$f":"IF(G7087=\"\",\"\",VLOOKUP(G7087,Insumos!G:H,2,FALSE))","v":""}]
[null,null,null,null,null,{"$f":"IF(E7088=\"\",\"\",VLOOKUP(E7088,Insumos!AD:AE,2,FALSE))","v":""},null,{"$f":"IF(G7088=\"\",\"\",VLOOKUP(G7088,Insumos!G:H,2,FALSE))","v":""}]
[null,null,null,null,null,{"$f":"IF(E7089=\"\",\"\",VLOOKUP(E7089,Insumos!AD:AE,2,FALSE))","v":""},null,{"$f":"IF(G7089=\"\",\"\",VLOOKUP(G7089,Insumos!G:H,2,FALSE))","v":""}]
[null,null,null,null,null,{"$f":"IF(E7090=\"\",\"\",VLOOKUP(E7090,Insumos!AD:AE,2,FALSE))","v":""},null,{"$f":"IF(G7090=\"\",\"\",VLOOKUP(G7090,Insumos!G:H,2,FALSE))","v":""}]
[null,null,null,null,null,{"$f":"IF(E7091=\"\",\"\",VLOOKUP(E7091,Insumos!AD:AE,2,FALSE))","v":""},null,{"$f":"IF(G7091=\"\",\"\",VLOOKUP(G7091,Insumos!G:H,2,FALSE))","v":""}]
[null,null,null,null,null,{"$f":"IF(E7092=\"\",\"\",VLOOKUP(E7092,Insumos!AD:AE,2,FALSE))","v":""},null,{"$f":"IF(G7092=\"\",\"\",VLOOKUP(G7092,Insumos!G:H,2,FALSE))","v":""}]
[null,null,null,null,null,{"$f":"IF(E7093=\"\",\"\",VLOOKUP(E7093,Insumos!AD:AE,2,FALSE))","v":""},null,{"$f":"IF(G7093=\"\",\"\",VLOOKUP(G7093,Insumos!G:H,2,FALSE))","v":""}]
[null,null,null,null,null,{"$f":"IF(E7094=\"\",\"\",VLOOKUP(E7094,Insumos!AD:AE,2,FALSE))","v":""},null,{"$f":"IF(G7094=\"\",\"\",VLOOKUP(G7094,Insumos!G:H,2,FALSE))","v":""}]
[null,null,null,null,null,{"$f":"IF(E7095=\"\",\"\",VLOOKUP(E7095,Insumos!AD:AE,2,FALSE))","v":""},null,{"$f":"IF(G7095=\"\",\"\",VLOOKUP(G7095,Insumos!G:H,2,FALSE))","v":""}]
[null,null,null,null,null,{"$f":"IF(E7096=\"\",\"\",VLOOKUP(E7096,Insumos!AD:AE,2,FALSE))","v":""},null,{"$f":"IF(G7096=\"\",\"\",VLOOKUP(G7096,Insumos!G:H,2,FALSE))","v":""}]
[null,null,null,null,null,{"$f":"IF(E7097=\"\",\"\",VLOOKUP(E7097,Insumos!AD:AE,2,FALSE))","v":""},null,{"$f":"IF(G7097=\"\",\"\",VLOOKUP(G7097,Insumos!G:H,2,FALSE))","v":""}]
[null,null,null,null,null,{"$f":"IF(E7098=\"\",\"\",VLOOKUP(E7098,Insumos!AD:AE,2,FALSE))","v":""},null,{"$f":"IF(G7098=\"\",\"\",VLOOKUP(G7098,Insumos!G:H,2,FALSE))","v":""}]
[null,null,null,null,null,{"$f":"IF(E7099=\"\",\"\",VLOOKUP(E7099,Insumos!AD:AE,2,FALSE))","v":""},null,{"$f":"IF(G7099=\"\",\"\",VLOOKUP(G7099,Insumos!G:H,2,FALSE))","v":""}]
[null,null,null,null,null,{"$f":"IF(E7100=\"\",\"\",VLOOKUP(E7100,Insumos!AD:AE,2,FALSE))","v":""},null,{"$f":"IF(G7100=\"\",\"\",VLOOKUP(G7100,Insumos!G:H,2,FALSE))","v":""}]
[null,null,null,null,null,{"$f":"IF(E7101=\"\",\"\",VLOOKUP(E7101,Insumos!AD:AE,2,FALSE))","v":""},null,{"$f":"IF(G7101=\"\",\"\",VLOOKUP(G7101,Insumos!G:H,2,FALSE))","v":""}]
[null,null,null,null,null,{"$f":"IF(E7102=\"\",\"\",VLOOKUP(E7102,Insumos!AD:AE,2,FALSE))","v":""},null,{"$f":"IF(G7102=\"\",\"\",VLOOKUP(G7102,Insumos!G:H,2,FALSE))","v":""}]
[null,null,null,null,null,{"$f":"IF(E7103=\"\",\"\",VLOOKUP(E7103,Insumos!AD:AE,2,FALSE))","v":""},null,{"$f":"IF(G7103=\"\",\"\",VLOOKUP(G7103,Insumos!G:H,2,FALSE))","v":""}]
[null,null,null,null,null,{"$f":"IF(E7104=\"\",\"\",VLOOKUP(E7104,Insumos!AD:AE,2,FALSE))","v":""},null,{"$f":"IF(G7104=\"\",\"\",VLOOKUP(G7104,Insumos!G:H,2,FALSE))","v":""}]
[null,null,null,null,null,{"$f":"IF(E7105=\"\",\"\",VLOOKUP(E7105,Insumos!AD:AE,2,FALSE))","v":""},null,{"$f":"IF(G7105=\"\",\"\",VLOOKUP(G7105,Insumos!G:H,2,FALSE))","v":""}]
[null,null,null,null,null,{"$f":"IF(E7106=\"\",\"\",VLOOKUP(E7106,Insumos!AD:AE,2,FALSE))","v":""},null,{"$f":"IF(G7106=\"\",\"\",VLOOKUP(G7106,Insumos!G:H,2,FALSE))","v":""}]
[null,null,null,null,null,{"$f":"IF(E7107=\"\",\"\",VLOOKUP(E7107,Insumos!AD:AE,2,FALSE))","v":""},null,{"$f":"IF(G7107=\"\",\"\",VLOOKUP(G7107,Insumos!G:H,2,FALSE))","v":""}]
[null,null,null,null,null,{"$f":"IF(E7108=\"\",\"\",VLOOKUP(E7108,Insumos!AD:AE,2,FALSE))","v":""},null,{"$f":"IF(G7108=\"\",\"\",VLOOKUP(G7108,Insumos!G:H,2,FALSE))","v":""}]
[null,null,null,null,null,{"$f":"IF(E7109=\"\",\"\",VLOOKUP(E7109,Insumos!AD:AE,2,FALSE))","v":""},null,{"$f":"IF(G7109=\"\",\"\",VLOOKUP(G7109,Insumos!G:H,2,FALSE))","v":""}]
[null,null,null,null,null,{"$f":"IF(E7110=\"\",\"\",VLOOKUP(E7110,Insumos!AD:AE,2,FALSE))","v":""},null,{"$f":"IF(G7110=\"\",\"\",VLOOKUP(G7110,Insumos!G:H,2,FALSE))","v":""}]
[null,null,null,null,null,{"$f":"IF(E7111=\"\",\"\",VLOOKUP(E7111,Insumos!AD:AE,2,FALSE))","v":""},null,{"$f":"IF(G7111=\"\",\"\",VLOOKUP(G7111,Insumos!G:H,2,FALSE))","v":""}]
[null,null,null,null,null,{"$f":"IF(E7112=\"\",\"\",VLOOKUP(E7112,Insumos!AD:AE,2,FALSE))","v":""},null,{"$f":"IF(G7112=\"\",\"\",VLOOKUP(G7112,Insumos!G:H,2,FALSE))","v":""}]
[null,null,null,null,null,{"$f":"IF(E7113=\"\",\"\",VLOOKUP(E7113,Insumos!AD:AE,2,FALSE))","v":""},null,{"$f":"IF(G7113=\"\",\"\",VLOOKUP(G7113,Insumos!G:H,2,FALSE))","v":""}]
[null,null,null,null,null,{"$f":"IF(E7114=\"\",\"\",VLOOKUP(E7114,Insumos!AD:AE,2,FALSE))","v":""},null,{"$f":"IF(G7114=\"\",\"\",VLOOKUP(G7114,Insumos!G:H,2,FALSE))","v":""}]
[null,null,null,null,null,{"$f":"IF(E7115=\"\",\"\",VLOOKUP(E7115,Insumos!AD:AE,2,FALSE))","v":""},null,{"$f":"IF(G7115=\"\",\"\",VLOOKUP(G7115,Insumos!G:H,2,FALSE))","v":""}]
[null,null,null,null,null,{"$f":"IF(E7116=\"\",\"\",VLOOKUP(E7116,Insumos!AD:AE,2,FALSE))","v":""},null,{"$f":"IF(G7116=\"\",\"\",VLOOKUP(G7116,Insumos!G:H,2,FALSE))","v":""}]
[null,null,null,null,null,{"$f":"IF(E7117=\"\",\"\",VLOOKUP(E7117,Insumos!AD:AE,2,FALSE))","v":""},null,{"$f":"IF(G7117=\"\",\"\",VLOOKUP(G7117,Insumos!G:H,2,FALSE))","v":""}]
[null,null,null,null,null,{"$f":"IF(E7118=\"\",\"\",VLOOKUP(E7118,Insumos!AD:AE,2,FALSE))","v":""},null,{"$f":"IF(G7118=\"\",\"\",VLOOKUP(G7118,Insumos!G:H,2,FALSE))","v":""}]
[null,null,null,null,null,{"$f":"IF(E7119=\"\",\"\",VLOOKUP(E7119,Insumos!AD:AE,2,FALSE))","v":""},null,{"$f":"IF(G7119=\"\",\"\",VLOOKUP(G7119,Insumos!G:H,2,FALSE))","v":""}]
[null,null,null,null,null,{"$f":"IF(E7120=\"\",\"\",VLOOKUP(E7120,Insumos!AD:AE,2,FALSE))","v":""},null,{"$f":"IF(G7120=\"\",\"\",VLOOKUP(G7120,Insumos!G:H,2,FALSE))","v":""}]
[null,null,null,null,null,{"$f":"IF(E7121=\"\",\"\",VLOOKUP(E7121,Insumos!AD:AE,2,FALSE))","v":""},null,{"$f":"IF(G7121=\"\",\"\",VLOOKUP(G7121,Insumos!G:H,2,FALSE))","v":""}]
[null,null,null,null,null,{"$f":"IF(E7122=\"\",\"\",VLOOKUP(E7122,Insumos!AD:AE,2,FALSE))","v":""},null,{"$f":"IF(G7122=\"\",\"\",VLOOKUP(G7122,Insumos!G:H,2,FALSE))","v":""}]
[null,null,null,null,null,{"$f":"IF(E7123=\"\",\"\",VLOOKUP(E7123,Insumos!AD:AE,2,FALSE))","v":""},null,{"$f":"IF(G7123=\"\",\"\",VLOOKUP(G7123,Insumos!G:H,2,FALSE))","v":""}]
[null,null,null,null,null,{"$f":"IF(E7124=\"\",\"\",VLOOKUP(E7124,Insumos!AD:AE,2,FALSE))","v":""},null,{"$f":"IF(G7124=\"\",\"\",VLOOKUP(G7124,Insumos!G:H,2,FALSE))","v":""}]
[null,null,null,null,null,{"$f":"IF(E7125=\"\",\"\",VLOOKUP(E7125,Insumos!AD:AE,2,FALSE))","v":""},null,{"$f":"IF(G7125=\"\",\"\",VLOOKUP(G7125,Insumos!G:H,2,FALSE))","v":""}]
[null,null,null,null,null,{"$f":"IF(E7126=\"\",\"\",VLOOKUP(E7126,Insumos!AD:AE,2,FALSE))","v":""},null,{"$f":"IF(G7126=\"\",\"\",VLOOKUP(G7126,Insumos!G:H,2,FALSE))","v":""}]
[null,null,null,null,null,{"$f":"IF(E7127=\"\",\"\",VLOOKUP(E7127,Insumos!AD:AE,2,FALSE))","v":""},null,{"$f":"IF(G7127=\"\",\"\",VLOOKUP(G7127,Insumos!G:H,2,FALSE))","v":""}]
[null,null,null,null,null,{"$f":"IF(E7128=\"\",\"\",VLOOKUP(E7128,Insumos!AD:AE,2,FALSE))","v":""},null,{"$f":"IF(G7128=\"\",\"\",VLOOKUP(G7128,Insumos!G:H,2,FALSE))","v":""}]
[null,null,null,null,null,{"$f":"IF(E7129=\"\",\"\",VLOOKUP(E7129,Insumos!AD:AE,2,FALSE))","v":""},null,{"$f":"IF(G7129=\"\",\"\",VLOOKUP(G7129,Insumos!G:H,2,FALSE))","v":""}]
[null,null,null,null,null,{"$f":"IF(E7130=\"\",\"\",VLOOKUP(E7130,Insumos!AD:AE,2,FALSE))","v":""},null,{"$f":"IF(G7130=\"\",\"\",VLOOKUP(G7130,Insumos!G:H,2,FALSE))","v":""}]
[null,null,null,null,null,{"$f":"IF(E7131=\"\",\"\",VLOOKUP(E7131,Insumos!AD:AE,2,FALSE))","v":""},null,{"$f":"IF(G7131=\"\",\"\",VLOOKUP(G7131,Insumos!G:H,2,FALSE))","v":""}]
[null,null,null,null,null,{"$f":"IF(E7132=\"\",\"\",VLOOKUP(E7132,Insumos!AD:AE,2,FALSE))","v":""},null,{"$f":"IF(G7132=\"\",\"\",VLOOKUP(G7132,Insumos!G:H,2,FALSE))","v":""}]
[null,null,null,null,null,{"$f":"IF(E7133=\"\",\"\",VLOOKUP(E7133,Insumos!AD:AE,2,FALSE))","v":""},null,{"$f":"IF(G7133=\"\",\"\",VLOOKUP(G7133,Insumos!G:H,2,FALSE))","v":""}]
[null,null,null,null,null,{"$f":"IF(E7134=\"\",\"\",VLOOKUP(E7134,Insumos!AD:AE,2,FALSE))","v":""},null,{"$f":"IF(G7134=\"\",\"\",VLOOKUP(G7134,Insumos!G:H,2,FALSE))","v":""}]
[null,null,null,null,null,{"$f":"IF(E7135=\"\",\"\",VLOOKUP(E7135,Insumos!AD:AE,2,FALSE))","v":""},null,{"$f":"IF(G7135=\"\",\"\",VLOOKUP(G7135,Insumos!G:H,2,FALSE))","v":""}]
[null,null,null,null,null,{"$f":"IF(E7136=\"\",\"\",VLOOKUP(E7136,Insumos!AD:AE,2,FALSE))","v":""},null,{"$f":"IF(G7136=\"\",\"\",VLOOKUP(G7136,Insumos!G:H,2,FALSE))","v":""}]
[null,null,null,null,null,{"$f":"IF(E7137=\"\",\"\",VLOOKUP(E7137,Insumos!AD:AE,2,FALSE))","v":""},null,{"$f":"IF(G7137=\"\",\"\",VLOOKUP(G7137,Insumos!G:H,2,FALSE))","v":""}]
[null,null,null,null,null,{"$f":"IF(E7138=\"\",\"\",VLOOKUP(E7138,Insumos!AD:AE,2,FALSE))","v":""},null,{"$f":"IF(G7138=\"\",\"\",VLOOKUP(G7138,Insumos!G:H,2,FALSE))","v":""}]
[null,null,null,null,null,{"$f":"IF(E7139=\"\",\"\",VLOOKUP(E7139,Insumos!AD:AE,2,FALSE))","v":""},null,{"$f":"IF(G7139=\"\",\"\",VLOOKUP(G7139,Insumos!G:H,2,FALSE))","v":""}]
[null,null,null,null,null,{"$f":"IF(E7140=\"\",\"\",VLOOKUP(E7140,Insumos!AD:AE,2,FALSE))","v":""},null,{"$f":"IF(G7140=\"\",\"\",VLOOKUP(G7140,Insumos!G:H,2,FALSE))","v":""}]
[null,null,null,null,null,{"$f":"IF(E7141=\"\",\"\",VLOOKUP(E7141,Insumos!AD:AE,2,FALSE))","v":""},null,{"$f":"IF(G7141=\"\",\"\",VLOOKUP(G7141,Insumos!G:H,2,FALSE))","v":""}]
[null,null,null,null,null,{"$f":"IF(E7142=\"\",\"\",VLOOKUP(E7142,Insumos!AD:AE,2,FALSE))","v":""},null,{"$f":"IF(G7142=\"\",\"\",VLOOKUP(G7142,Insumos!G:H,2,FALSE))","v":""}]
[null,null,null,null,null,{"$f":"IF(E7143=\"\",\"\",VLOOKUP(E7143,Insumos!AD:AE,2,FALSE))","v":""},null,{"$f":"IF(G7143=\"\",\"\",VLOOKUP(G7143,Insumos!G:H,2,FALSE))","v":""}]
[null,null,null,null,null,{"$f":"IF(E7144=\"\",\"\",VLOOKUP(E7144,Insumos!AD:AE,2,FALSE))","v":""},null,{"$f":"IF(G7144=\"\",\"\",VLOOKUP(G7144,Insumos!G:H,2,FALSE))","v":""}]
[null,null,null,null,null,{"$f":"IF(E7145=\"\",\"\",VLOOKUP(E7145,Insumos!AD:AE,2,FALSE))","v":""},null,{"$f":"IF(G7145=\"\",\"\",VLOOKUP(G7145,Insumos!G:H,2,FALSE))","v":""}]
[null,null,null,null,null,{"$f":"IF(E7146=\"\",\"\",VLOOKUP(E7146,Insumos!AD:AE,2,FALSE))","v":""},null,{"$f":"IF(G7146=\"\",\"\",VLOOKUP(G7146,Insumos!G:H,2,FALSE))","v":""}]
[null,null,null,null,null,{"$f":"IF(E7147=\"\",\"\",VLOOKUP(E7147,Insumos!AD:AE,2,FALSE))","v":""},null,{"$f":"IF(G7147=\"\",\"\",VLOOKUP(G7147,Insumos!G:H,2,FALSE))","v":""}]
[null,null,null,null,null,{"$f":"IF(E7148=\"\",\"\",VLOOKUP(E7148,Insumos!AD:AE,2,FALSE))","v":""},null,{"$f":"IF(G7148=\"\",\"\",VLOOKUP(G7148,Insumos!G:H,2,FALSE))","v":""}]
[null,null,null,null,null,{"$f":"IF(E7149=\"\",\"\",VLOOKUP(E7149,Insumos!AD:AE,2,FALSE))","v":""},null,{"$f":"IF(G7149=\"\",\"\",VLOOKUP(G7149,Insumos!G:H,2,FALSE))","v":""}]
[null,null,null,null,null,{"$f":"IF(E7150=\"\",\"\",VLOOKUP(E7150,Insumos!AD:AE,2,FALSE))","v":""},null,{"$f":"IF(G7150=\"\",\"\",VLOOKUP(G7150,Insumos!G:H,2,FALSE))","v":""}]
[null,null,null,null,null,{"$f":"IF(E7151=\"\",\"\",VLOOKUP(E7151,Insumos!AD:AE,2,FALSE))","v":""},null,{"$f":"IF(G7151=\"\",\"\",VLOOKUP(G7151,Insumos!G:H,2,FALSE))","v":""}]
[null,null,null,null,null,{"$f":"IF(E7152=\"\",\"\",VLOOKUP(E7152,Insumos!AD:AE,2,FALSE))","v":""},null,{"$f":"IF(G7152=\"\",\"\",VLOOKUP(G7152,Insumos!G:H,2,FALSE))","v":""}]
[null,null,null,null,null,{"$f":"IF(E7153=\"\",\"\",VLOOKUP(E7153,Insumos!AD:AE,2,FALSE))","v":""},null,{"$f":"IF(G7153=\"\",\"\",VLOOKUP(G7153,Insumos!G:H,2,FALSE))","v":""}]
[null,null,null,null,null,{"$f":"IF(E7154=\"\",\"\",VLOOKUP(E7154,Insumos!AD:AE,2,FALSE))","v":""},null,{"$f":"IF(G7154=\"\",\"\",VLOOKUP(G7154,Insumos!G:H,2,FALSE))","v":""}]
[null,null,null,null,null,{"$f":"IF(E7155=\"\",\"\",VLOOKUP(E7155,Insumos!AD:AE,2,FALSE))","v":""},null,{"$f":"IF(G7155=\"\",\"\",VLOOKUP(G7155,Insumos!G:H,2,FALSE))","v":""}]
[null,null,null,null,null,{"$f":"IF(E7156=\"\",\"\",VLOOKUP(E7156,Insumos!AD:AE,2,FALSE))","v":""},null,{"$f":"IF(G7156=\"\",\"\",VLOOKUP(G7156,Insumos!G:H,2,FALSE))","v":""}]
[null,null,null,null,null,{"$f":"IF(E7157=\"\",\"\",VLOOKUP(E7157,Insumos!AD:AE,2,FALSE))","v":""},null,{"$f":"IF(G7157=\"\",\"\",VLOOKUP(G7157,Insumos!G:H,2,FALSE))","v":""}]
[null,null,null,null,null,{"$f":"IF(E7158=\"\",\"\",VLOOKUP(E7158,Insumos!AD:AE,2,FALSE))","v":""},null,{"$f":"IF(G7158=\"\",\"\",VLOOKUP(G7158,Insumos!G:H,2,FALSE))","v":""}]
[null,null,null,null,null,{"$f":"IF(E7159=\"\",\"\",VLOOKUP(E7159,Insumos!AD:AE,2,FALSE))","v":""},null,{"$f":"IF(G7159=\"\",\"\",VLOOKUP(G7159,Insumos!G:H,2,FALSE))","v":""}]
[null,null,null,null,null,{"$f":"IF(E7160=\"\",\"\",VLOOKUP(E7160,Insumos!AD:AE,2,FALSE))","v":""},null,{"$f":"IF(G7160=\"\",\"\",VLOOKUP(G7160,Insumos!G:H,2,FALSE))","v":""}]
[null,null,null,null,null,{"$f":"IF(E7161=\"\",\"\",VLOOKUP(E7161,Insumos!AD:AE,2,FALSE))","v":""},null,{"$f":"IF(G7161=\"\",\"\",VLOOKUP(G7161,Insumos!G:H,2,FALSE))","v":""}]
[null,null,null,null,null,{"$f":"IF(E7162=\"\",\"\",VLOOKUP(E7162,Insumos!AD:AE,2,FALSE))","v":""},null,{"$f":"IF(G7162=\"\",\"\",VLOOKUP(G7162,Insumos!G:H,2,FALSE))","v":""}]
[null,null,null,null,null,{"$f":"IF(E7163=\"\",\"\",VLOOKUP(E7163,Insumos!AD:AE,2,FALSE))","v":""},null,{"$f":"IF(G7163=\"\",\"\",VLOOKUP(G7163,Insumos!G:H,2,FALSE))","v":""}]
[null,null,null,null,null,{"$f":"IF(E7164=\"\",\"\",VLOOKUP(E7164,Insumos!AD:AE,2,FALSE))","v":""},null,{"$f":"IF(G7164=\"\",\"\",VLOOKUP(G7164,Insumos!G:H,2,FALSE))","v":""}]
[null,null,null,null,null,{"$f":"IF(E7165=\"\",\"\",VLOOKUP(E7165,Insumos!AD:AE,2,FALSE))","v":""},null,{"$f":"IF(G7165=\"\",\"\",VLOOKUP(G7165,Insumos!G:H,2,FALSE))","v":""}]
[null,null,null,null,null,{"$f":"IF(E7166=\"\",\"\",VLOOKUP(E7166,Insumos!AD:AE,2,FALSE))","v":""},null,{"$f":"IF(G7166=\"\",\"\",VLOOKUP(G7166,Insumos!G:H,2,FALSE))","v":""}]
[null,null,null,null,null,{"$f":"IF(E7167=\"\",\"\",VLOOKUP(E7167,Insumos!AD:AE,2,FALSE))","v":""},null,{"$f":"IF(G7167=\"\",\"\",VLOOKUP(G7167,Insumos!G:H,2,FALSE))","v":""}]
[null,null,null,null,null,{"$f":"IF(E7168=\"\",\"\",VLOOKUP(E7168,Insumos!AD:AE,2,FALSE))","v":""},null,{"$f":"IF(G7168=\"\",\"\",VLOOKUP(G7168,Insumos!G:H,2,FALSE))","v":""}]
[null,null,null,null,null,{"$f":"IF(E7169=\"\",\"\",VLOOKUP(E7169,Insumos!AD:AE,2,FALSE))","v":""},null,{"$f":"IF(G7169=\"\",\"\",VLOOKUP(G7169,Insumos!G:H,2,FALSE))","v":""}]
[null,null,null,null,null,{"$f":"IF(E7170=\"\",\"\",VLOOKUP(E7170,Insumos!AD:AE,2,FALSE))","v":""},null,{"$f":"IF(G7170=\"\",\"\",VLOOKUP(G7170,Insumos!G:H,2,FALSE))","v":""}]
[null,null,null,null,null,{"$f":"IF(E7171=\"\",\"\",VLOOKUP(E7171,Insumos!AD:AE,2,FALSE))","v":""},null,{"$f":"IF(G7171=\"\",\"\",VLOOKUP(G7171,Insumos!G:H,2,FALSE))","v":""}]
[null,null,null,null,null,{"$f":"IF(E7172=\"\",\"\",VLOOKUP(E7172,Insumos!AD:AE,2,FALSE))","v":""},null,{"$f":"IF(G7172=\"\",\"\",VLOOKUP(G7172,Insumos!G:H,2,FALSE))","v":""}]
[null,null,null,null,null,{"$f":"IF(E7173=\"\",\"\",VLOOKUP(E7173,Insumos!AD:AE,2,FALSE))","v":""},null,{"$f":"IF(G7173=\"\",\"\",VLOOKUP(G7173,Insumos!G:H,2,FALSE))","v":""}]
[null,null,null,null,null,{"$f":"IF(E7174=\"\",\"\",VLOOKUP(E7174,Insumos!AD:AE,2,FALSE))","v":""},null,{"$f":"IF(G7174=\"\",\"\",VLOOKUP(G7174,Insumos!G:H,2,FALSE))","v":""}]
[null,null,null,null,null,{"$f":"IF(E7175=\"\",\"\",VLOOKUP(E7175,Insumos!AD:AE,2,FALSE))","v":""},null,{"$f":"IF(G7175=\"\",\"\",VLOOKUP(G7175,Insumos!G:H,2,FALSE))","v":""}]
[null,null,null,null,null,{"$f":"IF(E7176=\"\",\"\",VLOOKUP(E7176,Insumos!AD:AE,2,FALSE))","v":""},null,{"$f":"IF(G7176=\"\",\"\",VLOOKUP(G7176,Insumos!G:H,2,FALSE))","v":""}]
[null,null,null,null,null,{"$f":"IF(E7177=\"\",\"\",VLOOKUP(E7177,Insumos!AD:AE,2,FALSE))","v":""},null,{"$f":"IF(G7177=\"\",\"\",VLOOKUP(G7177,Insumos!G:H,2,FALSE))","v":""}]
[null,null,null,null,null,{"$f":"IF(E7178=\"\",\"\",VLOOKUP(E7178,Insumos!AD:AE,2,FALSE))","v":""},null,{"$f":"IF(G7178=\"\",\"\",VLOOKUP(G7178,Insumos!G:H,2,FALSE))","v":""}]
[null,null,null,null,null,{"$f":"IF(E7179=\"\",\"\",VLOOKUP(E7179,Insumos!AD:AE,2,FALSE))","v":""},null,{"$f":"IF(G7179=\"\",\"\",VLOOKUP(G7179,Insumos!G:H,2,FALSE))","v":""}]
[null,null,null,null,null,{"$f":"IF(E7180=\"\",\"\",VLOOKUP(E7180,Insumos!AD:AE,2,FALSE))","v":""},null,{"$f":"IF(G7180=\"\",\"\",VLOOKUP(G7180,Insumos!G:H,2,FALSE))","v":""}]
[null,null,null,null,null,{"$f":"IF(E7181=\"\",\"\",VLOOKUP(E7181,Insumos!AD:AE,2,FALSE))","v":""},null,{"$f":"IF(G7181=\"\",\"\",VLOOKUP(G7181,Insumos!G:H,2,FALSE))","v":""}]
[null,null,null,null,null,{"$f":"IF(E7182=\"\",\"\",VLOOKUP(E7182,Insumos!AD:AE,2,FALSE))","v":""},null,{"$f":"IF(G7182=\"\",\"\",VLOOKUP(G7182,Insumos!G:H,2,FALSE))","v":""}]
[null,null,null,null,null,{"$f":"IF(E7183=\"\",\"\",VLOOKUP(E7183,Insumos!AD:AE,2,FALSE))","v":""},null,{"$f":"IF(G7183=\"\",\"\",VLOOKUP(G7183,Insumos!G:H,2,FALSE))","v":""}]
[null,null,null,null,null,{"$f":"IF(E7184=\"\",\"\",VLOOKUP(E7184,Insumos!AD:AE,2,FALSE))","v":""},null,{"$f":"IF(G7184=\"\",\"\",VLOOKUP(G7184,Insumos!G:H,2,FALSE))","v":""}]
[null,null,null,null,null,{"$f":"IF(E7185=\"\",\"\",VLOOKUP(E7185,Insumos!AD:AE,2,FALSE))","v":""},null,{"$f":"IF(G7185=\"\",\"\",VLOOKUP(G7185,Insumos!G:H,2,FALSE))","v":""}]
[null,null,null,null,null,{"$f":"IF(E7186=\"\",\"\",VLOOKUP(E7186,Insumos!AD:AE,2,FALSE))","v":""},null,{"$f":"IF(G7186=\"\",\"\",VLOOKUP(G7186,Insumos!G:H,2,FALSE))","v":""}]
[null,null,null,null,null,{"$f":"IF(E7187=\"\",\"\",VLOOKUP(E7187,Insumos!AD:AE,2,FALSE))","v":""},null,{"$f":"IF(G7187=\"\",\"\",VLOOKUP(G7187,Insumos!G:H,2,FALSE))","v":""}]
[null,null,null,null,null,{"$f":"IF(E7188=\"\",\"\",VLOOKUP(E7188,Insumos!AD:AE,2,FALSE))","v":""},null,{"$f":"IF(G7188=\"\",\"\",VLOOKUP(G7188,Insumos!G:H,2,FALSE))","v":""}]
[null,null,null,null,null,{"$f":"IF(E7189=\"\",\"\",VLOOKUP(E7189,Insumos!AD:AE,2,FALSE))","v":""},null,{"$f":"IF(G7189=\"\",\"\",VLOOKUP(G7189,Insumos!G:H,2,FALSE))","v":""}]
[null,null,null,null,null,{"$f":"IF(E7190=\"\",\"\",VLOOKUP(E7190,Insumos!AD:AE,2,FALSE))","v":""},null,{"$f":"IF(G7190=\"\",\"\",VLOOKUP(G7190,Insumos!G:H,2,FALSE))","v":""}]
[null,null,null,null,null,{"$f":"IF(E7191=\"\",\"\",VLOOKUP(E7191,Insumos!AD:AE,2,FALSE))","v":""},null,{"$f":"IF(G7191=\"\",\"\",VLOOKUP(G7191,Insumos!G:H,2,FALSE))","v":""}]
[null,null,null,null,null,{"$f":"IF(E7192=\"\",\"\",VLOOKUP(E7192,Insumos!AD:AE,2,FALSE))","v":""},null,{"$f":"IF(G7192=\"\",\"\",VLOOKUP(G7192,Insumos!G:H,2,FALSE))","v":""}]
[null,null,null,null,null,{"$f":"IF(E7193=\"\",\"\",VLOOKUP(E7193,Insumos!AD:AE,2,FALSE))","v":""},null,{"$f":"IF(G7193=\"\",\"\",VLOOKUP(G7193,Insumos!G:H,2,FALSE))","v":""}]
[null,null,null,null,null,{"$f":"IF(E7194=\"\",\"\",VLOOKUP(E7194,Insumos!AD:AE,2,FALSE))","v":""},null,{"$f":"IF(G7194=\"\",\"\",VLOOKUP(G7194,Insumos!G:H,2,FALSE))","v":""}]
[null,null,null,null,null,{"$f":"IF(E7195=\"\",\"\",VLOOKUP(E7195,Insumos!AD:AE,2,FALSE))","v":""},null,{"$f":"IF(G7195=\"\",\"\",VLOOKUP(G7195,Insumos!G:H,2,FALSE))","v":""}]
[null,null,null,null,null,{"$f":"IF(E7196=\"\",\"\",VLOOKUP(E7196,Insumos!AD:AE,2,FALSE))","v":""},null,{"$f":"IF(G7196=\"\",\"\",VLOOKUP(G7196,Insumos!G:H,2,FALSE))","v":""}]
[null,null,null,null,null,{"$f":"IF(E7197=\"\",\"\",VLOOKUP(E7197,Insumos!AD:AE,2,FALSE))","v":""},null,{"$f":"IF(G7197=\"\",\"\",VLOOKUP(G7197,Insumos!G:H,2,FALSE))","v":""}]
[null,null,null,null,null,{"$f":"IF(E7198=\"\",\"\",VLOOKUP(E7198,Insumos!AD:AE,2,FALSE))","v":""},null,{"$f":"IF(G7198=\"\",\"\",VLOOKUP(G7198,Insumos!G:H,2,FALSE))","v":""}]
[null,null,null,null,null,{"$f":"IF(E7199=\"\",\"\",VLOOKUP(E7199,Insumos!AD:AE,2,FALSE))","v":""},null,{"$f":"IF(G7199=\"\",\"\",VLOOKUP(G7199,Insumos!G:H,2,FALSE))","v":""}]
[null,null,null,null,null,{"$f":"IF(E7200=\"\",\"\",VLOOKUP(E7200,Insumos!AD:AE,2,FALSE))","v":""},null,{"$f":"IF(G7200=\"\",\"\",VLOOKUP(G7200,Insumos!G:H,2,FALSE))","v":""}]
[null,null,null,null,null,{"$f":"IF(E7201=\"\",\"\",VLOOKUP(E7201,Insumos!AD:AE,2,FALSE))","v":""},null,{"$f":"IF(G7201=\"\",\"\",VLOOKUP(G7201,Insumos!G:H,2,FALSE))","v":""}]
[null,null,null,null,null,{"$f":"IF(E7202=\"\",\"\",VLOOKUP(E7202,Insumos!AD:AE,2,FALSE))","v":""},null,{"$f":"IF(G7202=\"\",\"\",VLOOKUP(G7202,Insumos!G:H,2,FALSE))","v":""}]
[null,null,null,null,null,{"$f":"IF(E7203=\"\",\"\",VLOOKUP(E7203,Insumos!AD:AE,2,FALSE))","v":""},null,{"$f":"IF(G7203=\"\",\"\",VLOOKUP(G7203,Insumos!G:H,2,FALSE))","v":""}]
[null,null,null,null,null,{"$f":"IF(E7204=\"\",\"\",VLOOKUP(E7204,Insumos!AD:AE,2,FALSE))","v":""},null,{"$f":"IF(G7204=\"\",\"\",VLOOKUP(G7204,Insumos!G:H,2,FALSE))","v":""}]
[null,null,null,null,null,{"$f":"IF(E7205=\"\",\"\",VLOOKUP(E7205,Insumos!AD:AE,2,FALSE))","v":""},null,{"$f":"IF(G7205=\"\",\"\",VLOOKUP(G7205,Insumos!G:H,2,FALSE))","v":""}]
[null,null,null,null,null,{"$f":"IF(E7206=\"\",\"\",VLOOKUP(E7206,Insumos!AD:AE,2,FALSE))","v":""},null,{"$f":"IF(G7206=\"\",\"\",VLOOKUP(G7206,Insumos!G:H,2,FALSE))","v":""}]
[null,null,null,null,null,{"$f":"IF(E7207=\"\",\"\",VLOOKUP(E7207,Insumos!AD:AE,2,FALSE))","v":""},null,{"$f":"IF(G7207=\"\",\"\",VLOOKUP(G7207,Insumos!G:H,2,FALSE))","v":""}]
[null,null,null,null,null,{"$f":"IF(E7208=\"\",\"\",VLOOKUP(E7208,Insumos!AD:AE,2,FALSE))","v":""},null,{"$f":"IF(G7208=\"\",\"\",VLOOKUP(G7208,Insumos!G:H,2,FALSE))","v":""}]
[null,null,null,null,null,{"$f":"IF(E7209=\"\",\"\",VLOOKUP(E7209,Insumos!AD:AE,2,FALSE))","v":""},null,{"$f":"IF(G7209=\"\",\"\",VLOOKUP(G7209,Insumos!G:H,2,FALSE))","v":""}]
[null,null,null,null,null,{"$f":"IF(E7210=\"\",\"\",VLOOKUP(E7210,Insumos!AD:AE,2,FALSE))","v":""},null,{"$f":"IF(G7210=\"\",\"\",VLOOKUP(G7210,Insumos!G:H,2,FALSE))","v":""}]
[null,null,null,null,null,{"$f":"IF(E7211=\"\",\"\",VLOOKUP(E7211,Insumos!AD:AE,2,FALSE))","v":""},null,{"$f":"IF(G7211=\"\",\"\",VLOOKUP(G7211,Insumos!G:H,2,FALSE))","v":""}]
[null,null,null,null,null,{"$f":"IF(E7212=\"\",\"\",VLOOKUP(E7212,Insumos!AD:AE,2,FALSE))","v":""},null,{"$f":"IF(G7212=\"\",\"\",VLOOKUP(G7212,Insumos!G:H,2,FALSE))","v":""}]
[null,null,null,null,null,{"$f":"IF(E7213=\"\",\"\",VLOOKUP(E7213,Insumos!AD:AE,2,FALSE))","v":""},null,{"$f":"IF(G7213=\"\",\"\",VLOOKUP(G7213,Insumos!G:H,2,FALSE))","v":""}]
[null,null,null,null,null,{"$f":"IF(E7214=\"\",\"\",VLOOKUP(E7214,Insumos!AD:AE,2,FALSE))","v":""},null,{"$f":"IF(G7214=\"\",\"\",VLOOKUP(G7214,Insumos!G:H,2,FALSE))","v":""}]
[null,null,null,null,null,{"$f":"IF(E7215=\"\",\"\",VLOOKUP(E7215,Insumos!AD:AE,2,FALSE))","v":""},null,{"$f":"IF(G7215=\"\",\"\",VLOOKUP(G7215,Insumos!G:H,2,FALSE))","v":""}]
[null,null,null,null,null,{"$f":"IF(E7216=\"\",\"\",VLOOKUP(E7216,Insumos!AD:AE,2,FALSE))","v":""},null,{"$f":"IF(G7216=\"\",\"\",VLOOKUP(G7216,Insumos!G:H,2,FALSE))","v":""}]
[null,null,null,null,null,{"$f":"IF(E7217=\"\",\"\",VLOOKUP(E7217,Insumos!AD:AE,2,FALSE))","v":""},null,{"$f":"IF(G7217=\"\",\"\",VLOOKUP(G7217,Insumos!G:H,2,FALSE))","v":""}]
[null,null,null,null,null,{"$f":"IF(E7218=\"\",\"\",VLOOKUP(E7218,Insumos!AD:AE,2,FALSE))","v":""},null,{"$f":"IF(G7218=\"\",\"\",VLOOKUP(G7218,Insumos!G:H,2,FALSE))","v":""}]
[null,null,null,null,null,{"$f":"IF(E7219=\"\",\"\",VLOOKUP(E7219,Insumos!AD:AE,2,FALSE))","v":""},null,{"$f":"IF(G7219=\"\",\"\",VLOOKUP(G7219,Insumos!G:H,2,FALSE))","v":""}]
[null,null,null,null,null,{"$f":"IF(E7220=\"\",\"\",VLOOKUP(E7220,Insumos!AD:AE,2,FALSE))","v":""},null,{"$f":"IF(G7220=\"\",\"\",VLOOKUP(G7220,Insumos!G:H,2,FALSE))","v":""}]
[null,null,null,null,null,{"$f":"IF(E7221=\"\",\"\",VLOOKUP(E7221,Insumos!AD:AE,2,FALSE))","v":""},null,{"$f":"IF(G7221=\"\",\"\",VLOOKUP(G7221,Insumos!G:H,2,FALSE))","v":""}]
[null,null,null,null,null,{"$f":"IF(E7222=\"\",\"\",VLOOKUP(E7222,Insumos!AD:AE,2,FALSE))","v":""},null,{"$f":"IF(G7222=\"\",\"\",VLOOKUP(G7222,Insumos!G:H,2,FALSE))","v":""}]
[null,null,null,null,null,{"$f":"IF(E7223=\"\",\"\",VLOOKUP(E7223,Insumos!AD:AE,2,FALSE))","v":""},null,{"$f":"IF(G7223=\"\",\"\",VLOOKUP(G7223,Insumos!G:H,2,FALSE))","v":""}]
[null,null,null,null,null,{"$f":"IF(E7224=\"\",\"\",VLOOKUP(E7224,Insumos!AD:AE,2,FALSE))","v":""},null,{"$f":"IF(G7224=\"\",\"\",VLOOKUP(G7224,Insumos!G:H,2,FALSE))","v":""}]
[null,null,null,null,null,{"$f":"IF(E7225=\"\",\"\",VLOOKUP(E7225,Insumos!AD:AE,2,FALSE))","v":""},null,{"$f":"IF(G7225=\"\",\"\",VLOOKUP(G7225,Insumos!G:H,2,FALSE))","v":""}]
[null,null,null,null,null,{"$f":"IF(E7226=\"\",\"\",VLOOKUP(E7226,Insumos!AD:AE,2,FALSE))","v":""},null,{"$f":"IF(G7226=\"\",\"\",VLOOKUP(G7226,Insumos!G:H,2,FALSE))","v":""}]
[null,null,null,null,null,{"$f":"IF(E7227=\"\",\"\",VLOOKUP(E7227,Insumos!AD:AE,2,FALSE))","v":""},null,{"$f":"IF(G7227=\"\",\"\",VLOOKUP(G7227,Insumos!G:H,2,FALSE))","v":""}]
[null,null,null,null,null,{"$f":"IF(E7228=\"\",\"\",VLOOKUP(E7228,Insumos!AD:AE,2,FALSE))","v":""},null,{"$f":"IF(G7228=\"\",\"\",VLOOKUP(G7228,Insumos!G:H,2,FALSE))","v":""}]
[null,null,null,null,null,{"$f":"IF(E7229=\"\",\"\",VLOOKUP(E7229,Insumos!AD:AE,2,FALSE))","v":""},null,{"$f":"IF(G7229=\"\",\"\",VLOOKUP(G7229,Insumos!G:H,2,FALSE))","v":""}]
[null,null,null,null,null,{"$f":"IF(E7230=\"\",\"\",VLOOKUP(E7230,Insumos!AD:AE,2,FALSE))","v":""},null,{"$f":"IF(G7230=\"\",\"\",VLOOKUP(G7230,Insumos!G:H,2,FALSE))","v":""}]
[null,null,null,null,null,{"$f":"IF(E7231=\"\",\"\",VLOOKUP(E7231,Insumos!AD:AE,2,FALSE))","v":""},null,{"$f":"IF(G7231=\"\",\"\",VLOOKUP(G7231,Insumos!G:H,2,FALSE))","v":""}]
[null,null,null,null,null,{"$f":"IF(E7232=\"\",\"\",VLOOKUP(E7232,Insumos!AD:AE,2,FALSE))","v":""},null,{"$f":"IF(G7232=\"\",\"\",VLOOKUP(G7232,Insumos!G:H,2,FALSE))","v":""}]
[null,null,null,null,null,{"$f":"IF(E7233=\"\",\"\",VLOOKUP(E7233,Insumos!AD:AE,2,FALSE))","v":""},null,{"$f":"IF(G7233=\"\",\"\",VLOOKUP(G7233,Insumos!G:H,2,FALSE))","v":""}]
[null,null,null,null,null,{"$f":"IF(E7234=\"\",\"\",VLOOKUP(E7234,Insumos!AD:AE,2,FALSE))","v":""},null,{"$f":"IF(G7234=\"\",\"\",VLOOKUP(G7234,Insumos!G:H,2,FALSE))","v":""}]
[null,null,null,null,null,{"$f":"IF(E7235=\"\",\"\",VLOOKUP(E7235,Insumos!AD:AE,2,FALSE))","v":""},null,{"$f":"IF(G7235=\"\",\"\",VLOOKUP(G7235,Insumos!G:H,2,FALSE))","v":""}]
[null,null,null,null,null,{"$f":"IF(E7236=\"\",\"\",VLOOKUP(E7236,Insumos!AD:AE,2,FALSE))","v":""},null,{"$f":"IF(G7236=\"\",\"\",VLOOKUP(G7236,Insumos!G:H,2,FALSE))","v":""}]
[null,null,null,null,null,{"$f":"IF(E7237=\"\",\"\",VLOOKUP(E7237,Insumos!AD:AE,2,FALSE))","v":""},null,{"$f":"IF(G7237=\"\",\"\",VLOOKUP(G7237,Insumos!G:H,2,FALSE))","v":""}]
[null,null,null,null,null,{"$f":"IF(E7238=\"\",\"\",VLOOKUP(E7238,Insumos!AD:AE,2,FALSE))","v":""},null,{"$f":"IF(G7238=\"\",\"\",VLOOKUP(G7238,Insumos!G:H,2,FALSE))","v":""}]
[null,null,null,null,null,{"$f":"IF(E7239=\"\",\"\",VLOOKUP(E7239,Insumos!AD:AE,2,FALSE))","v":""},null,{"$f":"IF(G7239=\"\",\"\",VLOOKUP(G7239,Insumos!G:H,2,FALSE))","v":""}]
[null,null,null,null,null,{"$f":"IF(E7240=\"\",\"\",VLOOKUP(E7240,Insumos!AD:AE,2,FALSE))","v":""},null,{"$f":"IF(G7240=\"\",\"\",VLOOKUP(G7240,Insumos!G:H,2,FALSE))","v":""}]
[null,null,null,null,null,{"$f":"IF(E7241=\"\",\"\",VLOOKUP(E7241,Insumos!AD:AE,2,FALSE))","v":""},null,{"$f":"IF(G7241=\"\",\"\",VLOOKUP(G7241,Insumos!G:H,2,FALSE))","v":""}]
[null,null,null,null,null,{"$f":"IF(E7242=\"\",\"\",VLOOKUP(E7242,Insumos!AD:AE,2,FALSE))","v":""},null,{"$f":"IF(G7242=\"\",\"\",VLOOKUP(G7242,Insumos!G:H,2,FALSE))","v":""}]
[null,null,null,null,null,{"$f":"IF(E7243=\"\",\"\",VLOOKUP(E7243,Insumos!AD:AE,2,FALSE))","v":""},null,{"$f":"IF(G7243=\"\",\"\",VLOOKUP(G7243,Insumos!G:H,2,FALSE))","v":""}]
[null,null,null,null,null,{"$f":"IF(E7244=\"\",\"\",VLOOKUP(E7244,Insumos!AD:AE,2,FALSE))","v":""},null,{"$f":"IF(G7244=\"\",\"\",VLOOKUP(G7244,Insumos!G:H,2,FALSE))","v":""}]
[null,null,null,null,null,{"$f":"IF(E7245=\"\",\"\",VLOOKUP(E7245,Insumos!AD:AE,2,FALSE))","v":""},null,{"$f":"IF(G7245=\"\",\"\",VLOOKUP(G7245,Insumos!G:H,2,FALSE))","v":""}]
[null,null,null,null,null,{"$f":"IF(E7246=\"\",\"\",VLOOKUP(E7246,Insumos!AD:AE,2,FALSE))","v":""},null,{"$f":"IF(G7246=\"\",\"\",VLOOKUP(G7246,Insumos!G:H,2,FALSE))","v":""}]
[null,null,null,null,null,{"$f":"IF(E7247=\"\",\"\",VLOOKUP(E7247,Insumos!AD:AE,2,FALSE))","v":""},null,{"$f":"IF(G7247=\"\",\"\",VLOOKUP(G7247,Insumos!G:H,2,FALSE))","v":""}]
[null,null,null,null,null,{"$f":"IF(E7248=\"\",\"\",VLOOKUP(E7248,Insumos!AD:AE,2,FALSE))","v":""},null,{"$f":"IF(G7248=\"\",\"\",VLOOKUP(G7248,Insumos!G:H,2,FALSE))","v":""}]
[null,null,null,null,null,{"$f":"IF(E7249=\"\",\"\",VLOOKUP(E7249,Insumos!AD:AE,2,FALSE))","v":""},null,{"$f":"IF(G7249=\"\",\"\",VLOOKUP(G7249,Insumos!G:H,2,FALSE))","v":""}]
[null,null,null,null,null,{"$f":"IF(E7250=\"\",\"\",VLOOKUP(E7250,Insumos!AD:AE,2,FALSE))","v":""},null,{"$f":"IF(G7250=\"\",\"\",VLOOKUP(G7250,Insumos!G:H,2,FALSE))","v":""}]
[null,null,null,null,null,{"$f":"IF(E7251=\"\",\"\",VLOOKUP(E7251,Insumos!AD:AE,2,FALSE))","v":""},null,{"$f":"IF(G7251=\"\",\"\",VLOOKUP(G7251,Insumos!G:H,2,FALSE))","v":""}]
[null,null,null,null,null,{"$f":"IF(E7252=\"\",\"\",VLOOKUP(E7252,Insumos!AD:AE,2,FALSE))","v":""},null,{"$f":"IF(G7252=\"\",\"\",VLOOKUP(G7252,Insumos!G:H,2,FALSE))","v":""}]
[null,null,null,null,null,{"$f":"IF(E7253=\"\",\"\",VLOOKUP(E7253,Insumos!AD:AE,2,FALSE))","v":""},null,{"$f":"IF(G7253=\"\",\"\",VLOOKUP(G7253,Insumos!G:H,2,FALSE))","v":""}]
[null,null,null,null,null,{"$f":"IF(E7254=\"\",\"\",VLOOKUP(E7254,Insumos!AD:AE,2,FALSE))","v":""},null,{"$f":"IF(G7254=\"\",\"\",VLOOKUP(G7254,Insumos!G:H,2,FALSE))","v":""}]
[null,null,null,null,null,{"$f":"IF(E7255=\"\",\"\",VLOOKUP(E7255,Insumos!AD:AE,2,FALSE))","v":""},null,{"$f":"IF(G7255=\"\",\"\",VLOOKUP(G7255,Insumos!G:H,2,FALSE))","v":""}]
[null,null,null,null,null,{"$f":"IF(E7256=\"\",\"\",VLOOKUP(E7256,Insumos!AD:AE,2,FALSE))","v":""},null,{"$f":"IF(G7256=\"\",\"\",VLOOKUP(G7256,Insumos!G:H,2,FALSE))","v":""}]
[null,null,null,null,null,{"$f":"IF(E7257=\"\",\"\",VLOOKUP(E7257,Insumos!AD:AE,2,FALSE))","v":""},null,{"$f":"IF(G7257=\"\",\"\",VLOOKUP(G7257,Insumos!G:H,2,FALSE))","v":""}]
[null,null,null,null,null,{"$f":"IF(E7258=\"\",\"\",VLOOKUP(E7258,Insumos!AD:AE,2,FALSE))","v":""},null,{"$f":"IF(G7258=\"\",\"\",VLOOKUP(G7258,Insumos!G:H,2,FALSE))","v":""}]
[null,null,null,null,null,{"$f":"IF(E7259=\"\",\"\",VLOOKUP(E7259,Insumos!AD:AE,2,FALSE))","v":""},null,{"$f":"IF(G7259=\"\",\"\",VLOOKUP(G7259,Insumos!G:H,2,FALSE))","v":""}]
[null,null,null,null,null,{"$f":"IF(E7260=\"\",\"\",VLOOKUP(E7260,Insumos!AD:AE,2,FALSE))","v":""},null,{"$f":"IF(G7260=\"\",\"\",VLOOKUP(G7260,Insumos!G:H,2,FALSE))","v":""}]
[null,null,null,null,null,{"$f":"IF(E7261=\"\",\"\",VLOOKUP(E7261,Insumos!AD:AE,2,FALSE))","v":""},null,{"$f":"IF(G7261=\"\",\"\",VLOOKUP(G7261,Insumos!G:H,2,FALSE))","v":""}]
[null,null,null,null,null,{"$f":"IF(E7262=\"\",\"\",VLOOKUP(E7262,Insumos!AD:AE,2,FALSE))","v":""},null,{"$f":"IF(G7262=\"\",\"\",VLOOKUP(G7262,Insumos!G:H,2,FALSE))","v":""}]
[null,null,null,null,null,{"$f":"IF(E7263=\"\",\"\",VLOOKUP(E7263,Insumos!AD:AE,2,FALSE))","v":""},null,{"$f":"IF(G7263=\"\",\"\",VLOOKUP(G7263,Insumos!G:H,2,FALSE))","v":""}]
[null,null,null,null,null,{"$f":"IF(E7264=\"\",\"\",VLOOKUP(E7264,Insumos!AD:AE,2,FALSE))","v":""},null,{"$f":"IF(G7264=\"\",\"\",VLOOKUP(G7264,Insumos!G:H,2,FALSE))","v":""}]
[null,null,null,null,null,{"$f":"IF(E7265=\"\",\"\",VLOOKUP(E7265,Insumos!AD:AE,2,FALSE))","v":""},null,{"$f":"IF(G7265=\"\",\"\",VLOOKUP(G7265,Insumos!G:H,2,FALSE))","v":""}]
[null,null,null,null,null,{"$f":"IF(E7266=\"\",\"\",VLOOKUP(E7266,Insumos!AD:AE,2,FALSE))","v":""},null,{"$f":"IF(G7266=\"\",\"\",VLOOKUP(G7266,Insumos!G:H,2,FALSE))","v":""}]
[null,null,null,null,null,{"$f":"IF(E7267=\"\",\"\",VLOOKUP(E7267,Insumos!AD:AE,2,FALSE))","v":""},null,{"$f":"IF(G7267=\"\",\"\",VLOOKUP(G7267,Insumos!G:H,2,FALSE))","v":""}]
[null,null,null,null,null,{"$f":"IF(E7268=\"\",\"\",VLOOKUP(E7268,Insumos!AD:AE,2,FALSE))","v":""},null,{"$f":"IF(G7268=\"\",\"\",VLOOKUP(G7268,Insumos!G:H,2,FALSE))","v":""}]
[null,null,null,null,null,{"$f":"IF(E7269=\"\",\"\",VLOOKUP(E7269,Insumos!AD:AE,2,FALSE))","v":""},null,{"$f":"IF(G7269=\"\",\"\",VLOOKUP(G7269,Insumos!G:H,2,FALSE))","v":""}]
[null,null,null,null,null,{"$f":"IF(E7270=\"\",\"\",VLOOKUP(E7270,Insumos!AD:AE,2,FALSE))","v":""},null,{"$f":"IF(G7270=\"\",\"\",VLOOKUP(G7270,Insumos!G:H,2,FALSE))","v":""}]
[null,null,null,null,null,{"$f":"IF(E7271=\"\",\"\",VLOOKUP(E7271,Insumos!AD:AE,2,FALSE))","v":""},null,{"$f":"IF(G7271=\"\",\"\",VLOOKUP(G7271,Insumos!G:H,2,FALSE))","v":""}]
[null,null,null,null,null,{"$f":"IF(E7272=\"\",\"\",VLOOKUP(E7272,Insumos!AD:AE,2,FALSE))","v":""},null,{"$f":"IF(G7272=\"\",\"\",VLOOKUP(G7272,Insumos!G:H,2,FALSE))","v":""}]
[null,null,null,null,null,{"$f":"IF(E7273=\"\",\"\",VLOOKUP(E7273,Insumos!AD:AE,2,FALSE))","v":""},null,{"$f":"IF(G7273=\"\",\"\",VLOOKUP(G7273,Insumos!G:H,2,FALSE))","v":""}]
[null,null,null,null,null,{"$f":"IF(E7274=\"\",\"\",VLOOKUP(E7274,Insumos!AD:AE,2,FALSE))","v":""},null,{"$f":"IF(G7274=\"\",\"\",VLOOKUP(G7274,Insumos!G:H,2,FALSE))","v":""}]
[null,null,null,null,null,{"$f":"IF(E7275=\"\",\"\",VLOOKUP(E7275,Insumos!AD:AE,2,FALSE))","v":""},null,{"$f":"IF(G7275=\"\",\"\",VLOOKUP(G7275,Insumos!G:H,2,FALSE))","v":""}]
[null,null,null,null,null,{"$f":"IF(E7276=\"\",\"\",VLOOKUP(E7276,Insumos!AD:AE,2,FALSE))","v":""},null,{"$f":"IF(G7276=\"\",\"\",VLOOKUP(G7276,Insumos!G:H,2,FALSE))","v":""}]
[null,null,null,null,null,{"$f":"IF(E7277=\"\",\"\",VLOOKUP(E7277,Insumos!AD:AE,2,FALSE))","v":""},null,{"$f":"IF(G7277=\"\",\"\",VLOOKUP(G7277,Insumos!G:H,2,FALSE))","v":""}]
[null,null,null,null,null,{"$f":"IF(E7278=\"\",\"\",VLOOKUP(E7278,Insumos!AD:AE,2,FALSE))","v":""},null,{"$f":"IF(G7278=\"\",\"\",VLOOKUP(G7278,Insumos!G:H,2,FALSE))","v":""}]
[null,null,null,null,null,{"$f":"IF(E7279=\"\",\"\",VLOOKUP(E7279,Insumos!AD:AE,2,FALSE))","v":""},null,{"$f":"IF(G7279=\"\",\"\",VLOOKUP(G7279,Insumos!G:H,2,FALSE))","v":""}]
[null,null,null,null,null,{"$f":"IF(E7280=\"\",\"\",VLOOKUP(E7280,Insumos!AD:AE,2,FALSE))","v":""},null,{"$f":"IF(G7280=\"\",\"\",VLOOKUP(G7280,Insumos!G:H,2,FALSE))","v":""}]
[null,null,null,null,null,{"$f":"IF(E7281=\"\",\"\",VLOOKUP(E7281,Insumos!AD:AE,2,FALSE))","v":""},null,{"$f":"IF(G7281=\"\",\"\",VLOOKUP(G7281,Insumos!G:H,2,FALSE))","v":""}]
[null,null,null,null,null,{"$f":"IF(E7282=\"\",\"\",VLOOKUP(E7282,Insumos!AD:AE,2,FALSE))","v":""},null,{"$f":"IF(G7282=\"\",\"\",VLOOKUP(G7282,Insumos!G:H,2,FALSE))","v":""}]
[null,null,null,null,null,{"$f":"IF(E7283=\"\",\"\",VLOOKUP(E7283,Insumos!AD:AE,2,FALSE))","v":""},null,{"$f":"IF(G7283=\"\",\"\",VLOOKUP(G7283,Insumos!G:H,2,FALSE))","v":""}]
[null,null,null,null,null,{"$f":"IF(E7284=\"\",\"\",VLOOKUP(E7284,Insumos!AD:AE,2,FALSE))","v":""},null,{"$f":"IF(G7284=\"\",\"\",VLOOKUP(G7284,Insumos!G:H,2,FALSE))","v":""}]
[null,null,null,null,null,{"$f":"IF(E7285=\"\",\"\",VLOOKUP(E7285,Insumos!AD:AE,2,FALSE))","v":""},null,{"$f":"IF(G7285=\"\",\"\",VLOOKUP(G7285,Insumos!G:H,2,FALSE))","v":""}]
[null,null,null,null,null,{"$f":"IF(E7286=\"\",\"\",VLOOKUP(E7286,Insumos!AD:AE,2,FALSE))","v":""},null,{"$f":"IF(G7286=\"\",\"\",VLOOKUP(G7286,Insumos!G:H,2,FALSE))","v":""}]
[null,null,null,null,null,{"$f":"IF(E7287=\"\",\"\",VLOOKUP(E7287,Insumos!AD:AE,2,FALSE))","v":""},null,{"$f":"IF(G7287=\"\",\"\",VLOOKUP(G7287,Insumos!G:H,2,FALSE))","v":""}]
[null,null,null,null,null,{"$f":"IF(E7288=\"\",\"\",VLOOKUP(E7288,Insumos!AD:AE,2,FALSE))","v":""},null,{"$f":"IF(G7288=\"\",\"\",VLOOKUP(G7288,Insumos!G:H,2,FALSE))","v":""}]
[null,null,null,null,null,{"$f":"IF(E7289=\"\",\"\",VLOOKUP(E7289,Insumos!AD:AE,2,FALSE))","v":""},null,{"$f":"IF(G7289=\"\",\"\",VLOOKUP(G7289,Insumos!G:H,2,FALSE))","v":""}]
[null,null,null,null,null,{"$f":"IF(E7290=\"\",\"\",VLOOKUP(E7290,Insumos!AD:AE,2,FALSE))","v":""},null,{"$f":"IF(G7290=\"\",\"\",VLOOKUP(G7290,Insumos!G:H,2,FALSE))","v":""}]
[null,null,null,null,null,{"$f":"IF(E7291=\"\",\"\",VLOOKUP(E7291,Insumos!AD:AE,2,FALSE))","v":""},null,{"$f":"IF(G7291=\"\",\"\",VLOOKUP(G7291,Insumos!G:H,2,FALSE))","v":""}]
[null,null,null,null,null,{"$f":"IF(E7292=\"\",\"\",VLOOKUP(E7292,Insumos!AD:AE,2,FALSE))","v":""},null,{"$f":"IF(G7292=\"\",\"\",VLOOKUP(G7292,Insumos!G:H,2,FALSE))","v":""}]
[null,null,null,null,null,{"$f":"IF(E7293=\"\",\"\",VLOOKUP(E7293,Insumos!AD:AE,2,FALSE))","v":""},null,{"$f":"IF(G7293=\"\",\"\",VLOOKUP(G7293,Insumos!G:H,2,FALSE))","v":""}]
[null,null,null,null,null,{"$f":"IF(E7294=\"\",\"\",VLOOKUP(E7294,Insumos!AD:AE,2,FALSE))","v":""},null,{"$f":"IF(G7294=\"\",\"\",VLOOKUP(G7294,Insumos!G:H,2,FALSE))","v":""}]
[null,null,null,null,null,{"$f":"IF(E7295=\"\",\"\",VLOOKUP(E7295,Insumos!AD:AE,2,FALSE))","v":""},null,{"$f":"IF(G7295=\"\",\"\",VLOOKUP(G7295,Insumos!G:H,2,FALSE))","v":""}]
[null,null,null,null,null,{"$f":"IF(E7296=\"\",\"\",VLOOKUP(E7296,Insumos!AD:AE,2,FALSE))","v":""},null,{"$f":"IF(G7296=\"\",\"\",VLOOKUP(G7296,Insumos!G:H,2,FALSE))","v":""}]
[null,null,null,null,null,{"$f":"IF(E7297=\"\",\"\",VLOOKUP(E7297,Insumos!AD:AE,2,FALSE))","v":""},null,{"$f":"IF(G7297=\"\",\"\",VLOOKUP(G7297,Insumos!G:H,2,FALSE))","v":""}]
[null,null,null,null,null,{"$f":"IF(E7298=\"\",\"\",VLOOKUP(E7298,Insumos!AD:AE,2,FALSE))","v":""},null,{"$f":"IF(G7298=\"\",\"\",VLOOKUP(G7298,Insumos!G:H,2,FALSE))","v":""}]
[null,null,null,null,null,{"$f":"IF(E7299=\"\",\"\",VLOOKUP(E7299,Insumos!AD:AE,2,FALSE))","v":""},null,{"$f":"IF(G7299=\"\",\"\",VLOOKUP(G7299,Insumos!G:H,2,FALSE))","v":""}]
[null,null,null,null,null,{"$f":"IF(E7300=\"\",\"\",VLOOKUP(E7300,Insumos!AD:AE,2,FALSE))","v":""},null,{"$f":"IF(G7300=\"\",\"\",VLOOKUP(G7300,Insumos!G:H,2,FALSE))","v":""}]
[null,null,null,null,null,{"$f":"IF(E7301=\"\",\"\",VLOOKUP(E7301,Insumos!AD:AE,2,FALSE))","v":""},null,{"$f":"IF(G7301=\"\",\"\",VLOOKUP(G7301,Insumos!G:H,2,FALSE))","v":""}]
[null,null,null,null,null,{"$f":"IF(E7302=\"\",\"\",VLOOKUP(E7302,Insumos!AD:AE,2,FALSE))","v":""},null,{"$f":"IF(G7302=\"\",\"\",VLOOKUP(G7302,Insumos!G:H,2,FALSE))","v":""}]
[null,null,null,null,null,{"$f":"IF(E7303=\"\",\"\",VLOOKUP(E7303,Insumos!AD:AE,2,FALSE))","v":""},null,{"$f":"IF(G7303=\"\",\"\",VLOOKUP(G7303,Insumos!G:H,2,FALSE))","v":""}]
[null,null,null,null,null,{"$f":"IF(E7304=\"\",\"\",VLOOKUP(E7304,Insumos!AD:AE,2,FALSE))","v":""},null,{"$f":"IF(G7304=\"\",\"\",VLOOKUP(G7304,Insumos!G:H,2,FALSE))","v":""}]
[null,null,null,null,null,{"$f":"IF(E7305=\"\",\"\",VLOOKUP(E7305,Insumos!AD:AE,2,FALSE))","v":""},null,{"$f":"IF(G7305=\"\",\"\",VLOOKUP(G7305,Insumos!G:H,2,FALSE))","v":""}]
[null,null,null,null,null,{"$f":"IF(E7306=\"\",\"\",VLOOKUP(E7306,Insumos!AD:AE,2,FALSE))","v":""},null,{"$f":"IF(G7306=\"\",\"\",VLOOKUP(G7306,Insumos!G:H,2,FALSE))","v":""}]
[null,null,null,null,null,{"$f":"IF(E7307=\"\",\"\",VLOOKUP(E7307,Insumos!AD:AE,2,FALSE))","v":""},null,{"$f":"IF(G7307=\"\",\"\",VLOOKUP(G7307,Insumos!G:H,2,FALSE))","v":""}]
[null,null,null,null,null,{"$f":"IF(E7308=\"\",\"\",VLOOKUP(E7308,Insumos!AD:AE,2,FALSE))","v":""},null,{"$f":"IF(G7308=\"\",\"\",VLOOKUP(G7308,Insumos!G:H,2,FALSE))","v":""}]
[null,null,null,null,null,{"$f":"IF(E7309=\"\",\"\",VLOOKUP(E7309,Insumos!AD:AE,2,FALSE))","v":""},null,{"$f":"IF(G7309=\"\",\"\",VLOOKUP(G7309,Insumos!G:H,2,FALSE))","v":""}]
[null,null,null,null,null,{"$f":"IF(E7310=\"\",\"\",VLOOKUP(E7310,Insumos!AD:AE,2,FALSE))","v":""},null,{"$f":"IF(G7310=\"\",\"\",VLOOKUP(G7310,Insumos!G:H,2,FALSE))","v":""}]
[null,null,null,null,null,{"$f":"IF(E7311=\"\",\"\",VLOOKUP(E7311,Insumos!AD:AE,2,FALSE))","v":""},null,{"$f":"IF(G7311=\"\",\"\",VLOOKUP(G7311,Insumos!G:H,2,FALSE))","v":""}]
[null,null,null,null,null,{"$f":"IF(E7312=\"\",\"\",VLOOKUP(E7312,Insumos!AD:AE,2,FALSE))","v":""},null,{"$f":"IF(G7312=\"\",\"\",VLOOKUP(G7312,Insumos!G:H,2,FALSE))","v":""}]
[null,null,null,null,null,{"$f":"IF(E7313=\"\",\"\",VLOOKUP(E7313,Insumos!AD:AE,2,FALSE))","v":""},null,{"$f":"IF(G7313=\"\",\"\",VLOOKUP(G7313,Insumos!G:H,2,FALSE))","v":""}]
[null,null,null,null,null,{"$f":"IF(E7314=\"\",\"\",VLOOKUP(E7314,Insumos!AD:AE,2,FALSE))","v":""},null,{"$f":"IF(G7314=\"\",\"\",VLOOKUP(G7314,Insumos!G:H,2,FALSE))","v":""}]
[null,null,null,null,null,{"$f":"IF(E7315=\"\",\"\",VLOOKUP(E7315,Insumos!AD:AE,2,FALSE))","v":""},null,{"$f":"IF(G7315=\"\",\"\",VLOOKUP(G7315,Insumos!G:H,2,FALSE))","v":""}]
[null,null,null,null,null,{"$f":"IF(E7316=\"\",\"\",VLOOKUP(E7316,Insumos!AD:AE,2,FALSE))","v":""},null,{"$f":"IF(G7316=\"\",\"\",VLOOKUP(G7316,Insumos!G:H,2,FALSE))","v":""}]
[null,null,null,null,null,{"$f":"IF(E7317=\"\",\"\",VLOOKUP(E7317,Insumos!AD:AE,2,FALSE))","v":""},null,{"$f":"IF(G7317=\"\",\"\",VLOOKUP(G7317,Insumos!G:H,2,FALSE))","v":""}]
[null,null,null,null,null,{"$f":"IF(E7318=\"\",\"\",VLOOKUP(E7318,Insumos!AD:AE,2,FALSE))","v":""},null,{"$f":"IF(G7318=\"\",\"\",VLOOKUP(G7318,Insumos!G:H,2,FALSE))","v":""}]
[null,null,null,null,null,{"$f":"IF(E7319=\"\",\"\",VLOOKUP(E7319,Insumos!AD:AE,2,FALSE))","v":""},null,{"$f":"IF(G7319=\"\",\"\",VLOOKUP(G7319,Insumos!G:H,2,FALSE))","v":""}]
[null,null,null,null,null,{"$f":"IF(E7320=\"\",\"\",VLOOKUP(E7320,Insumos!AD:AE,2,FALSE))","v":""},null,{"$f":"IF(G7320=\"\",\"\",VLOOKUP(G7320,Insumos!G:H,2,FALSE))","v":""}]
[null,null,null,null,null,{"$f":"IF(E7321=\"\",\"\",VLOOKUP(E7321,Insumos!AD:AE,2,FALSE))","v":""},null,{"$f":"IF(G7321=\"\",\"\",VLOOKUP(G7321,Insumos!G:H,2,FALSE))","v":""}]
[null,null,null,null,null,{"$f":"IF(E7322=\"\",\"\",VLOOKUP(E7322,Insumos!AD:AE,2,FALSE))","v":""},null,{"$f":"IF(G7322=\"\",\"\",VLOOKUP(G7322,Insumos!G:H,2,FALSE))","v":""}]
[null,null,null,null,null,{"$f":"IF(E7323=\"\",\"\",VLOOKUP(E7323,Insumos!AD:AE,2,FALSE))","v":""},null,{"$f":"IF(G7323=\"\",\"\",VLOOKUP(G7323,Insumos!G:H,2,FALSE))","v":""}]
[null,null,null,null,null,{"$f":"IF(E7324=\"\",\"\",VLOOKUP(E7324,Insumos!AD:AE,2,FALSE))","v":""},null,{"$f":"IF(G7324=\"\",\"\",VLOOKUP(G7324,Insumos!G:H,2,FALSE))","v":""}]
[null,null,null,null,null,{"$f":"IF(E7325=\"\",\"\",VLOOKUP(E7325,Insumos!AD:AE,2,FALSE))","v":""},null,{"$f":"IF(G7325=\"\",\"\",VLOOKUP(G7325,Insumos!G:H,2,FALSE))","v":""}]
[null,null,null,null,null,{"$f":"IF(E7326=\"\",\"\",VLOOKUP(E7326,Insumos!AD:AE,2,FALSE))","v":""},null,{"$f":"IF(G7326=\"\",\"\",VLOOKUP(G7326,Insumos!G:H,2,FALSE))","v":""}]
[null,null,null,null,null,{"$f":"IF(E7327=\"\",\"\",VLOOKUP(E7327,Insumos!AD:AE,2,FALSE))","v":""},null,{"$f":"IF(G7327=\"\",\"\",VLOOKUP(G7327,Insumos!G:H,2,FALSE))","v":""}]
[null,null,null,null,null,{"$f":"IF(E7328=\"\",\"\",VLOOKUP(E7328,Insumos!AD:AE,2,FALSE))","v":""},null,{"$f":"IF(G7328=\"\",\"\",VLOOKUP(G7328,Insumos!G:H,2,FALSE))","v":""}]
[null,null,null,null,null,{"$f":"IF(E7329=\"\",\"\",VLOOKUP(E7329,Insumos!AD:AE,2,FALSE))","v":""},null,{"$f":"IF(G7329=\"\",\"\",VLOOKUP(G7329,Insumos!G:H,2,FALSE))","v":""}]
[null,null,null,null,null,{"$f":"IF(E7330=\"\",\"\",VLOOKUP(E7330,Insumos!AD:AE,2,FALSE))","v":""},null,{"$f":"IF(G7330=\"\",\"\",VLOOKUP(G7330,Insumos!G:H,2,FALSE))","v":""}]
[null,null,null,null,null,{"$f":"IF(E7331=\"\",\"\",VLOOKUP(E7331,Insumos!AD:AE,2,FALSE))","v":""},null,{"$f":"IF(G7331=\"\",\"\",VLOOKUP(G7331,Insumos!G:H,2,FALSE))","v":""}]
[null,null,null,null,null,{"$f":"IF(E7332=\"\",\"\",VLOOKUP(E7332,Insumos!AD:AE,2,FALSE))","v":""},null,{"$f":"IF(G7332=\"\",\"\",VLOOKUP(G7332,Insumos!G:H,2,FALSE))","v":""}]
[null,null,null,null,null,{"$f":"IF(E7333=\"\",\"\",VLOOKUP(E7333,Insumos!AD:AE,2,FALSE))","v":""},null,{"$f":"IF(G7333=\"\",\"\",VLOOKUP(G7333,Insumos!G:H,2,FALSE))","v":""}]
[null,null,null,null,null,{"$f":"IF(E7334=\"\",\"\",VLOOKUP(E7334,Insumos!AD:AE,2,FALSE))","v":""},null,{"$f":"IF(G7334=\"\",\"\",VLOOKUP(G7334,Insumos!G:H,2,FALSE))","v":""}]
[null,null,null,null,null,{"$f":"IF(E7335=\"\",\"\",VLOOKUP(E7335,Insumos!AD:AE,2,FALSE))","v":""},null,{"$f":"IF(G7335=\"\",\"\",VLOOKUP(G7335,Insumos!G:H,2,FALSE))","v":""}]
[null,null,null,null,null,{"$f":"IF(E7336=\"\",\"\",VLOOKUP(E7336,Insumos!AD:AE,2,FALSE))","v":""},null,{"$f":"IF(G7336=\"\",\"\",VLOOKUP(G7336,Insumos!G:H,2,FALSE))","v":""}]
[null,null,null,null,null,{"$f":"IF(E7337=\"\",\"\",VLOOKUP(E7337,Insumos!AD:AE,2,FALSE))","v":""},null,{"$f":"IF(G7337=\"\",\"\",VLOOKUP(G7337,Insumos!G:H,2,FALSE))","v":""}]
[null,null,null,null,null,{"$f":"IF(E7338=\"\",\"\",VLOOKUP(E7338,Insumos!AD:AE,2,FALSE))","v":""},null,{"$f":"IF(G7338=\"\",\"\",VLOOKUP(G7338,Insumos!G:H,2,FALSE))","v":""}]
[null,null,null,null,null,{"$f":"IF(E7339=\"\",\"\",VLOOKUP(E7339,Insumos!AD:AE,2,FALSE))","v":""},null,{"$f":"IF(G7339=\"\",\"\",VLOOKUP(G7339,Insumos!G:H,2,FALSE))","v":""}]
[null,null,null,null,null,{"$f":"IF(E7340=\"\",\"\",VLOOKUP(E7340,Insumos!AD:AE,2,FALSE))","v":""},null,{"$f":"IF(G7340=\"\",\"\",VLOOKUP(G7340,Insumos!G:H,2,FALSE))","v":""}]
[null,null,null,null,null,{"$f":"IF(E7341=\"\",\"\",VLOOKUP(E7341,Insumos!AD:AE,2,FALSE))","v":""},null,{"$f":"IF(G7341=\"\",\"\",VLOOKUP(G7341,Insumos!G:H,2,FALSE))","v":""}]
[null,null,null,null,null,{"$f":"IF(E7342=\"\",\"\",VLOOKUP(E7342,Insumos!AD:AE,2,FALSE))","v":""},null,{"$f":"IF(G7342=\"\",\"\",VLOOKUP(G7342,Insumos!G:H,2,FALSE))","v":""}]
[null,null,null,null,null,{"$f":"IF(E7343=\"\",\"\",VLOOKUP(E7343,Insumos!AD:AE,2,FALSE))","v":""},null,{"$f":"IF(G7343=\"\",\"\",VLOOKUP(G7343,Insumos!G:H,2,FALSE))","v":""}]
[null,null,null,null,null,{"$f":"IF(E7344=\"\",\"\",VLOOKUP(E7344,Insumos!AD:AE,2,FALSE))","v":""},null,{"$f":"IF(G7344=\"\",\"\",VLOOKUP(G7344,Insumos!G:H,2,FALSE))","v":""}]
[null,null,null,null,null,{"$f":"IF(E7345=\"\",\"\",VLOOKUP(E7345,Insumos!AD:AE,2,FALSE))","v":""},null,{"$f":"IF(G7345=\"\",\"\",VLOOKUP(G7345,Insumos!G:H,2,FALSE))","v":""}]
[null,null,null,null,null,{"$f":"IF(E7346=\"\",\"\",VLOOKUP(E7346,Insumos!AD:AE,2,FALSE))","v":""},null,{"$f":"IF(G7346=\"\",\"\",VLOOKUP(G7346,Insumos!G:H,2,FALSE))","v":""}]
[null,null,null,null,null,{"$f":"IF(E7347=\"\",\"\",VLOOKUP(E7347,Insumos!AD:AE,2,FALSE))","v":""},null,{"$f":"IF(G7347=\"\",\"\",VLOOKUP(G7347,Insumos!G:H,2,FALSE))","v":""}]
[null,null,null,null,null,{"$f":"IF(E7348=\"\",\"\",VLOOKUP(E7348,Insumos!AD:AE,2,FALSE))","v":""},null,{"$f":"IF(G7348=\"\",\"\",VLOOKUP(G7348,Insumos!G:H,2,FALSE))","v":""}]
[null,null,null,null,null,{"$f":"IF(E7349=\"\",\"\",VLOOKUP(E7349,Insumos!AD:AE,2,FALSE))","v":""},null,{"$f":"IF(G7349=\"\",\"\",VLOOKUP(G7349,Insumos!G:H,2,FALSE))","v":""}]
[null,null,null,null,null,{"$f":"IF(E7350=\"\",\"\",VLOOKUP(E7350,Insumos!AD:AE,2,FALSE))","v":""},null,{"$f":"IF(G7350=\"\",\"\",VLOOKUP(G7350,Insumos!G:H,2,FALSE))","v":""}]
[null,null,null,null,null,{"$f":"IF(E7351=\"\",\"\",VLOOKUP(E7351,Insumos!AD:AE,2,FALSE))","v":""},null,{"$f":"IF(G7351=\"\",\"\",VLOOKUP(G7351,Insumos!G:H,2,FALSE))","v":""}]
[null,null,null,null,null,{"$f":"IF(E7352=\"\",\"\",VLOOKUP(E7352,Insumos!AD:AE,2,FALSE))","v":""},null,{"$f":"IF(G7352=\"\",\"\",VLOOKUP(G7352,Insumos!G:H,2,FALSE))","v":""}]
[null,null,null,null,null,{"$f":"IF(E7353=\"\",\"\",VLOOKUP(E7353,Insumos!AD:AE,2,FALSE))","v":""},null,{"$f":"IF(G7353=\"\",\"\",VLOOKUP(G7353,Insumos!G:H,2,FALSE))","v":""}]
[null,null,null,null,null,{"$f":"IF(E7354=\"\",\"\",VLOOKUP(E7354,Insumos!AD:AE,2,FALSE))","v":""},null,{"$f":"IF(G7354=\"\",\"\",VLOOKUP(G7354,Insumos!G:H,2,FALSE))","v":""}]
[null,null,null,null,null,{"$f":"IF(E7355=\"\",\"\",VLOOKUP(E7355,Insumos!AD:AE,2,FALSE))","v":""},null,{"$f":"IF(G7355=\"\",\"\",VLOOKUP(G7355,Insumos!G:H,2,FALSE))","v":""}]
[null,null,null,null,null,{"$f":"IF(E7356=\"\",\"\",VLOOKUP(E7356,Insumos!AD:AE,2,FALSE))","v":""},null,{"$f":"IF(G7356=\"\",\"\",VLOOKUP(G7356,Insumos!G:H,2,FALSE))","v":""}]
[null,null,null,null,null,{"$f":"IF(E7357=\"\",\"\",VLOOKUP(E7357,Insumos!AD:AE,2,FALSE))","v":""},null,{"$f":"IF(G7357=\"\",\"\",VLOOKUP(G7357,Insumos!G:H,2,FALSE))","v":""}]
[null,null,null,null,null,{"$f":"IF(E7358=\"\",\"\",VLOOKUP(E7358,Insumos!AD:AE,2,FALSE))","v":""},null,{"$f":"IF(G7358=\"\",\"\",VLOOKUP(G7358,Insumos!G:H,2,FALSE))","v":""}]
[null,null,null,null,null,{"$f":"IF(E7359=\"\",\"\",VLOOKUP(E7359,Insumos!AD:AE,2,FALSE))","v":""},null,{"$f":"IF(G7359=\"\",\"\",VLOOKUP(G7359,Insumos!G:H,2,FALSE))","v":""}]
[null,null,null,null,null,{"$f":"IF(E7360=\"\",\"\",VLOOKUP(E7360,Insumos!AD:AE,2,FALSE))","v":""},null,{"$f":"IF(G7360=\"\",\"\",VLOOKUP(G7360,Insumos!G:H,2,FALSE))","v":""}]
[null,null,null,null,null,{"$f":"IF(E7361=\"\",\"\",VLOOKUP(E7361,Insumos!AD:AE,2,FALSE))","v":""},null,{"$f":"IF(G7361=\"\",\"\",VLOOKUP(G7361,Insumos!G:H,2,FALSE))","v":""}]
[null,null,null,null,null,{"$f":"IF(E7362=\"\",\"\",VLOOKUP(E7362,Insumos!AD:AE,2,FALSE))","v":""},null,{"$f":"IF(G7362=\"\",\"\",VLOOKUP(G7362,Insumos!G:H,2,FALSE))","v":""}]
[null,null,null,null,null,{"$f":"IF(E7363=\"\",\"\",VLOOKUP(E7363,Insumos!AD:AE,2,FALSE))","v":""},null,{"$f":"IF(G7363=\"\",\"\",VLOOKUP(G7363,Insumos!G:H,2,FALSE))","v":""}]
[null,null,null,null,null,{"$f":"IF(E7364=\"\",\"\",VLOOKUP(E7364,Insumos!AD:AE,2,FALSE))","v":""},null,{"$f":"IF(G7364=\"\",\"\",VLOOKUP(G7364,Insumos!G:H,2,FALSE))","v":""}]
[null,null,null,null,null,{"$f":"IF(E7365=\"\",\"\",VLOOKUP(E7365,Insumos!AD:AE,2,FALSE))","v":""},null,{"$f":"IF(G7365=\"\",\"\",VLOOKUP(G7365,Insumos!G:H,2,FALSE))","v":""}]
[null,null,null,null,null,{"$f":"IF(E7366=\"\",\"\",VLOOKUP(E7366,Insumos!AD:AE,2,FALSE))","v":""},null,{"$f":"IF(G7366=\"\",\"\",VLOOKUP(G7366,Insumos!G:H,2,FALSE))","v":""}]
[null,null,null,null,null,{"$f":"IF(E7367=\"\",\"\",VLOOKUP(E7367,Insumos!AD:AE,2,FALSE))","v":""},null,{"$f":"IF(G7367=\"\",\"\",VLOOKUP(G7367,Insumos!G:H,2,FALSE))","v":""}]
[null,null,null,null,null,{"$f":"IF(E7368=\"\",\"\",VLOOKUP(E7368,Insumos!AD:AE,2,FALSE))","v":""},null,{"$f":"IF(G7368=\"\",\"\",VLOOKUP(G7368,Insumos!G:H,2,FALSE))","v":""}]
[null,null,null,null,null,{"$f":"IF(E7369=\"\",\"\",VLOOKUP(E7369,Insumos!AD:AE,2,FALSE))","v":""},null,{"$f":"IF(G7369=\"\",\"\",VLOOKUP(G7369,Insumos!G:H,2,FALSE))","v":""}]
[null,null,null,null,null,{"$f":"IF(E7370=\"\",\"\",VLOOKUP(E7370,Insumos!AD:AE,2,FALSE))","v":""},null,{"$f":"IF(G7370=\"\",\"\",VLOOKUP(G7370,Insumos!G:H,2,FALSE))","v":""}]
[null,null,null,null,null,{"$f":"IF(E7371=\"\",\"\",VLOOKUP(E7371,Insumos!AD:AE,2,FALSE))","v":""},null,{"$f":"IF(G7371=\"\",\"\",VLOOKUP(G7371,Insumos!G:H,2,FALSE))","v":""}]
[null,null,null,null,null,{"$f":"IF(E7372=\"\",\"\",VLOOKUP(E7372,Insumos!AD:AE,2,FALSE))","v":""},null,{"$f":"IF(G7372=\"\",\"\",VLOOKUP(G7372,Insumos!G:H,2,FALSE))","v":""}]
[null,null,null,null,null,{"$f":"IF(E7373=\"\",\"\",VLOOKUP(E7373,Insumos!AD:AE,2,FALSE))","v":""},null,{"$f":"IF(G7373=\"\",\"\",VLOOKUP(G7373,Insumos!G:H,2,FALSE))","v":""}]
[null,null,null,null,null,{"$f":"IF(E7374=\"\",\"\",VLOOKUP(E7374,Insumos!AD:AE,2,FALSE))","v":""},null,{"$f":"IF(G7374=\"\",\"\",VLOOKUP(G7374,Insumos!G:H,2,FALSE))","v":""}]
[null,null,null,null,null,{"$f":"IF(E7375=\"\",\"\",VLOOKUP(E7375,Insumos!AD:AE,2,FALSE))","v":""},null,{"$f":"IF(G7375=\"\",\"\",VLOOKUP(G7375,Insumos!G:H,2,FALSE))","v":""}]
[null,null,null,null,null,{"$f":"IF(E7376=\"\",\"\",VLOOKUP(E7376,Insumos!AD:AE,2,FALSE))","v":""},null,{"$f":"IF(G7376=\"\",\"\",VLOOKUP(G7376,Insumos!G:H,2,FALSE))","v":""}]
[null,null,null,null,null,{"$f":"IF(E7377=\"\",\"\",VLOOKUP(E7377,Insumos!AD:AE,2,FALSE))","v":""},null,{"$f":"IF(G7377=\"\",\"\",VLOOKUP(G7377,Insumos!G:H,2,FALSE))","v":""}]
[null,null,null,null,null,{"$f":"IF(E7378=\"\",\"\",VLOOKUP(E7378,Insumos!AD:AE,2,FALSE))","v":""},null,{"$f":"IF(G7378=\"\",\"\",VLOOKUP(G7378,Insumos!G:H,2,FALSE))","v":""}]
[null,null,null,null,null,{"$f":"IF(E7379=\"\",\"\",VLOOKUP(E7379,Insumos!AD:AE,2,FALSE))","v":""},null,{"$f":"IF(G7379=\"\",\"\",VLOOKUP(G7379,Insumos!G:H,2,FALSE))","v":""}]
[null,null,null,null,null,{"$f":"IF(E7380=\"\",\"\",VLOOKUP(E7380,Insumos!AD:AE,2,FALSE))","v":""},null,{"$f":"IF(G7380=\"\",\"\",VLOOKUP(G7380,Insumos!G:H,2,FALSE))","v":""}]
[null,null,null,null,null,{"$f":"IF(E7381=\"\",\"\",VLOOKUP(E7381,Insumos!AD:AE,2,FALSE))","v":""},null,{"$f":"IF(G7381=\"\",\"\",VLOOKUP(G7381,Insumos!G:H,2,FALSE))","v":""}]
[null,null,null,null,null,{"$f":"IF(E7382=\"\",\"\",VLOOKUP(E7382,Insumos!AD:AE,2,FALSE))","v":""},null,{"$f":"IF(G7382=\"\",\"\",VLOOKUP(G7382,Insumos!G:H,2,FALSE))","v":""}]
[null,null,null,null,null,{"$f":"IF(E7383=\"\",\"\",VLOOKUP(E7383,Insumos!AD:AE,2,FALSE))","v":""},null,{"$f":"IF(G7383=\"\",\"\",VLOOKUP(G7383,Insumos!G:H,2,FALSE))","v":""}]
[null,null,null,null,null,{"$f":"IF(E7384=\"\",\"\",VLOOKUP(E7384,Insumos!AD:AE,2,FALSE))","v":""},null,{"$f":"IF(G7384=\"\",\"\",VLOOKUP(G7384,Insumos!G:H,2,FALSE))","v":""}]
[null,null,null,null,null,{"$f":"IF(E7385=\"\",\"\",VLOOKUP(E7385,Insumos!AD:AE,2,FALSE))","v":""},null,{"$f":"IF(G7385=\"\",\"\",VLOOKUP(G7385,Insumos!G:H,2,FALSE))","v":""}]
[null,null,null,null,null,{"$f":"IF(E7386=\"\",\"\",VLOOKUP(E7386,Insumos!AD:AE,2,FALSE))","v":""},null,{"$f":"IF(G7386=\"\",\"\",VLOOKUP(G7386,Insumos!G:H,2,FALSE))","v":""}]
[null,null,null,null,null,{"$f":"IF(E7387=\"\",\"\",VLOOKUP(E7387,Insumos!AD:AE,2,FALSE))","v":""},null,{"$f":"IF(G7387=\"\",\"\",VLOOKUP(G7387,Insumos!G:H,2,FALSE))","v":""}]
[null,null,null,null,null,{"$f":"IF(E7388=\"\",\"\",VLOOKUP(E7388,Insumos!AD:AE,2,FALSE))","v":""},null,{"$f":"IF(G7388=\"\",\"\",VLOOKUP(G7388,Insumos!G:H,2,FALSE))","v":""}]
[null,null,null,null,null,{"$f":"IF(E7389=\"\",\"\",VLOOKUP(E7389,Insumos!AD:AE,2,FALSE))","v":""},null,{"$f":"IF(G7389=\"\",\"\",VLOOKUP(G7389,Insumos!G:H,2,FALSE))","v":""}]
[null,null,null,null,null,{"$f":"IF(E7390=\"\",\"\",VLOOKUP(E7390,Insumos!AD:AE,2,FALSE))","v":""},null,{"$f":"IF(G7390=\"\",\"\",VLOOKUP(G7390,Insumos!G:H,2,FALSE))","v":""}]
[null,null,null,null,null,{"$f":"IF(E7391=\"\",\"\",VLOOKUP(E7391,Insumos!AD:AE,2,FALSE))","v":""},null,{"$f":"IF(G7391=\"\",\"\",VLOOKUP(G7391,Insumos!G:H,2,FALSE))","v":""}]
[null,null,null,null,null,{"$f":"IF(E7392=\"\",\"\",VLOOKUP(E7392,Insumos!AD:AE,2,FALSE))","v":""},null,{"$f":"IF(G7392=\"\",\"\",VLOOKUP(G7392,Insumos!G:H,2,FALSE))","v":""}]
[null,null,null,null,null,{"$f":"IF(E7393=\"\",\"\",VLOOKUP(E7393,Insumos!AD:AE,2,FALSE))","v":""},null,{"$f":"IF(G7393=\"\",\"\",VLOOKUP(G7393,Insumos!G:H,2,FALSE))","v":""}]
[null,null,null,null,null,{"$f":"IF(E7394=\"\",\"\",VLOOKUP(E7394,Insumos!AD:AE,2,FALSE))","v":""},null,{"$f":"IF(G7394=\"\",\"\",VLOOKUP(G7394,Insumos!G:H,2,FALSE))","v":""}]
[null,null,null,null,null,{"$f":"IF(E7395=\"\",\"\",VLOOKUP(E7395,Insumos!AD:AE,2,FALSE))","v":""},null,{"$f":"IF(G7395=\"\",\"\",VLOOKUP(G7395,Insumos!G:H,2,FALSE))","v":""}]
[null,null,null,null,null,{"$f":"IF(E7396=\"\",\"\",VLOOKUP(E7396,Insumos!AD:AE,2,FALSE))","v":""},null,{"$f":"IF(G7396=\"\",\"\",VLOOKUP(G7396,Insumos!G:H,2,FALSE))","v":""}]
[null,null,null,null,null,{"$f":"IF(E7397=\"\",\"\",VLOOKUP(E7397,Insumos!AD:AE,2,FALSE))","v":""},null,{"$f":"IF(G7397=\"\",\"\",VLOOKUP(G7397,Insumos!G:H,2,FALSE))","v":""}]
[null,null,null,null,null,{"$f":"IF(E7398=\"\",\"\",VLOOKUP(E7398,Insumos!AD:AE,2,FALSE))","v":""},null,{"$f":"IF(G7398=\"\",\"\",VLOOKUP(G7398,Insumos!G:H,2,FALSE))","v":""}]
[null,null,null,null,null,{"$f":"IF(E7399=\"\",\"\",VLOOKUP(E7399,Insumos!AD:AE,2,FALSE))","v":""},null,{"$f":"IF(G7399=\"\",\"\",VLOOKUP(G7399,Insumos!G:H,2,FALSE))","v":""}]
[null,null,null,null,null,{"$f":"IF(E7400=\"\",\"\",VLOOKUP(E7400,Insumos!AD:AE,2,FALSE))","v":""},null,{"$f":"IF(G7400=\"\",\"\",VLOOKUP(G7400,Insumos!G:H,2,FALSE))","v":""}]
[null,null,null,null,null,{"$f":"IF(E7401=\"\",\"\",VLOOKUP(E7401,Insumos!AD:AE,2,FALSE))","v":""},null,{"$f":"IF(G7401=\"\",\"\",VLOOKUP(G7401,Insumos!G:H,2,FALSE))","v":""}]
[null,null,null,null,null,{"$f":"IF(E7402=\"\",\"\",VLOOKUP(E7402,Insumos!AD:AE,2,FALSE))","v":""},null,{"$f":"IF(G7402=\"\",\"\",VLOOKUP(G7402,Insumos!G:H,2,FALSE))","v":""}]
[null,null,null,null,null,{"$f":"IF(E7403=\"\",\"\",VLOOKUP(E7403,Insumos!AD:AE,2,FALSE))","v":""},null,{"$f":"IF(G7403=\"\",\"\",VLOOKUP(G7403,Insumos!G:H,2,FALSE))","v":""}]
[null,null,null,null,null,{"$f":"IF(E7404=\"\",\"\",VLOOKUP(E7404,Insumos!AD:AE,2,FALSE))","v":""},null,{"$f":"IF(G7404=\"\",\"\",VLOOKUP(G7404,Insumos!G:H,2,FALSE))","v":""}]
[null,null,null,null,null,{"$f":"IF(E7405=\"\",\"\",VLOOKUP(E7405,Insumos!AD:AE,2,FALSE))","v":""},null,{"$f":"IF(G7405=\"\",\"\",VLOOKUP(G7405,Insumos!G:H,2,FALSE))","v":""}]
[null,null,null,null,null,{"$f":"IF(E7406=\"\",\"\",VLOOKUP(E7406,Insumos!AD:AE,2,FALSE))","v":""},null,{"$f":"IF(G7406=\"\",\"\",VLOOKUP(G7406,Insumos!G:H,2,FALSE))","v":""}]
[null,null,null,null,null,{"$f":"IF(E7407=\"\",\"\",VLOOKUP(E7407,Insumos!AD:AE,2,FALSE))","v":""},null,{"$f":"IF(G7407=\"\",\"\",VLOOKUP(G7407,Insumos!G:H,2,FALSE))","v":""}]
[null,null,null,null,null,{"$f":"IF(E7408=\"\",\"\",VLOOKUP(E7408,Insumos!AD:AE,2,FALSE))","v":""},null,{"$f":"IF(G7408=\"\",\"\",VLOOKUP(G7408,Insumos!G:H,2,FALSE))","v":""}]
[null,null,null,null,null,{"$f":"IF(E7409=\"\",\"\",VLOOKUP(E7409,Insumos!AD:AE,2,FALSE))","v":""},null,{"$f":"IF(G7409=\"\",\"\",VLOOKUP(G7409,Insumos!G:H,2,FALSE))","v":""}]
[null,null,null,null,null,{"$f":"IF(E7410=\"\",\"\",VLOOKUP(E7410,Insumos!AD:AE,2,FALSE))","v":""},null,{"$f":"IF(G7410=\"\",\"\",VLOOKUP(G7410,Insumos!G:H,2,FALSE))","v":""}]
[null,null,null,null,null,{"$f":"IF(E7411=\"\",\"\",VLOOKUP(E7411,Insumos!AD:AE,2,FALSE))","v":""},null,{"$f":"IF(G7411=\"\",\"\",VLOOKUP(G7411,Insumos!G:H,2,FALSE))","v":""}]
[null,null,null,null,null,{"$f":"IF(E7412=\"\",\"\",VLOOKUP(E7412,Insumos!AD:AE,2,FALSE))","v":""},null,{"$f":"IF(G7412=\"\",\"\",VLOOKUP(G7412,Insumos!G:H,2,FALSE))","v":""}]
[null,null,null,null,null,{"$f":"IF(E7413=\"\",\"\",VLOOKUP(E7413,Insumos!AD:AE,2,FALSE))","v":""},null,{"$f":"IF(G7413=\"\",\"\",VLOOKUP(G7413,Insumos!G:H,2,FALSE))","v":""}]
[null,null,null,null,null,{"$f":"IF(E7414=\"\",\"\",VLOOKUP(E7414,Insumos!AD:AE,2,FALSE))","v":""},null,{"$f":"IF(G7414=\"\",\"\",VLOOKUP(G7414,Insumos!G:H,2,FALSE))","v":""}]
[null,null,null,null,null,{"$f":"IF(E7415=\"\",\"\",VLOOKUP(E7415,Insumos!AD:AE,2,FALSE))","v":""},null,{"$f":"IF(G7415=\"\",\"\",VLOOKUP(G7415,Insumos!G:H,2,FALSE))","v":""}]
[null,null,null,null,null,{"$f":"IF(E7416=\"\",\"\",VLOOKUP(E7416,Insumos!AD:AE,2,FALSE))","v":""},null,{"$f":"IF(G7416=\"\",\"\",VLOOKUP(G7416,Insumos!G:H,2,FALSE))","v":""}]
[null,null,null,null,null,{"$f":"IF(E7417=\"\",\"\",VLOOKUP(E7417,Insumos!AD:AE,2,FALSE))","v":""},null,{"$f":"IF(G7417=\"\",\"\",VLOOKUP(G7417,Insumos!G:H,2,FALSE))","v":""}]
[null,null,null,null,null,{"$f":"IF(E7418=\"\",\"\",VLOOKUP(E7418,Insumos!AD:AE,2,FALSE))","v":""},null,{"$f":"IF(G7418=\"\",\"\",VLOOKUP(G7418,Insumos!G:H,2,FALSE))","v":""}]
[null,null,null,null,null,{"$f":"IF(E7419=\"\",\"\",VLOOKUP(E7419,Insumos!AD:AE,2,FALSE))","v":""},null,{"$f":"IF(G7419=\"\",\"\",VLOOKUP(G7419,Insumos!G:H,2,FALSE))","v":""}]
[null,null,null,null,null,{"$f":"IF(E7420=\"\",\"\",VLOOKUP(E7420,Insumos!AD:AE,2,FALSE))","v":""},null,{"$f":"IF(G7420=\"\",\"\",VLOOKUP(G7420,Insumos!G:H,2,FALSE))","v":""}]
[null,null,null,null,null,{"$f":"IF(E7421=\"\",\"\",VLOOKUP(E7421,Insumos!AD:AE,2,FALSE))","v":""},null,{"$f":"IF(G7421=\"\",\"\",VLOOKUP(G7421,Insumos!G:H,2,FALSE))","v":""}]
[null,null,null,null,null,{"$f":"IF(E7422=\"\",\"\",VLOOKUP(E7422,Insumos!AD:AE,2,FALSE))","v":""},null,{"$f":"IF(G7422=\"\",\"\",VLOOKUP(G7422,Insumos!G:H,2,FALSE))","v":""}]
[null,null,null,null,null,{"$f":"IF(E7423=\"\",\"\",VLOOKUP(E7423,Insumos!AD:AE,2,FALSE))","v":""},null,{"$f":"IF(G7423=\"\",\"\",VLOOKUP(G7423,Insumos!G:H,2,FALSE))","v":""}]
[null,null,null,null,null,{"$f":"IF(E7424=\"\",\"\",VLOOKUP(E7424,Insumos!AD:AE,2,FALSE))","v":""},null,{"$f":"IF(G7424=\"\",\"\",VLOOKUP(G7424,Insumos!G:H,2,FALSE))","v":""}]
[null,null,null,null,null,{"$f":"IF(E7425=\"\",\"\",VLOOKUP(E7425,Insumos!AD:AE,2,FALSE))","v":""},null,{"$f":"IF(G7425=\"\",\"\",VLOOKUP(G7425,Insumos!G:H,2,FALSE))","v":""}]
[null,null,null,null,null,{"$f":"IF(E7426=\"\",\"\",VLOOKUP(E7426,Insumos!AD:AE,2,FALSE))","v":""},null,{"$f":"IF(G7426=\"\",\"\",VLOOKUP(G7426,Insumos!G:H,2,FALSE))","v":""}]
[null,null,null,null,null,{"$f":"IF(E7427=\"\",\"\",VLOOKUP(E7427,Insumos!AD:AE,2,FALSE))","v":""},null,{"$f":"IF(G7427=\"\",\"\",VLOOKUP(G7427,Insumos!G:H,2,FALSE))","v":""}]
[null,null,null,null,null,{"$f":"IF(E7428=\"\",\"\",VLOOKUP(E7428,Insumos!AD:AE,2,FALSE))","v":""},null,{"$f":"IF(G7428=\"\",\"\",VLOOKUP(G7428,Insumos!G:H,2,FALSE))","v":""}]
[null,null,null,null,null,{"$f":"IF(E7429=\"\",\"\",VLOOKUP(E7429,Insumos!AD:AE,2,FALSE))","v":""},null,{"$f":"IF(G7429=\"\",\"\",VLOOKUP(G7429,Insumos!G:H,2,FALSE))","v":""}]
[null,null,null,null,null,{"$f":"IF(E7430=\"\",\"\",VLOOKUP(E7430,Insumos!AD:AE,2,FALSE))","v":""},null,{"$f":"IF(G7430=\"\",\"\",VLOOKUP(G7430,Insumos!G:H,2,FALSE))","v":""}]
[null,null,null,null,null,{"$f":"IF(E7431=\"\",\"\",VLOOKUP(E7431,Insumos!AD:AE,2,FALSE))","v":""},null,{"$f":"IF(G7431=\"\",\"\",VLOOKUP(G7431,Insumos!G:H,2,FALSE))","v":""}]
[null,null,null,null,null,{"$f":"IF(E7432=\"\",\"\",VLOOKUP(E7432,Insumos!AD:AE,2,FALSE))","v":""},null,{"$f":"IF(G7432=\"\",\"\",VLOOKUP(G7432,Insumos!G:H,2,FALSE))","v":""}]
[null,null,null,null,null,{"$f":"IF(E7433=\"\",\"\",VLOOKUP(E7433,Insumos!AD:AE,2,FALSE))","v":""},null,{"$f":"IF(G7433=\"\",\"\",VLOOKUP(G7433,Insumos!G:H,2,FALSE))","v":""}]
[null,null,null,null,null,{"$f":"IF(E7434=\"\",\"\",VLOOKUP(E7434,Insumos!AD:AE,2,FALSE))","v":""},null,{"$f":"IF(G7434=\"\",\"\",VLOOKUP(G7434,Insumos!G:H,2,FALSE))","v":""}]
[null,null,null,null,null,{"$f":"IF(E7435=\"\",\"\",VLOOKUP(E7435,Insumos!AD:AE,2,FALSE))","v":""},null,{"$f":"IF(G7435=\"\",\"\",VLOOKUP(G7435,Insumos!G:H,2,FALSE))","v":""}]
[null,null,null,null,null,{"$f":"IF(E7436=\"\",\"\",VLOOKUP(E7436,Insumos!AD:AE,2,FALSE))","v":""},null,{"$f":"IF(G7436=\"\",\"\",VLOOKUP(G7436,Insumos!G:H,2,FALSE))","v":""}]
[null,null,null,null,null,{"$f":"IF(E7437=\"\",\"\",VLOOKUP(E7437,Insumos!AD:AE,2,FALSE))","v":""},null,{"$f":"IF(G7437=\"\",\"\",VLOOKUP(G7437,Insumos!G:H,2,FALSE))","v":""}]
[null,null,null,null,null,{"$f":"IF(E7438=\"\",\"\",VLOOKUP(E7438,Insumos!AD:AE,2,FALSE))","v":""},null,{"$f":"IF(G7438=\"\",\"\",VLOOKUP(G7438,Insumos!G:H,2,FALSE))","v":""}]
[null,null,null,null,null,{"$f":"IF(E7439=\"\",\"\",VLOOKUP(E7439,Insumos!AD:AE,2,FALSE))","v":""},null,{"$f":"IF(G7439=\"\",\"\",VLOOKUP(G7439,Insumos!G:H,2,FALSE))","v":""}]
[null,null,null,null,null,{"$f":"IF(E7440=\"\",\"\",VLOOKUP(E7440,Insumos!AD:AE,2,FALSE))","v":""},null,{"$f":"IF(G7440=\"\",\"\",VLOOKUP(G7440,Insumos!G:H,2,FALSE))","v":""}]
[null,null,null,null,null,{"$f":"IF(E7441=\"\",\"\",VLOOKUP(E7441,Insumos!AD:AE,2,FALSE))","v":""},null,{"$f":"IF(G7441=\"\",\"\",VLOOKUP(G7441,Insumos!G:H,2,FALSE))","v":""}]
[null,null,null,null,null,{"$f":"IF(E7442=\"\",\"\",VLOOKUP(E7442,Insumos!AD:AE,2,FALSE))","v":""},null,{"$f":"IF(G7442=\"\",\"\",VLOOKUP(G7442,Insumos!G:H,2,FALSE))","v":""}]
[null,null,null,null,null,{"$f":"IF(E7443=\"\",\"\",VLOOKUP(E7443,Insumos!AD:AE,2,FALSE))","v":""},null,{"$f":"IF(G7443=\"\",\"\",VLOOKUP(G7443,Insumos!G:H,2,FALSE))","v":""}]
[null,null,null,null,null,{"$f":"IF(E7444=\"\",\"\",VLOOKUP(E7444,Insumos!AD:AE,2,FALSE))","v":""},null,{"$f":"IF(G7444=\"\",\"\",VLOOKUP(G7444,Insumos!G:H,2,FALSE))","v":""}]
[null,null,null,null,null,{"$f":"IF(E7445=\"\",\"\",VLOOKUP(E7445,Insumos!AD:AE,2,FALSE))","v":""},null,{"$f":"IF(G7445=\"\",\"\",VLOOKUP(G7445,Insumos!G:H,2,FALSE))","v":""}]
[null,null,null,null,null,{"$f":"IF(E7446=\"\",\"\",VLOOKUP(E7446,Insumos!AD:AE,2,FALSE))","v":""},null,{"$f":"IF(G7446=\"\",\"\",VLOOKUP(G7446,Insumos!G:H,2,FALSE))","v":""}]
[null,null,null,null,null,{"$f":"IF(E7447=\"\",\"\",VLOOKUP(E7447,Insumos!AD:AE,2,FALSE))","v":""},null,{"$f":"IF(G7447=\"\",\"\",VLOOKUP(G7447,Insumos!G:H,2,FALSE))","v":""}]
[null,null,null,null,null,{"$f":"IF(E7448=\"\",\"\",VLOOKUP(E7448,Insumos!AD:AE,2,FALSE))","v":""},null,{"$f":"IF(G7448=\"\",\"\",VLOOKUP(G7448,Insumos!G:H,2,FALSE))","v":""}]
[null,null,null,null,null,{"$f":"IF(E7449=\"\",\"\",VLOOKUP(E7449,Insumos!AD:AE,2,FALSE))","v":""},null,{"$f":"IF(G7449=\"\",\"\",VLOOKUP(G7449,Insumos!G:H,2,FALSE))","v":""}]
[null,null,null,null,null,{"$f":"IF(E7450=\"\",\"\",VLOOKUP(E7450,Insumos!AD:AE,2,FALSE))","v":""},null,{"$f":"IF(G7450=\"\",\"\",VLOOKUP(G7450,Insumos!G:H,2,FALSE))","v":""}]
[null,null,null,null,null,{"$f":"IF(E7451=\"\",\"\",VLOOKUP(E7451,Insumos!AD:AE,2,FALSE))","v":""},null,{"$f":"IF(G7451=\"\",\"\",VLOOKUP(G7451,Insumos!G:H,2,FALSE))","v":""}]
[null,null,null,null,null,{"$f":"IF(E7452=\"\",\"\",VLOOKUP(E7452,Insumos!AD:AE,2,FALSE))","v":""},null,{"$f":"IF(G7452=\"\",\"\",VLOOKUP(G7452,Insumos!G:H,2,FALSE))","v":""}]
[null,null,null,null,null,{"$f":"IF(E7453=\"\",\"\",VLOOKUP(E7453,Insumos!AD:AE,2,FALSE))","v":""},null,{"$f":"IF(G7453=\"\",\"\",VLOOKUP(G7453,Insumos!G:H,2,FALSE))","v":""}]
[null,null,null,null,null,{"$f":"IF(E7454=\"\",\"\",VLOOKUP(E7454,Insumos!AD:AE,2,FALSE))","v":""},null,{"$f":"IF(G7454=\"\",\"\",VLOOKUP(G7454,Insumos!G:H,2,FALSE))","v":""}]
[null,null,null,null,null,{"$f":"IF(E7455=\"\",\"\",VLOOKUP(E7455,Insumos!AD:AE,2,FALSE))","v":""},null,{"$f":"IF(G7455=\"\",\"\",VLOOKUP(G7455,Insumos!G:H,2,FALSE))","v":""}]
[null,null,null,null,null,{"$f":"IF(E7456=\"\",\"\",VLOOKUP(E7456,Insumos!AD:AE,2,FALSE))","v":""},null,{"$f":"IF(G7456=\"\",\"\",VLOOKUP(G7456,Insumos!G:H,2,FALSE))","v":""}]
[null,null,null,null,null,{"$f":"IF(E7457=\"\",\"\",VLOOKUP(E7457,Insumos!AD:AE,2,FALSE))","v":""},null,{"$f":"IF(G7457=\"\",\"\",VLOOKUP(G7457,Insumos!G:H,2,FALSE))","v":""}]
[null,null,null,null,null,{"$f":"IF(E7458=\"\",\"\",VLOOKUP(E7458,Insumos!AD:AE,2,FALSE))","v":""},null,{"$f":"IF(G7458=\"\",\"\",VLOOKUP(G7458,Insumos!G:H,2,FALSE))","v":""}]
[null,null,null,null,null,{"$f":"IF(E7459=\"\",\"\",VLOOKUP(E7459,Insumos!AD:AE,2,FALSE))","v":""},null,{"$f":"IF(G7459=\"\",\"\",VLOOKUP(G7459,Insumos!G:H,2,FALSE))","v":""}]
[null,null,null,null,null,{"$f":"IF(E7460=\"\",\"\",VLOOKUP(E7460,Insumos!AD:AE,2,FALSE))","v":""},null,{"$f":"IF(G7460=\"\",\"\",VLOOKUP(G7460,Insumos!G:H,2,FALSE))","v":""}]
[null,null,null,null,null,{"$f":"IF(E7461=\"\",\"\",VLOOKUP(E7461,Insumos!AD:AE,2,FALSE))","v":""},null,{"$f":"IF(G7461=\"\",\"\",VLOOKUP(G7461,Insumos!G:H,2,FALSE))","v":""}]
[null,null,null,null,null,{"$f":"IF(E7462=\"\",\"\",VLOOKUP(E7462,Insumos!AD:AE,2,FALSE))","v":""},null,{"$f":"IF(G7462=\"\",\"\",VLOOKUP(G7462,Insumos!G:H,2,FALSE))","v":""}]
[null,null,null,null,null,{"$f":"IF(E7463=\"\",\"\",VLOOKUP(E7463,Insumos!AD:AE,2,FALSE))","v":""},null,{"$f":"IF(G7463=\"\",\"\",VLOOKUP(G7463,Insumos!G:H,2,FALSE))","v":""}]
[null,null,null,null,null,{"$f":"IF(E7464=\"\",\"\",VLOOKUP(E7464,Insumos!AD:AE,2,FALSE))","v":""},null,{"$f":"IF(G7464=\"\",\"\",VLOOKUP(G7464,Insumos!G:H,2,FALSE))","v":""}]
[null,null,null,null,null,{"$f":"IF(E7465=\"\",\"\",VLOOKUP(E7465,Insumos!AD:AE,2,FALSE))","v":""},null,{"$f":"IF(G7465=\"\",\"\",VLOOKUP(G7465,Insumos!G:H,2,FALSE))","v":""}]
[null,null,null,null,null,{"$f":"IF(E7466=\"\",\"\",VLOOKUP(E7466,Insumos!AD:AE,2,FALSE))","v":""},null,{"$f":"IF(G7466=\"\",\"\",VLOOKUP(G7466,Insumos!G:H,2,FALSE))","v":""}]
[null,null,null,null,null,{"$f":"IF(E7467=\"\",\"\",VLOOKUP(E7467,Insumos!AD:AE,2,FALSE))","v":""},null,{"$f":"IF(G7467=\"\",\"\",VLOOKUP(G7467,Insumos!G:H,2,FALSE))","v":""}]
[null,null,null,null,null,{"$f":"IF(E7468=\"\",\"\",VLOOKUP(E7468,Insumos!AD:AE,2,FALSE))","v":""},null,{"$f":"IF(G7468=\"\",\"\",VLOOKUP(G7468,Insumos!G:H,2,FALSE))","v":""}]
[null,null,null,null,null,{"$f":"IF(E7469=\"\",\"\",VLOOKUP(E7469,Insumos!AD:AE,2,FALSE))","v":""},null,{"$f":"IF(G7469=\"\",\"\",VLOOKUP(G7469,Insumos!G:H,2,FALSE))","v":""}]
[null,null,null,null,null,{"$f":"IF(E7470=\"\",\"\",VLOOKUP(E7470,Insumos!AD:AE,2,FALSE))","v":""},null,{"$f":"IF(G7470=\"\",\"\",VLOOKUP(G7470,Insumos!G:H,2,FALSE))","v":""}]
[null,null,null,null,null,{"$f":"IF(E7471=\"\",\"\",VLOOKUP(E7471,Insumos!AD:AE,2,FALSE))","v":""},null,{"$f":"IF(G7471=\"\",\"\",VLOOKUP(G7471,Insumos!G:H,2,FALSE))","v":""}]
[null,null,null,null,null,{"$f":"IF(E7472=\"\",\"\",VLOOKUP(E7472,Insumos!AD:AE,2,FALSE))","v":""},null,{"$f":"IF(G7472=\"\",\"\",VLOOKUP(G7472,Insumos!G:H,2,FALSE))","v":""}]
[null,null,null,null,null,{"$f":"IF(E7473=\"\",\"\",VLOOKUP(E7473,Insumos!AD:AE,2,FALSE))","v":""},null,{"$f":"IF(G7473=\"\",\"\",VLOOKUP(G7473,Insumos!G:H,2,FALSE))","v":""}]
[null,null,null,null,null,{"$f":"IF(E7474=\"\",\"\",VLOOKUP(E7474,Insumos!AD:AE,2,FALSE))","v":""},null,{"$f":"IF(G7474=\"\",\"\",VLOOKUP(G7474,Insumos!G:H,2,FALSE))","v":""}]
[null,null,null,null,null,{"$f":"IF(E7475=\"\",\"\",VLOOKUP(E7475,Insumos!AD:AE,2,FALSE))","v":""},null,{"$f":"IF(G7475=\"\",\"\",VLOOKUP(G7475,Insumos!G:H,2,FALSE))","v":""}]
[null,null,null,null,null,{"$f":"IF(E7476=\"\",\"\",VLOOKUP(E7476,Insumos!AD:AE,2,FALSE))","v":""},null,{"$f":"IF(G7476=\"\",\"\",VLOOKUP(G7476,Insumos!G:H,2,FALSE))","v":""}]
[null,null,null,null,null,{"$f":"IF(E7477=\"\",\"\",VLOOKUP(E7477,Insumos!AD:AE,2,FALSE))","v":""},null,{"$f":"IF(G7477=\"\",\"\",VLOOKUP(G7477,Insumos!G:H,2,FALSE))","v":""}]
[null,null,null,null,null,{"$f":"IF(E7478=\"\",\"\",VLOOKUP(E7478,Insumos!AD:AE,2,FALSE))","v":""},null,{"$f":"IF(G7478=\"\",\"\",VLOOKUP(G7478,Insumos!G:H,2,FALSE))","v":""}]
[null,null,null,null,null,{"$f":"IF(E7479=\"\",\"\",VLOOKUP(E7479,Insumos!AD:AE,2,FALSE))","v":""},null,{"$f":"IF(G7479=\"\",\"\",VLOOKUP(G7479,Insumos!G:H,2,FALSE))","v":""}]
[null,null,null,null,null,{"$f":"IF(E7480=\"\",\"\",VLOOKUP(E7480,Insumos!AD:AE,2,FALSE))","v":""},null,{"$f":"IF(G7480=\"\",\"\",VLOOKUP(G7480,Insumos!G:H,2,FALSE))","v":""}]
[null,null,null,null,null,{"$f":"IF(E7481=\"\",\"\",VLOOKUP(E7481,Insumos!AD:AE,2,FALSE))","v":""},null,{"$f":"IF(G7481=\"\",\"\",VLOOKUP(G7481,Insumos!G:H,2,FALSE))","v":""}]
[null,null,null,null,null,{"$f":"IF(E7482=\"\",\"\",VLOOKUP(E7482,Insumos!AD:AE,2,FALSE))","v":""},null,{"$f":"IF(G7482=\"\",\"\",VLOOKUP(G7482,Insumos!G:H,2,FALSE))","v":""}]
[null,null,null,null,null,{"$f":"IF(E7483=\"\",\"\",VLOOKUP(E7483,Insumos!AD:AE,2,FALSE))","v":""},null,{"$f":"IF(G7483=\"\",\"\",VLOOKUP(G7483,Insumos!G:H,2,FALSE))","v":""}]
[null,null,null,null,null,{"$f":"IF(E7484=\"\",\"\",VLOOKUP(E7484,Insumos!AD:AE,2,FALSE))","v":""},null,{"$f":"IF(G7484=\"\",\"\",VLOOKUP(G7484,Insumos!G:H,2,FALSE))","v":""}]
[null,null,null,null,null,{"$f":"IF(E7485=\"\",\"\",VLOOKUP(E7485,Insumos!AD:AE,2,FALSE))","v":""},null,{"$f":"IF(G7485=\"\",\"\",VLOOKUP(G7485,Insumos!G:H,2,FALSE))","v":""}]
[null,null,null,null,null,{"$f":"IF(E7486=\"\",\"\",VLOOKUP(E7486,Insumos!AD:AE,2,FALSE))","v":""},null,{"$f":"IF(G7486=\"\",\"\",VLOOKUP(G7486,Insumos!G:H,2,FALSE))","v":""}]
[null,null,null,null,null,{"$f":"IF(E7487=\"\",\"\",VLOOKUP(E7487,Insumos!AD:AE,2,FALSE))","v":""},null,{"$f":"IF(G7487=\"\",\"\",VLOOKUP(G7487,Insumos!G:H,2,FALSE))","v":""}]
[null,null,null,null,null,{"$f":"IF(E7488=\"\",\"\",VLOOKUP(E7488,Insumos!AD:AE,2,FALSE))","v":""},null,{"$f":"IF(G7488=\"\",\"\",VLOOKUP(G7488,Insumos!G:H,2,FALSE))","v":""}]
[null,null,null,null,null,{"$f":"IF(E7489=\"\",\"\",VLOOKUP(E7489,Insumos!AD:AE,2,FALSE))","v":""},null,{"$f":"IF(G7489=\"\",\"\",VLOOKUP(G7489,Insumos!G:H,2,FALSE))","v":""}]
[null,null,null,null,null,{"$f":"IF(E7490=\"\",\"\",VLOOKUP(E7490,Insumos!AD:AE,2,FALSE))","v":""},null,{"$f":"IF(G7490=\"\",\"\",VLOOKUP(G7490,Insumos!G:H,2,FALSE))","v":""}]
[null,null,null,null,null,{"$f":"IF(E7491=\"\",\"\",VLOOKUP(E7491,Insumos!AD:AE,2,FALSE))","v":""},null,{"$f":"IF(G7491=\"\",\"\",VLOOKUP(G7491,Insumos!G:H,2,FALSE))","v":""}]
[null,null,null,null,null,{"$f":"IF(E7492=\"\",\"\",VLOOKUP(E7492,Insumos!AD:AE,2,FALSE))","v":""},null,{"$f":"IF(G7492=\"\",\"\",VLOOKUP(G7492,Insumos!G:H,2,FALSE))","v":""}]
[null,null,null,null,null,{"$f":"IF(E7493=\"\",\"\",VLOOKUP(E7493,Insumos!AD:AE,2,FALSE))","v":""},null,{"$f":"IF(G7493=\"\",\"\",VLOOKUP(G7493,Insumos!G:H,2,FALSE))","v":""}]
[null,null,null,null,null,{"$f":"IF(E7494=\"\",\"\",VLOOKUP(E7494,Insumos!AD:AE,2,FALSE))","v":""},null,{"$f":"IF(G7494=\"\",\"\",VLOOKUP(G7494,Insumos!G:H,2,FALSE))","v":""}]
[null,null,null,null,null,{"$f":"IF(E7495=\"\",\"\",VLOOKUP(E7495,Insumos!AD:AE,2,FALSE))","v":""},null,{"$f":"IF(G7495=\"\",\"\",VLOOKUP(G7495,Insumos!G:H,2,FALSE))","v":""}]
[null,null,null,null,null,{"$f":"IF(E7496=\"\",\"\",VLOOKUP(E7496,Insumos!AD:AE,2,FALSE))","v":""},null,{"$f":"IF(G7496=\"\",\"\",VLOOKUP(G7496,Insumos!G:H,2,FALSE))","v":""}]
[null,null,null,null,null,{"$f":"IF(E7497=\"\",\"\",VLOOKUP(E7497,Insumos!AD:AE,2,FALSE))","v":""},null,{"$f":"IF(G7497=\"\",\"\",VLOOKUP(G7497,Insumos!G:H,2,FALSE))","v":""}]
[null,null,null,null,null,{"$f":"IF(E7498=\"\",\"\",VLOOKUP(E7498,Insumos!AD:AE,2,FALSE))","v":""},null,{"$f":"IF(G7498=\"\",\"\",VLOOKUP(G7498,Insumos!G:H,2,FALSE))","v":""}]
[null,null,null,null,null,{"$f":"IF(E7499=\"\",\"\",VLOOKUP(E7499,Insumos!AD:AE,2,FALSE))","v":""},null,{"$f":"IF(G7499=\"\",\"\",VLOOKUP(G7499,Insumos!G:H,2,FALSE))","v":""}]
[null,null,null,null,null,{"$f":"IF(E7500=\"\",\"\",VLOOKUP(E7500,Insumos!AD:AE,2,FALSE))","v":""},null,{"$f":"IF(G7500=\"\",\"\",VLOOKUP(G7500,Insumos!G:H,2,FALSE))","v":""}]
[null,null,null,null,null,{"$f":"IF(E7501=\"\",\"\",VLOOKUP(E7501,Insumos!AD:AE,2,FALSE))","v":""},null,{"$f":"IF(G7501=\"\",\"\",VLOOKUP(G7501,Insumos!G:H,2,FALSE))","v":""}]
[null,null,null,null,null,{"$f":"IF(E7502=\"\",\"\",VLOOKUP(E7502,Insumos!AD:AE,2,FALSE))","v":""},null,{"$f":"IF(G7502=\"\",\"\",VLOOKUP(G7502,Insumos!G:H,2,FALSE))","v":""}]
[null,null,null,null,null,{"$f":"IF(E7503=\"\",\"\",VLOOKUP(E7503,Insumos!AD:AE,2,FALSE))","v":""},null,{"$f":"IF(G7503=\"\",\"\",VLOOKUP(G7503,Insumos!G:H,2,FALSE))","v":""}]
[null,null,null,null,null,{"$f":"IF(E7504=\"\",\"\",VLOOKUP(E7504,Insumos!AD:AE,2,FALSE))","v":""},null,{"$f":"IF(G7504=\"\",\"\",VLOOKUP(G7504,Insumos!G:H,2,FALSE))","v":""}]
[null,null,null,null,null,{"$f":"IF(E7505=\"\",\"\",VLOOKUP(E7505,Insumos!AD:AE,2,FALSE))","v":""},null,{"$f":"IF(G7505=\"\",\"\",VLOOKUP(G7505,Insumos!G:H,2,FALSE))","v":""}]
[null,null,null,null,null,{"$f":"IF(E7506=\"\",\"\",VLOOKUP(E7506,Insumos!AD:AE,2,FALSE))","v":""},null,{"$f":"IF(G7506=\"\",\"\",VLOOKUP(G7506,Insumos!G:H,2,FALSE))","v":""}]
[null,null,null,null,null,{"$f":"IF(E7507=\"\",\"\",VLOOKUP(E7507,Insumos!AD:AE,2,FALSE))","v":""},null,{"$f":"IF(G7507=\"\",\"\",VLOOKUP(G7507,Insumos!G:H,2,FALSE))","v":""}]
[null,null,null,null,null,{"$f":"IF(E7508=\"\",\"\",VLOOKUP(E7508,Insumos!AD:AE,2,FALSE))","v":""},null,{"$f":"IF(G7508=\"\",\"\",VLOOKUP(G7508,Insumos!G:H,2,FALSE))","v":""}]
[null,null,null,null,null,{"$f":"IF(E7509=\"\",\"\",VLOOKUP(E7509,Insumos!AD:AE,2,FALSE))","v":""},null,{"$f":"IF(G7509=\"\",\"\",VLOOKUP(G7509,Insumos!G:H,2,FALSE))","v":""}]
[null,null,null,null,null,{"$f":"IF(E7510=\"\",\"\",VLOOKUP(E7510,Insumos!AD:AE,2,FALSE))","v":""},null,{"$f":"IF(G7510=\"\",\"\",VLOOKUP(G7510,Insumos!G:H,2,FALSE))","v":""}]
[null,null,null,null,null,{"$f":"IF(E7511=\"\",\"\",VLOOKUP(E7511,Insumos!AD:AE,2,FALSE))","v":""},null,{"$f":"IF(G7511=\"\",\"\",VLOOKUP(G7511,Insumos!G:H,2,FALSE))","v":""}]
[null,null,null,null,null,{"$f":"IF(E7512=\"\",\"\",VLOOKUP(E7512,Insumos!AD:AE,2,FALSE))","v":""},null,{"$f":"IF(G7512=\"\",\"\",VLOOKUP(G7512,Insumos!G:H,2,FALSE))","v":""}]
[null,null,null,null,null,{"$f":"IF(E7513=\"\",\"\",VLOOKUP(E7513,Insumos!AD:AE,2,FALSE))","v":""},null,{"$f":"IF(G7513=\"\",\"\",VLOOKUP(G7513,Insumos!G:H,2,FALSE))","v":""}]
[null,null,null,null,null,{"$f":"IF(E7514=\"\",\"\",VLOOKUP(E7514,Insumos!AD:AE,2,FALSE))","v":""},null,{"$f":"IF(G7514=\"\",\"\",VLOOKUP(G7514,Insumos!G:H,2,FALSE))","v":""}]
[null,null,null,null,null,{"$f":"IF(E7515=\"\",\"\",VLOOKUP(E7515,Insumos!AD:AE,2,FALSE))","v":""},null,{"$f":"IF(G7515=\"\",\"\",VLOOKUP(G7515,Insumos!G:H,2,FALSE))","v":""}]
[null,null,null,null,null,{"$f":"IF(E7516=\"\",\"\",VLOOKUP(E7516,Insumos!AD:AE,2,FALSE))","v":""},null,{"$f":"IF(G7516=\"\",\"\",VLOOKUP(G7516,Insumos!G:H,2,FALSE))","v":""}]
[null,null,null,null,null,{"$f":"IF(E7517=\"\",\"\",VLOOKUP(E7517,Insumos!AD:AE,2,FALSE))","v":""},null,{"$f":"IF(G7517=\"\",\"\",VLOOKUP(G7517,Insumos!G:H,2,FALSE))","v":""}]
[null,null,null,null,null,{"$f":"IF(E7518=\"\",\"\",VLOOKUP(E7518,Insumos!AD:AE,2,FALSE))","v":""},null,{"$f":"IF(G7518=\"\",\"\",VLOOKUP(G7518,Insumos!G:H,2,FALSE))","v":""}]
[null,null,null,null,null,{"$f":"IF(E7519=\"\",\"\",VLOOKUP(E7519,Insumos!AD:AE,2,FALSE))","v":""},null,{"$f":"IF(G7519=\"\",\"\",VLOOKUP(G7519,Insumos!G:H,2,FALSE))","v":""}]
[null,null,null,null,null,{"$f":"IF(E7520=\"\",\"\",VLOOKUP(E7520,Insumos!AD:AE,2,FALSE))","v":""},null,{"$f":"IF(G7520=\"\",\"\",VLOOKUP(G7520,Insumos!G:H,2,FALSE))","v":""}]
[null,null,null,null,null,{"$f":"IF(E7521=\"\",\"\",VLOOKUP(E7521,Insumos!AD:AE,2,FALSE))","v":""},null,{"$f":"IF(G7521=\"\",\"\",VLOOKUP(G7521,Insumos!G:H,2,FALSE))","v":""}]
[null,null,null,null,null,{"$f":"IF(E7522=\"\",\"\",VLOOKUP(E7522,Insumos!AD:AE,2,FALSE))","v":""},null,{"$f":"IF(G7522=\"\",\"\",VLOOKUP(G7522,Insumos!G:H,2,FALSE))","v":""}]
[null,null,null,null,null,{"$f":"IF(E7523=\"\",\"\",VLOOKUP(E7523,Insumos!AD:AE,2,FALSE))","v":""},null,{"$f":"IF(G7523=\"\",\"\",VLOOKUP(G7523,Insumos!G:H,2,FALSE))","v":""}]
[null,null,null,null,null,{"$f":"IF(E7524=\"\",\"\",VLOOKUP(E7524,Insumos!AD:AE,2,FALSE))","v":""},null,{"$f":"IF(G7524=\"\",\"\",VLOOKUP(G7524,Insumos!G:H,2,FALSE))","v":""}]
[null,null,null,null,null,{"$f":"IF(E7525=\"\",\"\",VLOOKUP(E7525,Insumos!AD:AE,2,FALSE))","v":""},null,{"$f":"IF(G7525=\"\",\"\",VLOOKUP(G7525,Insumos!G:H,2,FALSE))","v":""}]
[null,null,null,null,null,{"$f":"IF(E7526=\"\",\"\",VLOOKUP(E7526,Insumos!AD:AE,2,FALSE))","v":""},null,{"$f":"IF(G7526=\"\",\"\",VLOOKUP(G7526,Insumos!G:H,2,FALSE))","v":""}]
[null,null,null,null,null,{"$f":"IF(E7527=\"\",\"\",VLOOKUP(E7527,Insumos!AD:AE,2,FALSE))","v":""},null,{"$f":"IF(G7527=\"\",\"\",VLOOKUP(G7527,Insumos!G:H,2,FALSE))","v":""}]
[null,null,null,null,null,{"$f":"IF(E7528=\"\",\"\",VLOOKUP(E7528,Insumos!AD:AE,2,FALSE))","v":""},null,{"$f":"IF(G7528=\"\",\"\",VLOOKUP(G7528,Insumos!G:H,2,FALSE))","v":""}]
[null,null,null,null,null,{"$f":"IF(E7529=\"\",\"\",VLOOKUP(E7529,Insumos!AD:AE,2,FALSE))","v":""},null,{"$f":"IF(G7529=\"\",\"\",VLOOKUP(G7529,Insumos!G:H,2,FALSE))","v":""}]
[null,null,null,null,null,{"$f":"IF(E7530=\"\",\"\",VLOOKUP(E7530,Insumos!AD:AE,2,FALSE))","v":""},null,{"$f":"IF(G7530=\"\",\"\",VLOOKUP(G7530,Insumos!G:H,2,FALSE))","v":""}]
[null,null,null,null,null,{"$f":"IF(E7531=\"\",\"\",VLOOKUP(E7531,Insumos!AD:AE,2,FALSE))","v":""},null,{"$f":"IF(G7531=\"\",\"\",VLOOKUP(G7531,Insumos!G:H,2,FALSE))","v":""}]
[null,null,null,null,null,{"$f":"IF(E7532=\"\",\"\",VLOOKUP(E7532,Insumos!AD:AE,2,FALSE))","v":""},null,{"$f":"IF(G7532=\"\",\"\",VLOOKUP(G7532,Insumos!G:H,2,FALSE))","v":""}]
[null,null,null,null,null,{"$f":"IF(E7533=\"\",\"\",VLOOKUP(E7533,Insumos!AD:AE,2,FALSE))","v":""},null,{"$f":"IF(G7533=\"\",\"\",VLOOKUP(G7533,Insumos!G:H,2,FALSE))","v":""}]
[null,null,null,null,null,{"$f":"IF(E7534=\"\",\"\",VLOOKUP(E7534,Insumos!AD:AE,2,FALSE))","v":""},null,{"$f":"IF(G7534=\"\",\"\",VLOOKUP(G7534,Insumos!G:H,2,FALSE))","v":""}]
[null,null,null,null,null,{"$f":"IF(E7535=\"\",\"\",VLOOKUP(E7535,Insumos!AD:AE,2,FALSE))","v":""},null,{"$f":"IF(G7535=\"\",\"\",VLOOKUP(G7535,Insumos!G:H,2,FALSE))","v":""}]
[null,null,null,null,null,{"$f":"IF(E7536=\"\",\"\",VLOOKUP(E7536,Insumos!AD:AE,2,FALSE))","v":""},null,{"$f":"IF(G7536=\"\",\"\",VLOOKUP(G7536,Insumos!G:H,2,FALSE))","v":""}]
[null,null,null,null,null,{"$f":"IF(E7537=\"\",\"\",VLOOKUP(E7537,Insumos!AD:AE,2,FALSE))","v":""},null,{"$f":"IF(G7537=\"\",\"\",VLOOKUP(G7537,Insumos!G:H,2,FALSE))","v":""}]
[null,null,null,null,null,{"$f":"IF(E7538=\"\",\"\",VLOOKUP(E7538,Insumos!AD:AE,2,FALSE))","v":""},null,{"$f":"IF(G7538=\"\",\"\",VLOOKUP(G7538,Insumos!G:H,2,FALSE))","v":""}]
[null,null,null,null,null,{"$f":"IF(E7539=\"\",\"\",VLOOKUP(E7539,Insumos!AD:AE,2,FALSE))","v":""},null,{"$f":"IF(G7539=\"\",\"\",VLOOKUP(G7539,Insumos!G:H,2,FALSE))","v":""}]
[null,null,null,null,null,{"$f":"IF(E7540=\"\",\"\",VLOOKUP(E7540,Insumos!AD:AE,2,FALSE))","v":""},null,{"$f":"IF(G7540=\"\",\"\",VLOOKUP(G7540,Insumos!G:H,2,FALSE))","v":""}]
[null,null,null,null,null,{"$f":"IF(E7541=\"\",\"\",VLOOKUP(E7541,Insumos!AD:AE,2,FALSE))","v":""},null,{"$f":"IF(G7541=\"\",\"\",VLOOKUP(G7541,Insumos!G:H,2,FALSE))","v":""}]
[null,null,null,null,null,{"$f":"IF(E7542=\"\",\"\",VLOOKUP(E7542,Insumos!AD:AE,2,FALSE))","v":""},null,{"$f":"IF(G7542=\"\",\"\",VLOOKUP(G7542,Insumos!G:H,2,FALSE))","v":""}]
[null,null,null,null,null,{"$f":"IF(E7543=\"\",\"\",VLOOKUP(E7543,Insumos!AD:AE,2,FALSE))","v":""},null,{"$f":"IF(G7543=\"\",\"\",VLOOKUP(G7543,Insumos!G:H,2,FALSE))","v":""}]
[null,null,null,null,null,{"$f":"IF(E7544=\"\",\"\",VLOOKUP(E7544,Insumos!AD:AE,2,FALSE))","v":""},null,{"$f":"IF(G7544=\"\",\"\",VLOOKUP(G7544,Insumos!G:H,2,FALSE))","v":""}]
[null,null,null,null,null,{"$f":"IF(E7545=\"\",\"\",VLOOKUP(E7545,Insumos!AD:AE,2,FALSE))","v":""},null,{"$f":"IF(G7545=\"\",\"\",VLOOKUP(G7545,Insumos!G:H,2,FALSE))","v":""}]
[null,null,null,null,null,{"$f":"IF(E7546=\"\",\"\",VLOOKUP(E7546,Insumos!AD:AE,2,FALSE))","v":""},null,{"$f":"IF(G7546=\"\",\"\",VLOOKUP(G7546,Insumos!G:H,2,FALSE))","v":""}]
[null,null,null,null,null,{"$f":"IF(E7547=\"\",\"\",VLOOKUP(E7547,Insumos!AD:AE,2,FALSE))","v":""},null,{"$f":"IF(G7547=\"\",\"\",VLOOKUP(G7547,Insumos!G:H,2,FALSE))","v":""}]
[null,null,null,null,null,{"$f":"IF(E7548=\"\",\"\",VLOOKUP(E7548,Insumos!AD:AE,2,FALSE))","v":""},null,{"$f":"IF(G7548=\"\",\"\",VLOOKUP(G7548,Insumos!G:H,2,FALSE))","v":""}]
[null,null,null,null,null,{"$f":"IF(E7549=\"\",\"\",VLOOKUP(E7549,Insumos!AD:AE,2,FALSE))","v":""},null,{"$f":"IF(G7549=\"\",\"\",VLOOKUP(G7549,Insumos!G:H,2,FALSE))","v":""}]
[null,null,null,null,null,{"$f":"IF(E7550=\"\",\"\",VLOOKUP(E7550,Insumos!AD:AE,2,FALSE))","v":""},null,{"$f":"IF(G7550=\"\",\"\",VLOOKUP(G7550,Insumos!G:H,2,FALSE))","v":""}]
[null,null,null,null,null,{"$f":"IF(E7551=\"\",\"\",VLOOKUP(E7551,Insumos!AD:AE,2,FALSE))","v":""},null,{"$f":"IF(G7551=\"\",\"\",VLOOKUP(G7551,Insumos!G:H,2,FALSE))","v":""}]
[null,null,null,null,null,{"$f":"IF(E7552=\"\",\"\",VLOOKUP(E7552,Insumos!AD:AE,2,FALSE))","v":""},null,{"$f":"IF(G7552=\"\",\"\",VLOOKUP(G7552,Insumos!G:H,2,FALSE))","v":""}]
[null,null,null,null,null,{"$f":"IF(E7553=\"\",\"\",VLOOKUP(E7553,Insumos!AD:AE,2,FALSE))","v":""},null,{"$f":"IF(G7553=\"\",\"\",VLOOKUP(G7553,Insumos!G:H,2,FALSE))","v":""}]
[null,null,null,null,null,{"$f":"IF(E7554=\"\",\"\",VLOOKUP(E7554,Insumos!AD:AE,2,FALSE))","v":""},null,{"$f":"IF(G7554=\"\",\"\",VLOOKUP(G7554,Insumos!G:H,2,FALSE))","v":""}]
[null,null,null,null,null,{"$f":"IF(E7555=\"\",\"\",VLOOKUP(E7555,Insumos!AD:AE,2,FALSE))","v":""},null,{"$f":"IF(G7555=\"\",\"\",VLOOKUP(G7555,Insumos!G:H,2,FALSE))","v":""}]
[null,null,null,null,null,{"$f":"IF(E7556=\"\",\"\",VLOOKUP(E7556,Insumos!AD:AE,2,FALSE))","v":""},null,{"$f":"IF(G7556=\"\",\"\",VLOOKUP(G7556,Insumos!G:H,2,FALSE))","v":""}]
[null,null,null,null,null,{"$f":"IF(E7557=\"\",\"\",VLOOKUP(E7557,Insumos!AD:AE,2,FALSE))","v":""},null,{"$f":"IF(G7557=\"\",\"\",VLOOKUP(G7557,Insumos!G:H,2,FALSE))","v":""}]
[null,null,null,null,null,{"$f":"IF(E7558=\"\",\"\",VLOOKUP(E7558,Insumos!AD:AE,2,FALSE))","v":""},null,{"$f":"IF(G7558=\"\",\"\",VLOOKUP(G7558,Insumos!G:H,2,FALSE))","v":""}]
[null,null,null,null,null,{"$f":"IF(E7559=\"\",\"\",VLOOKUP(E7559,Insumos!AD:AE,2,FALSE))","v":""},null,{"$f":"IF(G7559=\"\",\"\",VLOOKUP(G7559,Insumos!G:H,2,FALSE))","v":""}]
[null,null,null,null,null,{"$f":"IF(E7560=\"\",\"\",VLOOKUP(E7560,Insumos!AD:AE,2,FALSE))","v":""},null,{"$f":"IF(G7560=\"\",\"\",VLOOKUP(G7560,Insumos!G:H,2,FALSE))","v":""}]
[null,null,null,null,null,{"$f":"IF(E7561=\"\",\"\",VLOOKUP(E7561,Insumos!AD:AE,2,FALSE))","v":""},null,{"$f":"IF(G7561=\"\",\"\",VLOOKUP(G7561,Insumos!G:H,2,FALSE))","v":""}]
[null,null,null,null,null,{"$f":"IF(E7562=\"\",\"\",VLOOKUP(E7562,Insumos!AD:AE,2,FALSE))","v":""},null,{"$f":"IF(G7562=\"\",\"\",VLOOKUP(G7562,Insumos!G:H,2,FALSE))","v":""}]
[null,null,null,null,null,{"$f":"IF(E7563=\"\",\"\",VLOOKUP(E7563,Insumos!AD:AE,2,FALSE))","v":""},null,{"$f":"IF(G7563=\"\",\"\",VLOOKUP(G7563,Insumos!G:H,2,FALSE))","v":""}]
[null,null,null,null,null,{"$f":"IF(E7564=\"\",\"\",VLOOKUP(E7564,Insumos!AD:AE,2,FALSE))","v":""},null,{"$f":"IF(G7564=\"\",\"\",VLOOKUP(G7564,Insumos!G:H,2,FALSE))","v":""}]
[null,null,null,null,null,{"$f":"IF(E7565=\"\",\"\",VLOOKUP(E7565,Insumos!AD:AE,2,FALSE))","v":""},null,{"$f":"IF(G7565=\"\",\"\",VLOOKUP(G7565,Insumos!G:H,2,FALSE))","v":""}]
[null,null,null,null,null,{"$f":"IF(E7566=\"\",\"\",VLOOKUP(E7566,Insumos!AD:AE,2,FALSE))","v":""},null,{"$f":"IF(G7566=\"\",\"\",VLOOKUP(G7566,Insumos!G:H,2,FALSE))","v":""}]
[null,null,null,null,null,{"$f":"IF(E7567=\"\",\"\",VLOOKUP(E7567,Insumos!AD:AE,2,FALSE))","v":""},null,{"$f":"IF(G7567=\"\",\"\",VLOOKUP(G7567,Insumos!G:H,2,FALSE))","v":""}]
[null,null,null,null,null,{"$f":"IF(E7568=\"\",\"\",VLOOKUP(E7568,Insumos!AD:AE,2,FALSE))","v":""},null,{"$f":"IF(G7568=\"\",\"\",VLOOKUP(G7568,Insumos!G:H,2,FALSE))","v":""}]
[null,null,null,null,null,{"$f":"IF(E7569=\"\",\"\",VLOOKUP(E7569,Insumos!AD:AE,2,FALSE))","v":""},null,{"$f":"IF(G7569=\"\",\"\",VLOOKUP(G7569,Insumos!G:H,2,FALSE))","v":""}]
[null,null,null,null,null,{"$f":"IF(E7570=\"\",\"\",VLOOKUP(E7570,Insumos!AD:AE,2,FALSE))","v":""},null,{"$f":"IF(G7570=\"\",\"\",VLOOKUP(G7570,Insumos!G:H,2,FALSE))","v":""}]
[null,null,null,null,null,{"$f":"IF(E7571=\"\",\"\",VLOOKUP(E7571,Insumos!AD:AE,2,FALSE))","v":""},null,{"$f":"IF(G7571=\"\",\"\",VLOOKUP(G7571,Insumos!G:H,2,FALSE))","v":""}]
[null,null,null,null,null,{"$f":"IF(E7572=\"\",\"\",VLOOKUP(E7572,Insumos!AD:AE,2,FALSE))","v":""},null,{"$f":"IF(G7572=\"\",\"\",VLOOKUP(G7572,Insumos!G:H,2,FALSE))","v":""}]
[null,null,null,null,null,{"$f":"IF(E7573=\"\",\"\",VLOOKUP(E7573,Insumos!AD:AE,2,FALSE))","v":""},null,{"$f":"IF(G7573=\"\",\"\",VLOOKUP(G7573,Insumos!G:H,2,FALSE))","v":""}]
[null,null,null,null,null,{"$f":"IF(E7574=\"\",\"\",VLOOKUP(E7574,Insumos!AD:AE,2,FALSE))","v":""},null,{"$f":"IF(G7574=\"\",\"\",VLOOKUP(G7574,Insumos!G:H,2,FALSE))","v":""}]
[null,null,null,null,null,{"$f":"IF(E7575=\"\",\"\",VLOOKUP(E7575,Insumos!AD:AE,2,FALSE))","v":""},null,{"$f":"IF(G7575=\"\",\"\",VLOOKUP(G7575,Insumos!G:H,2,FALSE))","v":""}]
[null,null,null,null,null,{"$f":"IF(E7576=\"\",\"\",VLOOKUP(E7576,Insumos!AD:AE,2,FALSE))","v":""},null,{"$f":"IF(G7576=\"\",\"\",VLOOKUP(G7576,Insumos!G:H,2,FALSE))","v":""}]
[null,null,null,null,null,{"$f":"IF(E7577=\"\",\"\",VLOOKUP(E7577,Insumos!AD:AE,2,FALSE))","v":""},null,{"$f":"IF(G7577=\"\",\"\",VLOOKUP(G7577,Insumos!G:H,2,FALSE))","v":""}]
[null,null,null,null,null,{"$f":"IF(E7578=\"\",\"\",VLOOKUP(E7578,Insumos!AD:AE,2,FALSE))","v":""},null,{"$f":"IF(G7578=\"\",\"\",VLOOKUP(G7578,Insumos!G:H,2,FALSE))","v":""}]
[null,null,null,null,null,{"$f":"IF(E7579=\"\",\"\",VLOOKUP(E7579,Insumos!AD:AE,2,FALSE))","v":""},null,{"$f":"IF(G7579=\"\",\"\",VLOOKUP(G7579,Insumos!G:H,2,FALSE))","v":""}]
[null,null,null,null,null,{"$f":"IF(E7580=\"\",\"\",VLOOKUP(E7580,Insumos!AD:AE,2,FALSE))","v":""},null,{"$f":"IF(G7580=\"\",\"\",VLOOKUP(G7580,Insumos!G:H,2,FALSE))","v":""}]
[null,null,null,null,null,{"$f":"IF(E7581=\"\",\"\",VLOOKUP(E7581,Insumos!AD:AE,2,FALSE))","v":""},null,{"$f":"IF(G7581=\"\",\"\",VLOOKUP(G7581,Insumos!G:H,2,FALSE))","v":""}]
[null,null,null,null,null,{"$f":"IF(E7582=\"\",\"\",VLOOKUP(E7582,Insumos!AD:AE,2,FALSE))","v":""},null,{"$f":"IF(G7582=\"\",\"\",VLOOKUP(G7582,Insumos!G:H,2,FALSE))","v":""}]
[null,null,null,null,null,{"$f":"IF(E7583=\"\",\"\",VLOOKUP(E7583,Insumos!AD:AE,2,FALSE))","v":""},null,{"$f":"IF(G7583=\"\",\"\",VLOOKUP(G7583,Insumos!G:H,2,FALSE))","v":""}]
[null,null,null,null,null,{"$f":"IF(E7584=\"\",\"\",VLOOKUP(E7584,Insumos!AD:AE,2,FALSE))","v":""},null,{"$f":"IF(G7584=\"\",\"\",VLOOKUP(G7584,Insumos!G:H,2,FALSE))","v":""}]
[null,null,null,null,null,{"$f":"IF(E7585=\"\",\"\",VLOOKUP(E7585,Insumos!AD:AE,2,FALSE))","v":""},null,{"$f":"IF(G7585=\"\",\"\",VLOOKUP(G7585,Insumos!G:H,2,FALSE))","v":""}]
[null,null,null,null,null,{"$f":"IF(E7586=\"\",\"\",VLOOKUP(E7586,Insumos!AD:AE,2,FALSE))","v":""},null,{"$f":"IF(G7586=\"\",\"\",VLOOKUP(G7586,Insumos!G:H,2,FALSE))","v":""}]
[null,null,null,null,null,{"$f":"IF(E7587=\"\",\"\",VLOOKUP(E7587,Insumos!AD:AE,2,FALSE))","v":""},null,{"$f":"IF(G7587=\"\",\"\",VLOOKUP(G7587,Insumos!G:H,2,FALSE))","v":""}]
[null,null,null,null,null,{"$f":"IF(E7588=\"\",\"\",VLOOKUP(E7588,Insumos!AD:AE,2,FALSE))","v":""},null,{"$f":"IF(G7588=\"\",\"\",VLOOKUP(G7588,Insumos!G:H,2,FALSE))","v":""}]
[null,null,null,null,null,{"$f":"IF(E7589=\"\",\"\",VLOOKUP(E7589,Insumos!AD:AE,2,FALSE))","v":""},null,{"$f":"IF(G7589=\"\",\"\",VLOOKUP(G7589,Insumos!G:H,2,FALSE))","v":""}]
[null,null,null,null,null,{"$f":"IF(E7590=\"\",\"\",VLOOKUP(E7590,Insumos!AD:AE,2,FALSE))","v":""},null,{"$f":"IF(G7590=\"\",\"\",VLOOKUP(G7590,Insumos!G:H,2,FALSE))","v":""}]
[null,null,null,null,null,{"$f":"IF(E7591=\"\",\"\",VLOOKUP(E7591,Insumos!AD:AE,2,FALSE))","v":""},null,{"$f":"IF(G7591=\"\",\"\",VLOOKUP(G7591,Insumos!G:H,2,FALSE))","v":""}]
[null,null,null,null,null,{"$f":"IF(E7592=\"\",\"\",VLOOKUP(E7592,Insumos!AD:AE,2,FALSE))","v":""},null,{"$f":"IF(G7592=\"\",\"\",VLOOKUP(G7592,Insumos!G:H,2,FALSE))","v":""}]
[null,null,null,null,null,{"$f":"IF(E7593=\"\",\"\",VLOOKUP(E7593,Insumos!AD:AE,2,FALSE))","v":""},null,{"$f":"IF(G7593=\"\",\"\",VLOOKUP(G7593,Insumos!G:H,2,FALSE))","v":""}]
[null,null,null,null,null,{"$f":"IF(E7594=\"\",\"\",VLOOKUP(E7594,Insumos!AD:AE,2,FALSE))","v":""},null,{"$f":"IF(G7594=\"\",\"\",VLOOKUP(G7594,Insumos!G:H,2,FALSE))","v":""}]
[null,null,null,null,null,{"$f":"IF(E7595=\"\",\"\",VLOOKUP(E7595,Insumos!AD:AE,2,FALSE))","v":""},null,{"$f":"IF(G7595=\"\",\"\",VLOOKUP(G7595,Insumos!G:H,2,FALSE))","v":""}]
[null,null,null,null,null,{"$f":"IF(E7596=\"\",\"\",VLOOKUP(E7596,Insumos!AD:AE,2,FALSE))","v":""},null,{"$f":"IF(G7596=\"\",\"\",VLOOKUP(G7596,Insumos!G:H,2,FALSE))","v":""}]
[null,null,null,null,null,{"$f":"IF(E7597=\"\",\"\",VLOOKUP(E7597,Insumos!AD:AE,2,FALSE))","v":""},null,{"$f":"IF(G7597=\"\",\"\",VLOOKUP(G7597,Insumos!G:H,2,FALSE))","v":""}]
[null,null,null,null,null,{"$f":"IF(E7598=\"\",\"\",VLOOKUP(E7598,Insumos!AD:AE,2,FALSE))","v":""},null,{"$f":"IF(G7598=\"\",\"\",VLOOKUP(G7598,Insumos!G:H,2,FALSE))","v":""}]
[null,null,null,null,null,{"$f":"IF(E7599=\"\",\"\",VLOOKUP(E7599,Insumos!AD:AE,2,FALSE))","v":""},null,{"$f":"IF(G7599=\"\",\"\",VLOOKUP(G7599,Insumos!G:H,2,FALSE))","v":""}]
[null,null,null,null,null,{"$f":"IF(E7600=\"\",\"\",VLOOKUP(E7600,Insumos!AD:AE,2,FALSE))","v":""},null,{"$f":"IF(G7600=\"\",\"\",VLOOKUP(G7600,Insumos!G:H,2,FALSE))","v":""}]
[null,null,null,null,null,{"$f":"IF(E7601=\"\",\"\",VLOOKUP(E7601,Insumos!AD:AE,2,FALSE))","v":""},null,{"$f":"IF(G7601=\"\",\"\",VLOOKUP(G7601,Insumos!G:H,2,FALSE))","v":""}]
[null,null,null,null,null,{"$f":"IF(E7602=\"\",\"\",VLOOKUP(E7602,Insumos!AD:AE,2,FALSE))","v":""},null,{"$f":"IF(G7602=\"\",\"\",VLOOKUP(G7602,Insumos!G:H,2,FALSE))","v":""}]
[null,null,null,null,null,{"$f":"IF(E7603=\"\",\"\",VLOOKUP(E7603,Insumos!AD:AE,2,FALSE))","v":""},null,{"$f":"IF(G7603=\"\",\"\",VLOOKUP(G7603,Insumos!G:H,2,FALSE))","v":""}]
[null,null,null,null,null,{"$f":"IF(E7604=\"\",\"\",VLOOKUP(E7604,Insumos!AD:AE,2,FALSE))","v":""},null,{"$f":"IF(G7604=\"\",\"\",VLOOKUP(G7604,Insumos!G:H,2,FALSE))","v":""}]
[null,null,null,null,null,{"$f":"IF(E7605=\"\",\"\",VLOOKUP(E7605,Insumos!AD:AE,2,FALSE))","v":""},null,{"$f":"IF(G7605=\"\",\"\",VLOOKUP(G7605,Insumos!G:H,2,FALSE))","v":""}]
[null,null,null,null,null,{"$f":"IF(E7606=\"\",\"\",VLOOKUP(E7606,Insumos!AD:AE,2,FALSE))","v":""},null,{"$f":"IF(G7606=\"\",\"\",VLOOKUP(G7606,Insumos!G:H,2,FALSE))","v":""}]
[null,null,null,null,null,{"$f":"IF(E7607=\"\",\"\",VLOOKUP(E7607,Insumos!AD:AE,2,FALSE))","v":""},null,{"$f":"IF(G7607=\"\",\"\",VLOOKUP(G7607,Insumos!G:H,2,FALSE))","v":""}]
[null,null,null,null,null,{"$f":"IF(E7608=\"\",\"\",VLOOKUP(E7608,Insumos!AD:AE,2,FALSE))","v":""},null,{"$f":"IF(G7608=\"\",\"\",VLOOKUP(G7608,Insumos!G:H,2,FALSE))","v":""}]
[null,null,null,null,null,{"$f":"IF(E7609=\"\",\"\",VLOOKUP(E7609,Insumos!AD:AE,2,FALSE))","v":""},null,{"$f":"IF(G7609=\"\",\"\",VLOOKUP(G7609,Insumos!G:H,2,FALSE))","v":""}]
[null,null,null,null,null,{"$f":"IF(E7610=\"\",\"\",VLOOKUP(E7610,Insumos!AD:AE,2,FALSE))","v":""},null,{"$f":"IF(G7610=\"\",\"\",VLOOKUP(G7610,Insumos!G:H,2,FALSE))","v":""}]
[null,null,null,null,null,{"$f":"IF(E7611=\"\",\"\",VLOOKUP(E7611,Insumos!AD:AE,2,FALSE))","v":""},null,{"$f":"IF(G7611=\"\",\"\",VLOOKUP(G7611,Insumos!G:H,2,FALSE))","v":""}]
[null,null,null,null,null,{"$f":"IF(E7612=\"\",\"\",VLOOKUP(E7612,Insumos!AD:AE,2,FALSE))","v":""},null,{"$f":"IF(G7612=\"\",\"\",VLOOKUP(G7612,Insumos!G:H,2,FALSE))","v":""}]
[null,null,null,null,null,{"$f":"IF(E7613=\"\",\"\",VLOOKUP(E7613,Insumos!AD:AE,2,FALSE))","v":""},null,{"$f":"IF(G7613=\"\",\"\",VLOOKUP(G7613,Insumos!G:H,2,FALSE))","v":""}]
[null,null,null,null,null,{"$f":"IF(E7614=\"\",\"\",VLOOKUP(E7614,Insumos!AD:AE,2,FALSE))","v":""},null,{"$f":"IF(G7614=\"\",\"\",VLOOKUP(G7614,Insumos!G:H,2,FALSE))","v":""}]
[null,null,null,null,null,{"$f":"IF(E7615=\"\",\"\",VLOOKUP(E7615,Insumos!AD:AE,2,FALSE))","v":""},null,{"$f":"IF(G7615=\"\",\"\",VLOOKUP(G7615,Insumos!G:H,2,FALSE))","v":""}]
[null,null,null,null,null,{"$f":"IF(E7616=\"\",\"\",VLOOKUP(E7616,Insumos!AD:AE,2,FALSE))","v":""},null,{"$f":"IF(G7616=\"\",\"\",VLOOKUP(G7616,Insumos!G:H,2,FALSE))","v":""}]
[null,null,null,null,null,{"$f":"IF(E7617=\"\",\"\",VLOOKUP(E7617,Insumos!AD:AE,2,FALSE))","v":""},null,{"$f":"IF(G7617=\"\",\"\",VLOOKUP(G7617,Insumos!G:H,2,FALSE))","v":""}]
[null,null,null,null,null,{"$f":"IF(E7618=\"\",\"\",VLOOKUP(E7618,Insumos!AD:AE,2,FALSE))","v":""},null,{"$f":"IF(G7618=\"\",\"\",VLOOKUP(G7618,Insumos!G:H,2,FALSE))","v":""}]
[null,null,null,null,null,{"$f":"IF(E7619=\"\",\"\",VLOOKUP(E7619,Insumos!AD:AE,2,FALSE))","v":""},null,{"$f":"IF(G7619=\"\",\"\",VLOOKUP(G7619,Insumos!G:H,2,FALSE))","v":""}]
[null,null,null,null,null,{"$f":"IF(E7620=\"\",\"\",VLOOKUP(E7620,Insumos!AD:AE,2,FALSE))","v":""},null,{"$f":"IF(G7620=\"\",\"\",VLOOKUP(G7620,Insumos!G:H,2,FALSE))","v":""}]
[null,null,null,null,null,{"$f":"IF(E7621=\"\",\"\",VLOOKUP(E7621,Insumos!AD:AE,2,FALSE))","v":""},null,{"$f":"IF(G7621=\"\",\"\",VLOOKUP(G7621,Insumos!G:H,2,FALSE))","v":""}]
[null,null,null,null,null,{"$f":"IF(E7622=\"\",\"\",VLOOKUP(E7622,Insumos!AD:AE,2,FALSE))","v":""},null,{"$f":"IF(G7622=\"\",\"\",VLOOKUP(G7622,Insumos!G:H,2,FALSE))","v":""}]
[null,null,null,null,null,{"$f":"IF(E7623=\"\",\"\",VLOOKUP(E7623,Insumos!AD:AE,2,FALSE))","v":""},null,{"$f":"IF(G7623=\"\",\"\",VLOOKUP(G7623,Insumos!G:H,2,FALSE))","v":""}]
[null,null,null,null,null,{"$f":"IF(E7624=\"\",\"\",VLOOKUP(E7624,Insumos!AD:AE,2,FALSE))","v":""},null,{"$f":"IF(G7624=\"\",\"\",VLOOKUP(G7624,Insumos!G:H,2,FALSE))","v":""}]
[null,null,null,null,null,{"$f":"IF(E7625=\"\",\"\",VLOOKUP(E7625,Insumos!AD:AE,2,FALSE))","v":""},null,{"$f":"IF(G7625=\"\",\"\",VLOOKUP(G7625,Insumos!G:H,2,FALSE))","v":""}]
[null,null,null,null,null,{"$f":"IF(E7626=\"\",\"\",VLOOKUP(E7626,Insumos!AD:AE,2,FALSE))","v":""},null,{"$f":"IF(G7626=\"\",\"\",VLOOKUP(G7626,Insumos!G:H,2,FALSE))","v":""}]
[null,null,null,null,null,{"$f":"IF(E7627=\"\",\"\",VLOOKUP(E7627,Insumos!AD:AE,2,FALSE))","v":""},null,{"$f":"IF(G7627=\"\",\"\",VLOOKUP(G7627,Insumos!G:H,2,FALSE))","v":""}]
[null,null,null,null,null,{"$f":"IF(E7628=\"\",\"\",VLOOKUP(E7628,Insumos!AD:AE,2,FALSE))","v":""},null,{"$f":"IF(G7628=\"\",\"\",VLOOKUP(G7628,Insumos!G:H,2,FALSE))","v":""}]
[null,null,null,null,null,{"$f":"IF(E7629=\"\",\"\",VLOOKUP(E7629,Insumos!AD:AE,2,FALSE))","v":""},null,{"$f":"IF(G7629=\"\",\"\",VLOOKUP(G7629,Insumos!G:H,2,FALSE))","v":""}]
[null,null,null,null,null,{"$f":"IF(E7630=\"\",\"\",VLOOKUP(E7630,Insumos!AD:AE,2,FALSE))","v":""},null,{"$f":"IF(G7630=\"\",\"\",VLOOKUP(G7630,Insumos!G:H,2,FALSE))","v":""}]
[null,null,null,null,null,{"$f":"IF(E7631=\"\",\"\",VLOOKUP(E7631,Insumos!AD:AE,2,FALSE))","v":""},null,{"$f":"IF(G7631=\"\",\"\",VLOOKUP(G7631,Insumos!G:H,2,FALSE))","v":""}]
[null,null,null,null,null,{"$f":"IF(E7632=\"\",\"\",VLOOKUP(E7632,Insumos!AD:AE,2,FALSE))","v":""},null,{"$f":"IF(G7632=\"\",\"\",VLOOKUP(G7632,Insumos!G:H,2,FALSE))","v":""}]
[null,null,null,null,null,{"$f":"IF(E7633=\"\",\"\",VLOOKUP(E7633,Insumos!AD:AE,2,FALSE))","v":""},null,{"$f":"IF(G7633=\"\",\"\",VLOOKUP(G7633,Insumos!G:H,2,FALSE))","v":""}]
[null,null,null,null,null,{"$f":"IF(E7634=\"\",\"\",VLOOKUP(E7634,Insumos!AD:AE,2,FALSE))","v":""},null,{"$f":"IF(G7634=\"\",\"\",VLOOKUP(G7634,Insumos!G:H,2,FALSE))","v":""}]
[null,null,null,null,null,{"$f":"IF(E7635=\"\",\"\",VLOOKUP(E7635,Insumos!AD:AE,2,FALSE))","v":""},null,{"$f":"IF(G7635=\"\",\"\",VLOOKUP(G7635,Insumos!G:H,2,FALSE))","v":""}]
[null,null,null,null,null,{"$f":"IF(E7636=\"\",\"\",VLOOKUP(E7636,Insumos!AD:AE,2,FALSE))","v":""},null,{"$f":"IF(G7636=\"\",\"\",VLOOKUP(G7636,Insumos!G:H,2,FALSE))","v":""}]
[null,null,null,null,null,{"$f":"IF(E7637=\"\",\"\",VLOOKUP(E7637,Insumos!AD:AE,2,FALSE))","v":""},null,{"$f":"IF(G7637=\"\",\"\",VLOOKUP(G7637,Insumos!G:H,2,FALSE))","v":""}]
[null,null,null,null,null,{"$f":"IF(E7638=\"\",\"\",VLOOKUP(E7638,Insumos!AD:AE,2,FALSE))","v":""},null,{"$f":"IF(G7638=\"\",\"\",VLOOKUP(G7638,Insumos!G:H,2,FALSE))","v":""}]
[null,null,null,null,null,{"$f":"IF(E7639=\"\",\"\",VLOOKUP(E7639,Insumos!AD:AE,2,FALSE))","v":""},null,{"$f":"IF(G7639=\"\",\"\",VLOOKUP(G7639,Insumos!G:H,2,FALSE))","v":""}]
[null,null,null,null,null,{"$f":"IF(E7640=\"\",\"\",VLOOKUP(E7640,Insumos!AD:AE,2,FALSE))","v":""},null,{"$f":"IF(G7640=\"\",\"\",VLOOKUP(G7640,Insumos!G:H,2,FALSE))","v":""}]
[null,null,null,null,null,{"$f":"IF(E7641=\"\",\"\",VLOOKUP(E7641,Insumos!AD:AE,2,FALSE))","v":""},null,{"$f":"IF(G7641=\"\",\"\",VLOOKUP(G7641,Insumos!G:H,2,FALSE))","v":""}]
[null,null,null,null,null,{"$f":"IF(E7642=\"\",\"\",VLOOKUP(E7642,Insumos!AD:AE,2,FALSE))","v":""},null,{"$f":"IF(G7642=\"\",\"\",VLOOKUP(G7642,Insumos!G:H,2,FALSE))","v":""}]
[null,null,null,null,null,{"$f":"IF(E7643=\"\",\"\",VLOOKUP(E7643,Insumos!AD:AE,2,FALSE))","v":""},null,{"$f":"IF(G7643=\"\",\"\",VLOOKUP(G7643,Insumos!G:H,2,FALSE))","v":""}]
[null,null,null,null,null,{"$f":"IF(E7644=\"\",\"\",VLOOKUP(E7644,Insumos!AD:AE,2,FALSE))","v":""},null,{"$f":"IF(G7644=\"\",\"\",VLOOKUP(G7644,Insumos!G:H,2,FALSE))","v":""}]
[null,null,null,null,null,{"$f":"IF(E7645=\"\",\"\",VLOOKUP(E7645,Insumos!AD:AE,2,FALSE))","v":""},null,{"$f":"IF(G7645=\"\",\"\",VLOOKUP(G7645,Insumos!G:H,2,FALSE))","v":""}]
[null,null,null,null,null,{"$f":"IF(E7646=\"\",\"\",VLOOKUP(E7646,Insumos!AD:AE,2,FALSE))","v":""},null,{"$f":"IF(G7646=\"\",\"\",VLOOKUP(G7646,Insumos!G:H,2,FALSE))","v":""}]
[null,null,null,null,null,{"$f":"IF(E7647=\"\",\"\",VLOOKUP(E7647,Insumos!AD:AE,2,FALSE))","v":""},null,{"$f":"IF(G7647=\"\",\"\",VLOOKUP(G7647,Insumos!G:H,2,FALSE))","v":""}]
[null,null,null,null,null,{"$f":"IF(E7648=\"\",\"\",VLOOKUP(E7648,Insumos!AD:AE,2,FALSE))","v":""},null,{"$f":"IF(G7648=\"\",\"\",VLOOKUP(G7648,Insumos!G:H,2,FALSE))","v":""}]
[null,null,null,null,null,{"$f":"IF(E7649=\"\",\"\",VLOOKUP(E7649,Insumos!AD:AE,2,FALSE))","v":""},null,{"$f":"IF(G7649=\"\",\"\",VLOOKUP(G7649,Insumos!G:H,2,FALSE))","v":""}]
[null,null,null,null,null,{"$f":"IF(E7650=\"\",\"\",VLOOKUP(E7650,Insumos!AD:AE,2,FALSE))","v":""},null,{"$f":"IF(G7650=\"\",\"\",VLOOKUP(G7650,Insumos!G:H,2,FALSE))","v":""}]
[null,null,null,null,null,{"$f":"IF(E7651=\"\",\"\",VLOOKUP(E7651,Insumos!AD:AE,2,FALSE))","v":""},null,{"$f":"IF(G7651=\"\",\"\",VLOOKUP(G7651,Insumos!G:H,2,FALSE))","v":""}]
[null,null,null,null,null,{"$f":"IF(E7652=\"\",\"\",VLOOKUP(E7652,Insumos!AD:AE,2,FALSE))","v":""},null,{"$f":"IF(G7652=\"\",\"\",VLOOKUP(G7652,Insumos!G:H,2,FALSE))","v":""}]
[null,null,null,null,null,{"$f":"IF(E7653=\"\",\"\",VLOOKUP(E7653,Insumos!AD:AE,2,FALSE))","v":""},null,{"$f":"IF(G7653=\"\",\"\",VLOOKUP(G7653,Insumos!G:H,2,FALSE))","v":""}]
[null,null,null,null,null,{"$f":"IF(E7654=\"\",\"\",VLOOKUP(E7654,Insumos!AD:AE,2,FALSE))","v":""},null,{"$f":"IF(G7654=\"\",\"\",VLOOKUP(G7654,Insumos!G:H,2,FALSE))","v":""}]
[null,null,null,null,null,{"$f":"IF(E7655=\"\",\"\",VLOOKUP(E7655,Insumos!AD:AE,2,FALSE))","v":""},null,{"$f":"IF(G7655=\"\",\"\",VLOOKUP(G7655,Insumos!G:H,2,FALSE))","v":""}]
[null,null,null,null,null,{"$f":"IF(E7656=\"\",\"\",VLOOKUP(E7656,Insumos!AD:AE,2,FALSE))","v":""},null,{"$f":"IF(G7656=\"\",\"\",VLOOKUP(G7656,Insumos!G:H,2,FALSE))","v":""}]
[null,null,null,null,null,{"$f":"IF(E7657=\"\",\"\",VLOOKUP(E7657,Insumos!AD:AE,2,FALSE))","v":""},null,{"$f":"IF(G7657=\"\",\"\",VLOOKUP(G7657,Insumos!G:H,2,FALSE))","v":""}]
[null,null,null,null,null,{"$f":"IF(E7658=\"\",\"\",VLOOKUP(E7658,Insumos!AD:AE,2,FALSE))","v":""},null,{"$f":"IF(G7658=\"\",\"\",VLOOKUP(G7658,Insumos!G:H,2,FALSE))","v":""}]
[null,null,null,null,null,{"$f":"IF(E7659=\"\",\"\",VLOOKUP(E7659,Insumos!AD:AE,2,FALSE))","v":""},null,{"$f":"IF(G7659=\"\",\"\",VLOOKUP(G7659,Insumos!G:H,2,FALSE))","v":""}]
[null,null,null,null,null,{"$f":"IF(E7660=\"\",\"\",VLOOKUP(E7660,Insumos!AD:AE,2,FALSE))","v":""},null,{"$f":"IF(G7660=\"\",\"\",VLOOKUP(G7660,Insumos!G:H,2,FALSE))","v":""}]
[null,null,null,null,null,{"$f":"IF(E7661=\"\",\"\",VLOOKUP(E7661,Insumos!AD:AE,2,FALSE))","v":""},null,{"$f":"IF(G7661=\"\",\"\",VLOOKUP(G7661,Insumos!G:H,2,FALSE))","v":""}]
[null,null,null,null,null,{"$f":"IF(E7662=\"\",\"\",VLOOKUP(E7662,Insumos!AD:AE,2,FALSE))","v":""},null,{"$f":"IF(G7662=\"\",\"\",VLOOKUP(G7662,Insumos!G:H,2,FALSE))","v":""}]
[null,null,null,null,null,{"$f":"IF(E7663=\"\",\"\",VLOOKUP(E7663,Insumos!AD:AE,2,FALSE))","v":""},null,{"$f":"IF(G7663=\"\",\"\",VLOOKUP(G7663,Insumos!G:H,2,FALSE))","v":""}]
[null,null,null,null,null,{"$f":"IF(E7664=\"\",\"\",VLOOKUP(E7664,Insumos!AD:AE,2,FALSE))","v":""},null,{"$f":"IF(G7664=\"\",\"\",VLOOKUP(G7664,Insumos!G:H,2,FALSE))","v":""}]
[null,null,null,null,null,{"$f":"IF(E7665=\"\",\"\",VLOOKUP(E7665,Insumos!AD:AE,2,FALSE))","v":""},null,{"$f":"IF(G7665=\"\",\"\",VLOOKUP(G7665,Insumos!G:H,2,FALSE))","v":""}]
[null,null,null,null,null,{"$f":"IF(E7666=\"\",\"\",VLOOKUP(E7666,Insumos!AD:AE,2,FALSE))","v":""},null,{"$f":"IF(G7666=\"\",\"\",VLOOKUP(G7666,Insumos!G:H,2,FALSE))","v":""}]
[null,null,null,null,null,{"$f":"IF(E7667=\"\",\"\",VLOOKUP(E7667,Insumos!AD:AE,2,FALSE))","v":""},null,{"$f":"IF(G7667=\"\",\"\",VLOOKUP(G7667,Insumos!G:H,2,FALSE))","v":""}]
[null,null,null,null,null,{"$f":"IF(E7668=\"\",\"\",VLOOKUP(E7668,Insumos!AD:AE,2,FALSE))","v":""},null,{"$f":"IF(G7668=\"\",\"\",VLOOKUP(G7668,Insumos!G:H,2,FALSE))","v":""}]
[null,null,null,null,null,{"$f":"IF(E7669=\"\",\"\",VLOOKUP(E7669,Insumos!AD:AE,2,FALSE))","v":""},null,{"$f":"IF(G7669=\"\",\"\",VLOOKUP(G7669,Insumos!G:H,2,FALSE))","v":""}]
[null,null,null,null,null,{"$f":"IF(E7670=\"\",\"\",VLOOKUP(E7670,Insumos!AD:AE,2,FALSE))","v":""},null,{"$f":"IF(G7670=\"\",\"\",VLOOKUP(G7670,Insumos!G:H,2,FALSE))","v":""}]
[null,null,null,null,null,{"$f":"IF(E7671=\"\",\"\",VLOOKUP(E7671,Insumos!AD:AE,2,FALSE))","v":""},null,{"$f":"IF(G7671=\"\",\"\",VLOOKUP(G7671,Insumos!G:H,2,FALSE))","v":""}]
[null,null,null,null,null,{"$f":"IF(E7672=\"\",\"\",VLOOKUP(E7672,Insumos!AD:AE,2,FALSE))","v":""},null,{"$f":"IF(G7672=\"\",\"\",VLOOKUP(G7672,Insumos!G:H,2,FALSE))","v":""}]
[null,null,null,null,null,{"$f":"IF(E7673=\"\",\"\",VLOOKUP(E7673,Insumos!AD:AE,2,FALSE))","v":""},null,{"$f":"IF(G7673=\"\",\"\",VLOOKUP(G7673,Insumos!G:H,2,FALSE))","v":""}]
[null,null,null,null,null,{"$f":"IF(E7674=\"\",\"\",VLOOKUP(E7674,Insumos!AD:AE,2,FALSE))","v":""},null,{"$f":"IF(G7674=\"\",\"\",VLOOKUP(G7674,Insumos!G:H,2,FALSE))","v":""}]
[null,null,null,null,null,{"$f":"IF(E7675=\"\",\"\",VLOOKUP(E7675,Insumos!AD:AE,2,FALSE))","v":""},null,{"$f":"IF(G7675=\"\",\"\",VLOOKUP(G7675,Insumos!G:H,2,FALSE))","v":""}]
[null,null,null,null,null,{"$f":"IF(E7676=\"\",\"\",VLOOKUP(E7676,Insumos!AD:AE,2,FALSE))","v":""},null,{"$f":"IF(G7676=\"\",\"\",VLOOKUP(G7676,Insumos!G:H,2,FALSE))","v":""}]
[null,null,null,null,null,{"$f":"IF(E7677=\"\",\"\",VLOOKUP(E7677,Insumos!AD:AE,2,FALSE))","v":""},null,{"$f":"IF(G7677=\"\",\"\",VLOOKUP(G7677,Insumos!G:H,2,FALSE))","v":""}]
[null,null,null,null,null,{"$f":"IF(E7678=\"\",\"\",VLOOKUP(E7678,Insumos!AD:AE,2,FALSE))","v":""},null,{"$f":"IF(G7678=\"\",\"\",VLOOKUP(G7678,Insumos!G:H,2,FALSE))","v":""}]
[null,null,null,null,null,{"$f":"IF(E7679=\"\",\"\",VLOOKUP(E7679,Insumos!AD:AE,2,FALSE))","v":""},null,{"$f":"IF(G7679=\"\",\"\",VLOOKUP(G7679,Insumos!G:H,2,FALSE))","v":""}]
[null,null,null,null,null,{"$f":"IF(E7680=\"\",\"\",VLOOKUP(E7680,Insumos!AD:AE,2,FALSE))","v":""},null,{"$f":"IF(G7680=\"\",\"\",VLOOKUP(G7680,Insumos!G:H,2,FALSE))","v":""}]
[null,null,null,null,null,{"$f":"IF(E7681=\"\",\"\",VLOOKUP(E7681,Insumos!AD:AE,2,FALSE))","v":""},null,{"$f":"IF(G7681=\"\",\"\",VLOOKUP(G7681,Insumos!G:H,2,FALSE))","v":""}]
[null,null,null,null,null,{"$f":"IF(E7682=\"\",\"\",VLOOKUP(E7682,Insumos!AD:AE,2,FALSE))","v":""},null,{"$f":"IF(G7682=\"\",\"\",VLOOKUP(G7682,Insumos!G:H,2,FALSE))","v":""}]
[null,null,null,null,null,{"$f":"IF(E7683=\"\",\"\",VLOOKUP(E7683,Insumos!AD:AE,2,FALSE))","v":""},null,{"$f":"IF(G7683=\"\",\"\",VLOOKUP(G7683,Insumos!G:H,2,FALSE))","v":""}]
[null,null,null,null,null,{"$f":"IF(E7684=\"\",\"\",VLOOKUP(E7684,Insumos!AD:AE,2,FALSE))","v":""},null,{"$f":"IF(G7684=\"\",\"\",VLOOKUP(G7684,Insumos!G:H,2,FALSE))","v":""}]
[null,null,null,null,null,{"$f":"IF(E7685=\"\",\"\",VLOOKUP(E7685,Insumos!AD:AE,2,FALSE))","v":""},null,{"$f":"IF(G7685=\"\",\"\",VLOOKUP(G7685,Insumos!G:H,2,FALSE))","v":""}]
[null,null,null,null,null,{"$f":"IF(E7686=\"\",\"\",VLOOKUP(E7686,Insumos!AD:AE,2,FALSE))","v":""},null,{"$f":"IF(G7686=\"\",\"\",VLOOKUP(G7686,Insumos!G:H,2,FALSE))","v":""}]
[null,null,null,null,null,{"$f":"IF(E7687=\"\",\"\",VLOOKUP(E7687,Insumos!AD:AE,2,FALSE))","v":""},null,{"$f":"IF(G7687=\"\",\"\",VLOOKUP(G7687,Insumos!G:H,2,FALSE))","v":""}]
[null,null,null,null,null,{"$f":"IF(E7688=\"\",\"\",VLOOKUP(E7688,Insumos!AD:AE,2,FALSE))","v":""},null,{"$f":"IF(G7688=\"\",\"\",VLOOKUP(G7688,Insumos!G:H,2,FALSE))","v":""}]
[null,null,null,null,null,{"$f":"IF(E7689=\"\",\"\",VLOOKUP(E7689,Insumos!AD:AE,2,FALSE))","v":""},null,{"$f":"IF(G7689=\"\",\"\",VLOOKUP(G7689,Insumos!G:H,2,FALSE))","v":""}]
[null,null,null,null,null,{"$f":"IF(E7690=\"\",\"\",VLOOKUP(E7690,Insumos!AD:AE,2,FALSE))","v":""},null,{"$f":"IF(G7690=\"\",\"\",VLOOKUP(G7690,Insumos!G:H,2,FALSE))","v":""}]
[null,null,null,null,null,{"$f":"IF(E7691=\"\",\"\",VLOOKUP(E7691,Insumos!AD:AE,2,FALSE))","v":""},null,{"$f":"IF(G7691=\"\",\"\",VLOOKUP(G7691,Insumos!G:H,2,FALSE))","v":""}]
[null,null,null,null,null,{"$f":"IF(E7692=\"\",\"\",VLOOKUP(E7692,Insumos!AD:AE,2,FALSE))","v":""},null,{"$f":"IF(G7692=\"\",\"\",VLOOKUP(G7692,Insumos!G:H,2,FALSE))","v":""}]
[null,null,null,null,null,{"$f":"IF(E7693=\"\",\"\",VLOOKUP(E7693,Insumos!AD:AE,2,FALSE))","v":""},null,{"$f":"IF(G7693=\"\",\"\",VLOOKUP(G7693,Insumos!G:H,2,FALSE))","v":""}]
[null,null,null,null,null,{"$f":"IF(E7694=\"\",\"\",VLOOKUP(E7694,Insumos!AD:AE,2,FALSE))","v":""},null,{"$f":"IF(G7694=\"\",\"\",VLOOKUP(G7694,Insumos!G:H,2,FALSE))","v":""}]
[null,null,null,null,null,{"$f":"IF(E7695=\"\",\"\",VLOOKUP(E7695,Insumos!AD:AE,2,FALSE))","v":""},null,{"$f":"IF(G7695=\"\",\"\",VLOOKUP(G7695,Insumos!G:H,2,FALSE))","v":""}]
[null,null,null,null,null,{"$f":"IF(E7696=\"\",\"\",VLOOKUP(E7696,Insumos!AD:AE,2,FALSE))","v":""},null,{"$f":"IF(G7696=\"\",\"\",VLOOKUP(G7696,Insumos!G:H,2,FALSE))","v":""}]
[null,null,null,null,null,{"$f":"IF(E7697=\"\",\"\",VLOOKUP(E7697,Insumos!AD:AE,2,FALSE))","v":""},null,{"$f":"IF(G7697=\"\",\"\",VLOOKUP(G7697,Insumos!G:H,2,FALSE))","v":""}]
[null,null,null,null,null,{"$f":"IF(E7698=\"\",\"\",VLOOKUP(E7698,Insumos!AD:AE,2,FALSE))","v":""},null,{"$f":"IF(G7698=\"\",\"\",VLOOKUP(G7698,Insumos!G:H,2,FALSE))","v":""}]
[null,null,null,null,null,{"$f":"IF(E7699=\"\",\"\",VLOOKUP(E7699,Insumos!AD:AE,2,FALSE))","v":""},null,{"$f":"IF(G7699=\"\",\"\",VLOOKUP(G7699,Insumos!G:H,2,FALSE))","v":""}]
[null,null,null,null,null,{"$f":"IF(E7700=\"\",\"\",VLOOKUP(E7700,Insumos!AD:AE,2,FALSE))","v":""},null,{"$f":"IF(G7700=\"\",\"\",VLOOKUP(G7700,Insumos!G:H,2,FALSE))","v":""}]
[null,null,null,null,null,{"$f":"IF(E7701=\"\",\"\",VLOOKUP(E7701,Insumos!AD:AE,2,FALSE))","v":""},null,{"$f":"IF(G7701=\"\",\"\",VLOOKUP(G7701,Insumos!G:H,2,FALSE))","v":""}]
[null,null,null,null,null,{"$f":"IF(E7702=\"\",\"\",VLOOKUP(E7702,Insumos!AD:AE,2,FALSE))","v":""},null,{"$f":"IF(G7702=\"\",\"\",VLOOKUP(G7702,Insumos!G:H,2,FALSE))","v":""}]
[null,null,null,null,null,{"$f":"IF(E7703=\"\",\"\",VLOOKUP(E7703,Insumos!AD:AE,2,FALSE))","v":""},null,{"$f":"IF(G7703=\"\",\"\",VLOOKUP(G7703,Insumos!G:H,2,FALSE))","v":""}]
[null,null,null,null,null,{"$f":"IF(E7704=\"\",\"\",VLOOKUP(E7704,Insumos!AD:AE,2,FALSE))","v":""},null,{"$f":"IF(G7704=\"\",\"\",VLOOKUP(G7704,Insumos!G:H,2,FALSE))","v":""}]
[null,null,null,null,null,{"$f":"IF(E7705=\"\",\"\",VLOOKUP(E7705,Insumos!AD:AE,2,FALSE))","v":""},null,{"$f":"IF(G7705=\"\",\"\",VLOOKUP(G7705,Insumos!G:H,2,FALSE))","v":""}]
[null,null,null,null,null,{"$f":"IF(E7706=\"\",\"\",VLOOKUP(E7706,Insumos!AD:AE,2,FALSE))","v":""},null,{"$f":"IF(G7706=\"\",\"\",VLOOKUP(G7706,Insumos!G:H,2,FALSE))","v":""}]
[null,null,null,null,null,{"$f":"IF(E7707=\"\",\"\",VLOOKUP(E7707,Insumos!AD:AE,2,FALSE))","v":""},null,{"$f":"IF(G7707=\"\",\"\",VLOOKUP(G7707,Insumos!G:H,2,FALSE))","v":""}]
[null,null,null,null,null,{"$f":"IF(E7708=\"\",\"\",VLOOKUP(E7708,Insumos!AD:AE,2,FALSE))","v":""},null,{"$f":"IF(G7708=\"\",\"\",VLOOKUP(G7708,Insumos!G:H,2,FALSE))","v":""}]
[null,null,null,null,null,{"$f":"IF(E7709=\"\",\"\",VLOOKUP(E7709,Insumos!AD:AE,2,FALSE))","v":""},null,{"$f":"IF(G7709=\"\",\"\",VLOOKUP(G7709,Insumos!G:H,2,FALSE))","v":""}]
[null,null,null,null,null,{"$f":"IF(E7710=\"\",\"\",VLOOKUP(E7710,Insumos!AD:AE,2,FALSE))","v":""},null,{"$f":"IF(G7710=\"\",\"\",VLOOKUP(G7710,Insumos!G:H,2,FALSE))","v":""}]
[null,null,null,null,null,{"$f":"IF(E7711=\"\",\"\",VLOOKUP(E7711,Insumos!AD:AE,2,FALSE))","v":""},null,{"$f":"IF(G7711=\"\",\"\",VLOOKUP(G7711,Insumos!G:H,2,FALSE))","v":""}]
[null,null,null,null,null,{"$f":"IF(E7712=\"\",\"\",VLOOKUP(E7712,Insumos!AD:AE,2,FALSE))","v":""},null,{"$f":"IF(G7712=\"\",\"\",VLOOKUP(G7712,Insumos!G:H,2,FALSE))","v":""}]
[null,null,null,null,null,{"$f":"IF(E7713=\"\",\"\",VLOOKUP(E7713,Insumos!AD:AE,2,FALSE))","v":""},null,{"$f":"IF(G7713=\"\",\"\",VLOOKUP(G7713,Insumos!G:H,2,FALSE))","v":""}]
[null,null,null,null,null,{"$f":"IF(E7714=\"\",\"\",VLOOKUP(E7714,Insumos!AD:AE,2,FALSE))","v":""},null,{"$f":"IF(G7714=\"\",\"\",VLOOKUP(G7714,Insumos!G:H,2,FALSE))","v":""}]
[null,null,null,null,null,{"$f":"IF(E7715=\"\",\"\",VLOOKUP(E7715,Insumos!AD:AE,2,FALSE))","v":""},null,{"$f":"IF(G7715=\"\",\"\",VLOOKUP(G7715,Insumos!G:H,2,FALSE))","v":""}]
[null,null,null,null,null,{"$f":"IF(E7716=\"\",\"\",VLOOKUP(E7716,Insumos!AD:AE,2,FALSE))","v":""},null,{"$f":"IF(G7716=\"\",\"\",VLOOKUP(G7716,Insumos!G:H,2,FALSE))","v":""}]
[null,null,null,null,null,{"$f":"IF(E7717=\"\",\"\",VLOOKUP(E7717,Insumos!AD:AE,2,FALSE))","v":""},null,{"$f":"IF(G7717=\"\",\"\",VLOOKUP(G7717,Insumos!G:H,2,FALSE))","v":""}]
[null,null,null,null,null,{"$f":"IF(E7718=\"\",\"\",VLOOKUP(E7718,Insumos!AD:AE,2,FALSE))","v":""},null,{"$f":"IF(G7718=\"\",\"\",VLOOKUP(G7718,Insumos!G:H,2,FALSE))","v":""}]
[null,null,null,null,null,{"$f":"IF(E7719=\"\",\"\",VLOOKUP(E7719,Insumos!AD:AE,2,FALSE))","v":""},null,{"$f":"IF(G7719=\"\",\"\",VLOOKUP(G7719,Insumos!G:H,2,FALSE))","v":""}]
[null,null,null,null,null,{"$f":"IF(E7720=\"\",\"\",VLOOKUP(E7720,Insumos!AD:AE,2,FALSE))","v":""},null,{"$f":"IF(G7720=\"\",\"\",VLOOKUP(G7720,Insumos!G:H,2,FALSE))","v":""}]
[null,null,null,null,null,{"$f":"IF(E7721=\"\",\"\",VLOOKUP(E7721,Insumos!AD:AE,2,FALSE))","v":""},null,{"$f":"IF(G7721=\"\",\"\",VLOOKUP(G7721,Insumos!G:H,2,FALSE))","v":""}]
[null,null,null,null,null,{"$f":"IF(E7722=\"\",\"\",VLOOKUP(E7722,Insumos!AD:AE,2,FALSE))","v":""},null,{"$f":"IF(G7722=\"\",\"\",VLOOKUP(G7722,Insumos!G:H,2,FALSE))","v":""}]
[null,null,null,null,null,{"$f":"IF(E7723=\"\",\"\",VLOOKUP(E7723,Insumos!AD:AE,2,FALSE))","v":""},null,{"$f":"IF(G7723=\"\",\"\",VLOOKUP(G7723,Insumos!G:H,2,FALSE))","v":""}]
[null,null,null,null,null,{"$f":"IF(E7724=\"\",\"\",VLOOKUP(E7724,Insumos!AD:AE,2,FALSE))","v":""},null,{"$f":"IF(G7724=\"\",\"\",VLOOKUP(G7724,Insumos!G:H,2,FALSE))","v":""}]
[null,null,null,null,null,{"$f":"IF(E7725=\"\",\"\",VLOOKUP(E7725,Insumos!AD:AE,2,FALSE))","v":""},null,{"$f":"IF(G7725=\"\",\"\",VLOOKUP(G7725,Insumos!G:H,2,FALSE))","v":""}]
[null,null,null,null,null,{"$f":"IF(E7726=\"\",\"\",VLOOKUP(E7726,Insumos!AD:AE,2,FALSE))","v":""},null,{"$f":"IF(G7726=\"\",\"\",VLOOKUP(G7726,Insumos!G:H,2,FALSE))","v":""}]
[null,null,null,null,null,{"$f":"IF(E7727=\"\",\"\",VLOOKUP(E7727,Insumos!AD:AE,2,FALSE))","v":""},null,{"$f":"IF(G7727=\"\",\"\",VLOOKUP(G7727,Insumos!G:H,2,FALSE))","v":""}]
[null,null,null,null,null,{"$f":"IF(E7728=\"\",\"\",VLOOKUP(E7728,Insumos!AD:AE,2,FALSE))","v":""},null,{"$f":"IF(G7728=\"\",\"\",VLOOKUP(G7728,Insumos!G:H,2,FALSE))","v":""}]
[null,null,null,null,null,{"$f":"IF(E7729=\"\",\"\",VLOOKUP(E7729,Insumos!AD:AE,2,FALSE))","v":""},null,{"$f":"IF(G7729=\"\",\"\",VLOOKUP(G7729,Insumos!G:H,2,FALSE))","v":""}]
[null,null,null,null,null,{"$f":"IF(E7730=\"\",\"\",VLOOKUP(E7730,Insumos!AD:AE,2,FALSE))","v":""},null,{"$f":"IF(G7730=\"\",\"\",VLOOKUP(G7730,Insumos!G:H,2,FALSE))","v":""}]
[null,null,null,null,null,{"$f":"IF(E7731=\"\",\"\",VLOOKUP(E7731,Insumos!AD:AE,2,FALSE))","v":""},null,{"$f":"IF(G7731=\"\",\"\",VLOOKUP(G7731,Insumos!G:H,2,FALSE))","v":""}]
[null,null,null,null,null,{"$f":"IF(E7732=\"\",\"\",VLOOKUP(E7732,Insumos!AD:AE,2,FALSE))","v":""},null,{"$f":"IF(G7732=\"\",\"\",VLOOKUP(G7732,Insumos!G:H,2,FALSE))","v":""}]
[null,null,null,null,null,{"$f":"IF(E7733=\"\",\"\",VLOOKUP(E7733,Insumos!AD:AE,2,FALSE))","v":""},null,{"$f":"IF(G7733=\"\",\"\",VLOOKUP(G7733,Insumos!G:H,2,FALSE))","v":""}]
[null,null,null,null,null,{"$f":"IF(E7734=\"\",\"\",VLOOKUP(E7734,Insumos!AD:AE,2,FALSE))","v":""},null,{"$f":"IF(G7734=\"\",\"\",VLOOKUP(G7734,Insumos!G:H,2,FALSE))","v":""}]
[null,null,null,null,null,{"$f":"IF(E7735=\"\",\"\",VLOOKUP(E7735,Insumos!AD:AE,2,FALSE))","v":""},null,{"$f":"IF(G7735=\"\",\"\",VLOOKUP(G7735,Insumos!G:H,2,FALSE))","v":""}]
[null,null,null,null,null,{"$f":"IF(E7736=\"\",\"\",VLOOKUP(E7736,Insumos!AD:AE,2,FALSE))","v":""},null,{"$f":"IF(G7736=\"\",\"\",VLOOKUP(G7736,Insumos!G:H,2,FALSE))","v":""}]
[null,null,null,null,null,{"$f":"IF(E7737=\"\",\"\",VLOOKUP(E7737,Insumos!AD:AE,2,FALSE))","v":""},null,{"$f":"IF(G7737=\"\",\"\",VLOOKUP(G7737,Insumos!G:H,2,FALSE))","v":""}]
[null,null,null,null,null,{"$f":"IF(E7738=\"\",\"\",VLOOKUP(E7738,Insumos!AD:AE,2,FALSE))","v":""},null,{"$f":"IF(G7738=\"\",\"\",VLOOKUP(G7738,Insumos!G:H,2,FALSE))","v":""}]
[null,null,null,null,null,{"$f":"IF(E7739=\"\",\"\",VLOOKUP(E7739,Insumos!AD:AE,2,FALSE))","v":""},null,{"$f":"IF(G7739=\"\",\"\",VLOOKUP(G7739,Insumos!G:H,2,FALSE))","v":""}]
[null,null,null,null,null,{"$f":"IF(E7740=\"\",\"\",VLOOKUP(E7740,Insumos!AD:AE,2,FALSE))","v":""},null,{"$f":"IF(G7740=\"\",\"\",VLOOKUP(G7740,Insumos!G:H,2,FALSE))","v":""}]
[null,null,null,null,null,{"$f":"IF(E7741=\"\",\"\",VLOOKUP(E7741,Insumos!AD:AE,2,FALSE))","v":""},null,{"$f":"IF(G7741=\"\",\"\",VLOOKUP(G7741,Insumos!G:H,2,FALSE))","v":""}]
[null,null,null,null,null,{"$f":"IF(E7742=\"\",\"\",VLOOKUP(E7742,Insumos!AD:AE,2,FALSE))","v":""},null,{"$f":"IF(G7742=\"\",\"\",VLOOKUP(G7742,Insumos!G:H,2,FALSE))","v":""}]
[null,null,null,null,null,{"$f":"IF(E7743=\"\",\"\",VLOOKUP(E7743,Insumos!AD:AE,2,FALSE))","v":""},null,{"$f":"IF(G7743=\"\",\"\",VLOOKUP(G7743,Insumos!G:H,2,FALSE))","v":""}]
[null,null,null,null,null,{"$f":"IF(E7744=\"\",\"\",VLOOKUP(E7744,Insumos!AD:AE,2,FALSE))","v":""},null,{"$f":"IF(G7744=\"\",\"\",VLOOKUP(G7744,Insumos!G:H,2,FALSE))","v":""}]
[null,null,null,null,null,{"$f":"IF(E7745=\"\",\"\",VLOOKUP(E7745,Insumos!AD:AE,2,FALSE))","v":""},null,{"$f":"IF(G7745=\"\",\"\",VLOOKUP(G7745,Insumos!G:H,2,FALSE))","v":""}]
[null,null,null,null,null,{"$f":"IF(E7746=\"\",\"\",VLOOKUP(E7746,Insumos!AD:AE,2,FALSE))","v":""},null,{"$f":"IF(G7746=\"\",\"\",VLOOKUP(G7746,Insumos!G:H,2,FALSE))","v":""}]
[null,null,null,null,null,{"$f":"IF(E7747=\"\",\"\",VLOOKUP(E7747,Insumos!AD:AE,2,FALSE))","v":""},null,{"$f":"IF(G7747=\"\",\"\",VLOOKUP(G7747,Insumos!G:H,2,FALSE))","v":""}]
[null,null,null,null,null,{"$f":"IF(E7748=\"\",\"\",VLOOKUP(E7748,Insumos!AD:AE,2,FALSE))","v":""},null,{"$f":"IF(G7748=\"\",\"\",VLOOKUP(G7748,Insumos!G:H,2,FALSE))","v":""}]
[null,null,null,null,null,{"$f":"IF(E7749=\"\",\"\",VLOOKUP(E7749,Insumos!AD:AE,2,FALSE))","v":""},null,{"$f":"IF(G7749=\"\",\"\",VLOOKUP(G7749,Insumos!G:H,2,FALSE))","v":""}]
[null,null,null,null,null,{"$f":"IF(E7750=\"\",\"\",VLOOKUP(E7750,Insumos!AD:AE,2,FALSE))","v":""},null,{"$f":"IF(G7750=\"\",\"\",VLOOKUP(G7750,Insumos!G:H,2,FALSE))","v":""}]
[null,null,null,null,null,{"$f":"IF(E7751=\"\",\"\",VLOOKUP(E7751,Insumos!AD:AE,2,FALSE))","v":""},null,{"$f":"IF(G7751=\"\",\"\",VLOOKUP(G7751,Insumos!G:H,2,FALSE))","v":""}]
[null,null,null,null,null,{"$f":"IF(E7752=\"\",\"\",VLOOKUP(E7752,Insumos!AD:AE,2,FALSE))","v":""},null,{"$f":"IF(G7752=\"\",\"\",VLOOKUP(G7752,Insumos!G:H,2,FALSE))","v":""}]
[null,null,null,null,null,{"$f":"IF(E7753=\"\",\"\",VLOOKUP(E7753,Insumos!AD:AE,2,FALSE))","v":""},null,{"$f":"IF(G7753=\"\",\"\",VLOOKUP(G7753,Insumos!G:H,2,FALSE))","v":""}]
[null,null,null,null,null,{"$f":"IF(E7754=\"\",\"\",VLOOKUP(E7754,Insumos!AD:AE,2,FALSE))","v":""},null,{"$f":"IF(G7754=\"\",\"\",VLOOKUP(G7754,Insumos!G:H,2,FALSE))","v":""}]
[null,null,null,null,null,{"$f":"IF(E7755=\"\",\"\",VLOOKUP(E7755,Insumos!AD:AE,2,FALSE))","v":""},null,{"$f":"IF(G7755=\"\",\"\",VLOOKUP(G7755,Insumos!G:H,2,FALSE))","v":""}]
[null,null,null,null,null,{"$f":"IF(E7756=\"\",\"\",VLOOKUP(E7756,Insumos!AD:AE,2,FALSE))","v":""},null,{"$f":"IF(G7756=\"\",\"\",VLOOKUP(G7756,Insumos!G:H,2,FALSE))","v":""}]
[null,null,null,null,null,{"$f":"IF(E7757=\"\",\"\",VLOOKUP(E7757,Insumos!AD:AE,2,FALSE))","v":""},null,{"$f":"IF(G7757=\"\",\"\",VLOOKUP(G7757,Insumos!G:H,2,FALSE))","v":""}]
[null,null,null,null,null,{"$f":"IF(E7758=\"\",\"\",VLOOKUP(E7758,Insumos!AD:AE,2,FALSE))","v":""},null,{"$f":"IF(G7758=\"\",\"\",VLOOKUP(G7758,Insumos!G:H,2,FALSE))","v":""}]
[null,null,null,null,null,{"$f":"IF(E7759=\"\",\"\",VLOOKUP(E7759,Insumos!AD:AE,2,FALSE))","v":""},null,{"$f":"IF(G7759=\"\",\"\",VLOOKUP(G7759,Insumos!G:H,2,FALSE))","v":""}]
[null,null,null,null,null,{"$f":"IF(E7760=\"\",\"\",VLOOKUP(E7760,Insumos!AD:AE,2,FALSE))","v":""},null,{"$f":"IF(G7760=\"\",\"\",VLOOKUP(G7760,Insumos!G:H,2,FALSE))","v":""}]
[null,null,null,null,null,{"$f":"IF(E7761=\"\",\"\",VLOOKUP(E7761,Insumos!AD:AE,2,FALSE))","v":""},null,{"$f":"IF(G7761=\"\",\"\",VLOOKUP(G7761,Insumos!G:H,2,FALSE))","v":""}]
[null,null,null,null,null,{"$f":"IF(E7762=\"\",\"\",VLOOKUP(E7762,Insumos!AD:AE,2,FALSE))","v":""},null,{"$f":"IF(G7762=\"\",\"\",VLOOKUP(G7762,Insumos!G:H,2,FALSE))","v":""}]
[null,null,null,null,null,{"$f":"IF(E7763=\"\",\"\",VLOOKUP(E7763,Insumos!AD:AE,2,FALSE))","v":""},null,{"$f":"IF(G7763=\"\",\"\",VLOOKUP(G7763,Insumos!G:H,2,FALSE))","v":""}]
[null,null,null,null,null,{"$f":"IF(E7764=\"\",\"\",VLOOKUP(E7764,Insumos!AD:AE,2,FALSE))","v":""},null,{"$f":"IF(G7764=\"\",\"\",VLOOKUP(G7764,Insumos!G:H,2,FALSE))","v":""}]
[null,null,null,null,null,{"$f":"IF(E7765=\"\",\"\",VLOOKUP(E7765,Insumos!AD:AE,2,FALSE))","v":""},null,{"$f":"IF(G7765=\"\",\"\",VLOOKUP(G7765,Insumos!G:H,2,FALSE))","v":""}]
[null,null,null,null,null,{"$f":"IF(E7766=\"\",\"\",VLOOKUP(E7766,Insumos!AD:AE,2,FALSE))","v":""},null,{"$f":"IF(G7766=\"\",\"\",VLOOKUP(G7766,Insumos!G:H,2,FALSE))","v":""}]
[null,null,null,null,null,{"$f":"IF(E7767=\"\",\"\",VLOOKUP(E7767,Insumos!AD:AE,2,FALSE))","v":""},null,{"$f":"IF(G7767=\"\",\"\",VLOOKUP(G7767,Insumos!G:H,2,FALSE))","v":""}]
[null,null,null,null,null,{"$f":"IF(E7768=\"\",\"\",VLOOKUP(E7768,Insumos!AD:AE,2,FALSE))","v":""},null,{"$f":"IF(G7768=\"\",\"\",VLOOKUP(G7768,Insumos!G:H,2,FALSE))","v":""}]
[null,null,null,null,null,{"$f":"IF(E7769=\"\",\"\",VLOOKUP(E7769,Insumos!AD:AE,2,FALSE))","v":""},null,{"$f":"IF(G7769=\"\",\"\",VLOOKUP(G7769,Insumos!G:H,2,FALSE))","v":""}]
[null,null,null,null,null,{"$f":"IF(E7770=\"\",\"\",VLOOKUP(E7770,Insumos!AD:AE,2,FALSE))","v":""},null,{"$f":"IF(G7770=\"\",\"\",VLOOKUP(G7770,Insumos!G:H,2,FALSE))","v":""}]
[null,null,null,null,null,{"$f":"IF(E7771=\"\",\"\",VLOOKUP(E7771,Insumos!AD:AE,2,FALSE))","v":""},null,{"$f":"IF(G7771=\"\",\"\",VLOOKUP(G7771,Insumos!G:H,2,FALSE))","v":""}]
[null,null,null,null,null,{"$f":"IF(E7772=\"\",\"\",VLOOKUP(E7772,Insumos!AD:AE,2,FALSE))","v":""},null,{"$f":"IF(G7772=\"\",\"\",VLOOKUP(G7772,Insumos!G:H,2,FALSE))","v":""}]
[null,null,null,null,null,{"$f":"IF(E7773=\"\",\"\",VLOOKUP(E7773,Insumos!AD:AE,2,FALSE))","v":""},null,{"$f":"IF(G7773=\"\",\"\",VLOOKUP(G7773,Insumos!G:H,2,FALSE))","v":""}]
[null,null,null,null,null,{"$f":"IF(E7774=\"\",\"\",VLOOKUP(E7774,Insumos!AD:AE,2,FALSE))","v":""},null,{"$f":"IF(G7774=\"\",\"\",VLOOKUP(G7774,Insumos!G:H,2,FALSE))","v":""}]
[null,null,null,null,null,{"$f":"IF(E7775=\"\",\"\",VLOOKUP(E7775,Insumos!AD:AE,2,FALSE))","v":""},null,{"$f":"IF(G7775=\"\",\"\",VLOOKUP(G7775,Insumos!G:H,2,FALSE))","v":""}]
[null,null,null,null,null,{"$f":"IF(E7776=\"\",\"\",VLOOKUP(E7776,Insumos!AD:AE,2,FALSE))","v":""},null,{"$f":"IF(G7776=\"\",\"\",VLOOKUP(G7776,Insumos!G:H,2,FALSE))","v":""}]
[null,null,null,null,null,{"$f":"IF(E7777=\"\",\"\",VLOOKUP(E7777,Insumos!AD:AE,2,FALSE))","v":""},null,{"$f":"IF(G7777=\"\",\"\",VLOOKUP(G7777,Insumos!G:H,2,FALSE))","v":""}]
[null,null,null,null,null,{"$f":"IF(E7778=\"\",\"\",VLOOKUP(E7778,Insumos!AD:AE,2,FALSE))","v":""},null,{"$f":"IF(G7778=\"\",\"\",VLOOKUP(G7778,Insumos!G:H,2,FALSE))","v":""}]
[null,null,null,null,null,{"$f":"IF(E7779=\"\",\"\",VLOOKUP(E7779,Insumos!AD:AE,2,FALSE))","v":""},null,{"$f":"IF(G7779=\"\",\"\",VLOOKUP(G7779,Insumos!G:H,2,FALSE))","v":""}]
[null,null,null,null,null,{"$f":"IF(E7780=\"\",\"\",VLOOKUP(E7780,Insumos!AD:AE,2,FALSE))","v":""},null,{"$f":"IF(G7780=\"\",\"\",VLOOKUP(G7780,Insumos!G:H,2,FALSE))","v":""}]
[null,null,null,null,null,{"$f":"IF(E7781=\"\",\"\",VLOOKUP(E7781,Insumos!AD:AE,2,FALSE))","v":""},null,{"$f":"IF(G7781=\"\",\"\",VLOOKUP(G7781,Insumos!G:H,2,FALSE))","v":""}]
[null,null,null,null,null,{"$f":"IF(E7782=\"\",\"\",VLOOKUP(E7782,Insumos!AD:AE,2,FALSE))","v":""},null,{"$f":"IF(G7782=\"\",\"\",VLOOKUP(G7782,Insumos!G:H,2,FALSE))","v":""}]
[null,null,null,null,null,{"$f":"IF(E7783=\"\",\"\",VLOOKUP(E7783,Insumos!AD:AE,2,FALSE))","v":""},null,{"$f":"IF(G7783=\"\",\"\",VLOOKUP(G7783,Insumos!G:H,2,FALSE))","v":""}]
[null,null,null,null,null,{"$f":"IF(E7784=\"\",\"\",VLOOKUP(E7784,Insumos!AD:AE,2,FALSE))","v":""},null,{"$f":"IF(G7784=\"\",\"\",VLOOKUP(G7784,Insumos!G:H,2,FALSE))","v":""}]
[null,null,null,null,null,{"$f":"IF(E7785=\"\",\"\",VLOOKUP(E7785,Insumos!AD:AE,2,FALSE))","v":""},null,{"$f":"IF(G7785=\"\",\"\",VLOOKUP(G7785,Insumos!G:H,2,FALSE))","v":""}]
[null,null,null,null,null,{"$f":"IF(E7786=\"\",\"\",VLOOKUP(E7786,Insumos!AD:AE,2,FALSE))","v":""},null,{"$f":"IF(G7786=\"\",\"\",VLOOKUP(G7786,Insumos!G:H,2,FALSE))","v":""}]
[null,null,null,null,null,{"$f":"IF(E7787=\"\",\"\",VLOOKUP(E7787,Insumos!AD:AE,2,FALSE))","v":""},null,{"$f":"IF(G7787=\"\",\"\",VLOOKUP(G7787,Insumos!G:H,2,FALSE))","v":""}]
[null,null,null,null,null,{"$f":"IF(E7788=\"\",\"\",VLOOKUP(E7788,Insumos!AD:AE,2,FALSE))","v":""},null,{"$f":"IF(G7788=\"\",\"\",VLOOKUP(G7788,Insumos!G:H,2,FALSE))","v":""}]
[null,null,null,null,null,{"$f":"IF(E7789=\"\",\"\",VLOOKUP(E7789,Insumos!AD:AE,2,FALSE))","v":""},null,{"$f":"IF(G7789=\"\",\"\",VLOOKUP(G7789,Insumos!G:H,2,FALSE))","v":""}]
[null,null,null,null,null,{"$f":"IF(E7790=\"\",\"\",VLOOKUP(E7790,Insumos!AD:AE,2,FALSE))","v":""},null,{"$f":"IF(G7790=\"\",\"\",VLOOKUP(G7790,Insumos!G:H,2,FALSE))","v":""}]
[null,null,null,null,null,{"$f":"IF(E7791=\"\",\"\",VLOOKUP(E7791,Insumos!AD:AE,2,FALSE))","v":""},null,{"$f":"IF(G7791=\"\",\"\",VLOOKUP(G7791,Insumos!G:H,2,FALSE))","v":""}]
[null,null,null,null,null,{"$f":"IF(E7792=\"\",\"\",VLOOKUP(E7792,Insumos!AD:AE,2,FALSE))","v":""},null,{"$f":"IF(G7792=\"\",\"\",VLOOKUP(G7792,Insumos!G:H,2,FALSE))","v":""}]
[null,null,null,null,null,{"$f":"IF(E7793=\"\",\"\",VLOOKUP(E7793,Insumos!AD:AE,2,FALSE))","v":""},null,{"$f":"IF(G7793=\"\",\"\",VLOOKUP(G7793,Insumos!G:H,2,FALSE))","v":""}]
[null,null,null,null,null,{"$f":"IF(E7794=\"\",\"\",VLOOKUP(E7794,Insumos!AD:AE,2,FALSE))","v":""},null,{"$f":"IF(G7794=\"\",\"\",VLOOKUP(G7794,Insumos!G:H,2,FALSE))","v":""}]
[null,null,null,null,null,{"$f":"IF(E7795=\"\",\"\",VLOOKUP(E7795,Insumos!AD:AE,2,FALSE))","v":""},null,{"$f":"IF(G7795=\"\",\"\",VLOOKUP(G7795,Insumos!G:H,2,FALSE))","v":""}]
[null,null,null,null,null,{"$f":"IF(E7796=\"\",\"\",VLOOKUP(E7796,Insumos!AD:AE,2,FALSE))","v":""},null,{"$f":"IF(G7796=\"\",\"\",VLOOKUP(G7796,Insumos!G:H,2,FALSE))","v":""}]
[null,null,null,null,null,{"$f":"IF(E7797=\"\",\"\",VLOOKUP(E7797,Insumos!AD:AE,2,FALSE))","v":""},null,{"$f":"IF(G7797=\"\",\"\",VLOOKUP(G7797,Insumos!G:H,2,FALSE))","v":""}]
[null,null,null,null,null,{"$f":"IF(E7798=\"\",\"\",VLOOKUP(E7798,Insumos!AD:AE,2,FALSE))","v":""},null,{"$f":"IF(G7798=\"\",\"\",VLOOKUP(G7798,Insumos!G:H,2,FALSE))","v":""}]
[null,null,null,null,null,{"$f":"IF(E7799=\"\",\"\",VLOOKUP(E7799,Insumos!AD:AE,2,FALSE))","v":""},null,{"$f":"IF(G7799=\"\",\"\",VLOOKUP(G7799,Insumos!G:H,2,FALSE))","v":""}]
[null,null,null,null,null,{"$f":"IF(E7800=\"\",\"\",VLOOKUP(E7800,Insumos!AD:AE,2,FALSE))","v":""},null,{"$f":"IF(G7800=\"\",\"\",VLOOKUP(G7800,Insumos!G:H,2,FALSE))","v":""}]
[null,null,null,null,null,{"$f":"IF(E7801=\"\",\"\",VLOOKUP(E7801,Insumos!AD:AE,2,FALSE))","v":""},null,{"$f":"IF(G7801=\"\",\"\",VLOOKUP(G7801,Insumos!G:H,2,FALSE))","v":""}]
[null,null,null,null,null,{"$f":"IF(E7802=\"\",\"\",VLOOKUP(E7802,Insumos!AD:AE,2,FALSE))","v":""},null,{"$f":"IF(G7802=\"\",\"\",VLOOKUP(G7802,Insumos!G:H,2,FALSE))","v":""}]
[null,null,null,null,null,{"$f":"IF(E7803=\"\",\"\",VLOOKUP(E7803,Insumos!AD:AE,2,FALSE))","v":""},null,{"$f":"IF(G7803=\"\",\"\",VLOOKUP(G7803,Insumos!G:H,2,FALSE))","v":""}]
[null,null,null,null,null,{"$f":"IF(E7804=\"\",\"\",VLOOKUP(E7804,Insumos!AD:AE,2,FALSE))","v":""},null,{"$f":"IF(G7804=\"\",\"\",VLOOKUP(G7804,Insumos!G:H,2,FALSE))","v":""}]
[null,null,null,null,null,{"$f":"IF(E7805=\"\",\"\",VLOOKUP(E7805,Insumos!AD:AE,2,FALSE))","v":""},null,{"$f":"IF(G7805=\"\",\"\",VLOOKUP(G7805,Insumos!G:H,2,FALSE))","v":""}]
[null,null,null,null,null,{"$f":"IF(E7806=\"\",\"\",VLOOKUP(E7806,Insumos!AD:AE,2,FALSE))","v":""},null,{"$f":"IF(G7806=\"\",\"\",VLOOKUP(G7806,Insumos!G:H,2,FALSE))","v":""}]
[null,null,null,null,null,{"$f":"IF(E7807=\"\",\"\",VLOOKUP(E7807,Insumos!AD:AE,2,FALSE))","v":""},null,{"$f":"IF(G7807=\"\",\"\",VLOOKUP(G7807,Insumos!G:H,2,FALSE))","v":""}]
[null,null,null,null,null,{"$f":"IF(E7808=\"\",\"\",VLOOKUP(E7808,Insumos!AD:AE,2,FALSE))","v":""},null,{"$f":"IF(G7808=\"\",\"\",VLOOKUP(G7808,Insumos!G:H,2,FALSE))","v":""}]
[null,null,null,null,null,{"$f":"IF(E7809=\"\",\"\",VLOOKUP(E7809,Insumos!AD:AE,2,FALSE))","v":""},null,{"$f":"IF(G7809=\"\",\"\",VLOOKUP(G7809,Insumos!G:H,2,FALSE))","v":""}]
[null,null,null,null,null,{"$f":"IF(E7810=\"\",\"\",VLOOKUP(E7810,Insumos!AD:AE,2,FALSE))","v":""},null,{"$f":"IF(G7810=\"\",\"\",VLOOKUP(G7810,Insumos!G:H,2,FALSE))","v":""}]
[null,null,null,null,null,{"$f":"IF(E7811=\"\",\"\",VLOOKUP(E7811,Insumos!AD:AE,2,FALSE))","v":""},null,{"$f":"IF(G7811=\"\",\"\",VLOOKUP(G7811,Insumos!G:H,2,FALSE))","v":""}]
[null,null,null,null,null,{"$f":"IF(E7812=\"\",\"\",VLOOKUP(E7812,Insumos!AD:AE,2,FALSE))","v":""},null,{"$f":"IF(G7812=\"\",\"\",VLOOKUP(G7812,Insumos!G:H,2,FALSE))","v":""}]
[null,null,null,null,null,{"$f":"IF(E7813=\"\",\"\",VLOOKUP(E7813,Insumos!AD:AE,2,FALSE))","v":""},null,{"$f":"IF(G7813=\"\",\"\",VLOOKUP(G7813,Insumos!G:H,2,FALSE))","v":""}]
[null,null,null,null,null,{"$f":"IF(E7814=\"\",\"\",VLOOKUP(E7814,Insumos!AD:AE,2,FALSE))","v":""},null,{"$f":"IF(G7814=\"\",\"\",VLOOKUP(G7814,Insumos!G:H,2,FALSE))","v":""}]
[null,null,null,null,null,{"$f":"IF(E7815=\"\",\"\",VLOOKUP(E7815,Insumos!AD:AE,2,FALSE))","v":""},null,{"$f":"IF(G7815=\"\",\"\",VLOOKUP(G7815,Insumos!G:H,2,FALSE))","v":""}]
[null,null,null,null,null,{"$f":"IF(E7816=\"\",\"\",VLOOKUP(E7816,Insumos!AD:AE,2,FALSE))","v":""},null,{"$f":"IF(G7816=\"\",\"\",VLOOKUP(G7816,Insumos!G:H,2,FALSE))","v":""}]
[null,null,null,null,null,{"$f":"IF(E7817=\"\",\"\",VLOOKUP(E7817,Insumos!AD:AE,2,FALSE))","v":""},null,{"$f":"IF(G7817=\"\",\"\",VLOOKUP(G7817,Insumos!G:H,2,FALSE))","v":""}]
[null,null,null,null,null,{"$f":"IF(E7818=\"\",\"\",VLOOKUP(E7818,Insumos!AD:AE,2,FALSE))","v":""},null,{"$f":"IF(G7818=\"\",\"\",VLOOKUP(G7818,Insumos!G:H,2,FALSE))","v":""}]
[null,null,null,null,null,{"$f":"IF(E7819=\"\",\"\",VLOOKUP(E7819,Insumos!AD:AE,2,FALSE))","v":""},null,{"$f":"IF(G7819=\"\",\"\",VLOOKUP(G7819,Insumos!G:H,2,FALSE))","v":""}]
[null,null,null,null,null,{"$f":"IF(E7820=\"\",\"\",VLOOKUP(E7820,Insumos!AD:AE,2,FALSE))","v":""},null,{"$f":"IF(G7820=\"\",\"\",VLOOKUP(G7820,Insumos!G:H,2,FALSE))","v":""}]
[null,null,null,null,null,{"$f":"IF(E7821=\"\",\"\",VLOOKUP(E7821,Insumos!AD:AE,2,FALSE))","v":""},null,{"$f":"IF(G7821=\"\",\"\",VLOOKUP(G7821,Insumos!G:H,2,FALSE))","v":""}]
[null,null,null,null,null,{"$f":"IF(E7822=\"\",\"\",VLOOKUP(E7822,Insumos!AD:AE,2,FALSE))","v":""},null,{"$f":"IF(G7822=\"\",\"\",VLOOKUP(G7822,Insumos!G:H,2,FALSE))","v":""}]
[null,null,null,null,null,{"$f":"IF(E7823=\"\",\"\",VLOOKUP(E7823,Insumos!AD:AE,2,FALSE))","v":""},null,{"$f":"IF(G7823=\"\",\"\",VLOOKUP(G7823,Insumos!G:H,2,FALSE))","v":""}]
[null,null,null,null,null,{"$f":"IF(E7824=\"\",\"\",VLOOKUP(E7824,Insumos!AD:AE,2,FALSE))","v":""},null,{"$f":"IF(G7824=\"\",\"\",VLOOKUP(G7824,Insumos!G:H,2,FALSE))","v":""}]
[null,null,null,null,null,{"$f":"IF(E7825=\"\",\"\",VLOOKUP(E7825,Insumos!AD:AE,2,FALSE))","v":""},null,{"$f":"IF(G7825=\"\",\"\",VLOOKUP(G7825,Insumos!G:H,2,FALSE))","v":""}]
[null,null,null,null,null,{"$f":"IF(E7826=\"\",\"\",VLOOKUP(E7826,Insumos!AD:AE,2,FALSE))","v":""},null,{"$f":"IF(G7826=\"\",\"\",VLOOKUP(G7826,Insumos!G:H,2,FALSE))","v":""}]
[null,null,null,null,null,{"$f":"IF(E7827=\"\",\"\",VLOOKUP(E7827,Insumos!AD:AE,2,FALSE))","v":""},null,{"$f":"IF(G7827=\"\",\"\",VLOOKUP(G7827,Insumos!G:H,2,FALSE))","v":""}]
[null,null,null,null,null,{"$f":"IF(E7828=\"\",\"\",VLOOKUP(E7828,Insumos!AD:AE,2,FALSE))","v":""},null,{"$f":"IF(G7828=\"\",\"\",VLOOKUP(G7828,Insumos!G:H,2,FALSE))","v":""}]
[null,null,null,null,null,{"$f":"IF(E7829=\"\",\"\",VLOOKUP(E7829,Insumos!AD:AE,2,FALSE))","v":""},null,{"$f":"IF(G7829=\"\",\"\",VLOOKUP(G7829,Insumos!G:H,2,FALSE))","v":""}]
[null,null,null,null,null,{"$f":"IF(E7830=\"\",\"\",VLOOKUP(E7830,Insumos!AD:AE,2,FALSE))","v":""},null,{"$f":"IF(G7830=\"\",\"\",VLOOKUP(G7830,Insumos!G:H,2,FALSE))","v":""}]
[null,null,null,null,null,{"$f":"IF(E7831=\"\",\"\",VLOOKUP(E7831,Insumos!AD:AE,2,FALSE))","v":""},null,{"$f":"IF(G7831=\"\",\"\",VLOOKUP(G7831,Insumos!G:H,2,FALSE))","v":""}]
[null,null,null,null,null,{"$f":"IF(E7832=\"\",\"\",VLOOKUP(E7832,Insumos!AD:AE,2,FALSE))","v":""},null,{"$f":"IF(G7832=\"\",\"\",VLOOKUP(G7832,Insumos!G:H,2,FALSE))","v":""}]
[null,null,null,null,null,{"$f":"IF(E7833=\"\",\"\",VLOOKUP(E7833,Insumos!AD:AE,2,FALSE))","v":""},null,{"$f":"IF(G7833=\"\",\"\",VLOOKUP(G7833,Insumos!G:H,2,FALSE))","v":""}]
[null,null,null,null,null,{"$f":"IF(E7834=\"\",\"\",VLOOKUP(E7834,Insumos!AD:AE,2,FALSE))","v":""},null,{"$f":"IF(G7834=\"\",\"\",VLOOKUP(G7834,Insumos!G:H,2,FALSE))","v":""}]
[null,null,null,null,null,{"$f":"IF(E7835=\"\",\"\",VLOOKUP(E7835,Insumos!AD:AE,2,FALSE))","v":""},null,{"$f":"IF(G7835=\"\",\"\",VLOOKUP(G7835,Insumos!G:H,2,FALSE))","v":""}]
[null,null,null,null,null,{"$f":"IF(E7836=\"\",\"\",VLOOKUP(E7836,Insumos!AD:AE,2,FALSE))","v":""},null,{"$f":"IF(G7836=\"\",\"\",VLOOKUP(G7836,Insumos!G:H,2,FALSE))","v":""}]
[null,null,null,null,null,{"$f":"IF(E7837=\"\",\"\",VLOOKUP(E7837,Insumos!AD:AE,2,FALSE))","v":""},null,{"$f":"IF(G7837=\"\",\"\",VLOOKUP(G7837,Insumos!G:H,2,FALSE))","v":""}]
[null,null,null,null,null,{"$f":"IF(E7838=\"\",\"\",VLOOKUP(E7838,Insumos!AD:AE,2,FALSE))","v":""},null,{"$f":"IF(G7838=\"\",\"\",VLOOKUP(G7838,Insumos!G:H,2,FALSE))","v":""}]
[null,null,null,null,null,{"$f":"IF(E7839=\"\",\"\",VLOOKUP(E7839,Insumos!AD:AE,2,FALSE))","v":""},null,{"$f":"IF(G7839=\"\",\"\",VLOOKUP(G7839,Insumos!G:H,2,FALSE))","v":""}]
[null,null,null,null,null,{"$f":"IF(E7840=\"\",\"\",VLOOKUP(E7840,Insumos!AD:AE,2,FALSE))","v":""},null,{"$f":"IF(G7840=\"\",\"\",VLOOKUP(G7840,Insumos!G:H,2,FALSE))","v":""}]
[null,null,null,null,null,{"$f":"IF(E7841=\"\",\"\",VLOOKUP(E7841,Insumos!AD:AE,2,FALSE))","v":""},null,{"$f":"IF(G7841=\"\",\"\",VLOOKUP(G7841,Insumos!G:H,2,FALSE))","v":""}]
[null,null,null,null,null,{"$f":"IF(E7842=\"\",\"\",VLOOKUP(E7842,Insumos!AD:AE,2,FALSE))","v":""},null,{"$f":"IF(G7842=\"\",\"\",VLOOKUP(G7842,Insumos!G:H,2,FALSE))","v":""}]
[null,null,null,null,null,{"$f":"IF(E7843=\"\",\"\",VLOOKUP(E7843,Insumos!AD:AE,2,FALSE))","v":""},null,{"$f":"IF(G7843=\"\",\"\",VLOOKUP(G7843,Insumos!G:H,2,FALSE))","v":""}]
[null,null,null,null,null,{"$f":"IF(E7844=\"\",\"\",VLOOKUP(E7844,Insumos!AD:AE,2,FALSE))","v":""},null,{"$f":"IF(G7844=\"\",\"\",VLOOKUP(G7844,Insumos!G:H,2,FALSE))","v":""}]
[null,null,null,null,null,{"$f":"IF(E7845=\"\",\"\",VLOOKUP(E7845,Insumos!AD:AE,2,FALSE))","v":""},null,{"$f":"IF(G7845=\"\",\"\",VLOOKUP(G7845,Insumos!G:H,2,FALSE))","v":""}]
[null,null,null,null,null,{"$f":"IF(E7846=\"\",\"\",VLOOKUP(E7846,Insumos!AD:AE,2,FALSE))","v":""},null,{"$f":"IF(G7846=\"\",\"\",VLOOKUP(G7846,Insumos!G:H,2,FALSE))","v":""}]
[null,null,null,null,null,{"$f":"IF(E7847=\"\",\"\",VLOOKUP(E7847,Insumos!AD:AE,2,FALSE))","v":""},null,{"$f":"IF(G7847=\"\",\"\",VLOOKUP(G7847,Insumos!G:H,2,FALSE))","v":""}]
[null,null,null,null,null,{"$f":"IF(E7848=\"\",\"\",VLOOKUP(E7848,Insumos!AD:AE,2,FALSE))","v":""},null,{"$f":"IF(G7848=\"\",\"\",VLOOKUP(G7848,Insumos!G:H,2,FALSE))","v":""}]
[null,null,null,null,null,{"$f":"IF(E7849=\"\",\"\",VLOOKUP(E7849,Insumos!AD:AE,2,FALSE))","v":""},null,{"$f":"IF(G7849=\"\",\"\",VLOOKUP(G7849,Insumos!G:H,2,FALSE))","v":""}]
[null,null,null,null,null,{"$f":"IF(E7850=\"\",\"\",VLOOKUP(E7850,Insumos!AD:AE,2,FALSE))","v":""},null,{"$f":"IF(G7850=\"\",\"\",VLOOKUP(G7850,Insumos!G:H,2,FALSE))","v":""}]
[null,null,null,null,null,{"$f":"IF(E7851=\"\",\"\",VLOOKUP(E7851,Insumos!AD:AE,2,FALSE))","v":""},null,{"$f":"IF(G7851=\"\",\"\",VLOOKUP(G7851,Insumos!G:H,2,FALSE))","v":""}]
[null,null,null,null,null,{"$f":"IF(E7852=\"\",\"\",VLOOKUP(E7852,Insumos!AD:AE,2,FALSE))","v":""},null,{"$f":"IF(G7852=\"\",\"\",VLOOKUP(G7852,Insumos!G:H,2,FALSE))","v":""}]
[null,null,null,null,null,{"$f":"IF(E7853=\"\",\"\",VLOOKUP(E7853,Insumos!AD:AE,2,FALSE))","v":""},null,{"$f":"IF(G7853=\"\",\"\",VLOOKUP(G7853,Insumos!G:H,2,FALSE))","v":""}]
[null,null,null,null,null,{"$f":"IF(E7854=\"\",\"\",VLOOKUP(E7854,Insumos!AD:AE,2,FALSE))","v":""},null,{"$f":"IF(G7854=\"\",\"\",VLOOKUP(G7854,Insumos!G:H,2,FALSE))","v":""}]
[null,null,null,null,null,{"$f":"IF(E7855=\"\",\"\",VLOOKUP(E7855,Insumos!AD:AE,2,FALSE))","v":""},null,{"$f":"IF(G7855=\"\",\"\",VLOOKUP(G7855,Insumos!G:H,2,FALSE))","v":""}]
[null,null,null,null,null,{"$f":"IF(E7856=\"\",\"\",VLOOKUP(E7856,Insumos!AD:AE,2,FALSE))","v":""},null,{"$f":"IF(G7856=\"\",\"\",VLOOKUP(G7856,Insumos!G:H,2,FALSE))","v":""}]
[null,null,null,null,null,{"$f":"IF(E7857=\"\",\"\",VLOOKUP(E7857,Insumos!AD:AE,2,FALSE))","v":""},null,{"$f":"IF(G7857=\"\",\"\",VLOOKUP(G7857,Insumos!G:H,2,FALSE))","v":""}]
[null,null,null,null,null,{"$f":"IF(E7858=\"\",\"\",VLOOKUP(E7858,Insumos!AD:AE,2,FALSE))","v":""},null,{"$f":"IF(G7858=\"\",\"\",VLOOKUP(G7858,Insumos!G:H,2,FALSE))","v":""}]
[null,null,null,null,null,{"$f":"IF(E7859=\"\",\"\",VLOOKUP(E7859,Insumos!AD:AE,2,FALSE))","v":""},null,{"$f":"IF(G7859=\"\",\"\",VLOOKUP(G7859,Insumos!G:H,2,FALSE))","v":""}]
[null,null,null,null,null,{"$f":"IF(E7860=\"\",\"\",VLOOKUP(E7860,Insumos!AD:AE,2,FALSE))","v":""},null,{"$f":"IF(G7860=\"\",\"\",VLOOKUP(G7860,Insumos!G:H,2,FALSE))","v":""}]
[null,null,null,null,null,{"$f":"IF(E7861=\"\",\"\",VLOOKUP(E7861,Insumos!AD:AE,2,FALSE))","v":""},null,{"$f":"IF(G7861=\"\",\"\",VLOOKUP(G7861,Insumos!G:H,2,FALSE))","v":""}]
[null,null,null,null,null,{"$f":"IF(E7862=\"\",\"\",VLOOKUP(E7862,Insumos!AD:AE,2,FALSE))","v":""},null,{"$f":"IF(G7862=\"\",\"\",VLOOKUP(G7862,Insumos!G:H,2,FALSE))","v":""}]
[null,null,null,null,null,{"$f":"IF(E7863=\"\",\"\",VLOOKUP(E7863,Insumos!AD:AE,2,FALSE))","v":""},null,{"$f":"IF(G7863=\"\",\"\",VLOOKUP(G7863,Insumos!G:H,2,FALSE))","v":""}]
[null,null,null,null,null,{"$f":"IF(E7864=\"\",\"\",VLOOKUP(E7864,Insumos!AD:AE,2,FALSE))","v":""},null,{"$f":"IF(G7864=\"\",\"\",VLOOKUP(G7864,Insumos!G:H,2,FALSE))","v":""}]
[null,null,null,null,null,{"$f":"IF(E7865=\"\",\"\",VLOOKUP(E7865,Insumos!AD:AE,2,FALSE))","v":""},null,{"$f":"IF(G7865=\"\",\"\",VLOOKUP(G7865,Insumos!G:H,2,FALSE))","v":""}]
[null,null,null,null,null,{"$f":"IF(E7866=\"\",\"\",VLOOKUP(E7866,Insumos!AD:AE,2,FALSE))","v":""},null,{"$f":"IF(G7866=\"\",\"\",VLOOKUP(G7866,Insumos!G:H,2,FALSE))","v":""}]
[null,null,null,null,null,{"$f":"IF(E7867=\"\",\"\",VLOOKUP(E7867,Insumos!AD:AE,2,FALSE))","v":""},null,{"$f":"IF(G7867=\"\",\"\",VLOOKUP(G7867,Insumos!G:H,2,FALSE))","v":""}]
[null,null,null,null,null,{"$f":"IF(E7868=\"\",\"\",VLOOKUP(E7868,Insumos!AD:AE,2,FALSE))","v":""},null,{"$f":"IF(G7868=\"\",\"\",VLOOKUP(G7868,Insumos!G:H,2,FALSE))","v":""}]
[null,null,null,null,null,{"$f":"IF(E7869=\"\",\"\",VLOOKUP(E7869,Insumos!AD:AE,2,FALSE))","v":""},null,{"$f":"IF(G7869=\"\",\"\",VLOOKUP(G7869,Insumos!G:H,2,FALSE))","v":""}]
[null,null,null,null,null,{"$f":"IF(E7870=\"\",\"\",VLOOKUP(E7870,Insumos!AD:AE,2,FALSE))","v":""},null,{"$f":"IF(G7870=\"\",\"\",VLOOKUP(G7870,Insumos!G:H,2,FALSE))","v":""}]
[null,null,null,null,null,{"$f":"IF(E7871=\"\",\"\",VLOOKUP(E7871,Insumos!AD:AE,2,FALSE))","v":""},null,{"$f":"IF(G7871=\"\",\"\",VLOOKUP(G7871,Insumos!G:H,2,FALSE))","v":""}]
[null,null,null,null,null,{"$f":"IF(E7872=\"\",\"\",VLOOKUP(E7872,Insumos!AD:AE,2,FALSE))","v":""},null,{"$f":"IF(G7872=\"\",\"\",VLOOKUP(G7872,Insumos!G:H,2,FALSE))","v":""}]
[null,null,null,null,null,{"$f":"IF(E7873=\"\",\"\",VLOOKUP(E7873,Insumos!AD:AE,2,FALSE))","v":""},null,{"$f":"IF(G7873=\"\",\"\",VLOOKUP(G7873,Insumos!G:H,2,FALSE))","v":""}]
[null,null,null,null,null,{"$f":"IF(E7874=\"\",\"\",VLOOKUP(E7874,Insumos!AD:AE,2,FALSE))","v":""},null,{"$f":"IF(G7874=\"\",\"\",VLOOKUP(G7874,Insumos!G:H,2,FALSE))","v":""}]
[null,null,null,null,null,{"$f":"IF(E7875=\"\",\"\",VLOOKUP(E7875,Insumos!AD:AE,2,FALSE))","v":""},null,{"$f":"IF(G7875=\"\",\"\",VLOOKUP(G7875,Insumos!G:H,2,FALSE))","v":""}]
[null,null,null,null,null,{"$f":"IF(E7876=\"\",\"\",VLOOKUP(E7876,Insumos!AD:AE,2,FALSE))","v":""},null,{"$f":"IF(G7876=\"\",\"\",VLOOKUP(G7876,Insumos!G:H,2,FALSE))","v":""}]
[null,null,null,null,null,{"$f":"IF(E7877=\"\",\"\",VLOOKUP(E7877,Insumos!AD:AE,2,FALSE))","v":""},null,{"$f":"IF(G7877=\"\",\"\",VLOOKUP(G7877,Insumos!G:H,2,FALSE))","v":""}]
[null,null,null,null,null,{"$f":"IF(E7878=\"\",\"\",VLOOKUP(E7878,Insumos!AD:AE,2,FALSE))","v":""},null,{"$f":"IF(G7878=\"\",\"\",VLOOKUP(G7878,Insumos!G:H,2,FALSE))","v":""}]
[null,null,null,null,null,{"$f":"IF(E7879=\"\",\"\",VLOOKUP(E7879,Insumos!AD:AE,2,FALSE))","v":""},null,{"$f":"IF(G7879=\"\",\"\",VLOOKUP(G7879,Insumos!G:H,2,FALSE))","v":""}]
[null,null,null,null,null,{"$f":"IF(E7880=\"\",\"\",VLOOKUP(E7880,Insumos!AD:AE,2,FALSE))","v":""},null,{"$f":"IF(G7880=\"\",\"\",VLOOKUP(G7880,Insumos!G:H,2,FALSE))","v":""}]
[null,null,null,null,null,{"$f":"IF(E7881=\"\",\"\",VLOOKUP(E7881,Insumos!AD:AE,2,FALSE))","v":""},null,{"$f":"IF(G7881=\"\",\"\",VLOOKUP(G7881,Insumos!G:H,2,FALSE))","v":""}]
[null,null,null,null,null,{"$f":"IF(E7882=\"\",\"\",VLOOKUP(E7882,Insumos!AD:AE,2,FALSE))","v":""},null,{"$f":"IF(G7882=\"\",\"\",VLOOKUP(G7882,Insumos!G:H,2,FALSE))","v":""}]
[null,null,null,null,null,{"$f":"IF(E7883=\"\",\"\",VLOOKUP(E7883,Insumos!AD:AE,2,FALSE))","v":""},null,{"$f":"IF(G7883=\"\",\"\",VLOOKUP(G7883,Insumos!G:H,2,FALSE))","v":""}]
[null,null,null,null,null,{"$f":"IF(E7884=\"\",\"\",VLOOKUP(E7884,Insumos!AD:AE,2,FALSE))","v":""},null,{"$f":"IF(G7884=\"\",\"\",VLOOKUP(G7884,Insumos!G:H,2,FALSE))","v":""}]
[null,null,null,null,null,{"$f":"IF(E7885=\"\",\"\",VLOOKUP(E7885,Insumos!AD:AE,2,FALSE))","v":""},null,{"$f":"IF(G7885=\"\",\"\",VLOOKUP(G7885,Insumos!G:H,2,FALSE))","v":""}]
[null,null,null,null,null,{"$f":"IF(E7886=\"\",\"\",VLOOKUP(E7886,Insumos!AD:AE,2,FALSE))","v":""},null,{"$f":"IF(G7886=\"\",\"\",VLOOKUP(G7886,Insumos!G:H,2,FALSE))","v":""}]
[null,null,null,null,null,{"$f":"IF(E7887=\"\",\"\",VLOOKUP(E7887,Insumos!AD:AE,2,FALSE))","v":""},null,{"$f":"IF(G7887=\"\",\"\",VLOOKUP(G7887,Insumos!G:H,2,FALSE))","v":""}]
[null,null,null,null,null,{"$f":"IF(E7888=\"\",\"\",VLOOKUP(E7888,Insumos!AD:AE,2,FALSE))","v":""},null,{"$f":"IF(G7888=\"\",\"\",VLOOKUP(G7888,Insumos!G:H,2,FALSE))","v":""}]
[null,null,null,null,null,{"$f":"IF(E7889=\"\",\"\",VLOOKUP(E7889,Insumos!AD:AE,2,FALSE))","v":""},null,{"$f":"IF(G7889=\"\",\"\",VLOOKUP(G7889,Insumos!G:H,2,FALSE))","v":""}]
[null,null,null,null,null,{"$f":"IF(E7890=\"\",\"\",VLOOKUP(E7890,Insumos!AD:AE,2,FALSE))","v":""},null,{"$f":"IF(G7890=\"\",\"\",VLOOKUP(G7890,Insumos!G:H,2,FALSE))","v":""}]
[null,null,null,null,null,{"$f":"IF(E7891=\"\",\"\",VLOOKUP(E7891,Insumos!AD:AE,2,FALSE))","v":""},null,{"$f":"IF(G7891=\"\",\"\",VLOOKUP(G7891,Insumos!G:H,2,FALSE))","v":""}]
[null,null,null,null,null,{"$f":"IF(E7892=\"\",\"\",VLOOKUP(E7892,Insumos!AD:AE,2,FALSE))","v":""},null,{"$f":"IF(G7892=\"\",\"\",VLOOKUP(G7892,Insumos!G:H,2,FALSE))","v":""}]
[null,null,null,null,null,{"$f":"IF(E7893=\"\",\"\",VLOOKUP(E7893,Insumos!AD:AE,2,FALSE))","v":""},null,{"$f":"IF(G7893=\"\",\"\",VLOOKUP(G7893,Insumos!G:H,2,FALSE))","v":""}]
[null,null,null,null,null,{"$f":"IF(E7894=\"\",\"\",VLOOKUP(E7894,Insumos!AD:AE,2,FALSE))","v":""},null,{"$f":"IF(G7894=\"\",\"\",VLOOKUP(G7894,Insumos!G:H,2,FALSE))","v":""}]
[null,null,null,null,null,{"$f":"IF(E7895=\"\",\"\",VLOOKUP(E7895,Insumos!AD:AE,2,FALSE))","v":""},null,{"$f":"IF(G7895=\"\",\"\",VLOOKUP(G7895,Insumos!G:H,2,FALSE))","v":""}]
[null,null,null,null,null,{"$f":"IF(E7896=\"\",\"\",VLOOKUP(E7896,Insumos!AD:AE,2,FALSE))","v":""},null,{"$f":"IF(G7896=\"\",\"\",VLOOKUP(G7896,Insumos!G:H,2,FALSE))","v":""}]
[null,null,null,null,null,{"$f":"IF(E7897=\"\",\"\",VLOOKUP(E7897,Insumos!AD:AE,2,FALSE))","v":""},null,{"$f":"IF(G7897=\"\",\"\",VLOOKUP(G7897,Insumos!G:H,2,FALSE))","v":""}]
[null,null,null,null,null,{"$f":"IF(E7898=\"\",\"\",VLOOKUP(E7898,Insumos!AD:AE,2,FALSE))","v":""},null,{"$f":"IF(G7898=\"\",\"\",VLOOKUP(G7898,Insumos!G:H,2,FALSE))","v":""}]
[null,null,null,null,null,{"$f":"IF(E7899=\"\",\"\",VLOOKUP(E7899,Insumos!AD:AE,2,FALSE))","v":""},null,{"$f":"IF(G7899=\"\",\"\",VLOOKUP(G7899,Insumos!G:H,2,FALSE))","v":""}]
[null,null,null,null,null,{"$f":"IF(E7900=\"\",\"\",VLOOKUP(E7900,Insumos!AD:AE,2,FALSE))","v":""},null,{"$f":"IF(G7900=\"\",\"\",VLOOKUP(G7900,Insumos!G:H,2,FALSE))","v":""}]
[null,null,null,null,null,{"$f":"IF(E7901=\"\",\"\",VLOOKUP(E7901,Insumos!AD:AE,2,FALSE))","v":""},null,{"$f":"IF(G7901=\"\",\"\",VLOOKUP(G7901,Insumos!G:H,2,FALSE))","v":""}]
[null,null,null,null,null,{"$f":"IF(E7902=\"\",\"\",VLOOKUP(E7902,Insumos!AD:AE,2,FALSE))","v":""},null,{"$f":"IF(G7902=\"\",\"\",VLOOKUP(G7902,Insumos!G:H,2,FALSE))","v":""}]
[null,null,null,null,null,{"$f":"IF(E7903=\"\",\"\",VLOOKUP(E7903,Insumos!AD:AE,2,FALSE))","v":""},null,{"$f":"IF(G7903=\"\",\"\",VLOOKUP(G7903,Insumos!G:H,2,FALSE))","v":""}]
[null,null,null,null,null,{"$f":"IF(E7904=\"\",\"\",VLOOKUP(E7904,Insumos!AD:AE,2,FALSE))","v":""},null,{"$f":"IF(G7904=\"\",\"\",VLOOKUP(G7904,Insumos!G:H,2,FALSE))","v":""}]
[null,null,null,null,null,{"$f":"IF(E7905=\"\",\"\",VLOOKUP(E7905,Insumos!AD:AE,2,FALSE))","v":""},null,{"$f":"IF(G7905=\"\",\"\",VLOOKUP(G7905,Insumos!G:H,2,FALSE))","v":""}]
[null,null,null,null,null,{"$f":"IF(E7906=\"\",\"\",VLOOKUP(E7906,Insumos!AD:AE,2,FALSE))","v":""},null,{"$f":"IF(G7906=\"\",\"\",VLOOKUP(G7906,Insumos!G:H,2,FALSE))","v":""}]
[null,null,null,null,null,{"$f":"IF(E7907=\"\",\"\",VLOOKUP(E7907,Insumos!AD:AE,2,FALSE))","v":""},null,{"$f":"IF(G7907=\"\",\"\",VLOOKUP(G7907,Insumos!G:H,2,FALSE))","v":""}]
[null,null,null,null,null,{"$f":"IF(E7908=\"\",\"\",VLOOKUP(E7908,Insumos!AD:AE,2,FALSE))","v":""},null,{"$f":"IF(G7908=\"\",\"\",VLOOKUP(G7908,Insumos!G:H,2,FALSE))","v":""}]
[null,null,null,null,null,{"$f":"IF(E7909=\"\",\"\",VLOOKUP(E7909,Insumos!AD:AE,2,FALSE))","v":""},null,{"$f":"IF(G7909=\"\",\"\",VLOOKUP(G7909,Insumos!G:H,2,FALSE))","v":""}]
[null,null,null,null,null,{"$f":"IF(E7910=\"\",\"\",VLOOKUP(E7910,Insumos!AD:AE,2,FALSE))","v":""},null,{"$f":"IF(G7910=\"\",\"\",VLOOKUP(G7910,Insumos!G:H,2,FALSE))","v":""}]
[null,null,null,null,null,{"$f":"IF(E7911=\"\",\"\",VLOOKUP(E7911,Insumos!AD:AE,2,FALSE))","v":""},null,{"$f":"IF(G7911=\"\",\"\",VLOOKUP(G7911,Insumos!G:H,2,FALSE))","v":""}]
[null,null,null,null,null,{"$f":"IF(E7912=\"\",\"\",VLOOKUP(E7912,Insumos!AD:AE,2,FALSE))","v":""},null,{"$f":"IF(G7912=\"\",\"\",VLOOKUP(G7912,Insumos!G:H,2,FALSE))","v":""}]
[null,null,null,null,null,{"$f":"IF(E7913=\"\",\"\",VLOOKUP(E7913,Insumos!AD:AE,2,FALSE))","v":""},null,{"$f":"IF(G7913=\"\",\"\",VLOOKUP(G7913,Insumos!G:H,2,FALSE))","v":""}]
[null,null,null,null,null,{"$f":"IF(E7914=\"\",\"\",VLOOKUP(E7914,Insumos!AD:AE,2,FALSE))","v":""},null,{"$f":"IF(G7914=\"\",\"\",VLOOKUP(G7914,Insumos!G:H,2,FALSE))","v":""}]
[null,null,null,null,null,{"$f":"IF(E7915=\"\",\"\",VLOOKUP(E7915,Insumos!AD:AE,2,FALSE))","v":""},null,{"$f":"IF(G7915=\"\",\"\",VLOOKUP(G7915,Insumos!G:H,2,FALSE))","v":""}]
[null,null,null,null,null,{"$f":"IF(E7916=\"\",\"\",VLOOKUP(E7916,Insumos!AD:AE,2,FALSE))","v":""},null,{"$f":"IF(G7916=\"\",\"\",VLOOKUP(G7916,Insumos!G:H,2,FALSE))","v":""}]
[null,null,null,null,null,{"$f":"IF(E7917=\"\",\"\",VLOOKUP(E7917,Insumos!AD:AE,2,FALSE))","v":""},null,{"$f":"IF(G7917=\"\",\"\",VLOOKUP(G7917,Insumos!G:H,2,FALSE))","v":""}]
[null,null,null,null,null,{"$f":"IF(E7918=\"\",\"\",VLOOKUP(E7918,Insumos!AD:AE,2,FALSE))","v":""},null,{"$f":"IF(G7918=\"\",\"\",VLOOKUP(G7918,Insumos!G:H,2,FALSE))","v":""}]
[null,null,null,null,null,{"$f":"IF(E7919=\"\",\"\",VLOOKUP(E7919,Insumos!AD:AE,2,FALSE))","v":""},null,{"$f":"IF(G7919=\"\",\"\",VLOOKUP(G7919,Insumos!G:H,2,FALSE))","v":""}]
[null,null,null,null,null,{"$f":"IF(E7920=\"\",\"\",VLOOKUP(E7920,Insumos!AD:AE,2,FALSE))","v":""},null,{"$f":"IF(G7920=\"\",\"\",VLOOKUP(G7920,Insumos!G:H,2,FALSE))","v":""}]
[null,null,null,null,null,{"$f":"IF(E7921=\"\",\"\",VLOOKUP(E7921,Insumos!AD:AE,2,FALSE))","v":""},null,{"$f":"IF(G7921=\"\",\"\",VLOOKUP(G7921,Insumos!G:H,2,FALSE))","v":""}]
[null,null,null,null,null,{"$f":"IF(E7922=\"\",\"\",VLOOKUP(E7922,Insumos!AD:AE,2,FALSE))","v":""},null,{"$f":"IF(G7922=\"\",\"\",VLOOKUP(G7922,Insumos!G:H,2,FALSE))","v":""}]
[null,null,null,null,null,{"$f":"IF(E7923=\"\",\"\",VLOOKUP(E7923,Insumos!AD:AE,2,FALSE))","v":""},null,{"$f":"IF(G7923=\"\",\"\",VLOOKUP(G7923,Insumos!G:H,2,FALSE))","v":""}]
[null,null,null,null,null,{"$f":"IF(E7924=\"\",\"\",VLOOKUP(E7924,Insumos!AD:AE,2,FALSE))","v":""},null,{"$f":"IF(G7924=\"\",\"\",VLOOKUP(G7924,Insumos!G:H,2,FALSE))","v":""}]
[null,null,null,null,null,{"$f":"IF(E7925=\"\",\"\",VLOOKUP(E7925,Insumos!AD:AE,2,FALSE))","v":""},null,{"$f":"IF(G7925=\"\",\"\",VLOOKUP(G7925,Insumos!G:H,2,FALSE))","v":""}]
[null,null,null,null,null,{"$f":"IF(E7926=\"\",\"\",VLOOKUP(E7926,Insumos!AD:AE,2,FALSE))","v":""},null,{"$f":"IF(G7926=\"\",\"\",VLOOKUP(G7926,Insumos!G:H,2,FALSE))","v":""}]
[null,null,null,null,null,{"$f":"IF(E7927=\"\",\"\",VLOOKUP(E7927,Insumos!AD:AE,2,FALSE))","v":""},null,{"$f":"IF(G7927=\"\",\"\",VLOOKUP(G7927,Insumos!G:H,2,FALSE))","v":""}]
[null,null,null,null,null,{"$f":"IF(E7928=\"\",\"\",VLOOKUP(E7928,Insumos!AD:AE,2,FALSE))","v":""},null,{"$f":"IF(G7928=\"\",\"\",VLOOKUP(G7928,Insumos!G:H,2,FALSE))","v":""}]
[null,null,null,null,null,{"$f":"IF(E7929=\"\",\"\",VLOOKUP(E7929,Insumos!AD:AE,2,FALSE))","v":""},null,{"$f":"IF(G7929=\"\",\"\",VLOOKUP(G7929,Insumos!G:H,2,FALSE))","v":""}]
[null,null,null,null,null,{"$f":"IF(E7930=\"\",\"\",VLOOKUP(E7930,Insumos!AD:AE,2,FALSE))","v":""},null,{"$f":"IF(G7930=\"\",\"\",VLOOKUP(G7930,Insumos!G:H,2,FALSE))","v":""}]
[null,null,null,null,null,{"$f":"IF(E7931=\"\",\"\",VLOOKUP(E7931,Insumos!AD:AE,2,FALSE))","v":""},null,{"$f":"IF(G7931=\"\",\"\",VLOOKUP(G7931,Insumos!G:H,2,FALSE))","v":""}]
[null,null,null,null,null,{"$f":"IF(E7932=\"\",\"\",VLOOKUP(E7932,Insumos!AD:AE,2,FALSE))","v":""},null,{"$f":"IF(G7932=\"\",\"\",VLOOKUP(G7932,Insumos!G:H,2,FALSE))","v":""}]
[null,null,null,null,null,{"$f":"IF(E7933=\"\",\"\",VLOOKUP(E7933,Insumos!AD:AE,2,FALSE))","v":""},null,{"$f":"IF(G7933=\"\",\"\",VLOOKUP(G7933,Insumos!G:H,2,FALSE))","v":""}]
[null,null,null,null,null,{"$f":"IF(E7934=\"\",\"\",VLOOKUP(E7934,Insumos!AD:AE,2,FALSE))","v":""},null,{"$f":"IF(G7934=\"\",\"\",VLOOKUP(G7934,Insumos!G:H,2,FALSE))","v":""}]
[null,null,null,null,null,{"$f":"IF(E7935=\"\",\"\",VLOOKUP(E7935,Insumos!AD:AE,2,FALSE))","v":""},null,{"$f":"IF(G7935=\"\",\"\",VLOOKUP(G7935,Insumos!G:H,2,FALSE))","v":""}]
[null,null,null,null,null,{"$f":"IF(E7936=\"\",\"\",VLOOKUP(E7936,Insumos!AD:AE,2,FALSE))","v":""},null,{"$f":"IF(G7936=\"\",\"\",VLOOKUP(G7936,Insumos!G:H,2,FALSE))","v":""}]
[null,null,null,null,null,{"$f":"IF(E7937=\"\",\"\",VLOOKUP(E7937,Insumos!AD:AE,2,FALSE))","v":""},null,{"$f":"IF(G7937=\"\",\"\",VLOOKUP(G7937,Insumos!G:H,2,FALSE))","v":""}]
[null,null,null,null,null,{"$f":"IF(E7938=\"\",\"\",VLOOKUP(E7938,Insumos!AD:AE,2,FALSE))","v":""},null,{"$f":"IF(G7938=\"\",\"\",VLOOKUP(G7938,Insumos!G:H,2,FALSE))","v":""}]
[null,null,null,null,null,{"$f":"IF(E7939=\"\",\"\",VLOOKUP(E7939,Insumos!AD:AE,2,FALSE))","v":""},null,{"$f":"IF(G7939=\"\",\"\",VLOOKUP(G7939,Insumos!G:H,2,FALSE))","v":""}]
[null,null,null,null,null,{"$f":"IF(E7940=\"\",\"\",VLOOKUP(E7940,Insumos!AD:AE,2,FALSE))","v":""},null,{"$f":"IF(G7940=\"\",\"\",VLOOKUP(G7940,Insumos!G:H,2,FALSE))","v":""}]
[null,null,null,null,null,{"$f":"IF(E7941=\"\",\"\",VLOOKUP(E7941,Insumos!AD:AE,2,FALSE))","v":""},null,{"$f":"IF(G7941=\"\",\"\",VLOOKUP(G7941,Insumos!G:H,2,FALSE))","v":""}]
[null,null,null,null,null,{"$f":"IF(E7942=\"\",\"\",VLOOKUP(E7942,Insumos!AD:AE,2,FALSE))","v":""},null,{"$f":"IF(G7942=\"\",\"\",VLOOKUP(G7942,Insumos!G:H,2,FALSE))","v":""}]
[null,null,null,null,null,{"$f":"IF(E7943=\"\",\"\",VLOOKUP(E7943,Insumos!AD:AE,2,FALSE))","v":""},null,{"$f":"IF(G7943=\"\",\"\",VLOOKUP(G7943,Insumos!G:H,2,FALSE))","v":""}]
[null,null,null,null,null,{"$f":"IF(E7944=\"\",\"\",VLOOKUP(E7944,Insumos!AD:AE,2,FALSE))","v":""},null,{"$f":"IF(G7944=\"\",\"\",VLOOKUP(G7944,Insumos!G:H,2,FALSE))","v":""}]
[null,null,null,null,null,{"$f":"IF(E7945=\"\",\"\",VLOOKUP(E7945,Insumos!AD:AE,2,FALSE))","v":""},null,{"$f":"IF(G7945=\"\",\"\",VLOOKUP(G7945,Insumos!G:H,2,FALSE))","v":""}]
[null,null,null,null,null,{"$f":"IF(E7946=\"\",\"\",VLOOKUP(E7946,Insumos!AD:AE,2,FALSE))","v":""},null,{"$f":"IF(G7946=\"\",\"\",VLOOKUP(G7946,Insumos!G:H,2,FALSE))","v":""}]
[null,null,null,null,null,{"$f":"IF(E7947=\"\",\"\",VLOOKUP(E7947,Insumos!AD:AE,2,FALSE))","v":""},null,{"$f":"IF(G7947=\"\",\"\",VLOOKUP(G7947,Insumos!G:H,2,FALSE))","v":""}]
[null,null,null,null,null,{"$f":"IF(E7948=\"\",\"\",VLOOKUP(E7948,Insumos!AD:AE,2,FALSE))","v":""},null,{"$f":"IF(G7948=\"\",\"\",VLOOKUP(G7948,Insumos!G:H,2,FALSE))","v":""}]
[null,null,null,null,null,{"$f":"IF(E7949=\"\",\"\",VLOOKUP(E7949,Insumos!AD:AE,2,FALSE))","v":""},null,{"$f":"IF(G7949=\"\",\"\",VLOOKUP(G7949,Insumos!G:H,2,FALSE))","v":""}]
[null,null,null,null,null,{"$f":"IF(E7950=\"\",\"\",VLOOKUP(E7950,Insumos!AD:AE,2,FALSE))","v":""},null,{"$f":"IF(G7950=\"\",\"\",VLOOKUP(G7950,Insumos!G:H,2,FALSE))","v":""}]
[null,null,null,null,null,{"$f":"IF(E7951=\"\",\"\",VLOOKUP(E7951,Insumos!AD:AE,2,FALSE))","v":""},null,{"$f":"IF(G7951=\"\",\"\",VLOOKUP(G7951,Insumos!G:H,2,FALSE))","v":""}]
[null,null,null,null,null,{"$f":"IF(E7952=\"\",\"\",VLOOKUP(E7952,Insumos!AD:AE,2,FALSE))","v":""},null,{"$f":"IF(G7952=\"\",\"\",VLOOKUP(G7952,Insumos!G:H,2,FALSE))","v":""}]
[null,null,null,null,null,{"$f":"IF(E7953=\"\",\"\",VLOOKUP(E7953,Insumos!AD:AE,2,FALSE))","v":""},null,{"$f":"IF(G7953=\"\",\"\",VLOOKUP(G7953,Insumos!G:H,2,FALSE))","v":""}]
[null,null,null,null,null,{"$f":"IF(E7954=\"\",\"\",VLOOKUP(E7954,Insumos!AD:AE,2,FALSE))","v":""},null,{"$f":"IF(G7954=\"\",\"\",VLOOKUP(G7954,Insumos!G:H,2,FALSE))","v":""}]
[null,null,null,null,null,{"$f":"IF(E7955=\"\",\"\",VLOOKUP(E7955,Insumos!AD:AE,2,FALSE))","v":""},null,{"$f":"IF(G7955=\"\",\"\",VLOOKUP(G7955,Insumos!G:H,2,FALSE))","v":""}]
[null,null,null,null,null,{"$f":"IF(E7956=\"\",\"\",VLOOKUP(E7956,Insumos!AD:AE,2,FALSE))","v":""},null,{"$f":"IF(G7956=\"\",\"\",VLOOKUP(G7956,Insumos!G:H,2,FALSE))","v":""}]
[null,null,null,null,null,{"$f":"IF(E7957=\"\",\"\",VLOOKUP(E7957,Insumos!AD:AE,2,FALSE))","v":""},null,{"$f":"IF(G7957=\"\",\"\",VLOOKUP(G7957,Insumos!G:H,2,FALSE))","v":""}]
[null,null,null,null,null,{"$f":"IF(E7958=\"\",\"\",VLOOKUP(E7958,Insumos!AD:AE,2,FALSE))","v":""},null,{"$f":"IF(G7958=\"\",\"\",VLOOKUP(G7958,Insumos!G:H,2,FALSE))","v":""}]
[null,null,null,null,null,{"$f":"IF(E7959=\"\",\"\",VLOOKUP(E7959,Insumos!AD:AE,2,FALSE))","v":""},null,{"$f":"IF(G7959=\"\",\"\",VLOOKUP(G7959,Insumos!G:H,2,FALSE))","v":""}]
[null,null,null,null,null,{"$f":"IF(E7960=\"\",\"\",VLOOKUP(E7960,Insumos!AD:AE,2,FALSE))","v":""},null,{"$f":"IF(G7960=\"\",\"\",VLOOKUP(G7960,Insumos!G:H,2,FALSE))","v":""}]
[null,null,null,null,null,{"$f":"IF(E7961=\"\",\"\",VLOOKUP(E7961,Insumos!AD:AE,2,FALSE))","v":""},null,{"$f":"IF(G7961=\"\",\"\",VLOOKUP(G7961,Insumos!G:H,2,FALSE))","v":""}]
[null,null,null,null,null,{"$f":"IF(E7962=\"\",\"\",VLOOKUP(E7962,Insumos!AD:AE,2,FALSE))","v":""},null,{"$f":"IF(G7962=\"\",\"\",VLOOKUP(G7962,Insumos!G:H,2,FALSE))","v":""}]
[null,null,null,null,null,{"$f":"IF(E7963=\"\",\"\",VLOOKUP(E7963,Insumos!AD:AE,2,FALSE))","v":""},null,{"$f":"IF(G7963=\"\",\"\",VLOOKUP(G7963,Insumos!G:H,2,FALSE))","v":""}]
[null,null,null,null,null,{"$f":"IF(E7964=\"\",\"\",VLOOKUP(E7964,Insumos!AD:AE,2,FALSE))","v":""},null,{"$f":"IF(G7964=\"\",\"\",VLOOKUP(G7964,Insumos!G:H,2,FALSE))","v":""}]
[null,null,null,null,null,{"$f":"IF(E7965=\"\",\"\",VLOOKUP(E7965,Insumos!AD:AE,2,FALSE))","v":""},null,{"$f":"IF(G7965=\"\",\"\",VLOOKUP(G7965,Insumos!G:H,2,FALSE))","v":""}]
[null,null,null,null,null,{"$f":"IF(E7966=\"\",\"\",VLOOKUP(E7966,Insumos!AD:AE,2,FALSE))","v":""},null,{"$f":"IF(G7966=\"\",\"\",VLOOKUP(G7966,Insumos!G:H,2,FALSE))","v":""}]
[null,null,null,null,null,{"$f":"IF(E7967=\"\",\"\",VLOOKUP(E7967,Insumos!AD:AE,2,FALSE))","v":""},null,{"$f":"IF(G7967=\"\",\"\",VLOOKUP(G7967,Insumos!G:H,2,FALSE))","v":""}]
[null,null,null,null,null,{"$f":"IF(E7968=\"\",\"\",VLOOKUP(E7968,Insumos!AD:AE,2,FALSE))","v":""},null,{"$f":"IF(G7968=\"\",\"\",VLOOKUP(G7968,Insumos!G:H,2,FALSE))","v":""}]
[null,null,null,null,null,{"$f":"IF(E7969=\"\",\"\",VLOOKUP(E7969,Insumos!AD:AE,2,FALSE))","v":""},null,{"$f":"IF(G7969=\"\",\"\",VLOOKUP(G7969,Insumos!G:H,2,FALSE))","v":""}]
[null,null,null,null,null,{"$f":"IF(E7970=\"\",\"\",VLOOKUP(E7970,Insumos!AD:AE,2,FALSE))","v":""},null,{"$f":"IF(G7970=\"\",\"\",VLOOKUP(G7970,Insumos!G:H,2,FALSE))","v":""}]
[null,null,null,null,null,{"$f":"IF(E7971=\"\",\"\",VLOOKUP(E7971,Insumos!AD:AE,2,FALSE))","v":""},null,{"$f":"IF(G7971=\"\",\"\",VLOOKUP(G7971,Insumos!G:H,2,FALSE))","v":""}]
[null,null,null,null,null,{"$f":"IF(E7972=\"\",\"\",VLOOKUP(E7972,Insumos!AD:AE,2,FALSE))","v":""},null,{"$f":"IF(G7972=\"\",\"\",VLOOKUP(G7972,Insumos!G:H,2,FALSE))","v":""}]
[null,null,null,null,null,{"$f":"IF(E7973=\"\",\"\",VLOOKUP(E7973,Insumos!AD:AE,2,FALSE))","v":""},null,{"$f":"IF(G7973=\"\",\"\",VLOOKUP(G7973,Insumos!G:H,2,FALSE))","v":""}]
[null,null,null,null,null,{"$f":"IF(E7974=\"\",\"\",VLOOKUP(E7974,Insumos!AD:AE,2,FALSE))","v":""},null,{"$f":"IF(G7974=\"\",\"\",VLOOKUP(G7974,Insumos!G:H,2,FALSE))","v":""}]
[null,null,null,null,null,{"$f":"IF(E7975=\"\",\"\",VLOOKUP(E7975,Insumos!AD:AE,2,FALSE))","v":""},null,{"$f":"IF(G7975=\"\",\"\",VLOOKUP(G7975,Insumos!G:H,2,FALSE))","v":""}]
[null,null,null,null,null,{"$f":"IF(E7976=\"\",\"\",VLOOKUP(E7976,Insumos!AD:AE,2,FALSE))","v":""},null,{"$f":"IF(G7976=\"\",\"\",VLOOKUP(G7976,Insumos!G:H,2,FALSE))","v":""}]
[null,null,null,null,null,{"$f":"IF(E7977=\"\",\"\",VLOOKUP(E7977,Insumos!AD:AE,2,FALSE))","v":""},null,{"$f":"IF(G7977=\"\",\"\",VLOOKUP(G7977,Insumos!G:H,2,FALSE))","v":""}]
[null,null,null,null,null,{"$f":"IF(E7978=\"\",\"\",VLOOKUP(E7978,Insumos!AD:AE,2,FALSE))","v":""},null,{"$f":"IF(G7978=\"\",\"\",VLOOKUP(G7978,Insumos!G:H,2,FALSE))","v":""}]
[null,null,null,null,null,{"$f":"IF(E7979=\"\",\"\",VLOOKUP(E7979,Insumos!AD:AE,2,FALSE))","v":""},null,{"$f":"IF(G7979=\"\",\"\",VLOOKUP(G7979,Insumos!G:H,2,FALSE))","v":""}]
[null,null,null,null,null,{"$f":"IF(E7980=\"\",\"\",VLOOKUP(E7980,Insumos!AD:AE,2,FALSE))","v":""},null,{"$f":"IF(G7980=\"\",\"\",VLOOKUP(G7980,Insumos!G:H,2,FALSE))","v":""}]
[null,null,null,null,null,{"$f":"IF(E7981=\"\",\"\",VLOOKUP(E7981,Insumos!AD:AE,2,FALSE))","v":""},null,{"$f":"IF(G7981=\"\",\"\",VLOOKUP(G7981,Insumos!G:H,2,FALSE))","v":""}]
[null,null,null,null,null,{"$f":"IF(E7982=\"\",\"\",VLOOKUP(E7982,Insumos!AD:AE,2,FALSE))","v":""},null,{"$f":"IF(G7982=\"\",\"\",VLOOKUP(G7982,Insumos!G:H,2,FALSE))","v":""}]
[null,null,null,null,null,{"$f":"IF(E7983=\"\",\"\",VLOOKUP(E7983,Insumos!AD:AE,2,FALSE))","v":""},null,{"$f":"IF(G7983=\"\",\"\",VLOOKUP(G7983,Insumos!G:H,2,FALSE))","v":""}]
[null,null,null,null,null,{"$f":"IF(E7984=\"\",\"\",VLOOKUP(E7984,Insumos!AD:AE,2,FALSE))","v":""},null,{"$f":"IF(G7984=\"\",\"\",VLOOKUP(G7984,Insumos!G:H,2,FALSE))","v":""}]
[null,null,null,null,null,{"$f":"IF(E7985=\"\",\"\",VLOOKUP(E7985,Insumos!AD:AE,2,FALSE))","v":""},null,{"$f":"IF(G7985=\"\",\"\",VLOOKUP(G7985,Insumos!G:H,2,FALSE))","v":""}]
[null,null,null,null,null,{"$f":"IF(E7986=\"\",\"\",VLOOKUP(E7986,Insumos!AD:AE,2,FALSE))","v":""},null,{"$f":"IF(G7986=\"\",\"\",VLOOKUP(G7986,Insumos!G:H,2,FALSE))","v":""}]
[null,null,null,null,null,{"$f":"IF(E7987=\"\",\"\",VLOOKUP(E7987,Insumos!AD:AE,2,FALSE))","v":""},null,{"$f":"IF(G7987=\"\",\"\",VLOOKUP(G7987,Insumos!G:H,2,FALSE))","v":""}]
[null,null,null,null,null,{"$f":"IF(E7988=\"\",\"\",VLOOKUP(E7988,Insumos!AD:AE,2,FALSE))","v":""},null,{"$f":"IF(G7988=\"\",\"\",VLOOKUP(G7988,Insumos!G:H,2,FALSE))","v":""}]
[null,null,null,null,null,{"$f":"IF(E7989=\"\",\"\",VLOOKUP(E7989,Insumos!AD:AE,2,FALSE))","v":""},null,{"$f":"IF(G7989=\"\",\"\",VLOOKUP(G7989,Insumos!G:H,2,FALSE))","v":""}]
[null,null,null,null,null,{"$f":"IF(E7990=\"\",\"\",VLOOKUP(E7990,Insumos!AD:AE,2,FALSE))","v":""},null,{"$f":"IF(G7990=\"\",\"\",VLOOKUP(G7990,Insumos!G:H,2,FALSE))","v":""}]
[null,null,null,null,null,{"$f":"IF(E7991=\"\",\"\",VLOOKUP(E7991,Insumos!AD:AE,2,FALSE))","v":""},null,{"$f":"IF(G7991=\"\",\"\",VLOOKUP(G7991,Insumos!G:H,2,FALSE))","v":""}]
[null,null,null,null,null,{"$f":"IF(E7992=\"\",\"\",VLOOKUP(E7992,Insumos!AD:AE,2,FALSE))","v":""},null,{"$f":"IF(G7992=\"\",\"\",VLOOKUP(G7992,Insumos!G:H,2,FALSE))","v":""}]
[null,null,null,null,null,{"$f":"IF(E7993=\"\",\"\",VLOOKUP(E7993,Insumos!AD:AE,2,FALSE))","v":""},null,{"$f":"IF(G7993=\"\",\"\",VLOOKUP(G7993,Insumos!G:H,2,FALSE))","v":""}]
[null,null,null,null,null,{"$f":"IF(E7994=\"\",\"\",VLOOKUP(E7994,Insumos!AD:AE,2,FALSE))","v":""},null,{"$f":"IF(G7994=\"\",\"\",VLOOKUP(G7994,Insumos!G:H,2,FALSE))","v":""}]
[null,null,null,null,null,{"$f":"IF(E7995=\"\",\"\",VLOOKUP(E7995,Insumos!AD:AE,2,FALSE))","v":""},null,{"$f":"IF(G7995=\"\",\"\",VLOOKUP(G7995,Insumos!G:H,2,FALSE))","v":""}]
[null,null,null,null,null,{"$f":"IF(E7996=\"\",\"\",VLOOKUP(E7996,Insumos!AD:AE,2,FALSE))","v":""},null,{"$f":"IF(G7996=\"\",\"\",VLOOKUP(G7996,Insumos!G:H,2,FALSE))","v":""}]
[null,null,null,null,null,{"$f":"IF(E7997=\"\",\"\",VLOOKUP(E7997,Insumos!AD:AE,2,FALSE))","v":""},null,{"$f":"IF(G7997=\"\",\"\",VLOOKUP(G7997,Insumos!G:H,2,FALSE))","v":""}]
[null,null,null,null,null,{"$f":"IF(E7998=\"\",\"\",VLOOKUP(E7998,Insumos!AD:AE,2,FALSE))","v":""},null,{"$f":"IF(G7998=\"\",\"\",VLOOKUP(G7998,Insumos!G:H,2,FALSE))","v":""}]
[null,null,null,null,null,{"$f":"IF(E7999=\"\",\"\",VLOOKUP(E7999,Insumos!AD:AE,2,FALSE))","v":""},null,{"$f":"IF(G7999=\"\",\"\",VLOOKUP(G7999,Insumos!G:H,2,FALSE))","v":""}]
[null,null,null,null,null,{"$f":"IF(E8000=\"\",\"\",VLOOKUP(E8000,Insumos!AD:AE,2,FALSE))","v":""},null,{"$f":"IF(G8000=\"\",\"\",VLOOKUP(G8000,Insumos!G:H,2,FALSE))","v":""}]
[null,null,null,null,null,{"$f":"IF(E8001=\"\",\"\",VLOOKUP(E8001,Insumos!AD:AE,2,FALSE))","v":""},null,{"$f":"IF(G8001=\"\",\"\",VLOOKUP(G8001,Insumos!G:H,2,FALSE))","v":""}]
[null,null,null,null,null,{"$f":"IF(E8002=\"\",\"\",VLOOKUP(E8002,Insumos!AD:AE,2,FALSE))","v":""},null,{"$f":"IF(G8002=\"\",\"\",VLOOKUP(G8002,Insumos!G:H,2,FALSE))","v":""}]
[null,null,null,null,null,{"$f":"IF(E8003=\"\",\"\",VLOOKUP(E8003,Insumos!AD:AE,2,FALSE))","v":""},null,{"$f":"IF(G8003=\"\",\"\",VLOOKUP(G8003,Insumos!G:H,2,FALSE))","v":""}]
[null,null,null,null,null,{"$f":"IF(E8004=\"\",\"\",VLOOKUP(E8004,Insumos!AD:AE,2,FALSE))","v":""},null,{"$f":"IF(G8004=\"\",\"\",VLOOKUP(G8004,Insumos!G:H,2,FALSE))","v":""}]
[null,null,null,null,null,{"$f":"IF(E8005=\"\",\"\",VLOOKUP(E8005,Insumos!AD:AE,2,FALSE))","v":""},null,{"$f":"IF(G8005=\"\",\"\",VLOOKUP(G8005,Insumos!G:H,2,FALSE))","v":""}]
[null,null,null,null,null,{"$f":"IF(E8006=\"\",\"\",VLOOKUP(E8006,Insumos!AD:AE,2,FALSE))","v":""},null,{"$f":"IF(G8006=\"\",\"\",VLOOKUP(G8006,Insumos!G:H,2,FALSE))","v":""}]
[null,null,null,null,null,{"$f":"IF(E8007=\"\",\"\",VLOOKUP(E8007,Insumos!AD:AE,2,FALSE))","v":""},null,{"$f":"IF(G8007=\"\",\"\",VLOOKUP(G8007,Insumos!G:H,2,FALSE))","v":""}]
[null,null,null,null,null,{"$f":"IF(E8008=\"\",\"\",VLOOKUP(E8008,Insumos!AD:AE,2,FALSE))","v":""},null,{"$f":"IF(G8008=\"\",\"\",VLOOKUP(G8008,Insumos!G:H,2,FALSE))","v":""}]
[null,null,null,null,null,{"$f":"IF(E8009=\"\",\"\",VLOOKUP(E8009,Insumos!AD:AE,2,FALSE))","v":""},null,{"$f":"IF(G8009=\"\",\"\",VLOOKUP(G8009,Insumos!G:H,2,FALSE))","v":""}]
[null,null,null,null,null,{"$f":"IF(E8010=\"\",\"\",VLOOKUP(E8010,Insumos!AD:AE,2,FALSE))","v":""},null,{"$f":"IF(G8010=\"\",\"\",VLOOKUP(G8010,Insumos!G:H,2,FALSE))","v":""}]
[null,null,null,null,null,{"$f":"IF(E8011=\"\",\"\",VLOOKUP(E8011,Insumos!AD:AE,2,FALSE))","v":""},null,{"$f":"IF(G8011=\"\",\"\",VLOOKUP(G8011,Insumos!G:H,2,FALSE))","v":""}]
[null,null,null,null,null,{"$f":"IF(E8012=\"\",\"\",VLOOKUP(E8012,Insumos!AD:AE,2,FALSE))","v":""},null,{"$f":"IF(G8012=\"\",\"\",VLOOKUP(G8012,Insumos!G:H,2,FALSE))","v":""}]
[null,null,null,null,null,{"$f":"IF(E8013=\"\",\"\",VLOOKUP(E8013,Insumos!AD:AE,2,FALSE))","v":""},null,{"$f":"IF(G8013=\"\",\"\",VLOOKUP(G8013,Insumos!G:H,2,FALSE))","v":""}]
[null,null,null,null,null,{"$f":"IF(E8014=\"\",\"\",VLOOKUP(E8014,Insumos!AD:AE,2,FALSE))","v":""},null,{"$f":"IF(G8014=\"\",\"\",VLOOKUP(G8014,Insumos!G:H,2,FALSE))","v":""}]
[null,null,null,null,null,{"$f":"IF(E8015=\"\",\"\",VLOOKUP(E8015,Insumos!AD:AE,2,FALSE))","v":""},null,{"$f":"IF(G8015=\"\",\"\",VLOOKUP(G8015,Insumos!G:H,2,FALSE))","v":""}]
[null,null,null,null,null,{"$f":"IF(E8016=\"\",\"\",VLOOKUP(E8016,Insumos!AD:AE,2,FALSE))","v":""},null,{"$f":"IF(G8016=\"\",\"\",VLOOKUP(G8016,Insumos!G:H,2,FALSE))","v":""}]
[null,null,null,null,null,{"$f":"IF(E8017=\"\",\"\",VLOOKUP(E8017,Insumos!AD:AE,2,FALSE))","v":""},null,{"$f":"IF(G8017=\"\",\"\",VLOOKUP(G8017,Insumos!G:H,2,FALSE))","v":""}]
[null,null,null,null,null,{"$f":"IF(E8018=\"\",\"\",VLOOKUP(E8018,Insumos!AD:AE,2,FALSE))","v":""},null,{"$f":"IF(G8018=\"\",\"\",VLOOKUP(G8018,Insumos!G:H,2,FALSE))","v":""}]
[null,null,null,null,null,{"$f":"IF(E8019=\"\",\"\",VLOOKUP(E8019,Insumos!AD:AE,2,FALSE))","v":""},null,{"$f":"IF(G8019=\"\",\"\",VLOOKUP(G8019,Insumos!G:H,2,FALSE))","v":""}]
[null,null,null,null,null,{"$f":"IF(E8020=\"\",\"\",VLOOKUP(E8020,Insumos!AD:AE,2,FALSE))","v":""},null,{"$f":"IF(G8020=\"\",\"\",VLOOKUP(G8020,Insumos!G:H,2,FALSE))","v":""}]
[null,null,null,null,null,{"$f":"IF(E8021=\"\",\"\",VLOOKUP(E8021,Insumos!AD:AE,2,FALSE))","v":""},null,{"$f":"IF(G8021=\"\",\"\",VLOOKUP(G8021,Insumos!G:H,2,FALSE))","v":""}]
[null,null,null,null,null,{"$f":"IF(E8022=\"\",\"\",VLOOKUP(E8022,Insumos!AD:AE,2,FALSE))","v":""},null,{"$f":"IF(G8022=\"\",\"\",VLOOKUP(G8022,Insumos!G:H,2,FALSE))","v":""}]
[null,null,null,null,null,{"$f":"IF(E8023=\"\",\"\",VLOOKUP(E8023,Insumos!AD:AE,2,FALSE))","v":""},null,{"$f":"IF(G8023=\"\",\"\",VLOOKUP(G8023,Insumos!G:H,2,FALSE))","v":""}]
[null,null,null,null,null,{"$f":"IF(E8024=\"\",\"\",VLOOKUP(E8024,Insumos!AD:AE,2,FALSE))","v":""},null,{"$f":"IF(G8024=\"\",\"\",VLOOKUP(G8024,Insumos!G:H,2,FALSE))","v":""}]
[null,null,null,null,null,{"$f":"IF(E8025=\"\",\"\",VLOOKUP(E8025,Insumos!AD:AE,2,FALSE))","v":""},null,{"$f":"IF(G8025=\"\",\"\",VLOOKUP(G8025,Insumos!G:H,2,FALSE))","v":""}]
[null,null,null,null,null,{"$f":"IF(E8026=\"\",\"\",VLOOKUP(E8026,Insumos!AD:AE,2,FALSE))","v":""},null,{"$f":"IF(G8026=\"\",\"\",VLOOKUP(G8026,Insumos!G:H,2,FALSE))","v":""}]
[null,null,null,null,null,{"$f":"IF(E8027=\"\",\"\",VLOOKUP(E8027,Insumos!AD:AE,2,FALSE))","v":""},null,{"$f":"IF(G8027=\"\",\"\",VLOOKUP(G8027,Insumos!G:H,2,FALSE))","v":""}]
[null,null,null,null,null,{"$f":"IF(E8028=\"\",\"\",VLOOKUP(E8028,Insumos!AD:AE,2,FALSE))","v":""},null,{"$f":"IF(G8028=\"\",\"\",VLOOKUP(G8028,Insumos!G:H,2,FALSE))","v":""}]
[null,null,null,null,null,{"$f":"IF(E8029=\"\",\"\",VLOOKUP(E8029,Insumos!AD:AE,2,FALSE))","v":""},null,{"$f":"IF(G8029=\"\",\"\",VLOOKUP(G8029,Insumos!G:H,2,FALSE))","v":""}]
[null,null,null,null,null,{"$f":"IF(E8030=\"\",\"\",VLOOKUP(E8030,Insumos!AD:AE,2,FALSE))","v":""},null,{"$f":"IF(G8030=\"\",\"\",VLOOKUP(G8030,Insumos!G:H,2,FALSE))","v":""}]
[null,null,null,null,null,{"$f":"IF(E8031=\"\",\"\",VLOOKUP(E8031,Insumos!AD:AE,2,FALSE))","v":""},null,{"$f":"IF(G8031=\"\",\"\",VLOOKUP(G8031,Insumos!G:H,2,FALSE))","v":""}]
[null,null,null,null,null,{"$f":"IF(E8032=\"\",\"\",VLOOKUP(E8032,Insumos!AD:AE,2,FALSE))","v":""},null,{"$f":"IF(G8032=\"\",\"\",VLOOKUP(G8032,Insumos!G:H,2,FALSE))","v":""}]
[null,null,null,null,null,{"$f":"IF(E8033=\"\",\"\",VLOOKUP(E8033,Insumos!AD:AE,2,FALSE))","v":""},null,{"$f":"IF(G8033=\"\",\"\",VLOOKUP(G8033,Insumos!G:H,2,FALSE))","v":""}]
[null,null,null,null,null,{"$f":"IF(E8034=\"\",\"\",VLOOKUP(E8034,Insumos!AD:AE,2,FALSE))","v":""},null,{"$f":"IF(G8034=\"\",\"\",VLOOKUP(G8034,Insumos!G:H,2,FALSE))","v":""}]
[null,null,null,null,null,{"$f":"IF(E8035=\"\",\"\",VLOOKUP(E8035,Insumos!AD:AE,2,FALSE))","v":""},null,{"$f":"IF(G8035=\"\",\"\",VLOOKUP(G8035,Insumos!G:H,2,FALSE))","v":""}]
[null,null,null,null,null,{"$f":"IF(E8036=\"\",\"\",VLOOKUP(E8036,Insumos!AD:AE,2,FALSE))","v":""},null,{"$f":"IF(G8036=\"\",\"\",VLOOKUP(G8036,Insumos!G:H,2,FALSE))","v":""}]
[null,null,null,null,null,{"$f":"IF(E8037=\"\",\"\",VLOOKUP(E8037,Insumos!AD:AE,2,FALSE))","v":""},null,{"$f":"IF(G8037=\"\",\"\",VLOOKUP(G8037,Insumos!G:H,2,FALSE))","v":""}]
[null,null,null,null,null,{"$f":"IF(E8038=\"\",\"\",VLOOKUP(E8038,Insumos!AD:AE,2,FALSE))","v":""},null,{"$f":"IF(G8038=\"\",\"\",VLOOKUP(G8038,Insumos!G:H,2,FALSE))","v":""}]
[null,null,null,null,null,{"$f":"IF(E8039=\"\",\"\",VLOOKUP(E8039,Insumos!AD:AE,2,FALSE))","v":""},null,{"$f":"IF(G8039=\"\",\"\",VLOOKUP(G8039,Insumos!G:H,2,FALSE))","v":""}]
[null,null,null,null,null,{"$f":"IF(E8040=\"\",\"\",VLOOKUP(E8040,Insumos!AD:AE,2,FALSE))","v":""},null,{"$f":"IF(G8040=\"\",\"\",VLOOKUP(G8040,Insumos!G:H,2,FALSE))","v":""}]
[null,null,null,null,null,{"$f":"IF(E8041=\"\",\"\",VLOOKUP(E8041,Insumos!AD:AE,2,FALSE))","v":""},null,{"$f":"IF(G8041=\"\",\"\",VLOOKUP(G8041,Insumos!G:H,2,FALSE))","v":""}]
[null,null,null,null,null,{"$f":"IF(E8042=\"\",\"\",VLOOKUP(E8042,Insumos!AD:AE,2,FALSE))","v":""},null,{"$f":"IF(G8042=\"\",\"\",VLOOKUP(G8042,Insumos!G:H,2,FALSE))","v":""}]
[null,null,null,null,null,{"$f":"IF(E8043=\"\",\"\",VLOOKUP(E8043,Insumos!AD:AE,2,FALSE))","v":""},null,{"$f":"IF(G8043=\"\",\"\",VLOOKUP(G8043,Insumos!G:H,2,FALSE))","v":""}]
[null,null,null,null,null,{"$f":"IF(E8044=\"\",\"\",VLOOKUP(E8044,Insumos!AD:AE,2,FALSE))","v":""},null,{"$f":"IF(G8044=\"\",\"\",VLOOKUP(G8044,Insumos!G:H,2,FALSE))","v":""}]
[null,null,null,null,null,{"$f":"IF(E8045=\"\",\"\",VLOOKUP(E8045,Insumos!AD:AE,2,FALSE))","v":""},null,{"$f":"IF(G8045=\"\",\"\",VLOOKUP(G8045,Insumos!G:H,2,FALSE))","v":""}]
[null,null,null,null,null,{"$f":"IF(E8046=\"\",\"\",VLOOKUP(E8046,Insumos!AD:AE,2,FALSE))","v":""},null,{"$f":"IF(G8046=\"\",\"\",VLOOKUP(G8046,Insumos!G:H,2,FALSE))","v":""}]
[null,null,null,null,null,{"$f":"IF(E8047=\"\",\"\",VLOOKUP(E8047,Insumos!AD:AE,2,FALSE))","v":""},null,{"$f":"IF(G8047=\"\",\"\",VLOOKUP(G8047,Insumos!G:H,2,FALSE))","v":""}]
[null,null,null,null,null,{"$f":"IF(E8048=\"\",\"\",VLOOKUP(E8048,Insumos!AD:AE,2,FALSE))","v":""},null,{"$f":"IF(G8048=\"\",\"\",VLOOKUP(G8048,Insumos!G:H,2,FALSE))","v":""}]
[null,null,null,null,null,{"$f":"IF(E8049=\"\",\"\",VLOOKUP(E8049,Insumos!AD:AE,2,FALSE))","v":""},null,{"$f":"IF(G8049=\"\",\"\",VLOOKUP(G8049,Insumos!G:H,2,FALSE))","v":""}]
[null,null,null,null,null,{"$f":"IF(E8050=\"\",\"\",VLOOKUP(E8050,Insumos!AD:AE,2,FALSE))","v":""},null,{"$f":"IF(G8050=\"\",\"\",VLOOKUP(G8050,Insumos!G:H,2,FALSE))","v":""}]
[null,null,null,null,null,{"$f":"IF(E8051=\"\",\"\",VLOOKUP(E8051,Insumos!AD:AE,2,FALSE))","v":""},null,{"$f":"IF(G8051=\"\",\"\",VLOOKUP(G8051,Insumos!G:H,2,FALSE))","v":""}]
[null,null,null,null,null,{"$f":"IF(E8052=\"\",\"\",VLOOKUP(E8052,Insumos!AD:AE,2,FALSE))","v":""},null,{"$f":"IF(G8052=\"\",\"\",VLOOKUP(G8052,Insumos!G:H,2,FALSE))","v":""}]
[null,null,null,null,null,{"$f":"IF(E8053=\"\",\"\",VLOOKUP(E8053,Insumos!AD:AE,2,FALSE))","v":""},null,{"$f":"IF(G8053=\"\",\"\",VLOOKUP(G8053,Insumos!G:H,2,FALSE))","v":""}]
[null,null,null,null,null,{"$f":"IF(E8054=\"\",\"\",VLOOKUP(E8054,Insumos!AD:AE,2,FALSE))","v":""},null,{"$f":"IF(G8054=\"\",\"\",VLOOKUP(G8054,Insumos!G:H,2,FALSE))","v":""}]
[null,null,null,null,null,{"$f":"IF(E8055=\"\",\"\",VLOOKUP(E8055,Insumos!AD:AE,2,FALSE))","v":""},null,{"$f":"IF(G8055=\"\",\"\",VLOOKUP(G8055,Insumos!G:H,2,FALSE))","v":""}]
[null,null,null,null,null,{"$f":"IF(E8056=\"\",\"\",VLOOKUP(E8056,Insumos!AD:AE,2,FALSE))","v":""},null,{"$f":"IF(G8056=\"\",\"\",VLOOKUP(G8056,Insumos!G:H,2,FALSE))","v":""}]
[null,null,null,null,null,{"$f":"IF(E8057=\"\",\"\",VLOOKUP(E8057,Insumos!AD:AE,2,FALSE))","v":""},null,{"$f":"IF(G8057=\"\",\"\",VLOOKUP(G8057,Insumos!G:H,2,FALSE))","v":""}]
[null,null,null,null,null,{"$f":"IF(E8058=\"\",\"\",VLOOKUP(E8058,Insumos!AD:AE,2,FALSE))","v":""},null,{"$f":"IF(G8058=\"\",\"\",VLOOKUP(G8058,Insumos!G:H,2,FALSE))","v":""}]
[null,null,null,null,null,{"$f":"IF(E8059=\"\",\"\",VLOOKUP(E8059,Insumos!AD:AE,2,FALSE))","v":""},null,{"$f":"IF(G8059=\"\",\"\",VLOOKUP(G8059,Insumos!G:H,2,FALSE))","v":""}]
[null,null,null,null,null,{"$f":"IF(E8060=\"\",\"\",VLOOKUP(E8060,Insumos!AD:AE,2,FALSE))","v":""},null,{"$f":"IF(G8060=\"\",\"\",VLOOKUP(G8060,Insumos!G:H,2,FALSE))","v":""}]
[null,null,null,null,null,{"$f":"IF(E8061=\"\",\"\",VLOOKUP(E8061,Insumos!AD:AE,2,FALSE))","v":""},null,{"$f":"IF(G8061=\"\",\"\",VLOOKUP(G8061,Insumos!G:H,2,FALSE))","v":""}]
[null,null,null,null,null,{"$f":"IF(E8062=\"\",\"\",VLOOKUP(E8062,Insumos!AD:AE,2,FALSE))","v":""},null,{"$f":"IF(G8062=\"\",\"\",VLOOKUP(G8062,Insumos!G:H,2,FALSE))","v":""}]
[null,null,null,null,null,{"$f":"IF(E8063=\"\",\"\",VLOOKUP(E8063,Insumos!AD:AE,2,FALSE))","v":""},null,{"$f":"IF(G8063=\"\",\"\",VLOOKUP(G8063,Insumos!G:H,2,FALSE))","v":""}]
[null,null,null,null,null,{"$f":"IF(E8064=\"\",\"\",VLOOKUP(E8064,Insumos!AD:AE,2,FALSE))","v":""},null,{"$f":"IF(G8064=\"\",\"\",VLOOKUP(G8064,Insumos!G:H,2,FALSE))","v":""}]
[null,null,null,null,null,{"$f":"IF(E8065=\"\",\"\",VLOOKUP(E8065,Insumos!AD:AE,2,FALSE))","v":""},null,{"$f":"IF(G8065=\"\",\"\",VLOOKUP(G8065,Insumos!G:H,2,FALSE))","v":""}]
[null,null,null,null,null,{"$f":"IF(E8066=\"\",\"\",VLOOKUP(E8066,Insumos!AD:AE,2,FALSE))","v":""},null,{"$f":"IF(G8066=\"\",\"\",VLOOKUP(G8066,Insumos!G:H,2,FALSE))","v":""}]
[null,null,null,null,null,{"$f":"IF(E8067=\"\",\"\",VLOOKUP(E8067,Insumos!AD:AE,2,FALSE))","v":""},null,{"$f":"IF(G8067=\"\",\"\",VLOOKUP(G8067,Insumos!G:H,2,FALSE))","v":""}]
[null,null,null,null,null,{"$f":"IF(E8068=\"\",\"\",VLOOKUP(E8068,Insumos!AD:AE,2,FALSE))","v":""},null,{"$f":"IF(G8068=\"\",\"\",VLOOKUP(G8068,Insumos!G:H,2,FALSE))","v":""}]
[null,null,null,null,null,{"$f":"IF(E8069=\"\",\"\",VLOOKUP(E8069,Insumos!AD:AE,2,FALSE))","v":""},null,{"$f":"IF(G8069=\"\",\"\",VLOOKUP(G8069,Insumos!G:H,2,FALSE))","v":""}]
[null,null,null,null,null,{"$f":"IF(E8070=\"\",\"\",VLOOKUP(E8070,Insumos!AD:AE,2,FALSE))","v":""},null,{"$f":"IF(G8070=\"\",\"\",VLOOKUP(G8070,Insumos!G:H,2,FALSE))","v":""}]
[null,null,null,null,null,{"$f":"IF(E8071=\"\",\"\",VLOOKUP(E8071,Insumos!AD:AE,2,FALSE))","v":""},null,{"$f":"IF(G8071=\"\",\"\",VLOOKUP(G8071,Insumos!G:H,2,FALSE))","v":""}]
[null,null,null,null,null,{"$f":"IF(E8072=\"\",\"\",VLOOKUP(E8072,Insumos!AD:AE,2,FALSE))","v":""},null,{"$f":"IF(G8072=\"\",\"\",VLOOKUP(G8072,Insumos!G:H,2,FALSE))","v":""}]
[null,null,null,null,null,{"$f":"IF(E8073=\"\",\"\",VLOOKUP(E8073,Insumos!AD:AE,2,FALSE))","v":""},null,{"$f":"IF(G8073=\"\",\"\",VLOOKUP(G8073,Insumos!G:H,2,FALSE))","v":""}]
[null,null,null,null,null,{"$f":"IF(E8074=\"\",\"\",VLOOKUP(E8074,Insumos!AD:AE,2,FALSE))","v":""},null,{"$f":"IF(G8074=\"\",\"\",VLOOKUP(G8074,Insumos!G:H,2,FALSE))","v":""}]
[null,null,null,null,null,{"$f":"IF(E8075=\"\",\"\",VLOOKUP(E8075,Insumos!AD:AE,2,FALSE))","v":""},null,{"$f":"IF(G8075=\"\",\"\",VLOOKUP(G8075,Insumos!G:H,2,FALSE))","v":""}]
[null,null,null,null,null,{"$f":"IF(E8076=\"\",\"\",VLOOKUP(E8076,Insumos!AD:AE,2,FALSE))","v":""},null,{"$f":"IF(G8076=\"\",\"\",VLOOKUP(G8076,Insumos!G:H,2,FALSE))","v":""}]
[null,null,null,null,null,{"$f":"IF(E8077=\"\",\"\",VLOOKUP(E8077,Insumos!AD:AE,2,FALSE))","v":""},null,{"$f":"IF(G8077=\"\",\"\",VLOOKUP(G8077,Insumos!G:H,2,FALSE))","v":""}]
[null,null,null,null,null,{"$f":"IF(E8078=\"\",\"\",VLOOKUP(E8078,Insumos!AD:AE,2,FALSE))","v":""},null,{"$f":"IF(G8078=\"\",\"\",VLOOKUP(G8078,Insumos!G:H,2,FALSE))","v":""}]
[null,null,null,null,null,{"$f":"IF(E8079=\"\",\"\",VLOOKUP(E8079,Insumos!AD:AE,2,FALSE))","v":""},null,{"$f":"IF(G8079=\"\",\"\",VLOOKUP(G8079,Insumos!G:H,2,FALSE))","v":""}]
[null,null,null,null,null,{"$f":"IF(E8080=\"\",\"\",VLOOKUP(E8080,Insumos!AD:AE,2,FALSE))","v":""},null,{"$f":"IF(G8080=\"\",\"\",VLOOKUP(G8080,Insumos!G:H,2,FALSE))","v":""}]
[null,null,null,null,null,{"$f":"IF(E8081=\"\",\"\",VLOOKUP(E8081,Insumos!AD:AE,2,FALSE))","v":""},null,{"$f":"IF(G8081=\"\",\"\",VLOOKUP(G8081,Insumos!G:H,2,FALSE))","v":""}]
[null,null,null,null,null,{"$f":"IF(E8082=\"\",\"\",VLOOKUP(E8082,Insumos!AD:AE,2,FALSE))","v":""},null,{"$f":"IF(G8082=\"\",\"\",VLOOKUP(G8082,Insumos!G:H,2,FALSE))","v":""}]
[null,null,null,null,null,{"$f":"IF(E8083=\"\",\"\",VLOOKUP(E8083,Insumos!AD:AE,2,FALSE))","v":""},null,{"$f":"IF(G8083=\"\",\"\",VLOOKUP(G8083,Insumos!G:H,2,FALSE))","v":""}]
[null,null,null,null,null,{"$f":"IF(E8084=\"\",\"\",VLOOKUP(E8084,Insumos!AD:AE,2,FALSE))","v":""},null,{"$f":"IF(G8084=\"\",\"\",VLOOKUP(G8084,Insumos!G:H,2,FALSE))","v":""}]
[null,null,null,null,null,{"$f":"IF(E8085=\"\",\"\",VLOOKUP(E8085,Insumos!AD:AE,2,FALSE))","v":""},null,{"$f":"IF(G8085=\"\",\"\",VLOOKUP(G8085,Insumos!G:H,2,FALSE))","v":""}]
[null,null,null,null,null,{"$f":"IF(E8086=\"\",\"\",VLOOKUP(E8086,Insumos!AD:AE,2,FALSE))","v":""},null,{"$f":"IF(G8086=\"\",\"\",VLOOKUP(G8086,Insumos!G:H,2,FALSE))","v":""}]
[null,null,null,null,null,{"$f":"IF(E8087=\"\",\"\",VLOOKUP(E8087,Insumos!AD:AE,2,FALSE))","v":""},null,{"$f":"IF(G8087=\"\",\"\",VLOOKUP(G8087,Insumos!G:H,2,FALSE))","v":""}]
[null,null,null,null,null,{"$f":"IF(E8088=\"\",\"\",VLOOKUP(E8088,Insumos!AD:AE,2,FALSE))","v":""},null,{"$f":"IF(G8088=\"\",\"\",VLOOKUP(G8088,Insumos!G:H,2,FALSE))","v":""}]
[null,null,null,null,null,{"$f":"IF(E8089=\"\",\"\",VLOOKUP(E8089,Insumos!AD:AE,2,FALSE))","v":""},null,{"$f":"IF(G8089=\"\",\"\",VLOOKUP(G8089,Insumos!G:H,2,FALSE))","v":""}]
[null,null,null,null,null,{"$f":"IF(E8090=\"\",\"\",VLOOKUP(E8090,Insumos!AD:AE,2,FALSE))","v":""},null,{"$f":"IF(G8090=\"\",\"\",VLOOKUP(G8090,Insumos!G:H,2,FALSE))","v":""}]
[null,null,null,null,null,{"$f":"IF(E8091=\"\",\"\",VLOOKUP(E8091,Insumos!AD:AE,2,FALSE))","v":""},null,{"$f":"IF(G8091=\"\",\"\",VLOOKUP(G8091,Insumos!G:H,2,FALSE))","v":""}]
[null,null,null,null,null,{"$f":"IF(E8092=\"\",\"\",VLOOKUP(E8092,Insumos!AD:AE,2,FALSE))","v":""},null,{"$f":"IF(G8092=\"\",\"\",VLOOKUP(G8092,Insumos!G:H,2,FALSE))","v":""}]
[null,null,null,null,null,{"$f":"IF(E8093=\"\",\"\",VLOOKUP(E8093,Insumos!AD:AE,2,FALSE))","v":""},null,{"$f":"IF(G8093=\"\",\"\",VLOOKUP(G8093,Insumos!G:H,2,FALSE))","v":""}]
[null,null,null,null,null,{"$f":"IF(E8094=\"\",\"\",VLOOKUP(E8094,Insumos!AD:AE,2,FALSE))","v":""},null,{"$f":"IF(G8094=\"\",\"\",VLOOKUP(G8094,Insumos!G:H,2,FALSE))","v":""}]
[null,null,null,null,null,{"$f":"IF(E8095=\"\",\"\",VLOOKUP(E8095,Insumos!AD:AE,2,FALSE))","v":""},null,{"$f":"IF(G8095=\"\",\"\",VLOOKUP(G8095,Insumos!G:H,2,FALSE))","v":""}]
[null,null,null,null,null,{"$f":"IF(E8096=\"\",\"\",VLOOKUP(E8096,Insumos!AD:AE,2,FALSE))","v":""},null,{"$f":"IF(G8096=\"\",\"\",VLOOKUP(G8096,Insumos!G:H,2,FALSE))","v":""}]
[null,null,null,null,null,{"$f":"IF(E8097=\"\",\"\",VLOOKUP(E8097,Insumos!AD:AE,2,FALSE))","v":""},null,{"$f":"IF(G8097=\"\",\"\",VLOOKUP(G8097,Insumos!G:H,2,FALSE))","v":""}]
[null,null,null,null,null,{"$f":"IF(E8098=\"\",\"\",VLOOKUP(E8098,Insumos!AD:AE,2,FALSE))","v":""},null,{"$f":"IF(G8098=\"\",\"\",VLOOKUP(G8098,Insumos!G:H,2,FALSE))","v":""}]
[null,null,null,null,null,{"$f":"IF(E8099=\"\",\"\",VLOOKUP(E8099,Insumos!AD:AE,2,FALSE))","v":""},null,{"$f":"IF(G8099=\"\",\"\",VLOOKUP(G8099,Insumos!G:H,2,FALSE))","v":""}]
[null,null,null,null,null,{"$f":"IF(E8100=\"\",\"\",VLOOKUP(E8100,Insumos!AD:AE,2,FALSE))","v":""},null,{"$f":"IF(G8100=\"\",\"\",VLOOKUP(G8100,Insumos!G:H,2,FALSE))","v":""}]
[null,null,null,null,null,{"$f":"IF(E8101=\"\",\"\",VLOOKUP(E8101,Insumos!AD:AE,2,FALSE))","v":""},null,{"$f":"IF(G8101=\"\",\"\",VLOOKUP(G8101,Insumos!G:H,2,FALSE))","v":""}]
[null,null,null,null,null,{"$f":"IF(E8102=\"\",\"\",VLOOKUP(E8102,Insumos!AD:AE,2,FALSE))","v":""},null,{"$f":"IF(G8102=\"\",\"\",VLOOKUP(G8102,Insumos!G:H,2,FALSE))","v":""}]
[null,null,null,null,null,{"$f":"IF(E8103=\"\",\"\",VLOOKUP(E8103,Insumos!AD:AE,2,FALSE))","v":""},null,{"$f":"IF(G8103=\"\",\"\",VLOOKUP(G8103,Insumos!G:H,2,FALSE))","v":""}]
[null,null,null,null,null,{"$f":"IF(E8104=\"\",\"\",VLOOKUP(E8104,Insumos!AD:AE,2,FALSE))","v":""},null,{"$f":"IF(G8104=\"\",\"\",VLOOKUP(G8104,Insumos!G:H,2,FALSE))","v":""}]
[null,null,null,null,null,{"$f":"IF(E8105=\"\",\"\",VLOOKUP(E8105,Insumos!AD:AE,2,FALSE))","v":""},null,{"$f":"IF(G8105=\"\",\"\",VLOOKUP(G8105,Insumos!G:H,2,FALSE))","v":""}]
[null,null,null,null,null,{"$f":"IF(E8106=\"\",\"\",VLOOKUP(E8106,Insumos!AD:AE,2,FALSE))","v":""},null,{"$f":"IF(G8106=\"\",\"\",VLOOKUP(G8106,Insumos!G:H,2,FALSE))","v":""}]
[null,null,null,null,null,{"$f":"IF(E8107=\"\",\"\",VLOOKUP(E8107,Insumos!AD:AE,2,FALSE))","v":""},null,{"$f":"IF(G8107=\"\",\"\",VLOOKUP(G8107,Insumos!G:H,2,FALSE))","v":""}]
[null,null,null,null,null,{"$f":"IF(E8108=\"\",\"\",VLOOKUP(E8108,Insumos!AD:AE,2,FALSE))","v":""},null,{"$f":"IF(G8108=\"\",\"\",VLOOKUP(G8108,Insumos!G:H,2,FALSE))","v":""}]
[null,null,null,null,null,{"$f":"IF(E8109=\"\",\"\",VLOOKUP(E8109,Insumos!AD:AE,2,FALSE))","v":""},null,{"$f":"IF(G8109=\"\",\"\",VLOOKUP(G8109,Insumos!G:H,2,FALSE))","v":""}]
[null,null,null,null,null,{"$f":"IF(E8110=\"\",\"\",VLOOKUP(E8110,Insumos!AD:AE,2,FALSE))","v":""},null,{"$f":"IF(G8110=\"\",\"\",VLOOKUP(G8110,Insumos!G:H,2,FALSE))","v":""}]
[null,null,null,null,null,{"$f":"IF(E8111=\"\",\"\",VLOOKUP(E8111,Insumos!AD:AE,2,FALSE))","v":""},null,{"$f":"IF(G8111=\"\",\"\",VLOOKUP(G8111,Insumos!G:H,2,FALSE))","v":""}]
[null,null,null,null,null,{"$f":"IF(E8112=\"\",\"\",VLOOKUP(E8112,Insumos!AD:AE,2,FALSE))","v":""},null,{"$f":"IF(G8112=\"\",\"\",VLOOKUP(G8112,Insumos!G:H,2,FALSE))","v":""}]
[null,null,null,null,null,{"$f":"IF(E8113=\"\",\"\",VLOOKUP(E8113,Insumos!AD:AE,2,FALSE))","v":""},null,{"$f":"IF(G8113=\"\",\"\",VLOOKUP(G8113,Insumos!G:H,2,FALSE))","v":""}]
[null,null,null,null,null,{"$f":"IF(E8114=\"\",\"\",VLOOKUP(E8114,Insumos!AD:AE,2,FALSE))","v":""},null,{"$f":"IF(G8114=\"\",\"\",VLOOKUP(G8114,Insumos!G:H,2,FALSE))","v":""}]
[null,null,null,null,null,{"$f":"IF(E8115=\"\",\"\",VLOOKUP(E8115,Insumos!AD:AE,2,FALSE))","v":""},null,{"$f":"IF(G8115=\"\",\"\",VLOOKUP(G8115,Insumos!G:H,2,FALSE))","v":""}]
[null,null,null,null,null,{"$f":"IF(E8116=\"\",\"\",VLOOKUP(E8116,Insumos!AD:AE,2,FALSE))","v":""},null,{"$f":"IF(G8116=\"\",\"\",VLOOKUP(G8116,Insumos!G:H,2,FALSE))","v":""}]
[null,null,null,null,null,{"$f":"IF(E8117=\"\",\"\",VLOOKUP(E8117,Insumos!AD:AE,2,FALSE))","v":""},null,{"$f":"IF(G8117=\"\",\"\",VLOOKUP(G8117,Insumos!G:H,2,FALSE))","v":""}]
[null,null,null,null,null,{"$f":"IF(E8118=\"\",\"\",VLOOKUP(E8118,Insumos!AD:AE,2,FALSE))","v":""},null,{"$f":"IF(G8118=\"\",\"\",VLOOKUP(G8118,Insumos!G:H,2,FALSE))","v":""}]
[null,null,null,null,null,{"$f":"IF(E8119=\"\",\"\",VLOOKUP(E8119,Insumos!AD:AE,2,FALSE))","v":""},null,{"$f":"IF(G8119=\"\",\"\",VLOOKUP(G8119,Insumos!G:H,2,FALSE))","v":""}]
[null,null,null,null,null,{"$f":"IF(E8120=\"\",\"\",VLOOKUP(E8120,Insumos!AD:AE,2,FALSE))","v":""},null,{"$f":"IF(G8120=\"\",\"\",VLOOKUP(G8120,Insumos!G:H,2,FALSE))","v":""}]
[null,null,null,null,null,{"$f":"IF(E8121=\"\",\"\",VLOOKUP(E8121,Insumos!AD:AE,2,FALSE))","v":""},null,{"$f":"IF(G8121=\"\",\"\",VLOOKUP(G8121,Insumos!G:H,2,FALSE))","v":""}]
[null,null,null,null,null,{"$f":"IF(E8122=\"\",\"\",VLOOKUP(E8122,Insumos!AD:AE,2,FALSE))","v":""},null,{"$f":"IF(G8122=\"\",\"\",VLOOKUP(G8122,Insumos!G:H,2,FALSE))","v":""}]
[null,null,null,null,null,{"$f":"IF(E8123=\"\",\"\",VLOOKUP(E8123,Insumos!AD:AE,2,FALSE))","v":""},null,{"$f":"IF(G8123=\"\",\"\",VLOOKUP(G8123,Insumos!G:H,2,FALSE))","v":""}]
[null,null,null,null,null,{"$f":"IF(E8124=\"\",\"\",VLOOKUP(E8124,Insumos!AD:AE,2,FALSE))","v":""},null,{"$f":"IF(G8124=\"\",\"\",VLOOKUP(G8124,Insumos!G:H,2,FALSE))","v":""}]
[null,null,null,null,null,{"$f":"IF(E8125=\"\",\"\",VLOOKUP(E8125,Insumos!AD:AE,2,FALSE))","v":""},null,{"$f":"IF(G8125=\"\",\"\",VLOOKUP(G8125,Insumos!G:H,2,FALSE))","v":""}]
[null,null,null,null,null,{"$f":"IF(E8126=\"\",\"\",VLOOKUP(E8126,Insumos!AD:AE,2,FALSE))","v":""},null,{"$f":"IF(G8126=\"\",\"\",VLOOKUP(G8126,Insumos!G:H,2,FALSE))","v":""}]
[null,null,null,null,null,{"$f":"IF(E8127=\"\",\"\",VLOOKUP(E8127,Insumos!AD:AE,2,FALSE))","v":""},null,{"$f":"IF(G8127=\"\",\"\",VLOOKUP(G8127,Insumos!G:H,2,FALSE))","v":""}]
[null,null,null,null,null,{"$f":"IF(E8128=\"\",\"\",VLOOKUP(E8128,Insumos!AD:AE,2,FALSE))","v":""},null,{"$f":"IF(G8128=\"\",\"\",VLOOKUP(G8128,Insumos!G:H,2,FALSE))","v":""}]
[null,null,null,null,null,{"$f":"IF(E8129=\"\",\"\",VLOOKUP(E8129,Insumos!AD:AE,2,FALSE))","v":""},null,{"$f":"IF(G8129=\"\",\"\",VLOOKUP(G8129,Insumos!G:H,2,FALSE))","v":""}]
[null,null,null,null,null,{"$f":"IF(E8130=\"\",\"\",VLOOKUP(E8130,Insumos!AD:AE,2,FALSE))","v":""},null,{"$f":"IF(G8130=\"\",\"\",VLOOKUP(G8130,Insumos!G:H,2,FALSE))","v":""}]
[null,null,null,null,null,{"$f":"IF(E8131=\"\",\"\",VLOOKUP(E8131,Insumos!AD:AE,2,FALSE))","v":""},null,{"$f":"IF(G8131=\"\",\"\",VLOOKUP(G8131,Insumos!G:H,2,FALSE))","v":""}]
[null,null,null,null,null,{"$f":"IF(E8132=\"\",\"\",VLOOKUP(E8132,Insumos!AD:AE,2,FALSE))","v":""},null,{"$f":"IF(G8132=\"\",\"\",VLOOKUP(G8132,Insumos!G:H,2,FALSE))","v":""}]
[null,null,null,null,null,{"$f":"IF(E8133=\"\",\"\",VLOOKUP(E8133,Insumos!AD:AE,2,FALSE))","v":""},null,{"$f":"IF(G8133=\"\",\"\",VLOOKUP(G8133,Insumos!G:H,2,FALSE))","v":""}]
[null,null,null,null,null,{"$f":"IF(E8134=\"\",\"\",VLOOKUP(E8134,Insumos!AD:AE,2,FALSE))","v":""},null,{"$f":"IF(G8134=\"\",\"\",VLOOKUP(G8134,Insumos!G:H,2,FALSE))","v":""}]
[null,null,null,null,null,{"$f":"IF(E8135=\"\",\"\",VLOOKUP(E8135,Insumos!AD:AE,2,FALSE))","v":""},null,{"$f":"IF(G8135=\"\",\"\",VLOOKUP(G8135,Insumos!G:H,2,FALSE))","v":""}]
[null,null,null,null,null,{"$f":"IF(E8136=\"\",\"\",VLOOKUP(E8136,Insumos!AD:AE,2,FALSE))","v":""},null,{"$f":"IF(G8136=\"\",\"\",VLOOKUP(G8136,Insumos!G:H,2,FALSE))","v":""}]
[null,null,null,null,null,{"$f":"IF(E8137=\"\",\"\",VLOOKUP(E8137,Insumos!AD:AE,2,FALSE))","v":""},null,{"$f":"IF(G8137=\"\",\"\",VLOOKUP(G8137,Insumos!G:H,2,FALSE))","v":""}]
[null,null,null,null,null,{"$f":"IF(E8138=\"\",\"\",VLOOKUP(E8138,Insumos!AD:AE,2,FALSE))","v":""},null,{"$f":"IF(G8138=\"\",\"\",VLOOKUP(G8138,Insumos!G:H,2,FALSE))","v":""}]
[null,null,null,null,null,{"$f":"IF(E8139=\"\",\"\",VLOOKUP(E8139,Insumos!AD:AE,2,FALSE))","v":""},null,{"$f":"IF(G8139=\"\",\"\",VLOOKUP(G8139,Insumos!G:H,2,FALSE))","v":""}]
[null,null,null,null,null,{"$f":"IF(E8140=\"\",\"\",VLOOKUP(E8140,Insumos!AD:AE,2,FALSE))","v":""},null,{"$f":"IF(G8140=\"\",\"\",VLOOKUP(G8140,Insumos!G:H,2,FALSE))","v":""}]
[null,null,null,null,null,{"$f":"IF(E8141=\"\",\"\",VLOOKUP(E8141,Insumos!AD:AE,2,FALSE))","v":""},null,{"$f":"IF(G8141=\"\",\"\",VLOOKUP(G8141,Insumos!G:H,2,FALSE))","v":""}]
[null,null,null,null,null,{"$f":"IF(E8142=\"\",\"\",VLOOKUP(E8142,Insumos!AD:AE,2,FALSE))","v":""},null,{"$f":"IF(G8142=\"\",\"\",VLOOKUP(G8142,Insumos!G:H,2,FALSE))","v":""}]
[null,null,null,null,null,{"$f":"IF(E8143=\"\",\"\",VLOOKUP(E8143,Insumos!AD:AE,2,FALSE))","v":""},null,{"$f":"IF(G8143=\"\",\"\",VLOOKUP(G8143,Insumos!G:H,2,FALSE))","v":""}]
[null,null,null,null,null,{"$f":"IF(E8144=\"\",\"\",VLOOKUP(E8144,Insumos!AD:AE,2,FALSE))","v":""},null,{"$f":"IF(G8144=\"\",\"\",VLOOKUP(G8144,Insumos!G:H,2,FALSE))","v":""}]
[null,null,null,null,null,{"$f":"IF(E8145=\"\",\"\",VLOOKUP(E8145,Insumos!AD:AE,2,FALSE))","v":""},null,{"$f":"IF(G8145=\"\",\"\",VLOOKUP(G8145,Insumos!G:H,2,FALSE))","v":""}]
[null,null,null,null,null,{"$f":"IF(E8146=\"\",\"\",VLOOKUP(E8146,Insumos!AD:AE,2,FALSE))","v":""},null,{"$f":"IF(G8146=\"\",\"\",VLOOKUP(G8146,Insumos!G:H,2,FALSE))","v":""}]
[null,null,null,null,null,{"$f":"IF(E8147=\"\",\"\",VLOOKUP(E8147,Insumos!AD:AE,2,FALSE))","v":""},null,{"$f":"IF(G8147=\"\",\"\",VLOOKUP(G8147,Insumos!G:H,2,FALSE))","v":""}]
[null,null,null,null,null,{"$f":"IF(E8148=\"\",\"\",VLOOKUP(E8148,Insumos!AD:AE,2,FALSE))","v":""},null,{"$f":"IF(G8148=\"\",\"\",VLOOKUP(G8148,Insumos!G:H,2,FALSE))","v":""}]
[null,null,null,null,null,{"$f":"IF(E8149=\"\",\"\",VLOOKUP(E8149,Insumos!AD:AE,2,FALSE))","v":""},null,{"$f":"IF(G8149=\"\",\"\",VLOOKUP(G8149,Insumos!G:H,2,FALSE))","v":""}]
[null,null,null,null,null,{"$f":"IF(E8150=\"\",\"\",VLOOKUP(E8150,Insumos!AD:AE,2,FALSE))","v":""},null,{"$f":"IF(G8150=\"\",\"\",VLOOKUP(G8150,Insumos!G:H,2,FALSE))","v":""}]
[null,null,null,null,null,{"$f":"IF(E8151=\"\",\"\",VLOOKUP(E8151,Insumos!AD:AE,2,FALSE))","v":""},null,{"$f":"IF(G8151=\"\",\"\",VLOOKUP(G8151,Insumos!G:H,2,FALSE))","v":""}]
[null,null,null,null,null,{"$f":"IF(E8152=\"\",\"\",VLOOKUP(E8152,Insumos!AD:AE,2,FALSE))","v":""},null,{"$f":"IF(G8152=\"\",\"\",VLOOKUP(G8152,Insumos!G:H,2,FALSE))","v":""}]
[null,null,null,null,null,{"$f":"IF(E8153=\"\",\"\",VLOOKUP(E8153,Insumos!AD:AE,2,FALSE))","v":""},null,{"$f":"IF(G8153=\"\",\"\",VLOOKUP(G8153,Insumos!G:H,2,FALSE))","v":""}]
[null,null,null,null,null,{"$f":"IF(E8154=\"\",\"\",VLOOKUP(E8154,Insumos!AD:AE,2,FALSE))","v":""},null,{"$f":"IF(G8154=\"\",\"\",VLOOKUP(G8154,Insumos!G:H,2,FALSE))","v":""}]
[null,null,null,null,null,{"$f":"IF(E8155=\"\",\"\",VLOOKUP(E8155,Insumos!AD:AE,2,FALSE))","v":""},null,{"$f":"IF(G8155=\"\",\"\",VLOOKUP(G8155,Insumos!G:H,2,FALSE))","v":""}]
[null,null,null,null,null,{"$f":"IF(E8156=\"\",\"\",VLOOKUP(E8156,Insumos!AD:AE,2,FALSE))","v":""},null,{"$f":"IF(G8156=\"\",\"\",VLOOKUP(G8156,Insumos!G:H,2,FALSE))","v":""}]
[null,null,null,null,null,{"$f":"IF(E8157=\"\",\"\",VLOOKUP(E8157,Insumos!AD:AE,2,FALSE))","v":""},null,{"$f":"IF(G8157=\"\",\"\",VLOOKUP(G8157,Insumos!G:H,2,FALSE))","v":""}]
[null,null,null,null,null,{"$f":"IF(E8158=\"\",\"\",VLOOKUP(E8158,Insumos!AD:AE,2,FALSE))","v":""},null,{"$f":"IF(G8158=\"\",\"\",VLOOKUP(G8158,Insumos!G:H,2,FALSE))","v":""}]
[null,null,null,null,null,{"$f":"IF(E8159=\"\",\"\",VLOOKUP(E8159,Insumos!AD:AE,2,FALSE))","v":""},null,{"$f":"IF(G8159=\"\",\"\",VLOOKUP(G8159,Insumos!G:H,2,FALSE))","v":""}]
[null,null,null,null,null,{"$f":"IF(E8160=\"\",\"\",VLOOKUP(E8160,Insumos!AD:AE,2,FALSE))","v":""},null,{"$f":"IF(G8160=\"\",\"\",VLOOKUP(G8160,Insumos!G:H,2,FALSE))","v":""}]
[null,null,null,null,null,{"$f":"IF(E8161=\"\",\"\",VLOOKUP(E8161,Insumos!AD:AE,2,FALSE))","v":""},null,{"$f":"IF(G8161=\"\",\"\",VLOOKUP(G8161,Insumos!G:H,2,FALSE))","v":""}]
[null,null,null,null,null,{"$f":"IF(E8162=\"\",\"\",VLOOKUP(E8162,Insumos!AD:AE,2,FALSE))","v":""},null,{"$f":"IF(G8162=\"\",\"\",VLOOKUP(G8162,Insumos!G:H,2,FALSE))","v":""}]
[null,null,null,null,null,{"$f":"IF(E8163=\"\",\"\",VLOOKUP(E8163,Insumos!AD:AE,2,FALSE))","v":""},null,{"$f":"IF(G8163=\"\",\"\",VLOOKUP(G8163,Insumos!G:H,2,FALSE))","v":""}]
[null,null,null,null,null,{"$f":"IF(E8164=\"\",\"\",VLOOKUP(E8164,Insumos!AD:AE,2,FALSE))","v":""},null,{"$f":"IF(G8164=\"\",\"\",VLOOKUP(G8164,Insumos!G:H,2,FALSE))","v":""}]
[null,null,null,null,null,{"$f":"IF(E8165=\"\",\"\",VLOOKUP(E8165,Insumos!AD:AE,2,FALSE))","v":""},null,{"$f":"IF(G8165=\"\",\"\",VLOOKUP(G8165,Insumos!G:H,2,FALSE))","v":""}]
[null,null,null,null,null,{"$f":"IF(E8166=\"\",\"\",VLOOKUP(E8166,Insumos!AD:AE,2,FALSE))","v":""},null,{"$f":"IF(G8166=\"\",\"\",VLOOKUP(G8166,Insumos!G:H,2,FALSE))","v":""}]
[null,null,null,null,null,{"$f":"IF(E8167=\"\",\"\",VLOOKUP(E8167,Insumos!AD:AE,2,FALSE))","v":""},null,{"$f":"IF(G8167=\"\",\"\",VLOOKUP(G8167,Insumos!G:H,2,FALSE))","v":""}]
[null,null,null,null,null,{"$f":"IF(E8168=\"\",\"\",VLOOKUP(E8168,Insumos!AD:AE,2,FALSE))","v":""},null,{"$f":"IF(G8168=\"\",\"\",VLOOKUP(G8168,Insumos!G:H,2,FALSE))","v":""}]
[null,null,null,null,null,{"$f":"IF(E8169=\"\",\"\",VLOOKUP(E8169,Insumos!AD:AE,2,FALSE))","v":""},null,{"$f":"IF(G8169=\"\",\"\",VLOOKUP(G8169,Insumos!G:H,2,FALSE))","v":""}]
[null,null,null,null,null,{"$f":"IF(E8170=\"\",\"\",VLOOKUP(E8170,Insumos!AD:AE,2,FALSE))","v":""},null,{"$f":"IF(G8170=\"\",\"\",VLOOKUP(G8170,Insumos!G:H,2,FALSE))","v":""}]
[null,null,null,null,null,{"$f":"IF(E8171=\"\",\"\",VLOOKUP(E8171,Insumos!AD:AE,2,FALSE))","v":""},null,{"$f":"IF(G8171=\"\",\"\",VLOOKUP(G8171,Insumos!G:H,2,FALSE))","v":""}]
[null,null,null,null,null,{"$f":"IF(E8172=\"\",\"\",VLOOKUP(E8172,Insumos!AD:AE,2,FALSE))","v":""},null,{"$f":"IF(G8172=\"\",\"\",VLOOKUP(G8172,Insumos!G:H,2,FALSE))","v":""}]
[null,null,null,null,null,{"$f":"IF(E8173=\"\",\"\",VLOOKUP(E8173,Insumos!AD:AE,2,FALSE))","v":""},null,{"$f":"IF(G8173=\"\",\"\",VLOOKUP(G8173,Insumos!G:H,2,FALSE))","v":""}]
[null,null,null,null,null,{"$f":"IF(E8174=\"\",\"\",VLOOKUP(E8174,Insumos!AD:AE,2,FALSE))","v":""},null,{"$f":"IF(G8174=\"\",\"\",VLOOKUP(G8174,Insumos!G:H,2,FALSE))","v":""}]
[null,null,null,null,null,{"$f":"IF(E8175=\"\",\"\",VLOOKUP(E8175,Insumos!AD:AE,2,FALSE))","v":""},null,{"$f":"IF(G8175=\"\",\"\",VLOOKUP(G8175,Insumos!G:H,2,FALSE))","v":""}]
[null,null,null,null,null,{"$f":"IF(E8176=\"\",\"\",VLOOKUP(E8176,Insumos!AD:AE,2,FALSE))","v":""},null,{"$f":"IF(G8176=\"\",\"\",VLOOKUP(G8176,Insumos!G:H,2,FALSE))","v":""}]
[null,null,null,null,null,{"$f":"IF(E8177=\"\",\"\",VLOOKUP(E8177,Insumos!AD:AE,2,FALSE))","v":""},null,{"$f":"IF(G8177=\"\",\"\",VLOOKUP(G8177,Insumos!G:H,2,FALSE))","v":""}]
[null,null,null,null,null,{"$f":"IF(E8178=\"\",\"\",VLOOKUP(E8178,Insumos!AD:AE,2,FALSE))","v":""},null,{"$f":"IF(G8178=\"\",\"\",VLOOKUP(G8178,Insumos!G:H,2,FALSE))","v":""}]
[null,null,null,null,null,{"$f":"IF(E8179=\"\",\"\",VLOOKUP(E8179,Insumos!AD:AE,2,FALSE))","v":""},null,{"$f":"IF(G8179=\"\",\"\",VLOOKUP(G8179,Insumos!G:H,2,FALSE))","v":""}]
[null,null,null,null,null,{"$f":"IF(E8180=\"\",\"\",VLOOKUP(E8180,Insumos!AD:AE,2,FALSE))","v":""},null,{"$f":"IF(G8180=\"\",\"\",VLOOKUP(G8180,Insumos!G:H,2,FALSE))","v":""}]
[null,null,null,null,null,{"$f":"IF(E8181=\"\",\"\",VLOOKUP(E8181,Insumos!AD:AE,2,FALSE))","v":""},null,{"$f":"IF(G8181=\"\",\"\",VLOOKUP(G8181,Insumos!G:H,2,FALSE))","v":""}]
[null,null,null,null,null,{"$f":"IF(E8182=\"\",\"\",VLOOKUP(E8182,Insumos!AD:AE,2,FALSE))","v":""},null,{"$f":"IF(G8182=\"\",\"\",VLOOKUP(G8182,Insumos!G:H,2,FALSE))","v":""}]
[null,null,null,null,null,{"$f":"IF(E8183=\"\",\"\",VLOOKUP(E8183,Insumos!AD:AE,2,FALSE))","v":""},null,{"$f":"IF(G8183=\"\",\"\",VLOOKUP(G8183,Insumos!G:H,2,FALSE))","v":""}]
[null,null,null,null,null,{"$f":"IF(E8184=\"\",\"\",VLOOKUP(E8184,Insumos!AD:AE,2,FALSE))","v":""},null,{"$f":"IF(G8184=\"\",\"\",VLOOKUP(G8184,Insumos!G:H,2,FALSE))","v":""}]
[null,null,null,null,null,{"$f":"IF(E8185=\"\",\"\",VLOOKUP(E8185,Insumos!AD:AE,2,FALSE))","v":""},null,{"$f":"IF(G8185=\"\",\"\",VLOOKUP(G8185,Insumos!G:H,2,FALSE))","v":""}]
[null,null,null,null,null,{"$f":"IF(E8186=\"\",\"\",VLOOKUP(E8186,Insumos!AD:AE,2,FALSE))","v":""},null,{"$f":"IF(G8186=\"\",\"\",VLOOKUP(G8186,Insumos!G:H,2,FALSE))","v":""}]
[null,null,null,null,null,{"$f":"IF(E8187=\"\",\"\",VLOOKUP(E8187,Insumos!AD:AE,2,FALSE))","v":""},null,{"$f":"IF(G8187=\"\",\"\",VLOOKUP(G8187,Insumos!G:H,2,FALSE))","v":""}]
[null,null,null,null,null,{"$f":"IF(E8188=\"\",\"\",VLOOKUP(E8188,Insumos!AD:AE,2,FALSE))","v":""},null,{"$f":"IF(G8188=\"\",\"\",VLOOKUP(G8188,Insumos!G:H,2,FALSE))","v":""}]
[null,null,null,null,null,{"$f":"IF(E8189=\"\",\"\",VLOOKUP(E8189,Insumos!AD:AE,2,FALSE))","v":""},null,{"$f":"IF(G8189=\"\",\"\",VLOOKUP(G8189,Insumos!G:H,2,FALSE))","v":""}]
[null,null,null,null,null,{"$f":"IF(E8190=\"\",\"\",VLOOKUP(E8190,Insumos!AD:AE,2,FALSE))","v":""},null,{"$f":"IF(G8190=\"\",\"\",VLOOKUP(G8190,Insumos!G:H,2,FALSE))","v":""}]
[null,null,null,null,null,{"$f":"IF(E8191=\"\",\"\",VLOOKUP(E8191,Insumos!AD:AE,2,FALSE))","v":""},null,{"$f":"IF(G8191=\"\",\"\",VLOOKUP(G8191,Insumos!G:H,2,FALSE))","v":""}]
[null,null,null,null,null,{"$f":"IF(E8192=\"\",\"\",VLOOKUP(E8192,Insumos!AD:AE,2,FALSE))","v":""},null,{"$f":"IF(G8192=\"\",\"\",VLOOKUP(G8192,Insumos!G:H,2,FALSE))","v":""}]
[null,null,null,null,null,{"$f":"IF(E8193=\"\",\"\",VLOOKUP(E8193,Insumos!AD:AE,2,FALSE))","v":""},null,{"$f":"IF(G8193=\"\",\"\",VLOOKUP(G8193,Insumos!G:H,2,FALSE))","v":""}]
[null,null,null,null,null,{"$f":"IF(E8194=\"\",\"\",VLOOKUP(E8194,Insumos!AD:AE,2,FALSE))","v":""},null,{"$f":"IF(G8194=\"\",\"\",VLOOKUP(G8194,Insumos!G:H,2,FALSE))","v":""}]
[null,null,null,null,null,{"$f":"IF(E8195=\"\",\"\",VLOOKUP(E8195,Insumos!AD:AE,2,FALSE))","v":""},null,{"$f":"IF(G8195=\"\",\"\",VLOOKUP(G8195,Insumos!G:H,2,FALSE))","v":""}]
[null,null,null,null,null,{"$f":"IF(E8196=\"\",\"\",VLOOKUP(E8196,Insumos!AD:AE,2,FALSE))","v":""},null,{"$f":"IF(G8196=\"\",\"\",VLOOKUP(G8196,Insumos!G:H,2,FALSE))","v":""}]
[null,null,null,null,null,{"$f":"IF(E8197=\"\",\"\",VLOOKUP(E8197,Insumos!AD:AE,2,FALSE))","v":""},null,{"$f":"IF(G8197=\"\",\"\",VLOOKUP(G8197,Insumos!G:H,2,FALSE))","v":""}]
[null,null,null,null,null,{"$f":"IF(E8198=\"\",\"\",VLOOKUP(E8198,Insumos!AD:AE,2,FALSE))","v":""},null,{"$f":"IF(G8198=\"\",\"\",VLOOKUP(G8198,Insumos!G:H,2,FALSE))","v":""}]
[null,null,null,null,null,{"$f":"IF(E8199=\"\",\"\",VLOOKUP(E8199,Insumos!AD:AE,2,FALSE))","v":""},null,{"$f":"IF(G8199=\"\",\"\",VLOOKUP(G8199,Insumos!G:H,2,FALSE))","v":""}]
[null,null,null,null,null,{"$f":"IF(E8200=\"\",\"\",VLOOKUP(E8200,Insumos!AD:AE,2,FALSE))","v":""},null,{"$f":"IF(G8200=\"\",\"\",VLOOKUP(G8200,Insumos!G:H,2,FALSE))","v":""}]
[null,null,null,null,null,{"$f":"IF(E8201=\"\",\"\",VLOOKUP(E8201,Insumos!AD:AE,2,FALSE))","v":""},null,{"$f":"IF(G8201=\"\",\"\",VLOOKUP(G8201,Insumos!G:H,2,FALSE))","v":""}]
[null,null,null,null,null,{"$f":"IF(E8202=\"\",\"\",VLOOKUP(E8202,Insumos!AD:AE,2,FALSE))","v":""},null,{"$f":"IF(G8202=\"\",\"\",VLOOKUP(G8202,Insumos!G:H,2,FALSE))","v":""}]
[null,null,null,null,null,{"$f":"IF(E8203=\"\",\"\",VLOOKUP(E8203,Insumos!AD:AE,2,FALSE))","v":""},null,{"$f":"IF(G8203=\"\",\"\",VLOOKUP(G8203,Insumos!G:H,2,FALSE))","v":""}]
[null,null,null,null,null,{"$f":"IF(E8204=\"\",\"\",VLOOKUP(E8204,Insumos!AD:AE,2,FALSE))","v":""},null,{"$f":"IF(G8204=\"\",\"\",VLOOKUP(G8204,Insumos!G:H,2,FALSE))","v":""}]
[null,null,null,null,null,{"$f":"IF(E8205=\"\",\"\",VLOOKUP(E8205,Insumos!AD:AE,2,FALSE))","v":""},null,{"$f":"IF(G8205=\"\",\"\",VLOOKUP(G8205,Insumos!G:H,2,FALSE))","v":""}]
[null,null,null,null,null,{"$f":"IF(E8206=\"\",\"\",VLOOKUP(E8206,Insumos!AD:AE,2,FALSE))","v":""},null,{"$f":"IF(G8206=\"\",\"\",VLOOKUP(G8206,Insumos!G:H,2,FALSE))","v":""}]
[null,null,null,null,null,{"$f":"IF(E8207=\"\",\"\",VLOOKUP(E8207,Insumos!AD:AE,2,FALSE))","v":""},null,{"$f":"IF(G8207=\"\",\"\",VLOOKUP(G8207,Insumos!G:H,2,FALSE))","v":""}]
[null,null,null,null,null,{"$f":"IF(E8208=\"\",\"\",VLOOKUP(E8208,Insumos!AD:AE,2,FALSE))","v":""},null,{"$f":"IF(G8208=\"\",\"\",VLOOKUP(G8208,Insumos!G:H,2,FALSE))","v":""}]
[null,null,null,null,null,{"$f":"IF(E8209=\"\",\"\",VLOOKUP(E8209,Insumos!AD:AE,2,FALSE))","v":""},null,{"$f":"IF(G8209=\"\",\"\",VLOOKUP(G8209,Insumos!G:H,2,FALSE))","v":""}]
[null,null,null,null,null,{"$f":"IF(E8210=\"\",\"\",VLOOKUP(E8210,Insumos!AD:AE,2,FALSE))","v":""},null,{"$f":"IF(G8210=\"\",\"\",VLOOKUP(G8210,Insumos!G:H,2,FALSE))","v":""}]
[null,null,null,null,null,{"$f":"IF(E8211=\"\",\"\",VLOOKUP(E8211,Insumos!AD:AE,2,FALSE))","v":""},null,{"$f":"IF(G8211=\"\",\"\",VLOOKUP(G8211,Insumos!G:H,2,FALSE))","v":""}]
[null,null,null,null,null,{"$f":"IF(E8212=\"\",\"\",VLOOKUP(E8212,Insumos!AD:AE,2,FALSE))","v":""},null,{"$f":"IF(G8212=\"\",\"\",VLOOKUP(G8212,Insumos!G:H,2,FALSE))","v":""}]
[null,null,null,null,null,{"$f":"IF(E8213=\"\",\"\",VLOOKUP(E8213,Insumos!AD:AE,2,FALSE))","v":""},null,{"$f":"IF(G8213=\"\",\"\",VLOOKUP(G8213,Insumos!G:H,2,FALSE))","v":""}]
[null,null,null,null,null,{"$f":"IF(E8214=\"\",\"\",VLOOKUP(E8214,Insumos!AD:AE,2,FALSE))","v":""},null,{"$f":"IF(G8214=\"\",\"\",VLOOKUP(G8214,Insumos!G:H,2,FALSE))","v":""}]
[null,null,null,null,null,{"$f":"IF(E8215=\"\",\"\",VLOOKUP(E8215,Insumos!AD:AE,2,FALSE))","v":""},null,{"$f":"IF(G8215=\"\",\"\",VLOOKUP(G8215,Insumos!G:H,2,FALSE))","v":""}]
[null,null,null,null,null,{"$f":"IF(E8216=\"\",\"\",VLOOKUP(E8216,Insumos!AD:AE,2,FALSE))","v":""},null,{"$f":"IF(G8216=\"\",\"\",VLOOKUP(G8216,Insumos!G:H,2,FALSE))","v":""}]
[null,null,null,null,null,{"$f":"IF(E8217=\"\",\"\",VLOOKUP(E8217,Insumos!AD:AE,2,FALSE))","v":""},null,{"$f":"IF(G8217=\"\",\"\",VLOOKUP(G8217,Insumos!G:H,2,FALSE))","v":""}]
[null,null,null,null,null,{"$f":"IF(E8218=\"\",\"\",VLOOKUP(E8218,Insumos!AD:AE,2,FALSE))","v":""},null,{"$f":"IF(G8218=\"\",\"\",VLOOKUP(G8218,Insumos!G:H,2,FALSE))","v":""}]
[null,null,null,null,null,{"$f":"IF(E8219=\"\",\"\",VLOOKUP(E8219,Insumos!AD:AE,2,FALSE))","v":""},null,{"$f":"IF(G8219=\"\",\"\",VLOOKUP(G8219,Insumos!G:H,2,FALSE))","v":""}]
[null,null,null,null,null,{"$f":"IF(E8220=\"\",\"\",VLOOKUP(E8220,Insumos!AD:AE,2,FALSE))","v":""},null,{"$f":"IF(G8220=\"\",\"\",VLOOKUP(G8220,Insumos!G:H,2,FALSE))","v":""}]
[null,null,null,null,null,{"$f":"IF(E8221=\"\",\"\",VLOOKUP(E8221,Insumos!AD:AE,2,FALSE))","v":""},null,{"$f":"IF(G8221=\"\",\"\",VLOOKUP(G8221,Insumos!G:H,2,FALSE))","v":""}]
[null,null,null,null,null,{"$f":"IF(E8222=\"\",\"\",VLOOKUP(E8222,Insumos!AD:AE,2,FALSE))","v":""},null,{"$f":"IF(G8222=\"\",\"\",VLOOKUP(G8222,Insumos!G:H,2,FALSE))","v":""}]
[null,null,null,null,null,{"$f":"IF(E8223=\"\",\"\",VLOOKUP(E8223,Insumos!AD:AE,2,FALSE))","v":""},null,{"$f":"IF(G8223=\"\",\"\",VLOOKUP(G8223,Insumos!G:H,2,FALSE))","v":""}]
[null,null,null,null,null,{"$f":"IF(E8224=\"\",\"\",VLOOKUP(E8224,Insumos!AD:AE,2,FALSE))","v":""},null,{"$f":"IF(G8224=\"\",\"\",VLOOKUP(G8224,Insumos!G:H,2,FALSE))","v":""}]
[null,null,null,null,null,{"$f":"IF(E8225=\"\",\"\",VLOOKUP(E8225,Insumos!AD:AE,2,FALSE))","v":""},null,{"$f":"IF(G8225=\"\",\"\",VLOOKUP(G8225,Insumos!G:H,2,FALSE))","v":""}]
[null,null,null,null,null,{"$f":"IF(E8226=\"\",\"\",VLOOKUP(E8226,Insumos!AD:AE,2,FALSE))","v":""},null,{"$f":"IF(G8226=\"\",\"\",VLOOKUP(G8226,Insumos!G:H,2,FALSE))","v":""}]
[null,null,null,null,null,{"$f":"IF(E8227=\"\",\"\",VLOOKUP(E8227,Insumos!AD:AE,2,FALSE))","v":""},null,{"$f":"IF(G8227=\"\",\"\",VLOOKUP(G8227,Insumos!G:H,2,FALSE))","v":""}]
[null,null,null,null,null,{"$f":"IF(E8228=\"\",\"\",VLOOKUP(E8228,Insumos!AD:AE,2,FALSE))","v":""},null,{"$f":"IF(G8228=\"\",\"\",VLOOKUP(G8228,Insumos!G:H,2,FALSE))","v":""}]
[null,null,null,null,null,{"$f":"IF(E8229=\"\",\"\",VLOOKUP(E8229,Insumos!AD:AE,2,FALSE))","v":""},null,{"$f":"IF(G8229=\"\",\"\",VLOOKUP(G8229,Insumos!G:H,2,FALSE))","v":""}]
[null,null,null,null,null,{"$f":"IF(E8230=\"\",\"\",VLOOKUP(E8230,Insumos!AD:AE,2,FALSE))","v":""},null,{"$f":"IF(G8230=\"\",\"\",VLOOKUP(G8230,Insumos!G:H,2,FALSE))","v":""}]
[null,null,null,null,null,{"$f":"IF(E8231=\"\",\"\",VLOOKUP(E8231,Insumos!AD:AE,2,FALSE))","v":""},null,{"$f":"IF(G8231=\"\",\"\",VLOOKUP(G8231,Insumos!G:H,2,FALSE))","v":""}]
[null,null,null,null,null,{"$f":"IF(E8232=\"\",\"\",VLOOKUP(E8232,Insumos!AD:AE,2,FALSE))","v":""},null,{"$f":"IF(G8232=\"\",\"\",VLOOKUP(G8232,Insumos!G:H,2,FALSE))","v":""}]
[null,null,null,null,null,{"$f":"IF(E8233=\"\",\"\",VLOOKUP(E8233,Insumos!AD:AE,2,FALSE))","v":""},null,{"$f":"IF(G8233=\"\",\"\",VLOOKUP(G8233,Insumos!G:H,2,FALSE))","v":""}]
[null,null,null,null,null,{"$f":"IF(E8234=\"\",\"\",VLOOKUP(E8234,Insumos!AD:AE,2,FALSE))","v":""},null,{"$f":"IF(G8234=\"\",\"\",VLOOKUP(G8234,Insumos!G:H,2,FALSE))","v":""}]
[null,null,null,null,null,{"$f":"IF(E8235=\"\",\"\",VLOOKUP(E8235,Insumos!AD:AE,2,FALSE))","v":""},null,{"$f":"IF(G8235=\"\",\"\",VLOOKUP(G8235,Insumos!G:H,2,FALSE))","v":""}]
[null,null,null,null,null,{"$f":"IF(E8236=\"\",\"\",VLOOKUP(E8236,Insumos!AD:AE,2,FALSE))","v":""},null,{"$f":"IF(G8236=\"\",\"\",VLOOKUP(G8236,Insumos!G:H,2,FALSE))","v":""}]
[null,null,null,null,null,{"$f":"IF(E8237=\"\",\"\",VLOOKUP(E8237,Insumos!AD:AE,2,FALSE))","v":""},null,{"$f":"IF(G8237=\"\",\"\",VLOOKUP(G8237,Insumos!G:H,2,FALSE))","v":""}]
[null,null,null,null,null,{"$f":"IF(E8238=\"\",\"\",VLOOKUP(E8238,Insumos!AD:AE,2,FALSE))","v":""},null,{"$f":"IF(G8238=\"\",\"\",VLOOKUP(G8238,Insumos!G:H,2,FALSE))","v":""}]
[null,null,null,null,null,{"$f":"IF(E8239=\"\",\"\",VLOOKUP(E8239,Insumos!AD:AE,2,FALSE))","v":""},null,{"$f":"IF(G8239=\"\",\"\",VLOOKUP(G8239,Insumos!G:H,2,FALSE))","v":""}]
[null,null,null,null,null,{"$f":"IF(E8240=\"\",\"\",VLOOKUP(E8240,Insumos!AD:AE,2,FALSE))","v":""},null,{"$f":"IF(G8240=\"\",\"\",VLOOKUP(G8240,Insumos!G:H,2,FALSE))","v":""}]
[null,null,null,null,null,{"$f":"IF(E8241=\"\",\"\",VLOOKUP(E8241,Insumos!AD:AE,2,FALSE))","v":""},null,{"$f":"IF(G8241=\"\",\"\",VLOOKUP(G8241,Insumos!G:H,2,FALSE))","v":""}]
[null,null,null,null,null,{"$f":"IF(E8242=\"\",\"\",VLOOKUP(E8242,Insumos!AD:AE,2,FALSE))","v":""},null,{"$f":"IF(G8242=\"\",\"\",VLOOKUP(G8242,Insumos!G:H,2,FALSE))","v":""}]
[null,null,null,null,null,{"$f":"IF(E8243=\"\",\"\",VLOOKUP(E8243,Insumos!AD:AE,2,FALSE))","v":""},null,{"$f":"IF(G8243=\"\",\"\",VLOOKUP(G8243,Insumos!G:H,2,FALSE))","v":""}]
[null,null,null,null,null,{"$f":"IF(E8244=\"\",\"\",VLOOKUP(E8244,Insumos!AD:AE,2,FALSE))","v":""},null,{"$f":"IF(G8244=\"\",\"\",VLOOKUP(G8244,Insumos!G:H,2,FALSE))","v":""}]
[null,null,null,null,null,{"$f":"IF(E8245=\"\",\"\",VLOOKUP(E8245,Insumos!AD:AE,2,FALSE))","v":""},null,{"$f":"IF(G8245=\"\",\"\",VLOOKUP(G8245,Insumos!G:H,2,FALSE))","v":""}]
[null,null,null,null,null,{"$f":"IF(E8246=\"\",\"\",VLOOKUP(E8246,Insumos!AD:AE,2,FALSE))","v":""},null,{"$f":"IF(G8246=\"\",\"\",VLOOKUP(G8246,Insumos!G:H,2,FALSE))","v":""}]
[null,null,null,null,null,{"$f":"IF(E8247=\"\",\"\",VLOOKUP(E8247,Insumos!AD:AE,2,FALSE))","v":""},null,{"$f":"IF(G8247=\"\",\"\",VLOOKUP(G8247,Insumos!G:H,2,FALSE))","v":""}]
[null,null,null,null,null,{"$f":"IF(E8248=\"\",\"\",VLOOKUP(E8248,Insumos!AD:AE,2,FALSE))","v":""},null,{"$f":"IF(G8248=\"\",\"\",VLOOKUP(G8248,Insumos!G:H,2,FALSE))","v":""}]
[null,null,null,null,null,{"$f":"IF(E8249=\"\",\"\",VLOOKUP(E8249,Insumos!AD:AE,2,FALSE))","v":""},null,{"$f":"IF(G8249=\"\",\"\",VLOOKUP(G8249,Insumos!G:H,2,FALSE))","v":""}]
[null,null,null,null,null,{"$f":"IF(E8250=\"\",\"\",VLOOKUP(E8250,Insumos!AD:AE,2,FALSE))","v":""},null,{"$f":"IF(G8250=\"\",\"\",VLOOKUP(G8250,Insumos!G:H,2,FALSE))","v":""}]
[null,null,null,null,null,{"$f":"IF(E8251=\"\",\"\",VLOOKUP(E8251,Insumos!AD:AE,2,FALSE))","v":""},null,{"$f":"IF(G8251=\"\",\"\",VLOOKUP(G8251,Insumos!G:H,2,FALSE))","v":""}]
[null,null,null,null,null,{"$f":"IF(E8252=\"\",\"\",VLOOKUP(E8252,Insumos!AD:AE,2,FALSE))","v":""},null,{"$f":"IF(G8252=\"\",\"\",VLOOKUP(G8252,Insumos!G:H,2,FALSE))","v":""}]
[null,null,null,null,null,{"$f":"IF(E8253=\"\",\"\",VLOOKUP(E8253,Insumos!AD:AE,2,FALSE))","v":""},null,{"$f":"IF(G8253=\"\",\"\",VLOOKUP(G8253,Insumos!G:H,2,FALSE))","v":""}]
[null,null,null,null,null,{"$f":"IF(E8254=\"\",\"\",VLOOKUP(E8254,Insumos!AD:AE,2,FALSE))","v":""},null,{"$f":"IF(G8254=\"\",\"\",VLOOKUP(G8254,Insumos!G:H,2,FALSE))","v":""}]
[null,null,null,null,null,{"$f":"IF(E8255=\"\",\"\",VLOOKUP(E8255,Insumos!AD:AE,2,FALSE))","v":""},null,{"$f":"IF(G8255=\"\",\"\",VLOOKUP(G8255,Insumos!G:H,2,FALSE))","v":""}]
[null,null,null,null,null,{"$f":"IF(E8256=\"\",\"\",VLOOKUP(E8256,Insumos!AD:AE,2,FALSE))","v":""},null,{"$f":"IF(G8256=\"\",\"\",VLOOKUP(G8256,Insumos!G:H,2,FALSE))","v":""}]
[null,null,null,null,null,{"$f":"IF(E8257=\"\",\"\",VLOOKUP(E8257,Insumos!AD:AE,2,FALSE))","v":""},null,{"$f":"IF(G8257=\"\",\"\",VLOOKUP(G8257,Insumos!G:H,2,FALSE))","v":""}]
[null,null,null,null,null,{"$f":"IF(E8258=\"\",\"\",VLOOKUP(E8258,Insumos!AD:AE,2,FALSE))","v":""},null,{"$f":"IF(G8258=\"\",\"\",VLOOKUP(G8258,Insumos!G:H,2,FALSE))","v":""}]
[null,null,null,null,null,{"$f":"IF(E8259=\"\",\"\",VLOOKUP(E8259,Insumos!AD:AE,2,FALSE))","v":""},null,{"$f":"IF(G8259=\"\",\"\",VLOOKUP(G8259,Insumos!G:H,2,FALSE))","v":""}]
[null,null,null,null,null,{"$f":"IF(E8260=\"\",\"\",VLOOKUP(E8260,Insumos!AD:AE,2,FALSE))","v":""},null,{"$f":"IF(G8260=\"\",\"\",VLOOKUP(G8260,Insumos!G:H,2,FALSE))","v":""}]
[null,null,null,null,null,{"$f":"IF(E8261=\"\",\"\",VLOOKUP(E8261,Insumos!AD:AE,2,FALSE))","v":""},null,{"$f":"IF(G8261=\"\",\"\",VLOOKUP(G8261,Insumos!G:H,2,FALSE))","v":""}]
[null,null,null,null,null,{"$f":"IF(E8262=\"\",\"\",VLOOKUP(E8262,Insumos!AD:AE,2,FALSE))","v":""},null,{"$f":"IF(G8262=\"\",\"\",VLOOKUP(G8262,Insumos!G:H,2,FALSE))","v":""}]
[null,null,null,null,null,{"$f":"IF(E8263=\"\",\"\",VLOOKUP(E8263,Insumos!AD:AE,2,FALSE))","v":""},null,{"$f":"IF(G8263=\"\",\"\",VLOOKUP(G8263,Insumos!G:H,2,FALSE))","v":""}]
[null,null,null,null,null,{"$f":"IF(E8264=\"\",\"\",VLOOKUP(E8264,Insumos!AD:AE,2,FALSE))","v":""},null,{"$f":"IF(G8264=\"\",\"\",VLOOKUP(G8264,Insumos!G:H,2,FALSE))","v":""}]
[null,null,null,null,null,{"$f":"IF(E8265=\"\",\"\",VLOOKUP(E8265,Insumos!AD:AE,2,FALSE))","v":""},null,{"$f":"IF(G8265=\"\",\"\",VLOOKUP(G8265,Insumos!G:H,2,FALSE))","v":""}]
[null,null,null,null,null,{"$f":"IF(E8266=\"\",\"\",VLOOKUP(E8266,Insumos!AD:AE,2,FALSE))","v":""},null,{"$f":"IF(G8266=\"\",\"\",VLOOKUP(G8266,Insumos!G:H,2,FALSE))","v":""}]
[null,null,null,null,null,{"$f":"IF(E8267=\"\",\"\",VLOOKUP(E8267,Insumos!AD:AE,2,FALSE))","v":""},null,{"$f":"IF(G8267=\"\",\"\",VLOOKUP(G8267,Insumos!G:H,2,FALSE))","v":""}]
[null,null,null,null,null,{"$f":"IF(E8268=\"\",\"\",VLOOKUP(E8268,Insumos!AD:AE,2,FALSE))","v":""},null,{"$f":"IF(G8268=\"\",\"\",VLOOKUP(G8268,Insumos!G:H,2,FALSE))","v":""}]
[null,null,null,null,null,{"$f":"IF(E8269=\"\",\"\",VLOOKUP(E8269,Insumos!AD:AE,2,FALSE))","v":""},null,{"$f":"IF(G8269=\"\",\"\",VLOOKUP(G8269,Insumos!G:H,2,FALSE))","v":""}]
[null,null,null,null,null,{"$f":"IF(E8270=\"\",\"\",VLOOKUP(E8270,Insumos!AD:AE,2,FALSE))","v":""},null,{"$f":"IF(G8270=\"\",\"\",VLOOKUP(G8270,Insumos!G:H,2,FALSE))","v":""}]
[null,null,null,null,null,{"$f":"IF(E8271=\"\",\"\",VLOOKUP(E8271,Insumos!AD:AE,2,FALSE))","v":""},null,{"$f":"IF(G8271=\"\",\"\",VLOOKUP(G8271,Insumos!G:H,2,FALSE))","v":""}]
[null,null,null,null,null,{"$f":"IF(E8272=\"\",\"\",VLOOKUP(E8272,Insumos!AD:AE,2,FALSE))","v":""},null,{"$f":"IF(G8272=\"\",\"\",VLOOKUP(G8272,Insumos!G:H,2,FALSE))","v":""}]
[null,null,null,null,null,{"$f":"IF(E8273=\"\",\"\",VLOOKUP(E8273,Insumos!AD:AE,2,FALSE))","v":""},null,{"$f":"IF(G8273=\"\",\"\",VLOOKUP(G8273,Insumos!G:H,2,FALSE))","v":""}]
[null,null,null,null,null,{"$f":"IF(E8274=\"\",\"\",VLOOKUP(E8274,Insumos!AD:AE,2,FALSE))","v":""},null,{"$f":"IF(G8274=\"\",\"\",VLOOKUP(G8274,Insumos!G:H,2,FALSE))","v":""}]
[null,null,null,null,null,{"$f":"IF(E8275=\"\",\"\",VLOOKUP(E8275,Insumos!AD:AE,2,FALSE))","v":""},null,{"$f":"IF(G8275=\"\",\"\",VLOOKUP(G8275,Insumos!G:H,2,FALSE))","v":""}]
[null,null,null,null,null,{"$f":"IF(E8276=\"\",\"\",VLOOKUP(E8276,Insumos!AD:AE,2,FALSE))","v":""},null,{"$f":"IF(G8276=\"\",\"\",VLOOKUP(G8276,Insumos!G:H,2,FALSE))","v":""}]
[null,null,null,null,null,{"$f":"IF(E8277=\"\",\"\",VLOOKUP(E8277,Insumos!AD:AE,2,FALSE))","v":""},null,{"$f":"IF(G8277=\"\",\"\",VLOOKUP(G8277,Insumos!G:H,2,FALSE))","v":""}]
[null,null,null,null,null,{"$f":"IF(E8278=\"\",\"\",VLOOKUP(E8278,Insumos!AD:AE,2,FALSE))","v":""},null,{"$f":"IF(G8278=\"\",\"\",VLOOKUP(G8278,Insumos!G:H,2,FALSE))","v":""}]
[null,null,null,null,null,{"$f":"IF(E8279=\"\",\"\",VLOOKUP(E8279,Insumos!AD:AE,2,FALSE))","v":""},null,{"$f":"IF(G8279=\"\",\"\",VLOOKUP(G8279,Insumos!G:H,2,FALSE))","v":""}]
[null,null,null,null,null,{"$f":"IF(E8280=\"\",\"\",VLOOKUP(E8280,Insumos!AD:AE,2,FALSE))","v":""},null,{"$f":"IF(G8280=\"\",\"\",VLOOKUP(G8280,Insumos!G:H,2,FALSE))","v":""}]
[null,null,null,null,null,{"$f":"IF(E8281=\"\",\"\",VLOOKUP(E8281,Insumos!AD:AE,2,FALSE))","v":""},null,{"$f":"IF(G8281=\"\",\"\",VLOOKUP(G8281,Insumos!G:H,2,FALSE))","v":""}]
[null,null,null,null,null,{"$f":"IF(E8282=\"\",\"\",VLOOKUP(E8282,Insumos!AD:AE,2,FALSE))","v":""},null,{"$f":"IF(G8282=\"\",\"\",VLOOKUP(G8282,Insumos!G:H,2,FALSE))","v":""}]
[null,null,null,null,null,{"$f":"IF(E8283=\"\",\"\",VLOOKUP(E8283,Insumos!AD:AE,2,FALSE))","v":""},null,{"$f":"IF(G8283=\"\",\"\",VLOOKUP(G8283,Insumos!G:H,2,FALSE))","v":""}]
[null,null,null,null,null,{"$f":"IF(E8284=\"\",\"\",VLOOKUP(E8284,Insumos!AD:AE,2,FALSE))","v":""},null,{"$f":"IF(G8284=\"\",\"\",VLOOKUP(G8284,Insumos!G:H,2,FALSE))","v":""}]
[null,null,null,null,null,{"$f":"IF(E8285=\"\",\"\",VLOOKUP(E8285,Insumos!AD:AE,2,FALSE))","v":""},null,{"$f":"IF(G8285=\"\",\"\",VLOOKUP(G8285,Insumos!G:H,2,FALSE))","v":""}]
[null,null,null,null,null,{"$f":"IF(E8286=\"\",\"\",VLOOKUP(E8286,Insumos!AD:AE,2,FALSE))","v":""},null,{"$f":"IF(G8286=\"\",\"\",VLOOKUP(G8286,Insumos!G:H,2,FALSE))","v":""}]
[null,null,null,null,null,{"$f":"IF(E8287=\"\",\"\",VLOOKUP(E8287,Insumos!AD:AE,2,FALSE))","v":""},null,{"$f":"IF(G8287=\"\",\"\",VLOOKUP(G8287,Insumos!G:H,2,FALSE))","v":""}]
[null,null,null,null,null,{"$f":"IF(E8288=\"\",\"\",VLOOKUP(E8288,Insumos!AD:AE,2,FALSE))","v":""},null,{"$f":"IF(G8288=\"\",\"\",VLOOKUP(G8288,Insumos!G:H,2,FALSE))","v":""}]
[null,null,null,null,null,{"$f":"IF(E8289=\"\",\"\",VLOOKUP(E8289,Insumos!AD:AE,2,FALSE))","v":""},null,{"$f":"IF(G8289=\"\",\"\",VLOOKUP(G8289,Insumos!G:H,2,FALSE))","v":""}]
[null,null,null,null,null,{"$f":"IF(E8290=\"\",\"\",VLOOKUP(E8290,Insumos!AD:AE,2,FALSE))","v":""},null,{"$f":"IF(G8290=\"\",\"\",VLOOKUP(G8290,Insumos!G:H,2,FALSE))","v":""}]
[null,null,null,null,null,{"$f":"IF(E8291=\"\",\"\",VLOOKUP(E8291,Insumos!AD:AE,2,FALSE))","v":""},null,{"$f":"IF(G8291=\"\",\"\",VLOOKUP(G8291,Insumos!G:H,2,FALSE))","v":""}]
[null,null,null,null,null,{"$f":"IF(E8292=\"\",\"\",VLOOKUP(E8292,Insumos!AD:AE,2,FALSE))","v":""},null,{"$f":"IF(G8292=\"\",\"\",VLOOKUP(G8292,Insumos!G:H,2,FALSE))","v":""}]
[null,null,null,null,null,{"$f":"IF(E8293=\"\",\"\",VLOOKUP(E8293,Insumos!AD:AE,2,FALSE))","v":""},null,{"$f":"IF(G8293=\"\",\"\",VLOOKUP(G8293,Insumos!G:H,2,FALSE))","v":""}]
[null,null,null,null,null,{"$f":"IF(E8294=\"\",\"\",VLOOKUP(E8294,Insumos!AD:AE,2,FALSE))","v":""},null,{"$f":"IF(G8294=\"\",\"\",VLOOKUP(G8294,Insumos!G:H,2,FALSE))","v":""}]
[null,null,null,null,null,{"$f":"IF(E8295=\"\",\"\",VLOOKUP(E8295,Insumos!AD:AE,2,FALSE))","v":""},null,{"$f":"IF(G8295=\"\",\"\",VLOOKUP(G8295,Insumos!G:H,2,FALSE))","v":""}]
[null,null,null,null,null,{"$f":"IF(E8296=\"\",\"\",VLOOKUP(E8296,Insumos!AD:AE,2,FALSE))","v":""},null,{"$f":"IF(G8296=\"\",\"\",VLOOKUP(G8296,Insumos!G:H,2,FALSE))","v":""}]
[null,null,null,null,null,{"$f":"IF(E8297=\"\",\"\",VLOOKUP(E8297,Insumos!AD:AE,2,FALSE))","v":""},null,{"$f":"IF(G8297=\"\",\"\",VLOOKUP(G8297,Insumos!G:H,2,FALSE))","v":""}]
[null,null,null,null,null,{"$f":"IF(E8298=\"\",\"\",VLOOKUP(E8298,Insumos!AD:AE,2,FALSE))","v":""},null,{"$f":"IF(G8298=\"\",\"\",VLOOKUP(G8298,Insumos!G:H,2,FALSE))","v":""}]
[null,null,null,null,null,{"$f":"IF(E8299=\"\",\"\",VLOOKUP(E8299,Insumos!AD:AE,2,FALSE))","v":""},null,{"$f":"IF(G8299=\"\",\"\",VLOOKUP(G8299,Insumos!G:H,2,FALSE))","v":""}]
[null,null,null,null,null,{"$f":"IF(E8300=\"\",\"\",VLOOKUP(E8300,Insumos!AD:AE,2,FALSE))","v":""},null,{"$f":"IF(G8300=\"\",\"\",VLOOKUP(G8300,Insumos!G:H,2,FALSE))","v":""}]
[null,null,null,null,null,{"$f":"IF(E8301=\"\",\"\",VLOOKUP(E8301,Insumos!AD:AE,2,FALSE))","v":""},null,{"$f":"IF(G8301=\"\",\"\",VLOOKUP(G8301,Insumos!G:H,2,FALSE))","v":""}]
[null,null,null,null,null,{"$f":"IF(E8302=\"\",\"\",VLOOKUP(E8302,Insumos!AD:AE,2,FALSE))","v":""},null,{"$f":"IF(G8302=\"\",\"\",VLOOKUP(G8302,Insumos!G:H,2,FALSE))","v":""}]
[null,null,null,null,null,{"$f":"IF(E8303=\"\",\"\",VLOOKUP(E8303,Insumos!AD:AE,2,FALSE))","v":""},null,{"$f":"IF(G8303=\"\",\"\",VLOOKUP(G8303,Insumos!G:H,2,FALSE))","v":""}]
[null,null,null,null,null,{"$f":"IF(E8304=\"\",\"\",VLOOKUP(E8304,Insumos!AD:AE,2,FALSE))","v":""},null,{"$f":"IF(G8304=\"\",\"\",VLOOKUP(G8304,Insumos!G:H,2,FALSE))","v":""}]
[null,null,null,null,null,{"$f":"IF(E8305=\"\",\"\",VLOOKUP(E8305,Insumos!AD:AE,2,FALSE))","v":""},null,{"$f":"IF(G8305=\"\",\"\",VLOOKUP(G8305,Insumos!G:H,2,FALSE))","v":""}]
[null,null,null,null,null,{"$f":"IF(E8306=\"\",\"\",VLOOKUP(E8306,Insumos!AD:AE,2,FALSE))","v":""},null,{"$f":"IF(G8306=\"\",\"\",VLOOKUP(G8306,Insumos!G:H,2,FALSE))","v":""}]
[null,null,null,null,null,{"$f":"IF(E8307=\"\",\"\",VLOOKUP(E8307,Insumos!AD:AE,2,FALSE))","v":""},null,{"$f":"IF(G8307=\"\",\"\",VLOOKUP(G8307,Insumos!G:H,2,FALSE))","v":""}]
[null,null,null,null,null,{"$f":"IF(E8308=\"\",\"\",VLOOKUP(E8308,Insumos!AD:AE,2,FALSE))","v":""},null,{"$f":"IF(G8308=\"\",\"\",VLOOKUP(G8308,Insumos!G:H,2,FALSE))","v":""}]
[null,null,null,null,null,{"$f":"IF(E8309=\"\",\"\",VLOOKUP(E8309,Insumos!AD:AE,2,FALSE))","v":""},null,{"$f":"IF(G8309=\"\",\"\",VLOOKUP(G8309,Insumos!G:H,2,FALSE))","v":""}]
[null,null,null,null,null,{"$f":"IF(E8310=\"\",\"\",VLOOKUP(E8310,Insumos!AD:AE,2,FALSE))","v":""},null,{"$f":"IF(G8310=\"\",\"\",VLOOKUP(G8310,Insumos!G:H,2,FALSE))","v":""}]
[null,null,null,null,null,{"$f":"IF(E8311=\"\",\"\",VLOOKUP(E8311,Insumos!AD:AE,2,FALSE))","v":""},null,{"$f":"IF(G8311=\"\",\"\",VLOOKUP(G8311,Insumos!G:H,2,FALSE))","v":""}]
[null,null,null,null,null,{"$f":"IF(E8312=\"\",\"\",VLOOKUP(E8312,Insumos!AD:AE,2,FALSE))","v":""},null,{"$f":"IF(G8312=\"\",\"\",VLOOKUP(G8312,Insumos!G:H,2,FALSE))","v":""}]
[null,null,null,null,null,{"$f":"IF(E8313=\"\",\"\",VLOOKUP(E8313,Insumos!AD:AE,2,FALSE))","v":""},null,{"$f":"IF(G8313=\"\",\"\",VLOOKUP(G8313,Insumos!G:H,2,FALSE))","v":""}]
[null,null,null,null,null,{"$f":"IF(E8314=\"\",\"\",VLOOKUP(E8314,Insumos!AD:AE,2,FALSE))","v":""},null,{"$f":"IF(G8314=\"\",\"\",VLOOKUP(G8314,Insumos!G:H,2,FALSE))","v":""}]
[null,null,null,null,null,{"$f":"IF(E8315=\"\",\"\",VLOOKUP(E8315,Insumos!AD:AE,2,FALSE))","v":""},null,{"$f":"IF(G8315=\"\",\"\",VLOOKUP(G8315,Insumos!G:H,2,FALSE))","v":""}]
[null,null,null,null,null,{"$f":"IF(E8316=\"\",\"\",VLOOKUP(E8316,Insumos!AD:AE,2,FALSE))","v":""},null,{"$f":"IF(G8316=\"\",\"\",VLOOKUP(G8316,Insumos!G:H,2,FALSE))","v":""}]
[null,null,null,null,null,{"$f":"IF(E8317=\"\",\"\",VLOOKUP(E8317,Insumos!AD:AE,2,FALSE))","v":""},null,{"$f":"IF(G8317=\"\",\"\",VLOOKUP(G8317,Insumos!G:H,2,FALSE))","v":""}]
[null,null,null,null,null,{"$f":"IF(E8318=\"\",\"\",VLOOKUP(E8318,Insumos!AD:AE,2,FALSE))","v":""},null,{"$f":"IF(G8318=\"\",\"\",VLOOKUP(G8318,Insumos!G:H,2,FALSE))","v":""}]
[null,null,null,null,null,{"$f":"IF(E8319=\"\",\"\",VLOOKUP(E8319,Insumos!AD:AE,2,FALSE))","v":""},null,{"$f":"IF(G8319=\"\",\"\",VLOOKUP(G8319,Insumos!G:H,2,FALSE))","v":""}]
[null,null,null,null,null,{"$f":"IF(E8320=\"\",\"\",VLOOKUP(E8320,Insumos!AD:AE,2,FALSE))","v":""},null,{"$f":"IF(G8320=\"\",\"\",VLOOKUP(G8320,Insumos!G:H,2,FALSE))","v":""}]
[null,null,null,null,null,{"$f":"IF(E8321=\"\",\"\",VLOOKUP(E8321,Insumos!AD:AE,2,FALSE))","v":""},null,{"$f":"IF(G8321=\"\",\"\",VLOOKUP(G8321,Insumos!G:H,2,FALSE))","v":""}]
[null,null,null,null,null,{"$f":"IF(E8322=\"\",\"\",VLOOKUP(E8322,Insumos!AD:AE,2,FALSE))","v":""},null,{"$f":"IF(G8322=\"\",\"\",VLOOKUP(G8322,Insumos!G:H,2,FALSE))","v":""}]
[null,null,null,null,null,{"$f":"IF(E8323=\"\",\"\",VLOOKUP(E8323,Insumos!AD:AE,2,FALSE))","v":""},null,{"$f":"IF(G8323=\"\",\"\",VLOOKUP(G8323,Insumos!G:H,2,FALSE))","v":""}]
[null,null,null,null,null,{"$f":"IF(E8324=\"\",\"\",VLOOKUP(E8324,Insumos!AD:AE,2,FALSE))","v":""},null,{"$f":"IF(G8324=\"\",\"\",VLOOKUP(G8324,Insumos!G:H,2,FALSE))","v":""}]
[null,null,null,null,null,{"$f":"IF(E8325=\"\",\"\",VLOOKUP(E8325,Insumos!AD:AE,2,FALSE))","v":""},null,{"$f":"IF(G8325=\"\",\"\",VLOOKUP(G8325,Insumos!G:H,2,FALSE))","v":""}]
[null,null,null,null,null,{"$f":"IF(E8326=\"\",\"\",VLOOKUP(E8326,Insumos!AD:AE,2,FALSE))","v":""},null,{"$f":"IF(G8326=\"\",\"\",VLOOKUP(G8326,Insumos!G:H,2,FALSE))","v":""}]
[null,null,null,null,null,{"$f":"IF(E8327=\"\",\"\",VLOOKUP(E8327,Insumos!AD:AE,2,FALSE))","v":""},null,{"$f":"IF(G8327=\"\",\"\",VLOOKUP(G8327,Insumos!G:H,2,FALSE))","v":""}]
[null,null,null,null,null,{"$f":"IF(E8328=\"\",\"\",VLOOKUP(E8328,Insumos!AD:AE,2,FALSE))","v":""},null,{"$f":"IF(G8328=\"\",\"\",VLOOKUP(G8328,Insumos!G:H,2,FALSE))","v":""}]
[null,null,null,null,null,{"$f":"IF(E8329=\"\",\"\",VLOOKUP(E8329,Insumos!AD:AE,2,FALSE))","v":""},null,{"$f":"IF(G8329=\"\",\"\",VLOOKUP(G8329,Insumos!G:H,2,FALSE))","v":""}]
[null,null,null,null,null,{"$f":"IF(E8330=\"\",\"\",VLOOKUP(E8330,Insumos!AD:AE,2,FALSE))","v":""},null,{"$f":"IF(G8330=\"\",\"\",VLOOKUP(G8330,Insumos!G:H,2,FALSE))","v":""}]
[null,null,null,null,null,{"$f":"IF(E8331=\"\",\"\",VLOOKUP(E8331,Insumos!AD:AE,2,FALSE))","v":""},null,{"$f":"IF(G8331=\"\",\"\",VLOOKUP(G8331,Insumos!G:H,2,FALSE))","v":""}]
[null,null,null,null,null,{"$f":"IF(E8332=\"\",\"\",VLOOKUP(E8332,Insumos!AD:AE,2,FALSE))","v":""},null,{"$f":"IF(G8332=\"\",\"\",VLOOKUP(G8332,Insumos!G:H,2,FALSE))","v":""}]
[null,null,null,null,null,{"$f":"IF(E8333=\"\",\"\",VLOOKUP(E8333,Insumos!AD:AE,2,FALSE))","v":""},null,{"$f":"IF(G8333=\"\",\"\",VLOOKUP(G8333,Insumos!G:H,2,FALSE))","v":""}]
[null,null,null,null,null,{"$f":"IF(E8334=\"\",\"\",VLOOKUP(E8334,Insumos!AD:AE,2,FALSE))","v":""},null,{"$f":"IF(G8334=\"\",\"\",VLOOKUP(G8334,Insumos!G:H,2,FALSE))","v":""}]
[null,null,null,null,null,{"$f":"IF(E8335=\"\",\"\",VLOOKUP(E8335,Insumos!AD:AE,2,FALSE))","v":""},null,{"$f":"IF(G8335=\"\",\"\",VLOOKUP(G8335,Insumos!G:H,2,FALSE))","v":""}]
[null,null,null,null,null,{"$f":"IF(E8336=\"\",\"\",VLOOKUP(E8336,Insumos!AD:AE,2,FALSE))","v":""},null,{"$f":"IF(G8336=\"\",\"\",VLOOKUP(G8336,Insumos!G:H,2,FALSE))","v":""}]
[null,null,null,null,null,{"$f":"IF(E8337=\"\",\"\",VLOOKUP(E8337,Insumos!AD:AE,2,FALSE))","v":""},null,{"$f":"IF(G8337=\"\",\"\",VLOOKUP(G8337,Insumos!G:H,2,FALSE))","v":""}]
[null,null,null,null,null,{"$f":"IF(E8338=\"\",\"\",VLOOKUP(E8338,Insumos!AD:AE,2,FALSE))","v":""},null,{"$f":"IF(G8338=\"\",\"\",VLOOKUP(G8338,Insumos!G:H,2,FALSE))","v":""}]
[null,null,null,null,null,{"$f":"IF(E8339=\"\",\"\",VLOOKUP(E8339,Insumos!AD:AE,2,FALSE))","v":""},null,{"$f":"IF(G8339=\"\",\"\",VLOOKUP(G8339,Insumos!G:H,2,FALSE))","v":""}]
[null,null,null,null,null,{"$f":"IF(E8340=\"\",\"\",VLOOKUP(E8340,Insumos!AD:AE,2,FALSE))","v":""},null,{"$f":"IF(G8340=\"\",\"\",VLOOKUP(G8340,Insumos!G:H,2,FALSE))","v":""}]
[null,null,null,null,null,{"$f":"IF(E8341=\"\",\"\",VLOOKUP(E8341,Insumos!AD:AE,2,FALSE))","v":""},null,{"$f":"IF(G8341=\"\",\"\",VLOOKUP(G8341,Insumos!G:H,2,FALSE))","v":""}]
[null,null,null,null,null,{"$f":"IF(E8342=\"\",\"\",VLOOKUP(E8342,Insumos!AD:AE,2,FALSE))","v":""},null,{"$f":"IF(G8342=\"\",\"\",VLOOKUP(G8342,Insumos!G:H,2,FALSE))","v":""}]
[null,null,null,null,null,{"$f":"IF(E8343=\"\",\"\",VLOOKUP(E8343,Insumos!AD:AE,2,FALSE))","v":""},null,{"$f":"IF(G8343=\"\",\"\",VLOOKUP(G8343,Insumos!G:H,2,FALSE))","v":""}]
[null,null,null,null,null,{"$f":"IF(E8344=\"\",\"\",VLOOKUP(E8344,Insumos!AD:AE,2,FALSE))","v":""},null,{"$f":"IF(G8344=\"\",\"\",VLOOKUP(G8344,Insumos!G:H,2,FALSE))","v":""}]
[null,null,null,null,null,{"$f":"IF(E8345=\"\",\"\",VLOOKUP(E8345,Insumos!AD:AE,2,FALSE))","v":""},null,{"$f":"IF(G8345=\"\",\"\",VLOOKUP(G8345,Insumos!G:H,2,FALSE))","v":""}]
[null,null,null,null,null,{"$f":"IF(E8346=\"\",\"\",VLOOKUP(E8346,Insumos!AD:AE,2,FALSE))","v":""},null,{"$f":"IF(G8346=\"\",\"\",VLOOKUP(G8346,Insumos!G:H,2,FALSE))","v":""}]
[null,null,null,null,null,{"$f":"IF(E8347=\"\",\"\",VLOOKUP(E8347,Insumos!AD:AE,2,FALSE))","v":""},null,{"$f":"IF(G8347=\"\",\"\",VLOOKUP(G8347,Insumos!G:H,2,FALSE))","v":""}]
[null,null,null,null,null,{"$f":"IF(E8348=\"\",\"\",VLOOKUP(E8348,Insumos!AD:AE,2,FALSE))","v":""},null,{"$f":"IF(G8348=\"\",\"\",VLOOKUP(G8348,Insumos!G:H,2,FALSE))","v":""}]
[null,null,null,null,null,{"$f":"IF(E8349=\"\",\"\",VLOOKUP(E8349,Insumos!AD:AE,2,FALSE))","v":""},null,{"$f":"IF(G8349=\"\",\"\",VLOOKUP(G8349,Insumos!G:H,2,FALSE))","v":""}]
[null,null,null,null,null,{"$f":"IF(E8350=\"\",\"\",VLOOKUP(E8350,Insumos!AD:AE,2,FALSE))","v":""},null,{"$f":"IF(G8350=\"\",\"\",VLOOKUP(G8350,Insumos!G:H,2,FALSE))","v":""}]
[null,null,null,null,null,{"$f":"IF(E8351=\"\",\"\",VLOOKUP(E8351,Insumos!AD:AE,2,FALSE))","v":""},null,{"$f":"IF(G8351=\"\",\"\",VLOOKUP(G8351,Insumos!G:H,2,FALSE))","v":""}]
[null,null,null,null,null,{"$f":"IF(E8352=\"\",\"\",VLOOKUP(E8352,Insumos!AD:AE,2,FALSE))","v":""},null,{"$f":"IF(G8352=\"\",\"\",VLOOKUP(G8352,Insumos!G:H,2,FALSE))","v":""}]
[null,null,null,null,null,{"$f":"IF(E8353=\"\",\"\",VLOOKUP(E8353,Insumos!AD:AE,2,FALSE))","v":""},null,{"$f":"IF(G8353=\"\",\"\",VLOOKUP(G8353,Insumos!G:H,2,FALSE))","v":""}]
[null,null,null,null,null,{"$f":"IF(E8354=\"\",\"\",VLOOKUP(E8354,Insumos!AD:AE,2,FALSE))","v":""},null,{"$f":"IF(G8354=\"\",\"\",VLOOKUP(G8354,Insumos!G:H,2,FALSE))","v":""}]
[null,null,null,null,null,{"$f":"IF(E8355=\"\",\"\",VLOOKUP(E8355,Insumos!AD:AE,2,FALSE))","v":""},null,{"$f":"IF(G8355=\"\",\"\",VLOOKUP(G8355,Insumos!G:H,2,FALSE))","v":""}]
[null,null,null,null,null,{"$f":"IF(E8356=\"\",\"\",VLOOKUP(E8356,Insumos!AD:AE,2,FALSE))","v":""},null,{"$f":"IF(G8356=\"\",\"\",VLOOKUP(G8356,Insumos!G:H,2,FALSE))","v":""}]
[null,null,null,null,null,{"$f":"IF(E8357=\"\",\"\",VLOOKUP(E8357,Insumos!AD:AE,2,FALSE))","v":""},null,{"$f":"IF(G8357=\"\",\"\",VLOOKUP(G8357,Insumos!G:H,2,FALSE))","v":""}]
[null,null,null,null,null,{"$f":"IF(E8358=\"\",\"\",VLOOKUP(E8358,Insumos!AD:AE,2,FALSE))","v":""},null,{"$f":"IF(G8358=\"\",\"\",VLOOKUP(G8358,Insumos!G:H,2,FALSE))","v":""}]
[null,null,null,null,null,{"$f":"IF(E8359=\"\",\"\",VLOOKUP(E8359,Insumos!AD:AE,2,FALSE))","v":""},null,{"$f":"IF(G8359=\"\",\"\",VLOOKUP(G8359,Insumos!G:H,2,FALSE))","v":""}]
[null,null,null,null,null,{"$f":"IF(E8360=\"\",\"\",VLOOKUP(E8360,Insumos!AD:AE,2,FALSE))","v":""},null,{"$f":"IF(G8360=\"\",\"\",VLOOKUP(G8360,Insumos!G:H,2,FALSE))","v":""}]
[null,null,null,null,null,{"$f":"IF(E8361=\"\",\"\",VLOOKUP(E8361,Insumos!AD:AE,2,FALSE))","v":""},null,{"$f":"IF(G8361=\"\",\"\",VLOOKUP(G8361,Insumos!G:H,2,FALSE))","v":""}]
[null,null,null,null,null,{"$f":"IF(E8362=\"\",\"\",VLOOKUP(E8362,Insumos!AD:AE,2,FALSE))","v":""},null,{"$f":"IF(G8362=\"\",\"\",VLOOKUP(G8362,Insumos!G:H,2,FALSE))","v":""}]
[null,null,null,null,null,{"$f":"IF(E8363=\"\",\"\",VLOOKUP(E8363,Insumos!AD:AE,2,FALSE))","v":""},null,{"$f":"IF(G8363=\"\",\"\",VLOOKUP(G8363,Insumos!G:H,2,FALSE))","v":""}]
[null,null,null,null,null,{"$f":"IF(E8364=\"\",\"\",VLOOKUP(E8364,Insumos!AD:AE,2,FALSE))","v":""},null,{"$f":"IF(G8364=\"\",\"\",VLOOKUP(G8364,Insumos!G:H,2,FALSE))","v":""}]
[null,null,null,null,null,{"$f":"IF(E8365=\"\",\"\",VLOOKUP(E8365,Insumos!AD:AE,2,FALSE))","v":""},null,{"$f":"IF(G8365=\"\",\"\",VLOOKUP(G8365,Insumos!G:H,2,FALSE))","v":""}]
[null,null,null,null,null,{"$f":"IF(E8366=\"\",\"\",VLOOKUP(E8366,Insumos!AD:AE,2,FALSE))","v":""},null,{"$f":"IF(G8366=\"\",\"\",VLOOKUP(G8366,Insumos!G:H,2,FALSE))","v":""}]
[null,null,null,null,null,{"$f":"IF(E8367=\"\",\"\",VLOOKUP(E8367,Insumos!AD:AE,2,FALSE))","v":""},null,{"$f":"IF(G8367=\"\",\"\",VLOOKUP(G8367,Insumos!G:H,2,FALSE))","v":""}]
[null,null,null,null,null,{"$f":"IF(E8368=\"\",\"\",VLOOKUP(E8368,Insumos!AD:AE,2,FALSE))","v":""},null,{"$f":"IF(G8368=\"\",\"\",VLOOKUP(G8368,Insumos!G:H,2,FALSE))","v":""}]
[null,null,null,null,null,{"$f":"IF(E8369=\"\",\"\",VLOOKUP(E8369,Insumos!AD:AE,2,FALSE))","v":""},null,{"$f":"IF(G8369=\"\",\"\",VLOOKUP(G8369,Insumos!G:H,2,FALSE))","v":""}]
[null,null,null,null,null,{"$f":"IF(E8370=\"\",\"\",VLOOKUP(E8370,Insumos!AD:AE,2,FALSE))","v":""},null,{"$f":"IF(G8370=\"\",\"\",VLOOKUP(G8370,Insumos!G:H,2,FALSE))","v":""}]
[null,null,null,null,null,{"$f":"IF(E8371=\"\",\"\",VLOOKUP(E8371,Insumos!AD:AE,2,FALSE))","v":""},null,{"$f":"IF(G8371=\"\",\"\",VLOOKUP(G8371,Insumos!G:H,2,FALSE))","v":""}]
[null,null,null,null,null,{"$f":"IF(E8372=\"\",\"\",VLOOKUP(E8372,Insumos!AD:AE,2,FALSE))","v":""},null,{"$f":"IF(G8372=\"\",\"\",VLOOKUP(G8372,Insumos!G:H,2,FALSE))","v":""}]
[null,null,null,null,null,{"$f":"IF(E8373=\"\",\"\",VLOOKUP(E8373,Insumos!AD:AE,2,FALSE))","v":""},null,{"$f":"IF(G8373=\"\",\"\",VLOOKUP(G8373,Insumos!G:H,2,FALSE))","v":""}]
[null,null,null,null,null,{"$f":"IF(E8374=\"\",\"\",VLOOKUP(E8374,Insumos!AD:AE,2,FALSE))","v":""},null,{"$f":"IF(G8374=\"\",\"\",VLOOKUP(G8374,Insumos!G:H,2,FALSE))","v":""}]
[null,null,null,null,null,{"$f":"IF(E8375=\"\",\"\",VLOOKUP(E8375,Insumos!AD:AE,2,FALSE))","v":""},null,{"$f":"IF(G8375=\"\",\"\",VLOOKUP(G8375,Insumos!G:H,2,FALSE))","v":""}]
[null,null,null,null,null,{"$f":"IF(E8376=\"\",\"\",VLOOKUP(E8376,Insumos!AD:AE,2,FALSE))","v":""},null,{"$f":"IF(G8376=\"\",\"\",VLOOKUP(G8376,Insumos!G:H,2,FALSE))","v":""}]
[null,null,null,null,null,{"$f":"IF(E8377=\"\",\"\",VLOOKUP(E8377,Insumos!AD:AE,2,FALSE))","v":""},null,{"$f":"IF(G8377=\"\",\"\",VLOOKUP(G8377,Insumos!G:H,2,FALSE))","v":""}]
[null,null,null,null,null,{"$f":"IF(E8378=\"\",\"\",VLOOKUP(E8378,Insumos!AD:AE,2,FALSE))","v":""},null,{"$f":"IF(G8378=\"\",\"\",VLOOKUP(G8378,Insumos!G:H,2,FALSE))","v":""}]
[null,null,null,null,null,{"$f":"IF(E8379=\"\",\"\",VLOOKUP(E8379,Insumos!AD:AE,2,FALSE))","v":""},null,{"$f":"IF(G8379=\"\",\"\",VLOOKUP(G8379,Insumos!G:H,2,FALSE))","v":""}]
[null,null,null,null,null,{"$f":"IF(E8380=\"\",\"\",VLOOKUP(E8380,Insumos!AD:AE,2,FALSE))","v":""},null,{"$f":"IF(G8380=\"\",\"\",VLOOKUP(G8380,Insumos!G:H,2,FALSE))","v":""}]
[null,null,null,null,null,{"$f":"IF(E8381=\"\",\"\",VLOOKUP(E8381,Insumos!AD:AE,2,FALSE))","v":""},null,{"$f":"IF(G8381=\"\",\"\",VLOOKUP(G8381,Insumos!G:H,2,FALSE))","v":""}]
[null,null,null,null,null,{"$f":"IF(E8382=\"\",\"\",VLOOKUP(E8382,Insumos!AD:AE,2,FALSE))","v":""},null,{"$f":"IF(G8382=\"\",\"\",VLOOKUP(G8382,Insumos!G:H,2,FALSE))","v":""}]
[null,null,null,null,null,{"$f":"IF(E8383=\"\",\"\",VLOOKUP(E8383,Insumos!AD:AE,2,FALSE))","v":""},null,{"$f":"IF(G8383=\"\",\"\",VLOOKUP(G8383,Insumos!G:H,2,FALSE))","v":""}]
[null,null,null,null,null,{"$f":"IF(E8384=\"\",\"\",VLOOKUP(E8384,Insumos!AD:AE,2,FALSE))","v":""},null,{"$f":"IF(G8384=\"\",\"\",VLOOKUP(G8384,Insumos!G:H,2,FALSE))","v":""}]
[null,null,null,null,null,{"$f":"IF(E8385=\"\",\"\",VLOOKUP(E8385,Insumos!AD:AE,2,FALSE))","v":""},null,{"$f":"IF(G8385=\"\",\"\",VLOOKUP(G8385,Insumos!G:H,2,FALSE))","v":""}]
[null,null,null,null,null,{"$f":"IF(E8386=\"\",\"\",VLOOKUP(E8386,Insumos!AD:AE,2,FALSE))","v":""},null,{"$f":"IF(G8386=\"\",\"\",VLOOKUP(G8386,Insumos!G:H,2,FALSE))","v":""}]
[null,null,null,null,null,{"$f":"IF(E8387=\"\",\"\",VLOOKUP(E8387,Insumos!AD:AE,2,FALSE))","v":""},null,{"$f":"IF(G8387=\"\",\"\",VLOOKUP(G8387,Insumos!G:H,2,FALSE))","v":""}]
[null,null,null,null,null,{"$f":"IF(E8388=\"\",\"\",VLOOKUP(E8388,Insumos!AD:AE,2,FALSE))","v":""},null,{"$f":"IF(G8388=\"\",\"\",VLOOKUP(G8388,Insumos!G:H,2,FALSE))","v":""}]
[null,null,null,null,null,{"$f":"IF(E8389=\"\",\"\",VLOOKUP(E8389,Insumos!AD:AE,2,FALSE))","v":""},null,{"$f":"IF(G8389=\"\",\"\",VLOOKUP(G8389,Insumos!G:H,2,FALSE))","v":""}]
[null,null,null,null,null,{"$f":"IF(E8390=\"\",\"\",VLOOKUP(E8390,Insumos!AD:AE,2,FALSE))","v":""},null,{"$f":"IF(G8390=\"\",\"\",VLOOKUP(G8390,Insumos!G:H,2,FALSE))","v":""}]
[null,null,null,null,null,{"$f":"IF(E8391=\"\",\"\",VLOOKUP(E8391,Insumos!AD:AE,2,FALSE))","v":""},null,{"$f":"IF(G8391=\"\",\"\",VLOOKUP(G8391,Insumos!G:H,2,FALSE))","v":""}]
[null,null,null,null,null,{"$f":"IF(E8392=\"\",\"\",VLOOKUP(E8392,Insumos!AD:AE,2,FALSE))","v":""},null,{"$f":"IF(G8392=\"\",\"\",VLOOKUP(G8392,Insumos!G:H,2,FALSE))","v":""}]
[null,null,null,null,null,{"$f":"IF(E8393=\"\",\"\",VLOOKUP(E8393,Insumos!AD:AE,2,FALSE))","v":""},null,{"$f":"IF(G8393=\"\",\"\",VLOOKUP(G8393,Insumos!G:H,2,FALSE))","v":""}]
[null,null,null,null,null,{"$f":"IF(E8394=\"\",\"\",VLOOKUP(E8394,Insumos!AD:AE,2,FALSE))","v":""},null,{"$f":"IF(G8394=\"\",\"\",VLOOKUP(G8394,Insumos!G:H,2,FALSE))","v":""}]
[null,null,null,null,null,{"$f":"IF(E8395=\"\",\"\",VLOOKUP(E8395,Insumos!AD:AE,2,FALSE))","v":""},null,{"$f":"IF(G8395=\"\",\"\",VLOOKUP(G8395,Insumos!G:H,2,FALSE))","v":""}]
[null,null,null,null,null,{"$f":"IF(E8396=\"\",\"\",VLOOKUP(E8396,Insumos!AD:AE,2,FALSE))","v":""},null,{"$f":"IF(G8396=\"\",\"\",VLOOKUP(G8396,Insumos!G:H,2,FALSE))","v":""}]
[null,null,null,null,null,{"$f":"IF(E8397=\"\",\"\",VLOOKUP(E8397,Insumos!AD:AE,2,FALSE))","v":""},null,{"$f":"IF(G8397=\"\",\"\",VLOOKUP(G8397,Insumos!G:H,2,FALSE))","v":""}]
[null,null,null,null,null,{"$f":"IF(E8398=\"\",\"\",VLOOKUP(E8398,Insumos!AD:AE,2,FALSE))","v":""},null,{"$f":"IF(G8398=\"\",\"\",VLOOKUP(G8398,Insumos!G:H,2,FALSE))","v":""}]
[null,null,null,null,null,{"$f":"IF(E8399=\"\",\"\",VLOOKUP(E8399,Insumos!AD:AE,2,FALSE))","v":""},null,{"$f":"IF(G8399=\"\",\"\",VLOOKUP(G8399,Insumos!G:H,2,FALSE))","v":""}]
[null,null,null,null,null,{"$f":"IF(E8400=\"\",\"\",VLOOKUP(E8400,Insumos!AD:AE,2,FALSE))","v":""},null,{"$f":"IF(G8400=\"\",\"\",VLOOKUP(G8400,Insumos!G:H,2,FALSE))","v":""}]
[null,null,null,null,null,{"$f":"IF(E8401=\"\",\"\",VLOOKUP(E8401,Insumos!AD:AE,2,FALSE))","v":""},null,{"$f":"IF(G8401=\"\",\"\",VLOOKUP(G8401,Insumos!G:H,2,FALSE))","v":""}]
[null,null,null,null,null,{"$f":"IF(E8402=\"\",\"\",VLOOKUP(E8402,Insumos!AD:AE,2,FALSE))","v":""},null,{"$f":"IF(G8402=\"\",\"\",VLOOKUP(G8402,Insumos!G:H,2,FALSE))","v":""}]
[null,null,null,null,null,{"$f":"IF(E8403=\"\",\"\",VLOOKUP(E8403,Insumos!AD:AE,2,FALSE))","v":""},null,{"$f":"IF(G8403=\"\",\"\",VLOOKUP(G8403,Insumos!G:H,2,FALSE))","v":""}]
[null,null,null,null,null,{"$f":"IF(E8404=\"\",\"\",VLOOKUP(E8404,Insumos!AD:AE,2,FALSE))","v":""},null,{"$f":"IF(G8404=\"\",\"\",VLOOKUP(G8404,Insumos!G:H,2,FALSE))","v":""}]
[null,null,null,null,null,{"$f":"IF(E8405=\"\",\"\",VLOOKUP(E8405,Insumos!AD:AE,2,FALSE))","v":""},null,{"$f":"IF(G8405=\"\",\"\",VLOOKUP(G8405,Insumos!G:H,2,FALSE))","v":""}]
[null,null,null,null,null,{"$f":"IF(E8406=\"\",\"\",VLOOKUP(E8406,Insumos!AD:AE,2,FALSE))","v":""},null,{"$f":"IF(G8406=\"\",\"\",VLOOKUP(G8406,Insumos!G:H,2,FALSE))","v":""}]
[null,null,null,null,null,{"$f":"IF(E8407=\"\",\"\",VLOOKUP(E8407,Insumos!AD:AE,2,FALSE))","v":""},null,{"$f":"IF(G8407=\"\",\"\",VLOOKUP(G8407,Insumos!G:H,2,FALSE))","v":""}]
[null,null,null,null,null,{"$f":"IF(E8408=\"\",\"\",VLOOKUP(E8408,Insumos!AD:AE,2,FALSE))","v":""},null,{"$f":"IF(G8408=\"\",\"\",VLOOKUP(G8408,Insumos!G:H,2,FALSE))","v":""}]
[null,null,null,null,null,{"$f":"IF(E8409=\"\",\"\",VLOOKUP(E8409,Insumos!AD:AE,2,FALSE))","v":""},null,{"$f":"IF(G8409=\"\",\"\",VLOOKUP(G8409,Insumos!G:H,2,FALSE))","v":""}]
[null,null,null,null,null,{"$f":"IF(E8410=\"\",\"\",VLOOKUP(E8410,Insumos!AD:AE,2,FALSE))","v":""},null,{"$f":"IF(G8410=\"\",\"\",VLOOKUP(G8410,Insumos!G:H,2,FALSE))","v":""}]
[null,null,null,null,null,{"$f":"IF(E8411=\"\",\"\",VLOOKUP(E8411,Insumos!AD:AE,2,FALSE))","v":""},null,{"$f":"IF(G8411=\"\",\"\",VLOOKUP(G8411,Insumos!G:H,2,FALSE))","v":""}]
[null,null,null,null,null,{"$f":"IF(E8412=\"\",\"\",VLOOKUP(E8412,Insumos!AD:AE,2,FALSE))","v":""},null,{"$f":"IF(G8412=\"\",\"\",VLOOKUP(G8412,Insumos!G:H,2,FALSE))","v":""}]
[null,null,null,null,null,{"$f":"IF(E8413=\"\",\"\",VLOOKUP(E8413,Insumos!AD:AE,2,FALSE))","v":""},null,{"$f":"IF(G8413=\"\",\"\",VLOOKUP(G8413,Insumos!G:H,2,FALSE))","v":""}]
[null,null,null,null,null,{"$f":"IF(E8414=\"\",\"\",VLOOKUP(E8414,Insumos!AD:AE,2,FALSE))","v":""},null,{"$f":"IF(G8414=\"\",\"\",VLOOKUP(G8414,Insumos!G:H,2,FALSE))","v":""}]
[null,null,null,null,null,{"$f":"IF(E8415=\"\",\"\",VLOOKUP(E8415,Insumos!AD:AE,2,FALSE))","v":""},null,{"$f":"IF(G8415=\"\",\"\",VLOOKUP(G8415,Insumos!G:H,2,FALSE))","v":""}]
[null,null,null,null,null,{"$f":"IF(E8416=\"\",\"\",VLOOKUP(E8416,Insumos!AD:AE,2,FALSE))","v":""},null,{"$f":"IF(G8416=\"\",\"\",VLOOKUP(G8416,Insumos!G:H,2,FALSE))","v":""}]
[null,null,null,null,null,{"$f":"IF(E8417=\"\",\"\",VLOOKUP(E8417,Insumos!AD:AE,2,FALSE))","v":""},null,{"$f":"IF(G8417=\"\",\"\",VLOOKUP(G8417,Insumos!G:H,2,FALSE))","v":""}]
[null,null,null,null,null,{"$f":"IF(E8418=\"\",\"\",VLOOKUP(E8418,Insumos!AD:AE,2,FALSE))","v":""},null,{"$f":"IF(G8418=\"\",\"\",VLOOKUP(G8418,Insumos!G:H,2,FALSE))","v":""}]
[null,null,null,null,null,{"$f":"IF(E8419=\"\",\"\",VLOOKUP(E8419,Insumos!AD:AE,2,FALSE))","v":""},null,{"$f":"IF(G8419=\"\",\"\",VLOOKUP(G8419,Insumos!G:H,2,FALSE))","v":""}]
[null,null,null,null,null,{"$f":"IF(E8420=\"\",\"\",VLOOKUP(E8420,Insumos!AD:AE,2,FALSE))","v":""},null,{"$f":"IF(G8420=\"\",\"\",VLOOKUP(G8420,Insumos!G:H,2,FALSE))","v":""}]
[null,null,null,null,null,{"$f":"IF(E8421=\"\",\"\",VLOOKUP(E8421,Insumos!AD:AE,2,FALSE))","v":""},null,{"$f":"IF(G8421=\"\",\"\",VLOOKUP(G8421,Insumos!G:H,2,FALSE))","v":""}]
[null,null,null,null,null,{"$f":"IF(E8422=\"\",\"\",VLOOKUP(E8422,Insumos!AD:AE,2,FALSE))","v":""},null,{"$f":"IF(G8422=\"\",\"\",VLOOKUP(G8422,Insumos!G:H,2,FALSE))","v":""}]
[null,null,null,null,null,{"$f":"IF(E8423=\"\",\"\",VLOOKUP(E8423,Insumos!AD:AE,2,FALSE))","v":""},null,{"$f":"IF(G8423=\"\",\"\",VLOOKUP(G8423,Insumos!G:H,2,FALSE))","v":""}]
[null,null,null,null,null,{"$f":"IF(E8424=\"\",\"\",VLOOKUP(E8424,Insumos!AD:AE,2,FALSE))","v":""},null,{"$f":"IF(G8424=\"\",\"\",VLOOKUP(G8424,Insumos!G:H,2,FALSE))","v":""}]
[null,null,null,null,null,{"$f":"IF(E8425=\"\",\"\",VLOOKUP(E8425,Insumos!AD:AE,2,FALSE))","v":""},null,{"$f":"IF(G8425=\"\",\"\",VLOOKUP(G8425,Insumos!G:H,2,FALSE))","v":""}]
[null,null,null,null,null,{"$f":"IF(E8426=\"\",\"\",VLOOKUP(E8426,Insumos!AD:AE,2,FALSE))","v":""},null,{"$f":"IF(G8426=\"\",\"\",VLOOKUP(G8426,Insumos!G:H,2,FALSE))","v":""}]
[null,null,null,null,null,{"$f":"IF(E8427=\"\",\"\",VLOOKUP(E8427,Insumos!AD:AE,2,FALSE))","v":""},null,{"$f":"IF(G8427=\"\",\"\",VLOOKUP(G8427,Insumos!G:H,2,FALSE))","v":""}]
[null,null,null,null,null,{"$f":"IF(E8428=\"\",\"\",VLOOKUP(E8428,Insumos!AD:AE,2,FALSE))","v":""},null,{"$f":"IF(G8428=\"\",\"\",VLOOKUP(G8428,Insumos!G:H,2,FALSE))","v":""}]
[null,null,null,null,null,{"$f":"IF(E8429=\"\",\"\",VLOOKUP(E8429,Insumos!AD:AE,2,FALSE))","v":""},null,{"$f":"IF(G8429=\"\",\"\",VLOOKUP(G8429,Insumos!G:H,2,FALSE))","v":""}]
[null,null,null,null,null,{"$f":"IF(E8430=\"\",\"\",VLOOKUP(E8430,Insumos!AD:AE,2,FALSE))","v":""},null,{"$f":"IF(G8430=\"\",\"\",VLOOKUP(G8430,Insumos!G:H,2,FALSE))","v":""}]
[null,null,null,null,null,{"$f":"IF(E8431=\"\",\"\",VLOOKUP(E8431,Insumos!AD:AE,2,FALSE))","v":""},null,{"$f":"IF(G8431=\"\",\"\",VLOOKUP(G8431,Insumos!G:H,2,FALSE))","v":""}]
[null,null,null,null,null,{"$f":"IF(E8432=\"\",\"\",VLOOKUP(E8432,Insumos!AD:AE,2,FALSE))","v":""},null,{"$f":"IF(G8432=\"\",\"\",VLOOKUP(G8432,Insumos!G:H,2,FALSE))","v":""}]
[null,null,null,null,null,{"$f":"IF(E8433=\"\",\"\",VLOOKUP(E8433,Insumos!AD:AE,2,FALSE))","v":""},null,{"$f":"IF(G8433=\"\",\"\",VLOOKUP(G8433,Insumos!G:H,2,FALSE))","v":""}]
[null,null,null,null,null,{"$f":"IF(E8434=\"\",\"\",VLOOKUP(E8434,Insumos!AD:AE,2,FALSE))","v":""},null,{"$f":"IF(G8434=\"\",\"\",VLOOKUP(G8434,Insumos!G:H,2,FALSE))","v":""}]
[null,null,null,null,null,{"$f":"IF(E8435=\"\",\"\",VLOOKUP(E8435,Insumos!AD:AE,2,FALSE))","v":""},null,{"$f":"IF(G8435=\"\",\"\",VLOOKUP(G8435,Insumos!G:H,2,FALSE))","v":""}]
[null,null,null,null,null,{"$f":"IF(E8436=\"\",\"\",VLOOKUP(E8436,Insumos!AD:AE,2,FALSE))","v":""},null,{"$f":"IF(G8436=\"\",\"\",VLOOKUP(G8436,Insumos!G:H,2,FALSE))","v":""}]
[null,null,null,null,null,{"$f":"IF(E8437=\"\",\"\",VLOOKUP(E8437,Insumos!AD:AE,2,FALSE))","v":""},null,{"$f":"IF(G8437=\"\",\"\",VLOOKUP(G8437,Insumos!G:H,2,FALSE))","v":""}]
[null,null,null,null,null,{"$f":"IF(E8438=\"\",\"\",VLOOKUP(E8438,Insumos!AD:AE,2,FALSE))","v":""},null,{"$f":"IF(G8438=\"\",\"\",VLOOKUP(G8438,Insumos!G:H,2,FALSE))","v":""}]
[null,null,null,null,null,{"$f":"IF(E8439=\"\",\"\",VLOOKUP(E8439,Insumos!AD:AE,2,FALSE))","v":""},null,{"$f":"IF(G8439=\"\",\"\",VLOOKUP(G8439,Insumos!G:H,2,FALSE))","v":""}]
[null,null,null,null,null,{"$f":"IF(E8440=\"\",\"\",VLOOKUP(E8440,Insumos!AD:AE,2,FALSE))","v":""},null,{"$f":"IF(G8440=\"\",\"\",VLOOKUP(G8440,Insumos!G:H,2,FALSE))","v":""}]
[null,null,null,null,null,{"$f":"IF(E8441=\"\",\"\",VLOOKUP(E8441,Insumos!AD:AE,2,FALSE))","v":""},null,{"$f":"IF(G8441=\"\",\"\",VLOOKUP(G8441,Insumos!G:H,2,FALSE))","v":""}]
[null,null,null,null,null,{"$f":"IF(E8442=\"\",\"\",VLOOKUP(E8442,Insumos!AD:AE,2,FALSE))","v":""},null,{"$f":"IF(G8442=\"\",\"\",VLOOKUP(G8442,Insumos!G:H,2,FALSE))","v":""}]
[null,null,null,null,null,{"$f":"IF(E8443=\"\",\"\",VLOOKUP(E8443,Insumos!AD:AE,2,FALSE))","v":""},null,{"$f":"IF(G8443=\"\",\"\",VLOOKUP(G8443,Insumos!G:H,2,FALSE))","v":""}]
[null,null,null,null,null,{"$f":"IF(E8444=\"\",\"\",VLOOKUP(E8444,Insumos!AD:AE,2,FALSE))","v":""},null,{"$f":"IF(G8444=\"\",\"\",VLOOKUP(G8444,Insumos!G:H,2,FALSE))","v":""}]
[null,null,null,null,null,{"$f":"IF(E8445=\"\",\"\",VLOOKUP(E8445,Insumos!AD:AE,2,FALSE))","v":""},null,{"$f":"IF(G8445=\"\",\"\",VLOOKUP(G8445,Insumos!G:H,2,FALSE))","v":""}]
[null,null,null,null,null,{"$f":"IF(E8446=\"\",\"\",VLOOKUP(E8446,Insumos!AD:AE,2,FALSE))","v":""},null,{"$f":"IF(G8446=\"\",\"\",VLOOKUP(G8446,Insumos!G:H,2,FALSE))","v":""}]
[null,null,null,null,null,{"$f":"IF(E8447=\"\",\"\",VLOOKUP(E8447,Insumos!AD:AE,2,FALSE))","v":""},null,{"$f":"IF(G8447=\"\",\"\",VLOOKUP(G8447,Insumos!G:H,2,FALSE))","v":""}]
[null,null,null,null,null,{"$f":"IF(E8448=\"\",\"\",VLOOKUP(E8448,Insumos!AD:AE,2,FALSE))","v":""},null,{"$f":"IF(G8448=\"\",\"\",VLOOKUP(G8448,Insumos!G:H,2,FALSE))","v":""}]
[null,null,null,null,null,{"$f":"IF(E8449=\"\",\"\",VLOOKUP(E8449,Insumos!AD:AE,2,FALSE))","v":""},null,{"$f":"IF(G8449=\"\",\"\",VLOOKUP(G8449,Insumos!G:H,2,FALSE))","v":""}]
[null,null,null,null,null,{"$f":"IF(E8450=\"\",\"\",VLOOKUP(E8450,Insumos!AD:AE,2,FALSE))","v":""},null,{"$f":"IF(G8450=\"\",\"\",VLOOKUP(G8450,Insumos!G:H,2,FALSE))","v":""}]
[null,null,null,null,null,{"$f":"IF(E8451=\"\",\"\",VLOOKUP(E8451,Insumos!AD:AE,2,FALSE))","v":""},null,{"$f":"IF(G8451=\"\",\"\",VLOOKUP(G8451,Insumos!G:H,2,FALSE))","v":""}]
[null,null,null,null,null,{"$f":"IF(E8452=\"\",\"\",VLOOKUP(E8452,Insumos!AD:AE,2,FALSE))","v":""},null,{"$f":"IF(G8452=\"\",\"\",VLOOKUP(G8452,Insumos!G:H,2,FALSE))","v":""}]
[null,null,null,null,null,{"$f":"IF(E8453=\"\",\"\",VLOOKUP(E8453,Insumos!AD:AE,2,FALSE))","v":""},null,{"$f":"IF(G8453=\"\",\"\",VLOOKUP(G8453,Insumos!G:H,2,FALSE))","v":""}]
[null,null,null,null,null,{"$f":"IF(E8454=\"\",\"\",VLOOKUP(E8454,Insumos!AD:AE,2,FALSE))","v":""},null,{"$f":"IF(G8454=\"\",\"\",VLOOKUP(G8454,Insumos!G:H,2,FALSE))","v":""}]
[null,null,null,null,null,{"$f":"IF(E8455=\"\",\"\",VLOOKUP(E8455,Insumos!AD:AE,2,FALSE))","v":""},null,{"$f":"IF(G8455=\"\",\"\",VLOOKUP(G8455,Insumos!G:H,2,FALSE))","v":""}]
[null,null,null,null,null,{"$f":"IF(E8456=\"\",\"\",VLOOKUP(E8456,Insumos!AD:AE,2,FALSE))","v":""},null,{"$f":"IF(G8456=\"\",\"\",VLOOKUP(G8456,Insumos!G:H,2,FALSE))","v":""}]
[null,null,null,null,null,{"$f":"IF(E8457=\"\",\"\",VLOOKUP(E8457,Insumos!AD:AE,2,FALSE))","v":""},null,{"$f":"IF(G8457=\"\",\"\",VLOOKUP(G8457,Insumos!G:H,2,FALSE))","v":""}]
[null,null,null,null,null,{"$f":"IF(E8458=\"\",\"\",VLOOKUP(E8458,Insumos!AD:AE,2,FALSE))","v":""},null,{"$f":"IF(G8458=\"\",\"\",VLOOKUP(G8458,Insumos!G:H,2,FALSE))","v":""}]
[null,null,null,null,null,{"$f":"IF(E8459=\"\",\"\",VLOOKUP(E8459,Insumos!AD:AE,2,FALSE))","v":""},null,{"$f":"IF(G8459=\"\",\"\",VLOOKUP(G8459,Insumos!G:H,2,FALSE))","v":""}]
[null,null,null,null,null,{"$f":"IF(E8460=\"\",\"\",VLOOKUP(E8460,Insumos!AD:AE,2,FALSE))","v":""},null,{"$f":"IF(G8460=\"\",\"\",VLOOKUP(G8460,Insumos!G:H,2,FALSE))","v":""}]
[null,null,null,null,null,{"$f":"IF(E8461=\"\",\"\",VLOOKUP(E8461,Insumos!AD:AE,2,FALSE))","v":""},null,{"$f":"IF(G8461=\"\",\"\",VLOOKUP(G8461,Insumos!G:H,2,FALSE))","v":""}]
[null,null,null,null,null,{"$f":"IF(E8462=\"\",\"\",VLOOKUP(E8462,Insumos!AD:AE,2,FALSE))","v":""},null,{"$f":"IF(G8462=\"\",\"\",VLOOKUP(G8462,Insumos!G:H,2,FALSE))","v":""}]
[null,null,null,null,null,{"$f":"IF(E8463=\"\",\"\",VLOOKUP(E8463,Insumos!AD:AE,2,FALSE))","v":""},null,{"$f":"IF(G8463=\"\",\"\",VLOOKUP(G8463,Insumos!G:H,2,FALSE))","v":""}]
[null,null,null,null,null,{"$f":"IF(E8464=\"\",\"\",VLOOKUP(E8464,Insumos!AD:AE,2,FALSE))","v":""},null,{"$f":"IF(G8464=\"\",\"\",VLOOKUP(G8464,Insumos!G:H,2,FALSE))","v":""}]
[null,null,null,null,null,{"$f":"IF(E8465=\"\",\"\",VLOOKUP(E8465,Insumos!AD:AE,2,FALSE))","v":""},null,{"$f":"IF(G8465=\"\",\"\",VLOOKUP(G8465,Insumos!G:H,2,FALSE))","v":""}]
[null,null,null,null,null,{"$f":"IF(E8466=\"\",\"\",VLOOKUP(E8466,Insumos!AD:AE,2,FALSE))","v":""},null,{"$f":"IF(G8466=\"\",\"\",VLOOKUP(G8466,Insumos!G:H,2,FALSE))","v":""}]
[null,null,null,null,null,{"$f":"IF(E8467=\"\",\"\",VLOOKUP(E8467,Insumos!AD:AE,2,FALSE))","v":""},null,{"$f":"IF(G8467=\"\",\"\",VLOOKUP(G8467,Insumos!G:H,2,FALSE))","v":""}]
[null,null,null,null,null,{"$f":"IF(E8468=\"\",\"\",VLOOKUP(E8468,Insumos!AD:AE,2,FALSE))","v":""},null,{"$f":"IF(G8468=\"\",\"\",VLOOKUP(G8468,Insumos!G:H,2,FALSE))","v":""}]
[null,null,null,null,null,{"$f":"IF(E8469=\"\",\"\",VLOOKUP(E8469,Insumos!AD:AE,2,FALSE))","v":""},null,{"$f":"IF(G8469=\"\",\"\",VLOOKUP(G8469,Insumos!G:H,2,FALSE))","v":""}]
[null,null,null,null,null,{"$f":"IF(E8470=\"\",\"\",VLOOKUP(E8470,Insumos!AD:AE,2,FALSE))","v":""},null,{"$f":"IF(G8470=\"\",\"\",VLOOKUP(G8470,Insumos!G:H,2,FALSE))","v":""}]
[null,null,null,null,null,{"$f":"IF(E8471=\"\",\"\",VLOOKUP(E8471,Insumos!AD:AE,2,FALSE))","v":""},null,{"$f":"IF(G8471=\"\",\"\",VLOOKUP(G8471,Insumos!G:H,2,FALSE))","v":""}]
[null,null,null,null,null,{"$f":"IF(E8472=\"\",\"\",VLOOKUP(E8472,Insumos!AD:AE,2,FALSE))","v":""},null,{"$f":"IF(G8472=\"\",\"\",VLOOKUP(G8472,Insumos!G:H,2,FALSE))","v":""}]
[null,null,null,null,null,{"$f":"IF(E8473=\"\",\"\",VLOOKUP(E8473,Insumos!AD:AE,2,FALSE))","v":""},null,{"$f":"IF(G8473=\"\",\"\",VLOOKUP(G8473,Insumos!G:H,2,FALSE))","v":""}]
[null,null,null,null,null,{"$f":"IF(E8474=\"\",\"\",VLOOKUP(E8474,Insumos!AD:AE,2,FALSE))","v":""},null,{"$f":"IF(G8474=\"\",\"\",VLOOKUP(G8474,Insumos!G:H,2,FALSE))","v":""}]
[null,null,null,null,null,{"$f":"IF(E8475=\"\",\"\",VLOOKUP(E8475,Insumos!AD:AE,2,FALSE))","v":""},null,{"$f":"IF(G8475=\"\",\"\",VLOOKUP(G8475,Insumos!G:H,2,FALSE))","v":""}]
[null,null,null,null,null,{"$f":"IF(E8476=\"\",\"\",VLOOKUP(E8476,Insumos!AD:AE,2,FALSE))","v":""},null,{"$f":"IF(G8476=\"\",\"\",VLOOKUP(G8476,Insumos!G:H,2,FALSE))","v":""}]
[null,null,null,null,null,{"$f":"IF(E8477=\"\",\"\",VLOOKUP(E8477,Insumos!AD:AE,2,FALSE))","v":""},null,{"$f":"IF(G8477=\"\",\"\",VLOOKUP(G8477,Insumos!G:H,2,FALSE))","v":""}]
[null,null,null,null,null,{"$f":"IF(E8478=\"\",\"\",VLOOKUP(E8478,Insumos!AD:AE,2,FALSE))","v":""},null,{"$f":"IF(G8478=\"\",\"\",VLOOKUP(G8478,Insumos!G:H,2,FALSE))","v":""}]
[null,null,null,null,null,{"$f":"IF(E8479=\"\",\"\",VLOOKUP(E8479,Insumos!AD:AE,2,FALSE))","v":""},null,{"$f":"IF(G8479=\"\",\"\",VLOOKUP(G8479,Insumos!G:H,2,FALSE))","v":""}]
[null,null,null,null,null,{"$f":"IF(E8480=\"\",\"\",VLOOKUP(E8480,Insumos!AD:AE,2,FALSE))","v":""},null,{"$f":"IF(G8480=\"\",\"\",VLOOKUP(G8480,Insumos!G:H,2,FALSE))","v":""}]
[null,null,null,null,null,{"$f":"IF(E8481=\"\",\"\",VLOOKUP(E8481,Insumos!AD:AE,2,FALSE))","v":""},null,{"$f":"IF(G8481=\"\",\"\",VLOOKUP(G8481,Insumos!G:H,2,FALSE))","v":""}]
[null,null,null,null,null,{"$f":"IF(E8482=\"\",\"\",VLOOKUP(E8482,Insumos!AD:AE,2,FALSE))","v":""},null,{"$f":"IF(G8482=\"\",\"\",VLOOKUP(G8482,Insumos!G:H,2,FALSE))","v":""}]
[null,null,null,null,null,{"$f":"IF(E8483=\"\",\"\",VLOOKUP(E8483,Insumos!AD:AE,2,FALSE))","v":""},null,{"$f":"IF(G8483=\"\",\"\",VLOOKUP(G8483,Insumos!G:H,2,FALSE))","v":""}]
[null,null,null,null,null,{"$f":"IF(E8484=\"\",\"\",VLOOKUP(E8484,Insumos!AD:AE,2,FALSE))","v":""},null,{"$f":"IF(G8484=\"\",\"\",VLOOKUP(G8484,Insumos!G:H,2,FALSE))","v":""}]
[null,null,null,null,null,{"$f":"IF(E8485=\"\",\"\",VLOOKUP(E8485,Insumos!AD:AE,2,FALSE))","v":""},null,{"$f":"IF(G8485=\"\",\"\",VLOOKUP(G8485,Insumos!G:H,2,FALSE))","v":""}]
[null,null,null,null,null,{"$f":"IF(E8486=\"\",\"\",VLOOKUP(E8486,Insumos!AD:AE,2,FALSE))","v":""},null,{"$f":"IF(G8486=\"\",\"\",VLOOKUP(G8486,Insumos!G:H,2,FALSE))","v":""}]
[null,null,null,null,null,{"$f":"IF(E8487=\"\",\"\",VLOOKUP(E8487,Insumos!AD:AE,2,FALSE))","v":""},null,{"$f":"IF(G8487=\"\",\"\",VLOOKUP(G8487,Insumos!G:H,2,FALSE))","v":""}]
[null,null,null,null,null,{"$f":"IF(E8488=\"\",\"\",VLOOKUP(E8488,Insumos!AD:AE,2,FALSE))","v":""},null,{"$f":"IF(G8488=\"\",\"\",VLOOKUP(G8488,Insumos!G:H,2,FALSE))","v":""}]
[null,null,null,null,null,{"$f":"IF(E8489=\"\",\"\",VLOOKUP(E8489,Insumos!AD:AE,2,FALSE))","v":""},null,{"$f":"IF(G8489=\"\",\"\",VLOOKUP(G8489,Insumos!G:H,2,FALSE))","v":""}]
[null,null,null,null,null,{"$f":"IF(E8490=\"\",\"\",VLOOKUP(E8490,Insumos!AD:AE,2,FALSE))","v":""},null,{"$f":"IF(G8490=\"\",\"\",VLOOKUP(G8490,Insumos!G:H,2,FALSE))","v":""}]
[null,null,null,null,null,{"$f":"IF(E8491=\"\",\"\",VLOOKUP(E8491,Insumos!AD:AE,2,FALSE))","v":""},null,{"$f":"IF(G8491=\"\",\"\",VLOOKUP(G8491,Insumos!G:H,2,FALSE))","v":""}]
[null,null,null,null,null,{"$f":"IF(E8492=\"\",\"\",VLOOKUP(E8492,Insumos!AD:AE,2,FALSE))","v":""},null,{"$f":"IF(G8492=\"\",\"\",VLOOKUP(G8492,Insumos!G:H,2,FALSE))","v":""}]
[null,null,null,null,null,{"$f":"IF(E8493=\"\",\"\",VLOOKUP(E8493,Insumos!AD:AE,2,FALSE))","v":""},null,{"$f":"IF(G8493=\"\",\"\",VLOOKUP(G8493,Insumos!G:H,2,FALSE))","v":""}]
[null,null,null,null,null,{"$f":"IF(E8494=\"\",\"\",VLOOKUP(E8494,Insumos!AD:AE,2,FALSE))","v":""},null,{"$f":"IF(G8494=\"\",\"\",VLOOKUP(G8494,Insumos!G:H,2,FALSE))","v":""}]
[null,null,null,null,null,{"$f":"IF(E8495=\"\",\"\",VLOOKUP(E8495,Insumos!AD:AE,2,FALSE))","v":""},null,{"$f":"IF(G8495=\"\",\"\",VLOOKUP(G8495,Insumos!G:H,2,FALSE))","v":""}]
[null,null,null,null,null,{"$f":"IF(E8496=\"\",\"\",VLOOKUP(E8496,Insumos!AD:AE,2,FALSE))","v":""},null,{"$f":"IF(G8496=\"\",\"\",VLOOKUP(G8496,Insumos!G:H,2,FALSE))","v":""}]
[null,null,null,null,null,{"$f":"IF(E8497=\"\",\"\",VLOOKUP(E8497,Insumos!AD:AE,2,FALSE))","v":""},null,{"$f":"IF(G8497=\"\",\"\",VLOOKUP(G8497,Insumos!G:H,2,FALSE))","v":""}]
[null,null,null,null,null,{"$f":"IF(E8498=\"\",\"\",VLOOKUP(E8498,Insumos!AD:AE,2,FALSE))","v":""},null,{"$f":"IF(G8498=\"\",\"\",VLOOKUP(G8498,Insumos!G:H,2,FALSE))","v":""}]
[null,null,null,null,null,{"$f":"IF(E8499=\"\",\"\",VLOOKUP(E8499,Insumos!AD:AE,2,FALSE))","v":""},null,{"$f":"IF(G8499=\"\",\"\",VLOOKUP(G8499,Insumos!G:H,2,FALSE))","v":""}]
[null,null,null,null,null,{"$f":"IF(E8500=\"\",\"\",VLOOKUP(E8500,Insumos!AD:AE,2,FALSE))","v":""},null,{"$f":"IF(G8500=\"\",\"\",VLOOKUP(G8500,Insumos!G:H,2,FALSE))","v":""}]
[null,null,null,null,null,{"$f":"IF(E8501=\"\",\"\",VLOOKUP(E8501,Insumos!AD:AE,2,FALSE))","v":""},null,{"$f":"IF(G8501=\"\",\"\",VLOOKUP(G8501,Insumos!G:H,2,FALSE))","v":""}]
[null,null,null,null,null,{"$f":"IF(E8502=\"\",\"\",VLOOKUP(E8502,Insumos!AD:AE,2,FALSE))","v":""},null,{"$f":"IF(G8502=\"\",\"\",VLOOKUP(G8502,Insumos!G:H,2,FALSE))","v":""}]
[null,null,null,null,null,{"$f":"IF(E8503=\"\",\"\",VLOOKUP(E8503,Insumos!AD:AE,2,FALSE))","v":""},null,{"$f":"IF(G8503=\"\",\"\",VLOOKUP(G8503,Insumos!G:H,2,FALSE))","v":""}]
[null,null,null,null,null,{"$f":"IF(E8504=\"\",\"\",VLOOKUP(E8504,Insumos!AD:AE,2,FALSE))","v":""},null,{"$f":"IF(G8504=\"\",\"\",VLOOKUP(G8504,Insumos!G:H,2,FALSE))","v":""}]
[null,null,null,null,null,{"$f":"IF(E8505=\"\",\"\",VLOOKUP(E8505,Insumos!AD:AE,2,FALSE))","v":""},null,{"$f":"IF(G8505=\"\",\"\",VLOOKUP(G8505,Insumos!G:H,2,FALSE))","v":""}]
[null,null,null,null,null,{"$f":"IF(E8506=\"\",\"\",VLOOKUP(E8506,Insumos!AD:AE,2,FALSE))","v":""},null,{"$f":"IF(G8506=\"\",\"\",VLOOKUP(G8506,Insumos!G:H,2,FALSE))","v":""}]
[null,null,null,null,null,{"$f":"IF(E8507=\"\",\"\",VLOOKUP(E8507,Insumos!AD:AE,2,FALSE))","v":""},null,{"$f":"IF(G8507=\"\",\"\",VLOOKUP(G8507,Insumos!G:H,2,FALSE))","v":""}]
[null,null,null,null,null,{"$f":"IF(E8508=\"\",\"\",VLOOKUP(E8508,Insumos!AD:AE,2,FALSE))","v":""},null,{"$f":"IF(G8508=\"\",\"\",VLOOKUP(G8508,Insumos!G:H,2,FALSE))","v":""}]
[null,null,null,null,null,{"$f":"IF(E8509=\"\",\"\",VLOOKUP(E8509,Insumos!AD:AE,2,FALSE))","v":""},null,{"$f":"IF(G8509=\"\",\"\",VLOOKUP(G8509,Insumos!G:H,2,FALSE))","v":""}]
[null,null,null,null,null,{"$f":"IF(E8510=\"\",\"\",VLOOKUP(E8510,Insumos!AD:AE,2,FALSE))","v":""},null,{"$f":"IF(G8510=\"\",\"\",VLOOKUP(G8510,Insumos!G:H,2,FALSE))","v":""}]
[null,null,null,null,null,{"$f":"IF(E8511=\"\",\"\",VLOOKUP(E8511,Insumos!AD:AE,2,FALSE))","v":""},null,{"$f":"IF(G8511=\"\",\"\",VLOOKUP(G8511,Insumos!G:H,2,FALSE))","v":""}]
[null,null,null,null,null,{"$f":"IF(E8512=\"\",\"\",VLOOKUP(E8512,Insumos!AD:AE,2,FALSE))","v":""},null,{"$f":"IF(G8512=\"\",\"\",VLOOKUP(G8512,Insumos!G:H,2,FALSE))","v":""}]
[null,null,null,null,null,{"$f":"IF(E8513=\"\",\"\",VLOOKUP(E8513,Insumos!AD:AE,2,FALSE))","v":""},null,{"$f":"IF(G8513=\"\",\"\",VLOOKUP(G8513,Insumos!G:H,2,FALSE))","v":""}]
[null,null,null,null,null,{"$f":"IF(E8514=\"\",\"\",VLOOKUP(E8514,Insumos!AD:AE,2,FALSE))","v":""},null,{"$f":"IF(G8514=\"\",\"\",VLOOKUP(G8514,Insumos!G:H,2,FALSE))","v":""}]
[null,null,null,null,null,{"$f":"IF(E8515=\"\",\"\",VLOOKUP(E8515,Insumos!AD:AE,2,FALSE))","v":""},null,{"$f":"IF(G8515=\"\",\"\",VLOOKUP(G8515,Insumos!G:H,2,FALSE))","v":""}]
[null,null,null,null,null,{"$f":"IF(E8516=\"\",\"\",VLOOKUP(E8516,Insumos!AD:AE,2,FALSE))","v":""},null,{"$f":"IF(G8516=\"\",\"\",VLOOKUP(G8516,Insumos!G:H,2,FALSE))","v":""}]
[null,null,null,null,null,{"$f":"IF(E8517=\"\",\"\",VLOOKUP(E8517,Insumos!AD:AE,2,FALSE))","v":""},null,{"$f":"IF(G8517=\"\",\"\",VLOOKUP(G8517,Insumos!G:H,2,FALSE))","v":""}]
[null,null,null,null,null,{"$f":"IF(E8518=\"\",\"\",VLOOKUP(E8518,Insumos!AD:AE,2,FALSE))","v":""},null,{"$f":"IF(G8518=\"\",\"\",VLOOKUP(G8518,Insumos!G:H,2,FALSE))","v":""}]
[null,null,null,null,null,{"$f":"IF(E8519=\"\",\"\",VLOOKUP(E8519,Insumos!AD:AE,2,FALSE))","v":""},null,{"$f":"IF(G8519=\"\",\"\",VLOOKUP(G8519,Insumos!G:H,2,FALSE))","v":""}]
[null,null,null,null,null,{"$f":"IF(E8520=\"\",\"\",VLOOKUP(E8520,Insumos!AD:AE,2,FALSE))","v":""},null,{"$f":"IF(G8520=\"\",\"\",VLOOKUP(G8520,Insumos!G:H,2,FALSE))","v":""}]
[null,null,null,null,null,{"$f":"IF(E8521=\"\",\"\",VLOOKUP(E8521,Insumos!AD:AE,2,FALSE))","v":""},null,{"$f":"IF(G8521=\"\",\"\",VLOOKUP(G8521,Insumos!G:H,2,FALSE))","v":""}]
[null,null,null,null,null,{"$f":"IF(E8522=\"\",\"\",VLOOKUP(E8522,Insumos!AD:AE,2,FALSE))","v":""},null,{"$f":"IF(G8522=\"\",\"\",VLOOKUP(G8522,Insumos!G:H,2,FALSE))","v":""}]
[null,null,null,null,null,{"$f":"IF(E8523=\"\",\"\",VLOOKUP(E8523,Insumos!AD:AE,2,FALSE))","v":""},null,{"$f":"IF(G8523=\"\",\"\",VLOOKUP(G8523,Insumos!G:H,2,FALSE))","v":""}]
[null,null,null,null,null,{"$f":"IF(E8524=\"\",\"\",VLOOKUP(E8524,Insumos!AD:AE,2,FALSE))","v":""},null,{"$f":"IF(G8524=\"\",\"\",VLOOKUP(G8524,Insumos!G:H,2,FALSE))","v":""}]
[null,null,null,null,null,{"$f":"IF(E8525=\"\",\"\",VLOOKUP(E8525,Insumos!AD:AE,2,FALSE))","v":""},null,{"$f":"IF(G8525=\"\",\"\",VLOOKUP(G8525,Insumos!G:H,2,FALSE))","v":""}]
[null,null,null,null,null,{"$f":"IF(E8526=\"\",\"\",VLOOKUP(E8526,Insumos!AD:AE,2,FALSE))","v":""},null,{"$f":"IF(G8526=\"\",\"\",VLOOKUP(G8526,Insumos!G:H,2,FALSE))","v":""}]
[null,null,null,null,null,{"$f":"IF(E8527=\"\",\"\",VLOOKUP(E8527,Insumos!AD:AE,2,FALSE))","v":""},null,{"$f":"IF(G8527=\"\",\"\",VLOOKUP(G8527,Insumos!G:H,2,FALSE))","v":""}]
[null,null,null,null,null,{"$f":"IF(E8528=\"\",\"\",VLOOKUP(E8528,Insumos!AD:AE,2,FALSE))","v":""},null,{"$f":"IF(G8528=\"\",\"\",VLOOKUP(G8528,Insumos!G:H,2,FALSE))","v":""}]
[null,null,null,null,null,{"$f":"IF(E8529=\"\",\"\",VLOOKUP(E8529,Insumos!AD:AE,2,FALSE))","v":""},null,{"$f":"IF(G8529=\"\",\"\",VLOOKUP(G8529,Insumos!G:H,2,FALSE))","v":""}]
[null,null,null,null,null,{"$f":"IF(E8530=\"\",\"\",VLOOKUP(E8530,Insumos!AD:AE,2,FALSE))","v":""},null,{"$f":"IF(G8530=\"\",\"\",VLOOKUP(G8530,Insumos!G:H,2,FALSE))","v":""}]
[null,null,null,null,null,{"$f":"IF(E8531=\"\",\"\",VLOOKUP(E8531,Insumos!AD:AE,2,FALSE))","v":""},null,{"$f":"IF(G8531=\"\",\"\",VLOOKUP(G8531,Insumos!G:H,2,FALSE))","v":""}]
[null,null,null,null,null,{"$f":"IF(E8532=\"\",\"\",VLOOKUP(E8532,Insumos!AD:AE,2,FALSE))","v":""},null,{"$f":"IF(G8532=\"\",\"\",VLOOKUP(G8532,Insumos!G:H,2,FALSE))","v":""}]
[null,null,null,null,null,{"$f":"IF(E8533=\"\",\"\",VLOOKUP(E8533,Insumos!AD:AE,2,FALSE))","v":""},null,{"$f":"IF(G8533=\"\",\"\",VLOOKUP(G8533,Insumos!G:H,2,FALSE))","v":""}]
[null,null,null,null,null,{"$f":"IF(E8534=\"\",\"\",VLOOKUP(E8534,Insumos!AD:AE,2,FALSE))","v":""},null,{"$f":"IF(G8534=\"\",\"\",VLOOKUP(G8534,Insumos!G:H,2,FALSE))","v":""}]
[null,null,null,null,null,{"$f":"IF(E8535=\"\",\"\",VLOOKUP(E8535,Insumos!AD:AE,2,FALSE))","v":""},null,{"$f":"IF(G8535=\"\",\"\",VLOOKUP(G8535,Insumos!G:H,2,FALSE))","v":""}]
[null,null,null,null,null,{"$f":"IF(E8536=\"\",\"\",VLOOKUP(E8536,Insumos!AD:AE,2,FALSE))","v":""},null,{"$f":"IF(G8536=\"\",\"\",VLOOKUP(G8536,Insumos!G:H,2,FALSE))","v":""}]
[null,null,null,null,null,{"$f":"IF(E8537=\"\",\"\",VLOOKUP(E8537,Insumos!AD:AE,2,FALSE))","v":""},null,{"$f":"IF(G8537=\"\",\"\",VLOOKUP(G8537,Insumos!G:H,2,FALSE))","v":""}]
[null,null,null,null,null,{"$f":"IF(E8538=\"\",\"\",VLOOKUP(E8538,Insumos!AD:AE,2,FALSE))","v":""},null,{"$f":"IF(G8538=\"\",\"\",VLOOKUP(G8538,Insumos!G:H,2,FALSE))","v":""}]
[null,null,null,null,null,{"$f":"IF(E8539=\"\",\"\",VLOOKUP(E8539,Insumos!AD:AE,2,FALSE))","v":""},null,{"$f":"IF(G8539=\"\",\"\",VLOOKUP(G8539,Insumos!G:H,2,FALSE))","v":""}]
[null,null,null,null,null,{"$f":"IF(E8540=\"\",\"\",VLOOKUP(E8540,Insumos!AD:AE,2,FALSE))","v":""},null,{"$f":"IF(G8540=\"\",\"\",VLOOKUP(G8540,Insumos!G:H,2,FALSE))","v":""}]
[null,null,null,null,null,{"$f":"IF(E8541=\"\",\"\",VLOOKUP(E8541,Insumos!AD:AE,2,FALSE))","v":""},null,{"$f":"IF(G8541=\"\",\"\",VLOOKUP(G8541,Insumos!G:H,2,FALSE))","v":""}]
[null,null,null,null,null,{"$f":"IF(E8542=\"\",\"\",VLOOKUP(E8542,Insumos!AD:AE,2,FALSE))","v":""},null,{"$f":"IF(G8542=\"\",\"\",VLOOKUP(G8542,Insumos!G:H,2,FALSE))","v":""}]
[null,null,null,null,null,{"$f":"IF(E8543=\"\",\"\",VLOOKUP(E8543,Insumos!AD:AE,2,FALSE))","v":""},null,{"$f":"IF(G8543=\"\",\"\",VLOOKUP(G8543,Insumos!G:H,2,FALSE))","v":""}]
[null,null,null,null,null,{"$f":"IF(E8544=\"\",\"\",VLOOKUP(E8544,Insumos!AD:AE,2,FALSE))","v":""},null,{"$f":"IF(G8544=\"\",\"\",VLOOKUP(G8544,Insumos!G:H,2,FALSE))","v":""}]
[null,null,null,null,null,{"$f":"IF(E8545=\"\",\"\",VLOOKUP(E8545,Insumos!AD:AE,2,FALSE))","v":""},null,{"$f":"IF(G8545=\"\",\"\",VLOOKUP(G8545,Insumos!G:H,2,FALSE))","v":""}]
[null,null,null,null,null,{"$f":"IF(E8546=\"\",\"\",VLOOKUP(E8546,Insumos!AD:AE,2,FALSE))","v":""},null,{"$f":"IF(G8546=\"\",\"\",VLOOKUP(G8546,Insumos!G:H,2,FALSE))","v":""}]
[null,null,null,null,null,{"$f":"IF(E8547=\"\",\"\",VLOOKUP(E8547,Insumos!AD:AE,2,FALSE))","v":""},null,{"$f":"IF(G8547=\"\",\"\",VLOOKUP(G8547,Insumos!G:H,2,FALSE))","v":""}]
[null,null,null,null,null,{"$f":"IF(E8548=\"\",\"\",VLOOKUP(E8548,Insumos!AD:AE,2,FALSE))","v":""},null,{"$f":"IF(G8548=\"\",\"\",VLOOKUP(G8548,Insumos!G:H,2,FALSE))","v":""}]
[null,null,null,null,null,{"$f":"IF(E8549=\"\",\"\",VLOOKUP(E8549,Insumos!AD:AE,2,FALSE))","v":""},null,{"$f":"IF(G8549=\"\",\"\",VLOOKUP(G8549,Insumos!G:H,2,FALSE))","v":""}]
[null,null,null,null,null,{"$f":"IF(E8550=\"\",\"\",VLOOKUP(E8550,Insumos!AD:AE,2,FALSE))","v":""},null,{"$f":"IF(G8550=\"\",\"\",VLOOKUP(G8550,Insumos!G:H,2,FALSE))","v":""}]
[null,null,null,null,null,{"$f":"IF(E8551=\"\",\"\",VLOOKUP(E8551,Insumos!AD:AE,2,FALSE))","v":""},null,{"$f":"IF(G8551=\"\",\"\",VLOOKUP(G8551,Insumos!G:H,2,FALSE))","v":""}]
[null,null,null,null,null,{"$f":"IF(E8552=\"\",\"\",VLOOKUP(E8552,Insumos!AD:AE,2,FALSE))","v":""},null,{"$f":"IF(G8552=\"\",\"\",VLOOKUP(G8552,Insumos!G:H,2,FALSE))","v":""}]
[null,null,null,null,null,{"$f":"IF(E8553=\"\",\"\",VLOOKUP(E8553,Insumos!AD:AE,2,FALSE))","v":""},null,{"$f":"IF(G8553=\"\",\"\",VLOOKUP(G8553,Insumos!G:H,2,FALSE))","v":""}]
[null,null,null,null,null,{"$f":"IF(E8554=\"\",\"\",VLOOKUP(E8554,Insumos!AD:AE,2,FALSE))","v":""},null,{"$f":"IF(G8554=\"\",\"\",VLOOKUP(G8554,Insumos!G:H,2,FALSE))","v":""}]
[null,null,null,null,null,{"$f":"IF(E8555=\"\",\"\",VLOOKUP(E8555,Insumos!AD:AE,2,FALSE))","v":""},null,{"$f":"IF(G8555=\"\",\"\",VLOOKUP(G8555,Insumos!G:H,2,FALSE))","v":""}]
[null,null,null,null,null,{"$f":"IF(E8556=\"\",\"\",VLOOKUP(E8556,Insumos!AD:AE,2,FALSE))","v":""},null,{"$f":"IF(G8556=\"\",\"\",VLOOKUP(G8556,Insumos!G:H,2,FALSE))","v":""}]
[null,null,null,null,null,{"$f":"IF(E8557=\"\",\"\",VLOOKUP(E8557,Insumos!AD:AE,2,FALSE))","v":""},null,{"$f":"IF(G8557=\"\",\"\",VLOOKUP(G8557,Insumos!G:H,2,FALSE))","v":""}]
[null,null,null,null,null,{"$f":"IF(E8558=\"\",\"\",VLOOKUP(E8558,Insumos!AD:AE,2,FALSE))","v":""},null,{"$f":"IF(G8558=\"\",\"\",VLOOKUP(G8558,Insumos!G:H,2,FALSE))","v":""}]
[null,null,null,null,null,{"$f":"IF(E8559=\"\",\"\",VLOOKUP(E8559,Insumos!AD:AE,2,FALSE))","v":""},null,{"$f":"IF(G8559=\"\",\"\",VLOOKUP(G8559,Insumos!G:H,2,FALSE))","v":""}]
[null,null,null,null,null,{"$f":"IF(E8560=\"\",\"\",VLOOKUP(E8560,Insumos!AD:AE,2,FALSE))","v":""},null,{"$f":"IF(G8560=\"\",\"\",VLOOKUP(G8560,Insumos!G:H,2,FALSE))","v":""}]
[null,null,null,null,null,{"$f":"IF(E8561=\"\",\"\",VLOOKUP(E8561,Insumos!AD:AE,2,FALSE))","v":""},null,{"$f":"IF(G8561=\"\",\"\",VLOOKUP(G8561,Insumos!G:H,2,FALSE))","v":""}]
[null,null,null,null,null,{"$f":"IF(E8562=\"\",\"\",VLOOKUP(E8562,Insumos!AD:AE,2,FALSE))","v":""},null,{"$f":"IF(G8562=\"\",\"\",VLOOKUP(G8562,Insumos!G:H,2,FALSE))","v":""}]
[null,null,null,null,null,{"$f":"IF(E8563=\"\",\"\",VLOOKUP(E8563,Insumos!AD:AE,2,FALSE))","v":""},null,{"$f":"IF(G8563=\"\",\"\",VLOOKUP(G8563,Insumos!G:H,2,FALSE))","v":""}]
[null,null,null,null,null,{"$f":"IF(E8564=\"\",\"\",VLOOKUP(E8564,Insumos!AD:AE,2,FALSE))","v":""},null,{"$f":"IF(G8564=\"\",\"\",VLOOKUP(G8564,Insumos!G:H,2,FALSE))","v":""}]
[null,null,null,null,null,{"$f":"IF(E8565=\"\",\"\",VLOOKUP(E8565,Insumos!AD:AE,2,FALSE))","v":""},null,{"$f":"IF(G8565=\"\",\"\",VLOOKUP(G8565,Insumos!G:H,2,FALSE))","v":""}]
[null,null,null,null,null,{"$f":"IF(E8566=\"\",\"\",VLOOKUP(E8566,Insumos!AD:AE,2,FALSE))","v":""},null,{"$f":"IF(G8566=\"\",\"\",VLOOKUP(G8566,Insumos!G:H,2,FALSE))","v":""}]
[null,null,null,null,null,{"$f":"IF(E8567=\"\",\"\",VLOOKUP(E8567,Insumos!AD:AE,2,FALSE))","v":""},null,{"$f":"IF(G8567=\"\",\"\",VLOOKUP(G8567,Insumos!G:H,2,FALSE))","v":""}]
[null,null,null,null,null,{"$f":"IF(E8568=\"\",\"\",VLOOKUP(E8568,Insumos!AD:AE,2,FALSE))","v":""},null,{"$f":"IF(G8568=\"\",\"\",VLOOKUP(G8568,Insumos!G:H,2,FALSE))","v":""}]
[null,null,null,null,null,{"$f":"IF(E8569=\"\",\"\",VLOOKUP(E8569,Insumos!AD:AE,2,FALSE))","v":""},null,{"$f":"IF(G8569=\"\",\"\",VLOOKUP(G8569,Insumos!G:H,2,FALSE))","v":""}]
[null,null,null,null,null,{"$f":"IF(E8570=\"\",\"\",VLOOKUP(E8570,Insumos!AD:AE,2,FALSE))","v":""},null,{"$f":"IF(G8570=\"\",\"\",VLOOKUP(G8570,Insumos!G:H,2,FALSE))","v":""}]
[null,null,null,null,null,{"$f":"IF(E8571=\"\",\"\",VLOOKUP(E8571,Insumos!AD:AE,2,FALSE))","v":""},null,{"$f":"IF(G8571=\"\",\"\",VLOOKUP(G8571,Insumos!G:H,2,FALSE))","v":""}]
[null,null,null,null,null,{"$f":"IF(E8572=\"\",\"\",VLOOKUP(E8572,Insumos!AD:AE,2,FALSE))","v":""},null,{"$f":"IF(G8572=\"\",\"\",VLOOKUP(G8572,Insumos!G:H,2,FALSE))","v":""}]
[null,null,null,null,null,{"$f":"IF(E8573=\"\",\"\",VLOOKUP(E8573,Insumos!AD:AE,2,FALSE))","v":""},null,{"$f":"IF(G8573=\"\",\"\",VLOOKUP(G8573,Insumos!G:H,2,FALSE))","v":""}]
[null,null,null,null,null,{"$f":"IF(E8574=\"\",\"\",VLOOKUP(E8574,Insumos!AD:AE,2,FALSE))","v":""},null,{"$f":"IF(G8574=\"\",\"\",VLOOKUP(G8574,Insumos!G:H,2,FALSE))","v":""}]
[null,null,null,null,null,{"$f":"IF(E8575=\"\",\"\",VLOOKUP(E8575,Insumos!AD:AE,2,FALSE))","v":""},null,{"$f":"IF(G8575=\"\",\"\",VLOOKUP(G8575,Insumos!G:H,2,FALSE))","v":""}]
[null,null,null,null,null,{"$f":"IF(E8576=\"\",\"\",VLOOKUP(E8576,Insumos!AD:AE,2,FALSE))","v":""},null,{"$f":"IF(G8576=\"\",\"\",VLOOKUP(G8576,Insumos!G:H,2,FALSE))","v":""}]
[null,null,null,null,null,{"$f":"IF(E8577=\"\",\"\",VLOOKUP(E8577,Insumos!AD:AE,2,FALSE))","v":""},null,{"$f":"IF(G8577=\"\",\"\",VLOOKUP(G8577,Insumos!G:H,2,FALSE))","v":""}]
[null,null,null,null,null,{"$f":"IF(E8578=\"\",\"\",VLOOKUP(E8578,Insumos!AD:AE,2,FALSE))","v":""},null,{"$f":"IF(G8578=\"\",\"\",VLOOKUP(G8578,Insumos!G:H,2,FALSE))","v":""}]
[null,null,null,null,null,{"$f":"IF(E8579=\"\",\"\",VLOOKUP(E8579,Insumos!AD:AE,2,FALSE))","v":""},null,{"$f":"IF(G8579=\"\",\"\",VLOOKUP(G8579,Insumos!G:H,2,FALSE))","v":""}]
[null,null,null,null,null,{"$f":"IF(E8580=\"\",\"\",VLOOKUP(E8580,Insumos!AD:AE,2,FALSE))","v":""},null,{"$f":"IF(G8580=\"\",\"\",VLOOKUP(G8580,Insumos!G:H,2,FALSE))","v":""}]
[null,null,null,null,null,{"$f":"IF(E8581=\"\",\"\",VLOOKUP(E8581,Insumos!AD:AE,2,FALSE))","v":""},null,{"$f":"IF(G8581=\"\",\"\",VLOOKUP(G8581,Insumos!G:H,2,FALSE))","v":""}]
[null,null,null,null,null,{"$f":"IF(E8582=\"\",\"\",VLOOKUP(E8582,Insumos!AD:AE,2,FALSE))","v":""},null,{"$f":"IF(G8582=\"\",\"\",VLOOKUP(G8582,Insumos!G:H,2,FALSE))","v":""}]
[null,null,null,null,null,{"$f":"IF(E8583=\"\",\"\",VLOOKUP(E8583,Insumos!AD:AE,2,FALSE))","v":""},null,{"$f":"IF(G8583=\"\",\"\",VLOOKUP(G8583,Insumos!G:H,2,FALSE))","v":""}]
[null,null,null,null,null,{"$f":"IF(E8584=\"\",\"\",VLOOKUP(E8584,Insumos!AD:AE,2,FALSE))","v":""},null,{"$f":"IF(G8584=\"\",\"\",VLOOKUP(G8584,Insumos!G:H,2,FALSE))","v":""}]
[null,null,null,null,null,{"$f":"IF(E8585=\"\",\"\",VLOOKUP(E8585,Insumos!AD:AE,2,FALSE))","v":""},null,{"$f":"IF(G8585=\"\",\"\",VLOOKUP(G8585,Insumos!G:H,2,FALSE))","v":""}]
[null,null,null,null,null,{"$f":"IF(E8586=\"\",\"\",VLOOKUP(E8586,Insumos!AD:AE,2,FALSE))","v":""},null,{"$f":"IF(G8586=\"\",\"\",VLOOKUP(G8586,Insumos!G:H,2,FALSE))","v":""}]
[null,null,null,null,null,{"$f":"IF(E8587=\"\",\"\",VLOOKUP(E8587,Insumos!AD:AE,2,FALSE))","v":""},null,{"$f":"IF(G8587=\"\",\"\",VLOOKUP(G8587,Insumos!G:H,2,FALSE))","v":""}]
[null,null,null,null,null,{"$f":"IF(E8588=\"\",\"\",VLOOKUP(E8588,Insumos!AD:AE,2,FALSE))","v":""},null,{"$f":"IF(G8588=\"\",\"\",VLOOKUP(G8588,Insumos!G:H,2,FALSE))","v":""}]
[null,null,null,null,null,{"$f":"IF(E8589=\"\",\"\",VLOOKUP(E8589,Insumos!AD:AE,2,FALSE))","v":""},null,{"$f":"IF(G8589=\"\",\"\",VLOOKUP(G8589,Insumos!G:H,2,FALSE))","v":""}]
[null,null,null,null,null,{"$f":"IF(E8590=\"\",\"\",VLOOKUP(E8590,Insumos!AD:AE,2,FALSE))","v":""},null,{"$f":"IF(G8590=\"\",\"\",VLOOKUP(G8590,Insumos!G:H,2,FALSE))","v":""}]
[null,null,null,null,null,{"$f":"IF(E8591=\"\",\"\",VLOOKUP(E8591,Insumos!AD:AE,2,FALSE))","v":""},null,{"$f":"IF(G8591=\"\",\"\",VLOOKUP(G8591,Insumos!G:H,2,FALSE))","v":""}]
[null,null,null,null,null,{"$f":"IF(E8592=\"\",\"\",VLOOKUP(E8592,Insumos!AD:AE,2,FALSE))","v":""},null,{"$f":"IF(G8592=\"\",\"\",VLOOKUP(G8592,Insumos!G:H,2,FALSE))","v":""}]
[null,null,null,null,null,{"$f":"IF(E8593=\"\",\"\",VLOOKUP(E8593,Insumos!AD:AE,2,FALSE))","v":""},null,{"$f":"IF(G8593=\"\",\"\",VLOOKUP(G8593,Insumos!G:H,2,FALSE))","v":""}]
[null,null,null,null,null,{"$f":"IF(E8594=\"\",\"\",VLOOKUP(E8594,Insumos!AD:AE,2,FALSE))","v":""},null,{"$f":"IF(G8594=\"\",\"\",VLOOKUP(G8594,Insumos!G:H,2,FALSE))","v":""}]
[null,null,null,null,null,{"$f":"IF(E8595=\"\",\"\",VLOOKUP(E8595,Insumos!AD:AE,2,FALSE))","v":""},null,{"$f":"IF(G8595=\"\",\"\",VLOOKUP(G8595,Insumos!G:H,2,FALSE))","v":""}]
[null,null,null,null,null,{"$f":"IF(E8596=\"\",\"\",VLOOKUP(E8596,Insumos!AD:AE,2,FALSE))","v":""},null,{"$f":"IF(G8596=\"\",\"\",VLOOKUP(G8596,Insumos!G:H,2,FALSE))","v":""}]
[null,null,null,null,null,{"$f":"IF(E8597=\"\",\"\",VLOOKUP(E8597,Insumos!AD:AE,2,FALSE))","v":""},null,{"$f":"IF(G8597=\"\",\"\",VLOOKUP(G8597,Insumos!G:H,2,FALSE))","v":""}]
[null,null,null,null,null,{"$f":"IF(E8598=\"\",\"\",VLOOKUP(E8598,Insumos!AD:AE,2,FALSE))","v":""},null,{"$f":"IF(G8598=\"\",\"\",VLOOKUP(G8598,Insumos!G:H,2,FALSE))","v":""}]
[null,null,null,null,null,{"$f":"IF(E8599=\"\",\"\",VLOOKUP(E8599,Insumos!AD:AE,2,FALSE))","v":""},null,{"$f":"IF(G8599=\"\",\"\",VLOOKUP(G8599,Insumos!G:H,2,FALSE))","v":""}]
[null,null,null,null,null,{"$f":"IF(E8600=\"\",\"\",VLOOKUP(E8600,Insumos!AD:AE,2,FALSE))","v":""},null,{"$f":"IF(G8600=\"\",\"\",VLOOKUP(G8600,Insumos!G:H,2,FALSE))","v":""}]
[null,null,null,null,null,{"$f":"IF(E8601=\"\",\"\",VLOOKUP(E8601,Insumos!AD:AE,2,FALSE))","v":""},null,{"$f":"IF(G8601=\"\",\"\",VLOOKUP(G8601,Insumos!G:H,2,FALSE))","v":""}]
[null,null,null,null,null,{"$f":"IF(E8602=\"\",\"\",VLOOKUP(E8602,Insumos!AD:AE,2,FALSE))","v":""},null,{"$f":"IF(G8602=\"\",\"\",VLOOKUP(G8602,Insumos!G:H,2,FALSE))","v":""}]
[null,null,null,null,null,{"$f":"IF(E8603=\"\",\"\",VLOOKUP(E8603,Insumos!AD:AE,2,FALSE))","v":""},null,{"$f":"IF(G8603=\"\",\"\",VLOOKUP(G8603,Insumos!G:H,2,FALSE))","v":""}]
[null,null,null,null,null,{"$f":"IF(E8604=\"\",\"\",VLOOKUP(E8604,Insumos!AD:AE,2,FALSE))","v":""},null,{"$f":"IF(G8604=\"\",\"\",VLOOKUP(G8604,Insumos!G:H,2,FALSE))","v":""}]
[null,null,null,null,null,{"$f":"IF(E8605=\"\",\"\",VLOOKUP(E8605,Insumos!AD:AE,2,FALSE))","v":""},null,{"$f":"IF(G8605=\"\",\"\",VLOOKUP(G8605,Insumos!G:H,2,FALSE))","v":""}]
[null,null,null,null,null,{"$f":"IF(E8606=\"\",\"\",VLOOKUP(E8606,Insumos!AD:AE,2,FALSE))","v":""},null,{"$f":"IF(G8606=\"\",\"\",VLOOKUP(G8606,Insumos!G:H,2,FALSE))","v":""}]
[null,null,null,null,null,{"$f":"IF(E8607=\"\",\"\",VLOOKUP(E8607,Insumos!AD:AE,2,FALSE))","v":""},null,{"$f":"IF(G8607=\"\",\"\",VLOOKUP(G8607,Insumos!G:H,2,FALSE))","v":""}]
[null,null,null,null,null,{"$f":"IF(E8608=\"\",\"\",VLOOKUP(E8608,Insumos!AD:AE,2,FALSE))","v":""},null,{"$f":"IF(G8608=\"\",\"\",VLOOKUP(G8608,Insumos!G:H,2,FALSE))","v":""}]
[null,null,null,null,null,{"$f":"IF(E8609=\"\",\"\",VLOOKUP(E8609,Insumos!AD:AE,2,FALSE))","v":""},null,{"$f":"IF(G8609=\"\",\"\",VLOOKUP(G8609,Insumos!G:H,2,FALSE))","v":""}]
[null,null,null,null,null,{"$f":"IF(E8610=\"\",\"\",VLOOKUP(E8610,Insumos!AD:AE,2,FALSE))","v":""},null,{"$f":"IF(G8610=\"\",\"\",VLOOKUP(G8610,Insumos!G:H,2,FALSE))","v":""}]
[null,null,null,null,null,{"$f":"IF(E8611=\"\",\"\",VLOOKUP(E8611,Insumos!AD:AE,2,FALSE))","v":""},null,{"$f":"IF(G8611=\"\",\"\",VLOOKUP(G8611,Insumos!G:H,2,FALSE))","v":""}]
[null,null,null,null,null,{"$f":"IF(E8612=\"\",\"\",VLOOKUP(E8612,Insumos!AD:AE,2,FALSE))","v":""},null,{"$f":"IF(G8612=\"\",\"\",VLOOKUP(G8612,Insumos!G:H,2,FALSE))","v":""}]
[null,null,null,null,null,{"$f":"IF(E8613=\"\",\"\",VLOOKUP(E8613,Insumos!AD:AE,2,FALSE))","v":""},null,{"$f":"IF(G8613=\"\",\"\",VLOOKUP(G8613,Insumos!G:H,2,FALSE))","v":""}]
[null,null,null,null,null,{"$f":"IF(E8614=\"\",\"\",VLOOKUP(E8614,Insumos!AD:AE,2,FALSE))","v":""},null,{"$f":"IF(G8614=\"\",\"\",VLOOKUP(G8614,Insumos!G:H,2,FALSE))","v":""}]
[null,null,null,null,null,{"$f":"IF(E8615=\"\",\"\",VLOOKUP(E8615,Insumos!AD:AE,2,FALSE))","v":""},null,{"$f":"IF(G8615=\"\",\"\",VLOOKUP(G8615,Insumos!G:H,2,FALSE))","v":""}]
[null,null,null,null,null,{"$f":"IF(E8616=\"\",\"\",VLOOKUP(E8616,Insumos!AD:AE,2,FALSE))","v":""},null,{"$f":"IF(G8616=\"\",\"\",VLOOKUP(G8616,Insumos!G:H,2,FALSE))","v":""}]
[null,null,null,null,null,{"$f":"IF(E8617=\"\",\"\",VLOOKUP(E8617,Insumos!AD:AE,2,FALSE))","v":""},null,{"$f":"IF(G8617=\"\",\"\",VLOOKUP(G8617,Insumos!G:H,2,FALSE))","v":""}]
[null,null,null,null,null,{"$f":"IF(E8618=\"\",\"\",VLOOKUP(E8618,Insumos!AD:AE,2,FALSE))","v":""},null,{"$f":"IF(G8618=\"\",\"\",VLOOKUP(G8618,Insumos!G:H,2,FALSE))","v":""}]
[null,null,null,null,null,{"$f":"IF(E8619=\"\",\"\",VLOOKUP(E8619,Insumos!AD:AE,2,FALSE))","v":""},null,{"$f":"IF(G8619=\"\",\"\",VLOOKUP(G8619,Insumos!G:H,2,FALSE))","v":""}]
[null,null,null,null,null,{"$f":"IF(E8620=\"\",\"\",VLOOKUP(E8620,Insumos!AD:AE,2,FALSE))","v":""},null,{"$f":"IF(G8620=\"\",\"\",VLOOKUP(G8620,Insumos!G:H,2,FALSE))","v":""}]
[null,null,null,null,null,{"$f":"IF(E8621=\"\",\"\",VLOOKUP(E8621,Insumos!AD:AE,2,FALSE))","v":""},null,{"$f":"IF(G8621=\"\",\"\",VLOOKUP(G8621,Insumos!G:H,2,FALSE))","v":""}]
[null,null,null,null,null,{"$f":"IF(E8622=\"\",\"\",VLOOKUP(E8622,Insumos!AD:AE,2,FALSE))","v":""},null,{"$f":"IF(G8622=\"\",\"\",VLOOKUP(G8622,Insumos!G:H,2,FALSE))","v":""}]
[null,null,null,null,null,{"$f":"IF(E8623=\"\",\"\",VLOOKUP(E8623,Insumos!AD:AE,2,FALSE))","v":""},null,{"$f":"IF(G8623=\"\",\"\",VLOOKUP(G8623,Insumos!G:H,2,FALSE))","v":""}]
[null,null,null,null,null,{"$f":"IF(E8624=\"\",\"\",VLOOKUP(E8624,Insumos!AD:AE,2,FALSE))","v":""},null,{"$f":"IF(G8624=\"\",\"\",VLOOKUP(G8624,Insumos!G:H,2,FALSE))","v":""}]
[null,null,null,null,null,{"$f":"IF(E8625=\"\",\"\",VLOOKUP(E8625,Insumos!AD:AE,2,FALSE))","v":""},null,{"$f":"IF(G8625=\"\",\"\",VLOOKUP(G8625,Insumos!G:H,2,FALSE))","v":""}]
[null,null,null,null,null,{"$f":"IF(E8626=\"\",\"\",VLOOKUP(E8626,Insumos!AD:AE,2,FALSE))","v":""},null,{"$f":"IF(G8626=\"\",\"\",VLOOKUP(G8626,Insumos!G:H,2,FALSE))","v":""}]
[null,null,null,null,null,{"$f":"IF(E8627=\"\",\"\",VLOOKUP(E8627,Insumos!AD:AE,2,FALSE))","v":""},null,{"$f":"IF(G8627=\"\",\"\",VLOOKUP(G8627,Insumos!G:H,2,FALSE))","v":""}]
[null,null,null,null,null,{"$f":"IF(E8628=\"\",\"\",VLOOKUP(E8628,Insumos!AD:AE,2,FALSE))","v":""},null,{"$f":"IF(G8628=\"\",\"\",VLOOKUP(G8628,Insumos!G:H,2,FALSE))","v":""}]
[null,null,null,null,null,{"$f":"IF(E8629=\"\",\"\",VLOOKUP(E8629,Insumos!AD:AE,2,FALSE))","v":""},null,{"$f":"IF(G8629=\"\",\"\",VLOOKUP(G8629,Insumos!G:H,2,FALSE))","v":""}]
[null,null,null,null,null,{"$f":"IF(E8630=\"\",\"\",VLOOKUP(E8630,Insumos!AD:AE,2,FALSE))","v":""},null,{"$f":"IF(G8630=\"\",\"\",VLOOKUP(G8630,Insumos!G:H,2,FALSE))","v":""}]
[null,null,null,null,null,{"$f":"IF(E8631=\"\",\"\",VLOOKUP(E8631,Insumos!AD:AE,2,FALSE))","v":""},null,{"$f":"IF(G8631=\"\",\"\",VLOOKUP(G8631,Insumos!G:H,2,FALSE))","v":""}]
[null,null,null,null,null,{"$f":"IF(E8632=\"\",\"\",VLOOKUP(E8632,Insumos!AD:AE,2,FALSE))","v":""},null,{"$f":"IF(G8632=\"\",\"\",VLOOKUP(G8632,Insumos!G:H,2,FALSE))","v":""}]
[null,null,null,null,null,{"$f":"IF(E8633=\"\",\"\",VLOOKUP(E8633,Insumos!AD:AE,2,FALSE))","v":""},null,{"$f":"IF(G8633=\"\",\"\",VLOOKUP(G8633,Insumos!G:H,2,FALSE))","v":""}]
[null,null,null,null,null,{"$f":"IF(E8634=\"\",\"\",VLOOKUP(E8634,Insumos!AD:AE,2,FALSE))","v":""},null,{"$f":"IF(G8634=\"\",\"\",VLOOKUP(G8634,Insumos!G:H,2,FALSE))","v":""}]
[null,null,null,null,null,{"$f":"IF(E8635=\"\",\"\",VLOOKUP(E8635,Insumos!AD:AE,2,FALSE))","v":""},null,{"$f":"IF(G8635=\"\",\"\",VLOOKUP(G8635,Insumos!G:H,2,FALSE))","v":""}]
[null,null,null,null,null,{"$f":"IF(E8636=\"\",\"\",VLOOKUP(E8636,Insumos!AD:AE,2,FALSE))","v":""},null,{"$f":"IF(G8636=\"\",\"\",VLOOKUP(G8636,Insumos!G:H,2,FALSE))","v":""}]
[null,null,null,null,null,{"$f":"IF(E8637=\"\",\"\",VLOOKUP(E8637,Insumos!AD:AE,2,FALSE))","v":""},null,{"$f":"IF(G8637=\"\",\"\",VLOOKUP(G8637,Insumos!G:H,2,FALSE))","v":""}]
[null,null,null,null,null,{"$f":"IF(E8638=\"\",\"\",VLOOKUP(E8638,Insumos!AD:AE,2,FALSE))","v":""},null,{"$f":"IF(G8638=\"\",\"\",VLOOKUP(G8638,Insumos!G:H,2,FALSE))","v":""}]
[null,null,null,null,null,{"$f":"IF(E8639=\"\",\"\",VLOOKUP(E8639,Insumos!AD:AE,2,FALSE))","v":""},null,{"$f":"IF(G8639=\"\",\"\",VLOOKUP(G8639,Insumos!G:H,2,FALSE))","v":""}]
[null,null,null,null,null,{"$f":"IF(E8640=\"\",\"\",VLOOKUP(E8640,Insumos!AD:AE,2,FALSE))","v":""},null,{"$f":"IF(G8640=\"\",\"\",VLOOKUP(G8640,Insumos!G:H,2,FALSE))","v":""}]
[null,null,null,null,null,{"$f":"IF(E8641=\"\",\"\",VLOOKUP(E8641,Insumos!AD:AE,2,FALSE))","v":""},null,{"$f":"IF(G8641=\"\",\"\",VLOOKUP(G8641,Insumos!G:H,2,FALSE))","v":""}]
[null,null,null,null,null,{"$f":"IF(E8642=\"\",\"\",VLOOKUP(E8642,Insumos!AD:AE,2,FALSE))","v":""},null,{"$f":"IF(G8642=\"\",\"\",VLOOKUP(G8642,Insumos!G:H,2,FALSE))","v":""}]
[null,null,null,null,null,{"$f":"IF(E8643=\"\",\"\",VLOOKUP(E8643,Insumos!AD:AE,2,FALSE))","v":""},null,{"$f":"IF(G8643=\"\",\"\",VLOOKUP(G8643,Insumos!G:H,2,FALSE))","v":""}]
[null,null,null,null,null,{"$f":"IF(E8644=\"\",\"\",VLOOKUP(E8644,Insumos!AD:AE,2,FALSE))","v":""},null,{"$f":"IF(G8644=\"\",\"\",VLOOKUP(G8644,Insumos!G:H,2,FALSE))","v":""}]
[null,null,null,null,null,{"$f":"IF(E8645=\"\",\"\",VLOOKUP(E8645,Insumos!AD:AE,2,FALSE))","v":""},null,{"$f":"IF(G8645=\"\",\"\",VLOOKUP(G8645,Insumos!G:H,2,FALSE))","v":""}]
[null,null,null,null,null,{"$f":"IF(E8646=\"\",\"\",VLOOKUP(E8646,Insumos!AD:AE,2,FALSE))","v":""},null,{"$f":"IF(G8646=\"\",\"\",VLOOKUP(G8646,Insumos!G:H,2,FALSE))","v":""}]
[null,null,null,null,null,{"$f":"IF(E8647=\"\",\"\",VLOOKUP(E8647,Insumos!AD:AE,2,FALSE))","v":""},null,{"$f":"IF(G8647=\"\",\"\",VLOOKUP(G8647,Insumos!G:H,2,FALSE))","v":""}]
[null,null,null,null,null,{"$f":"IF(E8648=\"\",\"\",VLOOKUP(E8648,Insumos!AD:AE,2,FALSE))","v":""},null,{"$f":"IF(G8648=\"\",\"\",VLOOKUP(G8648,Insumos!G:H,2,FALSE))","v":""}]
[null,null,null,null,null,{"$f":"IF(E8649=\"\",\"\",VLOOKUP(E8649,Insumos!AD:AE,2,FALSE))","v":""},null,{"$f":"IF(G8649=\"\",\"\",VLOOKUP(G8649,Insumos!G:H,2,FALSE))","v":""}]
[null,null,null,null,null,{"$f":"IF(E8650=\"\",\"\",VLOOKUP(E8650,Insumos!AD:AE,2,FALSE))","v":""},null,{"$f":"IF(G8650=\"\",\"\",VLOOKUP(G8650,Insumos!G:H,2,FALSE))","v":""}]
[null,null,null,null,null,{"$f":"IF(E8651=\"\",\"\",VLOOKUP(E8651,Insumos!AD:AE,2,FALSE))","v":""},null,{"$f":"IF(G8651=\"\",\"\",VLOOKUP(G8651,Insumos!G:H,2,FALSE))","v":""}]
[null,null,null,null,null,{"$f":"IF(E8652=\"\",\"\",VLOOKUP(E8652,Insumos!AD:AE,2,FALSE))","v":""},null,{"$f":"IF(G8652=\"\",\"\",VLOOKUP(G8652,Insumos!G:H,2,FALSE))","v":""}]
[null,null,null,null,null,{"$f":"IF(E8653=\"\",\"\",VLOOKUP(E8653,Insumos!AD:AE,2,FALSE))","v":""},null,{"$f":"IF(G8653=\"\",\"\",VLOOKUP(G8653,Insumos!G:H,2,FALSE))","v":""}]
[null,null,null,null,null,{"$f":"IF(E8654=\"\",\"\",VLOOKUP(E8654,Insumos!AD:AE,2,FALSE))","v":""},null,{"$f":"IF(G8654=\"\",\"\",VLOOKUP(G8654,Insumos!G:H,2,FALSE))","v":""}]
[null,null,null,null,null,{"$f":"IF(E8655=\"\",\"\",VLOOKUP(E8655,Insumos!AD:AE,2,FALSE))","v":""},null,{"$f":"IF(G8655=\"\",\"\",VLOOKUP(G8655,Insumos!G:H,2,FALSE))","v":""}]
[null,null,null,null,null,{"$f":"IF(E8656=\"\",\"\",VLOOKUP(E8656,Insumos!AD:AE,2,FALSE))","v":""},null,{"$f":"IF(G8656=\"\",\"\",VLOOKUP(G8656,Insumos!G:H,2,FALSE))","v":""}]
[null,null,null,null,null,{"$f":"IF(E8657=\"\",\"\",VLOOKUP(E8657,Insumos!AD:AE,2,FALSE))","v":""},null,{"$f":"IF(G8657=\"\",\"\",VLOOKUP(G8657,Insumos!G:H,2,FALSE))","v":""}]
[null,null,null,null,null,{"$f":"IF(E8658=\"\",\"\",VLOOKUP(E8658,Insumos!AD:AE,2,FALSE))","v":""},null,{"$f":"IF(G8658=\"\",\"\",VLOOKUP(G8658,Insumos!G:H,2,FALSE))","v":""}]
[null,null,null,null,null,{"$f":"IF(E8659=\"\",\"\",VLOOKUP(E8659,Insumos!AD:AE,2,FALSE))","v":""},null,{"$f":"IF(G8659=\"\",\"\",VLOOKUP(G8659,Insumos!G:H,2,FALSE))","v":""}]
[null,null,null,null,null,{"$f":"IF(E8660=\"\",\"\",VLOOKUP(E8660,Insumos!AD:AE,2,FALSE))","v":""},null,{"$f":"IF(G8660=\"\",\"\",VLOOKUP(G8660,Insumos!G:H,2,FALSE))","v":""}]
[null,null,null,null,null,{"$f":"IF(E8661=\"\",\"\",VLOOKUP(E8661,Insumos!AD:AE,2,FALSE))","v":""},null,{"$f":"IF(G8661=\"\",\"\",VLOOKUP(G8661,Insumos!G:H,2,FALSE))","v":""}]
[null,null,null,null,null,{"$f":"IF(E8662=\"\",\"\",VLOOKUP(E8662,Insumos!AD:AE,2,FALSE))","v":""},null,{"$f":"IF(G8662=\"\",\"\",VLOOKUP(G8662,Insumos!G:H,2,FALSE))","v":""}]
[null,null,null,null,null,{"$f":"IF(E8663=\"\",\"\",VLOOKUP(E8663,Insumos!AD:AE,2,FALSE))","v":""},null,{"$f":"IF(G8663=\"\",\"\",VLOOKUP(G8663,Insumos!G:H,2,FALSE))","v":""}]
[null,null,null,null,null,{"$f":"IF(E8664=\"\",\"\",VLOOKUP(E8664,Insumos!AD:AE,2,FALSE))","v":""},null,{"$f":"IF(G8664=\"\",\"\",VLOOKUP(G8664,Insumos!G:H,2,FALSE))","v":""}]
[null,null,null,null,null,{"$f":"IF(E8665=\"\",\"\",VLOOKUP(E8665,Insumos!AD:AE,2,FALSE))","v":""},null,{"$f":"IF(G8665=\"\",\"\",VLOOKUP(G8665,Insumos!G:H,2,FALSE))","v":""}]
[null,null,null,null,null,{"$f":"IF(E8666=\"\",\"\",VLOOKUP(E8666,Insumos!AD:AE,2,FALSE))","v":""},null,{"$f":"IF(G8666=\"\",\"\",VLOOKUP(G8666,Insumos!G:H,2,FALSE))","v":""}]
[null,null,null,null,null,{"$f":"IF(E8667=\"\",\"\",VLOOKUP(E8667,Insumos!AD:AE,2,FALSE))","v":""},null,{"$f":"IF(G8667=\"\",\"\",VLOOKUP(G8667,Insumos!G:H,2,FALSE))","v":""}]
[null,null,null,null,null,{"$f":"IF(E8668=\"\",\"\",VLOOKUP(E8668,Insumos!AD:AE,2,FALSE))","v":""},null,{"$f":"IF(G8668=\"\",\"\",VLOOKUP(G8668,Insumos!G:H,2,FALSE))","v":""}]
[null,null,null,null,null,{"$f":"IF(E8669=\"\",\"\",VLOOKUP(E8669,Insumos!AD:AE,2,FALSE))","v":""},null,{"$f":"IF(G8669=\"\",\"\",VLOOKUP(G8669,Insumos!G:H,2,FALSE))","v":""}]
[null,null,null,null,null,{"$f":"IF(E8670=\"\",\"\",VLOOKUP(E8670,Insumos!AD:AE,2,FALSE))","v":""},null,{"$f":"IF(G8670=\"\",\"\",VLOOKUP(G8670,Insumos!G:H,2,FALSE))","v":""}]
[null,null,null,null,null,{"$f":"IF(E8671=\"\",\"\",VLOOKUP(E8671,Insumos!AD:AE,2,FALSE))","v":""},null,{"$f":"IF(G8671=\"\",\"\",VLOOKUP(G8671,Insumos!G:H,2,FALSE))","v":""}]
[null,null,null,null,null,{"$f":"IF(E8672=\"\",\"\",VLOOKUP(E8672,Insumos!AD:AE,2,FALSE))","v":""},null,{"$f":"IF(G8672=\"\",\"\",VLOOKUP(G8672,Insumos!G:H,2,FALSE))","v":""}]
[null,null,null,null,null,{"$f":"IF(E8673=\"\",\"\",VLOOKUP(E8673,Insumos!AD:AE,2,FALSE))","v":""},null,{"$f":"IF(G8673=\"\",\"\",VLOOKUP(G8673,Insumos!G:H,2,FALSE))","v":""}]
[null,null,null,null,null,{"$f":"IF(E8674=\"\",\"\",VLOOKUP(E8674,Insumos!AD:AE,2,FALSE))","v":""},null,{"$f":"IF(G8674=\"\",\"\",VLOOKUP(G8674,Insumos!G:H,2,FALSE))","v":""}]
[null,null,null,null,null,{"$f":"IF(E8675=\"\",\"\",VLOOKUP(E8675,Insumos!AD:AE,2,FALSE))","v":""},null,{"$f":"IF(G8675=\"\",\"\",VLOOKUP(G8675,Insumos!G:H,2,FALSE))","v":""}]
[null,null,null,null,null,{"$f":"IF(E8676=\"\",\"\",VLOOKUP(E8676,Insumos!AD:AE,2,FALSE))","v":""},null,{"$f":"IF(G8676=\"\",\"\",VLOOKUP(G8676,Insumos!G:H,2,FALSE))","v":""}]
[null,null,null,null,null,{"$f":"IF(E8677=\"\",\"\",VLOOKUP(E8677,Insumos!AD:AE,2,FALSE))","v":""},null,{"$f":"IF(G8677=\"\",\"\",VLOOKUP(G8677,Insumos!G:H,2,FALSE))","v":""}]
[null,null,null,null,null,{"$f":"IF(E8678=\"\",\"\",VLOOKUP(E8678,Insumos!AD:AE,2,FALSE))","v":""},null,{"$f":"IF(G8678=\"\",\"\",VLOOKUP(G8678,Insumos!G:H,2,FALSE))","v":""}]
[null,null,null,null,null,{"$f":"IF(E8679=\"\",\"\",VLOOKUP(E8679,Insumos!AD:AE,2,FALSE))","v":""},null,{"$f":"IF(G8679=\"\",\"\",VLOOKUP(G8679,Insumos!G:H,2,FALSE))","v":""}]
[null,null,null,null,null,{"$f":"IF(E8680=\"\",\"\",VLOOKUP(E8680,Insumos!AD:AE,2,FALSE))","v":""},null,{"$f":"IF(G8680=\"\",\"\",VLOOKUP(G8680,Insumos!G:H,2,FALSE))","v":""}]
[null,null,null,null,null,{"$f":"IF(E8681=\"\",\"\",VLOOKUP(E8681,Insumos!AD:AE,2,FALSE))","v":""},null,{"$f":"IF(G8681=\"\",\"\",VLOOKUP(G8681,Insumos!G:H,2,FALSE))","v":""}]
[null,null,null,null,null,{"$f":"IF(E8682=\"\",\"\",VLOOKUP(E8682,Insumos!AD:AE,2,FALSE))","v":""},null,{"$f":"IF(G8682=\"\",\"\",VLOOKUP(G8682,Insumos!G:H,2,FALSE))","v":""}]
[null,null,null,null,null,{"$f":"IF(E8683=\"\",\"\",VLOOKUP(E8683,Insumos!AD:AE,2,FALSE))","v":""},null,{"$f":"IF(G8683=\"\",\"\",VLOOKUP(G8683,Insumos!G:H,2,FALSE))","v":""}]
[null,null,null,null,null,{"$f":"IF(E8684=\"\",\"\",VLOOKUP(E8684,Insumos!AD:AE,2,FALSE))","v":""},null,{"$f":"IF(G8684=\"\",\"\",VLOOKUP(G8684,Insumos!G:H,2,FALSE))","v":""}]
[null,null,null,null,null,{"$f":"IF(E8685=\"\",\"\",VLOOKUP(E8685,Insumos!AD:AE,2,FALSE))","v":""},null,{"$f":"IF(G8685=\"\",\"\",VLOOKUP(G8685,Insumos!G:H,2,FALSE))","v":""}]
[null,null,null,null,null,{"$f":"IF(E8686=\"\",\"\",VLOOKUP(E8686,Insumos!AD:AE,2,FALSE))","v":""},null,{"$f":"IF(G8686=\"\",\"\",VLOOKUP(G8686,Insumos!G:H,2,FALSE))","v":""}]
[null,null,null,null,null,{"$f":"IF(E8687=\"\",\"\",VLOOKUP(E8687,Insumos!AD:AE,2,FALSE))","v":""},null,{"$f":"IF(G8687=\"\",\"\",VLOOKUP(G8687,Insumos!G:H,2,FALSE))","v":""}]
[null,null,null,null,null,{"$f":"IF(E8688=\"\",\"\",VLOOKUP(E8688,Insumos!AD:AE,2,FALSE))","v":""},null,{"$f":"IF(G8688=\"\",\"\",VLOOKUP(G8688,Insumos!G:H,2,FALSE))","v":""}]
[null,null,null,null,null,{"$f":"IF(E8689=\"\",\"\",VLOOKUP(E8689,Insumos!AD:AE,2,FALSE))","v":""},null,{"$f":"IF(G8689=\"\",\"\",VLOOKUP(G8689,Insumos!G:H,2,FALSE))","v":""}]
[null,null,null,null,null,{"$f":"IF(E8690=\"\",\"\",VLOOKUP(E8690,Insumos!AD:AE,2,FALSE))","v":""},null,{"$f":"IF(G8690=\"\",\"\",VLOOKUP(G8690,Insumos!G:H,2,FALSE))","v":""}]
[null,null,null,null,null,{"$f":"IF(E8691=\"\",\"\",VLOOKUP(E8691,Insumos!AD:AE,2,FALSE))","v":""},null,{"$f":"IF(G8691=\"\",\"\",VLOOKUP(G8691,Insumos!G:H,2,FALSE))","v":""}]
[null,null,null,null,null,{"$f":"IF(E8692=\"\",\"\",VLOOKUP(E8692,Insumos!AD:AE,2,FALSE))","v":""},null,{"$f":"IF(G8692=\"\",\"\",VLOOKUP(G8692,Insumos!G:H,2,FALSE))","v":""}]
[null,null,null,null,null,{"$f":"IF(E8693=\"\",\"\",VLOOKUP(E8693,Insumos!AD:AE,2,FALSE))","v":""},null,{"$f":"IF(G8693=\"\",\"\",VLOOKUP(G8693,Insumos!G:H,2,FALSE))","v":""}]
[null,null,null,null,null,{"$f":"IF(E8694=\"\",\"\",VLOOKUP(E8694,Insumos!AD:AE,2,FALSE))","v":""},null,{"$f":"IF(G8694=\"\",\"\",VLOOKUP(G8694,Insumos!G:H,2,FALSE))","v":""}]
[null,null,null,null,null,{"$f":"IF(E8695=\"\",\"\",VLOOKUP(E8695,Insumos!AD:AE,2,FALSE))","v":""},null,{"$f":"IF(G8695=\"\",\"\",VLOOKUP(G8695,Insumos!G:H,2,FALSE))","v":""}]
[null,null,null,null,null,{"$f":"IF(E8696=\"\",\"\",VLOOKUP(E8696,Insumos!AD:AE,2,FALSE))","v":""},null,{"$f":"IF(G8696=\"\",\"\",VLOOKUP(G8696,Insumos!G:H,2,FALSE))","v":""}]
[null,null,null,null,null,{"$f":"IF(E8697=\"\",\"\",VLOOKUP(E8697,Insumos!AD:AE,2,FALSE))","v":""},null,{"$f":"IF(G8697=\"\",\"\",VLOOKUP(G8697,Insumos!G:H,2,FALSE))","v":""}]
[null,null,null,null,null,{"$f":"IF(E8698=\"\",\"\",VLOOKUP(E8698,Insumos!AD:AE,2,FALSE))","v":""},null,{"$f":"IF(G8698=\"\",\"\",VLOOKUP(G8698,Insumos!G:H,2,FALSE))","v":""}]
[null,null,null,null,null,{"$f":"IF(E8699=\"\",\"\",VLOOKUP(E8699,Insumos!AD:AE,2,FALSE))","v":""},null,{"$f":"IF(G8699=\"\",\"\",VLOOKUP(G8699,Insumos!G:H,2,FALSE))","v":""}]
[null,null,null,null,null,{"$f":"IF(E8700=\"\",\"\",VLOOKUP(E8700,Insumos!AD:AE,2,FALSE))","v":""},null,{"$f":"IF(G8700=\"\",\"\",VLOOKUP(G8700,Insumos!G:H,2,FALSE))","v":""}]
[null,null,null,null,null,{"$f":"IF(E8701=\"\",\"\",VLOOKUP(E8701,Insumos!AD:AE,2,FALSE))","v":""},null,{"$f":"IF(G8701=\"\",\"\",VLOOKUP(G8701,Insumos!G:H,2,FALSE))","v":""}]
[null,null,null,null,null,{"$f":"IF(E8702=\"\",\"\",VLOOKUP(E8702,Insumos!AD:AE,2,FALSE))","v":""},null,{"$f":"IF(G8702=\"\",\"\",VLOOKUP(G8702,Insumos!G:H,2,FALSE))","v":""}]
[null,null,null,null,null,{"$f":"IF(E8703=\"\",\"\",VLOOKUP(E8703,Insumos!AD:AE,2,FALSE))","v":""},null,{"$f":"IF(G8703=\"\",\"\",VLOOKUP(G8703,Insumos!G:H,2,FALSE))","v":""}]
[null,null,null,null,null,{"$f":"IF(E8704=\"\",\"\",VLOOKUP(E8704,Insumos!AD:AE,2,FALSE))","v":""},null,{"$f":"IF(G8704=\"\",\"\",VLOOKUP(G8704,Insumos!G:H,2,FALSE))","v":""}]
[null,null,null,null,null,{"$f":"IF(E8705=\"\",\"\",VLOOKUP(E8705,Insumos!AD:AE,2,FALSE))","v":""},null,{"$f":"IF(G8705=\"\",\"\",VLOOKUP(G8705,Insumos!G:H,2,FALSE))","v":""}]
[null,null,null,null,null,{"$f":"IF(E8706=\"\",\"\",VLOOKUP(E8706,Insumos!AD:AE,2,FALSE))","v":""},null,{"$f":"IF(G8706=\"\",\"\",VLOOKUP(G8706,Insumos!G:H,2,FALSE))","v":""}]
[null,null,null,null,null,{"$f":"IF(E8707=\"\",\"\",VLOOKUP(E8707,Insumos!AD:AE,2,FALSE))","v":""},null,{"$f":"IF(G8707=\"\",\"\",VLOOKUP(G8707,Insumos!G:H,2,FALSE))","v":""}]
[null,null,null,null,null,{"$f":"IF(E8708=\"\",\"\",VLOOKUP(E8708,Insumos!AD:AE,2,FALSE))","v":""},null,{"$f":"IF(G8708=\"\",\"\",VLOOKUP(G8708,Insumos!G:H,2,FALSE))","v":""}]
[null,null,null,null,null,{"$f":"IF(E8709=\"\",\"\",VLOOKUP(E8709,Insumos!AD:AE,2,FALSE))","v":""},null,{"$f":"IF(G8709=\"\",\"\",VLOOKUP(G8709,Insumos!G:H,2,FALSE))","v":""}]
[null,null,null,null,null,{"$f":"IF(E8710=\"\",\"\",VLOOKUP(E8710,Insumos!AD:AE,2,FALSE))","v":""},null,{"$f":"IF(G8710=\"\",\"\",VLOOKUP(G8710,Insumos!G:H,2,FALSE))","v":""}]
[null,null,null,null,null,{"$f":"IF(E8711=\"\",\"\",VLOOKUP(E8711,Insumos!AD:AE,2,FALSE))","v":""},null,{"$f":"IF(G8711=\"\",\"\",VLOOKUP(G8711,Insumos!G:H,2,FALSE))","v":""}]
[null,null,null,null,null,{"$f":"IF(E8712=\"\",\"\",VLOOKUP(E8712,Insumos!AD:AE,2,FALSE))","v":""},null,{"$f":"IF(G8712=\"\",\"\",VLOOKUP(G8712,Insumos!G:H,2,FALSE))","v":""}]
[null,null,null,null,null,{"$f":"IF(E8713=\"\",\"\",VLOOKUP(E8713,Insumos!AD:AE,2,FALSE))","v":""},null,{"$f":"IF(G8713=\"\",\"\",VLOOKUP(G8713,Insumos!G:H,2,FALSE))","v":""}]
[null,null,null,null,null,{"$f":"IF(E8714=\"\",\"\",VLOOKUP(E8714,Insumos!AD:AE,2,FALSE))","v":""},null,{"$f":"IF(G8714=\"\",\"\",VLOOKUP(G8714,Insumos!G:H,2,FALSE))","v":""}]
[null,null,null,null,null,{"$f":"IF(E8715=\"\",\"\",VLOOKUP(E8715,Insumos!AD:AE,2,FALSE))","v":""},null,{"$f":"IF(G8715=\"\",\"\",VLOOKUP(G8715,Insumos!G:H,2,FALSE))","v":""}]
[null,null,null,null,null,{"$f":"IF(E8716=\"\",\"\",VLOOKUP(E8716,Insumos!AD:AE,2,FALSE))","v":""},null,{"$f":"IF(G8716=\"\",\"\",VLOOKUP(G8716,Insumos!G:H,2,FALSE))","v":""}]
[null,null,null,null,null,{"$f":"IF(E8717=\"\",\"\",VLOOKUP(E8717,Insumos!AD:AE,2,FALSE))","v":""},null,{"$f":"IF(G8717=\"\",\"\",VLOOKUP(G8717,Insumos!G:H,2,FALSE))","v":""}]
[null,null,null,null,null,{"$f":"IF(E8718=\"\",\"\",VLOOKUP(E8718,Insumos!AD:AE,2,FALSE))","v":""},null,{"$f":"IF(G8718=\"\",\"\",VLOOKUP(G8718,Insumos!G:H,2,FALSE))","v":""}]
[null,null,null,null,null,{"$f":"IF(E8719=\"\",\"\",VLOOKUP(E8719,Insumos!AD:AE,2,FALSE))","v":""},null,{"$f":"IF(G8719=\"\",\"\",VLOOKUP(G8719,Insumos!G:H,2,FALSE))","v":""}]
[null,null,null,null,null,{"$f":"IF(E8720=\"\",\"\",VLOOKUP(E8720,Insumos!AD:AE,2,FALSE))","v":""},null,{"$f":"IF(G8720=\"\",\"\",VLOOKUP(G8720,Insumos!G:H,2,FALSE))","v":""}]
[null,null,null,null,null,{"$f":"IF(E8721=\"\",\"\",VLOOKUP(E8721,Insumos!AD:AE,2,FALSE))","v":""},null,{"$f":"IF(G8721=\"\",\"\",VLOOKUP(G8721,Insumos!G:H,2,FALSE))","v":""}]
[null,null,null,null,null,{"$f":"IF(E8722=\"\",\"\",VLOOKUP(E8722,Insumos!AD:AE,2,FALSE))","v":""},null,{"$f":"IF(G8722=\"\",\"\",VLOOKUP(G8722,Insumos!G:H,2,FALSE))","v":""}]
[null,null,null,null,null,{"$f":"IF(E8723=\"\",\"\",VLOOKUP(E8723,Insumos!AD:AE,2,FALSE))","v":""},null,{"$f":"IF(G8723=\"\",\"\",VLOOKUP(G8723,Insumos!G:H,2,FALSE))","v":""}]
[null,null,null,null,null,{"$f":"IF(E8724=\"\",\"\",VLOOKUP(E8724,Insumos!AD:AE,2,FALSE))","v":""},null,{"$f":"IF(G8724=\"\",\"\",VLOOKUP(G8724,Insumos!G:H,2,FALSE))","v":""}]
[null,null,null,null,null,{"$f":"IF(E8725=\"\",\"\",VLOOKUP(E8725,Insumos!AD:AE,2,FALSE))","v":""},null,{"$f":"IF(G8725=\"\",\"\",VLOOKUP(G8725,Insumos!G:H,2,FALSE))","v":""}]
[null,null,null,null,null,{"$f":"IF(E8726=\"\",\"\",VLOOKUP(E8726,Insumos!AD:AE,2,FALSE))","v":""},null,{"$f":"IF(G8726=\"\",\"\",VLOOKUP(G8726,Insumos!G:H,2,FALSE))","v":""}]
[null,null,null,null,null,{"$f":"IF(E8727=\"\",\"\",VLOOKUP(E8727,Insumos!AD:AE,2,FALSE))","v":""},null,{"$f":"IF(G8727=\"\",\"\",VLOOKUP(G8727,Insumos!G:H,2,FALSE))","v":""}]
[null,null,null,null,null,{"$f":"IF(E8728=\"\",\"\",VLOOKUP(E8728,Insumos!AD:AE,2,FALSE))","v":""},null,{"$f":"IF(G8728=\"\",\"\",VLOOKUP(G8728,Insumos!G:H,2,FALSE))","v":""}]
[null,null,null,null,null,{"$f":"IF(E8729=\"\",\"\",VLOOKUP(E8729,Insumos!AD:AE,2,FALSE))","v":""},null,{"$f":"IF(G8729=\"\",\"\",VLOOKUP(G8729,Insumos!G:H,2,FALSE))","v":""}]
[null,null,null,null,null,{"$f":"IF(E8730=\"\",\"\",VLOOKUP(E8730,Insumos!AD:AE,2,FALSE))","v":""},null,{"$f":"IF(G8730=\"\",\"\",VLOOKUP(G8730,Insumos!G:H,2,FALSE))","v":""}]
[null,null,null,null,null,{"$f":"IF(E8731=\"\",\"\",VLOOKUP(E8731,Insumos!AD:AE,2,FALSE))","v":""},null,{"$f":"IF(G8731=\"\",\"\",VLOOKUP(G8731,Insumos!G:H,2,FALSE))","v":""}]
[null,null,null,null,null,{"$f":"IF(E8732=\"\",\"\",VLOOKUP(E8732,Insumos!AD:AE,2,FALSE))","v":""},null,{"$f":"IF(G8732=\"\",\"\",VLOOKUP(G8732,Insumos!G:H,2,FALSE))","v":""}]
[null,null,null,null,null,{"$f":"IF(E8733=\"\",\"\",VLOOKUP(E8733,Insumos!AD:AE,2,FALSE))","v":""},null,{"$f":"IF(G8733=\"\",\"\",VLOOKUP(G8733,Insumos!G:H,2,FALSE))","v":""}]
[null,null,null,null,null,{"$f":"IF(E8734=\"\",\"\",VLOOKUP(E8734,Insumos!AD:AE,2,FALSE))","v":""},null,{"$f":"IF(G8734=\"\",\"\",VLOOKUP(G8734,Insumos!G:H,2,FALSE))","v":""}]
[null,null,null,null,null,{"$f":"IF(E8735=\"\",\"\",VLOOKUP(E8735,Insumos!AD:AE,2,FALSE))","v":""},null,{"$f":"IF(G8735=\"\",\"\",VLOOKUP(G8735,Insumos!G:H,2,FALSE))","v":""}]
[null,null,null,null,null,{"$f":"IF(E8736=\"\",\"\",VLOOKUP(E8736,Insumos!AD:AE,2,FALSE))","v":""},null,{"$f":"IF(G8736=\"\",\"\",VLOOKUP(G8736,Insumos!G:H,2,FALSE))","v":""}]
[null,null,null,null,null,{"$f":"IF(E8737=\"\",\"\",VLOOKUP(E8737,Insumos!AD:AE,2,FALSE))","v":""},null,{"$f":"IF(G8737=\"\",\"\",VLOOKUP(G8737,Insumos!G:H,2,FALSE))","v":""}]
[null,null,null,null,null,{"$f":"IF(E8738=\"\",\"\",VLOOKUP(E8738,Insumos!AD:AE,2,FALSE))","v":""},null,{"$f":"IF(G8738=\"\",\"\",VLOOKUP(G8738,Insumos!G:H,2,FALSE))","v":""}]
[null,null,null,null,null,{"$f":"IF(E8739=\"\",\"\",VLOOKUP(E8739,Insumos!AD:AE,2,FALSE))","v":""},null,{"$f":"IF(G8739=\"\",\"\",VLOOKUP(G8739,Insumos!G:H,2,FALSE))","v":""}]
[null,null,null,null,null,{"$f":"IF(E8740=\"\",\"\",VLOOKUP(E8740,Insumos!AD:AE,2,FALSE))","v":""},null,{"$f":"IF(G8740=\"\",\"\",VLOOKUP(G8740,Insumos!G:H,2,FALSE))","v":""}]
[null,null,null,null,null,{"$f":"IF(E8741=\"\",\"\",VLOOKUP(E8741,Insumos!AD:AE,2,FALSE))","v":""},null,{"$f":"IF(G8741=\"\",\"\",VLOOKUP(G8741,Insumos!G:H,2,FALSE))","v":""}]
[null,null,null,null,null,{"$f":"IF(E8742=\"\",\"\",VLOOKUP(E8742,Insumos!AD:AE,2,FALSE))","v":""},null,{"$f":"IF(G8742=\"\",\"\",VLOOKUP(G8742,Insumos!G:H,2,FALSE))","v":""}]
[null,null,null,null,null,{"$f":"IF(E8743=\"\",\"\",VLOOKUP(E8743,Insumos!AD:AE,2,FALSE))","v":""},null,{"$f":"IF(G8743=\"\",\"\",VLOOKUP(G8743,Insumos!G:H,2,FALSE))","v":""}]
[null,null,null,null,null,{"$f":"IF(E8744=\"\",\"\",VLOOKUP(E8744,Insumos!AD:AE,2,FALSE))","v":""},null,{"$f":"IF(G8744=\"\",\"\",VLOOKUP(G8744,Insumos!G:H,2,FALSE))","v":""}]
[null,null,null,null,null,{"$f":"IF(E8745=\"\",\"\",VLOOKUP(E8745,Insumos!AD:AE,2,FALSE))","v":""},null,{"$f":"IF(G8745=\"\",\"\",VLOOKUP(G8745,Insumos!G:H,2,FALSE))","v":""}]
[null,null,null,null,null,{"$f":"IF(E8746=\"\",\"\",VLOOKUP(E8746,Insumos!AD:AE,2,FALSE))","v":""},null,{"$f":"IF(G8746=\"\",\"\",VLOOKUP(G8746,Insumos!G:H,2,FALSE))","v":""}]
[null,null,null,null,null,{"$f":"IF(E8747=\"\",\"\",VLOOKUP(E8747,Insumos!AD:AE,2,FALSE))","v":""},null,{"$f":"IF(G8747=\"\",\"\",VLOOKUP(G8747,Insumos!G:H,2,FALSE))","v":""}]
[null,null,null,null,null,{"$f":"IF(E8748=\"\",\"\",VLOOKUP(E8748,Insumos!AD:AE,2,FALSE))","v":""},null,{"$f":"IF(G8748=\"\",\"\",VLOOKUP(G8748,Insumos!G:H,2,FALSE))","v":""}]
[null,null,null,null,null,{"$f":"IF(E8749=\"\",\"\",VLOOKUP(E8749,Insumos!AD:AE,2,FALSE))","v":""},null,{"$f":"IF(G8749=\"\",\"\",VLOOKUP(G8749,Insumos!G:H,2,FALSE))","v":""}]
[null,null,null,null,null,{"$f":"IF(E8750=\"\",\"\",VLOOKUP(E8750,Insumos!AD:AE,2,FALSE))","v":""},null,{"$f":"IF(G8750=\"\",\"\",VLOOKUP(G8750,Insumos!G:H,2,FALSE))","v":""}]
[null,null,null,null,null,{"$f":"IF(E8751=\"\",\"\",VLOOKUP(E8751,Insumos!AD:AE,2,FALSE))","v":""},null,{"$f":"IF(G8751=\"\",\"\",VLOOKUP(G8751,Insumos!G:H,2,FALSE))","v":""}]
[null,null,null,null,null,{"$f":"IF(E8752=\"\",\"\",VLOOKUP(E8752,Insumos!AD:AE,2,FALSE))","v":""},null,{"$f":"IF(G8752=\"\",\"\",VLOOKUP(G8752,Insumos!G:H,2,FALSE))","v":""}]
[null,null,null,null,null,{"$f":"IF(E8753=\"\",\"\",VLOOKUP(E8753,Insumos!AD:AE,2,FALSE))","v":""},null,{"$f":"IF(G8753=\"\",\"\",VLOOKUP(G8753,Insumos!G:H,2,FALSE))","v":""}]
[null,null,null,null,null,{"$f":"IF(E8754=\"\",\"\",VLOOKUP(E8754,Insumos!AD:AE,2,FALSE))","v":""},null,{"$f":"IF(G8754=\"\",\"\",VLOOKUP(G8754,Insumos!G:H,2,FALSE))","v":""}]
[null,null,null,null,null,{"$f":"IF(E8755=\"\",\"\",VLOOKUP(E8755,Insumos!AD:AE,2,FALSE))","v":""},null,{"$f":"IF(G8755=\"\",\"\",VLOOKUP(G8755,Insumos!G:H,2,FALSE))","v":""}]
[null,null,null,null,null,{"$f":"IF(E8756=\"\",\"\",VLOOKUP(E8756,Insumos!AD:AE,2,FALSE))","v":""},null,{"$f":"IF(G8756=\"\",\"\",VLOOKUP(G8756,Insumos!G:H,2,FALSE))","v":""}]
[null,null,null,null,null,{"$f":"IF(E8757=\"\",\"\",VLOOKUP(E8757,Insumos!AD:AE,2,FALSE))","v":""},null,{"$f":"IF(G8757=\"\",\"\",VLOOKUP(G8757,Insumos!G:H,2,FALSE))","v":""}]
[null,null,null,null,null,{"$f":"IF(E8758=\"\",\"\",VLOOKUP(E8758,Insumos!AD:AE,2,FALSE))","v":""},null,{"$f":"IF(G8758=\"\",\"\",VLOOKUP(G8758,Insumos!G:H,2,FALSE))","v":""}]
[null,null,null,null,null,{"$f":"IF(E8759=\"\",\"\",VLOOKUP(E8759,Insumos!AD:AE,2,FALSE))","v":""},null,{"$f":"IF(G8759=\"\",\"\",VLOOKUP(G8759,Insumos!G:H,2,FALSE))","v":""}]
[null,null,null,null,null,{"$f":"IF(E8760=\"\",\"\",VLOOKUP(E8760,Insumos!AD:AE,2,FALSE))","v":""},null,{"$f":"IF(G8760=\"\",\"\",VLOOKUP(G8760,Insumos!G:H,2,FALSE))","v":""}]
[null,null,null,null,null,{"$f":"IF(E8761=\"\",\"\",VLOOKUP(E8761,Insumos!AD:AE,2,FALSE))","v":""},null,{"$f":"IF(G8761=\"\",\"\",VLOOKUP(G8761,Insumos!G:H,2,FALSE))","v":""}]
[null,null,null,null,null,{"$f":"IF(E8762=\"\",\"\",VLOOKUP(E8762,Insumos!AD:AE,2,FALSE))","v":""},null,{"$f":"IF(G8762=\"\",\"\",VLOOKUP(G8762,Insumos!G:H,2,FALSE))","v":""}]
[null,null,null,null,null,{"$f":"IF(E8763=\"\",\"\",VLOOKUP(E8763,Insumos!AD:AE,2,FALSE))","v":""},null,{"$f":"IF(G8763=\"\",\"\",VLOOKUP(G8763,Insumos!G:H,2,FALSE))","v":""}]
[null,null,null,null,null,{"$f":"IF(E8764=\"\",\"\",VLOOKUP(E8764,Insumos!AD:AE,2,FALSE))","v":""},null,{"$f":"IF(G8764=\"\",\"\",VLOOKUP(G8764,Insumos!G:H,2,FALSE))","v":""}]
[null,null,null,null,null,{"$f":"IF(E8765=\"\",\"\",VLOOKUP(E8765,Insumos!AD:AE,2,FALSE))","v":""},null,{"$f":"IF(G8765=\"\",\"\",VLOOKUP(G8765,Insumos!G:H,2,FALSE))","v":""}]
[null,null,null,null,null,{"$f":"IF(E8766=\"\",\"\",VLOOKUP(E8766,Insumos!AD:AE,2,FALSE))","v":""},null,{"$f":"IF(G8766=\"\",\"\",VLOOKUP(G8766,Insumos!G:H,2,FALSE))","v":""}]
[null,null,null,null,null,{"$f":"IF(E8767=\"\",\"\",VLOOKUP(E8767,Insumos!AD:AE,2,FALSE))","v":""},null,{"$f":"IF(G8767=\"\",\"\",VLOOKUP(G8767,Insumos!G:H,2,FALSE))","v":""}]
[null,null,null,null,null,{"$f":"IF(E8768=\"\",\"\",VLOOKUP(E8768,Insumos!AD:AE,2,FALSE))","v":""},null,{"$f":"IF(G8768=\"\",\"\",VLOOKUP(G8768,Insumos!G:H,2,FALSE))","v":""}]
[null,null,null,null,null,{"$f":"IF(E8769=\"\",\"\",VLOOKUP(E8769,Insumos!AD:AE,2,FALSE))","v":""},null,{"$f":"IF(G8769=\"\",\"\",VLOOKUP(G8769,Insumos!G:H,2,FALSE))","v":""}]
[null,null,null,null,null,{"$f":"IF(E8770=\"\",\"\",VLOOKUP(E8770,Insumos!AD:AE,2,FALSE))","v":""},null,{"$f":"IF(G8770=\"\",\"\",VLOOKUP(G8770,Insumos!G:H,2,FALSE))","v":""}]
[null,null,null,null,null,{"$f":"IF(E8771=\"\",\"\",VLOOKUP(E8771,Insumos!AD:AE,2,FALSE))","v":""},null,{"$f":"IF(G8771=\"\",\"\",VLOOKUP(G8771,Insumos!G:H,2,FALSE))","v":""}]
[null,null,null,null,null,{"$f":"IF(E8772=\"\",\"\",VLOOKUP(E8772,Insumos!AD:AE,2,FALSE))","v":""},null,{"$f":"IF(G8772=\"\",\"\",VLOOKUP(G8772,Insumos!G:H,2,FALSE))","v":""}]
[null,null,null,null,null,{"$f":"IF(E8773=\"\",\"\",VLOOKUP(E8773,Insumos!AD:AE,2,FALSE))","v":""},null,{"$f":"IF(G8773=\"\",\"\",VLOOKUP(G8773,Insumos!G:H,2,FALSE))","v":""}]
[null,null,null,null,null,{"$f":"IF(E8774=\"\",\"\",VLOOKUP(E8774,Insumos!AD:AE,2,FALSE))","v":""},null,{"$f":"IF(G8774=\"\",\"\",VLOOKUP(G8774,Insumos!G:H,2,FALSE))","v":""}]
[null,null,null,null,null,{"$f":"IF(E8775=\"\",\"\",VLOOKUP(E8775,Insumos!AD:AE,2,FALSE))","v":""},null,{"$f":"IF(G8775=\"\",\"\",VLOOKUP(G8775,Insumos!G:H,2,FALSE))","v":""}]
[null,null,null,null,null,{"$f":"IF(E8776=\"\",\"\",VLOOKUP(E8776,Insumos!AD:AE,2,FALSE))","v":""},null,{"$f":"IF(G8776=\"\",\"\",VLOOKUP(G8776,Insumos!G:H,2,FALSE))","v":""}]
[null,null,null,null,null,{"$f":"IF(E8777=\"\",\"\",VLOOKUP(E8777,Insumos!AD:AE,2,FALSE))","v":""},null,{"$f":"IF(G8777=\"\",\"\",VLOOKUP(G8777,Insumos!G:H,2,FALSE))","v":""}]
[null,null,null,null,null,{"$f":"IF(E8778=\"\",\"\",VLOOKUP(E8778,Insumos!AD:AE,2,FALSE))","v":""},null,{"$f":"IF(G8778=\"\",\"\",VLOOKUP(G8778,Insumos!G:H,2,FALSE))","v":""}]
[null,null,null,null,null,{"$f":"IF(E8779=\"\",\"\",VLOOKUP(E8779,Insumos!AD:AE,2,FALSE))","v":""},null,{"$f":"IF(G8779=\"\",\"\",VLOOKUP(G8779,Insumos!G:H,2,FALSE))","v":""}]
[null,null,null,null,null,{"$f":"IF(E8780=\"\",\"\",VLOOKUP(E8780,Insumos!AD:AE,2,FALSE))","v":""},null,{"$f":"IF(G8780=\"\",\"\",VLOOKUP(G8780,Insumos!G:H,2,FALSE))","v":""}]
[null,null,null,null,null,{"$f":"IF(E8781=\"\",\"\",VLOOKUP(E8781,Insumos!AD:AE,2,FALSE))","v":""},null,{"$f":"IF(G8781=\"\",\"\",VLOOKUP(G8781,Insumos!G:H,2,FALSE))","v":""}]
[null,null,null,null,null,{"$f":"IF(E8782=\"\",\"\",VLOOKUP(E8782,Insumos!AD:AE,2,FALSE))","v":""},null,{"$f":"IF(G8782=\"\",\"\",VLOOKUP(G8782,Insumos!G:H,2,FALSE))","v":""}]
[null,null,null,null,null,{"$f":"IF(E8783=\"\",\"\",VLOOKUP(E8783,Insumos!AD:AE,2,FALSE))","v":""},null,{"$f":"IF(G8783=\"\",\"\",VLOOKUP(G8783,Insumos!G:H,2,FALSE))","v":""}]
[null,null,null,null,null,{"$f":"IF(E8784=\"\",\"\",VLOOKUP(E8784,Insumos!AD:AE,2,FALSE))","v":""},null,{"$f":"IF(G8784=\"\",\"\",VLOOKUP(G8784,Insumos!G:H,2,FALSE))","v":""}]
[null,null,null,null,null,{"$f":"IF(E8785=\"\",\"\",VLOOKUP(E8785,Insumos!AD:AE,2,FALSE))","v":""},null,{"$f":"IF(G8785=\"\",\"\",VLOOKUP(G8785,Insumos!G:H,2,FALSE))","v":""}]
[null,null,null,null,null,{"$f":"IF(E8786=\"\",\"\",VLOOKUP(E8786,Insumos!AD:AE,2,FALSE))","v":""},null,{"$f":"IF(G8786=\"\",\"\",VLOOKUP(G8786,Insumos!G:H,2,FALSE))","v":""}]
[null,null,null,null,null,{"$f":"IF(E8787=\"\",\"\",VLOOKUP(E8787,Insumos!AD:AE,2,FALSE))","v":""},null,{"$f":"IF(G8787=\"\",\"\",VLOOKUP(G8787,Insumos!G:H,2,FALSE))","v":""}]
[null,null,null,null,null,{"$f":"IF(E8788=\"\",\"\",VLOOKUP(E8788,Insumos!AD:AE,2,FALSE))","v":""},null,{"$f":"IF(G8788=\"\",\"\",VLOOKUP(G8788,Insumos!G:H,2,FALSE))","v":""}]
[null,null,null,null,null,{"$f":"IF(E8789=\"\",\"\",VLOOKUP(E8789,Insumos!AD:AE,2,FALSE))","v":""},null,{"$f":"IF(G8789=\"\",\"\",VLOOKUP(G8789,Insumos!G:H,2,FALSE))","v":""}]
[null,null,null,null,null,{"$f":"IF(E8790=\"\",\"\",VLOOKUP(E8790,Insumos!AD:AE,2,FALSE))","v":""},null,{"$f":"IF(G8790=\"\",\"\",VLOOKUP(G8790,Insumos!G:H,2,FALSE))","v":""}]
[null,null,null,null,null,{"$f":"IF(E8791=\"\",\"\",VLOOKUP(E8791,Insumos!AD:AE,2,FALSE))","v":""},null,{"$f":"IF(G8791=\"\",\"\",VLOOKUP(G8791,Insumos!G:H,2,FALSE))","v":""}]
[null,null,null,null,null,{"$f":"IF(E8792=\"\",\"\",VLOOKUP(E8792,Insumos!AD:AE,2,FALSE))","v":""},null,{"$f":"IF(G8792=\"\",\"\",VLOOKUP(G8792,Insumos!G:H,2,FALSE))","v":""}]
[null,null,null,null,null,{"$f":"IF(E8793=\"\",\"\",VLOOKUP(E8793,Insumos!AD:AE,2,FALSE))","v":""},null,{"$f":"IF(G8793=\"\",\"\",VLOOKUP(G8793,Insumos!G:H,2,FALSE))","v":""}]
[null,null,null,null,null,{"$f":"IF(E8794=\"\",\"\",VLOOKUP(E8794,Insumos!AD:AE,2,FALSE))","v":""},null,{"$f":"IF(G8794=\"\",\"\",VLOOKUP(G8794,Insumos!G:H,2,FALSE))","v":""}]
[null,null,null,null,null,{"$f":"IF(E8795=\"\",\"\",VLOOKUP(E8795,Insumos!AD:AE,2,FALSE))","v":""},null,{"$f":"IF(G8795=\"\",\"\",VLOOKUP(G8795,Insumos!G:H,2,FALSE))","v":""}]
[null,null,null,null,null,{"$f":"IF(E8796=\"\",\"\",VLOOKUP(E8796,Insumos!AD:AE,2,FALSE))","v":""},null,{"$f":"IF(G8796=\"\",\"\",VLOOKUP(G8796,Insumos!G:H,2,FALSE))","v":""}]
[null,null,null,null,null,{"$f":"IF(E8797=\"\",\"\",VLOOKUP(E8797,Insumos!AD:AE,2,FALSE))","v":""},null,{"$f":"IF(G8797=\"\",\"\",VLOOKUP(G8797,Insumos!G:H,2,FALSE))","v":""}]
[null,null,null,null,null,{"$f":"IF(E8798=\"\",\"\",VLOOKUP(E8798,Insumos!AD:AE,2,FALSE))","v":""},null,{"$f":"IF(G8798=\"\",\"\",VLOOKUP(G8798,Insumos!G:H,2,FALSE))","v":""}]
[null,null,null,null,null,{"$f":"IF(E8799=\"\",\"\",VLOOKUP(E8799,Insumos!AD:AE,2,FALSE))","v":""},null,{"$f":"IF(G8799=\"\",\"\",VLOOKUP(G8799,Insumos!G:H,2,FALSE))","v":""}]
[null,null,null,null,null,{"$f":"IF(E8800=\"\",\"\",VLOOKUP(E8800,Insumos!AD:AE,2,FALSE))","v":""},null,{"$f":"IF(G8800=\"\",\"\",VLOOKUP(G8800,Insumos!G:H,2,FALSE))","v":""}]
[null,null,null,null,null,{"$f":"IF(E8801=\"\",\"\",VLOOKUP(E8801,Insumos!AD:AE,2,FALSE))","v":""},null,{"$f":"IF(G8801=\"\",\"\",VLOOKUP(G8801,Insumos!G:H,2,FALSE))","v":""}]
[null,null,null,null,null,{"$f":"IF(E8802=\"\",\"\",VLOOKUP(E8802,Insumos!AD:AE,2,FALSE))","v":""},null,{"$f":"IF(G8802=\"\",\"\",VLOOKUP(G8802,Insumos!G:H,2,FALSE))","v":""}]
[null,null,null,null,null,{"$f":"IF(E8803=\"\",\"\",VLOOKUP(E8803,Insumos!AD:AE,2,FALSE))","v":""},null,{"$f":"IF(G8803=\"\",\"\",VLOOKUP(G8803,Insumos!G:H,2,FALSE))","v":""}]
[null,null,null,null,null,{"$f":"IF(E8804=\"\",\"\",VLOOKUP(E8804,Insumos!AD:AE,2,FALSE))","v":""},null,{"$f":"IF(G8804=\"\",\"\",VLOOKUP(G8804,Insumos!G:H,2,FALSE))","v":""}]
[null,null,null,null,null,{"$f":"IF(E8805=\"\",\"\",VLOOKUP(E8805,Insumos!AD:AE,2,FALSE))","v":""},null,{"$f":"IF(G8805=\"\",\"\",VLOOKUP(G8805,Insumos!G:H,2,FALSE))","v":""}]
[null,null,null,null,null,{"$f":"IF(E8806=\"\",\"\",VLOOKUP(E8806,Insumos!AD:AE,2,FALSE))","v":""},null,{"$f":"IF(G8806=\"\",\"\",VLOOKUP(G8806,Insumos!G:H,2,FALSE))","v":""}]
[null,null,null,null,null,{"$f":"IF(E8807=\"\",\"\",VLOOKUP(E8807,Insumos!AD:AE,2,FALSE))","v":""},null,{"$f":"IF(G8807=\"\",\"\",VLOOKUP(G8807,Insumos!G:H,2,FALSE))","v":""}]
[null,null,null,null,null,{"$f":"IF(E8808=\"\",\"\",VLOOKUP(E8808,Insumos!AD:AE,2,FALSE))","v":""},null,{"$f":"IF(G8808=\"\",\"\",VLOOKUP(G8808,Insumos!G:H,2,FALSE))","v":""}]
[null,null,null,null,null,{"$f":"IF(E8809=\"\",\"\",VLOOKUP(E8809,Insumos!AD:AE,2,FALSE))","v":""},null,{"$f":"IF(G8809=\"\",\"\",VLOOKUP(G8809,Insumos!G:H,2,FALSE))","v":""}]
[null,null,null,null,null,{"$f":"IF(E8810=\"\",\"\",VLOOKUP(E8810,Insumos!AD:AE,2,FALSE))","v":""},null,{"$f":"IF(G8810=\"\",\"\",VLOOKUP(G8810,Insumos!G:H,2,FALSE))","v":""}]
[null,null,null,null,null,{"$f":"IF(E8811=\"\",\"\",VLOOKUP(E8811,Insumos!AD:AE,2,FALSE))","v":""},null,{"$f":"IF(G8811=\"\",\"\",VLOOKUP(G8811,Insumos!G:H,2,FALSE))","v":""}]
[null,null,null,null,null,{"$f":"IF(E8812=\"\",\"\",VLOOKUP(E8812,Insumos!AD:AE,2,FALSE))","v":""},null,{"$f":"IF(G8812=\"\",\"\",VLOOKUP(G8812,Insumos!G:H,2,FALSE))","v":""}]
[null,null,null,null,null,{"$f":"IF(E8813=\"\",\"\",VLOOKUP(E8813,Insumos!AD:AE,2,FALSE))","v":""},null,{"$f":"IF(G8813=\"\",\"\",VLOOKUP(G8813,Insumos!G:H,2,FALSE))","v":""}]
[null,null,null,null,null,{"$f":"IF(E8814=\"\",\"\",VLOOKUP(E8814,Insumos!AD:AE,2,FALSE))","v":""},null,{"$f":"IF(G8814=\"\",\"\",VLOOKUP(G8814,Insumos!G:H,2,FALSE))","v":""}]
[null,null,null,null,null,{"$f":"IF(E8815=\"\",\"\",VLOOKUP(E8815,Insumos!AD:AE,2,FALSE))","v":""},null,{"$f":"IF(G8815=\"\",\"\",VLOOKUP(G8815,Insumos!G:H,2,FALSE))","v":""}]
[null,null,null,null,null,{"$f":"IF(E8816=\"\",\"\",VLOOKUP(E8816,Insumos!AD:AE,2,FALSE))","v":""},null,{"$f":"IF(G8816=\"\",\"\",VLOOKUP(G8816,Insumos!G:H,2,FALSE))","v":""}]
[null,null,null,null,null,{"$f":"IF(E8817=\"\",\"\",VLOOKUP(E8817,Insumos!AD:AE,2,FALSE))","v":""},null,{"$f":"IF(G8817=\"\",\"\",VLOOKUP(G8817,Insumos!G:H,2,FALSE))","v":""}]
[null,null,null,null,null,{"$f":"IF(E8818=\"\",\"\",VLOOKUP(E8818,Insumos!AD:AE,2,FALSE))","v":""},null,{"$f":"IF(G8818=\"\",\"\",VLOOKUP(G8818,Insumos!G:H,2,FALSE))","v":""}]
[null,null,null,null,null,{"$f":"IF(E8819=\"\",\"\",VLOOKUP(E8819,Insumos!AD:AE,2,FALSE))","v":""},null,{"$f":"IF(G8819=\"\",\"\",VLOOKUP(G8819,Insumos!G:H,2,FALSE))","v":""}]
[null,null,null,null,null,{"$f":"IF(E8820=\"\",\"\",VLOOKUP(E8820,Insumos!AD:AE,2,FALSE))","v":""},null,{"$f":"IF(G8820=\"\",\"\",VLOOKUP(G8820,Insumos!G:H,2,FALSE))","v":""}]
[null,null,null,null,null,{"$f":"IF(E8821=\"\",\"\",VLOOKUP(E8821,Insumos!AD:AE,2,FALSE))","v":""},null,{"$f":"IF(G8821=\"\",\"\",VLOOKUP(G8821,Insumos!G:H,2,FALSE))","v":""}]
[null,null,null,null,null,{"$f":"IF(E8822=\"\",\"\",VLOOKUP(E8822,Insumos!AD:AE,2,FALSE))","v":""},null,{"$f":"IF(G8822=\"\",\"\",VLOOKUP(G8822,Insumos!G:H,2,FALSE))","v":""}]
[null,null,null,null,null,{"$f":"IF(E8823=\"\",\"\",VLOOKUP(E8823,Insumos!AD:AE,2,FALSE))","v":""},null,{"$f":"IF(G8823=\"\",\"\",VLOOKUP(G8823,Insumos!G:H,2,FALSE))","v":""}]
[null,null,null,null,null,{"$f":"IF(E8824=\"\",\"\",VLOOKUP(E8824,Insumos!AD:AE,2,FALSE))","v":""},null,{"$f":"IF(G8824=\"\",\"\",VLOOKUP(G8824,Insumos!G:H,2,FALSE))","v":""}]
[null,null,null,null,null,{"$f":"IF(E8825=\"\",\"\",VLOOKUP(E8825,Insumos!AD:AE,2,FALSE))","v":""},null,{"$f":"IF(G8825=\"\",\"\",VLOOKUP(G8825,Insumos!G:H,2,FALSE))","v":""}]
[null,null,null,null,null,{"$f":"IF(E8826=\"\",\"\",VLOOKUP(E8826,Insumos!AD:AE,2,FALSE))","v":""},null,{"$f":"IF(G8826=\"\",\"\",VLOOKUP(G8826,Insumos!G:H,2,FALSE))","v":""}]
[null,null,null,null,null,{"$f":"IF(E8827=\"\",\"\",VLOOKUP(E8827,Insumos!AD:AE,2,FALSE))","v":""},null,{"$f":"IF(G8827=\"\",\"\",VLOOKUP(G8827,Insumos!G:H,2,FALSE))","v":""}]
[null,null,null,null,null,{"$f":"IF(E8828=\"\",\"\",VLOOKUP(E8828,Insumos!AD:AE,2,FALSE))","v":""},null,{"$f":"IF(G8828=\"\",\"\",VLOOKUP(G8828,Insumos!G:H,2,FALSE))","v":""}]
[null,null,null,null,null,{"$f":"IF(E8829=\"\",\"\",VLOOKUP(E8829,Insumos!AD:AE,2,FALSE))","v":""},null,{"$f":"IF(G8829=\"\",\"\",VLOOKUP(G8829,Insumos!G:H,2,FALSE))","v":""}]
[null,null,null,null,null,{"$f":"IF(E8830=\"\",\"\",VLOOKUP(E8830,Insumos!AD:AE,2,FALSE))","v":""},null,{"$f":"IF(G8830=\"\",\"\",VLOOKUP(G8830,Insumos!G:H,2,FALSE))","v":""}]
[null,null,null,null,null,{"$f":"IF(E8831=\"\",\"\",VLOOKUP(E8831,Insumos!AD:AE,2,FALSE))","v":""},null,{"$f":"IF(G8831=\"\",\"\",VLOOKUP(G8831,Insumos!G:H,2,FALSE))","v":""}]
[null,null,null,null,null,{"$f":"IF(E8832=\"\",\"\",VLOOKUP(E8832,Insumos!AD:AE,2,FALSE))","v":""},null,{"$f":"IF(G8832=\"\",\"\",VLOOKUP(G8832,Insumos!G:H,2,FALSE))","v":""}]
[null,null,null,null,null,{"$f":"IF(E8833=\"\",\"\",VLOOKUP(E8833,Insumos!AD:AE,2,FALSE))","v":""},null,{"$f":"IF(G8833=\"\",\"\",VLOOKUP(G8833,Insumos!G:H,2,FALSE))","v":""}]
[null,null,null,null,null,{"$f":"IF(E8834=\"\",\"\",VLOOKUP(E8834,Insumos!AD:AE,2,FALSE))","v":""},null,{"$f":"IF(G8834=\"\",\"\",VLOOKUP(G8834,Insumos!G:H,2,FALSE))","v":""}]
[null,null,null,null,null,{"$f":"IF(E8835=\"\",\"\",VLOOKUP(E8835,Insumos!AD:AE,2,FALSE))","v":""},null,{"$f":"IF(G8835=\"\",\"\",VLOOKUP(G8835,Insumos!G:H,2,FALSE))","v":""}]
[null,null,null,null,null,{"$f":"IF(E8836=\"\",\"\",VLOOKUP(E8836,Insumos!AD:AE,2,FALSE))","v":""},null,{"$f":"IF(G8836=\"\",\"\",VLOOKUP(G8836,Insumos!G:H,2,FALSE))","v":""}]
[null,null,null,null,null,{"$f":"IF(E8837=\"\",\"\",VLOOKUP(E8837,Insumos!AD:AE,2,FALSE))","v":""},null,{"$f":"IF(G8837=\"\",\"\",VLOOKUP(G8837,Insumos!G:H,2,FALSE))","v":""}]
[null,null,null,null,null,{"$f":"IF(E8838=\"\",\"\",VLOOKUP(E8838,Insumos!AD:AE,2,FALSE))","v":""},null,{"$f":"IF(G8838=\"\",\"\",VLOOKUP(G8838,Insumos!G:H,2,FALSE))","v":""}]
[null,null,null,null,null,{"$f":"IF(E8839=\"\",\"\",VLOOKUP(E8839,Insumos!AD:AE,2,FALSE))","v":""},null,{"$f":"IF(G8839=\"\",\"\",VLOOKUP(G8839,Insumos!G:H,2,FALSE))","v":""}]
[null,null,null,null,null,{"$f":"IF(E8840=\"\",\"\",VLOOKUP(E8840,Insumos!AD:AE,2,FALSE))","v":""},null,{"$f":"IF(G8840=\"\",\"\",VLOOKUP(G8840,Insumos!G:H,2,FALSE))","v":""}]
[null,null,null,null,null,{"$f":"IF(E8841=\"\",\"\",VLOOKUP(E8841,Insumos!AD:AE,2,FALSE))","v":""},null,{"$f":"IF(G8841=\"\",\"\",VLOOKUP(G8841,Insumos!G:H,2,FALSE))","v":""}]
[null,null,null,null,null,{"$f":"IF(E8842=\"\",\"\",VLOOKUP(E8842,Insumos!AD:AE,2,FALSE))","v":""},null,{"$f":"IF(G8842=\"\",\"\",VLOOKUP(G8842,Insumos!G:H,2,FALSE))","v":""}]
[null,null,null,null,null,{"$f":"IF(E8843=\"\",\"\",VLOOKUP(E8843,Insumos!AD:AE,2,FALSE))","v":""},null,{"$f":"IF(G8843=\"\",\"\",VLOOKUP(G8843,Insumos!G:H,2,FALSE))","v":""}]
[null,null,null,null,null,{"$f":"IF(E8844=\"\",\"\",VLOOKUP(E8844,Insumos!AD:AE,2,FALSE))","v":""},null,{"$f":"IF(G8844=\"\",\"\",VLOOKUP(G8844,Insumos!G:H,2,FALSE))","v":""}]
[null,null,null,null,null,{"$f":"IF(E8845=\"\",\"\",VLOOKUP(E8845,Insumos!AD:AE,2,FALSE))","v":""},null,{"$f":"IF(G8845=\"\",\"\",VLOOKUP(G8845,Insumos!G:H,2,FALSE))","v":""}]
[null,null,null,null,null,{"$f":"IF(E8846=\"\",\"\",VLOOKUP(E8846,Insumos!AD:AE,2,FALSE))","v":""},null,{"$f":"IF(G8846=\"\",\"\",VLOOKUP(G8846,Insumos!G:H,2,FALSE))","v":""}]
[null,null,null,null,null,{"$f":"IF(E8847=\"\",\"\",VLOOKUP(E8847,Insumos!AD:AE,2,FALSE))","v":""},null,{"$f":"IF(G8847=\"\",\"\",VLOOKUP(G8847,Insumos!G:H,2,FALSE))","v":""}]
[null,null,null,null,null,{"$f":"IF(E8848=\"\",\"\",VLOOKUP(E8848,Insumos!AD:AE,2,FALSE))","v":""},null,{"$f":"IF(G8848=\"\",\"\",VLOOKUP(G8848,Insumos!G:H,2,FALSE))","v":""}]
[null,null,null,null,null,{"$f":"IF(E8849=\"\",\"\",VLOOKUP(E8849,Insumos!AD:AE,2,FALSE))","v":""},null,{"$f":"IF(G8849=\"\",\"\",VLOOKUP(G8849,Insumos!G:H,2,FALSE))","v":""}]
[null,null,null,null,null,{"$f":"IF(E8850=\"\",\"\",VLOOKUP(E8850,Insumos!AD:AE,2,FALSE))","v":""},null,{"$f":"IF(G8850=\"\",\"\",VLOOKUP(G8850,Insumos!G:H,2,FALSE))","v":""}]
[null,null,null,null,null,{"$f":"IF(E8851=\"\",\"\",VLOOKUP(E8851,Insumos!AD:AE,2,FALSE))","v":""},null,{"$f":"IF(G8851=\"\",\"\",VLOOKUP(G8851,Insumos!G:H,2,FALSE))","v":""}]
[null,null,null,null,null,{"$f":"IF(E8852=\"\",\"\",VLOOKUP(E8852,Insumos!AD:AE,2,FALSE))","v":""},null,{"$f":"IF(G8852=\"\",\"\",VLOOKUP(G8852,Insumos!G:H,2,FALSE))","v":""}]
[null,null,null,null,null,{"$f":"IF(E8853=\"\",\"\",VLOOKUP(E8853,Insumos!AD:AE,2,FALSE))","v":""},null,{"$f":"IF(G8853=\"\",\"\",VLOOKUP(G8853,Insumos!G:H,2,FALSE))","v":""}]
[null,null,null,null,null,{"$f":"IF(E8854=\"\",\"\",VLOOKUP(E8854,Insumos!AD:AE,2,FALSE))","v":""},null,{"$f":"IF(G8854=\"\",\"\",VLOOKUP(G8854,Insumos!G:H,2,FALSE))","v":""}]
[null,null,null,null,null,{"$f":"IF(E8855=\"\",\"\",VLOOKUP(E8855,Insumos!AD:AE,2,FALSE))","v":""},null,{"$f":"IF(G8855=\"\",\"\",VLOOKUP(G8855,Insumos!G:H,2,FALSE))","v":""}]
[null,null,null,null,null,{"$f":"IF(E8856=\"\",\"\",VLOOKUP(E8856,Insumos!AD:AE,2,FALSE))","v":""},null,{"$f":"IF(G8856=\"\",\"\",VLOOKUP(G8856,Insumos!G:H,2,FALSE))","v":""}]
[null,null,null,null,null,{"$f":"IF(E8857=\"\",\"\",VLOOKUP(E8857,Insumos!AD:AE,2,FALSE))","v":""},null,{"$f":"IF(G8857=\"\",\"\",VLOOKUP(G8857,Insumos!G:H,2,FALSE))","v":""}]
[null,null,null,null,null,{"$f":"IF(E8858=\"\",\"\",VLOOKUP(E8858,Insumos!AD:AE,2,FALSE))","v":""},null,{"$f":"IF(G8858=\"\",\"\",VLOOKUP(G8858,Insumos!G:H,2,FALSE))","v":""}]
[null,null,null,null,null,{"$f":"IF(E8859=\"\",\"\",VLOOKUP(E8859,Insumos!AD:AE,2,FALSE))","v":""},null,{"$f":"IF(G8859=\"\",\"\",VLOOKUP(G8859,Insumos!G:H,2,FALSE))","v":""}]
[null,null,null,null,null,{"$f":"IF(E8860=\"\",\"\",VLOOKUP(E8860,Insumos!AD:AE,2,FALSE))","v":""},null,{"$f":"IF(G8860=\"\",\"\",VLOOKUP(G8860,Insumos!G:H,2,FALSE))","v":""}]
[null,null,null,null,null,{"$f":"IF(E8861=\"\",\"\",VLOOKUP(E8861,Insumos!AD:AE,2,FALSE))","v":""},null,{"$f":"IF(G8861=\"\",\"\",VLOOKUP(G8861,Insumos!G:H,2,FALSE))","v":""}]
[null,null,null,null,null,{"$f":"IF(E8862=\"\",\"\",VLOOKUP(E8862,Insumos!AD:AE,2,FALSE))","v":""},null,{"$f":"IF(G8862=\"\",\"\",VLOOKUP(G8862,Insumos!G:H,2,FALSE))","v":""}]
[null,null,null,null,null,{"$f":"IF(E8863=\"\",\"\",VLOOKUP(E8863,Insumos!AD:AE,2,FALSE))","v":""},null,{"$f":"IF(G8863=\"\",\"\",VLOOKUP(G8863,Insumos!G:H,2,FALSE))","v":""}]
[null,null,null,null,null,{"$f":"IF(E8864=\"\",\"\",VLOOKUP(E8864,Insumos!AD:AE,2,FALSE))","v":""},null,{"$f":"IF(G8864=\"\",\"\",VLOOKUP(G8864,Insumos!G:H,2,FALSE))","v":""}]
[null,null,null,null,null,{"$f":"IF(E8865=\"\",\"\",VLOOKUP(E8865,Insumos!AD:AE,2,FALSE))","v":""},null,{"$f":"IF(G8865=\"\",\"\",VLOOKUP(G8865,Insumos!G:H,2,FALSE))","v":""}]
[null,null,null,null,null,{"$f":"IF(E8866=\"\",\"\",VLOOKUP(E8866,Insumos!AD:AE,2,FALSE))","v":""},null,{"$f":"IF(G8866=\"\",\"\",VLOOKUP(G8866,Insumos!G:H,2,FALSE))","v":""}]
[null,null,null,null,null,{"$f":"IF(E8867=\"\",\"\",VLOOKUP(E8867,Insumos!AD:AE,2,FALSE))","v":""},null,{"$f":"IF(G8867=\"\",\"\",VLOOKUP(G8867,Insumos!G:H,2,FALSE))","v":""}]
[null,null,null,null,null,{"$f":"IF(E8868=\"\",\"\",VLOOKUP(E8868,Insumos!AD:AE,2,FALSE))","v":""},null,{"$f":"IF(G8868=\"\",\"\",VLOOKUP(G8868,Insumos!G:H,2,FALSE))","v":""}]
[null,null,null,null,null,{"$f":"IF(E8869=\"\",\"\",VLOOKUP(E8869,Insumos!AD:AE,2,FALSE))","v":""},null,{"$f":"IF(G8869=\"\",\"\",VLOOKUP(G8869,Insumos!G:H,2,FALSE))","v":""}]
[null,null,null,null,null,{"$f":"IF(E8870=\"\",\"\",VLOOKUP(E8870,Insumos!AD:AE,2,FALSE))","v":""},null,{"$f":"IF(G8870=\"\",\"\",VLOOKUP(G8870,Insumos!G:H,2,FALSE))","v":""}]
[null,null,null,null,null,{"$f":"IF(E8871=\"\",\"\",VLOOKUP(E8871,Insumos!AD:AE,2,FALSE))","v":""},null,{"$f":"IF(G8871=\"\",\"\",VLOOKUP(G8871,Insumos!G:H,2,FALSE))","v":""}]
[null,null,null,null,null,{"$f":"IF(E8872=\"\",\"\",VLOOKUP(E8872,Insumos!AD:AE,2,FALSE))","v":""},null,{"$f":"IF(G8872=\"\",\"\",VLOOKUP(G8872,Insumos!G:H,2,FALSE))","v":""}]
[null,null,null,null,null,{"$f":"IF(E8873=\"\",\"\",VLOOKUP(E8873,Insumos!AD:AE,2,FALSE))","v":""},null,{"$f":"IF(G8873=\"\",\"\",VLOOKUP(G8873,Insumos!G:H,2,FALSE))","v":""}]
[null,null,null,null,null,{"$f":"IF(E8874=\"\",\"\",VLOOKUP(E8874,Insumos!AD:AE,2,FALSE))","v":""},null,{"$f":"IF(G8874=\"\",\"\",VLOOKUP(G8874,Insumos!G:H,2,FALSE))","v":""}]
[null,null,null,null,null,{"$f":"IF(E8875=\"\",\"\",VLOOKUP(E8875,Insumos!AD:AE,2,FALSE))","v":""},null,{"$f":"IF(G8875=\"\",\"\",VLOOKUP(G8875,Insumos!G:H,2,FALSE))","v":""}]
[null,null,null,null,null,{"$f":"IF(E8876=\"\",\"\",VLOOKUP(E8876,Insumos!AD:AE,2,FALSE))","v":""},null,{"$f":"IF(G8876=\"\",\"\",VLOOKUP(G8876,Insumos!G:H,2,FALSE))","v":""}]
[null,null,null,null,null,{"$f":"IF(E8877=\"\",\"\",VLOOKUP(E8877,Insumos!AD:AE,2,FALSE))","v":""},null,{"$f":"IF(G8877=\"\",\"\",VLOOKUP(G8877,Insumos!G:H,2,FALSE))","v":""}]
[null,null,null,null,null,{"$f":"IF(E8878=\"\",\"\",VLOOKUP(E8878,Insumos!AD:AE,2,FALSE))","v":""},null,{"$f":"IF(G8878=\"\",\"\",VLOOKUP(G8878,Insumos!G:H,2,FALSE))","v":""}]
[null,null,null,null,null,{"$f":"IF(E8879=\"\",\"\",VLOOKUP(E8879,Insumos!AD:AE,2,FALSE))","v":""},null,{"$f":"IF(G8879=\"\",\"\",VLOOKUP(G8879,Insumos!G:H,2,FALSE))","v":""}]
[null,null,null,null,null,{"$f":"IF(E8880=\"\",\"\",VLOOKUP(E8880,Insumos!AD:AE,2,FALSE))","v":""},null,{"$f":"IF(G8880=\"\",\"\",VLOOKUP(G8880,Insumos!G:H,2,FALSE))","v":""}]
[null,null,null,null,null,{"$f":"IF(E8881=\"\",\"\",VLOOKUP(E8881,Insumos!AD:AE,2,FALSE))","v":""},null,{"$f":"IF(G8881=\"\",\"\",VLOOKUP(G8881,Insumos!G:H,2,FALSE))","v":""}]
[null,null,null,null,null,{"$f":"IF(E8882=\"\",\"\",VLOOKUP(E8882,Insumos!AD:AE,2,FALSE))","v":""},null,{"$f":"IF(G8882=\"\",\"\",VLOOKUP(G8882,Insumos!G:H,2,FALSE))","v":""}]
[null,null,null,null,null,{"$f":"IF(E8883=\"\",\"\",VLOOKUP(E8883,Insumos!AD:AE,2,FALSE))","v":""},null,{"$f":"IF(G8883=\"\",\"\",VLOOKUP(G8883,Insumos!G:H,2,FALSE))","v":""}]
[null,null,null,null,null,{"$f":"IF(E8884=\"\",\"\",VLOOKUP(E8884,Insumos!AD:AE,2,FALSE))","v":""},null,{"$f":"IF(G8884=\"\",\"\",VLOOKUP(G8884,Insumos!G:H,2,FALSE))","v":""}]
[null,null,null,null,null,{"$f":"IF(E8885=\"\",\"\",VLOOKUP(E8885,Insumos!AD:AE,2,FALSE))","v":""},null,{"$f":"IF(G8885=\"\",\"\",VLOOKUP(G8885,Insumos!G:H,2,FALSE))","v":""}]
[null,null,null,null,null,{"$f":"IF(E8886=\"\",\"\",VLOOKUP(E8886,Insumos!AD:AE,2,FALSE))","v":""},null,{"$f":"IF(G8886=\"\",\"\",VLOOKUP(G8886,Insumos!G:H,2,FALSE))","v":""}]
[null,null,null,null,null,{"$f":"IF(E8887=\"\",\"\",VLOOKUP(E8887,Insumos!AD:AE,2,FALSE))","v":""},null,{"$f":"IF(G8887=\"\",\"\",VLOOKUP(G8887,Insumos!G:H,2,FALSE))","v":""}]
[null,null,null,null,null,{"$f":"IF(E8888=\"\",\"\",VLOOKUP(E8888,Insumos!AD:AE,2,FALSE))","v":""},null,{"$f":"IF(G8888=\"\",\"\",VLOOKUP(G8888,Insumos!G:H,2,FALSE))","v":""}]
[null,null,null,null,null,{"$f":"IF(E8889=\"\",\"\",VLOOKUP(E8889,Insumos!AD:AE,2,FALSE))","v":""},null,{"$f":"IF(G8889=\"\",\"\",VLOOKUP(G8889,Insumos!G:H,2,FALSE))","v":""}]
[null,null,null,null,null,{"$f":"IF(E8890=\"\",\"\",VLOOKUP(E8890,Insumos!AD:AE,2,FALSE))","v":""},null,{"$f":"IF(G8890=\"\",\"\",VLOOKUP(G8890,Insumos!G:H,2,FALSE))","v":""}]
[null,null,null,null,null,{"$f":"IF(E8891=\"\",\"\",VLOOKUP(E8891,Insumos!AD:AE,2,FALSE))","v":""},null,{"$f":"IF(G8891=\"\",\"\",VLOOKUP(G8891,Insumos!G:H,2,FALSE))","v":""}]
[null,null,null,null,null,{"$f":"IF(E8892=\"\",\"\",VLOOKUP(E8892,Insumos!AD:AE,2,FALSE))","v":""},null,{"$f":"IF(G8892=\"\",\"\",VLOOKUP(G8892,Insumos!G:H,2,FALSE))","v":""}]
[null,null,null,null,null,{"$f":"IF(E8893=\"\",\"\",VLOOKUP(E8893,Insumos!AD:AE,2,FALSE))","v":""},null,{"$f":"IF(G8893=\"\",\"\",VLOOKUP(G8893,Insumos!G:H,2,FALSE))","v":""}]
[null,null,null,null,null,{"$f":"IF(E8894=\"\",\"\",VLOOKUP(E8894,Insumos!AD:AE,2,FALSE))","v":""},null,{"$f":"IF(G8894=\"\",\"\",VLOOKUP(G8894,Insumos!G:H,2,FALSE))","v":""}]
[null,null,null,null,null,{"$f":"IF(E8895=\"\",\"\",VLOOKUP(E8895,Insumos!AD:AE,2,FALSE))","v":""},null,{"$f":"IF(G8895=\"\",\"\",VLOOKUP(G8895,Insumos!G:H,2,FALSE))","v":""}]
[null,null,null,null,null,{"$f":"IF(E8896=\"\",\"\",VLOOKUP(E8896,Insumos!AD:AE,2,FALSE))","v":""},null,{"$f":"IF(G8896=\"\",\"\",VLOOKUP(G8896,Insumos!G:H,2,FALSE))","v":""}]
[null,null,null,null,null,{"$f":"IF(E8897=\"\",\"\",VLOOKUP(E8897,Insumos!AD:AE,2,FALSE))","v":""},null,{"$f":"IF(G8897=\"\",\"\",VLOOKUP(G8897,Insumos!G:H,2,FALSE))","v":""}]
[null,null,null,null,null,{"$f":"IF(E8898=\"\",\"\",VLOOKUP(E8898,Insumos!AD:AE,2,FALSE))","v":""},null,{"$f":"IF(G8898=\"\",\"\",VLOOKUP(G8898,Insumos!G:H,2,FALSE))","v":""}]
[null,null,null,null,null,{"$f":"IF(E8899=\"\",\"\",VLOOKUP(E8899,Insumos!AD:AE,2,FALSE))","v":""},null,{"$f":"IF(G8899=\"\",\"\",VLOOKUP(G8899,Insumos!G:H,2,FALSE))","v":""}]
[null,null,null,null,null,{"$f":"IF(E8900=\"\",\"\",VLOOKUP(E8900,Insumos!AD:AE,2,FALSE))","v":""},null,{"$f":"IF(G8900=\"\",\"\",VLOOKUP(G8900,Insumos!G:H,2,FALSE))","v":""}]
[null,null,null,null,null,{"$f":"IF(E8901=\"\",\"\",VLOOKUP(E8901,Insumos!AD:AE,2,FALSE))","v":""},null,{"$f":"IF(G8901=\"\",\"\",VLOOKUP(G8901,Insumos!G:H,2,FALSE))","v":""}]
[null,null,null,null,null,{"$f":"IF(E8902=\"\",\"\",VLOOKUP(E8902,Insumos!AD:AE,2,FALSE))","v":""},null,{"$f":"IF(G8902=\"\",\"\",VLOOKUP(G8902,Insumos!G:H,2,FALSE))","v":""}]
[null,null,null,null,null,{"$f":"IF(E8903=\"\",\"\",VLOOKUP(E8903,Insumos!AD:AE,2,FALSE))","v":""},null,{"$f":"IF(G8903=\"\",\"\",VLOOKUP(G8903,Insumos!G:H,2,FALSE))","v":""}]
[null,null,null,null,null,{"$f":"IF(E8904=\"\",\"\",VLOOKUP(E8904,Insumos!AD:AE,2,FALSE))","v":""},null,{"$f":"IF(G8904=\"\",\"\",VLOOKUP(G8904,Insumos!G:H,2,FALSE))","v":""}]
[null,null,null,null,null,{"$f":"IF(E8905=\"\",\"\",VLOOKUP(E8905,Insumos!AD:AE,2,FALSE))","v":""},null,{"$f":"IF(G8905=\"\",\"\",VLOOKUP(G8905,Insumos!G:H,2,FALSE))","v":""}]
[null,null,null,null,null,{"$f":"IF(E8906=\"\",\"\",VLOOKUP(E8906,Insumos!AD:AE,2,FALSE))","v":""},null,{"$f":"IF(G8906=\"\",\"\",VLOOKUP(G8906,Insumos!G:H,2,FALSE))","v":""}]
[null,null,null,null,null,{"$f":"IF(E8907=\"\",\"\",VLOOKUP(E8907,Insumos!AD:AE,2,FALSE))","v":""},null,{"$f":"IF(G8907=\"\",\"\",VLOOKUP(G8907,Insumos!G:H,2,FALSE))","v":""}]
[null,null,null,null,null,{"$f":"IF(E8908=\"\",\"\",VLOOKUP(E8908,Insumos!AD:AE,2,FALSE))","v":""},null,{"$f":"IF(G8908=\"\",\"\",VLOOKUP(G8908,Insumos!G:H,2,FALSE))","v":""}]
[null,null,null,null,null,{"$f":"IF(E8909=\"\",\"\",VLOOKUP(E8909,Insumos!AD:AE,2,FALSE))","v":""},null,{"$f":"IF(G8909=\"\",\"\",VLOOKUP(G8909,Insumos!G:H,2,FALSE))","v":""}]
[null,null,null,null,null,{"$f":"IF(E8910=\"\",\"\",VLOOKUP(E8910,Insumos!AD:AE,2,FALSE))","v":""},null,{"$f":"IF(G8910=\"\",\"\",VLOOKUP(G8910,Insumos!G:H,2,FALSE))","v":""}]
[null,null,null,null,null,{"$f":"IF(E8911=\"\",\"\",VLOOKUP(E8911,Insumos!AD:AE,2,FALSE))","v":""},null,{"$f":"IF(G8911=\"\",\"\",VLOOKUP(G8911,Insumos!G:H,2,FALSE))","v":""}]
[null,null,null,null,null,{"$f":"IF(E8912=\"\",\"\",VLOOKUP(E8912,Insumos!AD:AE,2,FALSE))","v":""},null,{"$f":"IF(G8912=\"\",\"\",VLOOKUP(G8912,Insumos!G:H,2,FALSE))","v":""}]
[null,null,null,null,null,{"$f":"IF(E8913=\"\",\"\",VLOOKUP(E8913,Insumos!AD:AE,2,FALSE))","v":""},null,{"$f":"IF(G8913=\"\",\"\",VLOOKUP(G8913,Insumos!G:H,2,FALSE))","v":""}]
[null,null,null,null,null,{"$f":"IF(E8914=\"\",\"\",VLOOKUP(E8914,Insumos!AD:AE,2,FALSE))","v":""},null,{"$f":"IF(G8914=\"\",\"\",VLOOKUP(G8914,Insumos!G:H,2,FALSE))","v":""}]
[null,null,null,null,null,{"$f":"IF(E8915=\"\",\"\",VLOOKUP(E8915,Insumos!AD:AE,2,FALSE))","v":""},null,{"$f":"IF(G8915=\"\",\"\",VLOOKUP(G8915,Insumos!G:H,2,FALSE))","v":""}]
[null,null,null,null,null,{"$f":"IF(E8916=\"\",\"\",VLOOKUP(E8916,Insumos!AD:AE,2,FALSE))","v":""},null,{"$f":"IF(G8916=\"\",\"\",VLOOKUP(G8916,Insumos!G:H,2,FALSE))","v":""}]
[null,null,null,null,null,{"$f":"IF(E8917=\"\",\"\",VLOOKUP(E8917,Insumos!AD:AE,2,FALSE))","v":""},null,{"$f":"IF(G8917=\"\",\"\",VLOOKUP(G8917,Insumos!G:H,2,FALSE))","v":""}]
[null,null,null,null,null,{"$f":"IF(E8918=\"\",\"\",VLOOKUP(E8918,Insumos!AD:AE,2,FALSE))","v":""},null,{"$f":"IF(G8918=\"\",\"\",VLOOKUP(G8918,Insumos!G:H,2,FALSE))","v":""}]
[null,null,null,null,null,{"$f":"IF(E8919=\"\",\"\",VLOOKUP(E8919,Insumos!AD:AE,2,FALSE))","v":""},null,{"$f":"IF(G8919=\"\",\"\",VLOOKUP(G8919,Insumos!G:H,2,FALSE))","v":""}]
[null,null,null,null,null,{"$f":"IF(E8920=\"\",\"\",VLOOKUP(E8920,Insumos!AD:AE,2,FALSE))","v":""},null,{"$f":"IF(G8920=\"\",\"\",VLOOKUP(G8920,Insumos!G:H,2,FALSE))","v":""}]
[null,null,null,null,null,{"$f":"IF(E8921=\"\",\"\",VLOOKUP(E8921,Insumos!AD:AE,2,FALSE))","v":""},null,{"$f":"IF(G8921=\"\",\"\",VLOOKUP(G8921,Insumos!G:H,2,FALSE))","v":""}]
[null,null,null,null,null,{"$f":"IF(E8922=\"\",\"\",VLOOKUP(E8922,Insumos!AD:AE,2,FALSE))","v":""},null,{"$f":"IF(G8922=\"\",\"\",VLOOKUP(G8922,Insumos!G:H,2,FALSE))","v":""}]
[null,null,null,null,null,{"$f":"IF(E8923=\"\",\"\",VLOOKUP(E8923,Insumos!AD:AE,2,FALSE))","v":""},null,{"$f":"IF(G8923=\"\",\"\",VLOOKUP(G8923,Insumos!G:H,2,FALSE))","v":""}]
[null,null,null,null,null,{"$f":"IF(E8924=\"\",\"\",VLOOKUP(E8924,Insumos!AD:AE,2,FALSE))","v":""},null,{"$f":"IF(G8924=\"\",\"\",VLOOKUP(G8924,Insumos!G:H,2,FALSE))","v":""}]
[null,null,null,null,null,{"$f":"IF(E8925=\"\",\"\",VLOOKUP(E8925,Insumos!AD:AE,2,FALSE))","v":""},null,{"$f":"IF(G8925=\"\",\"\",VLOOKUP(G8925,Insumos!G:H,2,FALSE))","v":""}]
[null,null,null,null,null,{"$f":"IF(E8926=\"\",\"\",VLOOKUP(E8926,Insumos!AD:AE,2,FALSE))","v":""},null,{"$f":"IF(G8926=\"\",\"\",VLOOKUP(G8926,Insumos!G:H,2,FALSE))","v":""}]
[null,null,null,null,null,{"$f":"IF(E8927=\"\",\"\",VLOOKUP(E8927,Insumos!AD:AE,2,FALSE))","v":""},null,{"$f":"IF(G8927=\"\",\"\",VLOOKUP(G8927,Insumos!G:H,2,FALSE))","v":""}]
[null,null,null,null,null,{"$f":"IF(E8928=\"\",\"\",VLOOKUP(E8928,Insumos!AD:AE,2,FALSE))","v":""},null,{"$f":"IF(G8928=\"\",\"\",VLOOKUP(G8928,Insumos!G:H,2,FALSE))","v":""}]
[null,null,null,null,null,{"$f":"IF(E8929=\"\",\"\",VLOOKUP(E8929,Insumos!AD:AE,2,FALSE))","v":""},null,{"$f":"IF(G8929=\"\",\"\",VLOOKUP(G8929,Insumos!G:H,2,FALSE))","v":""}]
[null,null,null,null,null,{"$f":"IF(E8930=\"\",\"\",VLOOKUP(E8930,Insumos!AD:AE,2,FALSE))","v":""},null,{"$f":"IF(G8930=\"\",\"\",VLOOKUP(G8930,Insumos!G:H,2,FALSE))","v":""}]
[null,null,null,null,null,{"$f":"IF(E8931=\"\",\"\",VLOOKUP(E8931,Insumos!AD:AE,2,FALSE))","v":""},null,{"$f":"IF(G8931=\"\",\"\",VLOOKUP(G8931,Insumos!G:H,2,FALSE))","v":""}]
[null,null,null,null,null,{"$f":"IF(E8932=\"\",\"\",VLOOKUP(E8932,Insumos!AD:AE,2,FALSE))","v":""},null,{"$f":"IF(G8932=\"\",\"\",VLOOKUP(G8932,Insumos!G:H,2,FALSE))","v":""}]
[null,null,null,null,null,{"$f":"IF(E8933=\"\",\"\",VLOOKUP(E8933,Insumos!AD:AE,2,FALSE))","v":""},null,{"$f":"IF(G8933=\"\",\"\",VLOOKUP(G8933,Insumos!G:H,2,FALSE))","v":""}]
[null,null,null,null,null,{"$f":"IF(E8934=\"\",\"\",VLOOKUP(E8934,Insumos!AD:AE,2,FALSE))","v":""},null,{"$f":"IF(G8934=\"\",\"\",VLOOKUP(G8934,Insumos!G:H,2,FALSE))","v":""}]
[null,null,null,null,null,{"$f":"IF(E8935=\"\",\"\",VLOOKUP(E8935,Insumos!AD:AE,2,FALSE))","v":""},null,{"$f":"IF(G8935=\"\",\"\",VLOOKUP(G8935,Insumos!G:H,2,FALSE))","v":""}]
[null,null,null,null,null,{"$f":"IF(E8936=\"\",\"\",VLOOKUP(E8936,Insumos!AD:AE,2,FALSE))","v":""},null,{"$f":"IF(G8936=\"\",\"\",VLOOKUP(G8936,Insumos!G:H,2,FALSE))","v":""}]
[null,null,null,null,null,{"$f":"IF(E8937=\"\",\"\",VLOOKUP(E8937,Insumos!AD:AE,2,FALSE))","v":""},null,{"$f":"IF(G8937=\"\",\"\",VLOOKUP(G8937,Insumos!G:H,2,FALSE))","v":""}]
[null,null,null,null,null,{"$f":"IF(E8938=\"\",\"\",VLOOKUP(E8938,Insumos!AD:AE,2,FALSE))","v":""},null,{"$f":"IF(G8938=\"\",\"\",VLOOKUP(G8938,Insumos!G:H,2,FALSE))","v":""}]
[null,null,null,null,null,{"$f":"IF(E8939=\"\",\"\",VLOOKUP(E8939,Insumos!AD:AE,2,FALSE))","v":""},null,{"$f":"IF(G8939=\"\",\"\",VLOOKUP(G8939,Insumos!G:H,2,FALSE))","v":""}]
[null,null,null,null,null,{"$f":"IF(E8940=\"\",\"\",VLOOKUP(E8940,Insumos!AD:AE,2,FALSE))","v":""},null,{"$f":"IF(G8940=\"\",\"\",VLOOKUP(G8940,Insumos!G:H,2,FALSE))","v":""}]
[null,null,null,null,null,{"$f":"IF(E8941=\"\",\"\",VLOOKUP(E8941,Insumos!AD:AE,2,FALSE))","v":""},null,{"$f":"IF(G8941=\"\",\"\",VLOOKUP(G8941,Insumos!G:H,2,FALSE))","v":""}]
[null,null,null,null,null,{"$f":"IF(E8942=\"\",\"\",VLOOKUP(E8942,Insumos!AD:AE,2,FALSE))","v":""},null,{"$f":"IF(G8942=\"\",\"\",VLOOKUP(G8942,Insumos!G:H,2,FALSE))","v":""}]
[null,null,null,null,null,{"$f":"IF(E8943=\"\",\"\",VLOOKUP(E8943,Insumos!AD:AE,2,FALSE))","v":""},null,{"$f":"IF(G8943=\"\",\"\",VLOOKUP(G8943,Insumos!G:H,2,FALSE))","v":""}]
[null,null,null,null,null,{"$f":"IF(E8944=\"\",\"\",VLOOKUP(E8944,Insumos!AD:AE,2,FALSE))","v":""},null,{"$f":"IF(G8944=\"\",\"\",VLOOKUP(G8944,Insumos!G:H,2,FALSE))","v":""}]
[null,null,null,null,null,{"$f":"IF(E8945=\"\",\"\",VLOOKUP(E8945,Insumos!AD:AE,2,FALSE))","v":""},null,{"$f":"IF(G8945=\"\",\"\",VLOOKUP(G8945,Insumos!G:H,2,FALSE))","v":""}]
[null,null,null,null,null,{"$f":"IF(E8946=\"\",\"\",VLOOKUP(E8946,Insumos!AD:AE,2,FALSE))","v":""},null,{"$f":"IF(G8946=\"\",\"\",VLOOKUP(G8946,Insumos!G:H,2,FALSE))","v":""}]
[null,null,null,null,null,{"$f":"IF(E8947=\"\",\"\",VLOOKUP(E8947,Insumos!AD:AE,2,FALSE))","v":""},null,{"$f":"IF(G8947=\"\",\"\",VLOOKUP(G8947,Insumos!G:H,2,FALSE))","v":""}]
[null,null,null,null,null,{"$f":"IF(E8948=\"\",\"\",VLOOKUP(E8948,Insumos!AD:AE,2,FALSE))","v":""},null,{"$f":"IF(G8948=\"\",\"\",VLOOKUP(G8948,Insumos!G:H,2,FALSE))","v":""}]
[null,null,null,null,null,{"$f":"IF(E8949=\"\",\"\",VLOOKUP(E8949,Insumos!AD:AE,2,FALSE))","v":""},null,{"$f":"IF(G8949=\"\",\"\",VLOOKUP(G8949,Insumos!G:H,2,FALSE))","v":""}]
[null,null,null,null,null,{"$f":"IF(E8950=\"\",\"\",VLOOKUP(E8950,Insumos!AD:AE,2,FALSE))","v":""},null,{"$f":"IF(G8950=\"\",\"\",VLOOKUP(G8950,Insumos!G:H,2,FALSE))","v":""}]
[null,null,null,null,null,{"$f":"IF(E8951=\"\",\"\",VLOOKUP(E8951,Insumos!AD:AE,2,FALSE))","v":""},null,{"$f":"IF(G8951=\"\",\"\",VLOOKUP(G8951,Insumos!G:H,2,FALSE))","v":""}]
[null,null,null,null,null,{"$f":"IF(E8952=\"\",\"\",VLOOKUP(E8952,Insumos!AD:AE,2,FALSE))","v":""},null,{"$f":"IF(G8952=\"\",\"\",VLOOKUP(G8952,Insumos!G:H,2,FALSE))","v":""}]
[null,null,null,null,null,{"$f":"IF(E8953=\"\",\"\",VLOOKUP(E8953,Insumos!AD:AE,2,FALSE))","v":""},null,{"$f":"IF(G8953=\"\",\"\",VLOOKUP(G8953,Insumos!G:H,2,FALSE))","v":""}]
[null,null,null,null,null,{"$f":"IF(E8954=\"\",\"\",VLOOKUP(E8954,Insumos!AD:AE,2,FALSE))","v":""},null,{"$f":"IF(G8954=\"\",\"\",VLOOKUP(G8954,Insumos!G:H,2,FALSE))","v":""}]
[null,null,null,null,null,{"$f":"IF(E8955=\"\",\"\",VLOOKUP(E8955,Insumos!AD:AE,2,FALSE))","v":""},null,{"$f":"IF(G8955=\"\",\"\",VLOOKUP(G8955,Insumos!G:H,2,FALSE))","v":""}]
[null,null,null,null,null,{"$f":"IF(E8956=\"\",\"\",VLOOKUP(E8956,Insumos!AD:AE,2,FALSE))","v":""},null,{"$f":"IF(G8956=\"\",\"\",VLOOKUP(G8956,Insumos!G:H,2,FALSE))","v":""}]
[null,null,null,null,null,{"$f":"IF(E8957=\"\",\"\",VLOOKUP(E8957,Insumos!AD:AE,2,FALSE))","v":""},null,{"$f":"IF(G8957=\"\",\"\",VLOOKUP(G8957,Insumos!G:H,2,FALSE))","v":""}]
[null,null,null,null,null,{"$f":"IF(E8958=\"\",\"\",VLOOKUP(E8958,Insumos!AD:AE,2,FALSE))","v":""},null,{"$f":"IF(G8958=\"\",\"\",VLOOKUP(G8958,Insumos!G:H,2,FALSE))","v":""}]
[null,null,null,null,null,{"$f":"IF(E8959=\"\",\"\",VLOOKUP(E8959,Insumos!AD:AE,2,FALSE))","v":""},null,{"$f":"IF(G8959=\"\",\"\",VLOOKUP(G8959,Insumos!G:H,2,FALSE))","v":""}]
[null,null,null,null,null,{"$f":"IF(E8960=\"\",\"\",VLOOKUP(E8960,Insumos!AD:AE,2,FALSE))","v":""},null,{"$f":"IF(G8960=\"\",\"\",VLOOKUP(G8960,Insumos!G:H,2,FALSE))","v":""}]
[null,null,null,null,null,{"$f":"IF(E8961=\"\",\"\",VLOOKUP(E8961,Insumos!AD:AE,2,FALSE))","v":""},null,{"$f":"IF(G8961=\"\",\"\",VLOOKUP(G8961,Insumos!G:H,2,FALSE))","v":""}]
[null,null,null,null,null,{"$f":"IF(E8962=\"\",\"\",VLOOKUP(E8962,Insumos!AD:AE,2,FALSE))","v":""},null,{"$f":"IF(G8962=\"\",\"\",VLOOKUP(G8962,Insumos!G:H,2,FALSE))","v":""}]
[null,null,null,null,null,{"$f":"IF(E8963=\"\",\"\",VLOOKUP(E8963,Insumos!AD:AE,2,FALSE))","v":""},null,{"$f":"IF(G8963=\"\",\"\",VLOOKUP(G8963,Insumos!G:H,2,FALSE))","v":""}]
[null,null,null,null,null,{"$f":"IF(E8964=\"\",\"\",VLOOKUP(E8964,Insumos!AD:AE,2,FALSE))","v":""},null,{"$f":"IF(G8964=\"\",\"\",VLOOKUP(G8964,Insumos!G:H,2,FALSE))","v":""}]
[null,null,null,null,null,{"$f":"IF(E8965=\"\",\"\",VLOOKUP(E8965,Insumos!AD:AE,2,FALSE))","v":""},null,{"$f":"IF(G8965=\"\",\"\",VLOOKUP(G8965,Insumos!G:H,2,FALSE))","v":""}]
[null,null,null,null,null,{"$f":"IF(E8966=\"\",\"\",VLOOKUP(E8966,Insumos!AD:AE,2,FALSE))","v":""},null,{"$f":"IF(G8966=\"\",\"\",VLOOKUP(G8966,Insumos!G:H,2,FALSE))","v":""}]
[null,null,null,null,null,{"$f":"IF(E8967=\"\",\"\",VLOOKUP(E8967,Insumos!AD:AE,2,FALSE))","v":""},null,{"$f":"IF(G8967=\"\",\"\",VLOOKUP(G8967,Insumos!G:H,2,FALSE))","v":""}]
[null,null,null,null,null,{"$f":"IF(E8968=\"\",\"\",VLOOKUP(E8968,Insumos!AD:AE,2,FALSE))","v":""},null,{"$f":"IF(G8968=\"\",\"\",VLOOKUP(G8968,Insumos!G:H,2,FALSE))","v":""}]
[null,null,null,null,null,{"$f":"IF(E8969=\"\",\"\",VLOOKUP(E8969,Insumos!AD:AE,2,FALSE))","v":""},null,{"$f":"IF(G8969=\"\",\"\",VLOOKUP(G8969,Insumos!G:H,2,FALSE))","v":""}]
[null,null,null,null,null,{"$f":"IF(E8970=\"\",\"\",VLOOKUP(E8970,Insumos!AD:AE,2,FALSE))","v":""},null,{"$f":"IF(G8970=\"\",\"\",VLOOKUP(G8970,Insumos!G:H,2,FALSE))","v":""}]
[null,null,null,null,null,{"$f":"IF(E8971=\"\",\"\",VLOOKUP(E8971,Insumos!AD:AE,2,FALSE))","v":""},null,{"$f":"IF(G8971=\"\",\"\",VLOOKUP(G8971,Insumos!G:H,2,FALSE))","v":""}]
[null,null,null,null,null,{"$f":"IF(E8972=\"\",\"\",VLOOKUP(E8972,Insumos!AD:AE,2,FALSE))","v":""},null,{"$f":"IF(G8972=\"\",\"\",VLOOKUP(G8972,Insumos!G:H,2,FALSE))","v":""}]
[null,null,null,null,null,{"$f":"IF(E8973=\"\",\"\",VLOOKUP(E8973,Insumos!AD:AE,2,FALSE))","v":""},null,{"$f":"IF(G8973=\"\",\"\",VLOOKUP(G8973,Insumos!G:H,2,FALSE))","v":""}]
[null,null,null,null,null,{"$f":"IF(E8974=\"\",\"\",VLOOKUP(E8974,Insumos!AD:AE,2,FALSE))","v":""},null,{"$f":"IF(G8974=\"\",\"\",VLOOKUP(G8974,Insumos!G:H,2,FALSE))","v":""}]
[null,null,null,null,null,{"$f":"IF(E8975=\"\",\"\",VLOOKUP(E8975,Insumos!AD:AE,2,FALSE))","v":""},null,{"$f":"IF(G8975=\"\",\"\",VLOOKUP(G8975,Insumos!G:H,2,FALSE))","v":""}]
[null,null,null,null,null,{"$f":"IF(E8976=\"\",\"\",VLOOKUP(E8976,Insumos!AD:AE,2,FALSE))","v":""},null,{"$f":"IF(G8976=\"\",\"\",VLOOKUP(G8976,Insumos!G:H,2,FALSE))","v":""}]
[null,null,null,null,null,{"$f":"IF(E8977=\"\",\"\",VLOOKUP(E8977,Insumos!AD:AE,2,FALSE))","v":""},null,{"$f":"IF(G8977=\"\",\"\",VLOOKUP(G8977,Insumos!G:H,2,FALSE))","v":""}]
[null,null,null,null,null,{"$f":"IF(E8978=\"\",\"\",VLOOKUP(E8978,Insumos!AD:AE,2,FALSE))","v":""},null,{"$f":"IF(G8978=\"\",\"\",VLOOKUP(G8978,Insumos!G:H,2,FALSE))","v":""}]
[null,null,null,null,null,{"$f":"IF(E8979=\"\",\"\",VLOOKUP(E8979,Insumos!AD:AE,2,FALSE))","v":""},null,{"$f":"IF(G8979=\"\",\"\",VLOOKUP(G8979,Insumos!G:H,2,FALSE))","v":""}]
[null,null,null,null,null,{"$f":"IF(E8980=\"\",\"\",VLOOKUP(E8980,Insumos!AD:AE,2,FALSE))","v":""},null,{"$f":"IF(G8980=\"\",\"\",VLOOKUP(G8980,Insumos!G:H,2,FALSE))","v":""}]
[null,null,null,null,null,{"$f":"IF(E8981=\"\",\"\",VLOOKUP(E8981,Insumos!AD:AE,2,FALSE))","v":""},null,{"$f":"IF(G8981=\"\",\"\",VLOOKUP(G8981,Insumos!G:H,2,FALSE))","v":""}]
[null,null,null,null,null,{"$f":"IF(E8982=\"\",\"\",VLOOKUP(E8982,Insumos!AD:AE,2,FALSE))","v":""},null,{"$f":"IF(G8982=\"\",\"\",VLOOKUP(G8982,Insumos!G:H,2,FALSE))","v":""}]
[null,null,null,null,null,{"$f":"IF(E8983=\"\",\"\",VLOOKUP(E8983,Insumos!AD:AE,2,FALSE))","v":""},null,{"$f":"IF(G8983=\"\",\"\",VLOOKUP(G8983,Insumos!G:H,2,FALSE))","v":""}]
[null,null,null,null,null,{"$f":"IF(E8984=\"\",\"\",VLOOKUP(E8984,Insumos!AD:AE,2,FALSE))","v":""},null,{"$f":"IF(G8984=\"\",\"\",VLOOKUP(G8984,Insumos!G:H,2,FALSE))","v":""}]
[null,null,null,null,null,{"$f":"IF(E8985=\"\",\"\",VLOOKUP(E8985,Insumos!AD:AE,2,FALSE))","v":""},null,{"$f":"IF(G8985=\"\",\"\",VLOOKUP(G8985,Insumos!G:H,2,FALSE))","v":""}]
[null,null,null,null,null,{"$f":"IF(E8986=\"\",\"\",VLOOKUP(E8986,Insumos!AD:AE,2,FALSE))","v":""},null,{"$f":"IF(G8986=\"\",\"\",VLOOKUP(G8986,Insumos!G:H,2,FALSE))","v":""}]
[null,null,null,null,null,{"$f":"IF(E8987=\"\",\"\",VLOOKUP(E8987,Insumos!AD:AE,2,FALSE))","v":""},null,{"$f":"IF(G8987=\"\",\"\",VLOOKUP(G8987,Insumos!G:H,2,FALSE))","v":""}]
[null,null,null,null,null,{"$f":"IF(E8988=\"\",\"\",VLOOKUP(E8988,Insumos!AD:AE,2,FALSE))","v":""},null,{"$f":"IF(G8988=\"\",\"\",VLOOKUP(G8988,Insumos!G:H,2,FALSE))","v":""}]
[null,null,null,null,null,{"$f":"IF(E8989=\"\",\"\",VLOOKUP(E8989,Insumos!AD:AE,2,FALSE))","v":""},null,{"$f":"IF(G8989=\"\",\"\",VLOOKUP(G8989,Insumos!G:H,2,FALSE))","v":""}]
[null,null,null,null,null,{"$f":"IF(E8990=\"\",\"\",VLOOKUP(E8990,Insumos!AD:AE,2,FALSE))","v":""},null,{"$f":"IF(G8990=\"\",\"\",VLOOKUP(G8990,Insumos!G:H,2,FALSE))","v":""}]
[null,null,null,null,null,{"$f":"IF(E8991=\"\",\"\",VLOOKUP(E8991,Insumos!AD:AE,2,FALSE))","v":""},null,{"$f":"IF(G8991=\"\",\"\",VLOOKUP(G8991,Insumos!G:H,2,FALSE))","v":""}]
[null,null,null,null,null,{"$f":"IF(E8992=\"\",\"\",VLOOKUP(E8992,Insumos!AD:AE,2,FALSE))","v":""},null,{"$f":"IF(G8992=\"\",\"\",VLOOKUP(G8992,Insumos!G:H,2,FALSE))","v":""}]
[null,null,null,null,null,{"$f":"IF(E8993=\"\",\"\",VLOOKUP(E8993,Insumos!AD:AE,2,FALSE))","v":""},null,{"$f":"IF(G8993=\"\",\"\",VLOOKUP(G8993,Insumos!G:H,2,FALSE))","v":""}]
[null,null,null,null,null,{"$f":"IF(E8994=\"\",\"\",VLOOKUP(E8994,Insumos!AD:AE,2,FALSE))","v":""},null,{"$f":"IF(G8994=\"\",\"\",VLOOKUP(G8994,Insumos!G:H,2,FALSE))","v":""}]
[null,null,null,null,null,{"$f":"IF(E8995=\"\",\"\",VLOOKUP(E8995,Insumos!AD:AE,2,FALSE))","v":""},null,{"$f":"IF(G8995=\"\",\"\",VLOOKUP(G8995,Insumos!G:H,2,FALSE))","v":""}]
[null,null,null,null,null,{"$f":"IF(E8996=\"\",\"\",VLOOKUP(E8996,Insumos!AD:AE,2,FALSE))","v":""},null,{"$f":"IF(G8996=\"\",\"\",VLOOKUP(G8996,Insumos!G:H,2,FALSE))","v":""}]
[null,null,null,null,null,{"$f":"IF(E8997=\"\",\"\",VLOOKUP(E8997,Insumos!AD:AE,2,FALSE))","v":""},null,{"$f":"IF(G8997=\"\",\"\",VLOOKUP(G8997,Insumos!G:H,2,FALSE))","v":""}]
[null,null,null,null,null,{"$f":"IF(E8998=\"\",\"\",VLOOKUP(E8998,Insumos!AD:AE,2,FALSE))","v":""},null,{"$f":"IF(G8998=\"\",\"\",VLOOKUP(G8998,Insumos!G:H,2,FALSE))","v":""}]
[null,null,null,null,null,{"$f":"IF(E8999=\"\",\"\",VLOOKUP(E8999,Insumos!AD:AE,2,FALSE))","v":""},null,{"$f":"IF(G8999=\"\",\"\",VLOOKUP(G8999,Insumos!G:H,2,FALSE))","v":""}]
[null,null,null,null,null,{"$f":"IF(E9000=\"\",\"\",VLOOKUP(E9000,Insumos!AD:AE,2,FALSE))","v":""},null,{"$f":"IF(G9000=\"\",\"\",VLOOKUP(G9000,Insumos!G:H,2,FALSE))","v":""}]
[null,null,null,null,null,{"$f":"IF(E9001=\"\",\"\",VLOOKUP(E9001,Insumos!AD:AE,2,FALSE))","v":""},null,{"$f":"IF(G9001=\"\",\"\",VLOOKUP(G9001,Insumos!G:H,2,FALSE))","v":""}]
[null,null,null,null,null,{"$f":"IF(E9002=\"\",\"\",VLOOKUP(E9002,Insumos!AD:AE,2,FALSE))","v":""},null,{"$f":"IF(G9002=\"\",\"\",VLOOKUP(G9002,Insumos!G:H,2,FALSE))","v":""}]
[null,null,null,null,null,{"$f":"IF(E9003=\"\",\"\",VLOOKUP(E9003,Insumos!AD:AE,2,FALSE))","v":""},null,{"$f":"IF(G9003=\"\",\"\",VLOOKUP(G9003,Insumos!G:H,2,FALSE))","v":""}]
[null,null,null,null,null,{"$f":"IF(E9004=\"\",\"\",VLOOKUP(E9004,Insumos!AD:AE,2,FALSE))","v":""},null,{"$f":"IF(G9004=\"\",\"\",VLOOKUP(G9004,Insumos!G:H,2,FALSE))","v":""}]
[null,null,null,null,null,{"$f":"IF(E9005=\"\",\"\",VLOOKUP(E9005,Insumos!AD:AE,2,FALSE))","v":""},null,{"$f":"IF(G9005=\"\",\"\",VLOOKUP(G9005,Insumos!G:H,2,FALSE))","v":""}]
[null,null,null,null,null,{"$f":"IF(E9006=\"\",\"\",VLOOKUP(E9006,Insumos!AD:AE,2,FALSE))","v":""},null,{"$f":"IF(G9006=\"\",\"\",VLOOKUP(G9006,Insumos!G:H,2,FALSE))","v":""}]
[null,null,null,null,null,{"$f":"IF(E9007=\"\",\"\",VLOOKUP(E9007,Insumos!AD:AE,2,FALSE))","v":""},null,{"$f":"IF(G9007=\"\",\"\",VLOOKUP(G9007,Insumos!G:H,2,FALSE))","v":""}]
[null,null,null,null,null,{"$f":"IF(E9008=\"\",\"\",VLOOKUP(E9008,Insumos!AD:AE,2,FALSE))","v":""},null,{"$f":"IF(G9008=\"\",\"\",VLOOKUP(G9008,Insumos!G:H,2,FALSE))","v":""}]
[null,null,null,null,null,{"$f":"IF(E9009=\"\",\"\",VLOOKUP(E9009,Insumos!AD:AE,2,FALSE))","v":""},null,{"$f":"IF(G9009=\"\",\"\",VLOOKUP(G9009,Insumos!G:H,2,FALSE))","v":""}]
[null,null,null,null,null,{"$f":"IF(E9010=\"\",\"\",VLOOKUP(E9010,Insumos!AD:AE,2,FALSE))","v":""},null,{"$f":"IF(G9010=\"\",\"\",VLOOKUP(G9010,Insumos!G:H,2,FALSE))","v":""}]
[null,null,null,null,null,{"$f":"IF(E9011=\"\",\"\",VLOOKUP(E9011,Insumos!AD:AE,2,FALSE))","v":""},null,{"$f":"IF(G9011=\"\",\"\",VLOOKUP(G9011,Insumos!G:H,2,FALSE))","v":""}]
[null,null,null,null,null,{"$f":"IF(E9012=\"\",\"\",VLOOKUP(E9012,Insumos!AD:AE,2,FALSE))","v":""},null,{"$f":"IF(G9012=\"\",\"\",VLOOKUP(G9012,Insumos!G:H,2,FALSE))","v":""}]
[null,null,null,null,null,{"$f":"IF(E9013=\"\",\"\",VLOOKUP(E9013,Insumos!AD:AE,2,FALSE))","v":""},null,{"$f":"IF(G9013=\"\",\"\",VLOOKUP(G9013,Insumos!G:H,2,FALSE))","v":""}]
[null,null,null,null,null,{"$f":"IF(E9014=\"\",\"\",VLOOKUP(E9014,Insumos!AD:AE,2,FALSE))","v":""},null,{"$f":"IF(G9014=\"\",\"\",VLOOKUP(G9014,Insumos!G:H,2,FALSE))","v":""}]
[null,null,null,null,null,{"$f":"IF(E9015=\"\",\"\",VLOOKUP(E9015,Insumos!AD:AE,2,FALSE))","v":""},null,{"$f":"IF(G9015=\"\",\"\",VLOOKUP(G9015,Insumos!G:H,2,FALSE))","v":""}]
[null,null,null,null,null,{"$f":"IF(E9016=\"\",\"\",VLOOKUP(E9016,Insumos!AD:AE,2,FALSE))","v":""},null,{"$f":"IF(G9016=\"\",\"\",VLOOKUP(G9016,Insumos!G:H,2,FALSE))","v":""}]
[null,null,null,null,null,{"$f":"IF(E9017=\"\",\"\",VLOOKUP(E9017,Insumos!AD:AE,2,FALSE))","v":""},null,{"$f":"IF(G9017=\"\",\"\",VLOOKUP(G9017,Insumos!G:H,2,FALSE))","v":""}]
[null,null,null,null,null,{"$f":"IF(E9018=\"\",\"\",VLOOKUP(E9018,Insumos!AD:AE,2,FALSE))","v":""},null,{"$f":"IF(G9018=\"\",\"\",VLOOKUP(G9018,Insumos!G:H,2,FALSE))","v":""}]
[null,null,null,null,null,{"$f":"IF(E9019=\"\",\"\",VLOOKUP(E9019,Insumos!AD:AE,2,FALSE))","v":""},null,{"$f":"IF(G9019=\"\",\"\",VLOOKUP(G9019,Insumos!G:H,2,FALSE))","v":""}]
[null,null,null,null,null,{"$f":"IF(E9020=\"\",\"\",VLOOKUP(E9020,Insumos!AD:AE,2,FALSE))","v":""},null,{"$f":"IF(G9020=\"\",\"\",VLOOKUP(G9020,Insumos!G:H,2,FALSE))","v":""}]
[null,null,null,null,null,{"$f":"IF(E9021=\"\",\"\",VLOOKUP(E9021,Insumos!AD:AE,2,FALSE))","v":""},null,{"$f":"IF(G9021=\"\",\"\",VLOOKUP(G9021,Insumos!G:H,2,FALSE))","v":""}]
[null,null,null,null,null,{"$f":"IF(E9022=\"\",\"\",VLOOKUP(E9022,Insumos!AD:AE,2,FALSE))","v":""},null,{"$f":"IF(G9022=\"\",\"\",VLOOKUP(G9022,Insumos!G:H,2,FALSE))","v":""}]
[null,null,null,null,null,{"$f":"IF(E9023=\"\",\"\",VLOOKUP(E9023,Insumos!AD:AE,2,FALSE))","v":""},null,{"$f":"IF(G9023=\"\",\"\",VLOOKUP(G9023,Insumos!G:H,2,FALSE))","v":""}]
[null,null,null,null,null,{"$f":"IF(E9024=\"\",\"\",VLOOKUP(E9024,Insumos!AD:AE,2,FALSE))","v":""},null,{"$f":"IF(G9024=\"\",\"\",VLOOKUP(G9024,Insumos!G:H,2,FALSE))","v":""}]
[null,null,null,null,null,{"$f":"IF(E9025=\"\",\"\",VLOOKUP(E9025,Insumos!AD:AE,2,FALSE))","v":""},null,{"$f":"IF(G9025=\"\",\"\",VLOOKUP(G9025,Insumos!G:H,2,FALSE))","v":""}]
[null,null,null,null,null,{"$f":"IF(E9026=\"\",\"\",VLOOKUP(E9026,Insumos!AD:AE,2,FALSE))","v":""},null,{"$f":"IF(G9026=\"\",\"\",VLOOKUP(G9026,Insumos!G:H,2,FALSE))","v":""}]
[null,null,null,null,null,{"$f":"IF(E9027=\"\",\"\",VLOOKUP(E9027,Insumos!AD:AE,2,FALSE))","v":""},null,{"$f":"IF(G9027=\"\",\"\",VLOOKUP(G9027,Insumos!G:H,2,FALSE))","v":""}]
[null,null,null,null,null,{"$f":"IF(E9028=\"\",\"\",VLOOKUP(E9028,Insumos!AD:AE,2,FALSE))","v":""},null,{"$f":"IF(G9028=\"\",\"\",VLOOKUP(G9028,Insumos!G:H,2,FALSE))","v":""}]
[null,null,null,null,null,{"$f":"IF(E9029=\"\",\"\",VLOOKUP(E9029,Insumos!AD:AE,2,FALSE))","v":""},null,{"$f":"IF(G9029=\"\",\"\",VLOOKUP(G9029,Insumos!G:H,2,FALSE))","v":""}]
[null,null,null,null,null,{"$f":"IF(E9030=\"\",\"\",VLOOKUP(E9030,Insumos!AD:AE,2,FALSE))","v":""},null,{"$f":"IF(G9030=\"\",\"\",VLOOKUP(G9030,Insumos!G:H,2,FALSE))","v":""}]
[null,null,null,null,null,{"$f":"IF(E9031=\"\",\"\",VLOOKUP(E9031,Insumos!AD:AE,2,FALSE))","v":""},null,{"$f":"IF(G9031=\"\",\"\",VLOOKUP(G9031,Insumos!G:H,2,FALSE))","v":""}]
[null,null,null,null,null,{"$f":"IF(E9032=\"\",\"\",VLOOKUP(E9032,Insumos!AD:AE,2,FALSE))","v":""},null,{"$f":"IF(G9032=\"\",\"\",VLOOKUP(G9032,Insumos!G:H,2,FALSE))","v":""}]
[null,null,null,null,null,{"$f":"IF(E9033=\"\",\"\",VLOOKUP(E9033,Insumos!AD:AE,2,FALSE))","v":""},null,{"$f":"IF(G9033=\"\",\"\",VLOOKUP(G9033,Insumos!G:H,2,FALSE))","v":""}]
[null,null,null,null,null,{"$f":"IF(E9034=\"\",\"\",VLOOKUP(E9034,Insumos!AD:AE,2,FALSE))","v":""},null,{"$f":"IF(G9034=\"\",\"\",VLOOKUP(G9034,Insumos!G:H,2,FALSE))","v":""}]
[null,null,null,null,null,{"$f":"IF(E9035=\"\",\"\",VLOOKUP(E9035,Insumos!AD:AE,2,FALSE))","v":""},null,{"$f":"IF(G9035=\"\",\"\",VLOOKUP(G9035,Insumos!G:H,2,FALSE))","v":""}]
[null,null,null,null,null,{"$f":"IF(E9036=\"\",\"\",VLOOKUP(E9036,Insumos!AD:AE,2,FALSE))","v":""},null,{"$f":"IF(G9036=\"\",\"\",VLOOKUP(G9036,Insumos!G:H,2,FALSE))","v":""}]
[null,null,null,null,null,{"$f":"IF(E9037=\"\",\"\",VLOOKUP(E9037,Insumos!AD:AE,2,FALSE))","v":""},null,{"$f":"IF(G9037=\"\",\"\",VLOOKUP(G9037,Insumos!G:H,2,FALSE))","v":""}]
[null,null,null,null,null,{"$f":"IF(E9038=\"\",\"\",VLOOKUP(E9038,Insumos!AD:AE,2,FALSE))","v":""},null,{"$f":"IF(G9038=\"\",\"\",VLOOKUP(G9038,Insumos!G:H,2,FALSE))","v":""}]
[null,null,null,null,null,{"$f":"IF(E9039=\"\",\"\",VLOOKUP(E9039,Insumos!AD:AE,2,FALSE))","v":""},null,{"$f":"IF(G9039=\"\",\"\",VLOOKUP(G9039,Insumos!G:H,2,FALSE))","v":""}]
[null,null,null,null,null,{"$f":"IF(E9040=\"\",\"\",VLOOKUP(E9040,Insumos!AD:AE,2,FALSE))","v":""},null,{"$f":"IF(G9040=\"\",\"\",VLOOKUP(G9040,Insumos!G:H,2,FALSE))","v":""}]
[null,null,null,null,null,{"$f":"IF(E9041=\"\",\"\",VLOOKUP(E9041,Insumos!AD:AE,2,FALSE))","v":""},null,{"$f":"IF(G9041=\"\",\"\",VLOOKUP(G9041,Insumos!G:H,2,FALSE))","v":""}]
[null,null,null,null,null,{"$f":"IF(E9042=\"\",\"\",VLOOKUP(E9042,Insumos!AD:AE,2,FALSE))","v":""},null,{"$f":"IF(G9042=\"\",\"\",VLOOKUP(G9042,Insumos!G:H,2,FALSE))","v":""}]
[null,null,null,null,null,{"$f":"IF(E9043=\"\",\"\",VLOOKUP(E9043,Insumos!AD:AE,2,FALSE))","v":""},null,{"$f":"IF(G9043=\"\",\"\",VLOOKUP(G9043,Insumos!G:H,2,FALSE))","v":""}]
[null,null,null,null,null,{"$f":"IF(E9044=\"\",\"\",VLOOKUP(E9044,Insumos!AD:AE,2,FALSE))","v":""},null,{"$f":"IF(G9044=\"\",\"\",VLOOKUP(G9044,Insumos!G:H,2,FALSE))","v":""}]
[null,null,null,null,null,{"$f":"IF(E9045=\"\",\"\",VLOOKUP(E9045,Insumos!AD:AE,2,FALSE))","v":""},null,{"$f":"IF(G9045=\"\",\"\",VLOOKUP(G9045,Insumos!G:H,2,FALSE))","v":""}]
[null,null,null,null,null,{"$f":"IF(E9046=\"\",\"\",VLOOKUP(E9046,Insumos!AD:AE,2,FALSE))","v":""},null,{"$f":"IF(G9046=\"\",\"\",VLOOKUP(G9046,Insumos!G:H,2,FALSE))","v":""}]
[null,null,null,null,null,{"$f":"IF(E9047=\"\",\"\",VLOOKUP(E9047,Insumos!AD:AE,2,FALSE))","v":""},null,{"$f":"IF(G9047=\"\",\"\",VLOOKUP(G9047,Insumos!G:H,2,FALSE))","v":""}]
[null,null,null,null,null,{"$f":"IF(E9048=\"\",\"\",VLOOKUP(E9048,Insumos!AD:AE,2,FALSE))","v":""},null,{"$f":"IF(G9048=\"\",\"\",VLOOKUP(G9048,Insumos!G:H,2,FALSE))","v":""}]
[null,null,null,null,null,{"$f":"IF(E9049=\"\",\"\",VLOOKUP(E9049,Insumos!AD:AE,2,FALSE))","v":""},null,{"$f":"IF(G9049=\"\",\"\",VLOOKUP(G9049,Insumos!G:H,2,FALSE))","v":""}]
[null,null,null,null,null,{"$f":"IF(E9050=\"\",\"\",VLOOKUP(E9050,Insumos!AD:AE,2,FALSE))","v":""},null,{"$f":"IF(G9050=\"\",\"\",VLOOKUP(G9050,Insumos!G:H,2,FALSE))","v":""}]
[null,null,null,null,null,{"$f":"IF(E9051=\"\",\"\",VLOOKUP(E9051,Insumos!AD:AE,2,FALSE))","v":""},null,{"$f":"IF(G9051=\"\",\"\",VLOOKUP(G9051,Insumos!G:H,2,FALSE))","v":""}]
[null,null,null,null,null,{"$f":"IF(E9052=\"\",\"\",VLOOKUP(E9052,Insumos!AD:AE,2,FALSE))","v":""},null,{"$f":"IF(G9052=\"\",\"\",VLOOKUP(G9052,Insumos!G:H,2,FALSE))","v":""}]
[null,null,null,null,null,{"$f":"IF(E9053=\"\",\"\",VLOOKUP(E9053,Insumos!AD:AE,2,FALSE))","v":""},null,{"$f":"IF(G9053=\"\",\"\",VLOOKUP(G9053,Insumos!G:H,2,FALSE))","v":""}]
[null,null,null,null,null,{"$f":"IF(E9054=\"\",\"\",VLOOKUP(E9054,Insumos!AD:AE,2,FALSE))","v":""},null,{"$f":"IF(G9054=\"\",\"\",VLOOKUP(G9054,Insumos!G:H,2,FALSE))","v":""}]
[null,null,null,null,null,{"$f":"IF(E9055=\"\",\"\",VLOOKUP(E9055,Insumos!AD:AE,2,FALSE))","v":""},null,{"$f":"IF(G9055=\"\",\"\",VLOOKUP(G9055,Insumos!G:H,2,FALSE))","v":""}]
[null,null,null,null,null,{"$f":"IF(E9056=\"\",\"\",VLOOKUP(E9056,Insumos!AD:AE,2,FALSE))","v":""},null,{"$f":"IF(G9056=\"\",\"\",VLOOKUP(G9056,Insumos!G:H,2,FALSE))","v":""}]
[null,null,null,null,null,{"$f":"IF(E9057=\"\",\"\",VLOOKUP(E9057,Insumos!AD:AE,2,FALSE))","v":""},null,{"$f":"IF(G9057=\"\",\"\",VLOOKUP(G9057,Insumos!G:H,2,FALSE))","v":""}]
[null,null,null,null,null,{"$f":"IF(E9058=\"\",\"\",VLOOKUP(E9058,Insumos!AD:AE,2,FALSE))","v":""},null,{"$f":"IF(G9058=\"\",\"\",VLOOKUP(G9058,Insumos!G:H,2,FALSE))","v":""}]
[null,null,null,null,null,{"$f":"IF(E9059=\"\",\"\",VLOOKUP(E9059,Insumos!AD:AE,2,FALSE))","v":""},null,{"$f":"IF(G9059=\"\",\"\",VLOOKUP(G9059,Insumos!G:H,2,FALSE))","v":""}]
[null,null,null,null,null,{"$f":"IF(E9060=\"\",\"\",VLOOKUP(E9060,Insumos!AD:AE,2,FALSE))","v":""},null,{"$f":"IF(G9060=\"\",\"\",VLOOKUP(G9060,Insumos!G:H,2,FALSE))","v":""}]
[null,null,null,null,null,{"$f":"IF(E9061=\"\",\"\",VLOOKUP(E9061,Insumos!AD:AE,2,FALSE))","v":""},null,{"$f":"IF(G9061=\"\",\"\",VLOOKUP(G9061,Insumos!G:H,2,FALSE))","v":""}]
[null,null,null,null,null,{"$f":"IF(E9062=\"\",\"\",VLOOKUP(E9062,Insumos!AD:AE,2,FALSE))","v":""},null,{"$f":"IF(G9062=\"\",\"\",VLOOKUP(G9062,Insumos!G:H,2,FALSE))","v":""}]
[null,null,null,null,null,{"$f":"IF(E9063=\"\",\"\",VLOOKUP(E9063,Insumos!AD:AE,2,FALSE))","v":""},null,{"$f":"IF(G9063=\"\",\"\",VLOOKUP(G9063,Insumos!G:H,2,FALSE))","v":""}]
[null,null,null,null,null,{"$f":"IF(E9064=\"\",\"\",VLOOKUP(E9064,Insumos!AD:AE,2,FALSE))","v":""},null,{"$f":"IF(G9064=\"\",\"\",VLOOKUP(G9064,Insumos!G:H,2,FALSE))","v":""}]
[null,null,null,null,null,{"$f":"IF(E9065=\"\",\"\",VLOOKUP(E9065,Insumos!AD:AE,2,FALSE))","v":""},null,{"$f":"IF(G9065=\"\",\"\",VLOOKUP(G9065,Insumos!G:H,2,FALSE))","v":""}]
[null,null,null,null,null,{"$f":"IF(E9066=\"\",\"\",VLOOKUP(E9066,Insumos!AD:AE,2,FALSE))","v":""},null,{"$f":"IF(G9066=\"\",\"\",VLOOKUP(G9066,Insumos!G:H,2,FALSE))","v":""}]
[null,null,null,null,null,{"$f":"IF(E9067=\"\",\"\",VLOOKUP(E9067,Insumos!AD:AE,2,FALSE))","v":""},null,{"$f":"IF(G9067=\"\",\"\",VLOOKUP(G9067,Insumos!G:H,2,FALSE))","v":""}]
[null,null,null,null,null,{"$f":"IF(E9068=\"\",\"\",VLOOKUP(E9068,Insumos!AD:AE,2,FALSE))","v":""},null,{"$f":"IF(G9068=\"\",\"\",VLOOKUP(G9068,Insumos!G:H,2,FALSE))","v":""}]
[null,null,null,null,null,{"$f":"IF(E9069=\"\",\"\",VLOOKUP(E9069,Insumos!AD:AE,2,FALSE))","v":""},null,{"$f":"IF(G9069=\"\",\"\",VLOOKUP(G9069,Insumos!G:H,2,FALSE))","v":""}]
[null,null,null,null,null,{"$f":"IF(E9070=\"\",\"\",VLOOKUP(E9070,Insumos!AD:AE,2,FALSE))","v":""},null,{"$f":"IF(G9070=\"\",\"\",VLOOKUP(G9070,Insumos!G:H,2,FALSE))","v":""}]
[null,null,null,null,null,{"$f":"IF(E9071=\"\",\"\",VLOOKUP(E9071,Insumos!AD:AE,2,FALSE))","v":""},null,{"$f":"IF(G9071=\"\",\"\",VLOOKUP(G9071,Insumos!G:H,2,FALSE))","v":""}]
[null,null,null,null,null,{"$f":"IF(E9072=\"\",\"\",VLOOKUP(E9072,Insumos!AD:AE,2,FALSE))","v":""},null,{"$f":"IF(G9072=\"\",\"\",VLOOKUP(G9072,Insumos!G:H,2,FALSE))","v":""}]
[null,null,null,null,null,{"$f":"IF(E9073=\"\",\"\",VLOOKUP(E9073,Insumos!AD:AE,2,FALSE))","v":""},null,{"$f":"IF(G9073=\"\",\"\",VLOOKUP(G9073,Insumos!G:H,2,FALSE))","v":""}]
[null,null,null,null,null,{"$f":"IF(E9074=\"\",\"\",VLOOKUP(E9074,Insumos!AD:AE,2,FALSE))","v":""},null,{"$f":"IF(G9074=\"\",\"\",VLOOKUP(G9074,Insumos!G:H,2,FALSE))","v":""}]
[null,null,null,null,null,{"$f":"IF(E9075=\"\",\"\",VLOOKUP(E9075,Insumos!AD:AE,2,FALSE))","v":""},null,{"$f":"IF(G9075=\"\",\"\",VLOOKUP(G9075,Insumos!G:H,2,FALSE))","v":""}]
[null,null,null,null,null,{"$f":"IF(E9076=\"\",\"\",VLOOKUP(E9076,Insumos!AD:AE,2,FALSE))","v":""},null,{"$f":"IF(G9076=\"\",\"\",VLOOKUP(G9076,Insumos!G:H,2,FALSE))","v":""}]
[null,null,null,null,null,{"$f":"IF(E9077=\"\",\"\",VLOOKUP(E9077,Insumos!AD:AE,2,FALSE))","v":""},null,{"$f":"IF(G9077=\"\",\"\",VLOOKUP(G9077,Insumos!G:H,2,FALSE))","v":""}]
[null,null,null,null,null,{"$f":"IF(E9078=\"\",\"\",VLOOKUP(E9078,Insumos!AD:AE,2,FALSE))","v":""},null,{"$f":"IF(G9078=\"\",\"\",VLOOKUP(G9078,Insumos!G:H,2,FALSE))","v":""}]
[null,null,null,null,null,{"$f":"IF(E9079=\"\",\"\",VLOOKUP(E9079,Insumos!AD:AE,2,FALSE))","v":""},null,{"$f":"IF(G9079=\"\",\"\",VLOOKUP(G9079,Insumos!G:H,2,FALSE))","v":""}]
[null,null,null,null,null,{"$f":"IF(E9080=\"\",\"\",VLOOKUP(E9080,Insumos!AD:AE,2,FALSE))","v":""},null,{"$f":"IF(G9080=\"\",\"\",VLOOKUP(G9080,Insumos!G:H,2,FALSE))","v":""}]
[null,null,null,null,null,{"$f":"IF(E9081=\"\",\"\",VLOOKUP(E9081,Insumos!AD:AE,2,FALSE))","v":""},null,{"$f":"IF(G9081=\"\",\"\",VLOOKUP(G9081,Insumos!G:H,2,FALSE))","v":""}]
[null,null,null,null,null,{"$f":"IF(E9082=\"\",\"\",VLOOKUP(E9082,Insumos!AD:AE,2,FALSE))","v":""},null,{"$f":"IF(G9082=\"\",\"\",VLOOKUP(G9082,Insumos!G:H,2,FALSE))","v":""}]
[null,null,null,null,null,{"$f":"IF(E9083=\"\",\"\",VLOOKUP(E9083,Insumos!AD:AE,2,FALSE))","v":""},null,{"$f":"IF(G9083=\"\",\"\",VLOOKUP(G9083,Insumos!G:H,2,FALSE))","v":""}]
[null,null,null,null,null,{"$f":"IF(E9084=\"\",\"\",VLOOKUP(E9084,Insumos!AD:AE,2,FALSE))","v":""},null,{"$f":"IF(G9084=\"\",\"\",VLOOKUP(G9084,Insumos!G:H,2,FALSE))","v":""}]
[null,null,null,null,null,{"$f":"IF(E9085=\"\",\"\",VLOOKUP(E9085,Insumos!AD:AE,2,FALSE))","v":""},null,{"$f":"IF(G9085=\"\",\"\",VLOOKUP(G9085,Insumos!G:H,2,FALSE))","v":""}]
[null,null,null,null,null,{"$f":"IF(E9086=\"\",\"\",VLOOKUP(E9086,Insumos!AD:AE,2,FALSE))","v":""},null,{"$f":"IF(G9086=\"\",\"\",VLOOKUP(G9086,Insumos!G:H,2,FALSE))","v":""}]
[null,null,null,null,null,{"$f":"IF(E9087=\"\",\"\",VLOOKUP(E9087,Insumos!AD:AE,2,FALSE))","v":""},null,{"$f":"IF(G9087=\"\",\"\",VLOOKUP(G9087,Insumos!G:H,2,FALSE))","v":""}]
[null,null,null,null,null,{"$f":"IF(E9088=\"\",\"\",VLOOKUP(E9088,Insumos!AD:AE,2,FALSE))","v":""},null,{"$f":"IF(G9088=\"\",\"\",VLOOKUP(G9088,Insumos!G:H,2,FALSE))","v":""}]
[null,null,null,null,null,{"$f":"IF(E9089=\"\",\"\",VLOOKUP(E9089,Insumos!AD:AE,2,FALSE))","v":""},null,{"$f":"IF(G9089=\"\",\"\",VLOOKUP(G9089,Insumos!G:H,2,FALSE))","v":""}]
[null,null,null,null,null,{"$f":"IF(E9090=\"\",\"\",VLOOKUP(E9090,Insumos!AD:AE,2,FALSE))","v":""},null,{"$f":"IF(G9090=\"\",\"\",VLOOKUP(G9090,Insumos!G:H,2,FALSE))","v":""}]
[null,null,null,null,null,{"$f":"IF(E9091=\"\",\"\",VLOOKUP(E9091,Insumos!AD:AE,2,FALSE))","v":""},null,{"$f":"IF(G9091=\"\",\"\",VLOOKUP(G9091,Insumos!G:H,2,FALSE))","v":""}]
[null,null,null,null,null,{"$f":"IF(E9092=\"\",\"\",VLOOKUP(E9092,Insumos!AD:AE,2,FALSE))","v":""},null,{"$f":"IF(G9092=\"\",\"\",VLOOKUP(G9092,Insumos!G:H,2,FALSE))","v":""}]
[null,null,null,null,null,{"$f":"IF(E9093=\"\",\"\",VLOOKUP(E9093,Insumos!AD:AE,2,FALSE))","v":""},null,{"$f":"IF(G9093=\"\",\"\",VLOOKUP(G9093,Insumos!G:H,2,FALSE))","v":""}]
[null,null,null,null,null,{"$f":"IF(E9094=\"\",\"\",VLOOKUP(E9094,Insumos!AD:AE,2,FALSE))","v":""},null,{"$f":"IF(G9094=\"\",\"\",VLOOKUP(G9094,Insumos!G:H,2,FALSE))","v":""}]
[null,null,null,null,null,{"$f":"IF(E9095=\"\",\"\",VLOOKUP(E9095,Insumos!AD:AE,2,FALSE))","v":""},null,{"$f":"IF(G9095=\"\",\"\",VLOOKUP(G9095,Insumos!G:H,2,FALSE))","v":""}]
[null,null,null,null,null,{"$f":"IF(E9096=\"\",\"\",VLOOKUP(E9096,Insumos!AD:AE,2,FALSE))","v":""},null,{"$f":"IF(G9096=\"\",\"\",VLOOKUP(G9096,Insumos!G:H,2,FALSE))","v":""}]
[null,null,null,null,null,{"$f":"IF(E9097=\"\",\"\",VLOOKUP(E9097,Insumos!AD:AE,2,FALSE))","v":""},null,{"$f":"IF(G9097=\"\",\"\",VLOOKUP(G9097,Insumos!G:H,2,FALSE))","v":""}]
[null,null,null,null,null,{"$f":"IF(E9098=\"\",\"\",VLOOKUP(E9098,Insumos!AD:AE,2,FALSE))","v":""},null,{"$f":"IF(G9098=\"\",\"\",VLOOKUP(G9098,Insumos!G:H,2,FALSE))","v":""}]
[null,null,null,null,null,{"$f":"IF(E9099=\"\",\"\",VLOOKUP(E9099,Insumos!AD:AE,2,FALSE))","v":""},null,{"$f":"IF(G9099=\"\",\"\",VLOOKUP(G9099,Insumos!G:H,2,FALSE))","v":""}]
[null,null,null,null,null,{"$f":"IF(E9100=\"\",\"\",VLOOKUP(E9100,Insumos!AD:AE,2,FALSE))","v":""},null,{"$f":"IF(G9100=\"\",\"\",VLOOKUP(G9100,Insumos!G:H,2,FALSE))","v":""}]
[null,null,null,null,null,{"$f":"IF(E9101=\"\",\"\",VLOOKUP(E9101,Insumos!AD:AE,2,FALSE))","v":""},null,{"$f":"IF(G9101=\"\",\"\",VLOOKUP(G9101,Insumos!G:H,2,FALSE))","v":""}]
[null,null,null,null,null,{"$f":"IF(E9102=\"\",\"\",VLOOKUP(E9102,Insumos!AD:AE,2,FALSE))","v":""},null,{"$f":"IF(G9102=\"\",\"\",VLOOKUP(G9102,Insumos!G:H,2,FALSE))","v":""}]
[null,null,null,null,null,{"$f":"IF(E9103=\"\",\"\",VLOOKUP(E9103,Insumos!AD:AE,2,FALSE))","v":""},null,{"$f":"IF(G9103=\"\",\"\",VLOOKUP(G9103,Insumos!G:H,2,FALSE))","v":""}]
[null,null,null,null,null,{"$f":"IF(E9104=\"\",\"\",VLOOKUP(E9104,Insumos!AD:AE,2,FALSE))","v":""},null,{"$f":"IF(G9104=\"\",\"\",VLOOKUP(G9104,Insumos!G:H,2,FALSE))","v":""}]
[null,null,null,null,null,{"$f":"IF(E9105=\"\",\"\",VLOOKUP(E9105,Insumos!AD:AE,2,FALSE))","v":""},null,{"$f":"IF(G9105=\"\",\"\",VLOOKUP(G9105,Insumos!G:H,2,FALSE))","v":""}]
[null,null,null,null,null,{"$f":"IF(E9106=\"\",\"\",VLOOKUP(E9106,Insumos!AD:AE,2,FALSE))","v":""},null,{"$f":"IF(G9106=\"\",\"\",VLOOKUP(G9106,Insumos!G:H,2,FALSE))","v":""}]
[null,null,null,null,null,{"$f":"IF(E9107=\"\",\"\",VLOOKUP(E9107,Insumos!AD:AE,2,FALSE))","v":""},null,{"$f":"IF(G9107=\"\",\"\",VLOOKUP(G9107,Insumos!G:H,2,FALSE))","v":""}]
[null,null,null,null,null,{"$f":"IF(E9108=\"\",\"\",VLOOKUP(E9108,Insumos!AD:AE,2,FALSE))","v":""},null,{"$f":"IF(G9108=\"\",\"\",VLOOKUP(G9108,Insumos!G:H,2,FALSE))","v":""}]
[null,null,null,null,null,{"$f":"IF(E9109=\"\",\"\",VLOOKUP(E9109,Insumos!AD:AE,2,FALSE))","v":""},null,{"$f":"IF(G9109=\"\",\"\",VLOOKUP(G9109,Insumos!G:H,2,FALSE))","v":""}]
[null,null,null,null,null,{"$f":"IF(E9110=\"\",\"\",VLOOKUP(E9110,Insumos!AD:AE,2,FALSE))","v":""},null,{"$f":"IF(G9110=\"\",\"\",VLOOKUP(G9110,Insumos!G:H,2,FALSE))","v":""}]
[null,null,null,null,null,{"$f":"IF(E9111=\"\",\"\",VLOOKUP(E9111,Insumos!AD:AE,2,FALSE))","v":""},null,{"$f":"IF(G9111=\"\",\"\",VLOOKUP(G9111,Insumos!G:H,2,FALSE))","v":""}]
[null,null,null,null,null,{"$f":"IF(E9112=\"\",\"\",VLOOKUP(E9112,Insumos!AD:AE,2,FALSE))","v":""},null,{"$f":"IF(G9112=\"\",\"\",VLOOKUP(G9112,Insumos!G:H,2,FALSE))","v":""}]
[null,null,null,null,null,{"$f":"IF(E9113=\"\",\"\",VLOOKUP(E9113,Insumos!AD:AE,2,FALSE))","v":""},null,{"$f":"IF(G9113=\"\",\"\",VLOOKUP(G9113,Insumos!G:H,2,FALSE))","v":""}]
[null,null,null,null,null,{"$f":"IF(E9114=\"\",\"\",VLOOKUP(E9114,Insumos!AD:AE,2,FALSE))","v":""},null,{"$f":"IF(G9114=\"\",\"\",VLOOKUP(G9114,Insumos!G:H,2,FALSE))","v":""}]
[null,null,null,null,null,{"$f":"IF(E9115=\"\",\"\",VLOOKUP(E9115,Insumos!AD:AE,2,FALSE))","v":""},null,{"$f":"IF(G9115=\"\",\"\",VLOOKUP(G9115,Insumos!G:H,2,FALSE))","v":""}]
[null,null,null,null,null,{"$f":"IF(E9116=\"\",\"\",VLOOKUP(E9116,Insumos!AD:AE,2,FALSE))","v":""},null,{"$f":"IF(G9116=\"\",\"\",VLOOKUP(G9116,Insumos!G:H,2,FALSE))","v":""}]
[null,null,null,null,null,{"$f":"IF(E9117=\"\",\"\",VLOOKUP(E9117,Insumos!AD:AE,2,FALSE))","v":""},null,{"$f":"IF(G9117=\"\",\"\",VLOOKUP(G9117,Insumos!G:H,2,FALSE))","v":""}]
[null,null,null,null,null,{"$f":"IF(E9118=\"\",\"\",VLOOKUP(E9118,Insumos!AD:AE,2,FALSE))","v":""},null,{"$f":"IF(G9118=\"\",\"\",VLOOKUP(G9118,Insumos!G:H,2,FALSE))","v":""}]
[null,null,null,null,null,{"$f":"IF(E9119=\"\",\"\",VLOOKUP(E9119,Insumos!AD:AE,2,FALSE))","v":""},null,{"$f":"IF(G9119=\"\",\"\",VLOOKUP(G9119,Insumos!G:H,2,FALSE))","v":""}]
[null,null,null,null,null,{"$f":"IF(E9120=\"\",\"\",VLOOKUP(E9120,Insumos!AD:AE,2,FALSE))","v":""},null,{"$f":"IF(G9120=\"\",\"\",VLOOKUP(G9120,Insumos!G:H,2,FALSE))","v":""}]
[null,null,null,null,null,{"$f":"IF(E9121=\"\",\"\",VLOOKUP(E9121,Insumos!AD:AE,2,FALSE))","v":""},null,{"$f":"IF(G9121=\"\",\"\",VLOOKUP(G9121,Insumos!G:H,2,FALSE))","v":""}]
[null,null,null,null,null,{"$f":"IF(E9122=\"\",\"\",VLOOKUP(E9122,Insumos!AD:AE,2,FALSE))","v":""},null,{"$f":"IF(G9122=\"\",\"\",VLOOKUP(G9122,Insumos!G:H,2,FALSE))","v":""}]
[null,null,null,null,null,{"$f":"IF(E9123=\"\",\"\",VLOOKUP(E9123,Insumos!AD:AE,2,FALSE))","v":""},null,{"$f":"IF(G9123=\"\",\"\",VLOOKUP(G9123,Insumos!G:H,2,FALSE))","v":""}]
[null,null,null,null,null,{"$f":"IF(E9124=\"\",\"\",VLOOKUP(E9124,Insumos!AD:AE,2,FALSE))","v":""},null,{"$f":"IF(G9124=\"\",\"\",VLOOKUP(G9124,Insumos!G:H,2,FALSE))","v":""}]
[null,null,null,null,null,{"$f":"IF(E9125=\"\",\"\",VLOOKUP(E9125,Insumos!AD:AE,2,FALSE))","v":""},null,{"$f":"IF(G9125=\"\",\"\",VLOOKUP(G9125,Insumos!G:H,2,FALSE))","v":""}]
[null,null,null,null,null,{"$f":"IF(E9126=\"\",\"\",VLOOKUP(E9126,Insumos!AD:AE,2,FALSE))","v":""},null,{"$f":"IF(G9126=\"\",\"\",VLOOKUP(G9126,Insumos!G:H,2,FALSE))","v":""}]
[null,null,null,null,null,{"$f":"IF(E9127=\"\",\"\",VLOOKUP(E9127,Insumos!AD:AE,2,FALSE))","v":""},null,{"$f":"IF(G9127=\"\",\"\",VLOOKUP(G9127,Insumos!G:H,2,FALSE))","v":""}]
[null,null,null,null,null,{"$f":"IF(E9128=\"\",\"\",VLOOKUP(E9128,Insumos!AD:AE,2,FALSE))","v":""},null,{"$f":"IF(G9128=\"\",\"\",VLOOKUP(G9128,Insumos!G:H,2,FALSE))","v":""}]
[null,null,null,null,null,{"$f":"IF(E9129=\"\",\"\",VLOOKUP(E9129,Insumos!AD:AE,2,FALSE))","v":""},null,{"$f":"IF(G9129=\"\",\"\",VLOOKUP(G9129,Insumos!G:H,2,FALSE))","v":""}]
[null,null,null,null,null,{"$f":"IF(E9130=\"\",\"\",VLOOKUP(E9130,Insumos!AD:AE,2,FALSE))","v":""},null,{"$f":"IF(G9130=\"\",\"\",VLOOKUP(G9130,Insumos!G:H,2,FALSE))","v":""}]
[null,null,null,null,null,{"$f":"IF(E9131=\"\",\"\",VLOOKUP(E9131,Insumos!AD:AE,2,FALSE))","v":""},null,{"$f":"IF(G9131=\"\",\"\",VLOOKUP(G9131,Insumos!G:H,2,FALSE))","v":""}]
[null,null,null,null,null,{"$f":"IF(E9132=\"\",\"\",VLOOKUP(E9132,Insumos!AD:AE,2,FALSE))","v":""},null,{"$f":"IF(G9132=\"\",\"\",VLOOKUP(G9132,Insumos!G:H,2,FALSE))","v":""}]
[null,null,null,null,null,{"$f":"IF(E9133=\"\",\"\",VLOOKUP(E9133,Insumos!AD:AE,2,FALSE))","v":""},null,{"$f":"IF(G9133=\"\",\"\",VLOOKUP(G9133,Insumos!G:H,2,FALSE))","v":""}]
[null,null,null,null,null,{"$f":"IF(E9134=\"\",\"\",VLOOKUP(E9134,Insumos!AD:AE,2,FALSE))","v":""},null,{"$f":"IF(G9134=\"\",\"\",VLOOKUP(G9134,Insumos!G:H,2,FALSE))","v":""}]
[null,null,null,null,null,{"$f":"IF(E9135=\"\",\"\",VLOOKUP(E9135,Insumos!AD:AE,2,FALSE))","v":""},null,{"$f":"IF(G9135=\"\",\"\",VLOOKUP(G9135,Insumos!G:H,2,FALSE))","v":""}]
[null,null,null,null,null,{"$f":"IF(E9136=\"\",\"\",VLOOKUP(E9136,Insumos!AD:AE,2,FALSE))","v":""},null,{"$f":"IF(G9136=\"\",\"\",VLOOKUP(G9136,Insumos!G:H,2,FALSE))","v":""}]
[null,null,null,null,null,{"$f":"IF(E9137=\"\",\"\",VLOOKUP(E9137,Insumos!AD:AE,2,FALSE))","v":""},null,{"$f":"IF(G9137=\"\",\"\",VLOOKUP(G9137,Insumos!G:H,2,FALSE))","v":""}]
[null,null,null,null,null,{"$f":"IF(E9138=\"\",\"\",VLOOKUP(E9138,Insumos!AD:AE,2,FALSE))","v":""},null,{"$f":"IF(G9138=\"\",\"\",VLOOKUP(G9138,Insumos!G:H,2,FALSE))","v":""}]
[null,null,null,null,null,{"$f":"IF(E9139=\"\",\"\",VLOOKUP(E9139,Insumos!AD:AE,2,FALSE))","v":""},null,{"$f":"IF(G9139=\"\",\"\",VLOOKUP(G9139,Insumos!G:H,2,FALSE))","v":""}]
[null,null,null,null,null,{"$f":"IF(E9140=\"\",\"\",VLOOKUP(E9140,Insumos!AD:AE,2,FALSE))","v":""},null,{"$f":"IF(G9140=\"\",\"\",VLOOKUP(G9140,Insumos!G:H,2,FALSE))","v":""}]
[null,null,null,null,null,{"$f":"IF(E9141=\"\",\"\",VLOOKUP(E9141,Insumos!AD:AE,2,FALSE))","v":""},null,{"$f":"IF(G9141=\"\",\"\",VLOOKUP(G9141,Insumos!G:H,2,FALSE))","v":""}]
[null,null,null,null,null,{"$f":"IF(E9142=\"\",\"\",VLOOKUP(E9142,Insumos!AD:AE,2,FALSE))","v":""},null,{"$f":"IF(G9142=\"\",\"\",VLOOKUP(G9142,Insumos!G:H,2,FALSE))","v":""}]
[null,null,null,null,null,{"$f":"IF(E9143=\"\",\"\",VLOOKUP(E9143,Insumos!AD:AE,2,FALSE))","v":""},null,{"$f":"IF(G9143=\"\",\"\",VLOOKUP(G9143,Insumos!G:H,2,FALSE))","v":""}]
[null,null,null,null,null,{"$f":"IF(E9144=\"\",\"\",VLOOKUP(E9144,Insumos!AD:AE,2,FALSE))","v":""},null,{"$f":"IF(G9144=\"\",\"\",VLOOKUP(G9144,Insumos!G:H,2,FALSE))","v":""}]
[null,null,null,null,null,{"$f":"IF(E9145=\"\",\"\",VLOOKUP(E9145,Insumos!AD:AE,2,FALSE))","v":""},null,{"$f":"IF(G9145=\"\",\"\",VLOOKUP(G9145,Insumos!G:H,2,FALSE))","v":""}]
[null,null,null,null,null,{"$f":"IF(E9146=\"\",\"\",VLOOKUP(E9146,Insumos!AD:AE,2,FALSE))","v":""},null,{"$f":"IF(G9146=\"\",\"\",VLOOKUP(G9146,Insumos!G:H,2,FALSE))","v":""}]
[null,null,null,null,null,{"$f":"IF(E9147=\"\",\"\",VLOOKUP(E9147,Insumos!AD:AE,2,FALSE))","v":""},null,{"$f":"IF(G9147=\"\",\"\",VLOOKUP(G9147,Insumos!G:H,2,FALSE))","v":""}]
[null,null,null,null,null,{"$f":"IF(E9148=\"\",\"\",VLOOKUP(E9148,Insumos!AD:AE,2,FALSE))","v":""},null,{"$f":"IF(G9148=\"\",\"\",VLOOKUP(G9148,Insumos!G:H,2,FALSE))","v":""}]
[null,null,null,null,null,{"$f":"IF(E9149=\"\",\"\",VLOOKUP(E9149,Insumos!AD:AE,2,FALSE))","v":""},null,{"$f":"IF(G9149=\"\",\"\",VLOOKUP(G9149,Insumos!G:H,2,FALSE))","v":""}]
[null,null,null,null,null,{"$f":"IF(E9150=\"\",\"\",VLOOKUP(E9150,Insumos!AD:AE,2,FALSE))","v":""},null,{"$f":"IF(G9150=\"\",\"\",VLOOKUP(G9150,Insumos!G:H,2,FALSE))","v":""}]
[null,null,null,null,null,{"$f":"IF(E9151=\"\",\"\",VLOOKUP(E9151,Insumos!AD:AE,2,FALSE))","v":""},null,{"$f":"IF(G9151=\"\",\"\",VLOOKUP(G9151,Insumos!G:H,2,FALSE))","v":""}]
[null,null,null,null,null,{"$f":"IF(E9152=\"\",\"\",VLOOKUP(E9152,Insumos!AD:AE,2,FALSE))","v":""},null,{"$f":"IF(G9152=\"\",\"\",VLOOKUP(G9152,Insumos!G:H,2,FALSE))","v":""}]
[null,null,null,null,null,{"$f":"IF(E9153=\"\",\"\",VLOOKUP(E9153,Insumos!AD:AE,2,FALSE))","v":""},null,{"$f":"IF(G9153=\"\",\"\",VLOOKUP(G9153,Insumos!G:H,2,FALSE))","v":""}]
[null,null,null,null,null,{"$f":"IF(E9154=\"\",\"\",VLOOKUP(E9154,Insumos!AD:AE,2,FALSE))","v":""},null,{"$f":"IF(G9154=\"\",\"\",VLOOKUP(G9154,Insumos!G:H,2,FALSE))","v":""}]
[null,null,null,null,null,{"$f":"IF(E9155=\"\",\"\",VLOOKUP(E9155,Insumos!AD:AE,2,FALSE))","v":""},null,{"$f":"IF(G9155=\"\",\"\",VLOOKUP(G9155,Insumos!G:H,2,FALSE))","v":""}]
[null,null,null,null,null,{"$f":"IF(E9156=\"\",\"\",VLOOKUP(E9156,Insumos!AD:AE,2,FALSE))","v":""},null,{"$f":"IF(G9156=\"\",\"\",VLOOKUP(G9156,Insumos!G:H,2,FALSE))","v":""}]
[null,null,null,null,null,{"$f":"IF(E9157=\"\",\"\",VLOOKUP(E9157,Insumos!AD:AE,2,FALSE))","v":""},null,{"$f":"IF(G9157=\"\",\"\",VLOOKUP(G9157,Insumos!G:H,2,FALSE))","v":""}]
[null,null,null,null,null,{"$f":"IF(E9158=\"\",\"\",VLOOKUP(E9158,Insumos!AD:AE,2,FALSE))","v":""},null,{"$f":"IF(G9158=\"\",\"\",VLOOKUP(G9158,Insumos!G:H,2,FALSE))","v":""}]
[null,null,null,null,null,{"$f":"IF(E9159=\"\",\"\",VLOOKUP(E9159,Insumos!AD:AE,2,FALSE))","v":""},null,{"$f":"IF(G9159=\"\",\"\",VLOOKUP(G9159,Insumos!G:H,2,FALSE))","v":""}]
[null,null,null,null,null,{"$f":"IF(E9160=\"\",\"\",VLOOKUP(E9160,Insumos!AD:AE,2,FALSE))","v":""},null,{"$f":"IF(G9160=\"\",\"\",VLOOKUP(G9160,Insumos!G:H,2,FALSE))","v":""}]
[null,null,null,null,null,{"$f":"IF(E9161=\"\",\"\",VLOOKUP(E9161,Insumos!AD:AE,2,FALSE))","v":""},null,{"$f":"IF(G9161=\"\",\"\",VLOOKUP(G9161,Insumos!G:H,2,FALSE))","v":""}]
[null,null,null,null,null,{"$f":"IF(E9162=\"\",\"\",VLOOKUP(E9162,Insumos!AD:AE,2,FALSE))","v":""},null,{"$f":"IF(G9162=\"\",\"\",VLOOKUP(G9162,Insumos!G:H,2,FALSE))","v":""}]
[null,null,null,null,null,{"$f":"IF(E9163=\"\",\"\",VLOOKUP(E9163,Insumos!AD:AE,2,FALSE))","v":""},null,{"$f":"IF(G9163=\"\",\"\",VLOOKUP(G9163,Insumos!G:H,2,FALSE))","v":""}]
[null,null,null,null,null,{"$f":"IF(E9164=\"\",\"\",VLOOKUP(E9164,Insumos!AD:AE,2,FALSE))","v":""},null,{"$f":"IF(G9164=\"\",\"\",VLOOKUP(G9164,Insumos!G:H,2,FALSE))","v":""}]
[null,null,null,null,null,{"$f":"IF(E9165=\"\",\"\",VLOOKUP(E9165,Insumos!AD:AE,2,FALSE))","v":""},null,{"$f":"IF(G9165=\"\",\"\",VLOOKUP(G9165,Insumos!G:H,2,FALSE))","v":""}]
[null,null,null,null,null,{"$f":"IF(E9166=\"\",\"\",VLOOKUP(E9166,Insumos!AD:AE,2,FALSE))","v":""},null,{"$f":"IF(G9166=\"\",\"\",VLOOKUP(G9166,Insumos!G:H,2,FALSE))","v":""}]
[null,null,null,null,null,{"$f":"IF(E9167=\"\",\"\",VLOOKUP(E9167,Insumos!AD:AE,2,FALSE))","v":""},null,{"$f":"IF(G9167=\"\",\"\",VLOOKUP(G9167,Insumos!G:H,2,FALSE))","v":""}]
[null,null,null,null,null,{"$f":"IF(E9168=\"\",\"\",VLOOKUP(E9168,Insumos!AD:AE,2,FALSE))","v":""},null,{"$f":"IF(G9168=\"\",\"\",VLOOKUP(G9168,Insumos!G:H,2,FALSE))","v":""}]
[null,null,null,null,null,{"$f":"IF(E9169=\"\",\"\",VLOOKUP(E9169,Insumos!AD:AE,2,FALSE))","v":""},null,{"$f":"IF(G9169=\"\",\"\",VLOOKUP(G9169,Insumos!G:H,2,FALSE))","v":""}]
[null,null,null,null,null,{"$f":"IF(E9170=\"\",\"\",VLOOKUP(E9170,Insumos!AD:AE,2,FALSE))","v":""},null,{"$f":"IF(G9170=\"\",\"\",VLOOKUP(G9170,Insumos!G:H,2,FALSE))","v":""}]
[null,null,null,null,null,{"$f":"IF(E9171=\"\",\"\",VLOOKUP(E9171,Insumos!AD:AE,2,FALSE))","v":""},null,{"$f":"IF(G9171=\"\",\"\",VLOOKUP(G9171,Insumos!G:H,2,FALSE))","v":""}]
[null,null,null,null,null,{"$f":"IF(E9172=\"\",\"\",VLOOKUP(E9172,Insumos!AD:AE,2,FALSE))","v":""},null,{"$f":"IF(G9172=\"\",\"\",VLOOKUP(G9172,Insumos!G:H,2,FALSE))","v":""}]
[null,null,null,null,null,{"$f":"IF(E9173=\"\",\"\",VLOOKUP(E9173,Insumos!AD:AE,2,FALSE))","v":""},null,{"$f":"IF(G9173=\"\",\"\",VLOOKUP(G9173,Insumos!G:H,2,FALSE))","v":""}]
[null,null,null,null,null,{"$f":"IF(E9174=\"\",\"\",VLOOKUP(E9174,Insumos!AD:AE,2,FALSE))","v":""},null,{"$f":"IF(G9174=\"\",\"\",VLOOKUP(G9174,Insumos!G:H,2,FALSE))","v":""}]
[null,null,null,null,null,{"$f":"IF(E9175=\"\",\"\",VLOOKUP(E9175,Insumos!AD:AE,2,FALSE))","v":""},null,{"$f":"IF(G9175=\"\",\"\",VLOOKUP(G9175,Insumos!G:H,2,FALSE))","v":""}]
[null,null,null,null,null,{"$f":"IF(E9176=\"\",\"\",VLOOKUP(E9176,Insumos!AD:AE,2,FALSE))","v":""},null,{"$f":"IF(G9176=\"\",\"\",VLOOKUP(G9176,Insumos!G:H,2,FALSE))","v":""}]
[null,null,null,null,null,{"$f":"IF(E9177=\"\",\"\",VLOOKUP(E9177,Insumos!AD:AE,2,FALSE))","v":""},null,{"$f":"IF(G9177=\"\",\"\",VLOOKUP(G9177,Insumos!G:H,2,FALSE))","v":""}]
[null,null,null,null,null,{"$f":"IF(E9178=\"\",\"\",VLOOKUP(E9178,Insumos!AD:AE,2,FALSE))","v":""},null,{"$f":"IF(G9178=\"\",\"\",VLOOKUP(G9178,Insumos!G:H,2,FALSE))","v":""}]
[null,null,null,null,null,{"$f":"IF(E9179=\"\",\"\",VLOOKUP(E9179,Insumos!AD:AE,2,FALSE))","v":""},null,{"$f":"IF(G9179=\"\",\"\",VLOOKUP(G9179,Insumos!G:H,2,FALSE))","v":""}]
[null,null,null,null,null,{"$f":"IF(E9180=\"\",\"\",VLOOKUP(E9180,Insumos!AD:AE,2,FALSE))","v":""},null,{"$f":"IF(G9180=\"\",\"\",VLOOKUP(G9180,Insumos!G:H,2,FALSE))","v":""}]
[null,null,null,null,null,{"$f":"IF(E9181=\"\",\"\",VLOOKUP(E9181,Insumos!AD:AE,2,FALSE))","v":""},null,{"$f":"IF(G9181=\"\",\"\",VLOOKUP(G9181,Insumos!G:H,2,FALSE))","v":""}]
[null,null,null,null,null,{"$f":"IF(E9182=\"\",\"\",VLOOKUP(E9182,Insumos!AD:AE,2,FALSE))","v":""},null,{"$f":"IF(G9182=\"\",\"\",VLOOKUP(G9182,Insumos!G:H,2,FALSE))","v":""}]
[null,null,null,null,null,{"$f":"IF(E9183=\"\",\"\",VLOOKUP(E9183,Insumos!AD:AE,2,FALSE))","v":""},null,{"$f":"IF(G9183=\"\",\"\",VLOOKUP(G9183,Insumos!G:H,2,FALSE))","v":""}]
[null,null,null,null,null,{"$f":"IF(E9184=\"\",\"\",VLOOKUP(E9184,Insumos!AD:AE,2,FALSE))","v":""},null,{"$f":"IF(G9184=\"\",\"\",VLOOKUP(G9184,Insumos!G:H,2,FALSE))","v":""}]
[null,null,null,null,null,{"$f":"IF(E9185=\"\",\"\",VLOOKUP(E9185,Insumos!AD:AE,2,FALSE))","v":""},null,{"$f":"IF(G9185=\"\",\"\",VLOOKUP(G9185,Insumos!G:H,2,FALSE))","v":""}]
[null,null,null,null,null,{"$f":"IF(E9186=\"\",\"\",VLOOKUP(E9186,Insumos!AD:AE,2,FALSE))","v":""},null,{"$f":"IF(G9186=\"\",\"\",VLOOKUP(G9186,Insumos!G:H,2,FALSE))","v":""}]
[null,null,null,null,null,{"$f":"IF(E9187=\"\",\"\",VLOOKUP(E9187,Insumos!AD:AE,2,FALSE))","v":""},null,{"$f":"IF(G9187=\"\",\"\",VLOOKUP(G9187,Insumos!G:H,2,FALSE))","v":""}]
[null,null,null,null,null,{"$f":"IF(E9188=\"\",\"\",VLOOKUP(E9188,Insumos!AD:AE,2,FALSE))","v":""},null,{"$f":"IF(G9188=\"\",\"\",VLOOKUP(G9188,Insumos!G:H,2,FALSE))","v":""}]
[null,null,null,null,null,{"$f":"IF(E9189=\"\",\"\",VLOOKUP(E9189,Insumos!AD:AE,2,FALSE))","v":""},null,{"$f":"IF(G9189=\"\",\"\",VLOOKUP(G9189,Insumos!G:H,2,FALSE))","v":""}]
[null,null,null,null,null,{"$f":"IF(E9190=\"\",\"\",VLOOKUP(E9190,Insumos!AD:AE,2,FALSE))","v":""},null,{"$f":"IF(G9190=\"\",\"\",VLOOKUP(G9190,Insumos!G:H,2,FALSE))","v":""}]
[null,null,null,null,null,{"$f":"IF(E9191=\"\",\"\",VLOOKUP(E9191,Insumos!AD:AE,2,FALSE))","v":""},null,{"$f":"IF(G9191=\"\",\"\",VLOOKUP(G9191,Insumos!G:H,2,FALSE))","v":""}]
[null,null,null,null,null,{"$f":"IF(E9192=\"\",\"\",VLOOKUP(E9192,Insumos!AD:AE,2,FALSE))","v":""},null,{"$f":"IF(G9192=\"\",\"\",VLOOKUP(G9192,Insumos!G:H,2,FALSE))","v":""}]
[null,null,null,null,null,{"$f":"IF(E9193=\"\",\"\",VLOOKUP(E9193,Insumos!AD:AE,2,FALSE))","v":""},null,{"$f":"IF(G9193=\"\",\"\",VLOOKUP(G9193,Insumos!G:H,2,FALSE))","v":""}]
[null,null,null,null,null,{"$f":"IF(E9194=\"\",\"\",VLOOKUP(E9194,Insumos!AD:AE,2,FALSE))","v":""},null,{"$f":"IF(G9194=\"\",\"\",VLOOKUP(G9194,Insumos!G:H,2,FALSE))","v":""}]
[null,null,null,null,null,{"$f":"IF(E9195=\"\",\"\",VLOOKUP(E9195,Insumos!AD:AE,2,FALSE))","v":""},null,{"$f":"IF(G9195=\"\",\"\",VLOOKUP(G9195,Insumos!G:H,2,FALSE))","v":""}]
[null,null,null,null,null,{"$f":"IF(E9196=\"\",\"\",VLOOKUP(E9196,Insumos!AD:AE,2,FALSE))","v":""},null,{"$f":"IF(G9196=\"\",\"\",VLOOKUP(G9196,Insumos!G:H,2,FALSE))","v":""}]
[null,null,null,null,null,{"$f":"IF(E9197=\"\",\"\",VLOOKUP(E9197,Insumos!AD:AE,2,FALSE))","v":""},null,{"$f":"IF(G9197=\"\",\"\",VLOOKUP(G9197,Insumos!G:H,2,FALSE))","v":""}]
[null,null,null,null,null,{"$f":"IF(E9198=\"\",\"\",VLOOKUP(E9198,Insumos!AD:AE,2,FALSE))","v":""},null,{"$f":"IF(G9198=\"\",\"\",VLOOKUP(G9198,Insumos!G:H,2,FALSE))","v":""}]
[null,null,null,null,null,{"$f":"IF(E9199=\"\",\"\",VLOOKUP(E9199,Insumos!AD:AE,2,FALSE))","v":""},null,{"$f":"IF(G9199=\"\",\"\",VLOOKUP(G9199,Insumos!G:H,2,FALSE))","v":""}]
[null,null,null,null,null,{"$f":"IF(E9200=\"\",\"\",VLOOKUP(E9200,Insumos!AD:AE,2,FALSE))","v":""},null,{"$f":"IF(G9200=\"\",\"\",VLOOKUP(G9200,Insumos!G:H,2,FALSE))","v":""}]
[null,null,null,null,null,{"$f":"IF(E9201=\"\",\"\",VLOOKUP(E9201,Insumos!AD:AE,2,FALSE))","v":""},null,{"$f":"IF(G9201=\"\",\"\",VLOOKUP(G9201,Insumos!G:H,2,FALSE))","v":""}]
[null,null,null,null,null,{"$f":"IF(E9202=\"\",\"\",VLOOKUP(E9202,Insumos!AD:AE,2,FALSE))","v":""},null,{"$f":"IF(G9202=\"\",\"\",VLOOKUP(G9202,Insumos!G:H,2,FALSE))","v":""}]
[null,null,null,null,null,{"$f":"IF(E9203=\"\",\"\",VLOOKUP(E9203,Insumos!AD:AE,2,FALSE))","v":""},null,{"$f":"IF(G9203=\"\",\"\",VLOOKUP(G9203,Insumos!G:H,2,FALSE))","v":""}]
[null,null,null,null,null,{"$f":"IF(E9204=\"\",\"\",VLOOKUP(E9204,Insumos!AD:AE,2,FALSE))","v":""},null,{"$f":"IF(G9204=\"\",\"\",VLOOKUP(G9204,Insumos!G:H,2,FALSE))","v":""}]
[null,null,null,null,null,{"$f":"IF(E9205=\"\",\"\",VLOOKUP(E9205,Insumos!AD:AE,2,FALSE))","v":""},null,{"$f":"IF(G9205=\"\",\"\",VLOOKUP(G9205,Insumos!G:H,2,FALSE))","v":""}]
[null,null,null,null,null,{"$f":"IF(E9206=\"\",\"\",VLOOKUP(E9206,Insumos!AD:AE,2,FALSE))","v":""},null,{"$f":"IF(G9206=\"\",\"\",VLOOKUP(G9206,Insumos!G:H,2,FALSE))","v":""}]
[null,null,null,null,null,{"$f":"IF(E9207=\"\",\"\",VLOOKUP(E9207,Insumos!AD:AE,2,FALSE))","v":""},null,{"$f":"IF(G9207=\"\",\"\",VLOOKUP(G9207,Insumos!G:H,2,FALSE))","v":""}]
[null,null,null,null,null,{"$f":"IF(E9208=\"\",\"\",VLOOKUP(E9208,Insumos!AD:AE,2,FALSE))","v":""},null,{"$f":"IF(G9208=\"\",\"\",VLOOKUP(G9208,Insumos!G:H,2,FALSE))","v":""}]
[null,null,null,null,null,{"$f":"IF(E9209=\"\",\"\",VLOOKUP(E9209,Insumos!AD:AE,2,FALSE))","v":""},null,{"$f":"IF(G9209=\"\",\"\",VLOOKUP(G9209,Insumos!G:H,2,FALSE))","v":""}]
[null,null,null,null,null,{"$f":"IF(E9210=\"\",\"\",VLOOKUP(E9210,Insumos!AD:AE,2,FALSE))","v":""},null,{"$f":"IF(G9210=\"\",\"\",VLOOKUP(G9210,Insumos!G:H,2,FALSE))","v":""}]
[null,null,null,null,null,{"$f":"IF(E9211=\"\",\"\",VLOOKUP(E9211,Insumos!AD:AE,2,FALSE))","v":""},null,{"$f":"IF(G9211=\"\",\"\",VLOOKUP(G9211,Insumos!G:H,2,FALSE))","v":""}]
[null,null,null,null,null,{"$f":"IF(E9212=\"\",\"\",VLOOKUP(E9212,Insumos!AD:AE,2,FALSE))","v":""},null,{"$f":"IF(G9212=\"\",\"\",VLOOKUP(G9212,Insumos!G:H,2,FALSE))","v":""}]
[null,null,null,null,null,{"$f":"IF(E9213=\"\",\"\",VLOOKUP(E9213,Insumos!AD:AE,2,FALSE))","v":""},null,{"$f":"IF(G9213=\"\",\"\",VLOOKUP(G9213,Insumos!G:H,2,FALSE))","v":""}]
[null,null,null,null,null,{"$f":"IF(E9214=\"\",\"\",VLOOKUP(E9214,Insumos!AD:AE,2,FALSE))","v":""},null,{"$f":"IF(G9214=\"\",\"\",VLOOKUP(G9214,Insumos!G:H,2,FALSE))","v":""}]
[null,null,null,null,null,{"$f":"IF(E9215=\"\",\"\",VLOOKUP(E9215,Insumos!AD:AE,2,FALSE))","v":""},null,{"$f":"IF(G9215=\"\",\"\",VLOOKUP(G9215,Insumos!G:H,2,FALSE))","v":""}]
[null,null,null,null,null,{"$f":"IF(E9216=\"\",\"\",VLOOKUP(E9216,Insumos!AD:AE,2,FALSE))","v":""},null,{"$f":"IF(G9216=\"\",\"\",VLOOKUP(G9216,Insumos!G:H,2,FALSE))","v":""}]
[null,null,null,null,null,{"$f":"IF(E9217=\"\",\"\",VLOOKUP(E9217,Insumos!AD:AE,2,FALSE))","v":""},null,{"$f":"IF(G9217=\"\",\"\",VLOOKUP(G9217,Insumos!G:H,2,FALSE))","v":""}]
[null,null,null,null,null,{"$f":"IF(E9218=\"\",\"\",VLOOKUP(E9218,Insumos!AD:AE,2,FALSE))","v":""},null,{"$f":"IF(G9218=\"\",\"\",VLOOKUP(G9218,Insumos!G:H,2,FALSE))","v":""}]
[null,null,null,null,null,{"$f":"IF(E9219=\"\",\"\",VLOOKUP(E9219,Insumos!AD:AE,2,FALSE))","v":""},null,{"$f":"IF(G9219=\"\",\"\",VLOOKUP(G9219,Insumos!G:H,2,FALSE))","v":""}]
[null,null,null,null,null,{"$f":"IF(E9220=\"\",\"\",VLOOKUP(E9220,Insumos!AD:AE,2,FALSE))","v":""},null,{"$f":"IF(G9220=\"\",\"\",VLOOKUP(G9220,Insumos!G:H,2,FALSE))","v":""}]
[null,null,null,null,null,{"$f":"IF(E9221=\"\",\"\",VLOOKUP(E9221,Insumos!AD:AE,2,FALSE))","v":""},null,{"$f":"IF(G9221=\"\",\"\",VLOOKUP(G9221,Insumos!G:H,2,FALSE))","v":""}]
[null,null,null,null,null,{"$f":"IF(E9222=\"\",\"\",VLOOKUP(E9222,Insumos!AD:AE,2,FALSE))","v":""},null,{"$f":"IF(G9222=\"\",\"\",VLOOKUP(G9222,Insumos!G:H,2,FALSE))","v":""}]
[null,null,null,null,null,{"$f":"IF(E9223=\"\",\"\",VLOOKUP(E9223,Insumos!AD:AE,2,FALSE))","v":""},null,{"$f":"IF(G9223=\"\",\"\",VLOOKUP(G9223,Insumos!G:H,2,FALSE))","v":""}]
[null,null,null,null,null,{"$f":"IF(E9224=\"\",\"\",VLOOKUP(E9224,Insumos!AD:AE,2,FALSE))","v":""},null,{"$f":"IF(G9224=\"\",\"\",VLOOKUP(G9224,Insumos!G:H,2,FALSE))","v":""}]
[null,null,null,null,null,{"$f":"IF(E9225=\"\",\"\",VLOOKUP(E9225,Insumos!AD:AE,2,FALSE))","v":""},null,{"$f":"IF(G9225=\"\",\"\",VLOOKUP(G9225,Insumos!G:H,2,FALSE))","v":""}]
[null,null,null,null,null,{"$f":"IF(E9226=\"\",\"\",VLOOKUP(E9226,Insumos!AD:AE,2,FALSE))","v":""},null,{"$f":"IF(G9226=\"\",\"\",VLOOKUP(G9226,Insumos!G:H,2,FALSE))","v":""}]
[null,null,null,null,null,{"$f":"IF(E9227=\"\",\"\",VLOOKUP(E9227,Insumos!AD:AE,2,FALSE))","v":""},null,{"$f":"IF(G9227=\"\",\"\",VLOOKUP(G9227,Insumos!G:H,2,FALSE))","v":""}]
[null,null,null,null,null,{"$f":"IF(E9228=\"\",\"\",VLOOKUP(E9228,Insumos!AD:AE,2,FALSE))","v":""},null,{"$f":"IF(G9228=\"\",\"\",VLOOKUP(G9228,Insumos!G:H,2,FALSE))","v":""}]
[null,null,null,null,null,{"$f":"IF(E9229=\"\",\"\",VLOOKUP(E9229,Insumos!AD:AE,2,FALSE))","v":""},null,{"$f":"IF(G9229=\"\",\"\",VLOOKUP(G9229,Insumos!G:H,2,FALSE))","v":""}]
[null,null,null,null,null,{"$f":"IF(E9230=\"\",\"\",VLOOKUP(E9230,Insumos!AD:AE,2,FALSE))","v":""},null,{"$f":"IF(G9230=\"\",\"\",VLOOKUP(G9230,Insumos!G:H,2,FALSE))","v":""}]
[null,null,null,null,null,{"$f":"IF(E9231=\"\",\"\",VLOOKUP(E9231,Insumos!AD:AE,2,FALSE))","v":""},null,{"$f":"IF(G9231=\"\",\"\",VLOOKUP(G9231,Insumos!G:H,2,FALSE))","v":""}]
[null,null,null,null,null,{"$f":"IF(E9232=\"\",\"\",VLOOKUP(E9232,Insumos!AD:AE,2,FALSE))","v":""},null,{"$f":"IF(G9232=\"\",\"\",VLOOKUP(G9232,Insumos!G:H,2,FALSE))","v":""}]
[null,null,null,null,null,{"$f":"IF(E9233=\"\",\"\",VLOOKUP(E9233,Insumos!AD:AE,2,FALSE))","v":""},null,{"$f":"IF(G9233=\"\",\"\",VLOOKUP(G9233,Insumos!G:H,2,FALSE))","v":""}]
[null,null,null,null,null,{"$f":"IF(E9234=\"\",\"\",VLOOKUP(E9234,Insumos!AD:AE,2,FALSE))","v":""},null,{"$f":"IF(G9234=\"\",\"\",VLOOKUP(G9234,Insumos!G:H,2,FALSE))","v":""}]
[null,null,null,null,null,{"$f":"IF(E9235=\"\",\"\",VLOOKUP(E9235,Insumos!AD:AE,2,FALSE))","v":""},null,{"$f":"IF(G9235=\"\",\"\",VLOOKUP(G9235,Insumos!G:H,2,FALSE))","v":""}]
[null,null,null,null,null,{"$f":"IF(E9236=\"\",\"\",VLOOKUP(E9236,Insumos!AD:AE,2,FALSE))","v":""},null,{"$f":"IF(G9236=\"\",\"\",VLOOKUP(G9236,Insumos!G:H,2,FALSE))","v":""}]
[null,null,null,null,null,{"$f":"IF(E9237=\"\",\"\",VLOOKUP(E9237,Insumos!AD:AE,2,FALSE))","v":""},null,{"$f":"IF(G9237=\"\",\"\",VLOOKUP(G9237,Insumos!G:H,2,FALSE))","v":""}]
[null,null,null,null,null,{"$f":"IF(E9238=\"\",\"\",VLOOKUP(E9238,Insumos!AD:AE,2,FALSE))","v":""},null,{"$f":"IF(G9238=\"\",\"\",VLOOKUP(G9238,Insumos!G:H,2,FALSE))","v":""}]
[null,null,null,null,null,{"$f":"IF(E9239=\"\",\"\",VLOOKUP(E9239,Insumos!AD:AE,2,FALSE))","v":""},null,{"$f":"IF(G9239=\"\",\"\",VLOOKUP(G9239,Insumos!G:H,2,FALSE))","v":""}]
[null,null,null,null,null,{"$f":"IF(E9240=\"\",\"\",VLOOKUP(E9240,Insumos!AD:AE,2,FALSE))","v":""},null,{"$f":"IF(G9240=\"\",\"\",VLOOKUP(G9240,Insumos!G:H,2,FALSE))","v":""}]
[null,null,null,null,null,{"$f":"IF(E9241=\"\",\"\",VLOOKUP(E9241,Insumos!AD:AE,2,FALSE))","v":""},null,{"$f":"IF(G9241=\"\",\"\",VLOOKUP(G9241,Insumos!G:H,2,FALSE))","v":""}]
[null,null,null,null,null,{"$f":"IF(E9242=\"\",\"\",VLOOKUP(E9242,Insumos!AD:AE,2,FALSE))","v":""},null,{"$f":"IF(G9242=\"\",\"\",VLOOKUP(G9242,Insumos!G:H,2,FALSE))","v":""}]
[null,null,null,null,null,{"$f":"IF(E9243=\"\",\"\",VLOOKUP(E9243,Insumos!AD:AE,2,FALSE))","v":""},null,{"$f":"IF(G9243=\"\",\"\",VLOOKUP(G9243,Insumos!G:H,2,FALSE))","v":""}]
[null,null,null,null,null,{"$f":"IF(E9244=\"\",\"\",VLOOKUP(E9244,Insumos!AD:AE,2,FALSE))","v":""},null,{"$f":"IF(G9244=\"\",\"\",VLOOKUP(G9244,Insumos!G:H,2,FALSE))","v":""}]
[null,null,null,null,null,{"$f":"IF(E9245=\"\",\"\",VLOOKUP(E9245,Insumos!AD:AE,2,FALSE))","v":""},null,{"$f":"IF(G9245=\"\",\"\",VLOOKUP(G9245,Insumos!G:H,2,FALSE))","v":""}]
[null,null,null,null,null,{"$f":"IF(E9246=\"\",\"\",VLOOKUP(E9246,Insumos!AD:AE,2,FALSE))","v":""},null,{"$f":"IF(G9246=\"\",\"\",VLOOKUP(G9246,Insumos!G:H,2,FALSE))","v":""}]
[null,null,null,null,null,{"$f":"IF(E9247=\"\",\"\",VLOOKUP(E9247,Insumos!AD:AE,2,FALSE))","v":""},null,{"$f":"IF(G9247=\"\",\"\",VLOOKUP(G9247,Insumos!G:H,2,FALSE))","v":""}]
[null,null,null,null,null,{"$f":"IF(E9248=\"\",\"\",VLOOKUP(E9248,Insumos!AD:AE,2,FALSE))","v":""},null,{"$f":"IF(G9248=\"\",\"\",VLOOKUP(G9248,Insumos!G:H,2,FALSE))","v":""}]
[null,null,null,null,null,{"$f":"IF(E9249=\"\",\"\",VLOOKUP(E9249,Insumos!AD:AE,2,FALSE))","v":""},null,{"$f":"IF(G9249=\"\",\"\",VLOOKUP(G9249,Insumos!G:H,2,FALSE))","v":""}]
[null,null,null,null,null,{"$f":"IF(E9250=\"\",\"\",VLOOKUP(E9250,Insumos!AD:AE,2,FALSE))","v":""},null,{"$f":"IF(G9250=\"\",\"\",VLOOKUP(G9250,Insumos!G:H,2,FALSE))","v":""}]
[null,null,null,null,null,{"$f":"IF(E9251=\"\",\"\",VLOOKUP(E9251,Insumos!AD:AE,2,FALSE))","v":""},null,{"$f":"IF(G9251=\"\",\"\",VLOOKUP(G9251,Insumos!G:H,2,FALSE))","v":""}]
[null,null,null,null,null,{"$f":"IF(E9252=\"\",\"\",VLOOKUP(E9252,Insumos!AD:AE,2,FALSE))","v":""},null,{"$f":"IF(G9252=\"\",\"\",VLOOKUP(G9252,Insumos!G:H,2,FALSE))","v":""}]
[null,null,null,null,null,{"$f":"IF(E9253=\"\",\"\",VLOOKUP(E9253,Insumos!AD:AE,2,FALSE))","v":""},null,{"$f":"IF(G9253=\"\",\"\",VLOOKUP(G9253,Insumos!G:H,2,FALSE))","v":""}]
[null,null,null,null,null,{"$f":"IF(E9254=\"\",\"\",VLOOKUP(E9254,Insumos!AD:AE,2,FALSE))","v":""},null,{"$f":"IF(G9254=\"\",\"\",VLOOKUP(G9254,Insumos!G:H,2,FALSE))","v":""}]
[null,null,null,null,null,{"$f":"IF(E9255=\"\",\"\",VLOOKUP(E9255,Insumos!AD:AE,2,FALSE))","v":""},null,{"$f":"IF(G9255=\"\",\"\",VLOOKUP(G9255,Insumos!G:H,2,FALSE))","v":""}]
[null,null,null,null,null,{"$f":"IF(E9256=\"\",\"\",VLOOKUP(E9256,Insumos!AD:AE,2,FALSE))","v":""},null,{"$f":"IF(G9256=\"\",\"\",VLOOKUP(G9256,Insumos!G:H,2,FALSE))","v":""}]
[null,null,null,null,null,{"$f":"IF(E9257=\"\",\"\",VLOOKUP(E9257,Insumos!AD:AE,2,FALSE))","v":""},null,{"$f":"IF(G9257=\"\",\"\",VLOOKUP(G9257,Insumos!G:H,2,FALSE))","v":""}]
[null,null,null,null,null,{"$f":"IF(E9258=\"\",\"\",VLOOKUP(E9258,Insumos!AD:AE,2,FALSE))","v":""},null,{"$f":"IF(G9258=\"\",\"\",VLOOKUP(G9258,Insumos!G:H,2,FALSE))","v":""}]
[null,null,null,null,null,{"$f":"IF(E9259=\"\",\"\",VLOOKUP(E9259,Insumos!AD:AE,2,FALSE))","v":""},null,{"$f":"IF(G9259=\"\",\"\",VLOOKUP(G9259,Insumos!G:H,2,FALSE))","v":""}]
[null,null,null,null,null,{"$f":"IF(E9260=\"\",\"\",VLOOKUP(E9260,Insumos!AD:AE,2,FALSE))","v":""},null,{"$f":"IF(G9260=\"\",\"\",VLOOKUP(G9260,Insumos!G:H,2,FALSE))","v":""}]
[null,null,null,null,null,{"$f":"IF(E9261=\"\",\"\",VLOOKUP(E9261,Insumos!AD:AE,2,FALSE))","v":""},null,{"$f":"IF(G9261=\"\",\"\",VLOOKUP(G9261,Insumos!G:H,2,FALSE))","v":""}]
[null,null,null,null,null,{"$f":"IF(E9262=\"\",\"\",VLOOKUP(E9262,Insumos!AD:AE,2,FALSE))","v":""},null,{"$f":"IF(G9262=\"\",\"\",VLOOKUP(G9262,Insumos!G:H,2,FALSE))","v":""}]
[null,null,null,null,null,{"$f":"IF(E9263=\"\",\"\",VLOOKUP(E9263,Insumos!AD:AE,2,FALSE))","v":""},null,{"$f":"IF(G9263=\"\",\"\",VLOOKUP(G9263,Insumos!G:H,2,FALSE))","v":""}]
[null,null,null,null,null,{"$f":"IF(E9264=\"\",\"\",VLOOKUP(E9264,Insumos!AD:AE,2,FALSE))","v":""},null,{"$f":"IF(G9264=\"\",\"\",VLOOKUP(G9264,Insumos!G:H,2,FALSE))","v":""}]
[null,null,null,null,null,{"$f":"IF(E9265=\"\",\"\",VLOOKUP(E9265,Insumos!AD:AE,2,FALSE))","v":""},null,{"$f":"IF(G9265=\"\",\"\",VLOOKUP(G9265,Insumos!G:H,2,FALSE))","v":""}]
[null,null,null,null,null,{"$f":"IF(E9266=\"\",\"\",VLOOKUP(E9266,Insumos!AD:AE,2,FALSE))","v":""},null,{"$f":"IF(G9266=\"\",\"\",VLOOKUP(G9266,Insumos!G:H,2,FALSE))","v":""}]
[null,null,null,null,null,{"$f":"IF(E9267=\"\",\"\",VLOOKUP(E9267,Insumos!AD:AE,2,FALSE))","v":""},null,{"$f":"IF(G9267=\"\",\"\",VLOOKUP(G9267,Insumos!G:H,2,FALSE))","v":""}]
[null,null,null,null,null,{"$f":"IF(E9268=\"\",\"\",VLOOKUP(E9268,Insumos!AD:AE,2,FALSE))","v":""},null,{"$f":"IF(G9268=\"\",\"\",VLOOKUP(G9268,Insumos!G:H,2,FALSE))","v":""}]
[null,null,null,null,null,{"$f":"IF(E9269=\"\",\"\",VLOOKUP(E9269,Insumos!AD:AE,2,FALSE))","v":""},null,{"$f":"IF(G9269=\"\",\"\",VLOOKUP(G9269,Insumos!G:H,2,FALSE))","v":""}]
[null,null,null,null,null,{"$f":"IF(E9270=\"\",\"\",VLOOKUP(E9270,Insumos!AD:AE,2,FALSE))","v":""},null,{"$f":"IF(G9270=\"\",\"\",VLOOKUP(G9270,Insumos!G:H,2,FALSE))","v":""}]
[null,null,null,null,null,{"$f":"IF(E9271=\"\",\"\",VLOOKUP(E9271,Insumos!AD:AE,2,FALSE))","v":""},null,{"$f":"IF(G9271=\"\",\"\",VLOOKUP(G9271,Insumos!G:H,2,FALSE))","v":""}]
[null,null,null,null,null,{"$f":"IF(E9272=\"\",\"\",VLOOKUP(E9272,Insumos!AD:AE,2,FALSE))","v":""},null,{"$f":"IF(G9272=\"\",\"\",VLOOKUP(G9272,Insumos!G:H,2,FALSE))","v":""}]
[null,null,null,null,null,{"$f":"IF(E9273=\"\",\"\",VLOOKUP(E9273,Insumos!AD:AE,2,FALSE))","v":""},null,{"$f":"IF(G9273=\"\",\"\",VLOOKUP(G9273,Insumos!G:H,2,FALSE))","v":""}]
[null,null,null,null,null,{"$f":"IF(E9274=\"\",\"\",VLOOKUP(E9274,Insumos!AD:AE,2,FALSE))","v":""},null,{"$f":"IF(G9274=\"\",\"\",VLOOKUP(G9274,Insumos!G:H,2,FALSE))","v":""}]
[null,null,null,null,null,{"$f":"IF(E9275=\"\",\"\",VLOOKUP(E9275,Insumos!AD:AE,2,FALSE))","v":""},null,{"$f":"IF(G9275=\"\",\"\",VLOOKUP(G9275,Insumos!G:H,2,FALSE))","v":""}]
[null,null,null,null,null,{"$f":"IF(E9276=\"\",\"\",VLOOKUP(E9276,Insumos!AD:AE,2,FALSE))","v":""},null,{"$f":"IF(G9276=\"\",\"\",VLOOKUP(G9276,Insumos!G:H,2,FALSE))","v":""}]
[null,null,null,null,null,{"$f":"IF(E9277=\"\",\"\",VLOOKUP(E9277,Insumos!AD:AE,2,FALSE))","v":""},null,{"$f":"IF(G9277=\"\",\"\",VLOOKUP(G9277,Insumos!G:H,2,FALSE))","v":""}]
[null,null,null,null,null,{"$f":"IF(E9278=\"\",\"\",VLOOKUP(E9278,Insumos!AD:AE,2,FALSE))","v":""},null,{"$f":"IF(G9278=\"\",\"\",VLOOKUP(G9278,Insumos!G:H,2,FALSE))","v":""}]
[null,null,null,null,null,{"$f":"IF(E9279=\"\",\"\",VLOOKUP(E9279,Insumos!AD:AE,2,FALSE))","v":""},null,{"$f":"IF(G9279=\"\",\"\",VLOOKUP(G9279,Insumos!G:H,2,FALSE))","v":""}]
[null,null,null,null,null,{"$f":"IF(E9280=\"\",\"\",VLOOKUP(E9280,Insumos!AD:AE,2,FALSE))","v":""},null,{"$f":"IF(G9280=\"\",\"\",VLOOKUP(G9280,Insumos!G:H,2,FALSE))","v":""}]
[null,null,null,null,null,{"$f":"IF(E9281=\"\",\"\",VLOOKUP(E9281,Insumos!AD:AE,2,FALSE))","v":""},null,{"$f":"IF(G9281=\"\",\"\",VLOOKUP(G9281,Insumos!G:H,2,FALSE))","v":""}]
[null,null,null,null,null,{"$f":"IF(E9282=\"\",\"\",VLOOKUP(E9282,Insumos!AD:AE,2,FALSE))","v":""},null,{"$f":"IF(G9282=\"\",\"\",VLOOKUP(G9282,Insumos!G:H,2,FALSE))","v":""}]
[null,null,null,null,null,{"$f":"IF(E9283=\"\",\"\",VLOOKUP(E9283,Insumos!AD:AE,2,FALSE))","v":""},null,{"$f":"IF(G9283=\"\",\"\",VLOOKUP(G9283,Insumos!G:H,2,FALSE))","v":""}]
[null,null,null,null,null,{"$f":"IF(E9284=\"\",\"\",VLOOKUP(E9284,Insumos!AD:AE,2,FALSE))","v":""},null,{"$f":"IF(G9284=\"\",\"\",VLOOKUP(G9284,Insumos!G:H,2,FALSE))","v":""}]
[null,null,null,null,null,{"$f":"IF(E9285=\"\",\"\",VLOOKUP(E9285,Insumos!AD:AE,2,FALSE))","v":""},null,{"$f":"IF(G9285=\"\",\"\",VLOOKUP(G9285,Insumos!G:H,2,FALSE))","v":""}]
[null,null,null,null,null,{"$f":"IF(E9286=\"\",\"\",VLOOKUP(E9286,Insumos!AD:AE,2,FALSE))","v":""},null,{"$f":"IF(G9286=\"\",\"\",VLOOKUP(G9286,Insumos!G:H,2,FALSE))","v":""}]
[null,null,null,null,null,{"$f":"IF(E9287=\"\",\"\",VLOOKUP(E9287,Insumos!AD:AE,2,FALSE))","v":""},null,{"$f":"IF(G9287=\"\",\"\",VLOOKUP(G9287,Insumos!G:H,2,FALSE))","v":""}]
[null,null,null,null,null,{"$f":"IF(E9288=\"\",\"\",VLOOKUP(E9288,Insumos!AD:AE,2,FALSE))","v":""},null,{"$f":"IF(G9288=\"\",\"\",VLOOKUP(G9288,Insumos!G:H,2,FALSE))","v":""}]
[null,null,null,null,null,{"$f":"IF(E9289=\"\",\"\",VLOOKUP(E9289,Insumos!AD:AE,2,FALSE))","v":""},null,{"$f":"IF(G9289=\"\",\"\",VLOOKUP(G9289,Insumos!G:H,2,FALSE))","v":""}]
[null,null,null,null,null,{"$f":"IF(E9290=\"\",\"\",VLOOKUP(E9290,Insumos!AD:AE,2,FALSE))","v":""},null,{"$f":"IF(G9290=\"\",\"\",VLOOKUP(G9290,Insumos!G:H,2,FALSE))","v":""}]
[null,null,null,null,null,{"$f":"IF(E9291=\"\",\"\",VLOOKUP(E9291,Insumos!AD:AE,2,FALSE))","v":""},null,{"$f":"IF(G9291=\"\",\"\",VLOOKUP(G9291,Insumos!G:H,2,FALSE))","v":""}]
[null,null,null,null,null,{"$f":"IF(E9292=\"\",\"\",VLOOKUP(E9292,Insumos!AD:AE,2,FALSE))","v":""},null,{"$f":"IF(G9292=\"\",\"\",VLOOKUP(G9292,Insumos!G:H,2,FALSE))","v":""}]
[null,null,null,null,null,{"$f":"IF(E9293=\"\",\"\",VLOOKUP(E9293,Insumos!AD:AE,2,FALSE))","v":""},null,{"$f":"IF(G9293=\"\",\"\",VLOOKUP(G9293,Insumos!G:H,2,FALSE))","v":""}]
[null,null,null,null,null,{"$f":"IF(E9294=\"\",\"\",VLOOKUP(E9294,Insumos!AD:AE,2,FALSE))","v":""},null,{"$f":"IF(G9294=\"\",\"\",VLOOKUP(G9294,Insumos!G:H,2,FALSE))","v":""}]
[null,null,null,null,null,{"$f":"IF(E9295=\"\",\"\",VLOOKUP(E9295,Insumos!AD:AE,2,FALSE))","v":""},null,{"$f":"IF(G9295=\"\",\"\",VLOOKUP(G9295,Insumos!G:H,2,FALSE))","v":""}]
[null,null,null,null,null,{"$f":"IF(E9296=\"\",\"\",VLOOKUP(E9296,Insumos!AD:AE,2,FALSE))","v":""},null,{"$f":"IF(G9296=\"\",\"\",VLOOKUP(G9296,Insumos!G:H,2,FALSE))","v":""}]
[null,null,null,null,null,{"$f":"IF(E9297=\"\",\"\",VLOOKUP(E9297,Insumos!AD:AE,2,FALSE))","v":""},null,{"$f":"IF(G9297=\"\",\"\",VLOOKUP(G9297,Insumos!G:H,2,FALSE))","v":""}]
[null,null,null,null,null,{"$f":"IF(E9298=\"\",\"\",VLOOKUP(E9298,Insumos!AD:AE,2,FALSE))","v":""},null,{"$f":"IF(G9298=\"\",\"\",VLOOKUP(G9298,Insumos!G:H,2,FALSE))","v":""}]
[null,null,null,null,null,{"$f":"IF(E9299=\"\",\"\",VLOOKUP(E9299,Insumos!AD:AE,2,FALSE))","v":""},null,{"$f":"IF(G9299=\"\",\"\",VLOOKUP(G9299,Insumos!G:H,2,FALSE))","v":""}]
[null,null,null,null,null,{"$f":"IF(E9300=\"\",\"\",VLOOKUP(E9300,Insumos!AD:AE,2,FALSE))","v":""},null,{"$f":"IF(G9300=\"\",\"\",VLOOKUP(G9300,Insumos!G:H,2,FALSE))","v":""}]
[null,null,null,null,null,{"$f":"IF(E9301=\"\",\"\",VLOOKUP(E9301,Insumos!AD:AE,2,FALSE))","v":""},null,{"$f":"IF(G9301=\"\",\"\",VLOOKUP(G9301,Insumos!G:H,2,FALSE))","v":""}]
[null,null,null,null,null,{"$f":"IF(E9302=\"\",\"\",VLOOKUP(E9302,Insumos!AD:AE,2,FALSE))","v":""},null,{"$f":"IF(G9302=\"\",\"\",VLOOKUP(G9302,Insumos!G:H,2,FALSE))","v":""}]
[null,null,null,null,null,{"$f":"IF(E9303=\"\",\"\",VLOOKUP(E9303,Insumos!AD:AE,2,FALSE))","v":""},null,{"$f":"IF(G9303=\"\",\"\",VLOOKUP(G9303,Insumos!G:H,2,FALSE))","v":""}]
[null,null,null,null,null,{"$f":"IF(E9304=\"\",\"\",VLOOKUP(E9304,Insumos!AD:AE,2,FALSE))","v":""},null,{"$f":"IF(G9304=\"\",\"\",VLOOKUP(G9304,Insumos!G:H,2,FALSE))","v":""}]
[null,null,null,null,null,{"$f":"IF(E9305=\"\",\"\",VLOOKUP(E9305,Insumos!AD:AE,2,FALSE))","v":""},null,{"$f":"IF(G9305=\"\",\"\",VLOOKUP(G9305,Insumos!G:H,2,FALSE))","v":""}]
[null,null,null,null,null,{"$f":"IF(E9306=\"\",\"\",VLOOKUP(E9306,Insumos!AD:AE,2,FALSE))","v":""},null,{"$f":"IF(G9306=\"\",\"\",VLOOKUP(G9306,Insumos!G:H,2,FALSE))","v":""}]
[null,null,null,null,null,{"$f":"IF(E9307=\"\",\"\",VLOOKUP(E9307,Insumos!AD:AE,2,FALSE))","v":""},null,{"$f":"IF(G9307=\"\",\"\",VLOOKUP(G9307,Insumos!G:H,2,FALSE))","v":""}]
[null,null,null,null,null,{"$f":"IF(E9308=\"\",\"\",VLOOKUP(E9308,Insumos!AD:AE,2,FALSE))","v":""},null,{"$f":"IF(G9308=\"\",\"\",VLOOKUP(G9308,Insumos!G:H,2,FALSE))","v":""}]
[null,null,null,null,null,{"$f":"IF(E9309=\"\",\"\",VLOOKUP(E9309,Insumos!AD:AE,2,FALSE))","v":""},null,{"$f":"IF(G9309=\"\",\"\",VLOOKUP(G9309,Insumos!G:H,2,FALSE))","v":""}]
[null,null,null,null,null,{"$f":"IF(E9310=\"\",\"\",VLOOKUP(E9310,Insumos!AD:AE,2,FALSE))","v":""},null,{"$f":"IF(G9310=\"\",\"\",VLOOKUP(G9310,Insumos!G:H,2,FALSE))","v":""}]
[null,null,null,null,null,{"$f":"IF(E9311=\"\",\"\",VLOOKUP(E9311,Insumos!AD:AE,2,FALSE))","v":""},null,{"$f":"IF(G9311=\"\",\"\",VLOOKUP(G9311,Insumos!G:H,2,FALSE))","v":""}]
[null,null,null,null,null,{"$f":"IF(E9312=\"\",\"\",VLOOKUP(E9312,Insumos!AD:AE,2,FALSE))","v":""},null,{"$f":"IF(G9312=\"\",\"\",VLOOKUP(G9312,Insumos!G:H,2,FALSE))","v":""}]
[null,null,null,null,null,{"$f":"IF(E9313=\"\",\"\",VLOOKUP(E9313,Insumos!AD:AE,2,FALSE))","v":""},null,{"$f":"IF(G9313=\"\",\"\",VLOOKUP(G9313,Insumos!G:H,2,FALSE))","v":""}]
[null,null,null,null,null,{"$f":"IF(E9314=\"\",\"\",VLOOKUP(E9314,Insumos!AD:AE,2,FALSE))","v":""},null,{"$f":"IF(G9314=\"\",\"\",VLOOKUP(G9314,Insumos!G:H,2,FALSE))","v":""}]
[null,null,null,null,null,{"$f":"IF(E9315=\"\",\"\",VLOOKUP(E9315,Insumos!AD:AE,2,FALSE))","v":""},null,{"$f":"IF(G9315=\"\",\"\",VLOOKUP(G9315,Insumos!G:H,2,FALSE))","v":""}]
[null,null,null,null,null,{"$f":"IF(E9316=\"\",\"\",VLOOKUP(E9316,Insumos!AD:AE,2,FALSE))","v":""},null,{"$f":"IF(G9316=\"\",\"\",VLOOKUP(G9316,Insumos!G:H,2,FALSE))","v":""}]
[null,null,null,null,null,{"$f":"IF(E9317=\"\",\"\",VLOOKUP(E9317,Insumos!AD:AE,2,FALSE))","v":""},null,{"$f":"IF(G9317=\"\",\"\",VLOOKUP(G9317,Insumos!G:H,2,FALSE))","v":""}]
[null,null,null,null,null,{"$f":"IF(E9318=\"\",\"\",VLOOKUP(E9318,Insumos!AD:AE,2,FALSE))","v":""},null,{"$f":"IF(G9318=\"\",\"\",VLOOKUP(G9318,Insumos!G:H,2,FALSE))","v":""}]
[null,null,null,null,null,{"$f":"IF(E9319=\"\",\"\",VLOOKUP(E9319,Insumos!AD:AE,2,FALSE))","v":""},null,{"$f":"IF(G9319=\"\",\"\",VLOOKUP(G9319,Insumos!G:H,2,FALSE))","v":""}]
[null,null,null,null,null,{"$f":"IF(E9320=\"\",\"\",VLOOKUP(E9320,Insumos!AD:AE,2,FALSE))","v":""},null,{"$f":"IF(G9320=\"\",\"\",VLOOKUP(G9320,Insumos!G:H,2,FALSE))","v":""}]
[null,null,null,null,null,{"$f":"IF(E9321=\"\",\"\",VLOOKUP(E9321,Insumos!AD:AE,2,FALSE))","v":""},null,{"$f":"IF(G9321=\"\",\"\",VLOOKUP(G9321,Insumos!G:H,2,FALSE))","v":""}]
[null,null,null,null,null,{"$f":"IF(E9322=\"\",\"\",VLOOKUP(E9322,Insumos!AD:AE,2,FALSE))","v":""},null,{"$f":"IF(G9322=\"\",\"\",VLOOKUP(G9322,Insumos!G:H,2,FALSE))","v":""}]
[null,null,null,null,null,{"$f":"IF(E9323=\"\",\"\",VLOOKUP(E9323,Insumos!AD:AE,2,FALSE))","v":""},null,{"$f":"IF(G9323=\"\",\"\",VLOOKUP(G9323,Insumos!G:H,2,FALSE))","v":""}]
[null,null,null,null,null,{"$f":"IF(E9324=\"\",\"\",VLOOKUP(E9324,Insumos!AD:AE,2,FALSE))","v":""},null,{"$f":"IF(G9324=\"\",\"\",VLOOKUP(G9324,Insumos!G:H,2,FALSE))","v":""}]
[null,null,null,null,null,{"$f":"IF(E9325=\"\",\"\",VLOOKUP(E9325,Insumos!AD:AE,2,FALSE))","v":""},null,{"$f":"IF(G9325=\"\",\"\",VLOOKUP(G9325,Insumos!G:H,2,FALSE))","v":""}]
[null,null,null,null,null,{"$f":"IF(E9326=\"\",\"\",VLOOKUP(E9326,Insumos!AD:AE,2,FALSE))","v":""},null,{"$f":"IF(G9326=\"\",\"\",VLOOKUP(G9326,Insumos!G:H,2,FALSE))","v":""}]
[null,null,null,null,null,{"$f":"IF(E9327=\"\",\"\",VLOOKUP(E9327,Insumos!AD:AE,2,FALSE))","v":""},null,{"$f":"IF(G9327=\"\",\"\",VLOOKUP(G9327,Insumos!G:H,2,FALSE))","v":""}]
[null,null,null,null,null,{"$f":"IF(E9328=\"\",\"\",VLOOKUP(E9328,Insumos!AD:AE,2,FALSE))","v":""},null,{"$f":"IF(G9328=\"\",\"\",VLOOKUP(G9328,Insumos!G:H,2,FALSE))","v":""}]
[null,null,null,null,null,{"$f":"IF(E9329=\"\",\"\",VLOOKUP(E9329,Insumos!AD:AE,2,FALSE))","v":""},null,{"$f":"IF(G9329=\"\",\"\",VLOOKUP(G9329,Insumos!G:H,2,FALSE))","v":""}]
[null,null,null,null,null,{"$f":"IF(E9330=\"\",\"\",VLOOKUP(E9330,Insumos!AD:AE,2,FALSE))","v":""},null,{"$f":"IF(G9330=\"\",\"\",VLOOKUP(G9330,Insumos!G:H,2,FALSE))","v":""}]
[null,null,null,null,null,{"$f":"IF(E9331=\"\",\"\",VLOOKUP(E9331,Insumos!AD:AE,2,FALSE))","v":""},null,{"$f":"IF(G9331=\"\",\"\",VLOOKUP(G9331,Insumos!G:H,2,FALSE))","v":""}]
[null,null,null,null,null,{"$f":"IF(E9332=\"\",\"\",VLOOKUP(E9332,Insumos!AD:AE,2,FALSE))","v":""},null,{"$f":"IF(G9332=\"\",\"\",VLOOKUP(G9332,Insumos!G:H,2,FALSE))","v":""}]
[null,null,null,null,null,{"$f":"IF(E9333=\"\",\"\",VLOOKUP(E9333,Insumos!AD:AE,2,FALSE))","v":""},null,{"$f":"IF(G9333=\"\",\"\",VLOOKUP(G9333,Insumos!G:H,2,FALSE))","v":""}]
[null,null,null,null,null,{"$f":"IF(E9334=\"\",\"\",VLOOKUP(E9334,Insumos!AD:AE,2,FALSE))","v":""},null,{"$f":"IF(G9334=\"\",\"\",VLOOKUP(G9334,Insumos!G:H,2,FALSE))","v":""}]
[null,null,null,null,null,{"$f":"IF(E9335=\"\",\"\",VLOOKUP(E9335,Insumos!AD:AE,2,FALSE))","v":""},null,{"$f":"IF(G9335=\"\",\"\",VLOOKUP(G9335,Insumos!G:H,2,FALSE))","v":""}]
[null,null,null,null,null,{"$f":"IF(E9336=\"\",\"\",VLOOKUP(E9336,Insumos!AD:AE,2,FALSE))","v":""},null,{"$f":"IF(G9336=\"\",\"\",VLOOKUP(G9336,Insumos!G:H,2,FALSE))","v":""}]
[null,null,null,null,null,{"$f":"IF(E9337=\"\",\"\",VLOOKUP(E9337,Insumos!AD:AE,2,FALSE))","v":""},null,{"$f":"IF(G9337=\"\",\"\",VLOOKUP(G9337,Insumos!G:H,2,FALSE))","v":""}]
[null,null,null,null,null,{"$f":"IF(E9338=\"\",\"\",VLOOKUP(E9338,Insumos!AD:AE,2,FALSE))","v":""},null,{"$f":"IF(G9338=\"\",\"\",VLOOKUP(G9338,Insumos!G:H,2,FALSE))","v":""}]
[null,null,null,null,null,{"$f":"IF(E9339=\"\",\"\",VLOOKUP(E9339,Insumos!AD:AE,2,FALSE))","v":""},null,{"$f":"IF(G9339=\"\",\"\",VLOOKUP(G9339,Insumos!G:H,2,FALSE))","v":""}]
[null,null,null,null,null,{"$f":"IF(E9340=\"\",\"\",VLOOKUP(E9340,Insumos!AD:AE,2,FALSE))","v":""},null,{"$f":"IF(G9340=\"\",\"\",VLOOKUP(G9340,Insumos!G:H,2,FALSE))","v":""}]
[null,null,null,null,null,{"$f":"IF(E9341=\"\",\"\",VLOOKUP(E9341,Insumos!AD:AE,2,FALSE))","v":""},null,{"$f":"IF(G9341=\"\",\"\",VLOOKUP(G9341,Insumos!G:H,2,FALSE))","v":""}]
[null,null,null,null,null,{"$f":"IF(E9342=\"\",\"\",VLOOKUP(E9342,Insumos!AD:AE,2,FALSE))","v":""},null,{"$f":"IF(G9342=\"\",\"\",VLOOKUP(G9342,Insumos!G:H,2,FALSE))","v":""}]
[null,null,null,null,null,{"$f":"IF(E9343=\"\",\"\",VLOOKUP(E9343,Insumos!AD:AE,2,FALSE))","v":""},null,{"$f":"IF(G9343=\"\",\"\",VLOOKUP(G9343,Insumos!G:H,2,FALSE))","v":""}]
[null,null,null,null,null,{"$f":"IF(E9344=\"\",\"\",VLOOKUP(E9344,Insumos!AD:AE,2,FALSE))","v":""},null,{"$f":"IF(G9344=\"\",\"\",VLOOKUP(G9344,Insumos!G:H,2,FALSE))","v":""}]
[null,null,null,null,null,{"$f":"IF(E9345=\"\",\"\",VLOOKUP(E9345,Insumos!AD:AE,2,FALSE))","v":""},null,{"$f":"IF(G9345=\"\",\"\",VLOOKUP(G9345,Insumos!G:H,2,FALSE))","v":""}]
[null,null,null,null,null,{"$f":"IF(E9346=\"\",\"\",VLOOKUP(E9346,Insumos!AD:AE,2,FALSE))","v":""},null,{"$f":"IF(G9346=\"\",\"\",VLOOKUP(G9346,Insumos!G:H,2,FALSE))","v":""}]
[null,null,null,null,null,{"$f":"IF(E9347=\"\",\"\",VLOOKUP(E9347,Insumos!AD:AE,2,FALSE))","v":""},null,{"$f":"IF(G9347=\"\",\"\",VLOOKUP(G9347,Insumos!G:H,2,FALSE))","v":""}]
[null,null,null,null,null,{"$f":"IF(E9348=\"\",\"\",VLOOKUP(E9348,Insumos!AD:AE,2,FALSE))","v":""},null,{"$f":"IF(G9348=\"\",\"\",VLOOKUP(G9348,Insumos!G:H,2,FALSE))","v":""}]
[null,null,null,null,null,{"$f":"IF(E9349=\"\",\"\",VLOOKUP(E9349,Insumos!AD:AE,2,FALSE))","v":""},null,{"$f":"IF(G9349=\"\",\"\",VLOOKUP(G9349,Insumos!G:H,2,FALSE))","v":""}]
[null,null,null,null,null,{"$f":"IF(E9350=\"\",\"\",VLOOKUP(E9350,Insumos!AD:AE,2,FALSE))","v":""},null,{"$f":"IF(G9350=\"\",\"\",VLOOKUP(G9350,Insumos!G:H,2,FALSE))","v":""}]
[null,null,null,null,null,{"$f":"IF(E9351=\"\",\"\",VLOOKUP(E9351,Insumos!AD:AE,2,FALSE))","v":""},null,{"$f":"IF(G9351=\"\",\"\",VLOOKUP(G9351,Insumos!G:H,2,FALSE))","v":""}]
[null,null,null,null,null,{"$f":"IF(E9352=\"\",\"\",VLOOKUP(E9352,Insumos!AD:AE,2,FALSE))","v":""},null,{"$f":"IF(G9352=\"\",\"\",VLOOKUP(G9352,Insumos!G:H,2,FALSE))","v":""}]
[null,null,null,null,null,{"$f":"IF(E9353=\"\",\"\",VLOOKUP(E9353,Insumos!AD:AE,2,FALSE))","v":""},null,{"$f":"IF(G9353=\"\",\"\",VLOOKUP(G9353,Insumos!G:H,2,FALSE))","v":""}]
[null,null,null,null,null,{"$f":"IF(E9354=\"\",\"\",VLOOKUP(E9354,Insumos!AD:AE,2,FALSE))","v":""},null,{"$f":"IF(G9354=\"\",\"\",VLOOKUP(G9354,Insumos!G:H,2,FALSE))","v":""}]
[null,null,null,null,null,{"$f":"IF(E9355=\"\",\"\",VLOOKUP(E9355,Insumos!AD:AE,2,FALSE))","v":""},null,{"$f":"IF(G9355=\"\",\"\",VLOOKUP(G9355,Insumos!G:H,2,FALSE))","v":""}]
[null,null,null,null,null,{"$f":"IF(E9356=\"\",\"\",VLOOKUP(E9356,Insumos!AD:AE,2,FALSE))","v":""},null,{"$f":"IF(G9356=\"\",\"\",VLOOKUP(G9356,Insumos!G:H,2,FALSE))","v":""}]
[null,null,null,null,null,{"$f":"IF(E9357=\"\",\"\",VLOOKUP(E9357,Insumos!AD:AE,2,FALSE))","v":""},null,{"$f":"IF(G9357=\"\",\"\",VLOOKUP(G9357,Insumos!G:H,2,FALSE))","v":""}]
[null,null,null,null,null,{"$f":"IF(E9358=\"\",\"\",VLOOKUP(E9358,Insumos!AD:AE,2,FALSE))","v":""},null,{"$f":"IF(G9358=\"\",\"\",VLOOKUP(G9358,Insumos!G:H,2,FALSE))","v":""}]
[null,null,null,null,null,{"$f":"IF(E9359=\"\",\"\",VLOOKUP(E9359,Insumos!AD:AE,2,FALSE))","v":""},null,{"$f":"IF(G9359=\"\",\"\",VLOOKUP(G9359,Insumos!G:H,2,FALSE))","v":""}]
[null,null,null,null,null,{"$f":"IF(E9360=\"\",\"\",VLOOKUP(E9360,Insumos!AD:AE,2,FALSE))","v":""},null,{"$f":"IF(G9360=\"\",\"\",VLOOKUP(G9360,Insumos!G:H,2,FALSE))","v":""}]
[null,null,null,null,null,{"$f":"IF(E9361=\"\",\"\",VLOOKUP(E9361,Insumos!AD:AE,2,FALSE))","v":""},null,{"$f":"IF(G9361=\"\",\"\",VLOOKUP(G9361,Insumos!G:H,2,FALSE))","v":""}]
[null,null,null,null,null,{"$f":"IF(E9362=\"\",\"\",VLOOKUP(E9362,Insumos!AD:AE,2,FALSE))","v":""},null,{"$f":"IF(G9362=\"\",\"\",VLOOKUP(G9362,Insumos!G:H,2,FALSE))","v":""}]
[null,null,null,null,null,{"$f":"IF(E9363=\"\",\"\",VLOOKUP(E9363,Insumos!AD:AE,2,FALSE))","v":""},null,{"$f":"IF(G9363=\"\",\"\",VLOOKUP(G9363,Insumos!G:H,2,FALSE))","v":""}]
[null,null,null,null,null,{"$f":"IF(E9364=\"\",\"\",VLOOKUP(E9364,Insumos!AD:AE,2,FALSE))","v":""},null,{"$f":"IF(G9364=\"\",\"\",VLOOKUP(G9364,Insumos!G:H,2,FALSE))","v":""}]
[null,null,null,null,null,{"$f":"IF(E9365=\"\",\"\",VLOOKUP(E9365,Insumos!AD:AE,2,FALSE))","v":""},null,{"$f":"IF(G9365=\"\",\"\",VLOOKUP(G9365,Insumos!G:H,2,FALSE))","v":""}]
[null,null,null,null,null,{"$f":"IF(E9366=\"\",\"\",VLOOKUP(E9366,Insumos!AD:AE,2,FALSE))","v":""},null,{"$f":"IF(G9366=\"\",\"\",VLOOKUP(G9366,Insumos!G:H,2,FALSE))","v":""}]
[null,null,null,null,null,{"$f":"IF(E9367=\"\",\"\",VLOOKUP(E9367,Insumos!AD:AE,2,FALSE))","v":""},null,{"$f":"IF(G9367=\"\",\"\",VLOOKUP(G9367,Insumos!G:H,2,FALSE))","v":""}]
[null,null,null,null,null,{"$f":"IF(E9368=\"\",\"\",VLOOKUP(E9368,Insumos!AD:AE,2,FALSE))","v":""},null,{"$f":"IF(G9368=\"\",\"\",VLOOKUP(G9368,Insumos!G:H,2,FALSE))","v":""}]
[null,null,null,null,null,{"$f":"IF(E9369=\"\",\"\",VLOOKUP(E9369,Insumos!AD:AE,2,FALSE))","v":""},null,{"$f":"IF(G9369=\"\",\"\",VLOOKUP(G9369,Insumos!G:H,2,FALSE))","v":""}]
[null,null,null,null,null,{"$f":"IF(E9370=\"\",\"\",VLOOKUP(E9370,Insumos!AD:AE,2,FALSE))","v":""},null,{"$f":"IF(G9370=\"\",\"\",VLOOKUP(G9370,Insumos!G:H,2,FALSE))","v":""}]
[null,null,null,null,null,{"$f":"IF(E9371=\"\",\"\",VLOOKUP(E9371,Insumos!AD:AE,2,FALSE))","v":""},null,{"$f":"IF(G9371=\"\",\"\",VLOOKUP(G9371,Insumos!G:H,2,FALSE))","v":""}]
[null,null,null,null,null,{"$f":"IF(E9372=\"\",\"\",VLOOKUP(E9372,Insumos!AD:AE,2,FALSE))","v":""},null,{"$f":"IF(G9372=\"\",\"\",VLOOKUP(G9372,Insumos!G:H,2,FALSE))","v":""}]
[null,null,null,null,null,{"$f":"IF(E9373=\"\",\"\",VLOOKUP(E9373,Insumos!AD:AE,2,FALSE))","v":""},null,{"$f":"IF(G9373=\"\",\"\",VLOOKUP(G9373,Insumos!G:H,2,FALSE))","v":""}]
[null,null,null,null,null,{"$f":"IF(E9374=\"\",\"\",VLOOKUP(E9374,Insumos!AD:AE,2,FALSE))","v":""},null,{"$f":"IF(G9374=\"\",\"\",VLOOKUP(G9374,Insumos!G:H,2,FALSE))","v":""}]
[null,null,null,null,null,{"$f":"IF(E9375=\"\",\"\",VLOOKUP(E9375,Insumos!AD:AE,2,FALSE))","v":""},null,{"$f":"IF(G9375=\"\",\"\",VLOOKUP(G9375,Insumos!G:H,2,FALSE))","v":""}]
[null,null,null,null,null,{"$f":"IF(E9376=\"\",\"\",VLOOKUP(E9376,Insumos!AD:AE,2,FALSE))","v":""},null,{"$f":"IF(G9376=\"\",\"\",VLOOKUP(G9376,Insumos!G:H,2,FALSE))","v":""}]
[null,null,null,null,null,{"$f":"IF(E9377=\"\",\"\",VLOOKUP(E9377,Insumos!AD:AE,2,FALSE))","v":""},null,{"$f":"IF(G9377=\"\",\"\",VLOOKUP(G9377,Insumos!G:H,2,FALSE))","v":""}]
[null,null,null,null,null,{"$f":"IF(E9378=\"\",\"\",VLOOKUP(E9378,Insumos!AD:AE,2,FALSE))","v":""},null,{"$f":"IF(G9378=\"\",\"\",VLOOKUP(G9378,Insumos!G:H,2,FALSE))","v":""}]
[null,null,null,null,null,{"$f":"IF(E9379=\"\",\"\",VLOOKUP(E9379,Insumos!AD:AE,2,FALSE))","v":""},null,{"$f":"IF(G9379=\"\",\"\",VLOOKUP(G9379,Insumos!G:H,2,FALSE))","v":""}]
[null,null,null,null,null,{"$f":"IF(E9380=\"\",\"\",VLOOKUP(E9380,Insumos!AD:AE,2,FALSE))","v":""},null,{"$f":"IF(G9380=\"\",\"\",VLOOKUP(G9380,Insumos!G:H,2,FALSE))","v":""}]
[null,null,null,null,null,{"$f":"IF(E9381=\"\",\"\",VLOOKUP(E9381,Insumos!AD:AE,2,FALSE))","v":""},null,{"$f":"IF(G9381=\"\",\"\",VLOOKUP(G9381,Insumos!G:H,2,FALSE))","v":""}]
[null,null,null,null,null,{"$f":"IF(E9382=\"\",\"\",VLOOKUP(E9382,Insumos!AD:AE,2,FALSE))","v":""},null,{"$f":"IF(G9382=\"\",\"\",VLOOKUP(G9382,Insumos!G:H,2,FALSE))","v":""}]
[null,null,null,null,null,{"$f":"IF(E9383=\"\",\"\",VLOOKUP(E9383,Insumos!AD:AE,2,FALSE))","v":""},null,{"$f":"IF(G9383=\"\",\"\",VLOOKUP(G9383,Insumos!G:H,2,FALSE))","v":""}]
[null,null,null,null,null,{"$f":"IF(E9384=\"\",\"\",VLOOKUP(E9384,Insumos!AD:AE,2,FALSE))","v":""},null,{"$f":"IF(G9384=\"\",\"\",VLOOKUP(G9384,Insumos!G:H,2,FALSE))","v":""}]
[null,null,null,null,null,{"$f":"IF(E9385=\"\",\"\",VLOOKUP(E9385,Insumos!AD:AE,2,FALSE))","v":""},null,{"$f":"IF(G9385=\"\",\"\",VLOOKUP(G9385,Insumos!G:H,2,FALSE))","v":""}]
[null,null,null,null,null,{"$f":"IF(E9386=\"\",\"\",VLOOKUP(E9386,Insumos!AD:AE,2,FALSE))","v":""},null,{"$f":"IF(G9386=\"\",\"\",VLOOKUP(G9386,Insumos!G:H,2,FALSE))","v":""}]
[null,null,null,null,null,{"$f":"IF(E9387=\"\",\"\",VLOOKUP(E9387,Insumos!AD:AE,2,FALSE))","v":""},null,{"$f":"IF(G9387=\"\",\"\",VLOOKUP(G9387,Insumos!G:H,2,FALSE))","v":""}]
[null,null,null,null,null,{"$f":"IF(E9388=\"\",\"\",VLOOKUP(E9388,Insumos!AD:AE,2,FALSE))","v":""},null,{"$f":"IF(G9388=\"\",\"\",VLOOKUP(G9388,Insumos!G:H,2,FALSE))","v":""}]
[null,null,null,null,null,{"$f":"IF(E9389=\"\",\"\",VLOOKUP(E9389,Insumos!AD:AE,2,FALSE))","v":""},null,{"$f":"IF(G9389=\"\",\"\",VLOOKUP(G9389,Insumos!G:H,2,FALSE))","v":""}]
[null,null,null,null,null,{"$f":"IF(E9390=\"\",\"\",VLOOKUP(E9390,Insumos!AD:AE,2,FALSE))","v":""},null,{"$f":"IF(G9390=\"\",\"\",VLOOKUP(G9390,Insumos!G:H,2,FALSE))","v":""}]
[null,null,null,null,null,{"$f":"IF(E9391=\"\",\"\",VLOOKUP(E9391,Insumos!AD:AE,2,FALSE))","v":""},null,{"$f":"IF(G9391=\"\",\"\",VLOOKUP(G9391,Insumos!G:H,2,FALSE))","v":""}]
[null,null,null,null,null,{"$f":"IF(E9392=\"\",\"\",VLOOKUP(E9392,Insumos!AD:AE,2,FALSE))","v":""},null,{"$f":"IF(G9392=\"\",\"\",VLOOKUP(G9392,Insumos!G:H,2,FALSE))","v":""}]
[null,null,null,null,null,{"$f":"IF(E9393=\"\",\"\",VLOOKUP(E9393,Insumos!AD:AE,2,FALSE))","v":""},null,{"$f":"IF(G9393=\"\",\"\",VLOOKUP(G9393,Insumos!G:H,2,FALSE))","v":""}]
[null,null,null,null,null,{"$f":"IF(E9394=\"\",\"\",VLOOKUP(E9394,Insumos!AD:AE,2,FALSE))","v":""},null,{"$f":"IF(G9394=\"\",\"\",VLOOKUP(G9394,Insumos!G:H,2,FALSE))","v":""}]
[null,null,null,null,null,{"$f":"IF(E9395=\"\",\"\",VLOOKUP(E9395,Insumos!AD:AE,2,FALSE))","v":""},null,{"$f":"IF(G9395=\"\",\"\",VLOOKUP(G9395,Insumos!G:H,2,FALSE))","v":""}]
[null,null,null,null,null,{"$f":"IF(E9396=\"\",\"\",VLOOKUP(E9396,Insumos!AD:AE,2,FALSE))","v":""},null,{"$f":"IF(G9396=\"\",\"\",VLOOKUP(G9396,Insumos!G:H,2,FALSE))","v":""}]
[null,null,null,null,null,{"$f":"IF(E9397=\"\",\"\",VLOOKUP(E9397,Insumos!AD:AE,2,FALSE))","v":""},null,{"$f":"IF(G9397=\"\",\"\",VLOOKUP(G9397,Insumos!G:H,2,FALSE))","v":""}]
[null,null,null,null,null,{"$f":"IF(E9398=\"\",\"\",VLOOKUP(E9398,Insumos!AD:AE,2,FALSE))","v":""},null,{"$f":"IF(G9398=\"\",\"\",VLOOKUP(G9398,Insumos!G:H,2,FALSE))","v":""}]
[null,null,null,null,null,{"$f":"IF(E9399=\"\",\"\",VLOOKUP(E9399,Insumos!AD:AE,2,FALSE))","v":""},null,{"$f":"IF(G9399=\"\",\"\",VLOOKUP(G9399,Insumos!G:H,2,FALSE))","v":""}]
[null,null,null,null,null,{"$f":"IF(E9400=\"\",\"\",VLOOKUP(E9400,Insumos!AD:AE,2,FALSE))","v":""},null,{"$f":"IF(G9400=\"\",\"\",VLOOKUP(G9400,Insumos!G:H,2,FALSE))","v":""}]
[null,null,null,null,null,{"$f":"IF(E9401=\"\",\"\",VLOOKUP(E9401,Insumos!AD:AE,2,FALSE))","v":""},null,{"$f":"IF(G9401=\"\",\"\",VLOOKUP(G9401,Insumos!G:H,2,FALSE))","v":""}]
[null,null,null,null,null,{"$f":"IF(E9402=\"\",\"\",VLOOKUP(E9402,Insumos!AD:AE,2,FALSE))","v":""},null,{"$f":"IF(G9402=\"\",\"\",VLOOKUP(G9402,Insumos!G:H,2,FALSE))","v":""}]
[null,null,null,null,null,{"$f":"IF(E9403=\"\",\"\",VLOOKUP(E9403,Insumos!AD:AE,2,FALSE))","v":""},null,{"$f":"IF(G9403=\"\",\"\",VLOOKUP(G9403,Insumos!G:H,2,FALSE))","v":""}]
[null,null,null,null,null,{"$f":"IF(E9404=\"\",\"\",VLOOKUP(E9404,Insumos!AD:AE,2,FALSE))","v":""},null,{"$f":"IF(G9404=\"\",\"\",VLOOKUP(G9404,Insumos!G:H,2,FALSE))","v":""}]
[null,null,null,null,null,{"$f":"IF(E9405=\"\",\"\",VLOOKUP(E9405,Insumos!AD:AE,2,FALSE))","v":""},null,{"$f":"IF(G9405=\"\",\"\",VLOOKUP(G9405,Insumos!G:H,2,FALSE))","v":""}]
[null,null,null,null,null,{"$f":"IF(E9406=\"\",\"\",VLOOKUP(E9406,Insumos!AD:AE,2,FALSE))","v":""},null,{"$f":"IF(G9406=\"\",\"\",VLOOKUP(G9406,Insumos!G:H,2,FALSE))","v":""}]
[null,null,null,null,null,{"$f":"IF(E9407=\"\",\"\",VLOOKUP(E9407,Insumos!AD:AE,2,FALSE))","v":""},null,{"$f":"IF(G9407=\"\",\"\",VLOOKUP(G9407,Insumos!G:H,2,FALSE))","v":""}]
[null,null,null,null,null,{"$f":"IF(E9408=\"\",\"\",VLOOKUP(E9408,Insumos!AD:AE,2,FALSE))","v":""},null,{"$f":"IF(G9408=\"\",\"\",VLOOKUP(G9408,Insumos!G:H,2,FALSE))","v":""}]
[null,null,null,null,null,{"$f":"IF(E9409=\"\",\"\",VLOOKUP(E9409,Insumos!AD:AE,2,FALSE))","v":""},null,{"$f":"IF(G9409=\"\",\"\",VLOOKUP(G9409,Insumos!G:H,2,FALSE))","v":""}]
[null,null,null,null,null,{"$f":"IF(E9410=\"\",\"\",VLOOKUP(E9410,Insumos!AD:AE,2,FALSE))","v":""},null,{"$f":"IF(G9410=\"\",\"\",VLOOKUP(G9410,Insumos!G:H,2,FALSE))","v":""}]
[null,null,null,null,null,{"$f":"IF(E9411=\"\",\"\",VLOOKUP(E9411,Insumos!AD:AE,2,FALSE))","v":""},null,{"$f":"IF(G9411=\"\",\"\",VLOOKUP(G9411,Insumos!G:H,2,FALSE))","v":""}]
[null,null,null,null,null,{"$f":"IF(E9412=\"\",\"\",VLOOKUP(E9412,Insumos!AD:AE,2,FALSE))","v":""},null,{"$f":"IF(G9412=\"\",\"\",VLOOKUP(G9412,Insumos!G:H,2,FALSE))","v":""}]
[null,null,null,null,null,{"$f":"IF(E9413=\"\",\"\",VLOOKUP(E9413,Insumos!AD:AE,2,FALSE))","v":""},null,{"$f":"IF(G9413=\"\",\"\",VLOOKUP(G9413,Insumos!G:H,2,FALSE))","v":""}]
[null,null,null,null,null,{"$f":"IF(E9414=\"\",\"\",VLOOKUP(E9414,Insumos!AD:AE,2,FALSE))","v":""},null,{"$f":"IF(G9414=\"\",\"\",VLOOKUP(G9414,Insumos!G:H,2,FALSE))","v":""}]
[null,null,null,null,null,{"$f":"IF(E9415=\"\",\"\",VLOOKUP(E9415,Insumos!AD:AE,2,FALSE))","v":""},null,{"$f":"IF(G9415=\"\",\"\",VLOOKUP(G9415,Insumos!G:H,2,FALSE))","v":""}]
[null,null,null,null,null,{"$f":"IF(E9416=\"\",\"\",VLOOKUP(E9416,Insumos!AD:AE,2,FALSE))","v":""},null,{"$f":"IF(G9416=\"\",\"\",VLOOKUP(G9416,Insumos!G:H,2,FALSE))","v":""}]
[null,null,null,null,null,{"$f":"IF(E9417=\"\",\"\",VLOOKUP(E9417,Insumos!AD:AE,2,FALSE))","v":""},null,{"$f":"IF(G9417=\"\",\"\",VLOOKUP(G9417,Insumos!G:H,2,FALSE))","v":""}]
[null,null,null,null,null,{"$f":"IF(E9418=\"\",\"\",VLOOKUP(E9418,Insumos!AD:AE,2,FALSE))","v":""},null,{"$f":"IF(G9418=\"\",\"\",VLOOKUP(G9418,Insumos!G:H,2,FALSE))","v":""}]
[null,null,null,null,null,{"$f":"IF(E9419=\"\",\"\",VLOOKUP(E9419,Insumos!AD:AE,2,FALSE))","v":""},null,{"$f":"IF(G9419=\"\",\"\",VLOOKUP(G9419,Insumos!G:H,2,FALSE))","v":""}]
[null,null,null,null,null,{"$f":"IF(E9420=\"\",\"\",VLOOKUP(E9420,Insumos!AD:AE,2,FALSE))","v":""},null,{"$f":"IF(G9420=\"\",\"\",VLOOKUP(G9420,Insumos!G:H,2,FALSE))","v":""}]
[null,null,null,null,null,{"$f":"IF(E9421=\"\",\"\",VLOOKUP(E9421,Insumos!AD:AE,2,FALSE))","v":""},null,{"$f":"IF(G9421=\"\",\"\",VLOOKUP(G9421,Insumos!G:H,2,FALSE))","v":""}]
[null,null,null,null,null,{"$f":"IF(E9422=\"\",\"\",VLOOKUP(E9422,Insumos!AD:AE,2,FALSE))","v":""},null,{"$f":"IF(G9422=\"\",\"\",VLOOKUP(G9422,Insumos!G:H,2,FALSE))","v":""}]
[null,null,null,null,null,{"$f":"IF(E9423=\"\",\"\",VLOOKUP(E9423,Insumos!AD:AE,2,FALSE))","v":""},null,{"$f":"IF(G9423=\"\",\"\",VLOOKUP(G9423,Insumos!G:H,2,FALSE))","v":""}]
[null,null,null,null,null,{"$f":"IF(E9424=\"\",\"\",VLOOKUP(E9424,Insumos!AD:AE,2,FALSE))","v":""},null,{"$f":"IF(G9424=\"\",\"\",VLOOKUP(G9424,Insumos!G:H,2,FALSE))","v":""}]
[null,null,null,null,null,{"$f":"IF(E9425=\"\",\"\",VLOOKUP(E9425,Insumos!AD:AE,2,FALSE))","v":""},null,{"$f":"IF(G9425=\"\",\"\",VLOOKUP(G9425,Insumos!G:H,2,FALSE))","v":""}]
[null,null,null,null,null,{"$f":"IF(E9426=\"\",\"\",VLOOKUP(E9426,Insumos!AD:AE,2,FALSE))","v":""},null,{"$f":"IF(G9426=\"\",\"\",VLOOKUP(G9426,Insumos!G:H,2,FALSE))","v":""}]
[null,null,null,null,null,{"$f":"IF(E9427=\"\",\"\",VLOOKUP(E9427,Insumos!AD:AE,2,FALSE))","v":""},null,{"$f":"IF(G9427=\"\",\"\",VLOOKUP(G9427,Insumos!G:H,2,FALSE))","v":""}]
[null,null,null,null,null,{"$f":"IF(E9428=\"\",\"\",VLOOKUP(E9428,Insumos!AD:AE,2,FALSE))","v":""},null,{"$f":"IF(G9428=\"\",\"\",VLOOKUP(G9428,Insumos!G:H,2,FALSE))","v":""}]
[null,null,null,null,null,{"$f":"IF(E9429=\"\",\"\",VLOOKUP(E9429,Insumos!AD:AE,2,FALSE))","v":""},null,{"$f":"IF(G9429=\"\",\"\",VLOOKUP(G9429,Insumos!G:H,2,FALSE))","v":""}]
[null,null,null,null,null,{"$f":"IF(E9430=\"\",\"\",VLOOKUP(E9430,Insumos!AD:AE,2,FALSE))","v":""},null,{"$f":"IF(G9430=\"\",\"\",VLOOKUP(G9430,Insumos!G:H,2,FALSE))","v":""}]
[null,null,null,null,null,{"$f":"IF(E9431=\"\",\"\",VLOOKUP(E9431,Insumos!AD:AE,2,FALSE))","v":""},null,{"$f":"IF(G9431=\"\",\"\",VLOOKUP(G9431,Insumos!G:H,2,FALSE))","v":""}]
[null,null,null,null,null,{"$f":"IF(E9432=\"\",\"\",VLOOKUP(E9432,Insumos!AD:AE,2,FALSE))","v":""},null,{"$f":"IF(G9432=\"\",\"\",VLOOKUP(G9432,Insumos!G:H,2,FALSE))","v":""}]
[null,null,null,null,null,{"$f":"IF(E9433=\"\",\"\",VLOOKUP(E9433,Insumos!AD:AE,2,FALSE))","v":""},null,{"$f":"IF(G9433=\"\",\"\",VLOOKUP(G9433,Insumos!G:H,2,FALSE))","v":""}]
[null,null,null,null,null,{"$f":"IF(E9434=\"\",\"\",VLOOKUP(E9434,Insumos!AD:AE,2,FALSE))","v":""},null,{"$f":"IF(G9434=\"\",\"\",VLOOKUP(G9434,Insumos!G:H,2,FALSE))","v":""}]
[null,null,null,null,null,{"$f":"IF(E9435=\"\",\"\",VLOOKUP(E9435,Insumos!AD:AE,2,FALSE))","v":""},null,{"$f":"IF(G9435=\"\",\"\",VLOOKUP(G9435,Insumos!G:H,2,FALSE))","v":""}]
[null,null,null,null,null,{"$f":"IF(E9436=\"\",\"\",VLOOKUP(E9436,Insumos!AD:AE,2,FALSE))","v":""},null,{"$f":"IF(G9436=\"\",\"\",VLOOKUP(G9436,Insumos!G:H,2,FALSE))","v":""}]
[null,null,null,null,null,{"$f":"IF(E9437=\"\",\"\",VLOOKUP(E9437,Insumos!AD:AE,2,FALSE))","v":""},null,{"$f":"IF(G9437=\"\",\"\",VLOOKUP(G9437,Insumos!G:H,2,FALSE))","v":""}]
[null,null,null,null,null,{"$f":"IF(E9438=\"\",\"\",VLOOKUP(E9438,Insumos!AD:AE,2,FALSE))","v":""},null,{"$f":"IF(G9438=\"\",\"\",VLOOKUP(G9438,Insumos!G:H,2,FALSE))","v":""}]
[null,null,null,null,null,{"$f":"IF(E9439=\"\",\"\",VLOOKUP(E9439,Insumos!AD:AE,2,FALSE))","v":""},null,{"$f":"IF(G9439=\"\",\"\",VLOOKUP(G9439,Insumos!G:H,2,FALSE))","v":""}]
[null,null,null,null,null,{"$f":"IF(E9440=\"\",\"\",VLOOKUP(E9440,Insumos!AD:AE,2,FALSE))","v":""},null,{"$f":"IF(G9440=\"\",\"\",VLOOKUP(G9440,Insumos!G:H,2,FALSE))","v":""}]
[null,null,null,null,null,{"$f":"IF(E9441=\"\",\"\",VLOOKUP(E9441,Insumos!AD:AE,2,FALSE))","v":""},null,{"$f":"IF(G9441=\"\",\"\",VLOOKUP(G9441,Insumos!G:H,2,FALSE))","v":""}]
[null,null,null,null,null,{"$f":"IF(E9442=\"\",\"\",VLOOKUP(E9442,Insumos!AD:AE,2,FALSE))","v":""},null,{"$f":"IF(G9442=\"\",\"\",VLOOKUP(G9442,Insumos!G:H,2,FALSE))","v":""}]
[null,null,null,null,null,{"$f":"IF(E9443=\"\",\"\",VLOOKUP(E9443,Insumos!AD:AE,2,FALSE))","v":""},null,{"$f":"IF(G9443=\"\",\"\",VLOOKUP(G9443,Insumos!G:H,2,FALSE))","v":""}]
[null,null,null,null,null,{"$f":"IF(E9444=\"\",\"\",VLOOKUP(E9444,Insumos!AD:AE,2,FALSE))","v":""},null,{"$f":"IF(G9444=\"\",\"\",VLOOKUP(G9444,Insumos!G:H,2,FALSE))","v":""}]
[null,null,null,null,null,{"$f":"IF(E9445=\"\",\"\",VLOOKUP(E9445,Insumos!AD:AE,2,FALSE))","v":""},null,{"$f":"IF(G9445=\"\",\"\",VLOOKUP(G9445,Insumos!G:H,2,FALSE))","v":""}]
[null,null,null,null,null,{"$f":"IF(E9446=\"\",\"\",VLOOKUP(E9446,Insumos!AD:AE,2,FALSE))","v":""},null,{"$f":"IF(G9446=\"\",\"\",VLOOKUP(G9446,Insumos!G:H,2,FALSE))","v":""}]
[null,null,null,null,null,{"$f":"IF(E9447=\"\",\"\",VLOOKUP(E9447,Insumos!AD:AE,2,FALSE))","v":""},null,{"$f":"IF(G9447=\"\",\"\",VLOOKUP(G9447,Insumos!G:H,2,FALSE))","v":""}]
[null,null,null,null,null,{"$f":"IF(E9448=\"\",\"\",VLOOKUP(E9448,Insumos!AD:AE,2,FALSE))","v":""},null,{"$f":"IF(G9448=\"\",\"\",VLOOKUP(G9448,Insumos!G:H,2,FALSE))","v":""}]
[null,null,null,null,null,{"$f":"IF(E9449=\"\",\"\",VLOOKUP(E9449,Insumos!AD:AE,2,FALSE))","v":""},null,{"$f":"IF(G9449=\"\",\"\",VLOOKUP(G9449,Insumos!G:H,2,FALSE))","v":""}]
[null,null,null,null,null,{"$f":"IF(E9450=\"\",\"\",VLOOKUP(E9450,Insumos!AD:AE,2,FALSE))","v":""},null,{"$f":"IF(G9450=\"\",\"\",VLOOKUP(G9450,Insumos!G:H,2,FALSE))","v":""}]
[null,null,null,null,null,{"$f":"IF(E9451=\"\",\"\",VLOOKUP(E9451,Insumos!AD:AE,2,FALSE))","v":""},null,{"$f":"IF(G9451=\"\",\"\",VLOOKUP(G9451,Insumos!G:H,2,FALSE))","v":""}]
[null,null,null,null,null,{"$f":"IF(E9452=\"\",\"\",VLOOKUP(E9452,Insumos!AD:AE,2,FALSE))","v":""},null,{"$f":"IF(G9452=\"\",\"\",VLOOKUP(G9452,Insumos!G:H,2,FALSE))","v":""}]
[null,null,null,null,null,{"$f":"IF(E9453=\"\",\"\",VLOOKUP(E9453,Insumos!AD:AE,2,FALSE))","v":""},null,{"$f":"IF(G9453=\"\",\"\",VLOOKUP(G9453,Insumos!G:H,2,FALSE))","v":""}]
[null,null,null,null,null,{"$f":"IF(E9454=\"\",\"\",VLOOKUP(E9454,Insumos!AD:AE,2,FALSE))","v":""},null,{"$f":"IF(G9454=\"\",\"\",VLOOKUP(G9454,Insumos!G:H,2,FALSE))","v":""}]
[null,null,null,null,null,{"$f":"IF(E9455=\"\",\"\",VLOOKUP(E9455,Insumos!AD:AE,2,FALSE))","v":""},null,{"$f":"IF(G9455=\"\",\"\",VLOOKUP(G9455,Insumos!G:H,2,FALSE))","v":""}]
[null,null,null,null,null,{"$f":"IF(E9456=\"\",\"\",VLOOKUP(E9456,Insumos!AD:AE,2,FALSE))","v":""},null,{"$f":"IF(G9456=\"\",\"\",VLOOKUP(G9456,Insumos!G:H,2,FALSE))","v":""}]
[null,null,null,null,null,{"$f":"IF(E9457=\"\",\"\",VLOOKUP(E9457,Insumos!AD:AE,2,FALSE))","v":""},null,{"$f":"IF(G9457=\"\",\"\",VLOOKUP(G9457,Insumos!G:H,2,FALSE))","v":""}]
[null,null,null,null,null,{"$f":"IF(E9458=\"\",\"\",VLOOKUP(E9458,Insumos!AD:AE,2,FALSE))","v":""},null,{"$f":"IF(G9458=\"\",\"\",VLOOKUP(G9458,Insumos!G:H,2,FALSE))","v":""}]
[null,null,null,null,null,{"$f":"IF(E9459=\"\",\"\",VLOOKUP(E9459,Insumos!AD:AE,2,FALSE))","v":""},null,{"$f":"IF(G9459=\"\",\"\",VLOOKUP(G9459,Insumos!G:H,2,FALSE))","v":""}]
[null,null,null,null,null,{"$f":"IF(E9460=\"\",\"\",VLOOKUP(E9460,Insumos!AD:AE,2,FALSE))","v":""},null,{"$f":"IF(G9460=\"\",\"\",VLOOKUP(G9460,Insumos!G:H,2,FALSE))","v":""}]
[null,null,null,null,null,{"$f":"IF(E9461=\"\",\"\",VLOOKUP(E9461,Insumos!AD:AE,2,FALSE))","v":""},null,{"$f":"IF(G9461=\"\",\"\",VLOOKUP(G9461,Insumos!G:H,2,FALSE))","v":""}]
[null,null,null,null,null,{"$f":"IF(E9462=\"\",\"\",VLOOKUP(E9462,Insumos!AD:AE,2,FALSE))","v":""},null,{"$f":"IF(G9462=\"\",\"\",VLOOKUP(G9462,Insumos!G:H,2,FALSE))","v":""}]
[null,null,null,null,null,{"$f":"IF(E9463=\"\",\"\",VLOOKUP(E9463,Insumos!AD:AE,2,FALSE))","v":""},null,{"$f":"IF(G9463=\"\",\"\",VLOOKUP(G9463,Insumos!G:H,2,FALSE))","v":""}]
[null,null,null,null,null,{"$f":"IF(E9464=\"\",\"\",VLOOKUP(E9464,Insumos!AD:AE,2,FALSE))","v":""},null,{"$f":"IF(G9464=\"\",\"\",VLOOKUP(G9464,Insumos!G:H,2,FALSE))","v":""}]
[null,null,null,null,null,{"$f":"IF(E9465=\"\",\"\",VLOOKUP(E9465,Insumos!AD:AE,2,FALSE))","v":""},null,{"$f":"IF(G9465=\"\",\"\",VLOOKUP(G9465,Insumos!G:H,2,FALSE))","v":""}]
[null,null,null,null,null,{"$f":"IF(E9466=\"\",\"\",VLOOKUP(E9466,Insumos!AD:AE,2,FALSE))","v":""},null,{"$f":"IF(G9466=\"\",\"\",VLOOKUP(G9466,Insumos!G:H,2,FALSE))","v":""}]
[null,null,null,null,null,{"$f":"IF(E9467=\"\",\"\",VLOOKUP(E9467,Insumos!AD:AE,2,FALSE))","v":""},null,{"$f":"IF(G9467=\"\",\"\",VLOOKUP(G9467,Insumos!G:H,2,FALSE))","v":""}]
[null,null,null,null,null,{"$f":"IF(E9468=\"\",\"\",VLOOKUP(E9468,Insumos!AD:AE,2,FALSE))","v":""},null,{"$f":"IF(G9468=\"\",\"\",VLOOKUP(G9468,Insumos!G:H,2,FALSE))","v":""}]
[null,null,null,null,null,{"$f":"IF(E9469=\"\",\"\",VLOOKUP(E9469,Insumos!AD:AE,2,FALSE))","v":""},null,{"$f":"IF(G9469=\"\",\"\",VLOOKUP(G9469,Insumos!G:H,2,FALSE))","v":""}]
[null,null,null,null,null,{"$f":"IF(E9470=\"\",\"\",VLOOKUP(E9470,Insumos!AD:AE,2,FALSE))","v":""},null,{"$f":"IF(G9470=\"\",\"\",VLOOKUP(G9470,Insumos!G:H,2,FALSE))","v":""}]
[null,null,null,null,null,{"$f":"IF(E9471=\"\",\"\",VLOOKUP(E9471,Insumos!AD:AE,2,FALSE))","v":""},null,{"$f":"IF(G9471=\"\",\"\",VLOOKUP(G9471,Insumos!G:H,2,FALSE))","v":""}]
[null,null,null,null,null,{"$f":"IF(E9472=\"\",\"\",VLOOKUP(E9472,Insumos!AD:AE,2,FALSE))","v":""},null,{"$f":"IF(G9472=\"\",\"\",VLOOKUP(G9472,Insumos!G:H,2,FALSE))","v":""}]
[null,null,null,null,null,{"$f":"IF(E9473=\"\",\"\",VLOOKUP(E9473,Insumos!AD:AE,2,FALSE))","v":""},null,{"$f":"IF(G9473=\"\",\"\",VLOOKUP(G9473,Insumos!G:H,2,FALSE))","v":""}]
[null,null,null,null,null,{"$f":"IF(E9474=\"\",\"\",VLOOKUP(E9474,Insumos!AD:AE,2,FALSE))","v":""},null,{"$f":"IF(G9474=\"\",\"\",VLOOKUP(G9474,Insumos!G:H,2,FALSE))","v":""}]
[null,null,null,null,null,{"$f":"IF(E9475=\"\",\"\",VLOOKUP(E9475,Insumos!AD:AE,2,FALSE))","v":""},null,{"$f":"IF(G9475=\"\",\"\",VLOOKUP(G9475,Insumos!G:H,2,FALSE))","v":""}]
[null,null,null,null,null,{"$f":"IF(E9476=\"\",\"\",VLOOKUP(E9476,Insumos!AD:AE,2,FALSE))","v":""},null,{"$f":"IF(G9476=\"\",\"\",VLOOKUP(G9476,Insumos!G:H,2,FALSE))","v":""}]
[null,null,null,null,null,{"$f":"IF(E9477=\"\",\"\",VLOOKUP(E9477,Insumos!AD:AE,2,FALSE))","v":""},null,{"$f":"IF(G9477=\"\",\"\",VLOOKUP(G9477,Insumos!G:H,2,FALSE))","v":""}]
[null,null,null,null,null,{"$f":"IF(E9478=\"\",\"\",VLOOKUP(E9478,Insumos!AD:AE,2,FALSE))","v":""},null,{"$f":"IF(G9478=\"\",\"\",VLOOKUP(G9478,Insumos!G:H,2,FALSE))","v":""}]
[null,null,null,null,null,{"$f":"IF(E9479=\"\",\"\",VLOOKUP(E9479,Insumos!AD:AE,2,FALSE))","v":""},null,{"$f":"IF(G9479=\"\",\"\",VLOOKUP(G9479,Insumos!G:H,2,FALSE))","v":""}]
[null,null,null,null,null,{"$f":"IF(E9480=\"\",\"\",VLOOKUP(E9480,Insumos!AD:AE,2,FALSE))","v":""},null,{"$f":"IF(G9480=\"\",\"\",VLOOKUP(G9480,Insumos!G:H,2,FALSE))","v":""}]
[null,null,null,null,null,{"$f":"IF(E9481=\"\",\"\",VLOOKUP(E9481,Insumos!AD:AE,2,FALSE))","v":""},null,{"$f":"IF(G9481=\"\",\"\",VLOOKUP(G9481,Insumos!G:H,2,FALSE))","v":""}]
[null,null,null,null,null,{"$f":"IF(E9482=\"\",\"\",VLOOKUP(E9482,Insumos!AD:AE,2,FALSE))","v":""},null,{"$f":"IF(G9482=\"\",\"\",VLOOKUP(G9482,Insumos!G:H,2,FALSE))","v":""}]
[null,null,null,null,null,{"$f":"IF(E9483=\"\",\"\",VLOOKUP(E9483,Insumos!AD:AE,2,FALSE))","v":""},null,{"$f":"IF(G9483=\"\",\"\",VLOOKUP(G9483,Insumos!G:H,2,FALSE))","v":""}]
[null,null,null,null,null,{"$f":"IF(E9484=\"\",\"\",VLOOKUP(E9484,Insumos!AD:AE,2,FALSE))","v":""},null,{"$f":"IF(G9484=\"\",\"\",VLOOKUP(G9484,Insumos!G:H,2,FALSE))","v":""}]
[null,null,null,null,null,{"$f":"IF(E9485=\"\",\"\",VLOOKUP(E9485,Insumos!AD:AE,2,FALSE))","v":""},null,{"$f":"IF(G9485=\"\",\"\",VLOOKUP(G9485,Insumos!G:H,2,FALSE))","v":""}]
[null,null,null,null,null,{"$f":"IF(E9486=\"\",\"\",VLOOKUP(E9486,Insumos!AD:AE,2,FALSE))","v":""},null,{"$f":"IF(G9486=\"\",\"\",VLOOKUP(G9486,Insumos!G:H,2,FALSE))","v":""}]
[null,null,null,null,null,{"$f":"IF(E9487=\"\",\"\",VLOOKUP(E9487,Insumos!AD:AE,2,FALSE))","v":""},null,{"$f":"IF(G9487=\"\",\"\",VLOOKUP(G9487,Insumos!G:H,2,FALSE))","v":""}]
[null,null,null,null,null,{"$f":"IF(E9488=\"\",\"\",VLOOKUP(E9488,Insumos!AD:AE,2,FALSE))","v":""},null,{"$f":"IF(G9488=\"\",\"\",VLOOKUP(G9488,Insumos!G:H,2,FALSE))","v":""}]
[null,null,null,null,null,{"$f":"IF(E9489=\"\",\"\",VLOOKUP(E9489,Insumos!AD:AE,2,FALSE))","v":""},null,{"$f":"IF(G9489=\"\",\"\",VLOOKUP(G9489,Insumos!G:H,2,FALSE))","v":""}]
[null,null,null,null,null,{"$f":"IF(E9490=\"\",\"\",VLOOKUP(E9490,Insumos!AD:AE,2,FALSE))","v":""},null,{"$f":"IF(G9490=\"\",\"\",VLOOKUP(G9490,Insumos!G:H,2,FALSE))","v":""}]
[null,null,null,null,null,{"$f":"IF(E9491=\"\",\"\",VLOOKUP(E9491,Insumos!AD:AE,2,FALSE))","v":""},null,{"$f":"IF(G9491=\"\",\"\",VLOOKUP(G9491,Insumos!G:H,2,FALSE))","v":""}]
[null,null,null,null,null,{"$f":"IF(E9492=\"\",\"\",VLOOKUP(E9492,Insumos!AD:AE,2,FALSE))","v":""},null,{"$f":"IF(G9492=\"\",\"\",VLOOKUP(G9492,Insumos!G:H,2,FALSE))","v":""}]
[null,null,null,null,null,{"$f":"IF(E9493=\"\",\"\",VLOOKUP(E9493,Insumos!AD:AE,2,FALSE))","v":""},null,{"$f":"IF(G9493=\"\",\"\",VLOOKUP(G9493,Insumos!G:H,2,FALSE))","v":""}]
[null,null,null,null,null,{"$f":"IF(E9494=\"\",\"\",VLOOKUP(E9494,Insumos!AD:AE,2,FALSE))","v":""},null,{"$f":"IF(G9494=\"\",\"\",VLOOKUP(G9494,Insumos!G:H,2,FALSE))","v":""}]
[null,null,null,null,null,{"$f":"IF(E9495=\"\",\"\",VLOOKUP(E9495,Insumos!AD:AE,2,FALSE))","v":""},null,{"$f":"IF(G9495=\"\",\"\",VLOOKUP(G9495,Insumos!G:H,2,FALSE))","v":""}]
[null,null,null,null,null,{"$f":"IF(E9496=\"\",\"\",VLOOKUP(E9496,Insumos!AD:AE,2,FALSE))","v":""},null,{"$f":"IF(G9496=\"\",\"\",VLOOKUP(G9496,Insumos!G:H,2,FALSE))","v":""}]
[null,null,null,null,null,{"$f":"IF(E9497=\"\",\"\",VLOOKUP(E9497,Insumos!AD:AE,2,FALSE))","v":""},null,{"$f":"IF(G9497=\"\",\"\",VLOOKUP(G9497,Insumos!G:H,2,FALSE))","v":""}]
[null,null,null,null,null,{"$f":"IF(E9498=\"\",\"\",VLOOKUP(E9498,Insumos!AD:AE,2,FALSE))","v":""},null,{"$f":"IF(G9498=\"\",\"\",VLOOKUP(G9498,Insumos!G:H,2,FALSE))","v":""}]
[null,null,null,null,null,{"$f":"IF(E9499=\"\",\"\",VLOOKUP(E9499,Insumos!AD:AE,2,FALSE))","v":""},null,{"$f":"IF(G9499=\"\",\"\",VLOOKUP(G9499,Insumos!G:H,2,FALSE))","v":""}]
[null,null,null,null,null,{"$f":"IF(E9500=\"\",\"\",VLOOKUP(E9500,Insumos!AD:AE,2,FALSE))","v":""},null,{"$f":"IF(G9500=\"\",\"\",VLOOKUP(G9500,Insumos!G:H,2,FALSE))","v":""}]
[null,null,null,null,null,{"$f":"IF(E9501=\"\",\"\",VLOOKUP(E9501,Insumos!AD:AE,2,FALSE))","v":""},null,{"$f":"IF(G9501=\"\",\"\",VLOOKUP(G9501,Insumos!G:H,2,FALSE))","v":""}]
[null,null,null,null,null,{"$f":"IF(E9502=\"\",\"\",VLOOKUP(E9502,Insumos!AD:AE,2,FALSE))","v":""},null,{"$f":"IF(G9502=\"\",\"\",VLOOKUP(G9502,Insumos!G:H,2,FALSE))","v":""}]
[null,null,null,null,null,{"$f":"IF(E9503=\"\",\"\",VLOOKUP(E9503,Insumos!AD:AE,2,FALSE))","v":""},null,{"$f":"IF(G9503=\"\",\"\",VLOOKUP(G9503,Insumos!G:H,2,FALSE))","v":""}]
[null,null,null,null,null,{"$f":"IF(E9504=\"\",\"\",VLOOKUP(E9504,Insumos!AD:AE,2,FALSE))","v":""},null,{"$f":"IF(G9504=\"\",\"\",VLOOKUP(G9504,Insumos!G:H,2,FALSE))","v":""}]
[null,null,null,null,null,{"$f":"IF(E9505=\"\",\"\",VLOOKUP(E9505,Insumos!AD:AE,2,FALSE))","v":""},null,{"$f":"IF(G9505=\"\",\"\",VLOOKUP(G9505,Insumos!G:H,2,FALSE))","v":""}]
[null,null,null,null,null,{"$f":"IF(E9506=\"\",\"\",VLOOKUP(E9506,Insumos!AD:AE,2,FALSE))","v":""},null,{"$f":"IF(G9506=\"\",\"\",VLOOKUP(G9506,Insumos!G:H,2,FALSE))","v":""}]
[null,null,null,null,null,{"$f":"IF(E9507=\"\",\"\",VLOOKUP(E9507,Insumos!AD:AE,2,FALSE))","v":""},null,{"$f":"IF(G9507=\"\",\"\",VLOOKUP(G9507,Insumos!G:H,2,FALSE))","v":""}]
[null,null,null,null,null,{"$f":"IF(E9508=\"\",\"\",VLOOKUP(E9508,Insumos!AD:AE,2,FALSE))","v":""},null,{"$f":"IF(G9508=\"\",\"\",VLOOKUP(G9508,Insumos!G:H,2,FALSE))","v":""}]
[null,null,null,null,null,{"$f":"IF(E9509=\"\",\"\",VLOOKUP(E9509,Insumos!AD:AE,2,FALSE))","v":""},null,{"$f":"IF(G9509=\"\",\"\",VLOOKUP(G9509,Insumos!G:H,2,FALSE))","v":""}]
[null,null,null,null,null,{"$f":"IF(E9510=\"\",\"\",VLOOKUP(E9510,Insumos!AD:AE,2,FALSE))","v":""},null,{"$f":"IF(G9510=\"\",\"\",VLOOKUP(G9510,Insumos!G:H,2,FALSE))","v":""}]
[null,null,null,null,null,{"$f":"IF(E9511=\"\",\"\",VLOOKUP(E9511,Insumos!AD:AE,2,FALSE))","v":""},null,{"$f":"IF(G9511=\"\",\"\",VLOOKUP(G9511,Insumos!G:H,2,FALSE))","v":""}]
[null,null,null,null,null,{"$f":"IF(E9512=\"\",\"\",VLOOKUP(E9512,Insumos!AD:AE,2,FALSE))","v":""},null,{"$f":"IF(G9512=\"\",\"\",VLOOKUP(G9512,Insumos!G:H,2,FALSE))","v":""}]
[null,null,null,null,null,{"$f":"IF(E9513=\"\",\"\",VLOOKUP(E9513,Insumos!AD:AE,2,FALSE))","v":""},null,{"$f":"IF(G9513=\"\",\"\",VLOOKUP(G9513,Insumos!G:H,2,FALSE))","v":""}]
[null,null,null,null,null,{"$f":"IF(E9514=\"\",\"\",VLOOKUP(E9514,Insumos!AD:AE,2,FALSE))","v":""},null,{"$f":"IF(G9514=\"\",\"\",VLOOKUP(G9514,Insumos!G:H,2,FALSE))","v":""}]
[null,null,null,null,null,{"$f":"IF(E9515=\"\",\"\",VLOOKUP(E9515,Insumos!AD:AE,2,FALSE))","v":""},null,{"$f":"IF(G9515=\"\",\"\",VLOOKUP(G9515,Insumos!G:H,2,FALSE))","v":""}]
[null,null,null,null,null,{"$f":"IF(E9516=\"\",\"\",VLOOKUP(E9516,Insumos!AD:AE,2,FALSE))","v":""},null,{"$f":"IF(G9516=\"\",\"\",VLOOKUP(G9516,Insumos!G:H,2,FALSE))","v":""}]
[null,null,null,null,null,{"$f":"IF(E9517=\"\",\"\",VLOOKUP(E9517,Insumos!AD:AE,2,FALSE))","v":""},null,{"$f":"IF(G9517=\"\",\"\",VLOOKUP(G9517,Insumos!G:H,2,FALSE))","v":""}]
[null,null,null,null,null,{"$f":"IF(E9518=\"\",\"\",VLOOKUP(E9518,Insumos!AD:AE,2,FALSE))","v":""},null,{"$f":"IF(G9518=\"\",\"\",VLOOKUP(G9518,Insumos!G:H,2,FALSE))","v":""}]
[null,null,null,null,null,{"$f":"IF(E9519=\"\",\"\",VLOOKUP(E9519,Insumos!AD:AE,2,FALSE))","v":""},null,{"$f":"IF(G9519=\"\",\"\",VLOOKUP(G9519,Insumos!G:H,2,FALSE))","v":""}]
[null,null,null,null,null,{"$f":"IF(E9520=\"\",\"\",VLOOKUP(E9520,Insumos!AD:AE,2,FALSE))","v":""},null,{"$f":"IF(G9520=\"\",\"\",VLOOKUP(G9520,Insumos!G:H,2,FALSE))","v":""}]
[null,null,null,null,null,{"$f":"IF(E9521=\"\",\"\",VLOOKUP(E9521,Insumos!AD:AE,2,FALSE))","v":""},null,{"$f":"IF(G9521=\"\",\"\",VLOOKUP(G9521,Insumos!G:H,2,FALSE))","v":""}]
[null,null,null,null,null,{"$f":"IF(E9522=\"\",\"\",VLOOKUP(E9522,Insumos!AD:AE,2,FALSE))","v":""},null,{"$f":"IF(G9522=\"\",\"\",VLOOKUP(G9522,Insumos!G:H,2,FALSE))","v":""}]
[null,null,null,null,null,{"$f":"IF(E9523=\"\",\"\",VLOOKUP(E9523,Insumos!AD:AE,2,FALSE))","v":""},null,{"$f":"IF(G9523=\"\",\"\",VLOOKUP(G9523,Insumos!G:H,2,FALSE))","v":""}]
[null,null,null,null,null,{"$f":"IF(E9524=\"\",\"\",VLOOKUP(E9524,Insumos!AD:AE,2,FALSE))","v":""},null,{"$f":"IF(G9524=\"\",\"\",VLOOKUP(G9524,Insumos!G:H,2,FALSE))","v":""}]
[null,null,null,null,null,{"$f":"IF(E9525=\"\",\"\",VLOOKUP(E9525,Insumos!AD:AE,2,FALSE))","v":""},null,{"$f":"IF(G9525=\"\",\"\",VLOOKUP(G9525,Insumos!G:H,2,FALSE))","v":""}]
[null,null,null,null,null,{"$f":"IF(E9526=\"\",\"\",VLOOKUP(E9526,Insumos!AD:AE,2,FALSE))","v":""},null,{"$f":"IF(G9526=\"\",\"\",VLOOKUP(G9526,Insumos!G:H,2,FALSE))","v":""}]
[null,null,null,null,null,{"$f":"IF(E9527=\"\",\"\",VLOOKUP(E9527,Insumos!AD:AE,2,FALSE))","v":""},null,{"$f":"IF(G9527=\"\",\"\",VLOOKUP(G9527,Insumos!G:H,2,FALSE))","v":""}]
[null,null,null,null,null,{"$f":"IF(E9528=\"\",\"\",VLOOKUP(E9528,Insumos!AD:AE,2,FALSE))","v":""},null,{"$f":"IF(G9528=\"\",\"\",VLOOKUP(G9528,Insumos!G:H,2,FALSE))","v":""}]
[null,null,null,null,null,{"$f":"IF(E9529=\"\",\"\",VLOOKUP(E9529,Insumos!AD:AE,2,FALSE))","v":""},null,{"$f":"IF(G9529=\"\",\"\",VLOOKUP(G9529,Insumos!G:H,2,FALSE))","v":""}]
[null,null,null,null,null,{"$f":"IF(E9530=\"\",\"\",VLOOKUP(E9530,Insumos!AD:AE,2,FALSE))","v":""},null,{"$f":"IF(G9530=\"\",\"\",VLOOKUP(G9530,Insumos!G:H,2,FALSE))","v":""}]
[null,null,null,null,null,{"$f":"IF(E9531=\"\",\"\",VLOOKUP(E9531,Insumos!AD:AE,2,FALSE))","v":""},null,{"$f":"IF(G9531=\"\",\"\",VLOOKUP(G9531,Insumos!G:H,2,FALSE))","v":""}]
[null,null,null,null,null,{"$f":"IF(E9532=\"\",\"\",VLOOKUP(E9532,Insumos!AD:AE,2,FALSE))","v":""},null,{"$f":"IF(G9532=\"\",\"\",VLOOKUP(G9532,Insumos!G:H,2,FALSE))","v":""}]
[null,null,null,null,null,{"$f":"IF(E9533=\"\",\"\",VLOOKUP(E9533,Insumos!AD:AE,2,FALSE))","v":""},null,{"$f":"IF(G9533=\"\",\"\",VLOOKUP(G9533,Insumos!G:H,2,FALSE))","v":""}]
[null,null,null,null,null,{"$f":"IF(E9534=\"\",\"\",VLOOKUP(E9534,Insumos!AD:AE,2,FALSE))","v":""},null,{"$f":"IF(G9534=\"\",\"\",VLOOKUP(G9534,Insumos!G:H,2,FALSE))","v":""}]
[null,null,null,null,null,{"$f":"IF(E9535=\"\",\"\",VLOOKUP(E9535,Insumos!AD:AE,2,FALSE))","v":""},null,{"$f":"IF(G9535=\"\",\"\",VLOOKUP(G9535,Insumos!G:H,2,FALSE))","v":""}]
[null,null,null,null,null,{"$f":"IF(E9536=\"\",\"\",VLOOKUP(E9536,Insumos!AD:AE,2,FALSE))","v":""},null,{"$f":"IF(G9536=\"\",\"\",VLOOKUP(G9536,Insumos!G:H,2,FALSE))","v":""}]
[null,null,null,null,null,{"$f":"IF(E9537=\"\",\"\",VLOOKUP(E9537,Insumos!AD:AE,2,FALSE))","v":""},null,{"$f":"IF(G9537=\"\",\"\",VLOOKUP(G9537,Insumos!G:H,2,FALSE))","v":""}]
[null,null,null,null,null,{"$f":"IF(E9538=\"\",\"\",VLOOKUP(E9538,Insumos!AD:AE,2,FALSE))","v":""},null,{"$f":"IF(G9538=\"\",\"\",VLOOKUP(G9538,Insumos!G:H,2,FALSE))","v":""}]
[null,null,null,null,null,{"$f":"IF(E9539=\"\",\"\",VLOOKUP(E9539,Insumos!AD:AE,2,FALSE))","v":""},null,{"$f":"IF(G9539=\"\",\"\",VLOOKUP(G9539,Insumos!G:H,2,FALSE))","v":""}]
[null,null,null,null,null,{"$f":"IF(E9540=\"\",\"\",VLOOKUP(E9540,Insumos!AD:AE,2,FALSE))","v":""},null,{"$f":"IF(G9540=\"\",\"\",VLOOKUP(G9540,Insumos!G:H,2,FALSE))","v":""}]
[null,null,null,null,null,{"$f":"IF(E9541=\"\",\"\",VLOOKUP(E9541,Insumos!AD:AE,2,FALSE))","v":""},null,{"$f":"IF(G9541=\"\",\"\",VLOOKUP(G9541,Insumos!G:H,2,FALSE))","v":""}]
[null,null,null,null,null,{"$f":"IF(E9542=\"\",\"\",VLOOKUP(E9542,Insumos!AD:AE,2,FALSE))","v":""},null,{"$f":"IF(G9542=\"\",\"\",VLOOKUP(G9542,Insumos!G:H,2,FALSE))","v":""}]
[null,null,null,null,null,{"$f":"IF(E9543=\"\",\"\",VLOOKUP(E9543,Insumos!AD:AE,2,FALSE))","v":""},null,{"$f":"IF(G9543=\"\",\"\",VLOOKUP(G9543,Insumos!G:H,2,FALSE))","v":""}]
[null,null,null,null,null,{"$f":"IF(E9544=\"\",\"\",VLOOKUP(E9544,Insumos!AD:AE,2,FALSE))","v":""},null,{"$f":"IF(G9544=\"\",\"\",VLOOKUP(G9544,Insumos!G:H,2,FALSE))","v":""}]
[null,null,null,null,null,{"$f":"IF(E9545=\"\",\"\",VLOOKUP(E9545,Insumos!AD:AE,2,FALSE))","v":""},null,{"$f":"IF(G9545=\"\",\"\",VLOOKUP(G9545,Insumos!G:H,2,FALSE))","v":""}]
[null,null,null,null,null,{"$f":"IF(E9546=\"\",\"\",VLOOKUP(E9546,Insumos!AD:AE,2,FALSE))","v":""},null,{"$f":"IF(G9546=\"\",\"\",VLOOKUP(G9546,Insumos!G:H,2,FALSE))","v":""}]
[null,null,null,null,null,{"$f":"IF(E9547=\"\",\"\",VLOOKUP(E9547,Insumos!AD:AE,2,FALSE))","v":""},null,{"$f":"IF(G9547=\"\",\"\",VLOOKUP(G9547,Insumos!G:H,2,FALSE))","v":""}]
[null,null,null,null,null,{"$f":"IF(E9548=\"\",\"\",VLOOKUP(E9548,Insumos!AD:AE,2,FALSE))","v":""},null,{"$f":"IF(G9548=\"\",\"\",VLOOKUP(G9548,Insumos!G:H,2,FALSE))","v":""}]
[null,null,null,null,null,{"$f":"IF(E9549=\"\",\"\",VLOOKUP(E9549,Insumos!AD:AE,2,FALSE))","v":""},null,{"$f":"IF(G9549=\"\",\"\",VLOOKUP(G9549,Insumos!G:H,2,FALSE))","v":""}]
[null,null,null,null,null,{"$f":"IF(E9550=\"\",\"\",VLOOKUP(E9550,Insumos!AD:AE,2,FALSE))","v":""},null,{"$f":"IF(G9550=\"\",\"\",VLOOKUP(G9550,Insumos!G:H,2,FALSE))","v":""}]
[null,null,null,null,null,{"$f":"IF(E9551=\"\",\"\",VLOOKUP(E9551,Insumos!AD:AE,2,FALSE))","v":""},null,{"$f":"IF(G9551=\"\",\"\",VLOOKUP(G9551,Insumos!G:H,2,FALSE))","v":""}]
[null,null,null,null,null,{"$f":"IF(E9552=\"\",\"\",VLOOKUP(E9552,Insumos!AD:AE,2,FALSE))","v":""},null,{"$f":"IF(G9552=\"\",\"\",VLOOKUP(G9552,Insumos!G:H,2,FALSE))","v":""}]
[null,null,null,null,null,{"$f":"IF(E9553=\"\",\"\",VLOOKUP(E9553,Insumos!AD:AE,2,FALSE))","v":""},null,{"$f":"IF(G9553=\"\",\"\",VLOOKUP(G9553,Insumos!G:H,2,FALSE))","v":""}]
[null,null,null,null,null,{"$f":"IF(E9554=\"\",\"\",VLOOKUP(E9554,Insumos!AD:AE,2,FALSE))","v":""},null,{"$f":"IF(G9554=\"\",\"\",VLOOKUP(G9554,Insumos!G:H,2,FALSE))","v":""}]
[null,null,null,null,null,{"$f":"IF(E9555=\"\",\"\",VLOOKUP(E9555,Insumos!AD:AE,2,FALSE))","v":""},null,{"$f":"IF(G9555=\"\",\"\",VLOOKUP(G9555,Insumos!G:H,2,FALSE))","v":""}]
[null,null,null,null,null,{"$f":"IF(E9556=\"\",\"\",VLOOKUP(E9556,Insumos!AD:AE,2,FALSE))","v":""},null,{"$f":"IF(G9556=\"\",\"\",VLOOKUP(G9556,Insumos!G:H,2,FALSE))","v":""}]
[null,null,null,null,null,{"$f":"IF(E9557=\"\",\"\",VLOOKUP(E9557,Insumos!AD:AE,2,FALSE))","v":""},null,{"$f":"IF(G9557=\"\",\"\",VLOOKUP(G9557,Insumos!G:H,2,FALSE))","v":""}]
[null,null,null,null,null,{"$f":"IF(E9558=\"\",\"\",VLOOKUP(E9558,Insumos!AD:AE,2,FALSE))","v":""},null,{"$f":"IF(G9558=\"\",\"\",VLOOKUP(G9558,Insumos!G:H,2,FALSE))","v":""}]
[null,null,null,null,null,{"$f":"IF(E9559=\"\",\"\",VLOOKUP(E9559,Insumos!AD:AE,2,FALSE))","v":""},null,{"$f":"IF(G9559=\"\",\"\",VLOOKUP(G9559,Insumos!G:H,2,FALSE))","v":""}]
[null,null,null,null,null,{"$f":"IF(E9560=\"\",\"\",VLOOKUP(E9560,Insumos!AD:AE,2,FALSE))","v":""},null,{"$f":"IF(G9560=\"\",\"\",VLOOKUP(G9560,Insumos!G:H,2,FALSE))","v":""}]
[null,null,null,null,null,{"$f":"IF(E9561=\"\",\"\",VLOOKUP(E9561,Insumos!AD:AE,2,FALSE))","v":""},null,{"$f":"IF(G9561=\"\",\"\",VLOOKUP(G9561,Insumos!G:H,2,FALSE))","v":""}]
[null,null,null,null,null,{"$f":"IF(E9562=\"\",\"\",VLOOKUP(E9562,Insumos!AD:AE,2,FALSE))","v":""},null,{"$f":"IF(G9562=\"\",\"\",VLOOKUP(G9562,Insumos!G:H,2,FALSE))","v":""}]
[null,null,null,null,null,{"$f":"IF(E9563=\"\",\"\",VLOOKUP(E9563,Insumos!AD:AE,2,FALSE))","v":""},null,{"$f":"IF(G9563=\"\",\"\",VLOOKUP(G9563,Insumos!G:H,2,FALSE))","v":""}]
[null,null,null,null,null,{"$f":"IF(E9564=\"\",\"\",VLOOKUP(E9564,Insumos!AD:AE,2,FALSE))","v":""},null,{"$f":"IF(G9564=\"\",\"\",VLOOKUP(G9564,Insumos!G:H,2,FALSE))","v":""}]
[null,null,null,null,null,{"$f":"IF(E9565=\"\",\"\",VLOOKUP(E9565,Insumos!AD:AE,2,FALSE))","v":""},null,{"$f":"IF(G9565=\"\",\"\",VLOOKUP(G9565,Insumos!G:H,2,FALSE))","v":""}]
[null,null,null,null,null,{"$f":"IF(E9566=\"\",\"\",VLOOKUP(E9566,Insumos!AD:AE,2,FALSE))","v":""},null,{"$f":"IF(G9566=\"\",\"\",VLOOKUP(G9566,Insumos!G:H,2,FALSE))","v":""}]
[null,null,null,null,null,{"$f":"IF(E9567=\"\",\"\",VLOOKUP(E9567,Insumos!AD:AE,2,FALSE))","v":""},null,{"$f":"IF(G9567=\"\",\"\",VLOOKUP(G9567,Insumos!G:H,2,FALSE))","v":""}]
[null,null,null,null,null,{"$f":"IF(E9568=\"\",\"\",VLOOKUP(E9568,Insumos!AD:AE,2,FALSE))","v":""},null,{"$f":"IF(G9568=\"\",\"\",VLOOKUP(G9568,Insumos!G:H,2,FALSE))","v":""}]
[null,null,null,null,null,{"$f":"IF(E9569=\"\",\"\",VLOOKUP(E9569,Insumos!AD:AE,2,FALSE))","v":""},null,{"$f":"IF(G9569=\"\",\"\",VLOOKUP(G9569,Insumos!G:H,2,FALSE))","v":""}]
[null,null,null,null,null,{"$f":"IF(E9570=\"\",\"\",VLOOKUP(E9570,Insumos!AD:AE,2,FALSE))","v":""},null,{"$f":"IF(G9570=\"\",\"\",VLOOKUP(G9570,Insumos!G:H,2,FALSE))","v":""}]
[null,null,null,null,null,{"$f":"IF(E9571=\"\",\"\",VLOOKUP(E9571,Insumos!AD:AE,2,FALSE))","v":""},null,{"$f":"IF(G9571=\"\",\"\",VLOOKUP(G9571,Insumos!G:H,2,FALSE))","v":""}]
[null,null,null,null,null,{"$f":"IF(E9572=\"\",\"\",VLOOKUP(E9572,Insumos!AD:AE,2,FALSE))","v":""},null,{"$f":"IF(G9572=\"\",\"\",VLOOKUP(G9572,Insumos!G:H,2,FALSE))","v":""}]
[null,null,null,null,null,{"$f":"IF(E9573=\"\",\"\",VLOOKUP(E9573,Insumos!AD:AE,2,FALSE))","v":""},null,{"$f":"IF(G9573=\"\",\"\",VLOOKUP(G9573,Insumos!G:H,2,FALSE))","v":""}]
[null,null,null,null,null,{"$f":"IF(E9574=\"\",\"\",VLOOKUP(E9574,Insumos!AD:AE,2,FALSE))","v":""},null,{"$f":"IF(G9574=\"\",\"\",VLOOKUP(G9574,Insumos!G:H,2,FALSE))","v":""}]
[null,null,null,null,null,{"$f":"IF(E9575=\"\",\"\",VLOOKUP(E9575,Insumos!AD:AE,2,FALSE))","v":""},null,{"$f":"IF(G9575=\"\",\"\",VLOOKUP(G9575,Insumos!G:H,2,FALSE))","v":""}]
[null,null,null,null,null,{"$f":"IF(E9576=\"\",\"\",VLOOKUP(E9576,Insumos!AD:AE,2,FALSE))","v":""},null,{"$f":"IF(G9576=\"\",\"\",VLOOKUP(G9576,Insumos!G:H,2,FALSE))","v":""}]
[null,null,null,null,null,{"$f":"IF(E9577=\"\",\"\",VLOOKUP(E9577,Insumos!AD:AE,2,FALSE))","v":""},null,{"$f":"IF(G9577=\"\",\"\",VLOOKUP(G9577,Insumos!G:H,2,FALSE))","v":""}]
[null,null,null,null,null,{"$f":"IF(E9578=\"\",\"\",VLOOKUP(E9578,Insumos!AD:AE,2,FALSE))","v":""},null,{"$f":"IF(G9578=\"\",\"\",VLOOKUP(G9578,Insumos!G:H,2,FALSE))","v":""}]
[null,null,null,null,null,{"$f":"IF(E9579=\"\",\"\",VLOOKUP(E9579,Insumos!AD:AE,2,FALSE))","v":""},null,{"$f":"IF(G9579=\"\",\"\",VLOOKUP(G9579,Insumos!G:H,2,FALSE))","v":""}]
[null,null,null,null,null,{"$f":"IF(E9580=\"\",\"\",VLOOKUP(E9580,Insumos!AD:AE,2,FALSE))","v":""},null,{"$f":"IF(G9580=\"\",\"\",VLOOKUP(G9580,Insumos!G:H,2,FALSE))","v":""}]
[null,null,null,null,null,{"$f":"IF(E9581=\"\",\"\",VLOOKUP(E9581,Insumos!AD:AE,2,FALSE))","v":""},null,{"$f":"IF(G9581=\"\",\"\",VLOOKUP(G9581,Insumos!G:H,2,FALSE))","v":""}]
[null,null,null,null,null,{"$f":"IF(E9582=\"\",\"\",VLOOKUP(E9582,Insumos!AD:AE,2,FALSE))","v":""},null,{"$f":"IF(G9582=\"\",\"\",VLOOKUP(G9582,Insumos!G:H,2,FALSE))","v":""}]
[null,null,null,null,null,{"$f":"IF(E9583=\"\",\"\",VLOOKUP(E9583,Insumos!AD:AE,2,FALSE))","v":""},null,{"$f":"IF(G9583=\"\",\"\",VLOOKUP(G9583,Insumos!G:H,2,FALSE))","v":""}]
[null,null,null,null,null,{"$f":"IF(E9584=\"\",\"\",VLOOKUP(E9584,Insumos!AD:AE,2,FALSE))","v":""},null,{"$f":"IF(G9584=\"\",\"\",VLOOKUP(G9584,Insumos!G:H,2,FALSE))","v":""}]
[null,null,null,null,null,{"$f":"IF(E9585=\"\",\"\",VLOOKUP(E9585,Insumos!AD:AE,2,FALSE))","v":""},null,{"$f":"IF(G9585=\"\",\"\",VLOOKUP(G9585,Insumos!G:H,2,FALSE))","v":""}]
[null,null,null,null,null,{"$f":"IF(E9586=\"\",\"\",VLOOKUP(E9586,Insumos!AD:AE,2,FALSE))","v":""},null,{"$f":"IF(G9586=\"\",\"\",VLOOKUP(G9586,Insumos!G:H,2,FALSE))","v":""}]
[null,null,null,null,null,{"$f":"IF(E9587=\"\",\"\",VLOOKUP(E9587,Insumos!AD:AE,2,FALSE))","v":""},null,{"$f":"IF(G9587=\"\",\"\",VLOOKUP(G9587,Insumos!G:H,2,FALSE))","v":""}]
[null,null,null,null,null,{"$f":"IF(E9588=\"\",\"\",VLOOKUP(E9588,Insumos!AD:AE,2,FALSE))","v":""},null,{"$f":"IF(G9588=\"\",\"\",VLOOKUP(G9588,Insumos!G:H,2,FALSE))","v":""}]
[null,null,null,null,null,{"$f":"IF(E9589=\"\",\"\",VLOOKUP(E9589,Insumos!AD:AE,2,FALSE))","v":""},null,{"$f":"IF(G9589=\"\",\"\",VLOOKUP(G9589,Insumos!G:H,2,FALSE))","v":""}]
[null,null,null,null,null,{"$f":"IF(E9590=\"\",\"\",VLOOKUP(E9590,Insumos!AD:AE,2,FALSE))","v":""},null,{"$f":"IF(G9590=\"\",\"\",VLOOKUP(G9590,Insumos!G:H,2,FALSE))","v":""}]
[null,null,null,null,null,{"$f":"IF(E9591=\"\",\"\",VLOOKUP(E9591,Insumos!AD:AE,2,FALSE))","v":""},null,{"$f":"IF(G9591=\"\",\"\",VLOOKUP(G9591,Insumos!G:H,2,FALSE))","v":""}]
[null,null,null,null,null,{"$f":"IF(E9592=\"\",\"\",VLOOKUP(E9592,Insumos!AD:AE,2,FALSE))","v":""},null,{"$f":"IF(G9592=\"\",\"\",VLOOKUP(G9592,Insumos!G:H,2,FALSE))","v":""}]
[null,null,null,null,null,{"$f":"IF(E9593=\"\",\"\",VLOOKUP(E9593,Insumos!AD:AE,2,FALSE))","v":""},null,{"$f":"IF(G9593=\"\",\"\",VLOOKUP(G9593,Insumos!G:H,2,FALSE))","v":""}]
[null,null,null,null,null,{"$f":"IF(E9594=\"\",\"\",VLOOKUP(E9594,Insumos!AD:AE,2,FALSE))","v":""},null,{"$f":"IF(G9594=\"\",\"\",VLOOKUP(G9594,Insumos!G:H,2,FALSE))","v":""}]
[null,null,null,null,null,{"$f":"IF(E9595=\"\",\"\",VLOOKUP(E9595,Insumos!AD:AE,2,FALSE))","v":""},null,{"$f":"IF(G9595=\"\",\"\",VLOOKUP(G9595,Insumos!G:H,2,FALSE))","v":""}]
[null,null,null,null,null,{"$f":"IF(E9596=\"\",\"\",VLOOKUP(E9596,Insumos!AD:AE,2,FALSE))","v":""},null,{"$f":"IF(G9596=\"\",\"\",VLOOKUP(G9596,Insumos!G:H,2,FALSE))","v":""}]
[null,null,null,null,null,{"$f":"IF(E9597=\"\",\"\",VLOOKUP(E9597,Insumos!AD:AE,2,FALSE))","v":""},null,{"$f":"IF(G9597=\"\",\"\",VLOOKUP(G9597,Insumos!G:H,2,FALSE))","v":""}]
[null,null,null,null,null,{"$f":"IF(E9598=\"\",\"\",VLOOKUP(E9598,Insumos!AD:AE,2,FALSE))","v":""},null,{"$f":"IF(G9598=\"\",\"\",VLOOKUP(G9598,Insumos!G:H,2,FALSE))","v":""}]
[null,null,null,null,null,{"$f":"IF(E9599=\"\",\"\",VLOOKUP(E9599,Insumos!AD:AE,2,FALSE))","v":""},null,{"$f":"IF(G9599=\"\",\"\",VLOOKUP(G9599,Insumos!G:H,2,FALSE))","v":""}]
[null,null,null,null,null,{"$f":"IF(E9600=\"\",\"\",VLOOKUP(E9600,Insumos!AD:AE,2,FALSE))","v":""},null,{"$f":"IF(G9600=\"\",\"\",VLOOKUP(G9600,Insumos!G:H,2,FALSE))","v":""}]
[null,null,null,null,null,{"$f":"IF(E9601=\"\",\"\",VLOOKUP(E9601,Insumos!AD:AE,2,FALSE))","v":""},null,{"$f":"IF(G9601=\"\",\"\",VLOOKUP(G9601,Insumos!G:H,2,FALSE))","v":""}]
[null,null,null,null,null,{"$f":"IF(E9602=\"\",\"\",VLOOKUP(E9602,Insumos!AD:AE,2,FALSE))","v":""},null,{"$f":"IF(G9602=\"\",\"\",VLOOKUP(G9602,Insumos!G:H,2,FALSE))","v":""}]
[null,null,null,null,null,{"$f":"IF(E9603=\"\",\"\",VLOOKUP(E9603,Insumos!AD:AE,2,FALSE))","v":""},null,{"$f":"IF(G9603=\"\",\"\",VLOOKUP(G9603,Insumos!G:H,2,FALSE))","v":""}]
[null,null,null,null,null,{"$f":"IF(E9604=\"\",\"\",VLOOKUP(E9604,Insumos!AD:AE,2,FALSE))","v":""},null,{"$f":"IF(G9604=\"\",\"\",VLOOKUP(G9604,Insumos!G:H,2,FALSE))","v":""}]
[null,null,null,null,null,{"$f":"IF(E9605=\"\",\"\",VLOOKUP(E9605,Insumos!AD:AE,2,FALSE))","v":""},null,{"$f":"IF(G9605=\"\",\"\",VLOOKUP(G9605,Insumos!G:H,2,FALSE))","v":""}]
[null,null,null,null,null,{"$f":"IF(E9606=\"\",\"\",VLOOKUP(E9606,Insumos!AD:AE,2,FALSE))","v":""},null,{"$f":"IF(G9606=\"\",\"\",VLOOKUP(G9606,Insumos!G:H,2,FALSE))","v":""}]
[null,null,null,null,null,{"$f":"IF(E9607=\"\",\"\",VLOOKUP(E9607,Insumos!AD:AE,2,FALSE))","v":""},null,{"$f":"IF(G9607=\"\",\"\",VLOOKUP(G9607,Insumos!G:H,2,FALSE))","v":""}]
[null,null,null,null,null,{"$f":"IF(E9608=\"\",\"\",VLOOKUP(E9608,Insumos!AD:AE,2,FALSE))","v":""},null,{"$f":"IF(G9608=\"\",\"\",VLOOKUP(G9608,Insumos!G:H,2,FALSE))","v":""}]
[null,null,null,null,null,{"$f":"IF(E9609=\"\",\"\",VLOOKUP(E9609,Insumos!AD:AE,2,FALSE))","v":""},null,{"$f":"IF(G9609=\"\",\"\",VLOOKUP(G9609,Insumos!G:H,2,FALSE))","v":""}]
[null,null,null,null,null,{"$f":"IF(E9610=\"\",\"\",VLOOKUP(E9610,Insumos!AD:AE,2,FALSE))","v":""},null,{"$f":"IF(G9610=\"\",\"\",VLOOKUP(G9610,Insumos!G:H,2,FALSE))","v":""}]
[null,null,null,null,null,{"$f":"IF(E9611=\"\",\"\",VLOOKUP(E9611,Insumos!AD:AE,2,FALSE))","v":""},null,{"$f":"IF(G9611=\"\",\"\",VLOOKUP(G9611,Insumos!G:H,2,FALSE))","v":""}]
[null,null,null,null,null,{"$f":"IF(E9612=\"\",\"\",VLOOKUP(E9612,Insumos!AD:AE,2,FALSE))","v":""},null,{"$f":"IF(G9612=\"\",\"\",VLOOKUP(G9612,Insumos!G:H,2,FALSE))","v":""}]
[null,null,null,null,null,{"$f":"IF(E9613=\"\",\"\",VLOOKUP(E9613,Insumos!AD:AE,2,FALSE))","v":""},null,{"$f":"IF(G9613=\"\",\"\",VLOOKUP(G9613,Insumos!G:H,2,FALSE))","v":""}]
[null,null,null,null,null,{"$f":"IF(E9614=\"\",\"\",VLOOKUP(E9614,Insumos!AD:AE,2,FALSE))","v":""},null,{"$f":"IF(G9614=\"\",\"\",VLOOKUP(G9614,Insumos!G:H,2,FALSE))","v":""}]
[null,null,null,null,null,{"$f":"IF(E9615=\"\",\"\",VLOOKUP(E9615,Insumos!AD:AE,2,FALSE))","v":""},null,{"$f":"IF(G9615=\"\",\"\",VLOOKUP(G9615,Insumos!G:H,2,FALSE))","v":""}]
[null,null,null,null,null,{"$f":"IF(E9616=\"\",\"\",VLOOKUP(E9616,Insumos!AD:AE,2,FALSE))","v":""},null,{"$f":"IF(G9616=\"\",\"\",VLOOKUP(G9616,Insumos!G:H,2,FALSE))","v":""}]
[null,null,null,null,null,{"$f":"IF(E9617=\"\",\"\",VLOOKUP(E9617,Insumos!AD:AE,2,FALSE))","v":""},null,{"$f":"IF(G9617=\"\",\"\",VLOOKUP(G9617,Insumos!G:H,2,FALSE))","v":""}]
[null,null,null,null,null,{"$f":"IF(E9618=\"\",\"\",VLOOKUP(E9618,Insumos!AD:AE,2,FALSE))","v":""},null,{"$f":"IF(G9618=\"\",\"\",VLOOKUP(G9618,Insumos!G:H,2,FALSE))","v":""}]
[null,null,null,null,null,{"$f":"IF(E9619=\"\",\"\",VLOOKUP(E9619,Insumos!AD:AE,2,FALSE))","v":""},null,{"$f":"IF(G9619=\"\",\"\",VLOOKUP(G9619,Insumos!G:H,2,FALSE))","v":""}]
[null,null,null,null,null,{"$f":"IF(E9620=\"\",\"\",VLOOKUP(E9620,Insumos!AD:AE,2,FALSE))","v":""},null,{"$f":"IF(G9620=\"\",\"\",VLOOKUP(G9620,Insumos!G:H,2,FALSE))","v":""}]
[null,null,null,null,null,{"$f":"IF(E9621=\"\",\"\",VLOOKUP(E9621,Insumos!AD:AE,2,FALSE))","v":""},null,{"$f":"IF(G9621=\"\",\"\",VLOOKUP(G9621,Insumos!G:H,2,FALSE))","v":""}]
[null,null,null,null,null,{"$f":"IF(E9622=\"\",\"\",VLOOKUP(E9622,Insumos!AD:AE,2,FALSE))","v":""},null,{"$f":"IF(G9622=\"\",\"\",VLOOKUP(G9622,Insumos!G:H,2,FALSE))","v":""}]
[null,null,null,null,null,{"$f":"IF(E9623=\"\",\"\",VLOOKUP(E9623,Insumos!AD:AE,2,FALSE))","v":""},null,{"$f":"IF(G9623=\"\",\"\",VLOOKUP(G9623,Insumos!G:H,2,FALSE))","v":""}]
[null,null,null,null,null,{"$f":"IF(E9624=\"\",\"\",VLOOKUP(E9624,Insumos!AD:AE,2,FALSE))","v":""},null,{"$f":"IF(G9624=\"\",\"\",VLOOKUP(G9624,Insumos!G:H,2,FALSE))","v":""}]
[null,null,null,null,null,{"$f":"IF(E9625=\"\",\"\",VLOOKUP(E9625,Insumos!AD:AE,2,FALSE))","v":""},null,{"$f":"IF(G9625=\"\",\"\",VLOOKUP(G9625,Insumos!G:H,2,FALSE))","v":""}]
[null,null,null,null,null,{"$f":"IF(E9626=\"\",\"\",VLOOKUP(E9626,Insumos!AD:AE,2,FALSE))","v":""},null,{"$f":"IF(G9626=\"\",\"\",VLOOKUP(G9626,Insumos!G:H,2,FALSE))","v":""}]
[null,null,null,null,null,{"$f":"IF(E9627=\"\",\"\",VLOOKUP(E9627,Insumos!AD:AE,2,FALSE))","v":""},null,{"$f":"IF(G9627=\"\",\"\",VLOOKUP(G9627,Insumos!G:H,2,FALSE))","v":""}]
[null,null,null,null,null,{"$f":"IF(E9628=\"\",\"\",VLOOKUP(E9628,Insumos!AD:AE,2,FALSE))","v":""},null,{"$f":"IF(G9628=\"\",\"\",VLOOKUP(G9628,Insumos!G:H,2,FALSE))","v":""}]
[null,null,null,null,null,{"$f":"IF(E9629=\"\",\"\",VLOOKUP(E9629,Insumos!AD:AE,2,FALSE))","v":""},null,{"$f":"IF(G9629=\"\",\"\",VLOOKUP(G9629,Insumos!G:H,2,FALSE))","v":""}]
[null,null,null,null,null,{"$f":"IF(E9630=\"\",\"\",VLOOKUP(E9630,Insumos!AD:AE,2,FALSE))","v":""},null,{"$f":"IF(G9630=\"\",\"\",VLOOKUP(G9630,Insumos!G:H,2,FALSE))","v":""}]
[null,null,null,null,null,{"$f":"IF(E9631=\"\",\"\",VLOOKUP(E9631,Insumos!AD:AE,2,FALSE))","v":""},null,{"$f":"IF(G9631=\"\",\"\",VLOOKUP(G9631,Insumos!G:H,2,FALSE))","v":""}]
[null,null,null,null,null,{"$f":"IF(E9632=\"\",\"\",VLOOKUP(E9632,Insumos!AD:AE,2,FALSE))","v":""},null,{"$f":"IF(G9632=\"\",\"\",VLOOKUP(G9632,Insumos!G:H,2,FALSE))","v":""}]
[null,null,null,null,null,{"$f":"IF(E9633=\"\",\"\",VLOOKUP(E9633,Insumos!AD:AE,2,FALSE))","v":""},null,{"$f":"IF(G9633=\"\",\"\",VLOOKUP(G9633,Insumos!G:H,2,FALSE))","v":""}]
[null,null,null,null,null,{"$f":"IF(E9634=\"\",\"\",VLOOKUP(E9634,Insumos!AD:AE,2,FALSE))","v":""},null,{"$f":"IF(G9634=\"\",\"\",VLOOKUP(G9634,Insumos!G:H,2,FALSE))","v":""}]
[null,null,null,null,null,{"$f":"IF(E9635=\"\",\"\",VLOOKUP(E9635,Insumos!AD:AE,2,FALSE))","v":""},null,{"$f":"IF(G9635=\"\",\"\",VLOOKUP(G9635,Insumos!G:H,2,FALSE))","v":""}]
[null,null,null,null,null,{"$f":"IF(E9636=\"\",\"\",VLOOKUP(E9636,Insumos!AD:AE,2,FALSE))","v":""},null,{"$f":"IF(G9636=\"\",\"\",VLOOKUP(G9636,Insumos!G:H,2,FALSE))","v":""}]
[null,null,null,null,null,{"$f":"IF(E9637=\"\",\"\",VLOOKUP(E9637,Insumos!AD:AE,2,FALSE))","v":""},null,{"$f":"IF(G9637=\"\",\"\",VLOOKUP(G9637,Insumos!G:H,2,FALSE))","v":""}]
[null,null,null,null,null,{"$f":"IF(E9638=\"\",\"\",VLOOKUP(E9638,Insumos!AD:AE,2,FALSE))","v":""},null,{"$f":"IF(G9638=\"\",\"\",VLOOKUP(G9638,Insumos!G:H,2,FALSE))","v":""}]
[null,null,null,null,null,{"$f":"IF(E9639=\"\",\"\",VLOOKUP(E9639,Insumos!AD:AE,2,FALSE))","v":""},null,{"$f":"IF(G9639=\"\",\"\",VLOOKUP(G9639,Insumos!G:H,2,FALSE))","v":""}]
[null,null,null,null,null,{"$f":"IF(E9640=\"\",\"\",VLOOKUP(E9640,Insumos!AD:AE,2,FALSE))","v":""},null,{"$f":"IF(G9640=\"\",\"\",VLOOKUP(G9640,Insumos!G:H,2,FALSE))","v":""}]
[null,null,null,null,null,{"$f":"IF(E9641=\"\",\"\",VLOOKUP(E9641,Insumos!AD:AE,2,FALSE))","v":""},null,{"$f":"IF(G9641=\"\",\"\",VLOOKUP(G9641,Insumos!G:H,2,FALSE))","v":""}]
[null,null,null,null,null,{"$f":"IF(E9642=\"\",\"\",VLOOKUP(E9642,Insumos!AD:AE,2,FALSE))","v":""},null,{"$f":"IF(G9642=\"\",\"\",VLOOKUP(G9642,Insumos!G:H,2,FALSE))","v":""}]
[null,null,null,null,null,{"$f":"IF(E9643=\"\",\"\",VLOOKUP(E9643,Insumos!AD:AE,2,FALSE))","v":""},null,{"$f":"IF(G9643=\"\",\"\",VLOOKUP(G9643,Insumos!G:H,2,FALSE))","v":""}]
[null,null,null,null,null,{"$f":"IF(E9644=\"\",\"\",VLOOKUP(E9644,Insumos!AD:AE,2,FALSE))","v":""},null,{"$f":"IF(G9644=\"\",\"\",VLOOKUP(G9644,Insumos!G:H,2,FALSE))","v":""}]
[null,null,null,null,null,{"$f":"IF(E9645=\"\",\"\",VLOOKUP(E9645,Insumos!AD:AE,2,FALSE))","v":""},null,{"$f":"IF(G9645=\"\",\"\",VLOOKUP(G9645,Insumos!G:H,2,FALSE))","v":""}]
[null,null,null,null,null,{"$f":"IF(E9646=\"\",\"\",VLOOKUP(E9646,Insumos!AD:AE,2,FALSE))","v":""},null,{"$f":"IF(G9646=\"\",\"\",VLOOKUP(G9646,Insumos!G:H,2,FALSE))","v":""}]
[null,null,null,null,null,{"$f":"IF(E9647=\"\",\"\",VLOOKUP(E9647,Insumos!AD:AE,2,FALSE))","v":""},null,{"$f":"IF(G9647=\"\",\"\",VLOOKUP(G9647,Insumos!G:H,2,FALSE))","v":""}]
[null,null,null,null,null,{"$f":"IF(E9648=\"\",\"\",VLOOKUP(E9648,Insumos!AD:AE,2,FALSE))","v":""},null,{"$f":"IF(G9648=\"\",\"\",VLOOKUP(G9648,Insumos!G:H,2,FALSE))","v":""}]
[null,null,null,null,null,{"$f":"IF(E9649=\"\",\"\",VLOOKUP(E9649,Insumos!AD:AE,2,FALSE))","v":""},null,{"$f":"IF(G9649=\"\",\"\",VLOOKUP(G9649,Insumos!G:H,2,FALSE))","v":""}]
[null,null,null,null,null,{"$f":"IF(E9650=\"\",\"\",VLOOKUP(E9650,Insumos!AD:AE,2,FALSE))","v":""},null,{"$f":"IF(G9650=\"\",\"\",VLOOKUP(G9650,Insumos!G:H,2,FALSE))","v":""}]
[null,null,null,null,null,{"$f":"IF(E9651=\"\",\"\",VLOOKUP(E9651,Insumos!AD:AE,2,FALSE))","v":""},null,{"$f":"IF(G9651=\"\",\"\",VLOOKUP(G9651,Insumos!G:H,2,FALSE))","v":""}]
[null,null,null,null,null,{"$f":"IF(E9652=\"\",\"\",VLOOKUP(E9652,Insumos!AD:AE,2,FALSE))","v":""},null,{"$f":"IF(G9652=\"\",\"\",VLOOKUP(G9652,Insumos!G:H,2,FALSE))","v":""}]
[null,null,null,null,null,{"$f":"IF(E9653=\"\",\"\",VLOOKUP(E9653,Insumos!AD:AE,2,FALSE))","v":""},null,{"$f":"IF(G9653=\"\",\"\",VLOOKUP(G9653,Insumos!G:H,2,FALSE))","v":""}]
[null,null,null,null,null,{"$f":"IF(E9654=\"\",\"\",VLOOKUP(E9654,Insumos!AD:AE,2,FALSE))","v":""},null,{"$f":"IF(G9654=\"\",\"\",VLOOKUP(G9654,Insumos!G:H,2,FALSE))","v":""}]
[null,null,null,null,null,{"$f":"IF(E9655=\"\",\"\",VLOOKUP(E9655,Insumos!AD:AE,2,FALSE))","v":""},null,{"$f":"IF(G9655=\"\",\"\",VLOOKUP(G9655,Insumos!G:H,2,FALSE))","v":""}]
[null,null,null,null,null,{"$f":"IF(E9656=\"\",\"\",VLOOKUP(E9656,Insumos!AD:AE,2,FALSE))","v":""},null,{"$f":"IF(G9656=\"\",\"\",VLOOKUP(G9656,Insumos!G:H,2,FALSE))","v":""}]
[null,null,null,null,null,{"$f":"IF(E9657=\"\",\"\",VLOOKUP(E9657,Insumos!AD:AE,2,FALSE))","v":""},null,{"$f":"IF(G9657=\"\",\"\",VLOOKUP(G9657,Insumos!G:H,2,FALSE))","v":""}]
[null,null,null,null,null,{"$f":"IF(E9658=\"\",\"\",VLOOKUP(E9658,Insumos!AD:AE,2,FALSE))","v":""},null,{"$f":"IF(G9658=\"\",\"\",VLOOKUP(G9658,Insumos!G:H,2,FALSE))","v":""}]
[null,null,null,null,null,{"$f":"IF(E9659=\"\",\"\",VLOOKUP(E9659,Insumos!AD:AE,2,FALSE))","v":""},null,{"$f":"IF(G9659=\"\",\"\",VLOOKUP(G9659,Insumos!G:H,2,FALSE))","v":""}]
[null,null,null,null,null,{"$f":"IF(E9660=\"\",\"\",VLOOKUP(E9660,Insumos!AD:AE,2,FALSE))","v":""},null,{"$f":"IF(G9660=\"\",\"\",VLOOKUP(G9660,Insumos!G:H,2,FALSE))","v":""}]
[null,null,null,null,null,{"$f":"IF(E9661=\"\",\"\",VLOOKUP(E9661,Insumos!AD:AE,2,FALSE))","v":""},null,{"$f":"IF(G9661=\"\",\"\",VLOOKUP(G9661,Insumos!G:H,2,FALSE))","v":""}]
[null,null,null,null,null,{"$f":"IF(E9662=\"\",\"\",VLOOKUP(E9662,Insumos!AD:AE,2,FALSE))","v":""},null,{"$f":"IF(G9662=\"\",\"\",VLOOKUP(G9662,Insumos!G:H,2,FALSE))","v":""}]
[null,null,null,null,null,{"$f":"IF(E9663=\"\",\"\",VLOOKUP(E9663,Insumos!AD:AE,2,FALSE))","v":""},null,{"$f":"IF(G9663=\"\",\"\",VLOOKUP(G9663,Insumos!G:H,2,FALSE))","v":""}]
[null,null,null,null,null,{"$f":"IF(E9664=\"\",\"\",VLOOKUP(E9664,Insumos!AD:AE,2,FALSE))","v":""},null,{"$f":"IF(G9664=\"\",\"\",VLOOKUP(G9664,Insumos!G:H,2,FALSE))","v":""}]
[null,null,null,null,null,{"$f":"IF(E9665=\"\",\"\",VLOOKUP(E9665,Insumos!AD:AE,2,FALSE))","v":""},null,{"$f":"IF(G9665=\"\",\"\",VLOOKUP(G9665,Insumos!G:H,2,FALSE))","v":""}]
[null,null,null,null,null,{"$f":"IF(E9666=\"\",\"\",VLOOKUP(E9666,Insumos!AD:AE,2,FALSE))","v":""},null,{"$f":"IF(G9666=\"\",\"\",VLOOKUP(G9666,Insumos!G:H,2,FALSE))","v":""}]
[null,null,null,null,null,{"$f":"IF(E9667=\"\",\"\",VLOOKUP(E9667,Insumos!AD:AE,2,FALSE))","v":""},null,{"$f":"IF(G9667=\"\",\"\",VLOOKUP(G9667,Insumos!G:H,2,FALSE))","v":""}]
[null,null,null,null,null,{"$f":"IF(E9668=\"\",\"\",VLOOKUP(E9668,Insumos!AD:AE,2,FALSE))","v":""},null,{"$f":"IF(G9668=\"\",\"\",VLOOKUP(G9668,Insumos!G:H,2,FALSE))","v":""}]
[null,null,null,null,null,{"$f":"IF(E9669=\"\",\"\",VLOOKUP(E9669,Insumos!AD:AE,2,FALSE))","v":""},null,{"$f":"IF(G9669=\"\",\"\",VLOOKUP(G9669,Insumos!G:H,2,FALSE))","v":""}]
[null,null,null,null,null,{"$f":"IF(E9670=\"\",\"\",VLOOKUP(E9670,Insumos!AD:AE,2,FALSE))","v":""},null,{"$f":"IF(G9670=\"\",\"\",VLOOKUP(G9670,Insumos!G:H,2,FALSE))","v":""}]
[null,null,null,null,null,{"$f":"IF(E9671=\"\",\"\",VLOOKUP(E9671,Insumos!AD:AE,2,FALSE))","v":""},null,{"$f":"IF(G9671=\"\",\"\",VLOOKUP(G9671,Insumos!G:H,2,FALSE))","v":""}]
[null,null,null,null,null,{"$f":"IF(E9672=\"\",\"\",VLOOKUP(E9672,Insumos!AD:AE,2,FALSE))","v":""},null,{"$f":"IF(G9672=\"\",\"\",VLOOKUP(G9672,Insumos!G:H,2,FALSE))","v":""}]
[null,null,null,null,null,{"$f":"IF(E9673=\"\",\"\",VLOOKUP(E9673,Insumos!AD:AE,2,FALSE))","v":""},null,{"$f":"IF(G9673=\"\",\"\",VLOOKUP(G9673,Insumos!G:H,2,FALSE))","v":""}]
[null,null,null,null,null,{"$f":"IF(E9674=\"\",\"\",VLOOKUP(E9674,Insumos!AD:AE,2,FALSE))","v":""},null,{"$f":"IF(G9674=\"\",\"\",VLOOKUP(G9674,Insumos!G:H,2,FALSE))","v":""}]
[null,null,null,null,null,{"$f":"IF(E9675=\"\",\"\",VLOOKUP(E9675,Insumos!AD:AE,2,FALSE))","v":""},null,{"$f":"IF(G9675=\"\",\"\",VLOOKUP(G9675,Insumos!G:H,2,FALSE))","v":""}]
[null,null,null,null,null,{"$f":"IF(E9676=\"\",\"\",VLOOKUP(E9676,Insumos!AD:AE,2,FALSE))","v":""},null,{"$f":"IF(G9676=\"\",\"\",VLOOKUP(G9676,Insumos!G:H,2,FALSE))","v":""}]
[null,null,null,null,null,{"$f":"IF(E9677=\"\",\"\",VLOOKUP(E9677,Insumos!AD:AE,2,FALSE))","v":""},null,{"$f":"IF(G9677=\"\",\"\",VLOOKUP(G9677,Insumos!G:H,2,FALSE))","v":""}]
[null,null,null,null,null,{"$f":"IF(E9678=\"\",\"\",VLOOKUP(E9678,Insumos!AD:AE,2,FALSE))","v":""},null,{"$f":"IF(G9678=\"\",\"\",VLOOKUP(G9678,Insumos!G:H,2,FALSE))","v":""}]
[null,null,null,null,null,{"$f":"IF(E9679=\"\",\"\",VLOOKUP(E9679,Insumos!AD:AE,2,FALSE))","v":""},null,{"$f":"IF(G9679=\"\",\"\",VLOOKUP(G9679,Insumos!G:H,2,FALSE))","v":""}]
[null,null,null,null,null,{"$f":"IF(E9680=\"\",\"\",VLOOKUP(E9680,Insumos!AD:AE,2,FALSE))","v":""},null,{"$f":"IF(G9680=\"\",\"\",VLOOKUP(G9680,Insumos!G:H,2,FALSE))","v":""}]
[null,null,null,null,null,{"$f":"IF(E9681=\"\",\"\",VLOOKUP(E9681,Insumos!AD:AE,2,FALSE))","v":""},null,{"$f":"IF(G9681=\"\",\"\",VLOOKUP(G9681,Insumos!G:H,2,FALSE))","v":""}]
[null,null,null,null,null,{"$f":"IF(E9682=\"\",\"\",VLOOKUP(E9682,Insumos!AD:AE,2,FALSE))","v":""},null,{"$f":"IF(G9682=\"\",\"\",VLOOKUP(G9682,Insumos!G:H,2,FALSE))","v":""}]
[null,null,null,null,null,{"$f":"IF(E9683=\"\",\"\",VLOOKUP(E9683,Insumos!AD:AE,2,FALSE))","v":""},null,{"$f":"IF(G9683=\"\",\"\",VLOOKUP(G9683,Insumos!G:H,2,FALSE))","v":""}]
[null,null,null,null,null,{"$f":"IF(E9684=\"\",\"\",VLOOKUP(E9684,Insumos!AD:AE,2,FALSE))","v":""},null,{"$f":"IF(G9684=\"\",\"\",VLOOKUP(G9684,Insumos!G:H,2,FALSE))","v":""}]
[null,null,null,null,null,{"$f":"IF(E9685=\"\",\"\",VLOOKUP(E9685,Insumos!AD:AE,2,FALSE))","v":""},null,{"$f":"IF(G9685=\"\",\"\",VLOOKUP(G9685,Insumos!G:H,2,FALSE))","v":""}]
[null,null,null,null,null,{"$f":"IF(E9686=\"\",\"\",VLOOKUP(E9686,Insumos!AD:AE,2,FALSE))","v":""},null,{"$f":"IF(G9686=\"\",\"\",VLOOKUP(G9686,Insumos!G:H,2,FALSE))","v":""}]
[null,null,null,null,null,{"$f":"IF(E9687=\"\",\"\",VLOOKUP(E9687,Insumos!AD:AE,2,FALSE))","v":""},null,{"$f":"IF(G9687=\"\",\"\",VLOOKUP(G9687,Insumos!G:H,2,FALSE))","v":""}]
[null,null,null,null,null,{"$f":"IF(E9688=\"\",\"\",VLOOKUP(E9688,Insumos!AD:AE,2,FALSE))","v":""},null,{"$f":"IF(G9688=\"\",\"\",VLOOKUP(G9688,Insumos!G:H,2,FALSE))","v":""}]
[null,null,null,null,null,{"$f":"IF(E9689=\"\",\"\",VLOOKUP(E9689,Insumos!AD:AE,2,FALSE))","v":""},null,{"$f":"IF(G9689=\"\",\"\",VLOOKUP(G9689,Insumos!G:H,2,FALSE))","v":""}]
[null,null,null,null,null,{"$f":"IF(E9690=\"\",\"\",VLOOKUP(E9690,Insumos!AD:AE,2,FALSE))","v":""},null,{"$f":"IF(G9690=\"\",\"\",VLOOKUP(G9690,Insumos!G:H,2,FALSE))","v":""}]
[null,null,null,null,null,{"$f":"IF(E9691=\"\",\"\",VLOOKUP(E9691,Insumos!AD:AE,2,FALSE))","v":""},null,{"$f":"IF(G9691=\"\",\"\",VLOOKUP(G9691,Insumos!G:H,2,FALSE))","v":""}]
[null,null,null,null,null,{"$f":"IF(E9692=\"\",\"\",VLOOKUP(E9692,Insumos!AD:AE,2,FALSE))","v":""},null,{"$f":"IF(G9692=\"\",\"\",VLOOKUP(G9692,Insumos!G:H,2,FALSE))","v":""}]
[null,null,null,null,null,{"$f":"IF(E9693=\"\",\"\",VLOOKUP(E9693,Insumos!AD:AE,2,FALSE))","v":""},null,{"$f":"IF(G9693=\"\",\"\",VLOOKUP(G9693,Insumos!G:H,2,FALSE))","v":""}]
[null,null,null,null,null,{"$f":"IF(E9694=\"\",\"\",VLOOKUP(E9694,Insumos!AD:AE,2,FALSE))","v":""},null,{"$f":"IF(G9694=\"\",\"\",VLOOKUP(G9694,Insumos!G:H,2,FALSE))","v":""}]
[null,null,null,null,null,{"$f":"IF(E9695=\"\",\"\",VLOOKUP(E9695,Insumos!AD:AE,2,FALSE))","v":""},null,{"$f":"IF(G9695=\"\",\"\",VLOOKUP(G9695,Insumos!G:H,2,FALSE))","v":""}]
[null,null,null,null,null,{"$f":"IF(E9696=\"\",\"\",VLOOKUP(E9696,Insumos!AD:AE,2,FALSE))","v":""},null,{"$f":"IF(G9696=\"\",\"\",VLOOKUP(G9696,Insumos!G:H,2,FALSE))","v":""}]
[null,null,null,null,null,{"$f":"IF(E9697=\"\",\"\",VLOOKUP(E9697,Insumos!AD:AE,2,FALSE))","v":""},null,{"$f":"IF(G9697=\"\",\"\",VLOOKUP(G9697,Insumos!G:H,2,FALSE))","v":""}]
[null,null,null,null,null,{"$f":"IF(E9698=\"\",\"\",VLOOKUP(E9698,Insumos!AD:AE,2,FALSE))","v":""},null,{"$f":"IF(G9698=\"\",\"\",VLOOKUP(G9698,Insumos!G:H,2,FALSE))","v":""}]
[null,null,null,null,null,{"$f":"IF(E9699=\"\",\"\",VLOOKUP(E9699,Insumos!AD:AE,2,FALSE))","v":""},null,{"$f":"IF(G9699=\"\",\"\",VLOOKUP(G9699,Insumos!G:H,2,FALSE))","v":""}]
[null,null,null,null,null,{"$f":"IF(E9700=\"\",\"\",VLOOKUP(E9700,Insumos!AD:AE,2,FALSE))","v":""},null,{"$f":"IF(G9700=\"\",\"\",VLOOKUP(G9700,Insumos!G:H,2,FALSE))","v":""}]
[null,null,null,null,null,{"$f":"IF(E9701=\"\",\"\",VLOOKUP(E9701,Insumos!AD:AE,2,FALSE))","v":""},null,{"$f":"IF(G9701=\"\",\"\",VLOOKUP(G9701,Insumos!G:H,2,FALSE))","v":""}]
[null,null,null,null,null,{"$f":"IF(E9702=\"\",\"\",VLOOKUP(E9702,Insumos!AD:AE,2,FALSE))","v":""},null,{"$f":"IF(G9702=\"\",\"\",VLOOKUP(G9702,Insumos!G:H,2,FALSE))","v":""}]
[null,null,null,null,null,{"$f":"IF(E9703=\"\",\"\",VLOOKUP(E9703,Insumos!AD:AE,2,FALSE))","v":""},null,{"$f":"IF(G9703=\"\",\"\",VLOOKUP(G9703,Insumos!G:H,2,FALSE))","v":""}]
[null,null,null,null,null,{"$f":"IF(E9704=\"\",\"\",VLOOKUP(E9704,Insumos!AD:AE,2,FALSE))","v":""},null,{"$f":"IF(G9704=\"\",\"\",VLOOKUP(G9704,Insumos!G:H,2,FALSE))","v":""}]
[null,null,null,null,null,{"$f":"IF(E9705=\"\",\"\",VLOOKUP(E9705,Insumos!AD:AE,2,FALSE))","v":""},null,{"$f":"IF(G9705=\"\",\"\",VLOOKUP(G9705,Insumos!G:H,2,FALSE))","v":""}]
[null,null,null,null,null,{"$f":"IF(E9706=\"\",\"\",VLOOKUP(E9706,Insumos!AD:AE,2,FALSE))","v":""},null,{"$f":"IF(G9706=\"\",\"\",VLOOKUP(G9706,Insumos!G:H,2,FALSE))","v":""}]
[null,null,null,null,null,{"$f":"IF(E9707=\"\",\"\",VLOOKUP(E9707,Insumos!AD:AE,2,FALSE))","v":""},null,{"$f":"IF(G9707=\"\",\"\",VLOOKUP(G9707,Insumos!G:H,2,FALSE))","v":""}]
[null,null,null,null,null,{"$f":"IF(E9708=\"\",\"\",VLOOKUP(E9708,Insumos!AD:AE,2,FALSE))","v":""},null,{"$f":"IF(G9708=\"\",\"\",VLOOKUP(G9708,Insumos!G:H,2,FALSE))","v":""}]
[null,null,null,null,null,{"$f":"IF(E9709=\"\",\"\",VLOOKUP(E9709,Insumos!AD:AE,2,FALSE))","v":""},null,{"$f":"IF(G9709=\"\",\"\",VLOOKUP(G9709,Insumos!G:H,2,FALSE))","v":""}]
[null,null,null,null,null,{"$f":"IF(E9710=\"\",\"\",VLOOKUP(E9710,Insumos!AD:AE,2,FALSE))","v":""},null,{"$f":"IF(G9710=\"\",\"\",VLOOKUP(G9710,Insumos!G:H,2,FALSE))","v":""}]
[null,null,null,null,null,{"$f":"IF(E9711=\"\",\"\",VLOOKUP(E9711,Insumos!AD:AE,2,FALSE))","v":""},null,{"$f":"IF(G9711=\"\",\"\",VLOOKUP(G9711,Insumos!G:H,2,FALSE))","v":""}]
[null,null,null,null,null,{"$f":"IF(E9712=\"\",\"\",VLOOKUP(E9712,Insumos!AD:AE,2,FALSE))","v":""},null,{"$f":"IF(G9712=\"\",\"\",VLOOKUP(G9712,Insumos!G:H,2,FALSE))","v":""}]
[null,null,null,null,null,{"$f":"IF(E9713=\"\",\"\",VLOOKUP(E9713,Insumos!AD:AE,2,FALSE))","v":""},null,{"$f":"IF(G9713=\"\",\"\",VLOOKUP(G9713,Insumos!G:H,2,FALSE))","v":""}]
[null,null,null,null,null,{"$f":"IF(E9714=\"\",\"\",VLOOKUP(E9714,Insumos!AD:AE,2,FALSE))","v":""},null,{"$f":"IF(G9714=\"\",\"\",VLOOKUP(G9714,Insumos!G:H,2,FALSE))","v":""}]
[null,null,null,null,null,{"$f":"IF(E9715=\"\",\"\",VLOOKUP(E9715,Insumos!AD:AE,2,FALSE))","v":""},null,{"$f":"IF(G9715=\"\",\"\",VLOOKUP(G9715,Insumos!G:H,2,FALSE))","v":""}]
[null,null,null,null,null,{"$f":"IF(E9716=\"\",\"\",VLOOKUP(E9716,Insumos!AD:AE,2,FALSE))","v":""},null,{"$f":"IF(G9716=\"\",\"\",VLOOKUP(G9716,Insumos!G:H,2,FALSE))","v":""}]
[null,null,null,null,null,{"$f":"IF(E9717=\"\",\"\",VLOOKUP(E9717,Insumos!AD:AE,2,FALSE))","v":""},null,{"$f":"IF(G9717=\"\",\"\",VLOOKUP(G9717,Insumos!G:H,2,FALSE))","v":""}]
[null,null,null,null,null,{"$f":"IF(E9718=\"\",\"\",VLOOKUP(E9718,Insumos!AD:AE,2,FALSE))","v":""},null,{"$f":"IF(G9718=\"\",\"\",VLOOKUP(G9718,Insumos!G:H,2,FALSE))","v":""}]
[null,null,null,null,null,{"$f":"IF(E9719=\"\",\"\",VLOOKUP(E9719,Insumos!AD:AE,2,FALSE))","v":""},null,{"$f":"IF(G9719=\"\",\"\",VLOOKUP(G9719,Insumos!G:H,2,FALSE))","v":""}]
[null,null,null,null,null,{"$f":"IF(E9720=\"\",\"\",VLOOKUP(E9720,Insumos!AD:AE,2,FALSE))","v":""},null,{"$f":"IF(G9720=\"\",\"\",VLOOKUP(G9720,Insumos!G:H,2,FALSE))","v":""}]
[null,null,null,null,null,{"$f":"IF(E9721=\"\",\"\",VLOOKUP(E9721,Insumos!AD:AE,2,FALSE))","v":""},null,{"$f":"IF(G9721=\"\",\"\",VLOOKUP(G9721,Insumos!G:H,2,FALSE))","v":""}]
[null,null,null,null,null,{"$f":"IF(E9722=\"\",\"\",VLOOKUP(E9722,Insumos!AD:AE,2,FALSE))","v":""},null,{"$f":"IF(G9722=\"\",\"\",VLOOKUP(G9722,Insumos!G:H,2,FALSE))","v":""}]
[null,null,null,null,null,{"$f":"IF(E9723=\"\",\"\",VLOOKUP(E9723,Insumos!AD:AE,2,FALSE))","v":""},null,{"$f":"IF(G9723=\"\",\"\",VLOOKUP(G9723,Insumos!G:H,2,FALSE))","v":""}]
[null,null,null,null,null,{"$f":"IF(E9724=\"\",\"\",VLOOKUP(E9724,Insumos!AD:AE,2,FALSE))","v":""},null,{"$f":"IF(G9724=\"\",\"\",VLOOKUP(G9724,Insumos!G:H,2,FALSE))","v":""}]
[null,null,null,null,null,{"$f":"IF(E9725=\"\",\"\",VLOOKUP(E9725,Insumos!AD:AE,2,FALSE))","v":""},null,{"$f":"IF(G9725=\"\",\"\",VLOOKUP(G9725,Insumos!G:H,2,FALSE))","v":""}]
[null,null,null,null,null,{"$f":"IF(E9726=\"\",\"\",VLOOKUP(E9726,Insumos!AD:AE,2,FALSE))","v":""},null,{"$f":"IF(G9726=\"\",\"\",VLOOKUP(G9726,Insumos!G:H,2,FALSE))","v":""}]
[null,null,null,null,null,{"$f":"IF(E9727=\"\",\"\",VLOOKUP(E9727,Insumos!AD:AE,2,FALSE))","v":""},null,{"$f":"IF(G9727=\"\",\"\",VLOOKUP(G9727,Insumos!G:H,2,FALSE))","v":""}]
[null,null,null,null,null,{"$f":"IF(E9728=\"\",\"\",VLOOKUP(E9728,Insumos!AD:AE,2,FALSE))","v":""},null,{"$f":"IF(G9728=\"\",\"\",VLOOKUP(G9728,Insumos!G:H,2,FALSE))","v":""}]
[null,null,null,null,null,{"$f":"IF(E9729=\"\",\"\",VLOOKUP(E9729,Insumos!AD:AE,2,FALSE))","v":""},null,{"$f":"IF(G9729=\"\",\"\",VLOOKUP(G9729,Insumos!G:H,2,FALSE))","v":""}]
[null,null,null,null,null,{"$f":"IF(E9730=\"\",\"\",VLOOKUP(E9730,Insumos!AD:AE,2,FALSE))","v":""},null,{"$f":"IF(G9730=\"\",\"\",VLOOKUP(G9730,Insumos!G:H,2,FALSE))","v":""}]
[null,null,null,null,null,{"$f":"IF(E9731=\"\",\"\",VLOOKUP(E9731,Insumos!AD:AE,2,FALSE))","v":""},null,{"$f":"IF(G9731=\"\",\"\",VLOOKUP(G9731,Insumos!G:H,2,FALSE))","v":""}]
[null,null,null,null,null,{"$f":"IF(E9732=\"\",\"\",VLOOKUP(E9732,Insumos!AD:AE,2,FALSE))","v":""},null,{"$f":"IF(G9732=\"\",\"\",VLOOKUP(G9732,Insumos!G:H,2,FALSE))","v":""}]
[null,null,null,null,null,{"$f":"IF(E9733=\"\",\"\",VLOOKUP(E9733,Insumos!AD:AE,2,FALSE))","v":""},null,{"$f":"IF(G9733=\"\",\"\",VLOOKUP(G9733,Insumos!G:H,2,FALSE))","v":""}]
[null,null,null,null,null,{"$f":"IF(E9734=\"\",\"\",VLOOKUP(E9734,Insumos!AD:AE,2,FALSE))","v":""},null,{"$f":"IF(G9734=\"\",\"\",VLOOKUP(G9734,Insumos!G:H,2,FALSE))","v":""}]
[null,null,null,null,null,{"$f":"IF(E9735=\"\",\"\",VLOOKUP(E9735,Insumos!AD:AE,2,FALSE))","v":""},null,{"$f":"IF(G9735=\"\",\"\",VLOOKUP(G9735,Insumos!G:H,2,FALSE))","v":""}]
[null,null,null,null,null,{"$f":"IF(E9736=\"\",\"\",VLOOKUP(E9736,Insumos!AD:AE,2,FALSE))","v":""},null,{"$f":"IF(G9736=\"\",\"\",VLOOKUP(G9736,Insumos!G:H,2,FALSE))","v":""}]
[null,null,null,null,null,{"$f":"IF(E9737=\"\",\"\",VLOOKUP(E9737,Insumos!AD:AE,2,FALSE))","v":""},null,{"$f":"IF(G9737=\"\",\"\",VLOOKUP(G9737,Insumos!G:H,2,FALSE))","v":""}]
[null,null,null,null,null,{"$f":"IF(E9738=\"\",\"\",VLOOKUP(E9738,Insumos!AD:AE,2,FALSE))","v":""},null,{"$f":"IF(G9738=\"\",\"\",VLOOKUP(G9738,Insumos!G:H,2,FALSE))","v":""}]
[null,null,null,null,null,{"$f":"IF(E9739=\"\",\"\",VLOOKUP(E9739,Insumos!AD:AE,2,FALSE))","v":""},null,{"$f":"IF(G9739=\"\",\"\",VLOOKUP(G9739,Insumos!G:H,2,FALSE))","v":""}]
[null,null,null,null,null,{"$f":"IF(E9740=\"\",\"\",VLOOKUP(E9740,Insumos!AD:AE,2,FALSE))","v":""},null,{"$f":"IF(G9740=\"\",\"\",VLOOKUP(G9740,Insumos!G:H,2,FALSE))","v":""}]
[null,null,null,null,null,{"$f":"IF(E9741=\"\",\"\",VLOOKUP(E9741,Insumos!AD:AE,2,FALSE))","v":""},null,{"$f":"IF(G9741=\"\",\"\",VLOOKUP(G9741,Insumos!G:H,2,FALSE))","v":""}]
[null,null,null,null,null,{"$f":"IF(E9742=\"\",\"\",VLOOKUP(E9742,Insumos!AD:AE,2,FALSE))","v":""},null,{"$f":"IF(G9742=\"\",\"\",VLOOKUP(G9742,Insumos!G:H,2,FALSE))","v":""}]
[null,null,null,null,null,{"$f":"IF(E9743=\"\",\"\",VLOOKUP(E9743,Insumos!AD:AE,2,FALSE))","v":""},null,{"$f":"IF(G9743=\"\",\"\",VLOOKUP(G9743,Insumos!G:H,2,FALSE))","v":""}]
[null,null,null,null,null,{"$f":"IF(E9744=\"\",\"\",VLOOKUP(E9744,Insumos!AD:AE,2,FALSE))","v":""},null,{"$f":"IF(G9744=\"\",\"\",VLOOKUP(G9744,Insumos!G:H,2,FALSE))","v":""}]
[null,null,null,null,null,{"$f":"IF(E9745=\"\",\"\",VLOOKUP(E9745,Insumos!AD:AE,2,FALSE))","v":""},null,{"$f":"IF(G9745=\"\",\"\",VLOOKUP(G9745,Insumos!G:H,2,FALSE))","v":""}]
[null,null,null,null,null,{"$f":"IF(E9746=\"\",\"\",VLOOKUP(E9746,Insumos!AD:AE,2,FALSE))","v":""},null,{"$f":"IF(G9746=\"\",\"\",VLOOKUP(G9746,Insumos!G:H,2,FALSE))","v":""}]
[null,null,null,null,null,{"$f":"IF(E9747=\"\",\"\",VLOOKUP(E9747,Insumos!AD:AE,2,FALSE))","v":""},null,{"$f":"IF(G9747=\"\",\"\",VLOOKUP(G9747,Insumos!G:H,2,FALSE))","v":""}]
[null,null,null,null,null,{"$f":"IF(E9748=\"\",\"\",VLOOKUP(E9748,Insumos!AD:AE,2,FALSE))","v":""},null,{"$f":"IF(G9748=\"\",\"\",VLOOKUP(G9748,Insumos!G:H,2,FALSE))","v":""}]
[null,null,null,null,null,{"$f":"IF(E9749=\"\",\"\",VLOOKUP(E9749,Insumos!AD:AE,2,FALSE))","v":""},null,{"$f":"IF(G9749=\"\",\"\",VLOOKUP(G9749,Insumos!G:H,2,FALSE))","v":""}]
[null,null,null,null,null,{"$f":"IF(E9750=\"\",\"\",VLOOKUP(E9750,Insumos!AD:AE,2,FALSE))","v":""},null,{"$f":"IF(G9750=\"\",\"\",VLOOKUP(G9750,Insumos!G:H,2,FALSE))","v":""}]
[null,null,null,null,null,{"$f":"IF(E9751=\"\",\"\",VLOOKUP(E9751,Insumos!AD:AE,2,FALSE))","v":""},null,{"$f":"IF(G9751=\"\",\"\",VLOOKUP(G9751,Insumos!G:H,2,FALSE))","v":""}]
[null,null,null,null,null,{"$f":"IF(E9752=\"\",\"\",VLOOKUP(E9752,Insumos!AD:AE,2,FALSE))","v":""},null,{"$f":"IF(G9752=\"\",\"\",VLOOKUP(G9752,Insumos!G:H,2,FALSE))","v":""}]
[null,null,null,null,null,{"$f":"IF(E9753=\"\",\"\",VLOOKUP(E9753,Insumos!AD:AE,2,FALSE))","v":""},null,{"$f":"IF(G9753=\"\",\"\",VLOOKUP(G9753,Insumos!G:H,2,FALSE))","v":""}]
[null,null,null,null,null,{"$f":"IF(E9754=\"\",\"\",VLOOKUP(E9754,Insumos!AD:AE,2,FALSE))","v":""},null,{"$f":"IF(G9754=\"\",\"\",VLOOKUP(G9754,Insumos!G:H,2,FALSE))","v":""}]
[null,null,null,null,null,{"$f":"IF(E9755=\"\",\"\",VLOOKUP(E9755,Insumos!AD:AE,2,FALSE))","v":""},null,{"$f":"IF(G9755=\"\",\"\",VLOOKUP(G9755,Insumos!G:H,2,FALSE))","v":""}]
[null,null,null,null,null,{"$f":"IF(E9756=\"\",\"\",VLOOKUP(E9756,Insumos!AD:AE,2,FALSE))","v":""},null,{"$f":"IF(G9756=\"\",\"\",VLOOKUP(G9756,Insumos!G:H,2,FALSE))","v":""}]
[null,null,null,null,null,{"$f":"IF(E9757=\"\",\"\",VLOOKUP(E9757,Insumos!AD:AE,2,FALSE))","v":""},null,{"$f":"IF(G9757=\"\",\"\",VLOOKUP(G9757,Insumos!G:H,2,FALSE))","v":""}]
[null,null,null,null,null,{"$f":"IF(E9758=\"\",\"\",VLOOKUP(E9758,Insumos!AD:AE,2,FALSE))","v":""},null,{"$f":"IF(G9758=\"\",\"\",VLOOKUP(G9758,Insumos!G:H,2,FALSE))","v":""}]
[null,null,null,null,null,{"$f":"IF(E9759=\"\",\"\",VLOOKUP(E9759,Insumos!AD:AE,2,FALSE))","v":""},null,{"$f":"IF(G9759=\"\",\"\",VLOOKUP(G9759,Insumos!G:H,2,FALSE))","v":""}]
[null,null,null,null,null,{"$f":"IF(E9760=\"\",\"\",VLOOKUP(E9760,Insumos!AD:AE,2,FALSE))","v":""},null,{"$f":"IF(G9760=\"\",\"\",VLOOKUP(G9760,Insumos!G:H,2,FALSE))","v":""}]
[null,null,null,null,null,{"$f":"IF(E9761=\"\",\"\",VLOOKUP(E9761,Insumos!AD:AE,2,FALSE))","v":""},null,{"$f":"IF(G9761=\"\",\"\",VLOOKUP(G9761,Insumos!G:H,2,FALSE))","v":""}]
[null,null,null,null,null,{"$f":"IF(E9762=\"\",\"\",VLOOKUP(E9762,Insumos!AD:AE,2,FALSE))","v":""},null,{"$f":"IF(G9762=\"\",\"\",VLOOKUP(G9762,Insumos!G:H,2,FALSE))","v":""}]
[null,null,null,null,null,{"$f":"IF(E9763=\"\",\"\",VLOOKUP(E9763,Insumos!AD:AE,2,FALSE))","v":""},null,{"$f":"IF(G9763=\"\",\"\",VLOOKUP(G9763,Insumos!G:H,2,FALSE))","v":""}]
[null,null,null,null,null,{"$f":"IF(E9764=\"\",\"\",VLOOKUP(E9764,Insumos!AD:AE,2,FALSE))","v":""},null,{"$f":"IF(G9764=\"\",\"\",VLOOKUP(G9764,Insumos!G:H,2,FALSE))","v":""}]
[null,null,null,null,null,{"$f":"IF(E9765=\"\",\"\",VLOOKUP(E9765,Insumos!AD:AE,2,FALSE))","v":""},null,{"$f":"IF(G9765=\"\",\"\",VLOOKUP(G9765,Insumos!G:H,2,FALSE))","v":""}]
[null,null,null,null,null,{"$f":"IF(E9766=\"\",\"\",VLOOKUP(E9766,Insumos!AD:AE,2,FALSE))","v":""},null,{"$f":"IF(G9766=\"\",\"\",VLOOKUP(G9766,Insumos!G:H,2,FALSE))","v":""}]
[null,null,null,null,null,{"$f":"IF(E9767=\"\",\"\",VLOOKUP(E9767,Insumos!AD:AE,2,FALSE))","v":""},null,{"$f":"IF(G9767=\"\",\"\",VLOOKUP(G9767,Insumos!G:H,2,FALSE))","v":""}]
[null,null,null,null,null,{"$f":"IF(E9768=\"\",\"\",VLOOKUP(E9768,Insumos!AD:AE,2,FALSE))","v":""},null,{"$f":"IF(G9768=\"\",\"\",VLOOKUP(G9768,Insumos!G:H,2,FALSE))","v":""}]
[null,null,null,null,null,{"$f":"IF(E9769=\"\",\"\",VLOOKUP(E9769,Insumos!AD:AE,2,FALSE))","v":""},null,{"$f":"IF(G9769=\"\",\"\",VLOOKUP(G9769,Insumos!G:H,2,FALSE))","v":""}]
[null,null,null,null,null,{"$f":"IF(E9770=\"\",\"\",VLOOKUP(E9770,Insumos!AD:AE,2,FALSE))","v":""},null,{"$f":"IF(G9770=\"\",\"\",VLOOKUP(G9770,Insumos!G:H,2,FALSE))","v":""}]
[null,null,null,null,null,{"$f":"IF(E9771=\"\",\"\",VLOOKUP(E9771,Insumos!AD:AE,2,FALSE))","v":""},null,{"$f":"IF(G9771=\"\",\"\",VLOOKUP(G9771,Insumos!G:H,2,FALSE))","v":""}]
[null,null,null,null,null,{"$f":"IF(E9772=\"\",\"\",VLOOKUP(E9772,Insumos!AD:AE,2,FALSE))","v":""},null,{"$f":"IF(G9772=\"\",\"\",VLOOKUP(G9772,Insumos!G:H,2,FALSE))","v":""}]
[null,null,null,null,null,{"$f":"IF(E9773=\"\",\"\",VLOOKUP(E9773,Insumos!AD:AE,2,FALSE))","v":""},null,{"$f":"IF(G9773=\"\",\"\",VLOOKUP(G9773,Insumos!G:H,2,FALSE))","v":""}]
[null,null,null,null,null,{"$f":"IF(E9774=\"\",\"\",VLOOKUP(E9774,Insumos!AD:AE,2,FALSE))","v":""},null,{"$f":"IF(G9774=\"\",\"\",VLOOKUP(G9774,Insumos!G:H,2,FALSE))","v":""}]
[null,null,null,null,null,{"$f":"IF(E9775=\"\",\"\",VLOOKUP(E9775,Insumos!AD:AE,2,FALSE))","v":""},null,{"$f":"IF(G9775=\"\",\"\",VLOOKUP(G9775,Insumos!G:H,2,FALSE))","v":""}]
[null,null,null,null,null,{"$f":"IF(E9776=\"\",\"\",VLOOKUP(E9776,Insumos!AD:AE,2,FALSE))","v":""},null,{"$f":"IF(G9776=\"\",\"\",VLOOKUP(G9776,Insumos!G:H,2,FALSE))","v":""}]
[null,null,null,null,null,{"$f":"IF(E9777=\"\",\"\",VLOOKUP(E9777,Insumos!AD:AE,2,FALSE))","v":""},null,{"$f":"IF(G9777=\"\",\"\",VLOOKUP(G9777,Insumos!G:H,2,FALSE))","v":""}]
[null,null,null,null,null,{"$f":"IF(E9778=\"\",\"\",VLOOKUP(E9778,Insumos!AD:AE,2,FALSE))","v":""},null,{"$f":"IF(G9778=\"\",\"\",VLOOKUP(G9778,Insumos!G:H,2,FALSE))","v":""}]
[null,null,null,null,null,{"$f":"IF(E9779=\"\",\"\",VLOOKUP(E9779,Insumos!AD:AE,2,FALSE))","v":""},null,{"$f":"IF(G9779=\"\",\"\",VLOOKUP(G9779,Insumos!G:H,2,FALSE))","v":""}]
[null,null,null,null,null,{"$f":"IF(E9780=\"\",\"\",VLOOKUP(E9780,Insumos!AD:AE,2,FALSE))","v":""},null,{"$f":"IF(G9780=\"\",\"\",VLOOKUP(G9780,Insumos!G:H,2,FALSE))","v":""}]
[null,null,null,null,null,{"$f":"IF(E9781=\"\",\"\",VLOOKUP(E9781,Insumos!AD:AE,2,FALSE))","v":""},null,{"$f":"IF(G9781=\"\",\"\",VLOOKUP(G9781,Insumos!G:H,2,FALSE))","v":""}]
[null,null,null,null,null,{"$f":"IF(E9782=\"\",\"\",VLOOKUP(E9782,Insumos!AD:AE,2,FALSE))","v":""},null,{"$f":"IF(G9782=\"\",\"\",VLOOKUP(G9782,Insumos!G:H,2,FALSE))","v":""}]
[null,null,null,null,null,{"$f":"IF(E9783=\"\",\"\",VLOOKUP(E9783,Insumos!AD:AE,2,FALSE))","v":""},null,{"$f":"IF(G9783=\"\",\"\",VLOOKUP(G9783,Insumos!G:H,2,FALSE))","v":""}]
[null,null,null,null,null,{"$f":"IF(E9784=\"\",\"\",VLOOKUP(E9784,Insumos!AD:AE,2,FALSE))","v":""},null,{"$f":"IF(G9784=\"\",\"\",VLOOKUP(G9784,Insumos!G:H,2,FALSE))","v":""}]
[null,null,null,null,null,{"$f":"IF(E9785=\"\",\"\",VLOOKUP(E9785,Insumos!AD:AE,2,FALSE))","v":""},null,{"$f":"IF(G9785=\"\",\"\",VLOOKUP(G9785,Insumos!G:H,2,FALSE))","v":""}]
[null,null,null,null,null,{"$f":"IF(E9786=\"\",\"\",VLOOKUP(E9786,Insumos!AD:AE,2,FALSE))","v":""},null,{"$f":"IF(G9786=\"\",\"\",VLOOKUP(G9786,Insumos!G:H,2,FALSE))","v":""}]
[null,null,null,null,null,{"$f":"IF(E9787=\"\",\"\",VLOOKUP(E9787,Insumos!AD:AE,2,FALSE))","v":""},null,{"$f":"IF(G9787=\"\",\"\",VLOOKUP(G9787,Insumos!G:H,2,FALSE))","v":""}]
[null,null,null,null,null,{"$f":"IF(E9788=\"\",\"\",VLOOKUP(E9788,Insumos!AD:AE,2,FALSE))","v":""},null,{"$f":"IF(G9788=\"\",\"\",VLOOKUP(G9788,Insumos!G:H,2,FALSE))","v":""}]
[null,null,null,null,null,{"$f":"IF(E9789=\"\",\"\",VLOOKUP(E9789,Insumos!AD:AE,2,FALSE))","v":""},null,{"$f":"IF(G9789=\"\",\"\",VLOOKUP(G9789,Insumos!G:H,2,FALSE))","v":""}]
[null,null,null,null,null,{"$f":"IF(E9790=\"\",\"\",VLOOKUP(E9790,Insumos!AD:AE,2,FALSE))","v":""},null,{"$f":"IF(G9790=\"\",\"\",VLOOKUP(G9790,Insumos!G:H,2,FALSE))","v":""}]
[null,null,null,null,null,{"$f":"IF(E9791=\"\",\"\",VLOOKUP(E9791,Insumos!AD:AE,2,FALSE))","v":""},null,{"$f":"IF(G9791=\"\",\"\",VLOOKUP(G9791,Insumos!G:H,2,FALSE))","v":""}]
[null,null,null,null,null,{"$f":"IF(E9792=\"\",\"\",VLOOKUP(E9792,Insumos!AD:AE,2,FALSE))","v":""},null,{"$f":"IF(G9792=\"\",\"\",VLOOKUP(G9792,Insumos!G:H,2,FALSE))","v":""}]
[null,null,null,null,null,{"$f":"IF(E9793=\"\",\"\",VLOOKUP(E9793,Insumos!AD:AE,2,FALSE))","v":""},null,{"$f":"IF(G9793=\"\",\"\",VLOOKUP(G9793,Insumos!G:H,2,FALSE))","v":""}]
[null,null,null,null,null,{"$f":"IF(E9794=\"\",\"\",VLOOKUP(E9794,Insumos!AD:AE,2,FALSE))","v":""},null,{"$f":"IF(G9794=\"\",\"\",VLOOKUP(G9794,Insumos!G:H,2,FALSE))","v":""}]
[null,null,null,null,null,{"$f":"IF(E9795=\"\",\"\",VLOOKUP(E9795,Insumos!AD:AE,2,FALSE))","v":""},null,{"$f":"IF(G9795=\"\",\"\",VLOOKUP(G9795,Insumos!G:H,2,FALSE))","v":""}]
[null,null,null,null,null,{"$f":"IF(E9796=\"\",\"\",VLOOKUP(E9796,Insumos!AD:AE,2,FALSE))","v":""},null,{"$f":"IF(G9796=\"\",\"\",VLOOKUP(G9796,Insumos!G:H,2,FALSE))","v":""}]
[null,null,null,null,null,{"$f":"IF(E9797=\"\",\"\",VLOOKUP(E9797,Insumos!AD:AE,2,FALSE))","v":""},null,{"$f":"IF(G9797=\"\",\"\",VLOOKUP(G9797,Insumos!G:H,2,FALSE))","v":""}]
[null,null,null,null,null,{"$f":"IF(E9798=\"\",\"\",VLOOKUP(E9798,Insumos!AD:AE,2,FALSE))","v":""},null,{"$f":"IF(G9798=\"\",\"\",VLOOKUP(G9798,Insumos!G:H,2,FALSE))","v":""}]
[null,null,null,null,null,{"$f":"IF(E9799=\"\",\"\",VLOOKUP(E9799,Insumos!AD:AE,2,FALSE))","v":""},null,{"$f":"IF(G9799=\"\",\"\",VLOOKUP(G9799,Insumos!G:H,2,FALSE))","v":""}]
[null,null,null,null,null,{"$f":"IF(E9800=\"\",\"\",VLOOKUP(E9800,Insumos!AD:AE,2,FALSE))","v":""},null,{"$f":"IF(G9800=\"\",\"\",VLOOKUP(G9800,Insumos!G:H,2,FALSE))","v":""}]
[null,null,null,null,null,{"$f":"IF(E9801=\"\",\"\",VLOOKUP(E9801,Insumos!AD:AE,2,FALSE))","v":""},null,{"$f":"IF(G9801=\"\",\"\",VLOOKUP(G9801,Insumos!G:H,2,FALSE))","v":""}]
[null,null,null,null,null,{"$f":"IF(E9802=\"\",\"\",VLOOKUP(E9802,Insumos!AD:AE,2,FALSE))","v":""},null,{"$f":"IF(G9802=\"\",\"\",VLOOKUP(G9802,Insumos!G:H,2,FALSE))","v":""}]
[null,null,null,null,null,{"$f":"IF(E9803=\"\",\"\",VLOOKUP(E9803,Insumos!AD:AE,2,FALSE))","v":""},null,{"$f":"IF(G9803=\"\",\"\",VLOOKUP(G9803,Insumos!G:H,2,FALSE))","v":""}]
[null,null,null,null,null,{"$f":"IF(E9804=\"\",\"\",VLOOKUP(E9804,Insumos!AD:AE,2,FALSE))","v":""},null,{"$f":"IF(G9804=\"\",\"\",VLOOKUP(G9804,Insumos!G:H,2,FALSE))","v":""}]
[null,null,null,null,null,{"$f":"IF(E9805=\"\",\"\",VLOOKUP(E9805,Insumos!AD:AE,2,FALSE))","v":""},null,{"$f":"IF(G9805=\"\",\"\",VLOOKUP(G9805,Insumos!G:H,2,FALSE))","v":""}]
[null,null,null,null,null,{"$f":"IF(E9806=\"\",\"\",VLOOKUP(E9806,Insumos!AD:AE,2,FALSE))","v":""},null,{"$f":"IF(G9806=\"\",\"\",VLOOKUP(G9806,Insumos!G:H,2,FALSE))","v":""}]
[null,null,null,null,null,{"$f":"IF(E9807=\"\",\"\",VLOOKUP(E9807,Insumos!AD:AE,2,FALSE))","v":""},null,{"$f":"IF(G9807=\"\",\"\",VLOOKUP(G9807,Insumos!G:H,2,FALSE))","v":""}]
[null,null,null,null,null,{"$f":"IF(E9808=\"\",\"\",VLOOKUP(E9808,Insumos!AD:AE,2,FALSE))","v":""},null,{"$f":"IF(G9808=\"\",\"\",VLOOKUP(G9808,Insumos!G:H,2,FALSE))","v":""}]
[null,null,null,null,null,{"$f":"IF(E9809=\"\",\"\",VLOOKUP(E9809,Insumos!AD:AE,2,FALSE))","v":""},null,{"$f":"IF(G9809=\"\",\"\",VLOOKUP(G9809,Insumos!G:H,2,FALSE))","v":""}]
[null,null,null,null,null,{"$f":"IF(E9810=\"\",\"\",VLOOKUP(E9810,Insumos!AD:AE,2,FALSE))","v":""},null,{"$f":"IF(G9810=\"\",\"\",VLOOKUP(G9810,Insumos!G:H,2,FALSE))","v":""}]
[null,null,null,null,null,{"$f":"IF(E9811=\"\",\"\",VLOOKUP(E9811,Insumos!AD:AE,2,FALSE))","v":""},null,{"$f":"IF(G9811=\"\",\"\",VLOOKUP(G9811,Insumos!G:H,2,FALSE))","v":""}]
[null,null,null,null,null,{"$f":"IF(E9812=\"\",\"\",VLOOKUP(E9812,Insumos!AD:AE,2,FALSE))","v":""},null,{"$f":"IF(G9812=\"\",\"\",VLOOKUP(G9812,Insumos!G:H,2,FALSE))","v":""}]
[null,null,null,null,null,{"$f":"IF(E9813=\"\",\"\",VLOOKUP(E9813,Insumos!AD:AE,2,FALSE))","v":""},null,{"$f":"IF(G9813=\"\",\"\",VLOOKUP(G9813,Insumos!G:H,2,FALSE))","v":""}]
[null,null,null,null,null,{"$f":"IF(E9814=\"\",\"\",VLOOKUP(E9814,Insumos!AD:AE,2,FALSE))","v":""},null,{"$f":"IF(G9814=\"\",\"\",VLOOKUP(G9814,Insumos!G:H,2,FALSE))","v":""}]
[null,null,null,null,null,{"$f":"IF(E9815=\"\",\"\",VLOOKUP(E9815,Insumos!AD:AE,2,FALSE))","v":""},null,{"$f":"IF(G9815=\"\",\"\",VLOOKUP(G9815,Insumos!G:H,2,FALSE))","v":""}]
[null,null,null,null,null,{"$f":"IF(E9816=\"\",\"\",VLOOKUP(E9816,Insumos!AD:AE,2,FALSE))","v":""},null,{"$f":"IF(G9816=\"\",\"\",VLOOKUP(G9816,Insumos!G:H,2,FALSE))","v":""}]
[null,null,null,null,null,{"$f":"IF(E9817=\"\",\"\",VLOOKUP(E9817,Insumos!AD:AE,2,FALSE))","v":""},null,{"$f":"IF(G9817=\"\",\"\",VLOOKUP(G9817,Insumos!G:H,2,FALSE))","v":""}]
[null,null,null,null,null,{"$f":"IF(E9818=\"\",\"\",VLOOKUP(E9818,Insumos!AD:AE,2,FALSE))","v":""},null,{"$f":"IF(G9818=\"\",\"\",VLOOKUP(G9818,Insumos!G:H,2,FALSE))","v":""}]
[null,null,null,null,null,{"$f":"IF(E9819=\"\",\"\",VLOOKUP(E9819,Insumos!AD:AE,2,FALSE))","v":""},null,{"$f":"IF(G9819=\"\",\"\",VLOOKUP(G9819,Insumos!G:H,2,FALSE))","v":""}]
[null,null,null,null,null,{"$f":"IF(E9820=\"\",\"\",VLOOKUP(E9820,Insumos!AD:AE,2,FALSE))","v":""},null,{"$f":"IF(G9820=\"\",\"\",VLOOKUP(G9820,Insumos!G:H,2,FALSE))","v":""}]
[null,null,null,null,null,{"$f":"IF(E9821=\"\",\"\",VLOOKUP(E9821,Insumos!AD:AE,2,FALSE))","v":""},null,{"$f":"IF(G9821=\"\",\"\",VLOOKUP(G9821,Insumos!G:H,2,FALSE))","v":""}]
[null,null,null,null,null,{"$f":"IF(E9822=\"\",\"\",VLOOKUP(E9822,Insumos!AD:AE,2,FALSE))","v":""},null,{"$f":"IF(G9822=\"\",\"\",VLOOKUP(G9822,Insumos!G:H,2,FALSE))","v":""}]
[null,null,null,null,null,{"$f":"IF(E9823=\"\",\"\",VLOOKUP(E9823,Insumos!AD:AE,2,FALSE))","v":""},null,{"$f":"IF(G9823=\"\",\"\",VLOOKUP(G9823,Insumos!G:H,2,FALSE))","v":""}]
[null,null,null,null,null,{"$f":"IF(E9824=\"\",\"\",VLOOKUP(E9824,Insumos!AD:AE,2,FALSE))","v":""},null,{"$f":"IF(G9824=\"\",\"\",VLOOKUP(G9824,Insumos!G:H,2,FALSE))","v":""}]
[null,null,null,null,null,{"$f":"IF(E9825=\"\",\"\",VLOOKUP(E9825,Insumos!AD:AE,2,FALSE))","v":""},null,{"$f":"IF(G9825=\"\",\"\",VLOOKUP(G9825,Insumos!G:H,2,FALSE))","v":""}]
[null,null,null,null,null,{"$f":"IF(E9826=\"\",\"\",VLOOKUP(E9826,Insumos!AD:AE,2,FALSE))","v":""},null,{"$f":"IF(G9826=\"\",\"\",VLOOKUP(G9826,Insumos!G:H,2,FALSE))","v":""}]
[null,null,null,null,null,{"$f":"IF(E9827=\"\",\"\",VLOOKUP(E9827,Insumos!AD:AE,2,FALSE))","v":""},null,{"$f":"IF(G9827=\"\",\"\",VLOOKUP(G9827,Insumos!G:H,2,FALSE))","v":""}]
[null,null,null,null,null,{"$f":"IF(E9828=\"\",\"\",VLOOKUP(E9828,Insumos!AD:AE,2,FALSE))","v":""},null,{"$f":"IF(G9828=\"\",\"\",VLOOKUP(G9828,Insumos!G:H,2,FALSE))","v":""}]
[null,null,null,null,null,{"$f":"IF(E9829=\"\",\"\",VLOOKUP(E9829,Insumos!AD:AE,2,FALSE))","v":""},null,{"$f":"IF(G9829=\"\",\"\",VLOOKUP(G9829,Insumos!G:H,2,FALSE))","v":""}]
[null,null,null,null,null,{"$f":"IF(E9830=\"\",\"\",VLOOKUP(E9830,Insumos!AD:AE,2,FALSE))","v":""},null,{"$f":"IF(G9830=\"\",\"\",VLOOKUP(G9830,Insumos!G:H,2,FALSE))","v":""}]
[null,null,null,null,null,{"$f":"IF(E9831=\"\",\"\",VLOOKUP(E9831,Insumos!AD:AE,2,FALSE))","v":""},null,{"$f":"IF(G9831=\"\",\"\",VLOOKUP(G9831,Insumos!G:H,2,FALSE))","v":""}]
[null,null,null,null,null,{"$f":"IF(E9832=\"\",\"\",VLOOKUP(E9832,Insumos!AD:AE,2,FALSE))","v":""},null,{"$f":"IF(G9832=\"\",\"\",VLOOKUP(G9832,Insumos!G:H,2,FALSE))","v":""}]
[null,null,null,null,null,{"$f":"IF(E9833=\"\",\"\",VLOOKUP(E9833,Insumos!AD:AE,2,FALSE))","v":""},null,{"$f":"IF(G9833=\"\",\"\",VLOOKUP(G9833,Insumos!G:H,2,FALSE))","v":""}]
[null,null,null,null,null,{"$f":"IF(E9834=\"\",\"\",VLOOKUP(E9834,Insumos!AD:AE,2,FALSE))","v":""},null,{"$f":"IF(G9834=\"\",\"\",VLOOKUP(G9834,Insumos!G:H,2,FALSE))","v":""}]
[null,null,null,null,null,{"$f":"IF(E9835=\"\",\"\",VLOOKUP(E9835,Insumos!AD:AE,2,FALSE))","v":""},null,{"$f":"IF(G9835=\"\",\"\",VLOOKUP(G9835,Insumos!G:H,2,FALSE))","v":""}]
[null,null,null,null,null,{"$f":"IF(E9836=\"\",\"\",VLOOKUP(E9836,Insumos!AD:AE,2,FALSE))","v":""},null,{"$f":"IF(G9836=\"\",\"\",VLOOKUP(G9836,Insumos!G:H,2,FALSE))","v":""}]
[null,null,null,null,null,{"$f":"IF(E9837=\"\",\"\",VLOOKUP(E9837,Insumos!AD:AE,2,FALSE))","v":""},null,{"$f":"IF(G9837=\"\",\"\",VLOOKUP(G9837,Insumos!G:H,2,FALSE))","v":""}]
[null,null,null,null,null,{"$f":"IF(E9838=\"\",\"\",VLOOKUP(E9838,Insumos!AD:AE,2,FALSE))","v":""},null,{"$f":"IF(G9838=\"\",\"\",VLOOKUP(G9838,Insumos!G:H,2,FALSE))","v":""}]
[null,null,null,null,null,{"$f":"IF(E9839=\"\",\"\",VLOOKUP(E9839,Insumos!AD:AE,2,FALSE))","v":""},null,{"$f":"IF(G9839=\"\",\"\",VLOOKUP(G9839,Insumos!G:H,2,FALSE))","v":""}]
[null,null,null,null,null,{"$f":"IF(E9840=\"\",\"\",VLOOKUP(E9840,Insumos!AD:AE,2,FALSE))","v":""},null,{"$f":"IF(G9840=\"\",\"\",VLOOKUP(G9840,Insumos!G:H,2,FALSE))","v":""}]
[null,null,null,null,null,{"$f":"IF(E9841=\"\",\"\",VLOOKUP(E9841,Insumos!AD:AE,2,FALSE))","v":""},null,{"$f":"IF(G9841=\"\",\"\",VLOOKUP(G9841,Insumos!G:H,2,FALSE))","v":""}]
[null,null,null,null,null,{"$f":"IF(E9842=\"\",\"\",VLOOKUP(E9842,Insumos!AD:AE,2,FALSE))","v":""},null,{"$f":"IF(G9842=\"\",\"\",VLOOKUP(G9842,Insumos!G:H,2,FALSE))","v":""}]
[null,null,null,null,null,{"$f":"IF(E9843=\"\",\"\",VLOOKUP(E9843,Insumos!AD:AE,2,FALSE))","v":""},null,{"$f":"IF(G9843=\"\",\"\",VLOOKUP(G9843,Insumos!G:H,2,FALSE))","v":""}]
[null,null,null,null,null,{"$f":"IF(E9844=\"\",\"\",VLOOKUP(E9844,Insumos!AD:AE,2,FALSE))","v":""},null,{"$f":"IF(G9844=\"\",\"\",VLOOKUP(G9844,Insumos!G:H,2,FALSE))","v":""}]
[null,null,null,null,null,{"$f":"IF(E9845=\"\",\"\",VLOOKUP(E9845,Insumos!AD:AE,2,FALSE))","v":""},null,{"$f":"IF(G9845=\"\",\"\",VLOOKUP(G9845,Insumos!G:H,2,FALSE))","v":""}]
[null,null,null,null,null,{"$f":"IF(E9846=\"\",\"\",VLOOKUP(E9846,Insumos!AD:AE,2,FALSE))","v":""},null,{"$f":"IF(G9846=\"\",\"\",VLOOKUP(G9846,Insumos!G:H,2,FALSE))","v":""}]
[null,null,null,null,null,{"$f":"IF(E9847=\"\",\"\",VLOOKUP(E9847,Insumos!AD:AE,2,FALSE))","v":""},null,{"$f":"IF(G9847=\"\",\"\",VLOOKUP(G9847,Insumos!G:H,2,FALSE))","v":""}]
[null,null,null,null,null,{"$f":"IF(E9848=\"\",\"\",VLOOKUP(E9848,Insumos!AD:AE,2,FALSE))","v":""},null,{"$f":"IF(G9848=\"\",\"\",VLOOKUP(G9848,Insumos!G:H,2,FALSE))","v":""}]
[null,null,null,null,null,{"$f":"IF(E9849=\"\",\"\",VLOOKUP(E9849,Insumos!AD:AE,2,FALSE))","v":""},null,{"$f":"IF(G9849=\"\",\"\",VLOOKUP(G9849,Insumos!G:H,2,FALSE))","v":""}]
[null,null,null,null,null,{"$f":"IF(E9850=\"\",\"\",VLOOKUP(E9850,Insumos!AD:AE,2,FALSE))","v":""},null,{"$f":"IF(G9850=\"\",\"\",VLOOKUP(G9850,Insumos!G:H,2,FALSE))","v":""}]
[null,null,null,null,null,{"$f":"IF(E9851=\"\",\"\",VLOOKUP(E9851,Insumos!AD:AE,2,FALSE))","v":""},null,{"$f":"IF(G9851=\"\",\"\",VLOOKUP(G9851,Insumos!G:H,2,FALSE))","v":""}]
[null,null,null,null,null,{"$f":"IF(E9852=\"\",\"\",VLOOKUP(E9852,Insumos!AD:AE,2,FALSE))","v":""},null,{"$f":"IF(G9852=\"\",\"\",VLOOKUP(G9852,Insumos!G:H,2,FALSE))","v":""}]
[null,null,null,null,null,{"$f":"IF(E9853=\"\",\"\",VLOOKUP(E9853,Insumos!AD:AE,2,FALSE))","v":""},null,{"$f":"IF(G9853=\"\",\"\",VLOOKUP(G9853,Insumos!G:H,2,FALSE))","v":""}]
[null,null,null,null,null,{"$f":"IF(E9854=\"\",\"\",VLOOKUP(E9854,Insumos!AD:AE,2,FALSE))","v":""},null,{"$f":"IF(G9854=\"\",\"\",VLOOKUP(G9854,Insumos!G:H,2,FALSE))","v":""}]
[null,null,null,null,null,{"$f":"IF(E9855=\"\",\"\",VLOOKUP(E9855,Insumos!AD:AE,2,FALSE))","v":""},null,{"$f":"IF(G9855=\"\",\"\",VLOOKUP(G9855,Insumos!G:H,2,FALSE))","v":""}]
[null,null,null,null,null,{"$f":"IF(E9856=\"\",\"\",VLOOKUP(E9856,Insumos!AD:AE,2,FALSE))","v":""},null,{"$f":"IF(G9856=\"\",\"\",VLOOKUP(G9856,Insumos!G:H,2,FALSE))","v":""}]
[null,null,null,null,null,{"$f":"IF(E9857=\"\",\"\",VLOOKUP(E9857,Insumos!AD:AE,2,FALSE))","v":""},null,{"$f":"IF(G9857=\"\",\"\",VLOOKUP(G9857,Insumos!G:H,2,FALSE))","v":""}]
[null,null,null,null,null,{"$f":"IF(E9858=\"\",\"\",VLOOKUP(E9858,Insumos!AD:AE,2,FALSE))","v":""},null,{"$f":"IF(G9858=\"\",\"\",VLOOKUP(G9858,Insumos!G:H,2,FALSE))","v":""}]
[null,null,null,null,null,{"$f":"IF(E9859=\"\",\"\",VLOOKUP(E9859,Insumos!AD:AE,2,FALSE))","v":""},null,{"$f":"IF(G9859=\"\",\"\",VLOOKUP(G9859,Insumos!G:H,2,FALSE))","v":""}]
[null,null,null,null,null,{"$f":"IF(E9860=\"\",\"\",VLOOKUP(E9860,Insumos!AD:AE,2,FALSE))","v":""},null,{"$f":"IF(G9860=\"\",\"\",VLOOKUP(G9860,Insumos!G:H,2,FALSE))","v":""}]
[null,null,null,null,null,{"$f":"IF(E9861=\"\",\"\",VLOOKUP(E9861,Insumos!AD:AE,2,FALSE))","v":""},null,{"$f":"IF(G9861=\"\",\"\",VLOOKUP(G9861,Insumos!G:H,2,FALSE))","v":""}]
[null,null,null,null,null,{"$f":"IF(E9862=\"\",\"\",VLOOKUP(E9862,Insumos!AD:AE,2,FALSE))","v":""},null,{"$f":"IF(G9862=\"\",\"\",VLOOKUP(G9862,Insumos!G:H,2,FALSE))","v":""}]
[null,null,null,null,null,{"$f":"IF(E9863=\"\",\"\",VLOOKUP(E9863,Insumos!AD:AE,2,FALSE))","v":""},null,{"$f":"IF(G9863=\"\",\"\",VLOOKUP(G9863,Insumos!G:H,2,FALSE))","v":""}]
[null,null,null,null,null,{"$f":"IF(E9864=\"\",\"\",VLOOKUP(E9864,Insumos!AD:AE,2,FALSE))","v":""},null,{"$f":"IF(G9864=\"\",\"\",VLOOKUP(G9864,Insumos!G:H,2,FALSE))","v":""}]
[null,null,null,null,null,{"$f":"IF(E9865=\"\",\"\",VLOOKUP(E9865,Insumos!AD:AE,2,FALSE))","v":""},null,{"$f":"IF(G9865=\"\",\"\",VLOOKUP(G9865,Insumos!G:H,2,FALSE))","v":""}]
[null,null,null,null,null,{"$f":"IF(E9866=\"\",\"\",VLOOKUP(E9866,Insumos!AD:AE,2,FALSE))","v":""},null,{"$f":"IF(G9866=\"\",\"\",VLOOKUP(G9866,Insumos!G:H,2,FALSE))","v":""}]
[null,null,null,null,null,{"$f":"IF(E9867=\"\",\"\",VLOOKUP(E9867,Insumos!AD:AE,2,FALSE))","v":""},null,{"$f":"IF(G9867=\"\",\"\",VLOOKUP(G9867,Insumos!G:H,2,FALSE))","v":""}]
[null,null,null,null,null,{"$f":"IF(E9868=\"\",\"\",VLOOKUP(E9868,Insumos!AD:AE,2,FALSE))","v":""},null,{"$f":"IF(G9868=\"\",\"\",VLOOKUP(G9868,Insumos!G:H,2,FALSE))","v":""}]
[null,null,null,null,null,{"$f":"IF(E9869=\"\",\"\",VLOOKUP(E9869,Insumos!AD:AE,2,FALSE))","v":""},null,{"$f":"IF(G9869=\"\",\"\",VLOOKUP(G9869,Insumos!G:H,2,FALSE))","v":""}]
[null,null,null,null,null,{"$f":"IF(E9870=\"\",\"\",VLOOKUP(E9870,Insumos!AD:AE,2,FALSE))","v":""},null,{"$f":"IF(G9870=\"\",\"\",VLOOKUP(G9870,Insumos!G:H,2,FALSE))","v":""}]
[null,null,null,null,null,{"$f":"IF(E9871=\"\",\"\",VLOOKUP(E9871,Insumos!AD:AE,2,FALSE))","v":""},null,{"$f":"IF(G9871=\"\",\"\",VLOOKUP(G9871,Insumos!G:H,2,FALSE))","v":""}]
[null,null,null,null,null,{"$f":"IF(E9872=\"\",\"\",VLOOKUP(E9872,Insumos!AD:AE,2,FALSE))","v":""},null,{"$f":"IF(G9872=\"\",\"\",VLOOKUP(G9872,Insumos!G:H,2,FALSE))","v":""}]
[null,null,null,null,null,{"$f":"IF(E9873=\"\",\"\",VLOOKUP(E9873,Insumos!AD:AE,2,FALSE))","v":""},null,{"$f":"IF(G9873=\"\",\"\",VLOOKUP(G9873,Insumos!G:H,2,FALSE))","v":""}]
[null,null,null,null,null,{"$f":"IF(E9874=\"\",\"\",VLOOKUP(E9874,Insumos!AD:AE,2,FALSE))","v":""},null,{"$f":"IF(G9874=\"\",\"\",VLOOKUP(G9874,Insumos!G:H,2,FALSE))","v":""}]
[null,null,null,null,null,{"$f":"IF(E9875=\"\",\"\",VLOOKUP(E9875,Insumos!AD:AE,2,FALSE))","v":""},null,{"$f":"IF(G9875=\"\",\"\",VLOOKUP(G9875,Insumos!G:H,2,FALSE))","v":""}]
[null,null,null,null,null,{"$f":"IF(E9876=\"\",\"\",VLOOKUP(E9876,Insumos!AD:AE,2,FALSE))","v":""},null,{"$f":"IF(G9876=\"\",\"\",VLOOKUP(G9876,Insumos!G:H,2,FALSE))","v":""}]
[null,null,null,null,null,{"$f":"IF(E9877=\"\",\"\",VLOOKUP(E9877,Insumos!AD:AE,2,FALSE))","v":""},null,{"$f":"IF(G9877=\"\",\"\",VLOOKUP(G9877,Insumos!G:H,2,FALSE))","v":""}]
[null,null,null,null,null,{"$f":"IF(E9878=\"\",\"\",VLOOKUP(E9878,Insumos!AD:AE,2,FALSE))","v":""},null,{"$f":"IF(G9878=\"\",\"\",VLOOKUP(G9878,Insumos!G:H,2,FALSE))","v":""}]
[null,null,null,null,null,{"$f":"IF(E9879=\"\",\"\",VLOOKUP(E9879,Insumos!AD:AE,2,FALSE))","v":""},null,{"$f":"IF(G9879=\"\",\"\",VLOOKUP(G9879,Insumos!G:H,2,FALSE))","v":""}]
[null,null,null,null,null,{"$f":"IF(E9880=\"\",\"\",VLOOKUP(E9880,Insumos!AD:AE,2,FALSE))","v":""},null,{"$f":"IF(G9880=\"\",\"\",VLOOKUP(G9880,Insumos!G:H,2,FALSE))","v":""}]
[null,null,null,null,null,{"$f":"IF(E9881=\"\",\"\",VLOOKUP(E9881,Insumos!AD:AE,2,FALSE))","v":""},null,{"$f":"IF(G9881=\"\",\"\",VLOOKUP(G9881,Insumos!G:H,2,FALSE))","v":""}]
[null,null,null,null,null,{"$f":"IF(E9882=\"\",\"\",VLOOKUP(E9882,Insumos!AD:AE,2,FALSE))","v":""},null,{"$f":"IF(G9882=\"\",\"\",VLOOKUP(G9882,Insumos!G:H,2,FALSE))","v":""}]
[null,null,null,null,null,{"$f":"IF(E9883=\"\",\"\",VLOOKUP(E9883,Insumos!AD:AE,2,FALSE))","v":""},null,{"$f":"IF(G9883=\"\",\"\",VLOOKUP(G9883,Insumos!G:H,2,FALSE))","v":""}]
[null,null,null,null,null,{"$f":"IF(E9884=\"\",\"\",VLOOKUP(E9884,Insumos!AD:AE,2,FALSE))","v":""},null,{"$f":"IF(G9884=\"\",\"\",VLOOKUP(G9884,Insumos!G:H,2,FALSE))","v":""}]
[null,null,null,null,null,{"$f":"IF(E9885=\"\",\"\",VLOOKUP(E9885,Insumos!AD:AE,2,FALSE))","v":""},null,{"$f":"IF(G9885=\"\",\"\",VLOOKUP(G9885,Insumos!G:H,2,FALSE))","v":""}]
[null,null,null,null,null,{"$f":"IF(E9886=\"\",\"\",VLOOKUP(E9886,Insumos!AD:AE,2,FALSE))","v":""},null,{"$f":"IF(G9886=\"\",\"\",VLOOKUP(G9886,Insumos!G:H,2,FALSE))","v":""}]
[null,null,null,null,null,{"$f":"IF(E9887=\"\",\"\",VLOOKUP(E9887,Insumos!AD:AE,2,FALSE))","v":""},null,{"$f":"IF(G9887=\"\",\"\",VLOOKUP(G9887,Insumos!G:H,2,FALSE))","v":""}]
[null,null,null,null,null,{"$f":"IF(E9888=\"\",\"\",VLOOKUP(E9888,Insumos!AD:AE,2,FALSE))","v":""},null,{"$f":"IF(G9888=\"\",\"\",VLOOKUP(G9888,Insumos!G:H,2,FALSE))","v":""}]
[null,null,null,null,null,{"$f":"IF(E9889=\"\",\"\",VLOOKUP(E9889,Insumos!AD:AE,2,FALSE))","v":""},null,{"$f":"IF(G9889=\"\",\"\",VLOOKUP(G9889,Insumos!G:H,2,FALSE))","v":""}]
[null,null,null,null,null,{"$f":"IF(E9890=\"\",\"\",VLOOKUP(E9890,Insumos!AD:AE,2,FALSE))","v":""},null,{"$f":"IF(G9890=\"\",\"\",VLOOKUP(G9890,Insumos!G:H,2,FALSE))","v":""}]
[null,null,null,null,null,{"$f":"IF(E9891=\"\",\"\",VLOOKUP(E9891,Insumos!AD:AE,2,FALSE))","v":""},null,{"$f":"IF(G9891=\"\",\"\",VLOOKUP(G9891,Insumos!G:H,2,FALSE))","v":""}]
[null,null,null,null,null,{"$f":"IF(E9892=\"\",\"\",VLOOKUP(E9892,Insumos!AD:AE,2,FALSE))","v":""},null,{"$f":"IF(G9892=\"\",\"\",VLOOKUP(G9892,Insumos!G:H,2,FALSE))","v":""}]
[null,null,null,null,null,{"$f":"IF(E9893=\"\",\"\",VLOOKUP(E9893,Insumos!AD:AE,2,FALSE))","v":""},null,{"$f":"IF(G9893=\"\",\"\",VLOOKUP(G9893,Insumos!G:H,2,FALSE))","v":""}]
[null,null,null,null,null,{"$f":"IF(E9894=\"\",\"\",VLOOKUP(E9894,Insumos!AD:AE,2,FALSE))","v":""},null,{"$f":"IF(G9894=\"\",\"\",VLOOKUP(G9894,Insumos!G:H,2,FALSE))","v":""}]
[null,null,null,null,null,{"$f":"IF(E9895=\"\",\"\",VLOOKUP(E9895,Insumos!AD:AE,2,FALSE))","v":""},null,{"$f":"IF(G9895=\"\",\"\",VLOOKUP(G9895,Insumos!G:H,2,FALSE))","v":""}]
[null,null,null,null,null,{"$f":"IF(E9896=\"\",\"\",VLOOKUP(E9896,Insumos!AD:AE,2,FALSE))","v":""},null,{"$f":"IF(G9896=\"\",\"\",VLOOKUP(G9896,Insumos!G:H,2,FALSE))","v":""}]
[null,null,null,null,null,{"$f":"IF(E9897=\"\",\"\",VLOOKUP(E9897,Insumos!AD:AE,2,FALSE))","v":""},null,{"$f":"IF(G9897=\"\",\"\",VLOOKUP(G9897,Insumos!G:H,2,FALSE))","v":""}]
[null,null,null,null,null,{"$f":"IF(E9898=\"\",\"\",VLOOKUP(E9898,Insumos!AD:AE,2,FALSE))","v":""},null,{"$f":"IF(G9898=\"\",\"\",VLOOKUP(G9898,Insumos!G:H,2,FALSE))","v":""}]
[null,null,null,null,null,{"$f":"IF(E9899=\"\",\"\",VLOOKUP(E9899,Insumos!AD:AE,2,FALSE))","v":""},null,{"$f":"IF(G9899=\"\",\"\",VLOOKUP(G9899,Insumos!G:H,2,FALSE))","v":""}]
[null,null,null,null,null,{"$f":"IF(E9900=\"\",\"\",VLOOKUP(E9900,Insumos!AD:AE,2,FALSE))","v":""},null,{"$f":"IF(G9900=\"\",\"\",VLOOKUP(G9900,Insumos!G:H,2,FALSE))","v":""}]
[null,null,null,null,null,{"$f":"IF(E9901=\"\",\"\",VLOOKUP(E9901,Insumos!AD:AE,2,FALSE))","v":""},null,{"$f":"IF(G9901=\"\",\"\",VLOOKUP(G9901,Insumos!G:H,2,FALSE))","v":""}]
[null,null,null,null,null,{"$f":"IF(E9902=\"\",\"\",VLOOKUP(E9902,Insumos!AD:AE,2,FALSE))","v":""},null,{"$f":"IF(G9902=\"\",\"\",VLOOKUP(G9902,Insumos!G:H,2,FALSE))","v":""}]
[null,null,null,null,null,{"$f":"IF(E9903=\"\",\"\",VLOOKUP(E9903,Insumos!AD:AE,2,FALSE))","v":""},null,{"$f":"IF(G9903=\"\",\"\",VLOOKUP(G9903,Insumos!G:H,2,FALSE))","v":""}]
[null,null,null,null,null,{"$f":"IF(E9904=\"\",\"\",VLOOKUP(E9904,Insumos!AD:AE,2,FALSE))","v":""},null,{"$f":"IF(G9904=\"\",\"\",VLOOKUP(G9904,Insumos!G:H,2,FALSE))","v":""}]
[null,null,null,null,null,{"$f":"IF(E9905=\"\",\"\",VLOOKUP(E9905,Insumos!AD:AE,2,FALSE))","v":""},null,{"$f":"IF(G9905=\"\",\"\",VLOOKUP(G9905,Insumos!G:H,2,FALSE))","v":""}]
[null,null,null,null,null,{"$f":"IF(E9906=\"\",\"\",VLOOKUP(E9906,Insumos!AD:AE,2,FALSE))","v":""},null,{"$f":"IF(G9906=\"\",\"\",VLOOKUP(G9906,Insumos!G:H,2,FALSE))","v":""}]
[null,null,null,null,null,{"$f":"IF(E9907=\"\",\"\",VLOOKUP(E9907,Insumos!AD:AE,2,FALSE))","v":""},null,{"$f":"IF(G9907=\"\",\"\",VLOOKUP(G9907,Insumos!G:H,2,FALSE))","v":""}]
[null,null,null,null,null,{"$f":"IF(E9908=\"\",\"\",VLOOKUP(E9908,Insumos!AD:AE,2,FALSE))","v":""},null,{"$f":"IF(G9908=\"\",\"\",VLOOKUP(G9908,Insumos!G:H,2,FALSE))","v":""}]
[null,null,null,null,null,{"$f":"IF(E9909=\"\",\"\",VLOOKUP(E9909,Insumos!AD:AE,2,FALSE))","v":""},null,{"$f":"IF(G9909=\"\",\"\",VLOOKUP(G9909,Insumos!G:H,2,FALSE))","v":""}]
[null,null,null,null,null,{"$f":"IF(E9910=\"\",\"\",VLOOKUP(E9910,Insumos!AD:AE,2,FALSE))","v":""},null,{"$f":"IF(G9910=\"\",\"\",VLOOKUP(G9910,Insumos!G:H,2,FALSE))","v":""}]
[null,null,null,null,null,{"$f":"IF(E9911=\"\",\"\",VLOOKUP(E9911,Insumos!AD:AE,2,FALSE))","v":""},null,{"$f":"IF(G9911=\"\",\"\",VLOOKUP(G9911,Insumos!G:H,2,FALSE))","v":""}]
[null,null,null,null,null,{"$f":"IF(E9912=\"\",\"\",VLOOKUP(E9912,Insumos!AD:AE,2,FALSE))","v":""},null,{"$f":"IF(G9912=\"\",\"\",VLOOKUP(G9912,Insumos!G:H,2,FALSE))","v":""}]
[null,null,null,null,null,{"$f":"IF(E9913=\"\",\"\",VLOOKUP(E9913,Insumos!AD:AE,2,FALSE))","v":""},null,{"$f":"IF(G9913=\"\",\"\",VLOOKUP(G9913,Insumos!G:H,2,FALSE))","v":""}]
[null,null,null,null,null,{"$f":"IF(E9914=\"\",\"\",VLOOKUP(E9914,Insumos!AD:AE,2,FALSE))","v":""},null,{"$f":"IF(G9914=\"\",\"\",VLOOKUP(G9914,Insumos!G:H,2,FALSE))","v":""}]
[null,null,null,null,null,{"$f":"IF(E9915=\"\",\"\",VLOOKUP(E9915,Insumos!AD:AE,2,FALSE))","v":""},null,{"$f":"IF(G9915=\"\",\"\",VLOOKUP(G9915,Insumos!G:H,2,FALSE))","v":""}]
[null,null,null,null,null,{"$f":"IF(E9916=\"\",\"\",VLOOKUP(E9916,Insumos!AD:AE,2,FALSE))","v":""},null,{"$f":"IF(G9916=\"\",\"\",VLOOKUP(G9916,Insumos!G:H,2,FALSE))","v":""}]
[null,null,null,null,null,{"$f":"IF(E9917=\"\",\"\",VLOOKUP(E9917,Insumos!AD:AE,2,FALSE))","v":""},null,{"$f":"IF(G9917=\"\",\"\",VLOOKUP(G9917,Insumos!G:H,2,FALSE))","v":""}]
[null,null,null,null,null,{"$f":"IF(E9918=\"\",\"\",VLOOKUP(E9918,Insumos!AD:AE,2,FALSE))","v":""},null,{"$f":"IF(G9918=\"\",\"\",VLOOKUP(G9918,Insumos!G:H,2,FALSE))","v":""}]
[null,null,null,null,null,{"$f":"IF(E9919=\"\",\"\",VLOOKUP(E9919,Insumos!AD:AE,2,FALSE))","v":""},null,{"$f":"IF(G9919=\"\",\"\",VLOOKUP(G9919,Insumos!G:H,2,FALSE))","v":""}]
[null,null,null,null,null,{"$f":"IF(E9920=\"\",\"\",VLOOKUP(E9920,Insumos!AD:AE,2,FALSE))","v":""},null,{"$f":"IF(G9920=\"\",\"\",VLOOKUP(G9920,Insumos!G:H,2,FALSE))","v":""}]
[null,null,null,null,null,{"$f":"IF(E9921=\"\",\"\",VLOOKUP(E9921,Insumos!AD:AE,2,FALSE))","v":""},null,{"$f":"IF(G9921=\"\",\"\",VLOOKUP(G9921,Insumos!G:H,2,FALSE))","v":""}]
[null,null,null,null,null,{"$f":"IF(E9922=\"\",\"\",VLOOKUP(E9922,Insumos!AD:AE,2,FALSE))","v":""},null,{"$f":"IF(G9922=\"\",\"\",VLOOKUP(G9922,Insumos!G:H,2,FALSE))","v":""}]
[null,null,null,null,null,{"$f":"IF(E9923=\"\",\"\",VLOOKUP(E9923,Insumos!AD:AE,2,FALSE))","v":""},null,{"$f":"IF(G9923=\"\",\"\",VLOOKUP(G9923,Insumos!G:H,2,FALSE))","v":""}]
[null,null,null,null,null,{"$f":"IF(E9924=\"\",\"\",VLOOKUP(E9924,Insumos!AD:AE,2,FALSE))","v":""},null,{"$f":"IF(G9924=\"\",\"\",VLOOKUP(G9924,Insumos!G:H,2,FALSE))","v":""}]
[null,null,null,null,null,{"$f":"IF(E9925=\"\",\"\",VLOOKUP(E9925,Insumos!AD:AE,2,FALSE))","v":""},null,{"$f":"IF(G9925=\"\",\"\",VLOOKUP(G9925,Insumos!G:H,2,FALSE))","v":""}]
[null,null,null,null,null,{"$f":"IF(E9926=\"\",\"\",VLOOKUP(E9926,Insumos!AD:AE,2,FALSE))","v":""},null,{"$f":"IF(G9926=\"\",\"\",VLOOKUP(G9926,Insumos!G:H,2,FALSE))","v":""}]
[null,null,null,null,null,{"$f":"IF(E9927=\"\",\"\",VLOOKUP(E9927,Insumos!AD:AE,2,FALSE))","v":""},null,{"$f":"IF(G9927=\"\",\"\",VLOOKUP(G9927,Insumos!G:H,2,FALSE))","v":""}]
[null,null,null,null,null,{"$f":"IF(E9928=\"\",\"\",VLOOKUP(E9928,Insumos!AD:AE,2,FALSE))","v":""},null,{"$f":"IF(G9928=\"\",\"\",VLOOKUP(G9928,Insumos!G:H,2,FALSE))","v":""}]
[null,null,null,null,null,{"$f":"IF(E9929=\"\",\"\",VLOOKUP(E9929,Insumos!AD:AE,2,FALSE))","v":""},null,{"$f":"IF(G9929=\"\",\"\",VLOOKUP(G9929,Insumos!G:H,2,FALSE))","v":""}]
[null,null,null,null,null,{"$f":"IF(E9930=\"\",\"\",VLOOKUP(E9930,Insumos!AD:AE,2,FALSE))","v":""},null,{"$f":"IF(G9930=\"\",\"\",VLOOKUP(G9930,Insumos!G:H,2,FALSE))","v":""}]
[null,null,null,null,null,{"$f":"IF(E9931=\"\",\"\",VLOOKUP(E9931,Insumos!AD:AE,2,FALSE))","v":""},null,{"$f":"IF(G9931=\"\",\"\",VLOOKUP(G9931,Insumos!G:H,2,FALSE))","v":""}]
[null,null,null,null,null,{"$f":"IF(E9932=\"\",\"\",VLOOKUP(E9932,Insumos!AD:AE,2,FALSE))","v":""},null,{"$f":"IF(G9932=\"\",\"\",VLOOKUP(G9932,Insumos!G:H,2,FALSE))","v":""}]
[null,null,null,null,null,{"$f":"IF(E9933=\"\",\"\",VLOOKUP(E9933,Insumos!AD:AE,2,FALSE))","v":""},null,{"$f":"IF(G9933=\"\",\"\",VLOOKUP(G9933,Insumos!G:H,2,FALSE))","v":""}]
[null,null,null,null,null,{"$f":"IF(E9934=\"\",\"\",VLOOKUP(E9934,Insumos!AD:AE,2,FALSE))","v":""},null,{"$f":"IF(G9934=\"\",\"\",VLOOKUP(G9934,Insumos!G:H,2,FALSE))","v":""}]
[null,null,null,null,null,{"$f":"IF(E9935=\"\",\"\",VLOOKUP(E9935,Insumos!AD:AE,2,FALSE))","v":""},null,{"$f":"IF(G9935=\"\",\"\",VLOOKUP(G9935,Insumos!G:H,2,FALSE))","v":""}]
[null,null,null,null,null,{"$f":"IF(E9936=\"\",\"\",VLOOKUP(E9936,Insumos!AD:AE,2,FALSE))","v":""},null,{"$f":"IF(G9936=\"\",\"\",VLOOKUP(G9936,Insumos!G:H,2,FALSE))","v":""}]
[null,null,null,null,null,{"$f":"IF(E9937=\"\",\"\",VLOOKUP(E9937,Insumos!AD:AE,2,FALSE))","v":""},null,{"$f":"IF(G9937=\"\",\"\",VLOOKUP(G9937,Insumos!G:H,2,FALSE))","v":""}]
[null,null,null,null,null,{"$f":"IF(E9938=\"\",\"\",VLOOKUP(E9938,Insumos!AD:AE,2,FALSE))","v":""},null,{"$f":"IF(G9938=\"\",\"\",VLOOKUP(G9938,Insumos!G:H,2,FALSE))","v":""}]
[null,null,null,null,null,{"$f":"IF(E9939=\"\",\"\",VLOOKUP(E9939,Insumos!AD:AE,2,FALSE))","v":""},null,{"$f":"IF(G9939=\"\",\"\",VLOOKUP(G9939,Insumos!G:H,2,FALSE))","v":""}]
[null,null,null,null,null,{"$f":"IF(E9940=\"\",\"\",VLOOKUP(E9940,Insumos!AD:AE,2,FALSE))","v":""},null,{"$f":"IF(G9940=\"\",\"\",VLOOKUP(G9940,Insumos!G:H,2,FALSE))","v":""}]
[null,null,null,null,null,{"$f":"IF(E9941=\"\",\"\",VLOOKUP(E9941,Insumos!AD:AE,2,FALSE))","v":""},null,{"$f":"IF(G9941=\"\",\"\",VLOOKUP(G9941,Insumos!G:H,2,FALSE))","v":""}]
[null,null,null,null,null,{"$f":"IF(E9942=\"\",\"\",VLOOKUP(E9942,Insumos!AD:AE,2,FALSE))","v":""},null,{"$f":"IF(G9942=\"\",\"\",VLOOKUP(G9942,Insumos!G:H,2,FALSE))","v":""}]
[null,null,null,null,null,{"$f":"IF(E9943=\"\",\"\",VLOOKUP(E9943,Insumos!AD:AE,2,FALSE))","v":""},null,{"$f":"IF(G9943=\"\",\"\",VLOOKUP(G9943,Insumos!G:H,2,FALSE))","v":""}]
[null,null,null,null,null,{"$f":"IF(E9944=\"\",\"\",VLOOKUP(E9944,Insumos!AD:AE,2,FALSE))","v":""},null,{"$f":"IF(G9944=\"\",\"\",VLOOKUP(G9944,Insumos!G:H,2,FALSE))","v":""}]
[null,null,null,null,null,{"$f":"IF(E9945=\"\",\"\",VLOOKUP(E9945,Insumos!AD:AE,2,FALSE))","v":""},null,{"$f":"IF(G9945=\"\",\"\",VLOOKUP(G9945,Insumos!G:H,2,FALSE))","v":""}]
[null,null,null,null,null,{"$f":"IF(E9946=\"\",\"\",VLOOKUP(E9946,Insumos!AD:AE,2,FALSE))","v":""},null,{"$f":"IF(G9946=\"\",\"\",VLOOKUP(G9946,Insumos!G:H,2,FALSE))","v":""}]
[null,null,null,null,null,{"$f":"IF(E9947=\"\",\"\",VLOOKUP(E9947,Insumos!AD:AE,2,FALSE))","v":""},null,{"$f":"IF(G9947=\"\",\"\",VLOOKUP(G9947,Insumos!G:H,2,FALSE))","v":""}]
[null,null,null,null,null,{"$f":"IF(E9948=\"\",\"\",VLOOKUP(E9948,Insumos!AD:AE,2,FALSE))","v":""},null,{"$f":"IF(G9948=\"\",\"\",VLOOKUP(G9948,Insumos!G:H,2,FALSE))","v":""}]
[null,null,null,null,null,{"$f":"IF(E9949=\"\",\"\",VLOOKUP(E9949,Insumos!AD:AE,2,FALSE))","v":""},null,{"$f":"IF(G9949=\"\",\"\",VLOOKUP(G9949,Insumos!G:H,2,FALSE))","v":""}]
[null,null,null,null,null,{"$f":"IF(E9950=\"\",\"\",VLOOKUP(E9950,Insumos!AD:AE,2,FALSE))","v":""},null,{"$f":"IF(G9950=\"\",\"\",VLOOKUP(G9950,Insumos!G:H,2,FALSE))","v":""}]
[null,null,null,null,null,{"$f":"IF(E9951=\"\",\"\",VLOOKUP(E9951,Insumos!AD:AE,2,FALSE))","v":""},null,{"$f":"IF(G9951=\"\",\"\",VLOOKUP(G9951,Insumos!G:H,2,FALSE))","v":""}]
[null,null,null,null,null,{"$f":"IF(E9952=\"\",\"\",VLOOKUP(E9952,Insumos!AD:AE,2,FALSE))","v":""},null,{"$f":"IF(G9952=\"\",\"\",VLOOKUP(G9952,Insumos!G:H,2,FALSE))","v":""}]
[null,null,null,null,null,{"$f":"IF(E9953=\"\",\"\",VLOOKUP(E9953,Insumos!AD:AE,2,FALSE))","v":""},null,{"$f":"IF(G9953=\"\",\"\",VLOOKUP(G9953,Insumos!G:H,2,FALSE))","v":""}]
[null,null,null,null,null,{"$f":"IF(E9954=\"\",\"\",VLOOKUP(E9954,Insumos!AD:AE,2,FALSE))","v":""},null,{"$f":"IF(G9954=\"\",\"\",VLOOKUP(G9954,Insumos!G:H,2,FALSE))","v":""}]
[null,null,null,null,null,{"$f":"IF(E9955=\"\",\"\",VLOOKUP(E9955,Insumos!AD:AE,2,FALSE))","v":""},null,{"$f":"IF(G9955=\"\",\"\",VLOOKUP(G9955,Insumos!G:H,2,FALSE))","v":""}]
[null,null,null,null,null,{"$f":"IF(E9956=\"\",\"\",VLOOKUP(E9956,Insumos!AD:AE,2,FALSE))","v":""},null,{"$f":"IF(G9956=\"\",\"\",VLOOKUP(G9956,Insumos!G:H,2,FALSE))","v":""}]
[null,null,null,null,null,{"$f":"IF(E9957=\"\",\"\",VLOOKUP(E9957,Insumos!AD:AE,2,FALSE))","v":""},null,{"$f":"IF(G9957=\"\",\"\",VLOOKUP(G9957,Insumos!G:H,2,FALSE))","v":""}]
[null,null,null,null,null,{"$f":"IF(E9958=\"\",\"\",VLOOKUP(E9958,Insumos!AD:AE,2,FALSE))","v":""},null,{"$f":"IF(G9958=\"\",\"\",VLOOKUP(G9958,Insumos!G:H,2,FALSE))","v":""}]
[null,null,null,null,null,{"$f":"IF(E9959=\"\",\"\",VLOOKUP(E9959,Insumos!AD:AE,2,FALSE))","v":""},null,{"$f":"IF(G9959=\"\",\"\",VLOOKUP(G9959,Insumos!G:H,2,FALSE))","v":""}]
[null,null,null,null,null,{"$f":"IF(E9960=\"\",\"\",VLOOKUP(E9960,Insumos!AD:AE,2,FALSE))","v":""},null,{"$f":"IF(G9960=\"\",\"\",VLOOKUP(G9960,Insumos!G:H,2,FALSE))","v":""}]
[null,null,null,null,null,{"$f":"IF(E9961=\"\",\"\",VLOOKUP(E9961,Insumos!AD:AE,2,FALSE))","v":""},null,{"$f":"IF(G9961=\"\",\"\",VLOOKUP(G9961,Insumos!G:H,2,FALSE))","v":""}]
[null,null,null,null,null,{"$f":"IF(E9962=\"\",\"\",VLOOKUP(E9962,Insumos!AD:AE,2,FALSE))","v":""},null,{"$f":"IF(G9962=\"\",\"\",VLOOKUP(G9962,Insumos!G:H,2,FALSE))","v":""}]
[null,null,null,null,null,{"$f":"IF(E9963=\"\",\"\",VLOOKUP(E9963,Insumos!AD:AE,2,FALSE))","v":""},null,{"$f":"IF(G9963=\"\",\"\",VLOOKUP(G9963,Insumos!G:H,2,FALSE))","v":""}]
[null,null,null,null,null,{"$f":"IF(E9964=\"\",\"\",VLOOKUP(E9964,Insumos!AD:AE,2,FALSE))","v":""},null,{"$f":"IF(G9964=\"\",\"\",VLOOKUP(G9964,Insumos!G:H,2,FALSE))","v":""}]
[null,null,null,null,null,{"$f":"IF(E9965=\"\",\"\",VLOOKUP(E9965,Insumos!AD:AE,2,FALSE))","v":""},null,{"$f":"IF(G9965=\"\",\"\",VLOOKUP(G9965,Insumos!G:H,2,FALSE))","v":""}]
[null,null,null,null,null,{"$f":"IF(E9966=\"\",\"\",VLOOKUP(E9966,Insumos!AD:AE,2,FALSE))","v":""},null,{"$f":"IF(G9966=\"\",\"\",VLOOKUP(G9966,Insumos!G:H,2,FALSE))","v":""}]
[null,null,null,null,null,{"$f":"IF(E9967=\"\",\"\",VLOOKUP(E9967,Insumos!AD:AE,2,FALSE))","v":""},null,{"$f":"IF(G9967=\"\",\"\",VLOOKUP(G9967,Insumos!G:H,2,FALSE))","v":""}]
[null,null,null,null,null,{"$f":"IF(E9968=\"\",\"\",VLOOKUP(E9968,Insumos!AD:AE,2,FALSE))","v":""},null,{"$f":"IF(G9968=\"\",\"\",VLOOKUP(G9968,Insumos!G:H,2,FALSE))","v":""}]
[null,null,null,null,null,{"$f":"IF(E9969=\"\",\"\",VLOOKUP(E9969,Insumos!AD:AE,2,FALSE))","v":""},null,{"$f":"IF(G9969=\"\",\"\",VLOOKUP(G9969,Insumos!G:H,2,FALSE))","v":""}]
[null,null,null,null,null,{"$f":"IF(E9970=\"\",\"\",VLOOKUP(E9970,Insumos!AD:AE,2,FALSE))","v":""},null,{"$f":"IF(G9970=\"\",\"\",VLOOKUP(G9970,Insumos!G:H,2,FALSE))","v":""}]
[null,null,null,null,null,{"$f":"IF(E9971=\"\",\"\",VLOOKUP(E9971,Insumos!AD:AE,2,FALSE))","v":""},null,{"$f":"IF(G9971=\"\",\"\",VLOOKUP(G9971,Insumos!G:H,2,FALSE))","v":""}]
[null,null,null,null,null,{"$f":"IF(E9972=\"\",\"\",VLOOKUP(E9972,Insumos!AD:AE,2,FALSE))","v":""},null,{"$f":"IF(G9972=\"\",\"\",VLOOKUP(G9972,Insumos!G:H,2,FALSE))","v":""}]
[null,null,null,null,null,{"$f":"IF(E9973=\"\",\"\",VLOOKUP(E9973,Insumos!AD:AE,2,FALSE))","v":""},null,{"$f":"IF(G9973=\"\",\"\",VLOOKUP(G9973,Insumos!G:H,2,FALSE))","v":""}]
[null,null,null,null,null,{"$f":"IF(E9974=\"\",\"\",VLOOKUP(E9974,Insumos!AD:AE,2,FALSE))","v":""},null,{"$f":"IF(G9974=\"\",\"\",VLOOKUP(G9974,Insumos!G:H,2,FALSE))","v":""}]
[null,null,null,null,null,{"$f":"IF(E9975=\"\",\"\",VLOOKUP(E9975,Insumos!AD:AE,2,FALSE))","v":""},null,{"$f":"IF(G9975=\"\",\"\",VLOOKUP(G9975,Insumos!G:H,2,FALSE))","v":""}]
[null,null,null,null,null,{"$f":"IF(E9976=\"\",\"\",VLOOKUP(E9976,Insumos!AD:AE,2,FALSE))","v":""},null,{"$f":"IF(G9976=\"\",\"\",VLOOKUP(G9976,Insumos!G:H,2,FALSE))","v":""}]
[null,null,null,null,null,{"$f":"IF(E9977=\"\",\"\",VLOOKUP(E9977,Insumos!AD:AE,2,FALSE))","v":""},null,{"$f":"IF(G9977=\"\",\"\",VLOOKUP(G9977,Insumos!G:H,2,FALSE))","v":""}]
[null,null,null,null,null,{"$f":"IF(E9978=\"\",\"\",VLOOKUP(E9978,Insumos!AD:AE,2,FALSE))","v":""},null,{"$f":"IF(G9978=\"\",\"\",VLOOKUP(G9978,Insumos!G:H,2,FALSE))","v":""}]
[null,null,null,null,null,{"$f":"IF(E9979=\"\",\"\",VLOOKUP(E9979,Insumos!AD:AE,2,FALSE))","v":""},null,{"$f":"IF(G9979=\"\",\"\",VLOOKUP(G9979,Insumos!G:H,2,FALSE))","v":""}]
[null,null,null,null,null,{"$f":"IF(E9980=\"\",\"\",VLOOKUP(E9980,Insumos!AD:AE,2,FALSE))","v":""},null,{"$f":"IF(G9980=\"\",\"\",VLOOKUP(G9980,Insumos!G:H,2,FALSE))","v":""}]
[null,null,null,null,null,{"$f":"IF(E9981=\"\",\"\",VLOOKUP(E9981,Insumos!AD:AE,2,FALSE))","v":""},null,{"$f":"IF(G9981=\"\",\"\",VLOOKUP(G9981,Insumos!G:H,2,FALSE))","v":""}]
[null,null,null,null,null,{"$f":"IF(E9982=\"\",\"\",VLOOKUP(E9982,Insumos!AD:AE,2,FALSE))","v":""},null,{"$f":"IF(G9982=\"\",\"\",VLOOKUP(G9982,Insumos!G:H,2,FALSE))","v":""}]
[null,null,null,null,null,{"$f":"IF(E9983=\"\",\"\",VLOOKUP(E9983,Insumos!AD:AE,2,FALSE))","v":""},null,{"$f":"IF(G9983=\"\",\"\",VLOOKUP(G9983,Insumos!G:H,2,FALSE))","v":""}]
[null,null,null,null,null,{"$f":"IF(E9984=\"\",\"\",VLOOKUP(E9984,Insumos!AD:AE,2,FALSE))","v":""},null,{"$f":"IF(G9984=\"\",\"\",VLOOKUP(G9984,Insumos!G:H,2,FALSE))","v":""}]
[null,null,null,null,null,{"$f":"IF(E9985=\"\",\"\",VLOOKUP(E9985,Insumos!AD:AE,2,FALSE))","v":""},null,{"$f":"IF(G9985=\"\",\"\",VLOOKUP(G9985,Insumos!G:H,2,FALSE))","v":""}]
[null,null,null,null,null,{"$f":"IF(E9986=\"\",\"\",VLOOKUP(E9986,Insumos!AD:AE,2,FALSE))","v":""},null,{"$f":"IF(G9986=\"\",\"\",VLOOKUP(G9986,Insumos!G:H,2,FALSE))","v":""}]
[null,null,null,null,null,{"$f":"IF(E9987=\"\",\"\",VLOOKUP(E9987,Insumos!AD:AE,2,FALSE))","v":""},null,{"$f":"IF(G9987=\"\",\"\",VLOOKUP(G9987,Insumos!G:H,2,FALSE))","v":""}]
[null,null,null,null,null,{"$f":"IF(E9988=\"\",\"\",VLOOKUP(E9988,Insumos!AD:AE,2,FALSE))","v":""},null,{"$f":"IF(G9988=\"\",\"\",VLOOKUP(G9988,Insumos!G:H,2,FALSE))","v":""}]
[null,null,null,null,null,{"$f":"IF(E9989=\"\",\"\",VLOOKUP(E9989,Insumos!AD:AE,2,FALSE))","v":""},null,{"$f":"IF(G9989=\"\",\"\",VLOOKUP(G9989,Insumos!G:H,2,FALSE))","v":""}]
[null,null,null,null,null,{"$f":"IF(E9990=\"\",\"\",VLOOKUP(E9990,Insumos!AD:AE,2,FALSE))","v":""},null,{"$f":"IF(G9990=\"\",\"\",VLOOKUP(G9990,Insumos!G:H,2,FALSE))","v":""}]
[null,null,null,null,null,{"$f":"IF(E9991=\"\",\"\",VLOOKUP(E9991,Insumos!AD:AE,2,FALSE))","v":""},null,{"$f":"IF(G9991=\"\",\"\",VLOOKUP(G9991,Insumos!G:H,2,FALSE))","v":""}]
[null,null,null,null,null,{"$f":"IF(E9992=\"\",\"\",VLOOKUP(E9992,Insumos!AD:AE,2,FALSE))","v":""},null,{"$f":"IF(G9992=\"\",\"\",VLOOKUP(G9992,Insumos!G:H,2,FALSE))","v":""}]
[null,null,null,null,null,{"$f":"IF(E9993=\"\",\"\",VLOOKUP(E9993,Insumos!AD:AE,2,FALSE))","v":""},null,{"$f":"IF(G9993=\"\",\"\",VLOOKUP(G9993,Insumos!G:H,2,FALSE))","v":""}]
[null,null,null,null,null,{"$f":"IF(E9994=\"\",\"\",VLOOKUP(E9994,Insumos!AD:AE,2,FALSE))","v":""},null,{"$f":"IF(G9994=\"\",\"\",VLOOKUP(G9994,Insumos!G:H,2,FALSE))","v":""}]
[null,null,null,null,null,{"$f":"IF(E9995=\"\",\"\",VLOOKUP(E9995,Insumos!AD:AE,2,FALSE))","v":""},null,{"$f":"IF(G9995=\"\",\"\",VLOOKUP(G9995,Insumos!G:H,2,FALSE))","v":""}]
[null,null,null,null,null,{"$f":"IF(E9996=\"\",\"\",VLOOKUP(E9996,Insumos!AD:AE,2,FALSE))","v":""},null,{"$f":"IF(G9996=\"\",\"\",VLOOKUP(G9996,Insumos!G:H,2,FALSE))","v":""}]
[null,null,null,null,null,{"$f":"IF(E9997=\"\",\"\",VLOOKUP(E9997,Insumos!AD:AE,2,FALSE))","v":""},null,{"$f":"IF(G9997=\"\",\"\",VLOOKUP(G9997,Insumos!G:H,2,FALSE))","v":""}]
[null,null,null,null,null,{"$f":"IF(E9998=\"\",\"\",VLOOKUP(E9998,Insumos!AD:AE,2,FALSE))","v":""},null,{"$f":"IF(G9998=\"\",\"\",VLOOKUP(G9998,Insumos!G:H,2,FALSE))","v":""}]
[null,null,null,null,null,{"$f":"IF(E9999=\"\",\"\",VLOOKUP(E9999,Insumos!AD:AE,2,FALSE))","v":""},null,{"$f":"IF(G9999=\"\",\"\",VLOOKUP(G9999,Insumos!G:H,2,FALSE))","v":""}]
[null,null,null,null,null,{"$f":"IF(E10000=\"\",\"\",VLOOKUP(E10000,Insumos!AD:AE,2,FALSE))","v":""},null,{"$f":"IF(G10000=\"\",\"\",VLOOKUP(G10000,Insumos!G:H,2,FALSE))","v":""}]